{"text_format":"1","workbook":"xlsx","n_sheets":24,"sheets":["Homepage","Plantlist"," Investment & Financing","Other income","Costs","Other input","Production list","Picking rates","Sales price per sales channel","Other income expert","Costs expert","Other input expert","Yield & Sales calculation","Harvest labour calculation","Fixed income & costs","Investment Budget","Profit calculation","Financing Budget","Cash-flow","Operating result","Net Operating result","Results Final ","Results","Results in graphs"],"not_rendered":{"charts":7,"images":3,"macros":1,"external_links":0,"defined_names":0,"comments":0,"pivot_tables":0},"unopened":[],"bounds":{"document_bytes":16777216,"sheet_cells":100000,"rows_first":2000,"rows_last":500,"rows_between":2000,"halvings":0,"cell_chars":16384,"cell_head_chars":4096},"cells_cut":0,"cells_raw":0,"read":"whole","date_system":"1900"}

{"sheet":"Homepage","index":0,"n_rows":27,"n_cols":16,"rows_kept":27,"cut":false,"hidden":false,"merged":[[14,2,14,5],[1,7,1,10],[1,11,1,14],[1,15,1,18],[10,2,10,5],[11,2,11,5],[1,1,1,5],[3,1,8,5],[13,2,13,5],[12,2,12,5]]}
[]
[null,"Food Forest Calulation tool 4.0",null,null,null,null,null,"Input for basic user",null,null,null,"Input for expert user",null,null,null,"Results"]
[]
[null,"This is food forest calculation tool 4.0. The tool gives insight into the financial viability of a food forest. Use the buttons on this page and the home icon to go to the different sheets. For more information, see the user manual.  "]
[]
[]
[]
[]
[]
[]
[null,"Name Food Forest:","Food Forest TRIAL "]
[null,"Name contact person:","Nicolaas Geijer"]
[null,"Location:","Town called Anywhere"]
[null,"Number of hectares total:",5]
[null,"Number of productive hectares total:",5]
[]
[]
[]
[]
[]
[]
[]
[]
[]
[]
[]
[null,"Translated by Nicolaas Geijer (www.mandius.nl/)"]

{"sheet":"Plantlist","index":1,"n_rows":201,"n_cols":7,"rows_kept":201,"cut":false,"hidden":false,"merged":[]}
[]
[]
["Scientific name","Common name","Variety / Cultivar","Category","Function","Unit","Quantity"]
["Acer campestre","Field maple",null,"No harvest",null,"plant",0]
["Acer platanoides","Norway maple",null,"No harvest",null,"plant",0]
["Acer pseudoplatanus","Sycamore",null,"No harvest",null,"plant",0]
["Acer saccharum","Sugar maple",null,"Sap","Sap","plant",0]
["Achillea millefolium","Yarrow",null,"Leaf","Leaf and flower","m2",0]
["Actinidia arguta","Hardy kiwi","Issai 15","Soft fruit","Fruit","plant",0]
["Actinidia deliciosa","Kiwi",null,"Soft fruit","Fruit","plant",0]
["Actinidia komikta","Arctisch",null,"Soft fruit","Fruit","plant",0]
["Agaricus bisporus","Common white mushroom",null,"Mushroom","Mushroom","m2",0]
["Agastache foeniculum","Anise Hyssop",null,"Leaf","Leaf","m2",0]
["Akebia quinata","Chocolate vine",null,null,"Fruit","plant",0]
["Alcea ficifolia","Hollyhocks",null,"Leaf","Leaf and flower","m2",0]
["Alchemilla xanthochlora","Lady's mantle",null,"Leaf","Leaf","m2",0]
["Allium schoenoprasum","Chives",null,"Leaf","Leaf","m2",0]
["Allium Ursinum","Wild garlic",null,"Leaf","Leaf","m2",0]
["Alnus cordata","Italian alder",null,"No harvest","Nitrogen fixing","plant",0]
["Alnus glutinosa","European alder",null,"No harvest","Nitrogen fixing","plant",0]
["Alnus incana","Gray alder",null,"No harvest","Nitrogen fixing","plant",0]
["Aloysia citrodora","Lemon verbena",null,null,"Fruit","plant",0]
["Amelanchier alnifolia","Saskatoon serviceberry",null,null,"Fruit","plant",0]
["Amelanchier laevis","serviceberry",null,null,"Fruit","plant",0]
["Amelanchier lamarckii","serviceberry",null,"Soft fruit","Fruit","plant",0]
["Amorpha fruticosa","False indigo",null,null,null,"plant",0]
["Angelica archangelica","Norwegian angelica",null,null,"Seeds and flower","m2",0]
["Aralia elata","Angelica tree",null,"Leaf","Leaf","plant",0]
["Araucaria araucana","Monkey puzzle",null,"Seeds","Seeds","plant",0]
["Arbutus unedo","Strawberry tree",null,null,"Fruit","plant",0]
["Arnica spp.","Arnica",null,null,null,"plant",0]
["Aronia arbutifolia","Chokeberry",null,"Soft fruit","Fruit","plant",0]
["Aronia melanocarpa","Chokeberry",null,"Soft fruit","Fruit","plant",0]
["Aronia prunifolia","Chokeberry",null,"Soft fruit","Fruit","plant",0]
["Artemisia abrotanum","Mugwort",null,"Leaf","Leaf","m2",0]
["Artemisia dracunculus","Mugwort",null,"Leaf","Leaf","m2",0]
["Artemisia moxa","Mugwort",null,null,null,"plant",0]
["Asimina triloba","Pawpaw",null,null,"Fruit","plant",0]
["Berberis aristata","European barberry",null,null,"Fruit","plant",0]
["Berberis vulgaris","barberry",null,"Soft fruit","Fruit","plant",0]
["Bunium bulbocastanum","Pig nut",null,"Root","Root","plant",0]
["Capparis Spinosa","Caper",null,null,"Flowers","plant",0]
["Caragana arborecens","Siberian pea tree",null,"Seeds","Seeds","plant",0]
["Carya illinoiensis","Pecan",null,"Nuts","Nuts","plant",0]
["Carya spp","Hickory",null,"Nuts","Nuts","plant",0]
["Castanea mollissima","Chinese chestnut",null,"Nuts","Chestnut","plant",0]
["Castanea sativa","Sweet chestnut","Lyon","Nuts","Chestnut","plant",0]
["Casteana Pumiles","Chinquapin",null,"Nuts","Nuts","plant",0]
["Celtis australis","Nettle tree",null,null,"Fruit","plant",0]
["Cercis siliquastrum","Judas tree",null,null,"Seeds and flower","plant",0]
["Chaenomeles cathayensis","Chinese quince",null,null,"Fruit","plant",0]
["Chaenomeles speciosa","Japanse quince","japonica 60",null,"Fruit","plant",0]
["Chaenomeles spp.","Flowering quince",null,null,"Fruit","plant",0]
["Chelidonium majus","Greater celandine",null,"Leaf","Leaf","m2",0]
["Cornus kousa","Japanese dogwood","Big apple ",null,"Fruit","plant",0]
["Cornus mas","Cornelian cherry","Jolico",null,"Fruit","plant",0]
["Cornus sanguinea","Dogwood",null,null,"Fruit","plant",0]
["Corylus avellana","Hazelnut","Webb's ","Nuts","Nuts","plant",0]
["Crataegus persimilis","hawthorn",null,null,"Fruit","plant",0]
["Crataegus pinnatifida","hawthorn","Major",null,"Fruit","plant",0]
["Cydonia oblonga (sept)","Quince","Ludovich",null,"Fruit","plant",0]
["Cynara cardunculus","Cardoon",null,null,"Shoot","plant",0]
["Decaisnea fargesii","Blue sausage fruit",null,null,"Fruit","plant",0]
["Diospyros virginiana","Persimmon, Kaki",null,"Hard fruit","Fruit","plant",0]
["Diospyrus kaki","Persimmon, Kaki",null,"Hard fruit","Fruit","plant",0]
["Diospyrus virginia","Persimmon, Kaki",null,"Hard fruit","Fruit","plant",0]
["Echinacea spp.","Echinasea",null,null,"Medicinal","m2",0]
["Elaeagnus umbellata","Autumn olive",null,"Soft fruit","Fruit","plant",0]
["Elaeagnus x ebbingei","Ebbing's silverberry","Limelight","Soft fruit","Fruit","plant",0]
["Eleutherococcus spp.","Ginseng",null,"Root","Root","plant",0]
["Fagus spp","Beech",null,"Nuts","Nuts","plant",0]
["Feijoa sellowiana","Pineapple guava",null,null,"Fruit","plant",0]
["Ficus carica","Fig","Brown Turkey","Soft fruit","Fruit","plant",0]
["Foeniculum vulgare","Fennel",null,"Leaf","Leaf","m2",0]
["Gaultheria spp.","Salal",null,"Leaf","Leaf","m2",0]
["Geum spp.","Wood avens",null,"Root","Root ","m2",0]
["Ginkgo Biloba","Ginkgo",null,"Nuts","Nuts","plant",0]
["Gleditsia triacanthos","Honey locust",null,"Seeds","Seeds","plant",0]
["Halesia carolina","Silver-bell tree",null,null,"Flowers","plant",0]
["Helichrysum italicum","Curry plant",null,"Leaf","Leaf","m2",0]
["Hemercallis","Day lily",null,"Flower","Flower","m2",0]
["Hibiscus syriacus","Hibiscus","Marina","Flower","Flower","plant",0]
["Hippophae rhamnoides","Sea Buckthorn","Pollmix (M)","Soft fruit","Fruit","plant",0]
["Hosta spp.","Hosta",null,null,"Shoot","m2",0]
["Hovenia Dulcis","Japanese raisin tree",null,null,"Fruit","plant",0]
["Humulus Lupulus","Hop",null,null,"Fruit","plant",0]
["Hydrangea serrata","Hydrangea",null,"Leaf","Leaf","plant",0]
["Hypsizygus tessellatus","Beech mushroom",null,"Mushroom","Mushroom","m2",0]
["Ilex aquifolium","Holly",null,"Soft fruit","Leaf and fruit","plant",0]
["Juglans ailantifolia","Japanese walnut (hartnut)",null,"Nuts","Nuts","plant",0]
["Juglans cinerea","Butternut, white walnut","Beckwith","Nuts","Nuts","plant",0]
["Juglans nigra","Black walnut","Bicentennial","Nuts","Nuts","plant",0]
["Juglans regia","Walnut","Broadview","Nuts","Nuts","plant",0]
["Laurus nobilis","Bay tree",null,"Leaf","Leaf and Fruit","plant",0]
["Lentinula edodes","Shiitake",null,"Mushroom","Mushroom","m2",0]
["Lonicera caerulea","Honeysuckle","Kamtschatica","Soft fruit","Fruit","plant",0]
["lonicera caerulea (juli)","Honeysuckle","Blue Velvet","Soft fruit","Fruit","plant",0]
["Lycium barbarum","Gojiberry",null,"Soft fruit","Fruit","plant",0]
["Magnolia x soulangeana","Magnolia",null,"flower","Flowers","plant",0]
["Mahonia aquifolium","Oregon grape","Smaragd","Soft fruit","Fruit","plant",0]
["Malus domestica (Culinary)","Apple",null,"Hard fruit","Apple","plant",0]
["Malus domestica (Dessert)","Apple",null,"Hard fruit","Apple","plant",0]
["Malus domestica cider","Apple",null,"Hard fruit","Apple","plant",0]
["Malus domestica (Mid)","Apple",null,"Hard fruit","Apple","plant",0]
["Malus domestica (Early)","Apple",null,"Hard fruit","Apple","plant",0]
["Malus pumila","Apple",null,"Hard fruit","Apple","plant",0]
["Mellissa off.","Lemon balm",null,"Leaf","Leaf","m2",0]
["Mentha spp.","Mint",null,"Leaf","Leaf","m2",0]
["Mespilus germanica ","Medlar","Nothingham",null,"Fruit","plant",0]
["Monarda didyma","Bergamot",null,null,"Leaf and flower","m2",0]
["Morus alba","White mulberry",null,"Soft fruit","Fruit","plant",0]
["Morus nigra","Black mulberry",null,"Soft fruit","Fruit","plant",0]
["Myosotis spp.","Forget-me-not",null,null,null,"plant",0]
["Myrica gale","Bog myrtle",null,null,"Fruit","plant",0]
["Myrica pensylvanica","myrtle",null,null,"Fruit","plant",0]
["Nepeta nervosa","Catmint",null,"Leaf","Leaf","m2",0]
["Nepeta x. faassenii","Catmint",null,"Leaf","Leaf","m2",0]
["Paulownia tomentosa","Princess tree",null,"flower","Flower","plant",0]
["Persicaria odorata","Vietnamese coriander",null,"Leaf","Leaf","m2",0]
["Phyllostachus bissetii 80","Bamboo","Aurea 80",null,"Shoot","plant",0]
["Pinus Koraiensis","Korean pine",null,"Seeds","Nuts","plant",0]
["Pleurotus ostreatus","Oyster mushroom",null,"Mushroom","Mushroom","m2",0]
["Poncirus trifoliata","Hardy orange",null,"Hard fruit","Fruit","plant",0]
["Populus canadensis","Poplar","Koster","No harvest",null,"plant",0]
["Primula vulgaris","Primrose",null,null,"Leaf and flower","m2",0]
["Prunus armeniaca","Apricot","Goldcot","Hard fruit","Fruit","plant",0]
["Prunus avium","Cherry",null,"Soft fruit","Fruit","plant",0]
["Prunus cerasifera","Cherry plum",null,"Soft fruit","Fruit","plant",0]
["Prunus cerasus","Sour cherry",null,"Soft fruit","Fruit","plant",0]
["Prunus domestica","Plum","Opal","Hard fruit","Fruit","plant",0]
["Prunus dulcis","Almond","Robijn","Nuts","Nuts","plant",0]
["Prunus insititia","Damson",null,null,"Fruit","plant",0]
["Prunus persica","Peach",null,"Hard fruit","Fruit","plant",0]
["Prunus persica nusipersica","Nectarine ",null,"Hard fruit","Fruit","plant",0]
["Prunus salicina","Japanese plum",null,"Hard fruit","Fruit","plant",0]
["Prunus salicina x Prunus armeniaca","Pluot","Pluot","Hard fruit","Fruit","plant",0]
["Prunus tomentosa","Nanking cherry",null,null,"Fruit","plant",0]
["Pulmonaria off.","Lungwort",null,"Leaf","Leaf","m2",0]
["Punica granatum","Pomegranate",null,"Hard fruit","Fruit","plant",0]
["Pyrus bretschneideri","Chinese white pear",null,"Hard fruit","Fruit","plant",0]
["Pyrus communis","Pear","Conference","Hard fruit","Fruit","plant",0]
["Pyrus pyrifolia","Chinese pear","Nijsseiki 50","Hard fruit","Fruit","plant",0]
["Quercus spp.","Oak",null,"Nuts","Nuts","plant",0]
["Rhamnus frangula","Alder buckthorn",null,"No harvest",null,"plant",0]
["Rheum rabarberum","Rhubarb",null,null,"Shoot","plant",0]
["Rhus aromatica","Sumac",null,"flower","Flower","plant",0]
["Rhus glabra","Sumac ",null,"Soft fruit","Fruit","plant",0]
["Ribes divaricatum","Black gooseberry",null,"Soft fruit","Fruit","plant",0]
["Ribes 'Josta'","Jostaberry","Jostabes","Soft fruit","Fruit","plant",0]
["Ribes nigrum","Black currant",null,"Soft fruit","Fruit","plant",0]
["Ribes rubrum","Red currant",null,"Soft fruit","Fruit","plant",0]
["Ribes Uva-Crispa","Gooseberry",null,"Soft fruit","Fruit","plant",0]
["Ribes x. nidigrolaria","Jostaberry",null,"Soft fruit","Fruit","plant",0]
["Robinia pseudoacacia","Black locust",null,"No harvest","Nitrogen fixing","plant",0]
["Rosa rugosa","Rimpelroos",null,null,"Fruit","plant",0]
["Rosmarinum off.","Rosemary",null,"Leaf","Leaf","m2",0]
["Rubus fruticosus","Blackberry",null,"Soft fruit","Fruit","plant",0]
["Rubus hibrids","Tayberry ","Lochness","Soft fruit","Fruit","plant",0]
["Rubus idaeus","Raspberry","Autumn bliss","Soft fruit","Fruit","plant",0]
["Rubus loganobaccus","Loganberry",null,"Soft fruit","Fruit","plant",0]
["Rubus phoenicolasius","Japanese wineberry",null,"Soft fruit","Fruit","plant",0]
["Ruta graveolens","Rue",null,"Leaf","Leaf","m2",0]
["Salvia off.","Sage",null,"Leaf","Leaf","m2",0]
["Sambucus canadiensis","American elder",null,null,"Flower and fruit","plant",0]
["Sambucus nigra","Elderberry","Korsor",null,"Fruit ","plant",0]
["Santolina chamaecyparissus","Cotton lavender",null,null,null,"plant",0]
["Sassafras albidum","Sassafras",null,"Leaf","Leaf","plant",0]
["Schisandra spp.","Magnolia vine",null,"Leaf","Leaf","plant",0]
["Scutellaria galericulata","Common skullcap",null,null,null,"plant",0]
["Solidago spp.","goldenrod",null,"Leaf","Leaf","m2",0]
["Sorbus aucuparia","Mountain ash",null,"Soft fruit","Fruit","plant",0]
["Sorbus domestica","Service tree",null,"Soft fruit","Fruit","plant",0]
["Sorbus torminalis","Service tree",null,"Soft fruit","Fruit","plant",0]
["Staphylea pinnata","Bladder nut",null,"Nuts","Nuts","plant",0]
["Symphytum officinale","Comfrey",null,"Leaf","Leaf","m2",0]
["Tanacetum balsamita","Alecost",null,"Leaf","Leaf","m2",0]
["Tanacetum parthenium","Feverfew",null,null,"Leaf and flower","m2",0]
["Teucrium chamaedrys","Wall germander",null,"Leaf","Leaf","m2",0]
["Thymus Vulgaris","Thyme",null,"Leaf","Leaf","m2",0]
["Tilia cordata","Lime ",null,"Leaf","Leaf","plant",0]
["Toona sinensis","Chinese cedar",null,"Leaf","Leaf","plant",0]
["Ugni Molinae","Chilean guava",null,null,"Fruit","plant",0]
["Ulmus laevis","Elm",null,"No harvest",null,"plant",0]
["Urtica Dioica","Nettle",null,"Leaf","Leaf","m2",0]
["Vaccinium Corymbosum","Blueberry",null,"Soft fruit","Fruit","plant",0]
["Vaccinium Macrocarpon","Cranberry ",null,"Soft fruit","Fruit","plant",0]
["Valeriana off.","Valerian",null,"Root","Root","m2",0]
["Viburnum Lentago","Sheepberry",null,"Soft fruit","Fruit","plant",0]
["Viburnum setigerum","Tea-leaf viburnum",null,"Soft fruit","Leaf en bes","plant",0]
["Vitis vinifera","Grape",null,"Soft fruit","Fruit","plant",0]
["Xanthoceras sorbifolium","Yellowhorn",null,"Nuts","Chestnut","plant",0]
["Zanthoxylum spp","Szechuan pepper","simulans","Soft fruit","Fruit","plant",0]
["Ziziphus jujube","Jujube",null,"Soft fruit","Fruit","plant",0]
["Chephalotaxus","Chinese plum yew",null,null,"Nuts","plant",0]
["ZR other",null,null,null,null,"plant",0]
["ZR other",null,null,null,null,"plant",0]
["ZR other",null,null,null,null,"plant",0]
["ZR other",null,null,null,null,"plant",0]
[]
[null,null,null,null,null,"Total plants",{"$f":"SUM(G4:G198)","v":0}]
[null,null,null,null,null,"Plant / production hectare",{"$f":"G200/Homepage!C15","v":0}]

{"sheet":" Investment & Financing","index":2,"n_rows":17,"n_cols":11,"rows_kept":17,"cut":false,"hidden":false,"merged":[[0,8,0,9],[0,1,0,4]]}
[]
[]
["Investments","In possession?","Purchase","Purchase year","Residual value","Useful life in years",null,"Type of financing","Interest rate","Time span","Calculated interest rate"]
["Land","No",0,0,1,0,null,"External",0,0,0]
["Buildings","No",0,0,1,0,null,"External",0,0,0]
["Infrastructure","No",0,0,1,0,null,"External",0,0,0]
["Machines ","No",0,0,1,0,null,"External",0,0,0]
["Material","No",0,0,1,0,null,"Private",0,0,0]
["Plants Cropping","No",0,0,1,0,null,"Private",0,0,0]
["Plants Windbreaks","No",0,0,1,0,null,"Private",0,0,0]
["Farming equipment","No",0,0,1,0,null,"External",0,0,0]
["Design","No",0,0,1,0,null,"Private",0,0,0]
["Earthworks","No",0,0,1,0,null,"Private",0,0,0]
["Plants high longevity","No",0,0,1,0,null,"External",0,0,0]
["Marketing","No",0,0,1,0,null,"Private",0,0,0]
["Other","No",0,0,1,0,null,"Private",0,0,0]
["Total",null,{"$f":"SUM(C4:C16)","v":0}]

{"sheet":"Other income","index":3,"n_rows":38,"n_cols":3,"rows_kept":38,"cut":false,"hidden":false,"merged":[]}
[]
[]
["Fixed income"]
["Number of workshops/year",0,"Total"]
["Price/person/workshop",0]
["Average number of persons/workshop",0,"Total"]
["Tours/year",0,"Total"]
["Price/person/tour",0]
["Average number of persons/tour",0,"Total"]
["Events/year",0,"Total"]
["Average price/event",0]
["Other fixed income/year",0,"Total"]
[]
["Variable income"]
["Wood (fuel, timber, etc)",0,"Per ha"]
["Other variable income",0,"Per ha"]
["Write-down land",0,"One-time per ha"]
[]
["Grants and compensations"]
["Biodiversity",0,"Per year"]
["Climateadaptation",0,"Per year"]
["Carbon sequestration",0,"Tonne"]
["Carbon credit",0,"Per tonne"]
["Ecosystem service 1",null,"Unit"]
["Compensation 1",0,"Unit"]
["Ecosystem service 2",null,"Unit"]
["Compensation 2",0,"Unit"]
["Other compenstaions",0,"Per year"]
[]
["Grants and compensations per ha"]
["Compensation",0,"Per ha"]
["CAP (EU common agriculture policy)",0,"Per ha"]
["Soil Organic Matter accumulation",0,"% accumulation per year"]
["Soil Organic Matter compensation",0,"Per % accumulation per ha"]
["Bufferzones",0,"Per ha"]
["Sowing cropland borders",0,"Per ha"]
["Sowing cover crops",0,"Per ha"]
["Other compensations",0,"Per ha"]

{"sheet":"Costs","index":4,"n_rows":59,"n_cols":3,"rows_kept":59,"cut":false,"hidden":false,"merged":[[55,0,55,1],[22,0,22,1],[50,0,50,1],[46,0,46,1],[42,0,42,1],[38,0,38,1],[26,0,26,1],[34,0,34,1],[30,0,30,1]]}
[]
[]
["Fixed costs"]
["Lease/ha",0,"Per ha"]
["Certification",0,"Total"]
["Website, logo & design ",0,"Total"]
["Marketing & sales",0.02,"Of total revenue "]
["Utilities",0,"Total"]
["Advice",0,"Total"]
["Start-up cost",0,"Total"]
["Maintenance",0.05,"Of total write-down"]
["Insurances",0,"Per ha"]
["Other costs",0,"Total"]
["Unforseen costs",0.1,"Of total costs"]
[]
["Variable costs"]
["Packaging",0.1,"Per kg "]
["Transport ",0,"Per kg "]
["Storage",0.1,"Per kg "]
["Other variable costs",0.2,"Per kg "]
[]
["Labour per ha"]
["Start-up (planting, etc)"]
["Hours/year/ha (FF farmer) labour ",0]
["Hours/year/ha external labour ",0]
["Price/hour external labour",0]
["Observation and inspection"]
["Hours/year/ha (FF farmer) labour ",0]
["Hours/year/ha external labour ",0]
["Price/hour external labour",0]
["(green) Maintenance"]
["Hours/year/ha (FF farmer) labour ",0]
["Hours/year/ha external labour ",0]
["Price/hour external labour",0]
["Organisation and logistics"]
["Hours/year (FF farmer) labour",0]
["Hours/year external labour",0]
["Price/hour external labour",0]
["Tours"]
["Hours/year (FF farmer) labour",0]
["Hours/year external labour"]
["Price/hour external labour",0]
["Events"]
["Hours/year (FF farmer) labour",0]
["Hours/year external labour"]
["Price/hour external labour",0]
["Workshops "]
["Hours/year (FF farmer) labour",0]
["Hours/year external labour"]
["Price/hour external labour",0]
["Other labour"]
["Hours/year/ha (FF farmer) labour ",0]
["Hours/year/ha external labour ",0]
["Price/hour external labour",0]
[]
["Harvest labour"]
["Percentage (FF farmer) labour",0]
["Percentage exteral labour",0]
["Price/hour external labour",0]

{"sheet":"Other input","index":5,"n_rows":19,"n_cols":2,"rows_kept":19,"cut":false,"hidden":false,"merged":[]}
[]
[]
["Effects on the Food Forest"]
["Harvest percentage",0.75]
["Ratio quality A/B",0.9]
["Price A quality",1]
["Price B quality",0.5]
["Effect soil type",1]
["Effect picking performance",1]
[]
["Yield disribution over channels"]
["Supermarket",1]
["Catering",0]
["Consumer",0]
["Total ",1]
[]
["Private withdrawals"]
["Monthly",0]
["Yearly",0]

{"sheet":"Production list","index":6,"n_rows":199,"n_cols":15,"rows_kept":199,"cut":false,"hidden":false,"merged":[[2,3,2,14]]}
[]
[]
[null,null,null,"Production in kg per plant or m2 "]
["Scientific name","Common name","Variety / Cultivar",1,2,3,4,5,6,7,8,9,10,"11/15 yr","16/20 yr"]
["Acer campestre","Field maple",null,0,0,0,0,0,0,0,0,0,0,0.17,0.46]
["Acer platanoides","Norway maple",null,0,0,0,0,0,0,0,0,0,0,0.17,0.46]
["Acer pseudoplatanus","Sycamore",null,0,0,0,0,0,0,0,0,0,0,0.17,0.46]
["Acer saccharum","Sugar maple",null,0,0,0,0,0,0,0,0,0,0,0.17,0.46]
["Achillea millefolium","Yarrow",null,0,0,0.2,0.3,0.3,0.3,0.3,0.3,0.3,0.3,0.3,0.3]
["Actinidia arguta","Hardy kiwi","Issai 15",0,0,0,2,4,6,15,20,25,30,30,30]
["Actinidia deliciosa","Kiwi",null,0,1,2.0942408376963351,4.1258380608561112,7.322319344652418,11.241520556174228,14.808195688454996,17.274565136777642,18.674185210704596,19.380807649484439,19.89839337506168,19.99810653899997]
["Actinidia komikta","Arctisch",null,0,1,2.0942408376963351,4.1258380608561112,7.322319344652418,11.241520556174228,14.808195688454996,17.274565136777642,18.674185210704596,19.380807649484439,19.89839337506168,19.99810653899997]
["Agaricus bisporus","Common white mushroom",null,0.1,0.1,0.1,0.1,0.1,0.1,0.1,0.1,0.1,0.1,0.1,0.1]
["Agastache foeniculum","Anise Hyssop",null,0.05,0.05,0.05,0.05,0.05,0.05,0.05,0.05,0.05,0.05,0.05,0.05]
["Akebia quinata","Chocolate vine",null,0,1,2.9850746268656714,7.3800738007380078,13.218770654329148,17.332524482190831,19.117351864419739,19.726764583750469,19.917237901348525,19.975099241037114,19.997868796054568,19.999994819684694]
["Alcea ficifolia","Hollyhocks",null,0.05,0.05,0.05,0.05,0.05,0.05,0.05,0.05,0.05,0.05,0.05,0.05]
["Alchemilla xanthochlora","Lady's mantle",null,0.05,0.05,0.05,0.05,0.05,0.05,0.05,0.05,0.05,0.05,0.05,0.05]
["Allium schoenoprasum","Chives",null,0.02,0.02,0.02,0.02,0.02,0.02,0.02,0.02,0.02,0.02,0.02,0.02]
["Allium Ursinum","Wild garlic",null,0.1,0.1,0.1,0.1,0.1,0.1,0.1,0.1,0.1,0.1,0.1,0.1]
["Alnus cordata","Italian alder",null,0,0,0,0,0,0,0,0,0,0.5,7.82,19.5]
["Alnus glutinosa","European alder",null,0,0,0,0,0,0,0,0,0,0,0,0]
["Alnus incana","Gray alder",null,0,0,0,0,0,0,0,0,0,0,0,0]
["Aloysia citrodora","Lemon verbena",null,0.05,0.05,0.05,0.05,0.05,0.05,0.05,0.05,0.05,0.05,0.05,0.05]
["Amelanchier alnifolia","Saskatoon serviceberry",null,0,0,0,2,12,17,22,35,45,45,45,45]
["Amelanchier laevis","serviceberry",null,0,0.5,0.99009900990099009,1.7714791851195748,2.7470640752695559,3.6521508886139626,4.2878877087966814,4.6523144413844646,4.8373197245541562,4.9254599953150437,4.98790422563187,4.9997757523682953]
["Amelanchier lamarckii","serviceberry",null,0,0.5,0.99009900990099009,1.7714791851195748,2.7470640752695559,3.6521508886139622,4.2878877087966814,4.6523144413844646,4.8373197245541562,4.9254599953150437,4.98790422563187,4.9997757523682953]
["Amorpha fruticosa","False indigo",null,0,0,0,0,0,0,0,0,0,0,0,0]
["Angelica archangelica","Norwegian angelica",null,0.05,0.05,0.05,0.05,0.05,0.05,0.05,0.05,0.05,0.05,0.05,0.05]
["Aralia elata","Angelica tree",null,0.05,0.05,0.05,0.05,0.05,0.05,0.05,0.05,0.05,0.05,0.05,0.05]
["Araucaria araucana","Monkey puzzle",null,0,0,0,0,0,0,0,0,0,0,0,0]
["Arbutus unedo","Strawberry tree",null,0,1,2.8846153846153846,6.6371681415929205,10.885341074020319,13.472247170828092,14.506489236184988,14.848456651415653,14.954213190054691,14.986234544121842,14.998822140048663,14.999997137193645]
["Arnica spp.","Arnica",null,0.05,0.05,0.05,0.05,0.05,0.05,0.05,0.05,0.05,0.05,0.05,0.05]
["Aronia arbutifolia","Chokeberry",null,0,1,3.9024390243902443,6.9114470842332612,7.8153620710709486,7.971750110545754,7.9957497592685893,7.9993621758565085,7.9999043198943482,7.9999856478382476,7.9999994934907903,7.9999999999615365]
["Aronia melanocarpa","Chokeberry",null,0,1,3.9024390243902443,6.9114470842332612,7.8153620710709486,7.971750110545754,7.9957497592685893,7.9993621758565085,7.9999043198943482,7.9999856478382476,7.9999994934907903,7.9999999999615365]
["Aronia prunifolia","Chokeberry",null,0,1,3.9024390243902443,6.9114470842332612,7.8153620710709486,7.971750110545754,7.9957497592685893,7.9993621758565085,7.9999043198943482,7.9999856478382476,7.9999994934907903,7.9999999999615365]
["Artemisia abrotanum","Mugwort",null,0.05,0.05,0.05,0.05,0.05,0.05,0.05,0.05,0.05,0.05,0.05,0.05]
["Artemisia dracunculus","Mugwort",null,0.05,0.05,0.05,0.05,0.05,0.05,0.05,0.05,0.05,0.05,0.05,0.05]
["Artemisia moxa","Mugwort",null,0.05,0.05,0.05,0.05,0.05,0.05,0.05,0.05,0.05,0.05,0.05,0.05]
["Asimina triloba","Pawpaw",null,0,0,0,0,0,1,2,3,4,5,6,6]
["Berberis aristata","European barberry",null,0,0,0,0,0,0,0,0,0,0,0,0]
["Berberis vulgaris","barberry",null,0.25,0.25,0.25,0.25,0.25,0,0,0,0,0,0,0]
["Bunimum bulbocastanum","Pig nut",null,0.02,0.02,0.02,0.02,0.02,0.02,0.02,0.02,0.02,0.02,0.02,0.02]
["Capparis Spinosa","Caper",null,0,0,0.5,1,2,3,3,3,3,3,3,3]
["Caragana arborecens","Siberian pea tree",null,0,0,0.1,0.2,0.3,0.4,0.5,0.5,0.5,0.5,0.5,0.5]
["Carya illinoiensis","Pecan",null,0,0,0,1,2,4,6,8,10,9,11.5,14]
["Carya spp","Hickory",null,0,0,0,0,0,0,0,0,0,0,0,19]
["Castanea mollissima","Chinese chestnut",null,0,0,0,0,0,5,6,8,9,11,20.6,40]
["Castanea sativa","Sweet chestnut","Lyon",0,0,0,0,2.5,4,5,6,7,8,16,25]
["Casteana Pumiles","Chinquapin",null,0,0,0,2,2.5,3,4,4.5,5,5.5,6,6]
["Celtis australis","Nettle tree",null,0,0,0,0,0,0,0,0,0,0,0,0]
["Cercis siliquastrum","Judas tree",null,0,0,0,0,0,0,0,0,0,0,0,0]
["Chaenomeles cathayensis","Chinese quince",null,0,0.5,1.9512195121951221,3.455723542116631,3.9076810355354739,3.9858750552728766,3.9978748796342951,3.9996810879282538,3.9999521599471746,3.9999928239191234,3.9999997467453943,3.9999999999807678]
["Chaenomeles speciosa","Japanse quince","japonica 60",0,0.5,1.9512195121951221,3.455723542116631,3.9076810355354739,3.9858750552728766,3.9978748796342951,3.9996810879282538,3.9999521599471746,3.9999928239191234,3.9999997467453943,3.9999999999807678]
["Chaenomeles spp.","Flowering quince",null,0,0.5,1.9512195121951221,3.455723542116631,3.9076810355354739,3.9858750552728766,3.9978748796342951,3.9996810879282538,3.9999521599471746,3.9999928239191234,3.9999997467453943,3.9999999999807678]
["Chelidonium majus","Greater celandine",null,0.05,0.05,0.05,0.05,0.05,0.05,0.05,0.05,0.05,0.05,0.05,0.05]
["Cornus kousa","Japanese dogwood","Big apple ",0,0,0,0,0,0,0,0,0,0,0,0]
["Cornus mas","Cornelian cherry","Jolico",0,0,0,0,0,0,0,0,1,3,8.1999999999999993,13]
["Cornus sanguinea","Dogwood",null,0,0.5,0.5,0.5,0.5,0.5,0.5,0.5,0.5,0.5,0.5,0.5]
["Corylus avellana","Hazelnut","Webb's ",0,0,0,0,0.2,1,2,3,4,4,4,4]
["Crataegus persimilis","hawthorn",null,0,0,0,0,0,0,0,0,0,0,0,0]
["Crataegus pinnatifida","hawthorn","Major",0,2,5.4054054054054061,11.049723756906078,16.090104585679807,18.641066268990588,19.571961208372883,19.869635322648104,19.960711331885452,19.988197169453411,19.998990329156261,19.999997546165527]
["Cydonia oblonga (sept)","Quince","Ludovich",0,0,0,3,5,12,18,18,18,18,18,18]
["Cynara cardunculus","Cardoon",null,0.1,0.1,0.1,0.1,0.1,0.1,0.1,0.1,0.1,0.1,0.1,0.1]
["Decaisnea fargesii","Blue sausage fruit",null,0,1,1,1,1,1,1,1,1,1,1,1]
["Diospyros virginiana","Persimmon, Kaki",null,0,0,0,0,0,0,0,0,0,0,0,0]
["Diospyrus kaki","Persimmon, Kaki",null,0,0,2,6.4171122994652405,19.017432646592709,46.278441959120713,81.196292035997018,104.95290238505471,115.05151911149547,118.47132890178163,119.8679966212311,119.999678277263]
["Diospyrus virginia","Persimmon, Kaki",null,0,0,0,9,12,15,18,21,25,30,30,30]
["Echinacea spp.","Echinasea",null,0.05,0.05,0.05,0.05,0.05,0.05,0.05,0.05,0.05,0.05,0.05,0.05]
["Elaeagnus umbellata","Autumn olive",null,0,0,0,2,4,6,8,10,10,10,10,10]
["Elaeagnus x ebbingei","Ebbing's silverberry","Limelight",0,0.5,1.2,2.0689655172413794,2.643171806167401,2.8832292167227296,2.9639875512522846,2.9891047133199491,2.9967230833084026,2.9990161727445313,2.9999158556555265,2.9999997955137641]
["Eleutherococcus Ginseng","Ginseng",null,0,0,0,0,0.12,0.15,0.15,0.15,0.15,0.15,0.15,0.15]
["Fagus spp","Beech",null,0,0,0,0,0,0,0,0,0,0,0,0]
["Feijoa sellowiana","Pineapple guava",null,0,0,3,6,9,10,11,11,12,12,13.8,18.2]
["Ficus carica","Fig","Brown Turkey",0,0,0,3,5,8,10,12,15,20,20,20]
["Foeniculum vulgare","Fennel",null,0.02,0.02,0.02,0.02,0.02,0.02,0.02,0.02,0.02,0.02,0.02,0.02]
["Gaultheria salal","Salal",null,0,0,0,0,0,0,0,0,0,0,0,0]
["Geum spp-.","Wood avens",null,0.05,0.05,0.05,0.05,0.05,0.05,0.05,0.05,0.05,0.05,0.05,0.05]
["Ginkgo Biloba","Ginkgo",null,0,0,0,0,0,0,0,0,0,0,0,0]
["Gleditsia triacanthos","Honey locust",null,0,0,2,4,5,10,15,20,25,33,33,33]
["Halesia carolina","Silver-bell tree",null,0,0,0,0,0,0,0,0,0,0.1,0.1,0.1]
["Helichrysum italicum","Curry plant",null,0.05,0.05,0.05,0.05,0.05,0.05,0.05,0.05,0.05,0.05,0.05,0.05]
["Hemercallis","Day lily",null,0,0,0,0,0,0,0,0.2,0.2,0.2,0.3,0.3]
["Hibiscus syriacus","Hibiscus","Marina",0,0,0,0,0,0,0,0,0,0,0,0]
["Hippophae rhamnoides","Sea Buckthorn","Pollmix (M)",0,0,0,0,6,10,10,10,10,10,10,10]
["Hosta spp.","Hosta",null,0,0,0.5,0.75,1,1.25,1.5,2,2.25,2.5,2.5,2.5]
["Hovenia Dulcis","Japanese raisin tree",null,0,0,0,2,1,6,11,17,22,22,22,22]
["Humulus Lupulus","Hop",null,0,0,0.1,0.2,0.25,0.25,0.25,0.25,0.25,0.25,0.25,0.25]
["Hydrangea serrata","Hydrangea",null,0,0,0,0,0,0,0,0,0,0,0,0]
["Hypsizygus tessellatus","Beech mushroom",null,0.1,0.1,0.1,0.1,0.1,0.1,0.1,0.1,0.1,0.1,0.1,0.1]
["Ilex aquifolium","Holly",null,0,0,0,0,0,0,0,0,0,0,0,0]
["Juglans ailantifolia","Japanese walnut (hartnut)",null,0,0,0,0,2.2999999999999998,5,9,12,18,23,24.2,30]
["Juglans cinerea","Butternut, white walnut","Beckwith",0,0,0,0,0,1,2.8846153846153846,4.7692307692307692,6.6538461538461542,8.5384615384615383,14.2,28]
["Juglans nigra","Black walnut","Bicentennial",0,0,0,0,0,1,1.5,2,2.5,3,6,14]
["Juglans regia","Walnut","Broadview",0,0,0,0,0,1,2.8846153846153846,4.7692307692307692,6.6538461538461542,8.5384615384615383,14.2,28]
["Laurus nobilis","Bay tree",null,0.05,0.05,0.05,0.05,0.05,0.05,0.05,0.05,0.05,0.05,0.05,0.05]
["Lentinula edodes","Shiitake",null,0.1,0.1,0.1,0.1,0.1,0.1,0.1,0.1,0.1,0.1,0.1,0.1]
["Lonicera caerulea","Honeysuckle","Kamtschatica",0,0,0.1,0.2,0.4,0.6,0.8,1,1.2,1.4,1.5,1.5]
["lonicera caerulea (juli)","Honeysuckle","Blue Velvet",0,0,0.1,0.2,0.4,0.6,0.8,1,1.2,1.4,1.5,1.5]
["Lycium barbarum","Gojiberry",null,0,0,2,3,4,5,6,7,8,8,8,8]
["Magnolia x soulangeana","Magnolia",null,0,0,0,0,0,0,0,0,0,0,0,0]
["Mahonia aquifolium","Oregon grape","Smaragd",0,0,0,0,0,0,0,0,0,0,0,0]
["Malus domestica (Culinary)","Apple",null,0,0,0,0.5,4.916666666666667,9.3333333333333339,13.75,18.166666666666668,22.583333333333332,50,65,100]
["Malus domestica (Dessert)","Apple",null,0,0,0,0.5,4.9000000000000004,5.9,13.8,18.2,22.6,50,65,100]
["Malus domestica cider","Apple",null,0,0,0,0.5,4.916666666666667,9.3333333333333339,13.75,18.166666666666668,22.583333333333332,50,65,100]
["Malus domestica (Mid)","Apple",null,0,0,0,0.5,4.916666666666667,9.3333333333333339,13.75,18.166666666666668,22.583333333333332,50,65,100]
["Malus domestica (Early)","Apple",null,0,0,0,0.5,4.916666666666667,9.3333333333333339,13.75,18.166666666666668,22.583333333333332,50,65,100]
["Malus pumila","Apple",null,0,3,9.2783505154639183,24.930747922437675,50.476724621424566,72.880395173698275,84.075219296196991,88.136701983369576,89.432790413361332,89.829083101872882,89.98536421432442,89.999964419426448]
["Mellissa off.","Lemon balm",null,0.05,0.05,0.05,0.05,0.05,0.05,0.05,0.05,0.05,0.05,0.05,0.05]
["Mentha spp.","Mint",null,0,0,0.15,0.25,0.25,0.25,0.25,0.25,0.25,0.25,0.25,0.25]
["Mespilus germanica ","Medlar","Nothingham",0,0,3,3.5,4,5,6,7,8,9,9,9]
["Monarda didyma","Bergamot",null,0.05,0.05,0.05,0.05,0.05,0.05,0.05,0.05,0.05,0.05,0.05,0.05]
["Morus alba","White mulberry",null,0,0,3,3.9867109634551494,5.2921719955898565,7.0149799050054806,9.2809667673716021,12.248315457916352,16.111817693104488,21.104608474991089,47.826019741821526,129.9537037908413]
["Morus nigra","Black mulberry",null,0,0,3,3.9867109634551494,5.2921719955898565,7.0149799050054806,9.2809667673716021,12.248315457916352,16.111817693104488,21.104608474991089,47.826019741821526,129.9537037908413]
["Myosotis spp.","Forget-me-not",null,0.05,0.05,0.05,0.05,0.05,0.05,0.05,0.05,0.05,0.05,0.05,0.05]
["Myrica gale","Bog myrtle",null,0,0,0,0,0,0,0,0,0,0,0,0]
["Myrica pensylvanica","myrtle",null,0,0,0,0,0,0,0,0,0,0,0,0]
["Nepeta nervosa","Catmint",null,0.05,0.05,0.05,0.05,0.05,0.05,0.05,0.05,0.05,0.05,0.05,0.05]
["Nepeta x. faassenii","Catmint",null,0.05,0.05,0.05,0.05,0.05,0.05,0.05,0.05,0.05,0.05,0.05,0.05]
["Paulownia tomentosa","Princess tree",null,0,0,0,0,0,0,0,0,0,0,0,0]
["Persicaria odorata","Vietnamese coriander",null,0.05,0.05,0.05,0.05,0.05,0.05,0.05,0.05,0.05,0.05,0.05,0.05]
["Phyllostachus bissetii 80","Bamboo","Aurea 80",0,0,0,0,0.1,0.2,0.5,1,2,3,4,5]
["Pinus Koraiensis","Korean pine",null,0,0,0,0,0,0,0,0,0,0.5,2.1,6]
["Pleurotus ostreatus","Oyster mushroom",null,0.1,0.1,0.1,0.1,0.1,0.1,0.1,0.1,0.1,0.1,0.1,0.1]
["Poncirus trifoliata","Hardy orange",null,0,0,0,0,0,0.2,0.5,1,2,3,4.5,6]
["Populus canadensis","Poplar","Koster",0,0,0,0,0,0,0,0,0,0,0,0]
["Primula vulgaris","Primrose",null,0.02,0.02,0.02,0.02,0.02,0.02,0.02,0.02,0.02,0.02,0.02,0.02]
["Prunus armeniaca","Apricot","Goldcot",0,0,0,0,0,3,10,17,25,25,25,25]
["Prunus avium","Cherry",null,0,0.7,2.1,4.5,7,8.5,9,9,9,9,9,9]
["Prunus cerasifera","Cherry plum",null,0,1,2.9850746268656714,7.3800738007380078,13.218770654329148,17.332524482190831,19.117351864419739,19.726764583750469,19.917237901348525,19.975099241037114,19.997868796054568,19.999994819684694]
["Prunus cerasus","Sour cherry",null,0,0,2.2972972972972951,5.7432432432432385,11.486486486486477,13.783783783783772,16.081081081081063,18.378378378378361,18.378378378378361,18.378378378378361,18.378378378378361,18.378378378378361]
["Prunus domestica","Plum","Opal",0,0,2.5,2.5,5,7,10,15,23,23,23,23]
["Prunus dulcis","Almond","Robijn",0,0,0,0.5,1.5,2.5,3.5,6,8,10,12,15]
["Prunus insititia","Damson",null,0,0,2.5,2.5,5,7,10,15,23,23,23,23]
["Prunus persica","Peach",null,0,0,2,8,15,25,25,25,25,25,25,25]
["Prunus persica nusipersica","Nectarine ",null,0,0,2,8,12,17.5,17.5,17.5,17.5,17.5,17.5,17.5]
["Prunus salicina","Japanese plum",null,0,5,10.629921259842519,21.54828411811652,40.068264450545371,65.338520082520134,91.230201251289785,111.02905869486933,123.04561883420664,129.34511859175728,134.06489956236629,134.98251159994848]
["Prunus salicina x Prunus armeniaca","Pluot","Pluot",0,0,2.5,2.5,5,7,10,15,23,23,23,23]
["Prunus tomentosa","Nanking cherry",null,0,1,2.4,4.1379310344827589,5.286343612334802,5.7664584334454592,5.9279751025045702,5.9782094266398973,5.9934461666168044,5.9980323454890625,5.9998317113110531,5.9999995910275281]
["Pulmonaria off.","Lungwort",null,0.05,0.05,0.05,0.05,0.05,0.05,0.05,0.05,0.05,0.05,0.05,0.05]
["Punica granatum","Pomegranate",null,0,0,2,12.18274111675127,51.557465091299683,100.07296987386636,116.51970214651141,119.46476054004295,119.91940853624136,119.98790437557399,119.99957309060861,119.99999996758115]
["Pyrus bretschneideri","Chinese white pear",null,0,4,11.235955056179778,24.570024570024568,38.153376573826783,45.739377029684853,48.640734669656453,49.584309937637812,49.874562980376204,49.96230269318346,49.996774784934928,49.99999216136284]
["Pyrus communis","Pear","Conference",0,2,5,11,13,15,20,20,20,20,20,20]
["Pyrus pyrifolia","Chinese pear","Nijsseiki 50",0,2,5,11,13,15,20,20,20,20,20,20]
["Quercus spp.","Oak",null,0,0,0,0,0,0,0,0,0,0,1,17]
["Rhamnus frangula","Alder buckthorn",null,0,0,0,0,0,0,0,0,0,0,0,0]
["Rheum rabarberum","Rhubarb",null,0,0,2,3,4,4,4,4,0,2,3.8,2.6]
["Rhus aromatica","Sumac",null,0,0,0,0,0,0,0,0,0,0,0,0]
["Rhus glabra","Sumac ",null,0,0,0,0,0,0,0,0,0,0,0,0]
["Ribes divaricatum","Black gooseberry",null,0,1,2.7586206896551726,3.7470725995316161,3.9599059522336346,3.9939342124148944,3.9990889575468591,3.9998633171707083,3.9999794969800946,3.9999969245336149,3.9999998914622976,3.9999999999917586]
["Ribes 'Josta'","Jostaberry","Jostabes",0,1,2.2727272727272725,3.6764705882352948,4.5126353790613711,4.8430840759395588,4.9518678445509652,4.9854623916659024,4.9956298230308125,4.9986881442834141,4.9998878058380472,4.9999997273516756]
["Ribes nigrum","Black currant",null,0,0.5,1,2,2.5,2.5,2.5,2.5,2.5,2.5,2.5,2.5]
["Ribes rubrum","Red currant",null,0,0.5,0.9,1.9,2.5,2.5,2.5,2.5,2.5,2.5,2.5,2.5]
["Ribes Uva-Crispa","Gooseberry",null,0,0,0.6,1.5,2.5,3.5,3.5,3.5,3.5,3.5,3.5,3.5]
["Ribes x. nidigrolaria","Jostaberry",null,0,1,2.2727272727272725,3.6764705882352948,4.5126353790613711,4.8430840759395588,4.9518678445509652,4.9854623916659024,4.9956298230308125,4.9986881442834141,4.9998878058380472,4.9999997273516756]
["Robinia pseudoacacia","Black locust",null,0,0,0,0,0,0,0,0,0,0,0,0]
["Rosa rugosa","Rimpelroos",null,0.5,1.3793103448275863,1.873536299765808,1.9799529761168173,1.9969671062074474,1.9995444787734296,1.9999316585853542,1.9999897484900473,1.9999984622668074,1.9999997693398701,1.9999999918596714,1.9999999999993818]
["Rosmarinum off.","Rosemary",null,0.05,0.05,0.05,0.05,0.05,0.05,0.05,0.05,0.05,0.05,0.05,0.05]
["Rubus fruticosus","Blackberry",null,0,0.5,3,5,5,5,5,5,5,5,5,5]
["Rubus hibrids","Tayberry ","Lochness",0,0,0,0,0,0,0,0,0,0,0,0]
["Rubus idaeus","Raspberry","Autumn bliss",0,0.4,1,1.2,1.2,1.2,1.2,1.2,1.2,1.2,1.2,1.2]
["Rubus loganobaccus","Loganberry",null,0,1,2.7586206896551726,3.7470725995316161,3.9599059522336346,3.9939342124148949,3.9990889575468591,3.9998633171707083,3.9999794969800946,3.9999969245336149,3.9999998914622976,3.9999999999917586]
["Rubus phoenicolasius","Japanese wineberry",null,0,1,2.7586206896551726,3.7470725995316161,3.9599059522336346,3.9939342124148949,3.9990889575468591,3.9998633171707088,3.9999794969800941,3.9999969245336149,3.9999998914622976,3.9999999999917586]
["Ruta graveolens","Rue",null,0.05,0.05,0.05,0.05,0.05,0.05,0.05,0.05,0.05,0.05,0.05,0.05]
["Salvia off.","Sage",null,0.05,0.05,0.05,0.05,0.05,0.05,0.05,0.05,0.05,0.05,0.05,0.05]
["Sambucus canadiensis","American elder",null,0,0,3,5,7,10,15,15,15,15,15,15]
["Sambucus nigra","Elderberry","Korsor",0,0,4,7,10,12,15,18,20,20,20,20]
["Santolina spp.","Cotton lavender",null,0.05,0.05,0.05,0.05,0.05,0.05,0.05,0.05,0.05,0.05,0.05,0.05]
["Sassafras albidum","Sassafras",null,0,0,0,0,0,0,0,0,0,0,0,0]
["Schisandra spp.","Magnolia vine",null,0,1,2.7586206896551726,3.7470725995316161,3.9599059522336346,3.9939342124148949,3.9990889575468591,3.9998633171707083,3.9999794969800946,3.9999969245336149,3.9999998914622976,3.9999999999917586]
["Scutellaria galericulata","Common skullcap",null,0.05,0.05,0.05,0.05,0.05,0.05,0.05,0.05,0.05,0.05,0.05,0.05]
["Solidago spp.","goldenrod",null,0.05,0.05,0.05,0.05,0.05,0.05,0.05,0.05,0.05,0.05,0.05,0.05]
["Sorbus aucuparia","Mountain ash",null,0,0,0,0,0,0,0,0,0,0,8.1999999999999993,15]
["Sorbus domestica","Service tree",null,0,2,5.4054054054054061,11.049723756906078,16.090104585679807,18.641066268990588,19.571961208372883,19.869635322648104,19.960711331885452,19.988197169453411,19.998990329156261,19.999997546165527]
["Sorbus torminalis","Service tree",null,0,2,5.4054054054054061,11.049723756906078,16.090104585679807,18.641066268990588,19.571961208372883,19.869635322648104,19.960711331885452,19.988197169453411,19.998990329156261,19.999997546165527]
["Staphylea pinnata","Bladder nut",null,0,0,0,0,0.1,0.2,0.25,0.3,0.4,0.5,0.8,1]
["Symphytum officinale","Comfrey",null,0.05,0.05,0.05,0.05,0.05,0.05,0.05,0.05,0.05,0.05,0.05,0.05]
["Tanacetum balsamita","Alecost",null,0.05,0.05,0.05,0.05,0.05,0.05,0.05,0.05,0.05,0.05,0.05,0.05]
["Tanacetum parthenium","Feverfew",null,0.05,0.05,0.05,0.05,0.05,0.05,0.05,0.05,0.05,0.05,0.05,0.05]
["Teucrium chamaedrys","Wall germander",null,0.05,0.05,0.05,0.05,0.05,0.05,0.05,0.05,0.05,0.05,0.05,0.05]
["Thymus Vulgaris","Thyme",null,0,0,0,0.5,0.6,0.75,0.75,0.75,0.75,0.75,0.3,0.67]
["Tilia cordata","Lime ",null,0,0,0,0,0,0,0,0,0,0,0,0]
["Toona sinensis","Chinese cedar",null,0,0,0,0.1,0.2,0.3,0.4,0.5,0.5,0.5,0.5,0.5]
["Ugni Molinae","Chilean guava",null,0,1,3.125,4.5871559633027523,4.9333991119881597,4.9898954616900779,4.9984817111802284,4.999772197879234,4.9999658283585422,4.9999948742240052,4.9999998191038353,4.9999999999862634]
["Ulmus laevis","Elm",null,0,0,0,0,0,0,0,0,0,0,0,0]
["Urtica Dioica","Nettle",null,0,0.2,0.5,0.6,0.75,0.75,0.75,0.75,0.75,0.75,0.75,0.75]
["Vaccinium Corymbosum","Blueberry",null,0,0.5,1,1.5,2.2000000000000002,2.5,3,3.5,4,4.5,4.5,4.5]
["Vaccinium Macrocarpon","Cranberry ",null,0,0,0,0,0,1,1.25,1.25,1.25,1.25,1.25,1.25]
["Valeriana off.","Valerian",null,0.05,0.05,0.05,0.05,0.05,0.05,0.05,0.05,0.05,0.05,0.05,0.05]
["Viburnum Lentago","Sheepberry",null,0,0,0,0,0,0,0,0,0,0,0,0]
["Viburnum setigerum","Tea-leaf viburnum",null,0,0,0,0,0,0,0,0,0,0,0,0]
["Vitis vinifera","Grape",null,0,1,3,5,7,9,11,11,11,11,11,11]
["Xanthoceras sorbifolium","Yellowhorn",null,0,1,3.0487804878048781,7.9113924050632907,15.169902912621358,20.931011386470196,23.622344848439038,24.570121160181465,24.869465151313786,24.960695889824045,24.996635196377291,24.999991820556296]
["Zanthoxylum spp","Szechuan pepper","simulans",0,0,0,0,0,0.2,0.4,0.8,0.9,1,1,1]
["Ziziphus jujube","Jujube",null,0,0,0,2,4,6,8,10,12,15,30,45]
["Chephalotaxus","Chinese plum yew",null,0,0,0,0,0,0,0,0,0,1,3,5]
["ZR other"]
["ZR other"]
["ZR other"]
["ZR other"]

{"sheet":"Picking rates","index":7,"n_rows":198,"n_cols":7,"rows_kept":198,"cut":false,"hidden":false,"merged":[]}
[]
[]
["Scientific name","Variety / Cultivar","Common name","Category","Function","Unit","Picking rate in kg/hour"]
["Acer campestre",null,"Field maple","No harvest",null,"plant",0]
["Acer platanoides",null,"Norway maple","No harvest",null,"plant",0]
["Acer pseudoplatanus",null,"Sycamore","No harvest",null,"plant",0]
["Acer saccharum",null,"Sugar maple","Sap","Sap","plant",4]
["Achillea millefolium",null,"Yarrow","Leaf","Leaf and flower","m2",4]
["Actinidia arguta","Issai 15","Hardy kiwi","Soft fruit","Fruit","plant",16]
["Actinidia deliciosa",null,"Kiwi","Soft fruit","Fruit","plant",16]
["Actinidia komikta",null,"Arctisch","Soft fruit","Fruit","plant",16]
["Agaricus bisporus",null,"Common white mushroom","Mushroom","Mushroom","m2",4]
["Agastache foeniculum",null,"Anise Hyssop","Leaf","Leaf","m2",4]
["Akebia quinata",null,"Chocolate vine",null,"Fruit","plant",4]
["Alcea ficifolia",null,"Hollyhocks","Leaf","Leaf and flower","m2",4]
["Alchemilla xanthochlora",null,"Lady's mantle","Leaf","Leaf","m2",4]
["Allium schoenoprasum",null,"Chives","Leaf","Leaf","m2",4]
["Allium Ursinum",null,"Wild garlic","Leaf","Leaf","m2",4]
["Alnus cordata",null,"Italian alder","No harvest","Nitrogen fixing","plant",0]
["Alnus glutinosa",null,"European alder","No harvest","Nitrogen fixing","plant",0]
["Alnus incana",null,"Gray alder","No harvest","Nitrogen fixing","plant",0]
["Aloysia citrodora",null,"Lemon verbena",null,"Fruit","plant",4]
["Amelanchier alnifolia",null,"Saskatoon serviceberry",null,"Fruit","plant",5]
["Amelanchier laevis",null,"serviceberry",null,"Fruit","plant",5]
["Amelanchier lamarckii",null,"serviceberry","Soft fruit","Fruit","plant",5]
["Amorpha fruticosa",null,"False indigo",null,null,"plant",4]
["Angelica archangelica",null,"Norwegian angelica",null,"Seeds and flower","m2",4]
["Aralia elata",null,"Angelica tree","Leaf","Leaf","plant",4]
["Araucaria araucana",null,"Monkey puzzle","Seeds","Seeds","plant",4]
["Arbutus unedo",null,"Strawberry tree",null,"Fruit","plant",12.25]
["Arnica spp.",null,"Arnica",null,null,"plant",4]
["Aronia arbutifolia",null,"Chokeberry","Soft fruit","Fruit","plant",5]
["Aronia melanocarpa",null,"Chokeberry","Soft fruit","Fruit","plant",5]
["Aronia prunifolia",null,"Chokeberry","Soft fruit","Fruit","plant",5]
["Artemisia abrotanum",null,"Mugwort","Leaf","Leaf","m2",4]
["Artemisia dracunculus",null,"Mugwort","Leaf","Leaf","m2",4]
["Artemisia moxa",null,"Mugwort",null,null,"plant",4]
["Asimina triloba",null,"Pawpaw",null,"Fruit","plant",4]
["Berberis aristata",null,"European barberry",null,"Fruit","plant",5]
["Berberis vulgaris",null,"barberry","Soft fruit","Fruit","plant",5]
["Bunimum bulbocastanum",null,"Pig nut","Root","Root","plant",4]
["Capparis Spinosa",null,"Caper",null,"Flowers","plant",4]
["Caragana arborecens",null,"Siberian pea tree","Seeds","Seeds","plant",4]
["Carya illinoiensis",null,"Pecan","Nuts","Nuts","plant",4]
["Carya spp",null,"Hickory","Nuts","Nuts","plant",4]
["Castanea mollissima",null,"Chinese chestnut","Nuts","Chestnut","plant",15]
["Castanea sativa","Lyon","Sweet chestnut","Nuts","Chestnut","plant",25]
["Casteana Pumiles",null,"Chinquapin","Nuts","Nuts","plant",4]
["Celtis australis",null,"Nettle tree",null,"Fruit","plant",4]
["Cercis siliquastrum",null,"Judas tree",null,"Seeds and flower","plant",4]
["Chaenomeles cathayensis",null,"Chinese quince",null,"Fruit","plant",116.25]
["Chaenomeles speciosa","japonica 60","Japanse quince",null,"Fruit","plant",116.25]
["Chaenomeles spp.",null,"Flowering quince",null,"Fruit","plant",116.25]
["Chelidonium majus",null,"Greater celandine","Leaf","Leaf","m2",4]
["Cornus kousa","Big apple ","Japanese dogwood",null,"Fruit","plant",3.5]
["Cornus mas","Jolico","Cornelian cherry",null,"Fruit","plant",16]
["Cornus sanguinea",null,"Dogwood",null,"Fruit","plant",9]
["Corylus avellana","Webb's ","Hazelnut","Nuts","Nuts","plant",4]
["Crataegus persimilis",null,"hawthorn",null,"Fruit","plant",16]
["Crataegus pinnatifida","Major","hawthorn",null,"Fruit","plant",16]
["Cydonia oblonga (sept)","Ludovich","Quince",null,"Fruit","plant",116.25]
["Cynara cardunculus",null,"Cardoon",null,"Shoot","plant",4]
["Decaisnea fargesii",null,"Blue sausage fruit",null,"Fruit","plant",4]
["Diospyros virginiana",null,"Persimmon, Kaki","Hard fruit","Fruit","plant",122.5]
["Diospyrus kaki",null,"Persimmon, Kaki","Hard fruit","Fruit","plant",122.5]
["Diospyrus virginia",null,"Persimmon, Kaki","Hard fruit","Fruit","plant",122.5]
["Echinacea spp.",null,"Echinasea",null,"Medicinal","m2",4]
["Elaeagnus umbellata",null,"Autumn olive","Soft fruit","Fruit","plant",9]
["Elaeagnus x ebbingei","Limelight","Ebbing's silverberry","Soft fruit","Fruit","plant",4]
["Eleutherococcus Ginseng",null,"Ginseng","Root","Root","plant",4]
["Fagus spp",null,"Beech","Nuts","Nuts","plant",4]
["Feijoa sellowiana",null,"Pineapple guava",null,"Fruit","plant",105]
["Ficus carica","Brown Turkey","Fig","Soft fruit","Fruit","plant",4]
["Foeniculum vulgare",null,"Fennel","Leaf","Leaf","m2",4]
["Gaultheria salal",null,"Salal","Leaf","Leaf","m2",4]
["Geum spp-.",null,"Wood avens","Root","Root ","m2",4]
["Ginkgo Biloba",null,"Ginkgo","Nuts","Nuts","plant",4]
["Gleditsia triacanthos",null,"Honey locust","Seeds","Seeds","plant",4]
["Halesia carolina",null,"Silver-bell tree",null,"Flowers","plant",4]
["Helichrysum italicum",null,"Curry plant","Leaf","Leaf","m2",4]
["Hemercallis",null,"Day lily","Flower","Flower","m2",4]
["Hibiscus syriacus","Marina","Hibiscus","Flower","Flower","plant",4]
["Hippophae rhamnoides","Pollmix (M)","Sea Buckthorn","Soft fruit","Fruit","plant",16]
["Hosta spp.",null,"Hosta",null,"Shoot","m2",4]
["Hovenia Dulcis",null,"Japanese raisin tree",null,"Fruit","plant",5]
["Humulus Lupulus",null,"Hop",null,"Fruit","plant",4]
["Hydrangea serrata",null,"Hydrangea","Leaf","Leaf","plant",4]
["Hypsizygus tessellatus",null,"Beech mushroom","Mushroom","Mushroom","m2",4]
["Ilex aquifolium",null,"Holly","Soft fruit","Leaf and fruit","plant",5.5]
["Juglans ailantifolia",null,"Japanese walnut (hartnut)","Nuts","Nuts","plant",4]
["Juglans cinerea","Beckwith","Butternut, white walnut","Nuts","Nuts","plant",4]
["Juglans nigra","Bicentennial","Black walnut","Nuts","Nuts","plant",4]
["Juglans regia","Broadview","Walnut","Nuts","Nuts","plant",4]
["Laurus nobilis",null,"Bay tree","Leaf","Leaf and Fruit","plant",4]
["Lentinula edodes",null,"Shiitake","Mushroom","Mushroom","m2",4]
["Lonicera caerulea","Kamtschatica","Honeysuckle","Soft fruit","Fruit","plant",5]
["lonicera caerulea (juli)","Blue Velvet","Honeysuckle","Soft fruit","Fruit","plant",5]
["Lycium barbarum",null,"Gojiberry","Soft fruit","Fruit","plant",5]
["Magnolia x soulangeana",null,"Magnolia","flower","Flowers","plant",4]
["Mahonia aquifolium","Smaragd","Oregon grape","Soft fruit","Fruit","plant",4]
["Malus domestica (Bewaar)",null,"Apple","Hard fruit","Apple","plant",122.5]
["Malus domestica (Hand)",null,"Apple","Hard fruit","Apple","plant",122.5]
["Malus domestica (Laat)",null,"Apple","Hard fruit","Apple","plant",122.5]
["Malus domestica (Midden)",null,"Apple","Hard fruit","Apple","plant",122.5]
["Malus domestica (Vroeg)",null,"Apple","Hard fruit","Apple","plant",122.5]
["Malus pumila",null,"Apple","Hard fruit","Apple","plant",122.5]
["Mellissa off.",null,"Lemon balm","Leaf","Leaf","m2",4]
["Mentha spp.",null,"Mint","Leaf","Leaf","m2",4]
["Mespilus germanica ","Nothingham","Medlar",null,"Fruit","plant",4]
["Monarda didyma",null,"Bergamot",null,"Leaf and flower","m2",4]
["Morus alba",null,"White mulberry","Soft fruit","Fruit","plant",5.5]
["Morus nigra",null,"Black mulberry","Soft fruit","Fruit","plant",5.5]
["Myosotis spp.",null,"Forget-me-not",null,null,"plant",4]
["Myrica gale",null,"Bog myrtle",null,"Fruit","plant",4]
["Myrica pensylvanica",null,"myrtle",null,"Fruit","plant",4]
["Nepeta nervosa",null,"Catmint","Leaf","Leaf","m2",4]
["Nepeta x. faassenii",null,"Catmint","Leaf","Leaf","m2",4]
["Paulownia tomentosa",null,"Princess tree","flower","Flower","plant",4]
["Persicaria odorata",null,"Vietnamese coriander","Leaf","Leaf","m2",4]
["Phyllostachus bissetii 80","Aurea 80","Bamboo",null,"Shoot","plant",4]
["Pinus Koraiensis",null,"Korean pine","Seeds","Nuts","plant",4]
["Pleurotus ostreatus",null,"Oyster mushroom","Mushroom","Mushroom","m2",4]
["Poncirus trifoliata",null,"Hardy orange","Hard fruit","Fruit","plant",4]
["Populus canadensis","Koster","Poplar","No harvest",null,"plant",0]
["Primula vulgaris",null,"Primrose",null,"Leaf and flower","m2",4]
["Prunus armeniaca","Goldcot","Apricot","Hard fruit","Fruit","plant",52.5]
["Prunus avium",null,"Cherry","Soft fruit","Fruit","plant",12]
["Prunus cerasifera",null,"Cherry plum","Soft fruit","Fruit","plant",24.5]
["Prunus cerasus",null,"Sour cherry","Soft fruit","Fruit","plant",12]
["Prunus domestica","Opal","Plum","Hard fruit","Fruit","plant",24.5]
["Prunus dulcis","Robijn","Almond","Nuts","Nuts","plant",4]
["Prunus insititia",null,"Damson",null,"Fruit","plant",38.25]
["Prunus persica",null,"Peach","Hard fruit","Fruit","plant",105]
["Prunus persica nusipersica",null,"Nectarine ","Hard fruit","Fruit","plant",105]
["Prunus salicina",null,"Japanese plum","Hard fruit","Fruit","plant",105]
["Prunus salicina x Prunus armeniaca","Pluot","Pluot","Hard fruit","Fruit","plant",38.25]
["Prunus tomentosa",null,"Nanking cherry",null,"Fruit","plant",12]
["Pulmonaria off.",null,"Lungwort","Leaf","Leaf","m2",4]
["Punica granatum",null,"Pomegranate","Hard fruit","Fruit","plant",4]
["Pyrus bretschneideri",null,"Chinese white pear","Hard fruit","Fruit","plant",110]
["Pyrus communis","Conference","Pear","Hard fruit","Fruit","plant",110]
["Pyrus pyrifolia","Nijsseiki 50","Chinese pear","Hard fruit","Fruit","plant",110]
["Quercus spp.",null,"Oak","Nuts","Nuts","plant",4]
["Rhamnus frangula",null,"Alder buckthorn","No harvest",null,"plant",0]
["Rheum rabarberum",null,"Rhubarb",null,"Shoot","plant",4]
["Rhus aromatica",null,"Sumac","flower","Flower","plant",4]
["Rhus glabra",null,"Sumac ","Soft fruit","Fruit","plant",4]
["Ribes divaricatum",null,"Black gooseberry","Soft fruit","Fruit","plant",9]
["Ribes 'Josta'","Jostabes","Jostaberry","Soft fruit","Fruit","plant",9]
["Ribes nigrum",null,"Black currant","Soft fruit","Fruit","plant",9]
["Ribes rubrum",null,"Red currant","Soft fruit","Fruit","plant",9]
["Ribes Uva-Crispa",null,"Gooseberry","Soft fruit","Fruit","plant",5]
["Ribes x. nidigrolaria",null,"Jostaberry","Soft fruit","Fruit","plant",9]
["Robinia pseudoacacia",null,"Black locust","No harvest","Nitrogen fixing","plant",0]
["Rosa rugosa",null,"Rimpelroos",null,"Fruit","plant",4]
["Rosmarinum off.",null,"Rosemary","Leaf","Leaf","m2",4]
["Rubus fruticosus",null,"Blackberry","Soft fruit","Fruit","plant",5.5]
["Rubus hibrids","Lochness","Tayberry ","Soft fruit","Fruit","plant",4.25]
["Rubus idaeus","Autumn bliss","Raspberry","Soft fruit","Fruit","plant",3.5]
["Rubus loganobaccus",null,"Loganberry","Soft fruit","Fruit","plant",4.25]
["Rubus phoenicolasius",null,"Japanese wineberry","Soft fruit","Fruit","plant",4]
["Ruta graveolens",null,"Rue","Leaf","Leaf","m2",4]
["Salvia off.",null,"Sage","Leaf","Leaf","m2",4]
["Sambucus canadiensis",null,"American elder",null,"Flower and fruit","plant",4]
["Sambucus nigra","Korsor","Elderberry",null,"Fruit ","plant",4]
["Santolina spp.",null,"Cotton lavender",null,null,"plant",4]
["Sassafras albidum",null,"Sassafras","Leaf","Leaf","plant",4]
["Schisandra spp.",null,"Magnolia vine","Leaf","Leaf","plant",4]
["Scutellaria galericulata",null,"Common skullcap",null,null,"plant",4]
["Solidago spp.",null,"goldenrod","Leaf","Leaf","m2",4]
["Sorbus aucuparia",null,"Mountain ash","Soft fruit","Fruit","plant",9]
["Sorbus domestica",null,"Service tree","Soft fruit","Fruit","plant",9]
["Sorbus torminalis",null,"Service tree","Soft fruit","Fruit","plant",9]
["Staphylea pinnata",null,"Bladder nut","Nuts","Nuts","plant",4]
["Symphytum officinale",null,"Comfrey","Leaf","Leaf","m2",4]
["Tanacetum balsamita",null,"Alecost","Leaf","Leaf","m2",4]
["Tanacetum parthenium",null,"Feverfew",null,"Leaf and flower","m2",4]
["Teucrium chamaedrys",null,"Wall germander","Leaf","Leaf","m2",4]
["Thymus Vulgaris",null,"Thyme","Leaf","Leaf","m2",4]
["Tilia cordata",null,"Lime ","Leaf","Leaf","plant",4]
["Toona sinensis",null,"Chinese cedar","Leaf","Leaf","plant",4]
["Ugni Molinae",null,"Chilean guava",null,"Fruit","plant",4]
["Ulmus laevis",null,"Elm","No harvest",null,"plant",0]
["Urtica Dioica",null,"Nettle","Leaf","Leaf","m2",4]
["Vaccinium Corymbosum",null,"Blueberry","Soft fruit","Fruit","plant",5]
["Vaccinium Macrocarpon",null,"Cranberry ","Soft fruit","Fruit","plant",16]
["Valeriana off.",null,"Valerian","Root","Root","m2",4]
["Viburnum Lentago",null,"Sheepberry","Soft fruit","Fruit","plant",5]
["Viburnum setigerum",null,"Tea-leaf viburnum","Soft fruit","Leaf en bes","plant",4]
["Vitis vinifera",null,"Grape","Soft fruit","Fruit","plant",4]
["Xanthoceras sorbifolium",null,"Yellowhorn","Nuts","Chestnut","plant",4]
["Zanthoxylum spp","simulans","Szechuan pepper","Soft fruit","Fruit","plant",4]
["Ziziphus jujube",null,"Jujube","Soft fruit","Fruit","plant",4]
["Chephalotaxus",null,"Chinese plum yew",null,"Nuts","plant",4]
["ZR other",null,null,null,null,"plant",0]
["ZR other",null,null,null,null,"plant",0]
["ZR other",null,null,null,null,"plant",0]
["ZR other",null,null,null,null,"plant",0]

{"sheet":"Sales price per sales channel","index":8,"n_rows":198,"n_cols":9,"rows_kept":198,"cut":false,"hidden":false,"merged":[]}
[]
[]
["Scientific name","Variety / Cultivar","Common name","Category","Function","Unit","Price supermarkt per kg","Price catering per kg","Prijs direct to consumer per kg"]
["Acer campestre",null,"Field maple","No harvest",null,"plant",10.17]
["Acer platanoides",null,"Norway maple","No harvest",null,"plant",10.170633]
["Acer pseudoplatanus",null,"Sycamore","No harvest",null,"plant",10.17]
["Acer saccharum",null,"Sugar maple","Sap","Sap","plant",10.17]
["Achillea millefolium",null,"Yarrow","Leaf","Leaf and flower","m2",60]
["Actinidia arguta","Issai 15","Hardy kiwi","Soft fruit","Fruit","plant",2.94]
["Actinidia deliciosa",null,"Kiwi","Soft fruit","Fruit","plant",2.94]
["Actinidia komikta",null,"Arctisch","Soft fruit","Fruit","plant",2.94]
["Agaricus bisporus",null,"Common white mushroom","Mushroom","Mushroom","m2",3.25]
["Agastache foeniculum",null,"Anise Hyssop","Leaf","Leaf","m2",60]
["Akebia quinata",null,"Chocolate vine",null,"Fruit","plant",6.5]
["Alcea ficifolia",null,"Hollyhocks","Leaf","Leaf and flower","m2",60]
["Alchemilla xanthochlora",null,"Lady's mantle","Leaf","Leaf","m2",60]
["Allium schoenoprasum",null,"Chives","Leaf","Leaf","m2",60]
["Allium Ursinum",null,"Wild garlic","Leaf","Leaf","m2",12.5]
["Alnus cordata",null,"Italian alder","No harvest","Nitrogen fixing","plant",0]
["Alnus glutinosa",null,"European alder","No harvest","Nitrogen fixing","plant",0]
["Alnus incana",null,"Gray alder","No harvest","Nitrogen fixing","plant",0]
["Aloysia citrodora",null,"Lemon verbena",null,"Fruit","plant",60]
["Amelanchier alnifolia",null,"Saskatoon serviceberry",null,"Fruit","plant",10.06]
["Amelanchier laevis",null,"serviceberry",null,"Fruit","plant",10.06]
["Amelanchier lamarckii",null,"serviceberry","Soft fruit","Fruit","plant",10.06]
["Amorpha fruticosa",null,"False indigo",null,null,"plant",2]
["Angelica archangelica",null,"Norwegian angelica",null,"Seeds and flower","m2",60]
["Aralia elata",null,"Angelica tree","Leaf","Leaf","plant",12.5]
["Araucaria araucana",null,"Monkey puzzle","Seeds","Seeds","plant",7.6972500000000004]
["Arbutus unedo",null,"Strawberry tree",null,"Fruit","plant",13.51]
["Arnica spp.",null,"Arnica",null,null,"plant",60]
["Aronia arbutifolia",null,"Chokeberry","Soft fruit","Fruit","plant",7.7]
["Aronia melanocarpa",null,"Chokeberry","Soft fruit","Fruit","plant",7.7]
["Aronia prunifolia",null,"Chokeberry","Soft fruit","Fruit","plant",7.7]
["Artemisia abrotanum",null,"Mugwort","Leaf","Leaf","m2",60]
["Artemisia dracunculus",null,"Mugwort","Leaf","Leaf","m2",51]
["Artemisia moxa",null,"Mugwort",null,null,"plant",60]
["Asimina triloba",null,"Pawpaw",null,"Fruit","plant",5]
["Berberis aristata",null,"European barberry",null,"Fruit","plant",7.7]
["Berberis vulgaris",null,"barberry","Soft fruit","Fruit","plant",7.7]
["Bunimum bulbocastanum",null,"Pig nut","Root","Root","plant",2]
["Capparis Spinosa",null,"Caper",null,"Flowers","plant",9.17]
["Caragana arborecens",null,"Siberian pea tree","Seeds","Seeds","plant",4]
["Carya illinoiensis",null,"Pecan","Nuts","Nuts","plant",4]
["Carya spp",null,"Hickory","Nuts","Nuts","plant",4]
["Castanea mollissima",null,"Chinese chestnut","Nuts","Chestnut","plant",2.25]
["Castanea sativa","Lyon","Sweet chestnut","Nuts","Chestnut","plant",2.25]
["Casteana Pumiles",null,"Chinquapin","Nuts","Nuts","plant",4]
["Celtis australis",null,"Nettle tree",null,"Fruit","plant",0]
["Cercis siliquastrum",null,"Judas tree",null,"Seeds and flower","plant",4]
["Chaenomeles cathayensis",null,"Chinese quince",null,"Fruit","plant",1.92]
["Chaenomeles speciosa","japonica 60","Japanse quince",null,"Fruit","plant",1.92]
["Chaenomeles spp.",null,"Flowering quince",null,"Fruit","plant",1.92]
["Chelidonium majus",null,"Greater celandine","Leaf","Leaf","m2",12.5]
["Cornus kousa","Big apple ","Japanese dogwood",null,"Fruit","plant",20]
["Cornus mas","Jolico","Cornelian cherry",null,"Fruit","plant",6.82]
["Cornus sanguinea",null,"Dogwood",null,"Fruit","plant",1.1399999999999999]
["Corylus avellana","Webb's ","Hazelnut","Nuts","Nuts","plant",8.76]
["Crataegus persimilis",null,"hawthorn",null,"Fruit","plant",4]
["Crataegus pinnatifida","Major","hawthorn",null,"Fruit","plant",4]
["Cydonia oblonga (sept)","Ludovich","Quince",null,"Fruit","plant",1.92]
["Cynara cardunculus",null,"Cardoon",null,"Shoot","plant",8.17]
["Decaisnea fargesii",null,"Blue sausage fruit",null,"Fruit","plant",10]
["Diospyros virginiana",null,"Persimmon, Kaki","Hard fruit","Fruit","plant",8.52]
["Diospyrus kaki",null,"Persimmon, Kaki","Hard fruit","Fruit","plant",8.52]
["Diospyrus virginia",null,"Persimmon, Kaki","Hard fruit","Fruit","plant",8.52]
["Echinacea spp.",null,"Echinasea",null,"Medicinal","m2",60]
["Elaeagnus umbellata",null,"Autumn olive","Soft fruit","Fruit","plant",10]
["Elaeagnus x ebbingei","Limelight","Ebbing's silverberry","Soft fruit","Fruit","plant",5]
["Eleutherococcus Ginseng",null,"Ginseng","Root","Root","plant",0]
["Fagus spp",null,"Beech","Nuts","Nuts","plant",8]
["Feijoa sellowiana",null,"Pineapple guava",null,"Fruit","plant",5]
["Ficus carica","Brown Turkey","Fig","Soft fruit","Fruit","plant",13.1]
["Foeniculum vulgare",null,"Fennel","Leaf","Leaf","m2",2.97]
["Gaultheria salal",null,"Salal","Leaf","Leaf","m2",30]
["Geum spp-.",null,"Wood avens","Root","Root ","m2",60]
["Ginkgo Biloba",null,"Ginkgo","Nuts","Nuts","plant",5]
["Gleditsia triacanthos",null,"Honey locust","Seeds","Seeds","plant",4]
["Halesia carolina",null,"Silver-bell tree",null,"Flowers","plant",50]
["Helichrysum italicum",null,"Curry plant","Leaf","Leaf","m2",60]
["Hemercallis",null,"Day lily","Flower","Flower","m2",50]
["Hibiscus syriacus","Marina","Hibiscus","Flower","Flower","plant",30]
["Hippophae rhamnoides","Pollmix (M)","Sea Buckthorn","Soft fruit","Fruit","plant",10]
["Hosta spp.",null,"Hosta",null,"Shoot","m2",10]
["Hovenia Dulcis",null,"Japanese raisin tree",null,"Fruit","plant",10.06]
["Humulus Lupulus",null,"Hop",null,"Fruit","plant",12.5]
["Hydrangea serrata",null,"Hydrangea","Leaf","Leaf","plant",30]
["Hypsizygus tessellatus",null,"Beech mushroom","Mushroom","Mushroom","m2",9.1]
["Ilex aquifolium",null,"Holly","Soft fruit","Leaf and fruit","plant",0]
["Juglans ailantifolia",null,"Japanese walnut (hartnut)","Nuts","Nuts","plant",5.1212369999999998]
["Juglans cinerea","Beckwith","Butternut, white walnut","Nuts","Nuts","plant",5.1212369999999998]
["Juglans nigra","Bicentennial","Black walnut","Nuts","Nuts","plant",5.1212369999999998]
["Juglans regia","Broadview","Walnut","Nuts","Nuts","plant",5.1212369999999998]
["Laurus nobilis",null,"Bay tree","Leaf","Leaf and Fruit","plant",60]
["Lentinula edodes",null,"Shiitake","Mushroom","Mushroom","m2",7]
["Lonicera caerulea","Kamtschatica","Honeysuckle","Soft fruit","Fruit","plant",10.06]
["lonicera caerulea (juli)","Blue Velvet","Honeysuckle","Soft fruit","Fruit","plant",10.06]
["Lycium barbarum",null,"Gojiberry","Soft fruit","Fruit","plant",10]
["Magnolia x soulangeana",null,"Magnolia","flower","Flowers","plant",20]
["Mahonia aquifolium","Smaragd","Oregon grape","Soft fruit","Fruit","plant",8]
["Malus domestica (Bewaar)",null,"Apple","Hard fruit","Apple","plant",2.56]
["Malus domestica (Hand)",null,"Apple","Hard fruit","Apple","plant",2.56]
["Malus domestica (Laat)",null,"Apple","Hard fruit","Apple","plant",2.56]
["Malus domestica (Midden)",null,"Apple","Hard fruit","Apple","plant",2.56]
["Malus domestica (Vroeg)",null,"Apple","Hard fruit","Apple","plant",2.56]
["Malus pumila",null,"Apple","Hard fruit","Apple","plant",2.56]
["Mellissa off.",null,"Lemon balm","Leaf","Leaf","m2",60]
["Mentha spp.",null,"Mint","Leaf","Leaf","m2",60]
["Mespilus germanica ","Nothingham","Medlar",null,"Fruit","plant",10]
["Monarda didyma",null,"Bergamot",null,"Leaf and flower","m2",60]
["Morus alba",null,"White mulberry","Soft fruit","Fruit","plant",10.63]
["Morus nigra",null,"Black mulberry","Soft fruit","Fruit","plant",10.63]
["Myosotis spp.",null,"Forget-me-not",null,null,"plant",60]
["Myrica gale",null,"Bog myrtle",null,"Fruit","plant",30]
["Myrica pensylvanica",null,"myrtle",null,"Fruit","plant",30]
["Nepeta nervosa",null,"Catmint","Leaf","Leaf","m2",60]
["Nepeta x. faassenii",null,"Catmint","Leaf","Leaf","m2",60]
["Paulownia tomentosa",null,"Princess tree","flower","Flower","plant",15]
["Persicaria odorata",null,"Vietnamese coriander","Leaf","Leaf","m2",60]
["Phyllostachus bissetii 80","Aurea 80","Bamboo",null,"Shoot","plant",12.5]
["Pinus Koraiensis",null,"Korean pine","Seeds","Nuts","plant",17.5]
["Pleurotus ostreatus",null,"Oyster mushroom","Mushroom","Mushroom","m2",10]
["Poncirus trifoliata",null,"Hardy orange","Hard fruit","Fruit","plant",3]
["Populus canadensis","Koster","Poplar","No harvest",null,"plant",0]
["Primula vulgaris",null,"Primrose",null,"Leaf and flower","m2",60]
["Prunus armeniaca","Goldcot","Apricot","Hard fruit","Fruit","plant",4.09]
["Prunus avium",null,"Cherry","Soft fruit","Fruit","plant",6.82]
["Prunus cerasifera",null,"Cherry plum","Soft fruit","Fruit","plant",8]
["Prunus cerasus",null,"Sour cherry","Soft fruit","Fruit","plant",6.82]
["Prunus domestica","Opal","Plum","Hard fruit","Fruit","plant",3.58]
["Prunus dulcis","Robijn","Almond","Nuts","Nuts","plant",8.6999999999999993]
["Prunus insititia",null,"Damson",null,"Fruit","plant",6.82]
["Prunus persica",null,"Peach","Hard fruit","Fruit","plant",3.99]
["Prunus persica nusipersica",null,"Nectarine ","Hard fruit","Fruit","plant",3.99]
["Prunus salicina",null,"Japanese plum","Hard fruit","Fruit","plant",6.98]
["Prunus salicina x Prunus armeniaca","Pluot","Pluot","Hard fruit","Fruit","plant",6.98]
["Prunus tomentosa",null,"Nanking cherry",null,"Fruit","plant",6.82]
["Pulmonaria off.",null,"Lungwort","Leaf","Leaf","m2",60]
["Punica granatum",null,"Pomegranate","Hard fruit","Fruit","plant",6]
["Pyrus bretschneideri",null,"Chinese white pear","Hard fruit","Fruit","plant",3]
["Pyrus communis","Conference","Pear","Hard fruit","Fruit","plant",1.92]
["Pyrus pyrifolia","Nijsseiki 50","Chinese pear","Hard fruit","Fruit","plant",3]
["Quercus spp.",null,"Oak","Nuts","Nuts","plant",0]
["Rhamnus frangula",null,"Alder buckthorn","No harvest",null,"plant",0]
["Rheum rabarberum",null,"Rhubarb",null,"Shoot","plant",2.04]
["Rhus aromatica",null,"Sumac","flower","Flower","plant",30]
["Rhus glabra",null,"Sumac ","Soft fruit","Fruit","plant",30]
["Ribes divaricatum",null,"Black gooseberry","Soft fruit","Fruit","plant",7.7]
["Ribes 'Josta'","Jostabes","Jostaberry","Soft fruit","Fruit","plant",7.7]
["Ribes nigrum",null,"Black currant","Soft fruit","Fruit","plant",7.7]
["Ribes rubrum",null,"Red currant","Soft fruit","Fruit","plant",7.7]
["Ribes Uva-Crispa",null,"Gooseberry","Soft fruit","Fruit","plant",7.7]
["Ribes x. nidigrolaria",null,"Jostaberry","Soft fruit","Fruit","plant",7.7]
["Robinia pseudoacacia",null,"Black locust","No harvest","Nitrogen fixing","plant",12.5]
["Rosa rugosa",null,"Rimpelroos",null,"Fruit","plant",5]
["Rosmarinum off.",null,"Rosemary","Leaf","Leaf","m2",60]
["Rubus fruticosus",null,"Blackberry","Soft fruit","Fruit","plant",8]
["Rubus hibrids","Lochness","Tayberry ","Soft fruit","Fruit","plant",8]
["Rubus idaeus","Autumn bliss","Raspberry","Soft fruit","Fruit","plant",8]
["Rubus loganobaccus",null,"Loganberry","Soft fruit","Fruit","plant",8]
["Rubus phoenicolasius",null,"Japanese wineberry","Soft fruit","Fruit","plant",8]
["Ruta graveolens",null,"Rue","Leaf","Leaf","m2",60]
["Salvia off.",null,"Sage","Leaf","Leaf","m2",60]
["Sambucus canadiensis",null,"American elder",null,"Flower and fruit","plant",7.7]
["Sambucus nigra","Korsor","Elderberry",null,"Fruit ","plant",7.7]
["Santolina spp.",null,"Cotton lavender",null,null,"plant",60]
["Sassafras albidum",null,"Sassafras","Leaf","Leaf","plant",12.5]
["Schisandra spp.",null,"Magnolia vine","Leaf","Leaf","plant",12.5]
["Scutellaria galericulata",null,"Common skullcap",null,null,"plant",60]
["Solidago spp.",null,"goldenrod","Leaf","Leaf","m2",60]
["Sorbus aucuparia",null,"Mountain ash","Soft fruit","Fruit","plant",10]
["Sorbus domestica",null,"Service tree","Soft fruit","Fruit","plant",3]
["Sorbus torminalis",null,"Service tree","Soft fruit","Fruit","plant",3]
["Staphylea pinnata",null,"Bladder nut","Nuts","Nuts","plant",18]
["Symphytum officinale",null,"Comfrey","Leaf","Leaf","m2",60]
["Tanacetum balsamita",null,"Alecost","Leaf","Leaf","m2",60]
["Tanacetum parthenium",null,"Feverfew",null,"Leaf and flower","m2",60]
["Teucrium chamaedrys",null,"Wall germander","Leaf","Leaf","m2",60]
["Thymus Vulgaris",null,"Thyme","Leaf","Leaf","m2",60]
["Tilia cordata",null,"Lime ","Leaf","Leaf","plant",6]
["Toona sinensis",null,"Chinese cedar","Leaf","Leaf","plant",19]
["Ugni Molinae",null,"Chilean guava",null,"Fruit","plant",10]
["Ulmus laevis",null,"Elm","No harvest",null,"plant",60]
["Urtica Dioica",null,"Nettle","Leaf","Leaf","m2",20]
["Vaccinium Corymbosum",null,"Blueberry","Soft fruit","Fruit","plant",6]
["Vaccinium Macrocarpon",null,"Cranberry ","Soft fruit","Fruit","plant",7.7]
["Valeriana off.",null,"Valerian","Root","Root","m2",60]
["Viburnum Lentago",null,"Sheepberry","Soft fruit","Fruit","plant",7.7]
["Viburnum setigerum",null,"Tea-leaf viburnum","Soft fruit","Leaf en bes","plant",30]
["Vitis vinifera",null,"Grape","Soft fruit","Fruit","plant",2.66]
["Xanthoceras sorbifolium",null,"Yellowhorn","Nuts","Chestnut","plant",25]
["Zanthoxylum spp","simulans","Szechuan pepper","Soft fruit","Fruit","plant",56]
["Ziziphus jujube",null,"Jujube","Soft fruit","Fruit","plant",10]
["Chephalotaxus",null,"Chinese plum yew",null,"Nuts","plant",5]
["ZR other",null,null,null,null,"plant",0]
["ZR other",null,null,null,null,"plant",0]
["ZR other",null,null,null,null,"plant",0]
["ZR other",null,null,null,null,"plant",0]

{"sheet":"Other income expert","index":9,"n_rows":40,"n_cols":21,"rows_kept":40,"cut":false,"hidden":false,"merged":[[0,5,0,12],[3,1,3,20],[7,1,7,20],[11,1,11,20]]}
[]
[]
["Fixed Income",1,2,3,4,5,6,7,8,9,10,11,12,13,14,15,16,17,18,19,20]
["Workshops","Workshops"]
["Number of workshops/year",{"$f":"'Other income'!$B4","v":0},{"$f":"'Other income'!$B4","v":0},{"$f":"'Other income'!$B4","v":0},{"$f":"'Other income'!$B4","v":0},{"$f":"'Other income'!$B4","v":0},{"$f":"'Other income'!$B4","v":0},{"$f":"'Other income'!$B4","v":0},{"$f":"'Other income'!$B4","v":0},{"$f":"'Other income'!$B4","v":0},{"$f":"'Other income'!$B4","v":0},{"$f":"'Other income'!$B4","v":0},{"$f":"'Other income'!$B4","v":0},{"$f":"'Other income'!$B4","v":0},{"$f":"'Other income'!$B4","v":0},{"$f":"'Other income'!$B4","v":0},{"$f":"'Other income'!$B4","v":0},{"$f":"'Other income'!$B4","v":0},{"$f":"'Other income'!$B4","v":0},{"$f":"'Other income'!$B4","v":0},{"$f":"'Other income'!$B4","v":0}]
["Price/person/workshop",{"$f":"'Other income'!$B5","v":0},{"$f":"'Other income'!$B5","v":0},{"$f":"'Other income'!$B5","v":0},{"$f":"'Other income'!$B5","v":0},{"$f":"'Other income'!$B5","v":0},{"$f":"'Other income'!$B5","v":0},{"$f":"'Other income'!$B5","v":0},{"$f":"'Other income'!$B5","v":0},{"$f":"'Other income'!$B5","v":0},{"$f":"'Other income'!$B5","v":0},{"$f":"'Other income'!$B5","v":0},{"$f":"'Other income'!$B5","v":0},{"$f":"'Other income'!$B5","v":0},{"$f":"'Other income'!$B5","v":0},{"$f":"'Other income'!$B5","v":0},{"$f":"'Other income'!$B5","v":0},{"$f":"'Other income'!$B5","v":0},{"$f":"'Other income'!$B5","v":0},{"$f":"'Other income'!$B5","v":0},{"$f":"'Other income'!$B5","v":0}]
["Average number of persons/workshop",{"$f":"'Other income'!$B6","v":0},{"$f":"'Other income'!$B6","v":0},{"$f":"'Other income'!$B6","v":0},{"$f":"'Other income'!$B6","v":0},{"$f":"'Other income'!$B6","v":0},{"$f":"'Other income'!$B6","v":0},{"$f":"'Other income'!$B6","v":0},{"$f":"'Other income'!$B6","v":0},{"$f":"'Other income'!$B6","v":0},{"$f":"'Other income'!$B6","v":0},{"$f":"'Other income'!$B6","v":0},{"$f":"'Other income'!$B6","v":0},{"$f":"'Other income'!$B6","v":0},{"$f":"'Other income'!$B6","v":0},{"$f":"'Other income'!$B6","v":0},{"$f":"'Other income'!$B6","v":0},{"$f":"'Other income'!$B6","v":0},{"$f":"'Other income'!$B6","v":0},{"$f":"'Other income'!$B6","v":0},{"$f":"'Other income'!$B6","v":0}]
["Tours","Tours"]
["Tours/year",{"$f":"'Other income'!$B7","v":0},{"$f":"'Other income'!$B7","v":0},{"$f":"'Other income'!$B7","v":0},{"$f":"'Other income'!$B7","v":0},{"$f":"'Other income'!$B7","v":0},{"$f":"'Other income'!$B7","v":0},{"$f":"'Other income'!$B7","v":0},{"$f":"'Other income'!$B7","v":0},{"$f":"'Other income'!$B7","v":0},{"$f":"'Other income'!$B7","v":0},{"$f":"'Other income'!$B7","v":0},{"$f":"'Other income'!$B7","v":0},{"$f":"'Other income'!$B7","v":0},{"$f":"'Other income'!$B7","v":0},{"$f":"'Other income'!$B7","v":0},{"$f":"'Other income'!$B7","v":0},{"$f":"'Other income'!$B7","v":0},{"$f":"'Other income'!$B7","v":0},{"$f":"'Other income'!$B7","v":0},{"$f":"'Other income'!$B7","v":0}]
["Price/person/tour",{"$f":"'Other income'!$B8","v":0},{"$f":"'Other income'!$B8","v":0},{"$f":"'Other income'!$B8","v":0},{"$f":"'Other income'!$B8","v":0},{"$f":"'Other income'!$B8","v":0},{"$f":"'Other income'!$B8","v":0},{"$f":"'Other income'!$B8","v":0},{"$f":"'Other income'!$B8","v":0},{"$f":"'Other income'!$B8","v":0},{"$f":"'Other income'!$B8","v":0},{"$f":"'Other income'!$B8","v":0},{"$f":"'Other income'!$B8","v":0},{"$f":"'Other income'!$B8","v":0},{"$f":"'Other income'!$B8","v":0},{"$f":"'Other income'!$B8","v":0},{"$f":"'Other income'!$B8","v":0},{"$f":"'Other income'!$B8","v":0},{"$f":"'Other income'!$B8","v":0},{"$f":"'Other income'!$B8","v":0},{"$f":"'Other income'!$B8","v":0}]
["Average number of persons/tour",{"$f":"'Other income'!$B9","v":0},{"$f":"'Other income'!$B9","v":0},{"$f":"'Other income'!$B9","v":0},{"$f":"'Other income'!$B9","v":0},{"$f":"'Other income'!$B9","v":0},{"$f":"'Other income'!$B9","v":0},{"$f":"'Other income'!$B9","v":0},{"$f":"'Other income'!$B9","v":0},{"$f":"'Other income'!$B9","v":0},{"$f":"'Other income'!$B9","v":0},{"$f":"'Other income'!$B9","v":0},{"$f":"'Other income'!$B9","v":0},{"$f":"'Other income'!$B9","v":0},{"$f":"'Other income'!$B9","v":0},{"$f":"'Other income'!$B9","v":0},{"$f":"'Other income'!$B9","v":0},{"$f":"'Other income'!$B9","v":0},{"$f":"'Other income'!$B9","v":0},{"$f":"'Other income'!$B9","v":0},{"$f":"'Other income'!$B9","v":0}]
["Events","Events"]
["Events/year",{"$f":"'Other income'!$B10","v":0},{"$f":"'Other income'!$B10","v":0},{"$f":"'Other income'!$B10","v":0},{"$f":"'Other income'!$B10","v":0},{"$f":"'Other income'!$B10","v":0},{"$f":"'Other income'!$B10","v":0},{"$f":"'Other income'!$B10","v":0},{"$f":"'Other income'!$B10","v":0},{"$f":"'Other income'!$B10","v":0},{"$f":"'Other income'!$B10","v":0},{"$f":"'Other income'!$B10","v":0},{"$f":"'Other income'!$B10","v":0},{"$f":"'Other income'!$B10","v":0},{"$f":"'Other income'!$B10","v":0},{"$f":"'Other income'!$B10","v":0},{"$f":"'Other income'!$B10","v":0},{"$f":"'Other income'!$B10","v":0},{"$f":"'Other income'!$B10","v":0},{"$f":"'Other income'!$B10","v":0},{"$f":"'Other income'!$B10","v":0}]
["Average price/event",{"$f":"'Other income'!$B11","v":0},{"$f":"'Other income'!$B11","v":0},{"$f":"'Other income'!$B11","v":0},{"$f":"'Other income'!$B11","v":0},{"$f":"'Other income'!$B11","v":0},{"$f":"'Other income'!$B11","v":0},{"$f":"'Other income'!$B11","v":0},{"$f":"'Other income'!$B11","v":0},{"$f":"'Other income'!$B11","v":0},{"$f":"'Other income'!$B11","v":0},{"$f":"'Other income'!$B11","v":0},{"$f":"'Other income'!$B11","v":0},{"$f":"'Other income'!$B11","v":0},{"$f":"'Other income'!$B11","v":0},{"$f":"'Other income'!$B11","v":0},{"$f":"'Other income'!$B11","v":0},{"$f":"'Other income'!$B11","v":0},{"$f":"'Other income'!$B11","v":0},{"$f":"'Other income'!$B11","v":0},{"$f":"'Other income'!$B11","v":0}]
["Other fixed income/year",{"$f":"'Other income'!$B12","v":0},{"$f":"'Other income'!$B12","v":0},{"$f":"'Other income'!$B12","v":0},{"$f":"'Other income'!$B12","v":0},{"$f":"'Other income'!$B12","v":0},{"$f":"'Other income'!$B12","v":0},{"$f":"'Other income'!$B12","v":0},{"$f":"'Other income'!$B12","v":0},{"$f":"'Other income'!$B12","v":0},{"$f":"'Other income'!$B12","v":0},{"$f":"'Other income'!$B12","v":0},{"$f":"'Other income'!$B12","v":0},{"$f":"'Other income'!$B12","v":0},{"$f":"'Other income'!$B12","v":0},{"$f":"'Other income'!$B12","v":0},{"$f":"'Other income'!$B12","v":0},{"$f":"'Other income'!$B12","v":0},{"$f":"'Other income'!$B12","v":0},{"$f":"'Other income'!$B12","v":0},{"$f":"'Other income'!$B12","v":0}]
[]
["Variable income",1,2,3,4,5,6,7,8,9,10,11,12,13,14,15,16,17,18,19,20]
["Wood (fuel, timber, etc)",{"$f":"'Other income'!$B$15","v":0},{"$f":"'Other income'!$B$15","v":0},{"$f":"'Other income'!$B$15","v":0},{"$f":"'Other income'!$B$15","v":0},{"$f":"'Other income'!$B$15","v":0},{"$f":"'Other income'!$B$15","v":0},{"$f":"'Other income'!$B$15","v":0},{"$f":"'Other income'!$B$15","v":0},{"$f":"'Other income'!$B$15","v":0},{"$f":"'Other income'!$B$15","v":0},{"$f":"'Other income'!$B$15","v":0},{"$f":"'Other income'!$B$15","v":0},{"$f":"'Other income'!$B$15","v":0},{"$f":"'Other income'!$B$15","v":0},{"$f":"'Other income'!$B$15","v":0},{"$f":"'Other income'!$B$15","v":0},{"$f":"'Other income'!$B$15","v":0},{"$f":"'Other income'!$B$15","v":0},{"$f":"'Other income'!$B$15","v":0},{"$f":"'Other income'!$B$15","v":0}]
["Other variable income",{"$f":"'Other income'!$B16","v":0},{"$f":"'Other income'!$B16","v":0},{"$f":"'Other income'!$B16","v":0},{"$f":"'Other income'!$B16","v":0},{"$f":"'Other income'!$B16","v":0},{"$f":"'Other income'!$B16","v":0},{"$f":"'Other income'!$B16","v":0},{"$f":"'Other income'!$B16","v":0},{"$f":"'Other income'!$B16","v":0},{"$f":"'Other income'!$B16","v":0},{"$f":"'Other income'!$B16","v":0},{"$f":"'Other income'!$B16","v":0},{"$f":"'Other income'!$B16","v":0},{"$f":"'Other income'!$B16","v":0},{"$f":"'Other income'!$B16","v":0},{"$f":"'Other income'!$B16","v":0},{"$f":"'Other income'!$B16","v":0},{"$f":"'Other income'!$B16","v":0},{"$f":"'Other income'!$B16","v":0},{"$f":"'Other income'!$B16","v":0}]
["Write-down land",{"$f":"'Other income'!B17","v":0}]
[]
["Grants and compensations",1,2,3,4,5,6,7,8,9,10,11,12,13,14,15,16,17,18,19,20]
["Biodiversity",{"$f":"'Other income'!$B$20","v":0},{"$f":"'Other income'!$B$20","v":0},{"$f":"'Other income'!$B$20","v":0},{"$f":"'Other income'!$B$20","v":0},{"$f":"'Other income'!$B$20","v":0},{"$f":"'Other income'!$B$20","v":0},{"$f":"'Other income'!$B$20","v":0},{"$f":"'Other income'!$B$20","v":0},{"$f":"'Other income'!$B$20","v":0},{"$f":"'Other income'!$B$20","v":0},{"$f":"'Other income'!$B$20","v":0},{"$f":"'Other income'!$B$20","v":0},{"$f":"'Other income'!$B$20","v":0},{"$f":"'Other income'!$B$20","v":0},{"$f":"'Other income'!$B$20","v":0},{"$f":"'Other income'!$B$20","v":0},{"$f":"'Other income'!$B$20","v":0},{"$f":"'Other income'!$B$20","v":0},{"$f":"'Other income'!$B$20","v":0},{"$f":"'Other income'!$B$20","v":0}]
["Climateadaptation",{"$f":"'Other income'!$B$21","v":0},{"$f":"'Other income'!$B$21","v":0},{"$f":"'Other income'!$B$21","v":0},{"$f":"'Other income'!$B$21","v":0},{"$f":"'Other income'!$B$21","v":0},{"$f":"'Other income'!$B$21","v":0},{"$f":"'Other income'!$B$21","v":0},{"$f":"'Other income'!$B$21","v":0},{"$f":"'Other income'!$B$21","v":0},{"$f":"'Other income'!$B$21","v":0},{"$f":"'Other income'!$B$21","v":0},{"$f":"'Other income'!$B$21","v":0},{"$f":"'Other income'!$B$21","v":0},{"$f":"'Other income'!$B$21","v":0},{"$f":"'Other income'!$B$21","v":0},{"$f":"'Other income'!$B$21","v":0},{"$f":"'Other income'!$B$21","v":0},{"$f":"'Other income'!$B$21","v":0},{"$f":"'Other income'!$B$21","v":0},{"$f":"'Other income'!$B$21","v":0}]
["Carbon sequestration",{"$f":"'Other income'!$B$22","v":0},{"$f":"'Other income'!$B$22","v":0},{"$f":"'Other income'!$B$22","v":0},{"$f":"'Other income'!$B$22","v":0},{"$f":"'Other income'!$B$22","v":0},{"$f":"'Other income'!$B$22","v":0},{"$f":"'Other income'!$B$22","v":0},{"$f":"'Other income'!$B$22","v":0},{"$f":"'Other income'!$B$22","v":0},{"$f":"'Other income'!$B$22","v":0},{"$f":"'Other income'!$B$22","v":0},{"$f":"'Other income'!$B$22","v":0},{"$f":"'Other income'!$B$22","v":0},{"$f":"'Other income'!$B$22","v":0},{"$f":"'Other income'!$B$22","v":0},{"$f":"'Other income'!$B$22","v":0},{"$f":"'Other income'!$B$22","v":0},{"$f":"'Other income'!$B$22","v":0},{"$f":"'Other income'!$B$22","v":0},{"$f":"'Other income'!$B$22","v":0}]
["Carbon credit",{"$f":"'Other income'!$B$23","v":0},{"$f":"'Other income'!$B$23","v":0},{"$f":"'Other income'!$B$23","v":0},{"$f":"'Other income'!$B$23","v":0},{"$f":"'Other income'!$B$23","v":0},{"$f":"'Other income'!$B$23","v":0},{"$f":"'Other income'!$B$23","v":0},{"$f":"'Other income'!$B$23","v":0},{"$f":"'Other income'!$B$23","v":0},{"$f":"'Other income'!$B$23","v":0},{"$f":"'Other income'!$B$23","v":0},{"$f":"'Other income'!$B$23","v":0},{"$f":"'Other income'!$B$23","v":0},{"$f":"'Other income'!$B$23","v":0},{"$f":"'Other income'!$B$23","v":0},{"$f":"'Other income'!$B$23","v":0},{"$f":"'Other income'!$B$23","v":0},{"$f":"'Other income'!$B$23","v":0},{"$f":"'Other income'!$B$23","v":0},{"$f":"'Other income'!$B$23","v":0}]
["Ecosystem service 1",{"$f":"'Other income'!$B$24","v":0},{"$f":"'Other income'!$B$24","v":0},{"$f":"'Other income'!$B$24","v":0},{"$f":"'Other income'!$B$24","v":0},{"$f":"'Other income'!$B$24","v":0},{"$f":"'Other income'!$B$24","v":0},{"$f":"'Other income'!$B$24","v":0},{"$f":"'Other income'!$B$24","v":0},{"$f":"'Other income'!$B$24","v":0},{"$f":"'Other income'!$B$24","v":0},{"$f":"'Other income'!$B$24","v":0},{"$f":"'Other income'!$B$24","v":0},{"$f":"'Other income'!$B$24","v":0},{"$f":"'Other income'!$B$24","v":0},{"$f":"'Other income'!$B$24","v":0},{"$f":"'Other income'!$B$24","v":0},{"$f":"'Other income'!$B$24","v":0},{"$f":"'Other income'!$B$24","v":0},{"$f":"'Other income'!$B$24","v":0},{"$f":"'Other income'!$B$24","v":0}]
["Compensation",{"$f":"'Other income'!$B$25","v":0},{"$f":"'Other income'!$B$25","v":0},{"$f":"'Other income'!$B$25","v":0},{"$f":"'Other income'!$B$25","v":0},{"$f":"'Other income'!$B$25","v":0},{"$f":"'Other income'!$B$25","v":0},{"$f":"'Other income'!$B$25","v":0},{"$f":"'Other income'!$B$25","v":0},{"$f":"'Other income'!$B$25","v":0},{"$f":"'Other income'!$B$25","v":0},{"$f":"'Other income'!$B$25","v":0},{"$f":"'Other income'!$B$25","v":0},{"$f":"'Other income'!$B$25","v":0},{"$f":"'Other income'!$B$25","v":0},{"$f":"'Other income'!$B$25","v":0},{"$f":"'Other income'!$B$25","v":0},{"$f":"'Other income'!$B$25","v":0},{"$f":"'Other income'!$B$25","v":0},{"$f":"'Other income'!$B$25","v":0},{"$f":"'Other income'!$B$25","v":0}]
["Ecosystem service 2",{"$f":"'Other income'!$B$26","v":0},{"$f":"'Other income'!$B$26","v":0},{"$f":"'Other income'!$B$26","v":0},{"$f":"'Other income'!$B$26","v":0},{"$f":"'Other income'!$B$26","v":0},{"$f":"'Other income'!$B$26","v":0},{"$f":"'Other income'!$B$26","v":0},{"$f":"'Other income'!$B$26","v":0},{"$f":"'Other income'!$B$26","v":0},{"$f":"'Other income'!$B$26","v":0},{"$f":"'Other income'!$B$26","v":0},{"$f":"'Other income'!$B$26","v":0},{"$f":"'Other income'!$B$26","v":0},{"$f":"'Other income'!$B$26","v":0},{"$f":"'Other income'!$B$26","v":0},{"$f":"'Other income'!$B$26","v":0},{"$f":"'Other income'!$B$26","v":0},{"$f":"'Other income'!$B$26","v":0},{"$f":"'Other income'!$B$26","v":0},{"$f":"'Other income'!$B$26","v":0}]
["Compensation",{"$f":"'Other income'!$B$27","v":0},{"$f":"'Other income'!$B$27","v":0},{"$f":"'Other income'!$B$27","v":0},{"$f":"'Other income'!$B$27","v":0},{"$f":"'Other income'!$B$27","v":0},{"$f":"'Other income'!$B$27","v":0},{"$f":"'Other income'!$B$27","v":0},{"$f":"'Other income'!$B$27","v":0},{"$f":"'Other income'!$B$27","v":0},{"$f":"'Other income'!$B$27","v":0},{"$f":"'Other income'!$B$27","v":0},{"$f":"'Other income'!$B$27","v":0},{"$f":"'Other income'!$B$27","v":0},{"$f":"'Other income'!$B$27","v":0},{"$f":"'Other income'!$B$27","v":0},{"$f":"'Other income'!$B$27","v":0},{"$f":"'Other income'!$B$27","v":0},{"$f":"'Other income'!$B$27","v":0},{"$f":"'Other income'!$B$27","v":0},{"$f":"'Other income'!$B$27","v":0}]
["Other compenstaions",{"$f":"'Other income'!$B$28","v":0},{"$f":"'Other income'!$B$28","v":0},{"$f":"'Other income'!$B$28","v":0},{"$f":"'Other income'!$B$28","v":0},{"$f":"'Other income'!$B$28","v":0},{"$f":"'Other income'!$B$28","v":0},{"$f":"'Other income'!$B$28","v":0},{"$f":"'Other income'!$B$28","v":0},{"$f":"'Other income'!$B$28","v":0},{"$f":"'Other income'!$B$28","v":0},{"$f":"'Other income'!$B$28","v":0},{"$f":"'Other income'!$B$28","v":0},{"$f":"'Other income'!$B$28","v":0},{"$f":"'Other income'!$B$28","v":0},{"$f":"'Other income'!$B$28","v":0},{"$f":"'Other income'!$B$28","v":0},{"$f":"'Other income'!$B$28","v":0},{"$f":"'Other income'!$B$28","v":0},{"$f":"'Other income'!$B$28","v":0},{"$f":"'Other income'!$B$28","v":0}]
["Grants and compensations per ha"]
["Compensation",{"$f":"'Other income'!$B31","v":0},{"$f":"'Other income'!$B31","v":0},{"$f":"'Other income'!$B31","v":0},{"$f":"'Other income'!$B31","v":0},{"$f":"'Other income'!$B31","v":0},{"$f":"'Other income'!$B31","v":0},{"$f":"'Other income'!$B31","v":0},{"$f":"'Other income'!$B31","v":0},{"$f":"'Other income'!$B31","v":0},{"$f":"'Other income'!$B31","v":0},{"$f":"'Other income'!$B31","v":0},{"$f":"'Other income'!$B31","v":0},{"$f":"'Other income'!$B31","v":0},{"$f":"'Other income'!$B31","v":0},{"$f":"'Other income'!$B31","v":0},{"$f":"'Other income'!$B31","v":0},{"$f":"'Other income'!$B31","v":0},{"$f":"'Other income'!$B31","v":0},{"$f":"'Other income'!$B31","v":0},{"$f":"'Other income'!$B31","v":0}]
["CAP (EU common agriculture policy)",{"$f":"'Other income'!$B$32","v":0},{"$f":"'Other income'!$B$32","v":0},{"$f":"'Other income'!$B$32","v":0},{"$f":"'Other income'!$B$32","v":0},{"$f":"'Other income'!$B$32","v":0},{"$f":"'Other income'!$B$32","v":0},{"$f":"'Other income'!$B$32","v":0},{"$f":"'Other income'!$B$32","v":0},{"$f":"'Other income'!$B$32","v":0},{"$f":"'Other income'!$B$32","v":0},{"$f":"'Other income'!$B$32","v":0},{"$f":"'Other income'!$B$32","v":0},{"$f":"'Other income'!$B$32","v":0},{"$f":"'Other income'!$B$32","v":0},{"$f":"'Other income'!$B$32","v":0},{"$f":"'Other income'!$B$32","v":0},{"$f":"'Other income'!$B$32","v":0},{"$f":"'Other income'!$B$32","v":0},{"$f":"'Other income'!$B$32","v":0},{"$f":"'Other income'!$B$32","v":0}]
["Soil Organic Matter accumulation",{"$f":"'Other income'!$B$33","v":0},{"$f":"'Other income'!$B$33","v":0},{"$f":"'Other income'!$B$33","v":0},{"$f":"'Other income'!$B$33","v":0},{"$f":"'Other income'!$B$33","v":0},{"$f":"'Other income'!$B$33","v":0},{"$f":"'Other income'!$B$33","v":0},{"$f":"'Other income'!$B$33","v":0},{"$f":"'Other income'!$B$33","v":0},{"$f":"'Other income'!$B$33","v":0},{"$f":"'Other income'!$B$33","v":0},{"$f":"'Other income'!$B$33","v":0},{"$f":"'Other income'!$B$33","v":0},{"$f":"'Other income'!$B$33","v":0},{"$f":"'Other income'!$B$33","v":0},{"$f":"'Other income'!$B$33","v":0},{"$f":"'Other income'!$B$33","v":0},{"$f":"'Other income'!$B$33","v":0},{"$f":"'Other income'!$B$33","v":0},{"$f":"'Other income'!$B$33","v":0}]
["Soil Organic Matter compensation",{"$f":"'Other income'!$B$34","v":0},{"$f":"'Other income'!$B$34","v":0},{"$f":"'Other income'!$B$34","v":0},{"$f":"'Other income'!$B$34","v":0},{"$f":"'Other income'!$B$34","v":0},{"$f":"'Other income'!$B$34","v":0},{"$f":"'Other income'!$B$34","v":0},{"$f":"'Other income'!$B$34","v":0},{"$f":"'Other income'!$B$34","v":0},{"$f":"'Other income'!$B$34","v":0},{"$f":"'Other income'!$B$34","v":0},{"$f":"'Other income'!$B$34","v":0},{"$f":"'Other income'!$B$34","v":0},{"$f":"'Other income'!$B$34","v":0},{"$f":"'Other income'!$B$34","v":0},{"$f":"'Other income'!$B$34","v":0},{"$f":"'Other income'!$B$34","v":0},{"$f":"'Other income'!$B$34","v":0},{"$f":"'Other income'!$B$34","v":0},{"$f":"'Other income'!$B$34","v":0}]
["Bufferzones",{"$f":"'Other income'!$B$35","v":0},{"$f":"'Other income'!$B$35","v":0},{"$f":"'Other income'!$B$35","v":0},{"$f":"'Other income'!$B$35","v":0},{"$f":"'Other income'!$B$35","v":0},{"$f":"'Other income'!$B$35","v":0},{"$f":"'Other income'!$B$35","v":0},{"$f":"'Other income'!$B$35","v":0},{"$f":"'Other income'!$B$35","v":0},{"$f":"'Other income'!$B$35","v":0},{"$f":"'Other income'!$B$35","v":0},{"$f":"'Other income'!$B$35","v":0},{"$f":"'Other income'!$B$35","v":0},{"$f":"'Other income'!$B$35","v":0},{"$f":"'Other income'!$B$35","v":0},{"$f":"'Other income'!$B$35","v":0},{"$f":"'Other income'!$B$35","v":0},{"$f":"'Other income'!$B$35","v":0},{"$f":"'Other income'!$B$35","v":0},{"$f":"'Other income'!$B$35","v":0}]
["Sowing cropland borders",{"$f":"'Other income'!$B$36","v":0},{"$f":"'Other income'!$B$36","v":0},{"$f":"'Other income'!$B$36","v":0},{"$f":"'Other income'!$B$36","v":0},{"$f":"'Other income'!$B$36","v":0},{"$f":"'Other income'!$B$36","v":0},{"$f":"'Other income'!$B$36","v":0},{"$f":"'Other income'!$B$36","v":0},{"$f":"'Other income'!$B$36","v":0},{"$f":"'Other income'!$B$36","v":0},{"$f":"'Other income'!$B$36","v":0},{"$f":"'Other income'!$B$36","v":0},{"$f":"'Other income'!$B$36","v":0},{"$f":"'Other income'!$B$36","v":0},{"$f":"'Other income'!$B$36","v":0},{"$f":"'Other income'!$B$36","v":0},{"$f":"'Other income'!$B$36","v":0},{"$f":"'Other income'!$B$36","v":0},{"$f":"'Other income'!$B$36","v":0},{"$f":"'Other income'!$B$36","v":0}]
["Sowing cover crops",{"$f":"'Other income'!$B$37","v":0},{"$f":"'Other income'!$B$37","v":0},{"$f":"'Other income'!$B$37","v":0},{"$f":"'Other income'!$B$37","v":0},{"$f":"'Other income'!$B$37","v":0},{"$f":"'Other income'!$B$37","v":0},{"$f":"'Other income'!$B$37","v":0},{"$f":"'Other income'!$B$37","v":0},{"$f":"'Other income'!$B$37","v":0},{"$f":"'Other income'!$B$37","v":0},{"$f":"'Other income'!$B$37","v":0},{"$f":"'Other income'!$B$37","v":0},{"$f":"'Other income'!$B$37","v":0},{"$f":"'Other income'!$B$37","v":0},{"$f":"'Other income'!$B$37","v":0},{"$f":"'Other income'!$B$37","v":0},{"$f":"'Other income'!$B$37","v":0},{"$f":"'Other income'!$B$37","v":0},{"$f":"'Other income'!$B$37","v":0},{"$f":"'Other income'!$B$37","v":0}]
["Other compensations",{"$f":"'Other income'!$B$38","v":0},{"$f":"'Other income'!$B$38","v":0},{"$f":"'Other income'!$B$38","v":0},{"$f":"'Other income'!$B$38","v":0},{"$f":"'Other income'!$B$38","v":0},{"$f":"'Other income'!$B$38","v":0},{"$f":"'Other income'!$B$38","v":0},{"$f":"'Other income'!$B$38","v":0},{"$f":"'Other income'!$B$38","v":0},{"$f":"'Other income'!$B$38","v":0},null,{"$f":"'Other income'!$B$38","v":0},{"$f":"'Other income'!$B$38","v":0},{"$f":"'Other income'!$B$38","v":0},{"$f":"'Other income'!$B$38","v":0},{"$f":"'Other income'!$B$38","v":0},{"$f":"'Other income'!$B$38","v":0},{"$f":"'Other income'!$B$38","v":0},{"$f":"'Other income'!$B$38","v":0},{"$f":"'Other income'!$B$38","v":0}]

{"sheet":"Costs expert","index":10,"n_rows":65,"n_cols":21,"rows_kept":65,"cut":false,"hidden":false,"merged":[[0,3,1,17],[22,3,22,20],[50,3,50,20],[46,3,46,20],[42,3,42,20],[38,3,38,20],[34,3,34,20],[30,3,30,20],[26,3,26,20]]}
[]
[]
["Fixed costs",1,2,3,4,5,6,7,8,9,10,11,12,13,14,15,16,17,18,19,20]
["Lease/ha",{"$f":"Costs!$B4","v":0},{"$f":"Costs!$B4","v":0},{"$f":"Costs!$B4","v":0},{"$f":"Costs!$B4","v":0},{"$f":"Costs!$B4","v":0},{"$f":"Costs!$B4","v":0},{"$f":"Costs!$B4","v":0},{"$f":"Costs!$B4","v":0},{"$f":"Costs!$B4","v":0},{"$f":"Costs!$B4","v":0},{"$f":"Costs!$B4","v":0},{"$f":"Costs!$B4","v":0},{"$f":"Costs!$B4","v":0},{"$f":"Costs!$B4","v":0},{"$f":"Costs!$B4","v":0},{"$f":"Costs!$B4","v":0},{"$f":"Costs!$B4","v":0},{"$f":"Costs!$B4","v":0},{"$f":"Costs!$B4","v":0},{"$f":"Costs!$B4","v":0}]
["Certification",{"$f":"Costs!$B5","v":0},{"$f":"Costs!$B5","v":0},{"$f":"Costs!$B5","v":0},{"$f":"Costs!$B5","v":0},{"$f":"Costs!$B5","v":0},{"$f":"Costs!$B5","v":0},{"$f":"Costs!$B5","v":0},{"$f":"Costs!$B5","v":0},{"$f":"Costs!$B5","v":0},{"$f":"Costs!$B5","v":0},{"$f":"Costs!$B5","v":0},{"$f":"Costs!$B5","v":0},{"$f":"Costs!$B5","v":0},{"$f":"Costs!$B5","v":0},{"$f":"Costs!$B5","v":0},{"$f":"Costs!$B5","v":0},{"$f":"Costs!$B5","v":0},{"$f":"Costs!$B5","v":0},{"$f":"Costs!$B5","v":0},{"$f":"Costs!$B5","v":0}]
["Website, logo & design ",{"$f":"Costs!$B6","v":0},{"$f":"Costs!$B6","v":0},{"$f":"Costs!$B6","v":0},{"$f":"Costs!$B6","v":0},{"$f":"Costs!$B6","v":0},{"$f":"Costs!$B6","v":0},{"$f":"Costs!$B6","v":0},{"$f":"Costs!$B6","v":0},{"$f":"Costs!$B6","v":0},{"$f":"Costs!$B6","v":0},{"$f":"Costs!$B6","v":0},{"$f":"Costs!$B6","v":0},{"$f":"Costs!$B6","v":0},{"$f":"Costs!$B6","v":0},{"$f":"Costs!$B6","v":0},{"$f":"Costs!$B6","v":0},{"$f":"Costs!$B6","v":0},{"$f":"Costs!$B6","v":0},{"$f":"Costs!$B6","v":0},{"$f":"Costs!$B6","v":0}]
["Marketing & sales",{"$f":"Costs!$B7","v":0.02},{"$f":"Costs!$B7","v":0.02},{"$f":"Costs!$B7","v":0.02},{"$f":"Costs!$B7","v":0.02},{"$f":"Costs!$B7","v":0.02},{"$f":"Costs!$B7","v":0.02},{"$f":"Costs!$B7","v":0.02},{"$f":"Costs!$B7","v":0.02},{"$f":"Costs!$B7","v":0.02},{"$f":"Costs!$B7","v":0.02},{"$f":"Costs!$B7","v":0.02},{"$f":"Costs!$B7","v":0.02},{"$f":"Costs!$B7","v":0.02},{"$f":"Costs!$B7","v":0.02},{"$f":"Costs!$B7","v":0.02},{"$f":"Costs!$B7","v":0.02},{"$f":"Costs!$B7","v":0.02},{"$f":"Costs!$B7","v":0.02},{"$f":"Costs!$B7","v":0.02},{"$f":"Costs!$B7","v":0.02}]
["Utilities",{"$f":"Costs!$B8","v":0},{"$f":"Costs!$B8","v":0},{"$f":"Costs!$B8","v":0},{"$f":"Costs!$B8","v":0},{"$f":"Costs!$B8","v":0},{"$f":"Costs!$B8","v":0},{"$f":"Costs!$B8","v":0},{"$f":"Costs!$B8","v":0},{"$f":"Costs!$B8","v":0},{"$f":"Costs!$B8","v":0},{"$f":"Costs!$B8","v":0},{"$f":"Costs!$B8","v":0},{"$f":"Costs!$B8","v":0},{"$f":"Costs!$B8","v":0},{"$f":"Costs!$B8","v":0},{"$f":"Costs!$B8","v":0},{"$f":"Costs!$B8","v":0},{"$f":"Costs!$B8","v":0},{"$f":"Costs!$B8","v":0},{"$f":"Costs!$B8","v":0}]
["Advice",{"$f":"Costs!$B9","v":0},{"$f":"Costs!$B9","v":0},{"$f":"Costs!$B9","v":0},{"$f":"Costs!$B9","v":0},{"$f":"Costs!$B9","v":0},{"$f":"Costs!$B9","v":0},{"$f":"Costs!$B9","v":0},{"$f":"Costs!$B9","v":0},{"$f":"Costs!$B9","v":0},{"$f":"Costs!$B9","v":0},{"$f":"Costs!$B9","v":0},{"$f":"Costs!$B9","v":0},{"$f":"Costs!$B9","v":0},{"$f":"Costs!$B9","v":0},{"$f":"Costs!$B9","v":0},{"$f":"Costs!$B9","v":0},{"$f":"Costs!$B9","v":0},{"$f":"Costs!$B9","v":0},{"$f":"Costs!$B9","v":0},{"$f":"Costs!$B9","v":0}]
["Start-up cost",{"$f":"Costs!$B10","v":0},0,0,0,0,0,0,0,0,0,0,0,0,0,0,0,0,0,0,0]
["Maintenance",{"$f":"Costs!$B11","v":0.05},{"$f":"Costs!$B11","v":0.05},{"$f":"Costs!$B11","v":0.05},{"$f":"Costs!$B11","v":0.05},{"$f":"Costs!$B11","v":0.05},{"$f":"Costs!$B11","v":0.05},{"$f":"Costs!$B11","v":0.05},{"$f":"Costs!$B11","v":0.05},{"$f":"Costs!$B11","v":0.05},{"$f":"Costs!$B11","v":0.05},{"$f":"Costs!$B11","v":0.05},{"$f":"Costs!$B11","v":0.05},{"$f":"Costs!$B11","v":0.05},{"$f":"Costs!$B11","v":0.05},{"$f":"Costs!$B11","v":0.05},{"$f":"Costs!$B11","v":0.05},{"$f":"Costs!$B11","v":0.05},{"$f":"Costs!$B11","v":0.05},{"$f":"Costs!$B11","v":0.05},{"$f":"Costs!$B11","v":0.05}]
["Insurances",{"$f":"Costs!$B12","v":0},{"$f":"Costs!$B12","v":0},{"$f":"Costs!$B12","v":0},{"$f":"Costs!$B12","v":0},{"$f":"Costs!$B12","v":0},{"$f":"Costs!$B12","v":0},{"$f":"Costs!$B12","v":0},{"$f":"Costs!$B12","v":0},{"$f":"Costs!$B12","v":0},{"$f":"Costs!$B12","v":0},{"$f":"Costs!$B12","v":0},{"$f":"Costs!$B12","v":0},{"$f":"Costs!$B12","v":0},{"$f":"Costs!$B12","v":0},{"$f":"Costs!$B12","v":0},{"$f":"Costs!$B12","v":0},{"$f":"Costs!$B12","v":0},{"$f":"Costs!$B12","v":0},{"$f":"Costs!$B12","v":0},{"$f":"Costs!$B12","v":0}]
["Other costs",0,0,0,0,0,{"$f":"Costs!$B13","v":0},{"$f":"Costs!$B13","v":0},{"$f":"Costs!$B13","v":0},{"$f":"Costs!$B13","v":0},{"$f":"Costs!$B13","v":0},{"$f":"Costs!$B13","v":0},{"$f":"Costs!$B13","v":0},{"$f":"Costs!$B13","v":0},{"$f":"Costs!$B13","v":0},{"$f":"Costs!$B13","v":0},{"$f":"Costs!$B13","v":0},{"$f":"Costs!$B13","v":0},{"$f":"Costs!$B13","v":0},{"$f":"Costs!$B13","v":0},{"$f":"Costs!$B13","v":0}]
["Unforseen costs",{"$f":"Costs!$B14","v":0.1},{"$f":"Costs!$B14","v":0.1},{"$f":"Costs!$B14","v":0.1},{"$f":"Costs!$B14","v":0.1},{"$f":"Costs!$B14","v":0.1},{"$f":"Costs!$B14","v":0.1},{"$f":"Costs!$B14","v":0.1},{"$f":"Costs!$B14","v":0.1},{"$f":"Costs!$B14","v":0.1},{"$f":"Costs!$B14","v":0.1},{"$f":"Costs!$B14","v":0.1},{"$f":"Costs!$B14","v":0.1},{"$f":"Costs!$B14","v":0.1},{"$f":"Costs!$B14","v":0.1},{"$f":"Costs!$B14","v":0.1},{"$f":"Costs!$B14","v":0.1},{"$f":"Costs!$B14","v":0.1},{"$f":"Costs!$B14","v":0.1},{"$f":"Costs!$B14","v":0.1},{"$f":"Costs!$B14","v":0.1}]
[]
["Variable costs",1,2,3,4,5,6,7,8,9,10,11,12,13,14,15,16,17,18,19,20]
["Packaging per kg",{"$f":"Costs!$B17","v":0.1},{"$f":"Costs!$B17","v":0.1},{"$f":"Costs!$B17","v":0.1},{"$f":"Costs!$B17","v":0.1},{"$f":"Costs!$B17","v":0.1},{"$f":"Costs!$B17","v":0.1},{"$f":"Costs!$B17","v":0.1},{"$f":"Costs!$B17","v":0.1},{"$f":"Costs!$B17","v":0.1},{"$f":"Costs!$B17","v":0.1},{"$f":"Costs!$B17","v":0.1},{"$f":"Costs!$B17","v":0.1},{"$f":"Costs!$B17","v":0.1},{"$f":"Costs!$B17","v":0.1},{"$f":"Costs!$B17","v":0.1},{"$f":"Costs!$B17","v":0.1},{"$f":"Costs!$B17","v":0.1},{"$f":"Costs!$B17","v":0.1},{"$f":"Costs!$B17","v":0.1},{"$f":"Costs!$B17","v":0.1}]
["Transport per kg",{"$f":"Costs!$B18","v":0},{"$f":"Costs!$B18","v":0},{"$f":"Costs!$B18","v":0},{"$f":"Costs!$B18","v":0},{"$f":"Costs!$B18","v":0},{"$f":"Costs!$B18","v":0},{"$f":"Costs!$B18","v":0},{"$f":"Costs!$B18","v":0},{"$f":"Costs!$B18","v":0},{"$f":"Costs!$B18","v":0},{"$f":"Costs!$B18","v":0},{"$f":"Costs!$B18","v":0},{"$f":"Costs!$B18","v":0},{"$f":"Costs!$B18","v":0},{"$f":"Costs!$B18","v":0},{"$f":"Costs!$B18","v":0},{"$f":"Costs!$B18","v":0},{"$f":"Costs!$B18","v":0},{"$f":"Costs!$B18","v":0},{"$f":"Costs!$B18","v":0}]
["Storage per kg",{"$f":"Costs!$B19","v":0.1},{"$f":"Costs!$B19","v":0.1},{"$f":"Costs!$B19","v":0.1},{"$f":"Costs!$B19","v":0.1},{"$f":"Costs!$B19","v":0.1},{"$f":"Costs!$B19","v":0.1},{"$f":"Costs!$B19","v":0.1},{"$f":"Costs!$B19","v":0.1},{"$f":"Costs!$B19","v":0.1},{"$f":"Costs!$B19","v":0.1},{"$f":"Costs!$B19","v":0.1},{"$f":"Costs!$B19","v":0.1},{"$f":"Costs!$B19","v":0.1},{"$f":"Costs!$B19","v":0.1},{"$f":"Costs!$B19","v":0.1},{"$f":"Costs!$B19","v":0.1},{"$f":"Costs!$B19","v":0.1},{"$f":"Costs!$B19","v":0.1},{"$f":"Costs!$B19","v":0.1},{"$f":"Costs!$B19","v":0.1}]
["Other variable costs per kg",{"$f":"Costs!$B20","v":0.2},{"$f":"Costs!$B20","v":0.2},{"$f":"Costs!$B20","v":0.2},{"$f":"Costs!$B20","v":0.2},{"$f":"Costs!$B20","v":0.2},{"$f":"Costs!$B20","v":0.2},{"$f":"Costs!$B20","v":0.2},{"$f":"Costs!$B20","v":0.2},{"$f":"Costs!$B20","v":0.2},{"$f":"Costs!$B20","v":0.2},{"$f":"Costs!$B20","v":0.2},{"$f":"Costs!$B20","v":0.2},{"$f":"Costs!$B20","v":0.2},{"$f":"Costs!$B20","v":0.2},{"$f":"Costs!$B20","v":0.2},{"$f":"Costs!$B20","v":0.2},{"$f":"Costs!$B20","v":0.2},{"$f":"Costs!$B20","v":0.2},{"$f":"Costs!$B20","v":0.2},{"$f":"Costs!$B20","v":0.2}]
[]
["Labour per ha",1,2,3,4,5,6,7,8,9,10,11,12,13,14,15,16,17,18,19,20]
["Start-up (planting, etc)",null,null,"Start-up (planting, etc)"]
["Hours/year/ha (FF farmer) labour ",{"$f":"Costs!$B24","v":0},{"$f":"Costs!$B24","v":0},{"$f":"Costs!$B24","v":0},{"$f":"Costs!$B24","v":0},{"$f":"Costs!$B24","v":0},{"$f":"Costs!$B24","v":0},{"$f":"Costs!$B24","v":0},{"$f":"Costs!$B24","v":0},{"$f":"Costs!$B24","v":0},{"$f":"Costs!$B24","v":0},{"$f":"Costs!$B24","v":0},{"$f":"Costs!$B24","v":0},{"$f":"Costs!$B24","v":0},{"$f":"Costs!$B24","v":0},{"$f":"Costs!$B24","v":0},{"$f":"Costs!$B24","v":0},{"$f":"Costs!$B24","v":0},{"$f":"Costs!$B24","v":0},{"$f":"Costs!$B24","v":0},{"$f":"Costs!$B24","v":0}]
["Hours/year/ha external labour ",{"$f":"Costs!$B25","v":0},{"$f":"Costs!$B25","v":0},{"$f":"Costs!$B25","v":0},{"$f":"Costs!$B25","v":0},{"$f":"Costs!$B25","v":0},{"$f":"Costs!$B25","v":0},{"$f":"Costs!$B25","v":0},{"$f":"Costs!$B25","v":0},{"$f":"Costs!$B25","v":0},{"$f":"Costs!$B25","v":0},{"$f":"Costs!$B25","v":0},{"$f":"Costs!$B25","v":0},{"$f":"Costs!$B25","v":0},{"$f":"Costs!$B25","v":0},{"$f":"Costs!$B25","v":0},{"$f":"Costs!$B25","v":0},{"$f":"Costs!$B25","v":0},{"$f":"Costs!$B25","v":0},{"$f":"Costs!$B25","v":0},{"$f":"Costs!$B25","v":0}]
["Price/hour external labour",{"$f":"Costs!$B26","v":0},{"$f":"Costs!$B26","v":0},{"$f":"Costs!$B26","v":0},{"$f":"Costs!$B26","v":0},{"$f":"Costs!$B26","v":0},{"$f":"Costs!$B26","v":0},{"$f":"Costs!$B26","v":0},{"$f":"Costs!$B26","v":0},{"$f":"Costs!$B26","v":0},{"$f":"Costs!$B26","v":0},{"$f":"Costs!$B26","v":0},{"$f":"Costs!$B26","v":0},{"$f":"Costs!$B26","v":0},{"$f":"Costs!$B26","v":0},{"$f":"Costs!$B26","v":0},{"$f":"Costs!$B26","v":0},{"$f":"Costs!$B26","v":0},{"$f":"Costs!$B26","v":0},{"$f":"Costs!$B26","v":0},{"$f":"Costs!$B26","v":0}]
["Observation and inspection",null,null,"Observation and inspection "]
["Hours/year/ha (FF farmer) labour ",{"$f":"Costs!$B28","v":0},{"$f":"Costs!$B28","v":0},{"$f":"Costs!$B28","v":0},{"$f":"Costs!$B28","v":0},{"$f":"Costs!$B28","v":0},{"$f":"Costs!$B28","v":0},{"$f":"Costs!$B28","v":0},{"$f":"Costs!$B28","v":0},{"$f":"Costs!$B28","v":0},{"$f":"Costs!$B28","v":0},{"$f":"Costs!$B28","v":0},{"$f":"Costs!$B28","v":0},{"$f":"Costs!$B28","v":0},{"$f":"Costs!$B28","v":0},{"$f":"Costs!$B28","v":0},{"$f":"Costs!$B28","v":0},{"$f":"Costs!$B28","v":0},{"$f":"Costs!$B28","v":0},{"$f":"Costs!$B28","v":0},{"$f":"Costs!$B28","v":0}]
["Hours/year/ha external labour ",{"$f":"Costs!$B29","v":0},{"$f":"Costs!$B29","v":0},{"$f":"Costs!$B29","v":0},{"$f":"Costs!$B29","v":0},{"$f":"Costs!$B29","v":0},{"$f":"Costs!$B29","v":0},{"$f":"Costs!$B29","v":0},{"$f":"Costs!$B29","v":0},{"$f":"Costs!$B29","v":0},{"$f":"Costs!$B29","v":0},{"$f":"Costs!$B29","v":0},{"$f":"Costs!$B29","v":0},{"$f":"Costs!$B29","v":0},{"$f":"Costs!$B29","v":0},{"$f":"Costs!$B29","v":0},{"$f":"Costs!$B29","v":0},{"$f":"Costs!$B29","v":0},{"$f":"Costs!$B29","v":0},{"$f":"Costs!$B29","v":0},{"$f":"Costs!$B29","v":0}]
["Price/hour external labour",{"$f":"Costs!$B30","v":0},{"$f":"Costs!$B30","v":0},{"$f":"Costs!$B30","v":0},{"$f":"Costs!$B30","v":0},{"$f":"Costs!$B30","v":0},{"$f":"Costs!$B30","v":0},{"$f":"Costs!$B30","v":0},{"$f":"Costs!$B30","v":0},{"$f":"Costs!$B30","v":0},{"$f":"Costs!$B30","v":0},{"$f":"Costs!$B30","v":0},{"$f":"Costs!$B30","v":0},{"$f":"Costs!$B30","v":0},{"$f":"Costs!$B30","v":0},{"$f":"Costs!$B30","v":0},{"$f":"Costs!$B30","v":0},{"$f":"Costs!$B30","v":0},{"$f":"Costs!$B30","v":0},{"$f":"Costs!$B30","v":0},{"$f":"Costs!$B30","v":0}]
["(green) Maintenance",null,null,"(green) Maintenance"]
["Hours/year/ha (FF farmer) labour ",{"$f":"Costs!$B32","v":0},{"$f":"Costs!$B32","v":0},{"$f":"Costs!$B32","v":0},{"$f":"Costs!$B32","v":0},{"$f":"Costs!$B32","v":0},{"$f":"Costs!$B32","v":0},{"$f":"Costs!$B32","v":0},{"$f":"Costs!$B32","v":0},{"$f":"Costs!$B32","v":0},{"$f":"Costs!$B32","v":0},{"$f":"Costs!$B32","v":0},{"$f":"Costs!$B32","v":0},{"$f":"Costs!$B32","v":0},{"$f":"Costs!$B32","v":0},{"$f":"Costs!$B32","v":0},{"$f":"Costs!$B32","v":0},{"$f":"Costs!$B32","v":0},{"$f":"Costs!$B32","v":0},{"$f":"Costs!$B32","v":0},{"$f":"Costs!$B32","v":0}]
["Hours/year/ha external labour ",{"$f":"Costs!$B33","v":0},{"$f":"Costs!$B33","v":0},{"$f":"Costs!$B33","v":0},{"$f":"Costs!$B33","v":0},{"$f":"Costs!$B33","v":0},{"$f":"Costs!$B33","v":0},{"$f":"Costs!$B33","v":0},{"$f":"Costs!$B33","v":0},{"$f":"Costs!$B33","v":0},{"$f":"Costs!$B33","v":0},{"$f":"Costs!$B33","v":0},{"$f":"Costs!$B33","v":0},{"$f":"Costs!$B33","v":0},{"$f":"Costs!$B33","v":0},{"$f":"Costs!$B33","v":0},{"$f":"Costs!$B33","v":0},{"$f":"Costs!$B33","v":0},{"$f":"Costs!$B33","v":0},{"$f":"Costs!$B33","v":0},{"$f":"Costs!$B33","v":0}]
["Price/hour external labour",{"$f":"Costs!$B34","v":0},{"$f":"Costs!$B34","v":0},{"$f":"Costs!$B34","v":0},{"$f":"Costs!$B34","v":0},{"$f":"Costs!$B34","v":0},{"$f":"Costs!$B34","v":0},{"$f":"Costs!$B34","v":0},{"$f":"Costs!$B34","v":0},{"$f":"Costs!$B34","v":0},{"$f":"Costs!$B34","v":0},{"$f":"Costs!$B34","v":0},{"$f":"Costs!$B34","v":0},{"$f":"Costs!$B34","v":0},{"$f":"Costs!$B34","v":0},{"$f":"Costs!$B34","v":0},{"$f":"Costs!$B34","v":0},{"$f":"Costs!$B34","v":0},{"$f":"Costs!$B34","v":0},{"$f":"Costs!$B34","v":0},{"$f":"Costs!$B34","v":0}]
["Organisation & logistics",null,null,"Organisation & logistics"]
["Hours/year (FF farmer) labour",{"$f":"Costs!$B36","v":0},{"$f":"Costs!$B36","v":0},{"$f":"Costs!$B36","v":0},{"$f":"Costs!$B36","v":0},{"$f":"Costs!$B36","v":0},{"$f":"Costs!$B36","v":0},{"$f":"Costs!$B36","v":0},{"$f":"Costs!$B36","v":0},{"$f":"Costs!$B36","v":0},{"$f":"Costs!$B36","v":0},{"$f":"Costs!$B36","v":0},{"$f":"Costs!$B36","v":0},{"$f":"Costs!$B36","v":0},{"$f":"Costs!$B36","v":0},{"$f":"Costs!$B36","v":0},{"$f":"Costs!$B36","v":0},{"$f":"Costs!$B36","v":0},{"$f":"Costs!$B36","v":0},{"$f":"Costs!$B36","v":0},{"$f":"Costs!$B36","v":0}]
["Hours/year external labour",{"$f":"Costs!$B$37","v":0},{"$f":"Costs!$B$37","v":0},{"$f":"Costs!$B$37","v":0},{"$f":"Costs!$B$37","v":0},{"$f":"Costs!$B$37","v":0},{"$f":"Costs!$B$37","v":0},{"$f":"Costs!$B$37","v":0},{"$f":"Costs!$B$37","v":0},{"$f":"Costs!$B$37","v":0},{"$f":"Costs!$B$37","v":0},{"$f":"Costs!$B$37","v":0},{"$f":"Costs!$B$37","v":0},{"$f":"Costs!$B$37","v":0},{"$f":"Costs!$B$37","v":0},{"$f":"Costs!$B$37","v":0},{"$f":"Costs!$B$37","v":0},{"$f":"Costs!$B$37","v":0},{"$f":"Costs!$B$37","v":0},{"$f":"Costs!$B$37","v":0},{"$f":"Costs!$B$37","v":0}]
["Price/hour external labour",{"$f":"Costs!$B38","v":0},{"$f":"Costs!$B38","v":0},{"$f":"Costs!$B38","v":0},{"$f":"Costs!$B38","v":0},{"$f":"Costs!$B38","v":0},{"$f":"Costs!$B38","v":0},{"$f":"Costs!$B38","v":0},{"$f":"Costs!$B38","v":0},{"$f":"Costs!$B38","v":0},{"$f":"Costs!$B38","v":0},{"$f":"Costs!$B38","v":0},{"$f":"Costs!$B38","v":0},{"$f":"Costs!$B38","v":0},{"$f":"Costs!$B38","v":0},{"$f":"Costs!$B38","v":0},{"$f":"Costs!$B38","v":0},{"$f":"Costs!$B38","v":0},{"$f":"Costs!$B38","v":0},{"$f":"Costs!$B38","v":0},{"$f":"Costs!$B38","v":0}]
["Tours",null,null,"Tours"]
["Hours/year (FF farmer) labour",0,0,0,0,0,0,0,0,0,0,0,0,0,0,0,0,0,0,0,0]
["Hours/year external labour",{"$f":"Costs!$B41","v":0},{"$f":"Costs!$B41","v":0},{"$f":"Costs!$B41","v":0},{"$f":"Costs!$B41","v":0},{"$f":"Costs!$B41","v":0},{"$f":"Costs!$B41","v":0},{"$f":"Costs!$B41","v":0},{"$f":"Costs!$B41","v":0},{"$f":"Costs!$B41","v":0},{"$f":"Costs!$B41","v":0},{"$f":"Costs!$B41","v":0},{"$f":"Costs!$B41","v":0},{"$f":"Costs!$B41","v":0},{"$f":"Costs!$B41","v":0},{"$f":"Costs!$B41","v":0},{"$f":"Costs!$B41","v":0},{"$f":"Costs!$B41","v":0},{"$f":"Costs!$B41","v":0},{"$f":"Costs!$B41","v":0},{"$f":"Costs!$B41","v":0}]
["Price/hour external labour",{"$f":"Costs!$B42","v":0},{"$f":"Costs!$B42","v":0},{"$f":"Costs!$B42","v":0},{"$f":"Costs!$B42","v":0},{"$f":"Costs!$B42","v":0},{"$f":"Costs!$B42","v":0},{"$f":"Costs!$B42","v":0},{"$f":"Costs!$B42","v":0},{"$f":"Costs!$B42","v":0},{"$f":"Costs!$B42","v":0},{"$f":"Costs!$B42","v":0},{"$f":"Costs!$B42","v":0},{"$f":"Costs!$B42","v":0},{"$f":"Costs!$B42","v":0},{"$f":"Costs!$B42","v":0},{"$f":"Costs!$B42","v":0},{"$f":"Costs!$B42","v":0},{"$f":"Costs!$B42","v":0},{"$f":"Costs!$B42","v":0},{"$f":"Costs!$B42","v":0}]
["Events",null,null,"Events"]
["Hours/year (FF farmer) labour",{"$f":"Costs!$B44","v":0},{"$f":"Costs!$B44","v":0},{"$f":"Costs!$B44","v":0},{"$f":"Costs!$B44","v":0},{"$f":"Costs!$B44","v":0},{"$f":"Costs!$B44","v":0},{"$f":"Costs!$B44","v":0},{"$f":"Costs!$B44","v":0},{"$f":"Costs!$B44","v":0},{"$f":"Costs!$B44","v":0},{"$f":"Costs!$B44","v":0},{"$f":"Costs!$B44","v":0},{"$f":"Costs!$B44","v":0},{"$f":"Costs!$B44","v":0},{"$f":"Costs!$B44","v":0},{"$f":"Costs!$B44","v":0},{"$f":"Costs!$B44","v":0},{"$f":"Costs!$B44","v":0},{"$f":"Costs!$B44","v":0},{"$f":"Costs!$B44","v":0}]
["Hours/year external labour",{"$f":"Costs!$B45","v":0},{"$f":"Costs!$B45","v":0},{"$f":"Costs!$B45","v":0},{"$f":"Costs!$B45","v":0},{"$f":"Costs!$B45","v":0},{"$f":"Costs!$B45","v":0},{"$f":"Costs!$B45","v":0},{"$f":"Costs!$B45","v":0},{"$f":"Costs!$B45","v":0},{"$f":"Costs!$B45","v":0},{"$f":"Costs!$B45","v":0},{"$f":"Costs!$B45","v":0},{"$f":"Costs!$B45","v":0},{"$f":"Costs!$B45","v":0},{"$f":"Costs!$B45","v":0},{"$f":"Costs!$B45","v":0},{"$f":"Costs!$B45","v":0},{"$f":"Costs!$B45","v":0},{"$f":"Costs!$B45","v":0},{"$f":"Costs!$B45","v":0}]
["Price/hour external labour",{"$f":"Costs!$B46","v":0},{"$f":"Costs!$B46","v":0},{"$f":"Costs!$B46","v":0},{"$f":"Costs!$B46","v":0},{"$f":"Costs!$B46","v":0},{"$f":"Costs!$B46","v":0},{"$f":"Costs!$B46","v":0},{"$f":"Costs!$B46","v":0},{"$f":"Costs!$B46","v":0},{"$f":"Costs!$B46","v":0},{"$f":"Costs!$B46","v":0},{"$f":"Costs!$B46","v":0},{"$f":"Costs!$B46","v":0},{"$f":"Costs!$B46","v":0},{"$f":"Costs!$B46","v":0},{"$f":"Costs!$B46","v":0},{"$f":"Costs!$B46","v":0},{"$f":"Costs!$B46","v":0},{"$f":"Costs!$B46","v":0},{"$f":"Costs!$B46","v":0}]
["Workshops ",null,null,"Workshops"]
["Hours/year (FF farmer) labour",{"$f":"Costs!$B48","v":0},{"$f":"Costs!$B48","v":0},{"$f":"Costs!$B48","v":0},{"$f":"Costs!$B48","v":0},{"$f":"Costs!$B48","v":0},{"$f":"Costs!$B48","v":0},{"$f":"Costs!$B48","v":0},{"$f":"Costs!$B48","v":0},{"$f":"Costs!$B48","v":0},{"$f":"Costs!$B48","v":0},{"$f":"Costs!$B48","v":0},{"$f":"Costs!$B48","v":0},{"$f":"Costs!$B48","v":0},{"$f":"Costs!$B48","v":0},{"$f":"Costs!$B48","v":0},{"$f":"Costs!$B48","v":0},{"$f":"Costs!$B48","v":0},{"$f":"Costs!$B48","v":0},{"$f":"Costs!$B48","v":0},{"$f":"Costs!$B48","v":0}]
["Hours/year external labour",{"$f":"Costs!$B49","v":0},{"$f":"Costs!$B49","v":0},{"$f":"Costs!$B49","v":0},{"$f":"Costs!$B49","v":0},{"$f":"Costs!$B49","v":0},{"$f":"Costs!$B49","v":0},{"$f":"Costs!$B49","v":0},{"$f":"Costs!$B49","v":0},{"$f":"Costs!$B49","v":0},{"$f":"Costs!$B49","v":0},{"$f":"Costs!$B49","v":0},{"$f":"Costs!$B49","v":0},{"$f":"Costs!$B49","v":0},{"$f":"Costs!$B49","v":0},{"$f":"Costs!$B49","v":0},{"$f":"Costs!$B49","v":0},{"$f":"Costs!$B49","v":0},{"$f":"Costs!$B49","v":0},{"$f":"Costs!$B49","v":0},{"$f":"Costs!$B49","v":0}]
["Price/hour external labour",{"$f":"Costs!$B50","v":0},{"$f":"Costs!$B50","v":0},{"$f":"Costs!$B50","v":0},{"$f":"Costs!$B50","v":0},{"$f":"Costs!$B50","v":0},{"$f":"Costs!$B50","v":0},{"$f":"Costs!$B50","v":0},{"$f":"Costs!$B50","v":0},{"$f":"Costs!$B50","v":0},{"$f":"Costs!$B50","v":0},{"$f":"Costs!$B50","v":0},{"$f":"Costs!$B50","v":0},{"$f":"Costs!$B50","v":0},{"$f":"Costs!$B50","v":0},{"$f":"Costs!$B50","v":0},{"$f":"Costs!$B50","v":0},{"$f":"Costs!$B50","v":0},{"$f":"Costs!$B50","v":0},{"$f":"Costs!$B50","v":0},{"$f":"Costs!$B50","v":0}]
["Other labour",null,null,"Other labour"]
["Hours/year/ha (FF farmer) labour ",{"$f":"Costs!$B52","v":0},{"$f":"Costs!$B52","v":0},{"$f":"Costs!$B52","v":0},{"$f":"Costs!$B52","v":0},{"$f":"Costs!$B52","v":0},{"$f":"Costs!$B52","v":0},{"$f":"Costs!$B52","v":0},{"$f":"Costs!$B52","v":0},{"$f":"Costs!$B52","v":0},{"$f":"Costs!$B52","v":0},{"$f":"Costs!$B52","v":0},{"$f":"Costs!$B52","v":0},{"$f":"Costs!$B52","v":0},{"$f":"Costs!$B52","v":0},{"$f":"Costs!$B52","v":0},{"$f":"Costs!$B52","v":0},{"$f":"Costs!$B52","v":0},{"$f":"Costs!$B52","v":0},{"$f":"Costs!$B52","v":0},{"$f":"Costs!$B52","v":0}]
["Hours/year/ha external labour ",{"$f":"Costs!$B53","v":0},{"$f":"Costs!$B53","v":0},{"$f":"Costs!$B53","v":0},{"$f":"Costs!$B53","v":0},{"$f":"Costs!$B53","v":0},{"$f":"Costs!$B53","v":0},{"$f":"Costs!$B53","v":0},{"$f":"Costs!$B53","v":0},{"$f":"Costs!$B53","v":0},{"$f":"Costs!$B53","v":0},{"$f":"Costs!$B53","v":0},{"$f":"Costs!$B53","v":0},{"$f":"Costs!$B53","v":0},{"$f":"Costs!$B53","v":0},{"$f":"Costs!$B53","v":0},{"$f":"Costs!$B53","v":0},{"$f":"Costs!$B53","v":0},{"$f":"Costs!$B53","v":0},{"$f":"Costs!$B53","v":0},{"$f":"Costs!$B53","v":0}]
["Price/hour external labour",{"$f":"Costs!$B54","v":0},{"$f":"Costs!$B54","v":0},{"$f":"Costs!$B54","v":0},{"$f":"Costs!$B54","v":0},{"$f":"Costs!$B54","v":0},{"$f":"Costs!$B54","v":0},{"$f":"Costs!$B54","v":0},{"$f":"Costs!$B54","v":0},{"$f":"Costs!$B54","v":0},{"$f":"Costs!$B54","v":0},{"$f":"Costs!$B54","v":0},{"$f":"Costs!$B54","v":0},{"$f":"Costs!$B54","v":0},{"$f":"Costs!$B54","v":0},{"$f":"Costs!$B54","v":0},{"$f":"Costs!$B54","v":0},{"$f":"Costs!$B54","v":0},{"$f":"Costs!$B54","v":0},{"$f":"Costs!$B54","v":0},{"$f":"Costs!$B54","v":0}]
[]
["FF farmer hours (total)",{"$f":"(B24+B28+B32+B52)*Homepage!$C$15+'Costs expert'!B36+'Costs expert'!B40+'Costs expert'!B44+'Costs expert'!B48","v":0},{"$f":"(C24+C28+C32+C52)*Homepage!$C$15+'Costs expert'!C36+'Costs expert'!C40+'Costs expert'!C44+'Costs expert'!C48","v":0},{"$f":"(D24+D28+D32+D52)*Homepage!$C$15+'Costs expert'!D36+'Costs expert'!D40+'Costs expert'!D44+'Costs expert'!D48","v":0},{"$f":"(E24+E28+E32+E52)*Homepage!$C$15+'Costs expert'!E36+'Costs expert'!E40+'Costs expert'!E44+'Costs expert'!E48","v":0},{"$f":"(F24+F28+F32+F52)*Homepage!$C$15+'Costs expert'!F36+'Costs expert'!F40+'Costs expert'!F44+'Costs expert'!F48","v":0},{"$f":"(G24+G28+G32+G52)*Homepage!$C$15+'Costs expert'!G36+'Costs expert'!G40+'Costs expert'!G44+'Costs expert'!G48","v":0},{"$f":"(H24+H28+H32+H52)*Homepage!$C$15+'Costs expert'!H36+'Costs expert'!H40+'Costs expert'!H44+'Costs expert'!H48","v":0},{"$f":"(I24+I28+I32+I52)*Homepage!$C$15+'Costs expert'!I36+'Costs expert'!I40+'Costs expert'!I44+'Costs expert'!I48","v":0},{"$f":"(J24+J28+J32+J52)*Homepage!$C$15+'Costs expert'!J36+'Costs expert'!J40+'Costs expert'!J44+'Costs expert'!J48","v":0},{"$f":"(K24+K28+K32+K52)*Homepage!$C$15+'Costs expert'!K36+'Costs expert'!K40+'Costs expert'!K44+'Costs expert'!K48","v":0},{"$f":"(L24+L28+L32+L52)*Homepage!$C$15+'Costs expert'!L36+'Costs expert'!L40+'Costs expert'!L44+'Costs expert'!L48","v":0},{"$f":"(M24+M28+M32+M52)*Homepage!$C$15+'Costs expert'!M36+'Costs expert'!M40+'Costs expert'!M44+'Costs expert'!M48","v":0},{"$f":"(N24+N28+N32+N52)*Homepage!$C$15+'Costs expert'!N36+'Costs expert'!N40+'Costs expert'!N44+'Costs expert'!N48","v":0},{"$f":"(O24+O28+O32+O52)*Homepage!$C$15+'Costs expert'!O36+'Costs expert'!O40+'Costs expert'!O44+'Costs expert'!O48","v":0},{"$f":"(P24+P28+P32+P52)*Homepage!$C$15+'Costs expert'!P36+'Costs expert'!P40+'Costs expert'!P44+'Costs expert'!P48","v":0},{"$f":"(Q24+Q28+Q32+Q52)*Homepage!$C$15+'Costs expert'!Q36+'Costs expert'!Q40+'Costs expert'!Q44+'Costs expert'!Q48","v":0},{"$f":"(R24+R28+R32+R52)*Homepage!$C$15+'Costs expert'!R36+'Costs expert'!R40+'Costs expert'!R44+'Costs expert'!R48","v":0},{"$f":"(S24+S28+S32+S52)*Homepage!$C$15+'Costs expert'!S36+'Costs expert'!S40+'Costs expert'!S44+'Costs expert'!S48","v":0},{"$f":"(T24+T28+T32+T52)*Homepage!$C$15+'Costs expert'!T36+'Costs expert'!T40+'Costs expert'!T44+'Costs expert'!T48","v":0},{"$f":"(U24+U28+U32+U52)*Homepage!$C$15+'Costs expert'!U36+'Costs expert'!U40+'Costs expert'!U44+'Costs expert'!U48","v":0}]
["External hours (total)",{"$f":"(B25+B29+B33+B53)*Homepage!$C$15+'Costs expert'!B37+'Costs expert'!B41+'Costs expert'!B45+'Costs expert'!B49","v":0},{"$f":"(C25+C29+C33+C53)*Homepage!$C$15+'Costs expert'!C37+'Costs expert'!C41+'Costs expert'!C45+'Costs expert'!C49","v":0},{"$f":"(D25+D29+D33+D53)*Homepage!$C$15+'Costs expert'!D37+'Costs expert'!D41+'Costs expert'!D45+'Costs expert'!D49","v":0},{"$f":"(E25+E29+E33+E53)*Homepage!$C$15+'Costs expert'!E37+'Costs expert'!E41+'Costs expert'!E45+'Costs expert'!E49","v":0},{"$f":"(F25+F29+F33+F53)*Homepage!$C$15+'Costs expert'!F37+'Costs expert'!F41+'Costs expert'!F45+'Costs expert'!F49","v":0},{"$f":"(G25+G29+G33+G53)*Homepage!$C$15+'Costs expert'!G37+'Costs expert'!G41+'Costs expert'!G45+'Costs expert'!G49","v":0},{"$f":"(H25+H29+H33+H53)*Homepage!$C$15+'Costs expert'!H37+'Costs expert'!H41+'Costs expert'!H45+'Costs expert'!H49","v":0},{"$f":"(I25+I29+I33+I53)*Homepage!$C$15+'Costs expert'!I37+'Costs expert'!I41+'Costs expert'!I45+'Costs expert'!I49","v":0},{"$f":"(J25+J29+J33+J53)*Homepage!$C$15+'Costs expert'!J37+'Costs expert'!J41+'Costs expert'!J45+'Costs expert'!J49","v":0},{"$f":"(K25+K29+K33+K53)*Homepage!$C$15+'Costs expert'!K37+'Costs expert'!K41+'Costs expert'!K45+'Costs expert'!K49","v":0},{"$f":"(L25+L29+L33+L53)*Homepage!$C$15+'Costs expert'!L37+'Costs expert'!L41+'Costs expert'!L45+'Costs expert'!L49","v":0},{"$f":"(M25+M29+M33+M53)*Homepage!$C$15+'Costs expert'!M37+'Costs expert'!M41+'Costs expert'!M45+'Costs expert'!M49","v":0},{"$f":"(N25+N29+N33+N53)*Homepage!$C$15+'Costs expert'!N37+'Costs expert'!N41+'Costs expert'!N45+'Costs expert'!N49","v":0},{"$f":"(O25+O29+O33+O53)*Homepage!$C$15+'Costs expert'!O37+'Costs expert'!O41+'Costs expert'!O45+'Costs expert'!O49","v":0},{"$f":"(P25+P29+P33+P53)*Homepage!$C$15+'Costs expert'!P37+'Costs expert'!P41+'Costs expert'!P45+'Costs expert'!P49","v":0},{"$f":"(Q25+Q29+Q33+Q53)*Homepage!$C$15+'Costs expert'!Q37+'Costs expert'!Q41+'Costs expert'!Q45+'Costs expert'!Q49","v":0},{"$f":"(R25+R29+R33+R53)*Homepage!$C$15+'Costs expert'!R37+'Costs expert'!R41+'Costs expert'!R45+'Costs expert'!R49","v":0},{"$f":"(S25+S29+S33+S53)*Homepage!$C$15+'Costs expert'!S37+'Costs expert'!S41+'Costs expert'!S45+'Costs expert'!S49","v":0},{"$f":"(T25+T29+T33+T53)*Homepage!$C$15+'Costs expert'!T37+'Costs expert'!T41+'Costs expert'!T45+'Costs expert'!T49","v":0},{"$f":"(U25+U29+U33+U53)*Homepage!$C$15+'Costs expert'!U37+'Costs expert'!U41+'Costs expert'!U45+'Costs expert'!U49","v":0}]
["Harvest labour",1,2,3,4,5,6,7,8,9,10,11,12,13,14,15,16,17,18,19,20]
["Total calculated harvest hours",{"$f":"'Harvest labour calculation'!P4","v":0},{"$f":"'Harvest labour calculation'!Q4","v":0},{"$f":"'Harvest labour calculation'!R4","v":0},{"$f":"'Harvest labour calculation'!S4","v":0},{"$f":"'Harvest labour calculation'!T4","v":0},{"$f":"'Harvest labour calculation'!U4","v":0},{"$f":"'Harvest labour calculation'!V4","v":0},{"$f":"'Harvest labour calculation'!W4","v":0},{"$f":"'Harvest labour calculation'!X4","v":0},{"$f":"'Harvest labour calculation'!Y4","v":0},{"$f":"'Harvest labour calculation'!$Z4","v":0},{"$f":"'Harvest labour calculation'!$Z4","v":0},{"$f":"'Harvest labour calculation'!$Z4","v":0},{"$f":"'Harvest labour calculation'!$Z4","v":0},{"$f":"'Harvest labour calculation'!$Z4","v":0},{"$f":"'Harvest labour calculation'!$AA4","v":0},{"$f":"'Harvest labour calculation'!$AA4","v":0},{"$f":"'Harvest labour calculation'!$AA4","v":0},{"$f":"'Harvest labour calculation'!$AA4","v":0},{"$f":"'Harvest labour calculation'!$AA4","v":0}]
["FF farmer harvest hours",{"$f":"B$59*Costs!$B57","v":0},{"$f":"C$59*Costs!$B57","v":0},{"$f":"D$59*Costs!$B57","v":0},{"$f":"E$59*Costs!$B57","v":0},{"$f":"F$59*Costs!$B57","v":0},{"$f":"G$59*Costs!$B57","v":0},{"$f":"H$59*Costs!$B57","v":0},{"$f":"I$59*Costs!$B57","v":0},{"$f":"J$59*Costs!$B57","v":0},{"$f":"K$59*Costs!$B57","v":0},{"$f":"L$59*Costs!$B57","v":0},{"$f":"M$59*Costs!$B57","v":0},{"$f":"N$59*Costs!$B57","v":0},{"$f":"O$59*Costs!$B57","v":0},{"$f":"P$59*Costs!$B57","v":0},{"$f":"Q$59*Costs!$B57","v":0},{"$f":"R$59*Costs!$B57","v":0},{"$f":"S$59*Costs!$B57","v":0},{"$f":"T$59*Costs!$B57","v":0},{"$f":"U$59*Costs!$B57","v":0}]
["External harvest hours",{"$f":"B$59*Costs!$B58","v":0},{"$f":"C$59*Costs!$B58","v":0},{"$f":"D$59*Costs!$B58","v":0},{"$f":"E$59*Costs!$B58","v":0},{"$f":"F$59*Costs!$B58","v":0},{"$f":"G$59*Costs!$B58","v":0},{"$f":"H$59*Costs!$B58","v":0},{"$f":"I$59*Costs!$B58","v":0},{"$f":"J$59*Costs!$B58","v":0},{"$f":"K$59*Costs!$B58","v":0},{"$f":"L$59*Costs!$B58","v":0},{"$f":"M$59*Costs!$B58","v":0},{"$f":"N$59*Costs!$B58","v":0},{"$f":"O$59*Costs!$B58","v":0},{"$f":"P$59*Costs!$B58","v":0},{"$f":"Q$59*Costs!$B58","v":0},{"$f":"R$59*Costs!$B58","v":0},{"$f":"S$59*Costs!$B58","v":0},{"$f":"T$59*Costs!$B58","v":0},{"$f":"U$59*Costs!$B58","v":0}]
["Control (self + external hours = calculated)",{"$f":"B59-B60-B61","v":0},{"$f":"C59-C60-C61","v":0},0,0,0,0,0,0,0,0,0,0,0,0,0,0,0,0,0,0]
["Price per hour external labour",25,25,25,25,25,25,25,25,25,25,25,25,25,25,25,25,25,25,25,25]
[]
["Price per FF farmer hour",null,null,50]

{"sheet":"Other input expert","index":11,"n_rows":19,"n_cols":13,"rows_kept":19,"cut":false,"hidden":false,"merged":[]}
[]
[]
["Effects on the Food Forest",1,2,3,4,5,6,7,8,9,10,"yr 11/15","yr 16/20"]
["Harvest percentage",{"$f":"'Other input'!$B4","v":0.75},{"$f":"'Other input'!$B4","v":0.75},{"$f":"'Other input'!$B4","v":0.75},{"$f":"'Other input'!$B4","v":0.75},{"$f":"'Other input'!$B4","v":0.75},{"$f":"'Other input'!$B4","v":0.75},{"$f":"'Other input'!$B4","v":0.75},{"$f":"'Other input'!$B4","v":0.75},{"$f":"'Other input'!$B4","v":0.75},{"$f":"'Other input'!$B4","v":0.75},{"$f":"'Other input'!$B4","v":0.75},{"$f":"'Other input'!$B4","v":0.75}]
["Ratio quality A/B",{"$f":"'Other input'!$B5","v":0.9},{"$f":"'Other input'!$B5","v":0.9},{"$f":"'Other input'!$B5","v":0.9},{"$f":"'Other input'!$B5","v":0.9},{"$f":"'Other input'!$B5","v":0.9},{"$f":"'Other input'!$B5","v":0.9},{"$f":"'Other input'!$B5","v":0.9},{"$f":"'Other input'!$B5","v":0.9},{"$f":"'Other input'!$B5","v":0.9},{"$f":"'Other input'!$B5","v":0.9},{"$f":"'Other input'!$B5","v":0.9},{"$f":"'Other input'!$B5","v":0.9}]
["Price A quality",{"$f":"'Other input'!$B6","v":1},{"$f":"'Other input'!$B6","v":1},{"$f":"'Other input'!$B6","v":1},{"$f":"'Other input'!$B6","v":1},{"$f":"'Other input'!$B6","v":1},{"$f":"'Other input'!$B6","v":1},{"$f":"'Other input'!$B6","v":1},{"$f":"'Other input'!$B6","v":1},{"$f":"'Other input'!$B6","v":1},{"$f":"'Other input'!$B6","v":1},{"$f":"'Other input'!$B6","v":1},{"$f":"'Other input'!$B6","v":1}]
["Price B quality",{"$f":"'Other input'!$B7","v":0.5},{"$f":"'Other input'!$B7","v":0.5},{"$f":"'Other input'!$B7","v":0.5},{"$f":"'Other input'!$B7","v":0.5},{"$f":"'Other input'!$B7","v":0.5},{"$f":"'Other input'!$B7","v":0.5},{"$f":"'Other input'!$B7","v":0.5},{"$f":"'Other input'!$B7","v":0.5},{"$f":"'Other input'!$B7","v":0.5},{"$f":"'Other input'!$B7","v":0.5},{"$f":"'Other input'!$B7","v":0.5},{"$f":"'Other input'!$B7","v":0.5}]
["Effect soil type",{"$f":"'Other input'!$B8","v":1},{"$f":"'Other input'!$B8","v":1},{"$f":"'Other input'!$B8","v":1},{"$f":"'Other input'!$B8","v":1},{"$f":"'Other input'!$B8","v":1},{"$f":"'Other input'!$B8","v":1},{"$f":"'Other input'!$B8","v":1},{"$f":"'Other input'!$B8","v":1},{"$f":"'Other input'!$B8","v":1},{"$f":"'Other input'!$B8","v":1},{"$f":"'Other input'!$B8","v":1},{"$f":"'Other input'!$B8","v":1}]
["Effect picking performance",{"$f":"'Other input'!$B9","v":1},{"$f":"'Other input'!$B9","v":1},{"$f":"'Other input'!$B9","v":1},{"$f":"'Other input'!$B9","v":1},{"$f":"'Other input'!$B9","v":1},{"$f":"'Other input'!$B9","v":1},{"$f":"'Other input'!$B9","v":1},{"$f":"'Other input'!$B9","v":1},{"$f":"'Other input'!$B9","v":1},{"$f":"'Other input'!$B9","v":1},{"$f":"'Other input'!$B9","v":1},{"$f":"'Other input'!$B9","v":1}]
[]
["Yield disribution over channels",1,2,3,4,5,6,7,8,9,10,"yr 11/15","yr 16/20"]
["Supermarket",{"$f":"'Other input'!$B12","v":1},{"$f":"'Other input'!$B12","v":1},{"$f":"'Other input'!$B12","v":1},{"$f":"'Other input'!$B12","v":1},{"$f":"'Other input'!$B12","v":1},{"$f":"'Other input'!$B12","v":1},{"$f":"'Other input'!$B12","v":1},{"$f":"'Other input'!$B12","v":1},{"$f":"'Other input'!$B12","v":1},{"$f":"'Other input'!$B12","v":1},{"$f":"'Other input'!$B12","v":1},{"$f":"'Other input'!$B12","v":1}]
["Catering",0,{"$f":"'Other input'!$B13","v":0},{"$f":"'Other input'!$B13","v":0},{"$f":"'Other input'!$B13","v":0},{"$f":"'Other input'!$B13","v":0},{"$f":"'Other input'!$B13","v":0},{"$f":"'Other input'!$B13","v":0},{"$f":"'Other input'!$B13","v":0},{"$f":"'Other input'!$B13","v":0},{"$f":"'Other input'!$B13","v":0},{"$f":"'Other input'!$B13","v":0},{"$f":"'Other input'!$B13","v":0}]
["Consumer",0,{"$f":"'Other input'!$B14","v":0},{"$f":"'Other input'!$B14","v":0},{"$f":"'Other input'!$B14","v":0},{"$f":"'Other input'!$B14","v":0},{"$f":"'Other input'!$B14","v":0},{"$f":"'Other input'!$B14","v":0},{"$f":"'Other input'!$B14","v":0},{"$f":"'Other input'!$B14","v":0},{"$f":"'Other input'!$B14","v":0},{"$f":"'Other input'!$B14","v":0},{"$f":"'Other input'!$B14","v":0}]
["Total equal to 100%",{"$f":"SUM(B12:B14)","v":1},{"$f":"SUM(C12:C14)","v":1},1,1,1,1,1,1,1,1,1,1]
[]
["Private withdrawal",1,2,3,4,5,6,7,8,9,10,"yr 11/15","yr 16/20"]
["Monthly",{"$f":"'Other input'!$B18","v":0},{"$f":"'Other input'!$B18","v":0},{"$f":"'Other input'!$B18","v":0},{"$f":"'Other input'!$B18","v":0},{"$f":"'Other input'!$B18","v":0},{"$f":"'Other input'!$B18","v":0},{"$f":"'Other input'!$B18","v":0},{"$f":"'Other input'!$B18","v":0},{"$f":"'Other input'!$B18","v":0},{"$f":"'Other input'!$B18","v":0},{"$f":"'Other input'!$B18","v":0},{"$f":"'Other input'!$B18","v":0}]
["Yearly",{"$f":"B18*12","v":0},{"$f":"C18*12","v":0},0,0,0,0,0,0,0,0,0,0]

{"sheet":"Yield & Sales calculation","index":12,"n_rows":199,"n_cols":132,"rows_kept":199,"cut":false,"hidden":false,"merged":[[1,2,1,13],[1,28,1,39],[1,15,1,26],[1,106,1,117],[1,93,1,104],[1,80,1,91],[1,67,1,78],[1,54,1,65],[1,41,1,52]]}
[]
[null,null," Total production per plant in kg per year (including harvest percentage)",null,null,null,null,null,null,null,null,null,null,null,null,"Quality A in kg",null,null,null,null,null,null,null,null,null,null,null,null,"Quality B in kg",null,null,null,null,null,null,null,null,null,null,null,null,"Sales Quality A to supermarket channel",null,null,null,null,null,null,null,null,null,null,null,null,"Sales Quality A to catering channel",null,null,null,null,null,null,null,null,null,null,null,null,"Sales Quality A direct to consumer",null,null,null,null,null,null,null,null,null,null,null,null,"Sales Quality B to supermarket channel",null,null,null,null,null,null,null,null,null,null,null,null,"Sales Quality B to catering channel",null,null,null,null,null,null,null,null,null,null,null,null,"Sales Quality B direct to consumer"]
["Scientific name","Common name",1,2,3,4,5,6,7,8,9,10,"yr 11/15","yr 16/20",null,1,2,3,4,5,6,7,8,9,10,"yr 11/15","yr 16/20",null,1,2,3,4,5,6,7,8,9,10,"yr 11/15","yr 16/20",null,1,2,3,4,5,6,7,8,9,10,"yr 11/15","yr 16/20",null,1,2,3,4,5,6,7,8,9,10,"yr 11/15","yr 16/20",null,1,2,3,4,5,6,7,8,9,10,"yr 11/15","yr 16/20",null,1,2,3,4,5,6,7,8,9,10,"yr 11/15","yr 16/20",null,1,2,3,4,5,6,7,8,9,10,"yr 11/15","yr 16/20",null,1,2,3,4,5,6,7,8,9,10,"yr 11/15","yr 16/20",null,"Sales per channel",1,2,3,4,5,6,7,8,9,10,"yr 11/15","yr 16/20"]
["Acer campestre","Field maple",{"$f":"Plantlist!$G4*'Production list'!D5*'Other input expert'!B$4*'Other input expert'!B$8","v":0},{"$f":"Plantlist!$G4*'Production list'!E5*'Other input expert'!C$4*'Other input expert'!C$8","v":0},{"$f":"Plantlist!$G4*'Production list'!F5*'Other input expert'!D$4*'Other input expert'!D$8","v":0},{"$f":"Plantlist!$G4*'Production list'!G5*'Other input expert'!E$4*'Other input expert'!E$8","v":0},{"$f":"Plantlist!$G4*'Production list'!H5*'Other input expert'!F$4*'Other input expert'!F$8","v":0},{"$f":"Plantlist!$G4*'Production list'!I5*'Other input expert'!G$4*'Other input expert'!G$8","v":0},{"$f":"Plantlist!$G4*'Production list'!J5*'Other input expert'!H$4*'Other input expert'!H$8","v":0},{"$f":"Plantlist!$G4*'Production list'!K5*'Other input expert'!I$4*'Other input expert'!I$8","v":0},{"$f":"Plantlist!$G4*'Production list'!L5*'Other input expert'!J$4*'Other input expert'!J$8","v":0},{"$f":"Plantlist!$G4*'Production list'!M5*'Other input expert'!K$4*'Other input expert'!K$8","v":0},{"$f":"Plantlist!$G4*'Production list'!N5*'Other input expert'!L$4*'Other input expert'!L$8","v":0},{"$f":"Plantlist!$G4*'Production list'!O5*'Other input expert'!M$4*'Other input expert'!M$8","v":0},null,{"$f":"C4*'Other input expert'!B$5","v":0},{"$f":"D4*'Other input expert'!C$5","v":0},{"$f":"E4*'Other input expert'!D$5","v":0},{"$f":"F4*'Other input expert'!E$5","v":0},{"$f":"G4*'Other input expert'!F$5","v":0},{"$f":"H4*'Other input expert'!G$5","v":0},{"$f":"I4*'Other input expert'!H$5","v":0},{"$f":"J4*'Other input expert'!I$5","v":0},{"$f":"K4*'Other input expert'!J$5","v":0},{"$f":"L4*'Other input expert'!K$5","v":0},{"$f":"M4*'Other input expert'!L$5","v":0},{"$f":"N4*'Other input expert'!M$5","v":0},null,{"$f":"C4*(100%-'Other input expert'!B$5)","v":0},{"$f":"D4*(100%-'Other input expert'!C$5)","v":0},{"$f":"E4*(100%-'Other input expert'!D$5)","v":0},{"$f":"F4*(100%-'Other input expert'!E$5)","v":0},{"$f":"G4*(100%-'Other input expert'!F$5)","v":0},{"$f":"H4*(100%-'Other input expert'!G$5)","v":0},{"$f":"I4*(100%-'Other input expert'!H$5)","v":0},{"$f":"J4*(100%-'Other input expert'!I$5)","v":0},{"$f":"K4*(100%-'Other input expert'!J$5)","v":0},{"$f":"L4*(100%-'Other input expert'!K$5)","v":0},{"$f":"M4*(100%-'Other input expert'!L$5)","v":0},{"$f":"N4*(100%-'Other input expert'!M$5)","v":0},null,{"$f":"P4*'Other input expert'!B$12*'Sales price per sales channel'!$G4*'Other input expert'!B$6","v":0},{"$f":"Q4*'Other input expert'!C$12*'Sales price per sales channel'!$G4*'Other input expert'!C$6","v":0},{"$f":"R4*'Other input expert'!D$12*'Sales price per sales channel'!$G4*'Other input expert'!D$6","v":0},{"$f":"S4*'Other input expert'!E$12*'Sales price per sales channel'!$G4*'Other input expert'!E$6","v":0},{"$f":"T4*'Other input expert'!F$12*'Sales price per sales channel'!$G4*'Other input expert'!F$6","v":0},{"$f":"U4*'Other input expert'!G$12*'Sales price per sales channel'!$G4*'Other input expert'!G$6","v":0},{"$f":"V4*'Other input expert'!H$12*'Sales price per sales channel'!$G4*'Other input expert'!H$6","v":0},{"$f":"W4*'Other input expert'!I$12*'Sales price per sales channel'!$G4*'Other input expert'!I$6","v":0},{"$f":"X4*'Other input expert'!J$12*'Sales price per sales channel'!$G4*'Other input expert'!J$6","v":0},{"$f":"Y4*'Other input expert'!K$12*'Sales price per sales channel'!$G4*'Other input expert'!K$6","v":0},{"$f":"Z4*'Other input expert'!L$12*'Sales price per sales channel'!$G4*'Other input expert'!L$6","v":0},{"$f":"AA4*'Other input expert'!M$12*'Sales price per sales channel'!$G4*'Other input expert'!M$6","v":0},null,{"$f":"P4*'Other input expert'!B$13*'Sales price per sales channel'!$H4*'Other input expert'!B$6","v":0},{"$f":"Q4*'Other input expert'!C$13*'Sales price per sales channel'!$H4*'Other input expert'!C$6","v":0},{"$f":"R4*'Other input expert'!D$13*'Sales price per sales channel'!$H4*'Other input expert'!D$6","v":0},{"$f":"S4*'Other input expert'!E$13*'Sales price per sales channel'!$H4*'Other input expert'!E$6","v":0},{"$f":"T4*'Other input expert'!F$13*'Sales price per sales channel'!$H4*'Other input expert'!F$6","v":0},{"$f":"U4*'Other input expert'!G$13*'Sales price per sales channel'!$H4*'Other input expert'!G$6","v":0},{"$f":"V4*'Other input expert'!H$13*'Sales price per sales channel'!$H4*'Other input expert'!H$6","v":0},{"$f":"W4*'Other input expert'!I$13*'Sales price per sales channel'!$H4*'Other input expert'!I$6","v":0},{"$f":"X4*'Other input expert'!J$13*'Sales price per sales channel'!$H4*'Other input expert'!J$6","v":0},{"$f":"Y4*'Other input expert'!K$13*'Sales price per sales channel'!$H4*'Other input expert'!K$6","v":0},{"$f":"Z4*'Other input expert'!L$13*'Sales price per sales channel'!$H4*'Other input expert'!L$6","v":0},{"$f":"AA4*'Other input expert'!M$13*'Sales price per sales channel'!$H4*'Other input expert'!M$6","v":0},null,{"$f":"P4*'Other input expert'!B$14*'Sales price per sales channel'!$I4*'Other input expert'!B$6","v":0},{"$f":"Q4*'Other input expert'!C$14*'Sales price per sales channel'!$I4*'Other input expert'!C$6","v":0},{"$f":"R4*'Other input expert'!D$14*'Sales price per sales channel'!$I4*'Other input expert'!D$6","v":0},{"$f":"S4*'Other input expert'!E$14*'Sales price per sales channel'!$I4*'Other input expert'!E$6","v":0},{"$f":"T4*'Other input expert'!F$14*'Sales price per sales channel'!$I4*'Other input expert'!F$6","v":0},{"$f":"U4*'Other input expert'!G$14*'Sales price per sales channel'!$I4*'Other input expert'!G$6","v":0},{"$f":"V4*'Other input expert'!H$14*'Sales price per sales channel'!$I4*'Other input expert'!H$6","v":0},{"$f":"W4*'Other input expert'!I$14*'Sales price per sales channel'!$I4*'Other input expert'!I$6","v":0},{"$f":"X4*'Other input expert'!J$14*'Sales price per sales channel'!$I4*'Other input expert'!J$6","v":0},{"$f":"Y4*'Other input expert'!K$14*'Sales price per sales channel'!$I4*'Other input expert'!K$6","v":0},{"$f":"Z4*'Other input expert'!L$14*'Sales price per sales channel'!$I4*'Other input expert'!L$6","v":0},{"$f":"AA4*'Other input expert'!M$14*'Sales price per sales channel'!$I4*'Other input expert'!M$6","v":0},null,{"$f":"AC4*'Other input expert'!B$12*'Sales price per sales channel'!$G4*'Other input expert'!B$7","v":0},{"$f":"AD4*'Other input expert'!C$12*'Sales price per sales channel'!$G4*'Other input expert'!C$7","v":0},{"$f":"AE4*'Other input expert'!D$12*'Sales price per sales channel'!$G4*'Other input expert'!D$7","v":0},{"$f":"AF4*'Other input expert'!E$12*'Sales price per sales channel'!$G4*'Other input expert'!E$7","v":0},{"$f":"AG4*'Other input expert'!F$12*'Sales price per sales channel'!$G4*'Other input expert'!F$7","v":0},{"$f":"AH4*'Other input expert'!G$12*'Sales price per sales channel'!$G4*'Other input expert'!G$7","v":0},{"$f":"AI4*'Other input expert'!H$12*'Sales price per sales channel'!$G4*'Other input expert'!H$7","v":0},{"$f":"AJ4*'Other input expert'!I$12*'Sales price per sales channel'!$G4*'Other input expert'!I$7","v":0},{"$f":"AK4*'Other input expert'!J$12*'Sales price per sales channel'!$G4*'Other input expert'!J$7","v":0},{"$f":"AL4*'Other input expert'!K$12*'Sales price per sales channel'!$G4*'Other input expert'!K$7","v":0},{"$f":"AM4*'Other input expert'!L$12*'Sales price per sales channel'!$G4*'Other input expert'!L$7","v":0},{"$f":"AN4*'Other input expert'!M$12*'Sales price per sales channel'!$G4*'Other input expert'!M$7","v":0},null,{"$f":"AC4*'Other input expert'!B$13*'Sales price per sales channel'!$H4*'Other input expert'!B$7","v":0},{"$f":"AD4*'Other input expert'!C$13*'Sales price per sales channel'!$H4*'Other input expert'!C$7","v":0},{"$f":"AE4*'Other input expert'!D$13*'Sales price per sales channel'!$H4*'Other input expert'!D$7","v":0},{"$f":"AF4*'Other input expert'!E$13*'Sales price per sales channel'!$H4*'Other input expert'!E$7","v":0},{"$f":"AG4*'Other input expert'!F$13*'Sales price per sales channel'!$H4*'Other input expert'!F$7","v":0},{"$f":"AH4*'Other input expert'!G$13*'Sales price per sales channel'!$H4*'Other input expert'!G$7","v":0},{"$f":"AI4*'Other input expert'!H$13*'Sales price per sales channel'!$H4*'Other input expert'!H$7","v":0},{"$f":"AJ4*'Other input expert'!I$13*'Sales price per sales channel'!$H4*'Other input expert'!I$7","v":0},{"$f":"AK4*'Other input expert'!J$13*'Sales price per sales channel'!$H4*'Other input expert'!J$7","v":0},{"$f":"AL4*'Other input expert'!K$13*'Sales price per sales channel'!$H4*'Other input expert'!K$7","v":0},{"$f":"AM4*'Other input expert'!L$13*'Sales price per sales channel'!$H4*'Other input expert'!L$7","v":0},{"$f":"AN4*'Other input expert'!M$13*'Sales price per sales channel'!$H4*'Other input expert'!M$7","v":0},null,{"$f":"AC4*'Other input expert'!B$14*'Sales price per sales channel'!$I4*'Other input expert'!B$7","v":0},{"$f":"AD4*'Other input expert'!C$14*'Sales price per sales channel'!$I4*'Other input expert'!C$7","v":0},{"$f":"AE4*'Other input expert'!D$14*'Sales price per sales channel'!$I4*'Other input expert'!D$7","v":0},{"$f":"AF4*'Other input expert'!E$14*'Sales price per sales channel'!$I4*'Other input expert'!E$7","v":0},{"$f":"AG4*'Other input expert'!F$14*'Sales price per sales channel'!$I4*'Other input expert'!F$7","v":0},{"$f":"AH4*'Other input expert'!G$14*'Sales price per sales channel'!$I4*'Other input expert'!G$7","v":0},{"$f":"AI4*'Other input expert'!H$14*'Sales price per sales channel'!$I4*'Other input expert'!H$7","v":0},{"$f":"AJ4*'Other input expert'!I$14*'Sales price per sales channel'!$I4*'Other input expert'!I$7","v":0},{"$f":"AK4*'Other input expert'!J$14*'Sales price per sales channel'!$I4*'Other input expert'!J$7","v":0},{"$f":"AL4*'Other input expert'!K$14*'Sales price per sales channel'!$I4*'Other input expert'!K$7","v":0},{"$f":"AM4*'Other input expert'!L$14*'Sales price per sales channel'!$I4*'Other input expert'!L$7","v":0},{"$f":"AN4*'Other input expert'!M$14*'Sales price per sales channel'!$I4*'Other input expert'!M$7","v":0},null,{"$f":"AP2","v":"Sales Quality A to supermarket channel"},{"$f":"AP199","v":0},{"$f":"AQ199","v":0},0,0,0,0,0,0,0,0,0,0]
["Acer platanoides","Norway maple",{"$f":"Plantlist!$G5*'Production list'!D6*'Other input expert'!B$4*'Other input expert'!B$8","v":0},{"$f":"Plantlist!$G5*'Production list'!E6*'Other input expert'!C$4*'Other input expert'!C$8","v":0},{"$f":"Plantlist!$G5*'Production list'!F6*'Other input expert'!D$4*'Other input expert'!D$8","v":0},{"$f":"Plantlist!$G5*'Production list'!G6*'Other input expert'!E$4*'Other input expert'!E$8","v":0},{"$f":"Plantlist!$G5*'Production list'!H6*'Other input expert'!F$4*'Other input expert'!F$8","v":0},{"$f":"Plantlist!$G5*'Production list'!I6*'Other input expert'!G$4*'Other input expert'!G$8","v":0},{"$f":"Plantlist!$G5*'Production list'!J6*'Other input expert'!H$4*'Other input expert'!H$8","v":0},{"$f":"Plantlist!$G5*'Production list'!K6*'Other input expert'!I$4*'Other input expert'!I$8","v":0},{"$f":"Plantlist!$G5*'Production list'!L6*'Other input expert'!J$4*'Other input expert'!J$8","v":0},{"$f":"Plantlist!$G5*'Production list'!M6*'Other input expert'!K$4*'Other input expert'!K$8","v":0},{"$f":"Plantlist!$G5*'Production list'!N6*'Other input expert'!L$4*'Other input expert'!L$8","v":0},{"$f":"Plantlist!$G5*'Production list'!O6*'Other input expert'!M$4*'Other input expert'!M$8","v":0},null,{"$f":"C5*'Other input expert'!B$5","v":0},{"$f":"D5*'Other input expert'!C$5","v":0},{"$f":"E5*'Other input expert'!D$5","v":0},{"$f":"F5*'Other input expert'!E$5","v":0},{"$f":"G5*'Other input expert'!F$5","v":0},{"$f":"H5*'Other input expert'!G$5","v":0},{"$f":"I5*'Other input expert'!H$5","v":0},{"$f":"J5*'Other input expert'!I$5","v":0},{"$f":"K5*'Other input expert'!J$5","v":0},{"$f":"L5*'Other input expert'!K$5","v":0},{"$f":"M5*'Other input expert'!L$5","v":0},{"$f":"N5*'Other input expert'!M$5","v":0},null,{"$f":"C5*(100%-'Other input expert'!B$5)","v":0},{"$f":"D5*(100%-'Other input expert'!C$5)","v":0},{"$f":"E5*(100%-'Other input expert'!D$5)","v":0},{"$f":"F5*(100%-'Other input expert'!E$5)","v":0},{"$f":"G5*(100%-'Other input expert'!F$5)","v":0},{"$f":"H5*(100%-'Other input expert'!G$5)","v":0},{"$f":"I5*(100%-'Other input expert'!H$5)","v":0},{"$f":"J5*(100%-'Other input expert'!I$5)","v":0},{"$f":"K5*(100%-'Other input expert'!J$5)","v":0},{"$f":"L5*(100%-'Other input expert'!K$5)","v":0},{"$f":"M5*(100%-'Other input expert'!L$5)","v":0},{"$f":"N5*(100%-'Other input expert'!M$5)","v":0},null,{"$f":"P5*'Other input expert'!B$12*'Sales price per sales channel'!$G5*'Other input expert'!B$6","v":0},{"$f":"Q5*'Other input expert'!C$12*'Sales price per sales channel'!$G5*'Other input expert'!C$6","v":0},{"$f":"R5*'Other input expert'!D$12*'Sales price per sales channel'!$G5*'Other input expert'!D$6","v":0},{"$f":"S5*'Other input expert'!E$12*'Sales price per sales channel'!$G5*'Other input expert'!E$6","v":0},{"$f":"T5*'Other input expert'!F$12*'Sales price per sales channel'!$G5*'Other input expert'!F$6","v":0},{"$f":"U5*'Other input expert'!G$12*'Sales price per sales channel'!$G5*'Other input expert'!G$6","v":0},{"$f":"V5*'Other input expert'!H$12*'Sales price per sales channel'!$G5*'Other input expert'!H$6","v":0},{"$f":"W5*'Other input expert'!I$12*'Sales price per sales channel'!$G5*'Other input expert'!I$6","v":0},{"$f":"X5*'Other input expert'!J$12*'Sales price per sales channel'!$G5*'Other input expert'!J$6","v":0},{"$f":"Y5*'Other input expert'!K$12*'Sales price per sales channel'!$G5*'Other input expert'!K$6","v":0},{"$f":"Z5*'Other input expert'!L$12*'Sales price per sales channel'!$G5*'Other input expert'!L$6","v":0},{"$f":"AA5*'Other input expert'!M$12*'Sales price per sales channel'!$G5*'Other input expert'!M$6","v":0},null,{"$f":"P5*'Other input expert'!B$13*'Sales price per sales channel'!$H5*'Other input expert'!B$6","v":0},{"$f":"Q5*'Other input expert'!C$13*'Sales price per sales channel'!$H5*'Other input expert'!C$6","v":0},{"$f":"R5*'Other input expert'!D$13*'Sales price per sales channel'!$H5*'Other input expert'!D$6","v":0},{"$f":"S5*'Other input expert'!E$13*'Sales price per sales channel'!$H5*'Other input expert'!E$6","v":0},{"$f":"T5*'Other input expert'!F$13*'Sales price per sales channel'!$H5*'Other input expert'!F$6","v":0},{"$f":"U5*'Other input expert'!G$13*'Sales price per sales channel'!$H5*'Other input expert'!G$6","v":0},{"$f":"V5*'Other input expert'!H$13*'Sales price per sales channel'!$H5*'Other input expert'!H$6","v":0},{"$f":"W5*'Other input expert'!I$13*'Sales price per sales channel'!$H5*'Other input expert'!I$6","v":0},{"$f":"X5*'Other input expert'!J$13*'Sales price per sales channel'!$H5*'Other input expert'!J$6","v":0},{"$f":"Y5*'Other input expert'!K$13*'Sales price per sales channel'!$H5*'Other input expert'!K$6","v":0},{"$f":"Z5*'Other input expert'!L$13*'Sales price per sales channel'!$H5*'Other input expert'!L$6","v":0},{"$f":"AA5*'Other input expert'!M$13*'Sales price per sales channel'!$H5*'Other input expert'!M$6","v":0},null,{"$f":"P5*'Other input expert'!B$14*'Sales price per sales channel'!$I5*'Other input expert'!B$6","v":0},{"$f":"Q5*'Other input expert'!C$14*'Sales price per sales channel'!$I5*'Other input expert'!C$6","v":0},{"$f":"R5*'Other input expert'!D$14*'Sales price per sales channel'!$I5*'Other input expert'!D$6","v":0},{"$f":"S5*'Other input expert'!E$14*'Sales price per sales channel'!$I5*'Other input expert'!E$6","v":0},{"$f":"T5*'Other input expert'!F$14*'Sales price per sales channel'!$I5*'Other input expert'!F$6","v":0},{"$f":"U5*'Other input expert'!G$14*'Sales price per sales channel'!$I5*'Other input expert'!G$6","v":0},{"$f":"V5*'Other input expert'!H$14*'Sales price per sales channel'!$I5*'Other input expert'!H$6","v":0},{"$f":"W5*'Other input expert'!I$14*'Sales price per sales channel'!$I5*'Other input expert'!I$6","v":0},{"$f":"X5*'Other input expert'!J$14*'Sales price per sales channel'!$I5*'Other input expert'!J$6","v":0},{"$f":"Y5*'Other input expert'!K$14*'Sales price per sales channel'!$I5*'Other input expert'!K$6","v":0},{"$f":"Z5*'Other input expert'!L$14*'Sales price per sales channel'!$I5*'Other input expert'!L$6","v":0},{"$f":"AA5*'Other input expert'!M$14*'Sales price per sales channel'!$I5*'Other input expert'!M$6","v":0},null,{"$f":"AC5*'Other input expert'!B$12*'Sales price per sales channel'!$G5*'Other input expert'!B$7","v":0},{"$f":"AD5*'Other input expert'!C$12*'Sales price per sales channel'!$G5*'Other input expert'!C$7","v":0},{"$f":"AE5*'Other input expert'!D$12*'Sales price per sales channel'!$G5*'Other input expert'!D$7","v":0},{"$f":"AF5*'Other input expert'!E$12*'Sales price per sales channel'!$G5*'Other input expert'!E$7","v":0},{"$f":"AG5*'Other input expert'!F$12*'Sales price per sales channel'!$G5*'Other input expert'!F$7","v":0},{"$f":"AH5*'Other input expert'!G$12*'Sales price per sales channel'!$G5*'Other input expert'!G$7","v":0},{"$f":"AI5*'Other input expert'!H$12*'Sales price per sales channel'!$G5*'Other input expert'!H$7","v":0},{"$f":"AJ5*'Other input expert'!I$12*'Sales price per sales channel'!$G5*'Other input expert'!I$7","v":0},{"$f":"AK5*'Other input expert'!J$12*'Sales price per sales channel'!$G5*'Other input expert'!J$7","v":0},{"$f":"AL5*'Other input expert'!K$12*'Sales price per sales channel'!$G5*'Other input expert'!K$7","v":0},{"$f":"AM5*'Other input expert'!L$12*'Sales price per sales channel'!$G5*'Other input expert'!L$7","v":0},{"$f":"AN5*'Other input expert'!M$12*'Sales price per sales channel'!$G5*'Other input expert'!M$7","v":0},null,{"$f":"AC5*'Other input expert'!B$13*'Sales price per sales channel'!$H5*'Other input expert'!B$7","v":0},{"$f":"AD5*'Other input expert'!C$13*'Sales price per sales channel'!$H5*'Other input expert'!C$7","v":0},{"$f":"AE5*'Other input expert'!D$13*'Sales price per sales channel'!$H5*'Other input expert'!D$7","v":0},{"$f":"AF5*'Other input expert'!E$13*'Sales price per sales channel'!$H5*'Other input expert'!E$7","v":0},{"$f":"AG5*'Other input expert'!F$13*'Sales price per sales channel'!$H5*'Other input expert'!F$7","v":0},{"$f":"AH5*'Other input expert'!G$13*'Sales price per sales channel'!$H5*'Other input expert'!G$7","v":0},{"$f":"AI5*'Other input expert'!H$13*'Sales price per sales channel'!$H5*'Other input expert'!H$7","v":0},{"$f":"AJ5*'Other input expert'!I$13*'Sales price per sales channel'!$H5*'Other input expert'!I$7","v":0},{"$f":"AK5*'Other input expert'!J$13*'Sales price per sales channel'!$H5*'Other input expert'!J$7","v":0},{"$f":"AL5*'Other input expert'!K$13*'Sales price per sales channel'!$H5*'Other input expert'!K$7","v":0},{"$f":"AM5*'Other input expert'!L$13*'Sales price per sales channel'!$H5*'Other input expert'!L$7","v":0},{"$f":"AN5*'Other input expert'!M$13*'Sales price per sales channel'!$H5*'Other input expert'!M$7","v":0},null,{"$f":"AC5*'Other input expert'!B$14*'Sales price per sales channel'!$I5*'Other input expert'!B$7","v":0},{"$f":"AD5*'Other input expert'!C$14*'Sales price per sales channel'!$I5*'Other input expert'!C$7","v":0},{"$f":"AE5*'Other input expert'!D$14*'Sales price per sales channel'!$I5*'Other input expert'!D$7","v":0},{"$f":"AF5*'Other input expert'!E$14*'Sales price per sales channel'!$I5*'Other input expert'!E$7","v":0},{"$f":"AG5*'Other input expert'!F$14*'Sales price per sales channel'!$I5*'Other input expert'!F$7","v":0},{"$f":"AH5*'Other input expert'!G$14*'Sales price per sales channel'!$I5*'Other input expert'!G$7","v":0},{"$f":"AI5*'Other input expert'!H$14*'Sales price per sales channel'!$I5*'Other input expert'!H$7","v":0},{"$f":"AJ5*'Other input expert'!I$14*'Sales price per sales channel'!$I5*'Other input expert'!I$7","v":0},{"$f":"AK5*'Other input expert'!J$14*'Sales price per sales channel'!$I5*'Other input expert'!J$7","v":0},{"$f":"AL5*'Other input expert'!K$14*'Sales price per sales channel'!$I5*'Other input expert'!K$7","v":0},{"$f":"AM5*'Other input expert'!L$14*'Sales price per sales channel'!$I5*'Other input expert'!L$7","v":0},{"$f":"AN5*'Other input expert'!M$14*'Sales price per sales channel'!$I5*'Other input expert'!M$7","v":0},null,{"$f":"BC2","v":"Sales Quality A to catering channel"},{"$f":"BC199","v":0},{"$f":"BD199","v":0},0,0,0,0,0,0,0,0,0,0]
["Acer pseudoplatanus","Sycamore",{"$f":"Plantlist!$G6*'Production list'!D7*'Other input expert'!B$4*'Other input expert'!B$8","v":0},{"$f":"Plantlist!$G6*'Production list'!E7*'Other input expert'!C$4*'Other input expert'!C$8","v":0},{"$f":"Plantlist!$G6*'Production list'!F7*'Other input expert'!D$4*'Other input expert'!D$8","v":0},{"$f":"Plantlist!$G6*'Production list'!G7*'Other input expert'!E$4*'Other input expert'!E$8","v":0},{"$f":"Plantlist!$G6*'Production list'!H7*'Other input expert'!F$4*'Other input expert'!F$8","v":0},{"$f":"Plantlist!$G6*'Production list'!I7*'Other input expert'!G$4*'Other input expert'!G$8","v":0},{"$f":"Plantlist!$G6*'Production list'!J7*'Other input expert'!H$4*'Other input expert'!H$8","v":0},{"$f":"Plantlist!$G6*'Production list'!K7*'Other input expert'!I$4*'Other input expert'!I$8","v":0},{"$f":"Plantlist!$G6*'Production list'!L7*'Other input expert'!J$4*'Other input expert'!J$8","v":0},{"$f":"Plantlist!$G6*'Production list'!M7*'Other input expert'!K$4*'Other input expert'!K$8","v":0},{"$f":"Plantlist!$G6*'Production list'!N7*'Other input expert'!L$4*'Other input expert'!L$8","v":0},{"$f":"Plantlist!$G6*'Production list'!O7*'Other input expert'!M$4*'Other input expert'!M$8","v":0},null,{"$f":"C6*'Other input expert'!B$5","v":0},{"$f":"D6*'Other input expert'!C$5","v":0},{"$f":"E6*'Other input expert'!D$5","v":0},{"$f":"F6*'Other input expert'!E$5","v":0},{"$f":"G6*'Other input expert'!F$5","v":0},{"$f":"H6*'Other input expert'!G$5","v":0},{"$f":"I6*'Other input expert'!H$5","v":0},{"$f":"J6*'Other input expert'!I$5","v":0},{"$f":"K6*'Other input expert'!J$5","v":0},{"$f":"L6*'Other input expert'!K$5","v":0},{"$f":"M6*'Other input expert'!L$5","v":0},{"$f":"N6*'Other input expert'!M$5","v":0},null,{"$f":"C6*(100%-'Other input expert'!B$5)","v":0},{"$f":"D6*(100%-'Other input expert'!C$5)","v":0},{"$f":"E6*(100%-'Other input expert'!D$5)","v":0},{"$f":"F6*(100%-'Other input expert'!E$5)","v":0},{"$f":"G6*(100%-'Other input expert'!F$5)","v":0},{"$f":"H6*(100%-'Other input expert'!G$5)","v":0},{"$f":"I6*(100%-'Other input expert'!H$5)","v":0},{"$f":"J6*(100%-'Other input expert'!I$5)","v":0},{"$f":"K6*(100%-'Other input expert'!J$5)","v":0},{"$f":"L6*(100%-'Other input expert'!K$5)","v":0},{"$f":"M6*(100%-'Other input expert'!L$5)","v":0},{"$f":"N6*(100%-'Other input expert'!M$5)","v":0},null,{"$f":"P6*'Other input expert'!B$12*'Sales price per sales channel'!$G6*'Other input expert'!B$6","v":0},{"$f":"Q6*'Other input expert'!C$12*'Sales price per sales channel'!$G6*'Other input expert'!C$6","v":0},{"$f":"R6*'Other input expert'!D$12*'Sales price per sales channel'!$G6*'Other input expert'!D$6","v":0},{"$f":"S6*'Other input expert'!E$12*'Sales price per sales channel'!$G6*'Other input expert'!E$6","v":0},{"$f":"T6*'Other input expert'!F$12*'Sales price per sales channel'!$G6*'Other input expert'!F$6","v":0},{"$f":"U6*'Other input expert'!G$12*'Sales price per sales channel'!$G6*'Other input expert'!G$6","v":0},{"$f":"V6*'Other input expert'!H$12*'Sales price per sales channel'!$G6*'Other input expert'!H$6","v":0},{"$f":"W6*'Other input expert'!I$12*'Sales price per sales channel'!$G6*'Other input expert'!I$6","v":0},{"$f":"X6*'Other input expert'!J$12*'Sales price per sales channel'!$G6*'Other input expert'!J$6","v":0},{"$f":"Y6*'Other input expert'!K$12*'Sales price per sales channel'!$G6*'Other input expert'!K$6","v":0},{"$f":"Z6*'Other input expert'!L$12*'Sales price per sales channel'!$G6*'Other input expert'!L$6","v":0},{"$f":"AA6*'Other input expert'!M$12*'Sales price per sales channel'!$G6*'Other input expert'!M$6","v":0},null,{"$f":"P6*'Other input expert'!B$13*'Sales price per sales channel'!$H6*'Other input expert'!B$6","v":0},{"$f":"Q6*'Other input expert'!C$13*'Sales price per sales channel'!$H6*'Other input expert'!C$6","v":0},{"$f":"R6*'Other input expert'!D$13*'Sales price per sales channel'!$H6*'Other input expert'!D$6","v":0},{"$f":"S6*'Other input expert'!E$13*'Sales price per sales channel'!$H6*'Other input expert'!E$6","v":0},{"$f":"T6*'Other input expert'!F$13*'Sales price per sales channel'!$H6*'Other input expert'!F$6","v":0},{"$f":"U6*'Other input expert'!G$13*'Sales price per sales channel'!$H6*'Other input expert'!G$6","v":0},{"$f":"V6*'Other input expert'!H$13*'Sales price per sales channel'!$H6*'Other input expert'!H$6","v":0},{"$f":"W6*'Other input expert'!I$13*'Sales price per sales channel'!$H6*'Other input expert'!I$6","v":0},{"$f":"X6*'Other input expert'!J$13*'Sales price per sales channel'!$H6*'Other input expert'!J$6","v":0},{"$f":"Y6*'Other input expert'!K$13*'Sales price per sales channel'!$H6*'Other input expert'!K$6","v":0},{"$f":"Z6*'Other input expert'!L$13*'Sales price per sales channel'!$H6*'Other input expert'!L$6","v":0},{"$f":"AA6*'Other input expert'!M$13*'Sales price per sales channel'!$H6*'Other input expert'!M$6","v":0},null,{"$f":"P6*'Other input expert'!B$14*'Sales price per sales channel'!$I6*'Other input expert'!B$6","v":0},{"$f":"Q6*'Other input expert'!C$14*'Sales price per sales channel'!$I6*'Other input expert'!C$6","v":0},{"$f":"R6*'Other input expert'!D$14*'Sales price per sales channel'!$I6*'Other input expert'!D$6","v":0},{"$f":"S6*'Other input expert'!E$14*'Sales price per sales channel'!$I6*'Other input expert'!E$6","v":0},{"$f":"T6*'Other input expert'!F$14*'Sales price per sales channel'!$I6*'Other input expert'!F$6","v":0},{"$f":"U6*'Other input expert'!G$14*'Sales price per sales channel'!$I6*'Other input expert'!G$6","v":0},{"$f":"V6*'Other input expert'!H$14*'Sales price per sales channel'!$I6*'Other input expert'!H$6","v":0},{"$f":"W6*'Other input expert'!I$14*'Sales price per sales channel'!$I6*'Other input expert'!I$6","v":0},{"$f":"X6*'Other input expert'!J$14*'Sales price per sales channel'!$I6*'Other input expert'!J$6","v":0},{"$f":"Y6*'Other input expert'!K$14*'Sales price per sales channel'!$I6*'Other input expert'!K$6","v":0},{"$f":"Z6*'Other input expert'!L$14*'Sales price per sales channel'!$I6*'Other input expert'!L$6","v":0},{"$f":"AA6*'Other input expert'!M$14*'Sales price per sales channel'!$I6*'Other input expert'!M$6","v":0},null,{"$f":"AC6*'Other input expert'!B$12*'Sales price per sales channel'!$G6*'Other input expert'!B$7","v":0},{"$f":"AD6*'Other input expert'!C$12*'Sales price per sales channel'!$G6*'Other input expert'!C$7","v":0},{"$f":"AE6*'Other input expert'!D$12*'Sales price per sales channel'!$G6*'Other input expert'!D$7","v":0},{"$f":"AF6*'Other input expert'!E$12*'Sales price per sales channel'!$G6*'Other input expert'!E$7","v":0},{"$f":"AG6*'Other input expert'!F$12*'Sales price per sales channel'!$G6*'Other input expert'!F$7","v":0},{"$f":"AH6*'Other input expert'!G$12*'Sales price per sales channel'!$G6*'Other input expert'!G$7","v":0},{"$f":"AI6*'Other input expert'!H$12*'Sales price per sales channel'!$G6*'Other input expert'!H$7","v":0},{"$f":"AJ6*'Other input expert'!I$12*'Sales price per sales channel'!$G6*'Other input expert'!I$7","v":0},{"$f":"AK6*'Other input expert'!J$12*'Sales price per sales channel'!$G6*'Other input expert'!J$7","v":0},{"$f":"AL6*'Other input expert'!K$12*'Sales price per sales channel'!$G6*'Other input expert'!K$7","v":0},{"$f":"AM6*'Other input expert'!L$12*'Sales price per sales channel'!$G6*'Other input expert'!L$7","v":0},{"$f":"AN6*'Other input expert'!M$12*'Sales price per sales channel'!$G6*'Other input expert'!M$7","v":0},null,{"$f":"AC6*'Other input expert'!B$13*'Sales price per sales channel'!$H6*'Other input expert'!B$7","v":0},{"$f":"AD6*'Other input expert'!C$13*'Sales price per sales channel'!$H6*'Other input expert'!C$7","v":0},{"$f":"AE6*'Other input expert'!D$13*'Sales price per sales channel'!$H6*'Other input expert'!D$7","v":0},{"$f":"AF6*'Other input expert'!E$13*'Sales price per sales channel'!$H6*'Other input expert'!E$7","v":0},{"$f":"AG6*'Other input expert'!F$13*'Sales price per sales channel'!$H6*'Other input expert'!F$7","v":0},{"$f":"AH6*'Other input expert'!G$13*'Sales price per sales channel'!$H6*'Other input expert'!G$7","v":0},{"$f":"AI6*'Other input expert'!H$13*'Sales price per sales channel'!$H6*'Other input expert'!H$7","v":0},{"$f":"AJ6*'Other input expert'!I$13*'Sales price per sales channel'!$H6*'Other input expert'!I$7","v":0},{"$f":"AK6*'Other input expert'!J$13*'Sales price per sales channel'!$H6*'Other input expert'!J$7","v":0},{"$f":"AL6*'Other input expert'!K$13*'Sales price per sales channel'!$H6*'Other input expert'!K$7","v":0},{"$f":"AM6*'Other input expert'!L$13*'Sales price per sales channel'!$H6*'Other input expert'!L$7","v":0},{"$f":"AN6*'Other input expert'!M$13*'Sales price per sales channel'!$H6*'Other input expert'!M$7","v":0},null,{"$f":"AC6*'Other input expert'!B$14*'Sales price per sales channel'!$I6*'Other input expert'!B$7","v":0},{"$f":"AD6*'Other input expert'!C$14*'Sales price per sales channel'!$I6*'Other input expert'!C$7","v":0},{"$f":"AE6*'Other input expert'!D$14*'Sales price per sales channel'!$I6*'Other input expert'!D$7","v":0},{"$f":"AF6*'Other input expert'!E$14*'Sales price per sales channel'!$I6*'Other input expert'!E$7","v":0},{"$f":"AG6*'Other input expert'!F$14*'Sales price per sales channel'!$I6*'Other input expert'!F$7","v":0},{"$f":"AH6*'Other input expert'!G$14*'Sales price per sales channel'!$I6*'Other input expert'!G$7","v":0},{"$f":"AI6*'Other input expert'!H$14*'Sales price per sales channel'!$I6*'Other input expert'!H$7","v":0},{"$f":"AJ6*'Other input expert'!I$14*'Sales price per sales channel'!$I6*'Other input expert'!I$7","v":0},{"$f":"AK6*'Other input expert'!J$14*'Sales price per sales channel'!$I6*'Other input expert'!J$7","v":0},{"$f":"AL6*'Other input expert'!K$14*'Sales price per sales channel'!$I6*'Other input expert'!K$7","v":0},{"$f":"AM6*'Other input expert'!L$14*'Sales price per sales channel'!$I6*'Other input expert'!L$7","v":0},{"$f":"AN6*'Other input expert'!M$14*'Sales price per sales channel'!$I6*'Other input expert'!M$7","v":0},null,{"$f":"BP2","v":"Sales Quality A direct to consumer"},{"$f":"BP199","v":0},{"$f":"BQ199","v":0},0,0,0,0,0,0,0,0,0,0]
["Acer saccharum","Sugar maple",{"$f":"Plantlist!$G7*'Production list'!D8*'Other input expert'!B$4*'Other input expert'!B$8","v":0},{"$f":"Plantlist!$G7*'Production list'!E8*'Other input expert'!C$4*'Other input expert'!C$8","v":0},{"$f":"Plantlist!$G7*'Production list'!F8*'Other input expert'!D$4*'Other input expert'!D$8","v":0},{"$f":"Plantlist!$G7*'Production list'!G8*'Other input expert'!E$4*'Other input expert'!E$8","v":0},{"$f":"Plantlist!$G7*'Production list'!H8*'Other input expert'!F$4*'Other input expert'!F$8","v":0},{"$f":"Plantlist!$G7*'Production list'!I8*'Other input expert'!G$4*'Other input expert'!G$8","v":0},{"$f":"Plantlist!$G7*'Production list'!J8*'Other input expert'!H$4*'Other input expert'!H$8","v":0},{"$f":"Plantlist!$G7*'Production list'!K8*'Other input expert'!I$4*'Other input expert'!I$8","v":0},{"$f":"Plantlist!$G7*'Production list'!L8*'Other input expert'!J$4*'Other input expert'!J$8","v":0},{"$f":"Plantlist!$G7*'Production list'!M8*'Other input expert'!K$4*'Other input expert'!K$8","v":0},{"$f":"Plantlist!$G7*'Production list'!N8*'Other input expert'!L$4*'Other input expert'!L$8","v":0},{"$f":"Plantlist!$G7*'Production list'!O8*'Other input expert'!M$4*'Other input expert'!M$8","v":0},null,{"$f":"C7*'Other input expert'!B$5","v":0},{"$f":"D7*'Other input expert'!C$5","v":0},{"$f":"E7*'Other input expert'!D$5","v":0},{"$f":"F7*'Other input expert'!E$5","v":0},{"$f":"G7*'Other input expert'!F$5","v":0},{"$f":"H7*'Other input expert'!G$5","v":0},{"$f":"I7*'Other input expert'!H$5","v":0},{"$f":"J7*'Other input expert'!I$5","v":0},{"$f":"K7*'Other input expert'!J$5","v":0},{"$f":"L7*'Other input expert'!K$5","v":0},{"$f":"M7*'Other input expert'!L$5","v":0},{"$f":"N7*'Other input expert'!M$5","v":0},null,{"$f":"C7*(100%-'Other input expert'!B$5)","v":0},{"$f":"D7*(100%-'Other input expert'!C$5)","v":0},{"$f":"E7*(100%-'Other input expert'!D$5)","v":0},{"$f":"F7*(100%-'Other input expert'!E$5)","v":0},{"$f":"G7*(100%-'Other input expert'!F$5)","v":0},{"$f":"H7*(100%-'Other input expert'!G$5)","v":0},{"$f":"I7*(100%-'Other input expert'!H$5)","v":0},{"$f":"J7*(100%-'Other input expert'!I$5)","v":0},{"$f":"K7*(100%-'Other input expert'!J$5)","v":0},{"$f":"L7*(100%-'Other input expert'!K$5)","v":0},{"$f":"M7*(100%-'Other input expert'!L$5)","v":0},{"$f":"N7*(100%-'Other input expert'!M$5)","v":0},null,{"$f":"P7*'Other input expert'!B$12*'Sales price per sales channel'!$G7*'Other input expert'!B$6","v":0},{"$f":"Q7*'Other input expert'!C$12*'Sales price per sales channel'!$G7*'Other input expert'!C$6","v":0},{"$f":"R7*'Other input expert'!D$12*'Sales price per sales channel'!$G7*'Other input expert'!D$6","v":0},{"$f":"S7*'Other input expert'!E$12*'Sales price per sales channel'!$G7*'Other input expert'!E$6","v":0},{"$f":"T7*'Other input expert'!F$12*'Sales price per sales channel'!$G7*'Other input expert'!F$6","v":0},{"$f":"U7*'Other input expert'!G$12*'Sales price per sales channel'!$G7*'Other input expert'!G$6","v":0},{"$f":"V7*'Other input expert'!H$12*'Sales price per sales channel'!$G7*'Other input expert'!H$6","v":0},{"$f":"W7*'Other input expert'!I$12*'Sales price per sales channel'!$G7*'Other input expert'!I$6","v":0},{"$f":"X7*'Other input expert'!J$12*'Sales price per sales channel'!$G7*'Other input expert'!J$6","v":0},{"$f":"Y7*'Other input expert'!K$12*'Sales price per sales channel'!$G7*'Other input expert'!K$6","v":0},{"$f":"Z7*'Other input expert'!L$12*'Sales price per sales channel'!$G7*'Other input expert'!L$6","v":0},{"$f":"AA7*'Other input expert'!M$12*'Sales price per sales channel'!$G7*'Other input expert'!M$6","v":0},null,{"$f":"P7*'Other input expert'!B$13*'Sales price per sales channel'!$H7*'Other input expert'!B$6","v":0},{"$f":"Q7*'Other input expert'!C$13*'Sales price per sales channel'!$H7*'Other input expert'!C$6","v":0},{"$f":"R7*'Other input expert'!D$13*'Sales price per sales channel'!$H7*'Other input expert'!D$6","v":0},{"$f":"S7*'Other input expert'!E$13*'Sales price per sales channel'!$H7*'Other input expert'!E$6","v":0},{"$f":"T7*'Other input expert'!F$13*'Sales price per sales channel'!$H7*'Other input expert'!F$6","v":0},{"$f":"U7*'Other input expert'!G$13*'Sales price per sales channel'!$H7*'Other input expert'!G$6","v":0},{"$f":"V7*'Other input expert'!H$13*'Sales price per sales channel'!$H7*'Other input expert'!H$6","v":0},{"$f":"W7*'Other input expert'!I$13*'Sales price per sales channel'!$H7*'Other input expert'!I$6","v":0},{"$f":"X7*'Other input expert'!J$13*'Sales price per sales channel'!$H7*'Other input expert'!J$6","v":0},{"$f":"Y7*'Other input expert'!K$13*'Sales price per sales channel'!$H7*'Other input expert'!K$6","v":0},{"$f":"Z7*'Other input expert'!L$13*'Sales price per sales channel'!$H7*'Other input expert'!L$6","v":0},{"$f":"AA7*'Other input expert'!M$13*'Sales price per sales channel'!$H7*'Other input expert'!M$6","v":0},null,{"$f":"P7*'Other input expert'!B$14*'Sales price per sales channel'!$I7*'Other input expert'!B$6","v":0},{"$f":"Q7*'Other input expert'!C$14*'Sales price per sales channel'!$I7*'Other input expert'!C$6","v":0},{"$f":"R7*'Other input expert'!D$14*'Sales price per sales channel'!$I7*'Other input expert'!D$6","v":0},{"$f":"S7*'Other input expert'!E$14*'Sales price per sales channel'!$I7*'Other input expert'!E$6","v":0},{"$f":"T7*'Other input expert'!F$14*'Sales price per sales channel'!$I7*'Other input expert'!F$6","v":0},{"$f":"U7*'Other input expert'!G$14*'Sales price per sales channel'!$I7*'Other input expert'!G$6","v":0},{"$f":"V7*'Other input expert'!H$14*'Sales price per sales channel'!$I7*'Other input expert'!H$6","v":0},{"$f":"W7*'Other input expert'!I$14*'Sales price per sales channel'!$I7*'Other input expert'!I$6","v":0},{"$f":"X7*'Other input expert'!J$14*'Sales price per sales channel'!$I7*'Other input expert'!J$6","v":0},{"$f":"Y7*'Other input expert'!K$14*'Sales price per sales channel'!$I7*'Other input expert'!K$6","v":0},{"$f":"Z7*'Other input expert'!L$14*'Sales price per sales channel'!$I7*'Other input expert'!L$6","v":0},{"$f":"AA7*'Other input expert'!M$14*'Sales price per sales channel'!$I7*'Other input expert'!M$6","v":0},null,{"$f":"AC7*'Other input expert'!B$12*'Sales price per sales channel'!$G7*'Other input expert'!B$7","v":0},{"$f":"AD7*'Other input expert'!C$12*'Sales price per sales channel'!$G7*'Other input expert'!C$7","v":0},{"$f":"AE7*'Other input expert'!D$12*'Sales price per sales channel'!$G7*'Other input expert'!D$7","v":0},{"$f":"AF7*'Other input expert'!E$12*'Sales price per sales channel'!$G7*'Other input expert'!E$7","v":0},{"$f":"AG7*'Other input expert'!F$12*'Sales price per sales channel'!$G7*'Other input expert'!F$7","v":0},{"$f":"AH7*'Other input expert'!G$12*'Sales price per sales channel'!$G7*'Other input expert'!G$7","v":0},{"$f":"AI7*'Other input expert'!H$12*'Sales price per sales channel'!$G7*'Other input expert'!H$7","v":0},{"$f":"AJ7*'Other input expert'!I$12*'Sales price per sales channel'!$G7*'Other input expert'!I$7","v":0},{"$f":"AK7*'Other input expert'!J$12*'Sales price per sales channel'!$G7*'Other input expert'!J$7","v":0},{"$f":"AL7*'Other input expert'!K$12*'Sales price per sales channel'!$G7*'Other input expert'!K$7","v":0},{"$f":"AM7*'Other input expert'!L$12*'Sales price per sales channel'!$G7*'Other input expert'!L$7","v":0},{"$f":"AN7*'Other input expert'!M$12*'Sales price per sales channel'!$G7*'Other input expert'!M$7","v":0},null,{"$f":"AC7*'Other input expert'!B$13*'Sales price per sales channel'!$H7*'Other input expert'!B$7","v":0},{"$f":"AD7*'Other input expert'!C$13*'Sales price per sales channel'!$H7*'Other input expert'!C$7","v":0},{"$f":"AE7*'Other input expert'!D$13*'Sales price per sales channel'!$H7*'Other input expert'!D$7","v":0},{"$f":"AF7*'Other input expert'!E$13*'Sales price per sales channel'!$H7*'Other input expert'!E$7","v":0},{"$f":"AG7*'Other input expert'!F$13*'Sales price per sales channel'!$H7*'Other input expert'!F$7","v":0},{"$f":"AH7*'Other input expert'!G$13*'Sales price per sales channel'!$H7*'Other input expert'!G$7","v":0},{"$f":"AI7*'Other input expert'!H$13*'Sales price per sales channel'!$H7*'Other input expert'!H$7","v":0},{"$f":"AJ7*'Other input expert'!I$13*'Sales price per sales channel'!$H7*'Other input expert'!I$7","v":0},{"$f":"AK7*'Other input expert'!J$13*'Sales price per sales channel'!$H7*'Other input expert'!J$7","v":0},{"$f":"AL7*'Other input expert'!K$13*'Sales price per sales channel'!$H7*'Other input expert'!K$7","v":0},{"$f":"AM7*'Other input expert'!L$13*'Sales price per sales channel'!$H7*'Other input expert'!L$7","v":0},{"$f":"AN7*'Other input expert'!M$13*'Sales price per sales channel'!$H7*'Other input expert'!M$7","v":0},null,{"$f":"AC7*'Other input expert'!B$14*'Sales price per sales channel'!$I7*'Other input expert'!B$7","v":0},{"$f":"AD7*'Other input expert'!C$14*'Sales price per sales channel'!$I7*'Other input expert'!C$7","v":0},{"$f":"AE7*'Other input expert'!D$14*'Sales price per sales channel'!$I7*'Other input expert'!D$7","v":0},{"$f":"AF7*'Other input expert'!E$14*'Sales price per sales channel'!$I7*'Other input expert'!E$7","v":0},{"$f":"AG7*'Other input expert'!F$14*'Sales price per sales channel'!$I7*'Other input expert'!F$7","v":0},{"$f":"AH7*'Other input expert'!G$14*'Sales price per sales channel'!$I7*'Other input expert'!G$7","v":0},{"$f":"AI7*'Other input expert'!H$14*'Sales price per sales channel'!$I7*'Other input expert'!H$7","v":0},{"$f":"AJ7*'Other input expert'!I$14*'Sales price per sales channel'!$I7*'Other input expert'!I$7","v":0},{"$f":"AK7*'Other input expert'!J$14*'Sales price per sales channel'!$I7*'Other input expert'!J$7","v":0},{"$f":"AL7*'Other input expert'!K$14*'Sales price per sales channel'!$I7*'Other input expert'!K$7","v":0},{"$f":"AM7*'Other input expert'!L$14*'Sales price per sales channel'!$I7*'Other input expert'!L$7","v":0},{"$f":"AN7*'Other input expert'!M$14*'Sales price per sales channel'!$I7*'Other input expert'!M$7","v":0},null,{"$f":"CC2","v":"Sales Quality B to supermarket channel"},{"$f":"CC199","v":0},{"$f":"CD199","v":0},0,0,0,0,0,0,0,0,0,0]
["Achillea millefolium","Yarrow",{"$f":"Plantlist!$G8*'Production list'!D9*'Other input expert'!B$4*'Other input expert'!B$8","v":0},{"$f":"Plantlist!$G8*'Production list'!E9*'Other input expert'!C$4*'Other input expert'!C$8","v":0},{"$f":"Plantlist!$G8*'Production list'!F9*'Other input expert'!D$4*'Other input expert'!D$8","v":0},{"$f":"Plantlist!$G8*'Production list'!G9*'Other input expert'!E$4*'Other input expert'!E$8","v":0},{"$f":"Plantlist!$G8*'Production list'!H9*'Other input expert'!F$4*'Other input expert'!F$8","v":0},{"$f":"Plantlist!$G8*'Production list'!I9*'Other input expert'!G$4*'Other input expert'!G$8","v":0},{"$f":"Plantlist!$G8*'Production list'!J9*'Other input expert'!H$4*'Other input expert'!H$8","v":0},{"$f":"Plantlist!$G8*'Production list'!K9*'Other input expert'!I$4*'Other input expert'!I$8","v":0},{"$f":"Plantlist!$G8*'Production list'!L9*'Other input expert'!J$4*'Other input expert'!J$8","v":0},{"$f":"Plantlist!$G8*'Production list'!M9*'Other input expert'!K$4*'Other input expert'!K$8","v":0},{"$f":"Plantlist!$G8*'Production list'!N9*'Other input expert'!L$4*'Other input expert'!L$8","v":0},{"$f":"Plantlist!$G8*'Production list'!O9*'Other input expert'!M$4*'Other input expert'!M$8","v":0},null,{"$f":"C8*'Other input expert'!B$5","v":0},{"$f":"D8*'Other input expert'!C$5","v":0},{"$f":"E8*'Other input expert'!D$5","v":0},{"$f":"F8*'Other input expert'!E$5","v":0},{"$f":"G8*'Other input expert'!F$5","v":0},{"$f":"H8*'Other input expert'!G$5","v":0},{"$f":"I8*'Other input expert'!H$5","v":0},{"$f":"J8*'Other input expert'!I$5","v":0},{"$f":"K8*'Other input expert'!J$5","v":0},{"$f":"L8*'Other input expert'!K$5","v":0},{"$f":"M8*'Other input expert'!L$5","v":0},{"$f":"N8*'Other input expert'!M$5","v":0},null,{"$f":"C8*(100%-'Other input expert'!B$5)","v":0},{"$f":"D8*(100%-'Other input expert'!C$5)","v":0},{"$f":"E8*(100%-'Other input expert'!D$5)","v":0},{"$f":"F8*(100%-'Other input expert'!E$5)","v":0},{"$f":"G8*(100%-'Other input expert'!F$5)","v":0},{"$f":"H8*(100%-'Other input expert'!G$5)","v":0},{"$f":"I8*(100%-'Other input expert'!H$5)","v":0},{"$f":"J8*(100%-'Other input expert'!I$5)","v":0},{"$f":"K8*(100%-'Other input expert'!J$5)","v":0},{"$f":"L8*(100%-'Other input expert'!K$5)","v":0},{"$f":"M8*(100%-'Other input expert'!L$5)","v":0},{"$f":"N8*(100%-'Other input expert'!M$5)","v":0},null,{"$f":"P8*'Other input expert'!B$12*'Sales price per sales channel'!$G8*'Other input expert'!B$6","v":0},{"$f":"Q8*'Other input expert'!C$12*'Sales price per sales channel'!$G8*'Other input expert'!C$6","v":0},{"$f":"R8*'Other input expert'!D$12*'Sales price per sales channel'!$G8*'Other input expert'!D$6","v":0},{"$f":"S8*'Other input expert'!E$12*'Sales price per sales channel'!$G8*'Other input expert'!E$6","v":0},{"$f":"T8*'Other input expert'!F$12*'Sales price per sales channel'!$G8*'Other input expert'!F$6","v":0},{"$f":"U8*'Other input expert'!G$12*'Sales price per sales channel'!$G8*'Other input expert'!G$6","v":0},{"$f":"V8*'Other input expert'!H$12*'Sales price per sales channel'!$G8*'Other input expert'!H$6","v":0},{"$f":"W8*'Other input expert'!I$12*'Sales price per sales channel'!$G8*'Other input expert'!I$6","v":0},{"$f":"X8*'Other input expert'!J$12*'Sales price per sales channel'!$G8*'Other input expert'!J$6","v":0},{"$f":"Y8*'Other input expert'!K$12*'Sales price per sales channel'!$G8*'Other input expert'!K$6","v":0},{"$f":"Z8*'Other input expert'!L$12*'Sales price per sales channel'!$G8*'Other input expert'!L$6","v":0},{"$f":"AA8*'Other input expert'!M$12*'Sales price per sales channel'!$G8*'Other input expert'!M$6","v":0},null,{"$f":"P8*'Other input expert'!B$13*'Sales price per sales channel'!$H8*'Other input expert'!B$6","v":0},{"$f":"Q8*'Other input expert'!C$13*'Sales price per sales channel'!$H8*'Other input expert'!C$6","v":0},{"$f":"R8*'Other input expert'!D$13*'Sales price per sales channel'!$H8*'Other input expert'!D$6","v":0},{"$f":"S8*'Other input expert'!E$13*'Sales price per sales channel'!$H8*'Other input expert'!E$6","v":0},{"$f":"T8*'Other input expert'!F$13*'Sales price per sales channel'!$H8*'Other input expert'!F$6","v":0},{"$f":"U8*'Other input expert'!G$13*'Sales price per sales channel'!$H8*'Other input expert'!G$6","v":0},{"$f":"V8*'Other input expert'!H$13*'Sales price per sales channel'!$H8*'Other input expert'!H$6","v":0},{"$f":"W8*'Other input expert'!I$13*'Sales price per sales channel'!$H8*'Other input expert'!I$6","v":0},{"$f":"X8*'Other input expert'!J$13*'Sales price per sales channel'!$H8*'Other input expert'!J$6","v":0},{"$f":"Y8*'Other input expert'!K$13*'Sales price per sales channel'!$H8*'Other input expert'!K$6","v":0},{"$f":"Z8*'Other input expert'!L$13*'Sales price per sales channel'!$H8*'Other input expert'!L$6","v":0},{"$f":"AA8*'Other input expert'!M$13*'Sales price per sales channel'!$H8*'Other input expert'!M$6","v":0},null,{"$f":"P8*'Other input expert'!B$14*'Sales price per sales channel'!$I8*'Other input expert'!B$6","v":0},{"$f":"Q8*'Other input expert'!C$14*'Sales price per sales channel'!$I8*'Other input expert'!C$6","v":0},{"$f":"R8*'Other input expert'!D$14*'Sales price per sales channel'!$I8*'Other input expert'!D$6","v":0},{"$f":"S8*'Other input expert'!E$14*'Sales price per sales channel'!$I8*'Other input expert'!E$6","v":0},{"$f":"T8*'Other input expert'!F$14*'Sales price per sales channel'!$I8*'Other input expert'!F$6","v":0},{"$f":"U8*'Other input expert'!G$14*'Sales price per sales channel'!$I8*'Other input expert'!G$6","v":0},{"$f":"V8*'Other input expert'!H$14*'Sales price per sales channel'!$I8*'Other input expert'!H$6","v":0},{"$f":"W8*'Other input expert'!I$14*'Sales price per sales channel'!$I8*'Other input expert'!I$6","v":0},{"$f":"X8*'Other input expert'!J$14*'Sales price per sales channel'!$I8*'Other input expert'!J$6","v":0},{"$f":"Y8*'Other input expert'!K$14*'Sales price per sales channel'!$I8*'Other input expert'!K$6","v":0},{"$f":"Z8*'Other input expert'!L$14*'Sales price per sales channel'!$I8*'Other input expert'!L$6","v":0},{"$f":"AA8*'Other input expert'!M$14*'Sales price per sales channel'!$I8*'Other input expert'!M$6","v":0},null,{"$f":"AC8*'Other input expert'!B$12*'Sales price per sales channel'!$G8*'Other input expert'!B$7","v":0},{"$f":"AD8*'Other input expert'!C$12*'Sales price per sales channel'!$G8*'Other input expert'!C$7","v":0},{"$f":"AE8*'Other input expert'!D$12*'Sales price per sales channel'!$G8*'Other input expert'!D$7","v":0},{"$f":"AF8*'Other input expert'!E$12*'Sales price per sales channel'!$G8*'Other input expert'!E$7","v":0},{"$f":"AG8*'Other input expert'!F$12*'Sales price per sales channel'!$G8*'Other input expert'!F$7","v":0},{"$f":"AH8*'Other input expert'!G$12*'Sales price per sales channel'!$G8*'Other input expert'!G$7","v":0},{"$f":"AI8*'Other input expert'!H$12*'Sales price per sales channel'!$G8*'Other input expert'!H$7","v":0},{"$f":"AJ8*'Other input expert'!I$12*'Sales price per sales channel'!$G8*'Other input expert'!I$7","v":0},{"$f":"AK8*'Other input expert'!J$12*'Sales price per sales channel'!$G8*'Other input expert'!J$7","v":0},{"$f":"AL8*'Other input expert'!K$12*'Sales price per sales channel'!$G8*'Other input expert'!K$7","v":0},{"$f":"AM8*'Other input expert'!L$12*'Sales price per sales channel'!$G8*'Other input expert'!L$7","v":0},{"$f":"AN8*'Other input expert'!M$12*'Sales price per sales channel'!$G8*'Other input expert'!M$7","v":0},null,{"$f":"AC8*'Other input expert'!B$13*'Sales price per sales channel'!$H8*'Other input expert'!B$7","v":0},{"$f":"AD8*'Other input expert'!C$13*'Sales price per sales channel'!$H8*'Other input expert'!C$7","v":0},{"$f":"AE8*'Other input expert'!D$13*'Sales price per sales channel'!$H8*'Other input expert'!D$7","v":0},{"$f":"AF8*'Other input expert'!E$13*'Sales price per sales channel'!$H8*'Other input expert'!E$7","v":0},{"$f":"AG8*'Other input expert'!F$13*'Sales price per sales channel'!$H8*'Other input expert'!F$7","v":0},{"$f":"AH8*'Other input expert'!G$13*'Sales price per sales channel'!$H8*'Other input expert'!G$7","v":0},{"$f":"AI8*'Other input expert'!H$13*'Sales price per sales channel'!$H8*'Other input expert'!H$7","v":0},{"$f":"AJ8*'Other input expert'!I$13*'Sales price per sales channel'!$H8*'Other input expert'!I$7","v":0},{"$f":"AK8*'Other input expert'!J$13*'Sales price per sales channel'!$H8*'Other input expert'!J$7","v":0},{"$f":"AL8*'Other input expert'!K$13*'Sales price per sales channel'!$H8*'Other input expert'!K$7","v":0},{"$f":"AM8*'Other input expert'!L$13*'Sales price per sales channel'!$H8*'Other input expert'!L$7","v":0},{"$f":"AN8*'Other input expert'!M$13*'Sales price per sales channel'!$H8*'Other input expert'!M$7","v":0},null,{"$f":"AC8*'Other input expert'!B$14*'Sales price per sales channel'!$I8*'Other input expert'!B$7","v":0},{"$f":"AD8*'Other input expert'!C$14*'Sales price per sales channel'!$I8*'Other input expert'!C$7","v":0},{"$f":"AE8*'Other input expert'!D$14*'Sales price per sales channel'!$I8*'Other input expert'!D$7","v":0},{"$f":"AF8*'Other input expert'!E$14*'Sales price per sales channel'!$I8*'Other input expert'!E$7","v":0},{"$f":"AG8*'Other input expert'!F$14*'Sales price per sales channel'!$I8*'Other input expert'!F$7","v":0},{"$f":"AH8*'Other input expert'!G$14*'Sales price per sales channel'!$I8*'Other input expert'!G$7","v":0},{"$f":"AI8*'Other input expert'!H$14*'Sales price per sales channel'!$I8*'Other input expert'!H$7","v":0},{"$f":"AJ8*'Other input expert'!I$14*'Sales price per sales channel'!$I8*'Other input expert'!I$7","v":0},{"$f":"AK8*'Other input expert'!J$14*'Sales price per sales channel'!$I8*'Other input expert'!J$7","v":0},{"$f":"AL8*'Other input expert'!K$14*'Sales price per sales channel'!$I8*'Other input expert'!K$7","v":0},{"$f":"AM8*'Other input expert'!L$14*'Sales price per sales channel'!$I8*'Other input expert'!L$7","v":0},{"$f":"AN8*'Other input expert'!M$14*'Sales price per sales channel'!$I8*'Other input expert'!M$7","v":0},null,{"$f":"CP2","v":"Sales Quality B to catering channel"},{"$f":"CP199","v":0},{"$f":"CQ199","v":0},0,0,0,0,0,0,0,0,0,0]
["Actinidia arguta","Hardy kiwi",{"$f":"Plantlist!$G9*'Production list'!D10*'Other input expert'!B$4*'Other input expert'!B$8","v":0},{"$f":"Plantlist!$G9*'Production list'!E10*'Other input expert'!C$4*'Other input expert'!C$8","v":0},{"$f":"Plantlist!$G9*'Production list'!F10*'Other input expert'!D$4*'Other input expert'!D$8","v":0},{"$f":"Plantlist!$G9*'Production list'!G10*'Other input expert'!E$4*'Other input expert'!E$8","v":0},{"$f":"Plantlist!$G9*'Production list'!H10*'Other input expert'!F$4*'Other input expert'!F$8","v":0},{"$f":"Plantlist!$G9*'Production list'!I10*'Other input expert'!G$4*'Other input expert'!G$8","v":0},{"$f":"Plantlist!$G9*'Production list'!J10*'Other input expert'!H$4*'Other input expert'!H$8","v":0},{"$f":"Plantlist!$G9*'Production list'!K10*'Other input expert'!I$4*'Other input expert'!I$8","v":0},{"$f":"Plantlist!$G9*'Production list'!L10*'Other input expert'!J$4*'Other input expert'!J$8","v":0},{"$f":"Plantlist!$G9*'Production list'!M10*'Other input expert'!K$4*'Other input expert'!K$8","v":0},{"$f":"Plantlist!$G9*'Production list'!N10*'Other input expert'!L$4*'Other input expert'!L$8","v":0},{"$f":"Plantlist!$G9*'Production list'!O10*'Other input expert'!M$4*'Other input expert'!M$8","v":0},null,{"$f":"C9*'Other input expert'!B$5","v":0},{"$f":"D9*'Other input expert'!C$5","v":0},{"$f":"E9*'Other input expert'!D$5","v":0},{"$f":"F9*'Other input expert'!E$5","v":0},{"$f":"G9*'Other input expert'!F$5","v":0},{"$f":"H9*'Other input expert'!G$5","v":0},{"$f":"I9*'Other input expert'!H$5","v":0},{"$f":"J9*'Other input expert'!I$5","v":0},{"$f":"K9*'Other input expert'!J$5","v":0},{"$f":"L9*'Other input expert'!K$5","v":0},{"$f":"M9*'Other input expert'!L$5","v":0},{"$f":"N9*'Other input expert'!M$5","v":0},null,{"$f":"C9*(100%-'Other input expert'!B$5)","v":0},{"$f":"D9*(100%-'Other input expert'!C$5)","v":0},{"$f":"E9*(100%-'Other input expert'!D$5)","v":0},{"$f":"F9*(100%-'Other input expert'!E$5)","v":0},{"$f":"G9*(100%-'Other input expert'!F$5)","v":0},{"$f":"H9*(100%-'Other input expert'!G$5)","v":0},{"$f":"I9*(100%-'Other input expert'!H$5)","v":0},{"$f":"J9*(100%-'Other input expert'!I$5)","v":0},{"$f":"K9*(100%-'Other input expert'!J$5)","v":0},{"$f":"L9*(100%-'Other input expert'!K$5)","v":0},{"$f":"M9*(100%-'Other input expert'!L$5)","v":0},{"$f":"N9*(100%-'Other input expert'!M$5)","v":0},null,{"$f":"P9*'Other input expert'!B$12*'Sales price per sales channel'!$G9*'Other input expert'!B$6","v":0},{"$f":"Q9*'Other input expert'!C$12*'Sales price per sales channel'!$G9*'Other input expert'!C$6","v":0},{"$f":"R9*'Other input expert'!D$12*'Sales price per sales channel'!$G9*'Other input expert'!D$6","v":0},{"$f":"S9*'Other input expert'!E$12*'Sales price per sales channel'!$G9*'Other input expert'!E$6","v":0},{"$f":"T9*'Other input expert'!F$12*'Sales price per sales channel'!$G9*'Other input expert'!F$6","v":0},{"$f":"U9*'Other input expert'!G$12*'Sales price per sales channel'!$G9*'Other input expert'!G$6","v":0},{"$f":"V9*'Other input expert'!H$12*'Sales price per sales channel'!$G9*'Other input expert'!H$6","v":0},{"$f":"W9*'Other input expert'!I$12*'Sales price per sales channel'!$G9*'Other input expert'!I$6","v":0},{"$f":"X9*'Other input expert'!J$12*'Sales price per sales channel'!$G9*'Other input expert'!J$6","v":0},{"$f":"Y9*'Other input expert'!K$12*'Sales price per sales channel'!$G9*'Other input expert'!K$6","v":0},{"$f":"Z9*'Other input expert'!L$12*'Sales price per sales channel'!$G9*'Other input expert'!L$6","v":0},{"$f":"AA9*'Other input expert'!M$12*'Sales price per sales channel'!$G9*'Other input expert'!M$6","v":0},null,{"$f":"P9*'Other input expert'!B$13*'Sales price per sales channel'!$H9*'Other input expert'!B$6","v":0},{"$f":"Q9*'Other input expert'!C$13*'Sales price per sales channel'!$H9*'Other input expert'!C$6","v":0},{"$f":"R9*'Other input expert'!D$13*'Sales price per sales channel'!$H9*'Other input expert'!D$6","v":0},{"$f":"S9*'Other input expert'!E$13*'Sales price per sales channel'!$H9*'Other input expert'!E$6","v":0},{"$f":"T9*'Other input expert'!F$13*'Sales price per sales channel'!$H9*'Other input expert'!F$6","v":0},{"$f":"U9*'Other input expert'!G$13*'Sales price per sales channel'!$H9*'Other input expert'!G$6","v":0},{"$f":"V9*'Other input expert'!H$13*'Sales price per sales channel'!$H9*'Other input expert'!H$6","v":0},{"$f":"W9*'Other input expert'!I$13*'Sales price per sales channel'!$H9*'Other input expert'!I$6","v":0},{"$f":"X9*'Other input expert'!J$13*'Sales price per sales channel'!$H9*'Other input expert'!J$6","v":0},{"$f":"Y9*'Other input expert'!K$13*'Sales price per sales channel'!$H9*'Other input expert'!K$6","v":0},{"$f":"Z9*'Other input expert'!L$13*'Sales price per sales channel'!$H9*'Other input expert'!L$6","v":0},{"$f":"AA9*'Other input expert'!M$13*'Sales price per sales channel'!$H9*'Other input expert'!M$6","v":0},null,{"$f":"P9*'Other input expert'!B$14*'Sales price per sales channel'!$I9*'Other input expert'!B$6","v":0},{"$f":"Q9*'Other input expert'!C$14*'Sales price per sales channel'!$I9*'Other input expert'!C$6","v":0},{"$f":"R9*'Other input expert'!D$14*'Sales price per sales channel'!$I9*'Other input expert'!D$6","v":0},{"$f":"S9*'Other input expert'!E$14*'Sales price per sales channel'!$I9*'Other input expert'!E$6","v":0},{"$f":"T9*'Other input expert'!F$14*'Sales price per sales channel'!$I9*'Other input expert'!F$6","v":0},{"$f":"U9*'Other input expert'!G$14*'Sales price per sales channel'!$I9*'Other input expert'!G$6","v":0},{"$f":"V9*'Other input expert'!H$14*'Sales price per sales channel'!$I9*'Other input expert'!H$6","v":0},{"$f":"W9*'Other input expert'!I$14*'Sales price per sales channel'!$I9*'Other input expert'!I$6","v":0},{"$f":"X9*'Other input expert'!J$14*'Sales price per sales channel'!$I9*'Other input expert'!J$6","v":0},{"$f":"Y9*'Other input expert'!K$14*'Sales price per sales channel'!$I9*'Other input expert'!K$6","v":0},{"$f":"Z9*'Other input expert'!L$14*'Sales price per sales channel'!$I9*'Other input expert'!L$6","v":0},{"$f":"AA9*'Other input expert'!M$14*'Sales price per sales channel'!$I9*'Other input expert'!M$6","v":0},null,{"$f":"AC9*'Other input expert'!B$12*'Sales price per sales channel'!$G9*'Other input expert'!B$7","v":0},{"$f":"AD9*'Other input expert'!C$12*'Sales price per sales channel'!$G9*'Other input expert'!C$7","v":0},{"$f":"AE9*'Other input expert'!D$12*'Sales price per sales channel'!$G9*'Other input expert'!D$7","v":0},{"$f":"AF9*'Other input expert'!E$12*'Sales price per sales channel'!$G9*'Other input expert'!E$7","v":0},{"$f":"AG9*'Other input expert'!F$12*'Sales price per sales channel'!$G9*'Other input expert'!F$7","v":0},{"$f":"AH9*'Other input expert'!G$12*'Sales price per sales channel'!$G9*'Other input expert'!G$7","v":0},{"$f":"AI9*'Other input expert'!H$12*'Sales price per sales channel'!$G9*'Other input expert'!H$7","v":0},{"$f":"AJ9*'Other input expert'!I$12*'Sales price per sales channel'!$G9*'Other input expert'!I$7","v":0},{"$f":"AK9*'Other input expert'!J$12*'Sales price per sales channel'!$G9*'Other input expert'!J$7","v":0},{"$f":"AL9*'Other input expert'!K$12*'Sales price per sales channel'!$G9*'Other input expert'!K$7","v":0},{"$f":"AM9*'Other input expert'!L$12*'Sales price per sales channel'!$G9*'Other input expert'!L$7","v":0},{"$f":"AN9*'Other input expert'!M$12*'Sales price per sales channel'!$G9*'Other input expert'!M$7","v":0},null,{"$f":"AC9*'Other input expert'!B$13*'Sales price per sales channel'!$H9*'Other input expert'!B$7","v":0},{"$f":"AD9*'Other input expert'!C$13*'Sales price per sales channel'!$H9*'Other input expert'!C$7","v":0},{"$f":"AE9*'Other input expert'!D$13*'Sales price per sales channel'!$H9*'Other input expert'!D$7","v":0},{"$f":"AF9*'Other input expert'!E$13*'Sales price per sales channel'!$H9*'Other input expert'!E$7","v":0},{"$f":"AG9*'Other input expert'!F$13*'Sales price per sales channel'!$H9*'Other input expert'!F$7","v":0},{"$f":"AH9*'Other input expert'!G$13*'Sales price per sales channel'!$H9*'Other input expert'!G$7","v":0},{"$f":"AI9*'Other input expert'!H$13*'Sales price per sales channel'!$H9*'Other input expert'!H$7","v":0},{"$f":"AJ9*'Other input expert'!I$13*'Sales price per sales channel'!$H9*'Other input expert'!I$7","v":0},{"$f":"AK9*'Other input expert'!J$13*'Sales price per sales channel'!$H9*'Other input expert'!J$7","v":0},{"$f":"AL9*'Other input expert'!K$13*'Sales price per sales channel'!$H9*'Other input expert'!K$7","v":0},{"$f":"AM9*'Other input expert'!L$13*'Sales price per sales channel'!$H9*'Other input expert'!L$7","v":0},{"$f":"AN9*'Other input expert'!M$13*'Sales price per sales channel'!$H9*'Other input expert'!M$7","v":0},null,{"$f":"AC9*'Other input expert'!B$14*'Sales price per sales channel'!$I9*'Other input expert'!B$7","v":0},{"$f":"AD9*'Other input expert'!C$14*'Sales price per sales channel'!$I9*'Other input expert'!C$7","v":0},{"$f":"AE9*'Other input expert'!D$14*'Sales price per sales channel'!$I9*'Other input expert'!D$7","v":0},{"$f":"AF9*'Other input expert'!E$14*'Sales price per sales channel'!$I9*'Other input expert'!E$7","v":0},{"$f":"AG9*'Other input expert'!F$14*'Sales price per sales channel'!$I9*'Other input expert'!F$7","v":0},{"$f":"AH9*'Other input expert'!G$14*'Sales price per sales channel'!$I9*'Other input expert'!G$7","v":0},{"$f":"AI9*'Other input expert'!H$14*'Sales price per sales channel'!$I9*'Other input expert'!H$7","v":0},{"$f":"AJ9*'Other input expert'!I$14*'Sales price per sales channel'!$I9*'Other input expert'!I$7","v":0},{"$f":"AK9*'Other input expert'!J$14*'Sales price per sales channel'!$I9*'Other input expert'!J$7","v":0},{"$f":"AL9*'Other input expert'!K$14*'Sales price per sales channel'!$I9*'Other input expert'!K$7","v":0},{"$f":"AM9*'Other input expert'!L$14*'Sales price per sales channel'!$I9*'Other input expert'!L$7","v":0},{"$f":"AN9*'Other input expert'!M$14*'Sales price per sales channel'!$I9*'Other input expert'!M$7","v":0},null,{"$f":"DC2","v":"Sales Quality B direct to consumer"},{"$f":"DC199","v":0},{"$f":"DD199","v":0},0,0,0,0,0,0,0,0,0,0]
["Actinidia deliciosa","Kiwi",{"$f":"Plantlist!$G10*'Production list'!D11*'Other input expert'!B$4*'Other input expert'!B$8","v":0},{"$f":"Plantlist!$G10*'Production list'!E11*'Other input expert'!C$4*'Other input expert'!C$8","v":0},{"$f":"Plantlist!$G10*'Production list'!F11*'Other input expert'!D$4*'Other input expert'!D$8","v":0},{"$f":"Plantlist!$G10*'Production list'!G11*'Other input expert'!E$4*'Other input expert'!E$8","v":0},{"$f":"Plantlist!$G10*'Production list'!H11*'Other input expert'!F$4*'Other input expert'!F$8","v":0},{"$f":"Plantlist!$G10*'Production list'!I11*'Other input expert'!G$4*'Other input expert'!G$8","v":0},{"$f":"Plantlist!$G10*'Production list'!J11*'Other input expert'!H$4*'Other input expert'!H$8","v":0},{"$f":"Plantlist!$G10*'Production list'!K11*'Other input expert'!I$4*'Other input expert'!I$8","v":0},{"$f":"Plantlist!$G10*'Production list'!L11*'Other input expert'!J$4*'Other input expert'!J$8","v":0},{"$f":"Plantlist!$G10*'Production list'!M11*'Other input expert'!K$4*'Other input expert'!K$8","v":0},{"$f":"Plantlist!$G10*'Production list'!N11*'Other input expert'!L$4*'Other input expert'!L$8","v":0},{"$f":"Plantlist!$G10*'Production list'!O11*'Other input expert'!M$4*'Other input expert'!M$8","v":0},null,{"$f":"C10*'Other input expert'!B$5","v":0},{"$f":"D10*'Other input expert'!C$5","v":0},{"$f":"E10*'Other input expert'!D$5","v":0},{"$f":"F10*'Other input expert'!E$5","v":0},{"$f":"G10*'Other input expert'!F$5","v":0},{"$f":"H10*'Other input expert'!G$5","v":0},{"$f":"I10*'Other input expert'!H$5","v":0},{"$f":"J10*'Other input expert'!I$5","v":0},{"$f":"K10*'Other input expert'!J$5","v":0},{"$f":"L10*'Other input expert'!K$5","v":0},{"$f":"M10*'Other input expert'!L$5","v":0},{"$f":"N10*'Other input expert'!M$5","v":0},null,{"$f":"C10*(100%-'Other input expert'!B$5)","v":0},{"$f":"D10*(100%-'Other input expert'!C$5)","v":0},{"$f":"E10*(100%-'Other input expert'!D$5)","v":0},{"$f":"F10*(100%-'Other input expert'!E$5)","v":0},{"$f":"G10*(100%-'Other input expert'!F$5)","v":0},{"$f":"H10*(100%-'Other input expert'!G$5)","v":0},{"$f":"I10*(100%-'Other input expert'!H$5)","v":0},{"$f":"J10*(100%-'Other input expert'!I$5)","v":0},{"$f":"K10*(100%-'Other input expert'!J$5)","v":0},{"$f":"L10*(100%-'Other input expert'!K$5)","v":0},{"$f":"M10*(100%-'Other input expert'!L$5)","v":0},{"$f":"N10*(100%-'Other input expert'!M$5)","v":0},null,{"$f":"P10*'Other input expert'!B$12*'Sales price per sales channel'!$G10*'Other input expert'!B$6","v":0},{"$f":"Q10*'Other input expert'!C$12*'Sales price per sales channel'!$G10*'Other input expert'!C$6","v":0},{"$f":"R10*'Other input expert'!D$12*'Sales price per sales channel'!$G10*'Other input expert'!D$6","v":0},{"$f":"S10*'Other input expert'!E$12*'Sales price per sales channel'!$G10*'Other input expert'!E$6","v":0},{"$f":"T10*'Other input expert'!F$12*'Sales price per sales channel'!$G10*'Other input expert'!F$6","v":0},{"$f":"U10*'Other input expert'!G$12*'Sales price per sales channel'!$G10*'Other input expert'!G$6","v":0},{"$f":"V10*'Other input expert'!H$12*'Sales price per sales channel'!$G10*'Other input expert'!H$6","v":0},{"$f":"W10*'Other input expert'!I$12*'Sales price per sales channel'!$G10*'Other input expert'!I$6","v":0},{"$f":"X10*'Other input expert'!J$12*'Sales price per sales channel'!$G10*'Other input expert'!J$6","v":0},{"$f":"Y10*'Other input expert'!K$12*'Sales price per sales channel'!$G10*'Other input expert'!K$6","v":0},{"$f":"Z10*'Other input expert'!L$12*'Sales price per sales channel'!$G10*'Other input expert'!L$6","v":0},{"$f":"AA10*'Other input expert'!M$12*'Sales price per sales channel'!$G10*'Other input expert'!M$6","v":0},null,{"$f":"P10*'Other input expert'!B$13*'Sales price per sales channel'!$H10*'Other input expert'!B$6","v":0},{"$f":"Q10*'Other input expert'!C$13*'Sales price per sales channel'!$H10*'Other input expert'!C$6","v":0},{"$f":"R10*'Other input expert'!D$13*'Sales price per sales channel'!$H10*'Other input expert'!D$6","v":0},{"$f":"S10*'Other input expert'!E$13*'Sales price per sales channel'!$H10*'Other input expert'!E$6","v":0},{"$f":"T10*'Other input expert'!F$13*'Sales price per sales channel'!$H10*'Other input expert'!F$6","v":0},{"$f":"U10*'Other input expert'!G$13*'Sales price per sales channel'!$H10*'Other input expert'!G$6","v":0},{"$f":"V10*'Other input expert'!H$13*'Sales price per sales channel'!$H10*'Other input expert'!H$6","v":0},{"$f":"W10*'Other input expert'!I$13*'Sales price per sales channel'!$H10*'Other input expert'!I$6","v":0},{"$f":"X10*'Other input expert'!J$13*'Sales price per sales channel'!$H10*'Other input expert'!J$6","v":0},{"$f":"Y10*'Other input expert'!K$13*'Sales price per sales channel'!$H10*'Other input expert'!K$6","v":0},{"$f":"Z10*'Other input expert'!L$13*'Sales price per sales channel'!$H10*'Other input expert'!L$6","v":0},{"$f":"AA10*'Other input expert'!M$13*'Sales price per sales channel'!$H10*'Other input expert'!M$6","v":0},null,{"$f":"P10*'Other input expert'!B$14*'Sales price per sales channel'!$I10*'Other input expert'!B$6","v":0},{"$f":"Q10*'Other input expert'!C$14*'Sales price per sales channel'!$I10*'Other input expert'!C$6","v":0},{"$f":"R10*'Other input expert'!D$14*'Sales price per sales channel'!$I10*'Other input expert'!D$6","v":0},{"$f":"S10*'Other input expert'!E$14*'Sales price per sales channel'!$I10*'Other input expert'!E$6","v":0},{"$f":"T10*'Other input expert'!F$14*'Sales price per sales channel'!$I10*'Other input expert'!F$6","v":0},{"$f":"U10*'Other input expert'!G$14*'Sales price per sales channel'!$I10*'Other input expert'!G$6","v":0},{"$f":"V10*'Other input expert'!H$14*'Sales price per sales channel'!$I10*'Other input expert'!H$6","v":0},{"$f":"W10*'Other input expert'!I$14*'Sales price per sales channel'!$I10*'Other input expert'!I$6","v":0},{"$f":"X10*'Other input expert'!J$14*'Sales price per sales channel'!$I10*'Other input expert'!J$6","v":0},{"$f":"Y10*'Other input expert'!K$14*'Sales price per sales channel'!$I10*'Other input expert'!K$6","v":0},{"$f":"Z10*'Other input expert'!L$14*'Sales price per sales channel'!$I10*'Other input expert'!L$6","v":0},{"$f":"AA10*'Other input expert'!M$14*'Sales price per sales channel'!$I10*'Other input expert'!M$6","v":0},null,{"$f":"AC10*'Other input expert'!B$12*'Sales price per sales channel'!$G10*'Other input expert'!B$7","v":0},{"$f":"AD10*'Other input expert'!C$12*'Sales price per sales channel'!$G10*'Other input expert'!C$7","v":0},{"$f":"AE10*'Other input expert'!D$12*'Sales price per sales channel'!$G10*'Other input expert'!D$7","v":0},{"$f":"AF10*'Other input expert'!E$12*'Sales price per sales channel'!$G10*'Other input expert'!E$7","v":0},{"$f":"AG10*'Other input expert'!F$12*'Sales price per sales channel'!$G10*'Other input expert'!F$7","v":0},{"$f":"AH10*'Other input expert'!G$12*'Sales price per sales channel'!$G10*'Other input expert'!G$7","v":0},{"$f":"AI10*'Other input expert'!H$12*'Sales price per sales channel'!$G10*'Other input expert'!H$7","v":0},{"$f":"AJ10*'Other input expert'!I$12*'Sales price per sales channel'!$G10*'Other input expert'!I$7","v":0},{"$f":"AK10*'Other input expert'!J$12*'Sales price per sales channel'!$G10*'Other input expert'!J$7","v":0},{"$f":"AL10*'Other input expert'!K$12*'Sales price per sales channel'!$G10*'Other input expert'!K$7","v":0},{"$f":"AM10*'Other input expert'!L$12*'Sales price per sales channel'!$G10*'Other input expert'!L$7","v":0},{"$f":"AN10*'Other input expert'!M$12*'Sales price per sales channel'!$G10*'Other input expert'!M$7","v":0},null,{"$f":"AC10*'Other input expert'!B$13*'Sales price per sales channel'!$H10*'Other input expert'!B$7","v":0},{"$f":"AD10*'Other input expert'!C$13*'Sales price per sales channel'!$H10*'Other input expert'!C$7","v":0},{"$f":"AE10*'Other input expert'!D$13*'Sales price per sales channel'!$H10*'Other input expert'!D$7","v":0},{"$f":"AF10*'Other input expert'!E$13*'Sales price per sales channel'!$H10*'Other input expert'!E$7","v":0},{"$f":"AG10*'Other input expert'!F$13*'Sales price per sales channel'!$H10*'Other input expert'!F$7","v":0},{"$f":"AH10*'Other input expert'!G$13*'Sales price per sales channel'!$H10*'Other input expert'!G$7","v":0},{"$f":"AI10*'Other input expert'!H$13*'Sales price per sales channel'!$H10*'Other input expert'!H$7","v":0},{"$f":"AJ10*'Other input expert'!I$13*'Sales price per sales channel'!$H10*'Other input expert'!I$7","v":0},{"$f":"AK10*'Other input expert'!J$13*'Sales price per sales channel'!$H10*'Other input expert'!J$7","v":0},{"$f":"AL10*'Other input expert'!K$13*'Sales price per sales channel'!$H10*'Other input expert'!K$7","v":0},{"$f":"AM10*'Other input expert'!L$13*'Sales price per sales channel'!$H10*'Other input expert'!L$7","v":0},{"$f":"AN10*'Other input expert'!M$13*'Sales price per sales channel'!$H10*'Other input expert'!M$7","v":0},null,{"$f":"AC10*'Other input expert'!B$14*'Sales price per sales channel'!$I10*'Other input expert'!B$7","v":0},{"$f":"AD10*'Other input expert'!C$14*'Sales price per sales channel'!$I10*'Other input expert'!C$7","v":0},{"$f":"AE10*'Other input expert'!D$14*'Sales price per sales channel'!$I10*'Other input expert'!D$7","v":0},{"$f":"AF10*'Other input expert'!E$14*'Sales price per sales channel'!$I10*'Other input expert'!E$7","v":0},{"$f":"AG10*'Other input expert'!F$14*'Sales price per sales channel'!$I10*'Other input expert'!F$7","v":0},{"$f":"AH10*'Other input expert'!G$14*'Sales price per sales channel'!$I10*'Other input expert'!G$7","v":0},{"$f":"AI10*'Other input expert'!H$14*'Sales price per sales channel'!$I10*'Other input expert'!H$7","v":0},{"$f":"AJ10*'Other input expert'!I$14*'Sales price per sales channel'!$I10*'Other input expert'!I$7","v":0},{"$f":"AK10*'Other input expert'!J$14*'Sales price per sales channel'!$I10*'Other input expert'!J$7","v":0},{"$f":"AL10*'Other input expert'!K$14*'Sales price per sales channel'!$I10*'Other input expert'!K$7","v":0},{"$f":"AM10*'Other input expert'!L$14*'Sales price per sales channel'!$I10*'Other input expert'!L$7","v":0},{"$f":"AN10*'Other input expert'!M$14*'Sales price per sales channel'!$I10*'Other input expert'!M$7","v":0},null,"Total sales",{"$f":"SUM(DQ4:DQ9)","v":0},{"$f":"SUM(DR4:DR9)","v":0},0,0,0,0,0,0,0,0,0,0]
["Actinidia komikta","Arctisch",{"$f":"Plantlist!$G11*'Production list'!D12*'Other input expert'!B$4*'Other input expert'!B$8","v":0},{"$f":"Plantlist!$G11*'Production list'!E12*'Other input expert'!C$4*'Other input expert'!C$8","v":0},{"$f":"Plantlist!$G11*'Production list'!F12*'Other input expert'!D$4*'Other input expert'!D$8","v":0},{"$f":"Plantlist!$G11*'Production list'!G12*'Other input expert'!E$4*'Other input expert'!E$8","v":0},{"$f":"Plantlist!$G11*'Production list'!H12*'Other input expert'!F$4*'Other input expert'!F$8","v":0},{"$f":"Plantlist!$G11*'Production list'!I12*'Other input expert'!G$4*'Other input expert'!G$8","v":0},{"$f":"Plantlist!$G11*'Production list'!J12*'Other input expert'!H$4*'Other input expert'!H$8","v":0},{"$f":"Plantlist!$G11*'Production list'!K12*'Other input expert'!I$4*'Other input expert'!I$8","v":0},{"$f":"Plantlist!$G11*'Production list'!L12*'Other input expert'!J$4*'Other input expert'!J$8","v":0},{"$f":"Plantlist!$G11*'Production list'!M12*'Other input expert'!K$4*'Other input expert'!K$8","v":0},{"$f":"Plantlist!$G11*'Production list'!N12*'Other input expert'!L$4*'Other input expert'!L$8","v":0},{"$f":"Plantlist!$G11*'Production list'!O12*'Other input expert'!M$4*'Other input expert'!M$8","v":0},null,{"$f":"C11*'Other input expert'!B$5","v":0},{"$f":"D11*'Other input expert'!C$5","v":0},{"$f":"E11*'Other input expert'!D$5","v":0},{"$f":"F11*'Other input expert'!E$5","v":0},{"$f":"G11*'Other input expert'!F$5","v":0},{"$f":"H11*'Other input expert'!G$5","v":0},{"$f":"I11*'Other input expert'!H$5","v":0},{"$f":"J11*'Other input expert'!I$5","v":0},{"$f":"K11*'Other input expert'!J$5","v":0},{"$f":"L11*'Other input expert'!K$5","v":0},{"$f":"M11*'Other input expert'!L$5","v":0},{"$f":"N11*'Other input expert'!M$5","v":0},null,{"$f":"C11*(100%-'Other input expert'!B$5)","v":0},{"$f":"D11*(100%-'Other input expert'!C$5)","v":0},{"$f":"E11*(100%-'Other input expert'!D$5)","v":0},{"$f":"F11*(100%-'Other input expert'!E$5)","v":0},{"$f":"G11*(100%-'Other input expert'!F$5)","v":0},{"$f":"H11*(100%-'Other input expert'!G$5)","v":0},{"$f":"I11*(100%-'Other input expert'!H$5)","v":0},{"$f":"J11*(100%-'Other input expert'!I$5)","v":0},{"$f":"K11*(100%-'Other input expert'!J$5)","v":0},{"$f":"L11*(100%-'Other input expert'!K$5)","v":0},{"$f":"M11*(100%-'Other input expert'!L$5)","v":0},{"$f":"N11*(100%-'Other input expert'!M$5)","v":0},null,{"$f":"P11*'Other input expert'!B$12*'Sales price per sales channel'!$G11*'Other input expert'!B$6","v":0},{"$f":"Q11*'Other input expert'!C$12*'Sales price per sales channel'!$G11*'Other input expert'!C$6","v":0},{"$f":"R11*'Other input expert'!D$12*'Sales price per sales channel'!$G11*'Other input expert'!D$6","v":0},{"$f":"S11*'Other input expert'!E$12*'Sales price per sales channel'!$G11*'Other input expert'!E$6","v":0},{"$f":"T11*'Other input expert'!F$12*'Sales price per sales channel'!$G11*'Other input expert'!F$6","v":0},{"$f":"U11*'Other input expert'!G$12*'Sales price per sales channel'!$G11*'Other input expert'!G$6","v":0},{"$f":"V11*'Other input expert'!H$12*'Sales price per sales channel'!$G11*'Other input expert'!H$6","v":0},{"$f":"W11*'Other input expert'!I$12*'Sales price per sales channel'!$G11*'Other input expert'!I$6","v":0},{"$f":"X11*'Other input expert'!J$12*'Sales price per sales channel'!$G11*'Other input expert'!J$6","v":0},{"$f":"Y11*'Other input expert'!K$12*'Sales price per sales channel'!$G11*'Other input expert'!K$6","v":0},{"$f":"Z11*'Other input expert'!L$12*'Sales price per sales channel'!$G11*'Other input expert'!L$6","v":0},{"$f":"AA11*'Other input expert'!M$12*'Sales price per sales channel'!$G11*'Other input expert'!M$6","v":0},null,{"$f":"P11*'Other input expert'!B$13*'Sales price per sales channel'!$H11*'Other input expert'!B$6","v":0},{"$f":"Q11*'Other input expert'!C$13*'Sales price per sales channel'!$H11*'Other input expert'!C$6","v":0},{"$f":"R11*'Other input expert'!D$13*'Sales price per sales channel'!$H11*'Other input expert'!D$6","v":0},{"$f":"S11*'Other input expert'!E$13*'Sales price per sales channel'!$H11*'Other input expert'!E$6","v":0},{"$f":"T11*'Other input expert'!F$13*'Sales price per sales channel'!$H11*'Other input expert'!F$6","v":0},{"$f":"U11*'Other input expert'!G$13*'Sales price per sales channel'!$H11*'Other input expert'!G$6","v":0},{"$f":"V11*'Other input expert'!H$13*'Sales price per sales channel'!$H11*'Other input expert'!H$6","v":0},{"$f":"W11*'Other input expert'!I$13*'Sales price per sales channel'!$H11*'Other input expert'!I$6","v":0},{"$f":"X11*'Other input expert'!J$13*'Sales price per sales channel'!$H11*'Other input expert'!J$6","v":0},{"$f":"Y11*'Other input expert'!K$13*'Sales price per sales channel'!$H11*'Other input expert'!K$6","v":0},{"$f":"Z11*'Other input expert'!L$13*'Sales price per sales channel'!$H11*'Other input expert'!L$6","v":0},{"$f":"AA11*'Other input expert'!M$13*'Sales price per sales channel'!$H11*'Other input expert'!M$6","v":0},null,{"$f":"P11*'Other input expert'!B$14*'Sales price per sales channel'!$I11*'Other input expert'!B$6","v":0},{"$f":"Q11*'Other input expert'!C$14*'Sales price per sales channel'!$I11*'Other input expert'!C$6","v":0},{"$f":"R11*'Other input expert'!D$14*'Sales price per sales channel'!$I11*'Other input expert'!D$6","v":0},{"$f":"S11*'Other input expert'!E$14*'Sales price per sales channel'!$I11*'Other input expert'!E$6","v":0},{"$f":"T11*'Other input expert'!F$14*'Sales price per sales channel'!$I11*'Other input expert'!F$6","v":0},{"$f":"U11*'Other input expert'!G$14*'Sales price per sales channel'!$I11*'Other input expert'!G$6","v":0},{"$f":"V11*'Other input expert'!H$14*'Sales price per sales channel'!$I11*'Other input expert'!H$6","v":0},{"$f":"W11*'Other input expert'!I$14*'Sales price per sales channel'!$I11*'Other input expert'!I$6","v":0},{"$f":"X11*'Other input expert'!J$14*'Sales price per sales channel'!$I11*'Other input expert'!J$6","v":0},{"$f":"Y11*'Other input expert'!K$14*'Sales price per sales channel'!$I11*'Other input expert'!K$6","v":0},{"$f":"Z11*'Other input expert'!L$14*'Sales price per sales channel'!$I11*'Other input expert'!L$6","v":0},{"$f":"AA11*'Other input expert'!M$14*'Sales price per sales channel'!$I11*'Other input expert'!M$6","v":0},null,{"$f":"AC11*'Other input expert'!B$12*'Sales price per sales channel'!$G11*'Other input expert'!B$7","v":0},{"$f":"AD11*'Other input expert'!C$12*'Sales price per sales channel'!$G11*'Other input expert'!C$7","v":0},{"$f":"AE11*'Other input expert'!D$12*'Sales price per sales channel'!$G11*'Other input expert'!D$7","v":0},{"$f":"AF11*'Other input expert'!E$12*'Sales price per sales channel'!$G11*'Other input expert'!E$7","v":0},{"$f":"AG11*'Other input expert'!F$12*'Sales price per sales channel'!$G11*'Other input expert'!F$7","v":0},{"$f":"AH11*'Other input expert'!G$12*'Sales price per sales channel'!$G11*'Other input expert'!G$7","v":0},{"$f":"AI11*'Other input expert'!H$12*'Sales price per sales channel'!$G11*'Other input expert'!H$7","v":0},{"$f":"AJ11*'Other input expert'!I$12*'Sales price per sales channel'!$G11*'Other input expert'!I$7","v":0},{"$f":"AK11*'Other input expert'!J$12*'Sales price per sales channel'!$G11*'Other input expert'!J$7","v":0},{"$f":"AL11*'Other input expert'!K$12*'Sales price per sales channel'!$G11*'Other input expert'!K$7","v":0},{"$f":"AM11*'Other input expert'!L$12*'Sales price per sales channel'!$G11*'Other input expert'!L$7","v":0},{"$f":"AN11*'Other input expert'!M$12*'Sales price per sales channel'!$G11*'Other input expert'!M$7","v":0},null,{"$f":"AC11*'Other input expert'!B$13*'Sales price per sales channel'!$H11*'Other input expert'!B$7","v":0},{"$f":"AD11*'Other input expert'!C$13*'Sales price per sales channel'!$H11*'Other input expert'!C$7","v":0},{"$f":"AE11*'Other input expert'!D$13*'Sales price per sales channel'!$H11*'Other input expert'!D$7","v":0},{"$f":"AF11*'Other input expert'!E$13*'Sales price per sales channel'!$H11*'Other input expert'!E$7","v":0},{"$f":"AG11*'Other input expert'!F$13*'Sales price per sales channel'!$H11*'Other input expert'!F$7","v":0},{"$f":"AH11*'Other input expert'!G$13*'Sales price per sales channel'!$H11*'Other input expert'!G$7","v":0},{"$f":"AI11*'Other input expert'!H$13*'Sales price per sales channel'!$H11*'Other input expert'!H$7","v":0},{"$f":"AJ11*'Other input expert'!I$13*'Sales price per sales channel'!$H11*'Other input expert'!I$7","v":0},{"$f":"AK11*'Other input expert'!J$13*'Sales price per sales channel'!$H11*'Other input expert'!J$7","v":0},{"$f":"AL11*'Other input expert'!K$13*'Sales price per sales channel'!$H11*'Other input expert'!K$7","v":0},{"$f":"AM11*'Other input expert'!L$13*'Sales price per sales channel'!$H11*'Other input expert'!L$7","v":0},{"$f":"AN11*'Other input expert'!M$13*'Sales price per sales channel'!$H11*'Other input expert'!M$7","v":0},null,{"$f":"AC11*'Other input expert'!B$14*'Sales price per sales channel'!$I11*'Other input expert'!B$7","v":0},{"$f":"AD11*'Other input expert'!C$14*'Sales price per sales channel'!$I11*'Other input expert'!C$7","v":0},{"$f":"AE11*'Other input expert'!D$14*'Sales price per sales channel'!$I11*'Other input expert'!D$7","v":0},{"$f":"AF11*'Other input expert'!E$14*'Sales price per sales channel'!$I11*'Other input expert'!E$7","v":0},{"$f":"AG11*'Other input expert'!F$14*'Sales price per sales channel'!$I11*'Other input expert'!F$7","v":0},{"$f":"AH11*'Other input expert'!G$14*'Sales price per sales channel'!$I11*'Other input expert'!G$7","v":0},{"$f":"AI11*'Other input expert'!H$14*'Sales price per sales channel'!$I11*'Other input expert'!H$7","v":0},{"$f":"AJ11*'Other input expert'!I$14*'Sales price per sales channel'!$I11*'Other input expert'!I$7","v":0},{"$f":"AK11*'Other input expert'!J$14*'Sales price per sales channel'!$I11*'Other input expert'!J$7","v":0},{"$f":"AL11*'Other input expert'!K$14*'Sales price per sales channel'!$I11*'Other input expert'!K$7","v":0},{"$f":"AM11*'Other input expert'!L$14*'Sales price per sales channel'!$I11*'Other input expert'!L$7","v":0},{"$f":"AN11*'Other input expert'!M$14*'Sales price per sales channel'!$I11*'Other input expert'!M$7","v":0}]
["Agaricus bisporus","Common white mushroom",{"$f":"Plantlist!$G12*'Production list'!D13*'Other input expert'!B$4*'Other input expert'!B$8","v":0},{"$f":"Plantlist!$G12*'Production list'!E13*'Other input expert'!C$4*'Other input expert'!C$8","v":0},{"$f":"Plantlist!$G12*'Production list'!F13*'Other input expert'!D$4*'Other input expert'!D$8","v":0},{"$f":"Plantlist!$G12*'Production list'!G13*'Other input expert'!E$4*'Other input expert'!E$8","v":0},{"$f":"Plantlist!$G12*'Production list'!H13*'Other input expert'!F$4*'Other input expert'!F$8","v":0},{"$f":"Plantlist!$G12*'Production list'!I13*'Other input expert'!G$4*'Other input expert'!G$8","v":0},{"$f":"Plantlist!$G12*'Production list'!J13*'Other input expert'!H$4*'Other input expert'!H$8","v":0},{"$f":"Plantlist!$G12*'Production list'!K13*'Other input expert'!I$4*'Other input expert'!I$8","v":0},{"$f":"Plantlist!$G12*'Production list'!L13*'Other input expert'!J$4*'Other input expert'!J$8","v":0},{"$f":"Plantlist!$G12*'Production list'!M13*'Other input expert'!K$4*'Other input expert'!K$8","v":0},{"$f":"Plantlist!$G12*'Production list'!N13*'Other input expert'!L$4*'Other input expert'!L$8","v":0},{"$f":"Plantlist!$G12*'Production list'!O13*'Other input expert'!M$4*'Other input expert'!M$8","v":0},null,{"$f":"C12*'Other input expert'!B$5","v":0},{"$f":"D12*'Other input expert'!C$5","v":0},{"$f":"E12*'Other input expert'!D$5","v":0},{"$f":"F12*'Other input expert'!E$5","v":0},{"$f":"G12*'Other input expert'!F$5","v":0},{"$f":"H12*'Other input expert'!G$5","v":0},{"$f":"I12*'Other input expert'!H$5","v":0},{"$f":"J12*'Other input expert'!I$5","v":0},{"$f":"K12*'Other input expert'!J$5","v":0},{"$f":"L12*'Other input expert'!K$5","v":0},{"$f":"M12*'Other input expert'!L$5","v":0},{"$f":"N12*'Other input expert'!M$5","v":0},null,{"$f":"C12*(100%-'Other input expert'!B$5)","v":0},{"$f":"D12*(100%-'Other input expert'!C$5)","v":0},{"$f":"E12*(100%-'Other input expert'!D$5)","v":0},{"$f":"F12*(100%-'Other input expert'!E$5)","v":0},{"$f":"G12*(100%-'Other input expert'!F$5)","v":0},{"$f":"H12*(100%-'Other input expert'!G$5)","v":0},{"$f":"I12*(100%-'Other input expert'!H$5)","v":0},{"$f":"J12*(100%-'Other input expert'!I$5)","v":0},{"$f":"K12*(100%-'Other input expert'!J$5)","v":0},{"$f":"L12*(100%-'Other input expert'!K$5)","v":0},{"$f":"M12*(100%-'Other input expert'!L$5)","v":0},{"$f":"N12*(100%-'Other input expert'!M$5)","v":0},null,{"$f":"P12*'Other input expert'!B$12*'Sales price per sales channel'!$G12*'Other input expert'!B$6","v":0},{"$f":"Q12*'Other input expert'!C$12*'Sales price per sales channel'!$G12*'Other input expert'!C$6","v":0},{"$f":"R12*'Other input expert'!D$12*'Sales price per sales channel'!$G12*'Other input expert'!D$6","v":0},{"$f":"S12*'Other input expert'!E$12*'Sales price per sales channel'!$G12*'Other input expert'!E$6","v":0},{"$f":"T12*'Other input expert'!F$12*'Sales price per sales channel'!$G12*'Other input expert'!F$6","v":0},{"$f":"U12*'Other input expert'!G$12*'Sales price per sales channel'!$G12*'Other input expert'!G$6","v":0},{"$f":"V12*'Other input expert'!H$12*'Sales price per sales channel'!$G12*'Other input expert'!H$6","v":0},{"$f":"W12*'Other input expert'!I$12*'Sales price per sales channel'!$G12*'Other input expert'!I$6","v":0},{"$f":"X12*'Other input expert'!J$12*'Sales price per sales channel'!$G12*'Other input expert'!J$6","v":0},{"$f":"Y12*'Other input expert'!K$12*'Sales price per sales channel'!$G12*'Other input expert'!K$6","v":0},{"$f":"Z12*'Other input expert'!L$12*'Sales price per sales channel'!$G12*'Other input expert'!L$6","v":0},{"$f":"AA12*'Other input expert'!M$12*'Sales price per sales channel'!$G12*'Other input expert'!M$6","v":0},null,{"$f":"P12*'Other input expert'!B$13*'Sales price per sales channel'!$H12*'Other input expert'!B$6","v":0},{"$f":"Q12*'Other input expert'!C$13*'Sales price per sales channel'!$H12*'Other input expert'!C$6","v":0},{"$f":"R12*'Other input expert'!D$13*'Sales price per sales channel'!$H12*'Other input expert'!D$6","v":0},{"$f":"S12*'Other input expert'!E$13*'Sales price per sales channel'!$H12*'Other input expert'!E$6","v":0},{"$f":"T12*'Other input expert'!F$13*'Sales price per sales channel'!$H12*'Other input expert'!F$6","v":0},{"$f":"U12*'Other input expert'!G$13*'Sales price per sales channel'!$H12*'Other input expert'!G$6","v":0},{"$f":"V12*'Other input expert'!H$13*'Sales price per sales channel'!$H12*'Other input expert'!H$6","v":0},{"$f":"W12*'Other input expert'!I$13*'Sales price per sales channel'!$H12*'Other input expert'!I$6","v":0},{"$f":"X12*'Other input expert'!J$13*'Sales price per sales channel'!$H12*'Other input expert'!J$6","v":0},{"$f":"Y12*'Other input expert'!K$13*'Sales price per sales channel'!$H12*'Other input expert'!K$6","v":0},{"$f":"Z12*'Other input expert'!L$13*'Sales price per sales channel'!$H12*'Other input expert'!L$6","v":0},{"$f":"AA12*'Other input expert'!M$13*'Sales price per sales channel'!$H12*'Other input expert'!M$6","v":0},null,{"$f":"P12*'Other input expert'!B$14*'Sales price per sales channel'!$I12*'Other input expert'!B$6","v":0},{"$f":"Q12*'Other input expert'!C$14*'Sales price per sales channel'!$I12*'Other input expert'!C$6","v":0},{"$f":"R12*'Other input expert'!D$14*'Sales price per sales channel'!$I12*'Other input expert'!D$6","v":0},{"$f":"S12*'Other input expert'!E$14*'Sales price per sales channel'!$I12*'Other input expert'!E$6","v":0},{"$f":"T12*'Other input expert'!F$14*'Sales price per sales channel'!$I12*'Other input expert'!F$6","v":0},{"$f":"U12*'Other input expert'!G$14*'Sales price per sales channel'!$I12*'Other input expert'!G$6","v":0},{"$f":"V12*'Other input expert'!H$14*'Sales price per sales channel'!$I12*'Other input expert'!H$6","v":0},{"$f":"W12*'Other input expert'!I$14*'Sales price per sales channel'!$I12*'Other input expert'!I$6","v":0},{"$f":"X12*'Other input expert'!J$14*'Sales price per sales channel'!$I12*'Other input expert'!J$6","v":0},{"$f":"Y12*'Other input expert'!K$14*'Sales price per sales channel'!$I12*'Other input expert'!K$6","v":0},{"$f":"Z12*'Other input expert'!L$14*'Sales price per sales channel'!$I12*'Other input expert'!L$6","v":0},{"$f":"AA12*'Other input expert'!M$14*'Sales price per sales channel'!$I12*'Other input expert'!M$6","v":0},null,{"$f":"AC12*'Other input expert'!B$12*'Sales price per sales channel'!$G12*'Other input expert'!B$7","v":0},{"$f":"AD12*'Other input expert'!C$12*'Sales price per sales channel'!$G12*'Other input expert'!C$7","v":0},{"$f":"AE12*'Other input expert'!D$12*'Sales price per sales channel'!$G12*'Other input expert'!D$7","v":0},{"$f":"AF12*'Other input expert'!E$12*'Sales price per sales channel'!$G12*'Other input expert'!E$7","v":0},{"$f":"AG12*'Other input expert'!F$12*'Sales price per sales channel'!$G12*'Other input expert'!F$7","v":0},{"$f":"AH12*'Other input expert'!G$12*'Sales price per sales channel'!$G12*'Other input expert'!G$7","v":0},{"$f":"AI12*'Other input expert'!H$12*'Sales price per sales channel'!$G12*'Other input expert'!H$7","v":0},{"$f":"AJ12*'Other input expert'!I$12*'Sales price per sales channel'!$G12*'Other input expert'!I$7","v":0},{"$f":"AK12*'Other input expert'!J$12*'Sales price per sales channel'!$G12*'Other input expert'!J$7","v":0},{"$f":"AL12*'Other input expert'!K$12*'Sales price per sales channel'!$G12*'Other input expert'!K$7","v":0},{"$f":"AM12*'Other input expert'!L$12*'Sales price per sales channel'!$G12*'Other input expert'!L$7","v":0},{"$f":"AN12*'Other input expert'!M$12*'Sales price per sales channel'!$G12*'Other input expert'!M$7","v":0},null,{"$f":"AC12*'Other input expert'!B$13*'Sales price per sales channel'!$H12*'Other input expert'!B$7","v":0},{"$f":"AD12*'Other input expert'!C$13*'Sales price per sales channel'!$H12*'Other input expert'!C$7","v":0},{"$f":"AE12*'Other input expert'!D$13*'Sales price per sales channel'!$H12*'Other input expert'!D$7","v":0},{"$f":"AF12*'Other input expert'!E$13*'Sales price per sales channel'!$H12*'Other input expert'!E$7","v":0},{"$f":"AG12*'Other input expert'!F$13*'Sales price per sales channel'!$H12*'Other input expert'!F$7","v":0},{"$f":"AH12*'Other input expert'!G$13*'Sales price per sales channel'!$H12*'Other input expert'!G$7","v":0},{"$f":"AI12*'Other input expert'!H$13*'Sales price per sales channel'!$H12*'Other input expert'!H$7","v":0},{"$f":"AJ12*'Other input expert'!I$13*'Sales price per sales channel'!$H12*'Other input expert'!I$7","v":0},{"$f":"AK12*'Other input expert'!J$13*'Sales price per sales channel'!$H12*'Other input expert'!J$7","v":0},{"$f":"AL12*'Other input expert'!K$13*'Sales price per sales channel'!$H12*'Other input expert'!K$7","v":0},{"$f":"AM12*'Other input expert'!L$13*'Sales price per sales channel'!$H12*'Other input expert'!L$7","v":0},{"$f":"AN12*'Other input expert'!M$13*'Sales price per sales channel'!$H12*'Other input expert'!M$7","v":0},null,{"$f":"AC12*'Other input expert'!B$14*'Sales price per sales channel'!$I12*'Other input expert'!B$7","v":0},{"$f":"AD12*'Other input expert'!C$14*'Sales price per sales channel'!$I12*'Other input expert'!C$7","v":0},{"$f":"AE12*'Other input expert'!D$14*'Sales price per sales channel'!$I12*'Other input expert'!D$7","v":0},{"$f":"AF12*'Other input expert'!E$14*'Sales price per sales channel'!$I12*'Other input expert'!E$7","v":0},{"$f":"AG12*'Other input expert'!F$14*'Sales price per sales channel'!$I12*'Other input expert'!F$7","v":0},{"$f":"AH12*'Other input expert'!G$14*'Sales price per sales channel'!$I12*'Other input expert'!G$7","v":0},{"$f":"AI12*'Other input expert'!H$14*'Sales price per sales channel'!$I12*'Other input expert'!H$7","v":0},{"$f":"AJ12*'Other input expert'!I$14*'Sales price per sales channel'!$I12*'Other input expert'!I$7","v":0},{"$f":"AK12*'Other input expert'!J$14*'Sales price per sales channel'!$I12*'Other input expert'!J$7","v":0},{"$f":"AL12*'Other input expert'!K$14*'Sales price per sales channel'!$I12*'Other input expert'!K$7","v":0},{"$f":"AM12*'Other input expert'!L$14*'Sales price per sales channel'!$I12*'Other input expert'!L$7","v":0},{"$f":"AN12*'Other input expert'!M$14*'Sales price per sales channel'!$I12*'Other input expert'!M$7","v":0}]
["Agastache foeniculum","Anise Hyssop",{"$f":"Plantlist!$G13*'Production list'!D14*'Other input expert'!B$4*'Other input expert'!B$8","v":0},{"$f":"Plantlist!$G13*'Production list'!E14*'Other input expert'!C$4*'Other input expert'!C$8","v":0},{"$f":"Plantlist!$G13*'Production list'!F14*'Other input expert'!D$4*'Other input expert'!D$8","v":0},{"$f":"Plantlist!$G13*'Production list'!G14*'Other input expert'!E$4*'Other input expert'!E$8","v":0},{"$f":"Plantlist!$G13*'Production list'!H14*'Other input expert'!F$4*'Other input expert'!F$8","v":0},{"$f":"Plantlist!$G13*'Production list'!I14*'Other input expert'!G$4*'Other input expert'!G$8","v":0},{"$f":"Plantlist!$G13*'Production list'!J14*'Other input expert'!H$4*'Other input expert'!H$8","v":0},{"$f":"Plantlist!$G13*'Production list'!K14*'Other input expert'!I$4*'Other input expert'!I$8","v":0},{"$f":"Plantlist!$G13*'Production list'!L14*'Other input expert'!J$4*'Other input expert'!J$8","v":0},{"$f":"Plantlist!$G13*'Production list'!M14*'Other input expert'!K$4*'Other input expert'!K$8","v":0},{"$f":"Plantlist!$G13*'Production list'!N14*'Other input expert'!L$4*'Other input expert'!L$8","v":0},{"$f":"Plantlist!$G13*'Production list'!O14*'Other input expert'!M$4*'Other input expert'!M$8","v":0},null,{"$f":"C13*'Other input expert'!B$5","v":0},{"$f":"D13*'Other input expert'!C$5","v":0},{"$f":"E13*'Other input expert'!D$5","v":0},{"$f":"F13*'Other input expert'!E$5","v":0},{"$f":"G13*'Other input expert'!F$5","v":0},{"$f":"H13*'Other input expert'!G$5","v":0},{"$f":"I13*'Other input expert'!H$5","v":0},{"$f":"J13*'Other input expert'!I$5","v":0},{"$f":"K13*'Other input expert'!J$5","v":0},{"$f":"L13*'Other input expert'!K$5","v":0},{"$f":"M13*'Other input expert'!L$5","v":0},{"$f":"N13*'Other input expert'!M$5","v":0},null,{"$f":"C13*(100%-'Other input expert'!B$5)","v":0},{"$f":"D13*(100%-'Other input expert'!C$5)","v":0},{"$f":"E13*(100%-'Other input expert'!D$5)","v":0},{"$f":"F13*(100%-'Other input expert'!E$5)","v":0},{"$f":"G13*(100%-'Other input expert'!F$5)","v":0},{"$f":"H13*(100%-'Other input expert'!G$5)","v":0},{"$f":"I13*(100%-'Other input expert'!H$5)","v":0},{"$f":"J13*(100%-'Other input expert'!I$5)","v":0},{"$f":"K13*(100%-'Other input expert'!J$5)","v":0},{"$f":"L13*(100%-'Other input expert'!K$5)","v":0},{"$f":"M13*(100%-'Other input expert'!L$5)","v":0},{"$f":"N13*(100%-'Other input expert'!M$5)","v":0},null,{"$f":"P13*'Other input expert'!B$12*'Sales price per sales channel'!$G13*'Other input expert'!B$6","v":0},{"$f":"Q13*'Other input expert'!C$12*'Sales price per sales channel'!$G13*'Other input expert'!C$6","v":0},{"$f":"R13*'Other input expert'!D$12*'Sales price per sales channel'!$G13*'Other input expert'!D$6","v":0},{"$f":"S13*'Other input expert'!E$12*'Sales price per sales channel'!$G13*'Other input expert'!E$6","v":0},{"$f":"T13*'Other input expert'!F$12*'Sales price per sales channel'!$G13*'Other input expert'!F$6","v":0},{"$f":"U13*'Other input expert'!G$12*'Sales price per sales channel'!$G13*'Other input expert'!G$6","v":0},{"$f":"V13*'Other input expert'!H$12*'Sales price per sales channel'!$G13*'Other input expert'!H$6","v":0},{"$f":"W13*'Other input expert'!I$12*'Sales price per sales channel'!$G13*'Other input expert'!I$6","v":0},{"$f":"X13*'Other input expert'!J$12*'Sales price per sales channel'!$G13*'Other input expert'!J$6","v":0},{"$f":"Y13*'Other input expert'!K$12*'Sales price per sales channel'!$G13*'Other input expert'!K$6","v":0},{"$f":"Z13*'Other input expert'!L$12*'Sales price per sales channel'!$G13*'Other input expert'!L$6","v":0},{"$f":"AA13*'Other input expert'!M$12*'Sales price per sales channel'!$G13*'Other input expert'!M$6","v":0},null,{"$f":"P13*'Other input expert'!B$13*'Sales price per sales channel'!$H13*'Other input expert'!B$6","v":0},{"$f":"Q13*'Other input expert'!C$13*'Sales price per sales channel'!$H13*'Other input expert'!C$6","v":0},{"$f":"R13*'Other input expert'!D$13*'Sales price per sales channel'!$H13*'Other input expert'!D$6","v":0},{"$f":"S13*'Other input expert'!E$13*'Sales price per sales channel'!$H13*'Other input expert'!E$6","v":0},{"$f":"T13*'Other input expert'!F$13*'Sales price per sales channel'!$H13*'Other input expert'!F$6","v":0},{"$f":"U13*'Other input expert'!G$13*'Sales price per sales channel'!$H13*'Other input expert'!G$6","v":0},{"$f":"V13*'Other input expert'!H$13*'Sales price per sales channel'!$H13*'Other input expert'!H$6","v":0},{"$f":"W13*'Other input expert'!I$13*'Sales price per sales channel'!$H13*'Other input expert'!I$6","v":0},{"$f":"X13*'Other input expert'!J$13*'Sales price per sales channel'!$H13*'Other input expert'!J$6","v":0},{"$f":"Y13*'Other input expert'!K$13*'Sales price per sales channel'!$H13*'Other input expert'!K$6","v":0},{"$f":"Z13*'Other input expert'!L$13*'Sales price per sales channel'!$H13*'Other input expert'!L$6","v":0},{"$f":"AA13*'Other input expert'!M$13*'Sales price per sales channel'!$H13*'Other input expert'!M$6","v":0},null,{"$f":"P13*'Other input expert'!B$14*'Sales price per sales channel'!$I13*'Other input expert'!B$6","v":0},{"$f":"Q13*'Other input expert'!C$14*'Sales price per sales channel'!$I13*'Other input expert'!C$6","v":0},{"$f":"R13*'Other input expert'!D$14*'Sales price per sales channel'!$I13*'Other input expert'!D$6","v":0},{"$f":"S13*'Other input expert'!E$14*'Sales price per sales channel'!$I13*'Other input expert'!E$6","v":0},{"$f":"T13*'Other input expert'!F$14*'Sales price per sales channel'!$I13*'Other input expert'!F$6","v":0},{"$f":"U13*'Other input expert'!G$14*'Sales price per sales channel'!$I13*'Other input expert'!G$6","v":0},{"$f":"V13*'Other input expert'!H$14*'Sales price per sales channel'!$I13*'Other input expert'!H$6","v":0},{"$f":"W13*'Other input expert'!I$14*'Sales price per sales channel'!$I13*'Other input expert'!I$6","v":0},{"$f":"X13*'Other input expert'!J$14*'Sales price per sales channel'!$I13*'Other input expert'!J$6","v":0},{"$f":"Y13*'Other input expert'!K$14*'Sales price per sales channel'!$I13*'Other input expert'!K$6","v":0},{"$f":"Z13*'Other input expert'!L$14*'Sales price per sales channel'!$I13*'Other input expert'!L$6","v":0},{"$f":"AA13*'Other input expert'!M$14*'Sales price per sales channel'!$I13*'Other input expert'!M$6","v":0},null,{"$f":"AC13*'Other input expert'!B$12*'Sales price per sales channel'!$G13*'Other input expert'!B$7","v":0},{"$f":"AD13*'Other input expert'!C$12*'Sales price per sales channel'!$G13*'Other input expert'!C$7","v":0},{"$f":"AE13*'Other input expert'!D$12*'Sales price per sales channel'!$G13*'Other input expert'!D$7","v":0},{"$f":"AF13*'Other input expert'!E$12*'Sales price per sales channel'!$G13*'Other input expert'!E$7","v":0},{"$f":"AG13*'Other input expert'!F$12*'Sales price per sales channel'!$G13*'Other input expert'!F$7","v":0},{"$f":"AH13*'Other input expert'!G$12*'Sales price per sales channel'!$G13*'Other input expert'!G$7","v":0},{"$f":"AI13*'Other input expert'!H$12*'Sales price per sales channel'!$G13*'Other input expert'!H$7","v":0},{"$f":"AJ13*'Other input expert'!I$12*'Sales price per sales channel'!$G13*'Other input expert'!I$7","v":0},{"$f":"AK13*'Other input expert'!J$12*'Sales price per sales channel'!$G13*'Other input expert'!J$7","v":0},{"$f":"AL13*'Other input expert'!K$12*'Sales price per sales channel'!$G13*'Other input expert'!K$7","v":0},{"$f":"AM13*'Other input expert'!L$12*'Sales price per sales channel'!$G13*'Other input expert'!L$7","v":0},{"$f":"AN13*'Other input expert'!M$12*'Sales price per sales channel'!$G13*'Other input expert'!M$7","v":0},null,{"$f":"AC13*'Other input expert'!B$13*'Sales price per sales channel'!$H13*'Other input expert'!B$7","v":0},{"$f":"AD13*'Other input expert'!C$13*'Sales price per sales channel'!$H13*'Other input expert'!C$7","v":0},{"$f":"AE13*'Other input expert'!D$13*'Sales price per sales channel'!$H13*'Other input expert'!D$7","v":0},{"$f":"AF13*'Other input expert'!E$13*'Sales price per sales channel'!$H13*'Other input expert'!E$7","v":0},{"$f":"AG13*'Other input expert'!F$13*'Sales price per sales channel'!$H13*'Other input expert'!F$7","v":0},{"$f":"AH13*'Other input expert'!G$13*'Sales price per sales channel'!$H13*'Other input expert'!G$7","v":0},{"$f":"AI13*'Other input expert'!H$13*'Sales price per sales channel'!$H13*'Other input expert'!H$7","v":0},{"$f":"AJ13*'Other input expert'!I$13*'Sales price per sales channel'!$H13*'Other input expert'!I$7","v":0},{"$f":"AK13*'Other input expert'!J$13*'Sales price per sales channel'!$H13*'Other input expert'!J$7","v":0},{"$f":"AL13*'Other input expert'!K$13*'Sales price per sales channel'!$H13*'Other input expert'!K$7","v":0},{"$f":"AM13*'Other input expert'!L$13*'Sales price per sales channel'!$H13*'Other input expert'!L$7","v":0},{"$f":"AN13*'Other input expert'!M$13*'Sales price per sales channel'!$H13*'Other input expert'!M$7","v":0},null,{"$f":"AC13*'Other input expert'!B$14*'Sales price per sales channel'!$I13*'Other input expert'!B$7","v":0},{"$f":"AD13*'Other input expert'!C$14*'Sales price per sales channel'!$I13*'Other input expert'!C$7","v":0},{"$f":"AE13*'Other input expert'!D$14*'Sales price per sales channel'!$I13*'Other input expert'!D$7","v":0},{"$f":"AF13*'Other input expert'!E$14*'Sales price per sales channel'!$I13*'Other input expert'!E$7","v":0},{"$f":"AG13*'Other input expert'!F$14*'Sales price per sales channel'!$I13*'Other input expert'!F$7","v":0},{"$f":"AH13*'Other input expert'!G$14*'Sales price per sales channel'!$I13*'Other input expert'!G$7","v":0},{"$f":"AI13*'Other input expert'!H$14*'Sales price per sales channel'!$I13*'Other input expert'!H$7","v":0},{"$f":"AJ13*'Other input expert'!I$14*'Sales price per sales channel'!$I13*'Other input expert'!I$7","v":0},{"$f":"AK13*'Other input expert'!J$14*'Sales price per sales channel'!$I13*'Other input expert'!J$7","v":0},{"$f":"AL13*'Other input expert'!K$14*'Sales price per sales channel'!$I13*'Other input expert'!K$7","v":0},{"$f":"AM13*'Other input expert'!L$14*'Sales price per sales channel'!$I13*'Other input expert'!L$7","v":0},{"$f":"AN13*'Other input expert'!M$14*'Sales price per sales channel'!$I13*'Other input expert'!M$7","v":0}]
["Akebia quinata","Chocolate vine",{"$f":"Plantlist!$G14*'Production list'!D15*'Other input expert'!B$4*'Other input expert'!B$8","v":0},{"$f":"Plantlist!$G14*'Production list'!E15*'Other input expert'!C$4*'Other input expert'!C$8","v":0},{"$f":"Plantlist!$G14*'Production list'!F15*'Other input expert'!D$4*'Other input expert'!D$8","v":0},{"$f":"Plantlist!$G14*'Production list'!G15*'Other input expert'!E$4*'Other input expert'!E$8","v":0},{"$f":"Plantlist!$G14*'Production list'!H15*'Other input expert'!F$4*'Other input expert'!F$8","v":0},{"$f":"Plantlist!$G14*'Production list'!I15*'Other input expert'!G$4*'Other input expert'!G$8","v":0},{"$f":"Plantlist!$G14*'Production list'!J15*'Other input expert'!H$4*'Other input expert'!H$8","v":0},{"$f":"Plantlist!$G14*'Production list'!K15*'Other input expert'!I$4*'Other input expert'!I$8","v":0},{"$f":"Plantlist!$G14*'Production list'!L15*'Other input expert'!J$4*'Other input expert'!J$8","v":0},{"$f":"Plantlist!$G14*'Production list'!M15*'Other input expert'!K$4*'Other input expert'!K$8","v":0},{"$f":"Plantlist!$G14*'Production list'!N15*'Other input expert'!L$4*'Other input expert'!L$8","v":0},{"$f":"Plantlist!$G14*'Production list'!O15*'Other input expert'!M$4*'Other input expert'!M$8","v":0},null,{"$f":"C14*'Other input expert'!B$5","v":0},{"$f":"D14*'Other input expert'!C$5","v":0},{"$f":"E14*'Other input expert'!D$5","v":0},{"$f":"F14*'Other input expert'!E$5","v":0},{"$f":"G14*'Other input expert'!F$5","v":0},{"$f":"H14*'Other input expert'!G$5","v":0},{"$f":"I14*'Other input expert'!H$5","v":0},{"$f":"J14*'Other input expert'!I$5","v":0},{"$f":"K14*'Other input expert'!J$5","v":0},{"$f":"L14*'Other input expert'!K$5","v":0},{"$f":"M14*'Other input expert'!L$5","v":0},{"$f":"N14*'Other input expert'!M$5","v":0},null,{"$f":"C14*(100%-'Other input expert'!B$5)","v":0},{"$f":"D14*(100%-'Other input expert'!C$5)","v":0},{"$f":"E14*(100%-'Other input expert'!D$5)","v":0},{"$f":"F14*(100%-'Other input expert'!E$5)","v":0},{"$f":"G14*(100%-'Other input expert'!F$5)","v":0},{"$f":"H14*(100%-'Other input expert'!G$5)","v":0},{"$f":"I14*(100%-'Other input expert'!H$5)","v":0},{"$f":"J14*(100%-'Other input expert'!I$5)","v":0},{"$f":"K14*(100%-'Other input expert'!J$5)","v":0},{"$f":"L14*(100%-'Other input expert'!K$5)","v":0},{"$f":"M14*(100%-'Other input expert'!L$5)","v":0},{"$f":"N14*(100%-'Other input expert'!M$5)","v":0},null,{"$f":"P14*'Other input expert'!B$12*'Sales price per sales channel'!$G14*'Other input expert'!B$6","v":0},{"$f":"Q14*'Other input expert'!C$12*'Sales price per sales channel'!$G14*'Other input expert'!C$6","v":0},{"$f":"R14*'Other input expert'!D$12*'Sales price per sales channel'!$G14*'Other input expert'!D$6","v":0},{"$f":"S14*'Other input expert'!E$12*'Sales price per sales channel'!$G14*'Other input expert'!E$6","v":0},{"$f":"T14*'Other input expert'!F$12*'Sales price per sales channel'!$G14*'Other input expert'!F$6","v":0},{"$f":"U14*'Other input expert'!G$12*'Sales price per sales channel'!$G14*'Other input expert'!G$6","v":0},{"$f":"V14*'Other input expert'!H$12*'Sales price per sales channel'!$G14*'Other input expert'!H$6","v":0},{"$f":"W14*'Other input expert'!I$12*'Sales price per sales channel'!$G14*'Other input expert'!I$6","v":0},{"$f":"X14*'Other input expert'!J$12*'Sales price per sales channel'!$G14*'Other input expert'!J$6","v":0},{"$f":"Y14*'Other input expert'!K$12*'Sales price per sales channel'!$G14*'Other input expert'!K$6","v":0},{"$f":"Z14*'Other input expert'!L$12*'Sales price per sales channel'!$G14*'Other input expert'!L$6","v":0},{"$f":"AA14*'Other input expert'!M$12*'Sales price per sales channel'!$G14*'Other input expert'!M$6","v":0},null,{"$f":"P14*'Other input expert'!B$13*'Sales price per sales channel'!$H14*'Other input expert'!B$6","v":0},{"$f":"Q14*'Other input expert'!C$13*'Sales price per sales channel'!$H14*'Other input expert'!C$6","v":0},{"$f":"R14*'Other input expert'!D$13*'Sales price per sales channel'!$H14*'Other input expert'!D$6","v":0},{"$f":"S14*'Other input expert'!E$13*'Sales price per sales channel'!$H14*'Other input expert'!E$6","v":0},{"$f":"T14*'Other input expert'!F$13*'Sales price per sales channel'!$H14*'Other input expert'!F$6","v":0},{"$f":"U14*'Other input expert'!G$13*'Sales price per sales channel'!$H14*'Other input expert'!G$6","v":0},{"$f":"V14*'Other input expert'!H$13*'Sales price per sales channel'!$H14*'Other input expert'!H$6","v":0},{"$f":"W14*'Other input expert'!I$13*'Sales price per sales channel'!$H14*'Other input expert'!I$6","v":0},{"$f":"X14*'Other input expert'!J$13*'Sales price per sales channel'!$H14*'Other input expert'!J$6","v":0},{"$f":"Y14*'Other input expert'!K$13*'Sales price per sales channel'!$H14*'Other input expert'!K$6","v":0},{"$f":"Z14*'Other input expert'!L$13*'Sales price per sales channel'!$H14*'Other input expert'!L$6","v":0},{"$f":"AA14*'Other input expert'!M$13*'Sales price per sales channel'!$H14*'Other input expert'!M$6","v":0},null,{"$f":"P14*'Other input expert'!B$14*'Sales price per sales channel'!$I14*'Other input expert'!B$6","v":0},{"$f":"Q14*'Other input expert'!C$14*'Sales price per sales channel'!$I14*'Other input expert'!C$6","v":0},{"$f":"R14*'Other input expert'!D$14*'Sales price per sales channel'!$I14*'Other input expert'!D$6","v":0},{"$f":"S14*'Other input expert'!E$14*'Sales price per sales channel'!$I14*'Other input expert'!E$6","v":0},{"$f":"T14*'Other input expert'!F$14*'Sales price per sales channel'!$I14*'Other input expert'!F$6","v":0},{"$f":"U14*'Other input expert'!G$14*'Sales price per sales channel'!$I14*'Other input expert'!G$6","v":0},{"$f":"V14*'Other input expert'!H$14*'Sales price per sales channel'!$I14*'Other input expert'!H$6","v":0},{"$f":"W14*'Other input expert'!I$14*'Sales price per sales channel'!$I14*'Other input expert'!I$6","v":0},{"$f":"X14*'Other input expert'!J$14*'Sales price per sales channel'!$I14*'Other input expert'!J$6","v":0},{"$f":"Y14*'Other input expert'!K$14*'Sales price per sales channel'!$I14*'Other input expert'!K$6","v":0},{"$f":"Z14*'Other input expert'!L$14*'Sales price per sales channel'!$I14*'Other input expert'!L$6","v":0},{"$f":"AA14*'Other input expert'!M$14*'Sales price per sales channel'!$I14*'Other input expert'!M$6","v":0},null,{"$f":"AC14*'Other input expert'!B$12*'Sales price per sales channel'!$G14*'Other input expert'!B$7","v":0},{"$f":"AD14*'Other input expert'!C$12*'Sales price per sales channel'!$G14*'Other input expert'!C$7","v":0},{"$f":"AE14*'Other input expert'!D$12*'Sales price per sales channel'!$G14*'Other input expert'!D$7","v":0},{"$f":"AF14*'Other input expert'!E$12*'Sales price per sales channel'!$G14*'Other input expert'!E$7","v":0},{"$f":"AG14*'Other input expert'!F$12*'Sales price per sales channel'!$G14*'Other input expert'!F$7","v":0},{"$f":"AH14*'Other input expert'!G$12*'Sales price per sales channel'!$G14*'Other input expert'!G$7","v":0},{"$f":"AI14*'Other input expert'!H$12*'Sales price per sales channel'!$G14*'Other input expert'!H$7","v":0},{"$f":"AJ14*'Other input expert'!I$12*'Sales price per sales channel'!$G14*'Other input expert'!I$7","v":0},{"$f":"AK14*'Other input expert'!J$12*'Sales price per sales channel'!$G14*'Other input expert'!J$7","v":0},{"$f":"AL14*'Other input expert'!K$12*'Sales price per sales channel'!$G14*'Other input expert'!K$7","v":0},{"$f":"AM14*'Other input expert'!L$12*'Sales price per sales channel'!$G14*'Other input expert'!L$7","v":0},{"$f":"AN14*'Other input expert'!M$12*'Sales price per sales channel'!$G14*'Other input expert'!M$7","v":0},null,{"$f":"AC14*'Other input expert'!B$13*'Sales price per sales channel'!$H14*'Other input expert'!B$7","v":0},{"$f":"AD14*'Other input expert'!C$13*'Sales price per sales channel'!$H14*'Other input expert'!C$7","v":0},{"$f":"AE14*'Other input expert'!D$13*'Sales price per sales channel'!$H14*'Other input expert'!D$7","v":0},{"$f":"AF14*'Other input expert'!E$13*'Sales price per sales channel'!$H14*'Other input expert'!E$7","v":0},{"$f":"AG14*'Other input expert'!F$13*'Sales price per sales channel'!$H14*'Other input expert'!F$7","v":0},{"$f":"AH14*'Other input expert'!G$13*'Sales price per sales channel'!$H14*'Other input expert'!G$7","v":0},{"$f":"AI14*'Other input expert'!H$13*'Sales price per sales channel'!$H14*'Other input expert'!H$7","v":0},{"$f":"AJ14*'Other input expert'!I$13*'Sales price per sales channel'!$H14*'Other input expert'!I$7","v":0},{"$f":"AK14*'Other input expert'!J$13*'Sales price per sales channel'!$H14*'Other input expert'!J$7","v":0},{"$f":"AL14*'Other input expert'!K$13*'Sales price per sales channel'!$H14*'Other input expert'!K$7","v":0},{"$f":"AM14*'Other input expert'!L$13*'Sales price per sales channel'!$H14*'Other input expert'!L$7","v":0},{"$f":"AN14*'Other input expert'!M$13*'Sales price per sales channel'!$H14*'Other input expert'!M$7","v":0},null,{"$f":"AC14*'Other input expert'!B$14*'Sales price per sales channel'!$I14*'Other input expert'!B$7","v":0},{"$f":"AD14*'Other input expert'!C$14*'Sales price per sales channel'!$I14*'Other input expert'!C$7","v":0},{"$f":"AE14*'Other input expert'!D$14*'Sales price per sales channel'!$I14*'Other input expert'!D$7","v":0},{"$f":"AF14*'Other input expert'!E$14*'Sales price per sales channel'!$I14*'Other input expert'!E$7","v":0},{"$f":"AG14*'Other input expert'!F$14*'Sales price per sales channel'!$I14*'Other input expert'!F$7","v":0},{"$f":"AH14*'Other input expert'!G$14*'Sales price per sales channel'!$I14*'Other input expert'!G$7","v":0},{"$f":"AI14*'Other input expert'!H$14*'Sales price per sales channel'!$I14*'Other input expert'!H$7","v":0},{"$f":"AJ14*'Other input expert'!I$14*'Sales price per sales channel'!$I14*'Other input expert'!I$7","v":0},{"$f":"AK14*'Other input expert'!J$14*'Sales price per sales channel'!$I14*'Other input expert'!J$7","v":0},{"$f":"AL14*'Other input expert'!K$14*'Sales price per sales channel'!$I14*'Other input expert'!K$7","v":0},{"$f":"AM14*'Other input expert'!L$14*'Sales price per sales channel'!$I14*'Other input expert'!L$7","v":0},{"$f":"AN14*'Other input expert'!M$14*'Sales price per sales channel'!$I14*'Other input expert'!M$7","v":0}]
["Alcea ficifolia","Hollyhocks",{"$f":"Plantlist!$G15*'Production list'!D16*'Other input expert'!B$4*'Other input expert'!B$8","v":0},{"$f":"Plantlist!$G15*'Production list'!E16*'Other input expert'!C$4*'Other input expert'!C$8","v":0},{"$f":"Plantlist!$G15*'Production list'!F16*'Other input expert'!D$4*'Other input expert'!D$8","v":0},{"$f":"Plantlist!$G15*'Production list'!G16*'Other input expert'!E$4*'Other input expert'!E$8","v":0},{"$f":"Plantlist!$G15*'Production list'!H16*'Other input expert'!F$4*'Other input expert'!F$8","v":0},{"$f":"Plantlist!$G15*'Production list'!I16*'Other input expert'!G$4*'Other input expert'!G$8","v":0},{"$f":"Plantlist!$G15*'Production list'!J16*'Other input expert'!H$4*'Other input expert'!H$8","v":0},{"$f":"Plantlist!$G15*'Production list'!K16*'Other input expert'!I$4*'Other input expert'!I$8","v":0},{"$f":"Plantlist!$G15*'Production list'!L16*'Other input expert'!J$4*'Other input expert'!J$8","v":0},{"$f":"Plantlist!$G15*'Production list'!M16*'Other input expert'!K$4*'Other input expert'!K$8","v":0},{"$f":"Plantlist!$G15*'Production list'!N16*'Other input expert'!L$4*'Other input expert'!L$8","v":0},{"$f":"Plantlist!$G15*'Production list'!O16*'Other input expert'!M$4*'Other input expert'!M$8","v":0},null,{"$f":"C15*'Other input expert'!B$5","v":0},{"$f":"D15*'Other input expert'!C$5","v":0},{"$f":"E15*'Other input expert'!D$5","v":0},{"$f":"F15*'Other input expert'!E$5","v":0},{"$f":"G15*'Other input expert'!F$5","v":0},{"$f":"H15*'Other input expert'!G$5","v":0},{"$f":"I15*'Other input expert'!H$5","v":0},{"$f":"J15*'Other input expert'!I$5","v":0},{"$f":"K15*'Other input expert'!J$5","v":0},{"$f":"L15*'Other input expert'!K$5","v":0},{"$f":"M15*'Other input expert'!L$5","v":0},{"$f":"N15*'Other input expert'!M$5","v":0},null,{"$f":"C15*(100%-'Other input expert'!B$5)","v":0},{"$f":"D15*(100%-'Other input expert'!C$5)","v":0},{"$f":"E15*(100%-'Other input expert'!D$5)","v":0},{"$f":"F15*(100%-'Other input expert'!E$5)","v":0},{"$f":"G15*(100%-'Other input expert'!F$5)","v":0},{"$f":"H15*(100%-'Other input expert'!G$5)","v":0},{"$f":"I15*(100%-'Other input expert'!H$5)","v":0},{"$f":"J15*(100%-'Other input expert'!I$5)","v":0},{"$f":"K15*(100%-'Other input expert'!J$5)","v":0},{"$f":"L15*(100%-'Other input expert'!K$5)","v":0},{"$f":"M15*(100%-'Other input expert'!L$5)","v":0},{"$f":"N15*(100%-'Other input expert'!M$5)","v":0},null,{"$f":"P15*'Other input expert'!B$12*'Sales price per sales channel'!$G15*'Other input expert'!B$6","v":0},{"$f":"Q15*'Other input expert'!C$12*'Sales price per sales channel'!$G15*'Other input expert'!C$6","v":0},{"$f":"R15*'Other input expert'!D$12*'Sales price per sales channel'!$G15*'Other input expert'!D$6","v":0},{"$f":"S15*'Other input expert'!E$12*'Sales price per sales channel'!$G15*'Other input expert'!E$6","v":0},{"$f":"T15*'Other input expert'!F$12*'Sales price per sales channel'!$G15*'Other input expert'!F$6","v":0},{"$f":"U15*'Other input expert'!G$12*'Sales price per sales channel'!$G15*'Other input expert'!G$6","v":0},{"$f":"V15*'Other input expert'!H$12*'Sales price per sales channel'!$G15*'Other input expert'!H$6","v":0},{"$f":"W15*'Other input expert'!I$12*'Sales price per sales channel'!$G15*'Other input expert'!I$6","v":0},{"$f":"X15*'Other input expert'!J$12*'Sales price per sales channel'!$G15*'Other input expert'!J$6","v":0},{"$f":"Y15*'Other input expert'!K$12*'Sales price per sales channel'!$G15*'Other input expert'!K$6","v":0},{"$f":"Z15*'Other input expert'!L$12*'Sales price per sales channel'!$G15*'Other input expert'!L$6","v":0},{"$f":"AA15*'Other input expert'!M$12*'Sales price per sales channel'!$G15*'Other input expert'!M$6","v":0},null,{"$f":"P15*'Other input expert'!B$13*'Sales price per sales channel'!$H15*'Other input expert'!B$6","v":0},{"$f":"Q15*'Other input expert'!C$13*'Sales price per sales channel'!$H15*'Other input expert'!C$6","v":0},{"$f":"R15*'Other input expert'!D$13*'Sales price per sales channel'!$H15*'Other input expert'!D$6","v":0},{"$f":"S15*'Other input expert'!E$13*'Sales price per sales channel'!$H15*'Other input expert'!E$6","v":0},{"$f":"T15*'Other input expert'!F$13*'Sales price per sales channel'!$H15*'Other input expert'!F$6","v":0},{"$f":"U15*'Other input expert'!G$13*'Sales price per sales channel'!$H15*'Other input expert'!G$6","v":0},{"$f":"V15*'Other input expert'!H$13*'Sales price per sales channel'!$H15*'Other input expert'!H$6","v":0},{"$f":"W15*'Other input expert'!I$13*'Sales price per sales channel'!$H15*'Other input expert'!I$6","v":0},{"$f":"X15*'Other input expert'!J$13*'Sales price per sales channel'!$H15*'Other input expert'!J$6","v":0},{"$f":"Y15*'Other input expert'!K$13*'Sales price per sales channel'!$H15*'Other input expert'!K$6","v":0},{"$f":"Z15*'Other input expert'!L$13*'Sales price per sales channel'!$H15*'Other input expert'!L$6","v":0},{"$f":"AA15*'Other input expert'!M$13*'Sales price per sales channel'!$H15*'Other input expert'!M$6","v":0},null,{"$f":"P15*'Other input expert'!B$14*'Sales price per sales channel'!$I15*'Other input expert'!B$6","v":0},{"$f":"Q15*'Other input expert'!C$14*'Sales price per sales channel'!$I15*'Other input expert'!C$6","v":0},{"$f":"R15*'Other input expert'!D$14*'Sales price per sales channel'!$I15*'Other input expert'!D$6","v":0},{"$f":"S15*'Other input expert'!E$14*'Sales price per sales channel'!$I15*'Other input expert'!E$6","v":0},{"$f":"T15*'Other input expert'!F$14*'Sales price per sales channel'!$I15*'Other input expert'!F$6","v":0},{"$f":"U15*'Other input expert'!G$14*'Sales price per sales channel'!$I15*'Other input expert'!G$6","v":0},{"$f":"V15*'Other input expert'!H$14*'Sales price per sales channel'!$I15*'Other input expert'!H$6","v":0},{"$f":"W15*'Other input expert'!I$14*'Sales price per sales channel'!$I15*'Other input expert'!I$6","v":0},{"$f":"X15*'Other input expert'!J$14*'Sales price per sales channel'!$I15*'Other input expert'!J$6","v":0},{"$f":"Y15*'Other input expert'!K$14*'Sales price per sales channel'!$I15*'Other input expert'!K$6","v":0},{"$f":"Z15*'Other input expert'!L$14*'Sales price per sales channel'!$I15*'Other input expert'!L$6","v":0},{"$f":"AA15*'Other input expert'!M$14*'Sales price per sales channel'!$I15*'Other input expert'!M$6","v":0},null,{"$f":"AC15*'Other input expert'!B$12*'Sales price per sales channel'!$G15*'Other input expert'!B$7","v":0},{"$f":"AD15*'Other input expert'!C$12*'Sales price per sales channel'!$G15*'Other input expert'!C$7","v":0},{"$f":"AE15*'Other input expert'!D$12*'Sales price per sales channel'!$G15*'Other input expert'!D$7","v":0},{"$f":"AF15*'Other input expert'!E$12*'Sales price per sales channel'!$G15*'Other input expert'!E$7","v":0},{"$f":"AG15*'Other input expert'!F$12*'Sales price per sales channel'!$G15*'Other input expert'!F$7","v":0},{"$f":"AH15*'Other input expert'!G$12*'Sales price per sales channel'!$G15*'Other input expert'!G$7","v":0},{"$f":"AI15*'Other input expert'!H$12*'Sales price per sales channel'!$G15*'Other input expert'!H$7","v":0},{"$f":"AJ15*'Other input expert'!I$12*'Sales price per sales channel'!$G15*'Other input expert'!I$7","v":0},{"$f":"AK15*'Other input expert'!J$12*'Sales price per sales channel'!$G15*'Other input expert'!J$7","v":0},{"$f":"AL15*'Other input expert'!K$12*'Sales price per sales channel'!$G15*'Other input expert'!K$7","v":0},{"$f":"AM15*'Other input expert'!L$12*'Sales price per sales channel'!$G15*'Other input expert'!L$7","v":0},{"$f":"AN15*'Other input expert'!M$12*'Sales price per sales channel'!$G15*'Other input expert'!M$7","v":0},null,{"$f":"AC15*'Other input expert'!B$13*'Sales price per sales channel'!$H15*'Other input expert'!B$7","v":0},{"$f":"AD15*'Other input expert'!C$13*'Sales price per sales channel'!$H15*'Other input expert'!C$7","v":0},{"$f":"AE15*'Other input expert'!D$13*'Sales price per sales channel'!$H15*'Other input expert'!D$7","v":0},{"$f":"AF15*'Other input expert'!E$13*'Sales price per sales channel'!$H15*'Other input expert'!E$7","v":0},{"$f":"AG15*'Other input expert'!F$13*'Sales price per sales channel'!$H15*'Other input expert'!F$7","v":0},{"$f":"AH15*'Other input expert'!G$13*'Sales price per sales channel'!$H15*'Other input expert'!G$7","v":0},{"$f":"AI15*'Other input expert'!H$13*'Sales price per sales channel'!$H15*'Other input expert'!H$7","v":0},{"$f":"AJ15*'Other input expert'!I$13*'Sales price per sales channel'!$H15*'Other input expert'!I$7","v":0},{"$f":"AK15*'Other input expert'!J$13*'Sales price per sales channel'!$H15*'Other input expert'!J$7","v":0},{"$f":"AL15*'Other input expert'!K$13*'Sales price per sales channel'!$H15*'Other input expert'!K$7","v":0},{"$f":"AM15*'Other input expert'!L$13*'Sales price per sales channel'!$H15*'Other input expert'!L$7","v":0},{"$f":"AN15*'Other input expert'!M$13*'Sales price per sales channel'!$H15*'Other input expert'!M$7","v":0},null,{"$f":"AC15*'Other input expert'!B$14*'Sales price per sales channel'!$I15*'Other input expert'!B$7","v":0},{"$f":"AD15*'Other input expert'!C$14*'Sales price per sales channel'!$I15*'Other input expert'!C$7","v":0},{"$f":"AE15*'Other input expert'!D$14*'Sales price per sales channel'!$I15*'Other input expert'!D$7","v":0},{"$f":"AF15*'Other input expert'!E$14*'Sales price per sales channel'!$I15*'Other input expert'!E$7","v":0},{"$f":"AG15*'Other input expert'!F$14*'Sales price per sales channel'!$I15*'Other input expert'!F$7","v":0},{"$f":"AH15*'Other input expert'!G$14*'Sales price per sales channel'!$I15*'Other input expert'!G$7","v":0},{"$f":"AI15*'Other input expert'!H$14*'Sales price per sales channel'!$I15*'Other input expert'!H$7","v":0},{"$f":"AJ15*'Other input expert'!I$14*'Sales price per sales channel'!$I15*'Other input expert'!I$7","v":0},{"$f":"AK15*'Other input expert'!J$14*'Sales price per sales channel'!$I15*'Other input expert'!J$7","v":0},{"$f":"AL15*'Other input expert'!K$14*'Sales price per sales channel'!$I15*'Other input expert'!K$7","v":0},{"$f":"AM15*'Other input expert'!L$14*'Sales price per sales channel'!$I15*'Other input expert'!L$7","v":0},{"$f":"AN15*'Other input expert'!M$14*'Sales price per sales channel'!$I15*'Other input expert'!M$7","v":0}]
["Alchemilla xanthochlora","Lady's mantle",{"$f":"Plantlist!$G16*'Production list'!D17*'Other input expert'!B$4*'Other input expert'!B$8","v":0},{"$f":"Plantlist!$G16*'Production list'!E17*'Other input expert'!C$4*'Other input expert'!C$8","v":0},{"$f":"Plantlist!$G16*'Production list'!F17*'Other input expert'!D$4*'Other input expert'!D$8","v":0},{"$f":"Plantlist!$G16*'Production list'!G17*'Other input expert'!E$4*'Other input expert'!E$8","v":0},{"$f":"Plantlist!$G16*'Production list'!H17*'Other input expert'!F$4*'Other input expert'!F$8","v":0},{"$f":"Plantlist!$G16*'Production list'!I17*'Other input expert'!G$4*'Other input expert'!G$8","v":0},{"$f":"Plantlist!$G16*'Production list'!J17*'Other input expert'!H$4*'Other input expert'!H$8","v":0},{"$f":"Plantlist!$G16*'Production list'!K17*'Other input expert'!I$4*'Other input expert'!I$8","v":0},{"$f":"Plantlist!$G16*'Production list'!L17*'Other input expert'!J$4*'Other input expert'!J$8","v":0},{"$f":"Plantlist!$G16*'Production list'!M17*'Other input expert'!K$4*'Other input expert'!K$8","v":0},{"$f":"Plantlist!$G16*'Production list'!N17*'Other input expert'!L$4*'Other input expert'!L$8","v":0},{"$f":"Plantlist!$G16*'Production list'!O17*'Other input expert'!M$4*'Other input expert'!M$8","v":0},null,{"$f":"C16*'Other input expert'!B$5","v":0},{"$f":"D16*'Other input expert'!C$5","v":0},{"$f":"E16*'Other input expert'!D$5","v":0},{"$f":"F16*'Other input expert'!E$5","v":0},{"$f":"G16*'Other input expert'!F$5","v":0},{"$f":"H16*'Other input expert'!G$5","v":0},{"$f":"I16*'Other input expert'!H$5","v":0},{"$f":"J16*'Other input expert'!I$5","v":0},{"$f":"K16*'Other input expert'!J$5","v":0},{"$f":"L16*'Other input expert'!K$5","v":0},{"$f":"M16*'Other input expert'!L$5","v":0},{"$f":"N16*'Other input expert'!M$5","v":0},null,{"$f":"C16*(100%-'Other input expert'!B$5)","v":0},{"$f":"D16*(100%-'Other input expert'!C$5)","v":0},{"$f":"E16*(100%-'Other input expert'!D$5)","v":0},{"$f":"F16*(100%-'Other input expert'!E$5)","v":0},{"$f":"G16*(100%-'Other input expert'!F$5)","v":0},{"$f":"H16*(100%-'Other input expert'!G$5)","v":0},{"$f":"I16*(100%-'Other input expert'!H$5)","v":0},{"$f":"J16*(100%-'Other input expert'!I$5)","v":0},{"$f":"K16*(100%-'Other input expert'!J$5)","v":0},{"$f":"L16*(100%-'Other input expert'!K$5)","v":0},{"$f":"M16*(100%-'Other input expert'!L$5)","v":0},{"$f":"N16*(100%-'Other input expert'!M$5)","v":0},null,{"$f":"P16*'Other input expert'!B$12*'Sales price per sales channel'!$G16*'Other input expert'!B$6","v":0},{"$f":"Q16*'Other input expert'!C$12*'Sales price per sales channel'!$G16*'Other input expert'!C$6","v":0},{"$f":"R16*'Other input expert'!D$12*'Sales price per sales channel'!$G16*'Other input expert'!D$6","v":0},{"$f":"S16*'Other input expert'!E$12*'Sales price per sales channel'!$G16*'Other input expert'!E$6","v":0},{"$f":"T16*'Other input expert'!F$12*'Sales price per sales channel'!$G16*'Other input expert'!F$6","v":0},{"$f":"U16*'Other input expert'!G$12*'Sales price per sales channel'!$G16*'Other input expert'!G$6","v":0},{"$f":"V16*'Other input expert'!H$12*'Sales price per sales channel'!$G16*'Other input expert'!H$6","v":0},{"$f":"W16*'Other input expert'!I$12*'Sales price per sales channel'!$G16*'Other input expert'!I$6","v":0},{"$f":"X16*'Other input expert'!J$12*'Sales price per sales channel'!$G16*'Other input expert'!J$6","v":0},{"$f":"Y16*'Other input expert'!K$12*'Sales price per sales channel'!$G16*'Other input expert'!K$6","v":0},{"$f":"Z16*'Other input expert'!L$12*'Sales price per sales channel'!$G16*'Other input expert'!L$6","v":0},{"$f":"AA16*'Other input expert'!M$12*'Sales price per sales channel'!$G16*'Other input expert'!M$6","v":0},null,{"$f":"P16*'Other input expert'!B$13*'Sales price per sales channel'!$H16*'Other input expert'!B$6","v":0},{"$f":"Q16*'Other input expert'!C$13*'Sales price per sales channel'!$H16*'Other input expert'!C$6","v":0},{"$f":"R16*'Other input expert'!D$13*'Sales price per sales channel'!$H16*'Other input expert'!D$6","v":0},{"$f":"S16*'Other input expert'!E$13*'Sales price per sales channel'!$H16*'Other input expert'!E$6","v":0},{"$f":"T16*'Other input expert'!F$13*'Sales price per sales channel'!$H16*'Other input expert'!F$6","v":0},{"$f":"U16*'Other input expert'!G$13*'Sales price per sales channel'!$H16*'Other input expert'!G$6","v":0},{"$f":"V16*'Other input expert'!H$13*'Sales price per sales channel'!$H16*'Other input expert'!H$6","v":0},{"$f":"W16*'Other input expert'!I$13*'Sales price per sales channel'!$H16*'Other input expert'!I$6","v":0},{"$f":"X16*'Other input expert'!J$13*'Sales price per sales channel'!$H16*'Other input expert'!J$6","v":0},{"$f":"Y16*'Other input expert'!K$13*'Sales price per sales channel'!$H16*'Other input expert'!K$6","v":0},{"$f":"Z16*'Other input expert'!L$13*'Sales price per sales channel'!$H16*'Other input expert'!L$6","v":0},{"$f":"AA16*'Other input expert'!M$13*'Sales price per sales channel'!$H16*'Other input expert'!M$6","v":0},null,{"$f":"P16*'Other input expert'!B$14*'Sales price per sales channel'!$I16*'Other input expert'!B$6","v":0},{"$f":"Q16*'Other input expert'!C$14*'Sales price per sales channel'!$I16*'Other input expert'!C$6","v":0},{"$f":"R16*'Other input expert'!D$14*'Sales price per sales channel'!$I16*'Other input expert'!D$6","v":0},{"$f":"S16*'Other input expert'!E$14*'Sales price per sales channel'!$I16*'Other input expert'!E$6","v":0},{"$f":"T16*'Other input expert'!F$14*'Sales price per sales channel'!$I16*'Other input expert'!F$6","v":0},{"$f":"U16*'Other input expert'!G$14*'Sales price per sales channel'!$I16*'Other input expert'!G$6","v":0},{"$f":"V16*'Other input expert'!H$14*'Sales price per sales channel'!$I16*'Other input expert'!H$6","v":0},{"$f":"W16*'Other input expert'!I$14*'Sales price per sales channel'!$I16*'Other input expert'!I$6","v":0},{"$f":"X16*'Other input expert'!J$14*'Sales price per sales channel'!$I16*'Other input expert'!J$6","v":0},{"$f":"Y16*'Other input expert'!K$14*'Sales price per sales channel'!$I16*'Other input expert'!K$6","v":0},{"$f":"Z16*'Other input expert'!L$14*'Sales price per sales channel'!$I16*'Other input expert'!L$6","v":0},{"$f":"AA16*'Other input expert'!M$14*'Sales price per sales channel'!$I16*'Other input expert'!M$6","v":0},null,{"$f":"AC16*'Other input expert'!B$12*'Sales price per sales channel'!$G16*'Other input expert'!B$7","v":0},{"$f":"AD16*'Other input expert'!C$12*'Sales price per sales channel'!$G16*'Other input expert'!C$7","v":0},{"$f":"AE16*'Other input expert'!D$12*'Sales price per sales channel'!$G16*'Other input expert'!D$7","v":0},{"$f":"AF16*'Other input expert'!E$12*'Sales price per sales channel'!$G16*'Other input expert'!E$7","v":0},{"$f":"AG16*'Other input expert'!F$12*'Sales price per sales channel'!$G16*'Other input expert'!F$7","v":0},{"$f":"AH16*'Other input expert'!G$12*'Sales price per sales channel'!$G16*'Other input expert'!G$7","v":0},{"$f":"AI16*'Other input expert'!H$12*'Sales price per sales channel'!$G16*'Other input expert'!H$7","v":0},{"$f":"AJ16*'Other input expert'!I$12*'Sales price per sales channel'!$G16*'Other input expert'!I$7","v":0},{"$f":"AK16*'Other input expert'!J$12*'Sales price per sales channel'!$G16*'Other input expert'!J$7","v":0},{"$f":"AL16*'Other input expert'!K$12*'Sales price per sales channel'!$G16*'Other input expert'!K$7","v":0},{"$f":"AM16*'Other input expert'!L$12*'Sales price per sales channel'!$G16*'Other input expert'!L$7","v":0},{"$f":"AN16*'Other input expert'!M$12*'Sales price per sales channel'!$G16*'Other input expert'!M$7","v":0},null,{"$f":"AC16*'Other input expert'!B$13*'Sales price per sales channel'!$H16*'Other input expert'!B$7","v":0},{"$f":"AD16*'Other input expert'!C$13*'Sales price per sales channel'!$H16*'Other input expert'!C$7","v":0},{"$f":"AE16*'Other input expert'!D$13*'Sales price per sales channel'!$H16*'Other input expert'!D$7","v":0},{"$f":"AF16*'Other input expert'!E$13*'Sales price per sales channel'!$H16*'Other input expert'!E$7","v":0},{"$f":"AG16*'Other input expert'!F$13*'Sales price per sales channel'!$H16*'Other input expert'!F$7","v":0},{"$f":"AH16*'Other input expert'!G$13*'Sales price per sales channel'!$H16*'Other input expert'!G$7","v":0},{"$f":"AI16*'Other input expert'!H$13*'Sales price per sales channel'!$H16*'Other input expert'!H$7","v":0},{"$f":"AJ16*'Other input expert'!I$13*'Sales price per sales channel'!$H16*'Other input expert'!I$7","v":0},{"$f":"AK16*'Other input expert'!J$13*'Sales price per sales channel'!$H16*'Other input expert'!J$7","v":0},{"$f":"AL16*'Other input expert'!K$13*'Sales price per sales channel'!$H16*'Other input expert'!K$7","v":0},{"$f":"AM16*'Other input expert'!L$13*'Sales price per sales channel'!$H16*'Other input expert'!L$7","v":0},{"$f":"AN16*'Other input expert'!M$13*'Sales price per sales channel'!$H16*'Other input expert'!M$7","v":0},null,{"$f":"AC16*'Other input expert'!B$14*'Sales price per sales channel'!$I16*'Other input expert'!B$7","v":0},{"$f":"AD16*'Other input expert'!C$14*'Sales price per sales channel'!$I16*'Other input expert'!C$7","v":0},{"$f":"AE16*'Other input expert'!D$14*'Sales price per sales channel'!$I16*'Other input expert'!D$7","v":0},{"$f":"AF16*'Other input expert'!E$14*'Sales price per sales channel'!$I16*'Other input expert'!E$7","v":0},{"$f":"AG16*'Other input expert'!F$14*'Sales price per sales channel'!$I16*'Other input expert'!F$7","v":0},{"$f":"AH16*'Other input expert'!G$14*'Sales price per sales channel'!$I16*'Other input expert'!G$7","v":0},{"$f":"AI16*'Other input expert'!H$14*'Sales price per sales channel'!$I16*'Other input expert'!H$7","v":0},{"$f":"AJ16*'Other input expert'!I$14*'Sales price per sales channel'!$I16*'Other input expert'!I$7","v":0},{"$f":"AK16*'Other input expert'!J$14*'Sales price per sales channel'!$I16*'Other input expert'!J$7","v":0},{"$f":"AL16*'Other input expert'!K$14*'Sales price per sales channel'!$I16*'Other input expert'!K$7","v":0},{"$f":"AM16*'Other input expert'!L$14*'Sales price per sales channel'!$I16*'Other input expert'!L$7","v":0},{"$f":"AN16*'Other input expert'!M$14*'Sales price per sales channel'!$I16*'Other input expert'!M$7","v":0}]
["Allium schoenoprasum","Chives",{"$f":"Plantlist!$G17*'Production list'!D18*'Other input expert'!B$4*'Other input expert'!B$8","v":0},{"$f":"Plantlist!$G17*'Production list'!E18*'Other input expert'!C$4*'Other input expert'!C$8","v":0},{"$f":"Plantlist!$G17*'Production list'!F18*'Other input expert'!D$4*'Other input expert'!D$8","v":0},{"$f":"Plantlist!$G17*'Production list'!G18*'Other input expert'!E$4*'Other input expert'!E$8","v":0},{"$f":"Plantlist!$G17*'Production list'!H18*'Other input expert'!F$4*'Other input expert'!F$8","v":0},{"$f":"Plantlist!$G17*'Production list'!I18*'Other input expert'!G$4*'Other input expert'!G$8","v":0},{"$f":"Plantlist!$G17*'Production list'!J18*'Other input expert'!H$4*'Other input expert'!H$8","v":0},{"$f":"Plantlist!$G17*'Production list'!K18*'Other input expert'!I$4*'Other input expert'!I$8","v":0},{"$f":"Plantlist!$G17*'Production list'!L18*'Other input expert'!J$4*'Other input expert'!J$8","v":0},{"$f":"Plantlist!$G17*'Production list'!M18*'Other input expert'!K$4*'Other input expert'!K$8","v":0},{"$f":"Plantlist!$G17*'Production list'!N18*'Other input expert'!L$4*'Other input expert'!L$8","v":0},{"$f":"Plantlist!$G17*'Production list'!O18*'Other input expert'!M$4*'Other input expert'!M$8","v":0},null,{"$f":"C17*'Other input expert'!B$5","v":0},{"$f":"D17*'Other input expert'!C$5","v":0},{"$f":"E17*'Other input expert'!D$5","v":0},{"$f":"F17*'Other input expert'!E$5","v":0},{"$f":"G17*'Other input expert'!F$5","v":0},{"$f":"H17*'Other input expert'!G$5","v":0},{"$f":"I17*'Other input expert'!H$5","v":0},{"$f":"J17*'Other input expert'!I$5","v":0},{"$f":"K17*'Other input expert'!J$5","v":0},{"$f":"L17*'Other input expert'!K$5","v":0},{"$f":"M17*'Other input expert'!L$5","v":0},{"$f":"N17*'Other input expert'!M$5","v":0},null,{"$f":"C17*(100%-'Other input expert'!B$5)","v":0},{"$f":"D17*(100%-'Other input expert'!C$5)","v":0},{"$f":"E17*(100%-'Other input expert'!D$5)","v":0},{"$f":"F17*(100%-'Other input expert'!E$5)","v":0},{"$f":"G17*(100%-'Other input expert'!F$5)","v":0},{"$f":"H17*(100%-'Other input expert'!G$5)","v":0},{"$f":"I17*(100%-'Other input expert'!H$5)","v":0},{"$f":"J17*(100%-'Other input expert'!I$5)","v":0},{"$f":"K17*(100%-'Other input expert'!J$5)","v":0},{"$f":"L17*(100%-'Other input expert'!K$5)","v":0},{"$f":"M17*(100%-'Other input expert'!L$5)","v":0},{"$f":"N17*(100%-'Other input expert'!M$5)","v":0},null,{"$f":"P17*'Other input expert'!B$12*'Sales price per sales channel'!$G17*'Other input expert'!B$6","v":0},{"$f":"Q17*'Other input expert'!C$12*'Sales price per sales channel'!$G17*'Other input expert'!C$6","v":0},{"$f":"R17*'Other input expert'!D$12*'Sales price per sales channel'!$G17*'Other input expert'!D$6","v":0},{"$f":"S17*'Other input expert'!E$12*'Sales price per sales channel'!$G17*'Other input expert'!E$6","v":0},{"$f":"T17*'Other input expert'!F$12*'Sales price per sales channel'!$G17*'Other input expert'!F$6","v":0},{"$f":"U17*'Other input expert'!G$12*'Sales price per sales channel'!$G17*'Other input expert'!G$6","v":0},{"$f":"V17*'Other input expert'!H$12*'Sales price per sales channel'!$G17*'Other input expert'!H$6","v":0},{"$f":"W17*'Other input expert'!I$12*'Sales price per sales channel'!$G17*'Other input expert'!I$6","v":0},{"$f":"X17*'Other input expert'!J$12*'Sales price per sales channel'!$G17*'Other input expert'!J$6","v":0},{"$f":"Y17*'Other input expert'!K$12*'Sales price per sales channel'!$G17*'Other input expert'!K$6","v":0},{"$f":"Z17*'Other input expert'!L$12*'Sales price per sales channel'!$G17*'Other input expert'!L$6","v":0},{"$f":"AA17*'Other input expert'!M$12*'Sales price per sales channel'!$G17*'Other input expert'!M$6","v":0},null,{"$f":"P17*'Other input expert'!B$13*'Sales price per sales channel'!$H17*'Other input expert'!B$6","v":0},{"$f":"Q17*'Other input expert'!C$13*'Sales price per sales channel'!$H17*'Other input expert'!C$6","v":0},{"$f":"R17*'Other input expert'!D$13*'Sales price per sales channel'!$H17*'Other input expert'!D$6","v":0},{"$f":"S17*'Other input expert'!E$13*'Sales price per sales channel'!$H17*'Other input expert'!E$6","v":0},{"$f":"T17*'Other input expert'!F$13*'Sales price per sales channel'!$H17*'Other input expert'!F$6","v":0},{"$f":"U17*'Other input expert'!G$13*'Sales price per sales channel'!$H17*'Other input expert'!G$6","v":0},{"$f":"V17*'Other input expert'!H$13*'Sales price per sales channel'!$H17*'Other input expert'!H$6","v":0},{"$f":"W17*'Other input expert'!I$13*'Sales price per sales channel'!$H17*'Other input expert'!I$6","v":0},{"$f":"X17*'Other input expert'!J$13*'Sales price per sales channel'!$H17*'Other input expert'!J$6","v":0},{"$f":"Y17*'Other input expert'!K$13*'Sales price per sales channel'!$H17*'Other input expert'!K$6","v":0},{"$f":"Z17*'Other input expert'!L$13*'Sales price per sales channel'!$H17*'Other input expert'!L$6","v":0},{"$f":"AA17*'Other input expert'!M$13*'Sales price per sales channel'!$H17*'Other input expert'!M$6","v":0},null,{"$f":"P17*'Other input expert'!B$14*'Sales price per sales channel'!$I17*'Other input expert'!B$6","v":0},{"$f":"Q17*'Other input expert'!C$14*'Sales price per sales channel'!$I17*'Other input expert'!C$6","v":0},{"$f":"R17*'Other input expert'!D$14*'Sales price per sales channel'!$I17*'Other input expert'!D$6","v":0},{"$f":"S17*'Other input expert'!E$14*'Sales price per sales channel'!$I17*'Other input expert'!E$6","v":0},{"$f":"T17*'Other input expert'!F$14*'Sales price per sales channel'!$I17*'Other input expert'!F$6","v":0},{"$f":"U17*'Other input expert'!G$14*'Sales price per sales channel'!$I17*'Other input expert'!G$6","v":0},{"$f":"V17*'Other input expert'!H$14*'Sales price per sales channel'!$I17*'Other input expert'!H$6","v":0},{"$f":"W17*'Other input expert'!I$14*'Sales price per sales channel'!$I17*'Other input expert'!I$6","v":0},{"$f":"X17*'Other input expert'!J$14*'Sales price per sales channel'!$I17*'Other input expert'!J$6","v":0},{"$f":"Y17*'Other input expert'!K$14*'Sales price per sales channel'!$I17*'Other input expert'!K$6","v":0},{"$f":"Z17*'Other input expert'!L$14*'Sales price per sales channel'!$I17*'Other input expert'!L$6","v":0},{"$f":"AA17*'Other input expert'!M$14*'Sales price per sales channel'!$I17*'Other input expert'!M$6","v":0},null,{"$f":"AC17*'Other input expert'!B$12*'Sales price per sales channel'!$G17*'Other input expert'!B$7","v":0},{"$f":"AD17*'Other input expert'!C$12*'Sales price per sales channel'!$G17*'Other input expert'!C$7","v":0},{"$f":"AE17*'Other input expert'!D$12*'Sales price per sales channel'!$G17*'Other input expert'!D$7","v":0},{"$f":"AF17*'Other input expert'!E$12*'Sales price per sales channel'!$G17*'Other input expert'!E$7","v":0},{"$f":"AG17*'Other input expert'!F$12*'Sales price per sales channel'!$G17*'Other input expert'!F$7","v":0},{"$f":"AH17*'Other input expert'!G$12*'Sales price per sales channel'!$G17*'Other input expert'!G$7","v":0},{"$f":"AI17*'Other input expert'!H$12*'Sales price per sales channel'!$G17*'Other input expert'!H$7","v":0},{"$f":"AJ17*'Other input expert'!I$12*'Sales price per sales channel'!$G17*'Other input expert'!I$7","v":0},{"$f":"AK17*'Other input expert'!J$12*'Sales price per sales channel'!$G17*'Other input expert'!J$7","v":0},{"$f":"AL17*'Other input expert'!K$12*'Sales price per sales channel'!$G17*'Other input expert'!K$7","v":0},{"$f":"AM17*'Other input expert'!L$12*'Sales price per sales channel'!$G17*'Other input expert'!L$7","v":0},{"$f":"AN17*'Other input expert'!M$12*'Sales price per sales channel'!$G17*'Other input expert'!M$7","v":0},null,{"$f":"AC17*'Other input expert'!B$13*'Sales price per sales channel'!$H17*'Other input expert'!B$7","v":0},{"$f":"AD17*'Other input expert'!C$13*'Sales price per sales channel'!$H17*'Other input expert'!C$7","v":0},{"$f":"AE17*'Other input expert'!D$13*'Sales price per sales channel'!$H17*'Other input expert'!D$7","v":0},{"$f":"AF17*'Other input expert'!E$13*'Sales price per sales channel'!$H17*'Other input expert'!E$7","v":0},{"$f":"AG17*'Other input expert'!F$13*'Sales price per sales channel'!$H17*'Other input expert'!F$7","v":0},{"$f":"AH17*'Other input expert'!G$13*'Sales price per sales channel'!$H17*'Other input expert'!G$7","v":0},{"$f":"AI17*'Other input expert'!H$13*'Sales price per sales channel'!$H17*'Other input expert'!H$7","v":0},{"$f":"AJ17*'Other input expert'!I$13*'Sales price per sales channel'!$H17*'Other input expert'!I$7","v":0},{"$f":"AK17*'Other input expert'!J$13*'Sales price per sales channel'!$H17*'Other input expert'!J$7","v":0},{"$f":"AL17*'Other input expert'!K$13*'Sales price per sales channel'!$H17*'Other input expert'!K$7","v":0},{"$f":"AM17*'Other input expert'!L$13*'Sales price per sales channel'!$H17*'Other input expert'!L$7","v":0},{"$f":"AN17*'Other input expert'!M$13*'Sales price per sales channel'!$H17*'Other input expert'!M$7","v":0},null,{"$f":"AC17*'Other input expert'!B$14*'Sales price per sales channel'!$I17*'Other input expert'!B$7","v":0},{"$f":"AD17*'Other input expert'!C$14*'Sales price per sales channel'!$I17*'Other input expert'!C$7","v":0},{"$f":"AE17*'Other input expert'!D$14*'Sales price per sales channel'!$I17*'Other input expert'!D$7","v":0},{"$f":"AF17*'Other input expert'!E$14*'Sales price per sales channel'!$I17*'Other input expert'!E$7","v":0},{"$f":"AG17*'Other input expert'!F$14*'Sales price per sales channel'!$I17*'Other input expert'!F$7","v":0},{"$f":"AH17*'Other input expert'!G$14*'Sales price per sales channel'!$I17*'Other input expert'!G$7","v":0},{"$f":"AI17*'Other input expert'!H$14*'Sales price per sales channel'!$I17*'Other input expert'!H$7","v":0},{"$f":"AJ17*'Other input expert'!I$14*'Sales price per sales channel'!$I17*'Other input expert'!I$7","v":0},{"$f":"AK17*'Other input expert'!J$14*'Sales price per sales channel'!$I17*'Other input expert'!J$7","v":0},{"$f":"AL17*'Other input expert'!K$14*'Sales price per sales channel'!$I17*'Other input expert'!K$7","v":0},{"$f":"AM17*'Other input expert'!L$14*'Sales price per sales channel'!$I17*'Other input expert'!L$7","v":0},{"$f":"AN17*'Other input expert'!M$14*'Sales price per sales channel'!$I17*'Other input expert'!M$7","v":0}]
["Allium Ursinum","Wild garlic",{"$f":"Plantlist!$G18*'Production list'!D19*'Other input expert'!B$4*'Other input expert'!B$8","v":0},{"$f":"Plantlist!$G18*'Production list'!E19*'Other input expert'!C$4*'Other input expert'!C$8","v":0},{"$f":"Plantlist!$G18*'Production list'!F19*'Other input expert'!D$4*'Other input expert'!D$8","v":0},{"$f":"Plantlist!$G18*'Production list'!G19*'Other input expert'!E$4*'Other input expert'!E$8","v":0},{"$f":"Plantlist!$G18*'Production list'!H19*'Other input expert'!F$4*'Other input expert'!F$8","v":0},{"$f":"Plantlist!$G18*'Production list'!I19*'Other input expert'!G$4*'Other input expert'!G$8","v":0},{"$f":"Plantlist!$G18*'Production list'!J19*'Other input expert'!H$4*'Other input expert'!H$8","v":0},{"$f":"Plantlist!$G18*'Production list'!K19*'Other input expert'!I$4*'Other input expert'!I$8","v":0},{"$f":"Plantlist!$G18*'Production list'!L19*'Other input expert'!J$4*'Other input expert'!J$8","v":0},{"$f":"Plantlist!$G18*'Production list'!M19*'Other input expert'!K$4*'Other input expert'!K$8","v":0},{"$f":"Plantlist!$G18*'Production list'!N19*'Other input expert'!L$4*'Other input expert'!L$8","v":0},{"$f":"Plantlist!$G18*'Production list'!O19*'Other input expert'!M$4*'Other input expert'!M$8","v":0},null,{"$f":"C18*'Other input expert'!B$5","v":0},{"$f":"D18*'Other input expert'!C$5","v":0},{"$f":"E18*'Other input expert'!D$5","v":0},{"$f":"F18*'Other input expert'!E$5","v":0},{"$f":"G18*'Other input expert'!F$5","v":0},{"$f":"H18*'Other input expert'!G$5","v":0},{"$f":"I18*'Other input expert'!H$5","v":0},{"$f":"J18*'Other input expert'!I$5","v":0},{"$f":"K18*'Other input expert'!J$5","v":0},{"$f":"L18*'Other input expert'!K$5","v":0},{"$f":"M18*'Other input expert'!L$5","v":0},{"$f":"N18*'Other input expert'!M$5","v":0},null,{"$f":"C18*(100%-'Other input expert'!B$5)","v":0},{"$f":"D18*(100%-'Other input expert'!C$5)","v":0},{"$f":"E18*(100%-'Other input expert'!D$5)","v":0},{"$f":"F18*(100%-'Other input expert'!E$5)","v":0},{"$f":"G18*(100%-'Other input expert'!F$5)","v":0},{"$f":"H18*(100%-'Other input expert'!G$5)","v":0},{"$f":"I18*(100%-'Other input expert'!H$5)","v":0},{"$f":"J18*(100%-'Other input expert'!I$5)","v":0},{"$f":"K18*(100%-'Other input expert'!J$5)","v":0},{"$f":"L18*(100%-'Other input expert'!K$5)","v":0},{"$f":"M18*(100%-'Other input expert'!L$5)","v":0},{"$f":"N18*(100%-'Other input expert'!M$5)","v":0},null,{"$f":"P18*'Other input expert'!B$12*'Sales price per sales channel'!$G18*'Other input expert'!B$6","v":0},{"$f":"Q18*'Other input expert'!C$12*'Sales price per sales channel'!$G18*'Other input expert'!C$6","v":0},{"$f":"R18*'Other input expert'!D$12*'Sales price per sales channel'!$G18*'Other input expert'!D$6","v":0},{"$f":"S18*'Other input expert'!E$12*'Sales price per sales channel'!$G18*'Other input expert'!E$6","v":0},{"$f":"T18*'Other input expert'!F$12*'Sales price per sales channel'!$G18*'Other input expert'!F$6","v":0},{"$f":"U18*'Other input expert'!G$12*'Sales price per sales channel'!$G18*'Other input expert'!G$6","v":0},{"$f":"V18*'Other input expert'!H$12*'Sales price per sales channel'!$G18*'Other input expert'!H$6","v":0},{"$f":"W18*'Other input expert'!I$12*'Sales price per sales channel'!$G18*'Other input expert'!I$6","v":0},{"$f":"X18*'Other input expert'!J$12*'Sales price per sales channel'!$G18*'Other input expert'!J$6","v":0},{"$f":"Y18*'Other input expert'!K$12*'Sales price per sales channel'!$G18*'Other input expert'!K$6","v":0},{"$f":"Z18*'Other input expert'!L$12*'Sales price per sales channel'!$G18*'Other input expert'!L$6","v":0},{"$f":"AA18*'Other input expert'!M$12*'Sales price per sales channel'!$G18*'Other input expert'!M$6","v":0},null,{"$f":"P18*'Other input expert'!B$13*'Sales price per sales channel'!$H18*'Other input expert'!B$6","v":0},{"$f":"Q18*'Other input expert'!C$13*'Sales price per sales channel'!$H18*'Other input expert'!C$6","v":0},{"$f":"R18*'Other input expert'!D$13*'Sales price per sales channel'!$H18*'Other input expert'!D$6","v":0},{"$f":"S18*'Other input expert'!E$13*'Sales price per sales channel'!$H18*'Other input expert'!E$6","v":0},{"$f":"T18*'Other input expert'!F$13*'Sales price per sales channel'!$H18*'Other input expert'!F$6","v":0},{"$f":"U18*'Other input expert'!G$13*'Sales price per sales channel'!$H18*'Other input expert'!G$6","v":0},{"$f":"V18*'Other input expert'!H$13*'Sales price per sales channel'!$H18*'Other input expert'!H$6","v":0},{"$f":"W18*'Other input expert'!I$13*'Sales price per sales channel'!$H18*'Other input expert'!I$6","v":0},{"$f":"X18*'Other input expert'!J$13*'Sales price per sales channel'!$H18*'Other input expert'!J$6","v":0},{"$f":"Y18*'Other input expert'!K$13*'Sales price per sales channel'!$H18*'Other input expert'!K$6","v":0},{"$f":"Z18*'Other input expert'!L$13*'Sales price per sales channel'!$H18*'Other input expert'!L$6","v":0},{"$f":"AA18*'Other input expert'!M$13*'Sales price per sales channel'!$H18*'Other input expert'!M$6","v":0},null,{"$f":"P18*'Other input expert'!B$14*'Sales price per sales channel'!$I18*'Other input expert'!B$6","v":0},{"$f":"Q18*'Other input expert'!C$14*'Sales price per sales channel'!$I18*'Other input expert'!C$6","v":0},{"$f":"R18*'Other input expert'!D$14*'Sales price per sales channel'!$I18*'Other input expert'!D$6","v":0},{"$f":"S18*'Other input expert'!E$14*'Sales price per sales channel'!$I18*'Other input expert'!E$6","v":0},{"$f":"T18*'Other input expert'!F$14*'Sales price per sales channel'!$I18*'Other input expert'!F$6","v":0},{"$f":"U18*'Other input expert'!G$14*'Sales price per sales channel'!$I18*'Other input expert'!G$6","v":0},{"$f":"V18*'Other input expert'!H$14*'Sales price per sales channel'!$I18*'Other input expert'!H$6","v":0},{"$f":"W18*'Other input expert'!I$14*'Sales price per sales channel'!$I18*'Other input expert'!I$6","v":0},{"$f":"X18*'Other input expert'!J$14*'Sales price per sales channel'!$I18*'Other input expert'!J$6","v":0},{"$f":"Y18*'Other input expert'!K$14*'Sales price per sales channel'!$I18*'Other input expert'!K$6","v":0},{"$f":"Z18*'Other input expert'!L$14*'Sales price per sales channel'!$I18*'Other input expert'!L$6","v":0},{"$f":"AA18*'Other input expert'!M$14*'Sales price per sales channel'!$I18*'Other input expert'!M$6","v":0},null,{"$f":"AC18*'Other input expert'!B$12*'Sales price per sales channel'!$G18*'Other input expert'!B$7","v":0},{"$f":"AD18*'Other input expert'!C$12*'Sales price per sales channel'!$G18*'Other input expert'!C$7","v":0},{"$f":"AE18*'Other input expert'!D$12*'Sales price per sales channel'!$G18*'Other input expert'!D$7","v":0},{"$f":"AF18*'Other input expert'!E$12*'Sales price per sales channel'!$G18*'Other input expert'!E$7","v":0},{"$f":"AG18*'Other input expert'!F$12*'Sales price per sales channel'!$G18*'Other input expert'!F$7","v":0},{"$f":"AH18*'Other input expert'!G$12*'Sales price per sales channel'!$G18*'Other input expert'!G$7","v":0},{"$f":"AI18*'Other input expert'!H$12*'Sales price per sales channel'!$G18*'Other input expert'!H$7","v":0},{"$f":"AJ18*'Other input expert'!I$12*'Sales price per sales channel'!$G18*'Other input expert'!I$7","v":0},{"$f":"AK18*'Other input expert'!J$12*'Sales price per sales channel'!$G18*'Other input expert'!J$7","v":0},{"$f":"AL18*'Other input expert'!K$12*'Sales price per sales channel'!$G18*'Other input expert'!K$7","v":0},{"$f":"AM18*'Other input expert'!L$12*'Sales price per sales channel'!$G18*'Other input expert'!L$7","v":0},{"$f":"AN18*'Other input expert'!M$12*'Sales price per sales channel'!$G18*'Other input expert'!M$7","v":0},null,{"$f":"AC18*'Other input expert'!B$13*'Sales price per sales channel'!$H18*'Other input expert'!B$7","v":0},{"$f":"AD18*'Other input expert'!C$13*'Sales price per sales channel'!$H18*'Other input expert'!C$7","v":0},{"$f":"AE18*'Other input expert'!D$13*'Sales price per sales channel'!$H18*'Other input expert'!D$7","v":0},{"$f":"AF18*'Other input expert'!E$13*'Sales price per sales channel'!$H18*'Other input expert'!E$7","v":0},{"$f":"AG18*'Other input expert'!F$13*'Sales price per sales channel'!$H18*'Other input expert'!F$7","v":0},{"$f":"AH18*'Other input expert'!G$13*'Sales price per sales channel'!$H18*'Other input expert'!G$7","v":0},{"$f":"AI18*'Other input expert'!H$13*'Sales price per sales channel'!$H18*'Other input expert'!H$7","v":0},{"$f":"AJ18*'Other input expert'!I$13*'Sales price per sales channel'!$H18*'Other input expert'!I$7","v":0},{"$f":"AK18*'Other input expert'!J$13*'Sales price per sales channel'!$H18*'Other input expert'!J$7","v":0},{"$f":"AL18*'Other input expert'!K$13*'Sales price per sales channel'!$H18*'Other input expert'!K$7","v":0},{"$f":"AM18*'Other input expert'!L$13*'Sales price per sales channel'!$H18*'Other input expert'!L$7","v":0},{"$f":"AN18*'Other input expert'!M$13*'Sales price per sales channel'!$H18*'Other input expert'!M$7","v":0},null,{"$f":"AC18*'Other input expert'!B$14*'Sales price per sales channel'!$I18*'Other input expert'!B$7","v":0},{"$f":"AD18*'Other input expert'!C$14*'Sales price per sales channel'!$I18*'Other input expert'!C$7","v":0},{"$f":"AE18*'Other input expert'!D$14*'Sales price per sales channel'!$I18*'Other input expert'!D$7","v":0},{"$f":"AF18*'Other input expert'!E$14*'Sales price per sales channel'!$I18*'Other input expert'!E$7","v":0},{"$f":"AG18*'Other input expert'!F$14*'Sales price per sales channel'!$I18*'Other input expert'!F$7","v":0},{"$f":"AH18*'Other input expert'!G$14*'Sales price per sales channel'!$I18*'Other input expert'!G$7","v":0},{"$f":"AI18*'Other input expert'!H$14*'Sales price per sales channel'!$I18*'Other input expert'!H$7","v":0},{"$f":"AJ18*'Other input expert'!I$14*'Sales price per sales channel'!$I18*'Other input expert'!I$7","v":0},{"$f":"AK18*'Other input expert'!J$14*'Sales price per sales channel'!$I18*'Other input expert'!J$7","v":0},{"$f":"AL18*'Other input expert'!K$14*'Sales price per sales channel'!$I18*'Other input expert'!K$7","v":0},{"$f":"AM18*'Other input expert'!L$14*'Sales price per sales channel'!$I18*'Other input expert'!L$7","v":0},{"$f":"AN18*'Other input expert'!M$14*'Sales price per sales channel'!$I18*'Other input expert'!M$7","v":0}]
["Alnus cordata","Italian alder",{"$f":"Plantlist!$G19*'Production list'!D20*'Other input expert'!B$4*'Other input expert'!B$8","v":0},{"$f":"Plantlist!$G19*'Production list'!E20*'Other input expert'!C$4*'Other input expert'!C$8","v":0},{"$f":"Plantlist!$G19*'Production list'!F20*'Other input expert'!D$4*'Other input expert'!D$8","v":0},{"$f":"Plantlist!$G19*'Production list'!G20*'Other input expert'!E$4*'Other input expert'!E$8","v":0},{"$f":"Plantlist!$G19*'Production list'!H20*'Other input expert'!F$4*'Other input expert'!F$8","v":0},{"$f":"Plantlist!$G19*'Production list'!I20*'Other input expert'!G$4*'Other input expert'!G$8","v":0},{"$f":"Plantlist!$G19*'Production list'!J20*'Other input expert'!H$4*'Other input expert'!H$8","v":0},{"$f":"Plantlist!$G19*'Production list'!K20*'Other input expert'!I$4*'Other input expert'!I$8","v":0},{"$f":"Plantlist!$G19*'Production list'!L20*'Other input expert'!J$4*'Other input expert'!J$8","v":0},{"$f":"Plantlist!$G19*'Production list'!M20*'Other input expert'!K$4*'Other input expert'!K$8","v":0},{"$f":"Plantlist!$G19*'Production list'!N20*'Other input expert'!L$4*'Other input expert'!L$8","v":0},{"$f":"Plantlist!$G19*'Production list'!O20*'Other input expert'!M$4*'Other input expert'!M$8","v":0},null,{"$f":"C19*'Other input expert'!B$5","v":0},{"$f":"D19*'Other input expert'!C$5","v":0},{"$f":"E19*'Other input expert'!D$5","v":0},{"$f":"F19*'Other input expert'!E$5","v":0},{"$f":"G19*'Other input expert'!F$5","v":0},{"$f":"H19*'Other input expert'!G$5","v":0},{"$f":"I19*'Other input expert'!H$5","v":0},{"$f":"J19*'Other input expert'!I$5","v":0},{"$f":"K19*'Other input expert'!J$5","v":0},{"$f":"L19*'Other input expert'!K$5","v":0},{"$f":"M19*'Other input expert'!L$5","v":0},{"$f":"N19*'Other input expert'!M$5","v":0},null,{"$f":"C19*(100%-'Other input expert'!B$5)","v":0},{"$f":"D19*(100%-'Other input expert'!C$5)","v":0},{"$f":"E19*(100%-'Other input expert'!D$5)","v":0},{"$f":"F19*(100%-'Other input expert'!E$5)","v":0},{"$f":"G19*(100%-'Other input expert'!F$5)","v":0},{"$f":"H19*(100%-'Other input expert'!G$5)","v":0},{"$f":"I19*(100%-'Other input expert'!H$5)","v":0},{"$f":"J19*(100%-'Other input expert'!I$5)","v":0},{"$f":"K19*(100%-'Other input expert'!J$5)","v":0},{"$f":"L19*(100%-'Other input expert'!K$5)","v":0},{"$f":"M19*(100%-'Other input expert'!L$5)","v":0},{"$f":"N19*(100%-'Other input expert'!M$5)","v":0},null,{"$f":"P19*'Other input expert'!B$12*'Sales price per sales channel'!$G19*'Other input expert'!B$6","v":0},{"$f":"Q19*'Other input expert'!C$12*'Sales price per sales channel'!$G19*'Other input expert'!C$6","v":0},{"$f":"R19*'Other input expert'!D$12*'Sales price per sales channel'!$G19*'Other input expert'!D$6","v":0},{"$f":"S19*'Other input expert'!E$12*'Sales price per sales channel'!$G19*'Other input expert'!E$6","v":0},{"$f":"T19*'Other input expert'!F$12*'Sales price per sales channel'!$G19*'Other input expert'!F$6","v":0},{"$f":"U19*'Other input expert'!G$12*'Sales price per sales channel'!$G19*'Other input expert'!G$6","v":0},{"$f":"V19*'Other input expert'!H$12*'Sales price per sales channel'!$G19*'Other input expert'!H$6","v":0},{"$f":"W19*'Other input expert'!I$12*'Sales price per sales channel'!$G19*'Other input expert'!I$6","v":0},{"$f":"X19*'Other input expert'!J$12*'Sales price per sales channel'!$G19*'Other input expert'!J$6","v":0},{"$f":"Y19*'Other input expert'!K$12*'Sales price per sales channel'!$G19*'Other input expert'!K$6","v":0},{"$f":"Z19*'Other input expert'!L$12*'Sales price per sales channel'!$G19*'Other input expert'!L$6","v":0},{"$f":"AA19*'Other input expert'!M$12*'Sales price per sales channel'!$G19*'Other input expert'!M$6","v":0},null,{"$f":"P19*'Other input expert'!B$13*'Sales price per sales channel'!$H19*'Other input expert'!B$6","v":0},{"$f":"Q19*'Other input expert'!C$13*'Sales price per sales channel'!$H19*'Other input expert'!C$6","v":0},{"$f":"R19*'Other input expert'!D$13*'Sales price per sales channel'!$H19*'Other input expert'!D$6","v":0},{"$f":"S19*'Other input expert'!E$13*'Sales price per sales channel'!$H19*'Other input expert'!E$6","v":0},{"$f":"T19*'Other input expert'!F$13*'Sales price per sales channel'!$H19*'Other input expert'!F$6","v":0},{"$f":"U19*'Other input expert'!G$13*'Sales price per sales channel'!$H19*'Other input expert'!G$6","v":0},{"$f":"V19*'Other input expert'!H$13*'Sales price per sales channel'!$H19*'Other input expert'!H$6","v":0},{"$f":"W19*'Other input expert'!I$13*'Sales price per sales channel'!$H19*'Other input expert'!I$6","v":0},{"$f":"X19*'Other input expert'!J$13*'Sales price per sales channel'!$H19*'Other input expert'!J$6","v":0},{"$f":"Y19*'Other input expert'!K$13*'Sales price per sales channel'!$H19*'Other input expert'!K$6","v":0},{"$f":"Z19*'Other input expert'!L$13*'Sales price per sales channel'!$H19*'Other input expert'!L$6","v":0},{"$f":"AA19*'Other input expert'!M$13*'Sales price per sales channel'!$H19*'Other input expert'!M$6","v":0},null,{"$f":"P19*'Other input expert'!B$14*'Sales price per sales channel'!$I19*'Other input expert'!B$6","v":0},{"$f":"Q19*'Other input expert'!C$14*'Sales price per sales channel'!$I19*'Other input expert'!C$6","v":0},{"$f":"R19*'Other input expert'!D$14*'Sales price per sales channel'!$I19*'Other input expert'!D$6","v":0},{"$f":"S19*'Other input expert'!E$14*'Sales price per sales channel'!$I19*'Other input expert'!E$6","v":0},{"$f":"T19*'Other input expert'!F$14*'Sales price per sales channel'!$I19*'Other input expert'!F$6","v":0},{"$f":"U19*'Other input expert'!G$14*'Sales price per sales channel'!$I19*'Other input expert'!G$6","v":0},{"$f":"V19*'Other input expert'!H$14*'Sales price per sales channel'!$I19*'Other input expert'!H$6","v":0},{"$f":"W19*'Other input expert'!I$14*'Sales price per sales channel'!$I19*'Other input expert'!I$6","v":0},{"$f":"X19*'Other input expert'!J$14*'Sales price per sales channel'!$I19*'Other input expert'!J$6","v":0},{"$f":"Y19*'Other input expert'!K$14*'Sales price per sales channel'!$I19*'Other input expert'!K$6","v":0},{"$f":"Z19*'Other input expert'!L$14*'Sales price per sales channel'!$I19*'Other input expert'!L$6","v":0},{"$f":"AA19*'Other input expert'!M$14*'Sales price per sales channel'!$I19*'Other input expert'!M$6","v":0},null,{"$f":"AC19*'Other input expert'!B$12*'Sales price per sales channel'!$G19*'Other input expert'!B$7","v":0},{"$f":"AD19*'Other input expert'!C$12*'Sales price per sales channel'!$G19*'Other input expert'!C$7","v":0},{"$f":"AE19*'Other input expert'!D$12*'Sales price per sales channel'!$G19*'Other input expert'!D$7","v":0},{"$f":"AF19*'Other input expert'!E$12*'Sales price per sales channel'!$G19*'Other input expert'!E$7","v":0},{"$f":"AG19*'Other input expert'!F$12*'Sales price per sales channel'!$G19*'Other input expert'!F$7","v":0},{"$f":"AH19*'Other input expert'!G$12*'Sales price per sales channel'!$G19*'Other input expert'!G$7","v":0},{"$f":"AI19*'Other input expert'!H$12*'Sales price per sales channel'!$G19*'Other input expert'!H$7","v":0},{"$f":"AJ19*'Other input expert'!I$12*'Sales price per sales channel'!$G19*'Other input expert'!I$7","v":0},{"$f":"AK19*'Other input expert'!J$12*'Sales price per sales channel'!$G19*'Other input expert'!J$7","v":0},{"$f":"AL19*'Other input expert'!K$12*'Sales price per sales channel'!$G19*'Other input expert'!K$7","v":0},{"$f":"AM19*'Other input expert'!L$12*'Sales price per sales channel'!$G19*'Other input expert'!L$7","v":0},{"$f":"AN19*'Other input expert'!M$12*'Sales price per sales channel'!$G19*'Other input expert'!M$7","v":0},null,{"$f":"AC19*'Other input expert'!B$13*'Sales price per sales channel'!$H19*'Other input expert'!B$7","v":0},{"$f":"AD19*'Other input expert'!C$13*'Sales price per sales channel'!$H19*'Other input expert'!C$7","v":0},{"$f":"AE19*'Other input expert'!D$13*'Sales price per sales channel'!$H19*'Other input expert'!D$7","v":0},{"$f":"AF19*'Other input expert'!E$13*'Sales price per sales channel'!$H19*'Other input expert'!E$7","v":0},{"$f":"AG19*'Other input expert'!F$13*'Sales price per sales channel'!$H19*'Other input expert'!F$7","v":0},{"$f":"AH19*'Other input expert'!G$13*'Sales price per sales channel'!$H19*'Other input expert'!G$7","v":0},{"$f":"AI19*'Other input expert'!H$13*'Sales price per sales channel'!$H19*'Other input expert'!H$7","v":0},{"$f":"AJ19*'Other input expert'!I$13*'Sales price per sales channel'!$H19*'Other input expert'!I$7","v":0},{"$f":"AK19*'Other input expert'!J$13*'Sales price per sales channel'!$H19*'Other input expert'!J$7","v":0},{"$f":"AL19*'Other input expert'!K$13*'Sales price per sales channel'!$H19*'Other input expert'!K$7","v":0},{"$f":"AM19*'Other input expert'!L$13*'Sales price per sales channel'!$H19*'Other input expert'!L$7","v":0},{"$f":"AN19*'Other input expert'!M$13*'Sales price per sales channel'!$H19*'Other input expert'!M$7","v":0},null,{"$f":"AC19*'Other input expert'!B$14*'Sales price per sales channel'!$I19*'Other input expert'!B$7","v":0},{"$f":"AD19*'Other input expert'!C$14*'Sales price per sales channel'!$I19*'Other input expert'!C$7","v":0},{"$f":"AE19*'Other input expert'!D$14*'Sales price per sales channel'!$I19*'Other input expert'!D$7","v":0},{"$f":"AF19*'Other input expert'!E$14*'Sales price per sales channel'!$I19*'Other input expert'!E$7","v":0},{"$f":"AG19*'Other input expert'!F$14*'Sales price per sales channel'!$I19*'Other input expert'!F$7","v":0},{"$f":"AH19*'Other input expert'!G$14*'Sales price per sales channel'!$I19*'Other input expert'!G$7","v":0},{"$f":"AI19*'Other input expert'!H$14*'Sales price per sales channel'!$I19*'Other input expert'!H$7","v":0},{"$f":"AJ19*'Other input expert'!I$14*'Sales price per sales channel'!$I19*'Other input expert'!I$7","v":0},{"$f":"AK19*'Other input expert'!J$14*'Sales price per sales channel'!$I19*'Other input expert'!J$7","v":0},{"$f":"AL19*'Other input expert'!K$14*'Sales price per sales channel'!$I19*'Other input expert'!K$7","v":0},{"$f":"AM19*'Other input expert'!L$14*'Sales price per sales channel'!$I19*'Other input expert'!L$7","v":0},{"$f":"AN19*'Other input expert'!M$14*'Sales price per sales channel'!$I19*'Other input expert'!M$7","v":0}]
["Alnus glutinosa","European alder",{"$f":"Plantlist!$G20*'Production list'!D21*'Other input expert'!B$4*'Other input expert'!B$8","v":0},{"$f":"Plantlist!$G20*'Production list'!E21*'Other input expert'!C$4*'Other input expert'!C$8","v":0},{"$f":"Plantlist!$G20*'Production list'!F21*'Other input expert'!D$4*'Other input expert'!D$8","v":0},{"$f":"Plantlist!$G20*'Production list'!G21*'Other input expert'!E$4*'Other input expert'!E$8","v":0},{"$f":"Plantlist!$G20*'Production list'!H21*'Other input expert'!F$4*'Other input expert'!F$8","v":0},{"$f":"Plantlist!$G20*'Production list'!I21*'Other input expert'!G$4*'Other input expert'!G$8","v":0},{"$f":"Plantlist!$G20*'Production list'!J21*'Other input expert'!H$4*'Other input expert'!H$8","v":0},{"$f":"Plantlist!$G20*'Production list'!K21*'Other input expert'!I$4*'Other input expert'!I$8","v":0},{"$f":"Plantlist!$G20*'Production list'!L21*'Other input expert'!J$4*'Other input expert'!J$8","v":0},{"$f":"Plantlist!$G20*'Production list'!M21*'Other input expert'!K$4*'Other input expert'!K$8","v":0},{"$f":"Plantlist!$G20*'Production list'!N21*'Other input expert'!L$4*'Other input expert'!L$8","v":0},{"$f":"Plantlist!$G20*'Production list'!O21*'Other input expert'!M$4*'Other input expert'!M$8","v":0},null,{"$f":"C20*'Other input expert'!B$5","v":0},{"$f":"D20*'Other input expert'!C$5","v":0},{"$f":"E20*'Other input expert'!D$5","v":0},{"$f":"F20*'Other input expert'!E$5","v":0},{"$f":"G20*'Other input expert'!F$5","v":0},{"$f":"H20*'Other input expert'!G$5","v":0},{"$f":"I20*'Other input expert'!H$5","v":0},{"$f":"J20*'Other input expert'!I$5","v":0},{"$f":"K20*'Other input expert'!J$5","v":0},{"$f":"L20*'Other input expert'!K$5","v":0},{"$f":"M20*'Other input expert'!L$5","v":0},{"$f":"N20*'Other input expert'!M$5","v":0},null,{"$f":"C20*(100%-'Other input expert'!B$5)","v":0},{"$f":"D20*(100%-'Other input expert'!C$5)","v":0},{"$f":"E20*(100%-'Other input expert'!D$5)","v":0},{"$f":"F20*(100%-'Other input expert'!E$5)","v":0},{"$f":"G20*(100%-'Other input expert'!F$5)","v":0},{"$f":"H20*(100%-'Other input expert'!G$5)","v":0},{"$f":"I20*(100%-'Other input expert'!H$5)","v":0},{"$f":"J20*(100%-'Other input expert'!I$5)","v":0},{"$f":"K20*(100%-'Other input expert'!J$5)","v":0},{"$f":"L20*(100%-'Other input expert'!K$5)","v":0},{"$f":"M20*(100%-'Other input expert'!L$5)","v":0},{"$f":"N20*(100%-'Other input expert'!M$5)","v":0},null,{"$f":"P20*'Other input expert'!B$12*'Sales price per sales channel'!$G20*'Other input expert'!B$6","v":0},{"$f":"Q20*'Other input expert'!C$12*'Sales price per sales channel'!$G20*'Other input expert'!C$6","v":0},{"$f":"R20*'Other input expert'!D$12*'Sales price per sales channel'!$G20*'Other input expert'!D$6","v":0},{"$f":"S20*'Other input expert'!E$12*'Sales price per sales channel'!$G20*'Other input expert'!E$6","v":0},{"$f":"T20*'Other input expert'!F$12*'Sales price per sales channel'!$G20*'Other input expert'!F$6","v":0},{"$f":"U20*'Other input expert'!G$12*'Sales price per sales channel'!$G20*'Other input expert'!G$6","v":0},{"$f":"V20*'Other input expert'!H$12*'Sales price per sales channel'!$G20*'Other input expert'!H$6","v":0},{"$f":"W20*'Other input expert'!I$12*'Sales price per sales channel'!$G20*'Other input expert'!I$6","v":0},{"$f":"X20*'Other input expert'!J$12*'Sales price per sales channel'!$G20*'Other input expert'!J$6","v":0},{"$f":"Y20*'Other input expert'!K$12*'Sales price per sales channel'!$G20*'Other input expert'!K$6","v":0},{"$f":"Z20*'Other input expert'!L$12*'Sales price per sales channel'!$G20*'Other input expert'!L$6","v":0},{"$f":"AA20*'Other input expert'!M$12*'Sales price per sales channel'!$G20*'Other input expert'!M$6","v":0},null,{"$f":"P20*'Other input expert'!B$13*'Sales price per sales channel'!$H20*'Other input expert'!B$6","v":0},{"$f":"Q20*'Other input expert'!C$13*'Sales price per sales channel'!$H20*'Other input expert'!C$6","v":0},{"$f":"R20*'Other input expert'!D$13*'Sales price per sales channel'!$H20*'Other input expert'!D$6","v":0},{"$f":"S20*'Other input expert'!E$13*'Sales price per sales channel'!$H20*'Other input expert'!E$6","v":0},{"$f":"T20*'Other input expert'!F$13*'Sales price per sales channel'!$H20*'Other input expert'!F$6","v":0},{"$f":"U20*'Other input expert'!G$13*'Sales price per sales channel'!$H20*'Other input expert'!G$6","v":0},{"$f":"V20*'Other input expert'!H$13*'Sales price per sales channel'!$H20*'Other input expert'!H$6","v":0},{"$f":"W20*'Other input expert'!I$13*'Sales price per sales channel'!$H20*'Other input expert'!I$6","v":0},{"$f":"X20*'Other input expert'!J$13*'Sales price per sales channel'!$H20*'Other input expert'!J$6","v":0},{"$f":"Y20*'Other input expert'!K$13*'Sales price per sales channel'!$H20*'Other input expert'!K$6","v":0},{"$f":"Z20*'Other input expert'!L$13*'Sales price per sales channel'!$H20*'Other input expert'!L$6","v":0},{"$f":"AA20*'Other input expert'!M$13*'Sales price per sales channel'!$H20*'Other input expert'!M$6","v":0},null,{"$f":"P20*'Other input expert'!B$14*'Sales price per sales channel'!$I20*'Other input expert'!B$6","v":0},{"$f":"Q20*'Other input expert'!C$14*'Sales price per sales channel'!$I20*'Other input expert'!C$6","v":0},{"$f":"R20*'Other input expert'!D$14*'Sales price per sales channel'!$I20*'Other input expert'!D$6","v":0},{"$f":"S20*'Other input expert'!E$14*'Sales price per sales channel'!$I20*'Other input expert'!E$6","v":0},{"$f":"T20*'Other input expert'!F$14*'Sales price per sales channel'!$I20*'Other input expert'!F$6","v":0},{"$f":"U20*'Other input expert'!G$14*'Sales price per sales channel'!$I20*'Other input expert'!G$6","v":0},{"$f":"V20*'Other input expert'!H$14*'Sales price per sales channel'!$I20*'Other input expert'!H$6","v":0},{"$f":"W20*'Other input expert'!I$14*'Sales price per sales channel'!$I20*'Other input expert'!I$6","v":0},{"$f":"X20*'Other input expert'!J$14*'Sales price per sales channel'!$I20*'Other input expert'!J$6","v":0},{"$f":"Y20*'Other input expert'!K$14*'Sales price per sales channel'!$I20*'Other input expert'!K$6","v":0},{"$f":"Z20*'Other input expert'!L$14*'Sales price per sales channel'!$I20*'Other input expert'!L$6","v":0},{"$f":"AA20*'Other input expert'!M$14*'Sales price per sales channel'!$I20*'Other input expert'!M$6","v":0},null,{"$f":"AC20*'Other input expert'!B$12*'Sales price per sales channel'!$G20*'Other input expert'!B$7","v":0},{"$f":"AD20*'Other input expert'!C$12*'Sales price per sales channel'!$G20*'Other input expert'!C$7","v":0},{"$f":"AE20*'Other input expert'!D$12*'Sales price per sales channel'!$G20*'Other input expert'!D$7","v":0},{"$f":"AF20*'Other input expert'!E$12*'Sales price per sales channel'!$G20*'Other input expert'!E$7","v":0},{"$f":"AG20*'Other input expert'!F$12*'Sales price per sales channel'!$G20*'Other input expert'!F$7","v":0},{"$f":"AH20*'Other input expert'!G$12*'Sales price per sales channel'!$G20*'Other input expert'!G$7","v":0},{"$f":"AI20*'Other input expert'!H$12*'Sales price per sales channel'!$G20*'Other input expert'!H$7","v":0},{"$f":"AJ20*'Other input expert'!I$12*'Sales price per sales channel'!$G20*'Other input expert'!I$7","v":0},{"$f":"AK20*'Other input expert'!J$12*'Sales price per sales channel'!$G20*'Other input expert'!J$7","v":0},{"$f":"AL20*'Other input expert'!K$12*'Sales price per sales channel'!$G20*'Other input expert'!K$7","v":0},{"$f":"AM20*'Other input expert'!L$12*'Sales price per sales channel'!$G20*'Other input expert'!L$7","v":0},{"$f":"AN20*'Other input expert'!M$12*'Sales price per sales channel'!$G20*'Other input expert'!M$7","v":0},null,{"$f":"AC20*'Other input expert'!B$13*'Sales price per sales channel'!$H20*'Other input expert'!B$7","v":0},{"$f":"AD20*'Other input expert'!C$13*'Sales price per sales channel'!$H20*'Other input expert'!C$7","v":0},{"$f":"AE20*'Other input expert'!D$13*'Sales price per sales channel'!$H20*'Other input expert'!D$7","v":0},{"$f":"AF20*'Other input expert'!E$13*'Sales price per sales channel'!$H20*'Other input expert'!E$7","v":0},{"$f":"AG20*'Other input expert'!F$13*'Sales price per sales channel'!$H20*'Other input expert'!F$7","v":0},{"$f":"AH20*'Other input expert'!G$13*'Sales price per sales channel'!$H20*'Other input expert'!G$7","v":0},{"$f":"AI20*'Other input expert'!H$13*'Sales price per sales channel'!$H20*'Other input expert'!H$7","v":0},{"$f":"AJ20*'Other input expert'!I$13*'Sales price per sales channel'!$H20*'Other input expert'!I$7","v":0},{"$f":"AK20*'Other input expert'!J$13*'Sales price per sales channel'!$H20*'Other input expert'!J$7","v":0},{"$f":"AL20*'Other input expert'!K$13*'Sales price per sales channel'!$H20*'Other input expert'!K$7","v":0},{"$f":"AM20*'Other input expert'!L$13*'Sales price per sales channel'!$H20*'Other input expert'!L$7","v":0},{"$f":"AN20*'Other input expert'!M$13*'Sales price per sales channel'!$H20*'Other input expert'!M$7","v":0},null,{"$f":"AC20*'Other input expert'!B$14*'Sales price per sales channel'!$I20*'Other input expert'!B$7","v":0},{"$f":"AD20*'Other input expert'!C$14*'Sales price per sales channel'!$I20*'Other input expert'!C$7","v":0},{"$f":"AE20*'Other input expert'!D$14*'Sales price per sales channel'!$I20*'Other input expert'!D$7","v":0},{"$f":"AF20*'Other input expert'!E$14*'Sales price per sales channel'!$I20*'Other input expert'!E$7","v":0},{"$f":"AG20*'Other input expert'!F$14*'Sales price per sales channel'!$I20*'Other input expert'!F$7","v":0},{"$f":"AH20*'Other input expert'!G$14*'Sales price per sales channel'!$I20*'Other input expert'!G$7","v":0},{"$f":"AI20*'Other input expert'!H$14*'Sales price per sales channel'!$I20*'Other input expert'!H$7","v":0},{"$f":"AJ20*'Other input expert'!I$14*'Sales price per sales channel'!$I20*'Other input expert'!I$7","v":0},{"$f":"AK20*'Other input expert'!J$14*'Sales price per sales channel'!$I20*'Other input expert'!J$7","v":0},{"$f":"AL20*'Other input expert'!K$14*'Sales price per sales channel'!$I20*'Other input expert'!K$7","v":0},{"$f":"AM20*'Other input expert'!L$14*'Sales price per sales channel'!$I20*'Other input expert'!L$7","v":0},{"$f":"AN20*'Other input expert'!M$14*'Sales price per sales channel'!$I20*'Other input expert'!M$7","v":0}]
["Alnus incana","Gray alder",{"$f":"Plantlist!$G21*'Production list'!D22*'Other input expert'!B$4*'Other input expert'!B$8","v":0},{"$f":"Plantlist!$G21*'Production list'!E22*'Other input expert'!C$4*'Other input expert'!C$8","v":0},{"$f":"Plantlist!$G21*'Production list'!F22*'Other input expert'!D$4*'Other input expert'!D$8","v":0},{"$f":"Plantlist!$G21*'Production list'!G22*'Other input expert'!E$4*'Other input expert'!E$8","v":0},{"$f":"Plantlist!$G21*'Production list'!H22*'Other input expert'!F$4*'Other input expert'!F$8","v":0},{"$f":"Plantlist!$G21*'Production list'!I22*'Other input expert'!G$4*'Other input expert'!G$8","v":0},{"$f":"Plantlist!$G21*'Production list'!J22*'Other input expert'!H$4*'Other input expert'!H$8","v":0},{"$f":"Plantlist!$G21*'Production list'!K22*'Other input expert'!I$4*'Other input expert'!I$8","v":0},{"$f":"Plantlist!$G21*'Production list'!L22*'Other input expert'!J$4*'Other input expert'!J$8","v":0},{"$f":"Plantlist!$G21*'Production list'!M22*'Other input expert'!K$4*'Other input expert'!K$8","v":0},{"$f":"Plantlist!$G21*'Production list'!N22*'Other input expert'!L$4*'Other input expert'!L$8","v":0},{"$f":"Plantlist!$G21*'Production list'!O22*'Other input expert'!M$4*'Other input expert'!M$8","v":0},null,{"$f":"C21*'Other input expert'!B$5","v":0},{"$f":"D21*'Other input expert'!C$5","v":0},{"$f":"E21*'Other input expert'!D$5","v":0},{"$f":"F21*'Other input expert'!E$5","v":0},{"$f":"G21*'Other input expert'!F$5","v":0},{"$f":"H21*'Other input expert'!G$5","v":0},{"$f":"I21*'Other input expert'!H$5","v":0},{"$f":"J21*'Other input expert'!I$5","v":0},{"$f":"K21*'Other input expert'!J$5","v":0},{"$f":"L21*'Other input expert'!K$5","v":0},{"$f":"M21*'Other input expert'!L$5","v":0},{"$f":"N21*'Other input expert'!M$5","v":0},null,{"$f":"C21*(100%-'Other input expert'!B$5)","v":0},{"$f":"D21*(100%-'Other input expert'!C$5)","v":0},{"$f":"E21*(100%-'Other input expert'!D$5)","v":0},{"$f":"F21*(100%-'Other input expert'!E$5)","v":0},{"$f":"G21*(100%-'Other input expert'!F$5)","v":0},{"$f":"H21*(100%-'Other input expert'!G$5)","v":0},{"$f":"I21*(100%-'Other input expert'!H$5)","v":0},{"$f":"J21*(100%-'Other input expert'!I$5)","v":0},{"$f":"K21*(100%-'Other input expert'!J$5)","v":0},{"$f":"L21*(100%-'Other input expert'!K$5)","v":0},{"$f":"M21*(100%-'Other input expert'!L$5)","v":0},{"$f":"N21*(100%-'Other input expert'!M$5)","v":0},null,{"$f":"P21*'Other input expert'!B$12*'Sales price per sales channel'!$G21*'Other input expert'!B$6","v":0},{"$f":"Q21*'Other input expert'!C$12*'Sales price per sales channel'!$G21*'Other input expert'!C$6","v":0},{"$f":"R21*'Other input expert'!D$12*'Sales price per sales channel'!$G21*'Other input expert'!D$6","v":0},{"$f":"S21*'Other input expert'!E$12*'Sales price per sales channel'!$G21*'Other input expert'!E$6","v":0},{"$f":"T21*'Other input expert'!F$12*'Sales price per sales channel'!$G21*'Other input expert'!F$6","v":0},{"$f":"U21*'Other input expert'!G$12*'Sales price per sales channel'!$G21*'Other input expert'!G$6","v":0},{"$f":"V21*'Other input expert'!H$12*'Sales price per sales channel'!$G21*'Other input expert'!H$6","v":0},{"$f":"W21*'Other input expert'!I$12*'Sales price per sales channel'!$G21*'Other input expert'!I$6","v":0},{"$f":"X21*'Other input expert'!J$12*'Sales price per sales channel'!$G21*'Other input expert'!J$6","v":0},{"$f":"Y21*'Other input expert'!K$12*'Sales price per sales channel'!$G21*'Other input expert'!K$6","v":0},{"$f":"Z21*'Other input expert'!L$12*'Sales price per sales channel'!$G21*'Other input expert'!L$6","v":0},{"$f":"AA21*'Other input expert'!M$12*'Sales price per sales channel'!$G21*'Other input expert'!M$6","v":0},null,{"$f":"P21*'Other input expert'!B$13*'Sales price per sales channel'!$H21*'Other input expert'!B$6","v":0},{"$f":"Q21*'Other input expert'!C$13*'Sales price per sales channel'!$H21*'Other input expert'!C$6","v":0},{"$f":"R21*'Other input expert'!D$13*'Sales price per sales channel'!$H21*'Other input expert'!D$6","v":0},{"$f":"S21*'Other input expert'!E$13*'Sales price per sales channel'!$H21*'Other input expert'!E$6","v":0},{"$f":"T21*'Other input expert'!F$13*'Sales price per sales channel'!$H21*'Other input expert'!F$6","v":0},{"$f":"U21*'Other input expert'!G$13*'Sales price per sales channel'!$H21*'Other input expert'!G$6","v":0},{"$f":"V21*'Other input expert'!H$13*'Sales price per sales channel'!$H21*'Other input expert'!H$6","v":0},{"$f":"W21*'Other input expert'!I$13*'Sales price per sales channel'!$H21*'Other input expert'!I$6","v":0},{"$f":"X21*'Other input expert'!J$13*'Sales price per sales channel'!$H21*'Other input expert'!J$6","v":0},{"$f":"Y21*'Other input expert'!K$13*'Sales price per sales channel'!$H21*'Other input expert'!K$6","v":0},{"$f":"Z21*'Other input expert'!L$13*'Sales price per sales channel'!$H21*'Other input expert'!L$6","v":0},{"$f":"AA21*'Other input expert'!M$13*'Sales price per sales channel'!$H21*'Other input expert'!M$6","v":0},null,{"$f":"P21*'Other input expert'!B$14*'Sales price per sales channel'!$I21*'Other input expert'!B$6","v":0},{"$f":"Q21*'Other input expert'!C$14*'Sales price per sales channel'!$I21*'Other input expert'!C$6","v":0},{"$f":"R21*'Other input expert'!D$14*'Sales price per sales channel'!$I21*'Other input expert'!D$6","v":0},{"$f":"S21*'Other input expert'!E$14*'Sales price per sales channel'!$I21*'Other input expert'!E$6","v":0},{"$f":"T21*'Other input expert'!F$14*'Sales price per sales channel'!$I21*'Other input expert'!F$6","v":0},{"$f":"U21*'Other input expert'!G$14*'Sales price per sales channel'!$I21*'Other input expert'!G$6","v":0},{"$f":"V21*'Other input expert'!H$14*'Sales price per sales channel'!$I21*'Other input expert'!H$6","v":0},{"$f":"W21*'Other input expert'!I$14*'Sales price per sales channel'!$I21*'Other input expert'!I$6","v":0},{"$f":"X21*'Other input expert'!J$14*'Sales price per sales channel'!$I21*'Other input expert'!J$6","v":0},{"$f":"Y21*'Other input expert'!K$14*'Sales price per sales channel'!$I21*'Other input expert'!K$6","v":0},{"$f":"Z21*'Other input expert'!L$14*'Sales price per sales channel'!$I21*'Other input expert'!L$6","v":0},{"$f":"AA21*'Other input expert'!M$14*'Sales price per sales channel'!$I21*'Other input expert'!M$6","v":0},null,{"$f":"AC21*'Other input expert'!B$12*'Sales price per sales channel'!$G21*'Other input expert'!B$7","v":0},{"$f":"AD21*'Other input expert'!C$12*'Sales price per sales channel'!$G21*'Other input expert'!C$7","v":0},{"$f":"AE21*'Other input expert'!D$12*'Sales price per sales channel'!$G21*'Other input expert'!D$7","v":0},{"$f":"AF21*'Other input expert'!E$12*'Sales price per sales channel'!$G21*'Other input expert'!E$7","v":0},{"$f":"AG21*'Other input expert'!F$12*'Sales price per sales channel'!$G21*'Other input expert'!F$7","v":0},{"$f":"AH21*'Other input expert'!G$12*'Sales price per sales channel'!$G21*'Other input expert'!G$7","v":0},{"$f":"AI21*'Other input expert'!H$12*'Sales price per sales channel'!$G21*'Other input expert'!H$7","v":0},{"$f":"AJ21*'Other input expert'!I$12*'Sales price per sales channel'!$G21*'Other input expert'!I$7","v":0},{"$f":"AK21*'Other input expert'!J$12*'Sales price per sales channel'!$G21*'Other input expert'!J$7","v":0},{"$f":"AL21*'Other input expert'!K$12*'Sales price per sales channel'!$G21*'Other input expert'!K$7","v":0},{"$f":"AM21*'Other input expert'!L$12*'Sales price per sales channel'!$G21*'Other input expert'!L$7","v":0},{"$f":"AN21*'Other input expert'!M$12*'Sales price per sales channel'!$G21*'Other input expert'!M$7","v":0},null,{"$f":"AC21*'Other input expert'!B$13*'Sales price per sales channel'!$H21*'Other input expert'!B$7","v":0},{"$f":"AD21*'Other input expert'!C$13*'Sales price per sales channel'!$H21*'Other input expert'!C$7","v":0},{"$f":"AE21*'Other input expert'!D$13*'Sales price per sales channel'!$H21*'Other input expert'!D$7","v":0},{"$f":"AF21*'Other input expert'!E$13*'Sales price per sales channel'!$H21*'Other input expert'!E$7","v":0},{"$f":"AG21*'Other input expert'!F$13*'Sales price per sales channel'!$H21*'Other input expert'!F$7","v":0},{"$f":"AH21*'Other input expert'!G$13*'Sales price per sales channel'!$H21*'Other input expert'!G$7","v":0},{"$f":"AI21*'Other input expert'!H$13*'Sales price per sales channel'!$H21*'Other input expert'!H$7","v":0},{"$f":"AJ21*'Other input expert'!I$13*'Sales price per sales channel'!$H21*'Other input expert'!I$7","v":0},{"$f":"AK21*'Other input expert'!J$13*'Sales price per sales channel'!$H21*'Other input expert'!J$7","v":0},{"$f":"AL21*'Other input expert'!K$13*'Sales price per sales channel'!$H21*'Other input expert'!K$7","v":0},{"$f":"AM21*'Other input expert'!L$13*'Sales price per sales channel'!$H21*'Other input expert'!L$7","v":0},{"$f":"AN21*'Other input expert'!M$13*'Sales price per sales channel'!$H21*'Other input expert'!M$7","v":0},null,{"$f":"AC21*'Other input expert'!B$14*'Sales price per sales channel'!$I21*'Other input expert'!B$7","v":0},{"$f":"AD21*'Other input expert'!C$14*'Sales price per sales channel'!$I21*'Other input expert'!C$7","v":0},{"$f":"AE21*'Other input expert'!D$14*'Sales price per sales channel'!$I21*'Other input expert'!D$7","v":0},{"$f":"AF21*'Other input expert'!E$14*'Sales price per sales channel'!$I21*'Other input expert'!E$7","v":0},{"$f":"AG21*'Other input expert'!F$14*'Sales price per sales channel'!$I21*'Other input expert'!F$7","v":0},{"$f":"AH21*'Other input expert'!G$14*'Sales price per sales channel'!$I21*'Other input expert'!G$7","v":0},{"$f":"AI21*'Other input expert'!H$14*'Sales price per sales channel'!$I21*'Other input expert'!H$7","v":0},{"$f":"AJ21*'Other input expert'!I$14*'Sales price per sales channel'!$I21*'Other input expert'!I$7","v":0},{"$f":"AK21*'Other input expert'!J$14*'Sales price per sales channel'!$I21*'Other input expert'!J$7","v":0},{"$f":"AL21*'Other input expert'!K$14*'Sales price per sales channel'!$I21*'Other input expert'!K$7","v":0},{"$f":"AM21*'Other input expert'!L$14*'Sales price per sales channel'!$I21*'Other input expert'!L$7","v":0},{"$f":"AN21*'Other input expert'!M$14*'Sales price per sales channel'!$I21*'Other input expert'!M$7","v":0}]
["Aloysia citrodora","Lemon verbena",{"$f":"Plantlist!$G22*'Production list'!D23*'Other input expert'!B$4*'Other input expert'!B$8","v":0},{"$f":"Plantlist!$G22*'Production list'!E23*'Other input expert'!C$4*'Other input expert'!C$8","v":0},{"$f":"Plantlist!$G22*'Production list'!F23*'Other input expert'!D$4*'Other input expert'!D$8","v":0},{"$f":"Plantlist!$G22*'Production list'!G23*'Other input expert'!E$4*'Other input expert'!E$8","v":0},{"$f":"Plantlist!$G22*'Production list'!H23*'Other input expert'!F$4*'Other input expert'!F$8","v":0},{"$f":"Plantlist!$G22*'Production list'!I23*'Other input expert'!G$4*'Other input expert'!G$8","v":0},{"$f":"Plantlist!$G22*'Production list'!J23*'Other input expert'!H$4*'Other input expert'!H$8","v":0},{"$f":"Plantlist!$G22*'Production list'!K23*'Other input expert'!I$4*'Other input expert'!I$8","v":0},{"$f":"Plantlist!$G22*'Production list'!L23*'Other input expert'!J$4*'Other input expert'!J$8","v":0},{"$f":"Plantlist!$G22*'Production list'!M23*'Other input expert'!K$4*'Other input expert'!K$8","v":0},{"$f":"Plantlist!$G22*'Production list'!N23*'Other input expert'!L$4*'Other input expert'!L$8","v":0},{"$f":"Plantlist!$G22*'Production list'!O23*'Other input expert'!M$4*'Other input expert'!M$8","v":0},null,{"$f":"C22*'Other input expert'!B$5","v":0},{"$f":"D22*'Other input expert'!C$5","v":0},{"$f":"E22*'Other input expert'!D$5","v":0},{"$f":"F22*'Other input expert'!E$5","v":0},{"$f":"G22*'Other input expert'!F$5","v":0},{"$f":"H22*'Other input expert'!G$5","v":0},{"$f":"I22*'Other input expert'!H$5","v":0},{"$f":"J22*'Other input expert'!I$5","v":0},{"$f":"K22*'Other input expert'!J$5","v":0},{"$f":"L22*'Other input expert'!K$5","v":0},{"$f":"M22*'Other input expert'!L$5","v":0},{"$f":"N22*'Other input expert'!M$5","v":0},null,{"$f":"C22*(100%-'Other input expert'!B$5)","v":0},{"$f":"D22*(100%-'Other input expert'!C$5)","v":0},{"$f":"E22*(100%-'Other input expert'!D$5)","v":0},{"$f":"F22*(100%-'Other input expert'!E$5)","v":0},{"$f":"G22*(100%-'Other input expert'!F$5)","v":0},{"$f":"H22*(100%-'Other input expert'!G$5)","v":0},{"$f":"I22*(100%-'Other input expert'!H$5)","v":0},{"$f":"J22*(100%-'Other input expert'!I$5)","v":0},{"$f":"K22*(100%-'Other input expert'!J$5)","v":0},{"$f":"L22*(100%-'Other input expert'!K$5)","v":0},{"$f":"M22*(100%-'Other input expert'!L$5)","v":0},{"$f":"N22*(100%-'Other input expert'!M$5)","v":0},null,{"$f":"P22*'Other input expert'!B$12*'Sales price per sales channel'!$G22*'Other input expert'!B$6","v":0},{"$f":"Q22*'Other input expert'!C$12*'Sales price per sales channel'!$G22*'Other input expert'!C$6","v":0},{"$f":"R22*'Other input expert'!D$12*'Sales price per sales channel'!$G22*'Other input expert'!D$6","v":0},{"$f":"S22*'Other input expert'!E$12*'Sales price per sales channel'!$G22*'Other input expert'!E$6","v":0},{"$f":"T22*'Other input expert'!F$12*'Sales price per sales channel'!$G22*'Other input expert'!F$6","v":0},{"$f":"U22*'Other input expert'!G$12*'Sales price per sales channel'!$G22*'Other input expert'!G$6","v":0},{"$f":"V22*'Other input expert'!H$12*'Sales price per sales channel'!$G22*'Other input expert'!H$6","v":0},{"$f":"W22*'Other input expert'!I$12*'Sales price per sales channel'!$G22*'Other input expert'!I$6","v":0},{"$f":"X22*'Other input expert'!J$12*'Sales price per sales channel'!$G22*'Other input expert'!J$6","v":0},{"$f":"Y22*'Other input expert'!K$12*'Sales price per sales channel'!$G22*'Other input expert'!K$6","v":0},{"$f":"Z22*'Other input expert'!L$12*'Sales price per sales channel'!$G22*'Other input expert'!L$6","v":0},{"$f":"AA22*'Other input expert'!M$12*'Sales price per sales channel'!$G22*'Other input expert'!M$6","v":0},null,{"$f":"P22*'Other input expert'!B$13*'Sales price per sales channel'!$H22*'Other input expert'!B$6","v":0},{"$f":"Q22*'Other input expert'!C$13*'Sales price per sales channel'!$H22*'Other input expert'!C$6","v":0},{"$f":"R22*'Other input expert'!D$13*'Sales price per sales channel'!$H22*'Other input expert'!D$6","v":0},{"$f":"S22*'Other input expert'!E$13*'Sales price per sales channel'!$H22*'Other input expert'!E$6","v":0},{"$f":"T22*'Other input expert'!F$13*'Sales price per sales channel'!$H22*'Other input expert'!F$6","v":0},{"$f":"U22*'Other input expert'!G$13*'Sales price per sales channel'!$H22*'Other input expert'!G$6","v":0},{"$f":"V22*'Other input expert'!H$13*'Sales price per sales channel'!$H22*'Other input expert'!H$6","v":0},{"$f":"W22*'Other input expert'!I$13*'Sales price per sales channel'!$H22*'Other input expert'!I$6","v":0},{"$f":"X22*'Other input expert'!J$13*'Sales price per sales channel'!$H22*'Other input expert'!J$6","v":0},{"$f":"Y22*'Other input expert'!K$13*'Sales price per sales channel'!$H22*'Other input expert'!K$6","v":0},{"$f":"Z22*'Other input expert'!L$13*'Sales price per sales channel'!$H22*'Other input expert'!L$6","v":0},{"$f":"AA22*'Other input expert'!M$13*'Sales price per sales channel'!$H22*'Other input expert'!M$6","v":0},null,{"$f":"P22*'Other input expert'!B$14*'Sales price per sales channel'!$I22*'Other input expert'!B$6","v":0},{"$f":"Q22*'Other input expert'!C$14*'Sales price per sales channel'!$I22*'Other input expert'!C$6","v":0},{"$f":"R22*'Other input expert'!D$14*'Sales price per sales channel'!$I22*'Other input expert'!D$6","v":0},{"$f":"S22*'Other input expert'!E$14*'Sales price per sales channel'!$I22*'Other input expert'!E$6","v":0},{"$f":"T22*'Other input expert'!F$14*'Sales price per sales channel'!$I22*'Other input expert'!F$6","v":0},{"$f":"U22*'Other input expert'!G$14*'Sales price per sales channel'!$I22*'Other input expert'!G$6","v":0},{"$f":"V22*'Other input expert'!H$14*'Sales price per sales channel'!$I22*'Other input expert'!H$6","v":0},{"$f":"W22*'Other input expert'!I$14*'Sales price per sales channel'!$I22*'Other input expert'!I$6","v":0},{"$f":"X22*'Other input expert'!J$14*'Sales price per sales channel'!$I22*'Other input expert'!J$6","v":0},{"$f":"Y22*'Other input expert'!K$14*'Sales price per sales channel'!$I22*'Other input expert'!K$6","v":0},{"$f":"Z22*'Other input expert'!L$14*'Sales price per sales channel'!$I22*'Other input expert'!L$6","v":0},{"$f":"AA22*'Other input expert'!M$14*'Sales price per sales channel'!$I22*'Other input expert'!M$6","v":0},null,{"$f":"AC22*'Other input expert'!B$12*'Sales price per sales channel'!$G22*'Other input expert'!B$7","v":0},{"$f":"AD22*'Other input expert'!C$12*'Sales price per sales channel'!$G22*'Other input expert'!C$7","v":0},{"$f":"AE22*'Other input expert'!D$12*'Sales price per sales channel'!$G22*'Other input expert'!D$7","v":0},{"$f":"AF22*'Other input expert'!E$12*'Sales price per sales channel'!$G22*'Other input expert'!E$7","v":0},{"$f":"AG22*'Other input expert'!F$12*'Sales price per sales channel'!$G22*'Other input expert'!F$7","v":0},{"$f":"AH22*'Other input expert'!G$12*'Sales price per sales channel'!$G22*'Other input expert'!G$7","v":0},{"$f":"AI22*'Other input expert'!H$12*'Sales price per sales channel'!$G22*'Other input expert'!H$7","v":0},{"$f":"AJ22*'Other input expert'!I$12*'Sales price per sales channel'!$G22*'Other input expert'!I$7","v":0},{"$f":"AK22*'Other input expert'!J$12*'Sales price per sales channel'!$G22*'Other input expert'!J$7","v":0},{"$f":"AL22*'Other input expert'!K$12*'Sales price per sales channel'!$G22*'Other input expert'!K$7","v":0},{"$f":"AM22*'Other input expert'!L$12*'Sales price per sales channel'!$G22*'Other input expert'!L$7","v":0},{"$f":"AN22*'Other input expert'!M$12*'Sales price per sales channel'!$G22*'Other input expert'!M$7","v":0},null,{"$f":"AC22*'Other input expert'!B$13*'Sales price per sales channel'!$H22*'Other input expert'!B$7","v":0},{"$f":"AD22*'Other input expert'!C$13*'Sales price per sales channel'!$H22*'Other input expert'!C$7","v":0},{"$f":"AE22*'Other input expert'!D$13*'Sales price per sales channel'!$H22*'Other input expert'!D$7","v":0},{"$f":"AF22*'Other input expert'!E$13*'Sales price per sales channel'!$H22*'Other input expert'!E$7","v":0},{"$f":"AG22*'Other input expert'!F$13*'Sales price per sales channel'!$H22*'Other input expert'!F$7","v":0},{"$f":"AH22*'Other input expert'!G$13*'Sales price per sales channel'!$H22*'Other input expert'!G$7","v":0},{"$f":"AI22*'Other input expert'!H$13*'Sales price per sales channel'!$H22*'Other input expert'!H$7","v":0},{"$f":"AJ22*'Other input expert'!I$13*'Sales price per sales channel'!$H22*'Other input expert'!I$7","v":0},{"$f":"AK22*'Other input expert'!J$13*'Sales price per sales channel'!$H22*'Other input expert'!J$7","v":0},{"$f":"AL22*'Other input expert'!K$13*'Sales price per sales channel'!$H22*'Other input expert'!K$7","v":0},{"$f":"AM22*'Other input expert'!L$13*'Sales price per sales channel'!$H22*'Other input expert'!L$7","v":0},{"$f":"AN22*'Other input expert'!M$13*'Sales price per sales channel'!$H22*'Other input expert'!M$7","v":0},null,{"$f":"AC22*'Other input expert'!B$14*'Sales price per sales channel'!$I22*'Other input expert'!B$7","v":0},{"$f":"AD22*'Other input expert'!C$14*'Sales price per sales channel'!$I22*'Other input expert'!C$7","v":0},{"$f":"AE22*'Other input expert'!D$14*'Sales price per sales channel'!$I22*'Other input expert'!D$7","v":0},{"$f":"AF22*'Other input expert'!E$14*'Sales price per sales channel'!$I22*'Other input expert'!E$7","v":0},{"$f":"AG22*'Other input expert'!F$14*'Sales price per sales channel'!$I22*'Other input expert'!F$7","v":0},{"$f":"AH22*'Other input expert'!G$14*'Sales price per sales channel'!$I22*'Other input expert'!G$7","v":0},{"$f":"AI22*'Other input expert'!H$14*'Sales price per sales channel'!$I22*'Other input expert'!H$7","v":0},{"$f":"AJ22*'Other input expert'!I$14*'Sales price per sales channel'!$I22*'Other input expert'!I$7","v":0},{"$f":"AK22*'Other input expert'!J$14*'Sales price per sales channel'!$I22*'Other input expert'!J$7","v":0},{"$f":"AL22*'Other input expert'!K$14*'Sales price per sales channel'!$I22*'Other input expert'!K$7","v":0},{"$f":"AM22*'Other input expert'!L$14*'Sales price per sales channel'!$I22*'Other input expert'!L$7","v":0},{"$f":"AN22*'Other input expert'!M$14*'Sales price per sales channel'!$I22*'Other input expert'!M$7","v":0}]
["Amelanchier alnifolia","Saskatoon serviceberry",{"$f":"Plantlist!$G23*'Production list'!D24*'Other input expert'!B$4*'Other input expert'!B$8","v":0},{"$f":"Plantlist!$G23*'Production list'!E24*'Other input expert'!C$4*'Other input expert'!C$8","v":0},{"$f":"Plantlist!$G23*'Production list'!F24*'Other input expert'!D$4*'Other input expert'!D$8","v":0},{"$f":"Plantlist!$G23*'Production list'!G24*'Other input expert'!E$4*'Other input expert'!E$8","v":0},{"$f":"Plantlist!$G23*'Production list'!H24*'Other input expert'!F$4*'Other input expert'!F$8","v":0},{"$f":"Plantlist!$G23*'Production list'!I24*'Other input expert'!G$4*'Other input expert'!G$8","v":0},{"$f":"Plantlist!$G23*'Production list'!J24*'Other input expert'!H$4*'Other input expert'!H$8","v":0},{"$f":"Plantlist!$G23*'Production list'!K24*'Other input expert'!I$4*'Other input expert'!I$8","v":0},{"$f":"Plantlist!$G23*'Production list'!L24*'Other input expert'!J$4*'Other input expert'!J$8","v":0},{"$f":"Plantlist!$G23*'Production list'!M24*'Other input expert'!K$4*'Other input expert'!K$8","v":0},{"$f":"Plantlist!$G23*'Production list'!N24*'Other input expert'!L$4*'Other input expert'!L$8","v":0},{"$f":"Plantlist!$G23*'Production list'!O24*'Other input expert'!M$4*'Other input expert'!M$8","v":0},null,{"$f":"C23*'Other input expert'!B$5","v":0},{"$f":"D23*'Other input expert'!C$5","v":0},{"$f":"E23*'Other input expert'!D$5","v":0},{"$f":"F23*'Other input expert'!E$5","v":0},{"$f":"G23*'Other input expert'!F$5","v":0},{"$f":"H23*'Other input expert'!G$5","v":0},{"$f":"I23*'Other input expert'!H$5","v":0},{"$f":"J23*'Other input expert'!I$5","v":0},{"$f":"K23*'Other input expert'!J$5","v":0},{"$f":"L23*'Other input expert'!K$5","v":0},{"$f":"M23*'Other input expert'!L$5","v":0},{"$f":"N23*'Other input expert'!M$5","v":0},null,{"$f":"C23*(100%-'Other input expert'!B$5)","v":0},{"$f":"D23*(100%-'Other input expert'!C$5)","v":0},{"$f":"E23*(100%-'Other input expert'!D$5)","v":0},{"$f":"F23*(100%-'Other input expert'!E$5)","v":0},{"$f":"G23*(100%-'Other input expert'!F$5)","v":0},{"$f":"H23*(100%-'Other input expert'!G$5)","v":0},{"$f":"I23*(100%-'Other input expert'!H$5)","v":0},{"$f":"J23*(100%-'Other input expert'!I$5)","v":0},{"$f":"K23*(100%-'Other input expert'!J$5)","v":0},{"$f":"L23*(100%-'Other input expert'!K$5)","v":0},{"$f":"M23*(100%-'Other input expert'!L$5)","v":0},{"$f":"N23*(100%-'Other input expert'!M$5)","v":0},null,{"$f":"P23*'Other input expert'!B$12*'Sales price per sales channel'!$G23*'Other input expert'!B$6","v":0},{"$f":"Q23*'Other input expert'!C$12*'Sales price per sales channel'!$G23*'Other input expert'!C$6","v":0},{"$f":"R23*'Other input expert'!D$12*'Sales price per sales channel'!$G23*'Other input expert'!D$6","v":0},{"$f":"S23*'Other input expert'!E$12*'Sales price per sales channel'!$G23*'Other input expert'!E$6","v":0},{"$f":"T23*'Other input expert'!F$12*'Sales price per sales channel'!$G23*'Other input expert'!F$6","v":0},{"$f":"U23*'Other input expert'!G$12*'Sales price per sales channel'!$G23*'Other input expert'!G$6","v":0},{"$f":"V23*'Other input expert'!H$12*'Sales price per sales channel'!$G23*'Other input expert'!H$6","v":0},{"$f":"W23*'Other input expert'!I$12*'Sales price per sales channel'!$G23*'Other input expert'!I$6","v":0},{"$f":"X23*'Other input expert'!J$12*'Sales price per sales channel'!$G23*'Other input expert'!J$6","v":0},{"$f":"Y23*'Other input expert'!K$12*'Sales price per sales channel'!$G23*'Other input expert'!K$6","v":0},{"$f":"Z23*'Other input expert'!L$12*'Sales price per sales channel'!$G23*'Other input expert'!L$6","v":0},{"$f":"AA23*'Other input expert'!M$12*'Sales price per sales channel'!$G23*'Other input expert'!M$6","v":0},null,{"$f":"P23*'Other input expert'!B$13*'Sales price per sales channel'!$H23*'Other input expert'!B$6","v":0},{"$f":"Q23*'Other input expert'!C$13*'Sales price per sales channel'!$H23*'Other input expert'!C$6","v":0},{"$f":"R23*'Other input expert'!D$13*'Sales price per sales channel'!$H23*'Other input expert'!D$6","v":0},{"$f":"S23*'Other input expert'!E$13*'Sales price per sales channel'!$H23*'Other input expert'!E$6","v":0},{"$f":"T23*'Other input expert'!F$13*'Sales price per sales channel'!$H23*'Other input expert'!F$6","v":0},{"$f":"U23*'Other input expert'!G$13*'Sales price per sales channel'!$H23*'Other input expert'!G$6","v":0},{"$f":"V23*'Other input expert'!H$13*'Sales price per sales channel'!$H23*'Other input expert'!H$6","v":0},{"$f":"W23*'Other input expert'!I$13*'Sales price per sales channel'!$H23*'Other input expert'!I$6","v":0},{"$f":"X23*'Other input expert'!J$13*'Sales price per sales channel'!$H23*'Other input expert'!J$6","v":0},{"$f":"Y23*'Other input expert'!K$13*'Sales price per sales channel'!$H23*'Other input expert'!K$6","v":0},{"$f":"Z23*'Other input expert'!L$13*'Sales price per sales channel'!$H23*'Other input expert'!L$6","v":0},{"$f":"AA23*'Other input expert'!M$13*'Sales price per sales channel'!$H23*'Other input expert'!M$6","v":0},null,{"$f":"P23*'Other input expert'!B$14*'Sales price per sales channel'!$I23*'Other input expert'!B$6","v":0},{"$f":"Q23*'Other input expert'!C$14*'Sales price per sales channel'!$I23*'Other input expert'!C$6","v":0},{"$f":"R23*'Other input expert'!D$14*'Sales price per sales channel'!$I23*'Other input expert'!D$6","v":0},{"$f":"S23*'Other input expert'!E$14*'Sales price per sales channel'!$I23*'Other input expert'!E$6","v":0},{"$f":"T23*'Other input expert'!F$14*'Sales price per sales channel'!$I23*'Other input expert'!F$6","v":0},{"$f":"U23*'Other input expert'!G$14*'Sales price per sales channel'!$I23*'Other input expert'!G$6","v":0},{"$f":"V23*'Other input expert'!H$14*'Sales price per sales channel'!$I23*'Other input expert'!H$6","v":0},{"$f":"W23*'Other input expert'!I$14*'Sales price per sales channel'!$I23*'Other input expert'!I$6","v":0},{"$f":"X23*'Other input expert'!J$14*'Sales price per sales channel'!$I23*'Other input expert'!J$6","v":0},{"$f":"Y23*'Other input expert'!K$14*'Sales price per sales channel'!$I23*'Other input expert'!K$6","v":0},{"$f":"Z23*'Other input expert'!L$14*'Sales price per sales channel'!$I23*'Other input expert'!L$6","v":0},{"$f":"AA23*'Other input expert'!M$14*'Sales price per sales channel'!$I23*'Other input expert'!M$6","v":0},null,{"$f":"AC23*'Other input expert'!B$12*'Sales price per sales channel'!$G23*'Other input expert'!B$7","v":0},{"$f":"AD23*'Other input expert'!C$12*'Sales price per sales channel'!$G23*'Other input expert'!C$7","v":0},{"$f":"AE23*'Other input expert'!D$12*'Sales price per sales channel'!$G23*'Other input expert'!D$7","v":0},{"$f":"AF23*'Other input expert'!E$12*'Sales price per sales channel'!$G23*'Other input expert'!E$7","v":0},{"$f":"AG23*'Other input expert'!F$12*'Sales price per sales channel'!$G23*'Other input expert'!F$7","v":0},{"$f":"AH23*'Other input expert'!G$12*'Sales price per sales channel'!$G23*'Other input expert'!G$7","v":0},{"$f":"AI23*'Other input expert'!H$12*'Sales price per sales channel'!$G23*'Other input expert'!H$7","v":0},{"$f":"AJ23*'Other input expert'!I$12*'Sales price per sales channel'!$G23*'Other input expert'!I$7","v":0},{"$f":"AK23*'Other input expert'!J$12*'Sales price per sales channel'!$G23*'Other input expert'!J$7","v":0},{"$f":"AL23*'Other input expert'!K$12*'Sales price per sales channel'!$G23*'Other input expert'!K$7","v":0},{"$f":"AM23*'Other input expert'!L$12*'Sales price per sales channel'!$G23*'Other input expert'!L$7","v":0},{"$f":"AN23*'Other input expert'!M$12*'Sales price per sales channel'!$G23*'Other input expert'!M$7","v":0},null,{"$f":"AC23*'Other input expert'!B$13*'Sales price per sales channel'!$H23*'Other input expert'!B$7","v":0},{"$f":"AD23*'Other input expert'!C$13*'Sales price per sales channel'!$H23*'Other input expert'!C$7","v":0},{"$f":"AE23*'Other input expert'!D$13*'Sales price per sales channel'!$H23*'Other input expert'!D$7","v":0},{"$f":"AF23*'Other input expert'!E$13*'Sales price per sales channel'!$H23*'Other input expert'!E$7","v":0},{"$f":"AG23*'Other input expert'!F$13*'Sales price per sales channel'!$H23*'Other input expert'!F$7","v":0},{"$f":"AH23*'Other input expert'!G$13*'Sales price per sales channel'!$H23*'Other input expert'!G$7","v":0},{"$f":"AI23*'Other input expert'!H$13*'Sales price per sales channel'!$H23*'Other input expert'!H$7","v":0},{"$f":"AJ23*'Other input expert'!I$13*'Sales price per sales channel'!$H23*'Other input expert'!I$7","v":0},{"$f":"AK23*'Other input expert'!J$13*'Sales price per sales channel'!$H23*'Other input expert'!J$7","v":0},{"$f":"AL23*'Other input expert'!K$13*'Sales price per sales channel'!$H23*'Other input expert'!K$7","v":0},{"$f":"AM23*'Other input expert'!L$13*'Sales price per sales channel'!$H23*'Other input expert'!L$7","v":0},{"$f":"AN23*'Other input expert'!M$13*'Sales price per sales channel'!$H23*'Other input expert'!M$7","v":0},null,{"$f":"AC23*'Other input expert'!B$14*'Sales price per sales channel'!$I23*'Other input expert'!B$7","v":0},{"$f":"AD23*'Other input expert'!C$14*'Sales price per sales channel'!$I23*'Other input expert'!C$7","v":0},{"$f":"AE23*'Other input expert'!D$14*'Sales price per sales channel'!$I23*'Other input expert'!D$7","v":0},{"$f":"AF23*'Other input expert'!E$14*'Sales price per sales channel'!$I23*'Other input expert'!E$7","v":0},{"$f":"AG23*'Other input expert'!F$14*'Sales price per sales channel'!$I23*'Other input expert'!F$7","v":0},{"$f":"AH23*'Other input expert'!G$14*'Sales price per sales channel'!$I23*'Other input expert'!G$7","v":0},{"$f":"AI23*'Other input expert'!H$14*'Sales price per sales channel'!$I23*'Other input expert'!H$7","v":0},{"$f":"AJ23*'Other input expert'!I$14*'Sales price per sales channel'!$I23*'Other input expert'!I$7","v":0},{"$f":"AK23*'Other input expert'!J$14*'Sales price per sales channel'!$I23*'Other input expert'!J$7","v":0},{"$f":"AL23*'Other input expert'!K$14*'Sales price per sales channel'!$I23*'Other input expert'!K$7","v":0},{"$f":"AM23*'Other input expert'!L$14*'Sales price per sales channel'!$I23*'Other input expert'!L$7","v":0},{"$f":"AN23*'Other input expert'!M$14*'Sales price per sales channel'!$I23*'Other input expert'!M$7","v":0}]
["Amelanchier laevis","serviceberry",{"$f":"Plantlist!$G24*'Production list'!D25*'Other input expert'!B$4*'Other input expert'!B$8","v":0},{"$f":"Plantlist!$G24*'Production list'!E25*'Other input expert'!C$4*'Other input expert'!C$8","v":0},{"$f":"Plantlist!$G24*'Production list'!F25*'Other input expert'!D$4*'Other input expert'!D$8","v":0},{"$f":"Plantlist!$G24*'Production list'!G25*'Other input expert'!E$4*'Other input expert'!E$8","v":0},{"$f":"Plantlist!$G24*'Production list'!H25*'Other input expert'!F$4*'Other input expert'!F$8","v":0},{"$f":"Plantlist!$G24*'Production list'!I25*'Other input expert'!G$4*'Other input expert'!G$8","v":0},{"$f":"Plantlist!$G24*'Production list'!J25*'Other input expert'!H$4*'Other input expert'!H$8","v":0},{"$f":"Plantlist!$G24*'Production list'!K25*'Other input expert'!I$4*'Other input expert'!I$8","v":0},{"$f":"Plantlist!$G24*'Production list'!L25*'Other input expert'!J$4*'Other input expert'!J$8","v":0},{"$f":"Plantlist!$G24*'Production list'!M25*'Other input expert'!K$4*'Other input expert'!K$8","v":0},{"$f":"Plantlist!$G24*'Production list'!N25*'Other input expert'!L$4*'Other input expert'!L$8","v":0},{"$f":"Plantlist!$G24*'Production list'!O25*'Other input expert'!M$4*'Other input expert'!M$8","v":0},null,{"$f":"C24*'Other input expert'!B$5","v":0},{"$f":"D24*'Other input expert'!C$5","v":0},{"$f":"E24*'Other input expert'!D$5","v":0},{"$f":"F24*'Other input expert'!E$5","v":0},{"$f":"G24*'Other input expert'!F$5","v":0},{"$f":"H24*'Other input expert'!G$5","v":0},{"$f":"I24*'Other input expert'!H$5","v":0},{"$f":"J24*'Other input expert'!I$5","v":0},{"$f":"K24*'Other input expert'!J$5","v":0},{"$f":"L24*'Other input expert'!K$5","v":0},{"$f":"M24*'Other input expert'!L$5","v":0},{"$f":"N24*'Other input expert'!M$5","v":0},null,{"$f":"C24*(100%-'Other input expert'!B$5)","v":0},{"$f":"D24*(100%-'Other input expert'!C$5)","v":0},{"$f":"E24*(100%-'Other input expert'!D$5)","v":0},{"$f":"F24*(100%-'Other input expert'!E$5)","v":0},{"$f":"G24*(100%-'Other input expert'!F$5)","v":0},{"$f":"H24*(100%-'Other input expert'!G$5)","v":0},{"$f":"I24*(100%-'Other input expert'!H$5)","v":0},{"$f":"J24*(100%-'Other input expert'!I$5)","v":0},{"$f":"K24*(100%-'Other input expert'!J$5)","v":0},{"$f":"L24*(100%-'Other input expert'!K$5)","v":0},{"$f":"M24*(100%-'Other input expert'!L$5)","v":0},{"$f":"N24*(100%-'Other input expert'!M$5)","v":0},null,{"$f":"P24*'Other input expert'!B$12*'Sales price per sales channel'!$G24*'Other input expert'!B$6","v":0},{"$f":"Q24*'Other input expert'!C$12*'Sales price per sales channel'!$G24*'Other input expert'!C$6","v":0},{"$f":"R24*'Other input expert'!D$12*'Sales price per sales channel'!$G24*'Other input expert'!D$6","v":0},{"$f":"S24*'Other input expert'!E$12*'Sales price per sales channel'!$G24*'Other input expert'!E$6","v":0},{"$f":"T24*'Other input expert'!F$12*'Sales price per sales channel'!$G24*'Other input expert'!F$6","v":0},{"$f":"U24*'Other input expert'!G$12*'Sales price per sales channel'!$G24*'Other input expert'!G$6","v":0},{"$f":"V24*'Other input expert'!H$12*'Sales price per sales channel'!$G24*'Other input expert'!H$6","v":0},{"$f":"W24*'Other input expert'!I$12*'Sales price per sales channel'!$G24*'Other input expert'!I$6","v":0},{"$f":"X24*'Other input expert'!J$12*'Sales price per sales channel'!$G24*'Other input expert'!J$6","v":0},{"$f":"Y24*'Other input expert'!K$12*'Sales price per sales channel'!$G24*'Other input expert'!K$6","v":0},{"$f":"Z24*'Other input expert'!L$12*'Sales price per sales channel'!$G24*'Other input expert'!L$6","v":0},{"$f":"AA24*'Other input expert'!M$12*'Sales price per sales channel'!$G24*'Other input expert'!M$6","v":0},null,{"$f":"P24*'Other input expert'!B$13*'Sales price per sales channel'!$H24*'Other input expert'!B$6","v":0},{"$f":"Q24*'Other input expert'!C$13*'Sales price per sales channel'!$H24*'Other input expert'!C$6","v":0},{"$f":"R24*'Other input expert'!D$13*'Sales price per sales channel'!$H24*'Other input expert'!D$6","v":0},{"$f":"S24*'Other input expert'!E$13*'Sales price per sales channel'!$H24*'Other input expert'!E$6","v":0},{"$f":"T24*'Other input expert'!F$13*'Sales price per sales channel'!$H24*'Other input expert'!F$6","v":0},{"$f":"U24*'Other input expert'!G$13*'Sales price per sales channel'!$H24*'Other input expert'!G$6","v":0},{"$f":"V24*'Other input expert'!H$13*'Sales price per sales channel'!$H24*'Other input expert'!H$6","v":0},{"$f":"W24*'Other input expert'!I$13*'Sales price per sales channel'!$H24*'Other input expert'!I$6","v":0},{"$f":"X24*'Other input expert'!J$13*'Sales price per sales channel'!$H24*'Other input expert'!J$6","v":0},{"$f":"Y24*'Other input expert'!K$13*'Sales price per sales channel'!$H24*'Other input expert'!K$6","v":0},{"$f":"Z24*'Other input expert'!L$13*'Sales price per sales channel'!$H24*'Other input expert'!L$6","v":0},{"$f":"AA24*'Other input expert'!M$13*'Sales price per sales channel'!$H24*'Other input expert'!M$6","v":0},null,{"$f":"P24*'Other input expert'!B$14*'Sales price per sales channel'!$I24*'Other input expert'!B$6","v":0},{"$f":"Q24*'Other input expert'!C$14*'Sales price per sales channel'!$I24*'Other input expert'!C$6","v":0},{"$f":"R24*'Other input expert'!D$14*'Sales price per sales channel'!$I24*'Other input expert'!D$6","v":0},{"$f":"S24*'Other input expert'!E$14*'Sales price per sales channel'!$I24*'Other input expert'!E$6","v":0},{"$f":"T24*'Other input expert'!F$14*'Sales price per sales channel'!$I24*'Other input expert'!F$6","v":0},{"$f":"U24*'Other input expert'!G$14*'Sales price per sales channel'!$I24*'Other input expert'!G$6","v":0},{"$f":"V24*'Other input expert'!H$14*'Sales price per sales channel'!$I24*'Other input expert'!H$6","v":0},{"$f":"W24*'Other input expert'!I$14*'Sales price per sales channel'!$I24*'Other input expert'!I$6","v":0},{"$f":"X24*'Other input expert'!J$14*'Sales price per sales channel'!$I24*'Other input expert'!J$6","v":0},{"$f":"Y24*'Other input expert'!K$14*'Sales price per sales channel'!$I24*'Other input expert'!K$6","v":0},{"$f":"Z24*'Other input expert'!L$14*'Sales price per sales channel'!$I24*'Other input expert'!L$6","v":0},{"$f":"AA24*'Other input expert'!M$14*'Sales price per sales channel'!$I24*'Other input expert'!M$6","v":0},null,{"$f":"AC24*'Other input expert'!B$12*'Sales price per sales channel'!$G24*'Other input expert'!B$7","v":0},{"$f":"AD24*'Other input expert'!C$12*'Sales price per sales channel'!$G24*'Other input expert'!C$7","v":0},{"$f":"AE24*'Other input expert'!D$12*'Sales price per sales channel'!$G24*'Other input expert'!D$7","v":0},{"$f":"AF24*'Other input expert'!E$12*'Sales price per sales channel'!$G24*'Other input expert'!E$7","v":0},{"$f":"AG24*'Other input expert'!F$12*'Sales price per sales channel'!$G24*'Other input expert'!F$7","v":0},{"$f":"AH24*'Other input expert'!G$12*'Sales price per sales channel'!$G24*'Other input expert'!G$7","v":0},{"$f":"AI24*'Other input expert'!H$12*'Sales price per sales channel'!$G24*'Other input expert'!H$7","v":0},{"$f":"AJ24*'Other input expert'!I$12*'Sales price per sales channel'!$G24*'Other input expert'!I$7","v":0},{"$f":"AK24*'Other input expert'!J$12*'Sales price per sales channel'!$G24*'Other input expert'!J$7","v":0},{"$f":"AL24*'Other input expert'!K$12*'Sales price per sales channel'!$G24*'Other input expert'!K$7","v":0},{"$f":"AM24*'Other input expert'!L$12*'Sales price per sales channel'!$G24*'Other input expert'!L$7","v":0},{"$f":"AN24*'Other input expert'!M$12*'Sales price per sales channel'!$G24*'Other input expert'!M$7","v":0},null,{"$f":"AC24*'Other input expert'!B$13*'Sales price per sales channel'!$H24*'Other input expert'!B$7","v":0},{"$f":"AD24*'Other input expert'!C$13*'Sales price per sales channel'!$H24*'Other input expert'!C$7","v":0},{"$f":"AE24*'Other input expert'!D$13*'Sales price per sales channel'!$H24*'Other input expert'!D$7","v":0},{"$f":"AF24*'Other input expert'!E$13*'Sales price per sales channel'!$H24*'Other input expert'!E$7","v":0},{"$f":"AG24*'Other input expert'!F$13*'Sales price per sales channel'!$H24*'Other input expert'!F$7","v":0},{"$f":"AH24*'Other input expert'!G$13*'Sales price per sales channel'!$H24*'Other input expert'!G$7","v":0},{"$f":"AI24*'Other input expert'!H$13*'Sales price per sales channel'!$H24*'Other input expert'!H$7","v":0},{"$f":"AJ24*'Other input expert'!I$13*'Sales price per sales channel'!$H24*'Other input expert'!I$7","v":0},{"$f":"AK24*'Other input expert'!J$13*'Sales price per sales channel'!$H24*'Other input expert'!J$7","v":0},{"$f":"AL24*'Other input expert'!K$13*'Sales price per sales channel'!$H24*'Other input expert'!K$7","v":0},{"$f":"AM24*'Other input expert'!L$13*'Sales price per sales channel'!$H24*'Other input expert'!L$7","v":0},{"$f":"AN24*'Other input expert'!M$13*'Sales price per sales channel'!$H24*'Other input expert'!M$7","v":0},null,{"$f":"AC24*'Other input expert'!B$14*'Sales price per sales channel'!$I24*'Other input expert'!B$7","v":0},{"$f":"AD24*'Other input expert'!C$14*'Sales price per sales channel'!$I24*'Other input expert'!C$7","v":0},{"$f":"AE24*'Other input expert'!D$14*'Sales price per sales channel'!$I24*'Other input expert'!D$7","v":0},{"$f":"AF24*'Other input expert'!E$14*'Sales price per sales channel'!$I24*'Other input expert'!E$7","v":0},{"$f":"AG24*'Other input expert'!F$14*'Sales price per sales channel'!$I24*'Other input expert'!F$7","v":0},{"$f":"AH24*'Other input expert'!G$14*'Sales price per sales channel'!$I24*'Other input expert'!G$7","v":0},{"$f":"AI24*'Other input expert'!H$14*'Sales price per sales channel'!$I24*'Other input expert'!H$7","v":0},{"$f":"AJ24*'Other input expert'!I$14*'Sales price per sales channel'!$I24*'Other input expert'!I$7","v":0},{"$f":"AK24*'Other input expert'!J$14*'Sales price per sales channel'!$I24*'Other input expert'!J$7","v":0},{"$f":"AL24*'Other input expert'!K$14*'Sales price per sales channel'!$I24*'Other input expert'!K$7","v":0},{"$f":"AM24*'Other input expert'!L$14*'Sales price per sales channel'!$I24*'Other input expert'!L$7","v":0},{"$f":"AN24*'Other input expert'!M$14*'Sales price per sales channel'!$I24*'Other input expert'!M$7","v":0}]
["Amelanchier lamarckii","serviceberry",{"$f":"Plantlist!$G25*'Production list'!D26*'Other input expert'!B$4*'Other input expert'!B$8","v":0},{"$f":"Plantlist!$G25*'Production list'!E26*'Other input expert'!C$4*'Other input expert'!C$8","v":0},{"$f":"Plantlist!$G25*'Production list'!F26*'Other input expert'!D$4*'Other input expert'!D$8","v":0},{"$f":"Plantlist!$G25*'Production list'!G26*'Other input expert'!E$4*'Other input expert'!E$8","v":0},{"$f":"Plantlist!$G25*'Production list'!H26*'Other input expert'!F$4*'Other input expert'!F$8","v":0},{"$f":"Plantlist!$G25*'Production list'!I26*'Other input expert'!G$4*'Other input expert'!G$8","v":0},{"$f":"Plantlist!$G25*'Production list'!J26*'Other input expert'!H$4*'Other input expert'!H$8","v":0},{"$f":"Plantlist!$G25*'Production list'!K26*'Other input expert'!I$4*'Other input expert'!I$8","v":0},{"$f":"Plantlist!$G25*'Production list'!L26*'Other input expert'!J$4*'Other input expert'!J$8","v":0},{"$f":"Plantlist!$G25*'Production list'!M26*'Other input expert'!K$4*'Other input expert'!K$8","v":0},{"$f":"Plantlist!$G25*'Production list'!N26*'Other input expert'!L$4*'Other input expert'!L$8","v":0},{"$f":"Plantlist!$G25*'Production list'!O26*'Other input expert'!M$4*'Other input expert'!M$8","v":0},null,{"$f":"C25*'Other input expert'!B$5","v":0},{"$f":"D25*'Other input expert'!C$5","v":0},{"$f":"E25*'Other input expert'!D$5","v":0},{"$f":"F25*'Other input expert'!E$5","v":0},{"$f":"G25*'Other input expert'!F$5","v":0},{"$f":"H25*'Other input expert'!G$5","v":0},{"$f":"I25*'Other input expert'!H$5","v":0},{"$f":"J25*'Other input expert'!I$5","v":0},{"$f":"K25*'Other input expert'!J$5","v":0},{"$f":"L25*'Other input expert'!K$5","v":0},{"$f":"M25*'Other input expert'!L$5","v":0},{"$f":"N25*'Other input expert'!M$5","v":0},null,{"$f":"C25*(100%-'Other input expert'!B$5)","v":0},{"$f":"D25*(100%-'Other input expert'!C$5)","v":0},{"$f":"E25*(100%-'Other input expert'!D$5)","v":0},{"$f":"F25*(100%-'Other input expert'!E$5)","v":0},{"$f":"G25*(100%-'Other input expert'!F$5)","v":0},{"$f":"H25*(100%-'Other input expert'!G$5)","v":0},{"$f":"I25*(100%-'Other input expert'!H$5)","v":0},{"$f":"J25*(100%-'Other input expert'!I$5)","v":0},{"$f":"K25*(100%-'Other input expert'!J$5)","v":0},{"$f":"L25*(100%-'Other input expert'!K$5)","v":0},{"$f":"M25*(100%-'Other input expert'!L$5)","v":0},{"$f":"N25*(100%-'Other input expert'!M$5)","v":0},null,{"$f":"P25*'Other input expert'!B$12*'Sales price per sales channel'!$G25*'Other input expert'!B$6","v":0},{"$f":"Q25*'Other input expert'!C$12*'Sales price per sales channel'!$G25*'Other input expert'!C$6","v":0},{"$f":"R25*'Other input expert'!D$12*'Sales price per sales channel'!$G25*'Other input expert'!D$6","v":0},{"$f":"S25*'Other input expert'!E$12*'Sales price per sales channel'!$G25*'Other input expert'!E$6","v":0},{"$f":"T25*'Other input expert'!F$12*'Sales price per sales channel'!$G25*'Other input expert'!F$6","v":0},{"$f":"U25*'Other input expert'!G$12*'Sales price per sales channel'!$G25*'Other input expert'!G$6","v":0},{"$f":"V25*'Other input expert'!H$12*'Sales price per sales channel'!$G25*'Other input expert'!H$6","v":0},{"$f":"W25*'Other input expert'!I$12*'Sales price per sales channel'!$G25*'Other input expert'!I$6","v":0},{"$f":"X25*'Other input expert'!J$12*'Sales price per sales channel'!$G25*'Other input expert'!J$6","v":0},{"$f":"Y25*'Other input expert'!K$12*'Sales price per sales channel'!$G25*'Other input expert'!K$6","v":0},{"$f":"Z25*'Other input expert'!L$12*'Sales price per sales channel'!$G25*'Other input expert'!L$6","v":0},{"$f":"AA25*'Other input expert'!M$12*'Sales price per sales channel'!$G25*'Other input expert'!M$6","v":0},null,{"$f":"P25*'Other input expert'!B$13*'Sales price per sales channel'!$H25*'Other input expert'!B$6","v":0},{"$f":"Q25*'Other input expert'!C$13*'Sales price per sales channel'!$H25*'Other input expert'!C$6","v":0},{"$f":"R25*'Other input expert'!D$13*'Sales price per sales channel'!$H25*'Other input expert'!D$6","v":0},{"$f":"S25*'Other input expert'!E$13*'Sales price per sales channel'!$H25*'Other input expert'!E$6","v":0},{"$f":"T25*'Other input expert'!F$13*'Sales price per sales channel'!$H25*'Other input expert'!F$6","v":0},{"$f":"U25*'Other input expert'!G$13*'Sales price per sales channel'!$H25*'Other input expert'!G$6","v":0},{"$f":"V25*'Other input expert'!H$13*'Sales price per sales channel'!$H25*'Other input expert'!H$6","v":0},{"$f":"W25*'Other input expert'!I$13*'Sales price per sales channel'!$H25*'Other input expert'!I$6","v":0},{"$f":"X25*'Other input expert'!J$13*'Sales price per sales channel'!$H25*'Other input expert'!J$6","v":0},{"$f":"Y25*'Other input expert'!K$13*'Sales price per sales channel'!$H25*'Other input expert'!K$6","v":0},{"$f":"Z25*'Other input expert'!L$13*'Sales price per sales channel'!$H25*'Other input expert'!L$6","v":0},{"$f":"AA25*'Other input expert'!M$13*'Sales price per sales channel'!$H25*'Other input expert'!M$6","v":0},null,{"$f":"P25*'Other input expert'!B$14*'Sales price per sales channel'!$I25*'Other input expert'!B$6","v":0},{"$f":"Q25*'Other input expert'!C$14*'Sales price per sales channel'!$I25*'Other input expert'!C$6","v":0},{"$f":"R25*'Other input expert'!D$14*'Sales price per sales channel'!$I25*'Other input expert'!D$6","v":0},{"$f":"S25*'Other input expert'!E$14*'Sales price per sales channel'!$I25*'Other input expert'!E$6","v":0},{"$f":"T25*'Other input expert'!F$14*'Sales price per sales channel'!$I25*'Other input expert'!F$6","v":0},{"$f":"U25*'Other input expert'!G$14*'Sales price per sales channel'!$I25*'Other input expert'!G$6","v":0},{"$f":"V25*'Other input expert'!H$14*'Sales price per sales channel'!$I25*'Other input expert'!H$6","v":0},{"$f":"W25*'Other input expert'!I$14*'Sales price per sales channel'!$I25*'Other input expert'!I$6","v":0},{"$f":"X25*'Other input expert'!J$14*'Sales price per sales channel'!$I25*'Other input expert'!J$6","v":0},{"$f":"Y25*'Other input expert'!K$14*'Sales price per sales channel'!$I25*'Other input expert'!K$6","v":0},{"$f":"Z25*'Other input expert'!L$14*'Sales price per sales channel'!$I25*'Other input expert'!L$6","v":0},{"$f":"AA25*'Other input expert'!M$14*'Sales price per sales channel'!$I25*'Other input expert'!M$6","v":0},null,{"$f":"AC25*'Other input expert'!B$12*'Sales price per sales channel'!$G25*'Other input expert'!B$7","v":0},{"$f":"AD25*'Other input expert'!C$12*'Sales price per sales channel'!$G25*'Other input expert'!C$7","v":0},{"$f":"AE25*'Other input expert'!D$12*'Sales price per sales channel'!$G25*'Other input expert'!D$7","v":0},{"$f":"AF25*'Other input expert'!E$12*'Sales price per sales channel'!$G25*'Other input expert'!E$7","v":0},{"$f":"AG25*'Other input expert'!F$12*'Sales price per sales channel'!$G25*'Other input expert'!F$7","v":0},{"$f":"AH25*'Other input expert'!G$12*'Sales price per sales channel'!$G25*'Other input expert'!G$7","v":0},{"$f":"AI25*'Other input expert'!H$12*'Sales price per sales channel'!$G25*'Other input expert'!H$7","v":0},{"$f":"AJ25*'Other input expert'!I$12*'Sales price per sales channel'!$G25*'Other input expert'!I$7","v":0},{"$f":"AK25*'Other input expert'!J$12*'Sales price per sales channel'!$G25*'Other input expert'!J$7","v":0},{"$f":"AL25*'Other input expert'!K$12*'Sales price per sales channel'!$G25*'Other input expert'!K$7","v":0},{"$f":"AM25*'Other input expert'!L$12*'Sales price per sales channel'!$G25*'Other input expert'!L$7","v":0},{"$f":"AN25*'Other input expert'!M$12*'Sales price per sales channel'!$G25*'Other input expert'!M$7","v":0},null,{"$f":"AC25*'Other input expert'!B$13*'Sales price per sales channel'!$H25*'Other input expert'!B$7","v":0},{"$f":"AD25*'Other input expert'!C$13*'Sales price per sales channel'!$H25*'Other input expert'!C$7","v":0},{"$f":"AE25*'Other input expert'!D$13*'Sales price per sales channel'!$H25*'Other input expert'!D$7","v":0},{"$f":"AF25*'Other input expert'!E$13*'Sales price per sales channel'!$H25*'Other input expert'!E$7","v":0},{"$f":"AG25*'Other input expert'!F$13*'Sales price per sales channel'!$H25*'Other input expert'!F$7","v":0},{"$f":"AH25*'Other input expert'!G$13*'Sales price per sales channel'!$H25*'Other input expert'!G$7","v":0},{"$f":"AI25*'Other input expert'!H$13*'Sales price per sales channel'!$H25*'Other input expert'!H$7","v":0},{"$f":"AJ25*'Other input expert'!I$13*'Sales price per sales channel'!$H25*'Other input expert'!I$7","v":0},{"$f":"AK25*'Other input expert'!J$13*'Sales price per sales channel'!$H25*'Other input expert'!J$7","v":0},{"$f":"AL25*'Other input expert'!K$13*'Sales price per sales channel'!$H25*'Other input expert'!K$7","v":0},{"$f":"AM25*'Other input expert'!L$13*'Sales price per sales channel'!$H25*'Other input expert'!L$7","v":0},{"$f":"AN25*'Other input expert'!M$13*'Sales price per sales channel'!$H25*'Other input expert'!M$7","v":0},null,{"$f":"AC25*'Other input expert'!B$14*'Sales price per sales channel'!$I25*'Other input expert'!B$7","v":0},{"$f":"AD25*'Other input expert'!C$14*'Sales price per sales channel'!$I25*'Other input expert'!C$7","v":0},{"$f":"AE25*'Other input expert'!D$14*'Sales price per sales channel'!$I25*'Other input expert'!D$7","v":0},{"$f":"AF25*'Other input expert'!E$14*'Sales price per sales channel'!$I25*'Other input expert'!E$7","v":0},{"$f":"AG25*'Other input expert'!F$14*'Sales price per sales channel'!$I25*'Other input expert'!F$7","v":0},{"$f":"AH25*'Other input expert'!G$14*'Sales price per sales channel'!$I25*'Other input expert'!G$7","v":0},{"$f":"AI25*'Other input expert'!H$14*'Sales price per sales channel'!$I25*'Other input expert'!H$7","v":0},{"$f":"AJ25*'Other input expert'!I$14*'Sales price per sales channel'!$I25*'Other input expert'!I$7","v":0},{"$f":"AK25*'Other input expert'!J$14*'Sales price per sales channel'!$I25*'Other input expert'!J$7","v":0},{"$f":"AL25*'Other input expert'!K$14*'Sales price per sales channel'!$I25*'Other input expert'!K$7","v":0},{"$f":"AM25*'Other input expert'!L$14*'Sales price per sales channel'!$I25*'Other input expert'!L$7","v":0},{"$f":"AN25*'Other input expert'!M$14*'Sales price per sales channel'!$I25*'Other input expert'!M$7","v":0}]
["Amorpha fruticosa","False indigo",{"$f":"Plantlist!$G26*'Production list'!D27*'Other input expert'!B$4*'Other input expert'!B$8","v":0},{"$f":"Plantlist!$G26*'Production list'!E27*'Other input expert'!C$4*'Other input expert'!C$8","v":0},{"$f":"Plantlist!$G26*'Production list'!F27*'Other input expert'!D$4*'Other input expert'!D$8","v":0},{"$f":"Plantlist!$G26*'Production list'!G27*'Other input expert'!E$4*'Other input expert'!E$8","v":0},{"$f":"Plantlist!$G26*'Production list'!H27*'Other input expert'!F$4*'Other input expert'!F$8","v":0},{"$f":"Plantlist!$G26*'Production list'!I27*'Other input expert'!G$4*'Other input expert'!G$8","v":0},{"$f":"Plantlist!$G26*'Production list'!J27*'Other input expert'!H$4*'Other input expert'!H$8","v":0},{"$f":"Plantlist!$G26*'Production list'!K27*'Other input expert'!I$4*'Other input expert'!I$8","v":0},{"$f":"Plantlist!$G26*'Production list'!L27*'Other input expert'!J$4*'Other input expert'!J$8","v":0},{"$f":"Plantlist!$G26*'Production list'!M27*'Other input expert'!K$4*'Other input expert'!K$8","v":0},{"$f":"Plantlist!$G26*'Production list'!N27*'Other input expert'!L$4*'Other input expert'!L$8","v":0},{"$f":"Plantlist!$G26*'Production list'!O27*'Other input expert'!M$4*'Other input expert'!M$8","v":0},null,{"$f":"C26*'Other input expert'!B$5","v":0},{"$f":"D26*'Other input expert'!C$5","v":0},{"$f":"E26*'Other input expert'!D$5","v":0},{"$f":"F26*'Other input expert'!E$5","v":0},{"$f":"G26*'Other input expert'!F$5","v":0},{"$f":"H26*'Other input expert'!G$5","v":0},{"$f":"I26*'Other input expert'!H$5","v":0},{"$f":"J26*'Other input expert'!I$5","v":0},{"$f":"K26*'Other input expert'!J$5","v":0},{"$f":"L26*'Other input expert'!K$5","v":0},{"$f":"M26*'Other input expert'!L$5","v":0},{"$f":"N26*'Other input expert'!M$5","v":0},null,{"$f":"C26*(100%-'Other input expert'!B$5)","v":0},{"$f":"D26*(100%-'Other input expert'!C$5)","v":0},{"$f":"E26*(100%-'Other input expert'!D$5)","v":0},{"$f":"F26*(100%-'Other input expert'!E$5)","v":0},{"$f":"G26*(100%-'Other input expert'!F$5)","v":0},{"$f":"H26*(100%-'Other input expert'!G$5)","v":0},{"$f":"I26*(100%-'Other input expert'!H$5)","v":0},{"$f":"J26*(100%-'Other input expert'!I$5)","v":0},{"$f":"K26*(100%-'Other input expert'!J$5)","v":0},{"$f":"L26*(100%-'Other input expert'!K$5)","v":0},{"$f":"M26*(100%-'Other input expert'!L$5)","v":0},{"$f":"N26*(100%-'Other input expert'!M$5)","v":0},null,{"$f":"P26*'Other input expert'!B$12*'Sales price per sales channel'!$G26*'Other input expert'!B$6","v":0},{"$f":"Q26*'Other input expert'!C$12*'Sales price per sales channel'!$G26*'Other input expert'!C$6","v":0},{"$f":"R26*'Other input expert'!D$12*'Sales price per sales channel'!$G26*'Other input expert'!D$6","v":0},{"$f":"S26*'Other input expert'!E$12*'Sales price per sales channel'!$G26*'Other input expert'!E$6","v":0},{"$f":"T26*'Other input expert'!F$12*'Sales price per sales channel'!$G26*'Other input expert'!F$6","v":0},{"$f":"U26*'Other input expert'!G$12*'Sales price per sales channel'!$G26*'Other input expert'!G$6","v":0},{"$f":"V26*'Other input expert'!H$12*'Sales price per sales channel'!$G26*'Other input expert'!H$6","v":0},{"$f":"W26*'Other input expert'!I$12*'Sales price per sales channel'!$G26*'Other input expert'!I$6","v":0},{"$f":"X26*'Other input expert'!J$12*'Sales price per sales channel'!$G26*'Other input expert'!J$6","v":0},{"$f":"Y26*'Other input expert'!K$12*'Sales price per sales channel'!$G26*'Other input expert'!K$6","v":0},{"$f":"Z26*'Other input expert'!L$12*'Sales price per sales channel'!$G26*'Other input expert'!L$6","v":0},{"$f":"AA26*'Other input expert'!M$12*'Sales price per sales channel'!$G26*'Other input expert'!M$6","v":0},null,{"$f":"P26*'Other input expert'!B$13*'Sales price per sales channel'!$H26*'Other input expert'!B$6","v":0},{"$f":"Q26*'Other input expert'!C$13*'Sales price per sales channel'!$H26*'Other input expert'!C$6","v":0},{"$f":"R26*'Other input expert'!D$13*'Sales price per sales channel'!$H26*'Other input expert'!D$6","v":0},{"$f":"S26*'Other input expert'!E$13*'Sales price per sales channel'!$H26*'Other input expert'!E$6","v":0},{"$f":"T26*'Other input expert'!F$13*'Sales price per sales channel'!$H26*'Other input expert'!F$6","v":0},{"$f":"U26*'Other input expert'!G$13*'Sales price per sales channel'!$H26*'Other input expert'!G$6","v":0},{"$f":"V26*'Other input expert'!H$13*'Sales price per sales channel'!$H26*'Other input expert'!H$6","v":0},{"$f":"W26*'Other input expert'!I$13*'Sales price per sales channel'!$H26*'Other input expert'!I$6","v":0},{"$f":"X26*'Other input expert'!J$13*'Sales price per sales channel'!$H26*'Other input expert'!J$6","v":0},{"$f":"Y26*'Other input expert'!K$13*'Sales price per sales channel'!$H26*'Other input expert'!K$6","v":0},{"$f":"Z26*'Other input expert'!L$13*'Sales price per sales channel'!$H26*'Other input expert'!L$6","v":0},{"$f":"AA26*'Other input expert'!M$13*'Sales price per sales channel'!$H26*'Other input expert'!M$6","v":0},null,{"$f":"P26*'Other input expert'!B$14*'Sales price per sales channel'!$I26*'Other input expert'!B$6","v":0},{"$f":"Q26*'Other input expert'!C$14*'Sales price per sales channel'!$I26*'Other input expert'!C$6","v":0},{"$f":"R26*'Other input expert'!D$14*'Sales price per sales channel'!$I26*'Other input expert'!D$6","v":0},{"$f":"S26*'Other input expert'!E$14*'Sales price per sales channel'!$I26*'Other input expert'!E$6","v":0},{"$f":"T26*'Other input expert'!F$14*'Sales price per sales channel'!$I26*'Other input expert'!F$6","v":0},{"$f":"U26*'Other input expert'!G$14*'Sales price per sales channel'!$I26*'Other input expert'!G$6","v":0},{"$f":"V26*'Other input expert'!H$14*'Sales price per sales channel'!$I26*'Other input expert'!H$6","v":0},{"$f":"W26*'Other input expert'!I$14*'Sales price per sales channel'!$I26*'Other input expert'!I$6","v":0},{"$f":"X26*'Other input expert'!J$14*'Sales price per sales channel'!$I26*'Other input expert'!J$6","v":0},{"$f":"Y26*'Other input expert'!K$14*'Sales price per sales channel'!$I26*'Other input expert'!K$6","v":0},{"$f":"Z26*'Other input expert'!L$14*'Sales price per sales channel'!$I26*'Other input expert'!L$6","v":0},{"$f":"AA26*'Other input expert'!M$14*'Sales price per sales channel'!$I26*'Other input expert'!M$6","v":0},null,{"$f":"AC26*'Other input expert'!B$12*'Sales price per sales channel'!$G26*'Other input expert'!B$7","v":0},{"$f":"AD26*'Other input expert'!C$12*'Sales price per sales channel'!$G26*'Other input expert'!C$7","v":0},{"$f":"AE26*'Other input expert'!D$12*'Sales price per sales channel'!$G26*'Other input expert'!D$7","v":0},{"$f":"AF26*'Other input expert'!E$12*'Sales price per sales channel'!$G26*'Other input expert'!E$7","v":0},{"$f":"AG26*'Other input expert'!F$12*'Sales price per sales channel'!$G26*'Other input expert'!F$7","v":0},{"$f":"AH26*'Other input expert'!G$12*'Sales price per sales channel'!$G26*'Other input expert'!G$7","v":0},{"$f":"AI26*'Other input expert'!H$12*'Sales price per sales channel'!$G26*'Other input expert'!H$7","v":0},{"$f":"AJ26*'Other input expert'!I$12*'Sales price per sales channel'!$G26*'Other input expert'!I$7","v":0},{"$f":"AK26*'Other input expert'!J$12*'Sales price per sales channel'!$G26*'Other input expert'!J$7","v":0},{"$f":"AL26*'Other input expert'!K$12*'Sales price per sales channel'!$G26*'Other input expert'!K$7","v":0},{"$f":"AM26*'Other input expert'!L$12*'Sales price per sales channel'!$G26*'Other input expert'!L$7","v":0},{"$f":"AN26*'Other input expert'!M$12*'Sales price per sales channel'!$G26*'Other input expert'!M$7","v":0},null,{"$f":"AC26*'Other input expert'!B$13*'Sales price per sales channel'!$H26*'Other input expert'!B$7","v":0},{"$f":"AD26*'Other input expert'!C$13*'Sales price per sales channel'!$H26*'Other input expert'!C$7","v":0},{"$f":"AE26*'Other input expert'!D$13*'Sales price per sales channel'!$H26*'Other input expert'!D$7","v":0},{"$f":"AF26*'Other input expert'!E$13*'Sales price per sales channel'!$H26*'Other input expert'!E$7","v":0},{"$f":"AG26*'Other input expert'!F$13*'Sales price per sales channel'!$H26*'Other input expert'!F$7","v":0},{"$f":"AH26*'Other input expert'!G$13*'Sales price per sales channel'!$H26*'Other input expert'!G$7","v":0},{"$f":"AI26*'Other input expert'!H$13*'Sales price per sales channel'!$H26*'Other input expert'!H$7","v":0},{"$f":"AJ26*'Other input expert'!I$13*'Sales price per sales channel'!$H26*'Other input expert'!I$7","v":0},{"$f":"AK26*'Other input expert'!J$13*'Sales price per sales channel'!$H26*'Other input expert'!J$7","v":0},{"$f":"AL26*'Other input expert'!K$13*'Sales price per sales channel'!$H26*'Other input expert'!K$7","v":0},{"$f":"AM26*'Other input expert'!L$13*'Sales price per sales channel'!$H26*'Other input expert'!L$7","v":0},{"$f":"AN26*'Other input expert'!M$13*'Sales price per sales channel'!$H26*'Other input expert'!M$7","v":0},null,{"$f":"AC26*'Other input expert'!B$14*'Sales price per sales channel'!$I26*'Other input expert'!B$7","v":0},{"$f":"AD26*'Other input expert'!C$14*'Sales price per sales channel'!$I26*'Other input expert'!C$7","v":0},{"$f":"AE26*'Other input expert'!D$14*'Sales price per sales channel'!$I26*'Other input expert'!D$7","v":0},{"$f":"AF26*'Other input expert'!E$14*'Sales price per sales channel'!$I26*'Other input expert'!E$7","v":0},{"$f":"AG26*'Other input expert'!F$14*'Sales price per sales channel'!$I26*'Other input expert'!F$7","v":0},{"$f":"AH26*'Other input expert'!G$14*'Sales price per sales channel'!$I26*'Other input expert'!G$7","v":0},{"$f":"AI26*'Other input expert'!H$14*'Sales price per sales channel'!$I26*'Other input expert'!H$7","v":0},{"$f":"AJ26*'Other input expert'!I$14*'Sales price per sales channel'!$I26*'Other input expert'!I$7","v":0},{"$f":"AK26*'Other input expert'!J$14*'Sales price per sales channel'!$I26*'Other input expert'!J$7","v":0},{"$f":"AL26*'Other input expert'!K$14*'Sales price per sales channel'!$I26*'Other input expert'!K$7","v":0},{"$f":"AM26*'Other input expert'!L$14*'Sales price per sales channel'!$I26*'Other input expert'!L$7","v":0},{"$f":"AN26*'Other input expert'!M$14*'Sales price per sales channel'!$I26*'Other input expert'!M$7","v":0}]
["Angelica archangelica","Norwegian angelica",{"$f":"Plantlist!$G27*'Production list'!D28*'Other input expert'!B$4*'Other input expert'!B$8","v":0},{"$f":"Plantlist!$G27*'Production list'!E28*'Other input expert'!C$4*'Other input expert'!C$8","v":0},{"$f":"Plantlist!$G27*'Production list'!F28*'Other input expert'!D$4*'Other input expert'!D$8","v":0},{"$f":"Plantlist!$G27*'Production list'!G28*'Other input expert'!E$4*'Other input expert'!E$8","v":0},{"$f":"Plantlist!$G27*'Production list'!H28*'Other input expert'!F$4*'Other input expert'!F$8","v":0},{"$f":"Plantlist!$G27*'Production list'!I28*'Other input expert'!G$4*'Other input expert'!G$8","v":0},{"$f":"Plantlist!$G27*'Production list'!J28*'Other input expert'!H$4*'Other input expert'!H$8","v":0},{"$f":"Plantlist!$G27*'Production list'!K28*'Other input expert'!I$4*'Other input expert'!I$8","v":0},{"$f":"Plantlist!$G27*'Production list'!L28*'Other input expert'!J$4*'Other input expert'!J$8","v":0},{"$f":"Plantlist!$G27*'Production list'!M28*'Other input expert'!K$4*'Other input expert'!K$8","v":0},{"$f":"Plantlist!$G27*'Production list'!N28*'Other input expert'!L$4*'Other input expert'!L$8","v":0},{"$f":"Plantlist!$G27*'Production list'!O28*'Other input expert'!M$4*'Other input expert'!M$8","v":0},null,{"$f":"C27*'Other input expert'!B$5","v":0},{"$f":"D27*'Other input expert'!C$5","v":0},{"$f":"E27*'Other input expert'!D$5","v":0},{"$f":"F27*'Other input expert'!E$5","v":0},{"$f":"G27*'Other input expert'!F$5","v":0},{"$f":"H27*'Other input expert'!G$5","v":0},{"$f":"I27*'Other input expert'!H$5","v":0},{"$f":"J27*'Other input expert'!I$5","v":0},{"$f":"K27*'Other input expert'!J$5","v":0},{"$f":"L27*'Other input expert'!K$5","v":0},{"$f":"M27*'Other input expert'!L$5","v":0},{"$f":"N27*'Other input expert'!M$5","v":0},null,{"$f":"C27*(100%-'Other input expert'!B$5)","v":0},{"$f":"D27*(100%-'Other input expert'!C$5)","v":0},{"$f":"E27*(100%-'Other input expert'!D$5)","v":0},{"$f":"F27*(100%-'Other input expert'!E$5)","v":0},{"$f":"G27*(100%-'Other input expert'!F$5)","v":0},{"$f":"H27*(100%-'Other input expert'!G$5)","v":0},{"$f":"I27*(100%-'Other input expert'!H$5)","v":0},{"$f":"J27*(100%-'Other input expert'!I$5)","v":0},{"$f":"K27*(100%-'Other input expert'!J$5)","v":0},{"$f":"L27*(100%-'Other input expert'!K$5)","v":0},{"$f":"M27*(100%-'Other input expert'!L$5)","v":0},{"$f":"N27*(100%-'Other input expert'!M$5)","v":0},null,{"$f":"P27*'Other input expert'!B$12*'Sales price per sales channel'!$G27*'Other input expert'!B$6","v":0},{"$f":"Q27*'Other input expert'!C$12*'Sales price per sales channel'!$G27*'Other input expert'!C$6","v":0},{"$f":"R27*'Other input expert'!D$12*'Sales price per sales channel'!$G27*'Other input expert'!D$6","v":0},{"$f":"S27*'Other input expert'!E$12*'Sales price per sales channel'!$G27*'Other input expert'!E$6","v":0},{"$f":"T27*'Other input expert'!F$12*'Sales price per sales channel'!$G27*'Other input expert'!F$6","v":0},{"$f":"U27*'Other input expert'!G$12*'Sales price per sales channel'!$G27*'Other input expert'!G$6","v":0},{"$f":"V27*'Other input expert'!H$12*'Sales price per sales channel'!$G27*'Other input expert'!H$6","v":0},{"$f":"W27*'Other input expert'!I$12*'Sales price per sales channel'!$G27*'Other input expert'!I$6","v":0},{"$f":"X27*'Other input expert'!J$12*'Sales price per sales channel'!$G27*'Other input expert'!J$6","v":0},{"$f":"Y27*'Other input expert'!K$12*'Sales price per sales channel'!$G27*'Other input expert'!K$6","v":0},{"$f":"Z27*'Other input expert'!L$12*'Sales price per sales channel'!$G27*'Other input expert'!L$6","v":0},{"$f":"AA27*'Other input expert'!M$12*'Sales price per sales channel'!$G27*'Other input expert'!M$6","v":0},null,{"$f":"P27*'Other input expert'!B$13*'Sales price per sales channel'!$H27*'Other input expert'!B$6","v":0},{"$f":"Q27*'Other input expert'!C$13*'Sales price per sales channel'!$H27*'Other input expert'!C$6","v":0},{"$f":"R27*'Other input expert'!D$13*'Sales price per sales channel'!$H27*'Other input expert'!D$6","v":0},{"$f":"S27*'Other input expert'!E$13*'Sales price per sales channel'!$H27*'Other input expert'!E$6","v":0},{"$f":"T27*'Other input expert'!F$13*'Sales price per sales channel'!$H27*'Other input expert'!F$6","v":0},{"$f":"U27*'Other input expert'!G$13*'Sales price per sales channel'!$H27*'Other input expert'!G$6","v":0},{"$f":"V27*'Other input expert'!H$13*'Sales price per sales channel'!$H27*'Other input expert'!H$6","v":0},{"$f":"W27*'Other input expert'!I$13*'Sales price per sales channel'!$H27*'Other input expert'!I$6","v":0},{"$f":"X27*'Other input expert'!J$13*'Sales price per sales channel'!$H27*'Other input expert'!J$6","v":0},{"$f":"Y27*'Other input expert'!K$13*'Sales price per sales channel'!$H27*'Other input expert'!K$6","v":0},{"$f":"Z27*'Other input expert'!L$13*'Sales price per sales channel'!$H27*'Other input expert'!L$6","v":0},{"$f":"AA27*'Other input expert'!M$13*'Sales price per sales channel'!$H27*'Other input expert'!M$6","v":0},null,{"$f":"P27*'Other input expert'!B$14*'Sales price per sales channel'!$I27*'Other input expert'!B$6","v":0},{"$f":"Q27*'Other input expert'!C$14*'Sales price per sales channel'!$I27*'Other input expert'!C$6","v":0},{"$f":"R27*'Other input expert'!D$14*'Sales price per sales channel'!$I27*'Other input expert'!D$6","v":0},{"$f":"S27*'Other input expert'!E$14*'Sales price per sales channel'!$I27*'Other input expert'!E$6","v":0},{"$f":"T27*'Other input expert'!F$14*'Sales price per sales channel'!$I27*'Other input expert'!F$6","v":0},{"$f":"U27*'Other input expert'!G$14*'Sales price per sales channel'!$I27*'Other input expert'!G$6","v":0},{"$f":"V27*'Other input expert'!H$14*'Sales price per sales channel'!$I27*'Other input expert'!H$6","v":0},{"$f":"W27*'Other input expert'!I$14*'Sales price per sales channel'!$I27*'Other input expert'!I$6","v":0},{"$f":"X27*'Other input expert'!J$14*'Sales price per sales channel'!$I27*'Other input expert'!J$6","v":0},{"$f":"Y27*'Other input expert'!K$14*'Sales price per sales channel'!$I27*'Other input expert'!K$6","v":0},{"$f":"Z27*'Other input expert'!L$14*'Sales price per sales channel'!$I27*'Other input expert'!L$6","v":0},{"$f":"AA27*'Other input expert'!M$14*'Sales price per sales channel'!$I27*'Other input expert'!M$6","v":0},null,{"$f":"AC27*'Other input expert'!B$12*'Sales price per sales channel'!$G27*'Other input expert'!B$7","v":0},{"$f":"AD27*'Other input expert'!C$12*'Sales price per sales channel'!$G27*'Other input expert'!C$7","v":0},{"$f":"AE27*'Other input expert'!D$12*'Sales price per sales channel'!$G27*'Other input expert'!D$7","v":0},{"$f":"AF27*'Other input expert'!E$12*'Sales price per sales channel'!$G27*'Other input expert'!E$7","v":0},{"$f":"AG27*'Other input expert'!F$12*'Sales price per sales channel'!$G27*'Other input expert'!F$7","v":0},{"$f":"AH27*'Other input expert'!G$12*'Sales price per sales channel'!$G27*'Other input expert'!G$7","v":0},{"$f":"AI27*'Other input expert'!H$12*'Sales price per sales channel'!$G27*'Other input expert'!H$7","v":0},{"$f":"AJ27*'Other input expert'!I$12*'Sales price per sales channel'!$G27*'Other input expert'!I$7","v":0},{"$f":"AK27*'Other input expert'!J$12*'Sales price per sales channel'!$G27*'Other input expert'!J$7","v":0},{"$f":"AL27*'Other input expert'!K$12*'Sales price per sales channel'!$G27*'Other input expert'!K$7","v":0},{"$f":"AM27*'Other input expert'!L$12*'Sales price per sales channel'!$G27*'Other input expert'!L$7","v":0},{"$f":"AN27*'Other input expert'!M$12*'Sales price per sales channel'!$G27*'Other input expert'!M$7","v":0},null,{"$f":"AC27*'Other input expert'!B$13*'Sales price per sales channel'!$H27*'Other input expert'!B$7","v":0},{"$f":"AD27*'Other input expert'!C$13*'Sales price per sales channel'!$H27*'Other input expert'!C$7","v":0},{"$f":"AE27*'Other input expert'!D$13*'Sales price per sales channel'!$H27*'Other input expert'!D$7","v":0},{"$f":"AF27*'Other input expert'!E$13*'Sales price per sales channel'!$H27*'Other input expert'!E$7","v":0},{"$f":"AG27*'Other input expert'!F$13*'Sales price per sales channel'!$H27*'Other input expert'!F$7","v":0},{"$f":"AH27*'Other input expert'!G$13*'Sales price per sales channel'!$H27*'Other input expert'!G$7","v":0},{"$f":"AI27*'Other input expert'!H$13*'Sales price per sales channel'!$H27*'Other input expert'!H$7","v":0},{"$f":"AJ27*'Other input expert'!I$13*'Sales price per sales channel'!$H27*'Other input expert'!I$7","v":0},{"$f":"AK27*'Other input expert'!J$13*'Sales price per sales channel'!$H27*'Other input expert'!J$7","v":0},{"$f":"AL27*'Other input expert'!K$13*'Sales price per sales channel'!$H27*'Other input expert'!K$7","v":0},{"$f":"AM27*'Other input expert'!L$13*'Sales price per sales channel'!$H27*'Other input expert'!L$7","v":0},{"$f":"AN27*'Other input expert'!M$13*'Sales price per sales channel'!$H27*'Other input expert'!M$7","v":0},null,{"$f":"AC27*'Other input expert'!B$14*'Sales price per sales channel'!$I27*'Other input expert'!B$7","v":0},{"$f":"AD27*'Other input expert'!C$14*'Sales price per sales channel'!$I27*'Other input expert'!C$7","v":0},{"$f":"AE27*'Other input expert'!D$14*'Sales price per sales channel'!$I27*'Other input expert'!D$7","v":0},{"$f":"AF27*'Other input expert'!E$14*'Sales price per sales channel'!$I27*'Other input expert'!E$7","v":0},{"$f":"AG27*'Other input expert'!F$14*'Sales price per sales channel'!$I27*'Other input expert'!F$7","v":0},{"$f":"AH27*'Other input expert'!G$14*'Sales price per sales channel'!$I27*'Other input expert'!G$7","v":0},{"$f":"AI27*'Other input expert'!H$14*'Sales price per sales channel'!$I27*'Other input expert'!H$7","v":0},{"$f":"AJ27*'Other input expert'!I$14*'Sales price per sales channel'!$I27*'Other input expert'!I$7","v":0},{"$f":"AK27*'Other input expert'!J$14*'Sales price per sales channel'!$I27*'Other input expert'!J$7","v":0},{"$f":"AL27*'Other input expert'!K$14*'Sales price per sales channel'!$I27*'Other input expert'!K$7","v":0},{"$f":"AM27*'Other input expert'!L$14*'Sales price per sales channel'!$I27*'Other input expert'!L$7","v":0},{"$f":"AN27*'Other input expert'!M$14*'Sales price per sales channel'!$I27*'Other input expert'!M$7","v":0}]
["Aralia elata","Angelica tree",{"$f":"Plantlist!$G28*'Production list'!D29*'Other input expert'!B$4*'Other input expert'!B$8","v":0},{"$f":"Plantlist!$G28*'Production list'!E29*'Other input expert'!C$4*'Other input expert'!C$8","v":0},{"$f":"Plantlist!$G28*'Production list'!F29*'Other input expert'!D$4*'Other input expert'!D$8","v":0},{"$f":"Plantlist!$G28*'Production list'!G29*'Other input expert'!E$4*'Other input expert'!E$8","v":0},{"$f":"Plantlist!$G28*'Production list'!H29*'Other input expert'!F$4*'Other input expert'!F$8","v":0},{"$f":"Plantlist!$G28*'Production list'!I29*'Other input expert'!G$4*'Other input expert'!G$8","v":0},{"$f":"Plantlist!$G28*'Production list'!J29*'Other input expert'!H$4*'Other input expert'!H$8","v":0},{"$f":"Plantlist!$G28*'Production list'!K29*'Other input expert'!I$4*'Other input expert'!I$8","v":0},{"$f":"Plantlist!$G28*'Production list'!L29*'Other input expert'!J$4*'Other input expert'!J$8","v":0},{"$f":"Plantlist!$G28*'Production list'!M29*'Other input expert'!K$4*'Other input expert'!K$8","v":0},{"$f":"Plantlist!$G28*'Production list'!N29*'Other input expert'!L$4*'Other input expert'!L$8","v":0},{"$f":"Plantlist!$G28*'Production list'!O29*'Other input expert'!M$4*'Other input expert'!M$8","v":0},null,{"$f":"C28*'Other input expert'!B$5","v":0},{"$f":"D28*'Other input expert'!C$5","v":0},{"$f":"E28*'Other input expert'!D$5","v":0},{"$f":"F28*'Other input expert'!E$5","v":0},{"$f":"G28*'Other input expert'!F$5","v":0},{"$f":"H28*'Other input expert'!G$5","v":0},{"$f":"I28*'Other input expert'!H$5","v":0},{"$f":"J28*'Other input expert'!I$5","v":0},{"$f":"K28*'Other input expert'!J$5","v":0},{"$f":"L28*'Other input expert'!K$5","v":0},{"$f":"M28*'Other input expert'!L$5","v":0},{"$f":"N28*'Other input expert'!M$5","v":0},null,{"$f":"C28*(100%-'Other input expert'!B$5)","v":0},{"$f":"D28*(100%-'Other input expert'!C$5)","v":0},{"$f":"E28*(100%-'Other input expert'!D$5)","v":0},{"$f":"F28*(100%-'Other input expert'!E$5)","v":0},{"$f":"G28*(100%-'Other input expert'!F$5)","v":0},{"$f":"H28*(100%-'Other input expert'!G$5)","v":0},{"$f":"I28*(100%-'Other input expert'!H$5)","v":0},{"$f":"J28*(100%-'Other input expert'!I$5)","v":0},{"$f":"K28*(100%-'Other input expert'!J$5)","v":0},{"$f":"L28*(100%-'Other input expert'!K$5)","v":0},{"$f":"M28*(100%-'Other input expert'!L$5)","v":0},{"$f":"N28*(100%-'Other input expert'!M$5)","v":0},null,{"$f":"P28*'Other input expert'!B$12*'Sales price per sales channel'!$G28*'Other input expert'!B$6","v":0},{"$f":"Q28*'Other input expert'!C$12*'Sales price per sales channel'!$G28*'Other input expert'!C$6","v":0},{"$f":"R28*'Other input expert'!D$12*'Sales price per sales channel'!$G28*'Other input expert'!D$6","v":0},{"$f":"S28*'Other input expert'!E$12*'Sales price per sales channel'!$G28*'Other input expert'!E$6","v":0},{"$f":"T28*'Other input expert'!F$12*'Sales price per sales channel'!$G28*'Other input expert'!F$6","v":0},{"$f":"U28*'Other input expert'!G$12*'Sales price per sales channel'!$G28*'Other input expert'!G$6","v":0},{"$f":"V28*'Other input expert'!H$12*'Sales price per sales channel'!$G28*'Other input expert'!H$6","v":0},{"$f":"W28*'Other input expert'!I$12*'Sales price per sales channel'!$G28*'Other input expert'!I$6","v":0},{"$f":"X28*'Other input expert'!J$12*'Sales price per sales channel'!$G28*'Other input expert'!J$6","v":0},{"$f":"Y28*'Other input expert'!K$12*'Sales price per sales channel'!$G28*'Other input expert'!K$6","v":0},{"$f":"Z28*'Other input expert'!L$12*'Sales price per sales channel'!$G28*'Other input expert'!L$6","v":0},{"$f":"AA28*'Other input expert'!M$12*'Sales price per sales channel'!$G28*'Other input expert'!M$6","v":0},null,{"$f":"P28*'Other input expert'!B$13*'Sales price per sales channel'!$H28*'Other input expert'!B$6","v":0},{"$f":"Q28*'Other input expert'!C$13*'Sales price per sales channel'!$H28*'Other input expert'!C$6","v":0},{"$f":"R28*'Other input expert'!D$13*'Sales price per sales channel'!$H28*'Other input expert'!D$6","v":0},{"$f":"S28*'Other input expert'!E$13*'Sales price per sales channel'!$H28*'Other input expert'!E$6","v":0},{"$f":"T28*'Other input expert'!F$13*'Sales price per sales channel'!$H28*'Other input expert'!F$6","v":0},{"$f":"U28*'Other input expert'!G$13*'Sales price per sales channel'!$H28*'Other input expert'!G$6","v":0},{"$f":"V28*'Other input expert'!H$13*'Sales price per sales channel'!$H28*'Other input expert'!H$6","v":0},{"$f":"W28*'Other input expert'!I$13*'Sales price per sales channel'!$H28*'Other input expert'!I$6","v":0},{"$f":"X28*'Other input expert'!J$13*'Sales price per sales channel'!$H28*'Other input expert'!J$6","v":0},{"$f":"Y28*'Other input expert'!K$13*'Sales price per sales channel'!$H28*'Other input expert'!K$6","v":0},{"$f":"Z28*'Other input expert'!L$13*'Sales price per sales channel'!$H28*'Other input expert'!L$6","v":0},{"$f":"AA28*'Other input expert'!M$13*'Sales price per sales channel'!$H28*'Other input expert'!M$6","v":0},null,{"$f":"P28*'Other input expert'!B$14*'Sales price per sales channel'!$I28*'Other input expert'!B$6","v":0},{"$f":"Q28*'Other input expert'!C$14*'Sales price per sales channel'!$I28*'Other input expert'!C$6","v":0},{"$f":"R28*'Other input expert'!D$14*'Sales price per sales channel'!$I28*'Other input expert'!D$6","v":0},{"$f":"S28*'Other input expert'!E$14*'Sales price per sales channel'!$I28*'Other input expert'!E$6","v":0},{"$f":"T28*'Other input expert'!F$14*'Sales price per sales channel'!$I28*'Other input expert'!F$6","v":0},{"$f":"U28*'Other input expert'!G$14*'Sales price per sales channel'!$I28*'Other input expert'!G$6","v":0},{"$f":"V28*'Other input expert'!H$14*'Sales price per sales channel'!$I28*'Other input expert'!H$6","v":0},{"$f":"W28*'Other input expert'!I$14*'Sales price per sales channel'!$I28*'Other input expert'!I$6","v":0},{"$f":"X28*'Other input expert'!J$14*'Sales price per sales channel'!$I28*'Other input expert'!J$6","v":0},{"$f":"Y28*'Other input expert'!K$14*'Sales price per sales channel'!$I28*'Other input expert'!K$6","v":0},{"$f":"Z28*'Other input expert'!L$14*'Sales price per sales channel'!$I28*'Other input expert'!L$6","v":0},{"$f":"AA28*'Other input expert'!M$14*'Sales price per sales channel'!$I28*'Other input expert'!M$6","v":0},null,{"$f":"AC28*'Other input expert'!B$12*'Sales price per sales channel'!$G28*'Other input expert'!B$7","v":0},{"$f":"AD28*'Other input expert'!C$12*'Sales price per sales channel'!$G28*'Other input expert'!C$7","v":0},{"$f":"AE28*'Other input expert'!D$12*'Sales price per sales channel'!$G28*'Other input expert'!D$7","v":0},{"$f":"AF28*'Other input expert'!E$12*'Sales price per sales channel'!$G28*'Other input expert'!E$7","v":0},{"$f":"AG28*'Other input expert'!F$12*'Sales price per sales channel'!$G28*'Other input expert'!F$7","v":0},{"$f":"AH28*'Other input expert'!G$12*'Sales price per sales channel'!$G28*'Other input expert'!G$7","v":0},{"$f":"AI28*'Other input expert'!H$12*'Sales price per sales channel'!$G28*'Other input expert'!H$7","v":0},{"$f":"AJ28*'Other input expert'!I$12*'Sales price per sales channel'!$G28*'Other input expert'!I$7","v":0},{"$f":"AK28*'Other input expert'!J$12*'Sales price per sales channel'!$G28*'Other input expert'!J$7","v":0},{"$f":"AL28*'Other input expert'!K$12*'Sales price per sales channel'!$G28*'Other input expert'!K$7","v":0},{"$f":"AM28*'Other input expert'!L$12*'Sales price per sales channel'!$G28*'Other input expert'!L$7","v":0},{"$f":"AN28*'Other input expert'!M$12*'Sales price per sales channel'!$G28*'Other input expert'!M$7","v":0},null,{"$f":"AC28*'Other input expert'!B$13*'Sales price per sales channel'!$H28*'Other input expert'!B$7","v":0},{"$f":"AD28*'Other input expert'!C$13*'Sales price per sales channel'!$H28*'Other input expert'!C$7","v":0},{"$f":"AE28*'Other input expert'!D$13*'Sales price per sales channel'!$H28*'Other input expert'!D$7","v":0},{"$f":"AF28*'Other input expert'!E$13*'Sales price per sales channel'!$H28*'Other input expert'!E$7","v":0},{"$f":"AG28*'Other input expert'!F$13*'Sales price per sales channel'!$H28*'Other input expert'!F$7","v":0},{"$f":"AH28*'Other input expert'!G$13*'Sales price per sales channel'!$H28*'Other input expert'!G$7","v":0},{"$f":"AI28*'Other input expert'!H$13*'Sales price per sales channel'!$H28*'Other input expert'!H$7","v":0},{"$f":"AJ28*'Other input expert'!I$13*'Sales price per sales channel'!$H28*'Other input expert'!I$7","v":0},{"$f":"AK28*'Other input expert'!J$13*'Sales price per sales channel'!$H28*'Other input expert'!J$7","v":0},{"$f":"AL28*'Other input expert'!K$13*'Sales price per sales channel'!$H28*'Other input expert'!K$7","v":0},{"$f":"AM28*'Other input expert'!L$13*'Sales price per sales channel'!$H28*'Other input expert'!L$7","v":0},{"$f":"AN28*'Other input expert'!M$13*'Sales price per sales channel'!$H28*'Other input expert'!M$7","v":0},null,{"$f":"AC28*'Other input expert'!B$14*'Sales price per sales channel'!$I28*'Other input expert'!B$7","v":0},{"$f":"AD28*'Other input expert'!C$14*'Sales price per sales channel'!$I28*'Other input expert'!C$7","v":0},{"$f":"AE28*'Other input expert'!D$14*'Sales price per sales channel'!$I28*'Other input expert'!D$7","v":0},{"$f":"AF28*'Other input expert'!E$14*'Sales price per sales channel'!$I28*'Other input expert'!E$7","v":0},{"$f":"AG28*'Other input expert'!F$14*'Sales price per sales channel'!$I28*'Other input expert'!F$7","v":0},{"$f":"AH28*'Other input expert'!G$14*'Sales price per sales channel'!$I28*'Other input expert'!G$7","v":0},{"$f":"AI28*'Other input expert'!H$14*'Sales price per sales channel'!$I28*'Other input expert'!H$7","v":0},{"$f":"AJ28*'Other input expert'!I$14*'Sales price per sales channel'!$I28*'Other input expert'!I$7","v":0},{"$f":"AK28*'Other input expert'!J$14*'Sales price per sales channel'!$I28*'Other input expert'!J$7","v":0},{"$f":"AL28*'Other input expert'!K$14*'Sales price per sales channel'!$I28*'Other input expert'!K$7","v":0},{"$f":"AM28*'Other input expert'!L$14*'Sales price per sales channel'!$I28*'Other input expert'!L$7","v":0},{"$f":"AN28*'Other input expert'!M$14*'Sales price per sales channel'!$I28*'Other input expert'!M$7","v":0}]
["Araucaria araucana","Monkey puzzle",{"$f":"Plantlist!$G29*'Production list'!D30*'Other input expert'!B$4*'Other input expert'!B$8","v":0},{"$f":"Plantlist!$G29*'Production list'!E30*'Other input expert'!C$4*'Other input expert'!C$8","v":0},{"$f":"Plantlist!$G29*'Production list'!F30*'Other input expert'!D$4*'Other input expert'!D$8","v":0},{"$f":"Plantlist!$G29*'Production list'!G30*'Other input expert'!E$4*'Other input expert'!E$8","v":0},{"$f":"Plantlist!$G29*'Production list'!H30*'Other input expert'!F$4*'Other input expert'!F$8","v":0},{"$f":"Plantlist!$G29*'Production list'!I30*'Other input expert'!G$4*'Other input expert'!G$8","v":0},{"$f":"Plantlist!$G29*'Production list'!J30*'Other input expert'!H$4*'Other input expert'!H$8","v":0},{"$f":"Plantlist!$G29*'Production list'!K30*'Other input expert'!I$4*'Other input expert'!I$8","v":0},{"$f":"Plantlist!$G29*'Production list'!L30*'Other input expert'!J$4*'Other input expert'!J$8","v":0},{"$f":"Plantlist!$G29*'Production list'!M30*'Other input expert'!K$4*'Other input expert'!K$8","v":0},{"$f":"Plantlist!$G29*'Production list'!N30*'Other input expert'!L$4*'Other input expert'!L$8","v":0},{"$f":"Plantlist!$G29*'Production list'!O30*'Other input expert'!M$4*'Other input expert'!M$8","v":0},null,{"$f":"C29*'Other input expert'!B$5","v":0},{"$f":"D29*'Other input expert'!C$5","v":0},{"$f":"E29*'Other input expert'!D$5","v":0},{"$f":"F29*'Other input expert'!E$5","v":0},{"$f":"G29*'Other input expert'!F$5","v":0},{"$f":"H29*'Other input expert'!G$5","v":0},{"$f":"I29*'Other input expert'!H$5","v":0},{"$f":"J29*'Other input expert'!I$5","v":0},{"$f":"K29*'Other input expert'!J$5","v":0},{"$f":"L29*'Other input expert'!K$5","v":0},{"$f":"M29*'Other input expert'!L$5","v":0},{"$f":"N29*'Other input expert'!M$5","v":0},null,{"$f":"C29*(100%-'Other input expert'!B$5)","v":0},{"$f":"D29*(100%-'Other input expert'!C$5)","v":0},{"$f":"E29*(100%-'Other input expert'!D$5)","v":0},{"$f":"F29*(100%-'Other input expert'!E$5)","v":0},{"$f":"G29*(100%-'Other input expert'!F$5)","v":0},{"$f":"H29*(100%-'Other input expert'!G$5)","v":0},{"$f":"I29*(100%-'Other input expert'!H$5)","v":0},{"$f":"J29*(100%-'Other input expert'!I$5)","v":0},{"$f":"K29*(100%-'Other input expert'!J$5)","v":0},{"$f":"L29*(100%-'Other input expert'!K$5)","v":0},{"$f":"M29*(100%-'Other input expert'!L$5)","v":0},{"$f":"N29*(100%-'Other input expert'!M$5)","v":0},null,{"$f":"P29*'Other input expert'!B$12*'Sales price per sales channel'!$G29*'Other input expert'!B$6","v":0},{"$f":"Q29*'Other input expert'!C$12*'Sales price per sales channel'!$G29*'Other input expert'!C$6","v":0},{"$f":"R29*'Other input expert'!D$12*'Sales price per sales channel'!$G29*'Other input expert'!D$6","v":0},{"$f":"S29*'Other input expert'!E$12*'Sales price per sales channel'!$G29*'Other input expert'!E$6","v":0},{"$f":"T29*'Other input expert'!F$12*'Sales price per sales channel'!$G29*'Other input expert'!F$6","v":0},{"$f":"U29*'Other input expert'!G$12*'Sales price per sales channel'!$G29*'Other input expert'!G$6","v":0},{"$f":"V29*'Other input expert'!H$12*'Sales price per sales channel'!$G29*'Other input expert'!H$6","v":0},{"$f":"W29*'Other input expert'!I$12*'Sales price per sales channel'!$G29*'Other input expert'!I$6","v":0},{"$f":"X29*'Other input expert'!J$12*'Sales price per sales channel'!$G29*'Other input expert'!J$6","v":0},{"$f":"Y29*'Other input expert'!K$12*'Sales price per sales channel'!$G29*'Other input expert'!K$6","v":0},{"$f":"Z29*'Other input expert'!L$12*'Sales price per sales channel'!$G29*'Other input expert'!L$6","v":0},{"$f":"AA29*'Other input expert'!M$12*'Sales price per sales channel'!$G29*'Other input expert'!M$6","v":0},null,{"$f":"P29*'Other input expert'!B$13*'Sales price per sales channel'!$H29*'Other input expert'!B$6","v":0},{"$f":"Q29*'Other input expert'!C$13*'Sales price per sales channel'!$H29*'Other input expert'!C$6","v":0},{"$f":"R29*'Other input expert'!D$13*'Sales price per sales channel'!$H29*'Other input expert'!D$6","v":0},{"$f":"S29*'Other input expert'!E$13*'Sales price per sales channel'!$H29*'Other input expert'!E$6","v":0},{"$f":"T29*'Other input expert'!F$13*'Sales price per sales channel'!$H29*'Other input expert'!F$6","v":0},{"$f":"U29*'Other input expert'!G$13*'Sales price per sales channel'!$H29*'Other input expert'!G$6","v":0},{"$f":"V29*'Other input expert'!H$13*'Sales price per sales channel'!$H29*'Other input expert'!H$6","v":0},{"$f":"W29*'Other input expert'!I$13*'Sales price per sales channel'!$H29*'Other input expert'!I$6","v":0},{"$f":"X29*'Other input expert'!J$13*'Sales price per sales channel'!$H29*'Other input expert'!J$6","v":0},{"$f":"Y29*'Other input expert'!K$13*'Sales price per sales channel'!$H29*'Other input expert'!K$6","v":0},{"$f":"Z29*'Other input expert'!L$13*'Sales price per sales channel'!$H29*'Other input expert'!L$6","v":0},{"$f":"AA29*'Other input expert'!M$13*'Sales price per sales channel'!$H29*'Other input expert'!M$6","v":0},null,{"$f":"P29*'Other input expert'!B$14*'Sales price per sales channel'!$I29*'Other input expert'!B$6","v":0},{"$f":"Q29*'Other input expert'!C$14*'Sales price per sales channel'!$I29*'Other input expert'!C$6","v":0},{"$f":"R29*'Other input expert'!D$14*'Sales price per sales channel'!$I29*'Other input expert'!D$6","v":0},{"$f":"S29*'Other input expert'!E$14*'Sales price per sales channel'!$I29*'Other input expert'!E$6","v":0},{"$f":"T29*'Other input expert'!F$14*'Sales price per sales channel'!$I29*'Other input expert'!F$6","v":0},{"$f":"U29*'Other input expert'!G$14*'Sales price per sales channel'!$I29*'Other input expert'!G$6","v":0},{"$f":"V29*'Other input expert'!H$14*'Sales price per sales channel'!$I29*'Other input expert'!H$6","v":0},{"$f":"W29*'Other input expert'!I$14*'Sales price per sales channel'!$I29*'Other input expert'!I$6","v":0},{"$f":"X29*'Other input expert'!J$14*'Sales price per sales channel'!$I29*'Other input expert'!J$6","v":0},{"$f":"Y29*'Other input expert'!K$14*'Sales price per sales channel'!$I29*'Other input expert'!K$6","v":0},{"$f":"Z29*'Other input expert'!L$14*'Sales price per sales channel'!$I29*'Other input expert'!L$6","v":0},{"$f":"AA29*'Other input expert'!M$14*'Sales price per sales channel'!$I29*'Other input expert'!M$6","v":0},null,{"$f":"AC29*'Other input expert'!B$12*'Sales price per sales channel'!$G29*'Other input expert'!B$7","v":0},{"$f":"AD29*'Other input expert'!C$12*'Sales price per sales channel'!$G29*'Other input expert'!C$7","v":0},{"$f":"AE29*'Other input expert'!D$12*'Sales price per sales channel'!$G29*'Other input expert'!D$7","v":0},{"$f":"AF29*'Other input expert'!E$12*'Sales price per sales channel'!$G29*'Other input expert'!E$7","v":0},{"$f":"AG29*'Other input expert'!F$12*'Sales price per sales channel'!$G29*'Other input expert'!F$7","v":0},{"$f":"AH29*'Other input expert'!G$12*'Sales price per sales channel'!$G29*'Other input expert'!G$7","v":0},{"$f":"AI29*'Other input expert'!H$12*'Sales price per sales channel'!$G29*'Other input expert'!H$7","v":0},{"$f":"AJ29*'Other input expert'!I$12*'Sales price per sales channel'!$G29*'Other input expert'!I$7","v":0},{"$f":"AK29*'Other input expert'!J$12*'Sales price per sales channel'!$G29*'Other input expert'!J$7","v":0},{"$f":"AL29*'Other input expert'!K$12*'Sales price per sales channel'!$G29*'Other input expert'!K$7","v":0},{"$f":"AM29*'Other input expert'!L$12*'Sales price per sales channel'!$G29*'Other input expert'!L$7","v":0},{"$f":"AN29*'Other input expert'!M$12*'Sales price per sales channel'!$G29*'Other input expert'!M$7","v":0},null,{"$f":"AC29*'Other input expert'!B$13*'Sales price per sales channel'!$H29*'Other input expert'!B$7","v":0},{"$f":"AD29*'Other input expert'!C$13*'Sales price per sales channel'!$H29*'Other input expert'!C$7","v":0},{"$f":"AE29*'Other input expert'!D$13*'Sales price per sales channel'!$H29*'Other input expert'!D$7","v":0},{"$f":"AF29*'Other input expert'!E$13*'Sales price per sales channel'!$H29*'Other input expert'!E$7","v":0},{"$f":"AG29*'Other input expert'!F$13*'Sales price per sales channel'!$H29*'Other input expert'!F$7","v":0},{"$f":"AH29*'Other input expert'!G$13*'Sales price per sales channel'!$H29*'Other input expert'!G$7","v":0},{"$f":"AI29*'Other input expert'!H$13*'Sales price per sales channel'!$H29*'Other input expert'!H$7","v":0},{"$f":"AJ29*'Other input expert'!I$13*'Sales price per sales channel'!$H29*'Other input expert'!I$7","v":0},{"$f":"AK29*'Other input expert'!J$13*'Sales price per sales channel'!$H29*'Other input expert'!J$7","v":0},{"$f":"AL29*'Other input expert'!K$13*'Sales price per sales channel'!$H29*'Other input expert'!K$7","v":0},{"$f":"AM29*'Other input expert'!L$13*'Sales price per sales channel'!$H29*'Other input expert'!L$7","v":0},{"$f":"AN29*'Other input expert'!M$13*'Sales price per sales channel'!$H29*'Other input expert'!M$7","v":0},null,{"$f":"AC29*'Other input expert'!B$14*'Sales price per sales channel'!$I29*'Other input expert'!B$7","v":0},{"$f":"AD29*'Other input expert'!C$14*'Sales price per sales channel'!$I29*'Other input expert'!C$7","v":0},{"$f":"AE29*'Other input expert'!D$14*'Sales price per sales channel'!$I29*'Other input expert'!D$7","v":0},{"$f":"AF29*'Other input expert'!E$14*'Sales price per sales channel'!$I29*'Other input expert'!E$7","v":0},{"$f":"AG29*'Other input expert'!F$14*'Sales price per sales channel'!$I29*'Other input expert'!F$7","v":0},{"$f":"AH29*'Other input expert'!G$14*'Sales price per sales channel'!$I29*'Other input expert'!G$7","v":0},{"$f":"AI29*'Other input expert'!H$14*'Sales price per sales channel'!$I29*'Other input expert'!H$7","v":0},{"$f":"AJ29*'Other input expert'!I$14*'Sales price per sales channel'!$I29*'Other input expert'!I$7","v":0},{"$f":"AK29*'Other input expert'!J$14*'Sales price per sales channel'!$I29*'Other input expert'!J$7","v":0},{"$f":"AL29*'Other input expert'!K$14*'Sales price per sales channel'!$I29*'Other input expert'!K$7","v":0},{"$f":"AM29*'Other input expert'!L$14*'Sales price per sales channel'!$I29*'Other input expert'!L$7","v":0},{"$f":"AN29*'Other input expert'!M$14*'Sales price per sales channel'!$I29*'Other input expert'!M$7","v":0}]
["Arbutus unedo","Strawberry tree",{"$f":"Plantlist!$G30*'Production list'!D31*'Other input expert'!B$4*'Other input expert'!B$8","v":0},{"$f":"Plantlist!$G30*'Production list'!E31*'Other input expert'!C$4*'Other input expert'!C$8","v":0},{"$f":"Plantlist!$G30*'Production list'!F31*'Other input expert'!D$4*'Other input expert'!D$8","v":0},{"$f":"Plantlist!$G30*'Production list'!G31*'Other input expert'!E$4*'Other input expert'!E$8","v":0},{"$f":"Plantlist!$G30*'Production list'!H31*'Other input expert'!F$4*'Other input expert'!F$8","v":0},{"$f":"Plantlist!$G30*'Production list'!I31*'Other input expert'!G$4*'Other input expert'!G$8","v":0},{"$f":"Plantlist!$G30*'Production list'!J31*'Other input expert'!H$4*'Other input expert'!H$8","v":0},{"$f":"Plantlist!$G30*'Production list'!K31*'Other input expert'!I$4*'Other input expert'!I$8","v":0},{"$f":"Plantlist!$G30*'Production list'!L31*'Other input expert'!J$4*'Other input expert'!J$8","v":0},{"$f":"Plantlist!$G30*'Production list'!M31*'Other input expert'!K$4*'Other input expert'!K$8","v":0},{"$f":"Plantlist!$G30*'Production list'!N31*'Other input expert'!L$4*'Other input expert'!L$8","v":0},{"$f":"Plantlist!$G30*'Production list'!O31*'Other input expert'!M$4*'Other input expert'!M$8","v":0},null,{"$f":"C30*'Other input expert'!B$5","v":0},{"$f":"D30*'Other input expert'!C$5","v":0},{"$f":"E30*'Other input expert'!D$5","v":0},{"$f":"F30*'Other input expert'!E$5","v":0},{"$f":"G30*'Other input expert'!F$5","v":0},{"$f":"H30*'Other input expert'!G$5","v":0},{"$f":"I30*'Other input expert'!H$5","v":0},{"$f":"J30*'Other input expert'!I$5","v":0},{"$f":"K30*'Other input expert'!J$5","v":0},{"$f":"L30*'Other input expert'!K$5","v":0},{"$f":"M30*'Other input expert'!L$5","v":0},{"$f":"N30*'Other input expert'!M$5","v":0},null,{"$f":"C30*(100%-'Other input expert'!B$5)","v":0},{"$f":"D30*(100%-'Other input expert'!C$5)","v":0},{"$f":"E30*(100%-'Other input expert'!D$5)","v":0},{"$f":"F30*(100%-'Other input expert'!E$5)","v":0},{"$f":"G30*(100%-'Other input expert'!F$5)","v":0},{"$f":"H30*(100%-'Other input expert'!G$5)","v":0},{"$f":"I30*(100%-'Other input expert'!H$5)","v":0},{"$f":"J30*(100%-'Other input expert'!I$5)","v":0},{"$f":"K30*(100%-'Other input expert'!J$5)","v":0},{"$f":"L30*(100%-'Other input expert'!K$5)","v":0},{"$f":"M30*(100%-'Other input expert'!L$5)","v":0},{"$f":"N30*(100%-'Other input expert'!M$5)","v":0},null,{"$f":"P30*'Other input expert'!B$12*'Sales price per sales channel'!$G30*'Other input expert'!B$6","v":0},{"$f":"Q30*'Other input expert'!C$12*'Sales price per sales channel'!$G30*'Other input expert'!C$6","v":0},{"$f":"R30*'Other input expert'!D$12*'Sales price per sales channel'!$G30*'Other input expert'!D$6","v":0},{"$f":"S30*'Other input expert'!E$12*'Sales price per sales channel'!$G30*'Other input expert'!E$6","v":0},{"$f":"T30*'Other input expert'!F$12*'Sales price per sales channel'!$G30*'Other input expert'!F$6","v":0},{"$f":"U30*'Other input expert'!G$12*'Sales price per sales channel'!$G30*'Other input expert'!G$6","v":0},{"$f":"V30*'Other input expert'!H$12*'Sales price per sales channel'!$G30*'Other input expert'!H$6","v":0},{"$f":"W30*'Other input expert'!I$12*'Sales price per sales channel'!$G30*'Other input expert'!I$6","v":0},{"$f":"X30*'Other input expert'!J$12*'Sales price per sales channel'!$G30*'Other input expert'!J$6","v":0},{"$f":"Y30*'Other input expert'!K$12*'Sales price per sales channel'!$G30*'Other input expert'!K$6","v":0},{"$f":"Z30*'Other input expert'!L$12*'Sales price per sales channel'!$G30*'Other input expert'!L$6","v":0},{"$f":"AA30*'Other input expert'!M$12*'Sales price per sales channel'!$G30*'Other input expert'!M$6","v":0},null,{"$f":"P30*'Other input expert'!B$13*'Sales price per sales channel'!$H30*'Other input expert'!B$6","v":0},{"$f":"Q30*'Other input expert'!C$13*'Sales price per sales channel'!$H30*'Other input expert'!C$6","v":0},{"$f":"R30*'Other input expert'!D$13*'Sales price per sales channel'!$H30*'Other input expert'!D$6","v":0},{"$f":"S30*'Other input expert'!E$13*'Sales price per sales channel'!$H30*'Other input expert'!E$6","v":0},{"$f":"T30*'Other input expert'!F$13*'Sales price per sales channel'!$H30*'Other input expert'!F$6","v":0},{"$f":"U30*'Other input expert'!G$13*'Sales price per sales channel'!$H30*'Other input expert'!G$6","v":0},{"$f":"V30*'Other input expert'!H$13*'Sales price per sales channel'!$H30*'Other input expert'!H$6","v":0},{"$f":"W30*'Other input expert'!I$13*'Sales price per sales channel'!$H30*'Other input expert'!I$6","v":0},{"$f":"X30*'Other input expert'!J$13*'Sales price per sales channel'!$H30*'Other input expert'!J$6","v":0},{"$f":"Y30*'Other input expert'!K$13*'Sales price per sales channel'!$H30*'Other input expert'!K$6","v":0},{"$f":"Z30*'Other input expert'!L$13*'Sales price per sales channel'!$H30*'Other input expert'!L$6","v":0},{"$f":"AA30*'Other input expert'!M$13*'Sales price per sales channel'!$H30*'Other input expert'!M$6","v":0},null,{"$f":"P30*'Other input expert'!B$14*'Sales price per sales channel'!$I30*'Other input expert'!B$6","v":0},{"$f":"Q30*'Other input expert'!C$14*'Sales price per sales channel'!$I30*'Other input expert'!C$6","v":0},{"$f":"R30*'Other input expert'!D$14*'Sales price per sales channel'!$I30*'Other input expert'!D$6","v":0},{"$f":"S30*'Other input expert'!E$14*'Sales price per sales channel'!$I30*'Other input expert'!E$6","v":0},{"$f":"T30*'Other input expert'!F$14*'Sales price per sales channel'!$I30*'Other input expert'!F$6","v":0},{"$f":"U30*'Other input expert'!G$14*'Sales price per sales channel'!$I30*'Other input expert'!G$6","v":0},{"$f":"V30*'Other input expert'!H$14*'Sales price per sales channel'!$I30*'Other input expert'!H$6","v":0},{"$f":"W30*'Other input expert'!I$14*'Sales price per sales channel'!$I30*'Other input expert'!I$6","v":0},{"$f":"X30*'Other input expert'!J$14*'Sales price per sales channel'!$I30*'Other input expert'!J$6","v":0},{"$f":"Y30*'Other input expert'!K$14*'Sales price per sales channel'!$I30*'Other input expert'!K$6","v":0},{"$f":"Z30*'Other input expert'!L$14*'Sales price per sales channel'!$I30*'Other input expert'!L$6","v":0},{"$f":"AA30*'Other input expert'!M$14*'Sales price per sales channel'!$I30*'Other input expert'!M$6","v":0},null,{"$f":"AC30*'Other input expert'!B$12*'Sales price per sales channel'!$G30*'Other input expert'!B$7","v":0},{"$f":"AD30*'Other input expert'!C$12*'Sales price per sales channel'!$G30*'Other input expert'!C$7","v":0},{"$f":"AE30*'Other input expert'!D$12*'Sales price per sales channel'!$G30*'Other input expert'!D$7","v":0},{"$f":"AF30*'Other input expert'!E$12*'Sales price per sales channel'!$G30*'Other input expert'!E$7","v":0},{"$f":"AG30*'Other input expert'!F$12*'Sales price per sales channel'!$G30*'Other input expert'!F$7","v":0},{"$f":"AH30*'Other input expert'!G$12*'Sales price per sales channel'!$G30*'Other input expert'!G$7","v":0},{"$f":"AI30*'Other input expert'!H$12*'Sales price per sales channel'!$G30*'Other input expert'!H$7","v":0},{"$f":"AJ30*'Other input expert'!I$12*'Sales price per sales channel'!$G30*'Other input expert'!I$7","v":0},{"$f":"AK30*'Other input expert'!J$12*'Sales price per sales channel'!$G30*'Other input expert'!J$7","v":0},{"$f":"AL30*'Other input expert'!K$12*'Sales price per sales channel'!$G30*'Other input expert'!K$7","v":0},{"$f":"AM30*'Other input expert'!L$12*'Sales price per sales channel'!$G30*'Other input expert'!L$7","v":0},{"$f":"AN30*'Other input expert'!M$12*'Sales price per sales channel'!$G30*'Other input expert'!M$7","v":0},null,{"$f":"AC30*'Other input expert'!B$13*'Sales price per sales channel'!$H30*'Other input expert'!B$7","v":0},{"$f":"AD30*'Other input expert'!C$13*'Sales price per sales channel'!$H30*'Other input expert'!C$7","v":0},{"$f":"AE30*'Other input expert'!D$13*'Sales price per sales channel'!$H30*'Other input expert'!D$7","v":0},{"$f":"AF30*'Other input expert'!E$13*'Sales price per sales channel'!$H30*'Other input expert'!E$7","v":0},{"$f":"AG30*'Other input expert'!F$13*'Sales price per sales channel'!$H30*'Other input expert'!F$7","v":0},{"$f":"AH30*'Other input expert'!G$13*'Sales price per sales channel'!$H30*'Other input expert'!G$7","v":0},{"$f":"AI30*'Other input expert'!H$13*'Sales price per sales channel'!$H30*'Other input expert'!H$7","v":0},{"$f":"AJ30*'Other input expert'!I$13*'Sales price per sales channel'!$H30*'Other input expert'!I$7","v":0},{"$f":"AK30*'Other input expert'!J$13*'Sales price per sales channel'!$H30*'Other input expert'!J$7","v":0},{"$f":"AL30*'Other input expert'!K$13*'Sales price per sales channel'!$H30*'Other input expert'!K$7","v":0},{"$f":"AM30*'Other input expert'!L$13*'Sales price per sales channel'!$H30*'Other input expert'!L$7","v":0},{"$f":"AN30*'Other input expert'!M$13*'Sales price per sales channel'!$H30*'Other input expert'!M$7","v":0},null,{"$f":"AC30*'Other input expert'!B$14*'Sales price per sales channel'!$I30*'Other input expert'!B$7","v":0},{"$f":"AD30*'Other input expert'!C$14*'Sales price per sales channel'!$I30*'Other input expert'!C$7","v":0},{"$f":"AE30*'Other input expert'!D$14*'Sales price per sales channel'!$I30*'Other input expert'!D$7","v":0},{"$f":"AF30*'Other input expert'!E$14*'Sales price per sales channel'!$I30*'Other input expert'!E$7","v":0},{"$f":"AG30*'Other input expert'!F$14*'Sales price per sales channel'!$I30*'Other input expert'!F$7","v":0},{"$f":"AH30*'Other input expert'!G$14*'Sales price per sales channel'!$I30*'Other input expert'!G$7","v":0},{"$f":"AI30*'Other input expert'!H$14*'Sales price per sales channel'!$I30*'Other input expert'!H$7","v":0},{"$f":"AJ30*'Other input expert'!I$14*'Sales price per sales channel'!$I30*'Other input expert'!I$7","v":0},{"$f":"AK30*'Other input expert'!J$14*'Sales price per sales channel'!$I30*'Other input expert'!J$7","v":0},{"$f":"AL30*'Other input expert'!K$14*'Sales price per sales channel'!$I30*'Other input expert'!K$7","v":0},{"$f":"AM30*'Other input expert'!L$14*'Sales price per sales channel'!$I30*'Other input expert'!L$7","v":0},{"$f":"AN30*'Other input expert'!M$14*'Sales price per sales channel'!$I30*'Other input expert'!M$7","v":0}]
["Arnica spp.","Arnica",{"$f":"Plantlist!$G31*'Production list'!D32*'Other input expert'!B$4*'Other input expert'!B$8","v":0},{"$f":"Plantlist!$G31*'Production list'!E32*'Other input expert'!C$4*'Other input expert'!C$8","v":0},{"$f":"Plantlist!$G31*'Production list'!F32*'Other input expert'!D$4*'Other input expert'!D$8","v":0},{"$f":"Plantlist!$G31*'Production list'!G32*'Other input expert'!E$4*'Other input expert'!E$8","v":0},{"$f":"Plantlist!$G31*'Production list'!H32*'Other input expert'!F$4*'Other input expert'!F$8","v":0},{"$f":"Plantlist!$G31*'Production list'!I32*'Other input expert'!G$4*'Other input expert'!G$8","v":0},{"$f":"Plantlist!$G31*'Production list'!J32*'Other input expert'!H$4*'Other input expert'!H$8","v":0},{"$f":"Plantlist!$G31*'Production list'!K32*'Other input expert'!I$4*'Other input expert'!I$8","v":0},{"$f":"Plantlist!$G31*'Production list'!L32*'Other input expert'!J$4*'Other input expert'!J$8","v":0},{"$f":"Plantlist!$G31*'Production list'!M32*'Other input expert'!K$4*'Other input expert'!K$8","v":0},{"$f":"Plantlist!$G31*'Production list'!N32*'Other input expert'!L$4*'Other input expert'!L$8","v":0},{"$f":"Plantlist!$G31*'Production list'!O32*'Other input expert'!M$4*'Other input expert'!M$8","v":0},null,{"$f":"C31*'Other input expert'!B$5","v":0},{"$f":"D31*'Other input expert'!C$5","v":0},{"$f":"E31*'Other input expert'!D$5","v":0},{"$f":"F31*'Other input expert'!E$5","v":0},{"$f":"G31*'Other input expert'!F$5","v":0},{"$f":"H31*'Other input expert'!G$5","v":0},{"$f":"I31*'Other input expert'!H$5","v":0},{"$f":"J31*'Other input expert'!I$5","v":0},{"$f":"K31*'Other input expert'!J$5","v":0},{"$f":"L31*'Other input expert'!K$5","v":0},{"$f":"M31*'Other input expert'!L$5","v":0},{"$f":"N31*'Other input expert'!M$5","v":0},null,{"$f":"C31*(100%-'Other input expert'!B$5)","v":0},{"$f":"D31*(100%-'Other input expert'!C$5)","v":0},{"$f":"E31*(100%-'Other input expert'!D$5)","v":0},{"$f":"F31*(100%-'Other input expert'!E$5)","v":0},{"$f":"G31*(100%-'Other input expert'!F$5)","v":0},{"$f":"H31*(100%-'Other input expert'!G$5)","v":0},{"$f":"I31*(100%-'Other input expert'!H$5)","v":0},{"$f":"J31*(100%-'Other input expert'!I$5)","v":0},{"$f":"K31*(100%-'Other input expert'!J$5)","v":0},{"$f":"L31*(100%-'Other input expert'!K$5)","v":0},{"$f":"M31*(100%-'Other input expert'!L$5)","v":0},{"$f":"N31*(100%-'Other input expert'!M$5)","v":0},null,{"$f":"P31*'Other input expert'!B$12*'Sales price per sales channel'!$G31*'Other input expert'!B$6","v":0},{"$f":"Q31*'Other input expert'!C$12*'Sales price per sales channel'!$G31*'Other input expert'!C$6","v":0},{"$f":"R31*'Other input expert'!D$12*'Sales price per sales channel'!$G31*'Other input expert'!D$6","v":0},{"$f":"S31*'Other input expert'!E$12*'Sales price per sales channel'!$G31*'Other input expert'!E$6","v":0},{"$f":"T31*'Other input expert'!F$12*'Sales price per sales channel'!$G31*'Other input expert'!F$6","v":0},{"$f":"U31*'Other input expert'!G$12*'Sales price per sales channel'!$G31*'Other input expert'!G$6","v":0},{"$f":"V31*'Other input expert'!H$12*'Sales price per sales channel'!$G31*'Other input expert'!H$6","v":0},{"$f":"W31*'Other input expert'!I$12*'Sales price per sales channel'!$G31*'Other input expert'!I$6","v":0},{"$f":"X31*'Other input expert'!J$12*'Sales price per sales channel'!$G31*'Other input expert'!J$6","v":0},{"$f":"Y31*'Other input expert'!K$12*'Sales price per sales channel'!$G31*'Other input expert'!K$6","v":0},{"$f":"Z31*'Other input expert'!L$12*'Sales price per sales channel'!$G31*'Other input expert'!L$6","v":0},{"$f":"AA31*'Other input expert'!M$12*'Sales price per sales channel'!$G31*'Other input expert'!M$6","v":0},null,{"$f":"P31*'Other input expert'!B$13*'Sales price per sales channel'!$H31*'Other input expert'!B$6","v":0},{"$f":"Q31*'Other input expert'!C$13*'Sales price per sales channel'!$H31*'Other input expert'!C$6","v":0},{"$f":"R31*'Other input expert'!D$13*'Sales price per sales channel'!$H31*'Other input expert'!D$6","v":0},{"$f":"S31*'Other input expert'!E$13*'Sales price per sales channel'!$H31*'Other input expert'!E$6","v":0},{"$f":"T31*'Other input expert'!F$13*'Sales price per sales channel'!$H31*'Other input expert'!F$6","v":0},{"$f":"U31*'Other input expert'!G$13*'Sales price per sales channel'!$H31*'Other input expert'!G$6","v":0},{"$f":"V31*'Other input expert'!H$13*'Sales price per sales channel'!$H31*'Other input expert'!H$6","v":0},{"$f":"W31*'Other input expert'!I$13*'Sales price per sales channel'!$H31*'Other input expert'!I$6","v":0},{"$f":"X31*'Other input expert'!J$13*'Sales price per sales channel'!$H31*'Other input expert'!J$6","v":0},{"$f":"Y31*'Other input expert'!K$13*'Sales price per sales channel'!$H31*'Other input expert'!K$6","v":0},{"$f":"Z31*'Other input expert'!L$13*'Sales price per sales channel'!$H31*'Other input expert'!L$6","v":0},{"$f":"AA31*'Other input expert'!M$13*'Sales price per sales channel'!$H31*'Other input expert'!M$6","v":0},null,{"$f":"P31*'Other input expert'!B$14*'Sales price per sales channel'!$I31*'Other input expert'!B$6","v":0},{"$f":"Q31*'Other input expert'!C$14*'Sales price per sales channel'!$I31*'Other input expert'!C$6","v":0},{"$f":"R31*'Other input expert'!D$14*'Sales price per sales channel'!$I31*'Other input expert'!D$6","v":0},{"$f":"S31*'Other input expert'!E$14*'Sales price per sales channel'!$I31*'Other input expert'!E$6","v":0},{"$f":"T31*'Other input expert'!F$14*'Sales price per sales channel'!$I31*'Other input expert'!F$6","v":0},{"$f":"U31*'Other input expert'!G$14*'Sales price per sales channel'!$I31*'Other input expert'!G$6","v":0},{"$f":"V31*'Other input expert'!H$14*'Sales price per sales channel'!$I31*'Other input expert'!H$6","v":0},{"$f":"W31*'Other input expert'!I$14*'Sales price per sales channel'!$I31*'Other input expert'!I$6","v":0},{"$f":"X31*'Other input expert'!J$14*'Sales price per sales channel'!$I31*'Other input expert'!J$6","v":0},{"$f":"Y31*'Other input expert'!K$14*'Sales price per sales channel'!$I31*'Other input expert'!K$6","v":0},{"$f":"Z31*'Other input expert'!L$14*'Sales price per sales channel'!$I31*'Other input expert'!L$6","v":0},{"$f":"AA31*'Other input expert'!M$14*'Sales price per sales channel'!$I31*'Other input expert'!M$6","v":0},null,{"$f":"AC31*'Other input expert'!B$12*'Sales price per sales channel'!$G31*'Other input expert'!B$7","v":0},{"$f":"AD31*'Other input expert'!C$12*'Sales price per sales channel'!$G31*'Other input expert'!C$7","v":0},{"$f":"AE31*'Other input expert'!D$12*'Sales price per sales channel'!$G31*'Other input expert'!D$7","v":0},{"$f":"AF31*'Other input expert'!E$12*'Sales price per sales channel'!$G31*'Other input expert'!E$7","v":0},{"$f":"AG31*'Other input expert'!F$12*'Sales price per sales channel'!$G31*'Other input expert'!F$7","v":0},{"$f":"AH31*'Other input expert'!G$12*'Sales price per sales channel'!$G31*'Other input expert'!G$7","v":0},{"$f":"AI31*'Other input expert'!H$12*'Sales price per sales channel'!$G31*'Other input expert'!H$7","v":0},{"$f":"AJ31*'Other input expert'!I$12*'Sales price per sales channel'!$G31*'Other input expert'!I$7","v":0},{"$f":"AK31*'Other input expert'!J$12*'Sales price per sales channel'!$G31*'Other input expert'!J$7","v":0},{"$f":"AL31*'Other input expert'!K$12*'Sales price per sales channel'!$G31*'Other input expert'!K$7","v":0},{"$f":"AM31*'Other input expert'!L$12*'Sales price per sales channel'!$G31*'Other input expert'!L$7","v":0},{"$f":"AN31*'Other input expert'!M$12*'Sales price per sales channel'!$G31*'Other input expert'!M$7","v":0},null,{"$f":"AC31*'Other input expert'!B$13*'Sales price per sales channel'!$H31*'Other input expert'!B$7","v":0},{"$f":"AD31*'Other input expert'!C$13*'Sales price per sales channel'!$H31*'Other input expert'!C$7","v":0},{"$f":"AE31*'Other input expert'!D$13*'Sales price per sales channel'!$H31*'Other input expert'!D$7","v":0},{"$f":"AF31*'Other input expert'!E$13*'Sales price per sales channel'!$H31*'Other input expert'!E$7","v":0},{"$f":"AG31*'Other input expert'!F$13*'Sales price per sales channel'!$H31*'Other input expert'!F$7","v":0},{"$f":"AH31*'Other input expert'!G$13*'Sales price per sales channel'!$H31*'Other input expert'!G$7","v":0},{"$f":"AI31*'Other input expert'!H$13*'Sales price per sales channel'!$H31*'Other input expert'!H$7","v":0},{"$f":"AJ31*'Other input expert'!I$13*'Sales price per sales channel'!$H31*'Other input expert'!I$7","v":0},{"$f":"AK31*'Other input expert'!J$13*'Sales price per sales channel'!$H31*'Other input expert'!J$7","v":0},{"$f":"AL31*'Other input expert'!K$13*'Sales price per sales channel'!$H31*'Other input expert'!K$7","v":0},{"$f":"AM31*'Other input expert'!L$13*'Sales price per sales channel'!$H31*'Other input expert'!L$7","v":0},{"$f":"AN31*'Other input expert'!M$13*'Sales price per sales channel'!$H31*'Other input expert'!M$7","v":0},null,{"$f":"AC31*'Other input expert'!B$14*'Sales price per sales channel'!$I31*'Other input expert'!B$7","v":0},{"$f":"AD31*'Other input expert'!C$14*'Sales price per sales channel'!$I31*'Other input expert'!C$7","v":0},{"$f":"AE31*'Other input expert'!D$14*'Sales price per sales channel'!$I31*'Other input expert'!D$7","v":0},{"$f":"AF31*'Other input expert'!E$14*'Sales price per sales channel'!$I31*'Other input expert'!E$7","v":0},{"$f":"AG31*'Other input expert'!F$14*'Sales price per sales channel'!$I31*'Other input expert'!F$7","v":0},{"$f":"AH31*'Other input expert'!G$14*'Sales price per sales channel'!$I31*'Other input expert'!G$7","v":0},{"$f":"AI31*'Other input expert'!H$14*'Sales price per sales channel'!$I31*'Other input expert'!H$7","v":0},{"$f":"AJ31*'Other input expert'!I$14*'Sales price per sales channel'!$I31*'Other input expert'!I$7","v":0},{"$f":"AK31*'Other input expert'!J$14*'Sales price per sales channel'!$I31*'Other input expert'!J$7","v":0},{"$f":"AL31*'Other input expert'!K$14*'Sales price per sales channel'!$I31*'Other input expert'!K$7","v":0},{"$f":"AM31*'Other input expert'!L$14*'Sales price per sales channel'!$I31*'Other input expert'!L$7","v":0},{"$f":"AN31*'Other input expert'!M$14*'Sales price per sales channel'!$I31*'Other input expert'!M$7","v":0}]
["Aronia arbutifolia","Chokeberry",{"$f":"Plantlist!$G32*'Production list'!D33*'Other input expert'!B$4*'Other input expert'!B$8","v":0},{"$f":"Plantlist!$G32*'Production list'!E33*'Other input expert'!C$4*'Other input expert'!C$8","v":0},{"$f":"Plantlist!$G32*'Production list'!F33*'Other input expert'!D$4*'Other input expert'!D$8","v":0},{"$f":"Plantlist!$G32*'Production list'!G33*'Other input expert'!E$4*'Other input expert'!E$8","v":0},{"$f":"Plantlist!$G32*'Production list'!H33*'Other input expert'!F$4*'Other input expert'!F$8","v":0},{"$f":"Plantlist!$G32*'Production list'!I33*'Other input expert'!G$4*'Other input expert'!G$8","v":0},{"$f":"Plantlist!$G32*'Production list'!J33*'Other input expert'!H$4*'Other input expert'!H$8","v":0},{"$f":"Plantlist!$G32*'Production list'!K33*'Other input expert'!I$4*'Other input expert'!I$8","v":0},{"$f":"Plantlist!$G32*'Production list'!L33*'Other input expert'!J$4*'Other input expert'!J$8","v":0},{"$f":"Plantlist!$G32*'Production list'!M33*'Other input expert'!K$4*'Other input expert'!K$8","v":0},{"$f":"Plantlist!$G32*'Production list'!N33*'Other input expert'!L$4*'Other input expert'!L$8","v":0},{"$f":"Plantlist!$G32*'Production list'!O33*'Other input expert'!M$4*'Other input expert'!M$8","v":0},null,{"$f":"C32*'Other input expert'!B$5","v":0},{"$f":"D32*'Other input expert'!C$5","v":0},{"$f":"E32*'Other input expert'!D$5","v":0},{"$f":"F32*'Other input expert'!E$5","v":0},{"$f":"G32*'Other input expert'!F$5","v":0},{"$f":"H32*'Other input expert'!G$5","v":0},{"$f":"I32*'Other input expert'!H$5","v":0},{"$f":"J32*'Other input expert'!I$5","v":0},{"$f":"K32*'Other input expert'!J$5","v":0},{"$f":"L32*'Other input expert'!K$5","v":0},{"$f":"M32*'Other input expert'!L$5","v":0},{"$f":"N32*'Other input expert'!M$5","v":0},null,{"$f":"C32*(100%-'Other input expert'!B$5)","v":0},{"$f":"D32*(100%-'Other input expert'!C$5)","v":0},{"$f":"E32*(100%-'Other input expert'!D$5)","v":0},{"$f":"F32*(100%-'Other input expert'!E$5)","v":0},{"$f":"G32*(100%-'Other input expert'!F$5)","v":0},{"$f":"H32*(100%-'Other input expert'!G$5)","v":0},{"$f":"I32*(100%-'Other input expert'!H$5)","v":0},{"$f":"J32*(100%-'Other input expert'!I$5)","v":0},{"$f":"K32*(100%-'Other input expert'!J$5)","v":0},{"$f":"L32*(100%-'Other input expert'!K$5)","v":0},{"$f":"M32*(100%-'Other input expert'!L$5)","v":0},{"$f":"N32*(100%-'Other input expert'!M$5)","v":0},null,{"$f":"P32*'Other input expert'!B$12*'Sales price per sales channel'!$G32*'Other input expert'!B$6","v":0},{"$f":"Q32*'Other input expert'!C$12*'Sales price per sales channel'!$G32*'Other input expert'!C$6","v":0},{"$f":"R32*'Other input expert'!D$12*'Sales price per sales channel'!$G32*'Other input expert'!D$6","v":0},{"$f":"S32*'Other input expert'!E$12*'Sales price per sales channel'!$G32*'Other input expert'!E$6","v":0},{"$f":"T32*'Other input expert'!F$12*'Sales price per sales channel'!$G32*'Other input expert'!F$6","v":0},{"$f":"U32*'Other input expert'!G$12*'Sales price per sales channel'!$G32*'Other input expert'!G$6","v":0},{"$f":"V32*'Other input expert'!H$12*'Sales price per sales channel'!$G32*'Other input expert'!H$6","v":0},{"$f":"W32*'Other input expert'!I$12*'Sales price per sales channel'!$G32*'Other input expert'!I$6","v":0},{"$f":"X32*'Other input expert'!J$12*'Sales price per sales channel'!$G32*'Other input expert'!J$6","v":0},{"$f":"Y32*'Other input expert'!K$12*'Sales price per sales channel'!$G32*'Other input expert'!K$6","v":0},{"$f":"Z32*'Other input expert'!L$12*'Sales price per sales channel'!$G32*'Other input expert'!L$6","v":0},{"$f":"AA32*'Other input expert'!M$12*'Sales price per sales channel'!$G32*'Other input expert'!M$6","v":0},null,{"$f":"P32*'Other input expert'!B$13*'Sales price per sales channel'!$H32*'Other input expert'!B$6","v":0},{"$f":"Q32*'Other input expert'!C$13*'Sales price per sales channel'!$H32*'Other input expert'!C$6","v":0},{"$f":"R32*'Other input expert'!D$13*'Sales price per sales channel'!$H32*'Other input expert'!D$6","v":0},{"$f":"S32*'Other input expert'!E$13*'Sales price per sales channel'!$H32*'Other input expert'!E$6","v":0},{"$f":"T32*'Other input expert'!F$13*'Sales price per sales channel'!$H32*'Other input expert'!F$6","v":0},{"$f":"U32*'Other input expert'!G$13*'Sales price per sales channel'!$H32*'Other input expert'!G$6","v":0},{"$f":"V32*'Other input expert'!H$13*'Sales price per sales channel'!$H32*'Other input expert'!H$6","v":0},{"$f":"W32*'Other input expert'!I$13*'Sales price per sales channel'!$H32*'Other input expert'!I$6","v":0},{"$f":"X32*'Other input expert'!J$13*'Sales price per sales channel'!$H32*'Other input expert'!J$6","v":0},{"$f":"Y32*'Other input expert'!K$13*'Sales price per sales channel'!$H32*'Other input expert'!K$6","v":0},{"$f":"Z32*'Other input expert'!L$13*'Sales price per sales channel'!$H32*'Other input expert'!L$6","v":0},{"$f":"AA32*'Other input expert'!M$13*'Sales price per sales channel'!$H32*'Other input expert'!M$6","v":0},null,{"$f":"P32*'Other input expert'!B$14*'Sales price per sales channel'!$I32*'Other input expert'!B$6","v":0},{"$f":"Q32*'Other input expert'!C$14*'Sales price per sales channel'!$I32*'Other input expert'!C$6","v":0},{"$f":"R32*'Other input expert'!D$14*'Sales price per sales channel'!$I32*'Other input expert'!D$6","v":0},{"$f":"S32*'Other input expert'!E$14*'Sales price per sales channel'!$I32*'Other input expert'!E$6","v":0},{"$f":"T32*'Other input expert'!F$14*'Sales price per sales channel'!$I32*'Other input expert'!F$6","v":0},{"$f":"U32*'Other input expert'!G$14*'Sales price per sales channel'!$I32*'Other input expert'!G$6","v":0},{"$f":"V32*'Other input expert'!H$14*'Sales price per sales channel'!$I32*'Other input expert'!H$6","v":0},{"$f":"W32*'Other input expert'!I$14*'Sales price per sales channel'!$I32*'Other input expert'!I$6","v":0},{"$f":"X32*'Other input expert'!J$14*'Sales price per sales channel'!$I32*'Other input expert'!J$6","v":0},{"$f":"Y32*'Other input expert'!K$14*'Sales price per sales channel'!$I32*'Other input expert'!K$6","v":0},{"$f":"Z32*'Other input expert'!L$14*'Sales price per sales channel'!$I32*'Other input expert'!L$6","v":0},{"$f":"AA32*'Other input expert'!M$14*'Sales price per sales channel'!$I32*'Other input expert'!M$6","v":0},null,{"$f":"AC32*'Other input expert'!B$12*'Sales price per sales channel'!$G32*'Other input expert'!B$7","v":0},{"$f":"AD32*'Other input expert'!C$12*'Sales price per sales channel'!$G32*'Other input expert'!C$7","v":0},{"$f":"AE32*'Other input expert'!D$12*'Sales price per sales channel'!$G32*'Other input expert'!D$7","v":0},{"$f":"AF32*'Other input expert'!E$12*'Sales price per sales channel'!$G32*'Other input expert'!E$7","v":0},{"$f":"AG32*'Other input expert'!F$12*'Sales price per sales channel'!$G32*'Other input expert'!F$7","v":0},{"$f":"AH32*'Other input expert'!G$12*'Sales price per sales channel'!$G32*'Other input expert'!G$7","v":0},{"$f":"AI32*'Other input expert'!H$12*'Sales price per sales channel'!$G32*'Other input expert'!H$7","v":0},{"$f":"AJ32*'Other input expert'!I$12*'Sales price per sales channel'!$G32*'Other input expert'!I$7","v":0},{"$f":"AK32*'Other input expert'!J$12*'Sales price per sales channel'!$G32*'Other input expert'!J$7","v":0},{"$f":"AL32*'Other input expert'!K$12*'Sales price per sales channel'!$G32*'Other input expert'!K$7","v":0},{"$f":"AM32*'Other input expert'!L$12*'Sales price per sales channel'!$G32*'Other input expert'!L$7","v":0},{"$f":"AN32*'Other input expert'!M$12*'Sales price per sales channel'!$G32*'Other input expert'!M$7","v":0},null,{"$f":"AC32*'Other input expert'!B$13*'Sales price per sales channel'!$H32*'Other input expert'!B$7","v":0},{"$f":"AD32*'Other input expert'!C$13*'Sales price per sales channel'!$H32*'Other input expert'!C$7","v":0},{"$f":"AE32*'Other input expert'!D$13*'Sales price per sales channel'!$H32*'Other input expert'!D$7","v":0},{"$f":"AF32*'Other input expert'!E$13*'Sales price per sales channel'!$H32*'Other input expert'!E$7","v":0},{"$f":"AG32*'Other input expert'!F$13*'Sales price per sales channel'!$H32*'Other input expert'!F$7","v":0},{"$f":"AH32*'Other input expert'!G$13*'Sales price per sales channel'!$H32*'Other input expert'!G$7","v":0},{"$f":"AI32*'Other input expert'!H$13*'Sales price per sales channel'!$H32*'Other input expert'!H$7","v":0},{"$f":"AJ32*'Other input expert'!I$13*'Sales price per sales channel'!$H32*'Other input expert'!I$7","v":0},{"$f":"AK32*'Other input expert'!J$13*'Sales price per sales channel'!$H32*'Other input expert'!J$7","v":0},{"$f":"AL32*'Other input expert'!K$13*'Sales price per sales channel'!$H32*'Other input expert'!K$7","v":0},{"$f":"AM32*'Other input expert'!L$13*'Sales price per sales channel'!$H32*'Other input expert'!L$7","v":0},{"$f":"AN32*'Other input expert'!M$13*'Sales price per sales channel'!$H32*'Other input expert'!M$7","v":0},null,{"$f":"AC32*'Other input expert'!B$14*'Sales price per sales channel'!$I32*'Other input expert'!B$7","v":0},{"$f":"AD32*'Other input expert'!C$14*'Sales price per sales channel'!$I32*'Other input expert'!C$7","v":0},{"$f":"AE32*'Other input expert'!D$14*'Sales price per sales channel'!$I32*'Other input expert'!D$7","v":0},{"$f":"AF32*'Other input expert'!E$14*'Sales price per sales channel'!$I32*'Other input expert'!E$7","v":0},{"$f":"AG32*'Other input expert'!F$14*'Sales price per sales channel'!$I32*'Other input expert'!F$7","v":0},{"$f":"AH32*'Other input expert'!G$14*'Sales price per sales channel'!$I32*'Other input expert'!G$7","v":0},{"$f":"AI32*'Other input expert'!H$14*'Sales price per sales channel'!$I32*'Other input expert'!H$7","v":0},{"$f":"AJ32*'Other input expert'!I$14*'Sales price per sales channel'!$I32*'Other input expert'!I$7","v":0},{"$f":"AK32*'Other input expert'!J$14*'Sales price per sales channel'!$I32*'Other input expert'!J$7","v":0},{"$f":"AL32*'Other input expert'!K$14*'Sales price per sales channel'!$I32*'Other input expert'!K$7","v":0},{"$f":"AM32*'Other input expert'!L$14*'Sales price per sales channel'!$I32*'Other input expert'!L$7","v":0},{"$f":"AN32*'Other input expert'!M$14*'Sales price per sales channel'!$I32*'Other input expert'!M$7","v":0}]
["Aronia melanocarpa","Chokeberry",{"$f":"Plantlist!$G33*'Production list'!D34*'Other input expert'!B$4*'Other input expert'!B$8","v":0},{"$f":"Plantlist!$G33*'Production list'!E34*'Other input expert'!C$4*'Other input expert'!C$8","v":0},{"$f":"Plantlist!$G33*'Production list'!F34*'Other input expert'!D$4*'Other input expert'!D$8","v":0},{"$f":"Plantlist!$G33*'Production list'!G34*'Other input expert'!E$4*'Other input expert'!E$8","v":0},{"$f":"Plantlist!$G33*'Production list'!H34*'Other input expert'!F$4*'Other input expert'!F$8","v":0},{"$f":"Plantlist!$G33*'Production list'!I34*'Other input expert'!G$4*'Other input expert'!G$8","v":0},{"$f":"Plantlist!$G33*'Production list'!J34*'Other input expert'!H$4*'Other input expert'!H$8","v":0},{"$f":"Plantlist!$G33*'Production list'!K34*'Other input expert'!I$4*'Other input expert'!I$8","v":0},{"$f":"Plantlist!$G33*'Production list'!L34*'Other input expert'!J$4*'Other input expert'!J$8","v":0},{"$f":"Plantlist!$G33*'Production list'!M34*'Other input expert'!K$4*'Other input expert'!K$8","v":0},{"$f":"Plantlist!$G33*'Production list'!N34*'Other input expert'!L$4*'Other input expert'!L$8","v":0},{"$f":"Plantlist!$G33*'Production list'!O34*'Other input expert'!M$4*'Other input expert'!M$8","v":0},null,{"$f":"C33*'Other input expert'!B$5","v":0},{"$f":"D33*'Other input expert'!C$5","v":0},{"$f":"E33*'Other input expert'!D$5","v":0},{"$f":"F33*'Other input expert'!E$5","v":0},{"$f":"G33*'Other input expert'!F$5","v":0},{"$f":"H33*'Other input expert'!G$5","v":0},{"$f":"I33*'Other input expert'!H$5","v":0},{"$f":"J33*'Other input expert'!I$5","v":0},{"$f":"K33*'Other input expert'!J$5","v":0},{"$f":"L33*'Other input expert'!K$5","v":0},{"$f":"M33*'Other input expert'!L$5","v":0},{"$f":"N33*'Other input expert'!M$5","v":0},null,{"$f":"C33*(100%-'Other input expert'!B$5)","v":0},{"$f":"D33*(100%-'Other input expert'!C$5)","v":0},{"$f":"E33*(100%-'Other input expert'!D$5)","v":0},{"$f":"F33*(100%-'Other input expert'!E$5)","v":0},{"$f":"G33*(100%-'Other input expert'!F$5)","v":0},{"$f":"H33*(100%-'Other input expert'!G$5)","v":0},{"$f":"I33*(100%-'Other input expert'!H$5)","v":0},{"$f":"J33*(100%-'Other input expert'!I$5)","v":0},{"$f":"K33*(100%-'Other input expert'!J$5)","v":0},{"$f":"L33*(100%-'Other input expert'!K$5)","v":0},{"$f":"M33*(100%-'Other input expert'!L$5)","v":0},{"$f":"N33*(100%-'Other input expert'!M$5)","v":0},null,{"$f":"P33*'Other input expert'!B$12*'Sales price per sales channel'!$G33*'Other input expert'!B$6","v":0},{"$f":"Q33*'Other input expert'!C$12*'Sales price per sales channel'!$G33*'Other input expert'!C$6","v":0},{"$f":"R33*'Other input expert'!D$12*'Sales price per sales channel'!$G33*'Other input expert'!D$6","v":0},{"$f":"S33*'Other input expert'!E$12*'Sales price per sales channel'!$G33*'Other input expert'!E$6","v":0},{"$f":"T33*'Other input expert'!F$12*'Sales price per sales channel'!$G33*'Other input expert'!F$6","v":0},{"$f":"U33*'Other input expert'!G$12*'Sales price per sales channel'!$G33*'Other input expert'!G$6","v":0},{"$f":"V33*'Other input expert'!H$12*'Sales price per sales channel'!$G33*'Other input expert'!H$6","v":0},{"$f":"W33*'Other input expert'!I$12*'Sales price per sales channel'!$G33*'Other input expert'!I$6","v":0},{"$f":"X33*'Other input expert'!J$12*'Sales price per sales channel'!$G33*'Other input expert'!J$6","v":0},{"$f":"Y33*'Other input expert'!K$12*'Sales price per sales channel'!$G33*'Other input expert'!K$6","v":0},{"$f":"Z33*'Other input expert'!L$12*'Sales price per sales channel'!$G33*'Other input expert'!L$6","v":0},{"$f":"AA33*'Other input expert'!M$12*'Sales price per sales channel'!$G33*'Other input expert'!M$6","v":0},null,{"$f":"P33*'Other input expert'!B$13*'Sales price per sales channel'!$H33*'Other input expert'!B$6","v":0},{"$f":"Q33*'Other input expert'!C$13*'Sales price per sales channel'!$H33*'Other input expert'!C$6","v":0},{"$f":"R33*'Other input expert'!D$13*'Sales price per sales channel'!$H33*'Other input expert'!D$6","v":0},{"$f":"S33*'Other input expert'!E$13*'Sales price per sales channel'!$H33*'Other input expert'!E$6","v":0},{"$f":"T33*'Other input expert'!F$13*'Sales price per sales channel'!$H33*'Other input expert'!F$6","v":0},{"$f":"U33*'Other input expert'!G$13*'Sales price per sales channel'!$H33*'Other input expert'!G$6","v":0},{"$f":"V33*'Other input expert'!H$13*'Sales price per sales channel'!$H33*'Other input expert'!H$6","v":0},{"$f":"W33*'Other input expert'!I$13*'Sales price per sales channel'!$H33*'Other input expert'!I$6","v":0},{"$f":"X33*'Other input expert'!J$13*'Sales price per sales channel'!$H33*'Other input expert'!J$6","v":0},{"$f":"Y33*'Other input expert'!K$13*'Sales price per sales channel'!$H33*'Other input expert'!K$6","v":0},{"$f":"Z33*'Other input expert'!L$13*'Sales price per sales channel'!$H33*'Other input expert'!L$6","v":0},{"$f":"AA33*'Other input expert'!M$13*'Sales price per sales channel'!$H33*'Other input expert'!M$6","v":0},null,{"$f":"P33*'Other input expert'!B$14*'Sales price per sales channel'!$I33*'Other input expert'!B$6","v":0},{"$f":"Q33*'Other input expert'!C$14*'Sales price per sales channel'!$I33*'Other input expert'!C$6","v":0},{"$f":"R33*'Other input expert'!D$14*'Sales price per sales channel'!$I33*'Other input expert'!D$6","v":0},{"$f":"S33*'Other input expert'!E$14*'Sales price per sales channel'!$I33*'Other input expert'!E$6","v":0},{"$f":"T33*'Other input expert'!F$14*'Sales price per sales channel'!$I33*'Other input expert'!F$6","v":0},{"$f":"U33*'Other input expert'!G$14*'Sales price per sales channel'!$I33*'Other input expert'!G$6","v":0},{"$f":"V33*'Other input expert'!H$14*'Sales price per sales channel'!$I33*'Other input expert'!H$6","v":0},{"$f":"W33*'Other input expert'!I$14*'Sales price per sales channel'!$I33*'Other input expert'!I$6","v":0},{"$f":"X33*'Other input expert'!J$14*'Sales price per sales channel'!$I33*'Other input expert'!J$6","v":0},{"$f":"Y33*'Other input expert'!K$14*'Sales price per sales channel'!$I33*'Other input expert'!K$6","v":0},{"$f":"Z33*'Other input expert'!L$14*'Sales price per sales channel'!$I33*'Other input expert'!L$6","v":0},{"$f":"AA33*'Other input expert'!M$14*'Sales price per sales channel'!$I33*'Other input expert'!M$6","v":0},null,{"$f":"AC33*'Other input expert'!B$12*'Sales price per sales channel'!$G33*'Other input expert'!B$7","v":0},{"$f":"AD33*'Other input expert'!C$12*'Sales price per sales channel'!$G33*'Other input expert'!C$7","v":0},{"$f":"AE33*'Other input expert'!D$12*'Sales price per sales channel'!$G33*'Other input expert'!D$7","v":0},{"$f":"AF33*'Other input expert'!E$12*'Sales price per sales channel'!$G33*'Other input expert'!E$7","v":0},{"$f":"AG33*'Other input expert'!F$12*'Sales price per sales channel'!$G33*'Other input expert'!F$7","v":0},{"$f":"AH33*'Other input expert'!G$12*'Sales price per sales channel'!$G33*'Other input expert'!G$7","v":0},{"$f":"AI33*'Other input expert'!H$12*'Sales price per sales channel'!$G33*'Other input expert'!H$7","v":0},{"$f":"AJ33*'Other input expert'!I$12*'Sales price per sales channel'!$G33*'Other input expert'!I$7","v":0},{"$f":"AK33*'Other input expert'!J$12*'Sales price per sales channel'!$G33*'Other input expert'!J$7","v":0},{"$f":"AL33*'Other input expert'!K$12*'Sales price per sales channel'!$G33*'Other input expert'!K$7","v":0},{"$f":"AM33*'Other input expert'!L$12*'Sales price per sales channel'!$G33*'Other input expert'!L$7","v":0},{"$f":"AN33*'Other input expert'!M$12*'Sales price per sales channel'!$G33*'Other input expert'!M$7","v":0},null,{"$f":"AC33*'Other input expert'!B$13*'Sales price per sales channel'!$H33*'Other input expert'!B$7","v":0},{"$f":"AD33*'Other input expert'!C$13*'Sales price per sales channel'!$H33*'Other input expert'!C$7","v":0},{"$f":"AE33*'Other input expert'!D$13*'Sales price per sales channel'!$H33*'Other input expert'!D$7","v":0},{"$f":"AF33*'Other input expert'!E$13*'Sales price per sales channel'!$H33*'Other input expert'!E$7","v":0},{"$f":"AG33*'Other input expert'!F$13*'Sales price per sales channel'!$H33*'Other input expert'!F$7","v":0},{"$f":"AH33*'Other input expert'!G$13*'Sales price per sales channel'!$H33*'Other input expert'!G$7","v":0},{"$f":"AI33*'Other input expert'!H$13*'Sales price per sales channel'!$H33*'Other input expert'!H$7","v":0},{"$f":"AJ33*'Other input expert'!I$13*'Sales price per sales channel'!$H33*'Other input expert'!I$7","v":0},{"$f":"AK33*'Other input expert'!J$13*'Sales price per sales channel'!$H33*'Other input expert'!J$7","v":0},{"$f":"AL33*'Other input expert'!K$13*'Sales price per sales channel'!$H33*'Other input expert'!K$7","v":0},{"$f":"AM33*'Other input expert'!L$13*'Sales price per sales channel'!$H33*'Other input expert'!L$7","v":0},{"$f":"AN33*'Other input expert'!M$13*'Sales price per sales channel'!$H33*'Other input expert'!M$7","v":0},null,{"$f":"AC33*'Other input expert'!B$14*'Sales price per sales channel'!$I33*'Other input expert'!B$7","v":0},{"$f":"AD33*'Other input expert'!C$14*'Sales price per sales channel'!$I33*'Other input expert'!C$7","v":0},{"$f":"AE33*'Other input expert'!D$14*'Sales price per sales channel'!$I33*'Other input expert'!D$7","v":0},{"$f":"AF33*'Other input expert'!E$14*'Sales price per sales channel'!$I33*'Other input expert'!E$7","v":0},{"$f":"AG33*'Other input expert'!F$14*'Sales price per sales channel'!$I33*'Other input expert'!F$7","v":0},{"$f":"AH33*'Other input expert'!G$14*'Sales price per sales channel'!$I33*'Other input expert'!G$7","v":0},{"$f":"AI33*'Other input expert'!H$14*'Sales price per sales channel'!$I33*'Other input expert'!H$7","v":0},{"$f":"AJ33*'Other input expert'!I$14*'Sales price per sales channel'!$I33*'Other input expert'!I$7","v":0},{"$f":"AK33*'Other input expert'!J$14*'Sales price per sales channel'!$I33*'Other input expert'!J$7","v":0},{"$f":"AL33*'Other input expert'!K$14*'Sales price per sales channel'!$I33*'Other input expert'!K$7","v":0},{"$f":"AM33*'Other input expert'!L$14*'Sales price per sales channel'!$I33*'Other input expert'!L$7","v":0},{"$f":"AN33*'Other input expert'!M$14*'Sales price per sales channel'!$I33*'Other input expert'!M$7","v":0}]
["Aronia prunifolia","Chokeberry",{"$f":"Plantlist!$G34*'Production list'!D35*'Other input expert'!B$4*'Other input expert'!B$8","v":0},{"$f":"Plantlist!$G34*'Production list'!E35*'Other input expert'!C$4*'Other input expert'!C$8","v":0},{"$f":"Plantlist!$G34*'Production list'!F35*'Other input expert'!D$4*'Other input expert'!D$8","v":0},{"$f":"Plantlist!$G34*'Production list'!G35*'Other input expert'!E$4*'Other input expert'!E$8","v":0},{"$f":"Plantlist!$G34*'Production list'!H35*'Other input expert'!F$4*'Other input expert'!F$8","v":0},{"$f":"Plantlist!$G34*'Production list'!I35*'Other input expert'!G$4*'Other input expert'!G$8","v":0},{"$f":"Plantlist!$G34*'Production list'!J35*'Other input expert'!H$4*'Other input expert'!H$8","v":0},{"$f":"Plantlist!$G34*'Production list'!K35*'Other input expert'!I$4*'Other input expert'!I$8","v":0},{"$f":"Plantlist!$G34*'Production list'!L35*'Other input expert'!J$4*'Other input expert'!J$8","v":0},{"$f":"Plantlist!$G34*'Production list'!M35*'Other input expert'!K$4*'Other input expert'!K$8","v":0},{"$f":"Plantlist!$G34*'Production list'!N35*'Other input expert'!L$4*'Other input expert'!L$8","v":0},{"$f":"Plantlist!$G34*'Production list'!O35*'Other input expert'!M$4*'Other input expert'!M$8","v":0},null,{"$f":"C34*'Other input expert'!B$5","v":0},{"$f":"D34*'Other input expert'!C$5","v":0},{"$f":"E34*'Other input expert'!D$5","v":0},{"$f":"F34*'Other input expert'!E$5","v":0},{"$f":"G34*'Other input expert'!F$5","v":0},{"$f":"H34*'Other input expert'!G$5","v":0},{"$f":"I34*'Other input expert'!H$5","v":0},{"$f":"J34*'Other input expert'!I$5","v":0},{"$f":"K34*'Other input expert'!J$5","v":0},{"$f":"L34*'Other input expert'!K$5","v":0},{"$f":"M34*'Other input expert'!L$5","v":0},{"$f":"N34*'Other input expert'!M$5","v":0},null,{"$f":"C34*(100%-'Other input expert'!B$5)","v":0},{"$f":"D34*(100%-'Other input expert'!C$5)","v":0},{"$f":"E34*(100%-'Other input expert'!D$5)","v":0},{"$f":"F34*(100%-'Other input expert'!E$5)","v":0},{"$f":"G34*(100%-'Other input expert'!F$5)","v":0},{"$f":"H34*(100%-'Other input expert'!G$5)","v":0},{"$f":"I34*(100%-'Other input expert'!H$5)","v":0},{"$f":"J34*(100%-'Other input expert'!I$5)","v":0},{"$f":"K34*(100%-'Other input expert'!J$5)","v":0},{"$f":"L34*(100%-'Other input expert'!K$5)","v":0},{"$f":"M34*(100%-'Other input expert'!L$5)","v":0},{"$f":"N34*(100%-'Other input expert'!M$5)","v":0},null,{"$f":"P34*'Other input expert'!B$12*'Sales price per sales channel'!$G34*'Other input expert'!B$6","v":0},{"$f":"Q34*'Other input expert'!C$12*'Sales price per sales channel'!$G34*'Other input expert'!C$6","v":0},{"$f":"R34*'Other input expert'!D$12*'Sales price per sales channel'!$G34*'Other input expert'!D$6","v":0},{"$f":"S34*'Other input expert'!E$12*'Sales price per sales channel'!$G34*'Other input expert'!E$6","v":0},{"$f":"T34*'Other input expert'!F$12*'Sales price per sales channel'!$G34*'Other input expert'!F$6","v":0},{"$f":"U34*'Other input expert'!G$12*'Sales price per sales channel'!$G34*'Other input expert'!G$6","v":0},{"$f":"V34*'Other input expert'!H$12*'Sales price per sales channel'!$G34*'Other input expert'!H$6","v":0},{"$f":"W34*'Other input expert'!I$12*'Sales price per sales channel'!$G34*'Other input expert'!I$6","v":0},{"$f":"X34*'Other input expert'!J$12*'Sales price per sales channel'!$G34*'Other input expert'!J$6","v":0},{"$f":"Y34*'Other input expert'!K$12*'Sales price per sales channel'!$G34*'Other input expert'!K$6","v":0},{"$f":"Z34*'Other input expert'!L$12*'Sales price per sales channel'!$G34*'Other input expert'!L$6","v":0},{"$f":"AA34*'Other input expert'!M$12*'Sales price per sales channel'!$G34*'Other input expert'!M$6","v":0},null,{"$f":"P34*'Other input expert'!B$13*'Sales price per sales channel'!$H34*'Other input expert'!B$6","v":0},{"$f":"Q34*'Other input expert'!C$13*'Sales price per sales channel'!$H34*'Other input expert'!C$6","v":0},{"$f":"R34*'Other input expert'!D$13*'Sales price per sales channel'!$H34*'Other input expert'!D$6","v":0},{"$f":"S34*'Other input expert'!E$13*'Sales price per sales channel'!$H34*'Other input expert'!E$6","v":0},{"$f":"T34*'Other input expert'!F$13*'Sales price per sales channel'!$H34*'Other input expert'!F$6","v":0},{"$f":"U34*'Other input expert'!G$13*'Sales price per sales channel'!$H34*'Other input expert'!G$6","v":0},{"$f":"V34*'Other input expert'!H$13*'Sales price per sales channel'!$H34*'Other input expert'!H$6","v":0},{"$f":"W34*'Other input expert'!I$13*'Sales price per sales channel'!$H34*'Other input expert'!I$6","v":0},{"$f":"X34*'Other input expert'!J$13*'Sales price per sales channel'!$H34*'Other input expert'!J$6","v":0},{"$f":"Y34*'Other input expert'!K$13*'Sales price per sales channel'!$H34*'Other input expert'!K$6","v":0},{"$f":"Z34*'Other input expert'!L$13*'Sales price per sales channel'!$H34*'Other input expert'!L$6","v":0},{"$f":"AA34*'Other input expert'!M$13*'Sales price per sales channel'!$H34*'Other input expert'!M$6","v":0},null,{"$f":"P34*'Other input expert'!B$14*'Sales price per sales channel'!$I34*'Other input expert'!B$6","v":0},{"$f":"Q34*'Other input expert'!C$14*'Sales price per sales channel'!$I34*'Other input expert'!C$6","v":0},{"$f":"R34*'Other input expert'!D$14*'Sales price per sales channel'!$I34*'Other input expert'!D$6","v":0},{"$f":"S34*'Other input expert'!E$14*'Sales price per sales channel'!$I34*'Other input expert'!E$6","v":0},{"$f":"T34*'Other input expert'!F$14*'Sales price per sales channel'!$I34*'Other input expert'!F$6","v":0},{"$f":"U34*'Other input expert'!G$14*'Sales price per sales channel'!$I34*'Other input expert'!G$6","v":0},{"$f":"V34*'Other input expert'!H$14*'Sales price per sales channel'!$I34*'Other input expert'!H$6","v":0},{"$f":"W34*'Other input expert'!I$14*'Sales price per sales channel'!$I34*'Other input expert'!I$6","v":0},{"$f":"X34*'Other input expert'!J$14*'Sales price per sales channel'!$I34*'Other input expert'!J$6","v":0},{"$f":"Y34*'Other input expert'!K$14*'Sales price per sales channel'!$I34*'Other input expert'!K$6","v":0},{"$f":"Z34*'Other input expert'!L$14*'Sales price per sales channel'!$I34*'Other input expert'!L$6","v":0},{"$f":"AA34*'Other input expert'!M$14*'Sales price per sales channel'!$I34*'Other input expert'!M$6","v":0},null,{"$f":"AC34*'Other input expert'!B$12*'Sales price per sales channel'!$G34*'Other input expert'!B$7","v":0},{"$f":"AD34*'Other input expert'!C$12*'Sales price per sales channel'!$G34*'Other input expert'!C$7","v":0},{"$f":"AE34*'Other input expert'!D$12*'Sales price per sales channel'!$G34*'Other input expert'!D$7","v":0},{"$f":"AF34*'Other input expert'!E$12*'Sales price per sales channel'!$G34*'Other input expert'!E$7","v":0},{"$f":"AG34*'Other input expert'!F$12*'Sales price per sales channel'!$G34*'Other input expert'!F$7","v":0},{"$f":"AH34*'Other input expert'!G$12*'Sales price per sales channel'!$G34*'Other input expert'!G$7","v":0},{"$f":"AI34*'Other input expert'!H$12*'Sales price per sales channel'!$G34*'Other input expert'!H$7","v":0},{"$f":"AJ34*'Other input expert'!I$12*'Sales price per sales channel'!$G34*'Other input expert'!I$7","v":0},{"$f":"AK34*'Other input expert'!J$12*'Sales price per sales channel'!$G34*'Other input expert'!J$7","v":0},{"$f":"AL34*'Other input expert'!K$12*'Sales price per sales channel'!$G34*'Other input expert'!K$7","v":0},{"$f":"AM34*'Other input expert'!L$12*'Sales price per sales channel'!$G34*'Other input expert'!L$7","v":0},{"$f":"AN34*'Other input expert'!M$12*'Sales price per sales channel'!$G34*'Other input expert'!M$7","v":0},null,{"$f":"AC34*'Other input expert'!B$13*'Sales price per sales channel'!$H34*'Other input expert'!B$7","v":0},{"$f":"AD34*'Other input expert'!C$13*'Sales price per sales channel'!$H34*'Other input expert'!C$7","v":0},{"$f":"AE34*'Other input expert'!D$13*'Sales price per sales channel'!$H34*'Other input expert'!D$7","v":0},{"$f":"AF34*'Other input expert'!E$13*'Sales price per sales channel'!$H34*'Other input expert'!E$7","v":0},{"$f":"AG34*'Other input expert'!F$13*'Sales price per sales channel'!$H34*'Other input expert'!F$7","v":0},{"$f":"AH34*'Other input expert'!G$13*'Sales price per sales channel'!$H34*'Other input expert'!G$7","v":0},{"$f":"AI34*'Other input expert'!H$13*'Sales price per sales channel'!$H34*'Other input expert'!H$7","v":0},{"$f":"AJ34*'Other input expert'!I$13*'Sales price per sales channel'!$H34*'Other input expert'!I$7","v":0},{"$f":"AK34*'Other input expert'!J$13*'Sales price per sales channel'!$H34*'Other input expert'!J$7","v":0},{"$f":"AL34*'Other input expert'!K$13*'Sales price per sales channel'!$H34*'Other input expert'!K$7","v":0},{"$f":"AM34*'Other input expert'!L$13*'Sales price per sales channel'!$H34*'Other input expert'!L$7","v":0},{"$f":"AN34*'Other input expert'!M$13*'Sales price per sales channel'!$H34*'Other input expert'!M$7","v":0},null,{"$f":"AC34*'Other input expert'!B$14*'Sales price per sales channel'!$I34*'Other input expert'!B$7","v":0},{"$f":"AD34*'Other input expert'!C$14*'Sales price per sales channel'!$I34*'Other input expert'!C$7","v":0},{"$f":"AE34*'Other input expert'!D$14*'Sales price per sales channel'!$I34*'Other input expert'!D$7","v":0},{"$f":"AF34*'Other input expert'!E$14*'Sales price per sales channel'!$I34*'Other input expert'!E$7","v":0},{"$f":"AG34*'Other input expert'!F$14*'Sales price per sales channel'!$I34*'Other input expert'!F$7","v":0},{"$f":"AH34*'Other input expert'!G$14*'Sales price per sales channel'!$I34*'Other input expert'!G$7","v":0},{"$f":"AI34*'Other input expert'!H$14*'Sales price per sales channel'!$I34*'Other input expert'!H$7","v":0},{"$f":"AJ34*'Other input expert'!I$14*'Sales price per sales channel'!$I34*'Other input expert'!I$7","v":0},{"$f":"AK34*'Other input expert'!J$14*'Sales price per sales channel'!$I34*'Other input expert'!J$7","v":0},{"$f":"AL34*'Other input expert'!K$14*'Sales price per sales channel'!$I34*'Other input expert'!K$7","v":0},{"$f":"AM34*'Other input expert'!L$14*'Sales price per sales channel'!$I34*'Other input expert'!L$7","v":0},{"$f":"AN34*'Other input expert'!M$14*'Sales price per sales channel'!$I34*'Other input expert'!M$7","v":0}]
["Artemisia abrotanum","Mugwort",{"$f":"Plantlist!$G35*'Production list'!D36*'Other input expert'!B$4*'Other input expert'!B$8","v":0},{"$f":"Plantlist!$G35*'Production list'!E36*'Other input expert'!C$4*'Other input expert'!C$8","v":0},{"$f":"Plantlist!$G35*'Production list'!F36*'Other input expert'!D$4*'Other input expert'!D$8","v":0},{"$f":"Plantlist!$G35*'Production list'!G36*'Other input expert'!E$4*'Other input expert'!E$8","v":0},{"$f":"Plantlist!$G35*'Production list'!H36*'Other input expert'!F$4*'Other input expert'!F$8","v":0},{"$f":"Plantlist!$G35*'Production list'!I36*'Other input expert'!G$4*'Other input expert'!G$8","v":0},{"$f":"Plantlist!$G35*'Production list'!J36*'Other input expert'!H$4*'Other input expert'!H$8","v":0},{"$f":"Plantlist!$G35*'Production list'!K36*'Other input expert'!I$4*'Other input expert'!I$8","v":0},{"$f":"Plantlist!$G35*'Production list'!L36*'Other input expert'!J$4*'Other input expert'!J$8","v":0},{"$f":"Plantlist!$G35*'Production list'!M36*'Other input expert'!K$4*'Other input expert'!K$8","v":0},{"$f":"Plantlist!$G35*'Production list'!N36*'Other input expert'!L$4*'Other input expert'!L$8","v":0},{"$f":"Plantlist!$G35*'Production list'!O36*'Other input expert'!M$4*'Other input expert'!M$8","v":0},null,{"$f":"C35*'Other input expert'!B$5","v":0},{"$f":"D35*'Other input expert'!C$5","v":0},{"$f":"E35*'Other input expert'!D$5","v":0},{"$f":"F35*'Other input expert'!E$5","v":0},{"$f":"G35*'Other input expert'!F$5","v":0},{"$f":"H35*'Other input expert'!G$5","v":0},{"$f":"I35*'Other input expert'!H$5","v":0},{"$f":"J35*'Other input expert'!I$5","v":0},{"$f":"K35*'Other input expert'!J$5","v":0},{"$f":"L35*'Other input expert'!K$5","v":0},{"$f":"M35*'Other input expert'!L$5","v":0},{"$f":"N35*'Other input expert'!M$5","v":0},null,{"$f":"C35*(100%-'Other input expert'!B$5)","v":0},{"$f":"D35*(100%-'Other input expert'!C$5)","v":0},{"$f":"E35*(100%-'Other input expert'!D$5)","v":0},{"$f":"F35*(100%-'Other input expert'!E$5)","v":0},{"$f":"G35*(100%-'Other input expert'!F$5)","v":0},{"$f":"H35*(100%-'Other input expert'!G$5)","v":0},{"$f":"I35*(100%-'Other input expert'!H$5)","v":0},{"$f":"J35*(100%-'Other input expert'!I$5)","v":0},{"$f":"K35*(100%-'Other input expert'!J$5)","v":0},{"$f":"L35*(100%-'Other input expert'!K$5)","v":0},{"$f":"M35*(100%-'Other input expert'!L$5)","v":0},{"$f":"N35*(100%-'Other input expert'!M$5)","v":0},null,{"$f":"P35*'Other input expert'!B$12*'Sales price per sales channel'!$G35*'Other input expert'!B$6","v":0},{"$f":"Q35*'Other input expert'!C$12*'Sales price per sales channel'!$G35*'Other input expert'!C$6","v":0},{"$f":"R35*'Other input expert'!D$12*'Sales price per sales channel'!$G35*'Other input expert'!D$6","v":0},{"$f":"S35*'Other input expert'!E$12*'Sales price per sales channel'!$G35*'Other input expert'!E$6","v":0},{"$f":"T35*'Other input expert'!F$12*'Sales price per sales channel'!$G35*'Other input expert'!F$6","v":0},{"$f":"U35*'Other input expert'!G$12*'Sales price per sales channel'!$G35*'Other input expert'!G$6","v":0},{"$f":"V35*'Other input expert'!H$12*'Sales price per sales channel'!$G35*'Other input expert'!H$6","v":0},{"$f":"W35*'Other input expert'!I$12*'Sales price per sales channel'!$G35*'Other input expert'!I$6","v":0},{"$f":"X35*'Other input expert'!J$12*'Sales price per sales channel'!$G35*'Other input expert'!J$6","v":0},{"$f":"Y35*'Other input expert'!K$12*'Sales price per sales channel'!$G35*'Other input expert'!K$6","v":0},{"$f":"Z35*'Other input expert'!L$12*'Sales price per sales channel'!$G35*'Other input expert'!L$6","v":0},{"$f":"AA35*'Other input expert'!M$12*'Sales price per sales channel'!$G35*'Other input expert'!M$6","v":0},null,{"$f":"P35*'Other input expert'!B$13*'Sales price per sales channel'!$H35*'Other input expert'!B$6","v":0},{"$f":"Q35*'Other input expert'!C$13*'Sales price per sales channel'!$H35*'Other input expert'!C$6","v":0},{"$f":"R35*'Other input expert'!D$13*'Sales price per sales channel'!$H35*'Other input expert'!D$6","v":0},{"$f":"S35*'Other input expert'!E$13*'Sales price per sales channel'!$H35*'Other input expert'!E$6","v":0},{"$f":"T35*'Other input expert'!F$13*'Sales price per sales channel'!$H35*'Other input expert'!F$6","v":0},{"$f":"U35*'Other input expert'!G$13*'Sales price per sales channel'!$H35*'Other input expert'!G$6","v":0},{"$f":"V35*'Other input expert'!H$13*'Sales price per sales channel'!$H35*'Other input expert'!H$6","v":0},{"$f":"W35*'Other input expert'!I$13*'Sales price per sales channel'!$H35*'Other input expert'!I$6","v":0},{"$f":"X35*'Other input expert'!J$13*'Sales price per sales channel'!$H35*'Other input expert'!J$6","v":0},{"$f":"Y35*'Other input expert'!K$13*'Sales price per sales channel'!$H35*'Other input expert'!K$6","v":0},{"$f":"Z35*'Other input expert'!L$13*'Sales price per sales channel'!$H35*'Other input expert'!L$6","v":0},{"$f":"AA35*'Other input expert'!M$13*'Sales price per sales channel'!$H35*'Other input expert'!M$6","v":0},null,{"$f":"P35*'Other input expert'!B$14*'Sales price per sales channel'!$I35*'Other input expert'!B$6","v":0},{"$f":"Q35*'Other input expert'!C$14*'Sales price per sales channel'!$I35*'Other input expert'!C$6","v":0},{"$f":"R35*'Other input expert'!D$14*'Sales price per sales channel'!$I35*'Other input expert'!D$6","v":0},{"$f":"S35*'Other input expert'!E$14*'Sales price per sales channel'!$I35*'Other input expert'!E$6","v":0},{"$f":"T35*'Other input expert'!F$14*'Sales price per sales channel'!$I35*'Other input expert'!F$6","v":0},{"$f":"U35*'Other input expert'!G$14*'Sales price per sales channel'!$I35*'Other input expert'!G$6","v":0},{"$f":"V35*'Other input expert'!H$14*'Sales price per sales channel'!$I35*'Other input expert'!H$6","v":0},{"$f":"W35*'Other input expert'!I$14*'Sales price per sales channel'!$I35*'Other input expert'!I$6","v":0},{"$f":"X35*'Other input expert'!J$14*'Sales price per sales channel'!$I35*'Other input expert'!J$6","v":0},{"$f":"Y35*'Other input expert'!K$14*'Sales price per sales channel'!$I35*'Other input expert'!K$6","v":0},{"$f":"Z35*'Other input expert'!L$14*'Sales price per sales channel'!$I35*'Other input expert'!L$6","v":0},{"$f":"AA35*'Other input expert'!M$14*'Sales price per sales channel'!$I35*'Other input expert'!M$6","v":0},null,{"$f":"AC35*'Other input expert'!B$12*'Sales price per sales channel'!$G35*'Other input expert'!B$7","v":0},{"$f":"AD35*'Other input expert'!C$12*'Sales price per sales channel'!$G35*'Other input expert'!C$7","v":0},{"$f":"AE35*'Other input expert'!D$12*'Sales price per sales channel'!$G35*'Other input expert'!D$7","v":0},{"$f":"AF35*'Other input expert'!E$12*'Sales price per sales channel'!$G35*'Other input expert'!E$7","v":0},{"$f":"AG35*'Other input expert'!F$12*'Sales price per sales channel'!$G35*'Other input expert'!F$7","v":0},{"$f":"AH35*'Other input expert'!G$12*'Sales price per sales channel'!$G35*'Other input expert'!G$7","v":0},{"$f":"AI35*'Other input expert'!H$12*'Sales price per sales channel'!$G35*'Other input expert'!H$7","v":0},{"$f":"AJ35*'Other input expert'!I$12*'Sales price per sales channel'!$G35*'Other input expert'!I$7","v":0},{"$f":"AK35*'Other input expert'!J$12*'Sales price per sales channel'!$G35*'Other input expert'!J$7","v":0},{"$f":"AL35*'Other input expert'!K$12*'Sales price per sales channel'!$G35*'Other input expert'!K$7","v":0},{"$f":"AM35*'Other input expert'!L$12*'Sales price per sales channel'!$G35*'Other input expert'!L$7","v":0},{"$f":"AN35*'Other input expert'!M$12*'Sales price per sales channel'!$G35*'Other input expert'!M$7","v":0},null,{"$f":"AC35*'Other input expert'!B$13*'Sales price per sales channel'!$H35*'Other input expert'!B$7","v":0},{"$f":"AD35*'Other input expert'!C$13*'Sales price per sales channel'!$H35*'Other input expert'!C$7","v":0},{"$f":"AE35*'Other input expert'!D$13*'Sales price per sales channel'!$H35*'Other input expert'!D$7","v":0},{"$f":"AF35*'Other input expert'!E$13*'Sales price per sales channel'!$H35*'Other input expert'!E$7","v":0},{"$f":"AG35*'Other input expert'!F$13*'Sales price per sales channel'!$H35*'Other input expert'!F$7","v":0},{"$f":"AH35*'Other input expert'!G$13*'Sales price per sales channel'!$H35*'Other input expert'!G$7","v":0},{"$f":"AI35*'Other input expert'!H$13*'Sales price per sales channel'!$H35*'Other input expert'!H$7","v":0},{"$f":"AJ35*'Other input expert'!I$13*'Sales price per sales channel'!$H35*'Other input expert'!I$7","v":0},{"$f":"AK35*'Other input expert'!J$13*'Sales price per sales channel'!$H35*'Other input expert'!J$7","v":0},{"$f":"AL35*'Other input expert'!K$13*'Sales price per sales channel'!$H35*'Other input expert'!K$7","v":0},{"$f":"AM35*'Other input expert'!L$13*'Sales price per sales channel'!$H35*'Other input expert'!L$7","v":0},{"$f":"AN35*'Other input expert'!M$13*'Sales price per sales channel'!$H35*'Other input expert'!M$7","v":0},null,{"$f":"AC35*'Other input expert'!B$14*'Sales price per sales channel'!$I35*'Other input expert'!B$7","v":0},{"$f":"AD35*'Other input expert'!C$14*'Sales price per sales channel'!$I35*'Other input expert'!C$7","v":0},{"$f":"AE35*'Other input expert'!D$14*'Sales price per sales channel'!$I35*'Other input expert'!D$7","v":0},{"$f":"AF35*'Other input expert'!E$14*'Sales price per sales channel'!$I35*'Other input expert'!E$7","v":0},{"$f":"AG35*'Other input expert'!F$14*'Sales price per sales channel'!$I35*'Other input expert'!F$7","v":0},{"$f":"AH35*'Other input expert'!G$14*'Sales price per sales channel'!$I35*'Other input expert'!G$7","v":0},{"$f":"AI35*'Other input expert'!H$14*'Sales price per sales channel'!$I35*'Other input expert'!H$7","v":0},{"$f":"AJ35*'Other input expert'!I$14*'Sales price per sales channel'!$I35*'Other input expert'!I$7","v":0},{"$f":"AK35*'Other input expert'!J$14*'Sales price per sales channel'!$I35*'Other input expert'!J$7","v":0},{"$f":"AL35*'Other input expert'!K$14*'Sales price per sales channel'!$I35*'Other input expert'!K$7","v":0},{"$f":"AM35*'Other input expert'!L$14*'Sales price per sales channel'!$I35*'Other input expert'!L$7","v":0},{"$f":"AN35*'Other input expert'!M$14*'Sales price per sales channel'!$I35*'Other input expert'!M$7","v":0}]
["Artemisia dracunculus","Mugwort",{"$f":"Plantlist!$G36*'Production list'!D37*'Other input expert'!B$4*'Other input expert'!B$8","v":0},{"$f":"Plantlist!$G36*'Production list'!E37*'Other input expert'!C$4*'Other input expert'!C$8","v":0},{"$f":"Plantlist!$G36*'Production list'!F37*'Other input expert'!D$4*'Other input expert'!D$8","v":0},{"$f":"Plantlist!$G36*'Production list'!G37*'Other input expert'!E$4*'Other input expert'!E$8","v":0},{"$f":"Plantlist!$G36*'Production list'!H37*'Other input expert'!F$4*'Other input expert'!F$8","v":0},{"$f":"Plantlist!$G36*'Production list'!I37*'Other input expert'!G$4*'Other input expert'!G$8","v":0},{"$f":"Plantlist!$G36*'Production list'!J37*'Other input expert'!H$4*'Other input expert'!H$8","v":0},{"$f":"Plantlist!$G36*'Production list'!K37*'Other input expert'!I$4*'Other input expert'!I$8","v":0},{"$f":"Plantlist!$G36*'Production list'!L37*'Other input expert'!J$4*'Other input expert'!J$8","v":0},{"$f":"Plantlist!$G36*'Production list'!M37*'Other input expert'!K$4*'Other input expert'!K$8","v":0},{"$f":"Plantlist!$G36*'Production list'!N37*'Other input expert'!L$4*'Other input expert'!L$8","v":0},{"$f":"Plantlist!$G36*'Production list'!O37*'Other input expert'!M$4*'Other input expert'!M$8","v":0},null,{"$f":"C36*'Other input expert'!B$5","v":0},{"$f":"D36*'Other input expert'!C$5","v":0},{"$f":"E36*'Other input expert'!D$5","v":0},{"$f":"F36*'Other input expert'!E$5","v":0},{"$f":"G36*'Other input expert'!F$5","v":0},{"$f":"H36*'Other input expert'!G$5","v":0},{"$f":"I36*'Other input expert'!H$5","v":0},{"$f":"J36*'Other input expert'!I$5","v":0},{"$f":"K36*'Other input expert'!J$5","v":0},{"$f":"L36*'Other input expert'!K$5","v":0},{"$f":"M36*'Other input expert'!L$5","v":0},{"$f":"N36*'Other input expert'!M$5","v":0},null,{"$f":"C36*(100%-'Other input expert'!B$5)","v":0},{"$f":"D36*(100%-'Other input expert'!C$5)","v":0},{"$f":"E36*(100%-'Other input expert'!D$5)","v":0},{"$f":"F36*(100%-'Other input expert'!E$5)","v":0},{"$f":"G36*(100%-'Other input expert'!F$5)","v":0},{"$f":"H36*(100%-'Other input expert'!G$5)","v":0},{"$f":"I36*(100%-'Other input expert'!H$5)","v":0},{"$f":"J36*(100%-'Other input expert'!I$5)","v":0},{"$f":"K36*(100%-'Other input expert'!J$5)","v":0},{"$f":"L36*(100%-'Other input expert'!K$5)","v":0},{"$f":"M36*(100%-'Other input expert'!L$5)","v":0},{"$f":"N36*(100%-'Other input expert'!M$5)","v":0},null,{"$f":"P36*'Other input expert'!B$12*'Sales price per sales channel'!$G36*'Other input expert'!B$6","v":0},{"$f":"Q36*'Other input expert'!C$12*'Sales price per sales channel'!$G36*'Other input expert'!C$6","v":0},{"$f":"R36*'Other input expert'!D$12*'Sales price per sales channel'!$G36*'Other input expert'!D$6","v":0},{"$f":"S36*'Other input expert'!E$12*'Sales price per sales channel'!$G36*'Other input expert'!E$6","v":0},{"$f":"T36*'Other input expert'!F$12*'Sales price per sales channel'!$G36*'Other input expert'!F$6","v":0},{"$f":"U36*'Other input expert'!G$12*'Sales price per sales channel'!$G36*'Other input expert'!G$6","v":0},{"$f":"V36*'Other input expert'!H$12*'Sales price per sales channel'!$G36*'Other input expert'!H$6","v":0},{"$f":"W36*'Other input expert'!I$12*'Sales price per sales channel'!$G36*'Other input expert'!I$6","v":0},{"$f":"X36*'Other input expert'!J$12*'Sales price per sales channel'!$G36*'Other input expert'!J$6","v":0},{"$f":"Y36*'Other input expert'!K$12*'Sales price per sales channel'!$G36*'Other input expert'!K$6","v":0},{"$f":"Z36*'Other input expert'!L$12*'Sales price per sales channel'!$G36*'Other input expert'!L$6","v":0},{"$f":"AA36*'Other input expert'!M$12*'Sales price per sales channel'!$G36*'Other input expert'!M$6","v":0},null,{"$f":"P36*'Other input expert'!B$13*'Sales price per sales channel'!$H36*'Other input expert'!B$6","v":0},{"$f":"Q36*'Other input expert'!C$13*'Sales price per sales channel'!$H36*'Other input expert'!C$6","v":0},{"$f":"R36*'Other input expert'!D$13*'Sales price per sales channel'!$H36*'Other input expert'!D$6","v":0},{"$f":"S36*'Other input expert'!E$13*'Sales price per sales channel'!$H36*'Other input expert'!E$6","v":0},{"$f":"T36*'Other input expert'!F$13*'Sales price per sales channel'!$H36*'Other input expert'!F$6","v":0},{"$f":"U36*'Other input expert'!G$13*'Sales price per sales channel'!$H36*'Other input expert'!G$6","v":0},{"$f":"V36*'Other input expert'!H$13*'Sales price per sales channel'!$H36*'Other input expert'!H$6","v":0},{"$f":"W36*'Other input expert'!I$13*'Sales price per sales channel'!$H36*'Other input expert'!I$6","v":0},{"$f":"X36*'Other input expert'!J$13*'Sales price per sales channel'!$H36*'Other input expert'!J$6","v":0},{"$f":"Y36*'Other input expert'!K$13*'Sales price per sales channel'!$H36*'Other input expert'!K$6","v":0},{"$f":"Z36*'Other input expert'!L$13*'Sales price per sales channel'!$H36*'Other input expert'!L$6","v":0},{"$f":"AA36*'Other input expert'!M$13*'Sales price per sales channel'!$H36*'Other input expert'!M$6","v":0},null,{"$f":"P36*'Other input expert'!B$14*'Sales price per sales channel'!$I36*'Other input expert'!B$6","v":0},{"$f":"Q36*'Other input expert'!C$14*'Sales price per sales channel'!$I36*'Other input expert'!C$6","v":0},{"$f":"R36*'Other input expert'!D$14*'Sales price per sales channel'!$I36*'Other input expert'!D$6","v":0},{"$f":"S36*'Other input expert'!E$14*'Sales price per sales channel'!$I36*'Other input expert'!E$6","v":0},{"$f":"T36*'Other input expert'!F$14*'Sales price per sales channel'!$I36*'Other input expert'!F$6","v":0},{"$f":"U36*'Other input expert'!G$14*'Sales price per sales channel'!$I36*'Other input expert'!G$6","v":0},{"$f":"V36*'Other input expert'!H$14*'Sales price per sales channel'!$I36*'Other input expert'!H$6","v":0},{"$f":"W36*'Other input expert'!I$14*'Sales price per sales channel'!$I36*'Other input expert'!I$6","v":0},{"$f":"X36*'Other input expert'!J$14*'Sales price per sales channel'!$I36*'Other input expert'!J$6","v":0},{"$f":"Y36*'Other input expert'!K$14*'Sales price per sales channel'!$I36*'Other input expert'!K$6","v":0},{"$f":"Z36*'Other input expert'!L$14*'Sales price per sales channel'!$I36*'Other input expert'!L$6","v":0},{"$f":"AA36*'Other input expert'!M$14*'Sales price per sales channel'!$I36*'Other input expert'!M$6","v":0},null,{"$f":"AC36*'Other input expert'!B$12*'Sales price per sales channel'!$G36*'Other input expert'!B$7","v":0},{"$f":"AD36*'Other input expert'!C$12*'Sales price per sales channel'!$G36*'Other input expert'!C$7","v":0},{"$f":"AE36*'Other input expert'!D$12*'Sales price per sales channel'!$G36*'Other input expert'!D$7","v":0},{"$f":"AF36*'Other input expert'!E$12*'Sales price per sales channel'!$G36*'Other input expert'!E$7","v":0},{"$f":"AG36*'Other input expert'!F$12*'Sales price per sales channel'!$G36*'Other input expert'!F$7","v":0},{"$f":"AH36*'Other input expert'!G$12*'Sales price per sales channel'!$G36*'Other input expert'!G$7","v":0},{"$f":"AI36*'Other input expert'!H$12*'Sales price per sales channel'!$G36*'Other input expert'!H$7","v":0},{"$f":"AJ36*'Other input expert'!I$12*'Sales price per sales channel'!$G36*'Other input expert'!I$7","v":0},{"$f":"AK36*'Other input expert'!J$12*'Sales price per sales channel'!$G36*'Other input expert'!J$7","v":0},{"$f":"AL36*'Other input expert'!K$12*'Sales price per sales channel'!$G36*'Other input expert'!K$7","v":0},{"$f":"AM36*'Other input expert'!L$12*'Sales price per sales channel'!$G36*'Other input expert'!L$7","v":0},{"$f":"AN36*'Other input expert'!M$12*'Sales price per sales channel'!$G36*'Other input expert'!M$7","v":0},null,{"$f":"AC36*'Other input expert'!B$13*'Sales price per sales channel'!$H36*'Other input expert'!B$7","v":0},{"$f":"AD36*'Other input expert'!C$13*'Sales price per sales channel'!$H36*'Other input expert'!C$7","v":0},{"$f":"AE36*'Other input expert'!D$13*'Sales price per sales channel'!$H36*'Other input expert'!D$7","v":0},{"$f":"AF36*'Other input expert'!E$13*'Sales price per sales channel'!$H36*'Other input expert'!E$7","v":0},{"$f":"AG36*'Other input expert'!F$13*'Sales price per sales channel'!$H36*'Other input expert'!F$7","v":0},{"$f":"AH36*'Other input expert'!G$13*'Sales price per sales channel'!$H36*'Other input expert'!G$7","v":0},{"$f":"AI36*'Other input expert'!H$13*'Sales price per sales channel'!$H36*'Other input expert'!H$7","v":0},{"$f":"AJ36*'Other input expert'!I$13*'Sales price per sales channel'!$H36*'Other input expert'!I$7","v":0},{"$f":"AK36*'Other input expert'!J$13*'Sales price per sales channel'!$H36*'Other input expert'!J$7","v":0},{"$f":"AL36*'Other input expert'!K$13*'Sales price per sales channel'!$H36*'Other input expert'!K$7","v":0},{"$f":"AM36*'Other input expert'!L$13*'Sales price per sales channel'!$H36*'Other input expert'!L$7","v":0},{"$f":"AN36*'Other input expert'!M$13*'Sales price per sales channel'!$H36*'Other input expert'!M$7","v":0},null,{"$f":"AC36*'Other input expert'!B$14*'Sales price per sales channel'!$I36*'Other input expert'!B$7","v":0},{"$f":"AD36*'Other input expert'!C$14*'Sales price per sales channel'!$I36*'Other input expert'!C$7","v":0},{"$f":"AE36*'Other input expert'!D$14*'Sales price per sales channel'!$I36*'Other input expert'!D$7","v":0},{"$f":"AF36*'Other input expert'!E$14*'Sales price per sales channel'!$I36*'Other input expert'!E$7","v":0},{"$f":"AG36*'Other input expert'!F$14*'Sales price per sales channel'!$I36*'Other input expert'!F$7","v":0},{"$f":"AH36*'Other input expert'!G$14*'Sales price per sales channel'!$I36*'Other input expert'!G$7","v":0},{"$f":"AI36*'Other input expert'!H$14*'Sales price per sales channel'!$I36*'Other input expert'!H$7","v":0},{"$f":"AJ36*'Other input expert'!I$14*'Sales price per sales channel'!$I36*'Other input expert'!I$7","v":0},{"$f":"AK36*'Other input expert'!J$14*'Sales price per sales channel'!$I36*'Other input expert'!J$7","v":0},{"$f":"AL36*'Other input expert'!K$14*'Sales price per sales channel'!$I36*'Other input expert'!K$7","v":0},{"$f":"AM36*'Other input expert'!L$14*'Sales price per sales channel'!$I36*'Other input expert'!L$7","v":0},{"$f":"AN36*'Other input expert'!M$14*'Sales price per sales channel'!$I36*'Other input expert'!M$7","v":0}]
["Artemisia moxa","Mugwort",{"$f":"Plantlist!$G37*'Production list'!D38*'Other input expert'!B$4*'Other input expert'!B$8","v":0},{"$f":"Plantlist!$G37*'Production list'!E38*'Other input expert'!C$4*'Other input expert'!C$8","v":0},{"$f":"Plantlist!$G37*'Production list'!F38*'Other input expert'!D$4*'Other input expert'!D$8","v":0},{"$f":"Plantlist!$G37*'Production list'!G38*'Other input expert'!E$4*'Other input expert'!E$8","v":0},{"$f":"Plantlist!$G37*'Production list'!H38*'Other input expert'!F$4*'Other input expert'!F$8","v":0},{"$f":"Plantlist!$G37*'Production list'!I38*'Other input expert'!G$4*'Other input expert'!G$8","v":0},{"$f":"Plantlist!$G37*'Production list'!J38*'Other input expert'!H$4*'Other input expert'!H$8","v":0},{"$f":"Plantlist!$G37*'Production list'!K38*'Other input expert'!I$4*'Other input expert'!I$8","v":0},{"$f":"Plantlist!$G37*'Production list'!L38*'Other input expert'!J$4*'Other input expert'!J$8","v":0},{"$f":"Plantlist!$G37*'Production list'!M38*'Other input expert'!K$4*'Other input expert'!K$8","v":0},{"$f":"Plantlist!$G37*'Production list'!N38*'Other input expert'!L$4*'Other input expert'!L$8","v":0},{"$f":"Plantlist!$G37*'Production list'!O38*'Other input expert'!M$4*'Other input expert'!M$8","v":0},null,{"$f":"C37*'Other input expert'!B$5","v":0},{"$f":"D37*'Other input expert'!C$5","v":0},{"$f":"E37*'Other input expert'!D$5","v":0},{"$f":"F37*'Other input expert'!E$5","v":0},{"$f":"G37*'Other input expert'!F$5","v":0},{"$f":"H37*'Other input expert'!G$5","v":0},{"$f":"I37*'Other input expert'!H$5","v":0},{"$f":"J37*'Other input expert'!I$5","v":0},{"$f":"K37*'Other input expert'!J$5","v":0},{"$f":"L37*'Other input expert'!K$5","v":0},{"$f":"M37*'Other input expert'!L$5","v":0},{"$f":"N37*'Other input expert'!M$5","v":0},null,{"$f":"C37*(100%-'Other input expert'!B$5)","v":0},{"$f":"D37*(100%-'Other input expert'!C$5)","v":0},{"$f":"E37*(100%-'Other input expert'!D$5)","v":0},{"$f":"F37*(100%-'Other input expert'!E$5)","v":0},{"$f":"G37*(100%-'Other input expert'!F$5)","v":0},{"$f":"H37*(100%-'Other input expert'!G$5)","v":0},{"$f":"I37*(100%-'Other input expert'!H$5)","v":0},{"$f":"J37*(100%-'Other input expert'!I$5)","v":0},{"$f":"K37*(100%-'Other input expert'!J$5)","v":0},{"$f":"L37*(100%-'Other input expert'!K$5)","v":0},{"$f":"M37*(100%-'Other input expert'!L$5)","v":0},{"$f":"N37*(100%-'Other input expert'!M$5)","v":0},null,{"$f":"P37*'Other input expert'!B$12*'Sales price per sales channel'!$G37*'Other input expert'!B$6","v":0},{"$f":"Q37*'Other input expert'!C$12*'Sales price per sales channel'!$G37*'Other input expert'!C$6","v":0},{"$f":"R37*'Other input expert'!D$12*'Sales price per sales channel'!$G37*'Other input expert'!D$6","v":0},{"$f":"S37*'Other input expert'!E$12*'Sales price per sales channel'!$G37*'Other input expert'!E$6","v":0},{"$f":"T37*'Other input expert'!F$12*'Sales price per sales channel'!$G37*'Other input expert'!F$6","v":0},{"$f":"U37*'Other input expert'!G$12*'Sales price per sales channel'!$G37*'Other input expert'!G$6","v":0},{"$f":"V37*'Other input expert'!H$12*'Sales price per sales channel'!$G37*'Other input expert'!H$6","v":0},{"$f":"W37*'Other input expert'!I$12*'Sales price per sales channel'!$G37*'Other input expert'!I$6","v":0},{"$f":"X37*'Other input expert'!J$12*'Sales price per sales channel'!$G37*'Other input expert'!J$6","v":0},{"$f":"Y37*'Other input expert'!K$12*'Sales price per sales channel'!$G37*'Other input expert'!K$6","v":0},{"$f":"Z37*'Other input expert'!L$12*'Sales price per sales channel'!$G37*'Other input expert'!L$6","v":0},{"$f":"AA37*'Other input expert'!M$12*'Sales price per sales channel'!$G37*'Other input expert'!M$6","v":0},null,{"$f":"P37*'Other input expert'!B$13*'Sales price per sales channel'!$H37*'Other input expert'!B$6","v":0},{"$f":"Q37*'Other input expert'!C$13*'Sales price per sales channel'!$H37*'Other input expert'!C$6","v":0},{"$f":"R37*'Other input expert'!D$13*'Sales price per sales channel'!$H37*'Other input expert'!D$6","v":0},{"$f":"S37*'Other input expert'!E$13*'Sales price per sales channel'!$H37*'Other input expert'!E$6","v":0},{"$f":"T37*'Other input expert'!F$13*'Sales price per sales channel'!$H37*'Other input expert'!F$6","v":0},{"$f":"U37*'Other input expert'!G$13*'Sales price per sales channel'!$H37*'Other input expert'!G$6","v":0},{"$f":"V37*'Other input expert'!H$13*'Sales price per sales channel'!$H37*'Other input expert'!H$6","v":0},{"$f":"W37*'Other input expert'!I$13*'Sales price per sales channel'!$H37*'Other input expert'!I$6","v":0},{"$f":"X37*'Other input expert'!J$13*'Sales price per sales channel'!$H37*'Other input expert'!J$6","v":0},{"$f":"Y37*'Other input expert'!K$13*'Sales price per sales channel'!$H37*'Other input expert'!K$6","v":0},{"$f":"Z37*'Other input expert'!L$13*'Sales price per sales channel'!$H37*'Other input expert'!L$6","v":0},{"$f":"AA37*'Other input expert'!M$13*'Sales price per sales channel'!$H37*'Other input expert'!M$6","v":0},null,{"$f":"P37*'Other input expert'!B$14*'Sales price per sales channel'!$I37*'Other input expert'!B$6","v":0},{"$f":"Q37*'Other input expert'!C$14*'Sales price per sales channel'!$I37*'Other input expert'!C$6","v":0},{"$f":"R37*'Other input expert'!D$14*'Sales price per sales channel'!$I37*'Other input expert'!D$6","v":0},{"$f":"S37*'Other input expert'!E$14*'Sales price per sales channel'!$I37*'Other input expert'!E$6","v":0},{"$f":"T37*'Other input expert'!F$14*'Sales price per sales channel'!$I37*'Other input expert'!F$6","v":0},{"$f":"U37*'Other input expert'!G$14*'Sales price per sales channel'!$I37*'Other input expert'!G$6","v":0},{"$f":"V37*'Other input expert'!H$14*'Sales price per sales channel'!$I37*'Other input expert'!H$6","v":0},{"$f":"W37*'Other input expert'!I$14*'Sales price per sales channel'!$I37*'Other input expert'!I$6","v":0},{"$f":"X37*'Other input expert'!J$14*'Sales price per sales channel'!$I37*'Other input expert'!J$6","v":0},{"$f":"Y37*'Other input expert'!K$14*'Sales price per sales channel'!$I37*'Other input expert'!K$6","v":0},{"$f":"Z37*'Other input expert'!L$14*'Sales price per sales channel'!$I37*'Other input expert'!L$6","v":0},{"$f":"AA37*'Other input expert'!M$14*'Sales price per sales channel'!$I37*'Other input expert'!M$6","v":0},null,{"$f":"AC37*'Other input expert'!B$12*'Sales price per sales channel'!$G37*'Other input expert'!B$7","v":0},{"$f":"AD37*'Other input expert'!C$12*'Sales price per sales channel'!$G37*'Other input expert'!C$7","v":0},{"$f":"AE37*'Other input expert'!D$12*'Sales price per sales channel'!$G37*'Other input expert'!D$7","v":0},{"$f":"AF37*'Other input expert'!E$12*'Sales price per sales channel'!$G37*'Other input expert'!E$7","v":0},{"$f":"AG37*'Other input expert'!F$12*'Sales price per sales channel'!$G37*'Other input expert'!F$7","v":0},{"$f":"AH37*'Other input expert'!G$12*'Sales price per sales channel'!$G37*'Other input expert'!G$7","v":0},{"$f":"AI37*'Other input expert'!H$12*'Sales price per sales channel'!$G37*'Other input expert'!H$7","v":0},{"$f":"AJ37*'Other input expert'!I$12*'Sales price per sales channel'!$G37*'Other input expert'!I$7","v":0},{"$f":"AK37*'Other input expert'!J$12*'Sales price per sales channel'!$G37*'Other input expert'!J$7","v":0},{"$f":"AL37*'Other input expert'!K$12*'Sales price per sales channel'!$G37*'Other input expert'!K$7","v":0},{"$f":"AM37*'Other input expert'!L$12*'Sales price per sales channel'!$G37*'Other input expert'!L$7","v":0},{"$f":"AN37*'Other input expert'!M$12*'Sales price per sales channel'!$G37*'Other input expert'!M$7","v":0},null,{"$f":"AC37*'Other input expert'!B$13*'Sales price per sales channel'!$H37*'Other input expert'!B$7","v":0},{"$f":"AD37*'Other input expert'!C$13*'Sales price per sales channel'!$H37*'Other input expert'!C$7","v":0},{"$f":"AE37*'Other input expert'!D$13*'Sales price per sales channel'!$H37*'Other input expert'!D$7","v":0},{"$f":"AF37*'Other input expert'!E$13*'Sales price per sales channel'!$H37*'Other input expert'!E$7","v":0},{"$f":"AG37*'Other input expert'!F$13*'Sales price per sales channel'!$H37*'Other input expert'!F$7","v":0},{"$f":"AH37*'Other input expert'!G$13*'Sales price per sales channel'!$H37*'Other input expert'!G$7","v":0},{"$f":"AI37*'Other input expert'!H$13*'Sales price per sales channel'!$H37*'Other input expert'!H$7","v":0},{"$f":"AJ37*'Other input expert'!I$13*'Sales price per sales channel'!$H37*'Other input expert'!I$7","v":0},{"$f":"AK37*'Other input expert'!J$13*'Sales price per sales channel'!$H37*'Other input expert'!J$7","v":0},{"$f":"AL37*'Other input expert'!K$13*'Sales price per sales channel'!$H37*'Other input expert'!K$7","v":0},{"$f":"AM37*'Other input expert'!L$13*'Sales price per sales channel'!$H37*'Other input expert'!L$7","v":0},{"$f":"AN37*'Other input expert'!M$13*'Sales price per sales channel'!$H37*'Other input expert'!M$7","v":0},null,{"$f":"AC37*'Other input expert'!B$14*'Sales price per sales channel'!$I37*'Other input expert'!B$7","v":0},{"$f":"AD37*'Other input expert'!C$14*'Sales price per sales channel'!$I37*'Other input expert'!C$7","v":0},{"$f":"AE37*'Other input expert'!D$14*'Sales price per sales channel'!$I37*'Other input expert'!D$7","v":0},{"$f":"AF37*'Other input expert'!E$14*'Sales price per sales channel'!$I37*'Other input expert'!E$7","v":0},{"$f":"AG37*'Other input expert'!F$14*'Sales price per sales channel'!$I37*'Other input expert'!F$7","v":0},{"$f":"AH37*'Other input expert'!G$14*'Sales price per sales channel'!$I37*'Other input expert'!G$7","v":0},{"$f":"AI37*'Other input expert'!H$14*'Sales price per sales channel'!$I37*'Other input expert'!H$7","v":0},{"$f":"AJ37*'Other input expert'!I$14*'Sales price per sales channel'!$I37*'Other input expert'!I$7","v":0},{"$f":"AK37*'Other input expert'!J$14*'Sales price per sales channel'!$I37*'Other input expert'!J$7","v":0},{"$f":"AL37*'Other input expert'!K$14*'Sales price per sales channel'!$I37*'Other input expert'!K$7","v":0},{"$f":"AM37*'Other input expert'!L$14*'Sales price per sales channel'!$I37*'Other input expert'!L$7","v":0},{"$f":"AN37*'Other input expert'!M$14*'Sales price per sales channel'!$I37*'Other input expert'!M$7","v":0}]
["Asimina triloba","Pawpaw",{"$f":"Plantlist!$G38*'Production list'!D39*'Other input expert'!B$4*'Other input expert'!B$8","v":0},{"$f":"Plantlist!$G38*'Production list'!E39*'Other input expert'!C$4*'Other input expert'!C$8","v":0},{"$f":"Plantlist!$G38*'Production list'!F39*'Other input expert'!D$4*'Other input expert'!D$8","v":0},{"$f":"Plantlist!$G38*'Production list'!G39*'Other input expert'!E$4*'Other input expert'!E$8","v":0},{"$f":"Plantlist!$G38*'Production list'!H39*'Other input expert'!F$4*'Other input expert'!F$8","v":0},{"$f":"Plantlist!$G38*'Production list'!I39*'Other input expert'!G$4*'Other input expert'!G$8","v":0},{"$f":"Plantlist!$G38*'Production list'!J39*'Other input expert'!H$4*'Other input expert'!H$8","v":0},{"$f":"Plantlist!$G38*'Production list'!K39*'Other input expert'!I$4*'Other input expert'!I$8","v":0},{"$f":"Plantlist!$G38*'Production list'!L39*'Other input expert'!J$4*'Other input expert'!J$8","v":0},{"$f":"Plantlist!$G38*'Production list'!M39*'Other input expert'!K$4*'Other input expert'!K$8","v":0},{"$f":"Plantlist!$G38*'Production list'!N39*'Other input expert'!L$4*'Other input expert'!L$8","v":0},{"$f":"Plantlist!$G38*'Production list'!O39*'Other input expert'!M$4*'Other input expert'!M$8","v":0},null,{"$f":"C38*'Other input expert'!B$5","v":0},{"$f":"D38*'Other input expert'!C$5","v":0},{"$f":"E38*'Other input expert'!D$5","v":0},{"$f":"F38*'Other input expert'!E$5","v":0},{"$f":"G38*'Other input expert'!F$5","v":0},{"$f":"H38*'Other input expert'!G$5","v":0},{"$f":"I38*'Other input expert'!H$5","v":0},{"$f":"J38*'Other input expert'!I$5","v":0},{"$f":"K38*'Other input expert'!J$5","v":0},{"$f":"L38*'Other input expert'!K$5","v":0},{"$f":"M38*'Other input expert'!L$5","v":0},{"$f":"N38*'Other input expert'!M$5","v":0},null,{"$f":"C38*(100%-'Other input expert'!B$5)","v":0},{"$f":"D38*(100%-'Other input expert'!C$5)","v":0},{"$f":"E38*(100%-'Other input expert'!D$5)","v":0},{"$f":"F38*(100%-'Other input expert'!E$5)","v":0},{"$f":"G38*(100%-'Other input expert'!F$5)","v":0},{"$f":"H38*(100%-'Other input expert'!G$5)","v":0},{"$f":"I38*(100%-'Other input expert'!H$5)","v":0},{"$f":"J38*(100%-'Other input expert'!I$5)","v":0},{"$f":"K38*(100%-'Other input expert'!J$5)","v":0},{"$f":"L38*(100%-'Other input expert'!K$5)","v":0},{"$f":"M38*(100%-'Other input expert'!L$5)","v":0},{"$f":"N38*(100%-'Other input expert'!M$5)","v":0},null,{"$f":"P38*'Other input expert'!B$12*'Sales price per sales channel'!$G38*'Other input expert'!B$6","v":0},{"$f":"Q38*'Other input expert'!C$12*'Sales price per sales channel'!$G38*'Other input expert'!C$6","v":0},{"$f":"R38*'Other input expert'!D$12*'Sales price per sales channel'!$G38*'Other input expert'!D$6","v":0},{"$f":"S38*'Other input expert'!E$12*'Sales price per sales channel'!$G38*'Other input expert'!E$6","v":0},{"$f":"T38*'Other input expert'!F$12*'Sales price per sales channel'!$G38*'Other input expert'!F$6","v":0},{"$f":"U38*'Other input expert'!G$12*'Sales price per sales channel'!$G38*'Other input expert'!G$6","v":0},{"$f":"V38*'Other input expert'!H$12*'Sales price per sales channel'!$G38*'Other input expert'!H$6","v":0},{"$f":"W38*'Other input expert'!I$12*'Sales price per sales channel'!$G38*'Other input expert'!I$6","v":0},{"$f":"X38*'Other input expert'!J$12*'Sales price per sales channel'!$G38*'Other input expert'!J$6","v":0},{"$f":"Y38*'Other input expert'!K$12*'Sales price per sales channel'!$G38*'Other input expert'!K$6","v":0},{"$f":"Z38*'Other input expert'!L$12*'Sales price per sales channel'!$G38*'Other input expert'!L$6","v":0},{"$f":"AA38*'Other input expert'!M$12*'Sales price per sales channel'!$G38*'Other input expert'!M$6","v":0},null,{"$f":"P38*'Other input expert'!B$13*'Sales price per sales channel'!$H38*'Other input expert'!B$6","v":0},{"$f":"Q38*'Other input expert'!C$13*'Sales price per sales channel'!$H38*'Other input expert'!C$6","v":0},{"$f":"R38*'Other input expert'!D$13*'Sales price per sales channel'!$H38*'Other input expert'!D$6","v":0},{"$f":"S38*'Other input expert'!E$13*'Sales price per sales channel'!$H38*'Other input expert'!E$6","v":0},{"$f":"T38*'Other input expert'!F$13*'Sales price per sales channel'!$H38*'Other input expert'!F$6","v":0},{"$f":"U38*'Other input expert'!G$13*'Sales price per sales channel'!$H38*'Other input expert'!G$6","v":0},{"$f":"V38*'Other input expert'!H$13*'Sales price per sales channel'!$H38*'Other input expert'!H$6","v":0},{"$f":"W38*'Other input expert'!I$13*'Sales price per sales channel'!$H38*'Other input expert'!I$6","v":0},{"$f":"X38*'Other input expert'!J$13*'Sales price per sales channel'!$H38*'Other input expert'!J$6","v":0},{"$f":"Y38*'Other input expert'!K$13*'Sales price per sales channel'!$H38*'Other input expert'!K$6","v":0},{"$f":"Z38*'Other input expert'!L$13*'Sales price per sales channel'!$H38*'Other input expert'!L$6","v":0},{"$f":"AA38*'Other input expert'!M$13*'Sales price per sales channel'!$H38*'Other input expert'!M$6","v":0},null,{"$f":"P38*'Other input expert'!B$14*'Sales price per sales channel'!$I38*'Other input expert'!B$6","v":0},{"$f":"Q38*'Other input expert'!C$14*'Sales price per sales channel'!$I38*'Other input expert'!C$6","v":0},{"$f":"R38*'Other input expert'!D$14*'Sales price per sales channel'!$I38*'Other input expert'!D$6","v":0},{"$f":"S38*'Other input expert'!E$14*'Sales price per sales channel'!$I38*'Other input expert'!E$6","v":0},{"$f":"T38*'Other input expert'!F$14*'Sales price per sales channel'!$I38*'Other input expert'!F$6","v":0},{"$f":"U38*'Other input expert'!G$14*'Sales price per sales channel'!$I38*'Other input expert'!G$6","v":0},{"$f":"V38*'Other input expert'!H$14*'Sales price per sales channel'!$I38*'Other input expert'!H$6","v":0},{"$f":"W38*'Other input expert'!I$14*'Sales price per sales channel'!$I38*'Other input expert'!I$6","v":0},{"$f":"X38*'Other input expert'!J$14*'Sales price per sales channel'!$I38*'Other input expert'!J$6","v":0},{"$f":"Y38*'Other input expert'!K$14*'Sales price per sales channel'!$I38*'Other input expert'!K$6","v":0},{"$f":"Z38*'Other input expert'!L$14*'Sales price per sales channel'!$I38*'Other input expert'!L$6","v":0},{"$f":"AA38*'Other input expert'!M$14*'Sales price per sales channel'!$I38*'Other input expert'!M$6","v":0},null,{"$f":"AC38*'Other input expert'!B$12*'Sales price per sales channel'!$G38*'Other input expert'!B$7","v":0},{"$f":"AD38*'Other input expert'!C$12*'Sales price per sales channel'!$G38*'Other input expert'!C$7","v":0},{"$f":"AE38*'Other input expert'!D$12*'Sales price per sales channel'!$G38*'Other input expert'!D$7","v":0},{"$f":"AF38*'Other input expert'!E$12*'Sales price per sales channel'!$G38*'Other input expert'!E$7","v":0},{"$f":"AG38*'Other input expert'!F$12*'Sales price per sales channel'!$G38*'Other input expert'!F$7","v":0},{"$f":"AH38*'Other input expert'!G$12*'Sales price per sales channel'!$G38*'Other input expert'!G$7","v":0},{"$f":"AI38*'Other input expert'!H$12*'Sales price per sales channel'!$G38*'Other input expert'!H$7","v":0},{"$f":"AJ38*'Other input expert'!I$12*'Sales price per sales channel'!$G38*'Other input expert'!I$7","v":0},{"$f":"AK38*'Other input expert'!J$12*'Sales price per sales channel'!$G38*'Other input expert'!J$7","v":0},{"$f":"AL38*'Other input expert'!K$12*'Sales price per sales channel'!$G38*'Other input expert'!K$7","v":0},{"$f":"AM38*'Other input expert'!L$12*'Sales price per sales channel'!$G38*'Other input expert'!L$7","v":0},{"$f":"AN38*'Other input expert'!M$12*'Sales price per sales channel'!$G38*'Other input expert'!M$7","v":0},null,{"$f":"AC38*'Other input expert'!B$13*'Sales price per sales channel'!$H38*'Other input expert'!B$7","v":0},{"$f":"AD38*'Other input expert'!C$13*'Sales price per sales channel'!$H38*'Other input expert'!C$7","v":0},{"$f":"AE38*'Other input expert'!D$13*'Sales price per sales channel'!$H38*'Other input expert'!D$7","v":0},{"$f":"AF38*'Other input expert'!E$13*'Sales price per sales channel'!$H38*'Other input expert'!E$7","v":0},{"$f":"AG38*'Other input expert'!F$13*'Sales price per sales channel'!$H38*'Other input expert'!F$7","v":0},{"$f":"AH38*'Other input expert'!G$13*'Sales price per sales channel'!$H38*'Other input expert'!G$7","v":0},{"$f":"AI38*'Other input expert'!H$13*'Sales price per sales channel'!$H38*'Other input expert'!H$7","v":0},{"$f":"AJ38*'Other input expert'!I$13*'Sales price per sales channel'!$H38*'Other input expert'!I$7","v":0},{"$f":"AK38*'Other input expert'!J$13*'Sales price per sales channel'!$H38*'Other input expert'!J$7","v":0},{"$f":"AL38*'Other input expert'!K$13*'Sales price per sales channel'!$H38*'Other input expert'!K$7","v":0},{"$f":"AM38*'Other input expert'!L$13*'Sales price per sales channel'!$H38*'Other input expert'!L$7","v":0},{"$f":"AN38*'Other input expert'!M$13*'Sales price per sales channel'!$H38*'Other input expert'!M$7","v":0},null,{"$f":"AC38*'Other input expert'!B$14*'Sales price per sales channel'!$I38*'Other input expert'!B$7","v":0},{"$f":"AD38*'Other input expert'!C$14*'Sales price per sales channel'!$I38*'Other input expert'!C$7","v":0},{"$f":"AE38*'Other input expert'!D$14*'Sales price per sales channel'!$I38*'Other input expert'!D$7","v":0},{"$f":"AF38*'Other input expert'!E$14*'Sales price per sales channel'!$I38*'Other input expert'!E$7","v":0},{"$f":"AG38*'Other input expert'!F$14*'Sales price per sales channel'!$I38*'Other input expert'!F$7","v":0},{"$f":"AH38*'Other input expert'!G$14*'Sales price per sales channel'!$I38*'Other input expert'!G$7","v":0},{"$f":"AI38*'Other input expert'!H$14*'Sales price per sales channel'!$I38*'Other input expert'!H$7","v":0},{"$f":"AJ38*'Other input expert'!I$14*'Sales price per sales channel'!$I38*'Other input expert'!I$7","v":0},{"$f":"AK38*'Other input expert'!J$14*'Sales price per sales channel'!$I38*'Other input expert'!J$7","v":0},{"$f":"AL38*'Other input expert'!K$14*'Sales price per sales channel'!$I38*'Other input expert'!K$7","v":0},{"$f":"AM38*'Other input expert'!L$14*'Sales price per sales channel'!$I38*'Other input expert'!L$7","v":0},{"$f":"AN38*'Other input expert'!M$14*'Sales price per sales channel'!$I38*'Other input expert'!M$7","v":0}]
["Berberis aristata","European barberry",{"$f":"Plantlist!$G39*'Production list'!D40*'Other input expert'!B$4*'Other input expert'!B$8","v":0},{"$f":"Plantlist!$G39*'Production list'!E40*'Other input expert'!C$4*'Other input expert'!C$8","v":0},{"$f":"Plantlist!$G39*'Production list'!F40*'Other input expert'!D$4*'Other input expert'!D$8","v":0},{"$f":"Plantlist!$G39*'Production list'!G40*'Other input expert'!E$4*'Other input expert'!E$8","v":0},{"$f":"Plantlist!$G39*'Production list'!H40*'Other input expert'!F$4*'Other input expert'!F$8","v":0},{"$f":"Plantlist!$G39*'Production list'!I40*'Other input expert'!G$4*'Other input expert'!G$8","v":0},{"$f":"Plantlist!$G39*'Production list'!J40*'Other input expert'!H$4*'Other input expert'!H$8","v":0},{"$f":"Plantlist!$G39*'Production list'!K40*'Other input expert'!I$4*'Other input expert'!I$8","v":0},{"$f":"Plantlist!$G39*'Production list'!L40*'Other input expert'!J$4*'Other input expert'!J$8","v":0},{"$f":"Plantlist!$G39*'Production list'!M40*'Other input expert'!K$4*'Other input expert'!K$8","v":0},{"$f":"Plantlist!$G39*'Production list'!N40*'Other input expert'!L$4*'Other input expert'!L$8","v":0},{"$f":"Plantlist!$G39*'Production list'!O40*'Other input expert'!M$4*'Other input expert'!M$8","v":0},null,{"$f":"C39*'Other input expert'!B$5","v":0},{"$f":"D39*'Other input expert'!C$5","v":0},{"$f":"E39*'Other input expert'!D$5","v":0},{"$f":"F39*'Other input expert'!E$5","v":0},{"$f":"G39*'Other input expert'!F$5","v":0},{"$f":"H39*'Other input expert'!G$5","v":0},{"$f":"I39*'Other input expert'!H$5","v":0},{"$f":"J39*'Other input expert'!I$5","v":0},{"$f":"K39*'Other input expert'!J$5","v":0},{"$f":"L39*'Other input expert'!K$5","v":0},{"$f":"M39*'Other input expert'!L$5","v":0},{"$f":"N39*'Other input expert'!M$5","v":0},null,{"$f":"C39*(100%-'Other input expert'!B$5)","v":0},{"$f":"D39*(100%-'Other input expert'!C$5)","v":0},{"$f":"E39*(100%-'Other input expert'!D$5)","v":0},{"$f":"F39*(100%-'Other input expert'!E$5)","v":0},{"$f":"G39*(100%-'Other input expert'!F$5)","v":0},{"$f":"H39*(100%-'Other input expert'!G$5)","v":0},{"$f":"I39*(100%-'Other input expert'!H$5)","v":0},{"$f":"J39*(100%-'Other input expert'!I$5)","v":0},{"$f":"K39*(100%-'Other input expert'!J$5)","v":0},{"$f":"L39*(100%-'Other input expert'!K$5)","v":0},{"$f":"M39*(100%-'Other input expert'!L$5)","v":0},{"$f":"N39*(100%-'Other input expert'!M$5)","v":0},null,{"$f":"P39*'Other input expert'!B$12*'Sales price per sales channel'!$G39*'Other input expert'!B$6","v":0},{"$f":"Q39*'Other input expert'!C$12*'Sales price per sales channel'!$G39*'Other input expert'!C$6","v":0},{"$f":"R39*'Other input expert'!D$12*'Sales price per sales channel'!$G39*'Other input expert'!D$6","v":0},{"$f":"S39*'Other input expert'!E$12*'Sales price per sales channel'!$G39*'Other input expert'!E$6","v":0},{"$f":"T39*'Other input expert'!F$12*'Sales price per sales channel'!$G39*'Other input expert'!F$6","v":0},{"$f":"U39*'Other input expert'!G$12*'Sales price per sales channel'!$G39*'Other input expert'!G$6","v":0},{"$f":"V39*'Other input expert'!H$12*'Sales price per sales channel'!$G39*'Other input expert'!H$6","v":0},{"$f":"W39*'Other input expert'!I$12*'Sales price per sales channel'!$G39*'Other input expert'!I$6","v":0},{"$f":"X39*'Other input expert'!J$12*'Sales price per sales channel'!$G39*'Other input expert'!J$6","v":0},{"$f":"Y39*'Other input expert'!K$12*'Sales price per sales channel'!$G39*'Other input expert'!K$6","v":0},{"$f":"Z39*'Other input expert'!L$12*'Sales price per sales channel'!$G39*'Other input expert'!L$6","v":0},{"$f":"AA39*'Other input expert'!M$12*'Sales price per sales channel'!$G39*'Other input expert'!M$6","v":0},null,{"$f":"P39*'Other input expert'!B$13*'Sales price per sales channel'!$H39*'Other input expert'!B$6","v":0},{"$f":"Q39*'Other input expert'!C$13*'Sales price per sales channel'!$H39*'Other input expert'!C$6","v":0},{"$f":"R39*'Other input expert'!D$13*'Sales price per sales channel'!$H39*'Other input expert'!D$6","v":0},{"$f":"S39*'Other input expert'!E$13*'Sales price per sales channel'!$H39*'Other input expert'!E$6","v":0},{"$f":"T39*'Other input expert'!F$13*'Sales price per sales channel'!$H39*'Other input expert'!F$6","v":0},{"$f":"U39*'Other input expert'!G$13*'Sales price per sales channel'!$H39*'Other input expert'!G$6","v":0},{"$f":"V39*'Other input expert'!H$13*'Sales price per sales channel'!$H39*'Other input expert'!H$6","v":0},{"$f":"W39*'Other input expert'!I$13*'Sales price per sales channel'!$H39*'Other input expert'!I$6","v":0},{"$f":"X39*'Other input expert'!J$13*'Sales price per sales channel'!$H39*'Other input expert'!J$6","v":0},{"$f":"Y39*'Other input expert'!K$13*'Sales price per sales channel'!$H39*'Other input expert'!K$6","v":0},{"$f":"Z39*'Other input expert'!L$13*'Sales price per sales channel'!$H39*'Other input expert'!L$6","v":0},{"$f":"AA39*'Other input expert'!M$13*'Sales price per sales channel'!$H39*'Other input expert'!M$6","v":0},null,{"$f":"P39*'Other input expert'!B$14*'Sales price per sales channel'!$I39*'Other input expert'!B$6","v":0},{"$f":"Q39*'Other input expert'!C$14*'Sales price per sales channel'!$I39*'Other input expert'!C$6","v":0},{"$f":"R39*'Other input expert'!D$14*'Sales price per sales channel'!$I39*'Other input expert'!D$6","v":0},{"$f":"S39*'Other input expert'!E$14*'Sales price per sales channel'!$I39*'Other input expert'!E$6","v":0},{"$f":"T39*'Other input expert'!F$14*'Sales price per sales channel'!$I39*'Other input expert'!F$6","v":0},{"$f":"U39*'Other input expert'!G$14*'Sales price per sales channel'!$I39*'Other input expert'!G$6","v":0},{"$f":"V39*'Other input expert'!H$14*'Sales price per sales channel'!$I39*'Other input expert'!H$6","v":0},{"$f":"W39*'Other input expert'!I$14*'Sales price per sales channel'!$I39*'Other input expert'!I$6","v":0},{"$f":"X39*'Other input expert'!J$14*'Sales price per sales channel'!$I39*'Other input expert'!J$6","v":0},{"$f":"Y39*'Other input expert'!K$14*'Sales price per sales channel'!$I39*'Other input expert'!K$6","v":0},{"$f":"Z39*'Other input expert'!L$14*'Sales price per sales channel'!$I39*'Other input expert'!L$6","v":0},{"$f":"AA39*'Other input expert'!M$14*'Sales price per sales channel'!$I39*'Other input expert'!M$6","v":0},null,{"$f":"AC39*'Other input expert'!B$12*'Sales price per sales channel'!$G39*'Other input expert'!B$7","v":0},{"$f":"AD39*'Other input expert'!C$12*'Sales price per sales channel'!$G39*'Other input expert'!C$7","v":0},{"$f":"AE39*'Other input expert'!D$12*'Sales price per sales channel'!$G39*'Other input expert'!D$7","v":0},{"$f":"AF39*'Other input expert'!E$12*'Sales price per sales channel'!$G39*'Other input expert'!E$7","v":0},{"$f":"AG39*'Other input expert'!F$12*'Sales price per sales channel'!$G39*'Other input expert'!F$7","v":0},{"$f":"AH39*'Other input expert'!G$12*'Sales price per sales channel'!$G39*'Other input expert'!G$7","v":0},{"$f":"AI39*'Other input expert'!H$12*'Sales price per sales channel'!$G39*'Other input expert'!H$7","v":0},{"$f":"AJ39*'Other input expert'!I$12*'Sales price per sales channel'!$G39*'Other input expert'!I$7","v":0},{"$f":"AK39*'Other input expert'!J$12*'Sales price per sales channel'!$G39*'Other input expert'!J$7","v":0},{"$f":"AL39*'Other input expert'!K$12*'Sales price per sales channel'!$G39*'Other input expert'!K$7","v":0},{"$f":"AM39*'Other input expert'!L$12*'Sales price per sales channel'!$G39*'Other input expert'!L$7","v":0},{"$f":"AN39*'Other input expert'!M$12*'Sales price per sales channel'!$G39*'Other input expert'!M$7","v":0},null,{"$f":"AC39*'Other input expert'!B$13*'Sales price per sales channel'!$H39*'Other input expert'!B$7","v":0},{"$f":"AD39*'Other input expert'!C$13*'Sales price per sales channel'!$H39*'Other input expert'!C$7","v":0},{"$f":"AE39*'Other input expert'!D$13*'Sales price per sales channel'!$H39*'Other input expert'!D$7","v":0},{"$f":"AF39*'Other input expert'!E$13*'Sales price per sales channel'!$H39*'Other input expert'!E$7","v":0},{"$f":"AG39*'Other input expert'!F$13*'Sales price per sales channel'!$H39*'Other input expert'!F$7","v":0},{"$f":"AH39*'Other input expert'!G$13*'Sales price per sales channel'!$H39*'Other input expert'!G$7","v":0},{"$f":"AI39*'Other input expert'!H$13*'Sales price per sales channel'!$H39*'Other input expert'!H$7","v":0},{"$f":"AJ39*'Other input expert'!I$13*'Sales price per sales channel'!$H39*'Other input expert'!I$7","v":0},{"$f":"AK39*'Other input expert'!J$13*'Sales price per sales channel'!$H39*'Other input expert'!J$7","v":0},{"$f":"AL39*'Other input expert'!K$13*'Sales price per sales channel'!$H39*'Other input expert'!K$7","v":0},{"$f":"AM39*'Other input expert'!L$13*'Sales price per sales channel'!$H39*'Other input expert'!L$7","v":0},{"$f":"AN39*'Other input expert'!M$13*'Sales price per sales channel'!$H39*'Other input expert'!M$7","v":0},null,{"$f":"AC39*'Other input expert'!B$14*'Sales price per sales channel'!$I39*'Other input expert'!B$7","v":0},{"$f":"AD39*'Other input expert'!C$14*'Sales price per sales channel'!$I39*'Other input expert'!C$7","v":0},{"$f":"AE39*'Other input expert'!D$14*'Sales price per sales channel'!$I39*'Other input expert'!D$7","v":0},{"$f":"AF39*'Other input expert'!E$14*'Sales price per sales channel'!$I39*'Other input expert'!E$7","v":0},{"$f":"AG39*'Other input expert'!F$14*'Sales price per sales channel'!$I39*'Other input expert'!F$7","v":0},{"$f":"AH39*'Other input expert'!G$14*'Sales price per sales channel'!$I39*'Other input expert'!G$7","v":0},{"$f":"AI39*'Other input expert'!H$14*'Sales price per sales channel'!$I39*'Other input expert'!H$7","v":0},{"$f":"AJ39*'Other input expert'!I$14*'Sales price per sales channel'!$I39*'Other input expert'!I$7","v":0},{"$f":"AK39*'Other input expert'!J$14*'Sales price per sales channel'!$I39*'Other input expert'!J$7","v":0},{"$f":"AL39*'Other input expert'!K$14*'Sales price per sales channel'!$I39*'Other input expert'!K$7","v":0},{"$f":"AM39*'Other input expert'!L$14*'Sales price per sales channel'!$I39*'Other input expert'!L$7","v":0},{"$f":"AN39*'Other input expert'!M$14*'Sales price per sales channel'!$I39*'Other input expert'!M$7","v":0}]
["Berberis vulgaris","barberry",{"$f":"Plantlist!$G40*'Production list'!D41*'Other input expert'!B$4*'Other input expert'!B$8","v":0},{"$f":"Plantlist!$G40*'Production list'!E41*'Other input expert'!C$4*'Other input expert'!C$8","v":0},{"$f":"Plantlist!$G40*'Production list'!F41*'Other input expert'!D$4*'Other input expert'!D$8","v":0},{"$f":"Plantlist!$G40*'Production list'!G41*'Other input expert'!E$4*'Other input expert'!E$8","v":0},{"$f":"Plantlist!$G40*'Production list'!H41*'Other input expert'!F$4*'Other input expert'!F$8","v":0},{"$f":"Plantlist!$G40*'Production list'!I41*'Other input expert'!G$4*'Other input expert'!G$8","v":0},{"$f":"Plantlist!$G40*'Production list'!J41*'Other input expert'!H$4*'Other input expert'!H$8","v":0},{"$f":"Plantlist!$G40*'Production list'!K41*'Other input expert'!I$4*'Other input expert'!I$8","v":0},{"$f":"Plantlist!$G40*'Production list'!L41*'Other input expert'!J$4*'Other input expert'!J$8","v":0},{"$f":"Plantlist!$G40*'Production list'!M41*'Other input expert'!K$4*'Other input expert'!K$8","v":0},{"$f":"Plantlist!$G40*'Production list'!N41*'Other input expert'!L$4*'Other input expert'!L$8","v":0},{"$f":"Plantlist!$G40*'Production list'!O41*'Other input expert'!M$4*'Other input expert'!M$8","v":0},null,{"$f":"C40*'Other input expert'!B$5","v":0},{"$f":"D40*'Other input expert'!C$5","v":0},{"$f":"E40*'Other input expert'!D$5","v":0},{"$f":"F40*'Other input expert'!E$5","v":0},{"$f":"G40*'Other input expert'!F$5","v":0},{"$f":"H40*'Other input expert'!G$5","v":0},{"$f":"I40*'Other input expert'!H$5","v":0},{"$f":"J40*'Other input expert'!I$5","v":0},{"$f":"K40*'Other input expert'!J$5","v":0},{"$f":"L40*'Other input expert'!K$5","v":0},{"$f":"M40*'Other input expert'!L$5","v":0},{"$f":"N40*'Other input expert'!M$5","v":0},null,{"$f":"C40*(100%-'Other input expert'!B$5)","v":0},{"$f":"D40*(100%-'Other input expert'!C$5)","v":0},{"$f":"E40*(100%-'Other input expert'!D$5)","v":0},{"$f":"F40*(100%-'Other input expert'!E$5)","v":0},{"$f":"G40*(100%-'Other input expert'!F$5)","v":0},{"$f":"H40*(100%-'Other input expert'!G$5)","v":0},{"$f":"I40*(100%-'Other input expert'!H$5)","v":0},{"$f":"J40*(100%-'Other input expert'!I$5)","v":0},{"$f":"K40*(100%-'Other input expert'!J$5)","v":0},{"$f":"L40*(100%-'Other input expert'!K$5)","v":0},{"$f":"M40*(100%-'Other input expert'!L$5)","v":0},{"$f":"N40*(100%-'Other input expert'!M$5)","v":0},null,{"$f":"P40*'Other input expert'!B$12*'Sales price per sales channel'!$G40*'Other input expert'!B$6","v":0},{"$f":"Q40*'Other input expert'!C$12*'Sales price per sales channel'!$G40*'Other input expert'!C$6","v":0},{"$f":"R40*'Other input expert'!D$12*'Sales price per sales channel'!$G40*'Other input expert'!D$6","v":0},{"$f":"S40*'Other input expert'!E$12*'Sales price per sales channel'!$G40*'Other input expert'!E$6","v":0},{"$f":"T40*'Other input expert'!F$12*'Sales price per sales channel'!$G40*'Other input expert'!F$6","v":0},{"$f":"U40*'Other input expert'!G$12*'Sales price per sales channel'!$G40*'Other input expert'!G$6","v":0},{"$f":"V40*'Other input expert'!H$12*'Sales price per sales channel'!$G40*'Other input expert'!H$6","v":0},{"$f":"W40*'Other input expert'!I$12*'Sales price per sales channel'!$G40*'Other input expert'!I$6","v":0},{"$f":"X40*'Other input expert'!J$12*'Sales price per sales channel'!$G40*'Other input expert'!J$6","v":0},{"$f":"Y40*'Other input expert'!K$12*'Sales price per sales channel'!$G40*'Other input expert'!K$6","v":0},{"$f":"Z40*'Other input expert'!L$12*'Sales price per sales channel'!$G40*'Other input expert'!L$6","v":0},{"$f":"AA40*'Other input expert'!M$12*'Sales price per sales channel'!$G40*'Other input expert'!M$6","v":0},null,{"$f":"P40*'Other input expert'!B$13*'Sales price per sales channel'!$H40*'Other input expert'!B$6","v":0},{"$f":"Q40*'Other input expert'!C$13*'Sales price per sales channel'!$H40*'Other input expert'!C$6","v":0},{"$f":"R40*'Other input expert'!D$13*'Sales price per sales channel'!$H40*'Other input expert'!D$6","v":0},{"$f":"S40*'Other input expert'!E$13*'Sales price per sales channel'!$H40*'Other input expert'!E$6","v":0},{"$f":"T40*'Other input expert'!F$13*'Sales price per sales channel'!$H40*'Other input expert'!F$6","v":0},{"$f":"U40*'Other input expert'!G$13*'Sales price per sales channel'!$H40*'Other input expert'!G$6","v":0},{"$f":"V40*'Other input expert'!H$13*'Sales price per sales channel'!$H40*'Other input expert'!H$6","v":0},{"$f":"W40*'Other input expert'!I$13*'Sales price per sales channel'!$H40*'Other input expert'!I$6","v":0},{"$f":"X40*'Other input expert'!J$13*'Sales price per sales channel'!$H40*'Other input expert'!J$6","v":0},{"$f":"Y40*'Other input expert'!K$13*'Sales price per sales channel'!$H40*'Other input expert'!K$6","v":0},{"$f":"Z40*'Other input expert'!L$13*'Sales price per sales channel'!$H40*'Other input expert'!L$6","v":0},{"$f":"AA40*'Other input expert'!M$13*'Sales price per sales channel'!$H40*'Other input expert'!M$6","v":0},null,{"$f":"P40*'Other input expert'!B$14*'Sales price per sales channel'!$I40*'Other input expert'!B$6","v":0},{"$f":"Q40*'Other input expert'!C$14*'Sales price per sales channel'!$I40*'Other input expert'!C$6","v":0},{"$f":"R40*'Other input expert'!D$14*'Sales price per sales channel'!$I40*'Other input expert'!D$6","v":0},{"$f":"S40*'Other input expert'!E$14*'Sales price per sales channel'!$I40*'Other input expert'!E$6","v":0},{"$f":"T40*'Other input expert'!F$14*'Sales price per sales channel'!$I40*'Other input expert'!F$6","v":0},{"$f":"U40*'Other input expert'!G$14*'Sales price per sales channel'!$I40*'Other input expert'!G$6","v":0},{"$f":"V40*'Other input expert'!H$14*'Sales price per sales channel'!$I40*'Other input expert'!H$6","v":0},{"$f":"W40*'Other input expert'!I$14*'Sales price per sales channel'!$I40*'Other input expert'!I$6","v":0},{"$f":"X40*'Other input expert'!J$14*'Sales price per sales channel'!$I40*'Other input expert'!J$6","v":0},{"$f":"Y40*'Other input expert'!K$14*'Sales price per sales channel'!$I40*'Other input expert'!K$6","v":0},{"$f":"Z40*'Other input expert'!L$14*'Sales price per sales channel'!$I40*'Other input expert'!L$6","v":0},{"$f":"AA40*'Other input expert'!M$14*'Sales price per sales channel'!$I40*'Other input expert'!M$6","v":0},null,{"$f":"AC40*'Other input expert'!B$12*'Sales price per sales channel'!$G40*'Other input expert'!B$7","v":0},{"$f":"AD40*'Other input expert'!C$12*'Sales price per sales channel'!$G40*'Other input expert'!C$7","v":0},{"$f":"AE40*'Other input expert'!D$12*'Sales price per sales channel'!$G40*'Other input expert'!D$7","v":0},{"$f":"AF40*'Other input expert'!E$12*'Sales price per sales channel'!$G40*'Other input expert'!E$7","v":0},{"$f":"AG40*'Other input expert'!F$12*'Sales price per sales channel'!$G40*'Other input expert'!F$7","v":0},{"$f":"AH40*'Other input expert'!G$12*'Sales price per sales channel'!$G40*'Other input expert'!G$7","v":0},{"$f":"AI40*'Other input expert'!H$12*'Sales price per sales channel'!$G40*'Other input expert'!H$7","v":0},{"$f":"AJ40*'Other input expert'!I$12*'Sales price per sales channel'!$G40*'Other input expert'!I$7","v":0},{"$f":"AK40*'Other input expert'!J$12*'Sales price per sales channel'!$G40*'Other input expert'!J$7","v":0},{"$f":"AL40*'Other input expert'!K$12*'Sales price per sales channel'!$G40*'Other input expert'!K$7","v":0},{"$f":"AM40*'Other input expert'!L$12*'Sales price per sales channel'!$G40*'Other input expert'!L$7","v":0},{"$f":"AN40*'Other input expert'!M$12*'Sales price per sales channel'!$G40*'Other input expert'!M$7","v":0},null,{"$f":"AC40*'Other input expert'!B$13*'Sales price per sales channel'!$H40*'Other input expert'!B$7","v":0},{"$f":"AD40*'Other input expert'!C$13*'Sales price per sales channel'!$H40*'Other input expert'!C$7","v":0},{"$f":"AE40*'Other input expert'!D$13*'Sales price per sales channel'!$H40*'Other input expert'!D$7","v":0},{"$f":"AF40*'Other input expert'!E$13*'Sales price per sales channel'!$H40*'Other input expert'!E$7","v":0},{"$f":"AG40*'Other input expert'!F$13*'Sales price per sales channel'!$H40*'Other input expert'!F$7","v":0},{"$f":"AH40*'Other input expert'!G$13*'Sales price per sales channel'!$H40*'Other input expert'!G$7","v":0},{"$f":"AI40*'Other input expert'!H$13*'Sales price per sales channel'!$H40*'Other input expert'!H$7","v":0},{"$f":"AJ40*'Other input expert'!I$13*'Sales price per sales channel'!$H40*'Other input expert'!I$7","v":0},{"$f":"AK40*'Other input expert'!J$13*'Sales price per sales channel'!$H40*'Other input expert'!J$7","v":0},{"$f":"AL40*'Other input expert'!K$13*'Sales price per sales channel'!$H40*'Other input expert'!K$7","v":0},{"$f":"AM40*'Other input expert'!L$13*'Sales price per sales channel'!$H40*'Other input expert'!L$7","v":0},{"$f":"AN40*'Other input expert'!M$13*'Sales price per sales channel'!$H40*'Other input expert'!M$7","v":0},null,{"$f":"AC40*'Other input expert'!B$14*'Sales price per sales channel'!$I40*'Other input expert'!B$7","v":0},{"$f":"AD40*'Other input expert'!C$14*'Sales price per sales channel'!$I40*'Other input expert'!C$7","v":0},{"$f":"AE40*'Other input expert'!D$14*'Sales price per sales channel'!$I40*'Other input expert'!D$7","v":0},{"$f":"AF40*'Other input expert'!E$14*'Sales price per sales channel'!$I40*'Other input expert'!E$7","v":0},{"$f":"AG40*'Other input expert'!F$14*'Sales price per sales channel'!$I40*'Other input expert'!F$7","v":0},{"$f":"AH40*'Other input expert'!G$14*'Sales price per sales channel'!$I40*'Other input expert'!G$7","v":0},{"$f":"AI40*'Other input expert'!H$14*'Sales price per sales channel'!$I40*'Other input expert'!H$7","v":0},{"$f":"AJ40*'Other input expert'!I$14*'Sales price per sales channel'!$I40*'Other input expert'!I$7","v":0},{"$f":"AK40*'Other input expert'!J$14*'Sales price per sales channel'!$I40*'Other input expert'!J$7","v":0},{"$f":"AL40*'Other input expert'!K$14*'Sales price per sales channel'!$I40*'Other input expert'!K$7","v":0},{"$f":"AM40*'Other input expert'!L$14*'Sales price per sales channel'!$I40*'Other input expert'!L$7","v":0},{"$f":"AN40*'Other input expert'!M$14*'Sales price per sales channel'!$I40*'Other input expert'!M$7","v":0}]
["Bunimum bulbocastanum","Pig nut",{"$f":"Plantlist!$G41*'Production list'!D42*'Other input expert'!B$4*'Other input expert'!B$8","v":0},{"$f":"Plantlist!$G41*'Production list'!E42*'Other input expert'!C$4*'Other input expert'!C$8","v":0},{"$f":"Plantlist!$G41*'Production list'!F42*'Other input expert'!D$4*'Other input expert'!D$8","v":0},{"$f":"Plantlist!$G41*'Production list'!G42*'Other input expert'!E$4*'Other input expert'!E$8","v":0},{"$f":"Plantlist!$G41*'Production list'!H42*'Other input expert'!F$4*'Other input expert'!F$8","v":0},{"$f":"Plantlist!$G41*'Production list'!I42*'Other input expert'!G$4*'Other input expert'!G$8","v":0},{"$f":"Plantlist!$G41*'Production list'!J42*'Other input expert'!H$4*'Other input expert'!H$8","v":0},{"$f":"Plantlist!$G41*'Production list'!K42*'Other input expert'!I$4*'Other input expert'!I$8","v":0},{"$f":"Plantlist!$G41*'Production list'!L42*'Other input expert'!J$4*'Other input expert'!J$8","v":0},{"$f":"Plantlist!$G41*'Production list'!M42*'Other input expert'!K$4*'Other input expert'!K$8","v":0},{"$f":"Plantlist!$G41*'Production list'!N42*'Other input expert'!L$4*'Other input expert'!L$8","v":0},{"$f":"Plantlist!$G41*'Production list'!O42*'Other input expert'!M$4*'Other input expert'!M$8","v":0},null,{"$f":"C41*'Other input expert'!B$5","v":0},{"$f":"D41*'Other input expert'!C$5","v":0},{"$f":"E41*'Other input expert'!D$5","v":0},{"$f":"F41*'Other input expert'!E$5","v":0},{"$f":"G41*'Other input expert'!F$5","v":0},{"$f":"H41*'Other input expert'!G$5","v":0},{"$f":"I41*'Other input expert'!H$5","v":0},{"$f":"J41*'Other input expert'!I$5","v":0},{"$f":"K41*'Other input expert'!J$5","v":0},{"$f":"L41*'Other input expert'!K$5","v":0},{"$f":"M41*'Other input expert'!L$5","v":0},{"$f":"N41*'Other input expert'!M$5","v":0},null,{"$f":"C41*(100%-'Other input expert'!B$5)","v":0},{"$f":"D41*(100%-'Other input expert'!C$5)","v":0},{"$f":"E41*(100%-'Other input expert'!D$5)","v":0},{"$f":"F41*(100%-'Other input expert'!E$5)","v":0},{"$f":"G41*(100%-'Other input expert'!F$5)","v":0},{"$f":"H41*(100%-'Other input expert'!G$5)","v":0},{"$f":"I41*(100%-'Other input expert'!H$5)","v":0},{"$f":"J41*(100%-'Other input expert'!I$5)","v":0},{"$f":"K41*(100%-'Other input expert'!J$5)","v":0},{"$f":"L41*(100%-'Other input expert'!K$5)","v":0},{"$f":"M41*(100%-'Other input expert'!L$5)","v":0},{"$f":"N41*(100%-'Other input expert'!M$5)","v":0},null,{"$f":"P41*'Other input expert'!B$12*'Sales price per sales channel'!$G41*'Other input expert'!B$6","v":0},{"$f":"Q41*'Other input expert'!C$12*'Sales price per sales channel'!$G41*'Other input expert'!C$6","v":0},{"$f":"R41*'Other input expert'!D$12*'Sales price per sales channel'!$G41*'Other input expert'!D$6","v":0},{"$f":"S41*'Other input expert'!E$12*'Sales price per sales channel'!$G41*'Other input expert'!E$6","v":0},{"$f":"T41*'Other input expert'!F$12*'Sales price per sales channel'!$G41*'Other input expert'!F$6","v":0},{"$f":"U41*'Other input expert'!G$12*'Sales price per sales channel'!$G41*'Other input expert'!G$6","v":0},{"$f":"V41*'Other input expert'!H$12*'Sales price per sales channel'!$G41*'Other input expert'!H$6","v":0},{"$f":"W41*'Other input expert'!I$12*'Sales price per sales channel'!$G41*'Other input expert'!I$6","v":0},{"$f":"X41*'Other input expert'!J$12*'Sales price per sales channel'!$G41*'Other input expert'!J$6","v":0},{"$f":"Y41*'Other input expert'!K$12*'Sales price per sales channel'!$G41*'Other input expert'!K$6","v":0},{"$f":"Z41*'Other input expert'!L$12*'Sales price per sales channel'!$G41*'Other input expert'!L$6","v":0},{"$f":"AA41*'Other input expert'!M$12*'Sales price per sales channel'!$G41*'Other input expert'!M$6","v":0},null,{"$f":"P41*'Other input expert'!B$13*'Sales price per sales channel'!$H41*'Other input expert'!B$6","v":0},{"$f":"Q41*'Other input expert'!C$13*'Sales price per sales channel'!$H41*'Other input expert'!C$6","v":0},{"$f":"R41*'Other input expert'!D$13*'Sales price per sales channel'!$H41*'Other input expert'!D$6","v":0},{"$f":"S41*'Other input expert'!E$13*'Sales price per sales channel'!$H41*'Other input expert'!E$6","v":0},{"$f":"T41*'Other input expert'!F$13*'Sales price per sales channel'!$H41*'Other input expert'!F$6","v":0},{"$f":"U41*'Other input expert'!G$13*'Sales price per sales channel'!$H41*'Other input expert'!G$6","v":0},{"$f":"V41*'Other input expert'!H$13*'Sales price per sales channel'!$H41*'Other input expert'!H$6","v":0},{"$f":"W41*'Other input expert'!I$13*'Sales price per sales channel'!$H41*'Other input expert'!I$6","v":0},{"$f":"X41*'Other input expert'!J$13*'Sales price per sales channel'!$H41*'Other input expert'!J$6","v":0},{"$f":"Y41*'Other input expert'!K$13*'Sales price per sales channel'!$H41*'Other input expert'!K$6","v":0},{"$f":"Z41*'Other input expert'!L$13*'Sales price per sales channel'!$H41*'Other input expert'!L$6","v":0},{"$f":"AA41*'Other input expert'!M$13*'Sales price per sales channel'!$H41*'Other input expert'!M$6","v":0},null,{"$f":"P41*'Other input expert'!B$14*'Sales price per sales channel'!$I41*'Other input expert'!B$6","v":0},{"$f":"Q41*'Other input expert'!C$14*'Sales price per sales channel'!$I41*'Other input expert'!C$6","v":0},{"$f":"R41*'Other input expert'!D$14*'Sales price per sales channel'!$I41*'Other input expert'!D$6","v":0},{"$f":"S41*'Other input expert'!E$14*'Sales price per sales channel'!$I41*'Other input expert'!E$6","v":0},{"$f":"T41*'Other input expert'!F$14*'Sales price per sales channel'!$I41*'Other input expert'!F$6","v":0},{"$f":"U41*'Other input expert'!G$14*'Sales price per sales channel'!$I41*'Other input expert'!G$6","v":0},{"$f":"V41*'Other input expert'!H$14*'Sales price per sales channel'!$I41*'Other input expert'!H$6","v":0},{"$f":"W41*'Other input expert'!I$14*'Sales price per sales channel'!$I41*'Other input expert'!I$6","v":0},{"$f":"X41*'Other input expert'!J$14*'Sales price per sales channel'!$I41*'Other input expert'!J$6","v":0},{"$f":"Y41*'Other input expert'!K$14*'Sales price per sales channel'!$I41*'Other input expert'!K$6","v":0},{"$f":"Z41*'Other input expert'!L$14*'Sales price per sales channel'!$I41*'Other input expert'!L$6","v":0},{"$f":"AA41*'Other input expert'!M$14*'Sales price per sales channel'!$I41*'Other input expert'!M$6","v":0},null,{"$f":"AC41*'Other input expert'!B$12*'Sales price per sales channel'!$G41*'Other input expert'!B$7","v":0},{"$f":"AD41*'Other input expert'!C$12*'Sales price per sales channel'!$G41*'Other input expert'!C$7","v":0},{"$f":"AE41*'Other input expert'!D$12*'Sales price per sales channel'!$G41*'Other input expert'!D$7","v":0},{"$f":"AF41*'Other input expert'!E$12*'Sales price per sales channel'!$G41*'Other input expert'!E$7","v":0},{"$f":"AG41*'Other input expert'!F$12*'Sales price per sales channel'!$G41*'Other input expert'!F$7","v":0},{"$f":"AH41*'Other input expert'!G$12*'Sales price per sales channel'!$G41*'Other input expert'!G$7","v":0},{"$f":"AI41*'Other input expert'!H$12*'Sales price per sales channel'!$G41*'Other input expert'!H$7","v":0},{"$f":"AJ41*'Other input expert'!I$12*'Sales price per sales channel'!$G41*'Other input expert'!I$7","v":0},{"$f":"AK41*'Other input expert'!J$12*'Sales price per sales channel'!$G41*'Other input expert'!J$7","v":0},{"$f":"AL41*'Other input expert'!K$12*'Sales price per sales channel'!$G41*'Other input expert'!K$7","v":0},{"$f":"AM41*'Other input expert'!L$12*'Sales price per sales channel'!$G41*'Other input expert'!L$7","v":0},{"$f":"AN41*'Other input expert'!M$12*'Sales price per sales channel'!$G41*'Other input expert'!M$7","v":0},null,{"$f":"AC41*'Other input expert'!B$13*'Sales price per sales channel'!$H41*'Other input expert'!B$7","v":0},{"$f":"AD41*'Other input expert'!C$13*'Sales price per sales channel'!$H41*'Other input expert'!C$7","v":0},{"$f":"AE41*'Other input expert'!D$13*'Sales price per sales channel'!$H41*'Other input expert'!D$7","v":0},{"$f":"AF41*'Other input expert'!E$13*'Sales price per sales channel'!$H41*'Other input expert'!E$7","v":0},{"$f":"AG41*'Other input expert'!F$13*'Sales price per sales channel'!$H41*'Other input expert'!F$7","v":0},{"$f":"AH41*'Other input expert'!G$13*'Sales price per sales channel'!$H41*'Other input expert'!G$7","v":0},{"$f":"AI41*'Other input expert'!H$13*'Sales price per sales channel'!$H41*'Other input expert'!H$7","v":0},{"$f":"AJ41*'Other input expert'!I$13*'Sales price per sales channel'!$H41*'Other input expert'!I$7","v":0},{"$f":"AK41*'Other input expert'!J$13*'Sales price per sales channel'!$H41*'Other input expert'!J$7","v":0},{"$f":"AL41*'Other input expert'!K$13*'Sales price per sales channel'!$H41*'Other input expert'!K$7","v":0},{"$f":"AM41*'Other input expert'!L$13*'Sales price per sales channel'!$H41*'Other input expert'!L$7","v":0},{"$f":"AN41*'Other input expert'!M$13*'Sales price per sales channel'!$H41*'Other input expert'!M$7","v":0},null,{"$f":"AC41*'Other input expert'!B$14*'Sales price per sales channel'!$I41*'Other input expert'!B$7","v":0},{"$f":"AD41*'Other input expert'!C$14*'Sales price per sales channel'!$I41*'Other input expert'!C$7","v":0},{"$f":"AE41*'Other input expert'!D$14*'Sales price per sales channel'!$I41*'Other input expert'!D$7","v":0},{"$f":"AF41*'Other input expert'!E$14*'Sales price per sales channel'!$I41*'Other input expert'!E$7","v":0},{"$f":"AG41*'Other input expert'!F$14*'Sales price per sales channel'!$I41*'Other input expert'!F$7","v":0},{"$f":"AH41*'Other input expert'!G$14*'Sales price per sales channel'!$I41*'Other input expert'!G$7","v":0},{"$f":"AI41*'Other input expert'!H$14*'Sales price per sales channel'!$I41*'Other input expert'!H$7","v":0},{"$f":"AJ41*'Other input expert'!I$14*'Sales price per sales channel'!$I41*'Other input expert'!I$7","v":0},{"$f":"AK41*'Other input expert'!J$14*'Sales price per sales channel'!$I41*'Other input expert'!J$7","v":0},{"$f":"AL41*'Other input expert'!K$14*'Sales price per sales channel'!$I41*'Other input expert'!K$7","v":0},{"$f":"AM41*'Other input expert'!L$14*'Sales price per sales channel'!$I41*'Other input expert'!L$7","v":0},{"$f":"AN41*'Other input expert'!M$14*'Sales price per sales channel'!$I41*'Other input expert'!M$7","v":0}]
["Capparis Spinosa","Caper",{"$f":"Plantlist!$G42*'Production list'!D43*'Other input expert'!B$4*'Other input expert'!B$8","v":0},{"$f":"Plantlist!$G42*'Production list'!E43*'Other input expert'!C$4*'Other input expert'!C$8","v":0},{"$f":"Plantlist!$G42*'Production list'!F43*'Other input expert'!D$4*'Other input expert'!D$8","v":0},{"$f":"Plantlist!$G42*'Production list'!G43*'Other input expert'!E$4*'Other input expert'!E$8","v":0},{"$f":"Plantlist!$G42*'Production list'!H43*'Other input expert'!F$4*'Other input expert'!F$8","v":0},{"$f":"Plantlist!$G42*'Production list'!I43*'Other input expert'!G$4*'Other input expert'!G$8","v":0},{"$f":"Plantlist!$G42*'Production list'!J43*'Other input expert'!H$4*'Other input expert'!H$8","v":0},{"$f":"Plantlist!$G42*'Production list'!K43*'Other input expert'!I$4*'Other input expert'!I$8","v":0},{"$f":"Plantlist!$G42*'Production list'!L43*'Other input expert'!J$4*'Other input expert'!J$8","v":0},{"$f":"Plantlist!$G42*'Production list'!M43*'Other input expert'!K$4*'Other input expert'!K$8","v":0},{"$f":"Plantlist!$G42*'Production list'!N43*'Other input expert'!L$4*'Other input expert'!L$8","v":0},{"$f":"Plantlist!$G42*'Production list'!O43*'Other input expert'!M$4*'Other input expert'!M$8","v":0},null,{"$f":"C42*'Other input expert'!B$5","v":0},{"$f":"D42*'Other input expert'!C$5","v":0},{"$f":"E42*'Other input expert'!D$5","v":0},{"$f":"F42*'Other input expert'!E$5","v":0},{"$f":"G42*'Other input expert'!F$5","v":0},{"$f":"H42*'Other input expert'!G$5","v":0},{"$f":"I42*'Other input expert'!H$5","v":0},{"$f":"J42*'Other input expert'!I$5","v":0},{"$f":"K42*'Other input expert'!J$5","v":0},{"$f":"L42*'Other input expert'!K$5","v":0},{"$f":"M42*'Other input expert'!L$5","v":0},{"$f":"N42*'Other input expert'!M$5","v":0},null,{"$f":"C42*(100%-'Other input expert'!B$5)","v":0},{"$f":"D42*(100%-'Other input expert'!C$5)","v":0},{"$f":"E42*(100%-'Other input expert'!D$5)","v":0},{"$f":"F42*(100%-'Other input expert'!E$5)","v":0},{"$f":"G42*(100%-'Other input expert'!F$5)","v":0},{"$f":"H42*(100%-'Other input expert'!G$5)","v":0},{"$f":"I42*(100%-'Other input expert'!H$5)","v":0},{"$f":"J42*(100%-'Other input expert'!I$5)","v":0},{"$f":"K42*(100%-'Other input expert'!J$5)","v":0},{"$f":"L42*(100%-'Other input expert'!K$5)","v":0},{"$f":"M42*(100%-'Other input expert'!L$5)","v":0},{"$f":"N42*(100%-'Other input expert'!M$5)","v":0},null,{"$f":"P42*'Other input expert'!B$12*'Sales price per sales channel'!$G42*'Other input expert'!B$6","v":0},{"$f":"Q42*'Other input expert'!C$12*'Sales price per sales channel'!$G42*'Other input expert'!C$6","v":0},{"$f":"R42*'Other input expert'!D$12*'Sales price per sales channel'!$G42*'Other input expert'!D$6","v":0},{"$f":"S42*'Other input expert'!E$12*'Sales price per sales channel'!$G42*'Other input expert'!E$6","v":0},{"$f":"T42*'Other input expert'!F$12*'Sales price per sales channel'!$G42*'Other input expert'!F$6","v":0},{"$f":"U42*'Other input expert'!G$12*'Sales price per sales channel'!$G42*'Other input expert'!G$6","v":0},{"$f":"V42*'Other input expert'!H$12*'Sales price per sales channel'!$G42*'Other input expert'!H$6","v":0},{"$f":"W42*'Other input expert'!I$12*'Sales price per sales channel'!$G42*'Other input expert'!I$6","v":0},{"$f":"X42*'Other input expert'!J$12*'Sales price per sales channel'!$G42*'Other input expert'!J$6","v":0},{"$f":"Y42*'Other input expert'!K$12*'Sales price per sales channel'!$G42*'Other input expert'!K$6","v":0},{"$f":"Z42*'Other input expert'!L$12*'Sales price per sales channel'!$G42*'Other input expert'!L$6","v":0},{"$f":"AA42*'Other input expert'!M$12*'Sales price per sales channel'!$G42*'Other input expert'!M$6","v":0},null,{"$f":"P42*'Other input expert'!B$13*'Sales price per sales channel'!$H42*'Other input expert'!B$6","v":0},{"$f":"Q42*'Other input expert'!C$13*'Sales price per sales channel'!$H42*'Other input expert'!C$6","v":0},{"$f":"R42*'Other input expert'!D$13*'Sales price per sales channel'!$H42*'Other input expert'!D$6","v":0},{"$f":"S42*'Other input expert'!E$13*'Sales price per sales channel'!$H42*'Other input expert'!E$6","v":0},{"$f":"T42*'Other input expert'!F$13*'Sales price per sales channel'!$H42*'Other input expert'!F$6","v":0},{"$f":"U42*'Other input expert'!G$13*'Sales price per sales channel'!$H42*'Other input expert'!G$6","v":0},{"$f":"V42*'Other input expert'!H$13*'Sales price per sales channel'!$H42*'Other input expert'!H$6","v":0},{"$f":"W42*'Other input expert'!I$13*'Sales price per sales channel'!$H42*'Other input expert'!I$6","v":0},{"$f":"X42*'Other input expert'!J$13*'Sales price per sales channel'!$H42*'Other input expert'!J$6","v":0},{"$f":"Y42*'Other input expert'!K$13*'Sales price per sales channel'!$H42*'Other input expert'!K$6","v":0},{"$f":"Z42*'Other input expert'!L$13*'Sales price per sales channel'!$H42*'Other input expert'!L$6","v":0},{"$f":"AA42*'Other input expert'!M$13*'Sales price per sales channel'!$H42*'Other input expert'!M$6","v":0},null,{"$f":"P42*'Other input expert'!B$14*'Sales price per sales channel'!$I42*'Other input expert'!B$6","v":0},{"$f":"Q42*'Other input expert'!C$14*'Sales price per sales channel'!$I42*'Other input expert'!C$6","v":0},{"$f":"R42*'Other input expert'!D$14*'Sales price per sales channel'!$I42*'Other input expert'!D$6","v":0},{"$f":"S42*'Other input expert'!E$14*'Sales price per sales channel'!$I42*'Other input expert'!E$6","v":0},{"$f":"T42*'Other input expert'!F$14*'Sales price per sales channel'!$I42*'Other input expert'!F$6","v":0},{"$f":"U42*'Other input expert'!G$14*'Sales price per sales channel'!$I42*'Other input expert'!G$6","v":0},{"$f":"V42*'Other input expert'!H$14*'Sales price per sales channel'!$I42*'Other input expert'!H$6","v":0},{"$f":"W42*'Other input expert'!I$14*'Sales price per sales channel'!$I42*'Other input expert'!I$6","v":0},{"$f":"X42*'Other input expert'!J$14*'Sales price per sales channel'!$I42*'Other input expert'!J$6","v":0},{"$f":"Y42*'Other input expert'!K$14*'Sales price per sales channel'!$I42*'Other input expert'!K$6","v":0},{"$f":"Z42*'Other input expert'!L$14*'Sales price per sales channel'!$I42*'Other input expert'!L$6","v":0},{"$f":"AA42*'Other input expert'!M$14*'Sales price per sales channel'!$I42*'Other input expert'!M$6","v":0},null,{"$f":"AC42*'Other input expert'!B$12*'Sales price per sales channel'!$G42*'Other input expert'!B$7","v":0},{"$f":"AD42*'Other input expert'!C$12*'Sales price per sales channel'!$G42*'Other input expert'!C$7","v":0},{"$f":"AE42*'Other input expert'!D$12*'Sales price per sales channel'!$G42*'Other input expert'!D$7","v":0},{"$f":"AF42*'Other input expert'!E$12*'Sales price per sales channel'!$G42*'Other input expert'!E$7","v":0},{"$f":"AG42*'Other input expert'!F$12*'Sales price per sales channel'!$G42*'Other input expert'!F$7","v":0},{"$f":"AH42*'Other input expert'!G$12*'Sales price per sales channel'!$G42*'Other input expert'!G$7","v":0},{"$f":"AI42*'Other input expert'!H$12*'Sales price per sales channel'!$G42*'Other input expert'!H$7","v":0},{"$f":"AJ42*'Other input expert'!I$12*'Sales price per sales channel'!$G42*'Other input expert'!I$7","v":0},{"$f":"AK42*'Other input expert'!J$12*'Sales price per sales channel'!$G42*'Other input expert'!J$7","v":0},{"$f":"AL42*'Other input expert'!K$12*'Sales price per sales channel'!$G42*'Other input expert'!K$7","v":0},{"$f":"AM42*'Other input expert'!L$12*'Sales price per sales channel'!$G42*'Other input expert'!L$7","v":0},{"$f":"AN42*'Other input expert'!M$12*'Sales price per sales channel'!$G42*'Other input expert'!M$7","v":0},null,{"$f":"AC42*'Other input expert'!B$13*'Sales price per sales channel'!$H42*'Other input expert'!B$7","v":0},{"$f":"AD42*'Other input expert'!C$13*'Sales price per sales channel'!$H42*'Other input expert'!C$7","v":0},{"$f":"AE42*'Other input expert'!D$13*'Sales price per sales channel'!$H42*'Other input expert'!D$7","v":0},{"$f":"AF42*'Other input expert'!E$13*'Sales price per sales channel'!$H42*'Other input expert'!E$7","v":0},{"$f":"AG42*'Other input expert'!F$13*'Sales price per sales channel'!$H42*'Other input expert'!F$7","v":0},{"$f":"AH42*'Other input expert'!G$13*'Sales price per sales channel'!$H42*'Other input expert'!G$7","v":0},{"$f":"AI42*'Other input expert'!H$13*'Sales price per sales channel'!$H42*'Other input expert'!H$7","v":0},{"$f":"AJ42*'Other input expert'!I$13*'Sales price per sales channel'!$H42*'Other input expert'!I$7","v":0},{"$f":"AK42*'Other input expert'!J$13*'Sales price per sales channel'!$H42*'Other input expert'!J$7","v":0},{"$f":"AL42*'Other input expert'!K$13*'Sales price per sales channel'!$H42*'Other input expert'!K$7","v":0},{"$f":"AM42*'Other input expert'!L$13*'Sales price per sales channel'!$H42*'Other input expert'!L$7","v":0},{"$f":"AN42*'Other input expert'!M$13*'Sales price per sales channel'!$H42*'Other input expert'!M$7","v":0},null,{"$f":"AC42*'Other input expert'!B$14*'Sales price per sales channel'!$I42*'Other input expert'!B$7","v":0},{"$f":"AD42*'Other input expert'!C$14*'Sales price per sales channel'!$I42*'Other input expert'!C$7","v":0},{"$f":"AE42*'Other input expert'!D$14*'Sales price per sales channel'!$I42*'Other input expert'!D$7","v":0},{"$f":"AF42*'Other input expert'!E$14*'Sales price per sales channel'!$I42*'Other input expert'!E$7","v":0},{"$f":"AG42*'Other input expert'!F$14*'Sales price per sales channel'!$I42*'Other input expert'!F$7","v":0},{"$f":"AH42*'Other input expert'!G$14*'Sales price per sales channel'!$I42*'Other input expert'!G$7","v":0},{"$f":"AI42*'Other input expert'!H$14*'Sales price per sales channel'!$I42*'Other input expert'!H$7","v":0},{"$f":"AJ42*'Other input expert'!I$14*'Sales price per sales channel'!$I42*'Other input expert'!I$7","v":0},{"$f":"AK42*'Other input expert'!J$14*'Sales price per sales channel'!$I42*'Other input expert'!J$7","v":0},{"$f":"AL42*'Other input expert'!K$14*'Sales price per sales channel'!$I42*'Other input expert'!K$7","v":0},{"$f":"AM42*'Other input expert'!L$14*'Sales price per sales channel'!$I42*'Other input expert'!L$7","v":0},{"$f":"AN42*'Other input expert'!M$14*'Sales price per sales channel'!$I42*'Other input expert'!M$7","v":0}]
["Caragana arborecens","Siberian pea tree",{"$f":"Plantlist!$G43*'Production list'!D44*'Other input expert'!B$4*'Other input expert'!B$8","v":0},{"$f":"Plantlist!$G43*'Production list'!E44*'Other input expert'!C$4*'Other input expert'!C$8","v":0},{"$f":"Plantlist!$G43*'Production list'!F44*'Other input expert'!D$4*'Other input expert'!D$8","v":0},{"$f":"Plantlist!$G43*'Production list'!G44*'Other input expert'!E$4*'Other input expert'!E$8","v":0},{"$f":"Plantlist!$G43*'Production list'!H44*'Other input expert'!F$4*'Other input expert'!F$8","v":0},{"$f":"Plantlist!$G43*'Production list'!I44*'Other input expert'!G$4*'Other input expert'!G$8","v":0},{"$f":"Plantlist!$G43*'Production list'!J44*'Other input expert'!H$4*'Other input expert'!H$8","v":0},{"$f":"Plantlist!$G43*'Production list'!K44*'Other input expert'!I$4*'Other input expert'!I$8","v":0},{"$f":"Plantlist!$G43*'Production list'!L44*'Other input expert'!J$4*'Other input expert'!J$8","v":0},{"$f":"Plantlist!$G43*'Production list'!M44*'Other input expert'!K$4*'Other input expert'!K$8","v":0},{"$f":"Plantlist!$G43*'Production list'!N44*'Other input expert'!L$4*'Other input expert'!L$8","v":0},{"$f":"Plantlist!$G43*'Production list'!O44*'Other input expert'!M$4*'Other input expert'!M$8","v":0},null,{"$f":"C43*'Other input expert'!B$5","v":0},{"$f":"D43*'Other input expert'!C$5","v":0},{"$f":"E43*'Other input expert'!D$5","v":0},{"$f":"F43*'Other input expert'!E$5","v":0},{"$f":"G43*'Other input expert'!F$5","v":0},{"$f":"H43*'Other input expert'!G$5","v":0},{"$f":"I43*'Other input expert'!H$5","v":0},{"$f":"J43*'Other input expert'!I$5","v":0},{"$f":"K43*'Other input expert'!J$5","v":0},{"$f":"L43*'Other input expert'!K$5","v":0},{"$f":"M43*'Other input expert'!L$5","v":0},{"$f":"N43*'Other input expert'!M$5","v":0},null,{"$f":"C43*(100%-'Other input expert'!B$5)","v":0},{"$f":"D43*(100%-'Other input expert'!C$5)","v":0},{"$f":"E43*(100%-'Other input expert'!D$5)","v":0},{"$f":"F43*(100%-'Other input expert'!E$5)","v":0},{"$f":"G43*(100%-'Other input expert'!F$5)","v":0},{"$f":"H43*(100%-'Other input expert'!G$5)","v":0},{"$f":"I43*(100%-'Other input expert'!H$5)","v":0},{"$f":"J43*(100%-'Other input expert'!I$5)","v":0},{"$f":"K43*(100%-'Other input expert'!J$5)","v":0},{"$f":"L43*(100%-'Other input expert'!K$5)","v":0},{"$f":"M43*(100%-'Other input expert'!L$5)","v":0},{"$f":"N43*(100%-'Other input expert'!M$5)","v":0},null,{"$f":"P43*'Other input expert'!B$12*'Sales price per sales channel'!$G43*'Other input expert'!B$6","v":0},{"$f":"Q43*'Other input expert'!C$12*'Sales price per sales channel'!$G43*'Other input expert'!C$6","v":0},{"$f":"R43*'Other input expert'!D$12*'Sales price per sales channel'!$G43*'Other input expert'!D$6","v":0},{"$f":"S43*'Other input expert'!E$12*'Sales price per sales channel'!$G43*'Other input expert'!E$6","v":0},{"$f":"T43*'Other input expert'!F$12*'Sales price per sales channel'!$G43*'Other input expert'!F$6","v":0},{"$f":"U43*'Other input expert'!G$12*'Sales price per sales channel'!$G43*'Other input expert'!G$6","v":0},{"$f":"V43*'Other input expert'!H$12*'Sales price per sales channel'!$G43*'Other input expert'!H$6","v":0},{"$f":"W43*'Other input expert'!I$12*'Sales price per sales channel'!$G43*'Other input expert'!I$6","v":0},{"$f":"X43*'Other input expert'!J$12*'Sales price per sales channel'!$G43*'Other input expert'!J$6","v":0},{"$f":"Y43*'Other input expert'!K$12*'Sales price per sales channel'!$G43*'Other input expert'!K$6","v":0},{"$f":"Z43*'Other input expert'!L$12*'Sales price per sales channel'!$G43*'Other input expert'!L$6","v":0},{"$f":"AA43*'Other input expert'!M$12*'Sales price per sales channel'!$G43*'Other input expert'!M$6","v":0},null,{"$f":"P43*'Other input expert'!B$13*'Sales price per sales channel'!$H43*'Other input expert'!B$6","v":0},{"$f":"Q43*'Other input expert'!C$13*'Sales price per sales channel'!$H43*'Other input expert'!C$6","v":0},{"$f":"R43*'Other input expert'!D$13*'Sales price per sales channel'!$H43*'Other input expert'!D$6","v":0},{"$f":"S43*'Other input expert'!E$13*'Sales price per sales channel'!$H43*'Other input expert'!E$6","v":0},{"$f":"T43*'Other input expert'!F$13*'Sales price per sales channel'!$H43*'Other input expert'!F$6","v":0},{"$f":"U43*'Other input expert'!G$13*'Sales price per sales channel'!$H43*'Other input expert'!G$6","v":0},{"$f":"V43*'Other input expert'!H$13*'Sales price per sales channel'!$H43*'Other input expert'!H$6","v":0},{"$f":"W43*'Other input expert'!I$13*'Sales price per sales channel'!$H43*'Other input expert'!I$6","v":0},{"$f":"X43*'Other input expert'!J$13*'Sales price per sales channel'!$H43*'Other input expert'!J$6","v":0},{"$f":"Y43*'Other input expert'!K$13*'Sales price per sales channel'!$H43*'Other input expert'!K$6","v":0},{"$f":"Z43*'Other input expert'!L$13*'Sales price per sales channel'!$H43*'Other input expert'!L$6","v":0},{"$f":"AA43*'Other input expert'!M$13*'Sales price per sales channel'!$H43*'Other input expert'!M$6","v":0},null,{"$f":"P43*'Other input expert'!B$14*'Sales price per sales channel'!$I43*'Other input expert'!B$6","v":0},{"$f":"Q43*'Other input expert'!C$14*'Sales price per sales channel'!$I43*'Other input expert'!C$6","v":0},{"$f":"R43*'Other input expert'!D$14*'Sales price per sales channel'!$I43*'Other input expert'!D$6","v":0},{"$f":"S43*'Other input expert'!E$14*'Sales price per sales channel'!$I43*'Other input expert'!E$6","v":0},{"$f":"T43*'Other input expert'!F$14*'Sales price per sales channel'!$I43*'Other input expert'!F$6","v":0},{"$f":"U43*'Other input expert'!G$14*'Sales price per sales channel'!$I43*'Other input expert'!G$6","v":0},{"$f":"V43*'Other input expert'!H$14*'Sales price per sales channel'!$I43*'Other input expert'!H$6","v":0},{"$f":"W43*'Other input expert'!I$14*'Sales price per sales channel'!$I43*'Other input expert'!I$6","v":0},{"$f":"X43*'Other input expert'!J$14*'Sales price per sales channel'!$I43*'Other input expert'!J$6","v":0},{"$f":"Y43*'Other input expert'!K$14*'Sales price per sales channel'!$I43*'Other input expert'!K$6","v":0},{"$f":"Z43*'Other input expert'!L$14*'Sales price per sales channel'!$I43*'Other input expert'!L$6","v":0},{"$f":"AA43*'Other input expert'!M$14*'Sales price per sales channel'!$I43*'Other input expert'!M$6","v":0},null,{"$f":"AC43*'Other input expert'!B$12*'Sales price per sales channel'!$G43*'Other input expert'!B$7","v":0},{"$f":"AD43*'Other input expert'!C$12*'Sales price per sales channel'!$G43*'Other input expert'!C$7","v":0},{"$f":"AE43*'Other input expert'!D$12*'Sales price per sales channel'!$G43*'Other input expert'!D$7","v":0},{"$f":"AF43*'Other input expert'!E$12*'Sales price per sales channel'!$G43*'Other input expert'!E$7","v":0},{"$f":"AG43*'Other input expert'!F$12*'Sales price per sales channel'!$G43*'Other input expert'!F$7","v":0},{"$f":"AH43*'Other input expert'!G$12*'Sales price per sales channel'!$G43*'Other input expert'!G$7","v":0},{"$f":"AI43*'Other input expert'!H$12*'Sales price per sales channel'!$G43*'Other input expert'!H$7","v":0},{"$f":"AJ43*'Other input expert'!I$12*'Sales price per sales channel'!$G43*'Other input expert'!I$7","v":0},{"$f":"AK43*'Other input expert'!J$12*'Sales price per sales channel'!$G43*'Other input expert'!J$7","v":0},{"$f":"AL43*'Other input expert'!K$12*'Sales price per sales channel'!$G43*'Other input expert'!K$7","v":0},{"$f":"AM43*'Other input expert'!L$12*'Sales price per sales channel'!$G43*'Other input expert'!L$7","v":0},{"$f":"AN43*'Other input expert'!M$12*'Sales price per sales channel'!$G43*'Other input expert'!M$7","v":0},null,{"$f":"AC43*'Other input expert'!B$13*'Sales price per sales channel'!$H43*'Other input expert'!B$7","v":0},{"$f":"AD43*'Other input expert'!C$13*'Sales price per sales channel'!$H43*'Other input expert'!C$7","v":0},{"$f":"AE43*'Other input expert'!D$13*'Sales price per sales channel'!$H43*'Other input expert'!D$7","v":0},{"$f":"AF43*'Other input expert'!E$13*'Sales price per sales channel'!$H43*'Other input expert'!E$7","v":0},{"$f":"AG43*'Other input expert'!F$13*'Sales price per sales channel'!$H43*'Other input expert'!F$7","v":0},{"$f":"AH43*'Other input expert'!G$13*'Sales price per sales channel'!$H43*'Other input expert'!G$7","v":0},{"$f":"AI43*'Other input expert'!H$13*'Sales price per sales channel'!$H43*'Other input expert'!H$7","v":0},{"$f":"AJ43*'Other input expert'!I$13*'Sales price per sales channel'!$H43*'Other input expert'!I$7","v":0},{"$f":"AK43*'Other input expert'!J$13*'Sales price per sales channel'!$H43*'Other input expert'!J$7","v":0},{"$f":"AL43*'Other input expert'!K$13*'Sales price per sales channel'!$H43*'Other input expert'!K$7","v":0},{"$f":"AM43*'Other input expert'!L$13*'Sales price per sales channel'!$H43*'Other input expert'!L$7","v":0},{"$f":"AN43*'Other input expert'!M$13*'Sales price per sales channel'!$H43*'Other input expert'!M$7","v":0},null,{"$f":"AC43*'Other input expert'!B$14*'Sales price per sales channel'!$I43*'Other input expert'!B$7","v":0},{"$f":"AD43*'Other input expert'!C$14*'Sales price per sales channel'!$I43*'Other input expert'!C$7","v":0},{"$f":"AE43*'Other input expert'!D$14*'Sales price per sales channel'!$I43*'Other input expert'!D$7","v":0},{"$f":"AF43*'Other input expert'!E$14*'Sales price per sales channel'!$I43*'Other input expert'!E$7","v":0},{"$f":"AG43*'Other input expert'!F$14*'Sales price per sales channel'!$I43*'Other input expert'!F$7","v":0},{"$f":"AH43*'Other input expert'!G$14*'Sales price per sales channel'!$I43*'Other input expert'!G$7","v":0},{"$f":"AI43*'Other input expert'!H$14*'Sales price per sales channel'!$I43*'Other input expert'!H$7","v":0},{"$f":"AJ43*'Other input expert'!I$14*'Sales price per sales channel'!$I43*'Other input expert'!I$7","v":0},{"$f":"AK43*'Other input expert'!J$14*'Sales price per sales channel'!$I43*'Other input expert'!J$7","v":0},{"$f":"AL43*'Other input expert'!K$14*'Sales price per sales channel'!$I43*'Other input expert'!K$7","v":0},{"$f":"AM43*'Other input expert'!L$14*'Sales price per sales channel'!$I43*'Other input expert'!L$7","v":0},{"$f":"AN43*'Other input expert'!M$14*'Sales price per sales channel'!$I43*'Other input expert'!M$7","v":0}]
["Carya illinoiensis","Pecan",{"$f":"Plantlist!$G44*'Production list'!D45*'Other input expert'!B$4*'Other input expert'!B$8","v":0},{"$f":"Plantlist!$G44*'Production list'!E45*'Other input expert'!C$4*'Other input expert'!C$8","v":0},{"$f":"Plantlist!$G44*'Production list'!F45*'Other input expert'!D$4*'Other input expert'!D$8","v":0},{"$f":"Plantlist!$G44*'Production list'!G45*'Other input expert'!E$4*'Other input expert'!E$8","v":0},{"$f":"Plantlist!$G44*'Production list'!H45*'Other input expert'!F$4*'Other input expert'!F$8","v":0},{"$f":"Plantlist!$G44*'Production list'!I45*'Other input expert'!G$4*'Other input expert'!G$8","v":0},{"$f":"Plantlist!$G44*'Production list'!J45*'Other input expert'!H$4*'Other input expert'!H$8","v":0},{"$f":"Plantlist!$G44*'Production list'!K45*'Other input expert'!I$4*'Other input expert'!I$8","v":0},{"$f":"Plantlist!$G44*'Production list'!L45*'Other input expert'!J$4*'Other input expert'!J$8","v":0},{"$f":"Plantlist!$G44*'Production list'!M45*'Other input expert'!K$4*'Other input expert'!K$8","v":0},{"$f":"Plantlist!$G44*'Production list'!N45*'Other input expert'!L$4*'Other input expert'!L$8","v":0},{"$f":"Plantlist!$G44*'Production list'!O45*'Other input expert'!M$4*'Other input expert'!M$8","v":0},null,{"$f":"C44*'Other input expert'!B$5","v":0},{"$f":"D44*'Other input expert'!C$5","v":0},{"$f":"E44*'Other input expert'!D$5","v":0},{"$f":"F44*'Other input expert'!E$5","v":0},{"$f":"G44*'Other input expert'!F$5","v":0},{"$f":"H44*'Other input expert'!G$5","v":0},{"$f":"I44*'Other input expert'!H$5","v":0},{"$f":"J44*'Other input expert'!I$5","v":0},{"$f":"K44*'Other input expert'!J$5","v":0},{"$f":"L44*'Other input expert'!K$5","v":0},{"$f":"M44*'Other input expert'!L$5","v":0},{"$f":"N44*'Other input expert'!M$5","v":0},null,{"$f":"C44*(100%-'Other input expert'!B$5)","v":0},{"$f":"D44*(100%-'Other input expert'!C$5)","v":0},{"$f":"E44*(100%-'Other input expert'!D$5)","v":0},{"$f":"F44*(100%-'Other input expert'!E$5)","v":0},{"$f":"G44*(100%-'Other input expert'!F$5)","v":0},{"$f":"H44*(100%-'Other input expert'!G$5)","v":0},{"$f":"I44*(100%-'Other input expert'!H$5)","v":0},{"$f":"J44*(100%-'Other input expert'!I$5)","v":0},{"$f":"K44*(100%-'Other input expert'!J$5)","v":0},{"$f":"L44*(100%-'Other input expert'!K$5)","v":0},{"$f":"M44*(100%-'Other input expert'!L$5)","v":0},{"$f":"N44*(100%-'Other input expert'!M$5)","v":0},null,{"$f":"P44*'Other input expert'!B$12*'Sales price per sales channel'!$G44*'Other input expert'!B$6","v":0},{"$f":"Q44*'Other input expert'!C$12*'Sales price per sales channel'!$G44*'Other input expert'!C$6","v":0},{"$f":"R44*'Other input expert'!D$12*'Sales price per sales channel'!$G44*'Other input expert'!D$6","v":0},{"$f":"S44*'Other input expert'!E$12*'Sales price per sales channel'!$G44*'Other input expert'!E$6","v":0},{"$f":"T44*'Other input expert'!F$12*'Sales price per sales channel'!$G44*'Other input expert'!F$6","v":0},{"$f":"U44*'Other input expert'!G$12*'Sales price per sales channel'!$G44*'Other input expert'!G$6","v":0},{"$f":"V44*'Other input expert'!H$12*'Sales price per sales channel'!$G44*'Other input expert'!H$6","v":0},{"$f":"W44*'Other input expert'!I$12*'Sales price per sales channel'!$G44*'Other input expert'!I$6","v":0},{"$f":"X44*'Other input expert'!J$12*'Sales price per sales channel'!$G44*'Other input expert'!J$6","v":0},{"$f":"Y44*'Other input expert'!K$12*'Sales price per sales channel'!$G44*'Other input expert'!K$6","v":0},{"$f":"Z44*'Other input expert'!L$12*'Sales price per sales channel'!$G44*'Other input expert'!L$6","v":0},{"$f":"AA44*'Other input expert'!M$12*'Sales price per sales channel'!$G44*'Other input expert'!M$6","v":0},null,{"$f":"P44*'Other input expert'!B$13*'Sales price per sales channel'!$H44*'Other input expert'!B$6","v":0},{"$f":"Q44*'Other input expert'!C$13*'Sales price per sales channel'!$H44*'Other input expert'!C$6","v":0},{"$f":"R44*'Other input expert'!D$13*'Sales price per sales channel'!$H44*'Other input expert'!D$6","v":0},{"$f":"S44*'Other input expert'!E$13*'Sales price per sales channel'!$H44*'Other input expert'!E$6","v":0},{"$f":"T44*'Other input expert'!F$13*'Sales price per sales channel'!$H44*'Other input expert'!F$6","v":0},{"$f":"U44*'Other input expert'!G$13*'Sales price per sales channel'!$H44*'Other input expert'!G$6","v":0},{"$f":"V44*'Other input expert'!H$13*'Sales price per sales channel'!$H44*'Other input expert'!H$6","v":0},{"$f":"W44*'Other input expert'!I$13*'Sales price per sales channel'!$H44*'Other input expert'!I$6","v":0},{"$f":"X44*'Other input expert'!J$13*'Sales price per sales channel'!$H44*'Other input expert'!J$6","v":0},{"$f":"Y44*'Other input expert'!K$13*'Sales price per sales channel'!$H44*'Other input expert'!K$6","v":0},{"$f":"Z44*'Other input expert'!L$13*'Sales price per sales channel'!$H44*'Other input expert'!L$6","v":0},{"$f":"AA44*'Other input expert'!M$13*'Sales price per sales channel'!$H44*'Other input expert'!M$6","v":0},null,{"$f":"P44*'Other input expert'!B$14*'Sales price per sales channel'!$I44*'Other input expert'!B$6","v":0},{"$f":"Q44*'Other input expert'!C$14*'Sales price per sales channel'!$I44*'Other input expert'!C$6","v":0},{"$f":"R44*'Other input expert'!D$14*'Sales price per sales channel'!$I44*'Other input expert'!D$6","v":0},{"$f":"S44*'Other input expert'!E$14*'Sales price per sales channel'!$I44*'Other input expert'!E$6","v":0},{"$f":"T44*'Other input expert'!F$14*'Sales price per sales channel'!$I44*'Other input expert'!F$6","v":0},{"$f":"U44*'Other input expert'!G$14*'Sales price per sales channel'!$I44*'Other input expert'!G$6","v":0},{"$f":"V44*'Other input expert'!H$14*'Sales price per sales channel'!$I44*'Other input expert'!H$6","v":0},{"$f":"W44*'Other input expert'!I$14*'Sales price per sales channel'!$I44*'Other input expert'!I$6","v":0},{"$f":"X44*'Other input expert'!J$14*'Sales price per sales channel'!$I44*'Other input expert'!J$6","v":0},{"$f":"Y44*'Other input expert'!K$14*'Sales price per sales channel'!$I44*'Other input expert'!K$6","v":0},{"$f":"Z44*'Other input expert'!L$14*'Sales price per sales channel'!$I44*'Other input expert'!L$6","v":0},{"$f":"AA44*'Other input expert'!M$14*'Sales price per sales channel'!$I44*'Other input expert'!M$6","v":0},null,{"$f":"AC44*'Other input expert'!B$12*'Sales price per sales channel'!$G44*'Other input expert'!B$7","v":0},{"$f":"AD44*'Other input expert'!C$12*'Sales price per sales channel'!$G44*'Other input expert'!C$7","v":0},{"$f":"AE44*'Other input expert'!D$12*'Sales price per sales channel'!$G44*'Other input expert'!D$7","v":0},{"$f":"AF44*'Other input expert'!E$12*'Sales price per sales channel'!$G44*'Other input expert'!E$7","v":0},{"$f":"AG44*'Other input expert'!F$12*'Sales price per sales channel'!$G44*'Other input expert'!F$7","v":0},{"$f":"AH44*'Other input expert'!G$12*'Sales price per sales channel'!$G44*'Other input expert'!G$7","v":0},{"$f":"AI44*'Other input expert'!H$12*'Sales price per sales channel'!$G44*'Other input expert'!H$7","v":0},{"$f":"AJ44*'Other input expert'!I$12*'Sales price per sales channel'!$G44*'Other input expert'!I$7","v":0},{"$f":"AK44*'Other input expert'!J$12*'Sales price per sales channel'!$G44*'Other input expert'!J$7","v":0},{"$f":"AL44*'Other input expert'!K$12*'Sales price per sales channel'!$G44*'Other input expert'!K$7","v":0},{"$f":"AM44*'Other input expert'!L$12*'Sales price per sales channel'!$G44*'Other input expert'!L$7","v":0},{"$f":"AN44*'Other input expert'!M$12*'Sales price per sales channel'!$G44*'Other input expert'!M$7","v":0},null,{"$f":"AC44*'Other input expert'!B$13*'Sales price per sales channel'!$H44*'Other input expert'!B$7","v":0},{"$f":"AD44*'Other input expert'!C$13*'Sales price per sales channel'!$H44*'Other input expert'!C$7","v":0},{"$f":"AE44*'Other input expert'!D$13*'Sales price per sales channel'!$H44*'Other input expert'!D$7","v":0},{"$f":"AF44*'Other input expert'!E$13*'Sales price per sales channel'!$H44*'Other input expert'!E$7","v":0},{"$f":"AG44*'Other input expert'!F$13*'Sales price per sales channel'!$H44*'Other input expert'!F$7","v":0},{"$f":"AH44*'Other input expert'!G$13*'Sales price per sales channel'!$H44*'Other input expert'!G$7","v":0},{"$f":"AI44*'Other input expert'!H$13*'Sales price per sales channel'!$H44*'Other input expert'!H$7","v":0},{"$f":"AJ44*'Other input expert'!I$13*'Sales price per sales channel'!$H44*'Other input expert'!I$7","v":0},{"$f":"AK44*'Other input expert'!J$13*'Sales price per sales channel'!$H44*'Other input expert'!J$7","v":0},{"$f":"AL44*'Other input expert'!K$13*'Sales price per sales channel'!$H44*'Other input expert'!K$7","v":0},{"$f":"AM44*'Other input expert'!L$13*'Sales price per sales channel'!$H44*'Other input expert'!L$7","v":0},{"$f":"AN44*'Other input expert'!M$13*'Sales price per sales channel'!$H44*'Other input expert'!M$7","v":0},null,{"$f":"AC44*'Other input expert'!B$14*'Sales price per sales channel'!$I44*'Other input expert'!B$7","v":0},{"$f":"AD44*'Other input expert'!C$14*'Sales price per sales channel'!$I44*'Other input expert'!C$7","v":0},{"$f":"AE44*'Other input expert'!D$14*'Sales price per sales channel'!$I44*'Other input expert'!D$7","v":0},{"$f":"AF44*'Other input expert'!E$14*'Sales price per sales channel'!$I44*'Other input expert'!E$7","v":0},{"$f":"AG44*'Other input expert'!F$14*'Sales price per sales channel'!$I44*'Other input expert'!F$7","v":0},{"$f":"AH44*'Other input expert'!G$14*'Sales price per sales channel'!$I44*'Other input expert'!G$7","v":0},{"$f":"AI44*'Other input expert'!H$14*'Sales price per sales channel'!$I44*'Other input expert'!H$7","v":0},{"$f":"AJ44*'Other input expert'!I$14*'Sales price per sales channel'!$I44*'Other input expert'!I$7","v":0},{"$f":"AK44*'Other input expert'!J$14*'Sales price per sales channel'!$I44*'Other input expert'!J$7","v":0},{"$f":"AL44*'Other input expert'!K$14*'Sales price per sales channel'!$I44*'Other input expert'!K$7","v":0},{"$f":"AM44*'Other input expert'!L$14*'Sales price per sales channel'!$I44*'Other input expert'!L$7","v":0},{"$f":"AN44*'Other input expert'!M$14*'Sales price per sales channel'!$I44*'Other input expert'!M$7","v":0}]
["Carya spp","Hickory",{"$f":"Plantlist!$G45*'Production list'!D46*'Other input expert'!B$4*'Other input expert'!B$8","v":0},{"$f":"Plantlist!$G45*'Production list'!E46*'Other input expert'!C$4*'Other input expert'!C$8","v":0},{"$f":"Plantlist!$G45*'Production list'!F46*'Other input expert'!D$4*'Other input expert'!D$8","v":0},{"$f":"Plantlist!$G45*'Production list'!G46*'Other input expert'!E$4*'Other input expert'!E$8","v":0},{"$f":"Plantlist!$G45*'Production list'!H46*'Other input expert'!F$4*'Other input expert'!F$8","v":0},{"$f":"Plantlist!$G45*'Production list'!I46*'Other input expert'!G$4*'Other input expert'!G$8","v":0},{"$f":"Plantlist!$G45*'Production list'!J46*'Other input expert'!H$4*'Other input expert'!H$8","v":0},{"$f":"Plantlist!$G45*'Production list'!K46*'Other input expert'!I$4*'Other input expert'!I$8","v":0},{"$f":"Plantlist!$G45*'Production list'!L46*'Other input expert'!J$4*'Other input expert'!J$8","v":0},{"$f":"Plantlist!$G45*'Production list'!M46*'Other input expert'!K$4*'Other input expert'!K$8","v":0},{"$f":"Plantlist!$G45*'Production list'!N46*'Other input expert'!L$4*'Other input expert'!L$8","v":0},{"$f":"Plantlist!$G45*'Production list'!O46*'Other input expert'!M$4*'Other input expert'!M$8","v":0},null,{"$f":"C45*'Other input expert'!B$5","v":0},{"$f":"D45*'Other input expert'!C$5","v":0},{"$f":"E45*'Other input expert'!D$5","v":0},{"$f":"F45*'Other input expert'!E$5","v":0},{"$f":"G45*'Other input expert'!F$5","v":0},{"$f":"H45*'Other input expert'!G$5","v":0},{"$f":"I45*'Other input expert'!H$5","v":0},{"$f":"J45*'Other input expert'!I$5","v":0},{"$f":"K45*'Other input expert'!J$5","v":0},{"$f":"L45*'Other input expert'!K$5","v":0},{"$f":"M45*'Other input expert'!L$5","v":0},{"$f":"N45*'Other input expert'!M$5","v":0},null,{"$f":"C45*(100%-'Other input expert'!B$5)","v":0},{"$f":"D45*(100%-'Other input expert'!C$5)","v":0},{"$f":"E45*(100%-'Other input expert'!D$5)","v":0},{"$f":"F45*(100%-'Other input expert'!E$5)","v":0},{"$f":"G45*(100%-'Other input expert'!F$5)","v":0},{"$f":"H45*(100%-'Other input expert'!G$5)","v":0},{"$f":"I45*(100%-'Other input expert'!H$5)","v":0},{"$f":"J45*(100%-'Other input expert'!I$5)","v":0},{"$f":"K45*(100%-'Other input expert'!J$5)","v":0},{"$f":"L45*(100%-'Other input expert'!K$5)","v":0},{"$f":"M45*(100%-'Other input expert'!L$5)","v":0},{"$f":"N45*(100%-'Other input expert'!M$5)","v":0},null,{"$f":"P45*'Other input expert'!B$12*'Sales price per sales channel'!$G45*'Other input expert'!B$6","v":0},{"$f":"Q45*'Other input expert'!C$12*'Sales price per sales channel'!$G45*'Other input expert'!C$6","v":0},{"$f":"R45*'Other input expert'!D$12*'Sales price per sales channel'!$G45*'Other input expert'!D$6","v":0},{"$f":"S45*'Other input expert'!E$12*'Sales price per sales channel'!$G45*'Other input expert'!E$6","v":0},{"$f":"T45*'Other input expert'!F$12*'Sales price per sales channel'!$G45*'Other input expert'!F$6","v":0},{"$f":"U45*'Other input expert'!G$12*'Sales price per sales channel'!$G45*'Other input expert'!G$6","v":0},{"$f":"V45*'Other input expert'!H$12*'Sales price per sales channel'!$G45*'Other input expert'!H$6","v":0},{"$f":"W45*'Other input expert'!I$12*'Sales price per sales channel'!$G45*'Other input expert'!I$6","v":0},{"$f":"X45*'Other input expert'!J$12*'Sales price per sales channel'!$G45*'Other input expert'!J$6","v":0},{"$f":"Y45*'Other input expert'!K$12*'Sales price per sales channel'!$G45*'Other input expert'!K$6","v":0},{"$f":"Z45*'Other input expert'!L$12*'Sales price per sales channel'!$G45*'Other input expert'!L$6","v":0},{"$f":"AA45*'Other input expert'!M$12*'Sales price per sales channel'!$G45*'Other input expert'!M$6","v":0},null,{"$f":"P45*'Other input expert'!B$13*'Sales price per sales channel'!$H45*'Other input expert'!B$6","v":0},{"$f":"Q45*'Other input expert'!C$13*'Sales price per sales channel'!$H45*'Other input expert'!C$6","v":0},{"$f":"R45*'Other input expert'!D$13*'Sales price per sales channel'!$H45*'Other input expert'!D$6","v":0},{"$f":"S45*'Other input expert'!E$13*'Sales price per sales channel'!$H45*'Other input expert'!E$6","v":0},{"$f":"T45*'Other input expert'!F$13*'Sales price per sales channel'!$H45*'Other input expert'!F$6","v":0},{"$f":"U45*'Other input expert'!G$13*'Sales price per sales channel'!$H45*'Other input expert'!G$6","v":0},{"$f":"V45*'Other input expert'!H$13*'Sales price per sales channel'!$H45*'Other input expert'!H$6","v":0},{"$f":"W45*'Other input expert'!I$13*'Sales price per sales channel'!$H45*'Other input expert'!I$6","v":0},{"$f":"X45*'Other input expert'!J$13*'Sales price per sales channel'!$H45*'Other input expert'!J$6","v":0},{"$f":"Y45*'Other input expert'!K$13*'Sales price per sales channel'!$H45*'Other input expert'!K$6","v":0},{"$f":"Z45*'Other input expert'!L$13*'Sales price per sales channel'!$H45*'Other input expert'!L$6","v":0},{"$f":"AA45*'Other input expert'!M$13*'Sales price per sales channel'!$H45*'Other input expert'!M$6","v":0},null,{"$f":"P45*'Other input expert'!B$14*'Sales price per sales channel'!$I45*'Other input expert'!B$6","v":0},{"$f":"Q45*'Other input expert'!C$14*'Sales price per sales channel'!$I45*'Other input expert'!C$6","v":0},{"$f":"R45*'Other input expert'!D$14*'Sales price per sales channel'!$I45*'Other input expert'!D$6","v":0},{"$f":"S45*'Other input expert'!E$14*'Sales price per sales channel'!$I45*'Other input expert'!E$6","v":0},{"$f":"T45*'Other input expert'!F$14*'Sales price per sales channel'!$I45*'Other input expert'!F$6","v":0},{"$f":"U45*'Other input expert'!G$14*'Sales price per sales channel'!$I45*'Other input expert'!G$6","v":0},{"$f":"V45*'Other input expert'!H$14*'Sales price per sales channel'!$I45*'Other input expert'!H$6","v":0},{"$f":"W45*'Other input expert'!I$14*'Sales price per sales channel'!$I45*'Other input expert'!I$6","v":0},{"$f":"X45*'Other input expert'!J$14*'Sales price per sales channel'!$I45*'Other input expert'!J$6","v":0},{"$f":"Y45*'Other input expert'!K$14*'Sales price per sales channel'!$I45*'Other input expert'!K$6","v":0},{"$f":"Z45*'Other input expert'!L$14*'Sales price per sales channel'!$I45*'Other input expert'!L$6","v":0},{"$f":"AA45*'Other input expert'!M$14*'Sales price per sales channel'!$I45*'Other input expert'!M$6","v":0},null,{"$f":"AC45*'Other input expert'!B$12*'Sales price per sales channel'!$G45*'Other input expert'!B$7","v":0},{"$f":"AD45*'Other input expert'!C$12*'Sales price per sales channel'!$G45*'Other input expert'!C$7","v":0},{"$f":"AE45*'Other input expert'!D$12*'Sales price per sales channel'!$G45*'Other input expert'!D$7","v":0},{"$f":"AF45*'Other input expert'!E$12*'Sales price per sales channel'!$G45*'Other input expert'!E$7","v":0},{"$f":"AG45*'Other input expert'!F$12*'Sales price per sales channel'!$G45*'Other input expert'!F$7","v":0},{"$f":"AH45*'Other input expert'!G$12*'Sales price per sales channel'!$G45*'Other input expert'!G$7","v":0},{"$f":"AI45*'Other input expert'!H$12*'Sales price per sales channel'!$G45*'Other input expert'!H$7","v":0},{"$f":"AJ45*'Other input expert'!I$12*'Sales price per sales channel'!$G45*'Other input expert'!I$7","v":0},{"$f":"AK45*'Other input expert'!J$12*'Sales price per sales channel'!$G45*'Other input expert'!J$7","v":0},{"$f":"AL45*'Other input expert'!K$12*'Sales price per sales channel'!$G45*'Other input expert'!K$7","v":0},{"$f":"AM45*'Other input expert'!L$12*'Sales price per sales channel'!$G45*'Other input expert'!L$7","v":0},{"$f":"AN45*'Other input expert'!M$12*'Sales price per sales channel'!$G45*'Other input expert'!M$7","v":0},null,{"$f":"AC45*'Other input expert'!B$13*'Sales price per sales channel'!$H45*'Other input expert'!B$7","v":0},{"$f":"AD45*'Other input expert'!C$13*'Sales price per sales channel'!$H45*'Other input expert'!C$7","v":0},{"$f":"AE45*'Other input expert'!D$13*'Sales price per sales channel'!$H45*'Other input expert'!D$7","v":0},{"$f":"AF45*'Other input expert'!E$13*'Sales price per sales channel'!$H45*'Other input expert'!E$7","v":0},{"$f":"AG45*'Other input expert'!F$13*'Sales price per sales channel'!$H45*'Other input expert'!F$7","v":0},{"$f":"AH45*'Other input expert'!G$13*'Sales price per sales channel'!$H45*'Other input expert'!G$7","v":0},{"$f":"AI45*'Other input expert'!H$13*'Sales price per sales channel'!$H45*'Other input expert'!H$7","v":0},{"$f":"AJ45*'Other input expert'!I$13*'Sales price per sales channel'!$H45*'Other input expert'!I$7","v":0},{"$f":"AK45*'Other input expert'!J$13*'Sales price per sales channel'!$H45*'Other input expert'!J$7","v":0},{"$f":"AL45*'Other input expert'!K$13*'Sales price per sales channel'!$H45*'Other input expert'!K$7","v":0},{"$f":"AM45*'Other input expert'!L$13*'Sales price per sales channel'!$H45*'Other input expert'!L$7","v":0},{"$f":"AN45*'Other input expert'!M$13*'Sales price per sales channel'!$H45*'Other input expert'!M$7","v":0},null,{"$f":"AC45*'Other input expert'!B$14*'Sales price per sales channel'!$I45*'Other input expert'!B$7","v":0},{"$f":"AD45*'Other input expert'!C$14*'Sales price per sales channel'!$I45*'Other input expert'!C$7","v":0},{"$f":"AE45*'Other input expert'!D$14*'Sales price per sales channel'!$I45*'Other input expert'!D$7","v":0},{"$f":"AF45*'Other input expert'!E$14*'Sales price per sales channel'!$I45*'Other input expert'!E$7","v":0},{"$f":"AG45*'Other input expert'!F$14*'Sales price per sales channel'!$I45*'Other input expert'!F$7","v":0},{"$f":"AH45*'Other input expert'!G$14*'Sales price per sales channel'!$I45*'Other input expert'!G$7","v":0},{"$f":"AI45*'Other input expert'!H$14*'Sales price per sales channel'!$I45*'Other input expert'!H$7","v":0},{"$f":"AJ45*'Other input expert'!I$14*'Sales price per sales channel'!$I45*'Other input expert'!I$7","v":0},{"$f":"AK45*'Other input expert'!J$14*'Sales price per sales channel'!$I45*'Other input expert'!J$7","v":0},{"$f":"AL45*'Other input expert'!K$14*'Sales price per sales channel'!$I45*'Other input expert'!K$7","v":0},{"$f":"AM45*'Other input expert'!L$14*'Sales price per sales channel'!$I45*'Other input expert'!L$7","v":0},{"$f":"AN45*'Other input expert'!M$14*'Sales price per sales channel'!$I45*'Other input expert'!M$7","v":0}]
["Castanea mollissima","Chinese chestnut",{"$f":"Plantlist!$G46*'Production list'!D47*'Other input expert'!B$4*'Other input expert'!B$8","v":0},{"$f":"Plantlist!$G46*'Production list'!E47*'Other input expert'!C$4*'Other input expert'!C$8","v":0},{"$f":"Plantlist!$G46*'Production list'!F47*'Other input expert'!D$4*'Other input expert'!D$8","v":0},{"$f":"Plantlist!$G46*'Production list'!G47*'Other input expert'!E$4*'Other input expert'!E$8","v":0},{"$f":"Plantlist!$G46*'Production list'!H47*'Other input expert'!F$4*'Other input expert'!F$8","v":0},{"$f":"Plantlist!$G46*'Production list'!I47*'Other input expert'!G$4*'Other input expert'!G$8","v":0},{"$f":"Plantlist!$G46*'Production list'!J47*'Other input expert'!H$4*'Other input expert'!H$8","v":0},{"$f":"Plantlist!$G46*'Production list'!K47*'Other input expert'!I$4*'Other input expert'!I$8","v":0},{"$f":"Plantlist!$G46*'Production list'!L47*'Other input expert'!J$4*'Other input expert'!J$8","v":0},{"$f":"Plantlist!$G46*'Production list'!M47*'Other input expert'!K$4*'Other input expert'!K$8","v":0},{"$f":"Plantlist!$G46*'Production list'!N47*'Other input expert'!L$4*'Other input expert'!L$8","v":0},{"$f":"Plantlist!$G46*'Production list'!O47*'Other input expert'!M$4*'Other input expert'!M$8","v":0},null,{"$f":"C46*'Other input expert'!B$5","v":0},{"$f":"D46*'Other input expert'!C$5","v":0},{"$f":"E46*'Other input expert'!D$5","v":0},{"$f":"F46*'Other input expert'!E$5","v":0},{"$f":"G46*'Other input expert'!F$5","v":0},{"$f":"H46*'Other input expert'!G$5","v":0},{"$f":"I46*'Other input expert'!H$5","v":0},{"$f":"J46*'Other input expert'!I$5","v":0},{"$f":"K46*'Other input expert'!J$5","v":0},{"$f":"L46*'Other input expert'!K$5","v":0},{"$f":"M46*'Other input expert'!L$5","v":0},{"$f":"N46*'Other input expert'!M$5","v":0},null,{"$f":"C46*(100%-'Other input expert'!B$5)","v":0},{"$f":"D46*(100%-'Other input expert'!C$5)","v":0},{"$f":"E46*(100%-'Other input expert'!D$5)","v":0},{"$f":"F46*(100%-'Other input expert'!E$5)","v":0},{"$f":"G46*(100%-'Other input expert'!F$5)","v":0},{"$f":"H46*(100%-'Other input expert'!G$5)","v":0},{"$f":"I46*(100%-'Other input expert'!H$5)","v":0},{"$f":"J46*(100%-'Other input expert'!I$5)","v":0},{"$f":"K46*(100%-'Other input expert'!J$5)","v":0},{"$f":"L46*(100%-'Other input expert'!K$5)","v":0},{"$f":"M46*(100%-'Other input expert'!L$5)","v":0},{"$f":"N46*(100%-'Other input expert'!M$5)","v":0},null,{"$f":"P46*'Other input expert'!B$12*'Sales price per sales channel'!$G46*'Other input expert'!B$6","v":0},{"$f":"Q46*'Other input expert'!C$12*'Sales price per sales channel'!$G46*'Other input expert'!C$6","v":0},{"$f":"R46*'Other input expert'!D$12*'Sales price per sales channel'!$G46*'Other input expert'!D$6","v":0},{"$f":"S46*'Other input expert'!E$12*'Sales price per sales channel'!$G46*'Other input expert'!E$6","v":0},{"$f":"T46*'Other input expert'!F$12*'Sales price per sales channel'!$G46*'Other input expert'!F$6","v":0},{"$f":"U46*'Other input expert'!G$12*'Sales price per sales channel'!$G46*'Other input expert'!G$6","v":0},{"$f":"V46*'Other input expert'!H$12*'Sales price per sales channel'!$G46*'Other input expert'!H$6","v":0},{"$f":"W46*'Other input expert'!I$12*'Sales price per sales channel'!$G46*'Other input expert'!I$6","v":0},{"$f":"X46*'Other input expert'!J$12*'Sales price per sales channel'!$G46*'Other input expert'!J$6","v":0},{"$f":"Y46*'Other input expert'!K$12*'Sales price per sales channel'!$G46*'Other input expert'!K$6","v":0},{"$f":"Z46*'Other input expert'!L$12*'Sales price per sales channel'!$G46*'Other input expert'!L$6","v":0},{"$f":"AA46*'Other input expert'!M$12*'Sales price per sales channel'!$G46*'Other input expert'!M$6","v":0},null,{"$f":"P46*'Other input expert'!B$13*'Sales price per sales channel'!$H46*'Other input expert'!B$6","v":0},{"$f":"Q46*'Other input expert'!C$13*'Sales price per sales channel'!$H46*'Other input expert'!C$6","v":0},{"$f":"R46*'Other input expert'!D$13*'Sales price per sales channel'!$H46*'Other input expert'!D$6","v":0},{"$f":"S46*'Other input expert'!E$13*'Sales price per sales channel'!$H46*'Other input expert'!E$6","v":0},{"$f":"T46*'Other input expert'!F$13*'Sales price per sales channel'!$H46*'Other input expert'!F$6","v":0},{"$f":"U46*'Other input expert'!G$13*'Sales price per sales channel'!$H46*'Other input expert'!G$6","v":0},{"$f":"V46*'Other input expert'!H$13*'Sales price per sales channel'!$H46*'Other input expert'!H$6","v":0},{"$f":"W46*'Other input expert'!I$13*'Sales price per sales channel'!$H46*'Other input expert'!I$6","v":0},{"$f":"X46*'Other input expert'!J$13*'Sales price per sales channel'!$H46*'Other input expert'!J$6","v":0},{"$f":"Y46*'Other input expert'!K$13*'Sales price per sales channel'!$H46*'Other input expert'!K$6","v":0},{"$f":"Z46*'Other input expert'!L$13*'Sales price per sales channel'!$H46*'Other input expert'!L$6","v":0},{"$f":"AA46*'Other input expert'!M$13*'Sales price per sales channel'!$H46*'Other input expert'!M$6","v":0},null,{"$f":"P46*'Other input expert'!B$14*'Sales price per sales channel'!$I46*'Other input expert'!B$6","v":0},{"$f":"Q46*'Other input expert'!C$14*'Sales price per sales channel'!$I46*'Other input expert'!C$6","v":0},{"$f":"R46*'Other input expert'!D$14*'Sales price per sales channel'!$I46*'Other input expert'!D$6","v":0},{"$f":"S46*'Other input expert'!E$14*'Sales price per sales channel'!$I46*'Other input expert'!E$6","v":0},{"$f":"T46*'Other input expert'!F$14*'Sales price per sales channel'!$I46*'Other input expert'!F$6","v":0},{"$f":"U46*'Other input expert'!G$14*'Sales price per sales channel'!$I46*'Other input expert'!G$6","v":0},{"$f":"V46*'Other input expert'!H$14*'Sales price per sales channel'!$I46*'Other input expert'!H$6","v":0},{"$f":"W46*'Other input expert'!I$14*'Sales price per sales channel'!$I46*'Other input expert'!I$6","v":0},{"$f":"X46*'Other input expert'!J$14*'Sales price per sales channel'!$I46*'Other input expert'!J$6","v":0},{"$f":"Y46*'Other input expert'!K$14*'Sales price per sales channel'!$I46*'Other input expert'!K$6","v":0},{"$f":"Z46*'Other input expert'!L$14*'Sales price per sales channel'!$I46*'Other input expert'!L$6","v":0},{"$f":"AA46*'Other input expert'!M$14*'Sales price per sales channel'!$I46*'Other input expert'!M$6","v":0},null,{"$f":"AC46*'Other input expert'!B$12*'Sales price per sales channel'!$G46*'Other input expert'!B$7","v":0},{"$f":"AD46*'Other input expert'!C$12*'Sales price per sales channel'!$G46*'Other input expert'!C$7","v":0},{"$f":"AE46*'Other input expert'!D$12*'Sales price per sales channel'!$G46*'Other input expert'!D$7","v":0},{"$f":"AF46*'Other input expert'!E$12*'Sales price per sales channel'!$G46*'Other input expert'!E$7","v":0},{"$f":"AG46*'Other input expert'!F$12*'Sales price per sales channel'!$G46*'Other input expert'!F$7","v":0},{"$f":"AH46*'Other input expert'!G$12*'Sales price per sales channel'!$G46*'Other input expert'!G$7","v":0},{"$f":"AI46*'Other input expert'!H$12*'Sales price per sales channel'!$G46*'Other input expert'!H$7","v":0},{"$f":"AJ46*'Other input expert'!I$12*'Sales price per sales channel'!$G46*'Other input expert'!I$7","v":0},{"$f":"AK46*'Other input expert'!J$12*'Sales price per sales channel'!$G46*'Other input expert'!J$7","v":0},{"$f":"AL46*'Other input expert'!K$12*'Sales price per sales channel'!$G46*'Other input expert'!K$7","v":0},{"$f":"AM46*'Other input expert'!L$12*'Sales price per sales channel'!$G46*'Other input expert'!L$7","v":0},{"$f":"AN46*'Other input expert'!M$12*'Sales price per sales channel'!$G46*'Other input expert'!M$7","v":0},null,{"$f":"AC46*'Other input expert'!B$13*'Sales price per sales channel'!$H46*'Other input expert'!B$7","v":0},{"$f":"AD46*'Other input expert'!C$13*'Sales price per sales channel'!$H46*'Other input expert'!C$7","v":0},{"$f":"AE46*'Other input expert'!D$13*'Sales price per sales channel'!$H46*'Other input expert'!D$7","v":0},{"$f":"AF46*'Other input expert'!E$13*'Sales price per sales channel'!$H46*'Other input expert'!E$7","v":0},{"$f":"AG46*'Other input expert'!F$13*'Sales price per sales channel'!$H46*'Other input expert'!F$7","v":0},{"$f":"AH46*'Other input expert'!G$13*'Sales price per sales channel'!$H46*'Other input expert'!G$7","v":0},{"$f":"AI46*'Other input expert'!H$13*'Sales price per sales channel'!$H46*'Other input expert'!H$7","v":0},{"$f":"AJ46*'Other input expert'!I$13*'Sales price per sales channel'!$H46*'Other input expert'!I$7","v":0},{"$f":"AK46*'Other input expert'!J$13*'Sales price per sales channel'!$H46*'Other input expert'!J$7","v":0},{"$f":"AL46*'Other input expert'!K$13*'Sales price per sales channel'!$H46*'Other input expert'!K$7","v":0},{"$f":"AM46*'Other input expert'!L$13*'Sales price per sales channel'!$H46*'Other input expert'!L$7","v":0},{"$f":"AN46*'Other input expert'!M$13*'Sales price per sales channel'!$H46*'Other input expert'!M$7","v":0},null,{"$f":"AC46*'Other input expert'!B$14*'Sales price per sales channel'!$I46*'Other input expert'!B$7","v":0},{"$f":"AD46*'Other input expert'!C$14*'Sales price per sales channel'!$I46*'Other input expert'!C$7","v":0},{"$f":"AE46*'Other input expert'!D$14*'Sales price per sales channel'!$I46*'Other input expert'!D$7","v":0},{"$f":"AF46*'Other input expert'!E$14*'Sales price per sales channel'!$I46*'Other input expert'!E$7","v":0},{"$f":"AG46*'Other input expert'!F$14*'Sales price per sales channel'!$I46*'Other input expert'!F$7","v":0},{"$f":"AH46*'Other input expert'!G$14*'Sales price per sales channel'!$I46*'Other input expert'!G$7","v":0},{"$f":"AI46*'Other input expert'!H$14*'Sales price per sales channel'!$I46*'Other input expert'!H$7","v":0},{"$f":"AJ46*'Other input expert'!I$14*'Sales price per sales channel'!$I46*'Other input expert'!I$7","v":0},{"$f":"AK46*'Other input expert'!J$14*'Sales price per sales channel'!$I46*'Other input expert'!J$7","v":0},{"$f":"AL46*'Other input expert'!K$14*'Sales price per sales channel'!$I46*'Other input expert'!K$7","v":0},{"$f":"AM46*'Other input expert'!L$14*'Sales price per sales channel'!$I46*'Other input expert'!L$7","v":0},{"$f":"AN46*'Other input expert'!M$14*'Sales price per sales channel'!$I46*'Other input expert'!M$7","v":0}]
["Castanea sativa","Sweet chestnut",{"$f":"Plantlist!$G47*'Production list'!D48*'Other input expert'!B$4*'Other input expert'!B$8","v":0},{"$f":"Plantlist!$G47*'Production list'!E48*'Other input expert'!C$4*'Other input expert'!C$8","v":0},{"$f":"Plantlist!$G47*'Production list'!F48*'Other input expert'!D$4*'Other input expert'!D$8","v":0},{"$f":"Plantlist!$G47*'Production list'!G48*'Other input expert'!E$4*'Other input expert'!E$8","v":0},{"$f":"Plantlist!$G47*'Production list'!H48*'Other input expert'!F$4*'Other input expert'!F$8","v":0},{"$f":"Plantlist!$G47*'Production list'!I48*'Other input expert'!G$4*'Other input expert'!G$8","v":0},{"$f":"Plantlist!$G47*'Production list'!J48*'Other input expert'!H$4*'Other input expert'!H$8","v":0},{"$f":"Plantlist!$G47*'Production list'!K48*'Other input expert'!I$4*'Other input expert'!I$8","v":0},{"$f":"Plantlist!$G47*'Production list'!L48*'Other input expert'!J$4*'Other input expert'!J$8","v":0},{"$f":"Plantlist!$G47*'Production list'!M48*'Other input expert'!K$4*'Other input expert'!K$8","v":0},{"$f":"Plantlist!$G47*'Production list'!N48*'Other input expert'!L$4*'Other input expert'!L$8","v":0},{"$f":"Plantlist!$G47*'Production list'!O48*'Other input expert'!M$4*'Other input expert'!M$8","v":0},null,{"$f":"C47*'Other input expert'!B$5","v":0},{"$f":"D47*'Other input expert'!C$5","v":0},{"$f":"E47*'Other input expert'!D$5","v":0},{"$f":"F47*'Other input expert'!E$5","v":0},{"$f":"G47*'Other input expert'!F$5","v":0},{"$f":"H47*'Other input expert'!G$5","v":0},{"$f":"I47*'Other input expert'!H$5","v":0},{"$f":"J47*'Other input expert'!I$5","v":0},{"$f":"K47*'Other input expert'!J$5","v":0},{"$f":"L47*'Other input expert'!K$5","v":0},{"$f":"M47*'Other input expert'!L$5","v":0},{"$f":"N47*'Other input expert'!M$5","v":0},null,{"$f":"C47*(100%-'Other input expert'!B$5)","v":0},{"$f":"D47*(100%-'Other input expert'!C$5)","v":0},{"$f":"E47*(100%-'Other input expert'!D$5)","v":0},{"$f":"F47*(100%-'Other input expert'!E$5)","v":0},{"$f":"G47*(100%-'Other input expert'!F$5)","v":0},{"$f":"H47*(100%-'Other input expert'!G$5)","v":0},{"$f":"I47*(100%-'Other input expert'!H$5)","v":0},{"$f":"J47*(100%-'Other input expert'!I$5)","v":0},{"$f":"K47*(100%-'Other input expert'!J$5)","v":0},{"$f":"L47*(100%-'Other input expert'!K$5)","v":0},{"$f":"M47*(100%-'Other input expert'!L$5)","v":0},{"$f":"N47*(100%-'Other input expert'!M$5)","v":0},null,{"$f":"P47*'Other input expert'!B$12*'Sales price per sales channel'!$G47*'Other input expert'!B$6","v":0},{"$f":"Q47*'Other input expert'!C$12*'Sales price per sales channel'!$G47*'Other input expert'!C$6","v":0},{"$f":"R47*'Other input expert'!D$12*'Sales price per sales channel'!$G47*'Other input expert'!D$6","v":0},{"$f":"S47*'Other input expert'!E$12*'Sales price per sales channel'!$G47*'Other input expert'!E$6","v":0},{"$f":"T47*'Other input expert'!F$12*'Sales price per sales channel'!$G47*'Other input expert'!F$6","v":0},{"$f":"U47*'Other input expert'!G$12*'Sales price per sales channel'!$G47*'Other input expert'!G$6","v":0},{"$f":"V47*'Other input expert'!H$12*'Sales price per sales channel'!$G47*'Other input expert'!H$6","v":0},{"$f":"W47*'Other input expert'!I$12*'Sales price per sales channel'!$G47*'Other input expert'!I$6","v":0},{"$f":"X47*'Other input expert'!J$12*'Sales price per sales channel'!$G47*'Other input expert'!J$6","v":0},{"$f":"Y47*'Other input expert'!K$12*'Sales price per sales channel'!$G47*'Other input expert'!K$6","v":0},{"$f":"Z47*'Other input expert'!L$12*'Sales price per sales channel'!$G47*'Other input expert'!L$6","v":0},{"$f":"AA47*'Other input expert'!M$12*'Sales price per sales channel'!$G47*'Other input expert'!M$6","v":0},null,{"$f":"P47*'Other input expert'!B$13*'Sales price per sales channel'!$H47*'Other input expert'!B$6","v":0},{"$f":"Q47*'Other input expert'!C$13*'Sales price per sales channel'!$H47*'Other input expert'!C$6","v":0},{"$f":"R47*'Other input expert'!D$13*'Sales price per sales channel'!$H47*'Other input expert'!D$6","v":0},{"$f":"S47*'Other input expert'!E$13*'Sales price per sales channel'!$H47*'Other input expert'!E$6","v":0},{"$f":"T47*'Other input expert'!F$13*'Sales price per sales channel'!$H47*'Other input expert'!F$6","v":0},{"$f":"U47*'Other input expert'!G$13*'Sales price per sales channel'!$H47*'Other input expert'!G$6","v":0},{"$f":"V47*'Other input expert'!H$13*'Sales price per sales channel'!$H47*'Other input expert'!H$6","v":0},{"$f":"W47*'Other input expert'!I$13*'Sales price per sales channel'!$H47*'Other input expert'!I$6","v":0},{"$f":"X47*'Other input expert'!J$13*'Sales price per sales channel'!$H47*'Other input expert'!J$6","v":0},{"$f":"Y47*'Other input expert'!K$13*'Sales price per sales channel'!$H47*'Other input expert'!K$6","v":0},{"$f":"Z47*'Other input expert'!L$13*'Sales price per sales channel'!$H47*'Other input expert'!L$6","v":0},{"$f":"AA47*'Other input expert'!M$13*'Sales price per sales channel'!$H47*'Other input expert'!M$6","v":0},null,{"$f":"P47*'Other input expert'!B$14*'Sales price per sales channel'!$I47*'Other input expert'!B$6","v":0},{"$f":"Q47*'Other input expert'!C$14*'Sales price per sales channel'!$I47*'Other input expert'!C$6","v":0},{"$f":"R47*'Other input expert'!D$14*'Sales price per sales channel'!$I47*'Other input expert'!D$6","v":0},{"$f":"S47*'Other input expert'!E$14*'Sales price per sales channel'!$I47*'Other input expert'!E$6","v":0},{"$f":"T47*'Other input expert'!F$14*'Sales price per sales channel'!$I47*'Other input expert'!F$6","v":0},{"$f":"U47*'Other input expert'!G$14*'Sales price per sales channel'!$I47*'Other input expert'!G$6","v":0},{"$f":"V47*'Other input expert'!H$14*'Sales price per sales channel'!$I47*'Other input expert'!H$6","v":0},{"$f":"W47*'Other input expert'!I$14*'Sales price per sales channel'!$I47*'Other input expert'!I$6","v":0},{"$f":"X47*'Other input expert'!J$14*'Sales price per sales channel'!$I47*'Other input expert'!J$6","v":0},{"$f":"Y47*'Other input expert'!K$14*'Sales price per sales channel'!$I47*'Other input expert'!K$6","v":0},{"$f":"Z47*'Other input expert'!L$14*'Sales price per sales channel'!$I47*'Other input expert'!L$6","v":0},{"$f":"AA47*'Other input expert'!M$14*'Sales price per sales channel'!$I47*'Other input expert'!M$6","v":0},null,{"$f":"AC47*'Other input expert'!B$12*'Sales price per sales channel'!$G47*'Other input expert'!B$7","v":0},{"$f":"AD47*'Other input expert'!C$12*'Sales price per sales channel'!$G47*'Other input expert'!C$7","v":0},{"$f":"AE47*'Other input expert'!D$12*'Sales price per sales channel'!$G47*'Other input expert'!D$7","v":0},{"$f":"AF47*'Other input expert'!E$12*'Sales price per sales channel'!$G47*'Other input expert'!E$7","v":0},{"$f":"AG47*'Other input expert'!F$12*'Sales price per sales channel'!$G47*'Other input expert'!F$7","v":0},{"$f":"AH47*'Other input expert'!G$12*'Sales price per sales channel'!$G47*'Other input expert'!G$7","v":0},{"$f":"AI47*'Other input expert'!H$12*'Sales price per sales channel'!$G47*'Other input expert'!H$7","v":0},{"$f":"AJ47*'Other input expert'!I$12*'Sales price per sales channel'!$G47*'Other input expert'!I$7","v":0},{"$f":"AK47*'Other input expert'!J$12*'Sales price per sales channel'!$G47*'Other input expert'!J$7","v":0},{"$f":"AL47*'Other input expert'!K$12*'Sales price per sales channel'!$G47*'Other input expert'!K$7","v":0},{"$f":"AM47*'Other input expert'!L$12*'Sales price per sales channel'!$G47*'Other input expert'!L$7","v":0},{"$f":"AN47*'Other input expert'!M$12*'Sales price per sales channel'!$G47*'Other input expert'!M$7","v":0},null,{"$f":"AC47*'Other input expert'!B$13*'Sales price per sales channel'!$H47*'Other input expert'!B$7","v":0},{"$f":"AD47*'Other input expert'!C$13*'Sales price per sales channel'!$H47*'Other input expert'!C$7","v":0},{"$f":"AE47*'Other input expert'!D$13*'Sales price per sales channel'!$H47*'Other input expert'!D$7","v":0},{"$f":"AF47*'Other input expert'!E$13*'Sales price per sales channel'!$H47*'Other input expert'!E$7","v":0},{"$f":"AG47*'Other input expert'!F$13*'Sales price per sales channel'!$H47*'Other input expert'!F$7","v":0},{"$f":"AH47*'Other input expert'!G$13*'Sales price per sales channel'!$H47*'Other input expert'!G$7","v":0},{"$f":"AI47*'Other input expert'!H$13*'Sales price per sales channel'!$H47*'Other input expert'!H$7","v":0},{"$f":"AJ47*'Other input expert'!I$13*'Sales price per sales channel'!$H47*'Other input expert'!I$7","v":0},{"$f":"AK47*'Other input expert'!J$13*'Sales price per sales channel'!$H47*'Other input expert'!J$7","v":0},{"$f":"AL47*'Other input expert'!K$13*'Sales price per sales channel'!$H47*'Other input expert'!K$7","v":0},{"$f":"AM47*'Other input expert'!L$13*'Sales price per sales channel'!$H47*'Other input expert'!L$7","v":0},{"$f":"AN47*'Other input expert'!M$13*'Sales price per sales channel'!$H47*'Other input expert'!M$7","v":0},null,{"$f":"AC47*'Other input expert'!B$14*'Sales price per sales channel'!$I47*'Other input expert'!B$7","v":0},{"$f":"AD47*'Other input expert'!C$14*'Sales price per sales channel'!$I47*'Other input expert'!C$7","v":0},{"$f":"AE47*'Other input expert'!D$14*'Sales price per sales channel'!$I47*'Other input expert'!D$7","v":0},{"$f":"AF47*'Other input expert'!E$14*'Sales price per sales channel'!$I47*'Other input expert'!E$7","v":0},{"$f":"AG47*'Other input expert'!F$14*'Sales price per sales channel'!$I47*'Other input expert'!F$7","v":0},{"$f":"AH47*'Other input expert'!G$14*'Sales price per sales channel'!$I47*'Other input expert'!G$7","v":0},{"$f":"AI47*'Other input expert'!H$14*'Sales price per sales channel'!$I47*'Other input expert'!H$7","v":0},{"$f":"AJ47*'Other input expert'!I$14*'Sales price per sales channel'!$I47*'Other input expert'!I$7","v":0},{"$f":"AK47*'Other input expert'!J$14*'Sales price per sales channel'!$I47*'Other input expert'!J$7","v":0},{"$f":"AL47*'Other input expert'!K$14*'Sales price per sales channel'!$I47*'Other input expert'!K$7","v":0},{"$f":"AM47*'Other input expert'!L$14*'Sales price per sales channel'!$I47*'Other input expert'!L$7","v":0},{"$f":"AN47*'Other input expert'!M$14*'Sales price per sales channel'!$I47*'Other input expert'!M$7","v":0}]
["Casteana Pumiles","Chinquapin",{"$f":"Plantlist!$G48*'Production list'!D49*'Other input expert'!B$4*'Other input expert'!B$8","v":0},{"$f":"Plantlist!$G48*'Production list'!E49*'Other input expert'!C$4*'Other input expert'!C$8","v":0},{"$f":"Plantlist!$G48*'Production list'!F49*'Other input expert'!D$4*'Other input expert'!D$8","v":0},{"$f":"Plantlist!$G48*'Production list'!G49*'Other input expert'!E$4*'Other input expert'!E$8","v":0},{"$f":"Plantlist!$G48*'Production list'!H49*'Other input expert'!F$4*'Other input expert'!F$8","v":0},{"$f":"Plantlist!$G48*'Production list'!I49*'Other input expert'!G$4*'Other input expert'!G$8","v":0},{"$f":"Plantlist!$G48*'Production list'!J49*'Other input expert'!H$4*'Other input expert'!H$8","v":0},{"$f":"Plantlist!$G48*'Production list'!K49*'Other input expert'!I$4*'Other input expert'!I$8","v":0},{"$f":"Plantlist!$G48*'Production list'!L49*'Other input expert'!J$4*'Other input expert'!J$8","v":0},{"$f":"Plantlist!$G48*'Production list'!M49*'Other input expert'!K$4*'Other input expert'!K$8","v":0},{"$f":"Plantlist!$G48*'Production list'!N49*'Other input expert'!L$4*'Other input expert'!L$8","v":0},{"$f":"Plantlist!$G48*'Production list'!O49*'Other input expert'!M$4*'Other input expert'!M$8","v":0},null,{"$f":"C48*'Other input expert'!B$5","v":0},{"$f":"D48*'Other input expert'!C$5","v":0},{"$f":"E48*'Other input expert'!D$5","v":0},{"$f":"F48*'Other input expert'!E$5","v":0},{"$f":"G48*'Other input expert'!F$5","v":0},{"$f":"H48*'Other input expert'!G$5","v":0},{"$f":"I48*'Other input expert'!H$5","v":0},{"$f":"J48*'Other input expert'!I$5","v":0},{"$f":"K48*'Other input expert'!J$5","v":0},{"$f":"L48*'Other input expert'!K$5","v":0},{"$f":"M48*'Other input expert'!L$5","v":0},{"$f":"N48*'Other input expert'!M$5","v":0},null,{"$f":"C48*(100%-'Other input expert'!B$5)","v":0},{"$f":"D48*(100%-'Other input expert'!C$5)","v":0},{"$f":"E48*(100%-'Other input expert'!D$5)","v":0},{"$f":"F48*(100%-'Other input expert'!E$5)","v":0},{"$f":"G48*(100%-'Other input expert'!F$5)","v":0},{"$f":"H48*(100%-'Other input expert'!G$5)","v":0},{"$f":"I48*(100%-'Other input expert'!H$5)","v":0},{"$f":"J48*(100%-'Other input expert'!I$5)","v":0},{"$f":"K48*(100%-'Other input expert'!J$5)","v":0},{"$f":"L48*(100%-'Other input expert'!K$5)","v":0},{"$f":"M48*(100%-'Other input expert'!L$5)","v":0},{"$f":"N48*(100%-'Other input expert'!M$5)","v":0},null,{"$f":"P48*'Other input expert'!B$12*'Sales price per sales channel'!$G48*'Other input expert'!B$6","v":0},{"$f":"Q48*'Other input expert'!C$12*'Sales price per sales channel'!$G48*'Other input expert'!C$6","v":0},{"$f":"R48*'Other input expert'!D$12*'Sales price per sales channel'!$G48*'Other input expert'!D$6","v":0},{"$f":"S48*'Other input expert'!E$12*'Sales price per sales channel'!$G48*'Other input expert'!E$6","v":0},{"$f":"T48*'Other input expert'!F$12*'Sales price per sales channel'!$G48*'Other input expert'!F$6","v":0},{"$f":"U48*'Other input expert'!G$12*'Sales price per sales channel'!$G48*'Other input expert'!G$6","v":0},{"$f":"V48*'Other input expert'!H$12*'Sales price per sales channel'!$G48*'Other input expert'!H$6","v":0},{"$f":"W48*'Other input expert'!I$12*'Sales price per sales channel'!$G48*'Other input expert'!I$6","v":0},{"$f":"X48*'Other input expert'!J$12*'Sales price per sales channel'!$G48*'Other input expert'!J$6","v":0},{"$f":"Y48*'Other input expert'!K$12*'Sales price per sales channel'!$G48*'Other input expert'!K$6","v":0},{"$f":"Z48*'Other input expert'!L$12*'Sales price per sales channel'!$G48*'Other input expert'!L$6","v":0},{"$f":"AA48*'Other input expert'!M$12*'Sales price per sales channel'!$G48*'Other input expert'!M$6","v":0},null,{"$f":"P48*'Other input expert'!B$13*'Sales price per sales channel'!$H48*'Other input expert'!B$6","v":0},{"$f":"Q48*'Other input expert'!C$13*'Sales price per sales channel'!$H48*'Other input expert'!C$6","v":0},{"$f":"R48*'Other input expert'!D$13*'Sales price per sales channel'!$H48*'Other input expert'!D$6","v":0},{"$f":"S48*'Other input expert'!E$13*'Sales price per sales channel'!$H48*'Other input expert'!E$6","v":0},{"$f":"T48*'Other input expert'!F$13*'Sales price per sales channel'!$H48*'Other input expert'!F$6","v":0},{"$f":"U48*'Other input expert'!G$13*'Sales price per sales channel'!$H48*'Other input expert'!G$6","v":0},{"$f":"V48*'Other input expert'!H$13*'Sales price per sales channel'!$H48*'Other input expert'!H$6","v":0},{"$f":"W48*'Other input expert'!I$13*'Sales price per sales channel'!$H48*'Other input expert'!I$6","v":0},{"$f":"X48*'Other input expert'!J$13*'Sales price per sales channel'!$H48*'Other input expert'!J$6","v":0},{"$f":"Y48*'Other input expert'!K$13*'Sales price per sales channel'!$H48*'Other input expert'!K$6","v":0},{"$f":"Z48*'Other input expert'!L$13*'Sales price per sales channel'!$H48*'Other input expert'!L$6","v":0},{"$f":"AA48*'Other input expert'!M$13*'Sales price per sales channel'!$H48*'Other input expert'!M$6","v":0},null,{"$f":"P48*'Other input expert'!B$14*'Sales price per sales channel'!$I48*'Other input expert'!B$6","v":0},{"$f":"Q48*'Other input expert'!C$14*'Sales price per sales channel'!$I48*'Other input expert'!C$6","v":0},{"$f":"R48*'Other input expert'!D$14*'Sales price per sales channel'!$I48*'Other input expert'!D$6","v":0},{"$f":"S48*'Other input expert'!E$14*'Sales price per sales channel'!$I48*'Other input expert'!E$6","v":0},{"$f":"T48*'Other input expert'!F$14*'Sales price per sales channel'!$I48*'Other input expert'!F$6","v":0},{"$f":"U48*'Other input expert'!G$14*'Sales price per sales channel'!$I48*'Other input expert'!G$6","v":0},{"$f":"V48*'Other input expert'!H$14*'Sales price per sales channel'!$I48*'Other input expert'!H$6","v":0},{"$f":"W48*'Other input expert'!I$14*'Sales price per sales channel'!$I48*'Other input expert'!I$6","v":0},{"$f":"X48*'Other input expert'!J$14*'Sales price per sales channel'!$I48*'Other input expert'!J$6","v":0},{"$f":"Y48*'Other input expert'!K$14*'Sales price per sales channel'!$I48*'Other input expert'!K$6","v":0},{"$f":"Z48*'Other input expert'!L$14*'Sales price per sales channel'!$I48*'Other input expert'!L$6","v":0},{"$f":"AA48*'Other input expert'!M$14*'Sales price per sales channel'!$I48*'Other input expert'!M$6","v":0},null,{"$f":"AC48*'Other input expert'!B$12*'Sales price per sales channel'!$G48*'Other input expert'!B$7","v":0},{"$f":"AD48*'Other input expert'!C$12*'Sales price per sales channel'!$G48*'Other input expert'!C$7","v":0},{"$f":"AE48*'Other input expert'!D$12*'Sales price per sales channel'!$G48*'Other input expert'!D$7","v":0},{"$f":"AF48*'Other input expert'!E$12*'Sales price per sales channel'!$G48*'Other input expert'!E$7","v":0},{"$f":"AG48*'Other input expert'!F$12*'Sales price per sales channel'!$G48*'Other input expert'!F$7","v":0},{"$f":"AH48*'Other input expert'!G$12*'Sales price per sales channel'!$G48*'Other input expert'!G$7","v":0},{"$f":"AI48*'Other input expert'!H$12*'Sales price per sales channel'!$G48*'Other input expert'!H$7","v":0},{"$f":"AJ48*'Other input expert'!I$12*'Sales price per sales channel'!$G48*'Other input expert'!I$7","v":0},{"$f":"AK48*'Other input expert'!J$12*'Sales price per sales channel'!$G48*'Other input expert'!J$7","v":0},{"$f":"AL48*'Other input expert'!K$12*'Sales price per sales channel'!$G48*'Other input expert'!K$7","v":0},{"$f":"AM48*'Other input expert'!L$12*'Sales price per sales channel'!$G48*'Other input expert'!L$7","v":0},{"$f":"AN48*'Other input expert'!M$12*'Sales price per sales channel'!$G48*'Other input expert'!M$7","v":0},null,{"$f":"AC48*'Other input expert'!B$13*'Sales price per sales channel'!$H48*'Other input expert'!B$7","v":0},{"$f":"AD48*'Other input expert'!C$13*'Sales price per sales channel'!$H48*'Other input expert'!C$7","v":0},{"$f":"AE48*'Other input expert'!D$13*'Sales price per sales channel'!$H48*'Other input expert'!D$7","v":0},{"$f":"AF48*'Other input expert'!E$13*'Sales price per sales channel'!$H48*'Other input expert'!E$7","v":0},{"$f":"AG48*'Other input expert'!F$13*'Sales price per sales channel'!$H48*'Other input expert'!F$7","v":0},{"$f":"AH48*'Other input expert'!G$13*'Sales price per sales channel'!$H48*'Other input expert'!G$7","v":0},{"$f":"AI48*'Other input expert'!H$13*'Sales price per sales channel'!$H48*'Other input expert'!H$7","v":0},{"$f":"AJ48*'Other input expert'!I$13*'Sales price per sales channel'!$H48*'Other input expert'!I$7","v":0},{"$f":"AK48*'Other input expert'!J$13*'Sales price per sales channel'!$H48*'Other input expert'!J$7","v":0},{"$f":"AL48*'Other input expert'!K$13*'Sales price per sales channel'!$H48*'Other input expert'!K$7","v":0},{"$f":"AM48*'Other input expert'!L$13*'Sales price per sales channel'!$H48*'Other input expert'!L$7","v":0},{"$f":"AN48*'Other input expert'!M$13*'Sales price per sales channel'!$H48*'Other input expert'!M$7","v":0},null,{"$f":"AC48*'Other input expert'!B$14*'Sales price per sales channel'!$I48*'Other input expert'!B$7","v":0},{"$f":"AD48*'Other input expert'!C$14*'Sales price per sales channel'!$I48*'Other input expert'!C$7","v":0},{"$f":"AE48*'Other input expert'!D$14*'Sales price per sales channel'!$I48*'Other input expert'!D$7","v":0},{"$f":"AF48*'Other input expert'!E$14*'Sales price per sales channel'!$I48*'Other input expert'!E$7","v":0},{"$f":"AG48*'Other input expert'!F$14*'Sales price per sales channel'!$I48*'Other input expert'!F$7","v":0},{"$f":"AH48*'Other input expert'!G$14*'Sales price per sales channel'!$I48*'Other input expert'!G$7","v":0},{"$f":"AI48*'Other input expert'!H$14*'Sales price per sales channel'!$I48*'Other input expert'!H$7","v":0},{"$f":"AJ48*'Other input expert'!I$14*'Sales price per sales channel'!$I48*'Other input expert'!I$7","v":0},{"$f":"AK48*'Other input expert'!J$14*'Sales price per sales channel'!$I48*'Other input expert'!J$7","v":0},{"$f":"AL48*'Other input expert'!K$14*'Sales price per sales channel'!$I48*'Other input expert'!K$7","v":0},{"$f":"AM48*'Other input expert'!L$14*'Sales price per sales channel'!$I48*'Other input expert'!L$7","v":0},{"$f":"AN48*'Other input expert'!M$14*'Sales price per sales channel'!$I48*'Other input expert'!M$7","v":0}]
["Celtis australis","Nettle tree",{"$f":"Plantlist!$G49*'Production list'!D50*'Other input expert'!B$4*'Other input expert'!B$8","v":0},{"$f":"Plantlist!$G49*'Production list'!E50*'Other input expert'!C$4*'Other input expert'!C$8","v":0},{"$f":"Plantlist!$G49*'Production list'!F50*'Other input expert'!D$4*'Other input expert'!D$8","v":0},{"$f":"Plantlist!$G49*'Production list'!G50*'Other input expert'!E$4*'Other input expert'!E$8","v":0},{"$f":"Plantlist!$G49*'Production list'!H50*'Other input expert'!F$4*'Other input expert'!F$8","v":0},{"$f":"Plantlist!$G49*'Production list'!I50*'Other input expert'!G$4*'Other input expert'!G$8","v":0},{"$f":"Plantlist!$G49*'Production list'!J50*'Other input expert'!H$4*'Other input expert'!H$8","v":0},{"$f":"Plantlist!$G49*'Production list'!K50*'Other input expert'!I$4*'Other input expert'!I$8","v":0},{"$f":"Plantlist!$G49*'Production list'!L50*'Other input expert'!J$4*'Other input expert'!J$8","v":0},{"$f":"Plantlist!$G49*'Production list'!M50*'Other input expert'!K$4*'Other input expert'!K$8","v":0},{"$f":"Plantlist!$G49*'Production list'!N50*'Other input expert'!L$4*'Other input expert'!L$8","v":0},{"$f":"Plantlist!$G49*'Production list'!O50*'Other input expert'!M$4*'Other input expert'!M$8","v":0},null,{"$f":"C49*'Other input expert'!B$5","v":0},{"$f":"D49*'Other input expert'!C$5","v":0},{"$f":"E49*'Other input expert'!D$5","v":0},{"$f":"F49*'Other input expert'!E$5","v":0},{"$f":"G49*'Other input expert'!F$5","v":0},{"$f":"H49*'Other input expert'!G$5","v":0},{"$f":"I49*'Other input expert'!H$5","v":0},{"$f":"J49*'Other input expert'!I$5","v":0},{"$f":"K49*'Other input expert'!J$5","v":0},{"$f":"L49*'Other input expert'!K$5","v":0},{"$f":"M49*'Other input expert'!L$5","v":0},{"$f":"N49*'Other input expert'!M$5","v":0},null,{"$f":"C49*(100%-'Other input expert'!B$5)","v":0},{"$f":"D49*(100%-'Other input expert'!C$5)","v":0},{"$f":"E49*(100%-'Other input expert'!D$5)","v":0},{"$f":"F49*(100%-'Other input expert'!E$5)","v":0},{"$f":"G49*(100%-'Other input expert'!F$5)","v":0},{"$f":"H49*(100%-'Other input expert'!G$5)","v":0},{"$f":"I49*(100%-'Other input expert'!H$5)","v":0},{"$f":"J49*(100%-'Other input expert'!I$5)","v":0},{"$f":"K49*(100%-'Other input expert'!J$5)","v":0},{"$f":"L49*(100%-'Other input expert'!K$5)","v":0},{"$f":"M49*(100%-'Other input expert'!L$5)","v":0},{"$f":"N49*(100%-'Other input expert'!M$5)","v":0},null,{"$f":"P49*'Other input expert'!B$12*'Sales price per sales channel'!$G49*'Other input expert'!B$6","v":0},{"$f":"Q49*'Other input expert'!C$12*'Sales price per sales channel'!$G49*'Other input expert'!C$6","v":0},{"$f":"R49*'Other input expert'!D$12*'Sales price per sales channel'!$G49*'Other input expert'!D$6","v":0},{"$f":"S49*'Other input expert'!E$12*'Sales price per sales channel'!$G49*'Other input expert'!E$6","v":0},{"$f":"T49*'Other input expert'!F$12*'Sales price per sales channel'!$G49*'Other input expert'!F$6","v":0},{"$f":"U49*'Other input expert'!G$12*'Sales price per sales channel'!$G49*'Other input expert'!G$6","v":0},{"$f":"V49*'Other input expert'!H$12*'Sales price per sales channel'!$G49*'Other input expert'!H$6","v":0},{"$f":"W49*'Other input expert'!I$12*'Sales price per sales channel'!$G49*'Other input expert'!I$6","v":0},{"$f":"X49*'Other input expert'!J$12*'Sales price per sales channel'!$G49*'Other input expert'!J$6","v":0},{"$f":"Y49*'Other input expert'!K$12*'Sales price per sales channel'!$G49*'Other input expert'!K$6","v":0},{"$f":"Z49*'Other input expert'!L$12*'Sales price per sales channel'!$G49*'Other input expert'!L$6","v":0},{"$f":"AA49*'Other input expert'!M$12*'Sales price per sales channel'!$G49*'Other input expert'!M$6","v":0},null,{"$f":"P49*'Other input expert'!B$13*'Sales price per sales channel'!$H49*'Other input expert'!B$6","v":0},{"$f":"Q49*'Other input expert'!C$13*'Sales price per sales channel'!$H49*'Other input expert'!C$6","v":0},{"$f":"R49*'Other input expert'!D$13*'Sales price per sales channel'!$H49*'Other input expert'!D$6","v":0},{"$f":"S49*'Other input expert'!E$13*'Sales price per sales channel'!$H49*'Other input expert'!E$6","v":0},{"$f":"T49*'Other input expert'!F$13*'Sales price per sales channel'!$H49*'Other input expert'!F$6","v":0},{"$f":"U49*'Other input expert'!G$13*'Sales price per sales channel'!$H49*'Other input expert'!G$6","v":0},{"$f":"V49*'Other input expert'!H$13*'Sales price per sales channel'!$H49*'Other input expert'!H$6","v":0},{"$f":"W49*'Other input expert'!I$13*'Sales price per sales channel'!$H49*'Other input expert'!I$6","v":0},{"$f":"X49*'Other input expert'!J$13*'Sales price per sales channel'!$H49*'Other input expert'!J$6","v":0},{"$f":"Y49*'Other input expert'!K$13*'Sales price per sales channel'!$H49*'Other input expert'!K$6","v":0},{"$f":"Z49*'Other input expert'!L$13*'Sales price per sales channel'!$H49*'Other input expert'!L$6","v":0},{"$f":"AA49*'Other input expert'!M$13*'Sales price per sales channel'!$H49*'Other input expert'!M$6","v":0},null,{"$f":"P49*'Other input expert'!B$14*'Sales price per sales channel'!$I49*'Other input expert'!B$6","v":0},{"$f":"Q49*'Other input expert'!C$14*'Sales price per sales channel'!$I49*'Other input expert'!C$6","v":0},{"$f":"R49*'Other input expert'!D$14*'Sales price per sales channel'!$I49*'Other input expert'!D$6","v":0},{"$f":"S49*'Other input expert'!E$14*'Sales price per sales channel'!$I49*'Other input expert'!E$6","v":0},{"$f":"T49*'Other input expert'!F$14*'Sales price per sales channel'!$I49*'Other input expert'!F$6","v":0},{"$f":"U49*'Other input expert'!G$14*'Sales price per sales channel'!$I49*'Other input expert'!G$6","v":0},{"$f":"V49*'Other input expert'!H$14*'Sales price per sales channel'!$I49*'Other input expert'!H$6","v":0},{"$f":"W49*'Other input expert'!I$14*'Sales price per sales channel'!$I49*'Other input expert'!I$6","v":0},{"$f":"X49*'Other input expert'!J$14*'Sales price per sales channel'!$I49*'Other input expert'!J$6","v":0},{"$f":"Y49*'Other input expert'!K$14*'Sales price per sales channel'!$I49*'Other input expert'!K$6","v":0},{"$f":"Z49*'Other input expert'!L$14*'Sales price per sales channel'!$I49*'Other input expert'!L$6","v":0},{"$f":"AA49*'Other input expert'!M$14*'Sales price per sales channel'!$I49*'Other input expert'!M$6","v":0},null,{"$f":"AC49*'Other input expert'!B$12*'Sales price per sales channel'!$G49*'Other input expert'!B$7","v":0},{"$f":"AD49*'Other input expert'!C$12*'Sales price per sales channel'!$G49*'Other input expert'!C$7","v":0},{"$f":"AE49*'Other input expert'!D$12*'Sales price per sales channel'!$G49*'Other input expert'!D$7","v":0},{"$f":"AF49*'Other input expert'!E$12*'Sales price per sales channel'!$G49*'Other input expert'!E$7","v":0},{"$f":"AG49*'Other input expert'!F$12*'Sales price per sales channel'!$G49*'Other input expert'!F$7","v":0},{"$f":"AH49*'Other input expert'!G$12*'Sales price per sales channel'!$G49*'Other input expert'!G$7","v":0},{"$f":"AI49*'Other input expert'!H$12*'Sales price per sales channel'!$G49*'Other input expert'!H$7","v":0},{"$f":"AJ49*'Other input expert'!I$12*'Sales price per sales channel'!$G49*'Other input expert'!I$7","v":0},{"$f":"AK49*'Other input expert'!J$12*'Sales price per sales channel'!$G49*'Other input expert'!J$7","v":0},{"$f":"AL49*'Other input expert'!K$12*'Sales price per sales channel'!$G49*'Other input expert'!K$7","v":0},{"$f":"AM49*'Other input expert'!L$12*'Sales price per sales channel'!$G49*'Other input expert'!L$7","v":0},{"$f":"AN49*'Other input expert'!M$12*'Sales price per sales channel'!$G49*'Other input expert'!M$7","v":0},null,{"$f":"AC49*'Other input expert'!B$13*'Sales price per sales channel'!$H49*'Other input expert'!B$7","v":0},{"$f":"AD49*'Other input expert'!C$13*'Sales price per sales channel'!$H49*'Other input expert'!C$7","v":0},{"$f":"AE49*'Other input expert'!D$13*'Sales price per sales channel'!$H49*'Other input expert'!D$7","v":0},{"$f":"AF49*'Other input expert'!E$13*'Sales price per sales channel'!$H49*'Other input expert'!E$7","v":0},{"$f":"AG49*'Other input expert'!F$13*'Sales price per sales channel'!$H49*'Other input expert'!F$7","v":0},{"$f":"AH49*'Other input expert'!G$13*'Sales price per sales channel'!$H49*'Other input expert'!G$7","v":0},{"$f":"AI49*'Other input expert'!H$13*'Sales price per sales channel'!$H49*'Other input expert'!H$7","v":0},{"$f":"AJ49*'Other input expert'!I$13*'Sales price per sales channel'!$H49*'Other input expert'!I$7","v":0},{"$f":"AK49*'Other input expert'!J$13*'Sales price per sales channel'!$H49*'Other input expert'!J$7","v":0},{"$f":"AL49*'Other input expert'!K$13*'Sales price per sales channel'!$H49*'Other input expert'!K$7","v":0},{"$f":"AM49*'Other input expert'!L$13*'Sales price per sales channel'!$H49*'Other input expert'!L$7","v":0},{"$f":"AN49*'Other input expert'!M$13*'Sales price per sales channel'!$H49*'Other input expert'!M$7","v":0},null,{"$f":"AC49*'Other input expert'!B$14*'Sales price per sales channel'!$I49*'Other input expert'!B$7","v":0},{"$f":"AD49*'Other input expert'!C$14*'Sales price per sales channel'!$I49*'Other input expert'!C$7","v":0},{"$f":"AE49*'Other input expert'!D$14*'Sales price per sales channel'!$I49*'Other input expert'!D$7","v":0},{"$f":"AF49*'Other input expert'!E$14*'Sales price per sales channel'!$I49*'Other input expert'!E$7","v":0},{"$f":"AG49*'Other input expert'!F$14*'Sales price per sales channel'!$I49*'Other input expert'!F$7","v":0},{"$f":"AH49*'Other input expert'!G$14*'Sales price per sales channel'!$I49*'Other input expert'!G$7","v":0},{"$f":"AI49*'Other input expert'!H$14*'Sales price per sales channel'!$I49*'Other input expert'!H$7","v":0},{"$f":"AJ49*'Other input expert'!I$14*'Sales price per sales channel'!$I49*'Other input expert'!I$7","v":0},{"$f":"AK49*'Other input expert'!J$14*'Sales price per sales channel'!$I49*'Other input expert'!J$7","v":0},{"$f":"AL49*'Other input expert'!K$14*'Sales price per sales channel'!$I49*'Other input expert'!K$7","v":0},{"$f":"AM49*'Other input expert'!L$14*'Sales price per sales channel'!$I49*'Other input expert'!L$7","v":0},{"$f":"AN49*'Other input expert'!M$14*'Sales price per sales channel'!$I49*'Other input expert'!M$7","v":0}]
["Cercis siliquastrum","Judas tree",{"$f":"Plantlist!$G50*'Production list'!D51*'Other input expert'!B$4*'Other input expert'!B$8","v":0},{"$f":"Plantlist!$G50*'Production list'!E51*'Other input expert'!C$4*'Other input expert'!C$8","v":0},{"$f":"Plantlist!$G50*'Production list'!F51*'Other input expert'!D$4*'Other input expert'!D$8","v":0},{"$f":"Plantlist!$G50*'Production list'!G51*'Other input expert'!E$4*'Other input expert'!E$8","v":0},{"$f":"Plantlist!$G50*'Production list'!H51*'Other input expert'!F$4*'Other input expert'!F$8","v":0},{"$f":"Plantlist!$G50*'Production list'!I51*'Other input expert'!G$4*'Other input expert'!G$8","v":0},{"$f":"Plantlist!$G50*'Production list'!J51*'Other input expert'!H$4*'Other input expert'!H$8","v":0},{"$f":"Plantlist!$G50*'Production list'!K51*'Other input expert'!I$4*'Other input expert'!I$8","v":0},{"$f":"Plantlist!$G50*'Production list'!L51*'Other input expert'!J$4*'Other input expert'!J$8","v":0},{"$f":"Plantlist!$G50*'Production list'!M51*'Other input expert'!K$4*'Other input expert'!K$8","v":0},{"$f":"Plantlist!$G50*'Production list'!N51*'Other input expert'!L$4*'Other input expert'!L$8","v":0},{"$f":"Plantlist!$G50*'Production list'!O51*'Other input expert'!M$4*'Other input expert'!M$8","v":0},null,{"$f":"C50*'Other input expert'!B$5","v":0},{"$f":"D50*'Other input expert'!C$5","v":0},{"$f":"E50*'Other input expert'!D$5","v":0},{"$f":"F50*'Other input expert'!E$5","v":0},{"$f":"G50*'Other input expert'!F$5","v":0},{"$f":"H50*'Other input expert'!G$5","v":0},{"$f":"I50*'Other input expert'!H$5","v":0},{"$f":"J50*'Other input expert'!I$5","v":0},{"$f":"K50*'Other input expert'!J$5","v":0},{"$f":"L50*'Other input expert'!K$5","v":0},{"$f":"M50*'Other input expert'!L$5","v":0},{"$f":"N50*'Other input expert'!M$5","v":0},null,{"$f":"C50*(100%-'Other input expert'!B$5)","v":0},{"$f":"D50*(100%-'Other input expert'!C$5)","v":0},{"$f":"E50*(100%-'Other input expert'!D$5)","v":0},{"$f":"F50*(100%-'Other input expert'!E$5)","v":0},{"$f":"G50*(100%-'Other input expert'!F$5)","v":0},{"$f":"H50*(100%-'Other input expert'!G$5)","v":0},{"$f":"I50*(100%-'Other input expert'!H$5)","v":0},{"$f":"J50*(100%-'Other input expert'!I$5)","v":0},{"$f":"K50*(100%-'Other input expert'!J$5)","v":0},{"$f":"L50*(100%-'Other input expert'!K$5)","v":0},{"$f":"M50*(100%-'Other input expert'!L$5)","v":0},{"$f":"N50*(100%-'Other input expert'!M$5)","v":0},null,{"$f":"P50*'Other input expert'!B$12*'Sales price per sales channel'!$G50*'Other input expert'!B$6","v":0},{"$f":"Q50*'Other input expert'!C$12*'Sales price per sales channel'!$G50*'Other input expert'!C$6","v":0},{"$f":"R50*'Other input expert'!D$12*'Sales price per sales channel'!$G50*'Other input expert'!D$6","v":0},{"$f":"S50*'Other input expert'!E$12*'Sales price per sales channel'!$G50*'Other input expert'!E$6","v":0},{"$f":"T50*'Other input expert'!F$12*'Sales price per sales channel'!$G50*'Other input expert'!F$6","v":0},{"$f":"U50*'Other input expert'!G$12*'Sales price per sales channel'!$G50*'Other input expert'!G$6","v":0},{"$f":"V50*'Other input expert'!H$12*'Sales price per sales channel'!$G50*'Other input expert'!H$6","v":0},{"$f":"W50*'Other input expert'!I$12*'Sales price per sales channel'!$G50*'Other input expert'!I$6","v":0},{"$f":"X50*'Other input expert'!J$12*'Sales price per sales channel'!$G50*'Other input expert'!J$6","v":0},{"$f":"Y50*'Other input expert'!K$12*'Sales price per sales channel'!$G50*'Other input expert'!K$6","v":0},{"$f":"Z50*'Other input expert'!L$12*'Sales price per sales channel'!$G50*'Other input expert'!L$6","v":0},{"$f":"AA50*'Other input expert'!M$12*'Sales price per sales channel'!$G50*'Other input expert'!M$6","v":0},null,{"$f":"P50*'Other input expert'!B$13*'Sales price per sales channel'!$H50*'Other input expert'!B$6","v":0},{"$f":"Q50*'Other input expert'!C$13*'Sales price per sales channel'!$H50*'Other input expert'!C$6","v":0},{"$f":"R50*'Other input expert'!D$13*'Sales price per sales channel'!$H50*'Other input expert'!D$6","v":0},{"$f":"S50*'Other input expert'!E$13*'Sales price per sales channel'!$H50*'Other input expert'!E$6","v":0},{"$f":"T50*'Other input expert'!F$13*'Sales price per sales channel'!$H50*'Other input expert'!F$6","v":0},{"$f":"U50*'Other input expert'!G$13*'Sales price per sales channel'!$H50*'Other input expert'!G$6","v":0},{"$f":"V50*'Other input expert'!H$13*'Sales price per sales channel'!$H50*'Other input expert'!H$6","v":0},{"$f":"W50*'Other input expert'!I$13*'Sales price per sales channel'!$H50*'Other input expert'!I$6","v":0},{"$f":"X50*'Other input expert'!J$13*'Sales price per sales channel'!$H50*'Other input expert'!J$6","v":0},{"$f":"Y50*'Other input expert'!K$13*'Sales price per sales channel'!$H50*'Other input expert'!K$6","v":0},{"$f":"Z50*'Other input expert'!L$13*'Sales price per sales channel'!$H50*'Other input expert'!L$6","v":0},{"$f":"AA50*'Other input expert'!M$13*'Sales price per sales channel'!$H50*'Other input expert'!M$6","v":0},null,{"$f":"P50*'Other input expert'!B$14*'Sales price per sales channel'!$I50*'Other input expert'!B$6","v":0},{"$f":"Q50*'Other input expert'!C$14*'Sales price per sales channel'!$I50*'Other input expert'!C$6","v":0},{"$f":"R50*'Other input expert'!D$14*'Sales price per sales channel'!$I50*'Other input expert'!D$6","v":0},{"$f":"S50*'Other input expert'!E$14*'Sales price per sales channel'!$I50*'Other input expert'!E$6","v":0},{"$f":"T50*'Other input expert'!F$14*'Sales price per sales channel'!$I50*'Other input expert'!F$6","v":0},{"$f":"U50*'Other input expert'!G$14*'Sales price per sales channel'!$I50*'Other input expert'!G$6","v":0},{"$f":"V50*'Other input expert'!H$14*'Sales price per sales channel'!$I50*'Other input expert'!H$6","v":0},{"$f":"W50*'Other input expert'!I$14*'Sales price per sales channel'!$I50*'Other input expert'!I$6","v":0},{"$f":"X50*'Other input expert'!J$14*'Sales price per sales channel'!$I50*'Other input expert'!J$6","v":0},{"$f":"Y50*'Other input expert'!K$14*'Sales price per sales channel'!$I50*'Other input expert'!K$6","v":0},{"$f":"Z50*'Other input expert'!L$14*'Sales price per sales channel'!$I50*'Other input expert'!L$6","v":0},{"$f":"AA50*'Other input expert'!M$14*'Sales price per sales channel'!$I50*'Other input expert'!M$6","v":0},null,{"$f":"AC50*'Other input expert'!B$12*'Sales price per sales channel'!$G50*'Other input expert'!B$7","v":0},{"$f":"AD50*'Other input expert'!C$12*'Sales price per sales channel'!$G50*'Other input expert'!C$7","v":0},{"$f":"AE50*'Other input expert'!D$12*'Sales price per sales channel'!$G50*'Other input expert'!D$7","v":0},{"$f":"AF50*'Other input expert'!E$12*'Sales price per sales channel'!$G50*'Other input expert'!E$7","v":0},{"$f":"AG50*'Other input expert'!F$12*'Sales price per sales channel'!$G50*'Other input expert'!F$7","v":0},{"$f":"AH50*'Other input expert'!G$12*'Sales price per sales channel'!$G50*'Other input expert'!G$7","v":0},{"$f":"AI50*'Other input expert'!H$12*'Sales price per sales channel'!$G50*'Other input expert'!H$7","v":0},{"$f":"AJ50*'Other input expert'!I$12*'Sales price per sales channel'!$G50*'Other input expert'!I$7","v":0},{"$f":"AK50*'Other input expert'!J$12*'Sales price per sales channel'!$G50*'Other input expert'!J$7","v":0},{"$f":"AL50*'Other input expert'!K$12*'Sales price per sales channel'!$G50*'Other input expert'!K$7","v":0},{"$f":"AM50*'Other input expert'!L$12*'Sales price per sales channel'!$G50*'Other input expert'!L$7","v":0},{"$f":"AN50*'Other input expert'!M$12*'Sales price per sales channel'!$G50*'Other input expert'!M$7","v":0},null,{"$f":"AC50*'Other input expert'!B$13*'Sales price per sales channel'!$H50*'Other input expert'!B$7","v":0},{"$f":"AD50*'Other input expert'!C$13*'Sales price per sales channel'!$H50*'Other input expert'!C$7","v":0},{"$f":"AE50*'Other input expert'!D$13*'Sales price per sales channel'!$H50*'Other input expert'!D$7","v":0},{"$f":"AF50*'Other input expert'!E$13*'Sales price per sales channel'!$H50*'Other input expert'!E$7","v":0},{"$f":"AG50*'Other input expert'!F$13*'Sales price per sales channel'!$H50*'Other input expert'!F$7","v":0},{"$f":"AH50*'Other input expert'!G$13*'Sales price per sales channel'!$H50*'Other input expert'!G$7","v":0},{"$f":"AI50*'Other input expert'!H$13*'Sales price per sales channel'!$H50*'Other input expert'!H$7","v":0},{"$f":"AJ50*'Other input expert'!I$13*'Sales price per sales channel'!$H50*'Other input expert'!I$7","v":0},{"$f":"AK50*'Other input expert'!J$13*'Sales price per sales channel'!$H50*'Other input expert'!J$7","v":0},{"$f":"AL50*'Other input expert'!K$13*'Sales price per sales channel'!$H50*'Other input expert'!K$7","v":0},{"$f":"AM50*'Other input expert'!L$13*'Sales price per sales channel'!$H50*'Other input expert'!L$7","v":0},{"$f":"AN50*'Other input expert'!M$13*'Sales price per sales channel'!$H50*'Other input expert'!M$7","v":0},null,{"$f":"AC50*'Other input expert'!B$14*'Sales price per sales channel'!$I50*'Other input expert'!B$7","v":0},{"$f":"AD50*'Other input expert'!C$14*'Sales price per sales channel'!$I50*'Other input expert'!C$7","v":0},{"$f":"AE50*'Other input expert'!D$14*'Sales price per sales channel'!$I50*'Other input expert'!D$7","v":0},{"$f":"AF50*'Other input expert'!E$14*'Sales price per sales channel'!$I50*'Other input expert'!E$7","v":0},{"$f":"AG50*'Other input expert'!F$14*'Sales price per sales channel'!$I50*'Other input expert'!F$7","v":0},{"$f":"AH50*'Other input expert'!G$14*'Sales price per sales channel'!$I50*'Other input expert'!G$7","v":0},{"$f":"AI50*'Other input expert'!H$14*'Sales price per sales channel'!$I50*'Other input expert'!H$7","v":0},{"$f":"AJ50*'Other input expert'!I$14*'Sales price per sales channel'!$I50*'Other input expert'!I$7","v":0},{"$f":"AK50*'Other input expert'!J$14*'Sales price per sales channel'!$I50*'Other input expert'!J$7","v":0},{"$f":"AL50*'Other input expert'!K$14*'Sales price per sales channel'!$I50*'Other input expert'!K$7","v":0},{"$f":"AM50*'Other input expert'!L$14*'Sales price per sales channel'!$I50*'Other input expert'!L$7","v":0},{"$f":"AN50*'Other input expert'!M$14*'Sales price per sales channel'!$I50*'Other input expert'!M$7","v":0}]
["Chaenomeles cathayensis","Chinese quince",{"$f":"Plantlist!$G51*'Production list'!D52*'Other input expert'!B$4*'Other input expert'!B$8","v":0},{"$f":"Plantlist!$G51*'Production list'!E52*'Other input expert'!C$4*'Other input expert'!C$8","v":0},{"$f":"Plantlist!$G51*'Production list'!F52*'Other input expert'!D$4*'Other input expert'!D$8","v":0},{"$f":"Plantlist!$G51*'Production list'!G52*'Other input expert'!E$4*'Other input expert'!E$8","v":0},{"$f":"Plantlist!$G51*'Production list'!H52*'Other input expert'!F$4*'Other input expert'!F$8","v":0},{"$f":"Plantlist!$G51*'Production list'!I52*'Other input expert'!G$4*'Other input expert'!G$8","v":0},{"$f":"Plantlist!$G51*'Production list'!J52*'Other input expert'!H$4*'Other input expert'!H$8","v":0},{"$f":"Plantlist!$G51*'Production list'!K52*'Other input expert'!I$4*'Other input expert'!I$8","v":0},{"$f":"Plantlist!$G51*'Production list'!L52*'Other input expert'!J$4*'Other input expert'!J$8","v":0},{"$f":"Plantlist!$G51*'Production list'!M52*'Other input expert'!K$4*'Other input expert'!K$8","v":0},{"$f":"Plantlist!$G51*'Production list'!N52*'Other input expert'!L$4*'Other input expert'!L$8","v":0},{"$f":"Plantlist!$G51*'Production list'!O52*'Other input expert'!M$4*'Other input expert'!M$8","v":0},null,{"$f":"C51*'Other input expert'!B$5","v":0},{"$f":"D51*'Other input expert'!C$5","v":0},{"$f":"E51*'Other input expert'!D$5","v":0},{"$f":"F51*'Other input expert'!E$5","v":0},{"$f":"G51*'Other input expert'!F$5","v":0},{"$f":"H51*'Other input expert'!G$5","v":0},{"$f":"I51*'Other input expert'!H$5","v":0},{"$f":"J51*'Other input expert'!I$5","v":0},{"$f":"K51*'Other input expert'!J$5","v":0},{"$f":"L51*'Other input expert'!K$5","v":0},{"$f":"M51*'Other input expert'!L$5","v":0},{"$f":"N51*'Other input expert'!M$5","v":0},null,{"$f":"C51*(100%-'Other input expert'!B$5)","v":0},{"$f":"D51*(100%-'Other input expert'!C$5)","v":0},{"$f":"E51*(100%-'Other input expert'!D$5)","v":0},{"$f":"F51*(100%-'Other input expert'!E$5)","v":0},{"$f":"G51*(100%-'Other input expert'!F$5)","v":0},{"$f":"H51*(100%-'Other input expert'!G$5)","v":0},{"$f":"I51*(100%-'Other input expert'!H$5)","v":0},{"$f":"J51*(100%-'Other input expert'!I$5)","v":0},{"$f":"K51*(100%-'Other input expert'!J$5)","v":0},{"$f":"L51*(100%-'Other input expert'!K$5)","v":0},{"$f":"M51*(100%-'Other input expert'!L$5)","v":0},{"$f":"N51*(100%-'Other input expert'!M$5)","v":0},null,{"$f":"P51*'Other input expert'!B$12*'Sales price per sales channel'!$G51*'Other input expert'!B$6","v":0},{"$f":"Q51*'Other input expert'!C$12*'Sales price per sales channel'!$G51*'Other input expert'!C$6","v":0},{"$f":"R51*'Other input expert'!D$12*'Sales price per sales channel'!$G51*'Other input expert'!D$6","v":0},{"$f":"S51*'Other input expert'!E$12*'Sales price per sales channel'!$G51*'Other input expert'!E$6","v":0},{"$f":"T51*'Other input expert'!F$12*'Sales price per sales channel'!$G51*'Other input expert'!F$6","v":0},{"$f":"U51*'Other input expert'!G$12*'Sales price per sales channel'!$G51*'Other input expert'!G$6","v":0},{"$f":"V51*'Other input expert'!H$12*'Sales price per sales channel'!$G51*'Other input expert'!H$6","v":0},{"$f":"W51*'Other input expert'!I$12*'Sales price per sales channel'!$G51*'Other input expert'!I$6","v":0},{"$f":"X51*'Other input expert'!J$12*'Sales price per sales channel'!$G51*'Other input expert'!J$6","v":0},{"$f":"Y51*'Other input expert'!K$12*'Sales price per sales channel'!$G51*'Other input expert'!K$6","v":0},{"$f":"Z51*'Other input expert'!L$12*'Sales price per sales channel'!$G51*'Other input expert'!L$6","v":0},{"$f":"AA51*'Other input expert'!M$12*'Sales price per sales channel'!$G51*'Other input expert'!M$6","v":0},null,{"$f":"P51*'Other input expert'!B$13*'Sales price per sales channel'!$H51*'Other input expert'!B$6","v":0},{"$f":"Q51*'Other input expert'!C$13*'Sales price per sales channel'!$H51*'Other input expert'!C$6","v":0},{"$f":"R51*'Other input expert'!D$13*'Sales price per sales channel'!$H51*'Other input expert'!D$6","v":0},{"$f":"S51*'Other input expert'!E$13*'Sales price per sales channel'!$H51*'Other input expert'!E$6","v":0},{"$f":"T51*'Other input expert'!F$13*'Sales price per sales channel'!$H51*'Other input expert'!F$6","v":0},{"$f":"U51*'Other input expert'!G$13*'Sales price per sales channel'!$H51*'Other input expert'!G$6","v":0},{"$f":"V51*'Other input expert'!H$13*'Sales price per sales channel'!$H51*'Other input expert'!H$6","v":0},{"$f":"W51*'Other input expert'!I$13*'Sales price per sales channel'!$H51*'Other input expert'!I$6","v":0},{"$f":"X51*'Other input expert'!J$13*'Sales price per sales channel'!$H51*'Other input expert'!J$6","v":0},{"$f":"Y51*'Other input expert'!K$13*'Sales price per sales channel'!$H51*'Other input expert'!K$6","v":0},{"$f":"Z51*'Other input expert'!L$13*'Sales price per sales channel'!$H51*'Other input expert'!L$6","v":0},{"$f":"AA51*'Other input expert'!M$13*'Sales price per sales channel'!$H51*'Other input expert'!M$6","v":0},null,{"$f":"P51*'Other input expert'!B$14*'Sales price per sales channel'!$I51*'Other input expert'!B$6","v":0},{"$f":"Q51*'Other input expert'!C$14*'Sales price per sales channel'!$I51*'Other input expert'!C$6","v":0},{"$f":"R51*'Other input expert'!D$14*'Sales price per sales channel'!$I51*'Other input expert'!D$6","v":0},{"$f":"S51*'Other input expert'!E$14*'Sales price per sales channel'!$I51*'Other input expert'!E$6","v":0},{"$f":"T51*'Other input expert'!F$14*'Sales price per sales channel'!$I51*'Other input expert'!F$6","v":0},{"$f":"U51*'Other input expert'!G$14*'Sales price per sales channel'!$I51*'Other input expert'!G$6","v":0},{"$f":"V51*'Other input expert'!H$14*'Sales price per sales channel'!$I51*'Other input expert'!H$6","v":0},{"$f":"W51*'Other input expert'!I$14*'Sales price per sales channel'!$I51*'Other input expert'!I$6","v":0},{"$f":"X51*'Other input expert'!J$14*'Sales price per sales channel'!$I51*'Other input expert'!J$6","v":0},{"$f":"Y51*'Other input expert'!K$14*'Sales price per sales channel'!$I51*'Other input expert'!K$6","v":0},{"$f":"Z51*'Other input expert'!L$14*'Sales price per sales channel'!$I51*'Other input expert'!L$6","v":0},{"$f":"AA51*'Other input expert'!M$14*'Sales price per sales channel'!$I51*'Other input expert'!M$6","v":0},null,{"$f":"AC51*'Other input expert'!B$12*'Sales price per sales channel'!$G51*'Other input expert'!B$7","v":0},{"$f":"AD51*'Other input expert'!C$12*'Sales price per sales channel'!$G51*'Other input expert'!C$7","v":0},{"$f":"AE51*'Other input expert'!D$12*'Sales price per sales channel'!$G51*'Other input expert'!D$7","v":0},{"$f":"AF51*'Other input expert'!E$12*'Sales price per sales channel'!$G51*'Other input expert'!E$7","v":0},{"$f":"AG51*'Other input expert'!F$12*'Sales price per sales channel'!$G51*'Other input expert'!F$7","v":0},{"$f":"AH51*'Other input expert'!G$12*'Sales price per sales channel'!$G51*'Other input expert'!G$7","v":0},{"$f":"AI51*'Other input expert'!H$12*'Sales price per sales channel'!$G51*'Other input expert'!H$7","v":0},{"$f":"AJ51*'Other input expert'!I$12*'Sales price per sales channel'!$G51*'Other input expert'!I$7","v":0},{"$f":"AK51*'Other input expert'!J$12*'Sales price per sales channel'!$G51*'Other input expert'!J$7","v":0},{"$f":"AL51*'Other input expert'!K$12*'Sales price per sales channel'!$G51*'Other input expert'!K$7","v":0},{"$f":"AM51*'Other input expert'!L$12*'Sales price per sales channel'!$G51*'Other input expert'!L$7","v":0},{"$f":"AN51*'Other input expert'!M$12*'Sales price per sales channel'!$G51*'Other input expert'!M$7","v":0},null,{"$f":"AC51*'Other input expert'!B$13*'Sales price per sales channel'!$H51*'Other input expert'!B$7","v":0},{"$f":"AD51*'Other input expert'!C$13*'Sales price per sales channel'!$H51*'Other input expert'!C$7","v":0},{"$f":"AE51*'Other input expert'!D$13*'Sales price per sales channel'!$H51*'Other input expert'!D$7","v":0},{"$f":"AF51*'Other input expert'!E$13*'Sales price per sales channel'!$H51*'Other input expert'!E$7","v":0},{"$f":"AG51*'Other input expert'!F$13*'Sales price per sales channel'!$H51*'Other input expert'!F$7","v":0},{"$f":"AH51*'Other input expert'!G$13*'Sales price per sales channel'!$H51*'Other input expert'!G$7","v":0},{"$f":"AI51*'Other input expert'!H$13*'Sales price per sales channel'!$H51*'Other input expert'!H$7","v":0},{"$f":"AJ51*'Other input expert'!I$13*'Sales price per sales channel'!$H51*'Other input expert'!I$7","v":0},{"$f":"AK51*'Other input expert'!J$13*'Sales price per sales channel'!$H51*'Other input expert'!J$7","v":0},{"$f":"AL51*'Other input expert'!K$13*'Sales price per sales channel'!$H51*'Other input expert'!K$7","v":0},{"$f":"AM51*'Other input expert'!L$13*'Sales price per sales channel'!$H51*'Other input expert'!L$7","v":0},{"$f":"AN51*'Other input expert'!M$13*'Sales price per sales channel'!$H51*'Other input expert'!M$7","v":0},null,{"$f":"AC51*'Other input expert'!B$14*'Sales price per sales channel'!$I51*'Other input expert'!B$7","v":0},{"$f":"AD51*'Other input expert'!C$14*'Sales price per sales channel'!$I51*'Other input expert'!C$7","v":0},{"$f":"AE51*'Other input expert'!D$14*'Sales price per sales channel'!$I51*'Other input expert'!D$7","v":0},{"$f":"AF51*'Other input expert'!E$14*'Sales price per sales channel'!$I51*'Other input expert'!E$7","v":0},{"$f":"AG51*'Other input expert'!F$14*'Sales price per sales channel'!$I51*'Other input expert'!F$7","v":0},{"$f":"AH51*'Other input expert'!G$14*'Sales price per sales channel'!$I51*'Other input expert'!G$7","v":0},{"$f":"AI51*'Other input expert'!H$14*'Sales price per sales channel'!$I51*'Other input expert'!H$7","v":0},{"$f":"AJ51*'Other input expert'!I$14*'Sales price per sales channel'!$I51*'Other input expert'!I$7","v":0},{"$f":"AK51*'Other input expert'!J$14*'Sales price per sales channel'!$I51*'Other input expert'!J$7","v":0},{"$f":"AL51*'Other input expert'!K$14*'Sales price per sales channel'!$I51*'Other input expert'!K$7","v":0},{"$f":"AM51*'Other input expert'!L$14*'Sales price per sales channel'!$I51*'Other input expert'!L$7","v":0},{"$f":"AN51*'Other input expert'!M$14*'Sales price per sales channel'!$I51*'Other input expert'!M$7","v":0}]
["Chaenomeles speciosa","Japanse quince",{"$f":"Plantlist!$G52*'Production list'!D53*'Other input expert'!B$4*'Other input expert'!B$8","v":0},{"$f":"Plantlist!$G52*'Production list'!E53*'Other input expert'!C$4*'Other input expert'!C$8","v":0},{"$f":"Plantlist!$G52*'Production list'!F53*'Other input expert'!D$4*'Other input expert'!D$8","v":0},{"$f":"Plantlist!$G52*'Production list'!G53*'Other input expert'!E$4*'Other input expert'!E$8","v":0},{"$f":"Plantlist!$G52*'Production list'!H53*'Other input expert'!F$4*'Other input expert'!F$8","v":0},{"$f":"Plantlist!$G52*'Production list'!I53*'Other input expert'!G$4*'Other input expert'!G$8","v":0},{"$f":"Plantlist!$G52*'Production list'!J53*'Other input expert'!H$4*'Other input expert'!H$8","v":0},{"$f":"Plantlist!$G52*'Production list'!K53*'Other input expert'!I$4*'Other input expert'!I$8","v":0},{"$f":"Plantlist!$G52*'Production list'!L53*'Other input expert'!J$4*'Other input expert'!J$8","v":0},{"$f":"Plantlist!$G52*'Production list'!M53*'Other input expert'!K$4*'Other input expert'!K$8","v":0},{"$f":"Plantlist!$G52*'Production list'!N53*'Other input expert'!L$4*'Other input expert'!L$8","v":0},{"$f":"Plantlist!$G52*'Production list'!O53*'Other input expert'!M$4*'Other input expert'!M$8","v":0},null,{"$f":"C52*'Other input expert'!B$5","v":0},{"$f":"D52*'Other input expert'!C$5","v":0},{"$f":"E52*'Other input expert'!D$5","v":0},{"$f":"F52*'Other input expert'!E$5","v":0},{"$f":"G52*'Other input expert'!F$5","v":0},{"$f":"H52*'Other input expert'!G$5","v":0},{"$f":"I52*'Other input expert'!H$5","v":0},{"$f":"J52*'Other input expert'!I$5","v":0},{"$f":"K52*'Other input expert'!J$5","v":0},{"$f":"L52*'Other input expert'!K$5","v":0},{"$f":"M52*'Other input expert'!L$5","v":0},{"$f":"N52*'Other input expert'!M$5","v":0},null,{"$f":"C52*(100%-'Other input expert'!B$5)","v":0},{"$f":"D52*(100%-'Other input expert'!C$5)","v":0},{"$f":"E52*(100%-'Other input expert'!D$5)","v":0},{"$f":"F52*(100%-'Other input expert'!E$5)","v":0},{"$f":"G52*(100%-'Other input expert'!F$5)","v":0},{"$f":"H52*(100%-'Other input expert'!G$5)","v":0},{"$f":"I52*(100%-'Other input expert'!H$5)","v":0},{"$f":"J52*(100%-'Other input expert'!I$5)","v":0},{"$f":"K52*(100%-'Other input expert'!J$5)","v":0},{"$f":"L52*(100%-'Other input expert'!K$5)","v":0},{"$f":"M52*(100%-'Other input expert'!L$5)","v":0},{"$f":"N52*(100%-'Other input expert'!M$5)","v":0},null,{"$f":"P52*'Other input expert'!B$12*'Sales price per sales channel'!$G52*'Other input expert'!B$6","v":0},{"$f":"Q52*'Other input expert'!C$12*'Sales price per sales channel'!$G52*'Other input expert'!C$6","v":0},{"$f":"R52*'Other input expert'!D$12*'Sales price per sales channel'!$G52*'Other input expert'!D$6","v":0},{"$f":"S52*'Other input expert'!E$12*'Sales price per sales channel'!$G52*'Other input expert'!E$6","v":0},{"$f":"T52*'Other input expert'!F$12*'Sales price per sales channel'!$G52*'Other input expert'!F$6","v":0},{"$f":"U52*'Other input expert'!G$12*'Sales price per sales channel'!$G52*'Other input expert'!G$6","v":0},{"$f":"V52*'Other input expert'!H$12*'Sales price per sales channel'!$G52*'Other input expert'!H$6","v":0},{"$f":"W52*'Other input expert'!I$12*'Sales price per sales channel'!$G52*'Other input expert'!I$6","v":0},{"$f":"X52*'Other input expert'!J$12*'Sales price per sales channel'!$G52*'Other input expert'!J$6","v":0},{"$f":"Y52*'Other input expert'!K$12*'Sales price per sales channel'!$G52*'Other input expert'!K$6","v":0},{"$f":"Z52*'Other input expert'!L$12*'Sales price per sales channel'!$G52*'Other input expert'!L$6","v":0},{"$f":"AA52*'Other input expert'!M$12*'Sales price per sales channel'!$G52*'Other input expert'!M$6","v":0},null,{"$f":"P52*'Other input expert'!B$13*'Sales price per sales channel'!$H52*'Other input expert'!B$6","v":0},{"$f":"Q52*'Other input expert'!C$13*'Sales price per sales channel'!$H52*'Other input expert'!C$6","v":0},{"$f":"R52*'Other input expert'!D$13*'Sales price per sales channel'!$H52*'Other input expert'!D$6","v":0},{"$f":"S52*'Other input expert'!E$13*'Sales price per sales channel'!$H52*'Other input expert'!E$6","v":0},{"$f":"T52*'Other input expert'!F$13*'Sales price per sales channel'!$H52*'Other input expert'!F$6","v":0},{"$f":"U52*'Other input expert'!G$13*'Sales price per sales channel'!$H52*'Other input expert'!G$6","v":0},{"$f":"V52*'Other input expert'!H$13*'Sales price per sales channel'!$H52*'Other input expert'!H$6","v":0},{"$f":"W52*'Other input expert'!I$13*'Sales price per sales channel'!$H52*'Other input expert'!I$6","v":0},{"$f":"X52*'Other input expert'!J$13*'Sales price per sales channel'!$H52*'Other input expert'!J$6","v":0},{"$f":"Y52*'Other input expert'!K$13*'Sales price per sales channel'!$H52*'Other input expert'!K$6","v":0},{"$f":"Z52*'Other input expert'!L$13*'Sales price per sales channel'!$H52*'Other input expert'!L$6","v":0},{"$f":"AA52*'Other input expert'!M$13*'Sales price per sales channel'!$H52*'Other input expert'!M$6","v":0},null,{"$f":"P52*'Other input expert'!B$14*'Sales price per sales channel'!$I52*'Other input expert'!B$6","v":0},{"$f":"Q52*'Other input expert'!C$14*'Sales price per sales channel'!$I52*'Other input expert'!C$6","v":0},{"$f":"R52*'Other input expert'!D$14*'Sales price per sales channel'!$I52*'Other input expert'!D$6","v":0},{"$f":"S52*'Other input expert'!E$14*'Sales price per sales channel'!$I52*'Other input expert'!E$6","v":0},{"$f":"T52*'Other input expert'!F$14*'Sales price per sales channel'!$I52*'Other input expert'!F$6","v":0},{"$f":"U52*'Other input expert'!G$14*'Sales price per sales channel'!$I52*'Other input expert'!G$6","v":0},{"$f":"V52*'Other input expert'!H$14*'Sales price per sales channel'!$I52*'Other input expert'!H$6","v":0},{"$f":"W52*'Other input expert'!I$14*'Sales price per sales channel'!$I52*'Other input expert'!I$6","v":0},{"$f":"X52*'Other input expert'!J$14*'Sales price per sales channel'!$I52*'Other input expert'!J$6","v":0},{"$f":"Y52*'Other input expert'!K$14*'Sales price per sales channel'!$I52*'Other input expert'!K$6","v":0},{"$f":"Z52*'Other input expert'!L$14*'Sales price per sales channel'!$I52*'Other input expert'!L$6","v":0},{"$f":"AA52*'Other input expert'!M$14*'Sales price per sales channel'!$I52*'Other input expert'!M$6","v":0},null,{"$f":"AC52*'Other input expert'!B$12*'Sales price per sales channel'!$G52*'Other input expert'!B$7","v":0},{"$f":"AD52*'Other input expert'!C$12*'Sales price per sales channel'!$G52*'Other input expert'!C$7","v":0},{"$f":"AE52*'Other input expert'!D$12*'Sales price per sales channel'!$G52*'Other input expert'!D$7","v":0},{"$f":"AF52*'Other input expert'!E$12*'Sales price per sales channel'!$G52*'Other input expert'!E$7","v":0},{"$f":"AG52*'Other input expert'!F$12*'Sales price per sales channel'!$G52*'Other input expert'!F$7","v":0},{"$f":"AH52*'Other input expert'!G$12*'Sales price per sales channel'!$G52*'Other input expert'!G$7","v":0},{"$f":"AI52*'Other input expert'!H$12*'Sales price per sales channel'!$G52*'Other input expert'!H$7","v":0},{"$f":"AJ52*'Other input expert'!I$12*'Sales price per sales channel'!$G52*'Other input expert'!I$7","v":0},{"$f":"AK52*'Other input expert'!J$12*'Sales price per sales channel'!$G52*'Other input expert'!J$7","v":0},{"$f":"AL52*'Other input expert'!K$12*'Sales price per sales channel'!$G52*'Other input expert'!K$7","v":0},{"$f":"AM52*'Other input expert'!L$12*'Sales price per sales channel'!$G52*'Other input expert'!L$7","v":0},{"$f":"AN52*'Other input expert'!M$12*'Sales price per sales channel'!$G52*'Other input expert'!M$7","v":0},null,{"$f":"AC52*'Other input expert'!B$13*'Sales price per sales channel'!$H52*'Other input expert'!B$7","v":0},{"$f":"AD52*'Other input expert'!C$13*'Sales price per sales channel'!$H52*'Other input expert'!C$7","v":0},{"$f":"AE52*'Other input expert'!D$13*'Sales price per sales channel'!$H52*'Other input expert'!D$7","v":0},{"$f":"AF52*'Other input expert'!E$13*'Sales price per sales channel'!$H52*'Other input expert'!E$7","v":0},{"$f":"AG52*'Other input expert'!F$13*'Sales price per sales channel'!$H52*'Other input expert'!F$7","v":0},{"$f":"AH52*'Other input expert'!G$13*'Sales price per sales channel'!$H52*'Other input expert'!G$7","v":0},{"$f":"AI52*'Other input expert'!H$13*'Sales price per sales channel'!$H52*'Other input expert'!H$7","v":0},{"$f":"AJ52*'Other input expert'!I$13*'Sales price per sales channel'!$H52*'Other input expert'!I$7","v":0},{"$f":"AK52*'Other input expert'!J$13*'Sales price per sales channel'!$H52*'Other input expert'!J$7","v":0},{"$f":"AL52*'Other input expert'!K$13*'Sales price per sales channel'!$H52*'Other input expert'!K$7","v":0},{"$f":"AM52*'Other input expert'!L$13*'Sales price per sales channel'!$H52*'Other input expert'!L$7","v":0},{"$f":"AN52*'Other input expert'!M$13*'Sales price per sales channel'!$H52*'Other input expert'!M$7","v":0},null,{"$f":"AC52*'Other input expert'!B$14*'Sales price per sales channel'!$I52*'Other input expert'!B$7","v":0},{"$f":"AD52*'Other input expert'!C$14*'Sales price per sales channel'!$I52*'Other input expert'!C$7","v":0},{"$f":"AE52*'Other input expert'!D$14*'Sales price per sales channel'!$I52*'Other input expert'!D$7","v":0},{"$f":"AF52*'Other input expert'!E$14*'Sales price per sales channel'!$I52*'Other input expert'!E$7","v":0},{"$f":"AG52*'Other input expert'!F$14*'Sales price per sales channel'!$I52*'Other input expert'!F$7","v":0},{"$f":"AH52*'Other input expert'!G$14*'Sales price per sales channel'!$I52*'Other input expert'!G$7","v":0},{"$f":"AI52*'Other input expert'!H$14*'Sales price per sales channel'!$I52*'Other input expert'!H$7","v":0},{"$f":"AJ52*'Other input expert'!I$14*'Sales price per sales channel'!$I52*'Other input expert'!I$7","v":0},{"$f":"AK52*'Other input expert'!J$14*'Sales price per sales channel'!$I52*'Other input expert'!J$7","v":0},{"$f":"AL52*'Other input expert'!K$14*'Sales price per sales channel'!$I52*'Other input expert'!K$7","v":0},{"$f":"AM52*'Other input expert'!L$14*'Sales price per sales channel'!$I52*'Other input expert'!L$7","v":0},{"$f":"AN52*'Other input expert'!M$14*'Sales price per sales channel'!$I52*'Other input expert'!M$7","v":0}]
["Chaenomeles spp.","Flowering quince",{"$f":"Plantlist!$G53*'Production list'!D54*'Other input expert'!B$4*'Other input expert'!B$8","v":0},{"$f":"Plantlist!$G53*'Production list'!E54*'Other input expert'!C$4*'Other input expert'!C$8","v":0},{"$f":"Plantlist!$G53*'Production list'!F54*'Other input expert'!D$4*'Other input expert'!D$8","v":0},{"$f":"Plantlist!$G53*'Production list'!G54*'Other input expert'!E$4*'Other input expert'!E$8","v":0},{"$f":"Plantlist!$G53*'Production list'!H54*'Other input expert'!F$4*'Other input expert'!F$8","v":0},{"$f":"Plantlist!$G53*'Production list'!I54*'Other input expert'!G$4*'Other input expert'!G$8","v":0},{"$f":"Plantlist!$G53*'Production list'!J54*'Other input expert'!H$4*'Other input expert'!H$8","v":0},{"$f":"Plantlist!$G53*'Production list'!K54*'Other input expert'!I$4*'Other input expert'!I$8","v":0},{"$f":"Plantlist!$G53*'Production list'!L54*'Other input expert'!J$4*'Other input expert'!J$8","v":0},{"$f":"Plantlist!$G53*'Production list'!M54*'Other input expert'!K$4*'Other input expert'!K$8","v":0},{"$f":"Plantlist!$G53*'Production list'!N54*'Other input expert'!L$4*'Other input expert'!L$8","v":0},{"$f":"Plantlist!$G53*'Production list'!O54*'Other input expert'!M$4*'Other input expert'!M$8","v":0},null,{"$f":"C53*'Other input expert'!B$5","v":0},{"$f":"D53*'Other input expert'!C$5","v":0},{"$f":"E53*'Other input expert'!D$5","v":0},{"$f":"F53*'Other input expert'!E$5","v":0},{"$f":"G53*'Other input expert'!F$5","v":0},{"$f":"H53*'Other input expert'!G$5","v":0},{"$f":"I53*'Other input expert'!H$5","v":0},{"$f":"J53*'Other input expert'!I$5","v":0},{"$f":"K53*'Other input expert'!J$5","v":0},{"$f":"L53*'Other input expert'!K$5","v":0},{"$f":"M53*'Other input expert'!L$5","v":0},{"$f":"N53*'Other input expert'!M$5","v":0},null,{"$f":"C53*(100%-'Other input expert'!B$5)","v":0},{"$f":"D53*(100%-'Other input expert'!C$5)","v":0},{"$f":"E53*(100%-'Other input expert'!D$5)","v":0},{"$f":"F53*(100%-'Other input expert'!E$5)","v":0},{"$f":"G53*(100%-'Other input expert'!F$5)","v":0},{"$f":"H53*(100%-'Other input expert'!G$5)","v":0},{"$f":"I53*(100%-'Other input expert'!H$5)","v":0},{"$f":"J53*(100%-'Other input expert'!I$5)","v":0},{"$f":"K53*(100%-'Other input expert'!J$5)","v":0},{"$f":"L53*(100%-'Other input expert'!K$5)","v":0},{"$f":"M53*(100%-'Other input expert'!L$5)","v":0},{"$f":"N53*(100%-'Other input expert'!M$5)","v":0},null,{"$f":"P53*'Other input expert'!B$12*'Sales price per sales channel'!$G53*'Other input expert'!B$6","v":0},{"$f":"Q53*'Other input expert'!C$12*'Sales price per sales channel'!$G53*'Other input expert'!C$6","v":0},{"$f":"R53*'Other input expert'!D$12*'Sales price per sales channel'!$G53*'Other input expert'!D$6","v":0},{"$f":"S53*'Other input expert'!E$12*'Sales price per sales channel'!$G53*'Other input expert'!E$6","v":0},{"$f":"T53*'Other input expert'!F$12*'Sales price per sales channel'!$G53*'Other input expert'!F$6","v":0},{"$f":"U53*'Other input expert'!G$12*'Sales price per sales channel'!$G53*'Other input expert'!G$6","v":0},{"$f":"V53*'Other input expert'!H$12*'Sales price per sales channel'!$G53*'Other input expert'!H$6","v":0},{"$f":"W53*'Other input expert'!I$12*'Sales price per sales channel'!$G53*'Other input expert'!I$6","v":0},{"$f":"X53*'Other input expert'!J$12*'Sales price per sales channel'!$G53*'Other input expert'!J$6","v":0},{"$f":"Y53*'Other input expert'!K$12*'Sales price per sales channel'!$G53*'Other input expert'!K$6","v":0},{"$f":"Z53*'Other input expert'!L$12*'Sales price per sales channel'!$G53*'Other input expert'!L$6","v":0},{"$f":"AA53*'Other input expert'!M$12*'Sales price per sales channel'!$G53*'Other input expert'!M$6","v":0},null,{"$f":"P53*'Other input expert'!B$13*'Sales price per sales channel'!$H53*'Other input expert'!B$6","v":0},{"$f":"Q53*'Other input expert'!C$13*'Sales price per sales channel'!$H53*'Other input expert'!C$6","v":0},{"$f":"R53*'Other input expert'!D$13*'Sales price per sales channel'!$H53*'Other input expert'!D$6","v":0},{"$f":"S53*'Other input expert'!E$13*'Sales price per sales channel'!$H53*'Other input expert'!E$6","v":0},{"$f":"T53*'Other input expert'!F$13*'Sales price per sales channel'!$H53*'Other input expert'!F$6","v":0},{"$f":"U53*'Other input expert'!G$13*'Sales price per sales channel'!$H53*'Other input expert'!G$6","v":0},{"$f":"V53*'Other input expert'!H$13*'Sales price per sales channel'!$H53*'Other input expert'!H$6","v":0},{"$f":"W53*'Other input expert'!I$13*'Sales price per sales channel'!$H53*'Other input expert'!I$6","v":0},{"$f":"X53*'Other input expert'!J$13*'Sales price per sales channel'!$H53*'Other input expert'!J$6","v":0},{"$f":"Y53*'Other input expert'!K$13*'Sales price per sales channel'!$H53*'Other input expert'!K$6","v":0},{"$f":"Z53*'Other input expert'!L$13*'Sales price per sales channel'!$H53*'Other input expert'!L$6","v":0},{"$f":"AA53*'Other input expert'!M$13*'Sales price per sales channel'!$H53*'Other input expert'!M$6","v":0},null,{"$f":"P53*'Other input expert'!B$14*'Sales price per sales channel'!$I53*'Other input expert'!B$6","v":0},{"$f":"Q53*'Other input expert'!C$14*'Sales price per sales channel'!$I53*'Other input expert'!C$6","v":0},{"$f":"R53*'Other input expert'!D$14*'Sales price per sales channel'!$I53*'Other input expert'!D$6","v":0},{"$f":"S53*'Other input expert'!E$14*'Sales price per sales channel'!$I53*'Other input expert'!E$6","v":0},{"$f":"T53*'Other input expert'!F$14*'Sales price per sales channel'!$I53*'Other input expert'!F$6","v":0},{"$f":"U53*'Other input expert'!G$14*'Sales price per sales channel'!$I53*'Other input expert'!G$6","v":0},{"$f":"V53*'Other input expert'!H$14*'Sales price per sales channel'!$I53*'Other input expert'!H$6","v":0},{"$f":"W53*'Other input expert'!I$14*'Sales price per sales channel'!$I53*'Other input expert'!I$6","v":0},{"$f":"X53*'Other input expert'!J$14*'Sales price per sales channel'!$I53*'Other input expert'!J$6","v":0},{"$f":"Y53*'Other input expert'!K$14*'Sales price per sales channel'!$I53*'Other input expert'!K$6","v":0},{"$f":"Z53*'Other input expert'!L$14*'Sales price per sales channel'!$I53*'Other input expert'!L$6","v":0},{"$f":"AA53*'Other input expert'!M$14*'Sales price per sales channel'!$I53*'Other input expert'!M$6","v":0},null,{"$f":"AC53*'Other input expert'!B$12*'Sales price per sales channel'!$G53*'Other input expert'!B$7","v":0},{"$f":"AD53*'Other input expert'!C$12*'Sales price per sales channel'!$G53*'Other input expert'!C$7","v":0},{"$f":"AE53*'Other input expert'!D$12*'Sales price per sales channel'!$G53*'Other input expert'!D$7","v":0},{"$f":"AF53*'Other input expert'!E$12*'Sales price per sales channel'!$G53*'Other input expert'!E$7","v":0},{"$f":"AG53*'Other input expert'!F$12*'Sales price per sales channel'!$G53*'Other input expert'!F$7","v":0},{"$f":"AH53*'Other input expert'!G$12*'Sales price per sales channel'!$G53*'Other input expert'!G$7","v":0},{"$f":"AI53*'Other input expert'!H$12*'Sales price per sales channel'!$G53*'Other input expert'!H$7","v":0},{"$f":"AJ53*'Other input expert'!I$12*'Sales price per sales channel'!$G53*'Other input expert'!I$7","v":0},{"$f":"AK53*'Other input expert'!J$12*'Sales price per sales channel'!$G53*'Other input expert'!J$7","v":0},{"$f":"AL53*'Other input expert'!K$12*'Sales price per sales channel'!$G53*'Other input expert'!K$7","v":0},{"$f":"AM53*'Other input expert'!L$12*'Sales price per sales channel'!$G53*'Other input expert'!L$7","v":0},{"$f":"AN53*'Other input expert'!M$12*'Sales price per sales channel'!$G53*'Other input expert'!M$7","v":0},null,{"$f":"AC53*'Other input expert'!B$13*'Sales price per sales channel'!$H53*'Other input expert'!B$7","v":0},{"$f":"AD53*'Other input expert'!C$13*'Sales price per sales channel'!$H53*'Other input expert'!C$7","v":0},{"$f":"AE53*'Other input expert'!D$13*'Sales price per sales channel'!$H53*'Other input expert'!D$7","v":0},{"$f":"AF53*'Other input expert'!E$13*'Sales price per sales channel'!$H53*'Other input expert'!E$7","v":0},{"$f":"AG53*'Other input expert'!F$13*'Sales price per sales channel'!$H53*'Other input expert'!F$7","v":0},{"$f":"AH53*'Other input expert'!G$13*'Sales price per sales channel'!$H53*'Other input expert'!G$7","v":0},{"$f":"AI53*'Other input expert'!H$13*'Sales price per sales channel'!$H53*'Other input expert'!H$7","v":0},{"$f":"AJ53*'Other input expert'!I$13*'Sales price per sales channel'!$H53*'Other input expert'!I$7","v":0},{"$f":"AK53*'Other input expert'!J$13*'Sales price per sales channel'!$H53*'Other input expert'!J$7","v":0},{"$f":"AL53*'Other input expert'!K$13*'Sales price per sales channel'!$H53*'Other input expert'!K$7","v":0},{"$f":"AM53*'Other input expert'!L$13*'Sales price per sales channel'!$H53*'Other input expert'!L$7","v":0},{"$f":"AN53*'Other input expert'!M$13*'Sales price per sales channel'!$H53*'Other input expert'!M$7","v":0},null,{"$f":"AC53*'Other input expert'!B$14*'Sales price per sales channel'!$I53*'Other input expert'!B$7","v":0},{"$f":"AD53*'Other input expert'!C$14*'Sales price per sales channel'!$I53*'Other input expert'!C$7","v":0},{"$f":"AE53*'Other input expert'!D$14*'Sales price per sales channel'!$I53*'Other input expert'!D$7","v":0},{"$f":"AF53*'Other input expert'!E$14*'Sales price per sales channel'!$I53*'Other input expert'!E$7","v":0},{"$f":"AG53*'Other input expert'!F$14*'Sales price per sales channel'!$I53*'Other input expert'!F$7","v":0},{"$f":"AH53*'Other input expert'!G$14*'Sales price per sales channel'!$I53*'Other input expert'!G$7","v":0},{"$f":"AI53*'Other input expert'!H$14*'Sales price per sales channel'!$I53*'Other input expert'!H$7","v":0},{"$f":"AJ53*'Other input expert'!I$14*'Sales price per sales channel'!$I53*'Other input expert'!I$7","v":0},{"$f":"AK53*'Other input expert'!J$14*'Sales price per sales channel'!$I53*'Other input expert'!J$7","v":0},{"$f":"AL53*'Other input expert'!K$14*'Sales price per sales channel'!$I53*'Other input expert'!K$7","v":0},{"$f":"AM53*'Other input expert'!L$14*'Sales price per sales channel'!$I53*'Other input expert'!L$7","v":0},{"$f":"AN53*'Other input expert'!M$14*'Sales price per sales channel'!$I53*'Other input expert'!M$7","v":0}]
["Chelidonium majus","Greater celandine",{"$f":"Plantlist!$G54*'Production list'!D55*'Other input expert'!B$4*'Other input expert'!B$8","v":0},{"$f":"Plantlist!$G54*'Production list'!E55*'Other input expert'!C$4*'Other input expert'!C$8","v":0},{"$f":"Plantlist!$G54*'Production list'!F55*'Other input expert'!D$4*'Other input expert'!D$8","v":0},{"$f":"Plantlist!$G54*'Production list'!G55*'Other input expert'!E$4*'Other input expert'!E$8","v":0},{"$f":"Plantlist!$G54*'Production list'!H55*'Other input expert'!F$4*'Other input expert'!F$8","v":0},{"$f":"Plantlist!$G54*'Production list'!I55*'Other input expert'!G$4*'Other input expert'!G$8","v":0},{"$f":"Plantlist!$G54*'Production list'!J55*'Other input expert'!H$4*'Other input expert'!H$8","v":0},{"$f":"Plantlist!$G54*'Production list'!K55*'Other input expert'!I$4*'Other input expert'!I$8","v":0},{"$f":"Plantlist!$G54*'Production list'!L55*'Other input expert'!J$4*'Other input expert'!J$8","v":0},{"$f":"Plantlist!$G54*'Production list'!M55*'Other input expert'!K$4*'Other input expert'!K$8","v":0},{"$f":"Plantlist!$G54*'Production list'!N55*'Other input expert'!L$4*'Other input expert'!L$8","v":0},{"$f":"Plantlist!$G54*'Production list'!O55*'Other input expert'!M$4*'Other input expert'!M$8","v":0},null,{"$f":"C54*'Other input expert'!B$5","v":0},{"$f":"D54*'Other input expert'!C$5","v":0},{"$f":"E54*'Other input expert'!D$5","v":0},{"$f":"F54*'Other input expert'!E$5","v":0},{"$f":"G54*'Other input expert'!F$5","v":0},{"$f":"H54*'Other input expert'!G$5","v":0},{"$f":"I54*'Other input expert'!H$5","v":0},{"$f":"J54*'Other input expert'!I$5","v":0},{"$f":"K54*'Other input expert'!J$5","v":0},{"$f":"L54*'Other input expert'!K$5","v":0},{"$f":"M54*'Other input expert'!L$5","v":0},{"$f":"N54*'Other input expert'!M$5","v":0},null,{"$f":"C54*(100%-'Other input expert'!B$5)","v":0},{"$f":"D54*(100%-'Other input expert'!C$5)","v":0},{"$f":"E54*(100%-'Other input expert'!D$5)","v":0},{"$f":"F54*(100%-'Other input expert'!E$5)","v":0},{"$f":"G54*(100%-'Other input expert'!F$5)","v":0},{"$f":"H54*(100%-'Other input expert'!G$5)","v":0},{"$f":"I54*(100%-'Other input expert'!H$5)","v":0},{"$f":"J54*(100%-'Other input expert'!I$5)","v":0},{"$f":"K54*(100%-'Other input expert'!J$5)","v":0},{"$f":"L54*(100%-'Other input expert'!K$5)","v":0},{"$f":"M54*(100%-'Other input expert'!L$5)","v":0},{"$f":"N54*(100%-'Other input expert'!M$5)","v":0},null,{"$f":"P54*'Other input expert'!B$12*'Sales price per sales channel'!$G54*'Other input expert'!B$6","v":0},{"$f":"Q54*'Other input expert'!C$12*'Sales price per sales channel'!$G54*'Other input expert'!C$6","v":0},{"$f":"R54*'Other input expert'!D$12*'Sales price per sales channel'!$G54*'Other input expert'!D$6","v":0},{"$f":"S54*'Other input expert'!E$12*'Sales price per sales channel'!$G54*'Other input expert'!E$6","v":0},{"$f":"T54*'Other input expert'!F$12*'Sales price per sales channel'!$G54*'Other input expert'!F$6","v":0},{"$f":"U54*'Other input expert'!G$12*'Sales price per sales channel'!$G54*'Other input expert'!G$6","v":0},{"$f":"V54*'Other input expert'!H$12*'Sales price per sales channel'!$G54*'Other input expert'!H$6","v":0},{"$f":"W54*'Other input expert'!I$12*'Sales price per sales channel'!$G54*'Other input expert'!I$6","v":0},{"$f":"X54*'Other input expert'!J$12*'Sales price per sales channel'!$G54*'Other input expert'!J$6","v":0},{"$f":"Y54*'Other input expert'!K$12*'Sales price per sales channel'!$G54*'Other input expert'!K$6","v":0},{"$f":"Z54*'Other input expert'!L$12*'Sales price per sales channel'!$G54*'Other input expert'!L$6","v":0},{"$f":"AA54*'Other input expert'!M$12*'Sales price per sales channel'!$G54*'Other input expert'!M$6","v":0},null,{"$f":"P54*'Other input expert'!B$13*'Sales price per sales channel'!$H54*'Other input expert'!B$6","v":0},{"$f":"Q54*'Other input expert'!C$13*'Sales price per sales channel'!$H54*'Other input expert'!C$6","v":0},{"$f":"R54*'Other input expert'!D$13*'Sales price per sales channel'!$H54*'Other input expert'!D$6","v":0},{"$f":"S54*'Other input expert'!E$13*'Sales price per sales channel'!$H54*'Other input expert'!E$6","v":0},{"$f":"T54*'Other input expert'!F$13*'Sales price per sales channel'!$H54*'Other input expert'!F$6","v":0},{"$f":"U54*'Other input expert'!G$13*'Sales price per sales channel'!$H54*'Other input expert'!G$6","v":0},{"$f":"V54*'Other input expert'!H$13*'Sales price per sales channel'!$H54*'Other input expert'!H$6","v":0},{"$f":"W54*'Other input expert'!I$13*'Sales price per sales channel'!$H54*'Other input expert'!I$6","v":0},{"$f":"X54*'Other input expert'!J$13*'Sales price per sales channel'!$H54*'Other input expert'!J$6","v":0},{"$f":"Y54*'Other input expert'!K$13*'Sales price per sales channel'!$H54*'Other input expert'!K$6","v":0},{"$f":"Z54*'Other input expert'!L$13*'Sales price per sales channel'!$H54*'Other input expert'!L$6","v":0},{"$f":"AA54*'Other input expert'!M$13*'Sales price per sales channel'!$H54*'Other input expert'!M$6","v":0},null,{"$f":"P54*'Other input expert'!B$14*'Sales price per sales channel'!$I54*'Other input expert'!B$6","v":0},{"$f":"Q54*'Other input expert'!C$14*'Sales price per sales channel'!$I54*'Other input expert'!C$6","v":0},{"$f":"R54*'Other input expert'!D$14*'Sales price per sales channel'!$I54*'Other input expert'!D$6","v":0},{"$f":"S54*'Other input expert'!E$14*'Sales price per sales channel'!$I54*'Other input expert'!E$6","v":0},{"$f":"T54*'Other input expert'!F$14*'Sales price per sales channel'!$I54*'Other input expert'!F$6","v":0},{"$f":"U54*'Other input expert'!G$14*'Sales price per sales channel'!$I54*'Other input expert'!G$6","v":0},{"$f":"V54*'Other input expert'!H$14*'Sales price per sales channel'!$I54*'Other input expert'!H$6","v":0},{"$f":"W54*'Other input expert'!I$14*'Sales price per sales channel'!$I54*'Other input expert'!I$6","v":0},{"$f":"X54*'Other input expert'!J$14*'Sales price per sales channel'!$I54*'Other input expert'!J$6","v":0},{"$f":"Y54*'Other input expert'!K$14*'Sales price per sales channel'!$I54*'Other input expert'!K$6","v":0},{"$f":"Z54*'Other input expert'!L$14*'Sales price per sales channel'!$I54*'Other input expert'!L$6","v":0},{"$f":"AA54*'Other input expert'!M$14*'Sales price per sales channel'!$I54*'Other input expert'!M$6","v":0},null,{"$f":"AC54*'Other input expert'!B$12*'Sales price per sales channel'!$G54*'Other input expert'!B$7","v":0},{"$f":"AD54*'Other input expert'!C$12*'Sales price per sales channel'!$G54*'Other input expert'!C$7","v":0},{"$f":"AE54*'Other input expert'!D$12*'Sales price per sales channel'!$G54*'Other input expert'!D$7","v":0},{"$f":"AF54*'Other input expert'!E$12*'Sales price per sales channel'!$G54*'Other input expert'!E$7","v":0},{"$f":"AG54*'Other input expert'!F$12*'Sales price per sales channel'!$G54*'Other input expert'!F$7","v":0},{"$f":"AH54*'Other input expert'!G$12*'Sales price per sales channel'!$G54*'Other input expert'!G$7","v":0},{"$f":"AI54*'Other input expert'!H$12*'Sales price per sales channel'!$G54*'Other input expert'!H$7","v":0},{"$f":"AJ54*'Other input expert'!I$12*'Sales price per sales channel'!$G54*'Other input expert'!I$7","v":0},{"$f":"AK54*'Other input expert'!J$12*'Sales price per sales channel'!$G54*'Other input expert'!J$7","v":0},{"$f":"AL54*'Other input expert'!K$12*'Sales price per sales channel'!$G54*'Other input expert'!K$7","v":0},{"$f":"AM54*'Other input expert'!L$12*'Sales price per sales channel'!$G54*'Other input expert'!L$7","v":0},{"$f":"AN54*'Other input expert'!M$12*'Sales price per sales channel'!$G54*'Other input expert'!M$7","v":0},null,{"$f":"AC54*'Other input expert'!B$13*'Sales price per sales channel'!$H54*'Other input expert'!B$7","v":0},{"$f":"AD54*'Other input expert'!C$13*'Sales price per sales channel'!$H54*'Other input expert'!C$7","v":0},{"$f":"AE54*'Other input expert'!D$13*'Sales price per sales channel'!$H54*'Other input expert'!D$7","v":0},{"$f":"AF54*'Other input expert'!E$13*'Sales price per sales channel'!$H54*'Other input expert'!E$7","v":0},{"$f":"AG54*'Other input expert'!F$13*'Sales price per sales channel'!$H54*'Other input expert'!F$7","v":0},{"$f":"AH54*'Other input expert'!G$13*'Sales price per sales channel'!$H54*'Other input expert'!G$7","v":0},{"$f":"AI54*'Other input expert'!H$13*'Sales price per sales channel'!$H54*'Other input expert'!H$7","v":0},{"$f":"AJ54*'Other input expert'!I$13*'Sales price per sales channel'!$H54*'Other input expert'!I$7","v":0},{"$f":"AK54*'Other input expert'!J$13*'Sales price per sales channel'!$H54*'Other input expert'!J$7","v":0},{"$f":"AL54*'Other input expert'!K$13*'Sales price per sales channel'!$H54*'Other input expert'!K$7","v":0},{"$f":"AM54*'Other input expert'!L$13*'Sales price per sales channel'!$H54*'Other input expert'!L$7","v":0},{"$f":"AN54*'Other input expert'!M$13*'Sales price per sales channel'!$H54*'Other input expert'!M$7","v":0},null,{"$f":"AC54*'Other input expert'!B$14*'Sales price per sales channel'!$I54*'Other input expert'!B$7","v":0},{"$f":"AD54*'Other input expert'!C$14*'Sales price per sales channel'!$I54*'Other input expert'!C$7","v":0},{"$f":"AE54*'Other input expert'!D$14*'Sales price per sales channel'!$I54*'Other input expert'!D$7","v":0},{"$f":"AF54*'Other input expert'!E$14*'Sales price per sales channel'!$I54*'Other input expert'!E$7","v":0},{"$f":"AG54*'Other input expert'!F$14*'Sales price per sales channel'!$I54*'Other input expert'!F$7","v":0},{"$f":"AH54*'Other input expert'!G$14*'Sales price per sales channel'!$I54*'Other input expert'!G$7","v":0},{"$f":"AI54*'Other input expert'!H$14*'Sales price per sales channel'!$I54*'Other input expert'!H$7","v":0},{"$f":"AJ54*'Other input expert'!I$14*'Sales price per sales channel'!$I54*'Other input expert'!I$7","v":0},{"$f":"AK54*'Other input expert'!J$14*'Sales price per sales channel'!$I54*'Other input expert'!J$7","v":0},{"$f":"AL54*'Other input expert'!K$14*'Sales price per sales channel'!$I54*'Other input expert'!K$7","v":0},{"$f":"AM54*'Other input expert'!L$14*'Sales price per sales channel'!$I54*'Other input expert'!L$7","v":0},{"$f":"AN54*'Other input expert'!M$14*'Sales price per sales channel'!$I54*'Other input expert'!M$7","v":0}]
["Cornus kousa","Japanese dogwood",{"$f":"Plantlist!$G55*'Production list'!D56*'Other input expert'!B$4*'Other input expert'!B$8","v":0},{"$f":"Plantlist!$G55*'Production list'!E56*'Other input expert'!C$4*'Other input expert'!C$8","v":0},{"$f":"Plantlist!$G55*'Production list'!F56*'Other input expert'!D$4*'Other input expert'!D$8","v":0},{"$f":"Plantlist!$G55*'Production list'!G56*'Other input expert'!E$4*'Other input expert'!E$8","v":0},{"$f":"Plantlist!$G55*'Production list'!H56*'Other input expert'!F$4*'Other input expert'!F$8","v":0},{"$f":"Plantlist!$G55*'Production list'!I56*'Other input expert'!G$4*'Other input expert'!G$8","v":0},{"$f":"Plantlist!$G55*'Production list'!J56*'Other input expert'!H$4*'Other input expert'!H$8","v":0},{"$f":"Plantlist!$G55*'Production list'!K56*'Other input expert'!I$4*'Other input expert'!I$8","v":0},{"$f":"Plantlist!$G55*'Production list'!L56*'Other input expert'!J$4*'Other input expert'!J$8","v":0},{"$f":"Plantlist!$G55*'Production list'!M56*'Other input expert'!K$4*'Other input expert'!K$8","v":0},{"$f":"Plantlist!$G55*'Production list'!N56*'Other input expert'!L$4*'Other input expert'!L$8","v":0},{"$f":"Plantlist!$G55*'Production list'!O56*'Other input expert'!M$4*'Other input expert'!M$8","v":0},null,{"$f":"C55*'Other input expert'!B$5","v":0},{"$f":"D55*'Other input expert'!C$5","v":0},{"$f":"E55*'Other input expert'!D$5","v":0},{"$f":"F55*'Other input expert'!E$5","v":0},{"$f":"G55*'Other input expert'!F$5","v":0},{"$f":"H55*'Other input expert'!G$5","v":0},{"$f":"I55*'Other input expert'!H$5","v":0},{"$f":"J55*'Other input expert'!I$5","v":0},{"$f":"K55*'Other input expert'!J$5","v":0},{"$f":"L55*'Other input expert'!K$5","v":0},{"$f":"M55*'Other input expert'!L$5","v":0},{"$f":"N55*'Other input expert'!M$5","v":0},null,{"$f":"C55*(100%-'Other input expert'!B$5)","v":0},{"$f":"D55*(100%-'Other input expert'!C$5)","v":0},{"$f":"E55*(100%-'Other input expert'!D$5)","v":0},{"$f":"F55*(100%-'Other input expert'!E$5)","v":0},{"$f":"G55*(100%-'Other input expert'!F$5)","v":0},{"$f":"H55*(100%-'Other input expert'!G$5)","v":0},{"$f":"I55*(100%-'Other input expert'!H$5)","v":0},{"$f":"J55*(100%-'Other input expert'!I$5)","v":0},{"$f":"K55*(100%-'Other input expert'!J$5)","v":0},{"$f":"L55*(100%-'Other input expert'!K$5)","v":0},{"$f":"M55*(100%-'Other input expert'!L$5)","v":0},{"$f":"N55*(100%-'Other input expert'!M$5)","v":0},null,{"$f":"P55*'Other input expert'!B$12*'Sales price per sales channel'!$G55*'Other input expert'!B$6","v":0},{"$f":"Q55*'Other input expert'!C$12*'Sales price per sales channel'!$G55*'Other input expert'!C$6","v":0},{"$f":"R55*'Other input expert'!D$12*'Sales price per sales channel'!$G55*'Other input expert'!D$6","v":0},{"$f":"S55*'Other input expert'!E$12*'Sales price per sales channel'!$G55*'Other input expert'!E$6","v":0},{"$f":"T55*'Other input expert'!F$12*'Sales price per sales channel'!$G55*'Other input expert'!F$6","v":0},{"$f":"U55*'Other input expert'!G$12*'Sales price per sales channel'!$G55*'Other input expert'!G$6","v":0},{"$f":"V55*'Other input expert'!H$12*'Sales price per sales channel'!$G55*'Other input expert'!H$6","v":0},{"$f":"W55*'Other input expert'!I$12*'Sales price per sales channel'!$G55*'Other input expert'!I$6","v":0},{"$f":"X55*'Other input expert'!J$12*'Sales price per sales channel'!$G55*'Other input expert'!J$6","v":0},{"$f":"Y55*'Other input expert'!K$12*'Sales price per sales channel'!$G55*'Other input expert'!K$6","v":0},{"$f":"Z55*'Other input expert'!L$12*'Sales price per sales channel'!$G55*'Other input expert'!L$6","v":0},{"$f":"AA55*'Other input expert'!M$12*'Sales price per sales channel'!$G55*'Other input expert'!M$6","v":0},null,{"$f":"P55*'Other input expert'!B$13*'Sales price per sales channel'!$H55*'Other input expert'!B$6","v":0},{"$f":"Q55*'Other input expert'!C$13*'Sales price per sales channel'!$H55*'Other input expert'!C$6","v":0},{"$f":"R55*'Other input expert'!D$13*'Sales price per sales channel'!$H55*'Other input expert'!D$6","v":0},{"$f":"S55*'Other input expert'!E$13*'Sales price per sales channel'!$H55*'Other input expert'!E$6","v":0},{"$f":"T55*'Other input expert'!F$13*'Sales price per sales channel'!$H55*'Other input expert'!F$6","v":0},{"$f":"U55*'Other input expert'!G$13*'Sales price per sales channel'!$H55*'Other input expert'!G$6","v":0},{"$f":"V55*'Other input expert'!H$13*'Sales price per sales channel'!$H55*'Other input expert'!H$6","v":0},{"$f":"W55*'Other input expert'!I$13*'Sales price per sales channel'!$H55*'Other input expert'!I$6","v":0},{"$f":"X55*'Other input expert'!J$13*'Sales price per sales channel'!$H55*'Other input expert'!J$6","v":0},{"$f":"Y55*'Other input expert'!K$13*'Sales price per sales channel'!$H55*'Other input expert'!K$6","v":0},{"$f":"Z55*'Other input expert'!L$13*'Sales price per sales channel'!$H55*'Other input expert'!L$6","v":0},{"$f":"AA55*'Other input expert'!M$13*'Sales price per sales channel'!$H55*'Other input expert'!M$6","v":0},null,{"$f":"P55*'Other input expert'!B$14*'Sales price per sales channel'!$I55*'Other input expert'!B$6","v":0},{"$f":"Q55*'Other input expert'!C$14*'Sales price per sales channel'!$I55*'Other input expert'!C$6","v":0},{"$f":"R55*'Other input expert'!D$14*'Sales price per sales channel'!$I55*'Other input expert'!D$6","v":0},{"$f":"S55*'Other input expert'!E$14*'Sales price per sales channel'!$I55*'Other input expert'!E$6","v":0},{"$f":"T55*'Other input expert'!F$14*'Sales price per sales channel'!$I55*'Other input expert'!F$6","v":0},{"$f":"U55*'Other input expert'!G$14*'Sales price per sales channel'!$I55*'Other input expert'!G$6","v":0},{"$f":"V55*'Other input expert'!H$14*'Sales price per sales channel'!$I55*'Other input expert'!H$6","v":0},{"$f":"W55*'Other input expert'!I$14*'Sales price per sales channel'!$I55*'Other input expert'!I$6","v":0},{"$f":"X55*'Other input expert'!J$14*'Sales price per sales channel'!$I55*'Other input expert'!J$6","v":0},{"$f":"Y55*'Other input expert'!K$14*'Sales price per sales channel'!$I55*'Other input expert'!K$6","v":0},{"$f":"Z55*'Other input expert'!L$14*'Sales price per sales channel'!$I55*'Other input expert'!L$6","v":0},{"$f":"AA55*'Other input expert'!M$14*'Sales price per sales channel'!$I55*'Other input expert'!M$6","v":0},null,{"$f":"AC55*'Other input expert'!B$12*'Sales price per sales channel'!$G55*'Other input expert'!B$7","v":0},{"$f":"AD55*'Other input expert'!C$12*'Sales price per sales channel'!$G55*'Other input expert'!C$7","v":0},{"$f":"AE55*'Other input expert'!D$12*'Sales price per sales channel'!$G55*'Other input expert'!D$7","v":0},{"$f":"AF55*'Other input expert'!E$12*'Sales price per sales channel'!$G55*'Other input expert'!E$7","v":0},{"$f":"AG55*'Other input expert'!F$12*'Sales price per sales channel'!$G55*'Other input expert'!F$7","v":0},{"$f":"AH55*'Other input expert'!G$12*'Sales price per sales channel'!$G55*'Other input expert'!G$7","v":0},{"$f":"AI55*'Other input expert'!H$12*'Sales price per sales channel'!$G55*'Other input expert'!H$7","v":0},{"$f":"AJ55*'Other input expert'!I$12*'Sales price per sales channel'!$G55*'Other input expert'!I$7","v":0},{"$f":"AK55*'Other input expert'!J$12*'Sales price per sales channel'!$G55*'Other input expert'!J$7","v":0},{"$f":"AL55*'Other input expert'!K$12*'Sales price per sales channel'!$G55*'Other input expert'!K$7","v":0},{"$f":"AM55*'Other input expert'!L$12*'Sales price per sales channel'!$G55*'Other input expert'!L$7","v":0},{"$f":"AN55*'Other input expert'!M$12*'Sales price per sales channel'!$G55*'Other input expert'!M$7","v":0},null,{"$f":"AC55*'Other input expert'!B$13*'Sales price per sales channel'!$H55*'Other input expert'!B$7","v":0},{"$f":"AD55*'Other input expert'!C$13*'Sales price per sales channel'!$H55*'Other input expert'!C$7","v":0},{"$f":"AE55*'Other input expert'!D$13*'Sales price per sales channel'!$H55*'Other input expert'!D$7","v":0},{"$f":"AF55*'Other input expert'!E$13*'Sales price per sales channel'!$H55*'Other input expert'!E$7","v":0},{"$f":"AG55*'Other input expert'!F$13*'Sales price per sales channel'!$H55*'Other input expert'!F$7","v":0},{"$f":"AH55*'Other input expert'!G$13*'Sales price per sales channel'!$H55*'Other input expert'!G$7","v":0},{"$f":"AI55*'Other input expert'!H$13*'Sales price per sales channel'!$H55*'Other input expert'!H$7","v":0},{"$f":"AJ55*'Other input expert'!I$13*'Sales price per sales channel'!$H55*'Other input expert'!I$7","v":0},{"$f":"AK55*'Other input expert'!J$13*'Sales price per sales channel'!$H55*'Other input expert'!J$7","v":0},{"$f":"AL55*'Other input expert'!K$13*'Sales price per sales channel'!$H55*'Other input expert'!K$7","v":0},{"$f":"AM55*'Other input expert'!L$13*'Sales price per sales channel'!$H55*'Other input expert'!L$7","v":0},{"$f":"AN55*'Other input expert'!M$13*'Sales price per sales channel'!$H55*'Other input expert'!M$7","v":0},null,{"$f":"AC55*'Other input expert'!B$14*'Sales price per sales channel'!$I55*'Other input expert'!B$7","v":0},{"$f":"AD55*'Other input expert'!C$14*'Sales price per sales channel'!$I55*'Other input expert'!C$7","v":0},{"$f":"AE55*'Other input expert'!D$14*'Sales price per sales channel'!$I55*'Other input expert'!D$7","v":0},{"$f":"AF55*'Other input expert'!E$14*'Sales price per sales channel'!$I55*'Other input expert'!E$7","v":0},{"$f":"AG55*'Other input expert'!F$14*'Sales price per sales channel'!$I55*'Other input expert'!F$7","v":0},{"$f":"AH55*'Other input expert'!G$14*'Sales price per sales channel'!$I55*'Other input expert'!G$7","v":0},{"$f":"AI55*'Other input expert'!H$14*'Sales price per sales channel'!$I55*'Other input expert'!H$7","v":0},{"$f":"AJ55*'Other input expert'!I$14*'Sales price per sales channel'!$I55*'Other input expert'!I$7","v":0},{"$f":"AK55*'Other input expert'!J$14*'Sales price per sales channel'!$I55*'Other input expert'!J$7","v":0},{"$f":"AL55*'Other input expert'!K$14*'Sales price per sales channel'!$I55*'Other input expert'!K$7","v":0},{"$f":"AM55*'Other input expert'!L$14*'Sales price per sales channel'!$I55*'Other input expert'!L$7","v":0},{"$f":"AN55*'Other input expert'!M$14*'Sales price per sales channel'!$I55*'Other input expert'!M$7","v":0}]
["Cornus mas","Cornelian cherry",{"$f":"Plantlist!$G56*'Production list'!D57*'Other input expert'!B$4*'Other input expert'!B$8","v":0},{"$f":"Plantlist!$G56*'Production list'!E57*'Other input expert'!C$4*'Other input expert'!C$8","v":0},{"$f":"Plantlist!$G56*'Production list'!F57*'Other input expert'!D$4*'Other input expert'!D$8","v":0},{"$f":"Plantlist!$G56*'Production list'!G57*'Other input expert'!E$4*'Other input expert'!E$8","v":0},{"$f":"Plantlist!$G56*'Production list'!H57*'Other input expert'!F$4*'Other input expert'!F$8","v":0},{"$f":"Plantlist!$G56*'Production list'!I57*'Other input expert'!G$4*'Other input expert'!G$8","v":0},{"$f":"Plantlist!$G56*'Production list'!J57*'Other input expert'!H$4*'Other input expert'!H$8","v":0},{"$f":"Plantlist!$G56*'Production list'!K57*'Other input expert'!I$4*'Other input expert'!I$8","v":0},{"$f":"Plantlist!$G56*'Production list'!L57*'Other input expert'!J$4*'Other input expert'!J$8","v":0},{"$f":"Plantlist!$G56*'Production list'!M57*'Other input expert'!K$4*'Other input expert'!K$8","v":0},{"$f":"Plantlist!$G56*'Production list'!N57*'Other input expert'!L$4*'Other input expert'!L$8","v":0},{"$f":"Plantlist!$G56*'Production list'!O57*'Other input expert'!M$4*'Other input expert'!M$8","v":0},null,{"$f":"C56*'Other input expert'!B$5","v":0},{"$f":"D56*'Other input expert'!C$5","v":0},{"$f":"E56*'Other input expert'!D$5","v":0},{"$f":"F56*'Other input expert'!E$5","v":0},{"$f":"G56*'Other input expert'!F$5","v":0},{"$f":"H56*'Other input expert'!G$5","v":0},{"$f":"I56*'Other input expert'!H$5","v":0},{"$f":"J56*'Other input expert'!I$5","v":0},{"$f":"K56*'Other input expert'!J$5","v":0},{"$f":"L56*'Other input expert'!K$5","v":0},{"$f":"M56*'Other input expert'!L$5","v":0},{"$f":"N56*'Other input expert'!M$5","v":0},null,{"$f":"C56*(100%-'Other input expert'!B$5)","v":0},{"$f":"D56*(100%-'Other input expert'!C$5)","v":0},{"$f":"E56*(100%-'Other input expert'!D$5)","v":0},{"$f":"F56*(100%-'Other input expert'!E$5)","v":0},{"$f":"G56*(100%-'Other input expert'!F$5)","v":0},{"$f":"H56*(100%-'Other input expert'!G$5)","v":0},{"$f":"I56*(100%-'Other input expert'!H$5)","v":0},{"$f":"J56*(100%-'Other input expert'!I$5)","v":0},{"$f":"K56*(100%-'Other input expert'!J$5)","v":0},{"$f":"L56*(100%-'Other input expert'!K$5)","v":0},{"$f":"M56*(100%-'Other input expert'!L$5)","v":0},{"$f":"N56*(100%-'Other input expert'!M$5)","v":0},null,{"$f":"P56*'Other input expert'!B$12*'Sales price per sales channel'!$G56*'Other input expert'!B$6","v":0},{"$f":"Q56*'Other input expert'!C$12*'Sales price per sales channel'!$G56*'Other input expert'!C$6","v":0},{"$f":"R56*'Other input expert'!D$12*'Sales price per sales channel'!$G56*'Other input expert'!D$6","v":0},{"$f":"S56*'Other input expert'!E$12*'Sales price per sales channel'!$G56*'Other input expert'!E$6","v":0},{"$f":"T56*'Other input expert'!F$12*'Sales price per sales channel'!$G56*'Other input expert'!F$6","v":0},{"$f":"U56*'Other input expert'!G$12*'Sales price per sales channel'!$G56*'Other input expert'!G$6","v":0},{"$f":"V56*'Other input expert'!H$12*'Sales price per sales channel'!$G56*'Other input expert'!H$6","v":0},{"$f":"W56*'Other input expert'!I$12*'Sales price per sales channel'!$G56*'Other input expert'!I$6","v":0},{"$f":"X56*'Other input expert'!J$12*'Sales price per sales channel'!$G56*'Other input expert'!J$6","v":0},{"$f":"Y56*'Other input expert'!K$12*'Sales price per sales channel'!$G56*'Other input expert'!K$6","v":0},{"$f":"Z56*'Other input expert'!L$12*'Sales price per sales channel'!$G56*'Other input expert'!L$6","v":0},{"$f":"AA56*'Other input expert'!M$12*'Sales price per sales channel'!$G56*'Other input expert'!M$6","v":0},null,{"$f":"P56*'Other input expert'!B$13*'Sales price per sales channel'!$H56*'Other input expert'!B$6","v":0},{"$f":"Q56*'Other input expert'!C$13*'Sales price per sales channel'!$H56*'Other input expert'!C$6","v":0},{"$f":"R56*'Other input expert'!D$13*'Sales price per sales channel'!$H56*'Other input expert'!D$6","v":0},{"$f":"S56*'Other input expert'!E$13*'Sales price per sales channel'!$H56*'Other input expert'!E$6","v":0},{"$f":"T56*'Other input expert'!F$13*'Sales price per sales channel'!$H56*'Other input expert'!F$6","v":0},{"$f":"U56*'Other input expert'!G$13*'Sales price per sales channel'!$H56*'Other input expert'!G$6","v":0},{"$f":"V56*'Other input expert'!H$13*'Sales price per sales channel'!$H56*'Other input expert'!H$6","v":0},{"$f":"W56*'Other input expert'!I$13*'Sales price per sales channel'!$H56*'Other input expert'!I$6","v":0},{"$f":"X56*'Other input expert'!J$13*'Sales price per sales channel'!$H56*'Other input expert'!J$6","v":0},{"$f":"Y56*'Other input expert'!K$13*'Sales price per sales channel'!$H56*'Other input expert'!K$6","v":0},{"$f":"Z56*'Other input expert'!L$13*'Sales price per sales channel'!$H56*'Other input expert'!L$6","v":0},{"$f":"AA56*'Other input expert'!M$13*'Sales price per sales channel'!$H56*'Other input expert'!M$6","v":0},null,{"$f":"P56*'Other input expert'!B$14*'Sales price per sales channel'!$I56*'Other input expert'!B$6","v":0},{"$f":"Q56*'Other input expert'!C$14*'Sales price per sales channel'!$I56*'Other input expert'!C$6","v":0},{"$f":"R56*'Other input expert'!D$14*'Sales price per sales channel'!$I56*'Other input expert'!D$6","v":0},{"$f":"S56*'Other input expert'!E$14*'Sales price per sales channel'!$I56*'Other input expert'!E$6","v":0},{"$f":"T56*'Other input expert'!F$14*'Sales price per sales channel'!$I56*'Other input expert'!F$6","v":0},{"$f":"U56*'Other input expert'!G$14*'Sales price per sales channel'!$I56*'Other input expert'!G$6","v":0},{"$f":"V56*'Other input expert'!H$14*'Sales price per sales channel'!$I56*'Other input expert'!H$6","v":0},{"$f":"W56*'Other input expert'!I$14*'Sales price per sales channel'!$I56*'Other input expert'!I$6","v":0},{"$f":"X56*'Other input expert'!J$14*'Sales price per sales channel'!$I56*'Other input expert'!J$6","v":0},{"$f":"Y56*'Other input expert'!K$14*'Sales price per sales channel'!$I56*'Other input expert'!K$6","v":0},{"$f":"Z56*'Other input expert'!L$14*'Sales price per sales channel'!$I56*'Other input expert'!L$6","v":0},{"$f":"AA56*'Other input expert'!M$14*'Sales price per sales channel'!$I56*'Other input expert'!M$6","v":0},null,{"$f":"AC56*'Other input expert'!B$12*'Sales price per sales channel'!$G56*'Other input expert'!B$7","v":0},{"$f":"AD56*'Other input expert'!C$12*'Sales price per sales channel'!$G56*'Other input expert'!C$7","v":0},{"$f":"AE56*'Other input expert'!D$12*'Sales price per sales channel'!$G56*'Other input expert'!D$7","v":0},{"$f":"AF56*'Other input expert'!E$12*'Sales price per sales channel'!$G56*'Other input expert'!E$7","v":0},{"$f":"AG56*'Other input expert'!F$12*'Sales price per sales channel'!$G56*'Other input expert'!F$7","v":0},{"$f":"AH56*'Other input expert'!G$12*'Sales price per sales channel'!$G56*'Other input expert'!G$7","v":0},{"$f":"AI56*'Other input expert'!H$12*'Sales price per sales channel'!$G56*'Other input expert'!H$7","v":0},{"$f":"AJ56*'Other input expert'!I$12*'Sales price per sales channel'!$G56*'Other input expert'!I$7","v":0},{"$f":"AK56*'Other input expert'!J$12*'Sales price per sales channel'!$G56*'Other input expert'!J$7","v":0},{"$f":"AL56*'Other input expert'!K$12*'Sales price per sales channel'!$G56*'Other input expert'!K$7","v":0},{"$f":"AM56*'Other input expert'!L$12*'Sales price per sales channel'!$G56*'Other input expert'!L$7","v":0},{"$f":"AN56*'Other input expert'!M$12*'Sales price per sales channel'!$G56*'Other input expert'!M$7","v":0},null,{"$f":"AC56*'Other input expert'!B$13*'Sales price per sales channel'!$H56*'Other input expert'!B$7","v":0},{"$f":"AD56*'Other input expert'!C$13*'Sales price per sales channel'!$H56*'Other input expert'!C$7","v":0},{"$f":"AE56*'Other input expert'!D$13*'Sales price per sales channel'!$H56*'Other input expert'!D$7","v":0},{"$f":"AF56*'Other input expert'!E$13*'Sales price per sales channel'!$H56*'Other input expert'!E$7","v":0},{"$f":"AG56*'Other input expert'!F$13*'Sales price per sales channel'!$H56*'Other input expert'!F$7","v":0},{"$f":"AH56*'Other input expert'!G$13*'Sales price per sales channel'!$H56*'Other input expert'!G$7","v":0},{"$f":"AI56*'Other input expert'!H$13*'Sales price per sales channel'!$H56*'Other input expert'!H$7","v":0},{"$f":"AJ56*'Other input expert'!I$13*'Sales price per sales channel'!$H56*'Other input expert'!I$7","v":0},{"$f":"AK56*'Other input expert'!J$13*'Sales price per sales channel'!$H56*'Other input expert'!J$7","v":0},{"$f":"AL56*'Other input expert'!K$13*'Sales price per sales channel'!$H56*'Other input expert'!K$7","v":0},{"$f":"AM56*'Other input expert'!L$13*'Sales price per sales channel'!$H56*'Other input expert'!L$7","v":0},{"$f":"AN56*'Other input expert'!M$13*'Sales price per sales channel'!$H56*'Other input expert'!M$7","v":0},null,{"$f":"AC56*'Other input expert'!B$14*'Sales price per sales channel'!$I56*'Other input expert'!B$7","v":0},{"$f":"AD56*'Other input expert'!C$14*'Sales price per sales channel'!$I56*'Other input expert'!C$7","v":0},{"$f":"AE56*'Other input expert'!D$14*'Sales price per sales channel'!$I56*'Other input expert'!D$7","v":0},{"$f":"AF56*'Other input expert'!E$14*'Sales price per sales channel'!$I56*'Other input expert'!E$7","v":0},{"$f":"AG56*'Other input expert'!F$14*'Sales price per sales channel'!$I56*'Other input expert'!F$7","v":0},{"$f":"AH56*'Other input expert'!G$14*'Sales price per sales channel'!$I56*'Other input expert'!G$7","v":0},{"$f":"AI56*'Other input expert'!H$14*'Sales price per sales channel'!$I56*'Other input expert'!H$7","v":0},{"$f":"AJ56*'Other input expert'!I$14*'Sales price per sales channel'!$I56*'Other input expert'!I$7","v":0},{"$f":"AK56*'Other input expert'!J$14*'Sales price per sales channel'!$I56*'Other input expert'!J$7","v":0},{"$f":"AL56*'Other input expert'!K$14*'Sales price per sales channel'!$I56*'Other input expert'!K$7","v":0},{"$f":"AM56*'Other input expert'!L$14*'Sales price per sales channel'!$I56*'Other input expert'!L$7","v":0},{"$f":"AN56*'Other input expert'!M$14*'Sales price per sales channel'!$I56*'Other input expert'!M$7","v":0}]
["Cornus sanguinea","Dogwood",{"$f":"Plantlist!$G57*'Production list'!D58*'Other input expert'!B$4*'Other input expert'!B$8","v":0},{"$f":"Plantlist!$G57*'Production list'!E58*'Other input expert'!C$4*'Other input expert'!C$8","v":0},{"$f":"Plantlist!$G57*'Production list'!F58*'Other input expert'!D$4*'Other input expert'!D$8","v":0},{"$f":"Plantlist!$G57*'Production list'!G58*'Other input expert'!E$4*'Other input expert'!E$8","v":0},{"$f":"Plantlist!$G57*'Production list'!H58*'Other input expert'!F$4*'Other input expert'!F$8","v":0},{"$f":"Plantlist!$G57*'Production list'!I58*'Other input expert'!G$4*'Other input expert'!G$8","v":0},{"$f":"Plantlist!$G57*'Production list'!J58*'Other input expert'!H$4*'Other input expert'!H$8","v":0},{"$f":"Plantlist!$G57*'Production list'!K58*'Other input expert'!I$4*'Other input expert'!I$8","v":0},{"$f":"Plantlist!$G57*'Production list'!L58*'Other input expert'!J$4*'Other input expert'!J$8","v":0},{"$f":"Plantlist!$G57*'Production list'!M58*'Other input expert'!K$4*'Other input expert'!K$8","v":0},{"$f":"Plantlist!$G57*'Production list'!N58*'Other input expert'!L$4*'Other input expert'!L$8","v":0},{"$f":"Plantlist!$G57*'Production list'!O58*'Other input expert'!M$4*'Other input expert'!M$8","v":0},null,{"$f":"C57*'Other input expert'!B$5","v":0},{"$f":"D57*'Other input expert'!C$5","v":0},{"$f":"E57*'Other input expert'!D$5","v":0},{"$f":"F57*'Other input expert'!E$5","v":0},{"$f":"G57*'Other input expert'!F$5","v":0},{"$f":"H57*'Other input expert'!G$5","v":0},{"$f":"I57*'Other input expert'!H$5","v":0},{"$f":"J57*'Other input expert'!I$5","v":0},{"$f":"K57*'Other input expert'!J$5","v":0},{"$f":"L57*'Other input expert'!K$5","v":0},{"$f":"M57*'Other input expert'!L$5","v":0},{"$f":"N57*'Other input expert'!M$5","v":0},null,{"$f":"C57*(100%-'Other input expert'!B$5)","v":0},{"$f":"D57*(100%-'Other input expert'!C$5)","v":0},{"$f":"E57*(100%-'Other input expert'!D$5)","v":0},{"$f":"F57*(100%-'Other input expert'!E$5)","v":0},{"$f":"G57*(100%-'Other input expert'!F$5)","v":0},{"$f":"H57*(100%-'Other input expert'!G$5)","v":0},{"$f":"I57*(100%-'Other input expert'!H$5)","v":0},{"$f":"J57*(100%-'Other input expert'!I$5)","v":0},{"$f":"K57*(100%-'Other input expert'!J$5)","v":0},{"$f":"L57*(100%-'Other input expert'!K$5)","v":0},{"$f":"M57*(100%-'Other input expert'!L$5)","v":0},{"$f":"N57*(100%-'Other input expert'!M$5)","v":0},null,{"$f":"P57*'Other input expert'!B$12*'Sales price per sales channel'!$G57*'Other input expert'!B$6","v":0},{"$f":"Q57*'Other input expert'!C$12*'Sales price per sales channel'!$G57*'Other input expert'!C$6","v":0},{"$f":"R57*'Other input expert'!D$12*'Sales price per sales channel'!$G57*'Other input expert'!D$6","v":0},{"$f":"S57*'Other input expert'!E$12*'Sales price per sales channel'!$G57*'Other input expert'!E$6","v":0},{"$f":"T57*'Other input expert'!F$12*'Sales price per sales channel'!$G57*'Other input expert'!F$6","v":0},{"$f":"U57*'Other input expert'!G$12*'Sales price per sales channel'!$G57*'Other input expert'!G$6","v":0},{"$f":"V57*'Other input expert'!H$12*'Sales price per sales channel'!$G57*'Other input expert'!H$6","v":0},{"$f":"W57*'Other input expert'!I$12*'Sales price per sales channel'!$G57*'Other input expert'!I$6","v":0},{"$f":"X57*'Other input expert'!J$12*'Sales price per sales channel'!$G57*'Other input expert'!J$6","v":0},{"$f":"Y57*'Other input expert'!K$12*'Sales price per sales channel'!$G57*'Other input expert'!K$6","v":0},{"$f":"Z57*'Other input expert'!L$12*'Sales price per sales channel'!$G57*'Other input expert'!L$6","v":0},{"$f":"AA57*'Other input expert'!M$12*'Sales price per sales channel'!$G57*'Other input expert'!M$6","v":0},null,{"$f":"P57*'Other input expert'!B$13*'Sales price per sales channel'!$H57*'Other input expert'!B$6","v":0},{"$f":"Q57*'Other input expert'!C$13*'Sales price per sales channel'!$H57*'Other input expert'!C$6","v":0},{"$f":"R57*'Other input expert'!D$13*'Sales price per sales channel'!$H57*'Other input expert'!D$6","v":0},{"$f":"S57*'Other input expert'!E$13*'Sales price per sales channel'!$H57*'Other input expert'!E$6","v":0},{"$f":"T57*'Other input expert'!F$13*'Sales price per sales channel'!$H57*'Other input expert'!F$6","v":0},{"$f":"U57*'Other input expert'!G$13*'Sales price per sales channel'!$H57*'Other input expert'!G$6","v":0},{"$f":"V57*'Other input expert'!H$13*'Sales price per sales channel'!$H57*'Other input expert'!H$6","v":0},{"$f":"W57*'Other input expert'!I$13*'Sales price per sales channel'!$H57*'Other input expert'!I$6","v":0},{"$f":"X57*'Other input expert'!J$13*'Sales price per sales channel'!$H57*'Other input expert'!J$6","v":0},{"$f":"Y57*'Other input expert'!K$13*'Sales price per sales channel'!$H57*'Other input expert'!K$6","v":0},{"$f":"Z57*'Other input expert'!L$13*'Sales price per sales channel'!$H57*'Other input expert'!L$6","v":0},{"$f":"AA57*'Other input expert'!M$13*'Sales price per sales channel'!$H57*'Other input expert'!M$6","v":0},null,{"$f":"P57*'Other input expert'!B$14*'Sales price per sales channel'!$I57*'Other input expert'!B$6","v":0},{"$f":"Q57*'Other input expert'!C$14*'Sales price per sales channel'!$I57*'Other input expert'!C$6","v":0},{"$f":"R57*'Other input expert'!D$14*'Sales price per sales channel'!$I57*'Other input expert'!D$6","v":0},{"$f":"S57*'Other input expert'!E$14*'Sales price per sales channel'!$I57*'Other input expert'!E$6","v":0},{"$f":"T57*'Other input expert'!F$14*'Sales price per sales channel'!$I57*'Other input expert'!F$6","v":0},{"$f":"U57*'Other input expert'!G$14*'Sales price per sales channel'!$I57*'Other input expert'!G$6","v":0},{"$f":"V57*'Other input expert'!H$14*'Sales price per sales channel'!$I57*'Other input expert'!H$6","v":0},{"$f":"W57*'Other input expert'!I$14*'Sales price per sales channel'!$I57*'Other input expert'!I$6","v":0},{"$f":"X57*'Other input expert'!J$14*'Sales price per sales channel'!$I57*'Other input expert'!J$6","v":0},{"$f":"Y57*'Other input expert'!K$14*'Sales price per sales channel'!$I57*'Other input expert'!K$6","v":0},{"$f":"Z57*'Other input expert'!L$14*'Sales price per sales channel'!$I57*'Other input expert'!L$6","v":0},{"$f":"AA57*'Other input expert'!M$14*'Sales price per sales channel'!$I57*'Other input expert'!M$6","v":0},null,{"$f":"AC57*'Other input expert'!B$12*'Sales price per sales channel'!$G57*'Other input expert'!B$7","v":0},{"$f":"AD57*'Other input expert'!C$12*'Sales price per sales channel'!$G57*'Other input expert'!C$7","v":0},{"$f":"AE57*'Other input expert'!D$12*'Sales price per sales channel'!$G57*'Other input expert'!D$7","v":0},{"$f":"AF57*'Other input expert'!E$12*'Sales price per sales channel'!$G57*'Other input expert'!E$7","v":0},{"$f":"AG57*'Other input expert'!F$12*'Sales price per sales channel'!$G57*'Other input expert'!F$7","v":0},{"$f":"AH57*'Other input expert'!G$12*'Sales price per sales channel'!$G57*'Other input expert'!G$7","v":0},{"$f":"AI57*'Other input expert'!H$12*'Sales price per sales channel'!$G57*'Other input expert'!H$7","v":0},{"$f":"AJ57*'Other input expert'!I$12*'Sales price per sales channel'!$G57*'Other input expert'!I$7","v":0},{"$f":"AK57*'Other input expert'!J$12*'Sales price per sales channel'!$G57*'Other input expert'!J$7","v":0},{"$f":"AL57*'Other input expert'!K$12*'Sales price per sales channel'!$G57*'Other input expert'!K$7","v":0},{"$f":"AM57*'Other input expert'!L$12*'Sales price per sales channel'!$G57*'Other input expert'!L$7","v":0},{"$f":"AN57*'Other input expert'!M$12*'Sales price per sales channel'!$G57*'Other input expert'!M$7","v":0},null,{"$f":"AC57*'Other input expert'!B$13*'Sales price per sales channel'!$H57*'Other input expert'!B$7","v":0},{"$f":"AD57*'Other input expert'!C$13*'Sales price per sales channel'!$H57*'Other input expert'!C$7","v":0},{"$f":"AE57*'Other input expert'!D$13*'Sales price per sales channel'!$H57*'Other input expert'!D$7","v":0},{"$f":"AF57*'Other input expert'!E$13*'Sales price per sales channel'!$H57*'Other input expert'!E$7","v":0},{"$f":"AG57*'Other input expert'!F$13*'Sales price per sales channel'!$H57*'Other input expert'!F$7","v":0},{"$f":"AH57*'Other input expert'!G$13*'Sales price per sales channel'!$H57*'Other input expert'!G$7","v":0},{"$f":"AI57*'Other input expert'!H$13*'Sales price per sales channel'!$H57*'Other input expert'!H$7","v":0},{"$f":"AJ57*'Other input expert'!I$13*'Sales price per sales channel'!$H57*'Other input expert'!I$7","v":0},{"$f":"AK57*'Other input expert'!J$13*'Sales price per sales channel'!$H57*'Other input expert'!J$7","v":0},{"$f":"AL57*'Other input expert'!K$13*'Sales price per sales channel'!$H57*'Other input expert'!K$7","v":0},{"$f":"AM57*'Other input expert'!L$13*'Sales price per sales channel'!$H57*'Other input expert'!L$7","v":0},{"$f":"AN57*'Other input expert'!M$13*'Sales price per sales channel'!$H57*'Other input expert'!M$7","v":0},null,{"$f":"AC57*'Other input expert'!B$14*'Sales price per sales channel'!$I57*'Other input expert'!B$7","v":0},{"$f":"AD57*'Other input expert'!C$14*'Sales price per sales channel'!$I57*'Other input expert'!C$7","v":0},{"$f":"AE57*'Other input expert'!D$14*'Sales price per sales channel'!$I57*'Other input expert'!D$7","v":0},{"$f":"AF57*'Other input expert'!E$14*'Sales price per sales channel'!$I57*'Other input expert'!E$7","v":0},{"$f":"AG57*'Other input expert'!F$14*'Sales price per sales channel'!$I57*'Other input expert'!F$7","v":0},{"$f":"AH57*'Other input expert'!G$14*'Sales price per sales channel'!$I57*'Other input expert'!G$7","v":0},{"$f":"AI57*'Other input expert'!H$14*'Sales price per sales channel'!$I57*'Other input expert'!H$7","v":0},{"$f":"AJ57*'Other input expert'!I$14*'Sales price per sales channel'!$I57*'Other input expert'!I$7","v":0},{"$f":"AK57*'Other input expert'!J$14*'Sales price per sales channel'!$I57*'Other input expert'!J$7","v":0},{"$f":"AL57*'Other input expert'!K$14*'Sales price per sales channel'!$I57*'Other input expert'!K$7","v":0},{"$f":"AM57*'Other input expert'!L$14*'Sales price per sales channel'!$I57*'Other input expert'!L$7","v":0},{"$f":"AN57*'Other input expert'!M$14*'Sales price per sales channel'!$I57*'Other input expert'!M$7","v":0}]
["Corylus avellana","Hazelnut",{"$f":"Plantlist!$G58*'Production list'!D59*'Other input expert'!B$4*'Other input expert'!B$8","v":0},{"$f":"Plantlist!$G58*'Production list'!E59*'Other input expert'!C$4*'Other input expert'!C$8","v":0},{"$f":"Plantlist!$G58*'Production list'!F59*'Other input expert'!D$4*'Other input expert'!D$8","v":0},{"$f":"Plantlist!$G58*'Production list'!G59*'Other input expert'!E$4*'Other input expert'!E$8","v":0},{"$f":"Plantlist!$G58*'Production list'!H59*'Other input expert'!F$4*'Other input expert'!F$8","v":0},{"$f":"Plantlist!$G58*'Production list'!I59*'Other input expert'!G$4*'Other input expert'!G$8","v":0},{"$f":"Plantlist!$G58*'Production list'!J59*'Other input expert'!H$4*'Other input expert'!H$8","v":0},{"$f":"Plantlist!$G58*'Production list'!K59*'Other input expert'!I$4*'Other input expert'!I$8","v":0},{"$f":"Plantlist!$G58*'Production list'!L59*'Other input expert'!J$4*'Other input expert'!J$8","v":0},{"$f":"Plantlist!$G58*'Production list'!M59*'Other input expert'!K$4*'Other input expert'!K$8","v":0},{"$f":"Plantlist!$G58*'Production list'!N59*'Other input expert'!L$4*'Other input expert'!L$8","v":0},{"$f":"Plantlist!$G58*'Production list'!O59*'Other input expert'!M$4*'Other input expert'!M$8","v":0},null,{"$f":"C58*'Other input expert'!B$5","v":0},{"$f":"D58*'Other input expert'!C$5","v":0},{"$f":"E58*'Other input expert'!D$5","v":0},{"$f":"F58*'Other input expert'!E$5","v":0},{"$f":"G58*'Other input expert'!F$5","v":0},{"$f":"H58*'Other input expert'!G$5","v":0},{"$f":"I58*'Other input expert'!H$5","v":0},{"$f":"J58*'Other input expert'!I$5","v":0},{"$f":"K58*'Other input expert'!J$5","v":0},{"$f":"L58*'Other input expert'!K$5","v":0},{"$f":"M58*'Other input expert'!L$5","v":0},{"$f":"N58*'Other input expert'!M$5","v":0},null,{"$f":"C58*(100%-'Other input expert'!B$5)","v":0},{"$f":"D58*(100%-'Other input expert'!C$5)","v":0},{"$f":"E58*(100%-'Other input expert'!D$5)","v":0},{"$f":"F58*(100%-'Other input expert'!E$5)","v":0},{"$f":"G58*(100%-'Other input expert'!F$5)","v":0},{"$f":"H58*(100%-'Other input expert'!G$5)","v":0},{"$f":"I58*(100%-'Other input expert'!H$5)","v":0},{"$f":"J58*(100%-'Other input expert'!I$5)","v":0},{"$f":"K58*(100%-'Other input expert'!J$5)","v":0},{"$f":"L58*(100%-'Other input expert'!K$5)","v":0},{"$f":"M58*(100%-'Other input expert'!L$5)","v":0},{"$f":"N58*(100%-'Other input expert'!M$5)","v":0},null,{"$f":"P58*'Other input expert'!B$12*'Sales price per sales channel'!$G58*'Other input expert'!B$6","v":0},{"$f":"Q58*'Other input expert'!C$12*'Sales price per sales channel'!$G58*'Other input expert'!C$6","v":0},{"$f":"R58*'Other input expert'!D$12*'Sales price per sales channel'!$G58*'Other input expert'!D$6","v":0},{"$f":"S58*'Other input expert'!E$12*'Sales price per sales channel'!$G58*'Other input expert'!E$6","v":0},{"$f":"T58*'Other input expert'!F$12*'Sales price per sales channel'!$G58*'Other input expert'!F$6","v":0},{"$f":"U58*'Other input expert'!G$12*'Sales price per sales channel'!$G58*'Other input expert'!G$6","v":0},{"$f":"V58*'Other input expert'!H$12*'Sales price per sales channel'!$G58*'Other input expert'!H$6","v":0},{"$f":"W58*'Other input expert'!I$12*'Sales price per sales channel'!$G58*'Other input expert'!I$6","v":0},{"$f":"X58*'Other input expert'!J$12*'Sales price per sales channel'!$G58*'Other input expert'!J$6","v":0},{"$f":"Y58*'Other input expert'!K$12*'Sales price per sales channel'!$G58*'Other input expert'!K$6","v":0},{"$f":"Z58*'Other input expert'!L$12*'Sales price per sales channel'!$G58*'Other input expert'!L$6","v":0},{"$f":"AA58*'Other input expert'!M$12*'Sales price per sales channel'!$G58*'Other input expert'!M$6","v":0},null,{"$f":"P58*'Other input expert'!B$13*'Sales price per sales channel'!$H58*'Other input expert'!B$6","v":0},{"$f":"Q58*'Other input expert'!C$13*'Sales price per sales channel'!$H58*'Other input expert'!C$6","v":0},{"$f":"R58*'Other input expert'!D$13*'Sales price per sales channel'!$H58*'Other input expert'!D$6","v":0},{"$f":"S58*'Other input expert'!E$13*'Sales price per sales channel'!$H58*'Other input expert'!E$6","v":0},{"$f":"T58*'Other input expert'!F$13*'Sales price per sales channel'!$H58*'Other input expert'!F$6","v":0},{"$f":"U58*'Other input expert'!G$13*'Sales price per sales channel'!$H58*'Other input expert'!G$6","v":0},{"$f":"V58*'Other input expert'!H$13*'Sales price per sales channel'!$H58*'Other input expert'!H$6","v":0},{"$f":"W58*'Other input expert'!I$13*'Sales price per sales channel'!$H58*'Other input expert'!I$6","v":0},{"$f":"X58*'Other input expert'!J$13*'Sales price per sales channel'!$H58*'Other input expert'!J$6","v":0},{"$f":"Y58*'Other input expert'!K$13*'Sales price per sales channel'!$H58*'Other input expert'!K$6","v":0},{"$f":"Z58*'Other input expert'!L$13*'Sales price per sales channel'!$H58*'Other input expert'!L$6","v":0},{"$f":"AA58*'Other input expert'!M$13*'Sales price per sales channel'!$H58*'Other input expert'!M$6","v":0},null,{"$f":"P58*'Other input expert'!B$14*'Sales price per sales channel'!$I58*'Other input expert'!B$6","v":0},{"$f":"Q58*'Other input expert'!C$14*'Sales price per sales channel'!$I58*'Other input expert'!C$6","v":0},{"$f":"R58*'Other input expert'!D$14*'Sales price per sales channel'!$I58*'Other input expert'!D$6","v":0},{"$f":"S58*'Other input expert'!E$14*'Sales price per sales channel'!$I58*'Other input expert'!E$6","v":0},{"$f":"T58*'Other input expert'!F$14*'Sales price per sales channel'!$I58*'Other input expert'!F$6","v":0},{"$f":"U58*'Other input expert'!G$14*'Sales price per sales channel'!$I58*'Other input expert'!G$6","v":0},{"$f":"V58*'Other input expert'!H$14*'Sales price per sales channel'!$I58*'Other input expert'!H$6","v":0},{"$f":"W58*'Other input expert'!I$14*'Sales price per sales channel'!$I58*'Other input expert'!I$6","v":0},{"$f":"X58*'Other input expert'!J$14*'Sales price per sales channel'!$I58*'Other input expert'!J$6","v":0},{"$f":"Y58*'Other input expert'!K$14*'Sales price per sales channel'!$I58*'Other input expert'!K$6","v":0},{"$f":"Z58*'Other input expert'!L$14*'Sales price per sales channel'!$I58*'Other input expert'!L$6","v":0},{"$f":"AA58*'Other input expert'!M$14*'Sales price per sales channel'!$I58*'Other input expert'!M$6","v":0},null,{"$f":"AC58*'Other input expert'!B$12*'Sales price per sales channel'!$G58*'Other input expert'!B$7","v":0},{"$f":"AD58*'Other input expert'!C$12*'Sales price per sales channel'!$G58*'Other input expert'!C$7","v":0},{"$f":"AE58*'Other input expert'!D$12*'Sales price per sales channel'!$G58*'Other input expert'!D$7","v":0},{"$f":"AF58*'Other input expert'!E$12*'Sales price per sales channel'!$G58*'Other input expert'!E$7","v":0},{"$f":"AG58*'Other input expert'!F$12*'Sales price per sales channel'!$G58*'Other input expert'!F$7","v":0},{"$f":"AH58*'Other input expert'!G$12*'Sales price per sales channel'!$G58*'Other input expert'!G$7","v":0},{"$f":"AI58*'Other input expert'!H$12*'Sales price per sales channel'!$G58*'Other input expert'!H$7","v":0},{"$f":"AJ58*'Other input expert'!I$12*'Sales price per sales channel'!$G58*'Other input expert'!I$7","v":0},{"$f":"AK58*'Other input expert'!J$12*'Sales price per sales channel'!$G58*'Other input expert'!J$7","v":0},{"$f":"AL58*'Other input expert'!K$12*'Sales price per sales channel'!$G58*'Other input expert'!K$7","v":0},{"$f":"AM58*'Other input expert'!L$12*'Sales price per sales channel'!$G58*'Other input expert'!L$7","v":0},{"$f":"AN58*'Other input expert'!M$12*'Sales price per sales channel'!$G58*'Other input expert'!M$7","v":0},null,{"$f":"AC58*'Other input expert'!B$13*'Sales price per sales channel'!$H58*'Other input expert'!B$7","v":0},{"$f":"AD58*'Other input expert'!C$13*'Sales price per sales channel'!$H58*'Other input expert'!C$7","v":0},{"$f":"AE58*'Other input expert'!D$13*'Sales price per sales channel'!$H58*'Other input expert'!D$7","v":0},{"$f":"AF58*'Other input expert'!E$13*'Sales price per sales channel'!$H58*'Other input expert'!E$7","v":0},{"$f":"AG58*'Other input expert'!F$13*'Sales price per sales channel'!$H58*'Other input expert'!F$7","v":0},{"$f":"AH58*'Other input expert'!G$13*'Sales price per sales channel'!$H58*'Other input expert'!G$7","v":0},{"$f":"AI58*'Other input expert'!H$13*'Sales price per sales channel'!$H58*'Other input expert'!H$7","v":0},{"$f":"AJ58*'Other input expert'!I$13*'Sales price per sales channel'!$H58*'Other input expert'!I$7","v":0},{"$f":"AK58*'Other input expert'!J$13*'Sales price per sales channel'!$H58*'Other input expert'!J$7","v":0},{"$f":"AL58*'Other input expert'!K$13*'Sales price per sales channel'!$H58*'Other input expert'!K$7","v":0},{"$f":"AM58*'Other input expert'!L$13*'Sales price per sales channel'!$H58*'Other input expert'!L$7","v":0},{"$f":"AN58*'Other input expert'!M$13*'Sales price per sales channel'!$H58*'Other input expert'!M$7","v":0},null,{"$f":"AC58*'Other input expert'!B$14*'Sales price per sales channel'!$I58*'Other input expert'!B$7","v":0},{"$f":"AD58*'Other input expert'!C$14*'Sales price per sales channel'!$I58*'Other input expert'!C$7","v":0},{"$f":"AE58*'Other input expert'!D$14*'Sales price per sales channel'!$I58*'Other input expert'!D$7","v":0},{"$f":"AF58*'Other input expert'!E$14*'Sales price per sales channel'!$I58*'Other input expert'!E$7","v":0},{"$f":"AG58*'Other input expert'!F$14*'Sales price per sales channel'!$I58*'Other input expert'!F$7","v":0},{"$f":"AH58*'Other input expert'!G$14*'Sales price per sales channel'!$I58*'Other input expert'!G$7","v":0},{"$f":"AI58*'Other input expert'!H$14*'Sales price per sales channel'!$I58*'Other input expert'!H$7","v":0},{"$f":"AJ58*'Other input expert'!I$14*'Sales price per sales channel'!$I58*'Other input expert'!I$7","v":0},{"$f":"AK58*'Other input expert'!J$14*'Sales price per sales channel'!$I58*'Other input expert'!J$7","v":0},{"$f":"AL58*'Other input expert'!K$14*'Sales price per sales channel'!$I58*'Other input expert'!K$7","v":0},{"$f":"AM58*'Other input expert'!L$14*'Sales price per sales channel'!$I58*'Other input expert'!L$7","v":0},{"$f":"AN58*'Other input expert'!M$14*'Sales price per sales channel'!$I58*'Other input expert'!M$7","v":0}]
["Crataegus persimilis","hawthorn",{"$f":"Plantlist!$G59*'Production list'!D60*'Other input expert'!B$4*'Other input expert'!B$8","v":0},{"$f":"Plantlist!$G59*'Production list'!E60*'Other input expert'!C$4*'Other input expert'!C$8","v":0},{"$f":"Plantlist!$G59*'Production list'!F60*'Other input expert'!D$4*'Other input expert'!D$8","v":0},{"$f":"Plantlist!$G59*'Production list'!G60*'Other input expert'!E$4*'Other input expert'!E$8","v":0},{"$f":"Plantlist!$G59*'Production list'!H60*'Other input expert'!F$4*'Other input expert'!F$8","v":0},{"$f":"Plantlist!$G59*'Production list'!I60*'Other input expert'!G$4*'Other input expert'!G$8","v":0},{"$f":"Plantlist!$G59*'Production list'!J60*'Other input expert'!H$4*'Other input expert'!H$8","v":0},{"$f":"Plantlist!$G59*'Production list'!K60*'Other input expert'!I$4*'Other input expert'!I$8","v":0},{"$f":"Plantlist!$G59*'Production list'!L60*'Other input expert'!J$4*'Other input expert'!J$8","v":0},{"$f":"Plantlist!$G59*'Production list'!M60*'Other input expert'!K$4*'Other input expert'!K$8","v":0},{"$f":"Plantlist!$G59*'Production list'!N60*'Other input expert'!L$4*'Other input expert'!L$8","v":0},{"$f":"Plantlist!$G59*'Production list'!O60*'Other input expert'!M$4*'Other input expert'!M$8","v":0},null,{"$f":"C59*'Other input expert'!B$5","v":0},{"$f":"D59*'Other input expert'!C$5","v":0},{"$f":"E59*'Other input expert'!D$5","v":0},{"$f":"F59*'Other input expert'!E$5","v":0},{"$f":"G59*'Other input expert'!F$5","v":0},{"$f":"H59*'Other input expert'!G$5","v":0},{"$f":"I59*'Other input expert'!H$5","v":0},{"$f":"J59*'Other input expert'!I$5","v":0},{"$f":"K59*'Other input expert'!J$5","v":0},{"$f":"L59*'Other input expert'!K$5","v":0},{"$f":"M59*'Other input expert'!L$5","v":0},{"$f":"N59*'Other input expert'!M$5","v":0},null,{"$f":"C59*(100%-'Other input expert'!B$5)","v":0},{"$f":"D59*(100%-'Other input expert'!C$5)","v":0},{"$f":"E59*(100%-'Other input expert'!D$5)","v":0},{"$f":"F59*(100%-'Other input expert'!E$5)","v":0},{"$f":"G59*(100%-'Other input expert'!F$5)","v":0},{"$f":"H59*(100%-'Other input expert'!G$5)","v":0},{"$f":"I59*(100%-'Other input expert'!H$5)","v":0},{"$f":"J59*(100%-'Other input expert'!I$5)","v":0},{"$f":"K59*(100%-'Other input expert'!J$5)","v":0},{"$f":"L59*(100%-'Other input expert'!K$5)","v":0},{"$f":"M59*(100%-'Other input expert'!L$5)","v":0},{"$f":"N59*(100%-'Other input expert'!M$5)","v":0},null,{"$f":"P59*'Other input expert'!B$12*'Sales price per sales channel'!$G59*'Other input expert'!B$6","v":0},{"$f":"Q59*'Other input expert'!C$12*'Sales price per sales channel'!$G59*'Other input expert'!C$6","v":0},{"$f":"R59*'Other input expert'!D$12*'Sales price per sales channel'!$G59*'Other input expert'!D$6","v":0},{"$f":"S59*'Other input expert'!E$12*'Sales price per sales channel'!$G59*'Other input expert'!E$6","v":0},{"$f":"T59*'Other input expert'!F$12*'Sales price per sales channel'!$G59*'Other input expert'!F$6","v":0},{"$f":"U59*'Other input expert'!G$12*'Sales price per sales channel'!$G59*'Other input expert'!G$6","v":0},{"$f":"V59*'Other input expert'!H$12*'Sales price per sales channel'!$G59*'Other input expert'!H$6","v":0},{"$f":"W59*'Other input expert'!I$12*'Sales price per sales channel'!$G59*'Other input expert'!I$6","v":0},{"$f":"X59*'Other input expert'!J$12*'Sales price per sales channel'!$G59*'Other input expert'!J$6","v":0},{"$f":"Y59*'Other input expert'!K$12*'Sales price per sales channel'!$G59*'Other input expert'!K$6","v":0},{"$f":"Z59*'Other input expert'!L$12*'Sales price per sales channel'!$G59*'Other input expert'!L$6","v":0},{"$f":"AA59*'Other input expert'!M$12*'Sales price per sales channel'!$G59*'Other input expert'!M$6","v":0},null,{"$f":"P59*'Other input expert'!B$13*'Sales price per sales channel'!$H59*'Other input expert'!B$6","v":0},{"$f":"Q59*'Other input expert'!C$13*'Sales price per sales channel'!$H59*'Other input expert'!C$6","v":0},{"$f":"R59*'Other input expert'!D$13*'Sales price per sales channel'!$H59*'Other input expert'!D$6","v":0},{"$f":"S59*'Other input expert'!E$13*'Sales price per sales channel'!$H59*'Other input expert'!E$6","v":0},{"$f":"T59*'Other input expert'!F$13*'Sales price per sales channel'!$H59*'Other input expert'!F$6","v":0},{"$f":"U59*'Other input expert'!G$13*'Sales price per sales channel'!$H59*'Other input expert'!G$6","v":0},{"$f":"V59*'Other input expert'!H$13*'Sales price per sales channel'!$H59*'Other input expert'!H$6","v":0},{"$f":"W59*'Other input expert'!I$13*'Sales price per sales channel'!$H59*'Other input expert'!I$6","v":0},{"$f":"X59*'Other input expert'!J$13*'Sales price per sales channel'!$H59*'Other input expert'!J$6","v":0},{"$f":"Y59*'Other input expert'!K$13*'Sales price per sales channel'!$H59*'Other input expert'!K$6","v":0},{"$f":"Z59*'Other input expert'!L$13*'Sales price per sales channel'!$H59*'Other input expert'!L$6","v":0},{"$f":"AA59*'Other input expert'!M$13*'Sales price per sales channel'!$H59*'Other input expert'!M$6","v":0},null,{"$f":"P59*'Other input expert'!B$14*'Sales price per sales channel'!$I59*'Other input expert'!B$6","v":0},{"$f":"Q59*'Other input expert'!C$14*'Sales price per sales channel'!$I59*'Other input expert'!C$6","v":0},{"$f":"R59*'Other input expert'!D$14*'Sales price per sales channel'!$I59*'Other input expert'!D$6","v":0},{"$f":"S59*'Other input expert'!E$14*'Sales price per sales channel'!$I59*'Other input expert'!E$6","v":0},{"$f":"T59*'Other input expert'!F$14*'Sales price per sales channel'!$I59*'Other input expert'!F$6","v":0},{"$f":"U59*'Other input expert'!G$14*'Sales price per sales channel'!$I59*'Other input expert'!G$6","v":0},{"$f":"V59*'Other input expert'!H$14*'Sales price per sales channel'!$I59*'Other input expert'!H$6","v":0},{"$f":"W59*'Other input expert'!I$14*'Sales price per sales channel'!$I59*'Other input expert'!I$6","v":0},{"$f":"X59*'Other input expert'!J$14*'Sales price per sales channel'!$I59*'Other input expert'!J$6","v":0},{"$f":"Y59*'Other input expert'!K$14*'Sales price per sales channel'!$I59*'Other input expert'!K$6","v":0},{"$f":"Z59*'Other input expert'!L$14*'Sales price per sales channel'!$I59*'Other input expert'!L$6","v":0},{"$f":"AA59*'Other input expert'!M$14*'Sales price per sales channel'!$I59*'Other input expert'!M$6","v":0},null,{"$f":"AC59*'Other input expert'!B$12*'Sales price per sales channel'!$G59*'Other input expert'!B$7","v":0},{"$f":"AD59*'Other input expert'!C$12*'Sales price per sales channel'!$G59*'Other input expert'!C$7","v":0},{"$f":"AE59*'Other input expert'!D$12*'Sales price per sales channel'!$G59*'Other input expert'!D$7","v":0},{"$f":"AF59*'Other input expert'!E$12*'Sales price per sales channel'!$G59*'Other input expert'!E$7","v":0},{"$f":"AG59*'Other input expert'!F$12*'Sales price per sales channel'!$G59*'Other input expert'!F$7","v":0},{"$f":"AH59*'Other input expert'!G$12*'Sales price per sales channel'!$G59*'Other input expert'!G$7","v":0},{"$f":"AI59*'Other input expert'!H$12*'Sales price per sales channel'!$G59*'Other input expert'!H$7","v":0},{"$f":"AJ59*'Other input expert'!I$12*'Sales price per sales channel'!$G59*'Other input expert'!I$7","v":0},{"$f":"AK59*'Other input expert'!J$12*'Sales price per sales channel'!$G59*'Other input expert'!J$7","v":0},{"$f":"AL59*'Other input expert'!K$12*'Sales price per sales channel'!$G59*'Other input expert'!K$7","v":0},{"$f":"AM59*'Other input expert'!L$12*'Sales price per sales channel'!$G59*'Other input expert'!L$7","v":0},{"$f":"AN59*'Other input expert'!M$12*'Sales price per sales channel'!$G59*'Other input expert'!M$7","v":0},null,{"$f":"AC59*'Other input expert'!B$13*'Sales price per sales channel'!$H59*'Other input expert'!B$7","v":0},{"$f":"AD59*'Other input expert'!C$13*'Sales price per sales channel'!$H59*'Other input expert'!C$7","v":0},{"$f":"AE59*'Other input expert'!D$13*'Sales price per sales channel'!$H59*'Other input expert'!D$7","v":0},{"$f":"AF59*'Other input expert'!E$13*'Sales price per sales channel'!$H59*'Other input expert'!E$7","v":0},{"$f":"AG59*'Other input expert'!F$13*'Sales price per sales channel'!$H59*'Other input expert'!F$7","v":0},{"$f":"AH59*'Other input expert'!G$13*'Sales price per sales channel'!$H59*'Other input expert'!G$7","v":0},{"$f":"AI59*'Other input expert'!H$13*'Sales price per sales channel'!$H59*'Other input expert'!H$7","v":0},{"$f":"AJ59*'Other input expert'!I$13*'Sales price per sales channel'!$H59*'Other input expert'!I$7","v":0},{"$f":"AK59*'Other input expert'!J$13*'Sales price per sales channel'!$H59*'Other input expert'!J$7","v":0},{"$f":"AL59*'Other input expert'!K$13*'Sales price per sales channel'!$H59*'Other input expert'!K$7","v":0},{"$f":"AM59*'Other input expert'!L$13*'Sales price per sales channel'!$H59*'Other input expert'!L$7","v":0},{"$f":"AN59*'Other input expert'!M$13*'Sales price per sales channel'!$H59*'Other input expert'!M$7","v":0},null,{"$f":"AC59*'Other input expert'!B$14*'Sales price per sales channel'!$I59*'Other input expert'!B$7","v":0},{"$f":"AD59*'Other input expert'!C$14*'Sales price per sales channel'!$I59*'Other input expert'!C$7","v":0},{"$f":"AE59*'Other input expert'!D$14*'Sales price per sales channel'!$I59*'Other input expert'!D$7","v":0},{"$f":"AF59*'Other input expert'!E$14*'Sales price per sales channel'!$I59*'Other input expert'!E$7","v":0},{"$f":"AG59*'Other input expert'!F$14*'Sales price per sales channel'!$I59*'Other input expert'!F$7","v":0},{"$f":"AH59*'Other input expert'!G$14*'Sales price per sales channel'!$I59*'Other input expert'!G$7","v":0},{"$f":"AI59*'Other input expert'!H$14*'Sales price per sales channel'!$I59*'Other input expert'!H$7","v":0},{"$f":"AJ59*'Other input expert'!I$14*'Sales price per sales channel'!$I59*'Other input expert'!I$7","v":0},{"$f":"AK59*'Other input expert'!J$14*'Sales price per sales channel'!$I59*'Other input expert'!J$7","v":0},{"$f":"AL59*'Other input expert'!K$14*'Sales price per sales channel'!$I59*'Other input expert'!K$7","v":0},{"$f":"AM59*'Other input expert'!L$14*'Sales price per sales channel'!$I59*'Other input expert'!L$7","v":0},{"$f":"AN59*'Other input expert'!M$14*'Sales price per sales channel'!$I59*'Other input expert'!M$7","v":0}]
["Crataegus pinnatifida","hawthorn",{"$f":"Plantlist!$G60*'Production list'!D61*'Other input expert'!B$4*'Other input expert'!B$8","v":0},{"$f":"Plantlist!$G60*'Production list'!E61*'Other input expert'!C$4*'Other input expert'!C$8","v":0},{"$f":"Plantlist!$G60*'Production list'!F61*'Other input expert'!D$4*'Other input expert'!D$8","v":0},{"$f":"Plantlist!$G60*'Production list'!G61*'Other input expert'!E$4*'Other input expert'!E$8","v":0},{"$f":"Plantlist!$G60*'Production list'!H61*'Other input expert'!F$4*'Other input expert'!F$8","v":0},{"$f":"Plantlist!$G60*'Production list'!I61*'Other input expert'!G$4*'Other input expert'!G$8","v":0},{"$f":"Plantlist!$G60*'Production list'!J61*'Other input expert'!H$4*'Other input expert'!H$8","v":0},{"$f":"Plantlist!$G60*'Production list'!K61*'Other input expert'!I$4*'Other input expert'!I$8","v":0},{"$f":"Plantlist!$G60*'Production list'!L61*'Other input expert'!J$4*'Other input expert'!J$8","v":0},{"$f":"Plantlist!$G60*'Production list'!M61*'Other input expert'!K$4*'Other input expert'!K$8","v":0},{"$f":"Plantlist!$G60*'Production list'!N61*'Other input expert'!L$4*'Other input expert'!L$8","v":0},{"$f":"Plantlist!$G60*'Production list'!O61*'Other input expert'!M$4*'Other input expert'!M$8","v":0},null,{"$f":"C60*'Other input expert'!B$5","v":0},{"$f":"D60*'Other input expert'!C$5","v":0},{"$f":"E60*'Other input expert'!D$5","v":0},{"$f":"F60*'Other input expert'!E$5","v":0},{"$f":"G60*'Other input expert'!F$5","v":0},{"$f":"H60*'Other input expert'!G$5","v":0},{"$f":"I60*'Other input expert'!H$5","v":0},{"$f":"J60*'Other input expert'!I$5","v":0},{"$f":"K60*'Other input expert'!J$5","v":0},{"$f":"L60*'Other input expert'!K$5","v":0},{"$f":"M60*'Other input expert'!L$5","v":0},{"$f":"N60*'Other input expert'!M$5","v":0},null,{"$f":"C60*(100%-'Other input expert'!B$5)","v":0},{"$f":"D60*(100%-'Other input expert'!C$5)","v":0},{"$f":"E60*(100%-'Other input expert'!D$5)","v":0},{"$f":"F60*(100%-'Other input expert'!E$5)","v":0},{"$f":"G60*(100%-'Other input expert'!F$5)","v":0},{"$f":"H60*(100%-'Other input expert'!G$5)","v":0},{"$f":"I60*(100%-'Other input expert'!H$5)","v":0},{"$f":"J60*(100%-'Other input expert'!I$5)","v":0},{"$f":"K60*(100%-'Other input expert'!J$5)","v":0},{"$f":"L60*(100%-'Other input expert'!K$5)","v":0},{"$f":"M60*(100%-'Other input expert'!L$5)","v":0},{"$f":"N60*(100%-'Other input expert'!M$5)","v":0},null,{"$f":"P60*'Other input expert'!B$12*'Sales price per sales channel'!$G60*'Other input expert'!B$6","v":0},{"$f":"Q60*'Other input expert'!C$12*'Sales price per sales channel'!$G60*'Other input expert'!C$6","v":0},{"$f":"R60*'Other input expert'!D$12*'Sales price per sales channel'!$G60*'Other input expert'!D$6","v":0},{"$f":"S60*'Other input expert'!E$12*'Sales price per sales channel'!$G60*'Other input expert'!E$6","v":0},{"$f":"T60*'Other input expert'!F$12*'Sales price per sales channel'!$G60*'Other input expert'!F$6","v":0},{"$f":"U60*'Other input expert'!G$12*'Sales price per sales channel'!$G60*'Other input expert'!G$6","v":0},{"$f":"V60*'Other input expert'!H$12*'Sales price per sales channel'!$G60*'Other input expert'!H$6","v":0},{"$f":"W60*'Other input expert'!I$12*'Sales price per sales channel'!$G60*'Other input expert'!I$6","v":0},{"$f":"X60*'Other input expert'!J$12*'Sales price per sales channel'!$G60*'Other input expert'!J$6","v":0},{"$f":"Y60*'Other input expert'!K$12*'Sales price per sales channel'!$G60*'Other input expert'!K$6","v":0},{"$f":"Z60*'Other input expert'!L$12*'Sales price per sales channel'!$G60*'Other input expert'!L$6","v":0},{"$f":"AA60*'Other input expert'!M$12*'Sales price per sales channel'!$G60*'Other input expert'!M$6","v":0},null,{"$f":"P60*'Other input expert'!B$13*'Sales price per sales channel'!$H60*'Other input expert'!B$6","v":0},{"$f":"Q60*'Other input expert'!C$13*'Sales price per sales channel'!$H60*'Other input expert'!C$6","v":0},{"$f":"R60*'Other input expert'!D$13*'Sales price per sales channel'!$H60*'Other input expert'!D$6","v":0},{"$f":"S60*'Other input expert'!E$13*'Sales price per sales channel'!$H60*'Other input expert'!E$6","v":0},{"$f":"T60*'Other input expert'!F$13*'Sales price per sales channel'!$H60*'Other input expert'!F$6","v":0},{"$f":"U60*'Other input expert'!G$13*'Sales price per sales channel'!$H60*'Other input expert'!G$6","v":0},{"$f":"V60*'Other input expert'!H$13*'Sales price per sales channel'!$H60*'Other input expert'!H$6","v":0},{"$f":"W60*'Other input expert'!I$13*'Sales price per sales channel'!$H60*'Other input expert'!I$6","v":0},{"$f":"X60*'Other input expert'!J$13*'Sales price per sales channel'!$H60*'Other input expert'!J$6","v":0},{"$f":"Y60*'Other input expert'!K$13*'Sales price per sales channel'!$H60*'Other input expert'!K$6","v":0},{"$f":"Z60*'Other input expert'!L$13*'Sales price per sales channel'!$H60*'Other input expert'!L$6","v":0},{"$f":"AA60*'Other input expert'!M$13*'Sales price per sales channel'!$H60*'Other input expert'!M$6","v":0},null,{"$f":"P60*'Other input expert'!B$14*'Sales price per sales channel'!$I60*'Other input expert'!B$6","v":0},{"$f":"Q60*'Other input expert'!C$14*'Sales price per sales channel'!$I60*'Other input expert'!C$6","v":0},{"$f":"R60*'Other input expert'!D$14*'Sales price per sales channel'!$I60*'Other input expert'!D$6","v":0},{"$f":"S60*'Other input expert'!E$14*'Sales price per sales channel'!$I60*'Other input expert'!E$6","v":0},{"$f":"T60*'Other input expert'!F$14*'Sales price per sales channel'!$I60*'Other input expert'!F$6","v":0},{"$f":"U60*'Other input expert'!G$14*'Sales price per sales channel'!$I60*'Other input expert'!G$6","v":0},{"$f":"V60*'Other input expert'!H$14*'Sales price per sales channel'!$I60*'Other input expert'!H$6","v":0},{"$f":"W60*'Other input expert'!I$14*'Sales price per sales channel'!$I60*'Other input expert'!I$6","v":0},{"$f":"X60*'Other input expert'!J$14*'Sales price per sales channel'!$I60*'Other input expert'!J$6","v":0},{"$f":"Y60*'Other input expert'!K$14*'Sales price per sales channel'!$I60*'Other input expert'!K$6","v":0},{"$f":"Z60*'Other input expert'!L$14*'Sales price per sales channel'!$I60*'Other input expert'!L$6","v":0},{"$f":"AA60*'Other input expert'!M$14*'Sales price per sales channel'!$I60*'Other input expert'!M$6","v":0},null,{"$f":"AC60*'Other input expert'!B$12*'Sales price per sales channel'!$G60*'Other input expert'!B$7","v":0},{"$f":"AD60*'Other input expert'!C$12*'Sales price per sales channel'!$G60*'Other input expert'!C$7","v":0},{"$f":"AE60*'Other input expert'!D$12*'Sales price per sales channel'!$G60*'Other input expert'!D$7","v":0},{"$f":"AF60*'Other input expert'!E$12*'Sales price per sales channel'!$G60*'Other input expert'!E$7","v":0},{"$f":"AG60*'Other input expert'!F$12*'Sales price per sales channel'!$G60*'Other input expert'!F$7","v":0},{"$f":"AH60*'Other input expert'!G$12*'Sales price per sales channel'!$G60*'Other input expert'!G$7","v":0},{"$f":"AI60*'Other input expert'!H$12*'Sales price per sales channel'!$G60*'Other input expert'!H$7","v":0},{"$f":"AJ60*'Other input expert'!I$12*'Sales price per sales channel'!$G60*'Other input expert'!I$7","v":0},{"$f":"AK60*'Other input expert'!J$12*'Sales price per sales channel'!$G60*'Other input expert'!J$7","v":0},{"$f":"AL60*'Other input expert'!K$12*'Sales price per sales channel'!$G60*'Other input expert'!K$7","v":0},{"$f":"AM60*'Other input expert'!L$12*'Sales price per sales channel'!$G60*'Other input expert'!L$7","v":0},{"$f":"AN60*'Other input expert'!M$12*'Sales price per sales channel'!$G60*'Other input expert'!M$7","v":0},null,{"$f":"AC60*'Other input expert'!B$13*'Sales price per sales channel'!$H60*'Other input expert'!B$7","v":0},{"$f":"AD60*'Other input expert'!C$13*'Sales price per sales channel'!$H60*'Other input expert'!C$7","v":0},{"$f":"AE60*'Other input expert'!D$13*'Sales price per sales channel'!$H60*'Other input expert'!D$7","v":0},{"$f":"AF60*'Other input expert'!E$13*'Sales price per sales channel'!$H60*'Other input expert'!E$7","v":0},{"$f":"AG60*'Other input expert'!F$13*'Sales price per sales channel'!$H60*'Other input expert'!F$7","v":0},{"$f":"AH60*'Other input expert'!G$13*'Sales price per sales channel'!$H60*'Other input expert'!G$7","v":0},{"$f":"AI60*'Other input expert'!H$13*'Sales price per sales channel'!$H60*'Other input expert'!H$7","v":0},{"$f":"AJ60*'Other input expert'!I$13*'Sales price per sales channel'!$H60*'Other input expert'!I$7","v":0},{"$f":"AK60*'Other input expert'!J$13*'Sales price per sales channel'!$H60*'Other input expert'!J$7","v":0},{"$f":"AL60*'Other input expert'!K$13*'Sales price per sales channel'!$H60*'Other input expert'!K$7","v":0},{"$f":"AM60*'Other input expert'!L$13*'Sales price per sales channel'!$H60*'Other input expert'!L$7","v":0},{"$f":"AN60*'Other input expert'!M$13*'Sales price per sales channel'!$H60*'Other input expert'!M$7","v":0},null,{"$f":"AC60*'Other input expert'!B$14*'Sales price per sales channel'!$I60*'Other input expert'!B$7","v":0},{"$f":"AD60*'Other input expert'!C$14*'Sales price per sales channel'!$I60*'Other input expert'!C$7","v":0},{"$f":"AE60*'Other input expert'!D$14*'Sales price per sales channel'!$I60*'Other input expert'!D$7","v":0},{"$f":"AF60*'Other input expert'!E$14*'Sales price per sales channel'!$I60*'Other input expert'!E$7","v":0},{"$f":"AG60*'Other input expert'!F$14*'Sales price per sales channel'!$I60*'Other input expert'!F$7","v":0},{"$f":"AH60*'Other input expert'!G$14*'Sales price per sales channel'!$I60*'Other input expert'!G$7","v":0},{"$f":"AI60*'Other input expert'!H$14*'Sales price per sales channel'!$I60*'Other input expert'!H$7","v":0},{"$f":"AJ60*'Other input expert'!I$14*'Sales price per sales channel'!$I60*'Other input expert'!I$7","v":0},{"$f":"AK60*'Other input expert'!J$14*'Sales price per sales channel'!$I60*'Other input expert'!J$7","v":0},{"$f":"AL60*'Other input expert'!K$14*'Sales price per sales channel'!$I60*'Other input expert'!K$7","v":0},{"$f":"AM60*'Other input expert'!L$14*'Sales price per sales channel'!$I60*'Other input expert'!L$7","v":0},{"$f":"AN60*'Other input expert'!M$14*'Sales price per sales channel'!$I60*'Other input expert'!M$7","v":0}]
["Cydonia oblonga (sept)","Quince",{"$f":"Plantlist!$G61*'Production list'!D62*'Other input expert'!B$4*'Other input expert'!B$8","v":0},{"$f":"Plantlist!$G61*'Production list'!E62*'Other input expert'!C$4*'Other input expert'!C$8","v":0},{"$f":"Plantlist!$G61*'Production list'!F62*'Other input expert'!D$4*'Other input expert'!D$8","v":0},{"$f":"Plantlist!$G61*'Production list'!G62*'Other input expert'!E$4*'Other input expert'!E$8","v":0},{"$f":"Plantlist!$G61*'Production list'!H62*'Other input expert'!F$4*'Other input expert'!F$8","v":0},{"$f":"Plantlist!$G61*'Production list'!I62*'Other input expert'!G$4*'Other input expert'!G$8","v":0},{"$f":"Plantlist!$G61*'Production list'!J62*'Other input expert'!H$4*'Other input expert'!H$8","v":0},{"$f":"Plantlist!$G61*'Production list'!K62*'Other input expert'!I$4*'Other input expert'!I$8","v":0},{"$f":"Plantlist!$G61*'Production list'!L62*'Other input expert'!J$4*'Other input expert'!J$8","v":0},{"$f":"Plantlist!$G61*'Production list'!M62*'Other input expert'!K$4*'Other input expert'!K$8","v":0},{"$f":"Plantlist!$G61*'Production list'!N62*'Other input expert'!L$4*'Other input expert'!L$8","v":0},{"$f":"Plantlist!$G61*'Production list'!O62*'Other input expert'!M$4*'Other input expert'!M$8","v":0},null,{"$f":"C61*'Other input expert'!B$5","v":0},{"$f":"D61*'Other input expert'!C$5","v":0},{"$f":"E61*'Other input expert'!D$5","v":0},{"$f":"F61*'Other input expert'!E$5","v":0},{"$f":"G61*'Other input expert'!F$5","v":0},{"$f":"H61*'Other input expert'!G$5","v":0},{"$f":"I61*'Other input expert'!H$5","v":0},{"$f":"J61*'Other input expert'!I$5","v":0},{"$f":"K61*'Other input expert'!J$5","v":0},{"$f":"L61*'Other input expert'!K$5","v":0},{"$f":"M61*'Other input expert'!L$5","v":0},{"$f":"N61*'Other input expert'!M$5","v":0},null,{"$f":"C61*(100%-'Other input expert'!B$5)","v":0},{"$f":"D61*(100%-'Other input expert'!C$5)","v":0},{"$f":"E61*(100%-'Other input expert'!D$5)","v":0},{"$f":"F61*(100%-'Other input expert'!E$5)","v":0},{"$f":"G61*(100%-'Other input expert'!F$5)","v":0},{"$f":"H61*(100%-'Other input expert'!G$5)","v":0},{"$f":"I61*(100%-'Other input expert'!H$5)","v":0},{"$f":"J61*(100%-'Other input expert'!I$5)","v":0},{"$f":"K61*(100%-'Other input expert'!J$5)","v":0},{"$f":"L61*(100%-'Other input expert'!K$5)","v":0},{"$f":"M61*(100%-'Other input expert'!L$5)","v":0},{"$f":"N61*(100%-'Other input expert'!M$5)","v":0},null,{"$f":"P61*'Other input expert'!B$12*'Sales price per sales channel'!$G61*'Other input expert'!B$6","v":0},{"$f":"Q61*'Other input expert'!C$12*'Sales price per sales channel'!$G61*'Other input expert'!C$6","v":0},{"$f":"R61*'Other input expert'!D$12*'Sales price per sales channel'!$G61*'Other input expert'!D$6","v":0},{"$f":"S61*'Other input expert'!E$12*'Sales price per sales channel'!$G61*'Other input expert'!E$6","v":0},{"$f":"T61*'Other input expert'!F$12*'Sales price per sales channel'!$G61*'Other input expert'!F$6","v":0},{"$f":"U61*'Other input expert'!G$12*'Sales price per sales channel'!$G61*'Other input expert'!G$6","v":0},{"$f":"V61*'Other input expert'!H$12*'Sales price per sales channel'!$G61*'Other input expert'!H$6","v":0},{"$f":"W61*'Other input expert'!I$12*'Sales price per sales channel'!$G61*'Other input expert'!I$6","v":0},{"$f":"X61*'Other input expert'!J$12*'Sales price per sales channel'!$G61*'Other input expert'!J$6","v":0},{"$f":"Y61*'Other input expert'!K$12*'Sales price per sales channel'!$G61*'Other input expert'!K$6","v":0},{"$f":"Z61*'Other input expert'!L$12*'Sales price per sales channel'!$G61*'Other input expert'!L$6","v":0},{"$f":"AA61*'Other input expert'!M$12*'Sales price per sales channel'!$G61*'Other input expert'!M$6","v":0},null,{"$f":"P61*'Other input expert'!B$13*'Sales price per sales channel'!$H61*'Other input expert'!B$6","v":0},{"$f":"Q61*'Other input expert'!C$13*'Sales price per sales channel'!$H61*'Other input expert'!C$6","v":0},{"$f":"R61*'Other input expert'!D$13*'Sales price per sales channel'!$H61*'Other input expert'!D$6","v":0},{"$f":"S61*'Other input expert'!E$13*'Sales price per sales channel'!$H61*'Other input expert'!E$6","v":0},{"$f":"T61*'Other input expert'!F$13*'Sales price per sales channel'!$H61*'Other input expert'!F$6","v":0},{"$f":"U61*'Other input expert'!G$13*'Sales price per sales channel'!$H61*'Other input expert'!G$6","v":0},{"$f":"V61*'Other input expert'!H$13*'Sales price per sales channel'!$H61*'Other input expert'!H$6","v":0},{"$f":"W61*'Other input expert'!I$13*'Sales price per sales channel'!$H61*'Other input expert'!I$6","v":0},{"$f":"X61*'Other input expert'!J$13*'Sales price per sales channel'!$H61*'Other input expert'!J$6","v":0},{"$f":"Y61*'Other input expert'!K$13*'Sales price per sales channel'!$H61*'Other input expert'!K$6","v":0},{"$f":"Z61*'Other input expert'!L$13*'Sales price per sales channel'!$H61*'Other input expert'!L$6","v":0},{"$f":"AA61*'Other input expert'!M$13*'Sales price per sales channel'!$H61*'Other input expert'!M$6","v":0},null,{"$f":"P61*'Other input expert'!B$14*'Sales price per sales channel'!$I61*'Other input expert'!B$6","v":0},{"$f":"Q61*'Other input expert'!C$14*'Sales price per sales channel'!$I61*'Other input expert'!C$6","v":0},{"$f":"R61*'Other input expert'!D$14*'Sales price per sales channel'!$I61*'Other input expert'!D$6","v":0},{"$f":"S61*'Other input expert'!E$14*'Sales price per sales channel'!$I61*'Other input expert'!E$6","v":0},{"$f":"T61*'Other input expert'!F$14*'Sales price per sales channel'!$I61*'Other input expert'!F$6","v":0},{"$f":"U61*'Other input expert'!G$14*'Sales price per sales channel'!$I61*'Other input expert'!G$6","v":0},{"$f":"V61*'Other input expert'!H$14*'Sales price per sales channel'!$I61*'Other input expert'!H$6","v":0},{"$f":"W61*'Other input expert'!I$14*'Sales price per sales channel'!$I61*'Other input expert'!I$6","v":0},{"$f":"X61*'Other input expert'!J$14*'Sales price per sales channel'!$I61*'Other input expert'!J$6","v":0},{"$f":"Y61*'Other input expert'!K$14*'Sales price per sales channel'!$I61*'Other input expert'!K$6","v":0},{"$f":"Z61*'Other input expert'!L$14*'Sales price per sales channel'!$I61*'Other input expert'!L$6","v":0},{"$f":"AA61*'Other input expert'!M$14*'Sales price per sales channel'!$I61*'Other input expert'!M$6","v":0},null,{"$f":"AC61*'Other input expert'!B$12*'Sales price per sales channel'!$G61*'Other input expert'!B$7","v":0},{"$f":"AD61*'Other input expert'!C$12*'Sales price per sales channel'!$G61*'Other input expert'!C$7","v":0},{"$f":"AE61*'Other input expert'!D$12*'Sales price per sales channel'!$G61*'Other input expert'!D$7","v":0},{"$f":"AF61*'Other input expert'!E$12*'Sales price per sales channel'!$G61*'Other input expert'!E$7","v":0},{"$f":"AG61*'Other input expert'!F$12*'Sales price per sales channel'!$G61*'Other input expert'!F$7","v":0},{"$f":"AH61*'Other input expert'!G$12*'Sales price per sales channel'!$G61*'Other input expert'!G$7","v":0},{"$f":"AI61*'Other input expert'!H$12*'Sales price per sales channel'!$G61*'Other input expert'!H$7","v":0},{"$f":"AJ61*'Other input expert'!I$12*'Sales price per sales channel'!$G61*'Other input expert'!I$7","v":0},{"$f":"AK61*'Other input expert'!J$12*'Sales price per sales channel'!$G61*'Other input expert'!J$7","v":0},{"$f":"AL61*'Other input expert'!K$12*'Sales price per sales channel'!$G61*'Other input expert'!K$7","v":0},{"$f":"AM61*'Other input expert'!L$12*'Sales price per sales channel'!$G61*'Other input expert'!L$7","v":0},{"$f":"AN61*'Other input expert'!M$12*'Sales price per sales channel'!$G61*'Other input expert'!M$7","v":0},null,{"$f":"AC61*'Other input expert'!B$13*'Sales price per sales channel'!$H61*'Other input expert'!B$7","v":0},{"$f":"AD61*'Other input expert'!C$13*'Sales price per sales channel'!$H61*'Other input expert'!C$7","v":0},{"$f":"AE61*'Other input expert'!D$13*'Sales price per sales channel'!$H61*'Other input expert'!D$7","v":0},{"$f":"AF61*'Other input expert'!E$13*'Sales price per sales channel'!$H61*'Other input expert'!E$7","v":0},{"$f":"AG61*'Other input expert'!F$13*'Sales price per sales channel'!$H61*'Other input expert'!F$7","v":0},{"$f":"AH61*'Other input expert'!G$13*'Sales price per sales channel'!$H61*'Other input expert'!G$7","v":0},{"$f":"AI61*'Other input expert'!H$13*'Sales price per sales channel'!$H61*'Other input expert'!H$7","v":0},{"$f":"AJ61*'Other input expert'!I$13*'Sales price per sales channel'!$H61*'Other input expert'!I$7","v":0},{"$f":"AK61*'Other input expert'!J$13*'Sales price per sales channel'!$H61*'Other input expert'!J$7","v":0},{"$f":"AL61*'Other input expert'!K$13*'Sales price per sales channel'!$H61*'Other input expert'!K$7","v":0},{"$f":"AM61*'Other input expert'!L$13*'Sales price per sales channel'!$H61*'Other input expert'!L$7","v":0},{"$f":"AN61*'Other input expert'!M$13*'Sales price per sales channel'!$H61*'Other input expert'!M$7","v":0},null,{"$f":"AC61*'Other input expert'!B$14*'Sales price per sales channel'!$I61*'Other input expert'!B$7","v":0},{"$f":"AD61*'Other input expert'!C$14*'Sales price per sales channel'!$I61*'Other input expert'!C$7","v":0},{"$f":"AE61*'Other input expert'!D$14*'Sales price per sales channel'!$I61*'Other input expert'!D$7","v":0},{"$f":"AF61*'Other input expert'!E$14*'Sales price per sales channel'!$I61*'Other input expert'!E$7","v":0},{"$f":"AG61*'Other input expert'!F$14*'Sales price per sales channel'!$I61*'Other input expert'!F$7","v":0},{"$f":"AH61*'Other input expert'!G$14*'Sales price per sales channel'!$I61*'Other input expert'!G$7","v":0},{"$f":"AI61*'Other input expert'!H$14*'Sales price per sales channel'!$I61*'Other input expert'!H$7","v":0},{"$f":"AJ61*'Other input expert'!I$14*'Sales price per sales channel'!$I61*'Other input expert'!I$7","v":0},{"$f":"AK61*'Other input expert'!J$14*'Sales price per sales channel'!$I61*'Other input expert'!J$7","v":0},{"$f":"AL61*'Other input expert'!K$14*'Sales price per sales channel'!$I61*'Other input expert'!K$7","v":0},{"$f":"AM61*'Other input expert'!L$14*'Sales price per sales channel'!$I61*'Other input expert'!L$7","v":0},{"$f":"AN61*'Other input expert'!M$14*'Sales price per sales channel'!$I61*'Other input expert'!M$7","v":0}]
["Cynara cardunculus","Cardoon",{"$f":"Plantlist!$G62*'Production list'!D63*'Other input expert'!B$4*'Other input expert'!B$8","v":0},{"$f":"Plantlist!$G62*'Production list'!E63*'Other input expert'!C$4*'Other input expert'!C$8","v":0},{"$f":"Plantlist!$G62*'Production list'!F63*'Other input expert'!D$4*'Other input expert'!D$8","v":0},{"$f":"Plantlist!$G62*'Production list'!G63*'Other input expert'!E$4*'Other input expert'!E$8","v":0},{"$f":"Plantlist!$G62*'Production list'!H63*'Other input expert'!F$4*'Other input expert'!F$8","v":0},{"$f":"Plantlist!$G62*'Production list'!I63*'Other input expert'!G$4*'Other input expert'!G$8","v":0},{"$f":"Plantlist!$G62*'Production list'!J63*'Other input expert'!H$4*'Other input expert'!H$8","v":0},{"$f":"Plantlist!$G62*'Production list'!K63*'Other input expert'!I$4*'Other input expert'!I$8","v":0},{"$f":"Plantlist!$G62*'Production list'!L63*'Other input expert'!J$4*'Other input expert'!J$8","v":0},{"$f":"Plantlist!$G62*'Production list'!M63*'Other input expert'!K$4*'Other input expert'!K$8","v":0},{"$f":"Plantlist!$G62*'Production list'!N63*'Other input expert'!L$4*'Other input expert'!L$8","v":0},{"$f":"Plantlist!$G62*'Production list'!O63*'Other input expert'!M$4*'Other input expert'!M$8","v":0},null,{"$f":"C62*'Other input expert'!B$5","v":0},{"$f":"D62*'Other input expert'!C$5","v":0},{"$f":"E62*'Other input expert'!D$5","v":0},{"$f":"F62*'Other input expert'!E$5","v":0},{"$f":"G62*'Other input expert'!F$5","v":0},{"$f":"H62*'Other input expert'!G$5","v":0},{"$f":"I62*'Other input expert'!H$5","v":0},{"$f":"J62*'Other input expert'!I$5","v":0},{"$f":"K62*'Other input expert'!J$5","v":0},{"$f":"L62*'Other input expert'!K$5","v":0},{"$f":"M62*'Other input expert'!L$5","v":0},{"$f":"N62*'Other input expert'!M$5","v":0},null,{"$f":"C62*(100%-'Other input expert'!B$5)","v":0},{"$f":"D62*(100%-'Other input expert'!C$5)","v":0},{"$f":"E62*(100%-'Other input expert'!D$5)","v":0},{"$f":"F62*(100%-'Other input expert'!E$5)","v":0},{"$f":"G62*(100%-'Other input expert'!F$5)","v":0},{"$f":"H62*(100%-'Other input expert'!G$5)","v":0},{"$f":"I62*(100%-'Other input expert'!H$5)","v":0},{"$f":"J62*(100%-'Other input expert'!I$5)","v":0},{"$f":"K62*(100%-'Other input expert'!J$5)","v":0},{"$f":"L62*(100%-'Other input expert'!K$5)","v":0},{"$f":"M62*(100%-'Other input expert'!L$5)","v":0},{"$f":"N62*(100%-'Other input expert'!M$5)","v":0},null,{"$f":"P62*'Other input expert'!B$12*'Sales price per sales channel'!$G62*'Other input expert'!B$6","v":0},{"$f":"Q62*'Other input expert'!C$12*'Sales price per sales channel'!$G62*'Other input expert'!C$6","v":0},{"$f":"R62*'Other input expert'!D$12*'Sales price per sales channel'!$G62*'Other input expert'!D$6","v":0},{"$f":"S62*'Other input expert'!E$12*'Sales price per sales channel'!$G62*'Other input expert'!E$6","v":0},{"$f":"T62*'Other input expert'!F$12*'Sales price per sales channel'!$G62*'Other input expert'!F$6","v":0},{"$f":"U62*'Other input expert'!G$12*'Sales price per sales channel'!$G62*'Other input expert'!G$6","v":0},{"$f":"V62*'Other input expert'!H$12*'Sales price per sales channel'!$G62*'Other input expert'!H$6","v":0},{"$f":"W62*'Other input expert'!I$12*'Sales price per sales channel'!$G62*'Other input expert'!I$6","v":0},{"$f":"X62*'Other input expert'!J$12*'Sales price per sales channel'!$G62*'Other input expert'!J$6","v":0},{"$f":"Y62*'Other input expert'!K$12*'Sales price per sales channel'!$G62*'Other input expert'!K$6","v":0},{"$f":"Z62*'Other input expert'!L$12*'Sales price per sales channel'!$G62*'Other input expert'!L$6","v":0},{"$f":"AA62*'Other input expert'!M$12*'Sales price per sales channel'!$G62*'Other input expert'!M$6","v":0},null,{"$f":"P62*'Other input expert'!B$13*'Sales price per sales channel'!$H62*'Other input expert'!B$6","v":0},{"$f":"Q62*'Other input expert'!C$13*'Sales price per sales channel'!$H62*'Other input expert'!C$6","v":0},{"$f":"R62*'Other input expert'!D$13*'Sales price per sales channel'!$H62*'Other input expert'!D$6","v":0},{"$f":"S62*'Other input expert'!E$13*'Sales price per sales channel'!$H62*'Other input expert'!E$6","v":0},{"$f":"T62*'Other input expert'!F$13*'Sales price per sales channel'!$H62*'Other input expert'!F$6","v":0},{"$f":"U62*'Other input expert'!G$13*'Sales price per sales channel'!$H62*'Other input expert'!G$6","v":0},{"$f":"V62*'Other input expert'!H$13*'Sales price per sales channel'!$H62*'Other input expert'!H$6","v":0},{"$f":"W62*'Other input expert'!I$13*'Sales price per sales channel'!$H62*'Other input expert'!I$6","v":0},{"$f":"X62*'Other input expert'!J$13*'Sales price per sales channel'!$H62*'Other input expert'!J$6","v":0},{"$f":"Y62*'Other input expert'!K$13*'Sales price per sales channel'!$H62*'Other input expert'!K$6","v":0},{"$f":"Z62*'Other input expert'!L$13*'Sales price per sales channel'!$H62*'Other input expert'!L$6","v":0},{"$f":"AA62*'Other input expert'!M$13*'Sales price per sales channel'!$H62*'Other input expert'!M$6","v":0},null,{"$f":"P62*'Other input expert'!B$14*'Sales price per sales channel'!$I62*'Other input expert'!B$6","v":0},{"$f":"Q62*'Other input expert'!C$14*'Sales price per sales channel'!$I62*'Other input expert'!C$6","v":0},{"$f":"R62*'Other input expert'!D$14*'Sales price per sales channel'!$I62*'Other input expert'!D$6","v":0},{"$f":"S62*'Other input expert'!E$14*'Sales price per sales channel'!$I62*'Other input expert'!E$6","v":0},{"$f":"T62*'Other input expert'!F$14*'Sales price per sales channel'!$I62*'Other input expert'!F$6","v":0},{"$f":"U62*'Other input expert'!G$14*'Sales price per sales channel'!$I62*'Other input expert'!G$6","v":0},{"$f":"V62*'Other input expert'!H$14*'Sales price per sales channel'!$I62*'Other input expert'!H$6","v":0},{"$f":"W62*'Other input expert'!I$14*'Sales price per sales channel'!$I62*'Other input expert'!I$6","v":0},{"$f":"X62*'Other input expert'!J$14*'Sales price per sales channel'!$I62*'Other input expert'!J$6","v":0},{"$f":"Y62*'Other input expert'!K$14*'Sales price per sales channel'!$I62*'Other input expert'!K$6","v":0},{"$f":"Z62*'Other input expert'!L$14*'Sales price per sales channel'!$I62*'Other input expert'!L$6","v":0},{"$f":"AA62*'Other input expert'!M$14*'Sales price per sales channel'!$I62*'Other input expert'!M$6","v":0},null,{"$f":"AC62*'Other input expert'!B$12*'Sales price per sales channel'!$G62*'Other input expert'!B$7","v":0},{"$f":"AD62*'Other input expert'!C$12*'Sales price per sales channel'!$G62*'Other input expert'!C$7","v":0},{"$f":"AE62*'Other input expert'!D$12*'Sales price per sales channel'!$G62*'Other input expert'!D$7","v":0},{"$f":"AF62*'Other input expert'!E$12*'Sales price per sales channel'!$G62*'Other input expert'!E$7","v":0},{"$f":"AG62*'Other input expert'!F$12*'Sales price per sales channel'!$G62*'Other input expert'!F$7","v":0},{"$f":"AH62*'Other input expert'!G$12*'Sales price per sales channel'!$G62*'Other input expert'!G$7","v":0},{"$f":"AI62*'Other input expert'!H$12*'Sales price per sales channel'!$G62*'Other input expert'!H$7","v":0},{"$f":"AJ62*'Other input expert'!I$12*'Sales price per sales channel'!$G62*'Other input expert'!I$7","v":0},{"$f":"AK62*'Other input expert'!J$12*'Sales price per sales channel'!$G62*'Other input expert'!J$7","v":0},{"$f":"AL62*'Other input expert'!K$12*'Sales price per sales channel'!$G62*'Other input expert'!K$7","v":0},{"$f":"AM62*'Other input expert'!L$12*'Sales price per sales channel'!$G62*'Other input expert'!L$7","v":0},{"$f":"AN62*'Other input expert'!M$12*'Sales price per sales channel'!$G62*'Other input expert'!M$7","v":0},null,{"$f":"AC62*'Other input expert'!B$13*'Sales price per sales channel'!$H62*'Other input expert'!B$7","v":0},{"$f":"AD62*'Other input expert'!C$13*'Sales price per sales channel'!$H62*'Other input expert'!C$7","v":0},{"$f":"AE62*'Other input expert'!D$13*'Sales price per sales channel'!$H62*'Other input expert'!D$7","v":0},{"$f":"AF62*'Other input expert'!E$13*'Sales price per sales channel'!$H62*'Other input expert'!E$7","v":0},{"$f":"AG62*'Other input expert'!F$13*'Sales price per sales channel'!$H62*'Other input expert'!F$7","v":0},{"$f":"AH62*'Other input expert'!G$13*'Sales price per sales channel'!$H62*'Other input expert'!G$7","v":0},{"$f":"AI62*'Other input expert'!H$13*'Sales price per sales channel'!$H62*'Other input expert'!H$7","v":0},{"$f":"AJ62*'Other input expert'!I$13*'Sales price per sales channel'!$H62*'Other input expert'!I$7","v":0},{"$f":"AK62*'Other input expert'!J$13*'Sales price per sales channel'!$H62*'Other input expert'!J$7","v":0},{"$f":"AL62*'Other input expert'!K$13*'Sales price per sales channel'!$H62*'Other input expert'!K$7","v":0},{"$f":"AM62*'Other input expert'!L$13*'Sales price per sales channel'!$H62*'Other input expert'!L$7","v":0},{"$f":"AN62*'Other input expert'!M$13*'Sales price per sales channel'!$H62*'Other input expert'!M$7","v":0},null,{"$f":"AC62*'Other input expert'!B$14*'Sales price per sales channel'!$I62*'Other input expert'!B$7","v":0},{"$f":"AD62*'Other input expert'!C$14*'Sales price per sales channel'!$I62*'Other input expert'!C$7","v":0},{"$f":"AE62*'Other input expert'!D$14*'Sales price per sales channel'!$I62*'Other input expert'!D$7","v":0},{"$f":"AF62*'Other input expert'!E$14*'Sales price per sales channel'!$I62*'Other input expert'!E$7","v":0},{"$f":"AG62*'Other input expert'!F$14*'Sales price per sales channel'!$I62*'Other input expert'!F$7","v":0},{"$f":"AH62*'Other input expert'!G$14*'Sales price per sales channel'!$I62*'Other input expert'!G$7","v":0},{"$f":"AI62*'Other input expert'!H$14*'Sales price per sales channel'!$I62*'Other input expert'!H$7","v":0},{"$f":"AJ62*'Other input expert'!I$14*'Sales price per sales channel'!$I62*'Other input expert'!I$7","v":0},{"$f":"AK62*'Other input expert'!J$14*'Sales price per sales channel'!$I62*'Other input expert'!J$7","v":0},{"$f":"AL62*'Other input expert'!K$14*'Sales price per sales channel'!$I62*'Other input expert'!K$7","v":0},{"$f":"AM62*'Other input expert'!L$14*'Sales price per sales channel'!$I62*'Other input expert'!L$7","v":0},{"$f":"AN62*'Other input expert'!M$14*'Sales price per sales channel'!$I62*'Other input expert'!M$7","v":0}]
["Decaisnea fargesii","Blue sausage fruit",{"$f":"Plantlist!$G63*'Production list'!D64*'Other input expert'!B$4*'Other input expert'!B$8","v":0},{"$f":"Plantlist!$G63*'Production list'!E64*'Other input expert'!C$4*'Other input expert'!C$8","v":0},{"$f":"Plantlist!$G63*'Production list'!F64*'Other input expert'!D$4*'Other input expert'!D$8","v":0},{"$f":"Plantlist!$G63*'Production list'!G64*'Other input expert'!E$4*'Other input expert'!E$8","v":0},{"$f":"Plantlist!$G63*'Production list'!H64*'Other input expert'!F$4*'Other input expert'!F$8","v":0},{"$f":"Plantlist!$G63*'Production list'!I64*'Other input expert'!G$4*'Other input expert'!G$8","v":0},{"$f":"Plantlist!$G63*'Production list'!J64*'Other input expert'!H$4*'Other input expert'!H$8","v":0},{"$f":"Plantlist!$G63*'Production list'!K64*'Other input expert'!I$4*'Other input expert'!I$8","v":0},{"$f":"Plantlist!$G63*'Production list'!L64*'Other input expert'!J$4*'Other input expert'!J$8","v":0},{"$f":"Plantlist!$G63*'Production list'!M64*'Other input expert'!K$4*'Other input expert'!K$8","v":0},{"$f":"Plantlist!$G63*'Production list'!N64*'Other input expert'!L$4*'Other input expert'!L$8","v":0},{"$f":"Plantlist!$G63*'Production list'!O64*'Other input expert'!M$4*'Other input expert'!M$8","v":0},null,{"$f":"C63*'Other input expert'!B$5","v":0},{"$f":"D63*'Other input expert'!C$5","v":0},{"$f":"E63*'Other input expert'!D$5","v":0},{"$f":"F63*'Other input expert'!E$5","v":0},{"$f":"G63*'Other input expert'!F$5","v":0},{"$f":"H63*'Other input expert'!G$5","v":0},{"$f":"I63*'Other input expert'!H$5","v":0},{"$f":"J63*'Other input expert'!I$5","v":0},{"$f":"K63*'Other input expert'!J$5","v":0},{"$f":"L63*'Other input expert'!K$5","v":0},{"$f":"M63*'Other input expert'!L$5","v":0},{"$f":"N63*'Other input expert'!M$5","v":0},null,{"$f":"C63*(100%-'Other input expert'!B$5)","v":0},{"$f":"D63*(100%-'Other input expert'!C$5)","v":0},{"$f":"E63*(100%-'Other input expert'!D$5)","v":0},{"$f":"F63*(100%-'Other input expert'!E$5)","v":0},{"$f":"G63*(100%-'Other input expert'!F$5)","v":0},{"$f":"H63*(100%-'Other input expert'!G$5)","v":0},{"$f":"I63*(100%-'Other input expert'!H$5)","v":0},{"$f":"J63*(100%-'Other input expert'!I$5)","v":0},{"$f":"K63*(100%-'Other input expert'!J$5)","v":0},{"$f":"L63*(100%-'Other input expert'!K$5)","v":0},{"$f":"M63*(100%-'Other input expert'!L$5)","v":0},{"$f":"N63*(100%-'Other input expert'!M$5)","v":0},null,{"$f":"P63*'Other input expert'!B$12*'Sales price per sales channel'!$G63*'Other input expert'!B$6","v":0},{"$f":"Q63*'Other input expert'!C$12*'Sales price per sales channel'!$G63*'Other input expert'!C$6","v":0},{"$f":"R63*'Other input expert'!D$12*'Sales price per sales channel'!$G63*'Other input expert'!D$6","v":0},{"$f":"S63*'Other input expert'!E$12*'Sales price per sales channel'!$G63*'Other input expert'!E$6","v":0},{"$f":"T63*'Other input expert'!F$12*'Sales price per sales channel'!$G63*'Other input expert'!F$6","v":0},{"$f":"U63*'Other input expert'!G$12*'Sales price per sales channel'!$G63*'Other input expert'!G$6","v":0},{"$f":"V63*'Other input expert'!H$12*'Sales price per sales channel'!$G63*'Other input expert'!H$6","v":0},{"$f":"W63*'Other input expert'!I$12*'Sales price per sales channel'!$G63*'Other input expert'!I$6","v":0},{"$f":"X63*'Other input expert'!J$12*'Sales price per sales channel'!$G63*'Other input expert'!J$6","v":0},{"$f":"Y63*'Other input expert'!K$12*'Sales price per sales channel'!$G63*'Other input expert'!K$6","v":0},{"$f":"Z63*'Other input expert'!L$12*'Sales price per sales channel'!$G63*'Other input expert'!L$6","v":0},{"$f":"AA63*'Other input expert'!M$12*'Sales price per sales channel'!$G63*'Other input expert'!M$6","v":0},null,{"$f":"P63*'Other input expert'!B$13*'Sales price per sales channel'!$H63*'Other input expert'!B$6","v":0},{"$f":"Q63*'Other input expert'!C$13*'Sales price per sales channel'!$H63*'Other input expert'!C$6","v":0},{"$f":"R63*'Other input expert'!D$13*'Sales price per sales channel'!$H63*'Other input expert'!D$6","v":0},{"$f":"S63*'Other input expert'!E$13*'Sales price per sales channel'!$H63*'Other input expert'!E$6","v":0},{"$f":"T63*'Other input expert'!F$13*'Sales price per sales channel'!$H63*'Other input expert'!F$6","v":0},{"$f":"U63*'Other input expert'!G$13*'Sales price per sales channel'!$H63*'Other input expert'!G$6","v":0},{"$f":"V63*'Other input expert'!H$13*'Sales price per sales channel'!$H63*'Other input expert'!H$6","v":0},{"$f":"W63*'Other input expert'!I$13*'Sales price per sales channel'!$H63*'Other input expert'!I$6","v":0},{"$f":"X63*'Other input expert'!J$13*'Sales price per sales channel'!$H63*'Other input expert'!J$6","v":0},{"$f":"Y63*'Other input expert'!K$13*'Sales price per sales channel'!$H63*'Other input expert'!K$6","v":0},{"$f":"Z63*'Other input expert'!L$13*'Sales price per sales channel'!$H63*'Other input expert'!L$6","v":0},{"$f":"AA63*'Other input expert'!M$13*'Sales price per sales channel'!$H63*'Other input expert'!M$6","v":0},null,{"$f":"P63*'Other input expert'!B$14*'Sales price per sales channel'!$I63*'Other input expert'!B$6","v":0},{"$f":"Q63*'Other input expert'!C$14*'Sales price per sales channel'!$I63*'Other input expert'!C$6","v":0},{"$f":"R63*'Other input expert'!D$14*'Sales price per sales channel'!$I63*'Other input expert'!D$6","v":0},{"$f":"S63*'Other input expert'!E$14*'Sales price per sales channel'!$I63*'Other input expert'!E$6","v":0},{"$f":"T63*'Other input expert'!F$14*'Sales price per sales channel'!$I63*'Other input expert'!F$6","v":0},{"$f":"U63*'Other input expert'!G$14*'Sales price per sales channel'!$I63*'Other input expert'!G$6","v":0},{"$f":"V63*'Other input expert'!H$14*'Sales price per sales channel'!$I63*'Other input expert'!H$6","v":0},{"$f":"W63*'Other input expert'!I$14*'Sales price per sales channel'!$I63*'Other input expert'!I$6","v":0},{"$f":"X63*'Other input expert'!J$14*'Sales price per sales channel'!$I63*'Other input expert'!J$6","v":0},{"$f":"Y63*'Other input expert'!K$14*'Sales price per sales channel'!$I63*'Other input expert'!K$6","v":0},{"$f":"Z63*'Other input expert'!L$14*'Sales price per sales channel'!$I63*'Other input expert'!L$6","v":0},{"$f":"AA63*'Other input expert'!M$14*'Sales price per sales channel'!$I63*'Other input expert'!M$6","v":0},null,{"$f":"AC63*'Other input expert'!B$12*'Sales price per sales channel'!$G63*'Other input expert'!B$7","v":0},{"$f":"AD63*'Other input expert'!C$12*'Sales price per sales channel'!$G63*'Other input expert'!C$7","v":0},{"$f":"AE63*'Other input expert'!D$12*'Sales price per sales channel'!$G63*'Other input expert'!D$7","v":0},{"$f":"AF63*'Other input expert'!E$12*'Sales price per sales channel'!$G63*'Other input expert'!E$7","v":0},{"$f":"AG63*'Other input expert'!F$12*'Sales price per sales channel'!$G63*'Other input expert'!F$7","v":0},{"$f":"AH63*'Other input expert'!G$12*'Sales price per sales channel'!$G63*'Other input expert'!G$7","v":0},{"$f":"AI63*'Other input expert'!H$12*'Sales price per sales channel'!$G63*'Other input expert'!H$7","v":0},{"$f":"AJ63*'Other input expert'!I$12*'Sales price per sales channel'!$G63*'Other input expert'!I$7","v":0},{"$f":"AK63*'Other input expert'!J$12*'Sales price per sales channel'!$G63*'Other input expert'!J$7","v":0},{"$f":"AL63*'Other input expert'!K$12*'Sales price per sales channel'!$G63*'Other input expert'!K$7","v":0},{"$f":"AM63*'Other input expert'!L$12*'Sales price per sales channel'!$G63*'Other input expert'!L$7","v":0},{"$f":"AN63*'Other input expert'!M$12*'Sales price per sales channel'!$G63*'Other input expert'!M$7","v":0},null,{"$f":"AC63*'Other input expert'!B$13*'Sales price per sales channel'!$H63*'Other input expert'!B$7","v":0},{"$f":"AD63*'Other input expert'!C$13*'Sales price per sales channel'!$H63*'Other input expert'!C$7","v":0},{"$f":"AE63*'Other input expert'!D$13*'Sales price per sales channel'!$H63*'Other input expert'!D$7","v":0},{"$f":"AF63*'Other input expert'!E$13*'Sales price per sales channel'!$H63*'Other input expert'!E$7","v":0},{"$f":"AG63*'Other input expert'!F$13*'Sales price per sales channel'!$H63*'Other input expert'!F$7","v":0},{"$f":"AH63*'Other input expert'!G$13*'Sales price per sales channel'!$H63*'Other input expert'!G$7","v":0},{"$f":"AI63*'Other input expert'!H$13*'Sales price per sales channel'!$H63*'Other input expert'!H$7","v":0},{"$f":"AJ63*'Other input expert'!I$13*'Sales price per sales channel'!$H63*'Other input expert'!I$7","v":0},{"$f":"AK63*'Other input expert'!J$13*'Sales price per sales channel'!$H63*'Other input expert'!J$7","v":0},{"$f":"AL63*'Other input expert'!K$13*'Sales price per sales channel'!$H63*'Other input expert'!K$7","v":0},{"$f":"AM63*'Other input expert'!L$13*'Sales price per sales channel'!$H63*'Other input expert'!L$7","v":0},{"$f":"AN63*'Other input expert'!M$13*'Sales price per sales channel'!$H63*'Other input expert'!M$7","v":0},null,{"$f":"AC63*'Other input expert'!B$14*'Sales price per sales channel'!$I63*'Other input expert'!B$7","v":0},{"$f":"AD63*'Other input expert'!C$14*'Sales price per sales channel'!$I63*'Other input expert'!C$7","v":0},{"$f":"AE63*'Other input expert'!D$14*'Sales price per sales channel'!$I63*'Other input expert'!D$7","v":0},{"$f":"AF63*'Other input expert'!E$14*'Sales price per sales channel'!$I63*'Other input expert'!E$7","v":0},{"$f":"AG63*'Other input expert'!F$14*'Sales price per sales channel'!$I63*'Other input expert'!F$7","v":0},{"$f":"AH63*'Other input expert'!G$14*'Sales price per sales channel'!$I63*'Other input expert'!G$7","v":0},{"$f":"AI63*'Other input expert'!H$14*'Sales price per sales channel'!$I63*'Other input expert'!H$7","v":0},{"$f":"AJ63*'Other input expert'!I$14*'Sales price per sales channel'!$I63*'Other input expert'!I$7","v":0},{"$f":"AK63*'Other input expert'!J$14*'Sales price per sales channel'!$I63*'Other input expert'!J$7","v":0},{"$f":"AL63*'Other input expert'!K$14*'Sales price per sales channel'!$I63*'Other input expert'!K$7","v":0},{"$f":"AM63*'Other input expert'!L$14*'Sales price per sales channel'!$I63*'Other input expert'!L$7","v":0},{"$f":"AN63*'Other input expert'!M$14*'Sales price per sales channel'!$I63*'Other input expert'!M$7","v":0}]
["Diospyros virginiana","Persimmon, Kaki",{"$f":"Plantlist!$G64*'Production list'!D65*'Other input expert'!B$4*'Other input expert'!B$8","v":0},{"$f":"Plantlist!$G64*'Production list'!E65*'Other input expert'!C$4*'Other input expert'!C$8","v":0},{"$f":"Plantlist!$G64*'Production list'!F65*'Other input expert'!D$4*'Other input expert'!D$8","v":0},{"$f":"Plantlist!$G64*'Production list'!G65*'Other input expert'!E$4*'Other input expert'!E$8","v":0},{"$f":"Plantlist!$G64*'Production list'!H65*'Other input expert'!F$4*'Other input expert'!F$8","v":0},{"$f":"Plantlist!$G64*'Production list'!I65*'Other input expert'!G$4*'Other input expert'!G$8","v":0},{"$f":"Plantlist!$G64*'Production list'!J65*'Other input expert'!H$4*'Other input expert'!H$8","v":0},{"$f":"Plantlist!$G64*'Production list'!K65*'Other input expert'!I$4*'Other input expert'!I$8","v":0},{"$f":"Plantlist!$G64*'Production list'!L65*'Other input expert'!J$4*'Other input expert'!J$8","v":0},{"$f":"Plantlist!$G64*'Production list'!M65*'Other input expert'!K$4*'Other input expert'!K$8","v":0},{"$f":"Plantlist!$G64*'Production list'!N65*'Other input expert'!L$4*'Other input expert'!L$8","v":0},{"$f":"Plantlist!$G64*'Production list'!O65*'Other input expert'!M$4*'Other input expert'!M$8","v":0},null,{"$f":"C64*'Other input expert'!B$5","v":0},{"$f":"D64*'Other input expert'!C$5","v":0},{"$f":"E64*'Other input expert'!D$5","v":0},{"$f":"F64*'Other input expert'!E$5","v":0},{"$f":"G64*'Other input expert'!F$5","v":0},{"$f":"H64*'Other input expert'!G$5","v":0},{"$f":"I64*'Other input expert'!H$5","v":0},{"$f":"J64*'Other input expert'!I$5","v":0},{"$f":"K64*'Other input expert'!J$5","v":0},{"$f":"L64*'Other input expert'!K$5","v":0},{"$f":"M64*'Other input expert'!L$5","v":0},{"$f":"N64*'Other input expert'!M$5","v":0},null,{"$f":"C64*(100%-'Other input expert'!B$5)","v":0},{"$f":"D64*(100%-'Other input expert'!C$5)","v":0},{"$f":"E64*(100%-'Other input expert'!D$5)","v":0},{"$f":"F64*(100%-'Other input expert'!E$5)","v":0},{"$f":"G64*(100%-'Other input expert'!F$5)","v":0},{"$f":"H64*(100%-'Other input expert'!G$5)","v":0},{"$f":"I64*(100%-'Other input expert'!H$5)","v":0},{"$f":"J64*(100%-'Other input expert'!I$5)","v":0},{"$f":"K64*(100%-'Other input expert'!J$5)","v":0},{"$f":"L64*(100%-'Other input expert'!K$5)","v":0},{"$f":"M64*(100%-'Other input expert'!L$5)","v":0},{"$f":"N64*(100%-'Other input expert'!M$5)","v":0},null,{"$f":"P64*'Other input expert'!B$12*'Sales price per sales channel'!$G64*'Other input expert'!B$6","v":0},{"$f":"Q64*'Other input expert'!C$12*'Sales price per sales channel'!$G64*'Other input expert'!C$6","v":0},{"$f":"R64*'Other input expert'!D$12*'Sales price per sales channel'!$G64*'Other input expert'!D$6","v":0},{"$f":"S64*'Other input expert'!E$12*'Sales price per sales channel'!$G64*'Other input expert'!E$6","v":0},{"$f":"T64*'Other input expert'!F$12*'Sales price per sales channel'!$G64*'Other input expert'!F$6","v":0},{"$f":"U64*'Other input expert'!G$12*'Sales price per sales channel'!$G64*'Other input expert'!G$6","v":0},{"$f":"V64*'Other input expert'!H$12*'Sales price per sales channel'!$G64*'Other input expert'!H$6","v":0},{"$f":"W64*'Other input expert'!I$12*'Sales price per sales channel'!$G64*'Other input expert'!I$6","v":0},{"$f":"X64*'Other input expert'!J$12*'Sales price per sales channel'!$G64*'Other input expert'!J$6","v":0},{"$f":"Y64*'Other input expert'!K$12*'Sales price per sales channel'!$G64*'Other input expert'!K$6","v":0},{"$f":"Z64*'Other input expert'!L$12*'Sales price per sales channel'!$G64*'Other input expert'!L$6","v":0},{"$f":"AA64*'Other input expert'!M$12*'Sales price per sales channel'!$G64*'Other input expert'!M$6","v":0},null,{"$f":"P64*'Other input expert'!B$13*'Sales price per sales channel'!$H64*'Other input expert'!B$6","v":0},{"$f":"Q64*'Other input expert'!C$13*'Sales price per sales channel'!$H64*'Other input expert'!C$6","v":0},{"$f":"R64*'Other input expert'!D$13*'Sales price per sales channel'!$H64*'Other input expert'!D$6","v":0},{"$f":"S64*'Other input expert'!E$13*'Sales price per sales channel'!$H64*'Other input expert'!E$6","v":0},{"$f":"T64*'Other input expert'!F$13*'Sales price per sales channel'!$H64*'Other input expert'!F$6","v":0},{"$f":"U64*'Other input expert'!G$13*'Sales price per sales channel'!$H64*'Other input expert'!G$6","v":0},{"$f":"V64*'Other input expert'!H$13*'Sales price per sales channel'!$H64*'Other input expert'!H$6","v":0},{"$f":"W64*'Other input expert'!I$13*'Sales price per sales channel'!$H64*'Other input expert'!I$6","v":0},{"$f":"X64*'Other input expert'!J$13*'Sales price per sales channel'!$H64*'Other input expert'!J$6","v":0},{"$f":"Y64*'Other input expert'!K$13*'Sales price per sales channel'!$H64*'Other input expert'!K$6","v":0},{"$f":"Z64*'Other input expert'!L$13*'Sales price per sales channel'!$H64*'Other input expert'!L$6","v":0},{"$f":"AA64*'Other input expert'!M$13*'Sales price per sales channel'!$H64*'Other input expert'!M$6","v":0},null,{"$f":"P64*'Other input expert'!B$14*'Sales price per sales channel'!$I64*'Other input expert'!B$6","v":0},{"$f":"Q64*'Other input expert'!C$14*'Sales price per sales channel'!$I64*'Other input expert'!C$6","v":0},{"$f":"R64*'Other input expert'!D$14*'Sales price per sales channel'!$I64*'Other input expert'!D$6","v":0},{"$f":"S64*'Other input expert'!E$14*'Sales price per sales channel'!$I64*'Other input expert'!E$6","v":0},{"$f":"T64*'Other input expert'!F$14*'Sales price per sales channel'!$I64*'Other input expert'!F$6","v":0},{"$f":"U64*'Other input expert'!G$14*'Sales price per sales channel'!$I64*'Other input expert'!G$6","v":0},{"$f":"V64*'Other input expert'!H$14*'Sales price per sales channel'!$I64*'Other input expert'!H$6","v":0},{"$f":"W64*'Other input expert'!I$14*'Sales price per sales channel'!$I64*'Other input expert'!I$6","v":0},{"$f":"X64*'Other input expert'!J$14*'Sales price per sales channel'!$I64*'Other input expert'!J$6","v":0},{"$f":"Y64*'Other input expert'!K$14*'Sales price per sales channel'!$I64*'Other input expert'!K$6","v":0},{"$f":"Z64*'Other input expert'!L$14*'Sales price per sales channel'!$I64*'Other input expert'!L$6","v":0},{"$f":"AA64*'Other input expert'!M$14*'Sales price per sales channel'!$I64*'Other input expert'!M$6","v":0},null,{"$f":"AC64*'Other input expert'!B$12*'Sales price per sales channel'!$G64*'Other input expert'!B$7","v":0},{"$f":"AD64*'Other input expert'!C$12*'Sales price per sales channel'!$G64*'Other input expert'!C$7","v":0},{"$f":"AE64*'Other input expert'!D$12*'Sales price per sales channel'!$G64*'Other input expert'!D$7","v":0},{"$f":"AF64*'Other input expert'!E$12*'Sales price per sales channel'!$G64*'Other input expert'!E$7","v":0},{"$f":"AG64*'Other input expert'!F$12*'Sales price per sales channel'!$G64*'Other input expert'!F$7","v":0},{"$f":"AH64*'Other input expert'!G$12*'Sales price per sales channel'!$G64*'Other input expert'!G$7","v":0},{"$f":"AI64*'Other input expert'!H$12*'Sales price per sales channel'!$G64*'Other input expert'!H$7","v":0},{"$f":"AJ64*'Other input expert'!I$12*'Sales price per sales channel'!$G64*'Other input expert'!I$7","v":0},{"$f":"AK64*'Other input expert'!J$12*'Sales price per sales channel'!$G64*'Other input expert'!J$7","v":0},{"$f":"AL64*'Other input expert'!K$12*'Sales price per sales channel'!$G64*'Other input expert'!K$7","v":0},{"$f":"AM64*'Other input expert'!L$12*'Sales price per sales channel'!$G64*'Other input expert'!L$7","v":0},{"$f":"AN64*'Other input expert'!M$12*'Sales price per sales channel'!$G64*'Other input expert'!M$7","v":0},null,{"$f":"AC64*'Other input expert'!B$13*'Sales price per sales channel'!$H64*'Other input expert'!B$7","v":0},{"$f":"AD64*'Other input expert'!C$13*'Sales price per sales channel'!$H64*'Other input expert'!C$7","v":0},{"$f":"AE64*'Other input expert'!D$13*'Sales price per sales channel'!$H64*'Other input expert'!D$7","v":0},{"$f":"AF64*'Other input expert'!E$13*'Sales price per sales channel'!$H64*'Other input expert'!E$7","v":0},{"$f":"AG64*'Other input expert'!F$13*'Sales price per sales channel'!$H64*'Other input expert'!F$7","v":0},{"$f":"AH64*'Other input expert'!G$13*'Sales price per sales channel'!$H64*'Other input expert'!G$7","v":0},{"$f":"AI64*'Other input expert'!H$13*'Sales price per sales channel'!$H64*'Other input expert'!H$7","v":0},{"$f":"AJ64*'Other input expert'!I$13*'Sales price per sales channel'!$H64*'Other input expert'!I$7","v":0},{"$f":"AK64*'Other input expert'!J$13*'Sales price per sales channel'!$H64*'Other input expert'!J$7","v":0},{"$f":"AL64*'Other input expert'!K$13*'Sales price per sales channel'!$H64*'Other input expert'!K$7","v":0},{"$f":"AM64*'Other input expert'!L$13*'Sales price per sales channel'!$H64*'Other input expert'!L$7","v":0},{"$f":"AN64*'Other input expert'!M$13*'Sales price per sales channel'!$H64*'Other input expert'!M$7","v":0},null,{"$f":"AC64*'Other input expert'!B$14*'Sales price per sales channel'!$I64*'Other input expert'!B$7","v":0},{"$f":"AD64*'Other input expert'!C$14*'Sales price per sales channel'!$I64*'Other input expert'!C$7","v":0},{"$f":"AE64*'Other input expert'!D$14*'Sales price per sales channel'!$I64*'Other input expert'!D$7","v":0},{"$f":"AF64*'Other input expert'!E$14*'Sales price per sales channel'!$I64*'Other input expert'!E$7","v":0},{"$f":"AG64*'Other input expert'!F$14*'Sales price per sales channel'!$I64*'Other input expert'!F$7","v":0},{"$f":"AH64*'Other input expert'!G$14*'Sales price per sales channel'!$I64*'Other input expert'!G$7","v":0},{"$f":"AI64*'Other input expert'!H$14*'Sales price per sales channel'!$I64*'Other input expert'!H$7","v":0},{"$f":"AJ64*'Other input expert'!I$14*'Sales price per sales channel'!$I64*'Other input expert'!I$7","v":0},{"$f":"AK64*'Other input expert'!J$14*'Sales price per sales channel'!$I64*'Other input expert'!J$7","v":0},{"$f":"AL64*'Other input expert'!K$14*'Sales price per sales channel'!$I64*'Other input expert'!K$7","v":0},{"$f":"AM64*'Other input expert'!L$14*'Sales price per sales channel'!$I64*'Other input expert'!L$7","v":0},{"$f":"AN64*'Other input expert'!M$14*'Sales price per sales channel'!$I64*'Other input expert'!M$7","v":0}]
["Diospyrus kaki","Persimmon, Kaki",{"$f":"Plantlist!$G65*'Production list'!D66*'Other input expert'!B$4*'Other input expert'!B$8","v":0},{"$f":"Plantlist!$G65*'Production list'!E66*'Other input expert'!C$4*'Other input expert'!C$8","v":0},{"$f":"Plantlist!$G65*'Production list'!F66*'Other input expert'!D$4*'Other input expert'!D$8","v":0},{"$f":"Plantlist!$G65*'Production list'!G66*'Other input expert'!E$4*'Other input expert'!E$8","v":0},{"$f":"Plantlist!$G65*'Production list'!H66*'Other input expert'!F$4*'Other input expert'!F$8","v":0},{"$f":"Plantlist!$G65*'Production list'!I66*'Other input expert'!G$4*'Other input expert'!G$8","v":0},{"$f":"Plantlist!$G65*'Production list'!J66*'Other input expert'!H$4*'Other input expert'!H$8","v":0},{"$f":"Plantlist!$G65*'Production list'!K66*'Other input expert'!I$4*'Other input expert'!I$8","v":0},{"$f":"Plantlist!$G65*'Production list'!L66*'Other input expert'!J$4*'Other input expert'!J$8","v":0},{"$f":"Plantlist!$G65*'Production list'!M66*'Other input expert'!K$4*'Other input expert'!K$8","v":0},{"$f":"Plantlist!$G65*'Production list'!N66*'Other input expert'!L$4*'Other input expert'!L$8","v":0},{"$f":"Plantlist!$G65*'Production list'!O66*'Other input expert'!M$4*'Other input expert'!M$8","v":0},null,{"$f":"C65*'Other input expert'!B$5","v":0},{"$f":"D65*'Other input expert'!C$5","v":0},{"$f":"E65*'Other input expert'!D$5","v":0},{"$f":"F65*'Other input expert'!E$5","v":0},{"$f":"G65*'Other input expert'!F$5","v":0},{"$f":"H65*'Other input expert'!G$5","v":0},{"$f":"I65*'Other input expert'!H$5","v":0},{"$f":"J65*'Other input expert'!I$5","v":0},{"$f":"K65*'Other input expert'!J$5","v":0},{"$f":"L65*'Other input expert'!K$5","v":0},{"$f":"M65*'Other input expert'!L$5","v":0},{"$f":"N65*'Other input expert'!M$5","v":0},null,{"$f":"C65*(100%-'Other input expert'!B$5)","v":0},{"$f":"D65*(100%-'Other input expert'!C$5)","v":0},{"$f":"E65*(100%-'Other input expert'!D$5)","v":0},{"$f":"F65*(100%-'Other input expert'!E$5)","v":0},{"$f":"G65*(100%-'Other input expert'!F$5)","v":0},{"$f":"H65*(100%-'Other input expert'!G$5)","v":0},{"$f":"I65*(100%-'Other input expert'!H$5)","v":0},{"$f":"J65*(100%-'Other input expert'!I$5)","v":0},{"$f":"K65*(100%-'Other input expert'!J$5)","v":0},{"$f":"L65*(100%-'Other input expert'!K$5)","v":0},{"$f":"M65*(100%-'Other input expert'!L$5)","v":0},{"$f":"N65*(100%-'Other input expert'!M$5)","v":0},null,{"$f":"P65*'Other input expert'!B$12*'Sales price per sales channel'!$G65*'Other input expert'!B$6","v":0},{"$f":"Q65*'Other input expert'!C$12*'Sales price per sales channel'!$G65*'Other input expert'!C$6","v":0},{"$f":"R65*'Other input expert'!D$12*'Sales price per sales channel'!$G65*'Other input expert'!D$6","v":0},{"$f":"S65*'Other input expert'!E$12*'Sales price per sales channel'!$G65*'Other input expert'!E$6","v":0},{"$f":"T65*'Other input expert'!F$12*'Sales price per sales channel'!$G65*'Other input expert'!F$6","v":0},{"$f":"U65*'Other input expert'!G$12*'Sales price per sales channel'!$G65*'Other input expert'!G$6","v":0},{"$f":"V65*'Other input expert'!H$12*'Sales price per sales channel'!$G65*'Other input expert'!H$6","v":0},{"$f":"W65*'Other input expert'!I$12*'Sales price per sales channel'!$G65*'Other input expert'!I$6","v":0},{"$f":"X65*'Other input expert'!J$12*'Sales price per sales channel'!$G65*'Other input expert'!J$6","v":0},{"$f":"Y65*'Other input expert'!K$12*'Sales price per sales channel'!$G65*'Other input expert'!K$6","v":0},{"$f":"Z65*'Other input expert'!L$12*'Sales price per sales channel'!$G65*'Other input expert'!L$6","v":0},{"$f":"AA65*'Other input expert'!M$12*'Sales price per sales channel'!$G65*'Other input expert'!M$6","v":0},null,{"$f":"P65*'Other input expert'!B$13*'Sales price per sales channel'!$H65*'Other input expert'!B$6","v":0},{"$f":"Q65*'Other input expert'!C$13*'Sales price per sales channel'!$H65*'Other input expert'!C$6","v":0},{"$f":"R65*'Other input expert'!D$13*'Sales price per sales channel'!$H65*'Other input expert'!D$6","v":0},{"$f":"S65*'Other input expert'!E$13*'Sales price per sales channel'!$H65*'Other input expert'!E$6","v":0},{"$f":"T65*'Other input expert'!F$13*'Sales price per sales channel'!$H65*'Other input expert'!F$6","v":0},{"$f":"U65*'Other input expert'!G$13*'Sales price per sales channel'!$H65*'Other input expert'!G$6","v":0},{"$f":"V65*'Other input expert'!H$13*'Sales price per sales channel'!$H65*'Other input expert'!H$6","v":0},{"$f":"W65*'Other input expert'!I$13*'Sales price per sales channel'!$H65*'Other input expert'!I$6","v":0},{"$f":"X65*'Other input expert'!J$13*'Sales price per sales channel'!$H65*'Other input expert'!J$6","v":0},{"$f":"Y65*'Other input expert'!K$13*'Sales price per sales channel'!$H65*'Other input expert'!K$6","v":0},{"$f":"Z65*'Other input expert'!L$13*'Sales price per sales channel'!$H65*'Other input expert'!L$6","v":0},{"$f":"AA65*'Other input expert'!M$13*'Sales price per sales channel'!$H65*'Other input expert'!M$6","v":0},null,{"$f":"P65*'Other input expert'!B$14*'Sales price per sales channel'!$I65*'Other input expert'!B$6","v":0},{"$f":"Q65*'Other input expert'!C$14*'Sales price per sales channel'!$I65*'Other input expert'!C$6","v":0},{"$f":"R65*'Other input expert'!D$14*'Sales price per sales channel'!$I65*'Other input expert'!D$6","v":0},{"$f":"S65*'Other input expert'!E$14*'Sales price per sales channel'!$I65*'Other input expert'!E$6","v":0},{"$f":"T65*'Other input expert'!F$14*'Sales price per sales channel'!$I65*'Other input expert'!F$6","v":0},{"$f":"U65*'Other input expert'!G$14*'Sales price per sales channel'!$I65*'Other input expert'!G$6","v":0},{"$f":"V65*'Other input expert'!H$14*'Sales price per sales channel'!$I65*'Other input expert'!H$6","v":0},{"$f":"W65*'Other input expert'!I$14*'Sales price per sales channel'!$I65*'Other input expert'!I$6","v":0},{"$f":"X65*'Other input expert'!J$14*'Sales price per sales channel'!$I65*'Other input expert'!J$6","v":0},{"$f":"Y65*'Other input expert'!K$14*'Sales price per sales channel'!$I65*'Other input expert'!K$6","v":0},{"$f":"Z65*'Other input expert'!L$14*'Sales price per sales channel'!$I65*'Other input expert'!L$6","v":0},{"$f":"AA65*'Other input expert'!M$14*'Sales price per sales channel'!$I65*'Other input expert'!M$6","v":0},null,{"$f":"AC65*'Other input expert'!B$12*'Sales price per sales channel'!$G65*'Other input expert'!B$7","v":0},{"$f":"AD65*'Other input expert'!C$12*'Sales price per sales channel'!$G65*'Other input expert'!C$7","v":0},{"$f":"AE65*'Other input expert'!D$12*'Sales price per sales channel'!$G65*'Other input expert'!D$7","v":0},{"$f":"AF65*'Other input expert'!E$12*'Sales price per sales channel'!$G65*'Other input expert'!E$7","v":0},{"$f":"AG65*'Other input expert'!F$12*'Sales price per sales channel'!$G65*'Other input expert'!F$7","v":0},{"$f":"AH65*'Other input expert'!G$12*'Sales price per sales channel'!$G65*'Other input expert'!G$7","v":0},{"$f":"AI65*'Other input expert'!H$12*'Sales price per sales channel'!$G65*'Other input expert'!H$7","v":0},{"$f":"AJ65*'Other input expert'!I$12*'Sales price per sales channel'!$G65*'Other input expert'!I$7","v":0},{"$f":"AK65*'Other input expert'!J$12*'Sales price per sales channel'!$G65*'Other input expert'!J$7","v":0},{"$f":"AL65*'Other input expert'!K$12*'Sales price per sales channel'!$G65*'Other input expert'!K$7","v":0},{"$f":"AM65*'Other input expert'!L$12*'Sales price per sales channel'!$G65*'Other input expert'!L$7","v":0},{"$f":"AN65*'Other input expert'!M$12*'Sales price per sales channel'!$G65*'Other input expert'!M$7","v":0},null,{"$f":"AC65*'Other input expert'!B$13*'Sales price per sales channel'!$H65*'Other input expert'!B$7","v":0},{"$f":"AD65*'Other input expert'!C$13*'Sales price per sales channel'!$H65*'Other input expert'!C$7","v":0},{"$f":"AE65*'Other input expert'!D$13*'Sales price per sales channel'!$H65*'Other input expert'!D$7","v":0},{"$f":"AF65*'Other input expert'!E$13*'Sales price per sales channel'!$H65*'Other input expert'!E$7","v":0},{"$f":"AG65*'Other input expert'!F$13*'Sales price per sales channel'!$H65*'Other input expert'!F$7","v":0},{"$f":"AH65*'Other input expert'!G$13*'Sales price per sales channel'!$H65*'Other input expert'!G$7","v":0},{"$f":"AI65*'Other input expert'!H$13*'Sales price per sales channel'!$H65*'Other input expert'!H$7","v":0},{"$f":"AJ65*'Other input expert'!I$13*'Sales price per sales channel'!$H65*'Other input expert'!I$7","v":0},{"$f":"AK65*'Other input expert'!J$13*'Sales price per sales channel'!$H65*'Other input expert'!J$7","v":0},{"$f":"AL65*'Other input expert'!K$13*'Sales price per sales channel'!$H65*'Other input expert'!K$7","v":0},{"$f":"AM65*'Other input expert'!L$13*'Sales price per sales channel'!$H65*'Other input expert'!L$7","v":0},{"$f":"AN65*'Other input expert'!M$13*'Sales price per sales channel'!$H65*'Other input expert'!M$7","v":0},null,{"$f":"AC65*'Other input expert'!B$14*'Sales price per sales channel'!$I65*'Other input expert'!B$7","v":0},{"$f":"AD65*'Other input expert'!C$14*'Sales price per sales channel'!$I65*'Other input expert'!C$7","v":0},{"$f":"AE65*'Other input expert'!D$14*'Sales price per sales channel'!$I65*'Other input expert'!D$7","v":0},{"$f":"AF65*'Other input expert'!E$14*'Sales price per sales channel'!$I65*'Other input expert'!E$7","v":0},{"$f":"AG65*'Other input expert'!F$14*'Sales price per sales channel'!$I65*'Other input expert'!F$7","v":0},{"$f":"AH65*'Other input expert'!G$14*'Sales price per sales channel'!$I65*'Other input expert'!G$7","v":0},{"$f":"AI65*'Other input expert'!H$14*'Sales price per sales channel'!$I65*'Other input expert'!H$7","v":0},{"$f":"AJ65*'Other input expert'!I$14*'Sales price per sales channel'!$I65*'Other input expert'!I$7","v":0},{"$f":"AK65*'Other input expert'!J$14*'Sales price per sales channel'!$I65*'Other input expert'!J$7","v":0},{"$f":"AL65*'Other input expert'!K$14*'Sales price per sales channel'!$I65*'Other input expert'!K$7","v":0},{"$f":"AM65*'Other input expert'!L$14*'Sales price per sales channel'!$I65*'Other input expert'!L$7","v":0},{"$f":"AN65*'Other input expert'!M$14*'Sales price per sales channel'!$I65*'Other input expert'!M$7","v":0}]
["Diospyrus virginia","Persimmon, Kaki",{"$f":"Plantlist!$G66*'Production list'!D67*'Other input expert'!B$4*'Other input expert'!B$8","v":0},{"$f":"Plantlist!$G66*'Production list'!E67*'Other input expert'!C$4*'Other input expert'!C$8","v":0},{"$f":"Plantlist!$G66*'Production list'!F67*'Other input expert'!D$4*'Other input expert'!D$8","v":0},{"$f":"Plantlist!$G66*'Production list'!G67*'Other input expert'!E$4*'Other input expert'!E$8","v":0},{"$f":"Plantlist!$G66*'Production list'!H67*'Other input expert'!F$4*'Other input expert'!F$8","v":0},{"$f":"Plantlist!$G66*'Production list'!I67*'Other input expert'!G$4*'Other input expert'!G$8","v":0},{"$f":"Plantlist!$G66*'Production list'!J67*'Other input expert'!H$4*'Other input expert'!H$8","v":0},{"$f":"Plantlist!$G66*'Production list'!K67*'Other input expert'!I$4*'Other input expert'!I$8","v":0},{"$f":"Plantlist!$G66*'Production list'!L67*'Other input expert'!J$4*'Other input expert'!J$8","v":0},{"$f":"Plantlist!$G66*'Production list'!M67*'Other input expert'!K$4*'Other input expert'!K$8","v":0},{"$f":"Plantlist!$G66*'Production list'!N67*'Other input expert'!L$4*'Other input expert'!L$8","v":0},{"$f":"Plantlist!$G66*'Production list'!O67*'Other input expert'!M$4*'Other input expert'!M$8","v":0},null,{"$f":"C66*'Other input expert'!B$5","v":0},{"$f":"D66*'Other input expert'!C$5","v":0},{"$f":"E66*'Other input expert'!D$5","v":0},{"$f":"F66*'Other input expert'!E$5","v":0},{"$f":"G66*'Other input expert'!F$5","v":0},{"$f":"H66*'Other input expert'!G$5","v":0},{"$f":"I66*'Other input expert'!H$5","v":0},{"$f":"J66*'Other input expert'!I$5","v":0},{"$f":"K66*'Other input expert'!J$5","v":0},{"$f":"L66*'Other input expert'!K$5","v":0},{"$f":"M66*'Other input expert'!L$5","v":0},{"$f":"N66*'Other input expert'!M$5","v":0},null,{"$f":"C66*(100%-'Other input expert'!B$5)","v":0},{"$f":"D66*(100%-'Other input expert'!C$5)","v":0},{"$f":"E66*(100%-'Other input expert'!D$5)","v":0},{"$f":"F66*(100%-'Other input expert'!E$5)","v":0},{"$f":"G66*(100%-'Other input expert'!F$5)","v":0},{"$f":"H66*(100%-'Other input expert'!G$5)","v":0},{"$f":"I66*(100%-'Other input expert'!H$5)","v":0},{"$f":"J66*(100%-'Other input expert'!I$5)","v":0},{"$f":"K66*(100%-'Other input expert'!J$5)","v":0},{"$f":"L66*(100%-'Other input expert'!K$5)","v":0},{"$f":"M66*(100%-'Other input expert'!L$5)","v":0},{"$f":"N66*(100%-'Other input expert'!M$5)","v":0},null,{"$f":"P66*'Other input expert'!B$12*'Sales price per sales channel'!$G66*'Other input expert'!B$6","v":0},{"$f":"Q66*'Other input expert'!C$12*'Sales price per sales channel'!$G66*'Other input expert'!C$6","v":0},{"$f":"R66*'Other input expert'!D$12*'Sales price per sales channel'!$G66*'Other input expert'!D$6","v":0},{"$f":"S66*'Other input expert'!E$12*'Sales price per sales channel'!$G66*'Other input expert'!E$6","v":0},{"$f":"T66*'Other input expert'!F$12*'Sales price per sales channel'!$G66*'Other input expert'!F$6","v":0},{"$f":"U66*'Other input expert'!G$12*'Sales price per sales channel'!$G66*'Other input expert'!G$6","v":0},{"$f":"V66*'Other input expert'!H$12*'Sales price per sales channel'!$G66*'Other input expert'!H$6","v":0},{"$f":"W66*'Other input expert'!I$12*'Sales price per sales channel'!$G66*'Other input expert'!I$6","v":0},{"$f":"X66*'Other input expert'!J$12*'Sales price per sales channel'!$G66*'Other input expert'!J$6","v":0},{"$f":"Y66*'Other input expert'!K$12*'Sales price per sales channel'!$G66*'Other input expert'!K$6","v":0},{"$f":"Z66*'Other input expert'!L$12*'Sales price per sales channel'!$G66*'Other input expert'!L$6","v":0},{"$f":"AA66*'Other input expert'!M$12*'Sales price per sales channel'!$G66*'Other input expert'!M$6","v":0},null,{"$f":"P66*'Other input expert'!B$13*'Sales price per sales channel'!$H66*'Other input expert'!B$6","v":0},{"$f":"Q66*'Other input expert'!C$13*'Sales price per sales channel'!$H66*'Other input expert'!C$6","v":0},{"$f":"R66*'Other input expert'!D$13*'Sales price per sales channel'!$H66*'Other input expert'!D$6","v":0},{"$f":"S66*'Other input expert'!E$13*'Sales price per sales channel'!$H66*'Other input expert'!E$6","v":0},{"$f":"T66*'Other input expert'!F$13*'Sales price per sales channel'!$H66*'Other input expert'!F$6","v":0},{"$f":"U66*'Other input expert'!G$13*'Sales price per sales channel'!$H66*'Other input expert'!G$6","v":0},{"$f":"V66*'Other input expert'!H$13*'Sales price per sales channel'!$H66*'Other input expert'!H$6","v":0},{"$f":"W66*'Other input expert'!I$13*'Sales price per sales channel'!$H66*'Other input expert'!I$6","v":0},{"$f":"X66*'Other input expert'!J$13*'Sales price per sales channel'!$H66*'Other input expert'!J$6","v":0},{"$f":"Y66*'Other input expert'!K$13*'Sales price per sales channel'!$H66*'Other input expert'!K$6","v":0},{"$f":"Z66*'Other input expert'!L$13*'Sales price per sales channel'!$H66*'Other input expert'!L$6","v":0},{"$f":"AA66*'Other input expert'!M$13*'Sales price per sales channel'!$H66*'Other input expert'!M$6","v":0},null,{"$f":"P66*'Other input expert'!B$14*'Sales price per sales channel'!$I66*'Other input expert'!B$6","v":0},{"$f":"Q66*'Other input expert'!C$14*'Sales price per sales channel'!$I66*'Other input expert'!C$6","v":0},{"$f":"R66*'Other input expert'!D$14*'Sales price per sales channel'!$I66*'Other input expert'!D$6","v":0},{"$f":"S66*'Other input expert'!E$14*'Sales price per sales channel'!$I66*'Other input expert'!E$6","v":0},{"$f":"T66*'Other input expert'!F$14*'Sales price per sales channel'!$I66*'Other input expert'!F$6","v":0},{"$f":"U66*'Other input expert'!G$14*'Sales price per sales channel'!$I66*'Other input expert'!G$6","v":0},{"$f":"V66*'Other input expert'!H$14*'Sales price per sales channel'!$I66*'Other input expert'!H$6","v":0},{"$f":"W66*'Other input expert'!I$14*'Sales price per sales channel'!$I66*'Other input expert'!I$6","v":0},{"$f":"X66*'Other input expert'!J$14*'Sales price per sales channel'!$I66*'Other input expert'!J$6","v":0},{"$f":"Y66*'Other input expert'!K$14*'Sales price per sales channel'!$I66*'Other input expert'!K$6","v":0},{"$f":"Z66*'Other input expert'!L$14*'Sales price per sales channel'!$I66*'Other input expert'!L$6","v":0},{"$f":"AA66*'Other input expert'!M$14*'Sales price per sales channel'!$I66*'Other input expert'!M$6","v":0},null,{"$f":"AC66*'Other input expert'!B$12*'Sales price per sales channel'!$G66*'Other input expert'!B$7","v":0},{"$f":"AD66*'Other input expert'!C$12*'Sales price per sales channel'!$G66*'Other input expert'!C$7","v":0},{"$f":"AE66*'Other input expert'!D$12*'Sales price per sales channel'!$G66*'Other input expert'!D$7","v":0},{"$f":"AF66*'Other input expert'!E$12*'Sales price per sales channel'!$G66*'Other input expert'!E$7","v":0},{"$f":"AG66*'Other input expert'!F$12*'Sales price per sales channel'!$G66*'Other input expert'!F$7","v":0},{"$f":"AH66*'Other input expert'!G$12*'Sales price per sales channel'!$G66*'Other input expert'!G$7","v":0},{"$f":"AI66*'Other input expert'!H$12*'Sales price per sales channel'!$G66*'Other input expert'!H$7","v":0},{"$f":"AJ66*'Other input expert'!I$12*'Sales price per sales channel'!$G66*'Other input expert'!I$7","v":0},{"$f":"AK66*'Other input expert'!J$12*'Sales price per sales channel'!$G66*'Other input expert'!J$7","v":0},{"$f":"AL66*'Other input expert'!K$12*'Sales price per sales channel'!$G66*'Other input expert'!K$7","v":0},{"$f":"AM66*'Other input expert'!L$12*'Sales price per sales channel'!$G66*'Other input expert'!L$7","v":0},{"$f":"AN66*'Other input expert'!M$12*'Sales price per sales channel'!$G66*'Other input expert'!M$7","v":0},null,{"$f":"AC66*'Other input expert'!B$13*'Sales price per sales channel'!$H66*'Other input expert'!B$7","v":0},{"$f":"AD66*'Other input expert'!C$13*'Sales price per sales channel'!$H66*'Other input expert'!C$7","v":0},{"$f":"AE66*'Other input expert'!D$13*'Sales price per sales channel'!$H66*'Other input expert'!D$7","v":0},{"$f":"AF66*'Other input expert'!E$13*'Sales price per sales channel'!$H66*'Other input expert'!E$7","v":0},{"$f":"AG66*'Other input expert'!F$13*'Sales price per sales channel'!$H66*'Other input expert'!F$7","v":0},{"$f":"AH66*'Other input expert'!G$13*'Sales price per sales channel'!$H66*'Other input expert'!G$7","v":0},{"$f":"AI66*'Other input expert'!H$13*'Sales price per sales channel'!$H66*'Other input expert'!H$7","v":0},{"$f":"AJ66*'Other input expert'!I$13*'Sales price per sales channel'!$H66*'Other input expert'!I$7","v":0},{"$f":"AK66*'Other input expert'!J$13*'Sales price per sales channel'!$H66*'Other input expert'!J$7","v":0},{"$f":"AL66*'Other input expert'!K$13*'Sales price per sales channel'!$H66*'Other input expert'!K$7","v":0},{"$f":"AM66*'Other input expert'!L$13*'Sales price per sales channel'!$H66*'Other input expert'!L$7","v":0},{"$f":"AN66*'Other input expert'!M$13*'Sales price per sales channel'!$H66*'Other input expert'!M$7","v":0},null,{"$f":"AC66*'Other input expert'!B$14*'Sales price per sales channel'!$I66*'Other input expert'!B$7","v":0},{"$f":"AD66*'Other input expert'!C$14*'Sales price per sales channel'!$I66*'Other input expert'!C$7","v":0},{"$f":"AE66*'Other input expert'!D$14*'Sales price per sales channel'!$I66*'Other input expert'!D$7","v":0},{"$f":"AF66*'Other input expert'!E$14*'Sales price per sales channel'!$I66*'Other input expert'!E$7","v":0},{"$f":"AG66*'Other input expert'!F$14*'Sales price per sales channel'!$I66*'Other input expert'!F$7","v":0},{"$f":"AH66*'Other input expert'!G$14*'Sales price per sales channel'!$I66*'Other input expert'!G$7","v":0},{"$f":"AI66*'Other input expert'!H$14*'Sales price per sales channel'!$I66*'Other input expert'!H$7","v":0},{"$f":"AJ66*'Other input expert'!I$14*'Sales price per sales channel'!$I66*'Other input expert'!I$7","v":0},{"$f":"AK66*'Other input expert'!J$14*'Sales price per sales channel'!$I66*'Other input expert'!J$7","v":0},{"$f":"AL66*'Other input expert'!K$14*'Sales price per sales channel'!$I66*'Other input expert'!K$7","v":0},{"$f":"AM66*'Other input expert'!L$14*'Sales price per sales channel'!$I66*'Other input expert'!L$7","v":0},{"$f":"AN66*'Other input expert'!M$14*'Sales price per sales channel'!$I66*'Other input expert'!M$7","v":0}]
["Echinacea spp.","Echinasea",{"$f":"Plantlist!$G67*'Production list'!D68*'Other input expert'!B$4*'Other input expert'!B$8","v":0},{"$f":"Plantlist!$G67*'Production list'!E68*'Other input expert'!C$4*'Other input expert'!C$8","v":0},{"$f":"Plantlist!$G67*'Production list'!F68*'Other input expert'!D$4*'Other input expert'!D$8","v":0},{"$f":"Plantlist!$G67*'Production list'!G68*'Other input expert'!E$4*'Other input expert'!E$8","v":0},{"$f":"Plantlist!$G67*'Production list'!H68*'Other input expert'!F$4*'Other input expert'!F$8","v":0},{"$f":"Plantlist!$G67*'Production list'!I68*'Other input expert'!G$4*'Other input expert'!G$8","v":0},{"$f":"Plantlist!$G67*'Production list'!J68*'Other input expert'!H$4*'Other input expert'!H$8","v":0},{"$f":"Plantlist!$G67*'Production list'!K68*'Other input expert'!I$4*'Other input expert'!I$8","v":0},{"$f":"Plantlist!$G67*'Production list'!L68*'Other input expert'!J$4*'Other input expert'!J$8","v":0},{"$f":"Plantlist!$G67*'Production list'!M68*'Other input expert'!K$4*'Other input expert'!K$8","v":0},{"$f":"Plantlist!$G67*'Production list'!N68*'Other input expert'!L$4*'Other input expert'!L$8","v":0},{"$f":"Plantlist!$G67*'Production list'!O68*'Other input expert'!M$4*'Other input expert'!M$8","v":0},null,{"$f":"C67*'Other input expert'!B$5","v":0},{"$f":"D67*'Other input expert'!C$5","v":0},{"$f":"E67*'Other input expert'!D$5","v":0},{"$f":"F67*'Other input expert'!E$5","v":0},{"$f":"G67*'Other input expert'!F$5","v":0},{"$f":"H67*'Other input expert'!G$5","v":0},{"$f":"I67*'Other input expert'!H$5","v":0},{"$f":"J67*'Other input expert'!I$5","v":0},{"$f":"K67*'Other input expert'!J$5","v":0},{"$f":"L67*'Other input expert'!K$5","v":0},{"$f":"M67*'Other input expert'!L$5","v":0},{"$f":"N67*'Other input expert'!M$5","v":0},null,{"$f":"C67*(100%-'Other input expert'!B$5)","v":0},{"$f":"D67*(100%-'Other input expert'!C$5)","v":0},{"$f":"E67*(100%-'Other input expert'!D$5)","v":0},{"$f":"F67*(100%-'Other input expert'!E$5)","v":0},{"$f":"G67*(100%-'Other input expert'!F$5)","v":0},{"$f":"H67*(100%-'Other input expert'!G$5)","v":0},{"$f":"I67*(100%-'Other input expert'!H$5)","v":0},{"$f":"J67*(100%-'Other input expert'!I$5)","v":0},{"$f":"K67*(100%-'Other input expert'!J$5)","v":0},{"$f":"L67*(100%-'Other input expert'!K$5)","v":0},{"$f":"M67*(100%-'Other input expert'!L$5)","v":0},{"$f":"N67*(100%-'Other input expert'!M$5)","v":0},null,{"$f":"P67*'Other input expert'!B$12*'Sales price per sales channel'!$G67*'Other input expert'!B$6","v":0},{"$f":"Q67*'Other input expert'!C$12*'Sales price per sales channel'!$G67*'Other input expert'!C$6","v":0},{"$f":"R67*'Other input expert'!D$12*'Sales price per sales channel'!$G67*'Other input expert'!D$6","v":0},{"$f":"S67*'Other input expert'!E$12*'Sales price per sales channel'!$G67*'Other input expert'!E$6","v":0},{"$f":"T67*'Other input expert'!F$12*'Sales price per sales channel'!$G67*'Other input expert'!F$6","v":0},{"$f":"U67*'Other input expert'!G$12*'Sales price per sales channel'!$G67*'Other input expert'!G$6","v":0},{"$f":"V67*'Other input expert'!H$12*'Sales price per sales channel'!$G67*'Other input expert'!H$6","v":0},{"$f":"W67*'Other input expert'!I$12*'Sales price per sales channel'!$G67*'Other input expert'!I$6","v":0},{"$f":"X67*'Other input expert'!J$12*'Sales price per sales channel'!$G67*'Other input expert'!J$6","v":0},{"$f":"Y67*'Other input expert'!K$12*'Sales price per sales channel'!$G67*'Other input expert'!K$6","v":0},{"$f":"Z67*'Other input expert'!L$12*'Sales price per sales channel'!$G67*'Other input expert'!L$6","v":0},{"$f":"AA67*'Other input expert'!M$12*'Sales price per sales channel'!$G67*'Other input expert'!M$6","v":0},null,{"$f":"P67*'Other input expert'!B$13*'Sales price per sales channel'!$H67*'Other input expert'!B$6","v":0},{"$f":"Q67*'Other input expert'!C$13*'Sales price per sales channel'!$H67*'Other input expert'!C$6","v":0},{"$f":"R67*'Other input expert'!D$13*'Sales price per sales channel'!$H67*'Other input expert'!D$6","v":0},{"$f":"S67*'Other input expert'!E$13*'Sales price per sales channel'!$H67*'Other input expert'!E$6","v":0},{"$f":"T67*'Other input expert'!F$13*'Sales price per sales channel'!$H67*'Other input expert'!F$6","v":0},{"$f":"U67*'Other input expert'!G$13*'Sales price per sales channel'!$H67*'Other input expert'!G$6","v":0},{"$f":"V67*'Other input expert'!H$13*'Sales price per sales channel'!$H67*'Other input expert'!H$6","v":0},{"$f":"W67*'Other input expert'!I$13*'Sales price per sales channel'!$H67*'Other input expert'!I$6","v":0},{"$f":"X67*'Other input expert'!J$13*'Sales price per sales channel'!$H67*'Other input expert'!J$6","v":0},{"$f":"Y67*'Other input expert'!K$13*'Sales price per sales channel'!$H67*'Other input expert'!K$6","v":0},{"$f":"Z67*'Other input expert'!L$13*'Sales price per sales channel'!$H67*'Other input expert'!L$6","v":0},{"$f":"AA67*'Other input expert'!M$13*'Sales price per sales channel'!$H67*'Other input expert'!M$6","v":0},null,{"$f":"P67*'Other input expert'!B$14*'Sales price per sales channel'!$I67*'Other input expert'!B$6","v":0},{"$f":"Q67*'Other input expert'!C$14*'Sales price per sales channel'!$I67*'Other input expert'!C$6","v":0},{"$f":"R67*'Other input expert'!D$14*'Sales price per sales channel'!$I67*'Other input expert'!D$6","v":0},{"$f":"S67*'Other input expert'!E$14*'Sales price per sales channel'!$I67*'Other input expert'!E$6","v":0},{"$f":"T67*'Other input expert'!F$14*'Sales price per sales channel'!$I67*'Other input expert'!F$6","v":0},{"$f":"U67*'Other input expert'!G$14*'Sales price per sales channel'!$I67*'Other input expert'!G$6","v":0},{"$f":"V67*'Other input expert'!H$14*'Sales price per sales channel'!$I67*'Other input expert'!H$6","v":0},{"$f":"W67*'Other input expert'!I$14*'Sales price per sales channel'!$I67*'Other input expert'!I$6","v":0},{"$f":"X67*'Other input expert'!J$14*'Sales price per sales channel'!$I67*'Other input expert'!J$6","v":0},{"$f":"Y67*'Other input expert'!K$14*'Sales price per sales channel'!$I67*'Other input expert'!K$6","v":0},{"$f":"Z67*'Other input expert'!L$14*'Sales price per sales channel'!$I67*'Other input expert'!L$6","v":0},{"$f":"AA67*'Other input expert'!M$14*'Sales price per sales channel'!$I67*'Other input expert'!M$6","v":0},null,{"$f":"AC67*'Other input expert'!B$12*'Sales price per sales channel'!$G67*'Other input expert'!B$7","v":0},{"$f":"AD67*'Other input expert'!C$12*'Sales price per sales channel'!$G67*'Other input expert'!C$7","v":0},{"$f":"AE67*'Other input expert'!D$12*'Sales price per sales channel'!$G67*'Other input expert'!D$7","v":0},{"$f":"AF67*'Other input expert'!E$12*'Sales price per sales channel'!$G67*'Other input expert'!E$7","v":0},{"$f":"AG67*'Other input expert'!F$12*'Sales price per sales channel'!$G67*'Other input expert'!F$7","v":0},{"$f":"AH67*'Other input expert'!G$12*'Sales price per sales channel'!$G67*'Other input expert'!G$7","v":0},{"$f":"AI67*'Other input expert'!H$12*'Sales price per sales channel'!$G67*'Other input expert'!H$7","v":0},{"$f":"AJ67*'Other input expert'!I$12*'Sales price per sales channel'!$G67*'Other input expert'!I$7","v":0},{"$f":"AK67*'Other input expert'!J$12*'Sales price per sales channel'!$G67*'Other input expert'!J$7","v":0},{"$f":"AL67*'Other input expert'!K$12*'Sales price per sales channel'!$G67*'Other input expert'!K$7","v":0},{"$f":"AM67*'Other input expert'!L$12*'Sales price per sales channel'!$G67*'Other input expert'!L$7","v":0},{"$f":"AN67*'Other input expert'!M$12*'Sales price per sales channel'!$G67*'Other input expert'!M$7","v":0},null,{"$f":"AC67*'Other input expert'!B$13*'Sales price per sales channel'!$H67*'Other input expert'!B$7","v":0},{"$f":"AD67*'Other input expert'!C$13*'Sales price per sales channel'!$H67*'Other input expert'!C$7","v":0},{"$f":"AE67*'Other input expert'!D$13*'Sales price per sales channel'!$H67*'Other input expert'!D$7","v":0},{"$f":"AF67*'Other input expert'!E$13*'Sales price per sales channel'!$H67*'Other input expert'!E$7","v":0},{"$f":"AG67*'Other input expert'!F$13*'Sales price per sales channel'!$H67*'Other input expert'!F$7","v":0},{"$f":"AH67*'Other input expert'!G$13*'Sales price per sales channel'!$H67*'Other input expert'!G$7","v":0},{"$f":"AI67*'Other input expert'!H$13*'Sales price per sales channel'!$H67*'Other input expert'!H$7","v":0},{"$f":"AJ67*'Other input expert'!I$13*'Sales price per sales channel'!$H67*'Other input expert'!I$7","v":0},{"$f":"AK67*'Other input expert'!J$13*'Sales price per sales channel'!$H67*'Other input expert'!J$7","v":0},{"$f":"AL67*'Other input expert'!K$13*'Sales price per sales channel'!$H67*'Other input expert'!K$7","v":0},{"$f":"AM67*'Other input expert'!L$13*'Sales price per sales channel'!$H67*'Other input expert'!L$7","v":0},{"$f":"AN67*'Other input expert'!M$13*'Sales price per sales channel'!$H67*'Other input expert'!M$7","v":0},null,{"$f":"AC67*'Other input expert'!B$14*'Sales price per sales channel'!$I67*'Other input expert'!B$7","v":0},{"$f":"AD67*'Other input expert'!C$14*'Sales price per sales channel'!$I67*'Other input expert'!C$7","v":0},{"$f":"AE67*'Other input expert'!D$14*'Sales price per sales channel'!$I67*'Other input expert'!D$7","v":0},{"$f":"AF67*'Other input expert'!E$14*'Sales price per sales channel'!$I67*'Other input expert'!E$7","v":0},{"$f":"AG67*'Other input expert'!F$14*'Sales price per sales channel'!$I67*'Other input expert'!F$7","v":0},{"$f":"AH67*'Other input expert'!G$14*'Sales price per sales channel'!$I67*'Other input expert'!G$7","v":0},{"$f":"AI67*'Other input expert'!H$14*'Sales price per sales channel'!$I67*'Other input expert'!H$7","v":0},{"$f":"AJ67*'Other input expert'!I$14*'Sales price per sales channel'!$I67*'Other input expert'!I$7","v":0},{"$f":"AK67*'Other input expert'!J$14*'Sales price per sales channel'!$I67*'Other input expert'!J$7","v":0},{"$f":"AL67*'Other input expert'!K$14*'Sales price per sales channel'!$I67*'Other input expert'!K$7","v":0},{"$f":"AM67*'Other input expert'!L$14*'Sales price per sales channel'!$I67*'Other input expert'!L$7","v":0},{"$f":"AN67*'Other input expert'!M$14*'Sales price per sales channel'!$I67*'Other input expert'!M$7","v":0}]
["Elaeagnus umbellata","Autumn olive",{"$f":"Plantlist!$G68*'Production list'!D69*'Other input expert'!B$4*'Other input expert'!B$8","v":0},{"$f":"Plantlist!$G68*'Production list'!E69*'Other input expert'!C$4*'Other input expert'!C$8","v":0},{"$f":"Plantlist!$G68*'Production list'!F69*'Other input expert'!D$4*'Other input expert'!D$8","v":0},{"$f":"Plantlist!$G68*'Production list'!G69*'Other input expert'!E$4*'Other input expert'!E$8","v":0},{"$f":"Plantlist!$G68*'Production list'!H69*'Other input expert'!F$4*'Other input expert'!F$8","v":0},{"$f":"Plantlist!$G68*'Production list'!I69*'Other input expert'!G$4*'Other input expert'!G$8","v":0},{"$f":"Plantlist!$G68*'Production list'!J69*'Other input expert'!H$4*'Other input expert'!H$8","v":0},{"$f":"Plantlist!$G68*'Production list'!K69*'Other input expert'!I$4*'Other input expert'!I$8","v":0},{"$f":"Plantlist!$G68*'Production list'!L69*'Other input expert'!J$4*'Other input expert'!J$8","v":0},{"$f":"Plantlist!$G68*'Production list'!M69*'Other input expert'!K$4*'Other input expert'!K$8","v":0},{"$f":"Plantlist!$G68*'Production list'!N69*'Other input expert'!L$4*'Other input expert'!L$8","v":0},{"$f":"Plantlist!$G68*'Production list'!O69*'Other input expert'!M$4*'Other input expert'!M$8","v":0},null,{"$f":"C68*'Other input expert'!B$5","v":0},{"$f":"D68*'Other input expert'!C$5","v":0},{"$f":"E68*'Other input expert'!D$5","v":0},{"$f":"F68*'Other input expert'!E$5","v":0},{"$f":"G68*'Other input expert'!F$5","v":0},{"$f":"H68*'Other input expert'!G$5","v":0},{"$f":"I68*'Other input expert'!H$5","v":0},{"$f":"J68*'Other input expert'!I$5","v":0},{"$f":"K68*'Other input expert'!J$5","v":0},{"$f":"L68*'Other input expert'!K$5","v":0},{"$f":"M68*'Other input expert'!L$5","v":0},{"$f":"N68*'Other input expert'!M$5","v":0},null,{"$f":"C68*(100%-'Other input expert'!B$5)","v":0},{"$f":"D68*(100%-'Other input expert'!C$5)","v":0},{"$f":"E68*(100%-'Other input expert'!D$5)","v":0},{"$f":"F68*(100%-'Other input expert'!E$5)","v":0},{"$f":"G68*(100%-'Other input expert'!F$5)","v":0},{"$f":"H68*(100%-'Other input expert'!G$5)","v":0},{"$f":"I68*(100%-'Other input expert'!H$5)","v":0},{"$f":"J68*(100%-'Other input expert'!I$5)","v":0},{"$f":"K68*(100%-'Other input expert'!J$5)","v":0},{"$f":"L68*(100%-'Other input expert'!K$5)","v":0},{"$f":"M68*(100%-'Other input expert'!L$5)","v":0},{"$f":"N68*(100%-'Other input expert'!M$5)","v":0},null,{"$f":"P68*'Other input expert'!B$12*'Sales price per sales channel'!$G68*'Other input expert'!B$6","v":0},{"$f":"Q68*'Other input expert'!C$12*'Sales price per sales channel'!$G68*'Other input expert'!C$6","v":0},{"$f":"R68*'Other input expert'!D$12*'Sales price per sales channel'!$G68*'Other input expert'!D$6","v":0},{"$f":"S68*'Other input expert'!E$12*'Sales price per sales channel'!$G68*'Other input expert'!E$6","v":0},{"$f":"T68*'Other input expert'!F$12*'Sales price per sales channel'!$G68*'Other input expert'!F$6","v":0},{"$f":"U68*'Other input expert'!G$12*'Sales price per sales channel'!$G68*'Other input expert'!G$6","v":0},{"$f":"V68*'Other input expert'!H$12*'Sales price per sales channel'!$G68*'Other input expert'!H$6","v":0},{"$f":"W68*'Other input expert'!I$12*'Sales price per sales channel'!$G68*'Other input expert'!I$6","v":0},{"$f":"X68*'Other input expert'!J$12*'Sales price per sales channel'!$G68*'Other input expert'!J$6","v":0},{"$f":"Y68*'Other input expert'!K$12*'Sales price per sales channel'!$G68*'Other input expert'!K$6","v":0},{"$f":"Z68*'Other input expert'!L$12*'Sales price per sales channel'!$G68*'Other input expert'!L$6","v":0},{"$f":"AA68*'Other input expert'!M$12*'Sales price per sales channel'!$G68*'Other input expert'!M$6","v":0},null,{"$f":"P68*'Other input expert'!B$13*'Sales price per sales channel'!$H68*'Other input expert'!B$6","v":0},{"$f":"Q68*'Other input expert'!C$13*'Sales price per sales channel'!$H68*'Other input expert'!C$6","v":0},{"$f":"R68*'Other input expert'!D$13*'Sales price per sales channel'!$H68*'Other input expert'!D$6","v":0},{"$f":"S68*'Other input expert'!E$13*'Sales price per sales channel'!$H68*'Other input expert'!E$6","v":0},{"$f":"T68*'Other input expert'!F$13*'Sales price per sales channel'!$H68*'Other input expert'!F$6","v":0},{"$f":"U68*'Other input expert'!G$13*'Sales price per sales channel'!$H68*'Other input expert'!G$6","v":0},{"$f":"V68*'Other input expert'!H$13*'Sales price per sales channel'!$H68*'Other input expert'!H$6","v":0},{"$f":"W68*'Other input expert'!I$13*'Sales price per sales channel'!$H68*'Other input expert'!I$6","v":0},{"$f":"X68*'Other input expert'!J$13*'Sales price per sales channel'!$H68*'Other input expert'!J$6","v":0},{"$f":"Y68*'Other input expert'!K$13*'Sales price per sales channel'!$H68*'Other input expert'!K$6","v":0},{"$f":"Z68*'Other input expert'!L$13*'Sales price per sales channel'!$H68*'Other input expert'!L$6","v":0},{"$f":"AA68*'Other input expert'!M$13*'Sales price per sales channel'!$H68*'Other input expert'!M$6","v":0},null,{"$f":"P68*'Other input expert'!B$14*'Sales price per sales channel'!$I68*'Other input expert'!B$6","v":0},{"$f":"Q68*'Other input expert'!C$14*'Sales price per sales channel'!$I68*'Other input expert'!C$6","v":0},{"$f":"R68*'Other input expert'!D$14*'Sales price per sales channel'!$I68*'Other input expert'!D$6","v":0},{"$f":"S68*'Other input expert'!E$14*'Sales price per sales channel'!$I68*'Other input expert'!E$6","v":0},{"$f":"T68*'Other input expert'!F$14*'Sales price per sales channel'!$I68*'Other input expert'!F$6","v":0},{"$f":"U68*'Other input expert'!G$14*'Sales price per sales channel'!$I68*'Other input expert'!G$6","v":0},{"$f":"V68*'Other input expert'!H$14*'Sales price per sales channel'!$I68*'Other input expert'!H$6","v":0},{"$f":"W68*'Other input expert'!I$14*'Sales price per sales channel'!$I68*'Other input expert'!I$6","v":0},{"$f":"X68*'Other input expert'!J$14*'Sales price per sales channel'!$I68*'Other input expert'!J$6","v":0},{"$f":"Y68*'Other input expert'!K$14*'Sales price per sales channel'!$I68*'Other input expert'!K$6","v":0},{"$f":"Z68*'Other input expert'!L$14*'Sales price per sales channel'!$I68*'Other input expert'!L$6","v":0},{"$f":"AA68*'Other input expert'!M$14*'Sales price per sales channel'!$I68*'Other input expert'!M$6","v":0},null,{"$f":"AC68*'Other input expert'!B$12*'Sales price per sales channel'!$G68*'Other input expert'!B$7","v":0},{"$f":"AD68*'Other input expert'!C$12*'Sales price per sales channel'!$G68*'Other input expert'!C$7","v":0},{"$f":"AE68*'Other input expert'!D$12*'Sales price per sales channel'!$G68*'Other input expert'!D$7","v":0},{"$f":"AF68*'Other input expert'!E$12*'Sales price per sales channel'!$G68*'Other input expert'!E$7","v":0},{"$f":"AG68*'Other input expert'!F$12*'Sales price per sales channel'!$G68*'Other input expert'!F$7","v":0},{"$f":"AH68*'Other input expert'!G$12*'Sales price per sales channel'!$G68*'Other input expert'!G$7","v":0},{"$f":"AI68*'Other input expert'!H$12*'Sales price per sales channel'!$G68*'Other input expert'!H$7","v":0},{"$f":"AJ68*'Other input expert'!I$12*'Sales price per sales channel'!$G68*'Other input expert'!I$7","v":0},{"$f":"AK68*'Other input expert'!J$12*'Sales price per sales channel'!$G68*'Other input expert'!J$7","v":0},{"$f":"AL68*'Other input expert'!K$12*'Sales price per sales channel'!$G68*'Other input expert'!K$7","v":0},{"$f":"AM68*'Other input expert'!L$12*'Sales price per sales channel'!$G68*'Other input expert'!L$7","v":0},{"$f":"AN68*'Other input expert'!M$12*'Sales price per sales channel'!$G68*'Other input expert'!M$7","v":0},null,{"$f":"AC68*'Other input expert'!B$13*'Sales price per sales channel'!$H68*'Other input expert'!B$7","v":0},{"$f":"AD68*'Other input expert'!C$13*'Sales price per sales channel'!$H68*'Other input expert'!C$7","v":0},{"$f":"AE68*'Other input expert'!D$13*'Sales price per sales channel'!$H68*'Other input expert'!D$7","v":0},{"$f":"AF68*'Other input expert'!E$13*'Sales price per sales channel'!$H68*'Other input expert'!E$7","v":0},{"$f":"AG68*'Other input expert'!F$13*'Sales price per sales channel'!$H68*'Other input expert'!F$7","v":0},{"$f":"AH68*'Other input expert'!G$13*'Sales price per sales channel'!$H68*'Other input expert'!G$7","v":0},{"$f":"AI68*'Other input expert'!H$13*'Sales price per sales channel'!$H68*'Other input expert'!H$7","v":0},{"$f":"AJ68*'Other input expert'!I$13*'Sales price per sales channel'!$H68*'Other input expert'!I$7","v":0},{"$f":"AK68*'Other input expert'!J$13*'Sales price per sales channel'!$H68*'Other input expert'!J$7","v":0},{"$f":"AL68*'Other input expert'!K$13*'Sales price per sales channel'!$H68*'Other input expert'!K$7","v":0},{"$f":"AM68*'Other input expert'!L$13*'Sales price per sales channel'!$H68*'Other input expert'!L$7","v":0},{"$f":"AN68*'Other input expert'!M$13*'Sales price per sales channel'!$H68*'Other input expert'!M$7","v":0},null,{"$f":"AC68*'Other input expert'!B$14*'Sales price per sales channel'!$I68*'Other input expert'!B$7","v":0},{"$f":"AD68*'Other input expert'!C$14*'Sales price per sales channel'!$I68*'Other input expert'!C$7","v":0},{"$f":"AE68*'Other input expert'!D$14*'Sales price per sales channel'!$I68*'Other input expert'!D$7","v":0},{"$f":"AF68*'Other input expert'!E$14*'Sales price per sales channel'!$I68*'Other input expert'!E$7","v":0},{"$f":"AG68*'Other input expert'!F$14*'Sales price per sales channel'!$I68*'Other input expert'!F$7","v":0},{"$f":"AH68*'Other input expert'!G$14*'Sales price per sales channel'!$I68*'Other input expert'!G$7","v":0},{"$f":"AI68*'Other input expert'!H$14*'Sales price per sales channel'!$I68*'Other input expert'!H$7","v":0},{"$f":"AJ68*'Other input expert'!I$14*'Sales price per sales channel'!$I68*'Other input expert'!I$7","v":0},{"$f":"AK68*'Other input expert'!J$14*'Sales price per sales channel'!$I68*'Other input expert'!J$7","v":0},{"$f":"AL68*'Other input expert'!K$14*'Sales price per sales channel'!$I68*'Other input expert'!K$7","v":0},{"$f":"AM68*'Other input expert'!L$14*'Sales price per sales channel'!$I68*'Other input expert'!L$7","v":0},{"$f":"AN68*'Other input expert'!M$14*'Sales price per sales channel'!$I68*'Other input expert'!M$7","v":0}]
["Elaeagnus x ebbingei","Ebbing's silverberry",{"$f":"Plantlist!$G69*'Production list'!D70*'Other input expert'!B$4*'Other input expert'!B$8","v":0},{"$f":"Plantlist!$G69*'Production list'!E70*'Other input expert'!C$4*'Other input expert'!C$8","v":0},{"$f":"Plantlist!$G69*'Production list'!F70*'Other input expert'!D$4*'Other input expert'!D$8","v":0},{"$f":"Plantlist!$G69*'Production list'!G70*'Other input expert'!E$4*'Other input expert'!E$8","v":0},{"$f":"Plantlist!$G69*'Production list'!H70*'Other input expert'!F$4*'Other input expert'!F$8","v":0},{"$f":"Plantlist!$G69*'Production list'!I70*'Other input expert'!G$4*'Other input expert'!G$8","v":0},{"$f":"Plantlist!$G69*'Production list'!J70*'Other input expert'!H$4*'Other input expert'!H$8","v":0},{"$f":"Plantlist!$G69*'Production list'!K70*'Other input expert'!I$4*'Other input expert'!I$8","v":0},{"$f":"Plantlist!$G69*'Production list'!L70*'Other input expert'!J$4*'Other input expert'!J$8","v":0},{"$f":"Plantlist!$G69*'Production list'!M70*'Other input expert'!K$4*'Other input expert'!K$8","v":0},{"$f":"Plantlist!$G69*'Production list'!N70*'Other input expert'!L$4*'Other input expert'!L$8","v":0},{"$f":"Plantlist!$G69*'Production list'!O70*'Other input expert'!M$4*'Other input expert'!M$8","v":0},null,{"$f":"C69*'Other input expert'!B$5","v":0},{"$f":"D69*'Other input expert'!C$5","v":0},{"$f":"E69*'Other input expert'!D$5","v":0},{"$f":"F69*'Other input expert'!E$5","v":0},{"$f":"G69*'Other input expert'!F$5","v":0},{"$f":"H69*'Other input expert'!G$5","v":0},{"$f":"I69*'Other input expert'!H$5","v":0},{"$f":"J69*'Other input expert'!I$5","v":0},{"$f":"K69*'Other input expert'!J$5","v":0},{"$f":"L69*'Other input expert'!K$5","v":0},{"$f":"M69*'Other input expert'!L$5","v":0},{"$f":"N69*'Other input expert'!M$5","v":0},null,{"$f":"C69*(100%-'Other input expert'!B$5)","v":0},{"$f":"D69*(100%-'Other input expert'!C$5)","v":0},{"$f":"E69*(100%-'Other input expert'!D$5)","v":0},{"$f":"F69*(100%-'Other input expert'!E$5)","v":0},{"$f":"G69*(100%-'Other input expert'!F$5)","v":0},{"$f":"H69*(100%-'Other input expert'!G$5)","v":0},{"$f":"I69*(100%-'Other input expert'!H$5)","v":0},{"$f":"J69*(100%-'Other input expert'!I$5)","v":0},{"$f":"K69*(100%-'Other input expert'!J$5)","v":0},{"$f":"L69*(100%-'Other input expert'!K$5)","v":0},{"$f":"M69*(100%-'Other input expert'!L$5)","v":0},{"$f":"N69*(100%-'Other input expert'!M$5)","v":0},null,{"$f":"P69*'Other input expert'!B$12*'Sales price per sales channel'!$G69*'Other input expert'!B$6","v":0},{"$f":"Q69*'Other input expert'!C$12*'Sales price per sales channel'!$G69*'Other input expert'!C$6","v":0},{"$f":"R69*'Other input expert'!D$12*'Sales price per sales channel'!$G69*'Other input expert'!D$6","v":0},{"$f":"S69*'Other input expert'!E$12*'Sales price per sales channel'!$G69*'Other input expert'!E$6","v":0},{"$f":"T69*'Other input expert'!F$12*'Sales price per sales channel'!$G69*'Other input expert'!F$6","v":0},{"$f":"U69*'Other input expert'!G$12*'Sales price per sales channel'!$G69*'Other input expert'!G$6","v":0},{"$f":"V69*'Other input expert'!H$12*'Sales price per sales channel'!$G69*'Other input expert'!H$6","v":0},{"$f":"W69*'Other input expert'!I$12*'Sales price per sales channel'!$G69*'Other input expert'!I$6","v":0},{"$f":"X69*'Other input expert'!J$12*'Sales price per sales channel'!$G69*'Other input expert'!J$6","v":0},{"$f":"Y69*'Other input expert'!K$12*'Sales price per sales channel'!$G69*'Other input expert'!K$6","v":0},{"$f":"Z69*'Other input expert'!L$12*'Sales price per sales channel'!$G69*'Other input expert'!L$6","v":0},{"$f":"AA69*'Other input expert'!M$12*'Sales price per sales channel'!$G69*'Other input expert'!M$6","v":0},null,{"$f":"P69*'Other input expert'!B$13*'Sales price per sales channel'!$H69*'Other input expert'!B$6","v":0},{"$f":"Q69*'Other input expert'!C$13*'Sales price per sales channel'!$H69*'Other input expert'!C$6","v":0},{"$f":"R69*'Other input expert'!D$13*'Sales price per sales channel'!$H69*'Other input expert'!D$6","v":0},{"$f":"S69*'Other input expert'!E$13*'Sales price per sales channel'!$H69*'Other input expert'!E$6","v":0},{"$f":"T69*'Other input expert'!F$13*'Sales price per sales channel'!$H69*'Other input expert'!F$6","v":0},{"$f":"U69*'Other input expert'!G$13*'Sales price per sales channel'!$H69*'Other input expert'!G$6","v":0},{"$f":"V69*'Other input expert'!H$13*'Sales price per sales channel'!$H69*'Other input expert'!H$6","v":0},{"$f":"W69*'Other input expert'!I$13*'Sales price per sales channel'!$H69*'Other input expert'!I$6","v":0},{"$f":"X69*'Other input expert'!J$13*'Sales price per sales channel'!$H69*'Other input expert'!J$6","v":0},{"$f":"Y69*'Other input expert'!K$13*'Sales price per sales channel'!$H69*'Other input expert'!K$6","v":0},{"$f":"Z69*'Other input expert'!L$13*'Sales price per sales channel'!$H69*'Other input expert'!L$6","v":0},{"$f":"AA69*'Other input expert'!M$13*'Sales price per sales channel'!$H69*'Other input expert'!M$6","v":0},null,{"$f":"P69*'Other input expert'!B$14*'Sales price per sales channel'!$I69*'Other input expert'!B$6","v":0},{"$f":"Q69*'Other input expert'!C$14*'Sales price per sales channel'!$I69*'Other input expert'!C$6","v":0},{"$f":"R69*'Other input expert'!D$14*'Sales price per sales channel'!$I69*'Other input expert'!D$6","v":0},{"$f":"S69*'Other input expert'!E$14*'Sales price per sales channel'!$I69*'Other input expert'!E$6","v":0},{"$f":"T69*'Other input expert'!F$14*'Sales price per sales channel'!$I69*'Other input expert'!F$6","v":0},{"$f":"U69*'Other input expert'!G$14*'Sales price per sales channel'!$I69*'Other input expert'!G$6","v":0},{"$f":"V69*'Other input expert'!H$14*'Sales price per sales channel'!$I69*'Other input expert'!H$6","v":0},{"$f":"W69*'Other input expert'!I$14*'Sales price per sales channel'!$I69*'Other input expert'!I$6","v":0},{"$f":"X69*'Other input expert'!J$14*'Sales price per sales channel'!$I69*'Other input expert'!J$6","v":0},{"$f":"Y69*'Other input expert'!K$14*'Sales price per sales channel'!$I69*'Other input expert'!K$6","v":0},{"$f":"Z69*'Other input expert'!L$14*'Sales price per sales channel'!$I69*'Other input expert'!L$6","v":0},{"$f":"AA69*'Other input expert'!M$14*'Sales price per sales channel'!$I69*'Other input expert'!M$6","v":0},null,{"$f":"AC69*'Other input expert'!B$12*'Sales price per sales channel'!$G69*'Other input expert'!B$7","v":0},{"$f":"AD69*'Other input expert'!C$12*'Sales price per sales channel'!$G69*'Other input expert'!C$7","v":0},{"$f":"AE69*'Other input expert'!D$12*'Sales price per sales channel'!$G69*'Other input expert'!D$7","v":0},{"$f":"AF69*'Other input expert'!E$12*'Sales price per sales channel'!$G69*'Other input expert'!E$7","v":0},{"$f":"AG69*'Other input expert'!F$12*'Sales price per sales channel'!$G69*'Other input expert'!F$7","v":0},{"$f":"AH69*'Other input expert'!G$12*'Sales price per sales channel'!$G69*'Other input expert'!G$7","v":0},{"$f":"AI69*'Other input expert'!H$12*'Sales price per sales channel'!$G69*'Other input expert'!H$7","v":0},{"$f":"AJ69*'Other input expert'!I$12*'Sales price per sales channel'!$G69*'Other input expert'!I$7","v":0},{"$f":"AK69*'Other input expert'!J$12*'Sales price per sales channel'!$G69*'Other input expert'!J$7","v":0},{"$f":"AL69*'Other input expert'!K$12*'Sales price per sales channel'!$G69*'Other input expert'!K$7","v":0},{"$f":"AM69*'Other input expert'!L$12*'Sales price per sales channel'!$G69*'Other input expert'!L$7","v":0},{"$f":"AN69*'Other input expert'!M$12*'Sales price per sales channel'!$G69*'Other input expert'!M$7","v":0},null,{"$f":"AC69*'Other input expert'!B$13*'Sales price per sales channel'!$H69*'Other input expert'!B$7","v":0},{"$f":"AD69*'Other input expert'!C$13*'Sales price per sales channel'!$H69*'Other input expert'!C$7","v":0},{"$f":"AE69*'Other input expert'!D$13*'Sales price per sales channel'!$H69*'Other input expert'!D$7","v":0},{"$f":"AF69*'Other input expert'!E$13*'Sales price per sales channel'!$H69*'Other input expert'!E$7","v":0},{"$f":"AG69*'Other input expert'!F$13*'Sales price per sales channel'!$H69*'Other input expert'!F$7","v":0},{"$f":"AH69*'Other input expert'!G$13*'Sales price per sales channel'!$H69*'Other input expert'!G$7","v":0},{"$f":"AI69*'Other input expert'!H$13*'Sales price per sales channel'!$H69*'Other input expert'!H$7","v":0},{"$f":"AJ69*'Other input expert'!I$13*'Sales price per sales channel'!$H69*'Other input expert'!I$7","v":0},{"$f":"AK69*'Other input expert'!J$13*'Sales price per sales channel'!$H69*'Other input expert'!J$7","v":0},{"$f":"AL69*'Other input expert'!K$13*'Sales price per sales channel'!$H69*'Other input expert'!K$7","v":0},{"$f":"AM69*'Other input expert'!L$13*'Sales price per sales channel'!$H69*'Other input expert'!L$7","v":0},{"$f":"AN69*'Other input expert'!M$13*'Sales price per sales channel'!$H69*'Other input expert'!M$7","v":0},null,{"$f":"AC69*'Other input expert'!B$14*'Sales price per sales channel'!$I69*'Other input expert'!B$7","v":0},{"$f":"AD69*'Other input expert'!C$14*'Sales price per sales channel'!$I69*'Other input expert'!C$7","v":0},{"$f":"AE69*'Other input expert'!D$14*'Sales price per sales channel'!$I69*'Other input expert'!D$7","v":0},{"$f":"AF69*'Other input expert'!E$14*'Sales price per sales channel'!$I69*'Other input expert'!E$7","v":0},{"$f":"AG69*'Other input expert'!F$14*'Sales price per sales channel'!$I69*'Other input expert'!F$7","v":0},{"$f":"AH69*'Other input expert'!G$14*'Sales price per sales channel'!$I69*'Other input expert'!G$7","v":0},{"$f":"AI69*'Other input expert'!H$14*'Sales price per sales channel'!$I69*'Other input expert'!H$7","v":0},{"$f":"AJ69*'Other input expert'!I$14*'Sales price per sales channel'!$I69*'Other input expert'!I$7","v":0},{"$f":"AK69*'Other input expert'!J$14*'Sales price per sales channel'!$I69*'Other input expert'!J$7","v":0},{"$f":"AL69*'Other input expert'!K$14*'Sales price per sales channel'!$I69*'Other input expert'!K$7","v":0},{"$f":"AM69*'Other input expert'!L$14*'Sales price per sales channel'!$I69*'Other input expert'!L$7","v":0},{"$f":"AN69*'Other input expert'!M$14*'Sales price per sales channel'!$I69*'Other input expert'!M$7","v":0}]
["Eleutherococcus Ginseng","Ginseng",{"$f":"Plantlist!$G70*'Production list'!D71*'Other input expert'!B$4*'Other input expert'!B$8","v":0},{"$f":"Plantlist!$G70*'Production list'!E71*'Other input expert'!C$4*'Other input expert'!C$8","v":0},{"$f":"Plantlist!$G70*'Production list'!F71*'Other input expert'!D$4*'Other input expert'!D$8","v":0},{"$f":"Plantlist!$G70*'Production list'!G71*'Other input expert'!E$4*'Other input expert'!E$8","v":0},{"$f":"Plantlist!$G70*'Production list'!H71*'Other input expert'!F$4*'Other input expert'!F$8","v":0},{"$f":"Plantlist!$G70*'Production list'!I71*'Other input expert'!G$4*'Other input expert'!G$8","v":0},{"$f":"Plantlist!$G70*'Production list'!J71*'Other input expert'!H$4*'Other input expert'!H$8","v":0},{"$f":"Plantlist!$G70*'Production list'!K71*'Other input expert'!I$4*'Other input expert'!I$8","v":0},{"$f":"Plantlist!$G70*'Production list'!L71*'Other input expert'!J$4*'Other input expert'!J$8","v":0},{"$f":"Plantlist!$G70*'Production list'!M71*'Other input expert'!K$4*'Other input expert'!K$8","v":0},{"$f":"Plantlist!$G70*'Production list'!N71*'Other input expert'!L$4*'Other input expert'!L$8","v":0},{"$f":"Plantlist!$G70*'Production list'!O71*'Other input expert'!M$4*'Other input expert'!M$8","v":0},null,{"$f":"C70*'Other input expert'!B$5","v":0},{"$f":"D70*'Other input expert'!C$5","v":0},{"$f":"E70*'Other input expert'!D$5","v":0},{"$f":"F70*'Other input expert'!E$5","v":0},{"$f":"G70*'Other input expert'!F$5","v":0},{"$f":"H70*'Other input expert'!G$5","v":0},{"$f":"I70*'Other input expert'!H$5","v":0},{"$f":"J70*'Other input expert'!I$5","v":0},{"$f":"K70*'Other input expert'!J$5","v":0},{"$f":"L70*'Other input expert'!K$5","v":0},{"$f":"M70*'Other input expert'!L$5","v":0},{"$f":"N70*'Other input expert'!M$5","v":0},null,{"$f":"C70*(100%-'Other input expert'!B$5)","v":0},{"$f":"D70*(100%-'Other input expert'!C$5)","v":0},{"$f":"E70*(100%-'Other input expert'!D$5)","v":0},{"$f":"F70*(100%-'Other input expert'!E$5)","v":0},{"$f":"G70*(100%-'Other input expert'!F$5)","v":0},{"$f":"H70*(100%-'Other input expert'!G$5)","v":0},{"$f":"I70*(100%-'Other input expert'!H$5)","v":0},{"$f":"J70*(100%-'Other input expert'!I$5)","v":0},{"$f":"K70*(100%-'Other input expert'!J$5)","v":0},{"$f":"L70*(100%-'Other input expert'!K$5)","v":0},{"$f":"M70*(100%-'Other input expert'!L$5)","v":0},{"$f":"N70*(100%-'Other input expert'!M$5)","v":0},null,{"$f":"P70*'Other input expert'!B$12*'Sales price per sales channel'!$G70*'Other input expert'!B$6","v":0},{"$f":"Q70*'Other input expert'!C$12*'Sales price per sales channel'!$G70*'Other input expert'!C$6","v":0},{"$f":"R70*'Other input expert'!D$12*'Sales price per sales channel'!$G70*'Other input expert'!D$6","v":0},{"$f":"S70*'Other input expert'!E$12*'Sales price per sales channel'!$G70*'Other input expert'!E$6","v":0},{"$f":"T70*'Other input expert'!F$12*'Sales price per sales channel'!$G70*'Other input expert'!F$6","v":0},{"$f":"U70*'Other input expert'!G$12*'Sales price per sales channel'!$G70*'Other input expert'!G$6","v":0},{"$f":"V70*'Other input expert'!H$12*'Sales price per sales channel'!$G70*'Other input expert'!H$6","v":0},{"$f":"W70*'Other input expert'!I$12*'Sales price per sales channel'!$G70*'Other input expert'!I$6","v":0},{"$f":"X70*'Other input expert'!J$12*'Sales price per sales channel'!$G70*'Other input expert'!J$6","v":0},{"$f":"Y70*'Other input expert'!K$12*'Sales price per sales channel'!$G70*'Other input expert'!K$6","v":0},{"$f":"Z70*'Other input expert'!L$12*'Sales price per sales channel'!$G70*'Other input expert'!L$6","v":0},{"$f":"AA70*'Other input expert'!M$12*'Sales price per sales channel'!$G70*'Other input expert'!M$6","v":0},null,{"$f":"P70*'Other input expert'!B$13*'Sales price per sales channel'!$H70*'Other input expert'!B$6","v":0},{"$f":"Q70*'Other input expert'!C$13*'Sales price per sales channel'!$H70*'Other input expert'!C$6","v":0},{"$f":"R70*'Other input expert'!D$13*'Sales price per sales channel'!$H70*'Other input expert'!D$6","v":0},{"$f":"S70*'Other input expert'!E$13*'Sales price per sales channel'!$H70*'Other input expert'!E$6","v":0},{"$f":"T70*'Other input expert'!F$13*'Sales price per sales channel'!$H70*'Other input expert'!F$6","v":0},{"$f":"U70*'Other input expert'!G$13*'Sales price per sales channel'!$H70*'Other input expert'!G$6","v":0},{"$f":"V70*'Other input expert'!H$13*'Sales price per sales channel'!$H70*'Other input expert'!H$6","v":0},{"$f":"W70*'Other input expert'!I$13*'Sales price per sales channel'!$H70*'Other input expert'!I$6","v":0},{"$f":"X70*'Other input expert'!J$13*'Sales price per sales channel'!$H70*'Other input expert'!J$6","v":0},{"$f":"Y70*'Other input expert'!K$13*'Sales price per sales channel'!$H70*'Other input expert'!K$6","v":0},{"$f":"Z70*'Other input expert'!L$13*'Sales price per sales channel'!$H70*'Other input expert'!L$6","v":0},{"$f":"AA70*'Other input expert'!M$13*'Sales price per sales channel'!$H70*'Other input expert'!M$6","v":0},null,{"$f":"P70*'Other input expert'!B$14*'Sales price per sales channel'!$I70*'Other input expert'!B$6","v":0},{"$f":"Q70*'Other input expert'!C$14*'Sales price per sales channel'!$I70*'Other input expert'!C$6","v":0},{"$f":"R70*'Other input expert'!D$14*'Sales price per sales channel'!$I70*'Other input expert'!D$6","v":0},{"$f":"S70*'Other input expert'!E$14*'Sales price per sales channel'!$I70*'Other input expert'!E$6","v":0},{"$f":"T70*'Other input expert'!F$14*'Sales price per sales channel'!$I70*'Other input expert'!F$6","v":0},{"$f":"U70*'Other input expert'!G$14*'Sales price per sales channel'!$I70*'Other input expert'!G$6","v":0},{"$f":"V70*'Other input expert'!H$14*'Sales price per sales channel'!$I70*'Other input expert'!H$6","v":0},{"$f":"W70*'Other input expert'!I$14*'Sales price per sales channel'!$I70*'Other input expert'!I$6","v":0},{"$f":"X70*'Other input expert'!J$14*'Sales price per sales channel'!$I70*'Other input expert'!J$6","v":0},{"$f":"Y70*'Other input expert'!K$14*'Sales price per sales channel'!$I70*'Other input expert'!K$6","v":0},{"$f":"Z70*'Other input expert'!L$14*'Sales price per sales channel'!$I70*'Other input expert'!L$6","v":0},{"$f":"AA70*'Other input expert'!M$14*'Sales price per sales channel'!$I70*'Other input expert'!M$6","v":0},null,{"$f":"AC70*'Other input expert'!B$12*'Sales price per sales channel'!$G70*'Other input expert'!B$7","v":0},{"$f":"AD70*'Other input expert'!C$12*'Sales price per sales channel'!$G70*'Other input expert'!C$7","v":0},{"$f":"AE70*'Other input expert'!D$12*'Sales price per sales channel'!$G70*'Other input expert'!D$7","v":0},{"$f":"AF70*'Other input expert'!E$12*'Sales price per sales channel'!$G70*'Other input expert'!E$7","v":0},{"$f":"AG70*'Other input expert'!F$12*'Sales price per sales channel'!$G70*'Other input expert'!F$7","v":0},{"$f":"AH70*'Other input expert'!G$12*'Sales price per sales channel'!$G70*'Other input expert'!G$7","v":0},{"$f":"AI70*'Other input expert'!H$12*'Sales price per sales channel'!$G70*'Other input expert'!H$7","v":0},{"$f":"AJ70*'Other input expert'!I$12*'Sales price per sales channel'!$G70*'Other input expert'!I$7","v":0},{"$f":"AK70*'Other input expert'!J$12*'Sales price per sales channel'!$G70*'Other input expert'!J$7","v":0},{"$f":"AL70*'Other input expert'!K$12*'Sales price per sales channel'!$G70*'Other input expert'!K$7","v":0},{"$f":"AM70*'Other input expert'!L$12*'Sales price per sales channel'!$G70*'Other input expert'!L$7","v":0},{"$f":"AN70*'Other input expert'!M$12*'Sales price per sales channel'!$G70*'Other input expert'!M$7","v":0},null,{"$f":"AC70*'Other input expert'!B$13*'Sales price per sales channel'!$H70*'Other input expert'!B$7","v":0},{"$f":"AD70*'Other input expert'!C$13*'Sales price per sales channel'!$H70*'Other input expert'!C$7","v":0},{"$f":"AE70*'Other input expert'!D$13*'Sales price per sales channel'!$H70*'Other input expert'!D$7","v":0},{"$f":"AF70*'Other input expert'!E$13*'Sales price per sales channel'!$H70*'Other input expert'!E$7","v":0},{"$f":"AG70*'Other input expert'!F$13*'Sales price per sales channel'!$H70*'Other input expert'!F$7","v":0},{"$f":"AH70*'Other input expert'!G$13*'Sales price per sales channel'!$H70*'Other input expert'!G$7","v":0},{"$f":"AI70*'Other input expert'!H$13*'Sales price per sales channel'!$H70*'Other input expert'!H$7","v":0},{"$f":"AJ70*'Other input expert'!I$13*'Sales price per sales channel'!$H70*'Other input expert'!I$7","v":0},{"$f":"AK70*'Other input expert'!J$13*'Sales price per sales channel'!$H70*'Other input expert'!J$7","v":0},{"$f":"AL70*'Other input expert'!K$13*'Sales price per sales channel'!$H70*'Other input expert'!K$7","v":0},{"$f":"AM70*'Other input expert'!L$13*'Sales price per sales channel'!$H70*'Other input expert'!L$7","v":0},{"$f":"AN70*'Other input expert'!M$13*'Sales price per sales channel'!$H70*'Other input expert'!M$7","v":0},null,{"$f":"AC70*'Other input expert'!B$14*'Sales price per sales channel'!$I70*'Other input expert'!B$7","v":0},{"$f":"AD70*'Other input expert'!C$14*'Sales price per sales channel'!$I70*'Other input expert'!C$7","v":0},{"$f":"AE70*'Other input expert'!D$14*'Sales price per sales channel'!$I70*'Other input expert'!D$7","v":0},{"$f":"AF70*'Other input expert'!E$14*'Sales price per sales channel'!$I70*'Other input expert'!E$7","v":0},{"$f":"AG70*'Other input expert'!F$14*'Sales price per sales channel'!$I70*'Other input expert'!F$7","v":0},{"$f":"AH70*'Other input expert'!G$14*'Sales price per sales channel'!$I70*'Other input expert'!G$7","v":0},{"$f":"AI70*'Other input expert'!H$14*'Sales price per sales channel'!$I70*'Other input expert'!H$7","v":0},{"$f":"AJ70*'Other input expert'!I$14*'Sales price per sales channel'!$I70*'Other input expert'!I$7","v":0},{"$f":"AK70*'Other input expert'!J$14*'Sales price per sales channel'!$I70*'Other input expert'!J$7","v":0},{"$f":"AL70*'Other input expert'!K$14*'Sales price per sales channel'!$I70*'Other input expert'!K$7","v":0},{"$f":"AM70*'Other input expert'!L$14*'Sales price per sales channel'!$I70*'Other input expert'!L$7","v":0},{"$f":"AN70*'Other input expert'!M$14*'Sales price per sales channel'!$I70*'Other input expert'!M$7","v":0}]
["Fagus spp","Beech",{"$f":"Plantlist!$G71*'Production list'!D72*'Other input expert'!B$4*'Other input expert'!B$8","v":0},{"$f":"Plantlist!$G71*'Production list'!E72*'Other input expert'!C$4*'Other input expert'!C$8","v":0},{"$f":"Plantlist!$G71*'Production list'!F72*'Other input expert'!D$4*'Other input expert'!D$8","v":0},{"$f":"Plantlist!$G71*'Production list'!G72*'Other input expert'!E$4*'Other input expert'!E$8","v":0},{"$f":"Plantlist!$G71*'Production list'!H72*'Other input expert'!F$4*'Other input expert'!F$8","v":0},{"$f":"Plantlist!$G71*'Production list'!I72*'Other input expert'!G$4*'Other input expert'!G$8","v":0},{"$f":"Plantlist!$G71*'Production list'!J72*'Other input expert'!H$4*'Other input expert'!H$8","v":0},{"$f":"Plantlist!$G71*'Production list'!K72*'Other input expert'!I$4*'Other input expert'!I$8","v":0},{"$f":"Plantlist!$G71*'Production list'!L72*'Other input expert'!J$4*'Other input expert'!J$8","v":0},{"$f":"Plantlist!$G71*'Production list'!M72*'Other input expert'!K$4*'Other input expert'!K$8","v":0},{"$f":"Plantlist!$G71*'Production list'!N72*'Other input expert'!L$4*'Other input expert'!L$8","v":0},{"$f":"Plantlist!$G71*'Production list'!O72*'Other input expert'!M$4*'Other input expert'!M$8","v":0},null,{"$f":"C71*'Other input expert'!B$5","v":0},{"$f":"D71*'Other input expert'!C$5","v":0},{"$f":"E71*'Other input expert'!D$5","v":0},{"$f":"F71*'Other input expert'!E$5","v":0},{"$f":"G71*'Other input expert'!F$5","v":0},{"$f":"H71*'Other input expert'!G$5","v":0},{"$f":"I71*'Other input expert'!H$5","v":0},{"$f":"J71*'Other input expert'!I$5","v":0},{"$f":"K71*'Other input expert'!J$5","v":0},{"$f":"L71*'Other input expert'!K$5","v":0},{"$f":"M71*'Other input expert'!L$5","v":0},{"$f":"N71*'Other input expert'!M$5","v":0},null,{"$f":"C71*(100%-'Other input expert'!B$5)","v":0},{"$f":"D71*(100%-'Other input expert'!C$5)","v":0},{"$f":"E71*(100%-'Other input expert'!D$5)","v":0},{"$f":"F71*(100%-'Other input expert'!E$5)","v":0},{"$f":"G71*(100%-'Other input expert'!F$5)","v":0},{"$f":"H71*(100%-'Other input expert'!G$5)","v":0},{"$f":"I71*(100%-'Other input expert'!H$5)","v":0},{"$f":"J71*(100%-'Other input expert'!I$5)","v":0},{"$f":"K71*(100%-'Other input expert'!J$5)","v":0},{"$f":"L71*(100%-'Other input expert'!K$5)","v":0},{"$f":"M71*(100%-'Other input expert'!L$5)","v":0},{"$f":"N71*(100%-'Other input expert'!M$5)","v":0},null,{"$f":"P71*'Other input expert'!B$12*'Sales price per sales channel'!$G71*'Other input expert'!B$6","v":0},{"$f":"Q71*'Other input expert'!C$12*'Sales price per sales channel'!$G71*'Other input expert'!C$6","v":0},{"$f":"R71*'Other input expert'!D$12*'Sales price per sales channel'!$G71*'Other input expert'!D$6","v":0},{"$f":"S71*'Other input expert'!E$12*'Sales price per sales channel'!$G71*'Other input expert'!E$6","v":0},{"$f":"T71*'Other input expert'!F$12*'Sales price per sales channel'!$G71*'Other input expert'!F$6","v":0},{"$f":"U71*'Other input expert'!G$12*'Sales price per sales channel'!$G71*'Other input expert'!G$6","v":0},{"$f":"V71*'Other input expert'!H$12*'Sales price per sales channel'!$G71*'Other input expert'!H$6","v":0},{"$f":"W71*'Other input expert'!I$12*'Sales price per sales channel'!$G71*'Other input expert'!I$6","v":0},{"$f":"X71*'Other input expert'!J$12*'Sales price per sales channel'!$G71*'Other input expert'!J$6","v":0},{"$f":"Y71*'Other input expert'!K$12*'Sales price per sales channel'!$G71*'Other input expert'!K$6","v":0},{"$f":"Z71*'Other input expert'!L$12*'Sales price per sales channel'!$G71*'Other input expert'!L$6","v":0},{"$f":"AA71*'Other input expert'!M$12*'Sales price per sales channel'!$G71*'Other input expert'!M$6","v":0},null,{"$f":"P71*'Other input expert'!B$13*'Sales price per sales channel'!$H71*'Other input expert'!B$6","v":0},{"$f":"Q71*'Other input expert'!C$13*'Sales price per sales channel'!$H71*'Other input expert'!C$6","v":0},{"$f":"R71*'Other input expert'!D$13*'Sales price per sales channel'!$H71*'Other input expert'!D$6","v":0},{"$f":"S71*'Other input expert'!E$13*'Sales price per sales channel'!$H71*'Other input expert'!E$6","v":0},{"$f":"T71*'Other input expert'!F$13*'Sales price per sales channel'!$H71*'Other input expert'!F$6","v":0},{"$f":"U71*'Other input expert'!G$13*'Sales price per sales channel'!$H71*'Other input expert'!G$6","v":0},{"$f":"V71*'Other input expert'!H$13*'Sales price per sales channel'!$H71*'Other input expert'!H$6","v":0},{"$f":"W71*'Other input expert'!I$13*'Sales price per sales channel'!$H71*'Other input expert'!I$6","v":0},{"$f":"X71*'Other input expert'!J$13*'Sales price per sales channel'!$H71*'Other input expert'!J$6","v":0},{"$f":"Y71*'Other input expert'!K$13*'Sales price per sales channel'!$H71*'Other input expert'!K$6","v":0},{"$f":"Z71*'Other input expert'!L$13*'Sales price per sales channel'!$H71*'Other input expert'!L$6","v":0},{"$f":"AA71*'Other input expert'!M$13*'Sales price per sales channel'!$H71*'Other input expert'!M$6","v":0},null,{"$f":"P71*'Other input expert'!B$14*'Sales price per sales channel'!$I71*'Other input expert'!B$6","v":0},{"$f":"Q71*'Other input expert'!C$14*'Sales price per sales channel'!$I71*'Other input expert'!C$6","v":0},{"$f":"R71*'Other input expert'!D$14*'Sales price per sales channel'!$I71*'Other input expert'!D$6","v":0},{"$f":"S71*'Other input expert'!E$14*'Sales price per sales channel'!$I71*'Other input expert'!E$6","v":0},{"$f":"T71*'Other input expert'!F$14*'Sales price per sales channel'!$I71*'Other input expert'!F$6","v":0},{"$f":"U71*'Other input expert'!G$14*'Sales price per sales channel'!$I71*'Other input expert'!G$6","v":0},{"$f":"V71*'Other input expert'!H$14*'Sales price per sales channel'!$I71*'Other input expert'!H$6","v":0},{"$f":"W71*'Other input expert'!I$14*'Sales price per sales channel'!$I71*'Other input expert'!I$6","v":0},{"$f":"X71*'Other input expert'!J$14*'Sales price per sales channel'!$I71*'Other input expert'!J$6","v":0},{"$f":"Y71*'Other input expert'!K$14*'Sales price per sales channel'!$I71*'Other input expert'!K$6","v":0},{"$f":"Z71*'Other input expert'!L$14*'Sales price per sales channel'!$I71*'Other input expert'!L$6","v":0},{"$f":"AA71*'Other input expert'!M$14*'Sales price per sales channel'!$I71*'Other input expert'!M$6","v":0},null,{"$f":"AC71*'Other input expert'!B$12*'Sales price per sales channel'!$G71*'Other input expert'!B$7","v":0},{"$f":"AD71*'Other input expert'!C$12*'Sales price per sales channel'!$G71*'Other input expert'!C$7","v":0},{"$f":"AE71*'Other input expert'!D$12*'Sales price per sales channel'!$G71*'Other input expert'!D$7","v":0},{"$f":"AF71*'Other input expert'!E$12*'Sales price per sales channel'!$G71*'Other input expert'!E$7","v":0},{"$f":"AG71*'Other input expert'!F$12*'Sales price per sales channel'!$G71*'Other input expert'!F$7","v":0},{"$f":"AH71*'Other input expert'!G$12*'Sales price per sales channel'!$G71*'Other input expert'!G$7","v":0},{"$f":"AI71*'Other input expert'!H$12*'Sales price per sales channel'!$G71*'Other input expert'!H$7","v":0},{"$f":"AJ71*'Other input expert'!I$12*'Sales price per sales channel'!$G71*'Other input expert'!I$7","v":0},{"$f":"AK71*'Other input expert'!J$12*'Sales price per sales channel'!$G71*'Other input expert'!J$7","v":0},{"$f":"AL71*'Other input expert'!K$12*'Sales price per sales channel'!$G71*'Other input expert'!K$7","v":0},{"$f":"AM71*'Other input expert'!L$12*'Sales price per sales channel'!$G71*'Other input expert'!L$7","v":0},{"$f":"AN71*'Other input expert'!M$12*'Sales price per sales channel'!$G71*'Other input expert'!M$7","v":0},null,{"$f":"AC71*'Other input expert'!B$13*'Sales price per sales channel'!$H71*'Other input expert'!B$7","v":0},{"$f":"AD71*'Other input expert'!C$13*'Sales price per sales channel'!$H71*'Other input expert'!C$7","v":0},{"$f":"AE71*'Other input expert'!D$13*'Sales price per sales channel'!$H71*'Other input expert'!D$7","v":0},{"$f":"AF71*'Other input expert'!E$13*'Sales price per sales channel'!$H71*'Other input expert'!E$7","v":0},{"$f":"AG71*'Other input expert'!F$13*'Sales price per sales channel'!$H71*'Other input expert'!F$7","v":0},{"$f":"AH71*'Other input expert'!G$13*'Sales price per sales channel'!$H71*'Other input expert'!G$7","v":0},{"$f":"AI71*'Other input expert'!H$13*'Sales price per sales channel'!$H71*'Other input expert'!H$7","v":0},{"$f":"AJ71*'Other input expert'!I$13*'Sales price per sales channel'!$H71*'Other input expert'!I$7","v":0},{"$f":"AK71*'Other input expert'!J$13*'Sales price per sales channel'!$H71*'Other input expert'!J$7","v":0},{"$f":"AL71*'Other input expert'!K$13*'Sales price per sales channel'!$H71*'Other input expert'!K$7","v":0},{"$f":"AM71*'Other input expert'!L$13*'Sales price per sales channel'!$H71*'Other input expert'!L$7","v":0},{"$f":"AN71*'Other input expert'!M$13*'Sales price per sales channel'!$H71*'Other input expert'!M$7","v":0},null,{"$f":"AC71*'Other input expert'!B$14*'Sales price per sales channel'!$I71*'Other input expert'!B$7","v":0},{"$f":"AD71*'Other input expert'!C$14*'Sales price per sales channel'!$I71*'Other input expert'!C$7","v":0},{"$f":"AE71*'Other input expert'!D$14*'Sales price per sales channel'!$I71*'Other input expert'!D$7","v":0},{"$f":"AF71*'Other input expert'!E$14*'Sales price per sales channel'!$I71*'Other input expert'!E$7","v":0},{"$f":"AG71*'Other input expert'!F$14*'Sales price per sales channel'!$I71*'Other input expert'!F$7","v":0},{"$f":"AH71*'Other input expert'!G$14*'Sales price per sales channel'!$I71*'Other input expert'!G$7","v":0},{"$f":"AI71*'Other input expert'!H$14*'Sales price per sales channel'!$I71*'Other input expert'!H$7","v":0},{"$f":"AJ71*'Other input expert'!I$14*'Sales price per sales channel'!$I71*'Other input expert'!I$7","v":0},{"$f":"AK71*'Other input expert'!J$14*'Sales price per sales channel'!$I71*'Other input expert'!J$7","v":0},{"$f":"AL71*'Other input expert'!K$14*'Sales price per sales channel'!$I71*'Other input expert'!K$7","v":0},{"$f":"AM71*'Other input expert'!L$14*'Sales price per sales channel'!$I71*'Other input expert'!L$7","v":0},{"$f":"AN71*'Other input expert'!M$14*'Sales price per sales channel'!$I71*'Other input expert'!M$7","v":0}]
["Feijoa sellowiana","Pineapple guava",{"$f":"Plantlist!$G72*'Production list'!D73*'Other input expert'!B$4*'Other input expert'!B$8","v":0},{"$f":"Plantlist!$G72*'Production list'!E73*'Other input expert'!C$4*'Other input expert'!C$8","v":0},{"$f":"Plantlist!$G72*'Production list'!F73*'Other input expert'!D$4*'Other input expert'!D$8","v":0},{"$f":"Plantlist!$G72*'Production list'!G73*'Other input expert'!E$4*'Other input expert'!E$8","v":0},{"$f":"Plantlist!$G72*'Production list'!H73*'Other input expert'!F$4*'Other input expert'!F$8","v":0},{"$f":"Plantlist!$G72*'Production list'!I73*'Other input expert'!G$4*'Other input expert'!G$8","v":0},{"$f":"Plantlist!$G72*'Production list'!J73*'Other input expert'!H$4*'Other input expert'!H$8","v":0},{"$f":"Plantlist!$G72*'Production list'!K73*'Other input expert'!I$4*'Other input expert'!I$8","v":0},{"$f":"Plantlist!$G72*'Production list'!L73*'Other input expert'!J$4*'Other input expert'!J$8","v":0},{"$f":"Plantlist!$G72*'Production list'!M73*'Other input expert'!K$4*'Other input expert'!K$8","v":0},{"$f":"Plantlist!$G72*'Production list'!N73*'Other input expert'!L$4*'Other input expert'!L$8","v":0},{"$f":"Plantlist!$G72*'Production list'!O73*'Other input expert'!M$4*'Other input expert'!M$8","v":0},null,{"$f":"C72*'Other input expert'!B$5","v":0},{"$f":"D72*'Other input expert'!C$5","v":0},{"$f":"E72*'Other input expert'!D$5","v":0},{"$f":"F72*'Other input expert'!E$5","v":0},{"$f":"G72*'Other input expert'!F$5","v":0},{"$f":"H72*'Other input expert'!G$5","v":0},{"$f":"I72*'Other input expert'!H$5","v":0},{"$f":"J72*'Other input expert'!I$5","v":0},{"$f":"K72*'Other input expert'!J$5","v":0},{"$f":"L72*'Other input expert'!K$5","v":0},{"$f":"M72*'Other input expert'!L$5","v":0},{"$f":"N72*'Other input expert'!M$5","v":0},null,{"$f":"C72*(100%-'Other input expert'!B$5)","v":0},{"$f":"D72*(100%-'Other input expert'!C$5)","v":0},{"$f":"E72*(100%-'Other input expert'!D$5)","v":0},{"$f":"F72*(100%-'Other input expert'!E$5)","v":0},{"$f":"G72*(100%-'Other input expert'!F$5)","v":0},{"$f":"H72*(100%-'Other input expert'!G$5)","v":0},{"$f":"I72*(100%-'Other input expert'!H$5)","v":0},{"$f":"J72*(100%-'Other input expert'!I$5)","v":0},{"$f":"K72*(100%-'Other input expert'!J$5)","v":0},{"$f":"L72*(100%-'Other input expert'!K$5)","v":0},{"$f":"M72*(100%-'Other input expert'!L$5)","v":0},{"$f":"N72*(100%-'Other input expert'!M$5)","v":0},null,{"$f":"P72*'Other input expert'!B$12*'Sales price per sales channel'!$G72*'Other input expert'!B$6","v":0},{"$f":"Q72*'Other input expert'!C$12*'Sales price per sales channel'!$G72*'Other input expert'!C$6","v":0},{"$f":"R72*'Other input expert'!D$12*'Sales price per sales channel'!$G72*'Other input expert'!D$6","v":0},{"$f":"S72*'Other input expert'!E$12*'Sales price per sales channel'!$G72*'Other input expert'!E$6","v":0},{"$f":"T72*'Other input expert'!F$12*'Sales price per sales channel'!$G72*'Other input expert'!F$6","v":0},{"$f":"U72*'Other input expert'!G$12*'Sales price per sales channel'!$G72*'Other input expert'!G$6","v":0},{"$f":"V72*'Other input expert'!H$12*'Sales price per sales channel'!$G72*'Other input expert'!H$6","v":0},{"$f":"W72*'Other input expert'!I$12*'Sales price per sales channel'!$G72*'Other input expert'!I$6","v":0},{"$f":"X72*'Other input expert'!J$12*'Sales price per sales channel'!$G72*'Other input expert'!J$6","v":0},{"$f":"Y72*'Other input expert'!K$12*'Sales price per sales channel'!$G72*'Other input expert'!K$6","v":0},{"$f":"Z72*'Other input expert'!L$12*'Sales price per sales channel'!$G72*'Other input expert'!L$6","v":0},{"$f":"AA72*'Other input expert'!M$12*'Sales price per sales channel'!$G72*'Other input expert'!M$6","v":0},null,{"$f":"P72*'Other input expert'!B$13*'Sales price per sales channel'!$H72*'Other input expert'!B$6","v":0},{"$f":"Q72*'Other input expert'!C$13*'Sales price per sales channel'!$H72*'Other input expert'!C$6","v":0},{"$f":"R72*'Other input expert'!D$13*'Sales price per sales channel'!$H72*'Other input expert'!D$6","v":0},{"$f":"S72*'Other input expert'!E$13*'Sales price per sales channel'!$H72*'Other input expert'!E$6","v":0},{"$f":"T72*'Other input expert'!F$13*'Sales price per sales channel'!$H72*'Other input expert'!F$6","v":0},{"$f":"U72*'Other input expert'!G$13*'Sales price per sales channel'!$H72*'Other input expert'!G$6","v":0},{"$f":"V72*'Other input expert'!H$13*'Sales price per sales channel'!$H72*'Other input expert'!H$6","v":0},{"$f":"W72*'Other input expert'!I$13*'Sales price per sales channel'!$H72*'Other input expert'!I$6","v":0},{"$f":"X72*'Other input expert'!J$13*'Sales price per sales channel'!$H72*'Other input expert'!J$6","v":0},{"$f":"Y72*'Other input expert'!K$13*'Sales price per sales channel'!$H72*'Other input expert'!K$6","v":0},{"$f":"Z72*'Other input expert'!L$13*'Sales price per sales channel'!$H72*'Other input expert'!L$6","v":0},{"$f":"AA72*'Other input expert'!M$13*'Sales price per sales channel'!$H72*'Other input expert'!M$6","v":0},null,{"$f":"P72*'Other input expert'!B$14*'Sales price per sales channel'!$I72*'Other input expert'!B$6","v":0},{"$f":"Q72*'Other input expert'!C$14*'Sales price per sales channel'!$I72*'Other input expert'!C$6","v":0},{"$f":"R72*'Other input expert'!D$14*'Sales price per sales channel'!$I72*'Other input expert'!D$6","v":0},{"$f":"S72*'Other input expert'!E$14*'Sales price per sales channel'!$I72*'Other input expert'!E$6","v":0},{"$f":"T72*'Other input expert'!F$14*'Sales price per sales channel'!$I72*'Other input expert'!F$6","v":0},{"$f":"U72*'Other input expert'!G$14*'Sales price per sales channel'!$I72*'Other input expert'!G$6","v":0},{"$f":"V72*'Other input expert'!H$14*'Sales price per sales channel'!$I72*'Other input expert'!H$6","v":0},{"$f":"W72*'Other input expert'!I$14*'Sales price per sales channel'!$I72*'Other input expert'!I$6","v":0},{"$f":"X72*'Other input expert'!J$14*'Sales price per sales channel'!$I72*'Other input expert'!J$6","v":0},{"$f":"Y72*'Other input expert'!K$14*'Sales price per sales channel'!$I72*'Other input expert'!K$6","v":0},{"$f":"Z72*'Other input expert'!L$14*'Sales price per sales channel'!$I72*'Other input expert'!L$6","v":0},{"$f":"AA72*'Other input expert'!M$14*'Sales price per sales channel'!$I72*'Other input expert'!M$6","v":0},null,{"$f":"AC72*'Other input expert'!B$12*'Sales price per sales channel'!$G72*'Other input expert'!B$7","v":0},{"$f":"AD72*'Other input expert'!C$12*'Sales price per sales channel'!$G72*'Other input expert'!C$7","v":0},{"$f":"AE72*'Other input expert'!D$12*'Sales price per sales channel'!$G72*'Other input expert'!D$7","v":0},{"$f":"AF72*'Other input expert'!E$12*'Sales price per sales channel'!$G72*'Other input expert'!E$7","v":0},{"$f":"AG72*'Other input expert'!F$12*'Sales price per sales channel'!$G72*'Other input expert'!F$7","v":0},{"$f":"AH72*'Other input expert'!G$12*'Sales price per sales channel'!$G72*'Other input expert'!G$7","v":0},{"$f":"AI72*'Other input expert'!H$12*'Sales price per sales channel'!$G72*'Other input expert'!H$7","v":0},{"$f":"AJ72*'Other input expert'!I$12*'Sales price per sales channel'!$G72*'Other input expert'!I$7","v":0},{"$f":"AK72*'Other input expert'!J$12*'Sales price per sales channel'!$G72*'Other input expert'!J$7","v":0},{"$f":"AL72*'Other input expert'!K$12*'Sales price per sales channel'!$G72*'Other input expert'!K$7","v":0},{"$f":"AM72*'Other input expert'!L$12*'Sales price per sales channel'!$G72*'Other input expert'!L$7","v":0},{"$f":"AN72*'Other input expert'!M$12*'Sales price per sales channel'!$G72*'Other input expert'!M$7","v":0},null,{"$f":"AC72*'Other input expert'!B$13*'Sales price per sales channel'!$H72*'Other input expert'!B$7","v":0},{"$f":"AD72*'Other input expert'!C$13*'Sales price per sales channel'!$H72*'Other input expert'!C$7","v":0},{"$f":"AE72*'Other input expert'!D$13*'Sales price per sales channel'!$H72*'Other input expert'!D$7","v":0},{"$f":"AF72*'Other input expert'!E$13*'Sales price per sales channel'!$H72*'Other input expert'!E$7","v":0},{"$f":"AG72*'Other input expert'!F$13*'Sales price per sales channel'!$H72*'Other input expert'!F$7","v":0},{"$f":"AH72*'Other input expert'!G$13*'Sales price per sales channel'!$H72*'Other input expert'!G$7","v":0},{"$f":"AI72*'Other input expert'!H$13*'Sales price per sales channel'!$H72*'Other input expert'!H$7","v":0},{"$f":"AJ72*'Other input expert'!I$13*'Sales price per sales channel'!$H72*'Other input expert'!I$7","v":0},{"$f":"AK72*'Other input expert'!J$13*'Sales price per sales channel'!$H72*'Other input expert'!J$7","v":0},{"$f":"AL72*'Other input expert'!K$13*'Sales price per sales channel'!$H72*'Other input expert'!K$7","v":0},{"$f":"AM72*'Other input expert'!L$13*'Sales price per sales channel'!$H72*'Other input expert'!L$7","v":0},{"$f":"AN72*'Other input expert'!M$13*'Sales price per sales channel'!$H72*'Other input expert'!M$7","v":0},null,{"$f":"AC72*'Other input expert'!B$14*'Sales price per sales channel'!$I72*'Other input expert'!B$7","v":0},{"$f":"AD72*'Other input expert'!C$14*'Sales price per sales channel'!$I72*'Other input expert'!C$7","v":0},{"$f":"AE72*'Other input expert'!D$14*'Sales price per sales channel'!$I72*'Other input expert'!D$7","v":0},{"$f":"AF72*'Other input expert'!E$14*'Sales price per sales channel'!$I72*'Other input expert'!E$7","v":0},{"$f":"AG72*'Other input expert'!F$14*'Sales price per sales channel'!$I72*'Other input expert'!F$7","v":0},{"$f":"AH72*'Other input expert'!G$14*'Sales price per sales channel'!$I72*'Other input expert'!G$7","v":0},{"$f":"AI72*'Other input expert'!H$14*'Sales price per sales channel'!$I72*'Other input expert'!H$7","v":0},{"$f":"AJ72*'Other input expert'!I$14*'Sales price per sales channel'!$I72*'Other input expert'!I$7","v":0},{"$f":"AK72*'Other input expert'!J$14*'Sales price per sales channel'!$I72*'Other input expert'!J$7","v":0},{"$f":"AL72*'Other input expert'!K$14*'Sales price per sales channel'!$I72*'Other input expert'!K$7","v":0},{"$f":"AM72*'Other input expert'!L$14*'Sales price per sales channel'!$I72*'Other input expert'!L$7","v":0},{"$f":"AN72*'Other input expert'!M$14*'Sales price per sales channel'!$I72*'Other input expert'!M$7","v":0}]
["Ficus carica","Fig",{"$f":"Plantlist!$G73*'Production list'!D74*'Other input expert'!B$4*'Other input expert'!B$8","v":0},{"$f":"Plantlist!$G73*'Production list'!E74*'Other input expert'!C$4*'Other input expert'!C$8","v":0},{"$f":"Plantlist!$G73*'Production list'!F74*'Other input expert'!D$4*'Other input expert'!D$8","v":0},{"$f":"Plantlist!$G73*'Production list'!G74*'Other input expert'!E$4*'Other input expert'!E$8","v":0},{"$f":"Plantlist!$G73*'Production list'!H74*'Other input expert'!F$4*'Other input expert'!F$8","v":0},{"$f":"Plantlist!$G73*'Production list'!I74*'Other input expert'!G$4*'Other input expert'!G$8","v":0},{"$f":"Plantlist!$G73*'Production list'!J74*'Other input expert'!H$4*'Other input expert'!H$8","v":0},{"$f":"Plantlist!$G73*'Production list'!K74*'Other input expert'!I$4*'Other input expert'!I$8","v":0},{"$f":"Plantlist!$G73*'Production list'!L74*'Other input expert'!J$4*'Other input expert'!J$8","v":0},{"$f":"Plantlist!$G73*'Production list'!M74*'Other input expert'!K$4*'Other input expert'!K$8","v":0},{"$f":"Plantlist!$G73*'Production list'!N74*'Other input expert'!L$4*'Other input expert'!L$8","v":0},{"$f":"Plantlist!$G73*'Production list'!O74*'Other input expert'!M$4*'Other input expert'!M$8","v":0},null,{"$f":"C73*'Other input expert'!B$5","v":0},{"$f":"D73*'Other input expert'!C$5","v":0},{"$f":"E73*'Other input expert'!D$5","v":0},{"$f":"F73*'Other input expert'!E$5","v":0},{"$f":"G73*'Other input expert'!F$5","v":0},{"$f":"H73*'Other input expert'!G$5","v":0},{"$f":"I73*'Other input expert'!H$5","v":0},{"$f":"J73*'Other input expert'!I$5","v":0},{"$f":"K73*'Other input expert'!J$5","v":0},{"$f":"L73*'Other input expert'!K$5","v":0},{"$f":"M73*'Other input expert'!L$5","v":0},{"$f":"N73*'Other input expert'!M$5","v":0},null,{"$f":"C73*(100%-'Other input expert'!B$5)","v":0},{"$f":"D73*(100%-'Other input expert'!C$5)","v":0},{"$f":"E73*(100%-'Other input expert'!D$5)","v":0},{"$f":"F73*(100%-'Other input expert'!E$5)","v":0},{"$f":"G73*(100%-'Other input expert'!F$5)","v":0},{"$f":"H73*(100%-'Other input expert'!G$5)","v":0},{"$f":"I73*(100%-'Other input expert'!H$5)","v":0},{"$f":"J73*(100%-'Other input expert'!I$5)","v":0},{"$f":"K73*(100%-'Other input expert'!J$5)","v":0},{"$f":"L73*(100%-'Other input expert'!K$5)","v":0},{"$f":"M73*(100%-'Other input expert'!L$5)","v":0},{"$f":"N73*(100%-'Other input expert'!M$5)","v":0},null,{"$f":"P73*'Other input expert'!B$12*'Sales price per sales channel'!$G73*'Other input expert'!B$6","v":0},{"$f":"Q73*'Other input expert'!C$12*'Sales price per sales channel'!$G73*'Other input expert'!C$6","v":0},{"$f":"R73*'Other input expert'!D$12*'Sales price per sales channel'!$G73*'Other input expert'!D$6","v":0},{"$f":"S73*'Other input expert'!E$12*'Sales price per sales channel'!$G73*'Other input expert'!E$6","v":0},{"$f":"T73*'Other input expert'!F$12*'Sales price per sales channel'!$G73*'Other input expert'!F$6","v":0},{"$f":"U73*'Other input expert'!G$12*'Sales price per sales channel'!$G73*'Other input expert'!G$6","v":0},{"$f":"V73*'Other input expert'!H$12*'Sales price per sales channel'!$G73*'Other input expert'!H$6","v":0},{"$f":"W73*'Other input expert'!I$12*'Sales price per sales channel'!$G73*'Other input expert'!I$6","v":0},{"$f":"X73*'Other input expert'!J$12*'Sales price per sales channel'!$G73*'Other input expert'!J$6","v":0},{"$f":"Y73*'Other input expert'!K$12*'Sales price per sales channel'!$G73*'Other input expert'!K$6","v":0},{"$f":"Z73*'Other input expert'!L$12*'Sales price per sales channel'!$G73*'Other input expert'!L$6","v":0},{"$f":"AA73*'Other input expert'!M$12*'Sales price per sales channel'!$G73*'Other input expert'!M$6","v":0},null,{"$f":"P73*'Other input expert'!B$13*'Sales price per sales channel'!$H73*'Other input expert'!B$6","v":0},{"$f":"Q73*'Other input expert'!C$13*'Sales price per sales channel'!$H73*'Other input expert'!C$6","v":0},{"$f":"R73*'Other input expert'!D$13*'Sales price per sales channel'!$H73*'Other input expert'!D$6","v":0},{"$f":"S73*'Other input expert'!E$13*'Sales price per sales channel'!$H73*'Other input expert'!E$6","v":0},{"$f":"T73*'Other input expert'!F$13*'Sales price per sales channel'!$H73*'Other input expert'!F$6","v":0},{"$f":"U73*'Other input expert'!G$13*'Sales price per sales channel'!$H73*'Other input expert'!G$6","v":0},{"$f":"V73*'Other input expert'!H$13*'Sales price per sales channel'!$H73*'Other input expert'!H$6","v":0},{"$f":"W73*'Other input expert'!I$13*'Sales price per sales channel'!$H73*'Other input expert'!I$6","v":0},{"$f":"X73*'Other input expert'!J$13*'Sales price per sales channel'!$H73*'Other input expert'!J$6","v":0},{"$f":"Y73*'Other input expert'!K$13*'Sales price per sales channel'!$H73*'Other input expert'!K$6","v":0},{"$f":"Z73*'Other input expert'!L$13*'Sales price per sales channel'!$H73*'Other input expert'!L$6","v":0},{"$f":"AA73*'Other input expert'!M$13*'Sales price per sales channel'!$H73*'Other input expert'!M$6","v":0},null,{"$f":"P73*'Other input expert'!B$14*'Sales price per sales channel'!$I73*'Other input expert'!B$6","v":0},{"$f":"Q73*'Other input expert'!C$14*'Sales price per sales channel'!$I73*'Other input expert'!C$6","v":0},{"$f":"R73*'Other input expert'!D$14*'Sales price per sales channel'!$I73*'Other input expert'!D$6","v":0},{"$f":"S73*'Other input expert'!E$14*'Sales price per sales channel'!$I73*'Other input expert'!E$6","v":0},{"$f":"T73*'Other input expert'!F$14*'Sales price per sales channel'!$I73*'Other input expert'!F$6","v":0},{"$f":"U73*'Other input expert'!G$14*'Sales price per sales channel'!$I73*'Other input expert'!G$6","v":0},{"$f":"V73*'Other input expert'!H$14*'Sales price per sales channel'!$I73*'Other input expert'!H$6","v":0},{"$f":"W73*'Other input expert'!I$14*'Sales price per sales channel'!$I73*'Other input expert'!I$6","v":0},{"$f":"X73*'Other input expert'!J$14*'Sales price per sales channel'!$I73*'Other input expert'!J$6","v":0},{"$f":"Y73*'Other input expert'!K$14*'Sales price per sales channel'!$I73*'Other input expert'!K$6","v":0},{"$f":"Z73*'Other input expert'!L$14*'Sales price per sales channel'!$I73*'Other input expert'!L$6","v":0},{"$f":"AA73*'Other input expert'!M$14*'Sales price per sales channel'!$I73*'Other input expert'!M$6","v":0},null,{"$f":"AC73*'Other input expert'!B$12*'Sales price per sales channel'!$G73*'Other input expert'!B$7","v":0},{"$f":"AD73*'Other input expert'!C$12*'Sales price per sales channel'!$G73*'Other input expert'!C$7","v":0},{"$f":"AE73*'Other input expert'!D$12*'Sales price per sales channel'!$G73*'Other input expert'!D$7","v":0},{"$f":"AF73*'Other input expert'!E$12*'Sales price per sales channel'!$G73*'Other input expert'!E$7","v":0},{"$f":"AG73*'Other input expert'!F$12*'Sales price per sales channel'!$G73*'Other input expert'!F$7","v":0},{"$f":"AH73*'Other input expert'!G$12*'Sales price per sales channel'!$G73*'Other input expert'!G$7","v":0},{"$f":"AI73*'Other input expert'!H$12*'Sales price per sales channel'!$G73*'Other input expert'!H$7","v":0},{"$f":"AJ73*'Other input expert'!I$12*'Sales price per sales channel'!$G73*'Other input expert'!I$7","v":0},{"$f":"AK73*'Other input expert'!J$12*'Sales price per sales channel'!$G73*'Other input expert'!J$7","v":0},{"$f":"AL73*'Other input expert'!K$12*'Sales price per sales channel'!$G73*'Other input expert'!K$7","v":0},{"$f":"AM73*'Other input expert'!L$12*'Sales price per sales channel'!$G73*'Other input expert'!L$7","v":0},{"$f":"AN73*'Other input expert'!M$12*'Sales price per sales channel'!$G73*'Other input expert'!M$7","v":0},null,{"$f":"AC73*'Other input expert'!B$13*'Sales price per sales channel'!$H73*'Other input expert'!B$7","v":0},{"$f":"AD73*'Other input expert'!C$13*'Sales price per sales channel'!$H73*'Other input expert'!C$7","v":0},{"$f":"AE73*'Other input expert'!D$13*'Sales price per sales channel'!$H73*'Other input expert'!D$7","v":0},{"$f":"AF73*'Other input expert'!E$13*'Sales price per sales channel'!$H73*'Other input expert'!E$7","v":0},{"$f":"AG73*'Other input expert'!F$13*'Sales price per sales channel'!$H73*'Other input expert'!F$7","v":0},{"$f":"AH73*'Other input expert'!G$13*'Sales price per sales channel'!$H73*'Other input expert'!G$7","v":0},{"$f":"AI73*'Other input expert'!H$13*'Sales price per sales channel'!$H73*'Other input expert'!H$7","v":0},{"$f":"AJ73*'Other input expert'!I$13*'Sales price per sales channel'!$H73*'Other input expert'!I$7","v":0},{"$f":"AK73*'Other input expert'!J$13*'Sales price per sales channel'!$H73*'Other input expert'!J$7","v":0},{"$f":"AL73*'Other input expert'!K$13*'Sales price per sales channel'!$H73*'Other input expert'!K$7","v":0},{"$f":"AM73*'Other input expert'!L$13*'Sales price per sales channel'!$H73*'Other input expert'!L$7","v":0},{"$f":"AN73*'Other input expert'!M$13*'Sales price per sales channel'!$H73*'Other input expert'!M$7","v":0},null,{"$f":"AC73*'Other input expert'!B$14*'Sales price per sales channel'!$I73*'Other input expert'!B$7","v":0},{"$f":"AD73*'Other input expert'!C$14*'Sales price per sales channel'!$I73*'Other input expert'!C$7","v":0},{"$f":"AE73*'Other input expert'!D$14*'Sales price per sales channel'!$I73*'Other input expert'!D$7","v":0},{"$f":"AF73*'Other input expert'!E$14*'Sales price per sales channel'!$I73*'Other input expert'!E$7","v":0},{"$f":"AG73*'Other input expert'!F$14*'Sales price per sales channel'!$I73*'Other input expert'!F$7","v":0},{"$f":"AH73*'Other input expert'!G$14*'Sales price per sales channel'!$I73*'Other input expert'!G$7","v":0},{"$f":"AI73*'Other input expert'!H$14*'Sales price per sales channel'!$I73*'Other input expert'!H$7","v":0},{"$f":"AJ73*'Other input expert'!I$14*'Sales price per sales channel'!$I73*'Other input expert'!I$7","v":0},{"$f":"AK73*'Other input expert'!J$14*'Sales price per sales channel'!$I73*'Other input expert'!J$7","v":0},{"$f":"AL73*'Other input expert'!K$14*'Sales price per sales channel'!$I73*'Other input expert'!K$7","v":0},{"$f":"AM73*'Other input expert'!L$14*'Sales price per sales channel'!$I73*'Other input expert'!L$7","v":0},{"$f":"AN73*'Other input expert'!M$14*'Sales price per sales channel'!$I73*'Other input expert'!M$7","v":0}]
["Foeniculum vulgare","Fennel",{"$f":"Plantlist!$G74*'Production list'!D75*'Other input expert'!B$4*'Other input expert'!B$8","v":0},{"$f":"Plantlist!$G74*'Production list'!E75*'Other input expert'!C$4*'Other input expert'!C$8","v":0},{"$f":"Plantlist!$G74*'Production list'!F75*'Other input expert'!D$4*'Other input expert'!D$8","v":0},{"$f":"Plantlist!$G74*'Production list'!G75*'Other input expert'!E$4*'Other input expert'!E$8","v":0},{"$f":"Plantlist!$G74*'Production list'!H75*'Other input expert'!F$4*'Other input expert'!F$8","v":0},{"$f":"Plantlist!$G74*'Production list'!I75*'Other input expert'!G$4*'Other input expert'!G$8","v":0},{"$f":"Plantlist!$G74*'Production list'!J75*'Other input expert'!H$4*'Other input expert'!H$8","v":0},{"$f":"Plantlist!$G74*'Production list'!K75*'Other input expert'!I$4*'Other input expert'!I$8","v":0},{"$f":"Plantlist!$G74*'Production list'!L75*'Other input expert'!J$4*'Other input expert'!J$8","v":0},{"$f":"Plantlist!$G74*'Production list'!M75*'Other input expert'!K$4*'Other input expert'!K$8","v":0},{"$f":"Plantlist!$G74*'Production list'!N75*'Other input expert'!L$4*'Other input expert'!L$8","v":0},{"$f":"Plantlist!$G74*'Production list'!O75*'Other input expert'!M$4*'Other input expert'!M$8","v":0},null,{"$f":"C74*'Other input expert'!B$5","v":0},{"$f":"D74*'Other input expert'!C$5","v":0},{"$f":"E74*'Other input expert'!D$5","v":0},{"$f":"F74*'Other input expert'!E$5","v":0},{"$f":"G74*'Other input expert'!F$5","v":0},{"$f":"H74*'Other input expert'!G$5","v":0},{"$f":"I74*'Other input expert'!H$5","v":0},{"$f":"J74*'Other input expert'!I$5","v":0},{"$f":"K74*'Other input expert'!J$5","v":0},{"$f":"L74*'Other input expert'!K$5","v":0},{"$f":"M74*'Other input expert'!L$5","v":0},{"$f":"N74*'Other input expert'!M$5","v":0},null,{"$f":"C74*(100%-'Other input expert'!B$5)","v":0},{"$f":"D74*(100%-'Other input expert'!C$5)","v":0},{"$f":"E74*(100%-'Other input expert'!D$5)","v":0},{"$f":"F74*(100%-'Other input expert'!E$5)","v":0},{"$f":"G74*(100%-'Other input expert'!F$5)","v":0},{"$f":"H74*(100%-'Other input expert'!G$5)","v":0},{"$f":"I74*(100%-'Other input expert'!H$5)","v":0},{"$f":"J74*(100%-'Other input expert'!I$5)","v":0},{"$f":"K74*(100%-'Other input expert'!J$5)","v":0},{"$f":"L74*(100%-'Other input expert'!K$5)","v":0},{"$f":"M74*(100%-'Other input expert'!L$5)","v":0},{"$f":"N74*(100%-'Other input expert'!M$5)","v":0},null,{"$f":"P74*'Other input expert'!B$12*'Sales price per sales channel'!$G74*'Other input expert'!B$6","v":0},{"$f":"Q74*'Other input expert'!C$12*'Sales price per sales channel'!$G74*'Other input expert'!C$6","v":0},{"$f":"R74*'Other input expert'!D$12*'Sales price per sales channel'!$G74*'Other input expert'!D$6","v":0},{"$f":"S74*'Other input expert'!E$12*'Sales price per sales channel'!$G74*'Other input expert'!E$6","v":0},{"$f":"T74*'Other input expert'!F$12*'Sales price per sales channel'!$G74*'Other input expert'!F$6","v":0},{"$f":"U74*'Other input expert'!G$12*'Sales price per sales channel'!$G74*'Other input expert'!G$6","v":0},{"$f":"V74*'Other input expert'!H$12*'Sales price per sales channel'!$G74*'Other input expert'!H$6","v":0},{"$f":"W74*'Other input expert'!I$12*'Sales price per sales channel'!$G74*'Other input expert'!I$6","v":0},{"$f":"X74*'Other input expert'!J$12*'Sales price per sales channel'!$G74*'Other input expert'!J$6","v":0},{"$f":"Y74*'Other input expert'!K$12*'Sales price per sales channel'!$G74*'Other input expert'!K$6","v":0},{"$f":"Z74*'Other input expert'!L$12*'Sales price per sales channel'!$G74*'Other input expert'!L$6","v":0},{"$f":"AA74*'Other input expert'!M$12*'Sales price per sales channel'!$G74*'Other input expert'!M$6","v":0},null,{"$f":"P74*'Other input expert'!B$13*'Sales price per sales channel'!$H74*'Other input expert'!B$6","v":0},{"$f":"Q74*'Other input expert'!C$13*'Sales price per sales channel'!$H74*'Other input expert'!C$6","v":0},{"$f":"R74*'Other input expert'!D$13*'Sales price per sales channel'!$H74*'Other input expert'!D$6","v":0},{"$f":"S74*'Other input expert'!E$13*'Sales price per sales channel'!$H74*'Other input expert'!E$6","v":0},{"$f":"T74*'Other input expert'!F$13*'Sales price per sales channel'!$H74*'Other input expert'!F$6","v":0},{"$f":"U74*'Other input expert'!G$13*'Sales price per sales channel'!$H74*'Other input expert'!G$6","v":0},{"$f":"V74*'Other input expert'!H$13*'Sales price per sales channel'!$H74*'Other input expert'!H$6","v":0},{"$f":"W74*'Other input expert'!I$13*'Sales price per sales channel'!$H74*'Other input expert'!I$6","v":0},{"$f":"X74*'Other input expert'!J$13*'Sales price per sales channel'!$H74*'Other input expert'!J$6","v":0},{"$f":"Y74*'Other input expert'!K$13*'Sales price per sales channel'!$H74*'Other input expert'!K$6","v":0},{"$f":"Z74*'Other input expert'!L$13*'Sales price per sales channel'!$H74*'Other input expert'!L$6","v":0},{"$f":"AA74*'Other input expert'!M$13*'Sales price per sales channel'!$H74*'Other input expert'!M$6","v":0},null,{"$f":"P74*'Other input expert'!B$14*'Sales price per sales channel'!$I74*'Other input expert'!B$6","v":0},{"$f":"Q74*'Other input expert'!C$14*'Sales price per sales channel'!$I74*'Other input expert'!C$6","v":0},{"$f":"R74*'Other input expert'!D$14*'Sales price per sales channel'!$I74*'Other input expert'!D$6","v":0},{"$f":"S74*'Other input expert'!E$14*'Sales price per sales channel'!$I74*'Other input expert'!E$6","v":0},{"$f":"T74*'Other input expert'!F$14*'Sales price per sales channel'!$I74*'Other input expert'!F$6","v":0},{"$f":"U74*'Other input expert'!G$14*'Sales price per sales channel'!$I74*'Other input expert'!G$6","v":0},{"$f":"V74*'Other input expert'!H$14*'Sales price per sales channel'!$I74*'Other input expert'!H$6","v":0},{"$f":"W74*'Other input expert'!I$14*'Sales price per sales channel'!$I74*'Other input expert'!I$6","v":0},{"$f":"X74*'Other input expert'!J$14*'Sales price per sales channel'!$I74*'Other input expert'!J$6","v":0},{"$f":"Y74*'Other input expert'!K$14*'Sales price per sales channel'!$I74*'Other input expert'!K$6","v":0},{"$f":"Z74*'Other input expert'!L$14*'Sales price per sales channel'!$I74*'Other input expert'!L$6","v":0},{"$f":"AA74*'Other input expert'!M$14*'Sales price per sales channel'!$I74*'Other input expert'!M$6","v":0},null,{"$f":"AC74*'Other input expert'!B$12*'Sales price per sales channel'!$G74*'Other input expert'!B$7","v":0},{"$f":"AD74*'Other input expert'!C$12*'Sales price per sales channel'!$G74*'Other input expert'!C$7","v":0},{"$f":"AE74*'Other input expert'!D$12*'Sales price per sales channel'!$G74*'Other input expert'!D$7","v":0},{"$f":"AF74*'Other input expert'!E$12*'Sales price per sales channel'!$G74*'Other input expert'!E$7","v":0},{"$f":"AG74*'Other input expert'!F$12*'Sales price per sales channel'!$G74*'Other input expert'!F$7","v":0},{"$f":"AH74*'Other input expert'!G$12*'Sales price per sales channel'!$G74*'Other input expert'!G$7","v":0},{"$f":"AI74*'Other input expert'!H$12*'Sales price per sales channel'!$G74*'Other input expert'!H$7","v":0},{"$f":"AJ74*'Other input expert'!I$12*'Sales price per sales channel'!$G74*'Other input expert'!I$7","v":0},{"$f":"AK74*'Other input expert'!J$12*'Sales price per sales channel'!$G74*'Other input expert'!J$7","v":0},{"$f":"AL74*'Other input expert'!K$12*'Sales price per sales channel'!$G74*'Other input expert'!K$7","v":0},{"$f":"AM74*'Other input expert'!L$12*'Sales price per sales channel'!$G74*'Other input expert'!L$7","v":0},{"$f":"AN74*'Other input expert'!M$12*'Sales price per sales channel'!$G74*'Other input expert'!M$7","v":0},null,{"$f":"AC74*'Other input expert'!B$13*'Sales price per sales channel'!$H74*'Other input expert'!B$7","v":0},{"$f":"AD74*'Other input expert'!C$13*'Sales price per sales channel'!$H74*'Other input expert'!C$7","v":0},{"$f":"AE74*'Other input expert'!D$13*'Sales price per sales channel'!$H74*'Other input expert'!D$7","v":0},{"$f":"AF74*'Other input expert'!E$13*'Sales price per sales channel'!$H74*'Other input expert'!E$7","v":0},{"$f":"AG74*'Other input expert'!F$13*'Sales price per sales channel'!$H74*'Other input expert'!F$7","v":0},{"$f":"AH74*'Other input expert'!G$13*'Sales price per sales channel'!$H74*'Other input expert'!G$7","v":0},{"$f":"AI74*'Other input expert'!H$13*'Sales price per sales channel'!$H74*'Other input expert'!H$7","v":0},{"$f":"AJ74*'Other input expert'!I$13*'Sales price per sales channel'!$H74*'Other input expert'!I$7","v":0},{"$f":"AK74*'Other input expert'!J$13*'Sales price per sales channel'!$H74*'Other input expert'!J$7","v":0},{"$f":"AL74*'Other input expert'!K$13*'Sales price per sales channel'!$H74*'Other input expert'!K$7","v":0},{"$f":"AM74*'Other input expert'!L$13*'Sales price per sales channel'!$H74*'Other input expert'!L$7","v":0},{"$f":"AN74*'Other input expert'!M$13*'Sales price per sales channel'!$H74*'Other input expert'!M$7","v":0},null,{"$f":"AC74*'Other input expert'!B$14*'Sales price per sales channel'!$I74*'Other input expert'!B$7","v":0},{"$f":"AD74*'Other input expert'!C$14*'Sales price per sales channel'!$I74*'Other input expert'!C$7","v":0},{"$f":"AE74*'Other input expert'!D$14*'Sales price per sales channel'!$I74*'Other input expert'!D$7","v":0},{"$f":"AF74*'Other input expert'!E$14*'Sales price per sales channel'!$I74*'Other input expert'!E$7","v":0},{"$f":"AG74*'Other input expert'!F$14*'Sales price per sales channel'!$I74*'Other input expert'!F$7","v":0},{"$f":"AH74*'Other input expert'!G$14*'Sales price per sales channel'!$I74*'Other input expert'!G$7","v":0},{"$f":"AI74*'Other input expert'!H$14*'Sales price per sales channel'!$I74*'Other input expert'!H$7","v":0},{"$f":"AJ74*'Other input expert'!I$14*'Sales price per sales channel'!$I74*'Other input expert'!I$7","v":0},{"$f":"AK74*'Other input expert'!J$14*'Sales price per sales channel'!$I74*'Other input expert'!J$7","v":0},{"$f":"AL74*'Other input expert'!K$14*'Sales price per sales channel'!$I74*'Other input expert'!K$7","v":0},{"$f":"AM74*'Other input expert'!L$14*'Sales price per sales channel'!$I74*'Other input expert'!L$7","v":0},{"$f":"AN74*'Other input expert'!M$14*'Sales price per sales channel'!$I74*'Other input expert'!M$7","v":0}]
["Gaultheria salal","Salal",{"$f":"Plantlist!$G75*'Production list'!D76*'Other input expert'!B$4*'Other input expert'!B$8","v":0},{"$f":"Plantlist!$G75*'Production list'!E76*'Other input expert'!C$4*'Other input expert'!C$8","v":0},{"$f":"Plantlist!$G75*'Production list'!F76*'Other input expert'!D$4*'Other input expert'!D$8","v":0},{"$f":"Plantlist!$G75*'Production list'!G76*'Other input expert'!E$4*'Other input expert'!E$8","v":0},{"$f":"Plantlist!$G75*'Production list'!H76*'Other input expert'!F$4*'Other input expert'!F$8","v":0},{"$f":"Plantlist!$G75*'Production list'!I76*'Other input expert'!G$4*'Other input expert'!G$8","v":0},{"$f":"Plantlist!$G75*'Production list'!J76*'Other input expert'!H$4*'Other input expert'!H$8","v":0},{"$f":"Plantlist!$G75*'Production list'!K76*'Other input expert'!I$4*'Other input expert'!I$8","v":0},{"$f":"Plantlist!$G75*'Production list'!L76*'Other input expert'!J$4*'Other input expert'!J$8","v":0},{"$f":"Plantlist!$G75*'Production list'!M76*'Other input expert'!K$4*'Other input expert'!K$8","v":0},{"$f":"Plantlist!$G75*'Production list'!N76*'Other input expert'!L$4*'Other input expert'!L$8","v":0},{"$f":"Plantlist!$G75*'Production list'!O76*'Other input expert'!M$4*'Other input expert'!M$8","v":0},null,{"$f":"C75*'Other input expert'!B$5","v":0},{"$f":"D75*'Other input expert'!C$5","v":0},{"$f":"E75*'Other input expert'!D$5","v":0},{"$f":"F75*'Other input expert'!E$5","v":0},{"$f":"G75*'Other input expert'!F$5","v":0},{"$f":"H75*'Other input expert'!G$5","v":0},{"$f":"I75*'Other input expert'!H$5","v":0},{"$f":"J75*'Other input expert'!I$5","v":0},{"$f":"K75*'Other input expert'!J$5","v":0},{"$f":"L75*'Other input expert'!K$5","v":0},{"$f":"M75*'Other input expert'!L$5","v":0},{"$f":"N75*'Other input expert'!M$5","v":0},null,{"$f":"C75*(100%-'Other input expert'!B$5)","v":0},{"$f":"D75*(100%-'Other input expert'!C$5)","v":0},{"$f":"E75*(100%-'Other input expert'!D$5)","v":0},{"$f":"F75*(100%-'Other input expert'!E$5)","v":0},{"$f":"G75*(100%-'Other input expert'!F$5)","v":0},{"$f":"H75*(100%-'Other input expert'!G$5)","v":0},{"$f":"I75*(100%-'Other input expert'!H$5)","v":0},{"$f":"J75*(100%-'Other input expert'!I$5)","v":0},{"$f":"K75*(100%-'Other input expert'!J$5)","v":0},{"$f":"L75*(100%-'Other input expert'!K$5)","v":0},{"$f":"M75*(100%-'Other input expert'!L$5)","v":0},{"$f":"N75*(100%-'Other input expert'!M$5)","v":0},null,{"$f":"P75*'Other input expert'!B$12*'Sales price per sales channel'!$G75*'Other input expert'!B$6","v":0},{"$f":"Q75*'Other input expert'!C$12*'Sales price per sales channel'!$G75*'Other input expert'!C$6","v":0},{"$f":"R75*'Other input expert'!D$12*'Sales price per sales channel'!$G75*'Other input expert'!D$6","v":0},{"$f":"S75*'Other input expert'!E$12*'Sales price per sales channel'!$G75*'Other input expert'!E$6","v":0},{"$f":"T75*'Other input expert'!F$12*'Sales price per sales channel'!$G75*'Other input expert'!F$6","v":0},{"$f":"U75*'Other input expert'!G$12*'Sales price per sales channel'!$G75*'Other input expert'!G$6","v":0},{"$f":"V75*'Other input expert'!H$12*'Sales price per sales channel'!$G75*'Other input expert'!H$6","v":0},{"$f":"W75*'Other input expert'!I$12*'Sales price per sales channel'!$G75*'Other input expert'!I$6","v":0},{"$f":"X75*'Other input expert'!J$12*'Sales price per sales channel'!$G75*'Other input expert'!J$6","v":0},{"$f":"Y75*'Other input expert'!K$12*'Sales price per sales channel'!$G75*'Other input expert'!K$6","v":0},{"$f":"Z75*'Other input expert'!L$12*'Sales price per sales channel'!$G75*'Other input expert'!L$6","v":0},{"$f":"AA75*'Other input expert'!M$12*'Sales price per sales channel'!$G75*'Other input expert'!M$6","v":0},null,{"$f":"P75*'Other input expert'!B$13*'Sales price per sales channel'!$H75*'Other input expert'!B$6","v":0},{"$f":"Q75*'Other input expert'!C$13*'Sales price per sales channel'!$H75*'Other input expert'!C$6","v":0},{"$f":"R75*'Other input expert'!D$13*'Sales price per sales channel'!$H75*'Other input expert'!D$6","v":0},{"$f":"S75*'Other input expert'!E$13*'Sales price per sales channel'!$H75*'Other input expert'!E$6","v":0},{"$f":"T75*'Other input expert'!F$13*'Sales price per sales channel'!$H75*'Other input expert'!F$6","v":0},{"$f":"U75*'Other input expert'!G$13*'Sales price per sales channel'!$H75*'Other input expert'!G$6","v":0},{"$f":"V75*'Other input expert'!H$13*'Sales price per sales channel'!$H75*'Other input expert'!H$6","v":0},{"$f":"W75*'Other input expert'!I$13*'Sales price per sales channel'!$H75*'Other input expert'!I$6","v":0},{"$f":"X75*'Other input expert'!J$13*'Sales price per sales channel'!$H75*'Other input expert'!J$6","v":0},{"$f":"Y75*'Other input expert'!K$13*'Sales price per sales channel'!$H75*'Other input expert'!K$6","v":0},{"$f":"Z75*'Other input expert'!L$13*'Sales price per sales channel'!$H75*'Other input expert'!L$6","v":0},{"$f":"AA75*'Other input expert'!M$13*'Sales price per sales channel'!$H75*'Other input expert'!M$6","v":0},null,{"$f":"P75*'Other input expert'!B$14*'Sales price per sales channel'!$I75*'Other input expert'!B$6","v":0},{"$f":"Q75*'Other input expert'!C$14*'Sales price per sales channel'!$I75*'Other input expert'!C$6","v":0},{"$f":"R75*'Other input expert'!D$14*'Sales price per sales channel'!$I75*'Other input expert'!D$6","v":0},{"$f":"S75*'Other input expert'!E$14*'Sales price per sales channel'!$I75*'Other input expert'!E$6","v":0},{"$f":"T75*'Other input expert'!F$14*'Sales price per sales channel'!$I75*'Other input expert'!F$6","v":0},{"$f":"U75*'Other input expert'!G$14*'Sales price per sales channel'!$I75*'Other input expert'!G$6","v":0},{"$f":"V75*'Other input expert'!H$14*'Sales price per sales channel'!$I75*'Other input expert'!H$6","v":0},{"$f":"W75*'Other input expert'!I$14*'Sales price per sales channel'!$I75*'Other input expert'!I$6","v":0},{"$f":"X75*'Other input expert'!J$14*'Sales price per sales channel'!$I75*'Other input expert'!J$6","v":0},{"$f":"Y75*'Other input expert'!K$14*'Sales price per sales channel'!$I75*'Other input expert'!K$6","v":0},{"$f":"Z75*'Other input expert'!L$14*'Sales price per sales channel'!$I75*'Other input expert'!L$6","v":0},{"$f":"AA75*'Other input expert'!M$14*'Sales price per sales channel'!$I75*'Other input expert'!M$6","v":0},null,{"$f":"AC75*'Other input expert'!B$12*'Sales price per sales channel'!$G75*'Other input expert'!B$7","v":0},{"$f":"AD75*'Other input expert'!C$12*'Sales price per sales channel'!$G75*'Other input expert'!C$7","v":0},{"$f":"AE75*'Other input expert'!D$12*'Sales price per sales channel'!$G75*'Other input expert'!D$7","v":0},{"$f":"AF75*'Other input expert'!E$12*'Sales price per sales channel'!$G75*'Other input expert'!E$7","v":0},{"$f":"AG75*'Other input expert'!F$12*'Sales price per sales channel'!$G75*'Other input expert'!F$7","v":0},{"$f":"AH75*'Other input expert'!G$12*'Sales price per sales channel'!$G75*'Other input expert'!G$7","v":0},{"$f":"AI75*'Other input expert'!H$12*'Sales price per sales channel'!$G75*'Other input expert'!H$7","v":0},{"$f":"AJ75*'Other input expert'!I$12*'Sales price per sales channel'!$G75*'Other input expert'!I$7","v":0},{"$f":"AK75*'Other input expert'!J$12*'Sales price per sales channel'!$G75*'Other input expert'!J$7","v":0},{"$f":"AL75*'Other input expert'!K$12*'Sales price per sales channel'!$G75*'Other input expert'!K$7","v":0},{"$f":"AM75*'Other input expert'!L$12*'Sales price per sales channel'!$G75*'Other input expert'!L$7","v":0},{"$f":"AN75*'Other input expert'!M$12*'Sales price per sales channel'!$G75*'Other input expert'!M$7","v":0},null,{"$f":"AC75*'Other input expert'!B$13*'Sales price per sales channel'!$H75*'Other input expert'!B$7","v":0},{"$f":"AD75*'Other input expert'!C$13*'Sales price per sales channel'!$H75*'Other input expert'!C$7","v":0},{"$f":"AE75*'Other input expert'!D$13*'Sales price per sales channel'!$H75*'Other input expert'!D$7","v":0},{"$f":"AF75*'Other input expert'!E$13*'Sales price per sales channel'!$H75*'Other input expert'!E$7","v":0},{"$f":"AG75*'Other input expert'!F$13*'Sales price per sales channel'!$H75*'Other input expert'!F$7","v":0},{"$f":"AH75*'Other input expert'!G$13*'Sales price per sales channel'!$H75*'Other input expert'!G$7","v":0},{"$f":"AI75*'Other input expert'!H$13*'Sales price per sales channel'!$H75*'Other input expert'!H$7","v":0},{"$f":"AJ75*'Other input expert'!I$13*'Sales price per sales channel'!$H75*'Other input expert'!I$7","v":0},{"$f":"AK75*'Other input expert'!J$13*'Sales price per sales channel'!$H75*'Other input expert'!J$7","v":0},{"$f":"AL75*'Other input expert'!K$13*'Sales price per sales channel'!$H75*'Other input expert'!K$7","v":0},{"$f":"AM75*'Other input expert'!L$13*'Sales price per sales channel'!$H75*'Other input expert'!L$7","v":0},{"$f":"AN75*'Other input expert'!M$13*'Sales price per sales channel'!$H75*'Other input expert'!M$7","v":0},null,{"$f":"AC75*'Other input expert'!B$14*'Sales price per sales channel'!$I75*'Other input expert'!B$7","v":0},{"$f":"AD75*'Other input expert'!C$14*'Sales price per sales channel'!$I75*'Other input expert'!C$7","v":0},{"$f":"AE75*'Other input expert'!D$14*'Sales price per sales channel'!$I75*'Other input expert'!D$7","v":0},{"$f":"AF75*'Other input expert'!E$14*'Sales price per sales channel'!$I75*'Other input expert'!E$7","v":0},{"$f":"AG75*'Other input expert'!F$14*'Sales price per sales channel'!$I75*'Other input expert'!F$7","v":0},{"$f":"AH75*'Other input expert'!G$14*'Sales price per sales channel'!$I75*'Other input expert'!G$7","v":0},{"$f":"AI75*'Other input expert'!H$14*'Sales price per sales channel'!$I75*'Other input expert'!H$7","v":0},{"$f":"AJ75*'Other input expert'!I$14*'Sales price per sales channel'!$I75*'Other input expert'!I$7","v":0},{"$f":"AK75*'Other input expert'!J$14*'Sales price per sales channel'!$I75*'Other input expert'!J$7","v":0},{"$f":"AL75*'Other input expert'!K$14*'Sales price per sales channel'!$I75*'Other input expert'!K$7","v":0},{"$f":"AM75*'Other input expert'!L$14*'Sales price per sales channel'!$I75*'Other input expert'!L$7","v":0},{"$f":"AN75*'Other input expert'!M$14*'Sales price per sales channel'!$I75*'Other input expert'!M$7","v":0}]
["Geum spp-.","Wood avens",{"$f":"Plantlist!$G76*'Production list'!D77*'Other input expert'!B$4*'Other input expert'!B$8","v":0},{"$f":"Plantlist!$G76*'Production list'!E77*'Other input expert'!C$4*'Other input expert'!C$8","v":0},{"$f":"Plantlist!$G76*'Production list'!F77*'Other input expert'!D$4*'Other input expert'!D$8","v":0},{"$f":"Plantlist!$G76*'Production list'!G77*'Other input expert'!E$4*'Other input expert'!E$8","v":0},{"$f":"Plantlist!$G76*'Production list'!H77*'Other input expert'!F$4*'Other input expert'!F$8","v":0},{"$f":"Plantlist!$G76*'Production list'!I77*'Other input expert'!G$4*'Other input expert'!G$8","v":0},{"$f":"Plantlist!$G76*'Production list'!J77*'Other input expert'!H$4*'Other input expert'!H$8","v":0},{"$f":"Plantlist!$G76*'Production list'!K77*'Other input expert'!I$4*'Other input expert'!I$8","v":0},{"$f":"Plantlist!$G76*'Production list'!L77*'Other input expert'!J$4*'Other input expert'!J$8","v":0},{"$f":"Plantlist!$G76*'Production list'!M77*'Other input expert'!K$4*'Other input expert'!K$8","v":0},{"$f":"Plantlist!$G76*'Production list'!N77*'Other input expert'!L$4*'Other input expert'!L$8","v":0},{"$f":"Plantlist!$G76*'Production list'!O77*'Other input expert'!M$4*'Other input expert'!M$8","v":0},null,{"$f":"C76*'Other input expert'!B$5","v":0},{"$f":"D76*'Other input expert'!C$5","v":0},{"$f":"E76*'Other input expert'!D$5","v":0},{"$f":"F76*'Other input expert'!E$5","v":0},{"$f":"G76*'Other input expert'!F$5","v":0},{"$f":"H76*'Other input expert'!G$5","v":0},{"$f":"I76*'Other input expert'!H$5","v":0},{"$f":"J76*'Other input expert'!I$5","v":0},{"$f":"K76*'Other input expert'!J$5","v":0},{"$f":"L76*'Other input expert'!K$5","v":0},{"$f":"M76*'Other input expert'!L$5","v":0},{"$f":"N76*'Other input expert'!M$5","v":0},null,{"$f":"C76*(100%-'Other input expert'!B$5)","v":0},{"$f":"D76*(100%-'Other input expert'!C$5)","v":0},{"$f":"E76*(100%-'Other input expert'!D$5)","v":0},{"$f":"F76*(100%-'Other input expert'!E$5)","v":0},{"$f":"G76*(100%-'Other input expert'!F$5)","v":0},{"$f":"H76*(100%-'Other input expert'!G$5)","v":0},{"$f":"I76*(100%-'Other input expert'!H$5)","v":0},{"$f":"J76*(100%-'Other input expert'!I$5)","v":0},{"$f":"K76*(100%-'Other input expert'!J$5)","v":0},{"$f":"L76*(100%-'Other input expert'!K$5)","v":0},{"$f":"M76*(100%-'Other input expert'!L$5)","v":0},{"$f":"N76*(100%-'Other input expert'!M$5)","v":0},null,{"$f":"P76*'Other input expert'!B$12*'Sales price per sales channel'!$G76*'Other input expert'!B$6","v":0},{"$f":"Q76*'Other input expert'!C$12*'Sales price per sales channel'!$G76*'Other input expert'!C$6","v":0},{"$f":"R76*'Other input expert'!D$12*'Sales price per sales channel'!$G76*'Other input expert'!D$6","v":0},{"$f":"S76*'Other input expert'!E$12*'Sales price per sales channel'!$G76*'Other input expert'!E$6","v":0},{"$f":"T76*'Other input expert'!F$12*'Sales price per sales channel'!$G76*'Other input expert'!F$6","v":0},{"$f":"U76*'Other input expert'!G$12*'Sales price per sales channel'!$G76*'Other input expert'!G$6","v":0},{"$f":"V76*'Other input expert'!H$12*'Sales price per sales channel'!$G76*'Other input expert'!H$6","v":0},{"$f":"W76*'Other input expert'!I$12*'Sales price per sales channel'!$G76*'Other input expert'!I$6","v":0},{"$f":"X76*'Other input expert'!J$12*'Sales price per sales channel'!$G76*'Other input expert'!J$6","v":0},{"$f":"Y76*'Other input expert'!K$12*'Sales price per sales channel'!$G76*'Other input expert'!K$6","v":0},{"$f":"Z76*'Other input expert'!L$12*'Sales price per sales channel'!$G76*'Other input expert'!L$6","v":0},{"$f":"AA76*'Other input expert'!M$12*'Sales price per sales channel'!$G76*'Other input expert'!M$6","v":0},null,{"$f":"P76*'Other input expert'!B$13*'Sales price per sales channel'!$H76*'Other input expert'!B$6","v":0},{"$f":"Q76*'Other input expert'!C$13*'Sales price per sales channel'!$H76*'Other input expert'!C$6","v":0},{"$f":"R76*'Other input expert'!D$13*'Sales price per sales channel'!$H76*'Other input expert'!D$6","v":0},{"$f":"S76*'Other input expert'!E$13*'Sales price per sales channel'!$H76*'Other input expert'!E$6","v":0},{"$f":"T76*'Other input expert'!F$13*'Sales price per sales channel'!$H76*'Other input expert'!F$6","v":0},{"$f":"U76*'Other input expert'!G$13*'Sales price per sales channel'!$H76*'Other input expert'!G$6","v":0},{"$f":"V76*'Other input expert'!H$13*'Sales price per sales channel'!$H76*'Other input expert'!H$6","v":0},{"$f":"W76*'Other input expert'!I$13*'Sales price per sales channel'!$H76*'Other input expert'!I$6","v":0},{"$f":"X76*'Other input expert'!J$13*'Sales price per sales channel'!$H76*'Other input expert'!J$6","v":0},{"$f":"Y76*'Other input expert'!K$13*'Sales price per sales channel'!$H76*'Other input expert'!K$6","v":0},{"$f":"Z76*'Other input expert'!L$13*'Sales price per sales channel'!$H76*'Other input expert'!L$6","v":0},{"$f":"AA76*'Other input expert'!M$13*'Sales price per sales channel'!$H76*'Other input expert'!M$6","v":0},null,{"$f":"P76*'Other input expert'!B$14*'Sales price per sales channel'!$I76*'Other input expert'!B$6","v":0},{"$f":"Q76*'Other input expert'!C$14*'Sales price per sales channel'!$I76*'Other input expert'!C$6","v":0},{"$f":"R76*'Other input expert'!D$14*'Sales price per sales channel'!$I76*'Other input expert'!D$6","v":0},{"$f":"S76*'Other input expert'!E$14*'Sales price per sales channel'!$I76*'Other input expert'!E$6","v":0},{"$f":"T76*'Other input expert'!F$14*'Sales price per sales channel'!$I76*'Other input expert'!F$6","v":0},{"$f":"U76*'Other input expert'!G$14*'Sales price per sales channel'!$I76*'Other input expert'!G$6","v":0},{"$f":"V76*'Other input expert'!H$14*'Sales price per sales channel'!$I76*'Other input expert'!H$6","v":0},{"$f":"W76*'Other input expert'!I$14*'Sales price per sales channel'!$I76*'Other input expert'!I$6","v":0},{"$f":"X76*'Other input expert'!J$14*'Sales price per sales channel'!$I76*'Other input expert'!J$6","v":0},{"$f":"Y76*'Other input expert'!K$14*'Sales price per sales channel'!$I76*'Other input expert'!K$6","v":0},{"$f":"Z76*'Other input expert'!L$14*'Sales price per sales channel'!$I76*'Other input expert'!L$6","v":0},{"$f":"AA76*'Other input expert'!M$14*'Sales price per sales channel'!$I76*'Other input expert'!M$6","v":0},null,{"$f":"AC76*'Other input expert'!B$12*'Sales price per sales channel'!$G76*'Other input expert'!B$7","v":0},{"$f":"AD76*'Other input expert'!C$12*'Sales price per sales channel'!$G76*'Other input expert'!C$7","v":0},{"$f":"AE76*'Other input expert'!D$12*'Sales price per sales channel'!$G76*'Other input expert'!D$7","v":0},{"$f":"AF76*'Other input expert'!E$12*'Sales price per sales channel'!$G76*'Other input expert'!E$7","v":0},{"$f":"AG76*'Other input expert'!F$12*'Sales price per sales channel'!$G76*'Other input expert'!F$7","v":0},{"$f":"AH76*'Other input expert'!G$12*'Sales price per sales channel'!$G76*'Other input expert'!G$7","v":0},{"$f":"AI76*'Other input expert'!H$12*'Sales price per sales channel'!$G76*'Other input expert'!H$7","v":0},{"$f":"AJ76*'Other input expert'!I$12*'Sales price per sales channel'!$G76*'Other input expert'!I$7","v":0},{"$f":"AK76*'Other input expert'!J$12*'Sales price per sales channel'!$G76*'Other input expert'!J$7","v":0},{"$f":"AL76*'Other input expert'!K$12*'Sales price per sales channel'!$G76*'Other input expert'!K$7","v":0},{"$f":"AM76*'Other input expert'!L$12*'Sales price per sales channel'!$G76*'Other input expert'!L$7","v":0},{"$f":"AN76*'Other input expert'!M$12*'Sales price per sales channel'!$G76*'Other input expert'!M$7","v":0},null,{"$f":"AC76*'Other input expert'!B$13*'Sales price per sales channel'!$H76*'Other input expert'!B$7","v":0},{"$f":"AD76*'Other input expert'!C$13*'Sales price per sales channel'!$H76*'Other input expert'!C$7","v":0},{"$f":"AE76*'Other input expert'!D$13*'Sales price per sales channel'!$H76*'Other input expert'!D$7","v":0},{"$f":"AF76*'Other input expert'!E$13*'Sales price per sales channel'!$H76*'Other input expert'!E$7","v":0},{"$f":"AG76*'Other input expert'!F$13*'Sales price per sales channel'!$H76*'Other input expert'!F$7","v":0},{"$f":"AH76*'Other input expert'!G$13*'Sales price per sales channel'!$H76*'Other input expert'!G$7","v":0},{"$f":"AI76*'Other input expert'!H$13*'Sales price per sales channel'!$H76*'Other input expert'!H$7","v":0},{"$f":"AJ76*'Other input expert'!I$13*'Sales price per sales channel'!$H76*'Other input expert'!I$7","v":0},{"$f":"AK76*'Other input expert'!J$13*'Sales price per sales channel'!$H76*'Other input expert'!J$7","v":0},{"$f":"AL76*'Other input expert'!K$13*'Sales price per sales channel'!$H76*'Other input expert'!K$7","v":0},{"$f":"AM76*'Other input expert'!L$13*'Sales price per sales channel'!$H76*'Other input expert'!L$7","v":0},{"$f":"AN76*'Other input expert'!M$13*'Sales price per sales channel'!$H76*'Other input expert'!M$7","v":0},null,{"$f":"AC76*'Other input expert'!B$14*'Sales price per sales channel'!$I76*'Other input expert'!B$7","v":0},{"$f":"AD76*'Other input expert'!C$14*'Sales price per sales channel'!$I76*'Other input expert'!C$7","v":0},{"$f":"AE76*'Other input expert'!D$14*'Sales price per sales channel'!$I76*'Other input expert'!D$7","v":0},{"$f":"AF76*'Other input expert'!E$14*'Sales price per sales channel'!$I76*'Other input expert'!E$7","v":0},{"$f":"AG76*'Other input expert'!F$14*'Sales price per sales channel'!$I76*'Other input expert'!F$7","v":0},{"$f":"AH76*'Other input expert'!G$14*'Sales price per sales channel'!$I76*'Other input expert'!G$7","v":0},{"$f":"AI76*'Other input expert'!H$14*'Sales price per sales channel'!$I76*'Other input expert'!H$7","v":0},{"$f":"AJ76*'Other input expert'!I$14*'Sales price per sales channel'!$I76*'Other input expert'!I$7","v":0},{"$f":"AK76*'Other input expert'!J$14*'Sales price per sales channel'!$I76*'Other input expert'!J$7","v":0},{"$f":"AL76*'Other input expert'!K$14*'Sales price per sales channel'!$I76*'Other input expert'!K$7","v":0},{"$f":"AM76*'Other input expert'!L$14*'Sales price per sales channel'!$I76*'Other input expert'!L$7","v":0},{"$f":"AN76*'Other input expert'!M$14*'Sales price per sales channel'!$I76*'Other input expert'!M$7","v":0}]
["Ginkgo Biloba","Ginkgo",{"$f":"Plantlist!$G77*'Production list'!D78*'Other input expert'!B$4*'Other input expert'!B$8","v":0},{"$f":"Plantlist!$G77*'Production list'!E78*'Other input expert'!C$4*'Other input expert'!C$8","v":0},{"$f":"Plantlist!$G77*'Production list'!F78*'Other input expert'!D$4*'Other input expert'!D$8","v":0},{"$f":"Plantlist!$G77*'Production list'!G78*'Other input expert'!E$4*'Other input expert'!E$8","v":0},{"$f":"Plantlist!$G77*'Production list'!H78*'Other input expert'!F$4*'Other input expert'!F$8","v":0},{"$f":"Plantlist!$G77*'Production list'!I78*'Other input expert'!G$4*'Other input expert'!G$8","v":0},{"$f":"Plantlist!$G77*'Production list'!J78*'Other input expert'!H$4*'Other input expert'!H$8","v":0},{"$f":"Plantlist!$G77*'Production list'!K78*'Other input expert'!I$4*'Other input expert'!I$8","v":0},{"$f":"Plantlist!$G77*'Production list'!L78*'Other input expert'!J$4*'Other input expert'!J$8","v":0},{"$f":"Plantlist!$G77*'Production list'!M78*'Other input expert'!K$4*'Other input expert'!K$8","v":0},{"$f":"Plantlist!$G77*'Production list'!N78*'Other input expert'!L$4*'Other input expert'!L$8","v":0},{"$f":"Plantlist!$G77*'Production list'!O78*'Other input expert'!M$4*'Other input expert'!M$8","v":0},null,{"$f":"C77*'Other input expert'!B$5","v":0},{"$f":"D77*'Other input expert'!C$5","v":0},{"$f":"E77*'Other input expert'!D$5","v":0},{"$f":"F77*'Other input expert'!E$5","v":0},{"$f":"G77*'Other input expert'!F$5","v":0},{"$f":"H77*'Other input expert'!G$5","v":0},{"$f":"I77*'Other input expert'!H$5","v":0},{"$f":"J77*'Other input expert'!I$5","v":0},{"$f":"K77*'Other input expert'!J$5","v":0},{"$f":"L77*'Other input expert'!K$5","v":0},{"$f":"M77*'Other input expert'!L$5","v":0},{"$f":"N77*'Other input expert'!M$5","v":0},null,{"$f":"C77*(100%-'Other input expert'!B$5)","v":0},{"$f":"D77*(100%-'Other input expert'!C$5)","v":0},{"$f":"E77*(100%-'Other input expert'!D$5)","v":0},{"$f":"F77*(100%-'Other input expert'!E$5)","v":0},{"$f":"G77*(100%-'Other input expert'!F$5)","v":0},{"$f":"H77*(100%-'Other input expert'!G$5)","v":0},{"$f":"I77*(100%-'Other input expert'!H$5)","v":0},{"$f":"J77*(100%-'Other input expert'!I$5)","v":0},{"$f":"K77*(100%-'Other input expert'!J$5)","v":0},{"$f":"L77*(100%-'Other input expert'!K$5)","v":0},{"$f":"M77*(100%-'Other input expert'!L$5)","v":0},{"$f":"N77*(100%-'Other input expert'!M$5)","v":0},null,{"$f":"P77*'Other input expert'!B$12*'Sales price per sales channel'!$G77*'Other input expert'!B$6","v":0},{"$f":"Q77*'Other input expert'!C$12*'Sales price per sales channel'!$G77*'Other input expert'!C$6","v":0},{"$f":"R77*'Other input expert'!D$12*'Sales price per sales channel'!$G77*'Other input expert'!D$6","v":0},{"$f":"S77*'Other input expert'!E$12*'Sales price per sales channel'!$G77*'Other input expert'!E$6","v":0},{"$f":"T77*'Other input expert'!F$12*'Sales price per sales channel'!$G77*'Other input expert'!F$6","v":0},{"$f":"U77*'Other input expert'!G$12*'Sales price per sales channel'!$G77*'Other input expert'!G$6","v":0},{"$f":"V77*'Other input expert'!H$12*'Sales price per sales channel'!$G77*'Other input expert'!H$6","v":0},{"$f":"W77*'Other input expert'!I$12*'Sales price per sales channel'!$G77*'Other input expert'!I$6","v":0},{"$f":"X77*'Other input expert'!J$12*'Sales price per sales channel'!$G77*'Other input expert'!J$6","v":0},{"$f":"Y77*'Other input expert'!K$12*'Sales price per sales channel'!$G77*'Other input expert'!K$6","v":0},{"$f":"Z77*'Other input expert'!L$12*'Sales price per sales channel'!$G77*'Other input expert'!L$6","v":0},{"$f":"AA77*'Other input expert'!M$12*'Sales price per sales channel'!$G77*'Other input expert'!M$6","v":0},null,{"$f":"P77*'Other input expert'!B$13*'Sales price per sales channel'!$H77*'Other input expert'!B$6","v":0},{"$f":"Q77*'Other input expert'!C$13*'Sales price per sales channel'!$H77*'Other input expert'!C$6","v":0},{"$f":"R77*'Other input expert'!D$13*'Sales price per sales channel'!$H77*'Other input expert'!D$6","v":0},{"$f":"S77*'Other input expert'!E$13*'Sales price per sales channel'!$H77*'Other input expert'!E$6","v":0},{"$f":"T77*'Other input expert'!F$13*'Sales price per sales channel'!$H77*'Other input expert'!F$6","v":0},{"$f":"U77*'Other input expert'!G$13*'Sales price per sales channel'!$H77*'Other input expert'!G$6","v":0},{"$f":"V77*'Other input expert'!H$13*'Sales price per sales channel'!$H77*'Other input expert'!H$6","v":0},{"$f":"W77*'Other input expert'!I$13*'Sales price per sales channel'!$H77*'Other input expert'!I$6","v":0},{"$f":"X77*'Other input expert'!J$13*'Sales price per sales channel'!$H77*'Other input expert'!J$6","v":0},{"$f":"Y77*'Other input expert'!K$13*'Sales price per sales channel'!$H77*'Other input expert'!K$6","v":0},{"$f":"Z77*'Other input expert'!L$13*'Sales price per sales channel'!$H77*'Other input expert'!L$6","v":0},{"$f":"AA77*'Other input expert'!M$13*'Sales price per sales channel'!$H77*'Other input expert'!M$6","v":0},null,{"$f":"P77*'Other input expert'!B$14*'Sales price per sales channel'!$I77*'Other input expert'!B$6","v":0},{"$f":"Q77*'Other input expert'!C$14*'Sales price per sales channel'!$I77*'Other input expert'!C$6","v":0},{"$f":"R77*'Other input expert'!D$14*'Sales price per sales channel'!$I77*'Other input expert'!D$6","v":0},{"$f":"S77*'Other input expert'!E$14*'Sales price per sales channel'!$I77*'Other input expert'!E$6","v":0},{"$f":"T77*'Other input expert'!F$14*'Sales price per sales channel'!$I77*'Other input expert'!F$6","v":0},{"$f":"U77*'Other input expert'!G$14*'Sales price per sales channel'!$I77*'Other input expert'!G$6","v":0},{"$f":"V77*'Other input expert'!H$14*'Sales price per sales channel'!$I77*'Other input expert'!H$6","v":0},{"$f":"W77*'Other input expert'!I$14*'Sales price per sales channel'!$I77*'Other input expert'!I$6","v":0},{"$f":"X77*'Other input expert'!J$14*'Sales price per sales channel'!$I77*'Other input expert'!J$6","v":0},{"$f":"Y77*'Other input expert'!K$14*'Sales price per sales channel'!$I77*'Other input expert'!K$6","v":0},{"$f":"Z77*'Other input expert'!L$14*'Sales price per sales channel'!$I77*'Other input expert'!L$6","v":0},{"$f":"AA77*'Other input expert'!M$14*'Sales price per sales channel'!$I77*'Other input expert'!M$6","v":0},null,{"$f":"AC77*'Other input expert'!B$12*'Sales price per sales channel'!$G77*'Other input expert'!B$7","v":0},{"$f":"AD77*'Other input expert'!C$12*'Sales price per sales channel'!$G77*'Other input expert'!C$7","v":0},{"$f":"AE77*'Other input expert'!D$12*'Sales price per sales channel'!$G77*'Other input expert'!D$7","v":0},{"$f":"AF77*'Other input expert'!E$12*'Sales price per sales channel'!$G77*'Other input expert'!E$7","v":0},{"$f":"AG77*'Other input expert'!F$12*'Sales price per sales channel'!$G77*'Other input expert'!F$7","v":0},{"$f":"AH77*'Other input expert'!G$12*'Sales price per sales channel'!$G77*'Other input expert'!G$7","v":0},{"$f":"AI77*'Other input expert'!H$12*'Sales price per sales channel'!$G77*'Other input expert'!H$7","v":0},{"$f":"AJ77*'Other input expert'!I$12*'Sales price per sales channel'!$G77*'Other input expert'!I$7","v":0},{"$f":"AK77*'Other input expert'!J$12*'Sales price per sales channel'!$G77*'Other input expert'!J$7","v":0},{"$f":"AL77*'Other input expert'!K$12*'Sales price per sales channel'!$G77*'Other input expert'!K$7","v":0},{"$f":"AM77*'Other input expert'!L$12*'Sales price per sales channel'!$G77*'Other input expert'!L$7","v":0},{"$f":"AN77*'Other input expert'!M$12*'Sales price per sales channel'!$G77*'Other input expert'!M$7","v":0},null,{"$f":"AC77*'Other input expert'!B$13*'Sales price per sales channel'!$H77*'Other input expert'!B$7","v":0},{"$f":"AD77*'Other input expert'!C$13*'Sales price per sales channel'!$H77*'Other input expert'!C$7","v":0},{"$f":"AE77*'Other input expert'!D$13*'Sales price per sales channel'!$H77*'Other input expert'!D$7","v":0},{"$f":"AF77*'Other input expert'!E$13*'Sales price per sales channel'!$H77*'Other input expert'!E$7","v":0},{"$f":"AG77*'Other input expert'!F$13*'Sales price per sales channel'!$H77*'Other input expert'!F$7","v":0},{"$f":"AH77*'Other input expert'!G$13*'Sales price per sales channel'!$H77*'Other input expert'!G$7","v":0},{"$f":"AI77*'Other input expert'!H$13*'Sales price per sales channel'!$H77*'Other input expert'!H$7","v":0},{"$f":"AJ77*'Other input expert'!I$13*'Sales price per sales channel'!$H77*'Other input expert'!I$7","v":0},{"$f":"AK77*'Other input expert'!J$13*'Sales price per sales channel'!$H77*'Other input expert'!J$7","v":0},{"$f":"AL77*'Other input expert'!K$13*'Sales price per sales channel'!$H77*'Other input expert'!K$7","v":0},{"$f":"AM77*'Other input expert'!L$13*'Sales price per sales channel'!$H77*'Other input expert'!L$7","v":0},{"$f":"AN77*'Other input expert'!M$13*'Sales price per sales channel'!$H77*'Other input expert'!M$7","v":0},null,{"$f":"AC77*'Other input expert'!B$14*'Sales price per sales channel'!$I77*'Other input expert'!B$7","v":0},{"$f":"AD77*'Other input expert'!C$14*'Sales price per sales channel'!$I77*'Other input expert'!C$7","v":0},{"$f":"AE77*'Other input expert'!D$14*'Sales price per sales channel'!$I77*'Other input expert'!D$7","v":0},{"$f":"AF77*'Other input expert'!E$14*'Sales price per sales channel'!$I77*'Other input expert'!E$7","v":0},{"$f":"AG77*'Other input expert'!F$14*'Sales price per sales channel'!$I77*'Other input expert'!F$7","v":0},{"$f":"AH77*'Other input expert'!G$14*'Sales price per sales channel'!$I77*'Other input expert'!G$7","v":0},{"$f":"AI77*'Other input expert'!H$14*'Sales price per sales channel'!$I77*'Other input expert'!H$7","v":0},{"$f":"AJ77*'Other input expert'!I$14*'Sales price per sales channel'!$I77*'Other input expert'!I$7","v":0},{"$f":"AK77*'Other input expert'!J$14*'Sales price per sales channel'!$I77*'Other input expert'!J$7","v":0},{"$f":"AL77*'Other input expert'!K$14*'Sales price per sales channel'!$I77*'Other input expert'!K$7","v":0},{"$f":"AM77*'Other input expert'!L$14*'Sales price per sales channel'!$I77*'Other input expert'!L$7","v":0},{"$f":"AN77*'Other input expert'!M$14*'Sales price per sales channel'!$I77*'Other input expert'!M$7","v":0}]
["Gleditsia triacanthos","Honey locust",{"$f":"Plantlist!$G78*'Production list'!D79*'Other input expert'!B$4*'Other input expert'!B$8","v":0},{"$f":"Plantlist!$G78*'Production list'!E79*'Other input expert'!C$4*'Other input expert'!C$8","v":0},{"$f":"Plantlist!$G78*'Production list'!F79*'Other input expert'!D$4*'Other input expert'!D$8","v":0},{"$f":"Plantlist!$G78*'Production list'!G79*'Other input expert'!E$4*'Other input expert'!E$8","v":0},{"$f":"Plantlist!$G78*'Production list'!H79*'Other input expert'!F$4*'Other input expert'!F$8","v":0},{"$f":"Plantlist!$G78*'Production list'!I79*'Other input expert'!G$4*'Other input expert'!G$8","v":0},{"$f":"Plantlist!$G78*'Production list'!J79*'Other input expert'!H$4*'Other input expert'!H$8","v":0},{"$f":"Plantlist!$G78*'Production list'!K79*'Other input expert'!I$4*'Other input expert'!I$8","v":0},{"$f":"Plantlist!$G78*'Production list'!L79*'Other input expert'!J$4*'Other input expert'!J$8","v":0},{"$f":"Plantlist!$G78*'Production list'!M79*'Other input expert'!K$4*'Other input expert'!K$8","v":0},{"$f":"Plantlist!$G78*'Production list'!N79*'Other input expert'!L$4*'Other input expert'!L$8","v":0},{"$f":"Plantlist!$G78*'Production list'!O79*'Other input expert'!M$4*'Other input expert'!M$8","v":0},null,{"$f":"C78*'Other input expert'!B$5","v":0},{"$f":"D78*'Other input expert'!C$5","v":0},{"$f":"E78*'Other input expert'!D$5","v":0},{"$f":"F78*'Other input expert'!E$5","v":0},{"$f":"G78*'Other input expert'!F$5","v":0},{"$f":"H78*'Other input expert'!G$5","v":0},{"$f":"I78*'Other input expert'!H$5","v":0},{"$f":"J78*'Other input expert'!I$5","v":0},{"$f":"K78*'Other input expert'!J$5","v":0},{"$f":"L78*'Other input expert'!K$5","v":0},{"$f":"M78*'Other input expert'!L$5","v":0},{"$f":"N78*'Other input expert'!M$5","v":0},null,{"$f":"C78*(100%-'Other input expert'!B$5)","v":0},{"$f":"D78*(100%-'Other input expert'!C$5)","v":0},{"$f":"E78*(100%-'Other input expert'!D$5)","v":0},{"$f":"F78*(100%-'Other input expert'!E$5)","v":0},{"$f":"G78*(100%-'Other input expert'!F$5)","v":0},{"$f":"H78*(100%-'Other input expert'!G$5)","v":0},{"$f":"I78*(100%-'Other input expert'!H$5)","v":0},{"$f":"J78*(100%-'Other input expert'!I$5)","v":0},{"$f":"K78*(100%-'Other input expert'!J$5)","v":0},{"$f":"L78*(100%-'Other input expert'!K$5)","v":0},{"$f":"M78*(100%-'Other input expert'!L$5)","v":0},{"$f":"N78*(100%-'Other input expert'!M$5)","v":0},null,{"$f":"P78*'Other input expert'!B$12*'Sales price per sales channel'!$G78*'Other input expert'!B$6","v":0},{"$f":"Q78*'Other input expert'!C$12*'Sales price per sales channel'!$G78*'Other input expert'!C$6","v":0},{"$f":"R78*'Other input expert'!D$12*'Sales price per sales channel'!$G78*'Other input expert'!D$6","v":0},{"$f":"S78*'Other input expert'!E$12*'Sales price per sales channel'!$G78*'Other input expert'!E$6","v":0},{"$f":"T78*'Other input expert'!F$12*'Sales price per sales channel'!$G78*'Other input expert'!F$6","v":0},{"$f":"U78*'Other input expert'!G$12*'Sales price per sales channel'!$G78*'Other input expert'!G$6","v":0},{"$f":"V78*'Other input expert'!H$12*'Sales price per sales channel'!$G78*'Other input expert'!H$6","v":0},{"$f":"W78*'Other input expert'!I$12*'Sales price per sales channel'!$G78*'Other input expert'!I$6","v":0},{"$f":"X78*'Other input expert'!J$12*'Sales price per sales channel'!$G78*'Other input expert'!J$6","v":0},{"$f":"Y78*'Other input expert'!K$12*'Sales price per sales channel'!$G78*'Other input expert'!K$6","v":0},{"$f":"Z78*'Other input expert'!L$12*'Sales price per sales channel'!$G78*'Other input expert'!L$6","v":0},{"$f":"AA78*'Other input expert'!M$12*'Sales price per sales channel'!$G78*'Other input expert'!M$6","v":0},null,{"$f":"P78*'Other input expert'!B$13*'Sales price per sales channel'!$H78*'Other input expert'!B$6","v":0},{"$f":"Q78*'Other input expert'!C$13*'Sales price per sales channel'!$H78*'Other input expert'!C$6","v":0},{"$f":"R78*'Other input expert'!D$13*'Sales price per sales channel'!$H78*'Other input expert'!D$6","v":0},{"$f":"S78*'Other input expert'!E$13*'Sales price per sales channel'!$H78*'Other input expert'!E$6","v":0},{"$f":"T78*'Other input expert'!F$13*'Sales price per sales channel'!$H78*'Other input expert'!F$6","v":0},{"$f":"U78*'Other input expert'!G$13*'Sales price per sales channel'!$H78*'Other input expert'!G$6","v":0},{"$f":"V78*'Other input expert'!H$13*'Sales price per sales channel'!$H78*'Other input expert'!H$6","v":0},{"$f":"W78*'Other input expert'!I$13*'Sales price per sales channel'!$H78*'Other input expert'!I$6","v":0},{"$f":"X78*'Other input expert'!J$13*'Sales price per sales channel'!$H78*'Other input expert'!J$6","v":0},{"$f":"Y78*'Other input expert'!K$13*'Sales price per sales channel'!$H78*'Other input expert'!K$6","v":0},{"$f":"Z78*'Other input expert'!L$13*'Sales price per sales channel'!$H78*'Other input expert'!L$6","v":0},{"$f":"AA78*'Other input expert'!M$13*'Sales price per sales channel'!$H78*'Other input expert'!M$6","v":0},null,{"$f":"P78*'Other input expert'!B$14*'Sales price per sales channel'!$I78*'Other input expert'!B$6","v":0},{"$f":"Q78*'Other input expert'!C$14*'Sales price per sales channel'!$I78*'Other input expert'!C$6","v":0},{"$f":"R78*'Other input expert'!D$14*'Sales price per sales channel'!$I78*'Other input expert'!D$6","v":0},{"$f":"S78*'Other input expert'!E$14*'Sales price per sales channel'!$I78*'Other input expert'!E$6","v":0},{"$f":"T78*'Other input expert'!F$14*'Sales price per sales channel'!$I78*'Other input expert'!F$6","v":0},{"$f":"U78*'Other input expert'!G$14*'Sales price per sales channel'!$I78*'Other input expert'!G$6","v":0},{"$f":"V78*'Other input expert'!H$14*'Sales price per sales channel'!$I78*'Other input expert'!H$6","v":0},{"$f":"W78*'Other input expert'!I$14*'Sales price per sales channel'!$I78*'Other input expert'!I$6","v":0},{"$f":"X78*'Other input expert'!J$14*'Sales price per sales channel'!$I78*'Other input expert'!J$6","v":0},{"$f":"Y78*'Other input expert'!K$14*'Sales price per sales channel'!$I78*'Other input expert'!K$6","v":0},{"$f":"Z78*'Other input expert'!L$14*'Sales price per sales channel'!$I78*'Other input expert'!L$6","v":0},{"$f":"AA78*'Other input expert'!M$14*'Sales price per sales channel'!$I78*'Other input expert'!M$6","v":0},null,{"$f":"AC78*'Other input expert'!B$12*'Sales price per sales channel'!$G78*'Other input expert'!B$7","v":0},{"$f":"AD78*'Other input expert'!C$12*'Sales price per sales channel'!$G78*'Other input expert'!C$7","v":0},{"$f":"AE78*'Other input expert'!D$12*'Sales price per sales channel'!$G78*'Other input expert'!D$7","v":0},{"$f":"AF78*'Other input expert'!E$12*'Sales price per sales channel'!$G78*'Other input expert'!E$7","v":0},{"$f":"AG78*'Other input expert'!F$12*'Sales price per sales channel'!$G78*'Other input expert'!F$7","v":0},{"$f":"AH78*'Other input expert'!G$12*'Sales price per sales channel'!$G78*'Other input expert'!G$7","v":0},{"$f":"AI78*'Other input expert'!H$12*'Sales price per sales channel'!$G78*'Other input expert'!H$7","v":0},{"$f":"AJ78*'Other input expert'!I$12*'Sales price per sales channel'!$G78*'Other input expert'!I$7","v":0},{"$f":"AK78*'Other input expert'!J$12*'Sales price per sales channel'!$G78*'Other input expert'!J$7","v":0},{"$f":"AL78*'Other input expert'!K$12*'Sales price per sales channel'!$G78*'Other input expert'!K$7","v":0},{"$f":"AM78*'Other input expert'!L$12*'Sales price per sales channel'!$G78*'Other input expert'!L$7","v":0},{"$f":"AN78*'Other input expert'!M$12*'Sales price per sales channel'!$G78*'Other input expert'!M$7","v":0},null,{"$f":"AC78*'Other input expert'!B$13*'Sales price per sales channel'!$H78*'Other input expert'!B$7","v":0},{"$f":"AD78*'Other input expert'!C$13*'Sales price per sales channel'!$H78*'Other input expert'!C$7","v":0},{"$f":"AE78*'Other input expert'!D$13*'Sales price per sales channel'!$H78*'Other input expert'!D$7","v":0},{"$f":"AF78*'Other input expert'!E$13*'Sales price per sales channel'!$H78*'Other input expert'!E$7","v":0},{"$f":"AG78*'Other input expert'!F$13*'Sales price per sales channel'!$H78*'Other input expert'!F$7","v":0},{"$f":"AH78*'Other input expert'!G$13*'Sales price per sales channel'!$H78*'Other input expert'!G$7","v":0},{"$f":"AI78*'Other input expert'!H$13*'Sales price per sales channel'!$H78*'Other input expert'!H$7","v":0},{"$f":"AJ78*'Other input expert'!I$13*'Sales price per sales channel'!$H78*'Other input expert'!I$7","v":0},{"$f":"AK78*'Other input expert'!J$13*'Sales price per sales channel'!$H78*'Other input expert'!J$7","v":0},{"$f":"AL78*'Other input expert'!K$13*'Sales price per sales channel'!$H78*'Other input expert'!K$7","v":0},{"$f":"AM78*'Other input expert'!L$13*'Sales price per sales channel'!$H78*'Other input expert'!L$7","v":0},{"$f":"AN78*'Other input expert'!M$13*'Sales price per sales channel'!$H78*'Other input expert'!M$7","v":0},null,{"$f":"AC78*'Other input expert'!B$14*'Sales price per sales channel'!$I78*'Other input expert'!B$7","v":0},{"$f":"AD78*'Other input expert'!C$14*'Sales price per sales channel'!$I78*'Other input expert'!C$7","v":0},{"$f":"AE78*'Other input expert'!D$14*'Sales price per sales channel'!$I78*'Other input expert'!D$7","v":0},{"$f":"AF78*'Other input expert'!E$14*'Sales price per sales channel'!$I78*'Other input expert'!E$7","v":0},{"$f":"AG78*'Other input expert'!F$14*'Sales price per sales channel'!$I78*'Other input expert'!F$7","v":0},{"$f":"AH78*'Other input expert'!G$14*'Sales price per sales channel'!$I78*'Other input expert'!G$7","v":0},{"$f":"AI78*'Other input expert'!H$14*'Sales price per sales channel'!$I78*'Other input expert'!H$7","v":0},{"$f":"AJ78*'Other input expert'!I$14*'Sales price per sales channel'!$I78*'Other input expert'!I$7","v":0},{"$f":"AK78*'Other input expert'!J$14*'Sales price per sales channel'!$I78*'Other input expert'!J$7","v":0},{"$f":"AL78*'Other input expert'!K$14*'Sales price per sales channel'!$I78*'Other input expert'!K$7","v":0},{"$f":"AM78*'Other input expert'!L$14*'Sales price per sales channel'!$I78*'Other input expert'!L$7","v":0},{"$f":"AN78*'Other input expert'!M$14*'Sales price per sales channel'!$I78*'Other input expert'!M$7","v":0}]
["Halesia carolina","Silver-bell tree",{"$f":"Plantlist!$G79*'Production list'!D80*'Other input expert'!B$4*'Other input expert'!B$8","v":0},{"$f":"Plantlist!$G79*'Production list'!E80*'Other input expert'!C$4*'Other input expert'!C$8","v":0},{"$f":"Plantlist!$G79*'Production list'!F80*'Other input expert'!D$4*'Other input expert'!D$8","v":0},{"$f":"Plantlist!$G79*'Production list'!G80*'Other input expert'!E$4*'Other input expert'!E$8","v":0},{"$f":"Plantlist!$G79*'Production list'!H80*'Other input expert'!F$4*'Other input expert'!F$8","v":0},{"$f":"Plantlist!$G79*'Production list'!I80*'Other input expert'!G$4*'Other input expert'!G$8","v":0},{"$f":"Plantlist!$G79*'Production list'!J80*'Other input expert'!H$4*'Other input expert'!H$8","v":0},{"$f":"Plantlist!$G79*'Production list'!K80*'Other input expert'!I$4*'Other input expert'!I$8","v":0},{"$f":"Plantlist!$G79*'Production list'!L80*'Other input expert'!J$4*'Other input expert'!J$8","v":0},{"$f":"Plantlist!$G79*'Production list'!M80*'Other input expert'!K$4*'Other input expert'!K$8","v":0},{"$f":"Plantlist!$G79*'Production list'!N80*'Other input expert'!L$4*'Other input expert'!L$8","v":0},{"$f":"Plantlist!$G79*'Production list'!O80*'Other input expert'!M$4*'Other input expert'!M$8","v":0},null,{"$f":"C79*'Other input expert'!B$5","v":0},{"$f":"D79*'Other input expert'!C$5","v":0},{"$f":"E79*'Other input expert'!D$5","v":0},{"$f":"F79*'Other input expert'!E$5","v":0},{"$f":"G79*'Other input expert'!F$5","v":0},{"$f":"H79*'Other input expert'!G$5","v":0},{"$f":"I79*'Other input expert'!H$5","v":0},{"$f":"J79*'Other input expert'!I$5","v":0},{"$f":"K79*'Other input expert'!J$5","v":0},{"$f":"L79*'Other input expert'!K$5","v":0},{"$f":"M79*'Other input expert'!L$5","v":0},{"$f":"N79*'Other input expert'!M$5","v":0},null,{"$f":"C79*(100%-'Other input expert'!B$5)","v":0},{"$f":"D79*(100%-'Other input expert'!C$5)","v":0},{"$f":"E79*(100%-'Other input expert'!D$5)","v":0},{"$f":"F79*(100%-'Other input expert'!E$5)","v":0},{"$f":"G79*(100%-'Other input expert'!F$5)","v":0},{"$f":"H79*(100%-'Other input expert'!G$5)","v":0},{"$f":"I79*(100%-'Other input expert'!H$5)","v":0},{"$f":"J79*(100%-'Other input expert'!I$5)","v":0},{"$f":"K79*(100%-'Other input expert'!J$5)","v":0},{"$f":"L79*(100%-'Other input expert'!K$5)","v":0},{"$f":"M79*(100%-'Other input expert'!L$5)","v":0},{"$f":"N79*(100%-'Other input expert'!M$5)","v":0},null,{"$f":"P79*'Other input expert'!B$12*'Sales price per sales channel'!$G79*'Other input expert'!B$6","v":0},{"$f":"Q79*'Other input expert'!C$12*'Sales price per sales channel'!$G79*'Other input expert'!C$6","v":0},{"$f":"R79*'Other input expert'!D$12*'Sales price per sales channel'!$G79*'Other input expert'!D$6","v":0},{"$f":"S79*'Other input expert'!E$12*'Sales price per sales channel'!$G79*'Other input expert'!E$6","v":0},{"$f":"T79*'Other input expert'!F$12*'Sales price per sales channel'!$G79*'Other input expert'!F$6","v":0},{"$f":"U79*'Other input expert'!G$12*'Sales price per sales channel'!$G79*'Other input expert'!G$6","v":0},{"$f":"V79*'Other input expert'!H$12*'Sales price per sales channel'!$G79*'Other input expert'!H$6","v":0},{"$f":"W79*'Other input expert'!I$12*'Sales price per sales channel'!$G79*'Other input expert'!I$6","v":0},{"$f":"X79*'Other input expert'!J$12*'Sales price per sales channel'!$G79*'Other input expert'!J$6","v":0},{"$f":"Y79*'Other input expert'!K$12*'Sales price per sales channel'!$G79*'Other input expert'!K$6","v":0},{"$f":"Z79*'Other input expert'!L$12*'Sales price per sales channel'!$G79*'Other input expert'!L$6","v":0},{"$f":"AA79*'Other input expert'!M$12*'Sales price per sales channel'!$G79*'Other input expert'!M$6","v":0},null,{"$f":"P79*'Other input expert'!B$13*'Sales price per sales channel'!$H79*'Other input expert'!B$6","v":0},{"$f":"Q79*'Other input expert'!C$13*'Sales price per sales channel'!$H79*'Other input expert'!C$6","v":0},{"$f":"R79*'Other input expert'!D$13*'Sales price per sales channel'!$H79*'Other input expert'!D$6","v":0},{"$f":"S79*'Other input expert'!E$13*'Sales price per sales channel'!$H79*'Other input expert'!E$6","v":0},{"$f":"T79*'Other input expert'!F$13*'Sales price per sales channel'!$H79*'Other input expert'!F$6","v":0},{"$f":"U79*'Other input expert'!G$13*'Sales price per sales channel'!$H79*'Other input expert'!G$6","v":0},{"$f":"V79*'Other input expert'!H$13*'Sales price per sales channel'!$H79*'Other input expert'!H$6","v":0},{"$f":"W79*'Other input expert'!I$13*'Sales price per sales channel'!$H79*'Other input expert'!I$6","v":0},{"$f":"X79*'Other input expert'!J$13*'Sales price per sales channel'!$H79*'Other input expert'!J$6","v":0},{"$f":"Y79*'Other input expert'!K$13*'Sales price per sales channel'!$H79*'Other input expert'!K$6","v":0},{"$f":"Z79*'Other input expert'!L$13*'Sales price per sales channel'!$H79*'Other input expert'!L$6","v":0},{"$f":"AA79*'Other input expert'!M$13*'Sales price per sales channel'!$H79*'Other input expert'!M$6","v":0},null,{"$f":"P79*'Other input expert'!B$14*'Sales price per sales channel'!$I79*'Other input expert'!B$6","v":0},{"$f":"Q79*'Other input expert'!C$14*'Sales price per sales channel'!$I79*'Other input expert'!C$6","v":0},{"$f":"R79*'Other input expert'!D$14*'Sales price per sales channel'!$I79*'Other input expert'!D$6","v":0},{"$f":"S79*'Other input expert'!E$14*'Sales price per sales channel'!$I79*'Other input expert'!E$6","v":0},{"$f":"T79*'Other input expert'!F$14*'Sales price per sales channel'!$I79*'Other input expert'!F$6","v":0},{"$f":"U79*'Other input expert'!G$14*'Sales price per sales channel'!$I79*'Other input expert'!G$6","v":0},{"$f":"V79*'Other input expert'!H$14*'Sales price per sales channel'!$I79*'Other input expert'!H$6","v":0},{"$f":"W79*'Other input expert'!I$14*'Sales price per sales channel'!$I79*'Other input expert'!I$6","v":0},{"$f":"X79*'Other input expert'!J$14*'Sales price per sales channel'!$I79*'Other input expert'!J$6","v":0},{"$f":"Y79*'Other input expert'!K$14*'Sales price per sales channel'!$I79*'Other input expert'!K$6","v":0},{"$f":"Z79*'Other input expert'!L$14*'Sales price per sales channel'!$I79*'Other input expert'!L$6","v":0},{"$f":"AA79*'Other input expert'!M$14*'Sales price per sales channel'!$I79*'Other input expert'!M$6","v":0},null,{"$f":"AC79*'Other input expert'!B$12*'Sales price per sales channel'!$G79*'Other input expert'!B$7","v":0},{"$f":"AD79*'Other input expert'!C$12*'Sales price per sales channel'!$G79*'Other input expert'!C$7","v":0},{"$f":"AE79*'Other input expert'!D$12*'Sales price per sales channel'!$G79*'Other input expert'!D$7","v":0},{"$f":"AF79*'Other input expert'!E$12*'Sales price per sales channel'!$G79*'Other input expert'!E$7","v":0},{"$f":"AG79*'Other input expert'!F$12*'Sales price per sales channel'!$G79*'Other input expert'!F$7","v":0},{"$f":"AH79*'Other input expert'!G$12*'Sales price per sales channel'!$G79*'Other input expert'!G$7","v":0},{"$f":"AI79*'Other input expert'!H$12*'Sales price per sales channel'!$G79*'Other input expert'!H$7","v":0},{"$f":"AJ79*'Other input expert'!I$12*'Sales price per sales channel'!$G79*'Other input expert'!I$7","v":0},{"$f":"AK79*'Other input expert'!J$12*'Sales price per sales channel'!$G79*'Other input expert'!J$7","v":0},{"$f":"AL79*'Other input expert'!K$12*'Sales price per sales channel'!$G79*'Other input expert'!K$7","v":0},{"$f":"AM79*'Other input expert'!L$12*'Sales price per sales channel'!$G79*'Other input expert'!L$7","v":0},{"$f":"AN79*'Other input expert'!M$12*'Sales price per sales channel'!$G79*'Other input expert'!M$7","v":0},null,{"$f":"AC79*'Other input expert'!B$13*'Sales price per sales channel'!$H79*'Other input expert'!B$7","v":0},{"$f":"AD79*'Other input expert'!C$13*'Sales price per sales channel'!$H79*'Other input expert'!C$7","v":0},{"$f":"AE79*'Other input expert'!D$13*'Sales price per sales channel'!$H79*'Other input expert'!D$7","v":0},{"$f":"AF79*'Other input expert'!E$13*'Sales price per sales channel'!$H79*'Other input expert'!E$7","v":0},{"$f":"AG79*'Other input expert'!F$13*'Sales price per sales channel'!$H79*'Other input expert'!F$7","v":0},{"$f":"AH79*'Other input expert'!G$13*'Sales price per sales channel'!$H79*'Other input expert'!G$7","v":0},{"$f":"AI79*'Other input expert'!H$13*'Sales price per sales channel'!$H79*'Other input expert'!H$7","v":0},{"$f":"AJ79*'Other input expert'!I$13*'Sales price per sales channel'!$H79*'Other input expert'!I$7","v":0},{"$f":"AK79*'Other input expert'!J$13*'Sales price per sales channel'!$H79*'Other input expert'!J$7","v":0},{"$f":"AL79*'Other input expert'!K$13*'Sales price per sales channel'!$H79*'Other input expert'!K$7","v":0},{"$f":"AM79*'Other input expert'!L$13*'Sales price per sales channel'!$H79*'Other input expert'!L$7","v":0},{"$f":"AN79*'Other input expert'!M$13*'Sales price per sales channel'!$H79*'Other input expert'!M$7","v":0},null,{"$f":"AC79*'Other input expert'!B$14*'Sales price per sales channel'!$I79*'Other input expert'!B$7","v":0},{"$f":"AD79*'Other input expert'!C$14*'Sales price per sales channel'!$I79*'Other input expert'!C$7","v":0},{"$f":"AE79*'Other input expert'!D$14*'Sales price per sales channel'!$I79*'Other input expert'!D$7","v":0},{"$f":"AF79*'Other input expert'!E$14*'Sales price per sales channel'!$I79*'Other input expert'!E$7","v":0},{"$f":"AG79*'Other input expert'!F$14*'Sales price per sales channel'!$I79*'Other input expert'!F$7","v":0},{"$f":"AH79*'Other input expert'!G$14*'Sales price per sales channel'!$I79*'Other input expert'!G$7","v":0},{"$f":"AI79*'Other input expert'!H$14*'Sales price per sales channel'!$I79*'Other input expert'!H$7","v":0},{"$f":"AJ79*'Other input expert'!I$14*'Sales price per sales channel'!$I79*'Other input expert'!I$7","v":0},{"$f":"AK79*'Other input expert'!J$14*'Sales price per sales channel'!$I79*'Other input expert'!J$7","v":0},{"$f":"AL79*'Other input expert'!K$14*'Sales price per sales channel'!$I79*'Other input expert'!K$7","v":0},{"$f":"AM79*'Other input expert'!L$14*'Sales price per sales channel'!$I79*'Other input expert'!L$7","v":0},{"$f":"AN79*'Other input expert'!M$14*'Sales price per sales channel'!$I79*'Other input expert'!M$7","v":0}]
["Helichrysum italicum","Curry plant",{"$f":"Plantlist!$G80*'Production list'!D81*'Other input expert'!B$4*'Other input expert'!B$8","v":0},{"$f":"Plantlist!$G80*'Production list'!E81*'Other input expert'!C$4*'Other input expert'!C$8","v":0},{"$f":"Plantlist!$G80*'Production list'!F81*'Other input expert'!D$4*'Other input expert'!D$8","v":0},{"$f":"Plantlist!$G80*'Production list'!G81*'Other input expert'!E$4*'Other input expert'!E$8","v":0},{"$f":"Plantlist!$G80*'Production list'!H81*'Other input expert'!F$4*'Other input expert'!F$8","v":0},{"$f":"Plantlist!$G80*'Production list'!I81*'Other input expert'!G$4*'Other input expert'!G$8","v":0},{"$f":"Plantlist!$G80*'Production list'!J81*'Other input expert'!H$4*'Other input expert'!H$8","v":0},{"$f":"Plantlist!$G80*'Production list'!K81*'Other input expert'!I$4*'Other input expert'!I$8","v":0},{"$f":"Plantlist!$G80*'Production list'!L81*'Other input expert'!J$4*'Other input expert'!J$8","v":0},{"$f":"Plantlist!$G80*'Production list'!M81*'Other input expert'!K$4*'Other input expert'!K$8","v":0},{"$f":"Plantlist!$G80*'Production list'!N81*'Other input expert'!L$4*'Other input expert'!L$8","v":0},{"$f":"Plantlist!$G80*'Production list'!O81*'Other input expert'!M$4*'Other input expert'!M$8","v":0},null,{"$f":"C80*'Other input expert'!B$5","v":0},{"$f":"D80*'Other input expert'!C$5","v":0},{"$f":"E80*'Other input expert'!D$5","v":0},{"$f":"F80*'Other input expert'!E$5","v":0},{"$f":"G80*'Other input expert'!F$5","v":0},{"$f":"H80*'Other input expert'!G$5","v":0},{"$f":"I80*'Other input expert'!H$5","v":0},{"$f":"J80*'Other input expert'!I$5","v":0},{"$f":"K80*'Other input expert'!J$5","v":0},{"$f":"L80*'Other input expert'!K$5","v":0},{"$f":"M80*'Other input expert'!L$5","v":0},{"$f":"N80*'Other input expert'!M$5","v":0},null,{"$f":"C80*(100%-'Other input expert'!B$5)","v":0},{"$f":"D80*(100%-'Other input expert'!C$5)","v":0},{"$f":"E80*(100%-'Other input expert'!D$5)","v":0},{"$f":"F80*(100%-'Other input expert'!E$5)","v":0},{"$f":"G80*(100%-'Other input expert'!F$5)","v":0},{"$f":"H80*(100%-'Other input expert'!G$5)","v":0},{"$f":"I80*(100%-'Other input expert'!H$5)","v":0},{"$f":"J80*(100%-'Other input expert'!I$5)","v":0},{"$f":"K80*(100%-'Other input expert'!J$5)","v":0},{"$f":"L80*(100%-'Other input expert'!K$5)","v":0},{"$f":"M80*(100%-'Other input expert'!L$5)","v":0},{"$f":"N80*(100%-'Other input expert'!M$5)","v":0},null,{"$f":"P80*'Other input expert'!B$12*'Sales price per sales channel'!$G80*'Other input expert'!B$6","v":0},{"$f":"Q80*'Other input expert'!C$12*'Sales price per sales channel'!$G80*'Other input expert'!C$6","v":0},{"$f":"R80*'Other input expert'!D$12*'Sales price per sales channel'!$G80*'Other input expert'!D$6","v":0},{"$f":"S80*'Other input expert'!E$12*'Sales price per sales channel'!$G80*'Other input expert'!E$6","v":0},{"$f":"T80*'Other input expert'!F$12*'Sales price per sales channel'!$G80*'Other input expert'!F$6","v":0},{"$f":"U80*'Other input expert'!G$12*'Sales price per sales channel'!$G80*'Other input expert'!G$6","v":0},{"$f":"V80*'Other input expert'!H$12*'Sales price per sales channel'!$G80*'Other input expert'!H$6","v":0},{"$f":"W80*'Other input expert'!I$12*'Sales price per sales channel'!$G80*'Other input expert'!I$6","v":0},{"$f":"X80*'Other input expert'!J$12*'Sales price per sales channel'!$G80*'Other input expert'!J$6","v":0},{"$f":"Y80*'Other input expert'!K$12*'Sales price per sales channel'!$G80*'Other input expert'!K$6","v":0},{"$f":"Z80*'Other input expert'!L$12*'Sales price per sales channel'!$G80*'Other input expert'!L$6","v":0},{"$f":"AA80*'Other input expert'!M$12*'Sales price per sales channel'!$G80*'Other input expert'!M$6","v":0},null,{"$f":"P80*'Other input expert'!B$13*'Sales price per sales channel'!$H80*'Other input expert'!B$6","v":0},{"$f":"Q80*'Other input expert'!C$13*'Sales price per sales channel'!$H80*'Other input expert'!C$6","v":0},{"$f":"R80*'Other input expert'!D$13*'Sales price per sales channel'!$H80*'Other input expert'!D$6","v":0},{"$f":"S80*'Other input expert'!E$13*'Sales price per sales channel'!$H80*'Other input expert'!E$6","v":0},{"$f":"T80*'Other input expert'!F$13*'Sales price per sales channel'!$H80*'Other input expert'!F$6","v":0},{"$f":"U80*'Other input expert'!G$13*'Sales price per sales channel'!$H80*'Other input expert'!G$6","v":0},{"$f":"V80*'Other input expert'!H$13*'Sales price per sales channel'!$H80*'Other input expert'!H$6","v":0},{"$f":"W80*'Other input expert'!I$13*'Sales price per sales channel'!$H80*'Other input expert'!I$6","v":0},{"$f":"X80*'Other input expert'!J$13*'Sales price per sales channel'!$H80*'Other input expert'!J$6","v":0},{"$f":"Y80*'Other input expert'!K$13*'Sales price per sales channel'!$H80*'Other input expert'!K$6","v":0},{"$f":"Z80*'Other input expert'!L$13*'Sales price per sales channel'!$H80*'Other input expert'!L$6","v":0},{"$f":"AA80*'Other input expert'!M$13*'Sales price per sales channel'!$H80*'Other input expert'!M$6","v":0},null,{"$f":"P80*'Other input expert'!B$14*'Sales price per sales channel'!$I80*'Other input expert'!B$6","v":0},{"$f":"Q80*'Other input expert'!C$14*'Sales price per sales channel'!$I80*'Other input expert'!C$6","v":0},{"$f":"R80*'Other input expert'!D$14*'Sales price per sales channel'!$I80*'Other input expert'!D$6","v":0},{"$f":"S80*'Other input expert'!E$14*'Sales price per sales channel'!$I80*'Other input expert'!E$6","v":0},{"$f":"T80*'Other input expert'!F$14*'Sales price per sales channel'!$I80*'Other input expert'!F$6","v":0},{"$f":"U80*'Other input expert'!G$14*'Sales price per sales channel'!$I80*'Other input expert'!G$6","v":0},{"$f":"V80*'Other input expert'!H$14*'Sales price per sales channel'!$I80*'Other input expert'!H$6","v":0},{"$f":"W80*'Other input expert'!I$14*'Sales price per sales channel'!$I80*'Other input expert'!I$6","v":0},{"$f":"X80*'Other input expert'!J$14*'Sales price per sales channel'!$I80*'Other input expert'!J$6","v":0},{"$f":"Y80*'Other input expert'!K$14*'Sales price per sales channel'!$I80*'Other input expert'!K$6","v":0},{"$f":"Z80*'Other input expert'!L$14*'Sales price per sales channel'!$I80*'Other input expert'!L$6","v":0},{"$f":"AA80*'Other input expert'!M$14*'Sales price per sales channel'!$I80*'Other input expert'!M$6","v":0},null,{"$f":"AC80*'Other input expert'!B$12*'Sales price per sales channel'!$G80*'Other input expert'!B$7","v":0},{"$f":"AD80*'Other input expert'!C$12*'Sales price per sales channel'!$G80*'Other input expert'!C$7","v":0},{"$f":"AE80*'Other input expert'!D$12*'Sales price per sales channel'!$G80*'Other input expert'!D$7","v":0},{"$f":"AF80*'Other input expert'!E$12*'Sales price per sales channel'!$G80*'Other input expert'!E$7","v":0},{"$f":"AG80*'Other input expert'!F$12*'Sales price per sales channel'!$G80*'Other input expert'!F$7","v":0},{"$f":"AH80*'Other input expert'!G$12*'Sales price per sales channel'!$G80*'Other input expert'!G$7","v":0},{"$f":"AI80*'Other input expert'!H$12*'Sales price per sales channel'!$G80*'Other input expert'!H$7","v":0},{"$f":"AJ80*'Other input expert'!I$12*'Sales price per sales channel'!$G80*'Other input expert'!I$7","v":0},{"$f":"AK80*'Other input expert'!J$12*'Sales price per sales channel'!$G80*'Other input expert'!J$7","v":0},{"$f":"AL80*'Other input expert'!K$12*'Sales price per sales channel'!$G80*'Other input expert'!K$7","v":0},{"$f":"AM80*'Other input expert'!L$12*'Sales price per sales channel'!$G80*'Other input expert'!L$7","v":0},{"$f":"AN80*'Other input expert'!M$12*'Sales price per sales channel'!$G80*'Other input expert'!M$7","v":0},null,{"$f":"AC80*'Other input expert'!B$13*'Sales price per sales channel'!$H80*'Other input expert'!B$7","v":0},{"$f":"AD80*'Other input expert'!C$13*'Sales price per sales channel'!$H80*'Other input expert'!C$7","v":0},{"$f":"AE80*'Other input expert'!D$13*'Sales price per sales channel'!$H80*'Other input expert'!D$7","v":0},{"$f":"AF80*'Other input expert'!E$13*'Sales price per sales channel'!$H80*'Other input expert'!E$7","v":0},{"$f":"AG80*'Other input expert'!F$13*'Sales price per sales channel'!$H80*'Other input expert'!F$7","v":0},{"$f":"AH80*'Other input expert'!G$13*'Sales price per sales channel'!$H80*'Other input expert'!G$7","v":0},{"$f":"AI80*'Other input expert'!H$13*'Sales price per sales channel'!$H80*'Other input expert'!H$7","v":0},{"$f":"AJ80*'Other input expert'!I$13*'Sales price per sales channel'!$H80*'Other input expert'!I$7","v":0},{"$f":"AK80*'Other input expert'!J$13*'Sales price per sales channel'!$H80*'Other input expert'!J$7","v":0},{"$f":"AL80*'Other input expert'!K$13*'Sales price per sales channel'!$H80*'Other input expert'!K$7","v":0},{"$f":"AM80*'Other input expert'!L$13*'Sales price per sales channel'!$H80*'Other input expert'!L$7","v":0},{"$f":"AN80*'Other input expert'!M$13*'Sales price per sales channel'!$H80*'Other input expert'!M$7","v":0},null,{"$f":"AC80*'Other input expert'!B$14*'Sales price per sales channel'!$I80*'Other input expert'!B$7","v":0},{"$f":"AD80*'Other input expert'!C$14*'Sales price per sales channel'!$I80*'Other input expert'!C$7","v":0},{"$f":"AE80*'Other input expert'!D$14*'Sales price per sales channel'!$I80*'Other input expert'!D$7","v":0},{"$f":"AF80*'Other input expert'!E$14*'Sales price per sales channel'!$I80*'Other input expert'!E$7","v":0},{"$f":"AG80*'Other input expert'!F$14*'Sales price per sales channel'!$I80*'Other input expert'!F$7","v":0},{"$f":"AH80*'Other input expert'!G$14*'Sales price per sales channel'!$I80*'Other input expert'!G$7","v":0},{"$f":"AI80*'Other input expert'!H$14*'Sales price per sales channel'!$I80*'Other input expert'!H$7","v":0},{"$f":"AJ80*'Other input expert'!I$14*'Sales price per sales channel'!$I80*'Other input expert'!I$7","v":0},{"$f":"AK80*'Other input expert'!J$14*'Sales price per sales channel'!$I80*'Other input expert'!J$7","v":0},{"$f":"AL80*'Other input expert'!K$14*'Sales price per sales channel'!$I80*'Other input expert'!K$7","v":0},{"$f":"AM80*'Other input expert'!L$14*'Sales price per sales channel'!$I80*'Other input expert'!L$7","v":0},{"$f":"AN80*'Other input expert'!M$14*'Sales price per sales channel'!$I80*'Other input expert'!M$7","v":0}]
["Hemercallis","Day lily",{"$f":"Plantlist!$G81*'Production list'!D82*'Other input expert'!B$4*'Other input expert'!B$8","v":0},{"$f":"Plantlist!$G81*'Production list'!E82*'Other input expert'!C$4*'Other input expert'!C$8","v":0},{"$f":"Plantlist!$G81*'Production list'!F82*'Other input expert'!D$4*'Other input expert'!D$8","v":0},{"$f":"Plantlist!$G81*'Production list'!G82*'Other input expert'!E$4*'Other input expert'!E$8","v":0},{"$f":"Plantlist!$G81*'Production list'!H82*'Other input expert'!F$4*'Other input expert'!F$8","v":0},{"$f":"Plantlist!$G81*'Production list'!I82*'Other input expert'!G$4*'Other input expert'!G$8","v":0},{"$f":"Plantlist!$G81*'Production list'!J82*'Other input expert'!H$4*'Other input expert'!H$8","v":0},{"$f":"Plantlist!$G81*'Production list'!K82*'Other input expert'!I$4*'Other input expert'!I$8","v":0},{"$f":"Plantlist!$G81*'Production list'!L82*'Other input expert'!J$4*'Other input expert'!J$8","v":0},{"$f":"Plantlist!$G81*'Production list'!M82*'Other input expert'!K$4*'Other input expert'!K$8","v":0},{"$f":"Plantlist!$G81*'Production list'!N82*'Other input expert'!L$4*'Other input expert'!L$8","v":0},{"$f":"Plantlist!$G81*'Production list'!O82*'Other input expert'!M$4*'Other input expert'!M$8","v":0},null,{"$f":"C81*'Other input expert'!B$5","v":0},{"$f":"D81*'Other input expert'!C$5","v":0},{"$f":"E81*'Other input expert'!D$5","v":0},{"$f":"F81*'Other input expert'!E$5","v":0},{"$f":"G81*'Other input expert'!F$5","v":0},{"$f":"H81*'Other input expert'!G$5","v":0},{"$f":"I81*'Other input expert'!H$5","v":0},{"$f":"J81*'Other input expert'!I$5","v":0},{"$f":"K81*'Other input expert'!J$5","v":0},{"$f":"L81*'Other input expert'!K$5","v":0},{"$f":"M81*'Other input expert'!L$5","v":0},{"$f":"N81*'Other input expert'!M$5","v":0},null,{"$f":"C81*(100%-'Other input expert'!B$5)","v":0},{"$f":"D81*(100%-'Other input expert'!C$5)","v":0},{"$f":"E81*(100%-'Other input expert'!D$5)","v":0},{"$f":"F81*(100%-'Other input expert'!E$5)","v":0},{"$f":"G81*(100%-'Other input expert'!F$5)","v":0},{"$f":"H81*(100%-'Other input expert'!G$5)","v":0},{"$f":"I81*(100%-'Other input expert'!H$5)","v":0},{"$f":"J81*(100%-'Other input expert'!I$5)","v":0},{"$f":"K81*(100%-'Other input expert'!J$5)","v":0},{"$f":"L81*(100%-'Other input expert'!K$5)","v":0},{"$f":"M81*(100%-'Other input expert'!L$5)","v":0},{"$f":"N81*(100%-'Other input expert'!M$5)","v":0},null,{"$f":"P81*'Other input expert'!B$12*'Sales price per sales channel'!$G81*'Other input expert'!B$6","v":0},{"$f":"Q81*'Other input expert'!C$12*'Sales price per sales channel'!$G81*'Other input expert'!C$6","v":0},{"$f":"R81*'Other input expert'!D$12*'Sales price per sales channel'!$G81*'Other input expert'!D$6","v":0},{"$f":"S81*'Other input expert'!E$12*'Sales price per sales channel'!$G81*'Other input expert'!E$6","v":0},{"$f":"T81*'Other input expert'!F$12*'Sales price per sales channel'!$G81*'Other input expert'!F$6","v":0},{"$f":"U81*'Other input expert'!G$12*'Sales price per sales channel'!$G81*'Other input expert'!G$6","v":0},{"$f":"V81*'Other input expert'!H$12*'Sales price per sales channel'!$G81*'Other input expert'!H$6","v":0},{"$f":"W81*'Other input expert'!I$12*'Sales price per sales channel'!$G81*'Other input expert'!I$6","v":0},{"$f":"X81*'Other input expert'!J$12*'Sales price per sales channel'!$G81*'Other input expert'!J$6","v":0},{"$f":"Y81*'Other input expert'!K$12*'Sales price per sales channel'!$G81*'Other input expert'!K$6","v":0},{"$f":"Z81*'Other input expert'!L$12*'Sales price per sales channel'!$G81*'Other input expert'!L$6","v":0},{"$f":"AA81*'Other input expert'!M$12*'Sales price per sales channel'!$G81*'Other input expert'!M$6","v":0},null,{"$f":"P81*'Other input expert'!B$13*'Sales price per sales channel'!$H81*'Other input expert'!B$6","v":0},{"$f":"Q81*'Other input expert'!C$13*'Sales price per sales channel'!$H81*'Other input expert'!C$6","v":0},{"$f":"R81*'Other input expert'!D$13*'Sales price per sales channel'!$H81*'Other input expert'!D$6","v":0},{"$f":"S81*'Other input expert'!E$13*'Sales price per sales channel'!$H81*'Other input expert'!E$6","v":0},{"$f":"T81*'Other input expert'!F$13*'Sales price per sales channel'!$H81*'Other input expert'!F$6","v":0},{"$f":"U81*'Other input expert'!G$13*'Sales price per sales channel'!$H81*'Other input expert'!G$6","v":0},{"$f":"V81*'Other input expert'!H$13*'Sales price per sales channel'!$H81*'Other input expert'!H$6","v":0},{"$f":"W81*'Other input expert'!I$13*'Sales price per sales channel'!$H81*'Other input expert'!I$6","v":0},{"$f":"X81*'Other input expert'!J$13*'Sales price per sales channel'!$H81*'Other input expert'!J$6","v":0},{"$f":"Y81*'Other input expert'!K$13*'Sales price per sales channel'!$H81*'Other input expert'!K$6","v":0},{"$f":"Z81*'Other input expert'!L$13*'Sales price per sales channel'!$H81*'Other input expert'!L$6","v":0},{"$f":"AA81*'Other input expert'!M$13*'Sales price per sales channel'!$H81*'Other input expert'!M$6","v":0},null,{"$f":"P81*'Other input expert'!B$14*'Sales price per sales channel'!$I81*'Other input expert'!B$6","v":0},{"$f":"Q81*'Other input expert'!C$14*'Sales price per sales channel'!$I81*'Other input expert'!C$6","v":0},{"$f":"R81*'Other input expert'!D$14*'Sales price per sales channel'!$I81*'Other input expert'!D$6","v":0},{"$f":"S81*'Other input expert'!E$14*'Sales price per sales channel'!$I81*'Other input expert'!E$6","v":0},{"$f":"T81*'Other input expert'!F$14*'Sales price per sales channel'!$I81*'Other input expert'!F$6","v":0},{"$f":"U81*'Other input expert'!G$14*'Sales price per sales channel'!$I81*'Other input expert'!G$6","v":0},{"$f":"V81*'Other input expert'!H$14*'Sales price per sales channel'!$I81*'Other input expert'!H$6","v":0},{"$f":"W81*'Other input expert'!I$14*'Sales price per sales channel'!$I81*'Other input expert'!I$6","v":0},{"$f":"X81*'Other input expert'!J$14*'Sales price per sales channel'!$I81*'Other input expert'!J$6","v":0},{"$f":"Y81*'Other input expert'!K$14*'Sales price per sales channel'!$I81*'Other input expert'!K$6","v":0},{"$f":"Z81*'Other input expert'!L$14*'Sales price per sales channel'!$I81*'Other input expert'!L$6","v":0},{"$f":"AA81*'Other input expert'!M$14*'Sales price per sales channel'!$I81*'Other input expert'!M$6","v":0},null,{"$f":"AC81*'Other input expert'!B$12*'Sales price per sales channel'!$G81*'Other input expert'!B$7","v":0},{"$f":"AD81*'Other input expert'!C$12*'Sales price per sales channel'!$G81*'Other input expert'!C$7","v":0},{"$f":"AE81*'Other input expert'!D$12*'Sales price per sales channel'!$G81*'Other input expert'!D$7","v":0},{"$f":"AF81*'Other input expert'!E$12*'Sales price per sales channel'!$G81*'Other input expert'!E$7","v":0},{"$f":"AG81*'Other input expert'!F$12*'Sales price per sales channel'!$G81*'Other input expert'!F$7","v":0},{"$f":"AH81*'Other input expert'!G$12*'Sales price per sales channel'!$G81*'Other input expert'!G$7","v":0},{"$f":"AI81*'Other input expert'!H$12*'Sales price per sales channel'!$G81*'Other input expert'!H$7","v":0},{"$f":"AJ81*'Other input expert'!I$12*'Sales price per sales channel'!$G81*'Other input expert'!I$7","v":0},{"$f":"AK81*'Other input expert'!J$12*'Sales price per sales channel'!$G81*'Other input expert'!J$7","v":0},{"$f":"AL81*'Other input expert'!K$12*'Sales price per sales channel'!$G81*'Other input expert'!K$7","v":0},{"$f":"AM81*'Other input expert'!L$12*'Sales price per sales channel'!$G81*'Other input expert'!L$7","v":0},{"$f":"AN81*'Other input expert'!M$12*'Sales price per sales channel'!$G81*'Other input expert'!M$7","v":0},null,{"$f":"AC81*'Other input expert'!B$13*'Sales price per sales channel'!$H81*'Other input expert'!B$7","v":0},{"$f":"AD81*'Other input expert'!C$13*'Sales price per sales channel'!$H81*'Other input expert'!C$7","v":0},{"$f":"AE81*'Other input expert'!D$13*'Sales price per sales channel'!$H81*'Other input expert'!D$7","v":0},{"$f":"AF81*'Other input expert'!E$13*'Sales price per sales channel'!$H81*'Other input expert'!E$7","v":0},{"$f":"AG81*'Other input expert'!F$13*'Sales price per sales channel'!$H81*'Other input expert'!F$7","v":0},{"$f":"AH81*'Other input expert'!G$13*'Sales price per sales channel'!$H81*'Other input expert'!G$7","v":0},{"$f":"AI81*'Other input expert'!H$13*'Sales price per sales channel'!$H81*'Other input expert'!H$7","v":0},{"$f":"AJ81*'Other input expert'!I$13*'Sales price per sales channel'!$H81*'Other input expert'!I$7","v":0},{"$f":"AK81*'Other input expert'!J$13*'Sales price per sales channel'!$H81*'Other input expert'!J$7","v":0},{"$f":"AL81*'Other input expert'!K$13*'Sales price per sales channel'!$H81*'Other input expert'!K$7","v":0},{"$f":"AM81*'Other input expert'!L$13*'Sales price per sales channel'!$H81*'Other input expert'!L$7","v":0},{"$f":"AN81*'Other input expert'!M$13*'Sales price per sales channel'!$H81*'Other input expert'!M$7","v":0},null,{"$f":"AC81*'Other input expert'!B$14*'Sales price per sales channel'!$I81*'Other input expert'!B$7","v":0},{"$f":"AD81*'Other input expert'!C$14*'Sales price per sales channel'!$I81*'Other input expert'!C$7","v":0},{"$f":"AE81*'Other input expert'!D$14*'Sales price per sales channel'!$I81*'Other input expert'!D$7","v":0},{"$f":"AF81*'Other input expert'!E$14*'Sales price per sales channel'!$I81*'Other input expert'!E$7","v":0},{"$f":"AG81*'Other input expert'!F$14*'Sales price per sales channel'!$I81*'Other input expert'!F$7","v":0},{"$f":"AH81*'Other input expert'!G$14*'Sales price per sales channel'!$I81*'Other input expert'!G$7","v":0},{"$f":"AI81*'Other input expert'!H$14*'Sales price per sales channel'!$I81*'Other input expert'!H$7","v":0},{"$f":"AJ81*'Other input expert'!I$14*'Sales price per sales channel'!$I81*'Other input expert'!I$7","v":0},{"$f":"AK81*'Other input expert'!J$14*'Sales price per sales channel'!$I81*'Other input expert'!J$7","v":0},{"$f":"AL81*'Other input expert'!K$14*'Sales price per sales channel'!$I81*'Other input expert'!K$7","v":0},{"$f":"AM81*'Other input expert'!L$14*'Sales price per sales channel'!$I81*'Other input expert'!L$7","v":0},{"$f":"AN81*'Other input expert'!M$14*'Sales price per sales channel'!$I81*'Other input expert'!M$7","v":0}]
["Hibiscus syriacus","Hibiscus",{"$f":"Plantlist!$G82*'Production list'!D83*'Other input expert'!B$4*'Other input expert'!B$8","v":0},{"$f":"Plantlist!$G82*'Production list'!E83*'Other input expert'!C$4*'Other input expert'!C$8","v":0},{"$f":"Plantlist!$G82*'Production list'!F83*'Other input expert'!D$4*'Other input expert'!D$8","v":0},{"$f":"Plantlist!$G82*'Production list'!G83*'Other input expert'!E$4*'Other input expert'!E$8","v":0},{"$f":"Plantlist!$G82*'Production list'!H83*'Other input expert'!F$4*'Other input expert'!F$8","v":0},{"$f":"Plantlist!$G82*'Production list'!I83*'Other input expert'!G$4*'Other input expert'!G$8","v":0},{"$f":"Plantlist!$G82*'Production list'!J83*'Other input expert'!H$4*'Other input expert'!H$8","v":0},{"$f":"Plantlist!$G82*'Production list'!K83*'Other input expert'!I$4*'Other input expert'!I$8","v":0},{"$f":"Plantlist!$G82*'Production list'!L83*'Other input expert'!J$4*'Other input expert'!J$8","v":0},{"$f":"Plantlist!$G82*'Production list'!M83*'Other input expert'!K$4*'Other input expert'!K$8","v":0},{"$f":"Plantlist!$G82*'Production list'!N83*'Other input expert'!L$4*'Other input expert'!L$8","v":0},{"$f":"Plantlist!$G82*'Production list'!O83*'Other input expert'!M$4*'Other input expert'!M$8","v":0},null,{"$f":"C82*'Other input expert'!B$5","v":0},{"$f":"D82*'Other input expert'!C$5","v":0},{"$f":"E82*'Other input expert'!D$5","v":0},{"$f":"F82*'Other input expert'!E$5","v":0},{"$f":"G82*'Other input expert'!F$5","v":0},{"$f":"H82*'Other input expert'!G$5","v":0},{"$f":"I82*'Other input expert'!H$5","v":0},{"$f":"J82*'Other input expert'!I$5","v":0},{"$f":"K82*'Other input expert'!J$5","v":0},{"$f":"L82*'Other input expert'!K$5","v":0},{"$f":"M82*'Other input expert'!L$5","v":0},{"$f":"N82*'Other input expert'!M$5","v":0},null,{"$f":"C82*(100%-'Other input expert'!B$5)","v":0},{"$f":"D82*(100%-'Other input expert'!C$5)","v":0},{"$f":"E82*(100%-'Other input expert'!D$5)","v":0},{"$f":"F82*(100%-'Other input expert'!E$5)","v":0},{"$f":"G82*(100%-'Other input expert'!F$5)","v":0},{"$f":"H82*(100%-'Other input expert'!G$5)","v":0},{"$f":"I82*(100%-'Other input expert'!H$5)","v":0},{"$f":"J82*(100%-'Other input expert'!I$5)","v":0},{"$f":"K82*(100%-'Other input expert'!J$5)","v":0},{"$f":"L82*(100%-'Other input expert'!K$5)","v":0},{"$f":"M82*(100%-'Other input expert'!L$5)","v":0},{"$f":"N82*(100%-'Other input expert'!M$5)","v":0},null,{"$f":"P82*'Other input expert'!B$12*'Sales price per sales channel'!$G82*'Other input expert'!B$6","v":0},{"$f":"Q82*'Other input expert'!C$12*'Sales price per sales channel'!$G82*'Other input expert'!C$6","v":0},{"$f":"R82*'Other input expert'!D$12*'Sales price per sales channel'!$G82*'Other input expert'!D$6","v":0},{"$f":"S82*'Other input expert'!E$12*'Sales price per sales channel'!$G82*'Other input expert'!E$6","v":0},{"$f":"T82*'Other input expert'!F$12*'Sales price per sales channel'!$G82*'Other input expert'!F$6","v":0},{"$f":"U82*'Other input expert'!G$12*'Sales price per sales channel'!$G82*'Other input expert'!G$6","v":0},{"$f":"V82*'Other input expert'!H$12*'Sales price per sales channel'!$G82*'Other input expert'!H$6","v":0},{"$f":"W82*'Other input expert'!I$12*'Sales price per sales channel'!$G82*'Other input expert'!I$6","v":0},{"$f":"X82*'Other input expert'!J$12*'Sales price per sales channel'!$G82*'Other input expert'!J$6","v":0},{"$f":"Y82*'Other input expert'!K$12*'Sales price per sales channel'!$G82*'Other input expert'!K$6","v":0},{"$f":"Z82*'Other input expert'!L$12*'Sales price per sales channel'!$G82*'Other input expert'!L$6","v":0},{"$f":"AA82*'Other input expert'!M$12*'Sales price per sales channel'!$G82*'Other input expert'!M$6","v":0},null,{"$f":"P82*'Other input expert'!B$13*'Sales price per sales channel'!$H82*'Other input expert'!B$6","v":0},{"$f":"Q82*'Other input expert'!C$13*'Sales price per sales channel'!$H82*'Other input expert'!C$6","v":0},{"$f":"R82*'Other input expert'!D$13*'Sales price per sales channel'!$H82*'Other input expert'!D$6","v":0},{"$f":"S82*'Other input expert'!E$13*'Sales price per sales channel'!$H82*'Other input expert'!E$6","v":0},{"$f":"T82*'Other input expert'!F$13*'Sales price per sales channel'!$H82*'Other input expert'!F$6","v":0},{"$f":"U82*'Other input expert'!G$13*'Sales price per sales channel'!$H82*'Other input expert'!G$6","v":0},{"$f":"V82*'Other input expert'!H$13*'Sales price per sales channel'!$H82*'Other input expert'!H$6","v":0},{"$f":"W82*'Other input expert'!I$13*'Sales price per sales channel'!$H82*'Other input expert'!I$6","v":0},{"$f":"X82*'Other input expert'!J$13*'Sales price per sales channel'!$H82*'Other input expert'!J$6","v":0},{"$f":"Y82*'Other input expert'!K$13*'Sales price per sales channel'!$H82*'Other input expert'!K$6","v":0},{"$f":"Z82*'Other input expert'!L$13*'Sales price per sales channel'!$H82*'Other input expert'!L$6","v":0},{"$f":"AA82*'Other input expert'!M$13*'Sales price per sales channel'!$H82*'Other input expert'!M$6","v":0},null,{"$f":"P82*'Other input expert'!B$14*'Sales price per sales channel'!$I82*'Other input expert'!B$6","v":0},{"$f":"Q82*'Other input expert'!C$14*'Sales price per sales channel'!$I82*'Other input expert'!C$6","v":0},{"$f":"R82*'Other input expert'!D$14*'Sales price per sales channel'!$I82*'Other input expert'!D$6","v":0},{"$f":"S82*'Other input expert'!E$14*'Sales price per sales channel'!$I82*'Other input expert'!E$6","v":0},{"$f":"T82*'Other input expert'!F$14*'Sales price per sales channel'!$I82*'Other input expert'!F$6","v":0},{"$f":"U82*'Other input expert'!G$14*'Sales price per sales channel'!$I82*'Other input expert'!G$6","v":0},{"$f":"V82*'Other input expert'!H$14*'Sales price per sales channel'!$I82*'Other input expert'!H$6","v":0},{"$f":"W82*'Other input expert'!I$14*'Sales price per sales channel'!$I82*'Other input expert'!I$6","v":0},{"$f":"X82*'Other input expert'!J$14*'Sales price per sales channel'!$I82*'Other input expert'!J$6","v":0},{"$f":"Y82*'Other input expert'!K$14*'Sales price per sales channel'!$I82*'Other input expert'!K$6","v":0},{"$f":"Z82*'Other input expert'!L$14*'Sales price per sales channel'!$I82*'Other input expert'!L$6","v":0},{"$f":"AA82*'Other input expert'!M$14*'Sales price per sales channel'!$I82*'Other input expert'!M$6","v":0},null,{"$f":"AC82*'Other input expert'!B$12*'Sales price per sales channel'!$G82*'Other input expert'!B$7","v":0},{"$f":"AD82*'Other input expert'!C$12*'Sales price per sales channel'!$G82*'Other input expert'!C$7","v":0},{"$f":"AE82*'Other input expert'!D$12*'Sales price per sales channel'!$G82*'Other input expert'!D$7","v":0},{"$f":"AF82*'Other input expert'!E$12*'Sales price per sales channel'!$G82*'Other input expert'!E$7","v":0},{"$f":"AG82*'Other input expert'!F$12*'Sales price per sales channel'!$G82*'Other input expert'!F$7","v":0},{"$f":"AH82*'Other input expert'!G$12*'Sales price per sales channel'!$G82*'Other input expert'!G$7","v":0},{"$f":"AI82*'Other input expert'!H$12*'Sales price per sales channel'!$G82*'Other input expert'!H$7","v":0},{"$f":"AJ82*'Other input expert'!I$12*'Sales price per sales channel'!$G82*'Other input expert'!I$7","v":0},{"$f":"AK82*'Other input expert'!J$12*'Sales price per sales channel'!$G82*'Other input expert'!J$7","v":0},{"$f":"AL82*'Other input expert'!K$12*'Sales price per sales channel'!$G82*'Other input expert'!K$7","v":0},{"$f":"AM82*'Other input expert'!L$12*'Sales price per sales channel'!$G82*'Other input expert'!L$7","v":0},{"$f":"AN82*'Other input expert'!M$12*'Sales price per sales channel'!$G82*'Other input expert'!M$7","v":0},null,{"$f":"AC82*'Other input expert'!B$13*'Sales price per sales channel'!$H82*'Other input expert'!B$7","v":0},{"$f":"AD82*'Other input expert'!C$13*'Sales price per sales channel'!$H82*'Other input expert'!C$7","v":0},{"$f":"AE82*'Other input expert'!D$13*'Sales price per sales channel'!$H82*'Other input expert'!D$7","v":0},{"$f":"AF82*'Other input expert'!E$13*'Sales price per sales channel'!$H82*'Other input expert'!E$7","v":0},{"$f":"AG82*'Other input expert'!F$13*'Sales price per sales channel'!$H82*'Other input expert'!F$7","v":0},{"$f":"AH82*'Other input expert'!G$13*'Sales price per sales channel'!$H82*'Other input expert'!G$7","v":0},{"$f":"AI82*'Other input expert'!H$13*'Sales price per sales channel'!$H82*'Other input expert'!H$7","v":0},{"$f":"AJ82*'Other input expert'!I$13*'Sales price per sales channel'!$H82*'Other input expert'!I$7","v":0},{"$f":"AK82*'Other input expert'!J$13*'Sales price per sales channel'!$H82*'Other input expert'!J$7","v":0},{"$f":"AL82*'Other input expert'!K$13*'Sales price per sales channel'!$H82*'Other input expert'!K$7","v":0},{"$f":"AM82*'Other input expert'!L$13*'Sales price per sales channel'!$H82*'Other input expert'!L$7","v":0},{"$f":"AN82*'Other input expert'!M$13*'Sales price per sales channel'!$H82*'Other input expert'!M$7","v":0},null,{"$f":"AC82*'Other input expert'!B$14*'Sales price per sales channel'!$I82*'Other input expert'!B$7","v":0},{"$f":"AD82*'Other input expert'!C$14*'Sales price per sales channel'!$I82*'Other input expert'!C$7","v":0},{"$f":"AE82*'Other input expert'!D$14*'Sales price per sales channel'!$I82*'Other input expert'!D$7","v":0},{"$f":"AF82*'Other input expert'!E$14*'Sales price per sales channel'!$I82*'Other input expert'!E$7","v":0},{"$f":"AG82*'Other input expert'!F$14*'Sales price per sales channel'!$I82*'Other input expert'!F$7","v":0},{"$f":"AH82*'Other input expert'!G$14*'Sales price per sales channel'!$I82*'Other input expert'!G$7","v":0},{"$f":"AI82*'Other input expert'!H$14*'Sales price per sales channel'!$I82*'Other input expert'!H$7","v":0},{"$f":"AJ82*'Other input expert'!I$14*'Sales price per sales channel'!$I82*'Other input expert'!I$7","v":0},{"$f":"AK82*'Other input expert'!J$14*'Sales price per sales channel'!$I82*'Other input expert'!J$7","v":0},{"$f":"AL82*'Other input expert'!K$14*'Sales price per sales channel'!$I82*'Other input expert'!K$7","v":0},{"$f":"AM82*'Other input expert'!L$14*'Sales price per sales channel'!$I82*'Other input expert'!L$7","v":0},{"$f":"AN82*'Other input expert'!M$14*'Sales price per sales channel'!$I82*'Other input expert'!M$7","v":0}]
["Hippophae rhamnoides","Sea Buckthorn",{"$f":"Plantlist!$G83*'Production list'!D84*'Other input expert'!B$4*'Other input expert'!B$8","v":0},{"$f":"Plantlist!$G83*'Production list'!E84*'Other input expert'!C$4*'Other input expert'!C$8","v":0},{"$f":"Plantlist!$G83*'Production list'!F84*'Other input expert'!D$4*'Other input expert'!D$8","v":0},{"$f":"Plantlist!$G83*'Production list'!G84*'Other input expert'!E$4*'Other input expert'!E$8","v":0},{"$f":"Plantlist!$G83*'Production list'!H84*'Other input expert'!F$4*'Other input expert'!F$8","v":0},{"$f":"Plantlist!$G83*'Production list'!I84*'Other input expert'!G$4*'Other input expert'!G$8","v":0},{"$f":"Plantlist!$G83*'Production list'!J84*'Other input expert'!H$4*'Other input expert'!H$8","v":0},{"$f":"Plantlist!$G83*'Production list'!K84*'Other input expert'!I$4*'Other input expert'!I$8","v":0},{"$f":"Plantlist!$G83*'Production list'!L84*'Other input expert'!J$4*'Other input expert'!J$8","v":0},{"$f":"Plantlist!$G83*'Production list'!M84*'Other input expert'!K$4*'Other input expert'!K$8","v":0},{"$f":"Plantlist!$G83*'Production list'!N84*'Other input expert'!L$4*'Other input expert'!L$8","v":0},{"$f":"Plantlist!$G83*'Production list'!O84*'Other input expert'!M$4*'Other input expert'!M$8","v":0},null,{"$f":"C83*'Other input expert'!B$5","v":0},{"$f":"D83*'Other input expert'!C$5","v":0},{"$f":"E83*'Other input expert'!D$5","v":0},{"$f":"F83*'Other input expert'!E$5","v":0},{"$f":"G83*'Other input expert'!F$5","v":0},{"$f":"H83*'Other input expert'!G$5","v":0},{"$f":"I83*'Other input expert'!H$5","v":0},{"$f":"J83*'Other input expert'!I$5","v":0},{"$f":"K83*'Other input expert'!J$5","v":0},{"$f":"L83*'Other input expert'!K$5","v":0},{"$f":"M83*'Other input expert'!L$5","v":0},{"$f":"N83*'Other input expert'!M$5","v":0},null,{"$f":"C83*(100%-'Other input expert'!B$5)","v":0},{"$f":"D83*(100%-'Other input expert'!C$5)","v":0},{"$f":"E83*(100%-'Other input expert'!D$5)","v":0},{"$f":"F83*(100%-'Other input expert'!E$5)","v":0},{"$f":"G83*(100%-'Other input expert'!F$5)","v":0},{"$f":"H83*(100%-'Other input expert'!G$5)","v":0},{"$f":"I83*(100%-'Other input expert'!H$5)","v":0},{"$f":"J83*(100%-'Other input expert'!I$5)","v":0},{"$f":"K83*(100%-'Other input expert'!J$5)","v":0},{"$f":"L83*(100%-'Other input expert'!K$5)","v":0},{"$f":"M83*(100%-'Other input expert'!L$5)","v":0},{"$f":"N83*(100%-'Other input expert'!M$5)","v":0},null,{"$f":"P83*'Other input expert'!B$12*'Sales price per sales channel'!$G83*'Other input expert'!B$6","v":0},{"$f":"Q83*'Other input expert'!C$12*'Sales price per sales channel'!$G83*'Other input expert'!C$6","v":0},{"$f":"R83*'Other input expert'!D$12*'Sales price per sales channel'!$G83*'Other input expert'!D$6","v":0},{"$f":"S83*'Other input expert'!E$12*'Sales price per sales channel'!$G83*'Other input expert'!E$6","v":0},{"$f":"T83*'Other input expert'!F$12*'Sales price per sales channel'!$G83*'Other input expert'!F$6","v":0},{"$f":"U83*'Other input expert'!G$12*'Sales price per sales channel'!$G83*'Other input expert'!G$6","v":0},{"$f":"V83*'Other input expert'!H$12*'Sales price per sales channel'!$G83*'Other input expert'!H$6","v":0},{"$f":"W83*'Other input expert'!I$12*'Sales price per sales channel'!$G83*'Other input expert'!I$6","v":0},{"$f":"X83*'Other input expert'!J$12*'Sales price per sales channel'!$G83*'Other input expert'!J$6","v":0},{"$f":"Y83*'Other input expert'!K$12*'Sales price per sales channel'!$G83*'Other input expert'!K$6","v":0},{"$f":"Z83*'Other input expert'!L$12*'Sales price per sales channel'!$G83*'Other input expert'!L$6","v":0},{"$f":"AA83*'Other input expert'!M$12*'Sales price per sales channel'!$G83*'Other input expert'!M$6","v":0},null,{"$f":"P83*'Other input expert'!B$13*'Sales price per sales channel'!$H83*'Other input expert'!B$6","v":0},{"$f":"Q83*'Other input expert'!C$13*'Sales price per sales channel'!$H83*'Other input expert'!C$6","v":0},{"$f":"R83*'Other input expert'!D$13*'Sales price per sales channel'!$H83*'Other input expert'!D$6","v":0},{"$f":"S83*'Other input expert'!E$13*'Sales price per sales channel'!$H83*'Other input expert'!E$6","v":0},{"$f":"T83*'Other input expert'!F$13*'Sales price per sales channel'!$H83*'Other input expert'!F$6","v":0},{"$f":"U83*'Other input expert'!G$13*'Sales price per sales channel'!$H83*'Other input expert'!G$6","v":0},{"$f":"V83*'Other input expert'!H$13*'Sales price per sales channel'!$H83*'Other input expert'!H$6","v":0},{"$f":"W83*'Other input expert'!I$13*'Sales price per sales channel'!$H83*'Other input expert'!I$6","v":0},{"$f":"X83*'Other input expert'!J$13*'Sales price per sales channel'!$H83*'Other input expert'!J$6","v":0},{"$f":"Y83*'Other input expert'!K$13*'Sales price per sales channel'!$H83*'Other input expert'!K$6","v":0},{"$f":"Z83*'Other input expert'!L$13*'Sales price per sales channel'!$H83*'Other input expert'!L$6","v":0},{"$f":"AA83*'Other input expert'!M$13*'Sales price per sales channel'!$H83*'Other input expert'!M$6","v":0},null,{"$f":"P83*'Other input expert'!B$14*'Sales price per sales channel'!$I83*'Other input expert'!B$6","v":0},{"$f":"Q83*'Other input expert'!C$14*'Sales price per sales channel'!$I83*'Other input expert'!C$6","v":0},{"$f":"R83*'Other input expert'!D$14*'Sales price per sales channel'!$I83*'Other input expert'!D$6","v":0},{"$f":"S83*'Other input expert'!E$14*'Sales price per sales channel'!$I83*'Other input expert'!E$6","v":0},{"$f":"T83*'Other input expert'!F$14*'Sales price per sales channel'!$I83*'Other input expert'!F$6","v":0},{"$f":"U83*'Other input expert'!G$14*'Sales price per sales channel'!$I83*'Other input expert'!G$6","v":0},{"$f":"V83*'Other input expert'!H$14*'Sales price per sales channel'!$I83*'Other input expert'!H$6","v":0},{"$f":"W83*'Other input expert'!I$14*'Sales price per sales channel'!$I83*'Other input expert'!I$6","v":0},{"$f":"X83*'Other input expert'!J$14*'Sales price per sales channel'!$I83*'Other input expert'!J$6","v":0},{"$f":"Y83*'Other input expert'!K$14*'Sales price per sales channel'!$I83*'Other input expert'!K$6","v":0},{"$f":"Z83*'Other input expert'!L$14*'Sales price per sales channel'!$I83*'Other input expert'!L$6","v":0},{"$f":"AA83*'Other input expert'!M$14*'Sales price per sales channel'!$I83*'Other input expert'!M$6","v":0},null,{"$f":"AC83*'Other input expert'!B$12*'Sales price per sales channel'!$G83*'Other input expert'!B$7","v":0},{"$f":"AD83*'Other input expert'!C$12*'Sales price per sales channel'!$G83*'Other input expert'!C$7","v":0},{"$f":"AE83*'Other input expert'!D$12*'Sales price per sales channel'!$G83*'Other input expert'!D$7","v":0},{"$f":"AF83*'Other input expert'!E$12*'Sales price per sales channel'!$G83*'Other input expert'!E$7","v":0},{"$f":"AG83*'Other input expert'!F$12*'Sales price per sales channel'!$G83*'Other input expert'!F$7","v":0},{"$f":"AH83*'Other input expert'!G$12*'Sales price per sales channel'!$G83*'Other input expert'!G$7","v":0},{"$f":"AI83*'Other input expert'!H$12*'Sales price per sales channel'!$G83*'Other input expert'!H$7","v":0},{"$f":"AJ83*'Other input expert'!I$12*'Sales price per sales channel'!$G83*'Other input expert'!I$7","v":0},{"$f":"AK83*'Other input expert'!J$12*'Sales price per sales channel'!$G83*'Other input expert'!J$7","v":0},{"$f":"AL83*'Other input expert'!K$12*'Sales price per sales channel'!$G83*'Other input expert'!K$7","v":0},{"$f":"AM83*'Other input expert'!L$12*'Sales price per sales channel'!$G83*'Other input expert'!L$7","v":0},{"$f":"AN83*'Other input expert'!M$12*'Sales price per sales channel'!$G83*'Other input expert'!M$7","v":0},null,{"$f":"AC83*'Other input expert'!B$13*'Sales price per sales channel'!$H83*'Other input expert'!B$7","v":0},{"$f":"AD83*'Other input expert'!C$13*'Sales price per sales channel'!$H83*'Other input expert'!C$7","v":0},{"$f":"AE83*'Other input expert'!D$13*'Sales price per sales channel'!$H83*'Other input expert'!D$7","v":0},{"$f":"AF83*'Other input expert'!E$13*'Sales price per sales channel'!$H83*'Other input expert'!E$7","v":0},{"$f":"AG83*'Other input expert'!F$13*'Sales price per sales channel'!$H83*'Other input expert'!F$7","v":0},{"$f":"AH83*'Other input expert'!G$13*'Sales price per sales channel'!$H83*'Other input expert'!G$7","v":0},{"$f":"AI83*'Other input expert'!H$13*'Sales price per sales channel'!$H83*'Other input expert'!H$7","v":0},{"$f":"AJ83*'Other input expert'!I$13*'Sales price per sales channel'!$H83*'Other input expert'!I$7","v":0},{"$f":"AK83*'Other input expert'!J$13*'Sales price per sales channel'!$H83*'Other input expert'!J$7","v":0},{"$f":"AL83*'Other input expert'!K$13*'Sales price per sales channel'!$H83*'Other input expert'!K$7","v":0},{"$f":"AM83*'Other input expert'!L$13*'Sales price per sales channel'!$H83*'Other input expert'!L$7","v":0},{"$f":"AN83*'Other input expert'!M$13*'Sales price per sales channel'!$H83*'Other input expert'!M$7","v":0},null,{"$f":"AC83*'Other input expert'!B$14*'Sales price per sales channel'!$I83*'Other input expert'!B$7","v":0},{"$f":"AD83*'Other input expert'!C$14*'Sales price per sales channel'!$I83*'Other input expert'!C$7","v":0},{"$f":"AE83*'Other input expert'!D$14*'Sales price per sales channel'!$I83*'Other input expert'!D$7","v":0},{"$f":"AF83*'Other input expert'!E$14*'Sales price per sales channel'!$I83*'Other input expert'!E$7","v":0},{"$f":"AG83*'Other input expert'!F$14*'Sales price per sales channel'!$I83*'Other input expert'!F$7","v":0},{"$f":"AH83*'Other input expert'!G$14*'Sales price per sales channel'!$I83*'Other input expert'!G$7","v":0},{"$f":"AI83*'Other input expert'!H$14*'Sales price per sales channel'!$I83*'Other input expert'!H$7","v":0},{"$f":"AJ83*'Other input expert'!I$14*'Sales price per sales channel'!$I83*'Other input expert'!I$7","v":0},{"$f":"AK83*'Other input expert'!J$14*'Sales price per sales channel'!$I83*'Other input expert'!J$7","v":0},{"$f":"AL83*'Other input expert'!K$14*'Sales price per sales channel'!$I83*'Other input expert'!K$7","v":0},{"$f":"AM83*'Other input expert'!L$14*'Sales price per sales channel'!$I83*'Other input expert'!L$7","v":0},{"$f":"AN83*'Other input expert'!M$14*'Sales price per sales channel'!$I83*'Other input expert'!M$7","v":0}]
["Hosta spp.","Hosta",{"$f":"Plantlist!$G84*'Production list'!D85*'Other input expert'!B$4*'Other input expert'!B$8","v":0},{"$f":"Plantlist!$G84*'Production list'!E85*'Other input expert'!C$4*'Other input expert'!C$8","v":0},{"$f":"Plantlist!$G84*'Production list'!F85*'Other input expert'!D$4*'Other input expert'!D$8","v":0},{"$f":"Plantlist!$G84*'Production list'!G85*'Other input expert'!E$4*'Other input expert'!E$8","v":0},{"$f":"Plantlist!$G84*'Production list'!H85*'Other input expert'!F$4*'Other input expert'!F$8","v":0},{"$f":"Plantlist!$G84*'Production list'!I85*'Other input expert'!G$4*'Other input expert'!G$8","v":0},{"$f":"Plantlist!$G84*'Production list'!J85*'Other input expert'!H$4*'Other input expert'!H$8","v":0},{"$f":"Plantlist!$G84*'Production list'!K85*'Other input expert'!I$4*'Other input expert'!I$8","v":0},{"$f":"Plantlist!$G84*'Production list'!L85*'Other input expert'!J$4*'Other input expert'!J$8","v":0},{"$f":"Plantlist!$G84*'Production list'!M85*'Other input expert'!K$4*'Other input expert'!K$8","v":0},{"$f":"Plantlist!$G84*'Production list'!N85*'Other input expert'!L$4*'Other input expert'!L$8","v":0},{"$f":"Plantlist!$G84*'Production list'!O85*'Other input expert'!M$4*'Other input expert'!M$8","v":0},null,{"$f":"C84*'Other input expert'!B$5","v":0},{"$f":"D84*'Other input expert'!C$5","v":0},{"$f":"E84*'Other input expert'!D$5","v":0},{"$f":"F84*'Other input expert'!E$5","v":0},{"$f":"G84*'Other input expert'!F$5","v":0},{"$f":"H84*'Other input expert'!G$5","v":0},{"$f":"I84*'Other input expert'!H$5","v":0},{"$f":"J84*'Other input expert'!I$5","v":0},{"$f":"K84*'Other input expert'!J$5","v":0},{"$f":"L84*'Other input expert'!K$5","v":0},{"$f":"M84*'Other input expert'!L$5","v":0},{"$f":"N84*'Other input expert'!M$5","v":0},null,{"$f":"C84*(100%-'Other input expert'!B$5)","v":0},{"$f":"D84*(100%-'Other input expert'!C$5)","v":0},{"$f":"E84*(100%-'Other input expert'!D$5)","v":0},{"$f":"F84*(100%-'Other input expert'!E$5)","v":0},{"$f":"G84*(100%-'Other input expert'!F$5)","v":0},{"$f":"H84*(100%-'Other input expert'!G$5)","v":0},{"$f":"I84*(100%-'Other input expert'!H$5)","v":0},{"$f":"J84*(100%-'Other input expert'!I$5)","v":0},{"$f":"K84*(100%-'Other input expert'!J$5)","v":0},{"$f":"L84*(100%-'Other input expert'!K$5)","v":0},{"$f":"M84*(100%-'Other input expert'!L$5)","v":0},{"$f":"N84*(100%-'Other input expert'!M$5)","v":0},null,{"$f":"P84*'Other input expert'!B$12*'Sales price per sales channel'!$G84*'Other input expert'!B$6","v":0},{"$f":"Q84*'Other input expert'!C$12*'Sales price per sales channel'!$G84*'Other input expert'!C$6","v":0},{"$f":"R84*'Other input expert'!D$12*'Sales price per sales channel'!$G84*'Other input expert'!D$6","v":0},{"$f":"S84*'Other input expert'!E$12*'Sales price per sales channel'!$G84*'Other input expert'!E$6","v":0},{"$f":"T84*'Other input expert'!F$12*'Sales price per sales channel'!$G84*'Other input expert'!F$6","v":0},{"$f":"U84*'Other input expert'!G$12*'Sales price per sales channel'!$G84*'Other input expert'!G$6","v":0},{"$f":"V84*'Other input expert'!H$12*'Sales price per sales channel'!$G84*'Other input expert'!H$6","v":0},{"$f":"W84*'Other input expert'!I$12*'Sales price per sales channel'!$G84*'Other input expert'!I$6","v":0},{"$f":"X84*'Other input expert'!J$12*'Sales price per sales channel'!$G84*'Other input expert'!J$6","v":0},{"$f":"Y84*'Other input expert'!K$12*'Sales price per sales channel'!$G84*'Other input expert'!K$6","v":0},{"$f":"Z84*'Other input expert'!L$12*'Sales price per sales channel'!$G84*'Other input expert'!L$6","v":0},{"$f":"AA84*'Other input expert'!M$12*'Sales price per sales channel'!$G84*'Other input expert'!M$6","v":0},null,{"$f":"P84*'Other input expert'!B$13*'Sales price per sales channel'!$H84*'Other input expert'!B$6","v":0},{"$f":"Q84*'Other input expert'!C$13*'Sales price per sales channel'!$H84*'Other input expert'!C$6","v":0},{"$f":"R84*'Other input expert'!D$13*'Sales price per sales channel'!$H84*'Other input expert'!D$6","v":0},{"$f":"S84*'Other input expert'!E$13*'Sales price per sales channel'!$H84*'Other input expert'!E$6","v":0},{"$f":"T84*'Other input expert'!F$13*'Sales price per sales channel'!$H84*'Other input expert'!F$6","v":0},{"$f":"U84*'Other input expert'!G$13*'Sales price per sales channel'!$H84*'Other input expert'!G$6","v":0},{"$f":"V84*'Other input expert'!H$13*'Sales price per sales channel'!$H84*'Other input expert'!H$6","v":0},{"$f":"W84*'Other input expert'!I$13*'Sales price per sales channel'!$H84*'Other input expert'!I$6","v":0},{"$f":"X84*'Other input expert'!J$13*'Sales price per sales channel'!$H84*'Other input expert'!J$6","v":0},{"$f":"Y84*'Other input expert'!K$13*'Sales price per sales channel'!$H84*'Other input expert'!K$6","v":0},{"$f":"Z84*'Other input expert'!L$13*'Sales price per sales channel'!$H84*'Other input expert'!L$6","v":0},{"$f":"AA84*'Other input expert'!M$13*'Sales price per sales channel'!$H84*'Other input expert'!M$6","v":0},null,{"$f":"P84*'Other input expert'!B$14*'Sales price per sales channel'!$I84*'Other input expert'!B$6","v":0},{"$f":"Q84*'Other input expert'!C$14*'Sales price per sales channel'!$I84*'Other input expert'!C$6","v":0},{"$f":"R84*'Other input expert'!D$14*'Sales price per sales channel'!$I84*'Other input expert'!D$6","v":0},{"$f":"S84*'Other input expert'!E$14*'Sales price per sales channel'!$I84*'Other input expert'!E$6","v":0},{"$f":"T84*'Other input expert'!F$14*'Sales price per sales channel'!$I84*'Other input expert'!F$6","v":0},{"$f":"U84*'Other input expert'!G$14*'Sales price per sales channel'!$I84*'Other input expert'!G$6","v":0},{"$f":"V84*'Other input expert'!H$14*'Sales price per sales channel'!$I84*'Other input expert'!H$6","v":0},{"$f":"W84*'Other input expert'!I$14*'Sales price per sales channel'!$I84*'Other input expert'!I$6","v":0},{"$f":"X84*'Other input expert'!J$14*'Sales price per sales channel'!$I84*'Other input expert'!J$6","v":0},{"$f":"Y84*'Other input expert'!K$14*'Sales price per sales channel'!$I84*'Other input expert'!K$6","v":0},{"$f":"Z84*'Other input expert'!L$14*'Sales price per sales channel'!$I84*'Other input expert'!L$6","v":0},{"$f":"AA84*'Other input expert'!M$14*'Sales price per sales channel'!$I84*'Other input expert'!M$6","v":0},null,{"$f":"AC84*'Other input expert'!B$12*'Sales price per sales channel'!$G84*'Other input expert'!B$7","v":0},{"$f":"AD84*'Other input expert'!C$12*'Sales price per sales channel'!$G84*'Other input expert'!C$7","v":0},{"$f":"AE84*'Other input expert'!D$12*'Sales price per sales channel'!$G84*'Other input expert'!D$7","v":0},{"$f":"AF84*'Other input expert'!E$12*'Sales price per sales channel'!$G84*'Other input expert'!E$7","v":0},{"$f":"AG84*'Other input expert'!F$12*'Sales price per sales channel'!$G84*'Other input expert'!F$7","v":0},{"$f":"AH84*'Other input expert'!G$12*'Sales price per sales channel'!$G84*'Other input expert'!G$7","v":0},{"$f":"AI84*'Other input expert'!H$12*'Sales price per sales channel'!$G84*'Other input expert'!H$7","v":0},{"$f":"AJ84*'Other input expert'!I$12*'Sales price per sales channel'!$G84*'Other input expert'!I$7","v":0},{"$f":"AK84*'Other input expert'!J$12*'Sales price per sales channel'!$G84*'Other input expert'!J$7","v":0},{"$f":"AL84*'Other input expert'!K$12*'Sales price per sales channel'!$G84*'Other input expert'!K$7","v":0},{"$f":"AM84*'Other input expert'!L$12*'Sales price per sales channel'!$G84*'Other input expert'!L$7","v":0},{"$f":"AN84*'Other input expert'!M$12*'Sales price per sales channel'!$G84*'Other input expert'!M$7","v":0},null,{"$f":"AC84*'Other input expert'!B$13*'Sales price per sales channel'!$H84*'Other input expert'!B$7","v":0},{"$f":"AD84*'Other input expert'!C$13*'Sales price per sales channel'!$H84*'Other input expert'!C$7","v":0},{"$f":"AE84*'Other input expert'!D$13*'Sales price per sales channel'!$H84*'Other input expert'!D$7","v":0},{"$f":"AF84*'Other input expert'!E$13*'Sales price per sales channel'!$H84*'Other input expert'!E$7","v":0},{"$f":"AG84*'Other input expert'!F$13*'Sales price per sales channel'!$H84*'Other input expert'!F$7","v":0},{"$f":"AH84*'Other input expert'!G$13*'Sales price per sales channel'!$H84*'Other input expert'!G$7","v":0},{"$f":"AI84*'Other input expert'!H$13*'Sales price per sales channel'!$H84*'Other input expert'!H$7","v":0},{"$f":"AJ84*'Other input expert'!I$13*'Sales price per sales channel'!$H84*'Other input expert'!I$7","v":0},{"$f":"AK84*'Other input expert'!J$13*'Sales price per sales channel'!$H84*'Other input expert'!J$7","v":0},{"$f":"AL84*'Other input expert'!K$13*'Sales price per sales channel'!$H84*'Other input expert'!K$7","v":0},{"$f":"AM84*'Other input expert'!L$13*'Sales price per sales channel'!$H84*'Other input expert'!L$7","v":0},{"$f":"AN84*'Other input expert'!M$13*'Sales price per sales channel'!$H84*'Other input expert'!M$7","v":0},null,{"$f":"AC84*'Other input expert'!B$14*'Sales price per sales channel'!$I84*'Other input expert'!B$7","v":0},{"$f":"AD84*'Other input expert'!C$14*'Sales price per sales channel'!$I84*'Other input expert'!C$7","v":0},{"$f":"AE84*'Other input expert'!D$14*'Sales price per sales channel'!$I84*'Other input expert'!D$7","v":0},{"$f":"AF84*'Other input expert'!E$14*'Sales price per sales channel'!$I84*'Other input expert'!E$7","v":0},{"$f":"AG84*'Other input expert'!F$14*'Sales price per sales channel'!$I84*'Other input expert'!F$7","v":0},{"$f":"AH84*'Other input expert'!G$14*'Sales price per sales channel'!$I84*'Other input expert'!G$7","v":0},{"$f":"AI84*'Other input expert'!H$14*'Sales price per sales channel'!$I84*'Other input expert'!H$7","v":0},{"$f":"AJ84*'Other input expert'!I$14*'Sales price per sales channel'!$I84*'Other input expert'!I$7","v":0},{"$f":"AK84*'Other input expert'!J$14*'Sales price per sales channel'!$I84*'Other input expert'!J$7","v":0},{"$f":"AL84*'Other input expert'!K$14*'Sales price per sales channel'!$I84*'Other input expert'!K$7","v":0},{"$f":"AM84*'Other input expert'!L$14*'Sales price per sales channel'!$I84*'Other input expert'!L$7","v":0},{"$f":"AN84*'Other input expert'!M$14*'Sales price per sales channel'!$I84*'Other input expert'!M$7","v":0}]
["Hovenia Dulcis","Japanese raisin tree",{"$f":"Plantlist!$G85*'Production list'!D86*'Other input expert'!B$4*'Other input expert'!B$8","v":0},{"$f":"Plantlist!$G85*'Production list'!E86*'Other input expert'!C$4*'Other input expert'!C$8","v":0},{"$f":"Plantlist!$G85*'Production list'!F86*'Other input expert'!D$4*'Other input expert'!D$8","v":0},{"$f":"Plantlist!$G85*'Production list'!G86*'Other input expert'!E$4*'Other input expert'!E$8","v":0},{"$f":"Plantlist!$G85*'Production list'!H86*'Other input expert'!F$4*'Other input expert'!F$8","v":0},{"$f":"Plantlist!$G85*'Production list'!I86*'Other input expert'!G$4*'Other input expert'!G$8","v":0},{"$f":"Plantlist!$G85*'Production list'!J86*'Other input expert'!H$4*'Other input expert'!H$8","v":0},{"$f":"Plantlist!$G85*'Production list'!K86*'Other input expert'!I$4*'Other input expert'!I$8","v":0},{"$f":"Plantlist!$G85*'Production list'!L86*'Other input expert'!J$4*'Other input expert'!J$8","v":0},{"$f":"Plantlist!$G85*'Production list'!M86*'Other input expert'!K$4*'Other input expert'!K$8","v":0},{"$f":"Plantlist!$G85*'Production list'!N86*'Other input expert'!L$4*'Other input expert'!L$8","v":0},{"$f":"Plantlist!$G85*'Production list'!O86*'Other input expert'!M$4*'Other input expert'!M$8","v":0},null,{"$f":"C85*'Other input expert'!B$5","v":0},{"$f":"D85*'Other input expert'!C$5","v":0},{"$f":"E85*'Other input expert'!D$5","v":0},{"$f":"F85*'Other input expert'!E$5","v":0},{"$f":"G85*'Other input expert'!F$5","v":0},{"$f":"H85*'Other input expert'!G$5","v":0},{"$f":"I85*'Other input expert'!H$5","v":0},{"$f":"J85*'Other input expert'!I$5","v":0},{"$f":"K85*'Other input expert'!J$5","v":0},{"$f":"L85*'Other input expert'!K$5","v":0},{"$f":"M85*'Other input expert'!L$5","v":0},{"$f":"N85*'Other input expert'!M$5","v":0},null,{"$f":"C85*(100%-'Other input expert'!B$5)","v":0},{"$f":"D85*(100%-'Other input expert'!C$5)","v":0},{"$f":"E85*(100%-'Other input expert'!D$5)","v":0},{"$f":"F85*(100%-'Other input expert'!E$5)","v":0},{"$f":"G85*(100%-'Other input expert'!F$5)","v":0},{"$f":"H85*(100%-'Other input expert'!G$5)","v":0},{"$f":"I85*(100%-'Other input expert'!H$5)","v":0},{"$f":"J85*(100%-'Other input expert'!I$5)","v":0},{"$f":"K85*(100%-'Other input expert'!J$5)","v":0},{"$f":"L85*(100%-'Other input expert'!K$5)","v":0},{"$f":"M85*(100%-'Other input expert'!L$5)","v":0},{"$f":"N85*(100%-'Other input expert'!M$5)","v":0},null,{"$f":"P85*'Other input expert'!B$12*'Sales price per sales channel'!$G85*'Other input expert'!B$6","v":0},{"$f":"Q85*'Other input expert'!C$12*'Sales price per sales channel'!$G85*'Other input expert'!C$6","v":0},{"$f":"R85*'Other input expert'!D$12*'Sales price per sales channel'!$G85*'Other input expert'!D$6","v":0},{"$f":"S85*'Other input expert'!E$12*'Sales price per sales channel'!$G85*'Other input expert'!E$6","v":0},{"$f":"T85*'Other input expert'!F$12*'Sales price per sales channel'!$G85*'Other input expert'!F$6","v":0},{"$f":"U85*'Other input expert'!G$12*'Sales price per sales channel'!$G85*'Other input expert'!G$6","v":0},{"$f":"V85*'Other input expert'!H$12*'Sales price per sales channel'!$G85*'Other input expert'!H$6","v":0},{"$f":"W85*'Other input expert'!I$12*'Sales price per sales channel'!$G85*'Other input expert'!I$6","v":0},{"$f":"X85*'Other input expert'!J$12*'Sales price per sales channel'!$G85*'Other input expert'!J$6","v":0},{"$f":"Y85*'Other input expert'!K$12*'Sales price per sales channel'!$G85*'Other input expert'!K$6","v":0},{"$f":"Z85*'Other input expert'!L$12*'Sales price per sales channel'!$G85*'Other input expert'!L$6","v":0},{"$f":"AA85*'Other input expert'!M$12*'Sales price per sales channel'!$G85*'Other input expert'!M$6","v":0},null,{"$f":"P85*'Other input expert'!B$13*'Sales price per sales channel'!$H85*'Other input expert'!B$6","v":0},{"$f":"Q85*'Other input expert'!C$13*'Sales price per sales channel'!$H85*'Other input expert'!C$6","v":0},{"$f":"R85*'Other input expert'!D$13*'Sales price per sales channel'!$H85*'Other input expert'!D$6","v":0},{"$f":"S85*'Other input expert'!E$13*'Sales price per sales channel'!$H85*'Other input expert'!E$6","v":0},{"$f":"T85*'Other input expert'!F$13*'Sales price per sales channel'!$H85*'Other input expert'!F$6","v":0},{"$f":"U85*'Other input expert'!G$13*'Sales price per sales channel'!$H85*'Other input expert'!G$6","v":0},{"$f":"V85*'Other input expert'!H$13*'Sales price per sales channel'!$H85*'Other input expert'!H$6","v":0},{"$f":"W85*'Other input expert'!I$13*'Sales price per sales channel'!$H85*'Other input expert'!I$6","v":0},{"$f":"X85*'Other input expert'!J$13*'Sales price per sales channel'!$H85*'Other input expert'!J$6","v":0},{"$f":"Y85*'Other input expert'!K$13*'Sales price per sales channel'!$H85*'Other input expert'!K$6","v":0},{"$f":"Z85*'Other input expert'!L$13*'Sales price per sales channel'!$H85*'Other input expert'!L$6","v":0},{"$f":"AA85*'Other input expert'!M$13*'Sales price per sales channel'!$H85*'Other input expert'!M$6","v":0},null,{"$f":"P85*'Other input expert'!B$14*'Sales price per sales channel'!$I85*'Other input expert'!B$6","v":0},{"$f":"Q85*'Other input expert'!C$14*'Sales price per sales channel'!$I85*'Other input expert'!C$6","v":0},{"$f":"R85*'Other input expert'!D$14*'Sales price per sales channel'!$I85*'Other input expert'!D$6","v":0},{"$f":"S85*'Other input expert'!E$14*'Sales price per sales channel'!$I85*'Other input expert'!E$6","v":0},{"$f":"T85*'Other input expert'!F$14*'Sales price per sales channel'!$I85*'Other input expert'!F$6","v":0},{"$f":"U85*'Other input expert'!G$14*'Sales price per sales channel'!$I85*'Other input expert'!G$6","v":0},{"$f":"V85*'Other input expert'!H$14*'Sales price per sales channel'!$I85*'Other input expert'!H$6","v":0},{"$f":"W85*'Other input expert'!I$14*'Sales price per sales channel'!$I85*'Other input expert'!I$6","v":0},{"$f":"X85*'Other input expert'!J$14*'Sales price per sales channel'!$I85*'Other input expert'!J$6","v":0},{"$f":"Y85*'Other input expert'!K$14*'Sales price per sales channel'!$I85*'Other input expert'!K$6","v":0},{"$f":"Z85*'Other input expert'!L$14*'Sales price per sales channel'!$I85*'Other input expert'!L$6","v":0},{"$f":"AA85*'Other input expert'!M$14*'Sales price per sales channel'!$I85*'Other input expert'!M$6","v":0},null,{"$f":"AC85*'Other input expert'!B$12*'Sales price per sales channel'!$G85*'Other input expert'!B$7","v":0},{"$f":"AD85*'Other input expert'!C$12*'Sales price per sales channel'!$G85*'Other input expert'!C$7","v":0},{"$f":"AE85*'Other input expert'!D$12*'Sales price per sales channel'!$G85*'Other input expert'!D$7","v":0},{"$f":"AF85*'Other input expert'!E$12*'Sales price per sales channel'!$G85*'Other input expert'!E$7","v":0},{"$f":"AG85*'Other input expert'!F$12*'Sales price per sales channel'!$G85*'Other input expert'!F$7","v":0},{"$f":"AH85*'Other input expert'!G$12*'Sales price per sales channel'!$G85*'Other input expert'!G$7","v":0},{"$f":"AI85*'Other input expert'!H$12*'Sales price per sales channel'!$G85*'Other input expert'!H$7","v":0},{"$f":"AJ85*'Other input expert'!I$12*'Sales price per sales channel'!$G85*'Other input expert'!I$7","v":0},{"$f":"AK85*'Other input expert'!J$12*'Sales price per sales channel'!$G85*'Other input expert'!J$7","v":0},{"$f":"AL85*'Other input expert'!K$12*'Sales price per sales channel'!$G85*'Other input expert'!K$7","v":0},{"$f":"AM85*'Other input expert'!L$12*'Sales price per sales channel'!$G85*'Other input expert'!L$7","v":0},{"$f":"AN85*'Other input expert'!M$12*'Sales price per sales channel'!$G85*'Other input expert'!M$7","v":0},null,{"$f":"AC85*'Other input expert'!B$13*'Sales price per sales channel'!$H85*'Other input expert'!B$7","v":0},{"$f":"AD85*'Other input expert'!C$13*'Sales price per sales channel'!$H85*'Other input expert'!C$7","v":0},{"$f":"AE85*'Other input expert'!D$13*'Sales price per sales channel'!$H85*'Other input expert'!D$7","v":0},{"$f":"AF85*'Other input expert'!E$13*'Sales price per sales channel'!$H85*'Other input expert'!E$7","v":0},{"$f":"AG85*'Other input expert'!F$13*'Sales price per sales channel'!$H85*'Other input expert'!F$7","v":0},{"$f":"AH85*'Other input expert'!G$13*'Sales price per sales channel'!$H85*'Other input expert'!G$7","v":0},{"$f":"AI85*'Other input expert'!H$13*'Sales price per sales channel'!$H85*'Other input expert'!H$7","v":0},{"$f":"AJ85*'Other input expert'!I$13*'Sales price per sales channel'!$H85*'Other input expert'!I$7","v":0},{"$f":"AK85*'Other input expert'!J$13*'Sales price per sales channel'!$H85*'Other input expert'!J$7","v":0},{"$f":"AL85*'Other input expert'!K$13*'Sales price per sales channel'!$H85*'Other input expert'!K$7","v":0},{"$f":"AM85*'Other input expert'!L$13*'Sales price per sales channel'!$H85*'Other input expert'!L$7","v":0},{"$f":"AN85*'Other input expert'!M$13*'Sales price per sales channel'!$H85*'Other input expert'!M$7","v":0},null,{"$f":"AC85*'Other input expert'!B$14*'Sales price per sales channel'!$I85*'Other input expert'!B$7","v":0},{"$f":"AD85*'Other input expert'!C$14*'Sales price per sales channel'!$I85*'Other input expert'!C$7","v":0},{"$f":"AE85*'Other input expert'!D$14*'Sales price per sales channel'!$I85*'Other input expert'!D$7","v":0},{"$f":"AF85*'Other input expert'!E$14*'Sales price per sales channel'!$I85*'Other input expert'!E$7","v":0},{"$f":"AG85*'Other input expert'!F$14*'Sales price per sales channel'!$I85*'Other input expert'!F$7","v":0},{"$f":"AH85*'Other input expert'!G$14*'Sales price per sales channel'!$I85*'Other input expert'!G$7","v":0},{"$f":"AI85*'Other input expert'!H$14*'Sales price per sales channel'!$I85*'Other input expert'!H$7","v":0},{"$f":"AJ85*'Other input expert'!I$14*'Sales price per sales channel'!$I85*'Other input expert'!I$7","v":0},{"$f":"AK85*'Other input expert'!J$14*'Sales price per sales channel'!$I85*'Other input expert'!J$7","v":0},{"$f":"AL85*'Other input expert'!K$14*'Sales price per sales channel'!$I85*'Other input expert'!K$7","v":0},{"$f":"AM85*'Other input expert'!L$14*'Sales price per sales channel'!$I85*'Other input expert'!L$7","v":0},{"$f":"AN85*'Other input expert'!M$14*'Sales price per sales channel'!$I85*'Other input expert'!M$7","v":0}]
["Humulus Lupulus","Hop",{"$f":"Plantlist!$G86*'Production list'!D87*'Other input expert'!B$4*'Other input expert'!B$8","v":0},{"$f":"Plantlist!$G86*'Production list'!E87*'Other input expert'!C$4*'Other input expert'!C$8","v":0},{"$f":"Plantlist!$G86*'Production list'!F87*'Other input expert'!D$4*'Other input expert'!D$8","v":0},{"$f":"Plantlist!$G86*'Production list'!G87*'Other input expert'!E$4*'Other input expert'!E$8","v":0},{"$f":"Plantlist!$G86*'Production list'!H87*'Other input expert'!F$4*'Other input expert'!F$8","v":0},{"$f":"Plantlist!$G86*'Production list'!I87*'Other input expert'!G$4*'Other input expert'!G$8","v":0},{"$f":"Plantlist!$G86*'Production list'!J87*'Other input expert'!H$4*'Other input expert'!H$8","v":0},{"$f":"Plantlist!$G86*'Production list'!K87*'Other input expert'!I$4*'Other input expert'!I$8","v":0},{"$f":"Plantlist!$G86*'Production list'!L87*'Other input expert'!J$4*'Other input expert'!J$8","v":0},{"$f":"Plantlist!$G86*'Production list'!M87*'Other input expert'!K$4*'Other input expert'!K$8","v":0},{"$f":"Plantlist!$G86*'Production list'!N87*'Other input expert'!L$4*'Other input expert'!L$8","v":0},{"$f":"Plantlist!$G86*'Production list'!O87*'Other input expert'!M$4*'Other input expert'!M$8","v":0},null,{"$f":"C86*'Other input expert'!B$5","v":0},{"$f":"D86*'Other input expert'!C$5","v":0},{"$f":"E86*'Other input expert'!D$5","v":0},{"$f":"F86*'Other input expert'!E$5","v":0},{"$f":"G86*'Other input expert'!F$5","v":0},{"$f":"H86*'Other input expert'!G$5","v":0},{"$f":"I86*'Other input expert'!H$5","v":0},{"$f":"J86*'Other input expert'!I$5","v":0},{"$f":"K86*'Other input expert'!J$5","v":0},{"$f":"L86*'Other input expert'!K$5","v":0},{"$f":"M86*'Other input expert'!L$5","v":0},{"$f":"N86*'Other input expert'!M$5","v":0},null,{"$f":"C86*(100%-'Other input expert'!B$5)","v":0},{"$f":"D86*(100%-'Other input expert'!C$5)","v":0},{"$f":"E86*(100%-'Other input expert'!D$5)","v":0},{"$f":"F86*(100%-'Other input expert'!E$5)","v":0},{"$f":"G86*(100%-'Other input expert'!F$5)","v":0},{"$f":"H86*(100%-'Other input expert'!G$5)","v":0},{"$f":"I86*(100%-'Other input expert'!H$5)","v":0},{"$f":"J86*(100%-'Other input expert'!I$5)","v":0},{"$f":"K86*(100%-'Other input expert'!J$5)","v":0},{"$f":"L86*(100%-'Other input expert'!K$5)","v":0},{"$f":"M86*(100%-'Other input expert'!L$5)","v":0},{"$f":"N86*(100%-'Other input expert'!M$5)","v":0},null,{"$f":"P86*'Other input expert'!B$12*'Sales price per sales channel'!$G86*'Other input expert'!B$6","v":0},{"$f":"Q86*'Other input expert'!C$12*'Sales price per sales channel'!$G86*'Other input expert'!C$6","v":0},{"$f":"R86*'Other input expert'!D$12*'Sales price per sales channel'!$G86*'Other input expert'!D$6","v":0},{"$f":"S86*'Other input expert'!E$12*'Sales price per sales channel'!$G86*'Other input expert'!E$6","v":0},{"$f":"T86*'Other input expert'!F$12*'Sales price per sales channel'!$G86*'Other input expert'!F$6","v":0},{"$f":"U86*'Other input expert'!G$12*'Sales price per sales channel'!$G86*'Other input expert'!G$6","v":0},{"$f":"V86*'Other input expert'!H$12*'Sales price per sales channel'!$G86*'Other input expert'!H$6","v":0},{"$f":"W86*'Other input expert'!I$12*'Sales price per sales channel'!$G86*'Other input expert'!I$6","v":0},{"$f":"X86*'Other input expert'!J$12*'Sales price per sales channel'!$G86*'Other input expert'!J$6","v":0},{"$f":"Y86*'Other input expert'!K$12*'Sales price per sales channel'!$G86*'Other input expert'!K$6","v":0},{"$f":"Z86*'Other input expert'!L$12*'Sales price per sales channel'!$G86*'Other input expert'!L$6","v":0},{"$f":"AA86*'Other input expert'!M$12*'Sales price per sales channel'!$G86*'Other input expert'!M$6","v":0},null,{"$f":"P86*'Other input expert'!B$13*'Sales price per sales channel'!$H86*'Other input expert'!B$6","v":0},{"$f":"Q86*'Other input expert'!C$13*'Sales price per sales channel'!$H86*'Other input expert'!C$6","v":0},{"$f":"R86*'Other input expert'!D$13*'Sales price per sales channel'!$H86*'Other input expert'!D$6","v":0},{"$f":"S86*'Other input expert'!E$13*'Sales price per sales channel'!$H86*'Other input expert'!E$6","v":0},{"$f":"T86*'Other input expert'!F$13*'Sales price per sales channel'!$H86*'Other input expert'!F$6","v":0},{"$f":"U86*'Other input expert'!G$13*'Sales price per sales channel'!$H86*'Other input expert'!G$6","v":0},{"$f":"V86*'Other input expert'!H$13*'Sales price per sales channel'!$H86*'Other input expert'!H$6","v":0},{"$f":"W86*'Other input expert'!I$13*'Sales price per sales channel'!$H86*'Other input expert'!I$6","v":0},{"$f":"X86*'Other input expert'!J$13*'Sales price per sales channel'!$H86*'Other input expert'!J$6","v":0},{"$f":"Y86*'Other input expert'!K$13*'Sales price per sales channel'!$H86*'Other input expert'!K$6","v":0},{"$f":"Z86*'Other input expert'!L$13*'Sales price per sales channel'!$H86*'Other input expert'!L$6","v":0},{"$f":"AA86*'Other input expert'!M$13*'Sales price per sales channel'!$H86*'Other input expert'!M$6","v":0},null,{"$f":"P86*'Other input expert'!B$14*'Sales price per sales channel'!$I86*'Other input expert'!B$6","v":0},{"$f":"Q86*'Other input expert'!C$14*'Sales price per sales channel'!$I86*'Other input expert'!C$6","v":0},{"$f":"R86*'Other input expert'!D$14*'Sales price per sales channel'!$I86*'Other input expert'!D$6","v":0},{"$f":"S86*'Other input expert'!E$14*'Sales price per sales channel'!$I86*'Other input expert'!E$6","v":0},{"$f":"T86*'Other input expert'!F$14*'Sales price per sales channel'!$I86*'Other input expert'!F$6","v":0},{"$f":"U86*'Other input expert'!G$14*'Sales price per sales channel'!$I86*'Other input expert'!G$6","v":0},{"$f":"V86*'Other input expert'!H$14*'Sales price per sales channel'!$I86*'Other input expert'!H$6","v":0},{"$f":"W86*'Other input expert'!I$14*'Sales price per sales channel'!$I86*'Other input expert'!I$6","v":0},{"$f":"X86*'Other input expert'!J$14*'Sales price per sales channel'!$I86*'Other input expert'!J$6","v":0},{"$f":"Y86*'Other input expert'!K$14*'Sales price per sales channel'!$I86*'Other input expert'!K$6","v":0},{"$f":"Z86*'Other input expert'!L$14*'Sales price per sales channel'!$I86*'Other input expert'!L$6","v":0},{"$f":"AA86*'Other input expert'!M$14*'Sales price per sales channel'!$I86*'Other input expert'!M$6","v":0},null,{"$f":"AC86*'Other input expert'!B$12*'Sales price per sales channel'!$G86*'Other input expert'!B$7","v":0},{"$f":"AD86*'Other input expert'!C$12*'Sales price per sales channel'!$G86*'Other input expert'!C$7","v":0},{"$f":"AE86*'Other input expert'!D$12*'Sales price per sales channel'!$G86*'Other input expert'!D$7","v":0},{"$f":"AF86*'Other input expert'!E$12*'Sales price per sales channel'!$G86*'Other input expert'!E$7","v":0},{"$f":"AG86*'Other input expert'!F$12*'Sales price per sales channel'!$G86*'Other input expert'!F$7","v":0},{"$f":"AH86*'Other input expert'!G$12*'Sales price per sales channel'!$G86*'Other input expert'!G$7","v":0},{"$f":"AI86*'Other input expert'!H$12*'Sales price per sales channel'!$G86*'Other input expert'!H$7","v":0},{"$f":"AJ86*'Other input expert'!I$12*'Sales price per sales channel'!$G86*'Other input expert'!I$7","v":0},{"$f":"AK86*'Other input expert'!J$12*'Sales price per sales channel'!$G86*'Other input expert'!J$7","v":0},{"$f":"AL86*'Other input expert'!K$12*'Sales price per sales channel'!$G86*'Other input expert'!K$7","v":0},{"$f":"AM86*'Other input expert'!L$12*'Sales price per sales channel'!$G86*'Other input expert'!L$7","v":0},{"$f":"AN86*'Other input expert'!M$12*'Sales price per sales channel'!$G86*'Other input expert'!M$7","v":0},null,{"$f":"AC86*'Other input expert'!B$13*'Sales price per sales channel'!$H86*'Other input expert'!B$7","v":0},{"$f":"AD86*'Other input expert'!C$13*'Sales price per sales channel'!$H86*'Other input expert'!C$7","v":0},{"$f":"AE86*'Other input expert'!D$13*'Sales price per sales channel'!$H86*'Other input expert'!D$7","v":0},{"$f":"AF86*'Other input expert'!E$13*'Sales price per sales channel'!$H86*'Other input expert'!E$7","v":0},{"$f":"AG86*'Other input expert'!F$13*'Sales price per sales channel'!$H86*'Other input expert'!F$7","v":0},{"$f":"AH86*'Other input expert'!G$13*'Sales price per sales channel'!$H86*'Other input expert'!G$7","v":0},{"$f":"AI86*'Other input expert'!H$13*'Sales price per sales channel'!$H86*'Other input expert'!H$7","v":0},{"$f":"AJ86*'Other input expert'!I$13*'Sales price per sales channel'!$H86*'Other input expert'!I$7","v":0},{"$f":"AK86*'Other input expert'!J$13*'Sales price per sales channel'!$H86*'Other input expert'!J$7","v":0},{"$f":"AL86*'Other input expert'!K$13*'Sales price per sales channel'!$H86*'Other input expert'!K$7","v":0},{"$f":"AM86*'Other input expert'!L$13*'Sales price per sales channel'!$H86*'Other input expert'!L$7","v":0},{"$f":"AN86*'Other input expert'!M$13*'Sales price per sales channel'!$H86*'Other input expert'!M$7","v":0},null,{"$f":"AC86*'Other input expert'!B$14*'Sales price per sales channel'!$I86*'Other input expert'!B$7","v":0},{"$f":"AD86*'Other input expert'!C$14*'Sales price per sales channel'!$I86*'Other input expert'!C$7","v":0},{"$f":"AE86*'Other input expert'!D$14*'Sales price per sales channel'!$I86*'Other input expert'!D$7","v":0},{"$f":"AF86*'Other input expert'!E$14*'Sales price per sales channel'!$I86*'Other input expert'!E$7","v":0},{"$f":"AG86*'Other input expert'!F$14*'Sales price per sales channel'!$I86*'Other input expert'!F$7","v":0},{"$f":"AH86*'Other input expert'!G$14*'Sales price per sales channel'!$I86*'Other input expert'!G$7","v":0},{"$f":"AI86*'Other input expert'!H$14*'Sales price per sales channel'!$I86*'Other input expert'!H$7","v":0},{"$f":"AJ86*'Other input expert'!I$14*'Sales price per sales channel'!$I86*'Other input expert'!I$7","v":0},{"$f":"AK86*'Other input expert'!J$14*'Sales price per sales channel'!$I86*'Other input expert'!J$7","v":0},{"$f":"AL86*'Other input expert'!K$14*'Sales price per sales channel'!$I86*'Other input expert'!K$7","v":0},{"$f":"AM86*'Other input expert'!L$14*'Sales price per sales channel'!$I86*'Other input expert'!L$7","v":0},{"$f":"AN86*'Other input expert'!M$14*'Sales price per sales channel'!$I86*'Other input expert'!M$7","v":0}]
["Hydrangea serrata","Hydrangea",{"$f":"Plantlist!$G87*'Production list'!D88*'Other input expert'!B$4*'Other input expert'!B$8","v":0},{"$f":"Plantlist!$G87*'Production list'!E88*'Other input expert'!C$4*'Other input expert'!C$8","v":0},{"$f":"Plantlist!$G87*'Production list'!F88*'Other input expert'!D$4*'Other input expert'!D$8","v":0},{"$f":"Plantlist!$G87*'Production list'!G88*'Other input expert'!E$4*'Other input expert'!E$8","v":0},{"$f":"Plantlist!$G87*'Production list'!H88*'Other input expert'!F$4*'Other input expert'!F$8","v":0},{"$f":"Plantlist!$G87*'Production list'!I88*'Other input expert'!G$4*'Other input expert'!G$8","v":0},{"$f":"Plantlist!$G87*'Production list'!J88*'Other input expert'!H$4*'Other input expert'!H$8","v":0},{"$f":"Plantlist!$G87*'Production list'!K88*'Other input expert'!I$4*'Other input expert'!I$8","v":0},{"$f":"Plantlist!$G87*'Production list'!L88*'Other input expert'!J$4*'Other input expert'!J$8","v":0},{"$f":"Plantlist!$G87*'Production list'!M88*'Other input expert'!K$4*'Other input expert'!K$8","v":0},{"$f":"Plantlist!$G87*'Production list'!N88*'Other input expert'!L$4*'Other input expert'!L$8","v":0},{"$f":"Plantlist!$G87*'Production list'!O88*'Other input expert'!M$4*'Other input expert'!M$8","v":0},null,{"$f":"C87*'Other input expert'!B$5","v":0},{"$f":"D87*'Other input expert'!C$5","v":0},{"$f":"E87*'Other input expert'!D$5","v":0},{"$f":"F87*'Other input expert'!E$5","v":0},{"$f":"G87*'Other input expert'!F$5","v":0},{"$f":"H87*'Other input expert'!G$5","v":0},{"$f":"I87*'Other input expert'!H$5","v":0},{"$f":"J87*'Other input expert'!I$5","v":0},{"$f":"K87*'Other input expert'!J$5","v":0},{"$f":"L87*'Other input expert'!K$5","v":0},{"$f":"M87*'Other input expert'!L$5","v":0},{"$f":"N87*'Other input expert'!M$5","v":0},null,{"$f":"C87*(100%-'Other input expert'!B$5)","v":0},{"$f":"D87*(100%-'Other input expert'!C$5)","v":0},{"$f":"E87*(100%-'Other input expert'!D$5)","v":0},{"$f":"F87*(100%-'Other input expert'!E$5)","v":0},{"$f":"G87*(100%-'Other input expert'!F$5)","v":0},{"$f":"H87*(100%-'Other input expert'!G$5)","v":0},{"$f":"I87*(100%-'Other input expert'!H$5)","v":0},{"$f":"J87*(100%-'Other input expert'!I$5)","v":0},{"$f":"K87*(100%-'Other input expert'!J$5)","v":0},{"$f":"L87*(100%-'Other input expert'!K$5)","v":0},{"$f":"M87*(100%-'Other input expert'!L$5)","v":0},{"$f":"N87*(100%-'Other input expert'!M$5)","v":0},null,{"$f":"P87*'Other input expert'!B$12*'Sales price per sales channel'!$G87*'Other input expert'!B$6","v":0},{"$f":"Q87*'Other input expert'!C$12*'Sales price per sales channel'!$G87*'Other input expert'!C$6","v":0},{"$f":"R87*'Other input expert'!D$12*'Sales price per sales channel'!$G87*'Other input expert'!D$6","v":0},{"$f":"S87*'Other input expert'!E$12*'Sales price per sales channel'!$G87*'Other input expert'!E$6","v":0},{"$f":"T87*'Other input expert'!F$12*'Sales price per sales channel'!$G87*'Other input expert'!F$6","v":0},{"$f":"U87*'Other input expert'!G$12*'Sales price per sales channel'!$G87*'Other input expert'!G$6","v":0},{"$f":"V87*'Other input expert'!H$12*'Sales price per sales channel'!$G87*'Other input expert'!H$6","v":0},{"$f":"W87*'Other input expert'!I$12*'Sales price per sales channel'!$G87*'Other input expert'!I$6","v":0},{"$f":"X87*'Other input expert'!J$12*'Sales price per sales channel'!$G87*'Other input expert'!J$6","v":0},{"$f":"Y87*'Other input expert'!K$12*'Sales price per sales channel'!$G87*'Other input expert'!K$6","v":0},{"$f":"Z87*'Other input expert'!L$12*'Sales price per sales channel'!$G87*'Other input expert'!L$6","v":0},{"$f":"AA87*'Other input expert'!M$12*'Sales price per sales channel'!$G87*'Other input expert'!M$6","v":0},null,{"$f":"P87*'Other input expert'!B$13*'Sales price per sales channel'!$H87*'Other input expert'!B$6","v":0},{"$f":"Q87*'Other input expert'!C$13*'Sales price per sales channel'!$H87*'Other input expert'!C$6","v":0},{"$f":"R87*'Other input expert'!D$13*'Sales price per sales channel'!$H87*'Other input expert'!D$6","v":0},{"$f":"S87*'Other input expert'!E$13*'Sales price per sales channel'!$H87*'Other input expert'!E$6","v":0},{"$f":"T87*'Other input expert'!F$13*'Sales price per sales channel'!$H87*'Other input expert'!F$6","v":0},{"$f":"U87*'Other input expert'!G$13*'Sales price per sales channel'!$H87*'Other input expert'!G$6","v":0},{"$f":"V87*'Other input expert'!H$13*'Sales price per sales channel'!$H87*'Other input expert'!H$6","v":0},{"$f":"W87*'Other input expert'!I$13*'Sales price per sales channel'!$H87*'Other input expert'!I$6","v":0},{"$f":"X87*'Other input expert'!J$13*'Sales price per sales channel'!$H87*'Other input expert'!J$6","v":0},{"$f":"Y87*'Other input expert'!K$13*'Sales price per sales channel'!$H87*'Other input expert'!K$6","v":0},{"$f":"Z87*'Other input expert'!L$13*'Sales price per sales channel'!$H87*'Other input expert'!L$6","v":0},{"$f":"AA87*'Other input expert'!M$13*'Sales price per sales channel'!$H87*'Other input expert'!M$6","v":0},null,{"$f":"P87*'Other input expert'!B$14*'Sales price per sales channel'!$I87*'Other input expert'!B$6","v":0},{"$f":"Q87*'Other input expert'!C$14*'Sales price per sales channel'!$I87*'Other input expert'!C$6","v":0},{"$f":"R87*'Other input expert'!D$14*'Sales price per sales channel'!$I87*'Other input expert'!D$6","v":0},{"$f":"S87*'Other input expert'!E$14*'Sales price per sales channel'!$I87*'Other input expert'!E$6","v":0},{"$f":"T87*'Other input expert'!F$14*'Sales price per sales channel'!$I87*'Other input expert'!F$6","v":0},{"$f":"U87*'Other input expert'!G$14*'Sales price per sales channel'!$I87*'Other input expert'!G$6","v":0},{"$f":"V87*'Other input expert'!H$14*'Sales price per sales channel'!$I87*'Other input expert'!H$6","v":0},{"$f":"W87*'Other input expert'!I$14*'Sales price per sales channel'!$I87*'Other input expert'!I$6","v":0},{"$f":"X87*'Other input expert'!J$14*'Sales price per sales channel'!$I87*'Other input expert'!J$6","v":0},{"$f":"Y87*'Other input expert'!K$14*'Sales price per sales channel'!$I87*'Other input expert'!K$6","v":0},{"$f":"Z87*'Other input expert'!L$14*'Sales price per sales channel'!$I87*'Other input expert'!L$6","v":0},{"$f":"AA87*'Other input expert'!M$14*'Sales price per sales channel'!$I87*'Other input expert'!M$6","v":0},null,{"$f":"AC87*'Other input expert'!B$12*'Sales price per sales channel'!$G87*'Other input expert'!B$7","v":0},{"$f":"AD87*'Other input expert'!C$12*'Sales price per sales channel'!$G87*'Other input expert'!C$7","v":0},{"$f":"AE87*'Other input expert'!D$12*'Sales price per sales channel'!$G87*'Other input expert'!D$7","v":0},{"$f":"AF87*'Other input expert'!E$12*'Sales price per sales channel'!$G87*'Other input expert'!E$7","v":0},{"$f":"AG87*'Other input expert'!F$12*'Sales price per sales channel'!$G87*'Other input expert'!F$7","v":0},{"$f":"AH87*'Other input expert'!G$12*'Sales price per sales channel'!$G87*'Other input expert'!G$7","v":0},{"$f":"AI87*'Other input expert'!H$12*'Sales price per sales channel'!$G87*'Other input expert'!H$7","v":0},{"$f":"AJ87*'Other input expert'!I$12*'Sales price per sales channel'!$G87*'Other input expert'!I$7","v":0},{"$f":"AK87*'Other input expert'!J$12*'Sales price per sales channel'!$G87*'Other input expert'!J$7","v":0},{"$f":"AL87*'Other input expert'!K$12*'Sales price per sales channel'!$G87*'Other input expert'!K$7","v":0},{"$f":"AM87*'Other input expert'!L$12*'Sales price per sales channel'!$G87*'Other input expert'!L$7","v":0},{"$f":"AN87*'Other input expert'!M$12*'Sales price per sales channel'!$G87*'Other input expert'!M$7","v":0},null,{"$f":"AC87*'Other input expert'!B$13*'Sales price per sales channel'!$H87*'Other input expert'!B$7","v":0},{"$f":"AD87*'Other input expert'!C$13*'Sales price per sales channel'!$H87*'Other input expert'!C$7","v":0},{"$f":"AE87*'Other input expert'!D$13*'Sales price per sales channel'!$H87*'Other input expert'!D$7","v":0},{"$f":"AF87*'Other input expert'!E$13*'Sales price per sales channel'!$H87*'Other input expert'!E$7","v":0},{"$f":"AG87*'Other input expert'!F$13*'Sales price per sales channel'!$H87*'Other input expert'!F$7","v":0},{"$f":"AH87*'Other input expert'!G$13*'Sales price per sales channel'!$H87*'Other input expert'!G$7","v":0},{"$f":"AI87*'Other input expert'!H$13*'Sales price per sales channel'!$H87*'Other input expert'!H$7","v":0},{"$f":"AJ87*'Other input expert'!I$13*'Sales price per sales channel'!$H87*'Other input expert'!I$7","v":0},{"$f":"AK87*'Other input expert'!J$13*'Sales price per sales channel'!$H87*'Other input expert'!J$7","v":0},{"$f":"AL87*'Other input expert'!K$13*'Sales price per sales channel'!$H87*'Other input expert'!K$7","v":0},{"$f":"AM87*'Other input expert'!L$13*'Sales price per sales channel'!$H87*'Other input expert'!L$7","v":0},{"$f":"AN87*'Other input expert'!M$13*'Sales price per sales channel'!$H87*'Other input expert'!M$7","v":0},null,{"$f":"AC87*'Other input expert'!B$14*'Sales price per sales channel'!$I87*'Other input expert'!B$7","v":0},{"$f":"AD87*'Other input expert'!C$14*'Sales price per sales channel'!$I87*'Other input expert'!C$7","v":0},{"$f":"AE87*'Other input expert'!D$14*'Sales price per sales channel'!$I87*'Other input expert'!D$7","v":0},{"$f":"AF87*'Other input expert'!E$14*'Sales price per sales channel'!$I87*'Other input expert'!E$7","v":0},{"$f":"AG87*'Other input expert'!F$14*'Sales price per sales channel'!$I87*'Other input expert'!F$7","v":0},{"$f":"AH87*'Other input expert'!G$14*'Sales price per sales channel'!$I87*'Other input expert'!G$7","v":0},{"$f":"AI87*'Other input expert'!H$14*'Sales price per sales channel'!$I87*'Other input expert'!H$7","v":0},{"$f":"AJ87*'Other input expert'!I$14*'Sales price per sales channel'!$I87*'Other input expert'!I$7","v":0},{"$f":"AK87*'Other input expert'!J$14*'Sales price per sales channel'!$I87*'Other input expert'!J$7","v":0},{"$f":"AL87*'Other input expert'!K$14*'Sales price per sales channel'!$I87*'Other input expert'!K$7","v":0},{"$f":"AM87*'Other input expert'!L$14*'Sales price per sales channel'!$I87*'Other input expert'!L$7","v":0},{"$f":"AN87*'Other input expert'!M$14*'Sales price per sales channel'!$I87*'Other input expert'!M$7","v":0}]
["Hypsizygus tessellatus","Beech mushroom",{"$f":"Plantlist!$G88*'Production list'!D89*'Other input expert'!B$4*'Other input expert'!B$8","v":0},{"$f":"Plantlist!$G88*'Production list'!E89*'Other input expert'!C$4*'Other input expert'!C$8","v":0},{"$f":"Plantlist!$G88*'Production list'!F89*'Other input expert'!D$4*'Other input expert'!D$8","v":0},{"$f":"Plantlist!$G88*'Production list'!G89*'Other input expert'!E$4*'Other input expert'!E$8","v":0},{"$f":"Plantlist!$G88*'Production list'!H89*'Other input expert'!F$4*'Other input expert'!F$8","v":0},{"$f":"Plantlist!$G88*'Production list'!I89*'Other input expert'!G$4*'Other input expert'!G$8","v":0},{"$f":"Plantlist!$G88*'Production list'!J89*'Other input expert'!H$4*'Other input expert'!H$8","v":0},{"$f":"Plantlist!$G88*'Production list'!K89*'Other input expert'!I$4*'Other input expert'!I$8","v":0},{"$f":"Plantlist!$G88*'Production list'!L89*'Other input expert'!J$4*'Other input expert'!J$8","v":0},{"$f":"Plantlist!$G88*'Production list'!M89*'Other input expert'!K$4*'Other input expert'!K$8","v":0},{"$f":"Plantlist!$G88*'Production list'!N89*'Other input expert'!L$4*'Other input expert'!L$8","v":0},{"$f":"Plantlist!$G88*'Production list'!O89*'Other input expert'!M$4*'Other input expert'!M$8","v":0},null,{"$f":"C88*'Other input expert'!B$5","v":0},{"$f":"D88*'Other input expert'!C$5","v":0},{"$f":"E88*'Other input expert'!D$5","v":0},{"$f":"F88*'Other input expert'!E$5","v":0},{"$f":"G88*'Other input expert'!F$5","v":0},{"$f":"H88*'Other input expert'!G$5","v":0},{"$f":"I88*'Other input expert'!H$5","v":0},{"$f":"J88*'Other input expert'!I$5","v":0},{"$f":"K88*'Other input expert'!J$5","v":0},{"$f":"L88*'Other input expert'!K$5","v":0},{"$f":"M88*'Other input expert'!L$5","v":0},{"$f":"N88*'Other input expert'!M$5","v":0},null,{"$f":"C88*(100%-'Other input expert'!B$5)","v":0},{"$f":"D88*(100%-'Other input expert'!C$5)","v":0},{"$f":"E88*(100%-'Other input expert'!D$5)","v":0},{"$f":"F88*(100%-'Other input expert'!E$5)","v":0},{"$f":"G88*(100%-'Other input expert'!F$5)","v":0},{"$f":"H88*(100%-'Other input expert'!G$5)","v":0},{"$f":"I88*(100%-'Other input expert'!H$5)","v":0},{"$f":"J88*(100%-'Other input expert'!I$5)","v":0},{"$f":"K88*(100%-'Other input expert'!J$5)","v":0},{"$f":"L88*(100%-'Other input expert'!K$5)","v":0},{"$f":"M88*(100%-'Other input expert'!L$5)","v":0},{"$f":"N88*(100%-'Other input expert'!M$5)","v":0},null,{"$f":"P88*'Other input expert'!B$12*'Sales price per sales channel'!$G88*'Other input expert'!B$6","v":0},{"$f":"Q88*'Other input expert'!C$12*'Sales price per sales channel'!$G88*'Other input expert'!C$6","v":0},{"$f":"R88*'Other input expert'!D$12*'Sales price per sales channel'!$G88*'Other input expert'!D$6","v":0},{"$f":"S88*'Other input expert'!E$12*'Sales price per sales channel'!$G88*'Other input expert'!E$6","v":0},{"$f":"T88*'Other input expert'!F$12*'Sales price per sales channel'!$G88*'Other input expert'!F$6","v":0},{"$f":"U88*'Other input expert'!G$12*'Sales price per sales channel'!$G88*'Other input expert'!G$6","v":0},{"$f":"V88*'Other input expert'!H$12*'Sales price per sales channel'!$G88*'Other input expert'!H$6","v":0},{"$f":"W88*'Other input expert'!I$12*'Sales price per sales channel'!$G88*'Other input expert'!I$6","v":0},{"$f":"X88*'Other input expert'!J$12*'Sales price per sales channel'!$G88*'Other input expert'!J$6","v":0},{"$f":"Y88*'Other input expert'!K$12*'Sales price per sales channel'!$G88*'Other input expert'!K$6","v":0},{"$f":"Z88*'Other input expert'!L$12*'Sales price per sales channel'!$G88*'Other input expert'!L$6","v":0},{"$f":"AA88*'Other input expert'!M$12*'Sales price per sales channel'!$G88*'Other input expert'!M$6","v":0},null,{"$f":"P88*'Other input expert'!B$13*'Sales price per sales channel'!$H88*'Other input expert'!B$6","v":0},{"$f":"Q88*'Other input expert'!C$13*'Sales price per sales channel'!$H88*'Other input expert'!C$6","v":0},{"$f":"R88*'Other input expert'!D$13*'Sales price per sales channel'!$H88*'Other input expert'!D$6","v":0},{"$f":"S88*'Other input expert'!E$13*'Sales price per sales channel'!$H88*'Other input expert'!E$6","v":0},{"$f":"T88*'Other input expert'!F$13*'Sales price per sales channel'!$H88*'Other input expert'!F$6","v":0},{"$f":"U88*'Other input expert'!G$13*'Sales price per sales channel'!$H88*'Other input expert'!G$6","v":0},{"$f":"V88*'Other input expert'!H$13*'Sales price per sales channel'!$H88*'Other input expert'!H$6","v":0},{"$f":"W88*'Other input expert'!I$13*'Sales price per sales channel'!$H88*'Other input expert'!I$6","v":0},{"$f":"X88*'Other input expert'!J$13*'Sales price per sales channel'!$H88*'Other input expert'!J$6","v":0},{"$f":"Y88*'Other input expert'!K$13*'Sales price per sales channel'!$H88*'Other input expert'!K$6","v":0},{"$f":"Z88*'Other input expert'!L$13*'Sales price per sales channel'!$H88*'Other input expert'!L$6","v":0},{"$f":"AA88*'Other input expert'!M$13*'Sales price per sales channel'!$H88*'Other input expert'!M$6","v":0},null,{"$f":"P88*'Other input expert'!B$14*'Sales price per sales channel'!$I88*'Other input expert'!B$6","v":0},{"$f":"Q88*'Other input expert'!C$14*'Sales price per sales channel'!$I88*'Other input expert'!C$6","v":0},{"$f":"R88*'Other input expert'!D$14*'Sales price per sales channel'!$I88*'Other input expert'!D$6","v":0},{"$f":"S88*'Other input expert'!E$14*'Sales price per sales channel'!$I88*'Other input expert'!E$6","v":0},{"$f":"T88*'Other input expert'!F$14*'Sales price per sales channel'!$I88*'Other input expert'!F$6","v":0},{"$f":"U88*'Other input expert'!G$14*'Sales price per sales channel'!$I88*'Other input expert'!G$6","v":0},{"$f":"V88*'Other input expert'!H$14*'Sales price per sales channel'!$I88*'Other input expert'!H$6","v":0},{"$f":"W88*'Other input expert'!I$14*'Sales price per sales channel'!$I88*'Other input expert'!I$6","v":0},{"$f":"X88*'Other input expert'!J$14*'Sales price per sales channel'!$I88*'Other input expert'!J$6","v":0},{"$f":"Y88*'Other input expert'!K$14*'Sales price per sales channel'!$I88*'Other input expert'!K$6","v":0},{"$f":"Z88*'Other input expert'!L$14*'Sales price per sales channel'!$I88*'Other input expert'!L$6","v":0},{"$f":"AA88*'Other input expert'!M$14*'Sales price per sales channel'!$I88*'Other input expert'!M$6","v":0},null,{"$f":"AC88*'Other input expert'!B$12*'Sales price per sales channel'!$G88*'Other input expert'!B$7","v":0},{"$f":"AD88*'Other input expert'!C$12*'Sales price per sales channel'!$G88*'Other input expert'!C$7","v":0},{"$f":"AE88*'Other input expert'!D$12*'Sales price per sales channel'!$G88*'Other input expert'!D$7","v":0},{"$f":"AF88*'Other input expert'!E$12*'Sales price per sales channel'!$G88*'Other input expert'!E$7","v":0},{"$f":"AG88*'Other input expert'!F$12*'Sales price per sales channel'!$G88*'Other input expert'!F$7","v":0},{"$f":"AH88*'Other input expert'!G$12*'Sales price per sales channel'!$G88*'Other input expert'!G$7","v":0},{"$f":"AI88*'Other input expert'!H$12*'Sales price per sales channel'!$G88*'Other input expert'!H$7","v":0},{"$f":"AJ88*'Other input expert'!I$12*'Sales price per sales channel'!$G88*'Other input expert'!I$7","v":0},{"$f":"AK88*'Other input expert'!J$12*'Sales price per sales channel'!$G88*'Other input expert'!J$7","v":0},{"$f":"AL88*'Other input expert'!K$12*'Sales price per sales channel'!$G88*'Other input expert'!K$7","v":0},{"$f":"AM88*'Other input expert'!L$12*'Sales price per sales channel'!$G88*'Other input expert'!L$7","v":0},{"$f":"AN88*'Other input expert'!M$12*'Sales price per sales channel'!$G88*'Other input expert'!M$7","v":0},null,{"$f":"AC88*'Other input expert'!B$13*'Sales price per sales channel'!$H88*'Other input expert'!B$7","v":0},{"$f":"AD88*'Other input expert'!C$13*'Sales price per sales channel'!$H88*'Other input expert'!C$7","v":0},{"$f":"AE88*'Other input expert'!D$13*'Sales price per sales channel'!$H88*'Other input expert'!D$7","v":0},{"$f":"AF88*'Other input expert'!E$13*'Sales price per sales channel'!$H88*'Other input expert'!E$7","v":0},{"$f":"AG88*'Other input expert'!F$13*'Sales price per sales channel'!$H88*'Other input expert'!F$7","v":0},{"$f":"AH88*'Other input expert'!G$13*'Sales price per sales channel'!$H88*'Other input expert'!G$7","v":0},{"$f":"AI88*'Other input expert'!H$13*'Sales price per sales channel'!$H88*'Other input expert'!H$7","v":0},{"$f":"AJ88*'Other input expert'!I$13*'Sales price per sales channel'!$H88*'Other input expert'!I$7","v":0},{"$f":"AK88*'Other input expert'!J$13*'Sales price per sales channel'!$H88*'Other input expert'!J$7","v":0},{"$f":"AL88*'Other input expert'!K$13*'Sales price per sales channel'!$H88*'Other input expert'!K$7","v":0},{"$f":"AM88*'Other input expert'!L$13*'Sales price per sales channel'!$H88*'Other input expert'!L$7","v":0},{"$f":"AN88*'Other input expert'!M$13*'Sales price per sales channel'!$H88*'Other input expert'!M$7","v":0},null,{"$f":"AC88*'Other input expert'!B$14*'Sales price per sales channel'!$I88*'Other input expert'!B$7","v":0},{"$f":"AD88*'Other input expert'!C$14*'Sales price per sales channel'!$I88*'Other input expert'!C$7","v":0},{"$f":"AE88*'Other input expert'!D$14*'Sales price per sales channel'!$I88*'Other input expert'!D$7","v":0},{"$f":"AF88*'Other input expert'!E$14*'Sales price per sales channel'!$I88*'Other input expert'!E$7","v":0},{"$f":"AG88*'Other input expert'!F$14*'Sales price per sales channel'!$I88*'Other input expert'!F$7","v":0},{"$f":"AH88*'Other input expert'!G$14*'Sales price per sales channel'!$I88*'Other input expert'!G$7","v":0},{"$f":"AI88*'Other input expert'!H$14*'Sales price per sales channel'!$I88*'Other input expert'!H$7","v":0},{"$f":"AJ88*'Other input expert'!I$14*'Sales price per sales channel'!$I88*'Other input expert'!I$7","v":0},{"$f":"AK88*'Other input expert'!J$14*'Sales price per sales channel'!$I88*'Other input expert'!J$7","v":0},{"$f":"AL88*'Other input expert'!K$14*'Sales price per sales channel'!$I88*'Other input expert'!K$7","v":0},{"$f":"AM88*'Other input expert'!L$14*'Sales price per sales channel'!$I88*'Other input expert'!L$7","v":0},{"$f":"AN88*'Other input expert'!M$14*'Sales price per sales channel'!$I88*'Other input expert'!M$7","v":0}]
["Ilex aquifolium","Holly",{"$f":"Plantlist!$G89*'Production list'!D90*'Other input expert'!B$4*'Other input expert'!B$8","v":0},{"$f":"Plantlist!$G89*'Production list'!E90*'Other input expert'!C$4*'Other input expert'!C$8","v":0},{"$f":"Plantlist!$G89*'Production list'!F90*'Other input expert'!D$4*'Other input expert'!D$8","v":0},{"$f":"Plantlist!$G89*'Production list'!G90*'Other input expert'!E$4*'Other input expert'!E$8","v":0},{"$f":"Plantlist!$G89*'Production list'!H90*'Other input expert'!F$4*'Other input expert'!F$8","v":0},{"$f":"Plantlist!$G89*'Production list'!I90*'Other input expert'!G$4*'Other input expert'!G$8","v":0},{"$f":"Plantlist!$G89*'Production list'!J90*'Other input expert'!H$4*'Other input expert'!H$8","v":0},{"$f":"Plantlist!$G89*'Production list'!K90*'Other input expert'!I$4*'Other input expert'!I$8","v":0},{"$f":"Plantlist!$G89*'Production list'!L90*'Other input expert'!J$4*'Other input expert'!J$8","v":0},{"$f":"Plantlist!$G89*'Production list'!M90*'Other input expert'!K$4*'Other input expert'!K$8","v":0},{"$f":"Plantlist!$G89*'Production list'!N90*'Other input expert'!L$4*'Other input expert'!L$8","v":0},{"$f":"Plantlist!$G89*'Production list'!O90*'Other input expert'!M$4*'Other input expert'!M$8","v":0},null,{"$f":"C89*'Other input expert'!B$5","v":0},{"$f":"D89*'Other input expert'!C$5","v":0},{"$f":"E89*'Other input expert'!D$5","v":0},{"$f":"F89*'Other input expert'!E$5","v":0},{"$f":"G89*'Other input expert'!F$5","v":0},{"$f":"H89*'Other input expert'!G$5","v":0},{"$f":"I89*'Other input expert'!H$5","v":0},{"$f":"J89*'Other input expert'!I$5","v":0},{"$f":"K89*'Other input expert'!J$5","v":0},{"$f":"L89*'Other input expert'!K$5","v":0},{"$f":"M89*'Other input expert'!L$5","v":0},{"$f":"N89*'Other input expert'!M$5","v":0},null,{"$f":"C89*(100%-'Other input expert'!B$5)","v":0},{"$f":"D89*(100%-'Other input expert'!C$5)","v":0},{"$f":"E89*(100%-'Other input expert'!D$5)","v":0},{"$f":"F89*(100%-'Other input expert'!E$5)","v":0},{"$f":"G89*(100%-'Other input expert'!F$5)","v":0},{"$f":"H89*(100%-'Other input expert'!G$5)","v":0},{"$f":"I89*(100%-'Other input expert'!H$5)","v":0},{"$f":"J89*(100%-'Other input expert'!I$5)","v":0},{"$f":"K89*(100%-'Other input expert'!J$5)","v":0},{"$f":"L89*(100%-'Other input expert'!K$5)","v":0},{"$f":"M89*(100%-'Other input expert'!L$5)","v":0},{"$f":"N89*(100%-'Other input expert'!M$5)","v":0},null,{"$f":"P89*'Other input expert'!B$12*'Sales price per sales channel'!$G89*'Other input expert'!B$6","v":0},{"$f":"Q89*'Other input expert'!C$12*'Sales price per sales channel'!$G89*'Other input expert'!C$6","v":0},{"$f":"R89*'Other input expert'!D$12*'Sales price per sales channel'!$G89*'Other input expert'!D$6","v":0},{"$f":"S89*'Other input expert'!E$12*'Sales price per sales channel'!$G89*'Other input expert'!E$6","v":0},{"$f":"T89*'Other input expert'!F$12*'Sales price per sales channel'!$G89*'Other input expert'!F$6","v":0},{"$f":"U89*'Other input expert'!G$12*'Sales price per sales channel'!$G89*'Other input expert'!G$6","v":0},{"$f":"V89*'Other input expert'!H$12*'Sales price per sales channel'!$G89*'Other input expert'!H$6","v":0},{"$f":"W89*'Other input expert'!I$12*'Sales price per sales channel'!$G89*'Other input expert'!I$6","v":0},{"$f":"X89*'Other input expert'!J$12*'Sales price per sales channel'!$G89*'Other input expert'!J$6","v":0},{"$f":"Y89*'Other input expert'!K$12*'Sales price per sales channel'!$G89*'Other input expert'!K$6","v":0},{"$f":"Z89*'Other input expert'!L$12*'Sales price per sales channel'!$G89*'Other input expert'!L$6","v":0},{"$f":"AA89*'Other input expert'!M$12*'Sales price per sales channel'!$G89*'Other input expert'!M$6","v":0},null,{"$f":"P89*'Other input expert'!B$13*'Sales price per sales channel'!$H89*'Other input expert'!B$6","v":0},{"$f":"Q89*'Other input expert'!C$13*'Sales price per sales channel'!$H89*'Other input expert'!C$6","v":0},{"$f":"R89*'Other input expert'!D$13*'Sales price per sales channel'!$H89*'Other input expert'!D$6","v":0},{"$f":"S89*'Other input expert'!E$13*'Sales price per sales channel'!$H89*'Other input expert'!E$6","v":0},{"$f":"T89*'Other input expert'!F$13*'Sales price per sales channel'!$H89*'Other input expert'!F$6","v":0},{"$f":"U89*'Other input expert'!G$13*'Sales price per sales channel'!$H89*'Other input expert'!G$6","v":0},{"$f":"V89*'Other input expert'!H$13*'Sales price per sales channel'!$H89*'Other input expert'!H$6","v":0},{"$f":"W89*'Other input expert'!I$13*'Sales price per sales channel'!$H89*'Other input expert'!I$6","v":0},{"$f":"X89*'Other input expert'!J$13*'Sales price per sales channel'!$H89*'Other input expert'!J$6","v":0},{"$f":"Y89*'Other input expert'!K$13*'Sales price per sales channel'!$H89*'Other input expert'!K$6","v":0},{"$f":"Z89*'Other input expert'!L$13*'Sales price per sales channel'!$H89*'Other input expert'!L$6","v":0},{"$f":"AA89*'Other input expert'!M$13*'Sales price per sales channel'!$H89*'Other input expert'!M$6","v":0},null,{"$f":"P89*'Other input expert'!B$14*'Sales price per sales channel'!$I89*'Other input expert'!B$6","v":0},{"$f":"Q89*'Other input expert'!C$14*'Sales price per sales channel'!$I89*'Other input expert'!C$6","v":0},{"$f":"R89*'Other input expert'!D$14*'Sales price per sales channel'!$I89*'Other input expert'!D$6","v":0},{"$f":"S89*'Other input expert'!E$14*'Sales price per sales channel'!$I89*'Other input expert'!E$6","v":0},{"$f":"T89*'Other input expert'!F$14*'Sales price per sales channel'!$I89*'Other input expert'!F$6","v":0},{"$f":"U89*'Other input expert'!G$14*'Sales price per sales channel'!$I89*'Other input expert'!G$6","v":0},{"$f":"V89*'Other input expert'!H$14*'Sales price per sales channel'!$I89*'Other input expert'!H$6","v":0},{"$f":"W89*'Other input expert'!I$14*'Sales price per sales channel'!$I89*'Other input expert'!I$6","v":0},{"$f":"X89*'Other input expert'!J$14*'Sales price per sales channel'!$I89*'Other input expert'!J$6","v":0},{"$f":"Y89*'Other input expert'!K$14*'Sales price per sales channel'!$I89*'Other input expert'!K$6","v":0},{"$f":"Z89*'Other input expert'!L$14*'Sales price per sales channel'!$I89*'Other input expert'!L$6","v":0},{"$f":"AA89*'Other input expert'!M$14*'Sales price per sales channel'!$I89*'Other input expert'!M$6","v":0},null,{"$f":"AC89*'Other input expert'!B$12*'Sales price per sales channel'!$G89*'Other input expert'!B$7","v":0},{"$f":"AD89*'Other input expert'!C$12*'Sales price per sales channel'!$G89*'Other input expert'!C$7","v":0},{"$f":"AE89*'Other input expert'!D$12*'Sales price per sales channel'!$G89*'Other input expert'!D$7","v":0},{"$f":"AF89*'Other input expert'!E$12*'Sales price per sales channel'!$G89*'Other input expert'!E$7","v":0},{"$f":"AG89*'Other input expert'!F$12*'Sales price per sales channel'!$G89*'Other input expert'!F$7","v":0},{"$f":"AH89*'Other input expert'!G$12*'Sales price per sales channel'!$G89*'Other input expert'!G$7","v":0},{"$f":"AI89*'Other input expert'!H$12*'Sales price per sales channel'!$G89*'Other input expert'!H$7","v":0},{"$f":"AJ89*'Other input expert'!I$12*'Sales price per sales channel'!$G89*'Other input expert'!I$7","v":0},{"$f":"AK89*'Other input expert'!J$12*'Sales price per sales channel'!$G89*'Other input expert'!J$7","v":0},{"$f":"AL89*'Other input expert'!K$12*'Sales price per sales channel'!$G89*'Other input expert'!K$7","v":0},{"$f":"AM89*'Other input expert'!L$12*'Sales price per sales channel'!$G89*'Other input expert'!L$7","v":0},{"$f":"AN89*'Other input expert'!M$12*'Sales price per sales channel'!$G89*'Other input expert'!M$7","v":0},null,{"$f":"AC89*'Other input expert'!B$13*'Sales price per sales channel'!$H89*'Other input expert'!B$7","v":0},{"$f":"AD89*'Other input expert'!C$13*'Sales price per sales channel'!$H89*'Other input expert'!C$7","v":0},{"$f":"AE89*'Other input expert'!D$13*'Sales price per sales channel'!$H89*'Other input expert'!D$7","v":0},{"$f":"AF89*'Other input expert'!E$13*'Sales price per sales channel'!$H89*'Other input expert'!E$7","v":0},{"$f":"AG89*'Other input expert'!F$13*'Sales price per sales channel'!$H89*'Other input expert'!F$7","v":0},{"$f":"AH89*'Other input expert'!G$13*'Sales price per sales channel'!$H89*'Other input expert'!G$7","v":0},{"$f":"AI89*'Other input expert'!H$13*'Sales price per sales channel'!$H89*'Other input expert'!H$7","v":0},{"$f":"AJ89*'Other input expert'!I$13*'Sales price per sales channel'!$H89*'Other input expert'!I$7","v":0},{"$f":"AK89*'Other input expert'!J$13*'Sales price per sales channel'!$H89*'Other input expert'!J$7","v":0},{"$f":"AL89*'Other input expert'!K$13*'Sales price per sales channel'!$H89*'Other input expert'!K$7","v":0},{"$f":"AM89*'Other input expert'!L$13*'Sales price per sales channel'!$H89*'Other input expert'!L$7","v":0},{"$f":"AN89*'Other input expert'!M$13*'Sales price per sales channel'!$H89*'Other input expert'!M$7","v":0},null,{"$f":"AC89*'Other input expert'!B$14*'Sales price per sales channel'!$I89*'Other input expert'!B$7","v":0},{"$f":"AD89*'Other input expert'!C$14*'Sales price per sales channel'!$I89*'Other input expert'!C$7","v":0},{"$f":"AE89*'Other input expert'!D$14*'Sales price per sales channel'!$I89*'Other input expert'!D$7","v":0},{"$f":"AF89*'Other input expert'!E$14*'Sales price per sales channel'!$I89*'Other input expert'!E$7","v":0},{"$f":"AG89*'Other input expert'!F$14*'Sales price per sales channel'!$I89*'Other input expert'!F$7","v":0},{"$f":"AH89*'Other input expert'!G$14*'Sales price per sales channel'!$I89*'Other input expert'!G$7","v":0},{"$f":"AI89*'Other input expert'!H$14*'Sales price per sales channel'!$I89*'Other input expert'!H$7","v":0},{"$f":"AJ89*'Other input expert'!I$14*'Sales price per sales channel'!$I89*'Other input expert'!I$7","v":0},{"$f":"AK89*'Other input expert'!J$14*'Sales price per sales channel'!$I89*'Other input expert'!J$7","v":0},{"$f":"AL89*'Other input expert'!K$14*'Sales price per sales channel'!$I89*'Other input expert'!K$7","v":0},{"$f":"AM89*'Other input expert'!L$14*'Sales price per sales channel'!$I89*'Other input expert'!L$7","v":0},{"$f":"AN89*'Other input expert'!M$14*'Sales price per sales channel'!$I89*'Other input expert'!M$7","v":0}]
["Juglans ailantifolia","Japanese walnut (hartnut)",{"$f":"Plantlist!$G90*'Production list'!D91*'Other input expert'!B$4*'Other input expert'!B$8","v":0},{"$f":"Plantlist!$G90*'Production list'!E91*'Other input expert'!C$4*'Other input expert'!C$8","v":0},{"$f":"Plantlist!$G90*'Production list'!F91*'Other input expert'!D$4*'Other input expert'!D$8","v":0},{"$f":"Plantlist!$G90*'Production list'!G91*'Other input expert'!E$4*'Other input expert'!E$8","v":0},{"$f":"Plantlist!$G90*'Production list'!H91*'Other input expert'!F$4*'Other input expert'!F$8","v":0},{"$f":"Plantlist!$G90*'Production list'!I91*'Other input expert'!G$4*'Other input expert'!G$8","v":0},{"$f":"Plantlist!$G90*'Production list'!J91*'Other input expert'!H$4*'Other input expert'!H$8","v":0},{"$f":"Plantlist!$G90*'Production list'!K91*'Other input expert'!I$4*'Other input expert'!I$8","v":0},{"$f":"Plantlist!$G90*'Production list'!L91*'Other input expert'!J$4*'Other input expert'!J$8","v":0},{"$f":"Plantlist!$G90*'Production list'!M91*'Other input expert'!K$4*'Other input expert'!K$8","v":0},{"$f":"Plantlist!$G90*'Production list'!N91*'Other input expert'!L$4*'Other input expert'!L$8","v":0},{"$f":"Plantlist!$G90*'Production list'!O91*'Other input expert'!M$4*'Other input expert'!M$8","v":0},null,{"$f":"C90*'Other input expert'!B$5","v":0},{"$f":"D90*'Other input expert'!C$5","v":0},{"$f":"E90*'Other input expert'!D$5","v":0},{"$f":"F90*'Other input expert'!E$5","v":0},{"$f":"G90*'Other input expert'!F$5","v":0},{"$f":"H90*'Other input expert'!G$5","v":0},{"$f":"I90*'Other input expert'!H$5","v":0},{"$f":"J90*'Other input expert'!I$5","v":0},{"$f":"K90*'Other input expert'!J$5","v":0},{"$f":"L90*'Other input expert'!K$5","v":0},{"$f":"M90*'Other input expert'!L$5","v":0},{"$f":"N90*'Other input expert'!M$5","v":0},null,{"$f":"C90*(100%-'Other input expert'!B$5)","v":0},{"$f":"D90*(100%-'Other input expert'!C$5)","v":0},{"$f":"E90*(100%-'Other input expert'!D$5)","v":0},{"$f":"F90*(100%-'Other input expert'!E$5)","v":0},{"$f":"G90*(100%-'Other input expert'!F$5)","v":0},{"$f":"H90*(100%-'Other input expert'!G$5)","v":0},{"$f":"I90*(100%-'Other input expert'!H$5)","v":0},{"$f":"J90*(100%-'Other input expert'!I$5)","v":0},{"$f":"K90*(100%-'Other input expert'!J$5)","v":0},{"$f":"L90*(100%-'Other input expert'!K$5)","v":0},{"$f":"M90*(100%-'Other input expert'!L$5)","v":0},{"$f":"N90*(100%-'Other input expert'!M$5)","v":0},null,{"$f":"P90*'Other input expert'!B$12*'Sales price per sales channel'!$G90*'Other input expert'!B$6","v":0},{"$f":"Q90*'Other input expert'!C$12*'Sales price per sales channel'!$G90*'Other input expert'!C$6","v":0},{"$f":"R90*'Other input expert'!D$12*'Sales price per sales channel'!$G90*'Other input expert'!D$6","v":0},{"$f":"S90*'Other input expert'!E$12*'Sales price per sales channel'!$G90*'Other input expert'!E$6","v":0},{"$f":"T90*'Other input expert'!F$12*'Sales price per sales channel'!$G90*'Other input expert'!F$6","v":0},{"$f":"U90*'Other input expert'!G$12*'Sales price per sales channel'!$G90*'Other input expert'!G$6","v":0},{"$f":"V90*'Other input expert'!H$12*'Sales price per sales channel'!$G90*'Other input expert'!H$6","v":0},{"$f":"W90*'Other input expert'!I$12*'Sales price per sales channel'!$G90*'Other input expert'!I$6","v":0},{"$f":"X90*'Other input expert'!J$12*'Sales price per sales channel'!$G90*'Other input expert'!J$6","v":0},{"$f":"Y90*'Other input expert'!K$12*'Sales price per sales channel'!$G90*'Other input expert'!K$6","v":0},{"$f":"Z90*'Other input expert'!L$12*'Sales price per sales channel'!$G90*'Other input expert'!L$6","v":0},{"$f":"AA90*'Other input expert'!M$12*'Sales price per sales channel'!$G90*'Other input expert'!M$6","v":0},null,{"$f":"P90*'Other input expert'!B$13*'Sales price per sales channel'!$H90*'Other input expert'!B$6","v":0},{"$f":"Q90*'Other input expert'!C$13*'Sales price per sales channel'!$H90*'Other input expert'!C$6","v":0},{"$f":"R90*'Other input expert'!D$13*'Sales price per sales channel'!$H90*'Other input expert'!D$6","v":0},{"$f":"S90*'Other input expert'!E$13*'Sales price per sales channel'!$H90*'Other input expert'!E$6","v":0},{"$f":"T90*'Other input expert'!F$13*'Sales price per sales channel'!$H90*'Other input expert'!F$6","v":0},{"$f":"U90*'Other input expert'!G$13*'Sales price per sales channel'!$H90*'Other input expert'!G$6","v":0},{"$f":"V90*'Other input expert'!H$13*'Sales price per sales channel'!$H90*'Other input expert'!H$6","v":0},{"$f":"W90*'Other input expert'!I$13*'Sales price per sales channel'!$H90*'Other input expert'!I$6","v":0},{"$f":"X90*'Other input expert'!J$13*'Sales price per sales channel'!$H90*'Other input expert'!J$6","v":0},{"$f":"Y90*'Other input expert'!K$13*'Sales price per sales channel'!$H90*'Other input expert'!K$6","v":0},{"$f":"Z90*'Other input expert'!L$13*'Sales price per sales channel'!$H90*'Other input expert'!L$6","v":0},{"$f":"AA90*'Other input expert'!M$13*'Sales price per sales channel'!$H90*'Other input expert'!M$6","v":0},null,{"$f":"P90*'Other input expert'!B$14*'Sales price per sales channel'!$I90*'Other input expert'!B$6","v":0},{"$f":"Q90*'Other input expert'!C$14*'Sales price per sales channel'!$I90*'Other input expert'!C$6","v":0},{"$f":"R90*'Other input expert'!D$14*'Sales price per sales channel'!$I90*'Other input expert'!D$6","v":0},{"$f":"S90*'Other input expert'!E$14*'Sales price per sales channel'!$I90*'Other input expert'!E$6","v":0},{"$f":"T90*'Other input expert'!F$14*'Sales price per sales channel'!$I90*'Other input expert'!F$6","v":0},{"$f":"U90*'Other input expert'!G$14*'Sales price per sales channel'!$I90*'Other input expert'!G$6","v":0},{"$f":"V90*'Other input expert'!H$14*'Sales price per sales channel'!$I90*'Other input expert'!H$6","v":0},{"$f":"W90*'Other input expert'!I$14*'Sales price per sales channel'!$I90*'Other input expert'!I$6","v":0},{"$f":"X90*'Other input expert'!J$14*'Sales price per sales channel'!$I90*'Other input expert'!J$6","v":0},{"$f":"Y90*'Other input expert'!K$14*'Sales price per sales channel'!$I90*'Other input expert'!K$6","v":0},{"$f":"Z90*'Other input expert'!L$14*'Sales price per sales channel'!$I90*'Other input expert'!L$6","v":0},{"$f":"AA90*'Other input expert'!M$14*'Sales price per sales channel'!$I90*'Other input expert'!M$6","v":0},null,{"$f":"AC90*'Other input expert'!B$12*'Sales price per sales channel'!$G90*'Other input expert'!B$7","v":0},{"$f":"AD90*'Other input expert'!C$12*'Sales price per sales channel'!$G90*'Other input expert'!C$7","v":0},{"$f":"AE90*'Other input expert'!D$12*'Sales price per sales channel'!$G90*'Other input expert'!D$7","v":0},{"$f":"AF90*'Other input expert'!E$12*'Sales price per sales channel'!$G90*'Other input expert'!E$7","v":0},{"$f":"AG90*'Other input expert'!F$12*'Sales price per sales channel'!$G90*'Other input expert'!F$7","v":0},{"$f":"AH90*'Other input expert'!G$12*'Sales price per sales channel'!$G90*'Other input expert'!G$7","v":0},{"$f":"AI90*'Other input expert'!H$12*'Sales price per sales channel'!$G90*'Other input expert'!H$7","v":0},{"$f":"AJ90*'Other input expert'!I$12*'Sales price per sales channel'!$G90*'Other input expert'!I$7","v":0},{"$f":"AK90*'Other input expert'!J$12*'Sales price per sales channel'!$G90*'Other input expert'!J$7","v":0},{"$f":"AL90*'Other input expert'!K$12*'Sales price per sales channel'!$G90*'Other input expert'!K$7","v":0},{"$f":"AM90*'Other input expert'!L$12*'Sales price per sales channel'!$G90*'Other input expert'!L$7","v":0},{"$f":"AN90*'Other input expert'!M$12*'Sales price per sales channel'!$G90*'Other input expert'!M$7","v":0},null,{"$f":"AC90*'Other input expert'!B$13*'Sales price per sales channel'!$H90*'Other input expert'!B$7","v":0},{"$f":"AD90*'Other input expert'!C$13*'Sales price per sales channel'!$H90*'Other input expert'!C$7","v":0},{"$f":"AE90*'Other input expert'!D$13*'Sales price per sales channel'!$H90*'Other input expert'!D$7","v":0},{"$f":"AF90*'Other input expert'!E$13*'Sales price per sales channel'!$H90*'Other input expert'!E$7","v":0},{"$f":"AG90*'Other input expert'!F$13*'Sales price per sales channel'!$H90*'Other input expert'!F$7","v":0},{"$f":"AH90*'Other input expert'!G$13*'Sales price per sales channel'!$H90*'Other input expert'!G$7","v":0},{"$f":"AI90*'Other input expert'!H$13*'Sales price per sales channel'!$H90*'Other input expert'!H$7","v":0},{"$f":"AJ90*'Other input expert'!I$13*'Sales price per sales channel'!$H90*'Other input expert'!I$7","v":0},{"$f":"AK90*'Other input expert'!J$13*'Sales price per sales channel'!$H90*'Other input expert'!J$7","v":0},{"$f":"AL90*'Other input expert'!K$13*'Sales price per sales channel'!$H90*'Other input expert'!K$7","v":0},{"$f":"AM90*'Other input expert'!L$13*'Sales price per sales channel'!$H90*'Other input expert'!L$7","v":0},{"$f":"AN90*'Other input expert'!M$13*'Sales price per sales channel'!$H90*'Other input expert'!M$7","v":0},null,{"$f":"AC90*'Other input expert'!B$14*'Sales price per sales channel'!$I90*'Other input expert'!B$7","v":0},{"$f":"AD90*'Other input expert'!C$14*'Sales price per sales channel'!$I90*'Other input expert'!C$7","v":0},{"$f":"AE90*'Other input expert'!D$14*'Sales price per sales channel'!$I90*'Other input expert'!D$7","v":0},{"$f":"AF90*'Other input expert'!E$14*'Sales price per sales channel'!$I90*'Other input expert'!E$7","v":0},{"$f":"AG90*'Other input expert'!F$14*'Sales price per sales channel'!$I90*'Other input expert'!F$7","v":0},{"$f":"AH90*'Other input expert'!G$14*'Sales price per sales channel'!$I90*'Other input expert'!G$7","v":0},{"$f":"AI90*'Other input expert'!H$14*'Sales price per sales channel'!$I90*'Other input expert'!H$7","v":0},{"$f":"AJ90*'Other input expert'!I$14*'Sales price per sales channel'!$I90*'Other input expert'!I$7","v":0},{"$f":"AK90*'Other input expert'!J$14*'Sales price per sales channel'!$I90*'Other input expert'!J$7","v":0},{"$f":"AL90*'Other input expert'!K$14*'Sales price per sales channel'!$I90*'Other input expert'!K$7","v":0},{"$f":"AM90*'Other input expert'!L$14*'Sales price per sales channel'!$I90*'Other input expert'!L$7","v":0},{"$f":"AN90*'Other input expert'!M$14*'Sales price per sales channel'!$I90*'Other input expert'!M$7","v":0}]
["Juglans cinerea","Butternut, white walnut",{"$f":"Plantlist!$G91*'Production list'!D92*'Other input expert'!B$4*'Other input expert'!B$8","v":0},{"$f":"Plantlist!$G91*'Production list'!E92*'Other input expert'!C$4*'Other input expert'!C$8","v":0},{"$f":"Plantlist!$G91*'Production list'!F92*'Other input expert'!D$4*'Other input expert'!D$8","v":0},{"$f":"Plantlist!$G91*'Production list'!G92*'Other input expert'!E$4*'Other input expert'!E$8","v":0},{"$f":"Plantlist!$G91*'Production list'!H92*'Other input expert'!F$4*'Other input expert'!F$8","v":0},{"$f":"Plantlist!$G91*'Production list'!I92*'Other input expert'!G$4*'Other input expert'!G$8","v":0},{"$f":"Plantlist!$G91*'Production list'!J92*'Other input expert'!H$4*'Other input expert'!H$8","v":0},{"$f":"Plantlist!$G91*'Production list'!K92*'Other input expert'!I$4*'Other input expert'!I$8","v":0},{"$f":"Plantlist!$G91*'Production list'!L92*'Other input expert'!J$4*'Other input expert'!J$8","v":0},{"$f":"Plantlist!$G91*'Production list'!M92*'Other input expert'!K$4*'Other input expert'!K$8","v":0},{"$f":"Plantlist!$G91*'Production list'!N92*'Other input expert'!L$4*'Other input expert'!L$8","v":0},{"$f":"Plantlist!$G91*'Production list'!O92*'Other input expert'!M$4*'Other input expert'!M$8","v":0},null,{"$f":"C91*'Other input expert'!B$5","v":0},{"$f":"D91*'Other input expert'!C$5","v":0},{"$f":"E91*'Other input expert'!D$5","v":0},{"$f":"F91*'Other input expert'!E$5","v":0},{"$f":"G91*'Other input expert'!F$5","v":0},{"$f":"H91*'Other input expert'!G$5","v":0},{"$f":"I91*'Other input expert'!H$5","v":0},{"$f":"J91*'Other input expert'!I$5","v":0},{"$f":"K91*'Other input expert'!J$5","v":0},{"$f":"L91*'Other input expert'!K$5","v":0},{"$f":"M91*'Other input expert'!L$5","v":0},{"$f":"N91*'Other input expert'!M$5","v":0},null,{"$f":"C91*(100%-'Other input expert'!B$5)","v":0},{"$f":"D91*(100%-'Other input expert'!C$5)","v":0},{"$f":"E91*(100%-'Other input expert'!D$5)","v":0},{"$f":"F91*(100%-'Other input expert'!E$5)","v":0},{"$f":"G91*(100%-'Other input expert'!F$5)","v":0},{"$f":"H91*(100%-'Other input expert'!G$5)","v":0},{"$f":"I91*(100%-'Other input expert'!H$5)","v":0},{"$f":"J91*(100%-'Other input expert'!I$5)","v":0},{"$f":"K91*(100%-'Other input expert'!J$5)","v":0},{"$f":"L91*(100%-'Other input expert'!K$5)","v":0},{"$f":"M91*(100%-'Other input expert'!L$5)","v":0},{"$f":"N91*(100%-'Other input expert'!M$5)","v":0},null,{"$f":"P91*'Other input expert'!B$12*'Sales price per sales channel'!$G91*'Other input expert'!B$6","v":0},{"$f":"Q91*'Other input expert'!C$12*'Sales price per sales channel'!$G91*'Other input expert'!C$6","v":0},{"$f":"R91*'Other input expert'!D$12*'Sales price per sales channel'!$G91*'Other input expert'!D$6","v":0},{"$f":"S91*'Other input expert'!E$12*'Sales price per sales channel'!$G91*'Other input expert'!E$6","v":0},{"$f":"T91*'Other input expert'!F$12*'Sales price per sales channel'!$G91*'Other input expert'!F$6","v":0},{"$f":"U91*'Other input expert'!G$12*'Sales price per sales channel'!$G91*'Other input expert'!G$6","v":0},{"$f":"V91*'Other input expert'!H$12*'Sales price per sales channel'!$G91*'Other input expert'!H$6","v":0},{"$f":"W91*'Other input expert'!I$12*'Sales price per sales channel'!$G91*'Other input expert'!I$6","v":0},{"$f":"X91*'Other input expert'!J$12*'Sales price per sales channel'!$G91*'Other input expert'!J$6","v":0},{"$f":"Y91*'Other input expert'!K$12*'Sales price per sales channel'!$G91*'Other input expert'!K$6","v":0},{"$f":"Z91*'Other input expert'!L$12*'Sales price per sales channel'!$G91*'Other input expert'!L$6","v":0},{"$f":"AA91*'Other input expert'!M$12*'Sales price per sales channel'!$G91*'Other input expert'!M$6","v":0},null,{"$f":"P91*'Other input expert'!B$13*'Sales price per sales channel'!$H91*'Other input expert'!B$6","v":0},{"$f":"Q91*'Other input expert'!C$13*'Sales price per sales channel'!$H91*'Other input expert'!C$6","v":0},{"$f":"R91*'Other input expert'!D$13*'Sales price per sales channel'!$H91*'Other input expert'!D$6","v":0},{"$f":"S91*'Other input expert'!E$13*'Sales price per sales channel'!$H91*'Other input expert'!E$6","v":0},{"$f":"T91*'Other input expert'!F$13*'Sales price per sales channel'!$H91*'Other input expert'!F$6","v":0},{"$f":"U91*'Other input expert'!G$13*'Sales price per sales channel'!$H91*'Other input expert'!G$6","v":0},{"$f":"V91*'Other input expert'!H$13*'Sales price per sales channel'!$H91*'Other input expert'!H$6","v":0},{"$f":"W91*'Other input expert'!I$13*'Sales price per sales channel'!$H91*'Other input expert'!I$6","v":0},{"$f":"X91*'Other input expert'!J$13*'Sales price per sales channel'!$H91*'Other input expert'!J$6","v":0},{"$f":"Y91*'Other input expert'!K$13*'Sales price per sales channel'!$H91*'Other input expert'!K$6","v":0},{"$f":"Z91*'Other input expert'!L$13*'Sales price per sales channel'!$H91*'Other input expert'!L$6","v":0},{"$f":"AA91*'Other input expert'!M$13*'Sales price per sales channel'!$H91*'Other input expert'!M$6","v":0},null,{"$f":"P91*'Other input expert'!B$14*'Sales price per sales channel'!$I91*'Other input expert'!B$6","v":0},{"$f":"Q91*'Other input expert'!C$14*'Sales price per sales channel'!$I91*'Other input expert'!C$6","v":0},{"$f":"R91*'Other input expert'!D$14*'Sales price per sales channel'!$I91*'Other input expert'!D$6","v":0},{"$f":"S91*'Other input expert'!E$14*'Sales price per sales channel'!$I91*'Other input expert'!E$6","v":0},{"$f":"T91*'Other input expert'!F$14*'Sales price per sales channel'!$I91*'Other input expert'!F$6","v":0},{"$f":"U91*'Other input expert'!G$14*'Sales price per sales channel'!$I91*'Other input expert'!G$6","v":0},{"$f":"V91*'Other input expert'!H$14*'Sales price per sales channel'!$I91*'Other input expert'!H$6","v":0},{"$f":"W91*'Other input expert'!I$14*'Sales price per sales channel'!$I91*'Other input expert'!I$6","v":0},{"$f":"X91*'Other input expert'!J$14*'Sales price per sales channel'!$I91*'Other input expert'!J$6","v":0},{"$f":"Y91*'Other input expert'!K$14*'Sales price per sales channel'!$I91*'Other input expert'!K$6","v":0},{"$f":"Z91*'Other input expert'!L$14*'Sales price per sales channel'!$I91*'Other input expert'!L$6","v":0},{"$f":"AA91*'Other input expert'!M$14*'Sales price per sales channel'!$I91*'Other input expert'!M$6","v":0},null,{"$f":"AC91*'Other input expert'!B$12*'Sales price per sales channel'!$G91*'Other input expert'!B$7","v":0},{"$f":"AD91*'Other input expert'!C$12*'Sales price per sales channel'!$G91*'Other input expert'!C$7","v":0},{"$f":"AE91*'Other input expert'!D$12*'Sales price per sales channel'!$G91*'Other input expert'!D$7","v":0},{"$f":"AF91*'Other input expert'!E$12*'Sales price per sales channel'!$G91*'Other input expert'!E$7","v":0},{"$f":"AG91*'Other input expert'!F$12*'Sales price per sales channel'!$G91*'Other input expert'!F$7","v":0},{"$f":"AH91*'Other input expert'!G$12*'Sales price per sales channel'!$G91*'Other input expert'!G$7","v":0},{"$f":"AI91*'Other input expert'!H$12*'Sales price per sales channel'!$G91*'Other input expert'!H$7","v":0},{"$f":"AJ91*'Other input expert'!I$12*'Sales price per sales channel'!$G91*'Other input expert'!I$7","v":0},{"$f":"AK91*'Other input expert'!J$12*'Sales price per sales channel'!$G91*'Other input expert'!J$7","v":0},{"$f":"AL91*'Other input expert'!K$12*'Sales price per sales channel'!$G91*'Other input expert'!K$7","v":0},{"$f":"AM91*'Other input expert'!L$12*'Sales price per sales channel'!$G91*'Other input expert'!L$7","v":0},{"$f":"AN91*'Other input expert'!M$12*'Sales price per sales channel'!$G91*'Other input expert'!M$7","v":0},null,{"$f":"AC91*'Other input expert'!B$13*'Sales price per sales channel'!$H91*'Other input expert'!B$7","v":0},{"$f":"AD91*'Other input expert'!C$13*'Sales price per sales channel'!$H91*'Other input expert'!C$7","v":0},{"$f":"AE91*'Other input expert'!D$13*'Sales price per sales channel'!$H91*'Other input expert'!D$7","v":0},{"$f":"AF91*'Other input expert'!E$13*'Sales price per sales channel'!$H91*'Other input expert'!E$7","v":0},{"$f":"AG91*'Other input expert'!F$13*'Sales price per sales channel'!$H91*'Other input expert'!F$7","v":0},{"$f":"AH91*'Other input expert'!G$13*'Sales price per sales channel'!$H91*'Other input expert'!G$7","v":0},{"$f":"AI91*'Other input expert'!H$13*'Sales price per sales channel'!$H91*'Other input expert'!H$7","v":0},{"$f":"AJ91*'Other input expert'!I$13*'Sales price per sales channel'!$H91*'Other input expert'!I$7","v":0},{"$f":"AK91*'Other input expert'!J$13*'Sales price per sales channel'!$H91*'Other input expert'!J$7","v":0},{"$f":"AL91*'Other input expert'!K$13*'Sales price per sales channel'!$H91*'Other input expert'!K$7","v":0},{"$f":"AM91*'Other input expert'!L$13*'Sales price per sales channel'!$H91*'Other input expert'!L$7","v":0},{"$f":"AN91*'Other input expert'!M$13*'Sales price per sales channel'!$H91*'Other input expert'!M$7","v":0},null,{"$f":"AC91*'Other input expert'!B$14*'Sales price per sales channel'!$I91*'Other input expert'!B$7","v":0},{"$f":"AD91*'Other input expert'!C$14*'Sales price per sales channel'!$I91*'Other input expert'!C$7","v":0},{"$f":"AE91*'Other input expert'!D$14*'Sales price per sales channel'!$I91*'Other input expert'!D$7","v":0},{"$f":"AF91*'Other input expert'!E$14*'Sales price per sales channel'!$I91*'Other input expert'!E$7","v":0},{"$f":"AG91*'Other input expert'!F$14*'Sales price per sales channel'!$I91*'Other input expert'!F$7","v":0},{"$f":"AH91*'Other input expert'!G$14*'Sales price per sales channel'!$I91*'Other input expert'!G$7","v":0},{"$f":"AI91*'Other input expert'!H$14*'Sales price per sales channel'!$I91*'Other input expert'!H$7","v":0},{"$f":"AJ91*'Other input expert'!I$14*'Sales price per sales channel'!$I91*'Other input expert'!I$7","v":0},{"$f":"AK91*'Other input expert'!J$14*'Sales price per sales channel'!$I91*'Other input expert'!J$7","v":0},{"$f":"AL91*'Other input expert'!K$14*'Sales price per sales channel'!$I91*'Other input expert'!K$7","v":0},{"$f":"AM91*'Other input expert'!L$14*'Sales price per sales channel'!$I91*'Other input expert'!L$7","v":0},{"$f":"AN91*'Other input expert'!M$14*'Sales price per sales channel'!$I91*'Other input expert'!M$7","v":0}]
["Juglans nigra","Black walnut",{"$f":"Plantlist!$G92*'Production list'!D93*'Other input expert'!B$4*'Other input expert'!B$8","v":0},{"$f":"Plantlist!$G92*'Production list'!E93*'Other input expert'!C$4*'Other input expert'!C$8","v":0},{"$f":"Plantlist!$G92*'Production list'!F93*'Other input expert'!D$4*'Other input expert'!D$8","v":0},{"$f":"Plantlist!$G92*'Production list'!G93*'Other input expert'!E$4*'Other input expert'!E$8","v":0},{"$f":"Plantlist!$G92*'Production list'!H93*'Other input expert'!F$4*'Other input expert'!F$8","v":0},{"$f":"Plantlist!$G92*'Production list'!I93*'Other input expert'!G$4*'Other input expert'!G$8","v":0},{"$f":"Plantlist!$G92*'Production list'!J93*'Other input expert'!H$4*'Other input expert'!H$8","v":0},{"$f":"Plantlist!$G92*'Production list'!K93*'Other input expert'!I$4*'Other input expert'!I$8","v":0},{"$f":"Plantlist!$G92*'Production list'!L93*'Other input expert'!J$4*'Other input expert'!J$8","v":0},{"$f":"Plantlist!$G92*'Production list'!M93*'Other input expert'!K$4*'Other input expert'!K$8","v":0},{"$f":"Plantlist!$G92*'Production list'!N93*'Other input expert'!L$4*'Other input expert'!L$8","v":0},{"$f":"Plantlist!$G92*'Production list'!O93*'Other input expert'!M$4*'Other input expert'!M$8","v":0},null,{"$f":"C92*'Other input expert'!B$5","v":0},{"$f":"D92*'Other input expert'!C$5","v":0},{"$f":"E92*'Other input expert'!D$5","v":0},{"$f":"F92*'Other input expert'!E$5","v":0},{"$f":"G92*'Other input expert'!F$5","v":0},{"$f":"H92*'Other input expert'!G$5","v":0},{"$f":"I92*'Other input expert'!H$5","v":0},{"$f":"J92*'Other input expert'!I$5","v":0},{"$f":"K92*'Other input expert'!J$5","v":0},{"$f":"L92*'Other input expert'!K$5","v":0},{"$f":"M92*'Other input expert'!L$5","v":0},{"$f":"N92*'Other input expert'!M$5","v":0},null,{"$f":"C92*(100%-'Other input expert'!B$5)","v":0},{"$f":"D92*(100%-'Other input expert'!C$5)","v":0},{"$f":"E92*(100%-'Other input expert'!D$5)","v":0},{"$f":"F92*(100%-'Other input expert'!E$5)","v":0},{"$f":"G92*(100%-'Other input expert'!F$5)","v":0},{"$f":"H92*(100%-'Other input expert'!G$5)","v":0},{"$f":"I92*(100%-'Other input expert'!H$5)","v":0},{"$f":"J92*(100%-'Other input expert'!I$5)","v":0},{"$f":"K92*(100%-'Other input expert'!J$5)","v":0},{"$f":"L92*(100%-'Other input expert'!K$5)","v":0},{"$f":"M92*(100%-'Other input expert'!L$5)","v":0},{"$f":"N92*(100%-'Other input expert'!M$5)","v":0},null,{"$f":"P92*'Other input expert'!B$12*'Sales price per sales channel'!$G92*'Other input expert'!B$6","v":0},{"$f":"Q92*'Other input expert'!C$12*'Sales price per sales channel'!$G92*'Other input expert'!C$6","v":0},{"$f":"R92*'Other input expert'!D$12*'Sales price per sales channel'!$G92*'Other input expert'!D$6","v":0},{"$f":"S92*'Other input expert'!E$12*'Sales price per sales channel'!$G92*'Other input expert'!E$6","v":0},{"$f":"T92*'Other input expert'!F$12*'Sales price per sales channel'!$G92*'Other input expert'!F$6","v":0},{"$f":"U92*'Other input expert'!G$12*'Sales price per sales channel'!$G92*'Other input expert'!G$6","v":0},{"$f":"V92*'Other input expert'!H$12*'Sales price per sales channel'!$G92*'Other input expert'!H$6","v":0},{"$f":"W92*'Other input expert'!I$12*'Sales price per sales channel'!$G92*'Other input expert'!I$6","v":0},{"$f":"X92*'Other input expert'!J$12*'Sales price per sales channel'!$G92*'Other input expert'!J$6","v":0},{"$f":"Y92*'Other input expert'!K$12*'Sales price per sales channel'!$G92*'Other input expert'!K$6","v":0},{"$f":"Z92*'Other input expert'!L$12*'Sales price per sales channel'!$G92*'Other input expert'!L$6","v":0},{"$f":"AA92*'Other input expert'!M$12*'Sales price per sales channel'!$G92*'Other input expert'!M$6","v":0},null,{"$f":"P92*'Other input expert'!B$13*'Sales price per sales channel'!$H92*'Other input expert'!B$6","v":0},{"$f":"Q92*'Other input expert'!C$13*'Sales price per sales channel'!$H92*'Other input expert'!C$6","v":0},{"$f":"R92*'Other input expert'!D$13*'Sales price per sales channel'!$H92*'Other input expert'!D$6","v":0},{"$f":"S92*'Other input expert'!E$13*'Sales price per sales channel'!$H92*'Other input expert'!E$6","v":0},{"$f":"T92*'Other input expert'!F$13*'Sales price per sales channel'!$H92*'Other input expert'!F$6","v":0},{"$f":"U92*'Other input expert'!G$13*'Sales price per sales channel'!$H92*'Other input expert'!G$6","v":0},{"$f":"V92*'Other input expert'!H$13*'Sales price per sales channel'!$H92*'Other input expert'!H$6","v":0},{"$f":"W92*'Other input expert'!I$13*'Sales price per sales channel'!$H92*'Other input expert'!I$6","v":0},{"$f":"X92*'Other input expert'!J$13*'Sales price per sales channel'!$H92*'Other input expert'!J$6","v":0},{"$f":"Y92*'Other input expert'!K$13*'Sales price per sales channel'!$H92*'Other input expert'!K$6","v":0},{"$f":"Z92*'Other input expert'!L$13*'Sales price per sales channel'!$H92*'Other input expert'!L$6","v":0},{"$f":"AA92*'Other input expert'!M$13*'Sales price per sales channel'!$H92*'Other input expert'!M$6","v":0},null,{"$f":"P92*'Other input expert'!B$14*'Sales price per sales channel'!$I92*'Other input expert'!B$6","v":0},{"$f":"Q92*'Other input expert'!C$14*'Sales price per sales channel'!$I92*'Other input expert'!C$6","v":0},{"$f":"R92*'Other input expert'!D$14*'Sales price per sales channel'!$I92*'Other input expert'!D$6","v":0},{"$f":"S92*'Other input expert'!E$14*'Sales price per sales channel'!$I92*'Other input expert'!E$6","v":0},{"$f":"T92*'Other input expert'!F$14*'Sales price per sales channel'!$I92*'Other input expert'!F$6","v":0},{"$f":"U92*'Other input expert'!G$14*'Sales price per sales channel'!$I92*'Other input expert'!G$6","v":0},{"$f":"V92*'Other input expert'!H$14*'Sales price per sales channel'!$I92*'Other input expert'!H$6","v":0},{"$f":"W92*'Other input expert'!I$14*'Sales price per sales channel'!$I92*'Other input expert'!I$6","v":0},{"$f":"X92*'Other input expert'!J$14*'Sales price per sales channel'!$I92*'Other input expert'!J$6","v":0},{"$f":"Y92*'Other input expert'!K$14*'Sales price per sales channel'!$I92*'Other input expert'!K$6","v":0},{"$f":"Z92*'Other input expert'!L$14*'Sales price per sales channel'!$I92*'Other input expert'!L$6","v":0},{"$f":"AA92*'Other input expert'!M$14*'Sales price per sales channel'!$I92*'Other input expert'!M$6","v":0},null,{"$f":"AC92*'Other input expert'!B$12*'Sales price per sales channel'!$G92*'Other input expert'!B$7","v":0},{"$f":"AD92*'Other input expert'!C$12*'Sales price per sales channel'!$G92*'Other input expert'!C$7","v":0},{"$f":"AE92*'Other input expert'!D$12*'Sales price per sales channel'!$G92*'Other input expert'!D$7","v":0},{"$f":"AF92*'Other input expert'!E$12*'Sales price per sales channel'!$G92*'Other input expert'!E$7","v":0},{"$f":"AG92*'Other input expert'!F$12*'Sales price per sales channel'!$G92*'Other input expert'!F$7","v":0},{"$f":"AH92*'Other input expert'!G$12*'Sales price per sales channel'!$G92*'Other input expert'!G$7","v":0},{"$f":"AI92*'Other input expert'!H$12*'Sales price per sales channel'!$G92*'Other input expert'!H$7","v":0},{"$f":"AJ92*'Other input expert'!I$12*'Sales price per sales channel'!$G92*'Other input expert'!I$7","v":0},{"$f":"AK92*'Other input expert'!J$12*'Sales price per sales channel'!$G92*'Other input expert'!J$7","v":0},{"$f":"AL92*'Other input expert'!K$12*'Sales price per sales channel'!$G92*'Other input expert'!K$7","v":0},{"$f":"AM92*'Other input expert'!L$12*'Sales price per sales channel'!$G92*'Other input expert'!L$7","v":0},{"$f":"AN92*'Other input expert'!M$12*'Sales price per sales channel'!$G92*'Other input expert'!M$7","v":0},null,{"$f":"AC92*'Other input expert'!B$13*'Sales price per sales channel'!$H92*'Other input expert'!B$7","v":0},{"$f":"AD92*'Other input expert'!C$13*'Sales price per sales channel'!$H92*'Other input expert'!C$7","v":0},{"$f":"AE92*'Other input expert'!D$13*'Sales price per sales channel'!$H92*'Other input expert'!D$7","v":0},{"$f":"AF92*'Other input expert'!E$13*'Sales price per sales channel'!$H92*'Other input expert'!E$7","v":0},{"$f":"AG92*'Other input expert'!F$13*'Sales price per sales channel'!$H92*'Other input expert'!F$7","v":0},{"$f":"AH92*'Other input expert'!G$13*'Sales price per sales channel'!$H92*'Other input expert'!G$7","v":0},{"$f":"AI92*'Other input expert'!H$13*'Sales price per sales channel'!$H92*'Other input expert'!H$7","v":0},{"$f":"AJ92*'Other input expert'!I$13*'Sales price per sales channel'!$H92*'Other input expert'!I$7","v":0},{"$f":"AK92*'Other input expert'!J$13*'Sales price per sales channel'!$H92*'Other input expert'!J$7","v":0},{"$f":"AL92*'Other input expert'!K$13*'Sales price per sales channel'!$H92*'Other input expert'!K$7","v":0},{"$f":"AM92*'Other input expert'!L$13*'Sales price per sales channel'!$H92*'Other input expert'!L$7","v":0},{"$f":"AN92*'Other input expert'!M$13*'Sales price per sales channel'!$H92*'Other input expert'!M$7","v":0},null,{"$f":"AC92*'Other input expert'!B$14*'Sales price per sales channel'!$I92*'Other input expert'!B$7","v":0},{"$f":"AD92*'Other input expert'!C$14*'Sales price per sales channel'!$I92*'Other input expert'!C$7","v":0},{"$f":"AE92*'Other input expert'!D$14*'Sales price per sales channel'!$I92*'Other input expert'!D$7","v":0},{"$f":"AF92*'Other input expert'!E$14*'Sales price per sales channel'!$I92*'Other input expert'!E$7","v":0},{"$f":"AG92*'Other input expert'!F$14*'Sales price per sales channel'!$I92*'Other input expert'!F$7","v":0},{"$f":"AH92*'Other input expert'!G$14*'Sales price per sales channel'!$I92*'Other input expert'!G$7","v":0},{"$f":"AI92*'Other input expert'!H$14*'Sales price per sales channel'!$I92*'Other input expert'!H$7","v":0},{"$f":"AJ92*'Other input expert'!I$14*'Sales price per sales channel'!$I92*'Other input expert'!I$7","v":0},{"$f":"AK92*'Other input expert'!J$14*'Sales price per sales channel'!$I92*'Other input expert'!J$7","v":0},{"$f":"AL92*'Other input expert'!K$14*'Sales price per sales channel'!$I92*'Other input expert'!K$7","v":0},{"$f":"AM92*'Other input expert'!L$14*'Sales price per sales channel'!$I92*'Other input expert'!L$7","v":0},{"$f":"AN92*'Other input expert'!M$14*'Sales price per sales channel'!$I92*'Other input expert'!M$7","v":0}]
["Juglans regia","Walnut",{"$f":"Plantlist!$G93*'Production list'!D94*'Other input expert'!B$4*'Other input expert'!B$8","v":0},{"$f":"Plantlist!$G93*'Production list'!E94*'Other input expert'!C$4*'Other input expert'!C$8","v":0},{"$f":"Plantlist!$G93*'Production list'!F94*'Other input expert'!D$4*'Other input expert'!D$8","v":0},{"$f":"Plantlist!$G93*'Production list'!G94*'Other input expert'!E$4*'Other input expert'!E$8","v":0},{"$f":"Plantlist!$G93*'Production list'!H94*'Other input expert'!F$4*'Other input expert'!F$8","v":0},{"$f":"Plantlist!$G93*'Production list'!I94*'Other input expert'!G$4*'Other input expert'!G$8","v":0},{"$f":"Plantlist!$G93*'Production list'!J94*'Other input expert'!H$4*'Other input expert'!H$8","v":0},{"$f":"Plantlist!$G93*'Production list'!K94*'Other input expert'!I$4*'Other input expert'!I$8","v":0},{"$f":"Plantlist!$G93*'Production list'!L94*'Other input expert'!J$4*'Other input expert'!J$8","v":0},{"$f":"Plantlist!$G93*'Production list'!M94*'Other input expert'!K$4*'Other input expert'!K$8","v":0},{"$f":"Plantlist!$G93*'Production list'!N94*'Other input expert'!L$4*'Other input expert'!L$8","v":0},{"$f":"Plantlist!$G93*'Production list'!O94*'Other input expert'!M$4*'Other input expert'!M$8","v":0},null,{"$f":"C93*'Other input expert'!B$5","v":0},{"$f":"D93*'Other input expert'!C$5","v":0},{"$f":"E93*'Other input expert'!D$5","v":0},{"$f":"F93*'Other input expert'!E$5","v":0},{"$f":"G93*'Other input expert'!F$5","v":0},{"$f":"H93*'Other input expert'!G$5","v":0},{"$f":"I93*'Other input expert'!H$5","v":0},{"$f":"J93*'Other input expert'!I$5","v":0},{"$f":"K93*'Other input expert'!J$5","v":0},{"$f":"L93*'Other input expert'!K$5","v":0},{"$f":"M93*'Other input expert'!L$5","v":0},{"$f":"N93*'Other input expert'!M$5","v":0},null,{"$f":"C93*(100%-'Other input expert'!B$5)","v":0},{"$f":"D93*(100%-'Other input expert'!C$5)","v":0},{"$f":"E93*(100%-'Other input expert'!D$5)","v":0},{"$f":"F93*(100%-'Other input expert'!E$5)","v":0},{"$f":"G93*(100%-'Other input expert'!F$5)","v":0},{"$f":"H93*(100%-'Other input expert'!G$5)","v":0},{"$f":"I93*(100%-'Other input expert'!H$5)","v":0},{"$f":"J93*(100%-'Other input expert'!I$5)","v":0},{"$f":"K93*(100%-'Other input expert'!J$5)","v":0},{"$f":"L93*(100%-'Other input expert'!K$5)","v":0},{"$f":"M93*(100%-'Other input expert'!L$5)","v":0},{"$f":"N93*(100%-'Other input expert'!M$5)","v":0},null,{"$f":"P93*'Other input expert'!B$12*'Sales price per sales channel'!$G93*'Other input expert'!B$6","v":0},{"$f":"Q93*'Other input expert'!C$12*'Sales price per sales channel'!$G93*'Other input expert'!C$6","v":0},{"$f":"R93*'Other input expert'!D$12*'Sales price per sales channel'!$G93*'Other input expert'!D$6","v":0},{"$f":"S93*'Other input expert'!E$12*'Sales price per sales channel'!$G93*'Other input expert'!E$6","v":0},{"$f":"T93*'Other input expert'!F$12*'Sales price per sales channel'!$G93*'Other input expert'!F$6","v":0},{"$f":"U93*'Other input expert'!G$12*'Sales price per sales channel'!$G93*'Other input expert'!G$6","v":0},{"$f":"V93*'Other input expert'!H$12*'Sales price per sales channel'!$G93*'Other input expert'!H$6","v":0},{"$f":"W93*'Other input expert'!I$12*'Sales price per sales channel'!$G93*'Other input expert'!I$6","v":0},{"$f":"X93*'Other input expert'!J$12*'Sales price per sales channel'!$G93*'Other input expert'!J$6","v":0},{"$f":"Y93*'Other input expert'!K$12*'Sales price per sales channel'!$G93*'Other input expert'!K$6","v":0},{"$f":"Z93*'Other input expert'!L$12*'Sales price per sales channel'!$G93*'Other input expert'!L$6","v":0},{"$f":"AA93*'Other input expert'!M$12*'Sales price per sales channel'!$G93*'Other input expert'!M$6","v":0},null,{"$f":"P93*'Other input expert'!B$13*'Sales price per sales channel'!$H93*'Other input expert'!B$6","v":0},{"$f":"Q93*'Other input expert'!C$13*'Sales price per sales channel'!$H93*'Other input expert'!C$6","v":0},{"$f":"R93*'Other input expert'!D$13*'Sales price per sales channel'!$H93*'Other input expert'!D$6","v":0},{"$f":"S93*'Other input expert'!E$13*'Sales price per sales channel'!$H93*'Other input expert'!E$6","v":0},{"$f":"T93*'Other input expert'!F$13*'Sales price per sales channel'!$H93*'Other input expert'!F$6","v":0},{"$f":"U93*'Other input expert'!G$13*'Sales price per sales channel'!$H93*'Other input expert'!G$6","v":0},{"$f":"V93*'Other input expert'!H$13*'Sales price per sales channel'!$H93*'Other input expert'!H$6","v":0},{"$f":"W93*'Other input expert'!I$13*'Sales price per sales channel'!$H93*'Other input expert'!I$6","v":0},{"$f":"X93*'Other input expert'!J$13*'Sales price per sales channel'!$H93*'Other input expert'!J$6","v":0},{"$f":"Y93*'Other input expert'!K$13*'Sales price per sales channel'!$H93*'Other input expert'!K$6","v":0},{"$f":"Z93*'Other input expert'!L$13*'Sales price per sales channel'!$H93*'Other input expert'!L$6","v":0},{"$f":"AA93*'Other input expert'!M$13*'Sales price per sales channel'!$H93*'Other input expert'!M$6","v":0},null,{"$f":"P93*'Other input expert'!B$14*'Sales price per sales channel'!$I93*'Other input expert'!B$6","v":0},{"$f":"Q93*'Other input expert'!C$14*'Sales price per sales channel'!$I93*'Other input expert'!C$6","v":0},{"$f":"R93*'Other input expert'!D$14*'Sales price per sales channel'!$I93*'Other input expert'!D$6","v":0},{"$f":"S93*'Other input expert'!E$14*'Sales price per sales channel'!$I93*'Other input expert'!E$6","v":0},{"$f":"T93*'Other input expert'!F$14*'Sales price per sales channel'!$I93*'Other input expert'!F$6","v":0},{"$f":"U93*'Other input expert'!G$14*'Sales price per sales channel'!$I93*'Other input expert'!G$6","v":0},{"$f":"V93*'Other input expert'!H$14*'Sales price per sales channel'!$I93*'Other input expert'!H$6","v":0},{"$f":"W93*'Other input expert'!I$14*'Sales price per sales channel'!$I93*'Other input expert'!I$6","v":0},{"$f":"X93*'Other input expert'!J$14*'Sales price per sales channel'!$I93*'Other input expert'!J$6","v":0},{"$f":"Y93*'Other input expert'!K$14*'Sales price per sales channel'!$I93*'Other input expert'!K$6","v":0},{"$f":"Z93*'Other input expert'!L$14*'Sales price per sales channel'!$I93*'Other input expert'!L$6","v":0},{"$f":"AA93*'Other input expert'!M$14*'Sales price per sales channel'!$I93*'Other input expert'!M$6","v":0},null,{"$f":"AC93*'Other input expert'!B$12*'Sales price per sales channel'!$G93*'Other input expert'!B$7","v":0},{"$f":"AD93*'Other input expert'!C$12*'Sales price per sales channel'!$G93*'Other input expert'!C$7","v":0},{"$f":"AE93*'Other input expert'!D$12*'Sales price per sales channel'!$G93*'Other input expert'!D$7","v":0},{"$f":"AF93*'Other input expert'!E$12*'Sales price per sales channel'!$G93*'Other input expert'!E$7","v":0},{"$f":"AG93*'Other input expert'!F$12*'Sales price per sales channel'!$G93*'Other input expert'!F$7","v":0},{"$f":"AH93*'Other input expert'!G$12*'Sales price per sales channel'!$G93*'Other input expert'!G$7","v":0},{"$f":"AI93*'Other input expert'!H$12*'Sales price per sales channel'!$G93*'Other input expert'!H$7","v":0},{"$f":"AJ93*'Other input expert'!I$12*'Sales price per sales channel'!$G93*'Other input expert'!I$7","v":0},{"$f":"AK93*'Other input expert'!J$12*'Sales price per sales channel'!$G93*'Other input expert'!J$7","v":0},{"$f":"AL93*'Other input expert'!K$12*'Sales price per sales channel'!$G93*'Other input expert'!K$7","v":0},{"$f":"AM93*'Other input expert'!L$12*'Sales price per sales channel'!$G93*'Other input expert'!L$7","v":0},{"$f":"AN93*'Other input expert'!M$12*'Sales price per sales channel'!$G93*'Other input expert'!M$7","v":0},null,{"$f":"AC93*'Other input expert'!B$13*'Sales price per sales channel'!$H93*'Other input expert'!B$7","v":0},{"$f":"AD93*'Other input expert'!C$13*'Sales price per sales channel'!$H93*'Other input expert'!C$7","v":0},{"$f":"AE93*'Other input expert'!D$13*'Sales price per sales channel'!$H93*'Other input expert'!D$7","v":0},{"$f":"AF93*'Other input expert'!E$13*'Sales price per sales channel'!$H93*'Other input expert'!E$7","v":0},{"$f":"AG93*'Other input expert'!F$13*'Sales price per sales channel'!$H93*'Other input expert'!F$7","v":0},{"$f":"AH93*'Other input expert'!G$13*'Sales price per sales channel'!$H93*'Other input expert'!G$7","v":0},{"$f":"AI93*'Other input expert'!H$13*'Sales price per sales channel'!$H93*'Other input expert'!H$7","v":0},{"$f":"AJ93*'Other input expert'!I$13*'Sales price per sales channel'!$H93*'Other input expert'!I$7","v":0},{"$f":"AK93*'Other input expert'!J$13*'Sales price per sales channel'!$H93*'Other input expert'!J$7","v":0},{"$f":"AL93*'Other input expert'!K$13*'Sales price per sales channel'!$H93*'Other input expert'!K$7","v":0},{"$f":"AM93*'Other input expert'!L$13*'Sales price per sales channel'!$H93*'Other input expert'!L$7","v":0},{"$f":"AN93*'Other input expert'!M$13*'Sales price per sales channel'!$H93*'Other input expert'!M$7","v":0},null,{"$f":"AC93*'Other input expert'!B$14*'Sales price per sales channel'!$I93*'Other input expert'!B$7","v":0},{"$f":"AD93*'Other input expert'!C$14*'Sales price per sales channel'!$I93*'Other input expert'!C$7","v":0},{"$f":"AE93*'Other input expert'!D$14*'Sales price per sales channel'!$I93*'Other input expert'!D$7","v":0},{"$f":"AF93*'Other input expert'!E$14*'Sales price per sales channel'!$I93*'Other input expert'!E$7","v":0},{"$f":"AG93*'Other input expert'!F$14*'Sales price per sales channel'!$I93*'Other input expert'!F$7","v":0},{"$f":"AH93*'Other input expert'!G$14*'Sales price per sales channel'!$I93*'Other input expert'!G$7","v":0},{"$f":"AI93*'Other input expert'!H$14*'Sales price per sales channel'!$I93*'Other input expert'!H$7","v":0},{"$f":"AJ93*'Other input expert'!I$14*'Sales price per sales channel'!$I93*'Other input expert'!I$7","v":0},{"$f":"AK93*'Other input expert'!J$14*'Sales price per sales channel'!$I93*'Other input expert'!J$7","v":0},{"$f":"AL93*'Other input expert'!K$14*'Sales price per sales channel'!$I93*'Other input expert'!K$7","v":0},{"$f":"AM93*'Other input expert'!L$14*'Sales price per sales channel'!$I93*'Other input expert'!L$7","v":0},{"$f":"AN93*'Other input expert'!M$14*'Sales price per sales channel'!$I93*'Other input expert'!M$7","v":0}]
["Laurus nobilis","Bay tree",{"$f":"Plantlist!$G94*'Production list'!D95*'Other input expert'!B$4*'Other input expert'!B$8","v":0},{"$f":"Plantlist!$G94*'Production list'!E95*'Other input expert'!C$4*'Other input expert'!C$8","v":0},{"$f":"Plantlist!$G94*'Production list'!F95*'Other input expert'!D$4*'Other input expert'!D$8","v":0},{"$f":"Plantlist!$G94*'Production list'!G95*'Other input expert'!E$4*'Other input expert'!E$8","v":0},{"$f":"Plantlist!$G94*'Production list'!H95*'Other input expert'!F$4*'Other input expert'!F$8","v":0},{"$f":"Plantlist!$G94*'Production list'!I95*'Other input expert'!G$4*'Other input expert'!G$8","v":0},{"$f":"Plantlist!$G94*'Production list'!J95*'Other input expert'!H$4*'Other input expert'!H$8","v":0},{"$f":"Plantlist!$G94*'Production list'!K95*'Other input expert'!I$4*'Other input expert'!I$8","v":0},{"$f":"Plantlist!$G94*'Production list'!L95*'Other input expert'!J$4*'Other input expert'!J$8","v":0},{"$f":"Plantlist!$G94*'Production list'!M95*'Other input expert'!K$4*'Other input expert'!K$8","v":0},{"$f":"Plantlist!$G94*'Production list'!N95*'Other input expert'!L$4*'Other input expert'!L$8","v":0},{"$f":"Plantlist!$G94*'Production list'!O95*'Other input expert'!M$4*'Other input expert'!M$8","v":0},null,{"$f":"C94*'Other input expert'!B$5","v":0},{"$f":"D94*'Other input expert'!C$5","v":0},{"$f":"E94*'Other input expert'!D$5","v":0},{"$f":"F94*'Other input expert'!E$5","v":0},{"$f":"G94*'Other input expert'!F$5","v":0},{"$f":"H94*'Other input expert'!G$5","v":0},{"$f":"I94*'Other input expert'!H$5","v":0},{"$f":"J94*'Other input expert'!I$5","v":0},{"$f":"K94*'Other input expert'!J$5","v":0},{"$f":"L94*'Other input expert'!K$5","v":0},{"$f":"M94*'Other input expert'!L$5","v":0},{"$f":"N94*'Other input expert'!M$5","v":0},null,{"$f":"C94*(100%-'Other input expert'!B$5)","v":0},{"$f":"D94*(100%-'Other input expert'!C$5)","v":0},{"$f":"E94*(100%-'Other input expert'!D$5)","v":0},{"$f":"F94*(100%-'Other input expert'!E$5)","v":0},{"$f":"G94*(100%-'Other input expert'!F$5)","v":0},{"$f":"H94*(100%-'Other input expert'!G$5)","v":0},{"$f":"I94*(100%-'Other input expert'!H$5)","v":0},{"$f":"J94*(100%-'Other input expert'!I$5)","v":0},{"$f":"K94*(100%-'Other input expert'!J$5)","v":0},{"$f":"L94*(100%-'Other input expert'!K$5)","v":0},{"$f":"M94*(100%-'Other input expert'!L$5)","v":0},{"$f":"N94*(100%-'Other input expert'!M$5)","v":0},null,{"$f":"P94*'Other input expert'!B$12*'Sales price per sales channel'!$G94*'Other input expert'!B$6","v":0},{"$f":"Q94*'Other input expert'!C$12*'Sales price per sales channel'!$G94*'Other input expert'!C$6","v":0},{"$f":"R94*'Other input expert'!D$12*'Sales price per sales channel'!$G94*'Other input expert'!D$6","v":0},{"$f":"S94*'Other input expert'!E$12*'Sales price per sales channel'!$G94*'Other input expert'!E$6","v":0},{"$f":"T94*'Other input expert'!F$12*'Sales price per sales channel'!$G94*'Other input expert'!F$6","v":0},{"$f":"U94*'Other input expert'!G$12*'Sales price per sales channel'!$G94*'Other input expert'!G$6","v":0},{"$f":"V94*'Other input expert'!H$12*'Sales price per sales channel'!$G94*'Other input expert'!H$6","v":0},{"$f":"W94*'Other input expert'!I$12*'Sales price per sales channel'!$G94*'Other input expert'!I$6","v":0},{"$f":"X94*'Other input expert'!J$12*'Sales price per sales channel'!$G94*'Other input expert'!J$6","v":0},{"$f":"Y94*'Other input expert'!K$12*'Sales price per sales channel'!$G94*'Other input expert'!K$6","v":0},{"$f":"Z94*'Other input expert'!L$12*'Sales price per sales channel'!$G94*'Other input expert'!L$6","v":0},{"$f":"AA94*'Other input expert'!M$12*'Sales price per sales channel'!$G94*'Other input expert'!M$6","v":0},null,{"$f":"P94*'Other input expert'!B$13*'Sales price per sales channel'!$H94*'Other input expert'!B$6","v":0},{"$f":"Q94*'Other input expert'!C$13*'Sales price per sales channel'!$H94*'Other input expert'!C$6","v":0},{"$f":"R94*'Other input expert'!D$13*'Sales price per sales channel'!$H94*'Other input expert'!D$6","v":0},{"$f":"S94*'Other input expert'!E$13*'Sales price per sales channel'!$H94*'Other input expert'!E$6","v":0},{"$f":"T94*'Other input expert'!F$13*'Sales price per sales channel'!$H94*'Other input expert'!F$6","v":0},{"$f":"U94*'Other input expert'!G$13*'Sales price per sales channel'!$H94*'Other input expert'!G$6","v":0},{"$f":"V94*'Other input expert'!H$13*'Sales price per sales channel'!$H94*'Other input expert'!H$6","v":0},{"$f":"W94*'Other input expert'!I$13*'Sales price per sales channel'!$H94*'Other input expert'!I$6","v":0},{"$f":"X94*'Other input expert'!J$13*'Sales price per sales channel'!$H94*'Other input expert'!J$6","v":0},{"$f":"Y94*'Other input expert'!K$13*'Sales price per sales channel'!$H94*'Other input expert'!K$6","v":0},{"$f":"Z94*'Other input expert'!L$13*'Sales price per sales channel'!$H94*'Other input expert'!L$6","v":0},{"$f":"AA94*'Other input expert'!M$13*'Sales price per sales channel'!$H94*'Other input expert'!M$6","v":0},null,{"$f":"P94*'Other input expert'!B$14*'Sales price per sales channel'!$I94*'Other input expert'!B$6","v":0},{"$f":"Q94*'Other input expert'!C$14*'Sales price per sales channel'!$I94*'Other input expert'!C$6","v":0},{"$f":"R94*'Other input expert'!D$14*'Sales price per sales channel'!$I94*'Other input expert'!D$6","v":0},{"$f":"S94*'Other input expert'!E$14*'Sales price per sales channel'!$I94*'Other input expert'!E$6","v":0},{"$f":"T94*'Other input expert'!F$14*'Sales price per sales channel'!$I94*'Other input expert'!F$6","v":0},{"$f":"U94*'Other input expert'!G$14*'Sales price per sales channel'!$I94*'Other input expert'!G$6","v":0},{"$f":"V94*'Other input expert'!H$14*'Sales price per sales channel'!$I94*'Other input expert'!H$6","v":0},{"$f":"W94*'Other input expert'!I$14*'Sales price per sales channel'!$I94*'Other input expert'!I$6","v":0},{"$f":"X94*'Other input expert'!J$14*'Sales price per sales channel'!$I94*'Other input expert'!J$6","v":0},{"$f":"Y94*'Other input expert'!K$14*'Sales price per sales channel'!$I94*'Other input expert'!K$6","v":0},{"$f":"Z94*'Other input expert'!L$14*'Sales price per sales channel'!$I94*'Other input expert'!L$6","v":0},{"$f":"AA94*'Other input expert'!M$14*'Sales price per sales channel'!$I94*'Other input expert'!M$6","v":0},null,{"$f":"AC94*'Other input expert'!B$12*'Sales price per sales channel'!$G94*'Other input expert'!B$7","v":0},{"$f":"AD94*'Other input expert'!C$12*'Sales price per sales channel'!$G94*'Other input expert'!C$7","v":0},{"$f":"AE94*'Other input expert'!D$12*'Sales price per sales channel'!$G94*'Other input expert'!D$7","v":0},{"$f":"AF94*'Other input expert'!E$12*'Sales price per sales channel'!$G94*'Other input expert'!E$7","v":0},{"$f":"AG94*'Other input expert'!F$12*'Sales price per sales channel'!$G94*'Other input expert'!F$7","v":0},{"$f":"AH94*'Other input expert'!G$12*'Sales price per sales channel'!$G94*'Other input expert'!G$7","v":0},{"$f":"AI94*'Other input expert'!H$12*'Sales price per sales channel'!$G94*'Other input expert'!H$7","v":0},{"$f":"AJ94*'Other input expert'!I$12*'Sales price per sales channel'!$G94*'Other input expert'!I$7","v":0},{"$f":"AK94*'Other input expert'!J$12*'Sales price per sales channel'!$G94*'Other input expert'!J$7","v":0},{"$f":"AL94*'Other input expert'!K$12*'Sales price per sales channel'!$G94*'Other input expert'!K$7","v":0},{"$f":"AM94*'Other input expert'!L$12*'Sales price per sales channel'!$G94*'Other input expert'!L$7","v":0},{"$f":"AN94*'Other input expert'!M$12*'Sales price per sales channel'!$G94*'Other input expert'!M$7","v":0},null,{"$f":"AC94*'Other input expert'!B$13*'Sales price per sales channel'!$H94*'Other input expert'!B$7","v":0},{"$f":"AD94*'Other input expert'!C$13*'Sales price per sales channel'!$H94*'Other input expert'!C$7","v":0},{"$f":"AE94*'Other input expert'!D$13*'Sales price per sales channel'!$H94*'Other input expert'!D$7","v":0},{"$f":"AF94*'Other input expert'!E$13*'Sales price per sales channel'!$H94*'Other input expert'!E$7","v":0},{"$f":"AG94*'Other input expert'!F$13*'Sales price per sales channel'!$H94*'Other input expert'!F$7","v":0},{"$f":"AH94*'Other input expert'!G$13*'Sales price per sales channel'!$H94*'Other input expert'!G$7","v":0},{"$f":"AI94*'Other input expert'!H$13*'Sales price per sales channel'!$H94*'Other input expert'!H$7","v":0},{"$f":"AJ94*'Other input expert'!I$13*'Sales price per sales channel'!$H94*'Other input expert'!I$7","v":0},{"$f":"AK94*'Other input expert'!J$13*'Sales price per sales channel'!$H94*'Other input expert'!J$7","v":0},{"$f":"AL94*'Other input expert'!K$13*'Sales price per sales channel'!$H94*'Other input expert'!K$7","v":0},{"$f":"AM94*'Other input expert'!L$13*'Sales price per sales channel'!$H94*'Other input expert'!L$7","v":0},{"$f":"AN94*'Other input expert'!M$13*'Sales price per sales channel'!$H94*'Other input expert'!M$7","v":0},null,{"$f":"AC94*'Other input expert'!B$14*'Sales price per sales channel'!$I94*'Other input expert'!B$7","v":0},{"$f":"AD94*'Other input expert'!C$14*'Sales price per sales channel'!$I94*'Other input expert'!C$7","v":0},{"$f":"AE94*'Other input expert'!D$14*'Sales price per sales channel'!$I94*'Other input expert'!D$7","v":0},{"$f":"AF94*'Other input expert'!E$14*'Sales price per sales channel'!$I94*'Other input expert'!E$7","v":0},{"$f":"AG94*'Other input expert'!F$14*'Sales price per sales channel'!$I94*'Other input expert'!F$7","v":0},{"$f":"AH94*'Other input expert'!G$14*'Sales price per sales channel'!$I94*'Other input expert'!G$7","v":0},{"$f":"AI94*'Other input expert'!H$14*'Sales price per sales channel'!$I94*'Other input expert'!H$7","v":0},{"$f":"AJ94*'Other input expert'!I$14*'Sales price per sales channel'!$I94*'Other input expert'!I$7","v":0},{"$f":"AK94*'Other input expert'!J$14*'Sales price per sales channel'!$I94*'Other input expert'!J$7","v":0},{"$f":"AL94*'Other input expert'!K$14*'Sales price per sales channel'!$I94*'Other input expert'!K$7","v":0},{"$f":"AM94*'Other input expert'!L$14*'Sales price per sales channel'!$I94*'Other input expert'!L$7","v":0},{"$f":"AN94*'Other input expert'!M$14*'Sales price per sales channel'!$I94*'Other input expert'!M$7","v":0}]
["Lentinula edodes","Shiitake",{"$f":"Plantlist!$G95*'Production list'!D96*'Other input expert'!B$4*'Other input expert'!B$8","v":0},{"$f":"Plantlist!$G95*'Production list'!E96*'Other input expert'!C$4*'Other input expert'!C$8","v":0},{"$f":"Plantlist!$G95*'Production list'!F96*'Other input expert'!D$4*'Other input expert'!D$8","v":0},{"$f":"Plantlist!$G95*'Production list'!G96*'Other input expert'!E$4*'Other input expert'!E$8","v":0},{"$f":"Plantlist!$G95*'Production list'!H96*'Other input expert'!F$4*'Other input expert'!F$8","v":0},{"$f":"Plantlist!$G95*'Production list'!I96*'Other input expert'!G$4*'Other input expert'!G$8","v":0},{"$f":"Plantlist!$G95*'Production list'!J96*'Other input expert'!H$4*'Other input expert'!H$8","v":0},{"$f":"Plantlist!$G95*'Production list'!K96*'Other input expert'!I$4*'Other input expert'!I$8","v":0},{"$f":"Plantlist!$G95*'Production list'!L96*'Other input expert'!J$4*'Other input expert'!J$8","v":0},{"$f":"Plantlist!$G95*'Production list'!M96*'Other input expert'!K$4*'Other input expert'!K$8","v":0},{"$f":"Plantlist!$G95*'Production list'!N96*'Other input expert'!L$4*'Other input expert'!L$8","v":0},{"$f":"Plantlist!$G95*'Production list'!O96*'Other input expert'!M$4*'Other input expert'!M$8","v":0},null,{"$f":"C95*'Other input expert'!B$5","v":0},{"$f":"D95*'Other input expert'!C$5","v":0},{"$f":"E95*'Other input expert'!D$5","v":0},{"$f":"F95*'Other input expert'!E$5","v":0},{"$f":"G95*'Other input expert'!F$5","v":0},{"$f":"H95*'Other input expert'!G$5","v":0},{"$f":"I95*'Other input expert'!H$5","v":0},{"$f":"J95*'Other input expert'!I$5","v":0},{"$f":"K95*'Other input expert'!J$5","v":0},{"$f":"L95*'Other input expert'!K$5","v":0},{"$f":"M95*'Other input expert'!L$5","v":0},{"$f":"N95*'Other input expert'!M$5","v":0},null,{"$f":"C95*(100%-'Other input expert'!B$5)","v":0},{"$f":"D95*(100%-'Other input expert'!C$5)","v":0},{"$f":"E95*(100%-'Other input expert'!D$5)","v":0},{"$f":"F95*(100%-'Other input expert'!E$5)","v":0},{"$f":"G95*(100%-'Other input expert'!F$5)","v":0},{"$f":"H95*(100%-'Other input expert'!G$5)","v":0},{"$f":"I95*(100%-'Other input expert'!H$5)","v":0},{"$f":"J95*(100%-'Other input expert'!I$5)","v":0},{"$f":"K95*(100%-'Other input expert'!J$5)","v":0},{"$f":"L95*(100%-'Other input expert'!K$5)","v":0},{"$f":"M95*(100%-'Other input expert'!L$5)","v":0},{"$f":"N95*(100%-'Other input expert'!M$5)","v":0},null,{"$f":"P95*'Other input expert'!B$12*'Sales price per sales channel'!$G95*'Other input expert'!B$6","v":0},{"$f":"Q95*'Other input expert'!C$12*'Sales price per sales channel'!$G95*'Other input expert'!C$6","v":0},{"$f":"R95*'Other input expert'!D$12*'Sales price per sales channel'!$G95*'Other input expert'!D$6","v":0},{"$f":"S95*'Other input expert'!E$12*'Sales price per sales channel'!$G95*'Other input expert'!E$6","v":0},{"$f":"T95*'Other input expert'!F$12*'Sales price per sales channel'!$G95*'Other input expert'!F$6","v":0},{"$f":"U95*'Other input expert'!G$12*'Sales price per sales channel'!$G95*'Other input expert'!G$6","v":0},{"$f":"V95*'Other input expert'!H$12*'Sales price per sales channel'!$G95*'Other input expert'!H$6","v":0},{"$f":"W95*'Other input expert'!I$12*'Sales price per sales channel'!$G95*'Other input expert'!I$6","v":0},{"$f":"X95*'Other input expert'!J$12*'Sales price per sales channel'!$G95*'Other input expert'!J$6","v":0},{"$f":"Y95*'Other input expert'!K$12*'Sales price per sales channel'!$G95*'Other input expert'!K$6","v":0},{"$f":"Z95*'Other input expert'!L$12*'Sales price per sales channel'!$G95*'Other input expert'!L$6","v":0},{"$f":"AA95*'Other input expert'!M$12*'Sales price per sales channel'!$G95*'Other input expert'!M$6","v":0},null,{"$f":"P95*'Other input expert'!B$13*'Sales price per sales channel'!$H95*'Other input expert'!B$6","v":0},{"$f":"Q95*'Other input expert'!C$13*'Sales price per sales channel'!$H95*'Other input expert'!C$6","v":0},{"$f":"R95*'Other input expert'!D$13*'Sales price per sales channel'!$H95*'Other input expert'!D$6","v":0},{"$f":"S95*'Other input expert'!E$13*'Sales price per sales channel'!$H95*'Other input expert'!E$6","v":0},{"$f":"T95*'Other input expert'!F$13*'Sales price per sales channel'!$H95*'Other input expert'!F$6","v":0},{"$f":"U95*'Other input expert'!G$13*'Sales price per sales channel'!$H95*'Other input expert'!G$6","v":0},{"$f":"V95*'Other input expert'!H$13*'Sales price per sales channel'!$H95*'Other input expert'!H$6","v":0},{"$f":"W95*'Other input expert'!I$13*'Sales price per sales channel'!$H95*'Other input expert'!I$6","v":0},{"$f":"X95*'Other input expert'!J$13*'Sales price per sales channel'!$H95*'Other input expert'!J$6","v":0},{"$f":"Y95*'Other input expert'!K$13*'Sales price per sales channel'!$H95*'Other input expert'!K$6","v":0},{"$f":"Z95*'Other input expert'!L$13*'Sales price per sales channel'!$H95*'Other input expert'!L$6","v":0},{"$f":"AA95*'Other input expert'!M$13*'Sales price per sales channel'!$H95*'Other input expert'!M$6","v":0},null,{"$f":"P95*'Other input expert'!B$14*'Sales price per sales channel'!$I95*'Other input expert'!B$6","v":0},{"$f":"Q95*'Other input expert'!C$14*'Sales price per sales channel'!$I95*'Other input expert'!C$6","v":0},{"$f":"R95*'Other input expert'!D$14*'Sales price per sales channel'!$I95*'Other input expert'!D$6","v":0},{"$f":"S95*'Other input expert'!E$14*'Sales price per sales channel'!$I95*'Other input expert'!E$6","v":0},{"$f":"T95*'Other input expert'!F$14*'Sales price per sales channel'!$I95*'Other input expert'!F$6","v":0},{"$f":"U95*'Other input expert'!G$14*'Sales price per sales channel'!$I95*'Other input expert'!G$6","v":0},{"$f":"V95*'Other input expert'!H$14*'Sales price per sales channel'!$I95*'Other input expert'!H$6","v":0},{"$f":"W95*'Other input expert'!I$14*'Sales price per sales channel'!$I95*'Other input expert'!I$6","v":0},{"$f":"X95*'Other input expert'!J$14*'Sales price per sales channel'!$I95*'Other input expert'!J$6","v":0},{"$f":"Y95*'Other input expert'!K$14*'Sales price per sales channel'!$I95*'Other input expert'!K$6","v":0},{"$f":"Z95*'Other input expert'!L$14*'Sales price per sales channel'!$I95*'Other input expert'!L$6","v":0},{"$f":"AA95*'Other input expert'!M$14*'Sales price per sales channel'!$I95*'Other input expert'!M$6","v":0},null,{"$f":"AC95*'Other input expert'!B$12*'Sales price per sales channel'!$G95*'Other input expert'!B$7","v":0},{"$f":"AD95*'Other input expert'!C$12*'Sales price per sales channel'!$G95*'Other input expert'!C$7","v":0},{"$f":"AE95*'Other input expert'!D$12*'Sales price per sales channel'!$G95*'Other input expert'!D$7","v":0},{"$f":"AF95*'Other input expert'!E$12*'Sales price per sales channel'!$G95*'Other input expert'!E$7","v":0},{"$f":"AG95*'Other input expert'!F$12*'Sales price per sales channel'!$G95*'Other input expert'!F$7","v":0},{"$f":"AH95*'Other input expert'!G$12*'Sales price per sales channel'!$G95*'Other input expert'!G$7","v":0},{"$f":"AI95*'Other input expert'!H$12*'Sales price per sales channel'!$G95*'Other input expert'!H$7","v":0},{"$f":"AJ95*'Other input expert'!I$12*'Sales price per sales channel'!$G95*'Other input expert'!I$7","v":0},{"$f":"AK95*'Other input expert'!J$12*'Sales price per sales channel'!$G95*'Other input expert'!J$7","v":0},{"$f":"AL95*'Other input expert'!K$12*'Sales price per sales channel'!$G95*'Other input expert'!K$7","v":0},{"$f":"AM95*'Other input expert'!L$12*'Sales price per sales channel'!$G95*'Other input expert'!L$7","v":0},{"$f":"AN95*'Other input expert'!M$12*'Sales price per sales channel'!$G95*'Other input expert'!M$7","v":0},null,{"$f":"AC95*'Other input expert'!B$13*'Sales price per sales channel'!$H95*'Other input expert'!B$7","v":0},{"$f":"AD95*'Other input expert'!C$13*'Sales price per sales channel'!$H95*'Other input expert'!C$7","v":0},{"$f":"AE95*'Other input expert'!D$13*'Sales price per sales channel'!$H95*'Other input expert'!D$7","v":0},{"$f":"AF95*'Other input expert'!E$13*'Sales price per sales channel'!$H95*'Other input expert'!E$7","v":0},{"$f":"AG95*'Other input expert'!F$13*'Sales price per sales channel'!$H95*'Other input expert'!F$7","v":0},{"$f":"AH95*'Other input expert'!G$13*'Sales price per sales channel'!$H95*'Other input expert'!G$7","v":0},{"$f":"AI95*'Other input expert'!H$13*'Sales price per sales channel'!$H95*'Other input expert'!H$7","v":0},{"$f":"AJ95*'Other input expert'!I$13*'Sales price per sales channel'!$H95*'Other input expert'!I$7","v":0},{"$f":"AK95*'Other input expert'!J$13*'Sales price per sales channel'!$H95*'Other input expert'!J$7","v":0},{"$f":"AL95*'Other input expert'!K$13*'Sales price per sales channel'!$H95*'Other input expert'!K$7","v":0},{"$f":"AM95*'Other input expert'!L$13*'Sales price per sales channel'!$H95*'Other input expert'!L$7","v":0},{"$f":"AN95*'Other input expert'!M$13*'Sales price per sales channel'!$H95*'Other input expert'!M$7","v":0},null,{"$f":"AC95*'Other input expert'!B$14*'Sales price per sales channel'!$I95*'Other input expert'!B$7","v":0},{"$f":"AD95*'Other input expert'!C$14*'Sales price per sales channel'!$I95*'Other input expert'!C$7","v":0},{"$f":"AE95*'Other input expert'!D$14*'Sales price per sales channel'!$I95*'Other input expert'!D$7","v":0},{"$f":"AF95*'Other input expert'!E$14*'Sales price per sales channel'!$I95*'Other input expert'!E$7","v":0},{"$f":"AG95*'Other input expert'!F$14*'Sales price per sales channel'!$I95*'Other input expert'!F$7","v":0},{"$f":"AH95*'Other input expert'!G$14*'Sales price per sales channel'!$I95*'Other input expert'!G$7","v":0},{"$f":"AI95*'Other input expert'!H$14*'Sales price per sales channel'!$I95*'Other input expert'!H$7","v":0},{"$f":"AJ95*'Other input expert'!I$14*'Sales price per sales channel'!$I95*'Other input expert'!I$7","v":0},{"$f":"AK95*'Other input expert'!J$14*'Sales price per sales channel'!$I95*'Other input expert'!J$7","v":0},{"$f":"AL95*'Other input expert'!K$14*'Sales price per sales channel'!$I95*'Other input expert'!K$7","v":0},{"$f":"AM95*'Other input expert'!L$14*'Sales price per sales channel'!$I95*'Other input expert'!L$7","v":0},{"$f":"AN95*'Other input expert'!M$14*'Sales price per sales channel'!$I95*'Other input expert'!M$7","v":0}]
["Lonicera caerulea","Honeysuckle",{"$f":"Plantlist!$G96*'Production list'!D97*'Other input expert'!B$4*'Other input expert'!B$8","v":0},{"$f":"Plantlist!$G96*'Production list'!E97*'Other input expert'!C$4*'Other input expert'!C$8","v":0},{"$f":"Plantlist!$G96*'Production list'!F97*'Other input expert'!D$4*'Other input expert'!D$8","v":0},{"$f":"Plantlist!$G96*'Production list'!G97*'Other input expert'!E$4*'Other input expert'!E$8","v":0},{"$f":"Plantlist!$G96*'Production list'!H97*'Other input expert'!F$4*'Other input expert'!F$8","v":0},{"$f":"Plantlist!$G96*'Production list'!I97*'Other input expert'!G$4*'Other input expert'!G$8","v":0},{"$f":"Plantlist!$G96*'Production list'!J97*'Other input expert'!H$4*'Other input expert'!H$8","v":0},{"$f":"Plantlist!$G96*'Production list'!K97*'Other input expert'!I$4*'Other input expert'!I$8","v":0},{"$f":"Plantlist!$G96*'Production list'!L97*'Other input expert'!J$4*'Other input expert'!J$8","v":0},{"$f":"Plantlist!$G96*'Production list'!M97*'Other input expert'!K$4*'Other input expert'!K$8","v":0},{"$f":"Plantlist!$G96*'Production list'!N97*'Other input expert'!L$4*'Other input expert'!L$8","v":0},{"$f":"Plantlist!$G96*'Production list'!O97*'Other input expert'!M$4*'Other input expert'!M$8","v":0},null,{"$f":"C96*'Other input expert'!B$5","v":0},{"$f":"D96*'Other input expert'!C$5","v":0},{"$f":"E96*'Other input expert'!D$5","v":0},{"$f":"F96*'Other input expert'!E$5","v":0},{"$f":"G96*'Other input expert'!F$5","v":0},{"$f":"H96*'Other input expert'!G$5","v":0},{"$f":"I96*'Other input expert'!H$5","v":0},{"$f":"J96*'Other input expert'!I$5","v":0},{"$f":"K96*'Other input expert'!J$5","v":0},{"$f":"L96*'Other input expert'!K$5","v":0},{"$f":"M96*'Other input expert'!L$5","v":0},{"$f":"N96*'Other input expert'!M$5","v":0},null,{"$f":"C96*(100%-'Other input expert'!B$5)","v":0},{"$f":"D96*(100%-'Other input expert'!C$5)","v":0},{"$f":"E96*(100%-'Other input expert'!D$5)","v":0},{"$f":"F96*(100%-'Other input expert'!E$5)","v":0},{"$f":"G96*(100%-'Other input expert'!F$5)","v":0},{"$f":"H96*(100%-'Other input expert'!G$5)","v":0},{"$f":"I96*(100%-'Other input expert'!H$5)","v":0},{"$f":"J96*(100%-'Other input expert'!I$5)","v":0},{"$f":"K96*(100%-'Other input expert'!J$5)","v":0},{"$f":"L96*(100%-'Other input expert'!K$5)","v":0},{"$f":"M96*(100%-'Other input expert'!L$5)","v":0},{"$f":"N96*(100%-'Other input expert'!M$5)","v":0},null,{"$f":"P96*'Other input expert'!B$12*'Sales price per sales channel'!$G96*'Other input expert'!B$6","v":0},{"$f":"Q96*'Other input expert'!C$12*'Sales price per sales channel'!$G96*'Other input expert'!C$6","v":0},{"$f":"R96*'Other input expert'!D$12*'Sales price per sales channel'!$G96*'Other input expert'!D$6","v":0},{"$f":"S96*'Other input expert'!E$12*'Sales price per sales channel'!$G96*'Other input expert'!E$6","v":0},{"$f":"T96*'Other input expert'!F$12*'Sales price per sales channel'!$G96*'Other input expert'!F$6","v":0},{"$f":"U96*'Other input expert'!G$12*'Sales price per sales channel'!$G96*'Other input expert'!G$6","v":0},{"$f":"V96*'Other input expert'!H$12*'Sales price per sales channel'!$G96*'Other input expert'!H$6","v":0},{"$f":"W96*'Other input expert'!I$12*'Sales price per sales channel'!$G96*'Other input expert'!I$6","v":0},{"$f":"X96*'Other input expert'!J$12*'Sales price per sales channel'!$G96*'Other input expert'!J$6","v":0},{"$f":"Y96*'Other input expert'!K$12*'Sales price per sales channel'!$G96*'Other input expert'!K$6","v":0},{"$f":"Z96*'Other input expert'!L$12*'Sales price per sales channel'!$G96*'Other input expert'!L$6","v":0},{"$f":"AA96*'Other input expert'!M$12*'Sales price per sales channel'!$G96*'Other input expert'!M$6","v":0},null,{"$f":"P96*'Other input expert'!B$13*'Sales price per sales channel'!$H96*'Other input expert'!B$6","v":0},{"$f":"Q96*'Other input expert'!C$13*'Sales price per sales channel'!$H96*'Other input expert'!C$6","v":0},{"$f":"R96*'Other input expert'!D$13*'Sales price per sales channel'!$H96*'Other input expert'!D$6","v":0},{"$f":"S96*'Other input expert'!E$13*'Sales price per sales channel'!$H96*'Other input expert'!E$6","v":0},{"$f":"T96*'Other input expert'!F$13*'Sales price per sales channel'!$H96*'Other input expert'!F$6","v":0},{"$f":"U96*'Other input expert'!G$13*'Sales price per sales channel'!$H96*'Other input expert'!G$6","v":0},{"$f":"V96*'Other input expert'!H$13*'Sales price per sales channel'!$H96*'Other input expert'!H$6","v":0},{"$f":"W96*'Other input expert'!I$13*'Sales price per sales channel'!$H96*'Other input expert'!I$6","v":0},{"$f":"X96*'Other input expert'!J$13*'Sales price per sales channel'!$H96*'Other input expert'!J$6","v":0},{"$f":"Y96*'Other input expert'!K$13*'Sales price per sales channel'!$H96*'Other input expert'!K$6","v":0},{"$f":"Z96*'Other input expert'!L$13*'Sales price per sales channel'!$H96*'Other input expert'!L$6","v":0},{"$f":"AA96*'Other input expert'!M$13*'Sales price per sales channel'!$H96*'Other input expert'!M$6","v":0},null,{"$f":"P96*'Other input expert'!B$14*'Sales price per sales channel'!$I96*'Other input expert'!B$6","v":0},{"$f":"Q96*'Other input expert'!C$14*'Sales price per sales channel'!$I96*'Other input expert'!C$6","v":0},{"$f":"R96*'Other input expert'!D$14*'Sales price per sales channel'!$I96*'Other input expert'!D$6","v":0},{"$f":"S96*'Other input expert'!E$14*'Sales price per sales channel'!$I96*'Other input expert'!E$6","v":0},{"$f":"T96*'Other input expert'!F$14*'Sales price per sales channel'!$I96*'Other input expert'!F$6","v":0},{"$f":"U96*'Other input expert'!G$14*'Sales price per sales channel'!$I96*'Other input expert'!G$6","v":0},{"$f":"V96*'Other input expert'!H$14*'Sales price per sales channel'!$I96*'Other input expert'!H$6","v":0},{"$f":"W96*'Other input expert'!I$14*'Sales price per sales channel'!$I96*'Other input expert'!I$6","v":0},{"$f":"X96*'Other input expert'!J$14*'Sales price per sales channel'!$I96*'Other input expert'!J$6","v":0},{"$f":"Y96*'Other input expert'!K$14*'Sales price per sales channel'!$I96*'Other input expert'!K$6","v":0},{"$f":"Z96*'Other input expert'!L$14*'Sales price per sales channel'!$I96*'Other input expert'!L$6","v":0},{"$f":"AA96*'Other input expert'!M$14*'Sales price per sales channel'!$I96*'Other input expert'!M$6","v":0},null,{"$f":"AC96*'Other input expert'!B$12*'Sales price per sales channel'!$G96*'Other input expert'!B$7","v":0},{"$f":"AD96*'Other input expert'!C$12*'Sales price per sales channel'!$G96*'Other input expert'!C$7","v":0},{"$f":"AE96*'Other input expert'!D$12*'Sales price per sales channel'!$G96*'Other input expert'!D$7","v":0},{"$f":"AF96*'Other input expert'!E$12*'Sales price per sales channel'!$G96*'Other input expert'!E$7","v":0},{"$f":"AG96*'Other input expert'!F$12*'Sales price per sales channel'!$G96*'Other input expert'!F$7","v":0},{"$f":"AH96*'Other input expert'!G$12*'Sales price per sales channel'!$G96*'Other input expert'!G$7","v":0},{"$f":"AI96*'Other input expert'!H$12*'Sales price per sales channel'!$G96*'Other input expert'!H$7","v":0},{"$f":"AJ96*'Other input expert'!I$12*'Sales price per sales channel'!$G96*'Other input expert'!I$7","v":0},{"$f":"AK96*'Other input expert'!J$12*'Sales price per sales channel'!$G96*'Other input expert'!J$7","v":0},{"$f":"AL96*'Other input expert'!K$12*'Sales price per sales channel'!$G96*'Other input expert'!K$7","v":0},{"$f":"AM96*'Other input expert'!L$12*'Sales price per sales channel'!$G96*'Other input expert'!L$7","v":0},{"$f":"AN96*'Other input expert'!M$12*'Sales price per sales channel'!$G96*'Other input expert'!M$7","v":0},null,{"$f":"AC96*'Other input expert'!B$13*'Sales price per sales channel'!$H96*'Other input expert'!B$7","v":0},{"$f":"AD96*'Other input expert'!C$13*'Sales price per sales channel'!$H96*'Other input expert'!C$7","v":0},{"$f":"AE96*'Other input expert'!D$13*'Sales price per sales channel'!$H96*'Other input expert'!D$7","v":0},{"$f":"AF96*'Other input expert'!E$13*'Sales price per sales channel'!$H96*'Other input expert'!E$7","v":0},{"$f":"AG96*'Other input expert'!F$13*'Sales price per sales channel'!$H96*'Other input expert'!F$7","v":0},{"$f":"AH96*'Other input expert'!G$13*'Sales price per sales channel'!$H96*'Other input expert'!G$7","v":0},{"$f":"AI96*'Other input expert'!H$13*'Sales price per sales channel'!$H96*'Other input expert'!H$7","v":0},{"$f":"AJ96*'Other input expert'!I$13*'Sales price per sales channel'!$H96*'Other input expert'!I$7","v":0},{"$f":"AK96*'Other input expert'!J$13*'Sales price per sales channel'!$H96*'Other input expert'!J$7","v":0},{"$f":"AL96*'Other input expert'!K$13*'Sales price per sales channel'!$H96*'Other input expert'!K$7","v":0},{"$f":"AM96*'Other input expert'!L$13*'Sales price per sales channel'!$H96*'Other input expert'!L$7","v":0},{"$f":"AN96*'Other input expert'!M$13*'Sales price per sales channel'!$H96*'Other input expert'!M$7","v":0},null,{"$f":"AC96*'Other input expert'!B$14*'Sales price per sales channel'!$I96*'Other input expert'!B$7","v":0},{"$f":"AD96*'Other input expert'!C$14*'Sales price per sales channel'!$I96*'Other input expert'!C$7","v":0},{"$f":"AE96*'Other input expert'!D$14*'Sales price per sales channel'!$I96*'Other input expert'!D$7","v":0},{"$f":"AF96*'Other input expert'!E$14*'Sales price per sales channel'!$I96*'Other input expert'!E$7","v":0},{"$f":"AG96*'Other input expert'!F$14*'Sales price per sales channel'!$I96*'Other input expert'!F$7","v":0},{"$f":"AH96*'Other input expert'!G$14*'Sales price per sales channel'!$I96*'Other input expert'!G$7","v":0},{"$f":"AI96*'Other input expert'!H$14*'Sales price per sales channel'!$I96*'Other input expert'!H$7","v":0},{"$f":"AJ96*'Other input expert'!I$14*'Sales price per sales channel'!$I96*'Other input expert'!I$7","v":0},{"$f":"AK96*'Other input expert'!J$14*'Sales price per sales channel'!$I96*'Other input expert'!J$7","v":0},{"$f":"AL96*'Other input expert'!K$14*'Sales price per sales channel'!$I96*'Other input expert'!K$7","v":0},{"$f":"AM96*'Other input expert'!L$14*'Sales price per sales channel'!$I96*'Other input expert'!L$7","v":0},{"$f":"AN96*'Other input expert'!M$14*'Sales price per sales channel'!$I96*'Other input expert'!M$7","v":0}]
["lonicera caerulea (juli)","Honeysuckle",{"$f":"Plantlist!$G97*'Production list'!D98*'Other input expert'!B$4*'Other input expert'!B$8","v":0},{"$f":"Plantlist!$G97*'Production list'!E98*'Other input expert'!C$4*'Other input expert'!C$8","v":0},{"$f":"Plantlist!$G97*'Production list'!F98*'Other input expert'!D$4*'Other input expert'!D$8","v":0},{"$f":"Plantlist!$G97*'Production list'!G98*'Other input expert'!E$4*'Other input expert'!E$8","v":0},{"$f":"Plantlist!$G97*'Production list'!H98*'Other input expert'!F$4*'Other input expert'!F$8","v":0},{"$f":"Plantlist!$G97*'Production list'!I98*'Other input expert'!G$4*'Other input expert'!G$8","v":0},{"$f":"Plantlist!$G97*'Production list'!J98*'Other input expert'!H$4*'Other input expert'!H$8","v":0},{"$f":"Plantlist!$G97*'Production list'!K98*'Other input expert'!I$4*'Other input expert'!I$8","v":0},{"$f":"Plantlist!$G97*'Production list'!L98*'Other input expert'!J$4*'Other input expert'!J$8","v":0},{"$f":"Plantlist!$G97*'Production list'!M98*'Other input expert'!K$4*'Other input expert'!K$8","v":0},{"$f":"Plantlist!$G97*'Production list'!N98*'Other input expert'!L$4*'Other input expert'!L$8","v":0},{"$f":"Plantlist!$G97*'Production list'!O98*'Other input expert'!M$4*'Other input expert'!M$8","v":0},null,{"$f":"C97*'Other input expert'!B$5","v":0},{"$f":"D97*'Other input expert'!C$5","v":0},{"$f":"E97*'Other input expert'!D$5","v":0},{"$f":"F97*'Other input expert'!E$5","v":0},{"$f":"G97*'Other input expert'!F$5","v":0},{"$f":"H97*'Other input expert'!G$5","v":0},{"$f":"I97*'Other input expert'!H$5","v":0},{"$f":"J97*'Other input expert'!I$5","v":0},{"$f":"K97*'Other input expert'!J$5","v":0},{"$f":"L97*'Other input expert'!K$5","v":0},{"$f":"M97*'Other input expert'!L$5","v":0},{"$f":"N97*'Other input expert'!M$5","v":0},null,{"$f":"C97*(100%-'Other input expert'!B$5)","v":0},{"$f":"D97*(100%-'Other input expert'!C$5)","v":0},{"$f":"E97*(100%-'Other input expert'!D$5)","v":0},{"$f":"F97*(100%-'Other input expert'!E$5)","v":0},{"$f":"G97*(100%-'Other input expert'!F$5)","v":0},{"$f":"H97*(100%-'Other input expert'!G$5)","v":0},{"$f":"I97*(100%-'Other input expert'!H$5)","v":0},{"$f":"J97*(100%-'Other input expert'!I$5)","v":0},{"$f":"K97*(100%-'Other input expert'!J$5)","v":0},{"$f":"L97*(100%-'Other input expert'!K$5)","v":0},{"$f":"M97*(100%-'Other input expert'!L$5)","v":0},{"$f":"N97*(100%-'Other input expert'!M$5)","v":0},null,{"$f":"P97*'Other input expert'!B$12*'Sales price per sales channel'!$G97*'Other input expert'!B$6","v":0},{"$f":"Q97*'Other input expert'!C$12*'Sales price per sales channel'!$G97*'Other input expert'!C$6","v":0},{"$f":"R97*'Other input expert'!D$12*'Sales price per sales channel'!$G97*'Other input expert'!D$6","v":0},{"$f":"S97*'Other input expert'!E$12*'Sales price per sales channel'!$G97*'Other input expert'!E$6","v":0},{"$f":"T97*'Other input expert'!F$12*'Sales price per sales channel'!$G97*'Other input expert'!F$6","v":0},{"$f":"U97*'Other input expert'!G$12*'Sales price per sales channel'!$G97*'Other input expert'!G$6","v":0},{"$f":"V97*'Other input expert'!H$12*'Sales price per sales channel'!$G97*'Other input expert'!H$6","v":0},{"$f":"W97*'Other input expert'!I$12*'Sales price per sales channel'!$G97*'Other input expert'!I$6","v":0},{"$f":"X97*'Other input expert'!J$12*'Sales price per sales channel'!$G97*'Other input expert'!J$6","v":0},{"$f":"Y97*'Other input expert'!K$12*'Sales price per sales channel'!$G97*'Other input expert'!K$6","v":0},{"$f":"Z97*'Other input expert'!L$12*'Sales price per sales channel'!$G97*'Other input expert'!L$6","v":0},{"$f":"AA97*'Other input expert'!M$12*'Sales price per sales channel'!$G97*'Other input expert'!M$6","v":0},null,{"$f":"P97*'Other input expert'!B$13*'Sales price per sales channel'!$H97*'Other input expert'!B$6","v":0},{"$f":"Q97*'Other input expert'!C$13*'Sales price per sales channel'!$H97*'Other input expert'!C$6","v":0},{"$f":"R97*'Other input expert'!D$13*'Sales price per sales channel'!$H97*'Other input expert'!D$6","v":0},{"$f":"S97*'Other input expert'!E$13*'Sales price per sales channel'!$H97*'Other input expert'!E$6","v":0},{"$f":"T97*'Other input expert'!F$13*'Sales price per sales channel'!$H97*'Other input expert'!F$6","v":0},{"$f":"U97*'Other input expert'!G$13*'Sales price per sales channel'!$H97*'Other input expert'!G$6","v":0},{"$f":"V97*'Other input expert'!H$13*'Sales price per sales channel'!$H97*'Other input expert'!H$6","v":0},{"$f":"W97*'Other input expert'!I$13*'Sales price per sales channel'!$H97*'Other input expert'!I$6","v":0},{"$f":"X97*'Other input expert'!J$13*'Sales price per sales channel'!$H97*'Other input expert'!J$6","v":0},{"$f":"Y97*'Other input expert'!K$13*'Sales price per sales channel'!$H97*'Other input expert'!K$6","v":0},{"$f":"Z97*'Other input expert'!L$13*'Sales price per sales channel'!$H97*'Other input expert'!L$6","v":0},{"$f":"AA97*'Other input expert'!M$13*'Sales price per sales channel'!$H97*'Other input expert'!M$6","v":0},null,{"$f":"P97*'Other input expert'!B$14*'Sales price per sales channel'!$I97*'Other input expert'!B$6","v":0},{"$f":"Q97*'Other input expert'!C$14*'Sales price per sales channel'!$I97*'Other input expert'!C$6","v":0},{"$f":"R97*'Other input expert'!D$14*'Sales price per sales channel'!$I97*'Other input expert'!D$6","v":0},{"$f":"S97*'Other input expert'!E$14*'Sales price per sales channel'!$I97*'Other input expert'!E$6","v":0},{"$f":"T97*'Other input expert'!F$14*'Sales price per sales channel'!$I97*'Other input expert'!F$6","v":0},{"$f":"U97*'Other input expert'!G$14*'Sales price per sales channel'!$I97*'Other input expert'!G$6","v":0},{"$f":"V97*'Other input expert'!H$14*'Sales price per sales channel'!$I97*'Other input expert'!H$6","v":0},{"$f":"W97*'Other input expert'!I$14*'Sales price per sales channel'!$I97*'Other input expert'!I$6","v":0},{"$f":"X97*'Other input expert'!J$14*'Sales price per sales channel'!$I97*'Other input expert'!J$6","v":0},{"$f":"Y97*'Other input expert'!K$14*'Sales price per sales channel'!$I97*'Other input expert'!K$6","v":0},{"$f":"Z97*'Other input expert'!L$14*'Sales price per sales channel'!$I97*'Other input expert'!L$6","v":0},{"$f":"AA97*'Other input expert'!M$14*'Sales price per sales channel'!$I97*'Other input expert'!M$6","v":0},null,{"$f":"AC97*'Other input expert'!B$12*'Sales price per sales channel'!$G97*'Other input expert'!B$7","v":0},{"$f":"AD97*'Other input expert'!C$12*'Sales price per sales channel'!$G97*'Other input expert'!C$7","v":0},{"$f":"AE97*'Other input expert'!D$12*'Sales price per sales channel'!$G97*'Other input expert'!D$7","v":0},{"$f":"AF97*'Other input expert'!E$12*'Sales price per sales channel'!$G97*'Other input expert'!E$7","v":0},{"$f":"AG97*'Other input expert'!F$12*'Sales price per sales channel'!$G97*'Other input expert'!F$7","v":0},{"$f":"AH97*'Other input expert'!G$12*'Sales price per sales channel'!$G97*'Other input expert'!G$7","v":0},{"$f":"AI97*'Other input expert'!H$12*'Sales price per sales channel'!$G97*'Other input expert'!H$7","v":0},{"$f":"AJ97*'Other input expert'!I$12*'Sales price per sales channel'!$G97*'Other input expert'!I$7","v":0},{"$f":"AK97*'Other input expert'!J$12*'Sales price per sales channel'!$G97*'Other input expert'!J$7","v":0},{"$f":"AL97*'Other input expert'!K$12*'Sales price per sales channel'!$G97*'Other input expert'!K$7","v":0},{"$f":"AM97*'Other input expert'!L$12*'Sales price per sales channel'!$G97*'Other input expert'!L$7","v":0},{"$f":"AN97*'Other input expert'!M$12*'Sales price per sales channel'!$G97*'Other input expert'!M$7","v":0},null,{"$f":"AC97*'Other input expert'!B$13*'Sales price per sales channel'!$H97*'Other input expert'!B$7","v":0},{"$f":"AD97*'Other input expert'!C$13*'Sales price per sales channel'!$H97*'Other input expert'!C$7","v":0},{"$f":"AE97*'Other input expert'!D$13*'Sales price per sales channel'!$H97*'Other input expert'!D$7","v":0},{"$f":"AF97*'Other input expert'!E$13*'Sales price per sales channel'!$H97*'Other input expert'!E$7","v":0},{"$f":"AG97*'Other input expert'!F$13*'Sales price per sales channel'!$H97*'Other input expert'!F$7","v":0},{"$f":"AH97*'Other input expert'!G$13*'Sales price per sales channel'!$H97*'Other input expert'!G$7","v":0},{"$f":"AI97*'Other input expert'!H$13*'Sales price per sales channel'!$H97*'Other input expert'!H$7","v":0},{"$f":"AJ97*'Other input expert'!I$13*'Sales price per sales channel'!$H97*'Other input expert'!I$7","v":0},{"$f":"AK97*'Other input expert'!J$13*'Sales price per sales channel'!$H97*'Other input expert'!J$7","v":0},{"$f":"AL97*'Other input expert'!K$13*'Sales price per sales channel'!$H97*'Other input expert'!K$7","v":0},{"$f":"AM97*'Other input expert'!L$13*'Sales price per sales channel'!$H97*'Other input expert'!L$7","v":0},{"$f":"AN97*'Other input expert'!M$13*'Sales price per sales channel'!$H97*'Other input expert'!M$7","v":0},null,{"$f":"AC97*'Other input expert'!B$14*'Sales price per sales channel'!$I97*'Other input expert'!B$7","v":0},{"$f":"AD97*'Other input expert'!C$14*'Sales price per sales channel'!$I97*'Other input expert'!C$7","v":0},{"$f":"AE97*'Other input expert'!D$14*'Sales price per sales channel'!$I97*'Other input expert'!D$7","v":0},{"$f":"AF97*'Other input expert'!E$14*'Sales price per sales channel'!$I97*'Other input expert'!E$7","v":0},{"$f":"AG97*'Other input expert'!F$14*'Sales price per sales channel'!$I97*'Other input expert'!F$7","v":0},{"$f":"AH97*'Other input expert'!G$14*'Sales price per sales channel'!$I97*'Other input expert'!G$7","v":0},{"$f":"AI97*'Other input expert'!H$14*'Sales price per sales channel'!$I97*'Other input expert'!H$7","v":0},{"$f":"AJ97*'Other input expert'!I$14*'Sales price per sales channel'!$I97*'Other input expert'!I$7","v":0},{"$f":"AK97*'Other input expert'!J$14*'Sales price per sales channel'!$I97*'Other input expert'!J$7","v":0},{"$f":"AL97*'Other input expert'!K$14*'Sales price per sales channel'!$I97*'Other input expert'!K$7","v":0},{"$f":"AM97*'Other input expert'!L$14*'Sales price per sales channel'!$I97*'Other input expert'!L$7","v":0},{"$f":"AN97*'Other input expert'!M$14*'Sales price per sales channel'!$I97*'Other input expert'!M$7","v":0}]
["Lycium barbarum","Gojiberry",{"$f":"Plantlist!$G98*'Production list'!D99*'Other input expert'!B$4*'Other input expert'!B$8","v":0},{"$f":"Plantlist!$G98*'Production list'!E99*'Other input expert'!C$4*'Other input expert'!C$8","v":0},{"$f":"Plantlist!$G98*'Production list'!F99*'Other input expert'!D$4*'Other input expert'!D$8","v":0},{"$f":"Plantlist!$G98*'Production list'!G99*'Other input expert'!E$4*'Other input expert'!E$8","v":0},{"$f":"Plantlist!$G98*'Production list'!H99*'Other input expert'!F$4*'Other input expert'!F$8","v":0},{"$f":"Plantlist!$G98*'Production list'!I99*'Other input expert'!G$4*'Other input expert'!G$8","v":0},{"$f":"Plantlist!$G98*'Production list'!J99*'Other input expert'!H$4*'Other input expert'!H$8","v":0},{"$f":"Plantlist!$G98*'Production list'!K99*'Other input expert'!I$4*'Other input expert'!I$8","v":0},{"$f":"Plantlist!$G98*'Production list'!L99*'Other input expert'!J$4*'Other input expert'!J$8","v":0},{"$f":"Plantlist!$G98*'Production list'!M99*'Other input expert'!K$4*'Other input expert'!K$8","v":0},{"$f":"Plantlist!$G98*'Production list'!N99*'Other input expert'!L$4*'Other input expert'!L$8","v":0},{"$f":"Plantlist!$G98*'Production list'!O99*'Other input expert'!M$4*'Other input expert'!M$8","v":0},null,{"$f":"C98*'Other input expert'!B$5","v":0},{"$f":"D98*'Other input expert'!C$5","v":0},{"$f":"E98*'Other input expert'!D$5","v":0},{"$f":"F98*'Other input expert'!E$5","v":0},{"$f":"G98*'Other input expert'!F$5","v":0},{"$f":"H98*'Other input expert'!G$5","v":0},{"$f":"I98*'Other input expert'!H$5","v":0},{"$f":"J98*'Other input expert'!I$5","v":0},{"$f":"K98*'Other input expert'!J$5","v":0},{"$f":"L98*'Other input expert'!K$5","v":0},{"$f":"M98*'Other input expert'!L$5","v":0},{"$f":"N98*'Other input expert'!M$5","v":0},null,{"$f":"C98*(100%-'Other input expert'!B$5)","v":0},{"$f":"D98*(100%-'Other input expert'!C$5)","v":0},{"$f":"E98*(100%-'Other input expert'!D$5)","v":0},{"$f":"F98*(100%-'Other input expert'!E$5)","v":0},{"$f":"G98*(100%-'Other input expert'!F$5)","v":0},{"$f":"H98*(100%-'Other input expert'!G$5)","v":0},{"$f":"I98*(100%-'Other input expert'!H$5)","v":0},{"$f":"J98*(100%-'Other input expert'!I$5)","v":0},{"$f":"K98*(100%-'Other input expert'!J$5)","v":0},{"$f":"L98*(100%-'Other input expert'!K$5)","v":0},{"$f":"M98*(100%-'Other input expert'!L$5)","v":0},{"$f":"N98*(100%-'Other input expert'!M$5)","v":0},null,{"$f":"P98*'Other input expert'!B$12*'Sales price per sales channel'!$G98*'Other input expert'!B$6","v":0},{"$f":"Q98*'Other input expert'!C$12*'Sales price per sales channel'!$G98*'Other input expert'!C$6","v":0},{"$f":"R98*'Other input expert'!D$12*'Sales price per sales channel'!$G98*'Other input expert'!D$6","v":0},{"$f":"S98*'Other input expert'!E$12*'Sales price per sales channel'!$G98*'Other input expert'!E$6","v":0},{"$f":"T98*'Other input expert'!F$12*'Sales price per sales channel'!$G98*'Other input expert'!F$6","v":0},{"$f":"U98*'Other input expert'!G$12*'Sales price per sales channel'!$G98*'Other input expert'!G$6","v":0},{"$f":"V98*'Other input expert'!H$12*'Sales price per sales channel'!$G98*'Other input expert'!H$6","v":0},{"$f":"W98*'Other input expert'!I$12*'Sales price per sales channel'!$G98*'Other input expert'!I$6","v":0},{"$f":"X98*'Other input expert'!J$12*'Sales price per sales channel'!$G98*'Other input expert'!J$6","v":0},{"$f":"Y98*'Other input expert'!K$12*'Sales price per sales channel'!$G98*'Other input expert'!K$6","v":0},{"$f":"Z98*'Other input expert'!L$12*'Sales price per sales channel'!$G98*'Other input expert'!L$6","v":0},{"$f":"AA98*'Other input expert'!M$12*'Sales price per sales channel'!$G98*'Other input expert'!M$6","v":0},null,{"$f":"P98*'Other input expert'!B$13*'Sales price per sales channel'!$H98*'Other input expert'!B$6","v":0},{"$f":"Q98*'Other input expert'!C$13*'Sales price per sales channel'!$H98*'Other input expert'!C$6","v":0},{"$f":"R98*'Other input expert'!D$13*'Sales price per sales channel'!$H98*'Other input expert'!D$6","v":0},{"$f":"S98*'Other input expert'!E$13*'Sales price per sales channel'!$H98*'Other input expert'!E$6","v":0},{"$f":"T98*'Other input expert'!F$13*'Sales price per sales channel'!$H98*'Other input expert'!F$6","v":0},{"$f":"U98*'Other input expert'!G$13*'Sales price per sales channel'!$H98*'Other input expert'!G$6","v":0},{"$f":"V98*'Other input expert'!H$13*'Sales price per sales channel'!$H98*'Other input expert'!H$6","v":0},{"$f":"W98*'Other input expert'!I$13*'Sales price per sales channel'!$H98*'Other input expert'!I$6","v":0},{"$f":"X98*'Other input expert'!J$13*'Sales price per sales channel'!$H98*'Other input expert'!J$6","v":0},{"$f":"Y98*'Other input expert'!K$13*'Sales price per sales channel'!$H98*'Other input expert'!K$6","v":0},{"$f":"Z98*'Other input expert'!L$13*'Sales price per sales channel'!$H98*'Other input expert'!L$6","v":0},{"$f":"AA98*'Other input expert'!M$13*'Sales price per sales channel'!$H98*'Other input expert'!M$6","v":0},null,{"$f":"P98*'Other input expert'!B$14*'Sales price per sales channel'!$I98*'Other input expert'!B$6","v":0},{"$f":"Q98*'Other input expert'!C$14*'Sales price per sales channel'!$I98*'Other input expert'!C$6","v":0},{"$f":"R98*'Other input expert'!D$14*'Sales price per sales channel'!$I98*'Other input expert'!D$6","v":0},{"$f":"S98*'Other input expert'!E$14*'Sales price per sales channel'!$I98*'Other input expert'!E$6","v":0},{"$f":"T98*'Other input expert'!F$14*'Sales price per sales channel'!$I98*'Other input expert'!F$6","v":0},{"$f":"U98*'Other input expert'!G$14*'Sales price per sales channel'!$I98*'Other input expert'!G$6","v":0},{"$f":"V98*'Other input expert'!H$14*'Sales price per sales channel'!$I98*'Other input expert'!H$6","v":0},{"$f":"W98*'Other input expert'!I$14*'Sales price per sales channel'!$I98*'Other input expert'!I$6","v":0},{"$f":"X98*'Other input expert'!J$14*'Sales price per sales channel'!$I98*'Other input expert'!J$6","v":0},{"$f":"Y98*'Other input expert'!K$14*'Sales price per sales channel'!$I98*'Other input expert'!K$6","v":0},{"$f":"Z98*'Other input expert'!L$14*'Sales price per sales channel'!$I98*'Other input expert'!L$6","v":0},{"$f":"AA98*'Other input expert'!M$14*'Sales price per sales channel'!$I98*'Other input expert'!M$6","v":0},null,{"$f":"AC98*'Other input expert'!B$12*'Sales price per sales channel'!$G98*'Other input expert'!B$7","v":0},{"$f":"AD98*'Other input expert'!C$12*'Sales price per sales channel'!$G98*'Other input expert'!C$7","v":0},{"$f":"AE98*'Other input expert'!D$12*'Sales price per sales channel'!$G98*'Other input expert'!D$7","v":0},{"$f":"AF98*'Other input expert'!E$12*'Sales price per sales channel'!$G98*'Other input expert'!E$7","v":0},{"$f":"AG98*'Other input expert'!F$12*'Sales price per sales channel'!$G98*'Other input expert'!F$7","v":0},{"$f":"AH98*'Other input expert'!G$12*'Sales price per sales channel'!$G98*'Other input expert'!G$7","v":0},{"$f":"AI98*'Other input expert'!H$12*'Sales price per sales channel'!$G98*'Other input expert'!H$7","v":0},{"$f":"AJ98*'Other input expert'!I$12*'Sales price per sales channel'!$G98*'Other input expert'!I$7","v":0},{"$f":"AK98*'Other input expert'!J$12*'Sales price per sales channel'!$G98*'Other input expert'!J$7","v":0},{"$f":"AL98*'Other input expert'!K$12*'Sales price per sales channel'!$G98*'Other input expert'!K$7","v":0},{"$f":"AM98*'Other input expert'!L$12*'Sales price per sales channel'!$G98*'Other input expert'!L$7","v":0},{"$f":"AN98*'Other input expert'!M$12*'Sales price per sales channel'!$G98*'Other input expert'!M$7","v":0},null,{"$f":"AC98*'Other input expert'!B$13*'Sales price per sales channel'!$H98*'Other input expert'!B$7","v":0},{"$f":"AD98*'Other input expert'!C$13*'Sales price per sales channel'!$H98*'Other input expert'!C$7","v":0},{"$f":"AE98*'Other input expert'!D$13*'Sales price per sales channel'!$H98*'Other input expert'!D$7","v":0},{"$f":"AF98*'Other input expert'!E$13*'Sales price per sales channel'!$H98*'Other input expert'!E$7","v":0},{"$f":"AG98*'Other input expert'!F$13*'Sales price per sales channel'!$H98*'Other input expert'!F$7","v":0},{"$f":"AH98*'Other input expert'!G$13*'Sales price per sales channel'!$H98*'Other input expert'!G$7","v":0},{"$f":"AI98*'Other input expert'!H$13*'Sales price per sales channel'!$H98*'Other input expert'!H$7","v":0},{"$f":"AJ98*'Other input expert'!I$13*'Sales price per sales channel'!$H98*'Other input expert'!I$7","v":0},{"$f":"AK98*'Other input expert'!J$13*'Sales price per sales channel'!$H98*'Other input expert'!J$7","v":0},{"$f":"AL98*'Other input expert'!K$13*'Sales price per sales channel'!$H98*'Other input expert'!K$7","v":0},{"$f":"AM98*'Other input expert'!L$13*'Sales price per sales channel'!$H98*'Other input expert'!L$7","v":0},{"$f":"AN98*'Other input expert'!M$13*'Sales price per sales channel'!$H98*'Other input expert'!M$7","v":0},null,{"$f":"AC98*'Other input expert'!B$14*'Sales price per sales channel'!$I98*'Other input expert'!B$7","v":0},{"$f":"AD98*'Other input expert'!C$14*'Sales price per sales channel'!$I98*'Other input expert'!C$7","v":0},{"$f":"AE98*'Other input expert'!D$14*'Sales price per sales channel'!$I98*'Other input expert'!D$7","v":0},{"$f":"AF98*'Other input expert'!E$14*'Sales price per sales channel'!$I98*'Other input expert'!E$7","v":0},{"$f":"AG98*'Other input expert'!F$14*'Sales price per sales channel'!$I98*'Other input expert'!F$7","v":0},{"$f":"AH98*'Other input expert'!G$14*'Sales price per sales channel'!$I98*'Other input expert'!G$7","v":0},{"$f":"AI98*'Other input expert'!H$14*'Sales price per sales channel'!$I98*'Other input expert'!H$7","v":0},{"$f":"AJ98*'Other input expert'!I$14*'Sales price per sales channel'!$I98*'Other input expert'!I$7","v":0},{"$f":"AK98*'Other input expert'!J$14*'Sales price per sales channel'!$I98*'Other input expert'!J$7","v":0},{"$f":"AL98*'Other input expert'!K$14*'Sales price per sales channel'!$I98*'Other input expert'!K$7","v":0},{"$f":"AM98*'Other input expert'!L$14*'Sales price per sales channel'!$I98*'Other input expert'!L$7","v":0},{"$f":"AN98*'Other input expert'!M$14*'Sales price per sales channel'!$I98*'Other input expert'!M$7","v":0}]
["Magnolia x soulangeana","Magnolia",{"$f":"Plantlist!$G99*'Production list'!D100*'Other input expert'!B$4*'Other input expert'!B$8","v":0},{"$f":"Plantlist!$G99*'Production list'!E100*'Other input expert'!C$4*'Other input expert'!C$8","v":0},{"$f":"Plantlist!$G99*'Production list'!F100*'Other input expert'!D$4*'Other input expert'!D$8","v":0},{"$f":"Plantlist!$G99*'Production list'!G100*'Other input expert'!E$4*'Other input expert'!E$8","v":0},{"$f":"Plantlist!$G99*'Production list'!H100*'Other input expert'!F$4*'Other input expert'!F$8","v":0},{"$f":"Plantlist!$G99*'Production list'!I100*'Other input expert'!G$4*'Other input expert'!G$8","v":0},{"$f":"Plantlist!$G99*'Production list'!J100*'Other input expert'!H$4*'Other input expert'!H$8","v":0},{"$f":"Plantlist!$G99*'Production list'!K100*'Other input expert'!I$4*'Other input expert'!I$8","v":0},{"$f":"Plantlist!$G99*'Production list'!L100*'Other input expert'!J$4*'Other input expert'!J$8","v":0},{"$f":"Plantlist!$G99*'Production list'!M100*'Other input expert'!K$4*'Other input expert'!K$8","v":0},{"$f":"Plantlist!$G99*'Production list'!N100*'Other input expert'!L$4*'Other input expert'!L$8","v":0},{"$f":"Plantlist!$G99*'Production list'!O100*'Other input expert'!M$4*'Other input expert'!M$8","v":0},null,{"$f":"C99*'Other input expert'!B$5","v":0},{"$f":"D99*'Other input expert'!C$5","v":0},{"$f":"E99*'Other input expert'!D$5","v":0},{"$f":"F99*'Other input expert'!E$5","v":0},{"$f":"G99*'Other input expert'!F$5","v":0},{"$f":"H99*'Other input expert'!G$5","v":0},{"$f":"I99*'Other input expert'!H$5","v":0},{"$f":"J99*'Other input expert'!I$5","v":0},{"$f":"K99*'Other input expert'!J$5","v":0},{"$f":"L99*'Other input expert'!K$5","v":0},{"$f":"M99*'Other input expert'!L$5","v":0},{"$f":"N99*'Other input expert'!M$5","v":0},null,{"$f":"C99*(100%-'Other input expert'!B$5)","v":0},{"$f":"D99*(100%-'Other input expert'!C$5)","v":0},{"$f":"E99*(100%-'Other input expert'!D$5)","v":0},{"$f":"F99*(100%-'Other input expert'!E$5)","v":0},{"$f":"G99*(100%-'Other input expert'!F$5)","v":0},{"$f":"H99*(100%-'Other input expert'!G$5)","v":0},{"$f":"I99*(100%-'Other input expert'!H$5)","v":0},{"$f":"J99*(100%-'Other input expert'!I$5)","v":0},{"$f":"K99*(100%-'Other input expert'!J$5)","v":0},{"$f":"L99*(100%-'Other input expert'!K$5)","v":0},{"$f":"M99*(100%-'Other input expert'!L$5)","v":0},{"$f":"N99*(100%-'Other input expert'!M$5)","v":0},null,{"$f":"P99*'Other input expert'!B$12*'Sales price per sales channel'!$G99*'Other input expert'!B$6","v":0},{"$f":"Q99*'Other input expert'!C$12*'Sales price per sales channel'!$G99*'Other input expert'!C$6","v":0},{"$f":"R99*'Other input expert'!D$12*'Sales price per sales channel'!$G99*'Other input expert'!D$6","v":0},{"$f":"S99*'Other input expert'!E$12*'Sales price per sales channel'!$G99*'Other input expert'!E$6","v":0},{"$f":"T99*'Other input expert'!F$12*'Sales price per sales channel'!$G99*'Other input expert'!F$6","v":0},{"$f":"U99*'Other input expert'!G$12*'Sales price per sales channel'!$G99*'Other input expert'!G$6","v":0},{"$f":"V99*'Other input expert'!H$12*'Sales price per sales channel'!$G99*'Other input expert'!H$6","v":0},{"$f":"W99*'Other input expert'!I$12*'Sales price per sales channel'!$G99*'Other input expert'!I$6","v":0},{"$f":"X99*'Other input expert'!J$12*'Sales price per sales channel'!$G99*'Other input expert'!J$6","v":0},{"$f":"Y99*'Other input expert'!K$12*'Sales price per sales channel'!$G99*'Other input expert'!K$6","v":0},{"$f":"Z99*'Other input expert'!L$12*'Sales price per sales channel'!$G99*'Other input expert'!L$6","v":0},{"$f":"AA99*'Other input expert'!M$12*'Sales price per sales channel'!$G99*'Other input expert'!M$6","v":0},null,{"$f":"P99*'Other input expert'!B$13*'Sales price per sales channel'!$H99*'Other input expert'!B$6","v":0},{"$f":"Q99*'Other input expert'!C$13*'Sales price per sales channel'!$H99*'Other input expert'!C$6","v":0},{"$f":"R99*'Other input expert'!D$13*'Sales price per sales channel'!$H99*'Other input expert'!D$6","v":0},{"$f":"S99*'Other input expert'!E$13*'Sales price per sales channel'!$H99*'Other input expert'!E$6","v":0},{"$f":"T99*'Other input expert'!F$13*'Sales price per sales channel'!$H99*'Other input expert'!F$6","v":0},{"$f":"U99*'Other input expert'!G$13*'Sales price per sales channel'!$H99*'Other input expert'!G$6","v":0},{"$f":"V99*'Other input expert'!H$13*'Sales price per sales channel'!$H99*'Other input expert'!H$6","v":0},{"$f":"W99*'Other input expert'!I$13*'Sales price per sales channel'!$H99*'Other input expert'!I$6","v":0},{"$f":"X99*'Other input expert'!J$13*'Sales price per sales channel'!$H99*'Other input expert'!J$6","v":0},{"$f":"Y99*'Other input expert'!K$13*'Sales price per sales channel'!$H99*'Other input expert'!K$6","v":0},{"$f":"Z99*'Other input expert'!L$13*'Sales price per sales channel'!$H99*'Other input expert'!L$6","v":0},{"$f":"AA99*'Other input expert'!M$13*'Sales price per sales channel'!$H99*'Other input expert'!M$6","v":0},null,{"$f":"P99*'Other input expert'!B$14*'Sales price per sales channel'!$I99*'Other input expert'!B$6","v":0},{"$f":"Q99*'Other input expert'!C$14*'Sales price per sales channel'!$I99*'Other input expert'!C$6","v":0},{"$f":"R99*'Other input expert'!D$14*'Sales price per sales channel'!$I99*'Other input expert'!D$6","v":0},{"$f":"S99*'Other input expert'!E$14*'Sales price per sales channel'!$I99*'Other input expert'!E$6","v":0},{"$f":"T99*'Other input expert'!F$14*'Sales price per sales channel'!$I99*'Other input expert'!F$6","v":0},{"$f":"U99*'Other input expert'!G$14*'Sales price per sales channel'!$I99*'Other input expert'!G$6","v":0},{"$f":"V99*'Other input expert'!H$14*'Sales price per sales channel'!$I99*'Other input expert'!H$6","v":0},{"$f":"W99*'Other input expert'!I$14*'Sales price per sales channel'!$I99*'Other input expert'!I$6","v":0},{"$f":"X99*'Other input expert'!J$14*'Sales price per sales channel'!$I99*'Other input expert'!J$6","v":0},{"$f":"Y99*'Other input expert'!K$14*'Sales price per sales channel'!$I99*'Other input expert'!K$6","v":0},{"$f":"Z99*'Other input expert'!L$14*'Sales price per sales channel'!$I99*'Other input expert'!L$6","v":0},{"$f":"AA99*'Other input expert'!M$14*'Sales price per sales channel'!$I99*'Other input expert'!M$6","v":0},null,{"$f":"AC99*'Other input expert'!B$12*'Sales price per sales channel'!$G99*'Other input expert'!B$7","v":0},{"$f":"AD99*'Other input expert'!C$12*'Sales price per sales channel'!$G99*'Other input expert'!C$7","v":0},{"$f":"AE99*'Other input expert'!D$12*'Sales price per sales channel'!$G99*'Other input expert'!D$7","v":0},{"$f":"AF99*'Other input expert'!E$12*'Sales price per sales channel'!$G99*'Other input expert'!E$7","v":0},{"$f":"AG99*'Other input expert'!F$12*'Sales price per sales channel'!$G99*'Other input expert'!F$7","v":0},{"$f":"AH99*'Other input expert'!G$12*'Sales price per sales channel'!$G99*'Other input expert'!G$7","v":0},{"$f":"AI99*'Other input expert'!H$12*'Sales price per sales channel'!$G99*'Other input expert'!H$7","v":0},{"$f":"AJ99*'Other input expert'!I$12*'Sales price per sales channel'!$G99*'Other input expert'!I$7","v":0},{"$f":"AK99*'Other input expert'!J$12*'Sales price per sales channel'!$G99*'Other input expert'!J$7","v":0},{"$f":"AL99*'Other input expert'!K$12*'Sales price per sales channel'!$G99*'Other input expert'!K$7","v":0},{"$f":"AM99*'Other input expert'!L$12*'Sales price per sales channel'!$G99*'Other input expert'!L$7","v":0},{"$f":"AN99*'Other input expert'!M$12*'Sales price per sales channel'!$G99*'Other input expert'!M$7","v":0},null,{"$f":"AC99*'Other input expert'!B$13*'Sales price per sales channel'!$H99*'Other input expert'!B$7","v":0},{"$f":"AD99*'Other input expert'!C$13*'Sales price per sales channel'!$H99*'Other input expert'!C$7","v":0},{"$f":"AE99*'Other input expert'!D$13*'Sales price per sales channel'!$H99*'Other input expert'!D$7","v":0},{"$f":"AF99*'Other input expert'!E$13*'Sales price per sales channel'!$H99*'Other input expert'!E$7","v":0},{"$f":"AG99*'Other input expert'!F$13*'Sales price per sales channel'!$H99*'Other input expert'!F$7","v":0},{"$f":"AH99*'Other input expert'!G$13*'Sales price per sales channel'!$H99*'Other input expert'!G$7","v":0},{"$f":"AI99*'Other input expert'!H$13*'Sales price per sales channel'!$H99*'Other input expert'!H$7","v":0},{"$f":"AJ99*'Other input expert'!I$13*'Sales price per sales channel'!$H99*'Other input expert'!I$7","v":0},{"$f":"AK99*'Other input expert'!J$13*'Sales price per sales channel'!$H99*'Other input expert'!J$7","v":0},{"$f":"AL99*'Other input expert'!K$13*'Sales price per sales channel'!$H99*'Other input expert'!K$7","v":0},{"$f":"AM99*'Other input expert'!L$13*'Sales price per sales channel'!$H99*'Other input expert'!L$7","v":0},{"$f":"AN99*'Other input expert'!M$13*'Sales price per sales channel'!$H99*'Other input expert'!M$7","v":0},null,{"$f":"AC99*'Other input expert'!B$14*'Sales price per sales channel'!$I99*'Other input expert'!B$7","v":0},{"$f":"AD99*'Other input expert'!C$14*'Sales price per sales channel'!$I99*'Other input expert'!C$7","v":0},{"$f":"AE99*'Other input expert'!D$14*'Sales price per sales channel'!$I99*'Other input expert'!D$7","v":0},{"$f":"AF99*'Other input expert'!E$14*'Sales price per sales channel'!$I99*'Other input expert'!E$7","v":0},{"$f":"AG99*'Other input expert'!F$14*'Sales price per sales channel'!$I99*'Other input expert'!F$7","v":0},{"$f":"AH99*'Other input expert'!G$14*'Sales price per sales channel'!$I99*'Other input expert'!G$7","v":0},{"$f":"AI99*'Other input expert'!H$14*'Sales price per sales channel'!$I99*'Other input expert'!H$7","v":0},{"$f":"AJ99*'Other input expert'!I$14*'Sales price per sales channel'!$I99*'Other input expert'!I$7","v":0},{"$f":"AK99*'Other input expert'!J$14*'Sales price per sales channel'!$I99*'Other input expert'!J$7","v":0},{"$f":"AL99*'Other input expert'!K$14*'Sales price per sales channel'!$I99*'Other input expert'!K$7","v":0},{"$f":"AM99*'Other input expert'!L$14*'Sales price per sales channel'!$I99*'Other input expert'!L$7","v":0},{"$f":"AN99*'Other input expert'!M$14*'Sales price per sales channel'!$I99*'Other input expert'!M$7","v":0}]
["Mahonia aquifolium","Oregon grape",{"$f":"Plantlist!$G100*'Production list'!D101*'Other input expert'!B$4*'Other input expert'!B$8","v":0},{"$f":"Plantlist!$G100*'Production list'!E101*'Other input expert'!C$4*'Other input expert'!C$8","v":0},{"$f":"Plantlist!$G100*'Production list'!F101*'Other input expert'!D$4*'Other input expert'!D$8","v":0},{"$f":"Plantlist!$G100*'Production list'!G101*'Other input expert'!E$4*'Other input expert'!E$8","v":0},{"$f":"Plantlist!$G100*'Production list'!H101*'Other input expert'!F$4*'Other input expert'!F$8","v":0},{"$f":"Plantlist!$G100*'Production list'!I101*'Other input expert'!G$4*'Other input expert'!G$8","v":0},{"$f":"Plantlist!$G100*'Production list'!J101*'Other input expert'!H$4*'Other input expert'!H$8","v":0},{"$f":"Plantlist!$G100*'Production list'!K101*'Other input expert'!I$4*'Other input expert'!I$8","v":0},{"$f":"Plantlist!$G100*'Production list'!L101*'Other input expert'!J$4*'Other input expert'!J$8","v":0},{"$f":"Plantlist!$G100*'Production list'!M101*'Other input expert'!K$4*'Other input expert'!K$8","v":0},{"$f":"Plantlist!$G100*'Production list'!N101*'Other input expert'!L$4*'Other input expert'!L$8","v":0},{"$f":"Plantlist!$G100*'Production list'!O101*'Other input expert'!M$4*'Other input expert'!M$8","v":0},null,{"$f":"C100*'Other input expert'!B$5","v":0},{"$f":"D100*'Other input expert'!C$5","v":0},{"$f":"E100*'Other input expert'!D$5","v":0},{"$f":"F100*'Other input expert'!E$5","v":0},{"$f":"G100*'Other input expert'!F$5","v":0},{"$f":"H100*'Other input expert'!G$5","v":0},{"$f":"I100*'Other input expert'!H$5","v":0},{"$f":"J100*'Other input expert'!I$5","v":0},{"$f":"K100*'Other input expert'!J$5","v":0},{"$f":"L100*'Other input expert'!K$5","v":0},{"$f":"M100*'Other input expert'!L$5","v":0},{"$f":"N100*'Other input expert'!M$5","v":0},null,{"$f":"C100*(100%-'Other input expert'!B$5)","v":0},{"$f":"D100*(100%-'Other input expert'!C$5)","v":0},{"$f":"E100*(100%-'Other input expert'!D$5)","v":0},{"$f":"F100*(100%-'Other input expert'!E$5)","v":0},{"$f":"G100*(100%-'Other input expert'!F$5)","v":0},{"$f":"H100*(100%-'Other input expert'!G$5)","v":0},{"$f":"I100*(100%-'Other input expert'!H$5)","v":0},{"$f":"J100*(100%-'Other input expert'!I$5)","v":0},{"$f":"K100*(100%-'Other input expert'!J$5)","v":0},{"$f":"L100*(100%-'Other input expert'!K$5)","v":0},{"$f":"M100*(100%-'Other input expert'!L$5)","v":0},{"$f":"N100*(100%-'Other input expert'!M$5)","v":0},null,{"$f":"P100*'Other input expert'!B$12*'Sales price per sales channel'!$G100*'Other input expert'!B$6","v":0},{"$f":"Q100*'Other input expert'!C$12*'Sales price per sales channel'!$G100*'Other input expert'!C$6","v":0},{"$f":"R100*'Other input expert'!D$12*'Sales price per sales channel'!$G100*'Other input expert'!D$6","v":0},{"$f":"S100*'Other input expert'!E$12*'Sales price per sales channel'!$G100*'Other input expert'!E$6","v":0},{"$f":"T100*'Other input expert'!F$12*'Sales price per sales channel'!$G100*'Other input expert'!F$6","v":0},{"$f":"U100*'Other input expert'!G$12*'Sales price per sales channel'!$G100*'Other input expert'!G$6","v":0},{"$f":"V100*'Other input expert'!H$12*'Sales price per sales channel'!$G100*'Other input expert'!H$6","v":0},{"$f":"W100*'Other input expert'!I$12*'Sales price per sales channel'!$G100*'Other input expert'!I$6","v":0},{"$f":"X100*'Other input expert'!J$12*'Sales price per sales channel'!$G100*'Other input expert'!J$6","v":0},{"$f":"Y100*'Other input expert'!K$12*'Sales price per sales channel'!$G100*'Other input expert'!K$6","v":0},{"$f":"Z100*'Other input expert'!L$12*'Sales price per sales channel'!$G100*'Other input expert'!L$6","v":0},{"$f":"AA100*'Other input expert'!M$12*'Sales price per sales channel'!$G100*'Other input expert'!M$6","v":0},null,{"$f":"P100*'Other input expert'!B$13*'Sales price per sales channel'!$H100*'Other input expert'!B$6","v":0},{"$f":"Q100*'Other input expert'!C$13*'Sales price per sales channel'!$H100*'Other input expert'!C$6","v":0},{"$f":"R100*'Other input expert'!D$13*'Sales price per sales channel'!$H100*'Other input expert'!D$6","v":0},{"$f":"S100*'Other input expert'!E$13*'Sales price per sales channel'!$H100*'Other input expert'!E$6","v":0},{"$f":"T100*'Other input expert'!F$13*'Sales price per sales channel'!$H100*'Other input expert'!F$6","v":0},{"$f":"U100*'Other input expert'!G$13*'Sales price per sales channel'!$H100*'Other input expert'!G$6","v":0},{"$f":"V100*'Other input expert'!H$13*'Sales price per sales channel'!$H100*'Other input expert'!H$6","v":0},{"$f":"W100*'Other input expert'!I$13*'Sales price per sales channel'!$H100*'Other input expert'!I$6","v":0},{"$f":"X100*'Other input expert'!J$13*'Sales price per sales channel'!$H100*'Other input expert'!J$6","v":0},{"$f":"Y100*'Other input expert'!K$13*'Sales price per sales channel'!$H100*'Other input expert'!K$6","v":0},{"$f":"Z100*'Other input expert'!L$13*'Sales price per sales channel'!$H100*'Other input expert'!L$6","v":0},{"$f":"AA100*'Other input expert'!M$13*'Sales price per sales channel'!$H100*'Other input expert'!M$6","v":0},null,{"$f":"P100*'Other input expert'!B$14*'Sales price per sales channel'!$I100*'Other input expert'!B$6","v":0},{"$f":"Q100*'Other input expert'!C$14*'Sales price per sales channel'!$I100*'Other input expert'!C$6","v":0},{"$f":"R100*'Other input expert'!D$14*'Sales price per sales channel'!$I100*'Other input expert'!D$6","v":0},{"$f":"S100*'Other input expert'!E$14*'Sales price per sales channel'!$I100*'Other input expert'!E$6","v":0},{"$f":"T100*'Other input expert'!F$14*'Sales price per sales channel'!$I100*'Other input expert'!F$6","v":0},{"$f":"U100*'Other input expert'!G$14*'Sales price per sales channel'!$I100*'Other input expert'!G$6","v":0},{"$f":"V100*'Other input expert'!H$14*'Sales price per sales channel'!$I100*'Other input expert'!H$6","v":0},{"$f":"W100*'Other input expert'!I$14*'Sales price per sales channel'!$I100*'Other input expert'!I$6","v":0},{"$f":"X100*'Other input expert'!J$14*'Sales price per sales channel'!$I100*'Other input expert'!J$6","v":0},{"$f":"Y100*'Other input expert'!K$14*'Sales price per sales channel'!$I100*'Other input expert'!K$6","v":0},{"$f":"Z100*'Other input expert'!L$14*'Sales price per sales channel'!$I100*'Other input expert'!L$6","v":0},{"$f":"AA100*'Other input expert'!M$14*'Sales price per sales channel'!$I100*'Other input expert'!M$6","v":0},null,{"$f":"AC100*'Other input expert'!B$12*'Sales price per sales channel'!$G100*'Other input expert'!B$7","v":0},{"$f":"AD100*'Other input expert'!C$12*'Sales price per sales channel'!$G100*'Other input expert'!C$7","v":0},{"$f":"AE100*'Other input expert'!D$12*'Sales price per sales channel'!$G100*'Other input expert'!D$7","v":0},{"$f":"AF100*'Other input expert'!E$12*'Sales price per sales channel'!$G100*'Other input expert'!E$7","v":0},{"$f":"AG100*'Other input expert'!F$12*'Sales price per sales channel'!$G100*'Other input expert'!F$7","v":0},{"$f":"AH100*'Other input expert'!G$12*'Sales price per sales channel'!$G100*'Other input expert'!G$7","v":0},{"$f":"AI100*'Other input expert'!H$12*'Sales price per sales channel'!$G100*'Other input expert'!H$7","v":0},{"$f":"AJ100*'Other input expert'!I$12*'Sales price per sales channel'!$G100*'Other input expert'!I$7","v":0},{"$f":"AK100*'Other input expert'!J$12*'Sales price per sales channel'!$G100*'Other input expert'!J$7","v":0},{"$f":"AL100*'Other input expert'!K$12*'Sales price per sales channel'!$G100*'Other input expert'!K$7","v":0},{"$f":"AM100*'Other input expert'!L$12*'Sales price per sales channel'!$G100*'Other input expert'!L$7","v":0},{"$f":"AN100*'Other input expert'!M$12*'Sales price per sales channel'!$G100*'Other input expert'!M$7","v":0},null,{"$f":"AC100*'Other input expert'!B$13*'Sales price per sales channel'!$H100*'Other input expert'!B$7","v":0},{"$f":"AD100*'Other input expert'!C$13*'Sales price per sales channel'!$H100*'Other input expert'!C$7","v":0},{"$f":"AE100*'Other input expert'!D$13*'Sales price per sales channel'!$H100*'Other input expert'!D$7","v":0},{"$f":"AF100*'Other input expert'!E$13*'Sales price per sales channel'!$H100*'Other input expert'!E$7","v":0},{"$f":"AG100*'Other input expert'!F$13*'Sales price per sales channel'!$H100*'Other input expert'!F$7","v":0},{"$f":"AH100*'Other input expert'!G$13*'Sales price per sales channel'!$H100*'Other input expert'!G$7","v":0},{"$f":"AI100*'Other input expert'!H$13*'Sales price per sales channel'!$H100*'Other input expert'!H$7","v":0},{"$f":"AJ100*'Other input expert'!I$13*'Sales price per sales channel'!$H100*'Other input expert'!I$7","v":0},{"$f":"AK100*'Other input expert'!J$13*'Sales price per sales channel'!$H100*'Other input expert'!J$7","v":0},{"$f":"AL100*'Other input expert'!K$13*'Sales price per sales channel'!$H100*'Other input expert'!K$7","v":0},{"$f":"AM100*'Other input expert'!L$13*'Sales price per sales channel'!$H100*'Other input expert'!L$7","v":0},{"$f":"AN100*'Other input expert'!M$13*'Sales price per sales channel'!$H100*'Other input expert'!M$7","v":0},null,{"$f":"AC100*'Other input expert'!B$14*'Sales price per sales channel'!$I100*'Other input expert'!B$7","v":0},{"$f":"AD100*'Other input expert'!C$14*'Sales price per sales channel'!$I100*'Other input expert'!C$7","v":0},{"$f":"AE100*'Other input expert'!D$14*'Sales price per sales channel'!$I100*'Other input expert'!D$7","v":0},{"$f":"AF100*'Other input expert'!E$14*'Sales price per sales channel'!$I100*'Other input expert'!E$7","v":0},{"$f":"AG100*'Other input expert'!F$14*'Sales price per sales channel'!$I100*'Other input expert'!F$7","v":0},{"$f":"AH100*'Other input expert'!G$14*'Sales price per sales channel'!$I100*'Other input expert'!G$7","v":0},{"$f":"AI100*'Other input expert'!H$14*'Sales price per sales channel'!$I100*'Other input expert'!H$7","v":0},{"$f":"AJ100*'Other input expert'!I$14*'Sales price per sales channel'!$I100*'Other input expert'!I$7","v":0},{"$f":"AK100*'Other input expert'!J$14*'Sales price per sales channel'!$I100*'Other input expert'!J$7","v":0},{"$f":"AL100*'Other input expert'!K$14*'Sales price per sales channel'!$I100*'Other input expert'!K$7","v":0},{"$f":"AM100*'Other input expert'!L$14*'Sales price per sales channel'!$I100*'Other input expert'!L$7","v":0},{"$f":"AN100*'Other input expert'!M$14*'Sales price per sales channel'!$I100*'Other input expert'!M$7","v":0}]
["Malus domestica (Culinary)","Apple",{"$f":"Plantlist!$G101*'Production list'!D102*'Other input expert'!B$4*'Other input expert'!B$8","v":0},{"$f":"Plantlist!$G101*'Production list'!E102*'Other input expert'!C$4*'Other input expert'!C$8","v":0},{"$f":"Plantlist!$G101*'Production list'!F102*'Other input expert'!D$4*'Other input expert'!D$8","v":0},{"$f":"Plantlist!$G101*'Production list'!G102*'Other input expert'!E$4*'Other input expert'!E$8","v":0},{"$f":"Plantlist!$G101*'Production list'!H102*'Other input expert'!F$4*'Other input expert'!F$8","v":0},{"$f":"Plantlist!$G101*'Production list'!I102*'Other input expert'!G$4*'Other input expert'!G$8","v":0},{"$f":"Plantlist!$G101*'Production list'!J102*'Other input expert'!H$4*'Other input expert'!H$8","v":0},{"$f":"Plantlist!$G101*'Production list'!K102*'Other input expert'!I$4*'Other input expert'!I$8","v":0},{"$f":"Plantlist!$G101*'Production list'!L102*'Other input expert'!J$4*'Other input expert'!J$8","v":0},{"$f":"Plantlist!$G101*'Production list'!M102*'Other input expert'!K$4*'Other input expert'!K$8","v":0},{"$f":"Plantlist!$G101*'Production list'!N102*'Other input expert'!L$4*'Other input expert'!L$8","v":0},{"$f":"Plantlist!$G101*'Production list'!O102*'Other input expert'!M$4*'Other input expert'!M$8","v":0},null,{"$f":"C101*'Other input expert'!B$5","v":0},{"$f":"D101*'Other input expert'!C$5","v":0},{"$f":"E101*'Other input expert'!D$5","v":0},{"$f":"F101*'Other input expert'!E$5","v":0},{"$f":"G101*'Other input expert'!F$5","v":0},{"$f":"H101*'Other input expert'!G$5","v":0},{"$f":"I101*'Other input expert'!H$5","v":0},{"$f":"J101*'Other input expert'!I$5","v":0},{"$f":"K101*'Other input expert'!J$5","v":0},{"$f":"L101*'Other input expert'!K$5","v":0},{"$f":"M101*'Other input expert'!L$5","v":0},{"$f":"N101*'Other input expert'!M$5","v":0},null,{"$f":"C101*(100%-'Other input expert'!B$5)","v":0},{"$f":"D101*(100%-'Other input expert'!C$5)","v":0},{"$f":"E101*(100%-'Other input expert'!D$5)","v":0},{"$f":"F101*(100%-'Other input expert'!E$5)","v":0},{"$f":"G101*(100%-'Other input expert'!F$5)","v":0},{"$f":"H101*(100%-'Other input expert'!G$5)","v":0},{"$f":"I101*(100%-'Other input expert'!H$5)","v":0},{"$f":"J101*(100%-'Other input expert'!I$5)","v":0},{"$f":"K101*(100%-'Other input expert'!J$5)","v":0},{"$f":"L101*(100%-'Other input expert'!K$5)","v":0},{"$f":"M101*(100%-'Other input expert'!L$5)","v":0},{"$f":"N101*(100%-'Other input expert'!M$5)","v":0},null,{"$f":"P101*'Other input expert'!B$12*'Sales price per sales channel'!$G101*'Other input expert'!B$6","v":0},{"$f":"Q101*'Other input expert'!C$12*'Sales price per sales channel'!$G101*'Other input expert'!C$6","v":0},{"$f":"R101*'Other input expert'!D$12*'Sales price per sales channel'!$G101*'Other input expert'!D$6","v":0},{"$f":"S101*'Other input expert'!E$12*'Sales price per sales channel'!$G101*'Other input expert'!E$6","v":0},{"$f":"T101*'Other input expert'!F$12*'Sales price per sales channel'!$G101*'Other input expert'!F$6","v":0},{"$f":"U101*'Other input expert'!G$12*'Sales price per sales channel'!$G101*'Other input expert'!G$6","v":0},{"$f":"V101*'Other input expert'!H$12*'Sales price per sales channel'!$G101*'Other input expert'!H$6","v":0},{"$f":"W101*'Other input expert'!I$12*'Sales price per sales channel'!$G101*'Other input expert'!I$6","v":0},{"$f":"X101*'Other input expert'!J$12*'Sales price per sales channel'!$G101*'Other input expert'!J$6","v":0},{"$f":"Y101*'Other input expert'!K$12*'Sales price per sales channel'!$G101*'Other input expert'!K$6","v":0},{"$f":"Z101*'Other input expert'!L$12*'Sales price per sales channel'!$G101*'Other input expert'!L$6","v":0},{"$f":"AA101*'Other input expert'!M$12*'Sales price per sales channel'!$G101*'Other input expert'!M$6","v":0},null,{"$f":"P101*'Other input expert'!B$13*'Sales price per sales channel'!$H101*'Other input expert'!B$6","v":0},{"$f":"Q101*'Other input expert'!C$13*'Sales price per sales channel'!$H101*'Other input expert'!C$6","v":0},{"$f":"R101*'Other input expert'!D$13*'Sales price per sales channel'!$H101*'Other input expert'!D$6","v":0},{"$f":"S101*'Other input expert'!E$13*'Sales price per sales channel'!$H101*'Other input expert'!E$6","v":0},{"$f":"T101*'Other input expert'!F$13*'Sales price per sales channel'!$H101*'Other input expert'!F$6","v":0},{"$f":"U101*'Other input expert'!G$13*'Sales price per sales channel'!$H101*'Other input expert'!G$6","v":0},{"$f":"V101*'Other input expert'!H$13*'Sales price per sales channel'!$H101*'Other input expert'!H$6","v":0},{"$f":"W101*'Other input expert'!I$13*'Sales price per sales channel'!$H101*'Other input expert'!I$6","v":0},{"$f":"X101*'Other input expert'!J$13*'Sales price per sales channel'!$H101*'Other input expert'!J$6","v":0},{"$f":"Y101*'Other input expert'!K$13*'Sales price per sales channel'!$H101*'Other input expert'!K$6","v":0},{"$f":"Z101*'Other input expert'!L$13*'Sales price per sales channel'!$H101*'Other input expert'!L$6","v":0},{"$f":"AA101*'Other input expert'!M$13*'Sales price per sales channel'!$H101*'Other input expert'!M$6","v":0},null,{"$f":"P101*'Other input expert'!B$14*'Sales price per sales channel'!$I101*'Other input expert'!B$6","v":0},{"$f":"Q101*'Other input expert'!C$14*'Sales price per sales channel'!$I101*'Other input expert'!C$6","v":0},{"$f":"R101*'Other input expert'!D$14*'Sales price per sales channel'!$I101*'Other input expert'!D$6","v":0},{"$f":"S101*'Other input expert'!E$14*'Sales price per sales channel'!$I101*'Other input expert'!E$6","v":0},{"$f":"T101*'Other input expert'!F$14*'Sales price per sales channel'!$I101*'Other input expert'!F$6","v":0},{"$f":"U101*'Other input expert'!G$14*'Sales price per sales channel'!$I101*'Other input expert'!G$6","v":0},{"$f":"V101*'Other input expert'!H$14*'Sales price per sales channel'!$I101*'Other input expert'!H$6","v":0},{"$f":"W101*'Other input expert'!I$14*'Sales price per sales channel'!$I101*'Other input expert'!I$6","v":0},{"$f":"X101*'Other input expert'!J$14*'Sales price per sales channel'!$I101*'Other input expert'!J$6","v":0},{"$f":"Y101*'Other input expert'!K$14*'Sales price per sales channel'!$I101*'Other input expert'!K$6","v":0},{"$f":"Z101*'Other input expert'!L$14*'Sales price per sales channel'!$I101*'Other input expert'!L$6","v":0},{"$f":"AA101*'Other input expert'!M$14*'Sales price per sales channel'!$I101*'Other input expert'!M$6","v":0},null,{"$f":"AC101*'Other input expert'!B$12*'Sales price per sales channel'!$G101*'Other input expert'!B$7","v":0},{"$f":"AD101*'Other input expert'!C$12*'Sales price per sales channel'!$G101*'Other input expert'!C$7","v":0},{"$f":"AE101*'Other input expert'!D$12*'Sales price per sales channel'!$G101*'Other input expert'!D$7","v":0},{"$f":"AF101*'Other input expert'!E$12*'Sales price per sales channel'!$G101*'Other input expert'!E$7","v":0},{"$f":"AG101*'Other input expert'!F$12*'Sales price per sales channel'!$G101*'Other input expert'!F$7","v":0},{"$f":"AH101*'Other input expert'!G$12*'Sales price per sales channel'!$G101*'Other input expert'!G$7","v":0},{"$f":"AI101*'Other input expert'!H$12*'Sales price per sales channel'!$G101*'Other input expert'!H$7","v":0},{"$f":"AJ101*'Other input expert'!I$12*'Sales price per sales channel'!$G101*'Other input expert'!I$7","v":0},{"$f":"AK101*'Other input expert'!J$12*'Sales price per sales channel'!$G101*'Other input expert'!J$7","v":0},{"$f":"AL101*'Other input expert'!K$12*'Sales price per sales channel'!$G101*'Other input expert'!K$7","v":0},{"$f":"AM101*'Other input expert'!L$12*'Sales price per sales channel'!$G101*'Other input expert'!L$7","v":0},{"$f":"AN101*'Other input expert'!M$12*'Sales price per sales channel'!$G101*'Other input expert'!M$7","v":0},null,{"$f":"AC101*'Other input expert'!B$13*'Sales price per sales channel'!$H101*'Other input expert'!B$7","v":0},{"$f":"AD101*'Other input expert'!C$13*'Sales price per sales channel'!$H101*'Other input expert'!C$7","v":0},{"$f":"AE101*'Other input expert'!D$13*'Sales price per sales channel'!$H101*'Other input expert'!D$7","v":0},{"$f":"AF101*'Other input expert'!E$13*'Sales price per sales channel'!$H101*'Other input expert'!E$7","v":0},{"$f":"AG101*'Other input expert'!F$13*'Sales price per sales channel'!$H101*'Other input expert'!F$7","v":0},{"$f":"AH101*'Other input expert'!G$13*'Sales price per sales channel'!$H101*'Other input expert'!G$7","v":0},{"$f":"AI101*'Other input expert'!H$13*'Sales price per sales channel'!$H101*'Other input expert'!H$7","v":0},{"$f":"AJ101*'Other input expert'!I$13*'Sales price per sales channel'!$H101*'Other input expert'!I$7","v":0},{"$f":"AK101*'Other input expert'!J$13*'Sales price per sales channel'!$H101*'Other input expert'!J$7","v":0},{"$f":"AL101*'Other input expert'!K$13*'Sales price per sales channel'!$H101*'Other input expert'!K$7","v":0},{"$f":"AM101*'Other input expert'!L$13*'Sales price per sales channel'!$H101*'Other input expert'!L$7","v":0},{"$f":"AN101*'Other input expert'!M$13*'Sales price per sales channel'!$H101*'Other input expert'!M$7","v":0},null,{"$f":"AC101*'Other input expert'!B$14*'Sales price per sales channel'!$I101*'Other input expert'!B$7","v":0},{"$f":"AD101*'Other input expert'!C$14*'Sales price per sales channel'!$I101*'Other input expert'!C$7","v":0},{"$f":"AE101*'Other input expert'!D$14*'Sales price per sales channel'!$I101*'Other input expert'!D$7","v":0},{"$f":"AF101*'Other input expert'!E$14*'Sales price per sales channel'!$I101*'Other input expert'!E$7","v":0},{"$f":"AG101*'Other input expert'!F$14*'Sales price per sales channel'!$I101*'Other input expert'!F$7","v":0},{"$f":"AH101*'Other input expert'!G$14*'Sales price per sales channel'!$I101*'Other input expert'!G$7","v":0},{"$f":"AI101*'Other input expert'!H$14*'Sales price per sales channel'!$I101*'Other input expert'!H$7","v":0},{"$f":"AJ101*'Other input expert'!I$14*'Sales price per sales channel'!$I101*'Other input expert'!I$7","v":0},{"$f":"AK101*'Other input expert'!J$14*'Sales price per sales channel'!$I101*'Other input expert'!J$7","v":0},{"$f":"AL101*'Other input expert'!K$14*'Sales price per sales channel'!$I101*'Other input expert'!K$7","v":0},{"$f":"AM101*'Other input expert'!L$14*'Sales price per sales channel'!$I101*'Other input expert'!L$7","v":0},{"$f":"AN101*'Other input expert'!M$14*'Sales price per sales channel'!$I101*'Other input expert'!M$7","v":0}]
["Malus domestica (Dessert)","Apple",{"$f":"Plantlist!$G102*'Production list'!D103*'Other input expert'!B$4*'Other input expert'!B$8","v":0},{"$f":"Plantlist!$G102*'Production list'!E103*'Other input expert'!C$4*'Other input expert'!C$8","v":0},{"$f":"Plantlist!$G102*'Production list'!F103*'Other input expert'!D$4*'Other input expert'!D$8","v":0},{"$f":"Plantlist!$G102*'Production list'!G103*'Other input expert'!E$4*'Other input expert'!E$8","v":0},{"$f":"Plantlist!$G102*'Production list'!H103*'Other input expert'!F$4*'Other input expert'!F$8","v":0},{"$f":"Plantlist!$G102*'Production list'!I103*'Other input expert'!G$4*'Other input expert'!G$8","v":0},{"$f":"Plantlist!$G102*'Production list'!J103*'Other input expert'!H$4*'Other input expert'!H$8","v":0},{"$f":"Plantlist!$G102*'Production list'!K103*'Other input expert'!I$4*'Other input expert'!I$8","v":0},{"$f":"Plantlist!$G102*'Production list'!L103*'Other input expert'!J$4*'Other input expert'!J$8","v":0},{"$f":"Plantlist!$G102*'Production list'!M103*'Other input expert'!K$4*'Other input expert'!K$8","v":0},{"$f":"Plantlist!$G102*'Production list'!N103*'Other input expert'!L$4*'Other input expert'!L$8","v":0},{"$f":"Plantlist!$G102*'Production list'!O103*'Other input expert'!M$4*'Other input expert'!M$8","v":0},null,{"$f":"C102*'Other input expert'!B$5","v":0},{"$f":"D102*'Other input expert'!C$5","v":0},{"$f":"E102*'Other input expert'!D$5","v":0},{"$f":"F102*'Other input expert'!E$5","v":0},{"$f":"G102*'Other input expert'!F$5","v":0},{"$f":"H102*'Other input expert'!G$5","v":0},{"$f":"I102*'Other input expert'!H$5","v":0},{"$f":"J102*'Other input expert'!I$5","v":0},{"$f":"K102*'Other input expert'!J$5","v":0},{"$f":"L102*'Other input expert'!K$5","v":0},{"$f":"M102*'Other input expert'!L$5","v":0},{"$f":"N102*'Other input expert'!M$5","v":0},null,{"$f":"C102*(100%-'Other input expert'!B$5)","v":0},{"$f":"D102*(100%-'Other input expert'!C$5)","v":0},{"$f":"E102*(100%-'Other input expert'!D$5)","v":0},{"$f":"F102*(100%-'Other input expert'!E$5)","v":0},{"$f":"G102*(100%-'Other input expert'!F$5)","v":0},{"$f":"H102*(100%-'Other input expert'!G$5)","v":0},{"$f":"I102*(100%-'Other input expert'!H$5)","v":0},{"$f":"J102*(100%-'Other input expert'!I$5)","v":0},{"$f":"K102*(100%-'Other input expert'!J$5)","v":0},{"$f":"L102*(100%-'Other input expert'!K$5)","v":0},{"$f":"M102*(100%-'Other input expert'!L$5)","v":0},{"$f":"N102*(100%-'Other input expert'!M$5)","v":0},null,{"$f":"P102*'Other input expert'!B$12*'Sales price per sales channel'!$G102*'Other input expert'!B$6","v":0},{"$f":"Q102*'Other input expert'!C$12*'Sales price per sales channel'!$G102*'Other input expert'!C$6","v":0},{"$f":"R102*'Other input expert'!D$12*'Sales price per sales channel'!$G102*'Other input expert'!D$6","v":0},{"$f":"S102*'Other input expert'!E$12*'Sales price per sales channel'!$G102*'Other input expert'!E$6","v":0},{"$f":"T102*'Other input expert'!F$12*'Sales price per sales channel'!$G102*'Other input expert'!F$6","v":0},{"$f":"U102*'Other input expert'!G$12*'Sales price per sales channel'!$G102*'Other input expert'!G$6","v":0},{"$f":"V102*'Other input expert'!H$12*'Sales price per sales channel'!$G102*'Other input expert'!H$6","v":0},{"$f":"W102*'Other input expert'!I$12*'Sales price per sales channel'!$G102*'Other input expert'!I$6","v":0},{"$f":"X102*'Other input expert'!J$12*'Sales price per sales channel'!$G102*'Other input expert'!J$6","v":0},{"$f":"Y102*'Other input expert'!K$12*'Sales price per sales channel'!$G102*'Other input expert'!K$6","v":0},{"$f":"Z102*'Other input expert'!L$12*'Sales price per sales channel'!$G102*'Other input expert'!L$6","v":0},{"$f":"AA102*'Other input expert'!M$12*'Sales price per sales channel'!$G102*'Other input expert'!M$6","v":0},null,{"$f":"P102*'Other input expert'!B$13*'Sales price per sales channel'!$H102*'Other input expert'!B$6","v":0},{"$f":"Q102*'Other input expert'!C$13*'Sales price per sales channel'!$H102*'Other input expert'!C$6","v":0},{"$f":"R102*'Other input expert'!D$13*'Sales price per sales channel'!$H102*'Other input expert'!D$6","v":0},{"$f":"S102*'Other input expert'!E$13*'Sales price per sales channel'!$H102*'Other input expert'!E$6","v":0},{"$f":"T102*'Other input expert'!F$13*'Sales price per sales channel'!$H102*'Other input expert'!F$6","v":0},{"$f":"U102*'Other input expert'!G$13*'Sales price per sales channel'!$H102*'Other input expert'!G$6","v":0},{"$f":"V102*'Other input expert'!H$13*'Sales price per sales channel'!$H102*'Other input expert'!H$6","v":0},{"$f":"W102*'Other input expert'!I$13*'Sales price per sales channel'!$H102*'Other input expert'!I$6","v":0},{"$f":"X102*'Other input expert'!J$13*'Sales price per sales channel'!$H102*'Other input expert'!J$6","v":0},{"$f":"Y102*'Other input expert'!K$13*'Sales price per sales channel'!$H102*'Other input expert'!K$6","v":0},{"$f":"Z102*'Other input expert'!L$13*'Sales price per sales channel'!$H102*'Other input expert'!L$6","v":0},{"$f":"AA102*'Other input expert'!M$13*'Sales price per sales channel'!$H102*'Other input expert'!M$6","v":0},null,{"$f":"P102*'Other input expert'!B$14*'Sales price per sales channel'!$I102*'Other input expert'!B$6","v":0},{"$f":"Q102*'Other input expert'!C$14*'Sales price per sales channel'!$I102*'Other input expert'!C$6","v":0},{"$f":"R102*'Other input expert'!D$14*'Sales price per sales channel'!$I102*'Other input expert'!D$6","v":0},{"$f":"S102*'Other input expert'!E$14*'Sales price per sales channel'!$I102*'Other input expert'!E$6","v":0},{"$f":"T102*'Other input expert'!F$14*'Sales price per sales channel'!$I102*'Other input expert'!F$6","v":0},{"$f":"U102*'Other input expert'!G$14*'Sales price per sales channel'!$I102*'Other input expert'!G$6","v":0},{"$f":"V102*'Other input expert'!H$14*'Sales price per sales channel'!$I102*'Other input expert'!H$6","v":0},{"$f":"W102*'Other input expert'!I$14*'Sales price per sales channel'!$I102*'Other input expert'!I$6","v":0},{"$f":"X102*'Other input expert'!J$14*'Sales price per sales channel'!$I102*'Other input expert'!J$6","v":0},{"$f":"Y102*'Other input expert'!K$14*'Sales price per sales channel'!$I102*'Other input expert'!K$6","v":0},{"$f":"Z102*'Other input expert'!L$14*'Sales price per sales channel'!$I102*'Other input expert'!L$6","v":0},{"$f":"AA102*'Other input expert'!M$14*'Sales price per sales channel'!$I102*'Other input expert'!M$6","v":0},null,{"$f":"AC102*'Other input expert'!B$12*'Sales price per sales channel'!$G102*'Other input expert'!B$7","v":0},{"$f":"AD102*'Other input expert'!C$12*'Sales price per sales channel'!$G102*'Other input expert'!C$7","v":0},{"$f":"AE102*'Other input expert'!D$12*'Sales price per sales channel'!$G102*'Other input expert'!D$7","v":0},{"$f":"AF102*'Other input expert'!E$12*'Sales price per sales channel'!$G102*'Other input expert'!E$7","v":0},{"$f":"AG102*'Other input expert'!F$12*'Sales price per sales channel'!$G102*'Other input expert'!F$7","v":0},{"$f":"AH102*'Other input expert'!G$12*'Sales price per sales channel'!$G102*'Other input expert'!G$7","v":0},{"$f":"AI102*'Other input expert'!H$12*'Sales price per sales channel'!$G102*'Other input expert'!H$7","v":0},{"$f":"AJ102*'Other input expert'!I$12*'Sales price per sales channel'!$G102*'Other input expert'!I$7","v":0},{"$f":"AK102*'Other input expert'!J$12*'Sales price per sales channel'!$G102*'Other input expert'!J$7","v":0},{"$f":"AL102*'Other input expert'!K$12*'Sales price per sales channel'!$G102*'Other input expert'!K$7","v":0},{"$f":"AM102*'Other input expert'!L$12*'Sales price per sales channel'!$G102*'Other input expert'!L$7","v":0},{"$f":"AN102*'Other input expert'!M$12*'Sales price per sales channel'!$G102*'Other input expert'!M$7","v":0},null,{"$f":"AC102*'Other input expert'!B$13*'Sales price per sales channel'!$H102*'Other input expert'!B$7","v":0},{"$f":"AD102*'Other input expert'!C$13*'Sales price per sales channel'!$H102*'Other input expert'!C$7","v":0},{"$f":"AE102*'Other input expert'!D$13*'Sales price per sales channel'!$H102*'Other input expert'!D$7","v":0},{"$f":"AF102*'Other input expert'!E$13*'Sales price per sales channel'!$H102*'Other input expert'!E$7","v":0},{"$f":"AG102*'Other input expert'!F$13*'Sales price per sales channel'!$H102*'Other input expert'!F$7","v":0},{"$f":"AH102*'Other input expert'!G$13*'Sales price per sales channel'!$H102*'Other input expert'!G$7","v":0},{"$f":"AI102*'Other input expert'!H$13*'Sales price per sales channel'!$H102*'Other input expert'!H$7","v":0},{"$f":"AJ102*'Other input expert'!I$13*'Sales price per sales channel'!$H102*'Other input expert'!I$7","v":0},{"$f":"AK102*'Other input expert'!J$13*'Sales price per sales channel'!$H102*'Other input expert'!J$7","v":0},{"$f":"AL102*'Other input expert'!K$13*'Sales price per sales channel'!$H102*'Other input expert'!K$7","v":0},{"$f":"AM102*'Other input expert'!L$13*'Sales price per sales channel'!$H102*'Other input expert'!L$7","v":0},{"$f":"AN102*'Other input expert'!M$13*'Sales price per sales channel'!$H102*'Other input expert'!M$7","v":0},null,{"$f":"AC102*'Other input expert'!B$14*'Sales price per sales channel'!$I102*'Other input expert'!B$7","v":0},{"$f":"AD102*'Other input expert'!C$14*'Sales price per sales channel'!$I102*'Other input expert'!C$7","v":0},{"$f":"AE102*'Other input expert'!D$14*'Sales price per sales channel'!$I102*'Other input expert'!D$7","v":0},{"$f":"AF102*'Other input expert'!E$14*'Sales price per sales channel'!$I102*'Other input expert'!E$7","v":0},{"$f":"AG102*'Other input expert'!F$14*'Sales price per sales channel'!$I102*'Other input expert'!F$7","v":0},{"$f":"AH102*'Other input expert'!G$14*'Sales price per sales channel'!$I102*'Other input expert'!G$7","v":0},{"$f":"AI102*'Other input expert'!H$14*'Sales price per sales channel'!$I102*'Other input expert'!H$7","v":0},{"$f":"AJ102*'Other input expert'!I$14*'Sales price per sales channel'!$I102*'Other input expert'!I$7","v":0},{"$f":"AK102*'Other input expert'!J$14*'Sales price per sales channel'!$I102*'Other input expert'!J$7","v":0},{"$f":"AL102*'Other input expert'!K$14*'Sales price per sales channel'!$I102*'Other input expert'!K$7","v":0},{"$f":"AM102*'Other input expert'!L$14*'Sales price per sales channel'!$I102*'Other input expert'!L$7","v":0},{"$f":"AN102*'Other input expert'!M$14*'Sales price per sales channel'!$I102*'Other input expert'!M$7","v":0}]
["Malus domestica cider","Apple",{"$f":"Plantlist!$G103*'Production list'!D104*'Other input expert'!B$4*'Other input expert'!B$8","v":0},{"$f":"Plantlist!$G103*'Production list'!E104*'Other input expert'!C$4*'Other input expert'!C$8","v":0},{"$f":"Plantlist!$G103*'Production list'!F104*'Other input expert'!D$4*'Other input expert'!D$8","v":0},{"$f":"Plantlist!$G103*'Production list'!G104*'Other input expert'!E$4*'Other input expert'!E$8","v":0},{"$f":"Plantlist!$G103*'Production list'!H104*'Other input expert'!F$4*'Other input expert'!F$8","v":0},{"$f":"Plantlist!$G103*'Production list'!I104*'Other input expert'!G$4*'Other input expert'!G$8","v":0},{"$f":"Plantlist!$G103*'Production list'!J104*'Other input expert'!H$4*'Other input expert'!H$8","v":0},{"$f":"Plantlist!$G103*'Production list'!K104*'Other input expert'!I$4*'Other input expert'!I$8","v":0},{"$f":"Plantlist!$G103*'Production list'!L104*'Other input expert'!J$4*'Other input expert'!J$8","v":0},{"$f":"Plantlist!$G103*'Production list'!M104*'Other input expert'!K$4*'Other input expert'!K$8","v":0},{"$f":"Plantlist!$G103*'Production list'!N104*'Other input expert'!L$4*'Other input expert'!L$8","v":0},{"$f":"Plantlist!$G103*'Production list'!O104*'Other input expert'!M$4*'Other input expert'!M$8","v":0},null,{"$f":"C103*'Other input expert'!B$5","v":0},{"$f":"D103*'Other input expert'!C$5","v":0},{"$f":"E103*'Other input expert'!D$5","v":0},{"$f":"F103*'Other input expert'!E$5","v":0},{"$f":"G103*'Other input expert'!F$5","v":0},{"$f":"H103*'Other input expert'!G$5","v":0},{"$f":"I103*'Other input expert'!H$5","v":0},{"$f":"J103*'Other input expert'!I$5","v":0},{"$f":"K103*'Other input expert'!J$5","v":0},{"$f":"L103*'Other input expert'!K$5","v":0},{"$f":"M103*'Other input expert'!L$5","v":0},{"$f":"N103*'Other input expert'!M$5","v":0},null,{"$f":"C103*(100%-'Other input expert'!B$5)","v":0},{"$f":"D103*(100%-'Other input expert'!C$5)","v":0},{"$f":"E103*(100%-'Other input expert'!D$5)","v":0},{"$f":"F103*(100%-'Other input expert'!E$5)","v":0},{"$f":"G103*(100%-'Other input expert'!F$5)","v":0},{"$f":"H103*(100%-'Other input expert'!G$5)","v":0},{"$f":"I103*(100%-'Other input expert'!H$5)","v":0},{"$f":"J103*(100%-'Other input expert'!I$5)","v":0},{"$f":"K103*(100%-'Other input expert'!J$5)","v":0},{"$f":"L103*(100%-'Other input expert'!K$5)","v":0},{"$f":"M103*(100%-'Other input expert'!L$5)","v":0},{"$f":"N103*(100%-'Other input expert'!M$5)","v":0},null,{"$f":"P103*'Other input expert'!B$12*'Sales price per sales channel'!$G103*'Other input expert'!B$6","v":0},{"$f":"Q103*'Other input expert'!C$12*'Sales price per sales channel'!$G103*'Other input expert'!C$6","v":0},{"$f":"R103*'Other input expert'!D$12*'Sales price per sales channel'!$G103*'Other input expert'!D$6","v":0},{"$f":"S103*'Other input expert'!E$12*'Sales price per sales channel'!$G103*'Other input expert'!E$6","v":0},{"$f":"T103*'Other input expert'!F$12*'Sales price per sales channel'!$G103*'Other input expert'!F$6","v":0},{"$f":"U103*'Other input expert'!G$12*'Sales price per sales channel'!$G103*'Other input expert'!G$6","v":0},{"$f":"V103*'Other input expert'!H$12*'Sales price per sales channel'!$G103*'Other input expert'!H$6","v":0},{"$f":"W103*'Other input expert'!I$12*'Sales price per sales channel'!$G103*'Other input expert'!I$6","v":0},{"$f":"X103*'Other input expert'!J$12*'Sales price per sales channel'!$G103*'Other input expert'!J$6","v":0},{"$f":"Y103*'Other input expert'!K$12*'Sales price per sales channel'!$G103*'Other input expert'!K$6","v":0},{"$f":"Z103*'Other input expert'!L$12*'Sales price per sales channel'!$G103*'Other input expert'!L$6","v":0},{"$f":"AA103*'Other input expert'!M$12*'Sales price per sales channel'!$G103*'Other input expert'!M$6","v":0},null,{"$f":"P103*'Other input expert'!B$13*'Sales price per sales channel'!$H103*'Other input expert'!B$6","v":0},{"$f":"Q103*'Other input expert'!C$13*'Sales price per sales channel'!$H103*'Other input expert'!C$6","v":0},{"$f":"R103*'Other input expert'!D$13*'Sales price per sales channel'!$H103*'Other input expert'!D$6","v":0},{"$f":"S103*'Other input expert'!E$13*'Sales price per sales channel'!$H103*'Other input expert'!E$6","v":0},{"$f":"T103*'Other input expert'!F$13*'Sales price per sales channel'!$H103*'Other input expert'!F$6","v":0},{"$f":"U103*'Other input expert'!G$13*'Sales price per sales channel'!$H103*'Other input expert'!G$6","v":0},{"$f":"V103*'Other input expert'!H$13*'Sales price per sales channel'!$H103*'Other input expert'!H$6","v":0},{"$f":"W103*'Other input expert'!I$13*'Sales price per sales channel'!$H103*'Other input expert'!I$6","v":0},{"$f":"X103*'Other input expert'!J$13*'Sales price per sales channel'!$H103*'Other input expert'!J$6","v":0},{"$f":"Y103*'Other input expert'!K$13*'Sales price per sales channel'!$H103*'Other input expert'!K$6","v":0},{"$f":"Z103*'Other input expert'!L$13*'Sales price per sales channel'!$H103*'Other input expert'!L$6","v":0},{"$f":"AA103*'Other input expert'!M$13*'Sales price per sales channel'!$H103*'Other input expert'!M$6","v":0},null,{"$f":"P103*'Other input expert'!B$14*'Sales price per sales channel'!$I103*'Other input expert'!B$6","v":0},{"$f":"Q103*'Other input expert'!C$14*'Sales price per sales channel'!$I103*'Other input expert'!C$6","v":0},{"$f":"R103*'Other input expert'!D$14*'Sales price per sales channel'!$I103*'Other input expert'!D$6","v":0},{"$f":"S103*'Other input expert'!E$14*'Sales price per sales channel'!$I103*'Other input expert'!E$6","v":0},{"$f":"T103*'Other input expert'!F$14*'Sales price per sales channel'!$I103*'Other input expert'!F$6","v":0},{"$f":"U103*'Other input expert'!G$14*'Sales price per sales channel'!$I103*'Other input expert'!G$6","v":0},{"$f":"V103*'Other input expert'!H$14*'Sales price per sales channel'!$I103*'Other input expert'!H$6","v":0},{"$f":"W103*'Other input expert'!I$14*'Sales price per sales channel'!$I103*'Other input expert'!I$6","v":0},{"$f":"X103*'Other input expert'!J$14*'Sales price per sales channel'!$I103*'Other input expert'!J$6","v":0},{"$f":"Y103*'Other input expert'!K$14*'Sales price per sales channel'!$I103*'Other input expert'!K$6","v":0},{"$f":"Z103*'Other input expert'!L$14*'Sales price per sales channel'!$I103*'Other input expert'!L$6","v":0},{"$f":"AA103*'Other input expert'!M$14*'Sales price per sales channel'!$I103*'Other input expert'!M$6","v":0},null,{"$f":"AC103*'Other input expert'!B$12*'Sales price per sales channel'!$G103*'Other input expert'!B$7","v":0},{"$f":"AD103*'Other input expert'!C$12*'Sales price per sales channel'!$G103*'Other input expert'!C$7","v":0},{"$f":"AE103*'Other input expert'!D$12*'Sales price per sales channel'!$G103*'Other input expert'!D$7","v":0},{"$f":"AF103*'Other input expert'!E$12*'Sales price per sales channel'!$G103*'Other input expert'!E$7","v":0},{"$f":"AG103*'Other input expert'!F$12*'Sales price per sales channel'!$G103*'Other input expert'!F$7","v":0},{"$f":"AH103*'Other input expert'!G$12*'Sales price per sales channel'!$G103*'Other input expert'!G$7","v":0},{"$f":"AI103*'Other input expert'!H$12*'Sales price per sales channel'!$G103*'Other input expert'!H$7","v":0},{"$f":"AJ103*'Other input expert'!I$12*'Sales price per sales channel'!$G103*'Other input expert'!I$7","v":0},{"$f":"AK103*'Other input expert'!J$12*'Sales price per sales channel'!$G103*'Other input expert'!J$7","v":0},{"$f":"AL103*'Other input expert'!K$12*'Sales price per sales channel'!$G103*'Other input expert'!K$7","v":0},{"$f":"AM103*'Other input expert'!L$12*'Sales price per sales channel'!$G103*'Other input expert'!L$7","v":0},{"$f":"AN103*'Other input expert'!M$12*'Sales price per sales channel'!$G103*'Other input expert'!M$7","v":0},null,{"$f":"AC103*'Other input expert'!B$13*'Sales price per sales channel'!$H103*'Other input expert'!B$7","v":0},{"$f":"AD103*'Other input expert'!C$13*'Sales price per sales channel'!$H103*'Other input expert'!C$7","v":0},{"$f":"AE103*'Other input expert'!D$13*'Sales price per sales channel'!$H103*'Other input expert'!D$7","v":0},{"$f":"AF103*'Other input expert'!E$13*'Sales price per sales channel'!$H103*'Other input expert'!E$7","v":0},{"$f":"AG103*'Other input expert'!F$13*'Sales price per sales channel'!$H103*'Other input expert'!F$7","v":0},{"$f":"AH103*'Other input expert'!G$13*'Sales price per sales channel'!$H103*'Other input expert'!G$7","v":0},{"$f":"AI103*'Other input expert'!H$13*'Sales price per sales channel'!$H103*'Other input expert'!H$7","v":0},{"$f":"AJ103*'Other input expert'!I$13*'Sales price per sales channel'!$H103*'Other input expert'!I$7","v":0},{"$f":"AK103*'Other input expert'!J$13*'Sales price per sales channel'!$H103*'Other input expert'!J$7","v":0},{"$f":"AL103*'Other input expert'!K$13*'Sales price per sales channel'!$H103*'Other input expert'!K$7","v":0},{"$f":"AM103*'Other input expert'!L$13*'Sales price per sales channel'!$H103*'Other input expert'!L$7","v":0},{"$f":"AN103*'Other input expert'!M$13*'Sales price per sales channel'!$H103*'Other input expert'!M$7","v":0},null,{"$f":"AC103*'Other input expert'!B$14*'Sales price per sales channel'!$I103*'Other input expert'!B$7","v":0},{"$f":"AD103*'Other input expert'!C$14*'Sales price per sales channel'!$I103*'Other input expert'!C$7","v":0},{"$f":"AE103*'Other input expert'!D$14*'Sales price per sales channel'!$I103*'Other input expert'!D$7","v":0},{"$f":"AF103*'Other input expert'!E$14*'Sales price per sales channel'!$I103*'Other input expert'!E$7","v":0},{"$f":"AG103*'Other input expert'!F$14*'Sales price per sales channel'!$I103*'Other input expert'!F$7","v":0},{"$f":"AH103*'Other input expert'!G$14*'Sales price per sales channel'!$I103*'Other input expert'!G$7","v":0},{"$f":"AI103*'Other input expert'!H$14*'Sales price per sales channel'!$I103*'Other input expert'!H$7","v":0},{"$f":"AJ103*'Other input expert'!I$14*'Sales price per sales channel'!$I103*'Other input expert'!I$7","v":0},{"$f":"AK103*'Other input expert'!J$14*'Sales price per sales channel'!$I103*'Other input expert'!J$7","v":0},{"$f":"AL103*'Other input expert'!K$14*'Sales price per sales channel'!$I103*'Other input expert'!K$7","v":0},{"$f":"AM103*'Other input expert'!L$14*'Sales price per sales channel'!$I103*'Other input expert'!L$7","v":0},{"$f":"AN103*'Other input expert'!M$14*'Sales price per sales channel'!$I103*'Other input expert'!M$7","v":0}]
["Malus domestica (Mid)","Apple",{"$f":"Plantlist!$G104*'Production list'!D105*'Other input expert'!B$4*'Other input expert'!B$8","v":0},{"$f":"Plantlist!$G104*'Production list'!E105*'Other input expert'!C$4*'Other input expert'!C$8","v":0},{"$f":"Plantlist!$G104*'Production list'!F105*'Other input expert'!D$4*'Other input expert'!D$8","v":0},{"$f":"Plantlist!$G104*'Production list'!G105*'Other input expert'!E$4*'Other input expert'!E$8","v":0},{"$f":"Plantlist!$G104*'Production list'!H105*'Other input expert'!F$4*'Other input expert'!F$8","v":0},{"$f":"Plantlist!$G104*'Production list'!I105*'Other input expert'!G$4*'Other input expert'!G$8","v":0},{"$f":"Plantlist!$G104*'Production list'!J105*'Other input expert'!H$4*'Other input expert'!H$8","v":0},{"$f":"Plantlist!$G104*'Production list'!K105*'Other input expert'!I$4*'Other input expert'!I$8","v":0},{"$f":"Plantlist!$G104*'Production list'!L105*'Other input expert'!J$4*'Other input expert'!J$8","v":0},{"$f":"Plantlist!$G104*'Production list'!M105*'Other input expert'!K$4*'Other input expert'!K$8","v":0},{"$f":"Plantlist!$G104*'Production list'!N105*'Other input expert'!L$4*'Other input expert'!L$8","v":0},{"$f":"Plantlist!$G104*'Production list'!O105*'Other input expert'!M$4*'Other input expert'!M$8","v":0},null,{"$f":"C104*'Other input expert'!B$5","v":0},{"$f":"D104*'Other input expert'!C$5","v":0},{"$f":"E104*'Other input expert'!D$5","v":0},{"$f":"F104*'Other input expert'!E$5","v":0},{"$f":"G104*'Other input expert'!F$5","v":0},{"$f":"H104*'Other input expert'!G$5","v":0},{"$f":"I104*'Other input expert'!H$5","v":0},{"$f":"J104*'Other input expert'!I$5","v":0},{"$f":"K104*'Other input expert'!J$5","v":0},{"$f":"L104*'Other input expert'!K$5","v":0},{"$f":"M104*'Other input expert'!L$5","v":0},{"$f":"N104*'Other input expert'!M$5","v":0},null,{"$f":"C104*(100%-'Other input expert'!B$5)","v":0},{"$f":"D104*(100%-'Other input expert'!C$5)","v":0},{"$f":"E104*(100%-'Other input expert'!D$5)","v":0},{"$f":"F104*(100%-'Other input expert'!E$5)","v":0},{"$f":"G104*(100%-'Other input expert'!F$5)","v":0},{"$f":"H104*(100%-'Other input expert'!G$5)","v":0},{"$f":"I104*(100%-'Other input expert'!H$5)","v":0},{"$f":"J104*(100%-'Other input expert'!I$5)","v":0},{"$f":"K104*(100%-'Other input expert'!J$5)","v":0},{"$f":"L104*(100%-'Other input expert'!K$5)","v":0},{"$f":"M104*(100%-'Other input expert'!L$5)","v":0},{"$f":"N104*(100%-'Other input expert'!M$5)","v":0},null,{"$f":"P104*'Other input expert'!B$12*'Sales price per sales channel'!$G104*'Other input expert'!B$6","v":0},{"$f":"Q104*'Other input expert'!C$12*'Sales price per sales channel'!$G104*'Other input expert'!C$6","v":0},{"$f":"R104*'Other input expert'!D$12*'Sales price per sales channel'!$G104*'Other input expert'!D$6","v":0},{"$f":"S104*'Other input expert'!E$12*'Sales price per sales channel'!$G104*'Other input expert'!E$6","v":0},{"$f":"T104*'Other input expert'!F$12*'Sales price per sales channel'!$G104*'Other input expert'!F$6","v":0},{"$f":"U104*'Other input expert'!G$12*'Sales price per sales channel'!$G104*'Other input expert'!G$6","v":0},{"$f":"V104*'Other input expert'!H$12*'Sales price per sales channel'!$G104*'Other input expert'!H$6","v":0},{"$f":"W104*'Other input expert'!I$12*'Sales price per sales channel'!$G104*'Other input expert'!I$6","v":0},{"$f":"X104*'Other input expert'!J$12*'Sales price per sales channel'!$G104*'Other input expert'!J$6","v":0},{"$f":"Y104*'Other input expert'!K$12*'Sales price per sales channel'!$G104*'Other input expert'!K$6","v":0},{"$f":"Z104*'Other input expert'!L$12*'Sales price per sales channel'!$G104*'Other input expert'!L$6","v":0},{"$f":"AA104*'Other input expert'!M$12*'Sales price per sales channel'!$G104*'Other input expert'!M$6","v":0},null,{"$f":"P104*'Other input expert'!B$13*'Sales price per sales channel'!$H104*'Other input expert'!B$6","v":0},{"$f":"Q104*'Other input expert'!C$13*'Sales price per sales channel'!$H104*'Other input expert'!C$6","v":0},{"$f":"R104*'Other input expert'!D$13*'Sales price per sales channel'!$H104*'Other input expert'!D$6","v":0},{"$f":"S104*'Other input expert'!E$13*'Sales price per sales channel'!$H104*'Other input expert'!E$6","v":0},{"$f":"T104*'Other input expert'!F$13*'Sales price per sales channel'!$H104*'Other input expert'!F$6","v":0},{"$f":"U104*'Other input expert'!G$13*'Sales price per sales channel'!$H104*'Other input expert'!G$6","v":0},{"$f":"V104*'Other input expert'!H$13*'Sales price per sales channel'!$H104*'Other input expert'!H$6","v":0},{"$f":"W104*'Other input expert'!I$13*'Sales price per sales channel'!$H104*'Other input expert'!I$6","v":0},{"$f":"X104*'Other input expert'!J$13*'Sales price per sales channel'!$H104*'Other input expert'!J$6","v":0},{"$f":"Y104*'Other input expert'!K$13*'Sales price per sales channel'!$H104*'Other input expert'!K$6","v":0},{"$f":"Z104*'Other input expert'!L$13*'Sales price per sales channel'!$H104*'Other input expert'!L$6","v":0},{"$f":"AA104*'Other input expert'!M$13*'Sales price per sales channel'!$H104*'Other input expert'!M$6","v":0},null,{"$f":"P104*'Other input expert'!B$14*'Sales price per sales channel'!$I104*'Other input expert'!B$6","v":0},{"$f":"Q104*'Other input expert'!C$14*'Sales price per sales channel'!$I104*'Other input expert'!C$6","v":0},{"$f":"R104*'Other input expert'!D$14*'Sales price per sales channel'!$I104*'Other input expert'!D$6","v":0},{"$f":"S104*'Other input expert'!E$14*'Sales price per sales channel'!$I104*'Other input expert'!E$6","v":0},{"$f":"T104*'Other input expert'!F$14*'Sales price per sales channel'!$I104*'Other input expert'!F$6","v":0},{"$f":"U104*'Other input expert'!G$14*'Sales price per sales channel'!$I104*'Other input expert'!G$6","v":0},{"$f":"V104*'Other input expert'!H$14*'Sales price per sales channel'!$I104*'Other input expert'!H$6","v":0},{"$f":"W104*'Other input expert'!I$14*'Sales price per sales channel'!$I104*'Other input expert'!I$6","v":0},{"$f":"X104*'Other input expert'!J$14*'Sales price per sales channel'!$I104*'Other input expert'!J$6","v":0},{"$f":"Y104*'Other input expert'!K$14*'Sales price per sales channel'!$I104*'Other input expert'!K$6","v":0},{"$f":"Z104*'Other input expert'!L$14*'Sales price per sales channel'!$I104*'Other input expert'!L$6","v":0},{"$f":"AA104*'Other input expert'!M$14*'Sales price per sales channel'!$I104*'Other input expert'!M$6","v":0},null,{"$f":"AC104*'Other input expert'!B$12*'Sales price per sales channel'!$G104*'Other input expert'!B$7","v":0},{"$f":"AD104*'Other input expert'!C$12*'Sales price per sales channel'!$G104*'Other input expert'!C$7","v":0},{"$f":"AE104*'Other input expert'!D$12*'Sales price per sales channel'!$G104*'Other input expert'!D$7","v":0},{"$f":"AF104*'Other input expert'!E$12*'Sales price per sales channel'!$G104*'Other input expert'!E$7","v":0},{"$f":"AG104*'Other input expert'!F$12*'Sales price per sales channel'!$G104*'Other input expert'!F$7","v":0},{"$f":"AH104*'Other input expert'!G$12*'Sales price per sales channel'!$G104*'Other input expert'!G$7","v":0},{"$f":"AI104*'Other input expert'!H$12*'Sales price per sales channel'!$G104*'Other input expert'!H$7","v":0},{"$f":"AJ104*'Other input expert'!I$12*'Sales price per sales channel'!$G104*'Other input expert'!I$7","v":0},{"$f":"AK104*'Other input expert'!J$12*'Sales price per sales channel'!$G104*'Other input expert'!J$7","v":0},{"$f":"AL104*'Other input expert'!K$12*'Sales price per sales channel'!$G104*'Other input expert'!K$7","v":0},{"$f":"AM104*'Other input expert'!L$12*'Sales price per sales channel'!$G104*'Other input expert'!L$7","v":0},{"$f":"AN104*'Other input expert'!M$12*'Sales price per sales channel'!$G104*'Other input expert'!M$7","v":0},null,{"$f":"AC104*'Other input expert'!B$13*'Sales price per sales channel'!$H104*'Other input expert'!B$7","v":0},{"$f":"AD104*'Other input expert'!C$13*'Sales price per sales channel'!$H104*'Other input expert'!C$7","v":0},{"$f":"AE104*'Other input expert'!D$13*'Sales price per sales channel'!$H104*'Other input expert'!D$7","v":0},{"$f":"AF104*'Other input expert'!E$13*'Sales price per sales channel'!$H104*'Other input expert'!E$7","v":0},{"$f":"AG104*'Other input expert'!F$13*'Sales price per sales channel'!$H104*'Other input expert'!F$7","v":0},{"$f":"AH104*'Other input expert'!G$13*'Sales price per sales channel'!$H104*'Other input expert'!G$7","v":0},{"$f":"AI104*'Other input expert'!H$13*'Sales price per sales channel'!$H104*'Other input expert'!H$7","v":0},{"$f":"AJ104*'Other input expert'!I$13*'Sales price per sales channel'!$H104*'Other input expert'!I$7","v":0},{"$f":"AK104*'Other input expert'!J$13*'Sales price per sales channel'!$H104*'Other input expert'!J$7","v":0},{"$f":"AL104*'Other input expert'!K$13*'Sales price per sales channel'!$H104*'Other input expert'!K$7","v":0},{"$f":"AM104*'Other input expert'!L$13*'Sales price per sales channel'!$H104*'Other input expert'!L$7","v":0},{"$f":"AN104*'Other input expert'!M$13*'Sales price per sales channel'!$H104*'Other input expert'!M$7","v":0},null,{"$f":"AC104*'Other input expert'!B$14*'Sales price per sales channel'!$I104*'Other input expert'!B$7","v":0},{"$f":"AD104*'Other input expert'!C$14*'Sales price per sales channel'!$I104*'Other input expert'!C$7","v":0},{"$f":"AE104*'Other input expert'!D$14*'Sales price per sales channel'!$I104*'Other input expert'!D$7","v":0},{"$f":"AF104*'Other input expert'!E$14*'Sales price per sales channel'!$I104*'Other input expert'!E$7","v":0},{"$f":"AG104*'Other input expert'!F$14*'Sales price per sales channel'!$I104*'Other input expert'!F$7","v":0},{"$f":"AH104*'Other input expert'!G$14*'Sales price per sales channel'!$I104*'Other input expert'!G$7","v":0},{"$f":"AI104*'Other input expert'!H$14*'Sales price per sales channel'!$I104*'Other input expert'!H$7","v":0},{"$f":"AJ104*'Other input expert'!I$14*'Sales price per sales channel'!$I104*'Other input expert'!I$7","v":0},{"$f":"AK104*'Other input expert'!J$14*'Sales price per sales channel'!$I104*'Other input expert'!J$7","v":0},{"$f":"AL104*'Other input expert'!K$14*'Sales price per sales channel'!$I104*'Other input expert'!K$7","v":0},{"$f":"AM104*'Other input expert'!L$14*'Sales price per sales channel'!$I104*'Other input expert'!L$7","v":0},{"$f":"AN104*'Other input expert'!M$14*'Sales price per sales channel'!$I104*'Other input expert'!M$7","v":0}]
["Malus domestica (Early)","Apple",{"$f":"Plantlist!$G105*'Production list'!D106*'Other input expert'!B$4*'Other input expert'!B$8","v":0},{"$f":"Plantlist!$G105*'Production list'!E106*'Other input expert'!C$4*'Other input expert'!C$8","v":0},{"$f":"Plantlist!$G105*'Production list'!F106*'Other input expert'!D$4*'Other input expert'!D$8","v":0},{"$f":"Plantlist!$G105*'Production list'!G106*'Other input expert'!E$4*'Other input expert'!E$8","v":0},{"$f":"Plantlist!$G105*'Production list'!H106*'Other input expert'!F$4*'Other input expert'!F$8","v":0},{"$f":"Plantlist!$G105*'Production list'!I106*'Other input expert'!G$4*'Other input expert'!G$8","v":0},{"$f":"Plantlist!$G105*'Production list'!J106*'Other input expert'!H$4*'Other input expert'!H$8","v":0},{"$f":"Plantlist!$G105*'Production list'!K106*'Other input expert'!I$4*'Other input expert'!I$8","v":0},{"$f":"Plantlist!$G105*'Production list'!L106*'Other input expert'!J$4*'Other input expert'!J$8","v":0},{"$f":"Plantlist!$G105*'Production list'!M106*'Other input expert'!K$4*'Other input expert'!K$8","v":0},{"$f":"Plantlist!$G105*'Production list'!N106*'Other input expert'!L$4*'Other input expert'!L$8","v":0},{"$f":"Plantlist!$G105*'Production list'!O106*'Other input expert'!M$4*'Other input expert'!M$8","v":0},null,{"$f":"C105*'Other input expert'!B$5","v":0},{"$f":"D105*'Other input expert'!C$5","v":0},{"$f":"E105*'Other input expert'!D$5","v":0},{"$f":"F105*'Other input expert'!E$5","v":0},{"$f":"G105*'Other input expert'!F$5","v":0},{"$f":"H105*'Other input expert'!G$5","v":0},{"$f":"I105*'Other input expert'!H$5","v":0},{"$f":"J105*'Other input expert'!I$5","v":0},{"$f":"K105*'Other input expert'!J$5","v":0},{"$f":"L105*'Other input expert'!K$5","v":0},{"$f":"M105*'Other input expert'!L$5","v":0},{"$f":"N105*'Other input expert'!M$5","v":0},null,{"$f":"C105*(100%-'Other input expert'!B$5)","v":0},{"$f":"D105*(100%-'Other input expert'!C$5)","v":0},{"$f":"E105*(100%-'Other input expert'!D$5)","v":0},{"$f":"F105*(100%-'Other input expert'!E$5)","v":0},{"$f":"G105*(100%-'Other input expert'!F$5)","v":0},{"$f":"H105*(100%-'Other input expert'!G$5)","v":0},{"$f":"I105*(100%-'Other input expert'!H$5)","v":0},{"$f":"J105*(100%-'Other input expert'!I$5)","v":0},{"$f":"K105*(100%-'Other input expert'!J$5)","v":0},{"$f":"L105*(100%-'Other input expert'!K$5)","v":0},{"$f":"M105*(100%-'Other input expert'!L$5)","v":0},{"$f":"N105*(100%-'Other input expert'!M$5)","v":0},null,{"$f":"P105*'Other input expert'!B$12*'Sales price per sales channel'!$G105*'Other input expert'!B$6","v":0},{"$f":"Q105*'Other input expert'!C$12*'Sales price per sales channel'!$G105*'Other input expert'!C$6","v":0},{"$f":"R105*'Other input expert'!D$12*'Sales price per sales channel'!$G105*'Other input expert'!D$6","v":0},{"$f":"S105*'Other input expert'!E$12*'Sales price per sales channel'!$G105*'Other input expert'!E$6","v":0},{"$f":"T105*'Other input expert'!F$12*'Sales price per sales channel'!$G105*'Other input expert'!F$6","v":0},{"$f":"U105*'Other input expert'!G$12*'Sales price per sales channel'!$G105*'Other input expert'!G$6","v":0},{"$f":"V105*'Other input expert'!H$12*'Sales price per sales channel'!$G105*'Other input expert'!H$6","v":0},{"$f":"W105*'Other input expert'!I$12*'Sales price per sales channel'!$G105*'Other input expert'!I$6","v":0},{"$f":"X105*'Other input expert'!J$12*'Sales price per sales channel'!$G105*'Other input expert'!J$6","v":0},{"$f":"Y105*'Other input expert'!K$12*'Sales price per sales channel'!$G105*'Other input expert'!K$6","v":0},{"$f":"Z105*'Other input expert'!L$12*'Sales price per sales channel'!$G105*'Other input expert'!L$6","v":0},{"$f":"AA105*'Other input expert'!M$12*'Sales price per sales channel'!$G105*'Other input expert'!M$6","v":0},null,{"$f":"P105*'Other input expert'!B$13*'Sales price per sales channel'!$H105*'Other input expert'!B$6","v":0},{"$f":"Q105*'Other input expert'!C$13*'Sales price per sales channel'!$H105*'Other input expert'!C$6","v":0},{"$f":"R105*'Other input expert'!D$13*'Sales price per sales channel'!$H105*'Other input expert'!D$6","v":0},{"$f":"S105*'Other input expert'!E$13*'Sales price per sales channel'!$H105*'Other input expert'!E$6","v":0},{"$f":"T105*'Other input expert'!F$13*'Sales price per sales channel'!$H105*'Other input expert'!F$6","v":0},{"$f":"U105*'Other input expert'!G$13*'Sales price per sales channel'!$H105*'Other input expert'!G$6","v":0},{"$f":"V105*'Other input expert'!H$13*'Sales price per sales channel'!$H105*'Other input expert'!H$6","v":0},{"$f":"W105*'Other input expert'!I$13*'Sales price per sales channel'!$H105*'Other input expert'!I$6","v":0},{"$f":"X105*'Other input expert'!J$13*'Sales price per sales channel'!$H105*'Other input expert'!J$6","v":0},{"$f":"Y105*'Other input expert'!K$13*'Sales price per sales channel'!$H105*'Other input expert'!K$6","v":0},{"$f":"Z105*'Other input expert'!L$13*'Sales price per sales channel'!$H105*'Other input expert'!L$6","v":0},{"$f":"AA105*'Other input expert'!M$13*'Sales price per sales channel'!$H105*'Other input expert'!M$6","v":0},null,{"$f":"P105*'Other input expert'!B$14*'Sales price per sales channel'!$I105*'Other input expert'!B$6","v":0},{"$f":"Q105*'Other input expert'!C$14*'Sales price per sales channel'!$I105*'Other input expert'!C$6","v":0},{"$f":"R105*'Other input expert'!D$14*'Sales price per sales channel'!$I105*'Other input expert'!D$6","v":0},{"$f":"S105*'Other input expert'!E$14*'Sales price per sales channel'!$I105*'Other input expert'!E$6","v":0},{"$f":"T105*'Other input expert'!F$14*'Sales price per sales channel'!$I105*'Other input expert'!F$6","v":0},{"$f":"U105*'Other input expert'!G$14*'Sales price per sales channel'!$I105*'Other input expert'!G$6","v":0},{"$f":"V105*'Other input expert'!H$14*'Sales price per sales channel'!$I105*'Other input expert'!H$6","v":0},{"$f":"W105*'Other input expert'!I$14*'Sales price per sales channel'!$I105*'Other input expert'!I$6","v":0},{"$f":"X105*'Other input expert'!J$14*'Sales price per sales channel'!$I105*'Other input expert'!J$6","v":0},{"$f":"Y105*'Other input expert'!K$14*'Sales price per sales channel'!$I105*'Other input expert'!K$6","v":0},{"$f":"Z105*'Other input expert'!L$14*'Sales price per sales channel'!$I105*'Other input expert'!L$6","v":0},{"$f":"AA105*'Other input expert'!M$14*'Sales price per sales channel'!$I105*'Other input expert'!M$6","v":0},null,{"$f":"AC105*'Other input expert'!B$12*'Sales price per sales channel'!$G105*'Other input expert'!B$7","v":0},{"$f":"AD105*'Other input expert'!C$12*'Sales price per sales channel'!$G105*'Other input expert'!C$7","v":0},{"$f":"AE105*'Other input expert'!D$12*'Sales price per sales channel'!$G105*'Other input expert'!D$7","v":0},{"$f":"AF105*'Other input expert'!E$12*'Sales price per sales channel'!$G105*'Other input expert'!E$7","v":0},{"$f":"AG105*'Other input expert'!F$12*'Sales price per sales channel'!$G105*'Other input expert'!F$7","v":0},{"$f":"AH105*'Other input expert'!G$12*'Sales price per sales channel'!$G105*'Other input expert'!G$7","v":0},{"$f":"AI105*'Other input expert'!H$12*'Sales price per sales channel'!$G105*'Other input expert'!H$7","v":0},{"$f":"AJ105*'Other input expert'!I$12*'Sales price per sales channel'!$G105*'Other input expert'!I$7","v":0},{"$f":"AK105*'Other input expert'!J$12*'Sales price per sales channel'!$G105*'Other input expert'!J$7","v":0},{"$f":"AL105*'Other input expert'!K$12*'Sales price per sales channel'!$G105*'Other input expert'!K$7","v":0},{"$f":"AM105*'Other input expert'!L$12*'Sales price per sales channel'!$G105*'Other input expert'!L$7","v":0},{"$f":"AN105*'Other input expert'!M$12*'Sales price per sales channel'!$G105*'Other input expert'!M$7","v":0},null,{"$f":"AC105*'Other input expert'!B$13*'Sales price per sales channel'!$H105*'Other input expert'!B$7","v":0},{"$f":"AD105*'Other input expert'!C$13*'Sales price per sales channel'!$H105*'Other input expert'!C$7","v":0},{"$f":"AE105*'Other input expert'!D$13*'Sales price per sales channel'!$H105*'Other input expert'!D$7","v":0},{"$f":"AF105*'Other input expert'!E$13*'Sales price per sales channel'!$H105*'Other input expert'!E$7","v":0},{"$f":"AG105*'Other input expert'!F$13*'Sales price per sales channel'!$H105*'Other input expert'!F$7","v":0},{"$f":"AH105*'Other input expert'!G$13*'Sales price per sales channel'!$H105*'Other input expert'!G$7","v":0},{"$f":"AI105*'Other input expert'!H$13*'Sales price per sales channel'!$H105*'Other input expert'!H$7","v":0},{"$f":"AJ105*'Other input expert'!I$13*'Sales price per sales channel'!$H105*'Other input expert'!I$7","v":0},{"$f":"AK105*'Other input expert'!J$13*'Sales price per sales channel'!$H105*'Other input expert'!J$7","v":0},{"$f":"AL105*'Other input expert'!K$13*'Sales price per sales channel'!$H105*'Other input expert'!K$7","v":0},{"$f":"AM105*'Other input expert'!L$13*'Sales price per sales channel'!$H105*'Other input expert'!L$7","v":0},{"$f":"AN105*'Other input expert'!M$13*'Sales price per sales channel'!$H105*'Other input expert'!M$7","v":0},null,{"$f":"AC105*'Other input expert'!B$14*'Sales price per sales channel'!$I105*'Other input expert'!B$7","v":0},{"$f":"AD105*'Other input expert'!C$14*'Sales price per sales channel'!$I105*'Other input expert'!C$7","v":0},{"$f":"AE105*'Other input expert'!D$14*'Sales price per sales channel'!$I105*'Other input expert'!D$7","v":0},{"$f":"AF105*'Other input expert'!E$14*'Sales price per sales channel'!$I105*'Other input expert'!E$7","v":0},{"$f":"AG105*'Other input expert'!F$14*'Sales price per sales channel'!$I105*'Other input expert'!F$7","v":0},{"$f":"AH105*'Other input expert'!G$14*'Sales price per sales channel'!$I105*'Other input expert'!G$7","v":0},{"$f":"AI105*'Other input expert'!H$14*'Sales price per sales channel'!$I105*'Other input expert'!H$7","v":0},{"$f":"AJ105*'Other input expert'!I$14*'Sales price per sales channel'!$I105*'Other input expert'!I$7","v":0},{"$f":"AK105*'Other input expert'!J$14*'Sales price per sales channel'!$I105*'Other input expert'!J$7","v":0},{"$f":"AL105*'Other input expert'!K$14*'Sales price per sales channel'!$I105*'Other input expert'!K$7","v":0},{"$f":"AM105*'Other input expert'!L$14*'Sales price per sales channel'!$I105*'Other input expert'!L$7","v":0},{"$f":"AN105*'Other input expert'!M$14*'Sales price per sales channel'!$I105*'Other input expert'!M$7","v":0}]
["Malus pumila","Apple",{"$f":"Plantlist!$G106*'Production list'!D107*'Other input expert'!B$4*'Other input expert'!B$8","v":0},{"$f":"Plantlist!$G106*'Production list'!E107*'Other input expert'!C$4*'Other input expert'!C$8","v":0},{"$f":"Plantlist!$G106*'Production list'!F107*'Other input expert'!D$4*'Other input expert'!D$8","v":0},{"$f":"Plantlist!$G106*'Production list'!G107*'Other input expert'!E$4*'Other input expert'!E$8","v":0},{"$f":"Plantlist!$G106*'Production list'!H107*'Other input expert'!F$4*'Other input expert'!F$8","v":0},{"$f":"Plantlist!$G106*'Production list'!I107*'Other input expert'!G$4*'Other input expert'!G$8","v":0},{"$f":"Plantlist!$G106*'Production list'!J107*'Other input expert'!H$4*'Other input expert'!H$8","v":0},{"$f":"Plantlist!$G106*'Production list'!K107*'Other input expert'!I$4*'Other input expert'!I$8","v":0},{"$f":"Plantlist!$G106*'Production list'!L107*'Other input expert'!J$4*'Other input expert'!J$8","v":0},{"$f":"Plantlist!$G106*'Production list'!M107*'Other input expert'!K$4*'Other input expert'!K$8","v":0},{"$f":"Plantlist!$G106*'Production list'!N107*'Other input expert'!L$4*'Other input expert'!L$8","v":0},{"$f":"Plantlist!$G106*'Production list'!O107*'Other input expert'!M$4*'Other input expert'!M$8","v":0},null,{"$f":"C106*'Other input expert'!B$5","v":0},{"$f":"D106*'Other input expert'!C$5","v":0},{"$f":"E106*'Other input expert'!D$5","v":0},{"$f":"F106*'Other input expert'!E$5","v":0},{"$f":"G106*'Other input expert'!F$5","v":0},{"$f":"H106*'Other input expert'!G$5","v":0},{"$f":"I106*'Other input expert'!H$5","v":0},{"$f":"J106*'Other input expert'!I$5","v":0},{"$f":"K106*'Other input expert'!J$5","v":0},{"$f":"L106*'Other input expert'!K$5","v":0},{"$f":"M106*'Other input expert'!L$5","v":0},{"$f":"N106*'Other input expert'!M$5","v":0},null,{"$f":"C106*(100%-'Other input expert'!B$5)","v":0},{"$f":"D106*(100%-'Other input expert'!C$5)","v":0},{"$f":"E106*(100%-'Other input expert'!D$5)","v":0},{"$f":"F106*(100%-'Other input expert'!E$5)","v":0},{"$f":"G106*(100%-'Other input expert'!F$5)","v":0},{"$f":"H106*(100%-'Other input expert'!G$5)","v":0},{"$f":"I106*(100%-'Other input expert'!H$5)","v":0},{"$f":"J106*(100%-'Other input expert'!I$5)","v":0},{"$f":"K106*(100%-'Other input expert'!J$5)","v":0},{"$f":"L106*(100%-'Other input expert'!K$5)","v":0},{"$f":"M106*(100%-'Other input expert'!L$5)","v":0},{"$f":"N106*(100%-'Other input expert'!M$5)","v":0},null,{"$f":"P106*'Other input expert'!B$12*'Sales price per sales channel'!$G106*'Other input expert'!B$6","v":0},{"$f":"Q106*'Other input expert'!C$12*'Sales price per sales channel'!$G106*'Other input expert'!C$6","v":0},{"$f":"R106*'Other input expert'!D$12*'Sales price per sales channel'!$G106*'Other input expert'!D$6","v":0},{"$f":"S106*'Other input expert'!E$12*'Sales price per sales channel'!$G106*'Other input expert'!E$6","v":0},{"$f":"T106*'Other input expert'!F$12*'Sales price per sales channel'!$G106*'Other input expert'!F$6","v":0},{"$f":"U106*'Other input expert'!G$12*'Sales price per sales channel'!$G106*'Other input expert'!G$6","v":0},{"$f":"V106*'Other input expert'!H$12*'Sales price per sales channel'!$G106*'Other input expert'!H$6","v":0},{"$f":"W106*'Other input expert'!I$12*'Sales price per sales channel'!$G106*'Other input expert'!I$6","v":0},{"$f":"X106*'Other input expert'!J$12*'Sales price per sales channel'!$G106*'Other input expert'!J$6","v":0},{"$f":"Y106*'Other input expert'!K$12*'Sales price per sales channel'!$G106*'Other input expert'!K$6","v":0},{"$f":"Z106*'Other input expert'!L$12*'Sales price per sales channel'!$G106*'Other input expert'!L$6","v":0},{"$f":"AA106*'Other input expert'!M$12*'Sales price per sales channel'!$G106*'Other input expert'!M$6","v":0},null,{"$f":"P106*'Other input expert'!B$13*'Sales price per sales channel'!$H106*'Other input expert'!B$6","v":0},{"$f":"Q106*'Other input expert'!C$13*'Sales price per sales channel'!$H106*'Other input expert'!C$6","v":0},{"$f":"R106*'Other input expert'!D$13*'Sales price per sales channel'!$H106*'Other input expert'!D$6","v":0},{"$f":"S106*'Other input expert'!E$13*'Sales price per sales channel'!$H106*'Other input expert'!E$6","v":0},{"$f":"T106*'Other input expert'!F$13*'Sales price per sales channel'!$H106*'Other input expert'!F$6","v":0},{"$f":"U106*'Other input expert'!G$13*'Sales price per sales channel'!$H106*'Other input expert'!G$6","v":0},{"$f":"V106*'Other input expert'!H$13*'Sales price per sales channel'!$H106*'Other input expert'!H$6","v":0},{"$f":"W106*'Other input expert'!I$13*'Sales price per sales channel'!$H106*'Other input expert'!I$6","v":0},{"$f":"X106*'Other input expert'!J$13*'Sales price per sales channel'!$H106*'Other input expert'!J$6","v":0},{"$f":"Y106*'Other input expert'!K$13*'Sales price per sales channel'!$H106*'Other input expert'!K$6","v":0},{"$f":"Z106*'Other input expert'!L$13*'Sales price per sales channel'!$H106*'Other input expert'!L$6","v":0},{"$f":"AA106*'Other input expert'!M$13*'Sales price per sales channel'!$H106*'Other input expert'!M$6","v":0},null,{"$f":"P106*'Other input expert'!B$14*'Sales price per sales channel'!$I106*'Other input expert'!B$6","v":0},{"$f":"Q106*'Other input expert'!C$14*'Sales price per sales channel'!$I106*'Other input expert'!C$6","v":0},{"$f":"R106*'Other input expert'!D$14*'Sales price per sales channel'!$I106*'Other input expert'!D$6","v":0},{"$f":"S106*'Other input expert'!E$14*'Sales price per sales channel'!$I106*'Other input expert'!E$6","v":0},{"$f":"T106*'Other input expert'!F$14*'Sales price per sales channel'!$I106*'Other input expert'!F$6","v":0},{"$f":"U106*'Other input expert'!G$14*'Sales price per sales channel'!$I106*'Other input expert'!G$6","v":0},{"$f":"V106*'Other input expert'!H$14*'Sales price per sales channel'!$I106*'Other input expert'!H$6","v":0},{"$f":"W106*'Other input expert'!I$14*'Sales price per sales channel'!$I106*'Other input expert'!I$6","v":0},{"$f":"X106*'Other input expert'!J$14*'Sales price per sales channel'!$I106*'Other input expert'!J$6","v":0},{"$f":"Y106*'Other input expert'!K$14*'Sales price per sales channel'!$I106*'Other input expert'!K$6","v":0},{"$f":"Z106*'Other input expert'!L$14*'Sales price per sales channel'!$I106*'Other input expert'!L$6","v":0},{"$f":"AA106*'Other input expert'!M$14*'Sales price per sales channel'!$I106*'Other input expert'!M$6","v":0},null,{"$f":"AC106*'Other input expert'!B$12*'Sales price per sales channel'!$G106*'Other input expert'!B$7","v":0},{"$f":"AD106*'Other input expert'!C$12*'Sales price per sales channel'!$G106*'Other input expert'!C$7","v":0},{"$f":"AE106*'Other input expert'!D$12*'Sales price per sales channel'!$G106*'Other input expert'!D$7","v":0},{"$f":"AF106*'Other input expert'!E$12*'Sales price per sales channel'!$G106*'Other input expert'!E$7","v":0},{"$f":"AG106*'Other input expert'!F$12*'Sales price per sales channel'!$G106*'Other input expert'!F$7","v":0},{"$f":"AH106*'Other input expert'!G$12*'Sales price per sales channel'!$G106*'Other input expert'!G$7","v":0},{"$f":"AI106*'Other input expert'!H$12*'Sales price per sales channel'!$G106*'Other input expert'!H$7","v":0},{"$f":"AJ106*'Other input expert'!I$12*'Sales price per sales channel'!$G106*'Other input expert'!I$7","v":0},{"$f":"AK106*'Other input expert'!J$12*'Sales price per sales channel'!$G106*'Other input expert'!J$7","v":0},{"$f":"AL106*'Other input expert'!K$12*'Sales price per sales channel'!$G106*'Other input expert'!K$7","v":0},{"$f":"AM106*'Other input expert'!L$12*'Sales price per sales channel'!$G106*'Other input expert'!L$7","v":0},{"$f":"AN106*'Other input expert'!M$12*'Sales price per sales channel'!$G106*'Other input expert'!M$7","v":0},null,{"$f":"AC106*'Other input expert'!B$13*'Sales price per sales channel'!$H106*'Other input expert'!B$7","v":0},{"$f":"AD106*'Other input expert'!C$13*'Sales price per sales channel'!$H106*'Other input expert'!C$7","v":0},{"$f":"AE106*'Other input expert'!D$13*'Sales price per sales channel'!$H106*'Other input expert'!D$7","v":0},{"$f":"AF106*'Other input expert'!E$13*'Sales price per sales channel'!$H106*'Other input expert'!E$7","v":0},{"$f":"AG106*'Other input expert'!F$13*'Sales price per sales channel'!$H106*'Other input expert'!F$7","v":0},{"$f":"AH106*'Other input expert'!G$13*'Sales price per sales channel'!$H106*'Other input expert'!G$7","v":0},{"$f":"AI106*'Other input expert'!H$13*'Sales price per sales channel'!$H106*'Other input expert'!H$7","v":0},{"$f":"AJ106*'Other input expert'!I$13*'Sales price per sales channel'!$H106*'Other input expert'!I$7","v":0},{"$f":"AK106*'Other input expert'!J$13*'Sales price per sales channel'!$H106*'Other input expert'!J$7","v":0},{"$f":"AL106*'Other input expert'!K$13*'Sales price per sales channel'!$H106*'Other input expert'!K$7","v":0},{"$f":"AM106*'Other input expert'!L$13*'Sales price per sales channel'!$H106*'Other input expert'!L$7","v":0},{"$f":"AN106*'Other input expert'!M$13*'Sales price per sales channel'!$H106*'Other input expert'!M$7","v":0},null,{"$f":"AC106*'Other input expert'!B$14*'Sales price per sales channel'!$I106*'Other input expert'!B$7","v":0},{"$f":"AD106*'Other input expert'!C$14*'Sales price per sales channel'!$I106*'Other input expert'!C$7","v":0},{"$f":"AE106*'Other input expert'!D$14*'Sales price per sales channel'!$I106*'Other input expert'!D$7","v":0},{"$f":"AF106*'Other input expert'!E$14*'Sales price per sales channel'!$I106*'Other input expert'!E$7","v":0},{"$f":"AG106*'Other input expert'!F$14*'Sales price per sales channel'!$I106*'Other input expert'!F$7","v":0},{"$f":"AH106*'Other input expert'!G$14*'Sales price per sales channel'!$I106*'Other input expert'!G$7","v":0},{"$f":"AI106*'Other input expert'!H$14*'Sales price per sales channel'!$I106*'Other input expert'!H$7","v":0},{"$f":"AJ106*'Other input expert'!I$14*'Sales price per sales channel'!$I106*'Other input expert'!I$7","v":0},{"$f":"AK106*'Other input expert'!J$14*'Sales price per sales channel'!$I106*'Other input expert'!J$7","v":0},{"$f":"AL106*'Other input expert'!K$14*'Sales price per sales channel'!$I106*'Other input expert'!K$7","v":0},{"$f":"AM106*'Other input expert'!L$14*'Sales price per sales channel'!$I106*'Other input expert'!L$7","v":0},{"$f":"AN106*'Other input expert'!M$14*'Sales price per sales channel'!$I106*'Other input expert'!M$7","v":0}]
["Mellissa off.","Lemon balm",{"$f":"Plantlist!$G107*'Production list'!D108*'Other input expert'!B$4*'Other input expert'!B$8","v":0},{"$f":"Plantlist!$G107*'Production list'!E108*'Other input expert'!C$4*'Other input expert'!C$8","v":0},{"$f":"Plantlist!$G107*'Production list'!F108*'Other input expert'!D$4*'Other input expert'!D$8","v":0},{"$f":"Plantlist!$G107*'Production list'!G108*'Other input expert'!E$4*'Other input expert'!E$8","v":0},{"$f":"Plantlist!$G107*'Production list'!H108*'Other input expert'!F$4*'Other input expert'!F$8","v":0},{"$f":"Plantlist!$G107*'Production list'!I108*'Other input expert'!G$4*'Other input expert'!G$8","v":0},{"$f":"Plantlist!$G107*'Production list'!J108*'Other input expert'!H$4*'Other input expert'!H$8","v":0},{"$f":"Plantlist!$G107*'Production list'!K108*'Other input expert'!I$4*'Other input expert'!I$8","v":0},{"$f":"Plantlist!$G107*'Production list'!L108*'Other input expert'!J$4*'Other input expert'!J$8","v":0},{"$f":"Plantlist!$G107*'Production list'!M108*'Other input expert'!K$4*'Other input expert'!K$8","v":0},{"$f":"Plantlist!$G107*'Production list'!N108*'Other input expert'!L$4*'Other input expert'!L$8","v":0},{"$f":"Plantlist!$G107*'Production list'!O108*'Other input expert'!M$4*'Other input expert'!M$8","v":0},null,{"$f":"C107*'Other input expert'!B$5","v":0},{"$f":"D107*'Other input expert'!C$5","v":0},{"$f":"E107*'Other input expert'!D$5","v":0},{"$f":"F107*'Other input expert'!E$5","v":0},{"$f":"G107*'Other input expert'!F$5","v":0},{"$f":"H107*'Other input expert'!G$5","v":0},{"$f":"I107*'Other input expert'!H$5","v":0},{"$f":"J107*'Other input expert'!I$5","v":0},{"$f":"K107*'Other input expert'!J$5","v":0},{"$f":"L107*'Other input expert'!K$5","v":0},{"$f":"M107*'Other input expert'!L$5","v":0},{"$f":"N107*'Other input expert'!M$5","v":0},null,{"$f":"C107*(100%-'Other input expert'!B$5)","v":0},{"$f":"D107*(100%-'Other input expert'!C$5)","v":0},{"$f":"E107*(100%-'Other input expert'!D$5)","v":0},{"$f":"F107*(100%-'Other input expert'!E$5)","v":0},{"$f":"G107*(100%-'Other input expert'!F$5)","v":0},{"$f":"H107*(100%-'Other input expert'!G$5)","v":0},{"$f":"I107*(100%-'Other input expert'!H$5)","v":0},{"$f":"J107*(100%-'Other input expert'!I$5)","v":0},{"$f":"K107*(100%-'Other input expert'!J$5)","v":0},{"$f":"L107*(100%-'Other input expert'!K$5)","v":0},{"$f":"M107*(100%-'Other input expert'!L$5)","v":0},{"$f":"N107*(100%-'Other input expert'!M$5)","v":0},null,{"$f":"P107*'Other input expert'!B$12*'Sales price per sales channel'!$G107*'Other input expert'!B$6","v":0},{"$f":"Q107*'Other input expert'!C$12*'Sales price per sales channel'!$G107*'Other input expert'!C$6","v":0},{"$f":"R107*'Other input expert'!D$12*'Sales price per sales channel'!$G107*'Other input expert'!D$6","v":0},{"$f":"S107*'Other input expert'!E$12*'Sales price per sales channel'!$G107*'Other input expert'!E$6","v":0},{"$f":"T107*'Other input expert'!F$12*'Sales price per sales channel'!$G107*'Other input expert'!F$6","v":0},{"$f":"U107*'Other input expert'!G$12*'Sales price per sales channel'!$G107*'Other input expert'!G$6","v":0},{"$f":"V107*'Other input expert'!H$12*'Sales price per sales channel'!$G107*'Other input expert'!H$6","v":0},{"$f":"W107*'Other input expert'!I$12*'Sales price per sales channel'!$G107*'Other input expert'!I$6","v":0},{"$f":"X107*'Other input expert'!J$12*'Sales price per sales channel'!$G107*'Other input expert'!J$6","v":0},{"$f":"Y107*'Other input expert'!K$12*'Sales price per sales channel'!$G107*'Other input expert'!K$6","v":0},{"$f":"Z107*'Other input expert'!L$12*'Sales price per sales channel'!$G107*'Other input expert'!L$6","v":0},{"$f":"AA107*'Other input expert'!M$12*'Sales price per sales channel'!$G107*'Other input expert'!M$6","v":0},null,{"$f":"P107*'Other input expert'!B$13*'Sales price per sales channel'!$H107*'Other input expert'!B$6","v":0},{"$f":"Q107*'Other input expert'!C$13*'Sales price per sales channel'!$H107*'Other input expert'!C$6","v":0},{"$f":"R107*'Other input expert'!D$13*'Sales price per sales channel'!$H107*'Other input expert'!D$6","v":0},{"$f":"S107*'Other input expert'!E$13*'Sales price per sales channel'!$H107*'Other input expert'!E$6","v":0},{"$f":"T107*'Other input expert'!F$13*'Sales price per sales channel'!$H107*'Other input expert'!F$6","v":0},{"$f":"U107*'Other input expert'!G$13*'Sales price per sales channel'!$H107*'Other input expert'!G$6","v":0},{"$f":"V107*'Other input expert'!H$13*'Sales price per sales channel'!$H107*'Other input expert'!H$6","v":0},{"$f":"W107*'Other input expert'!I$13*'Sales price per sales channel'!$H107*'Other input expert'!I$6","v":0},{"$f":"X107*'Other input expert'!J$13*'Sales price per sales channel'!$H107*'Other input expert'!J$6","v":0},{"$f":"Y107*'Other input expert'!K$13*'Sales price per sales channel'!$H107*'Other input expert'!K$6","v":0},{"$f":"Z107*'Other input expert'!L$13*'Sales price per sales channel'!$H107*'Other input expert'!L$6","v":0},{"$f":"AA107*'Other input expert'!M$13*'Sales price per sales channel'!$H107*'Other input expert'!M$6","v":0},null,{"$f":"P107*'Other input expert'!B$14*'Sales price per sales channel'!$I107*'Other input expert'!B$6","v":0},{"$f":"Q107*'Other input expert'!C$14*'Sales price per sales channel'!$I107*'Other input expert'!C$6","v":0},{"$f":"R107*'Other input expert'!D$14*'Sales price per sales channel'!$I107*'Other input expert'!D$6","v":0},{"$f":"S107*'Other input expert'!E$14*'Sales price per sales channel'!$I107*'Other input expert'!E$6","v":0},{"$f":"T107*'Other input expert'!F$14*'Sales price per sales channel'!$I107*'Other input expert'!F$6","v":0},{"$f":"U107*'Other input expert'!G$14*'Sales price per sales channel'!$I107*'Other input expert'!G$6","v":0},{"$f":"V107*'Other input expert'!H$14*'Sales price per sales channel'!$I107*'Other input expert'!H$6","v":0},{"$f":"W107*'Other input expert'!I$14*'Sales price per sales channel'!$I107*'Other input expert'!I$6","v":0},{"$f":"X107*'Other input expert'!J$14*'Sales price per sales channel'!$I107*'Other input expert'!J$6","v":0},{"$f":"Y107*'Other input expert'!K$14*'Sales price per sales channel'!$I107*'Other input expert'!K$6","v":0},{"$f":"Z107*'Other input expert'!L$14*'Sales price per sales channel'!$I107*'Other input expert'!L$6","v":0},{"$f":"AA107*'Other input expert'!M$14*'Sales price per sales channel'!$I107*'Other input expert'!M$6","v":0},null,{"$f":"AC107*'Other input expert'!B$12*'Sales price per sales channel'!$G107*'Other input expert'!B$7","v":0},{"$f":"AD107*'Other input expert'!C$12*'Sales price per sales channel'!$G107*'Other input expert'!C$7","v":0},{"$f":"AE107*'Other input expert'!D$12*'Sales price per sales channel'!$G107*'Other input expert'!D$7","v":0},{"$f":"AF107*'Other input expert'!E$12*'Sales price per sales channel'!$G107*'Other input expert'!E$7","v":0},{"$f":"AG107*'Other input expert'!F$12*'Sales price per sales channel'!$G107*'Other input expert'!F$7","v":0},{"$f":"AH107*'Other input expert'!G$12*'Sales price per sales channel'!$G107*'Other input expert'!G$7","v":0},{"$f":"AI107*'Other input expert'!H$12*'Sales price per sales channel'!$G107*'Other input expert'!H$7","v":0},{"$f":"AJ107*'Other input expert'!I$12*'Sales price per sales channel'!$G107*'Other input expert'!I$7","v":0},{"$f":"AK107*'Other input expert'!J$12*'Sales price per sales channel'!$G107*'Other input expert'!J$7","v":0},{"$f":"AL107*'Other input expert'!K$12*'Sales price per sales channel'!$G107*'Other input expert'!K$7","v":0},{"$f":"AM107*'Other input expert'!L$12*'Sales price per sales channel'!$G107*'Other input expert'!L$7","v":0},{"$f":"AN107*'Other input expert'!M$12*'Sales price per sales channel'!$G107*'Other input expert'!M$7","v":0},null,{"$f":"AC107*'Other input expert'!B$13*'Sales price per sales channel'!$H107*'Other input expert'!B$7","v":0},{"$f":"AD107*'Other input expert'!C$13*'Sales price per sales channel'!$H107*'Other input expert'!C$7","v":0},{"$f":"AE107*'Other input expert'!D$13*'Sales price per sales channel'!$H107*'Other input expert'!D$7","v":0},{"$f":"AF107*'Other input expert'!E$13*'Sales price per sales channel'!$H107*'Other input expert'!E$7","v":0},{"$f":"AG107*'Other input expert'!F$13*'Sales price per sales channel'!$H107*'Other input expert'!F$7","v":0},{"$f":"AH107*'Other input expert'!G$13*'Sales price per sales channel'!$H107*'Other input expert'!G$7","v":0},{"$f":"AI107*'Other input expert'!H$13*'Sales price per sales channel'!$H107*'Other input expert'!H$7","v":0},{"$f":"AJ107*'Other input expert'!I$13*'Sales price per sales channel'!$H107*'Other input expert'!I$7","v":0},{"$f":"AK107*'Other input expert'!J$13*'Sales price per sales channel'!$H107*'Other input expert'!J$7","v":0},{"$f":"AL107*'Other input expert'!K$13*'Sales price per sales channel'!$H107*'Other input expert'!K$7","v":0},{"$f":"AM107*'Other input expert'!L$13*'Sales price per sales channel'!$H107*'Other input expert'!L$7","v":0},{"$f":"AN107*'Other input expert'!M$13*'Sales price per sales channel'!$H107*'Other input expert'!M$7","v":0},null,{"$f":"AC107*'Other input expert'!B$14*'Sales price per sales channel'!$I107*'Other input expert'!B$7","v":0},{"$f":"AD107*'Other input expert'!C$14*'Sales price per sales channel'!$I107*'Other input expert'!C$7","v":0},{"$f":"AE107*'Other input expert'!D$14*'Sales price per sales channel'!$I107*'Other input expert'!D$7","v":0},{"$f":"AF107*'Other input expert'!E$14*'Sales price per sales channel'!$I107*'Other input expert'!E$7","v":0},{"$f":"AG107*'Other input expert'!F$14*'Sales price per sales channel'!$I107*'Other input expert'!F$7","v":0},{"$f":"AH107*'Other input expert'!G$14*'Sales price per sales channel'!$I107*'Other input expert'!G$7","v":0},{"$f":"AI107*'Other input expert'!H$14*'Sales price per sales channel'!$I107*'Other input expert'!H$7","v":0},{"$f":"AJ107*'Other input expert'!I$14*'Sales price per sales channel'!$I107*'Other input expert'!I$7","v":0},{"$f":"AK107*'Other input expert'!J$14*'Sales price per sales channel'!$I107*'Other input expert'!J$7","v":0},{"$f":"AL107*'Other input expert'!K$14*'Sales price per sales channel'!$I107*'Other input expert'!K$7","v":0},{"$f":"AM107*'Other input expert'!L$14*'Sales price per sales channel'!$I107*'Other input expert'!L$7","v":0},{"$f":"AN107*'Other input expert'!M$14*'Sales price per sales channel'!$I107*'Other input expert'!M$7","v":0}]
["Mentha spp.","Mint",{"$f":"Plantlist!$G108*'Production list'!D109*'Other input expert'!B$4*'Other input expert'!B$8","v":0},{"$f":"Plantlist!$G108*'Production list'!E109*'Other input expert'!C$4*'Other input expert'!C$8","v":0},{"$f":"Plantlist!$G108*'Production list'!F109*'Other input expert'!D$4*'Other input expert'!D$8","v":0},{"$f":"Plantlist!$G108*'Production list'!G109*'Other input expert'!E$4*'Other input expert'!E$8","v":0},{"$f":"Plantlist!$G108*'Production list'!H109*'Other input expert'!F$4*'Other input expert'!F$8","v":0},{"$f":"Plantlist!$G108*'Production list'!I109*'Other input expert'!G$4*'Other input expert'!G$8","v":0},{"$f":"Plantlist!$G108*'Production list'!J109*'Other input expert'!H$4*'Other input expert'!H$8","v":0},{"$f":"Plantlist!$G108*'Production list'!K109*'Other input expert'!I$4*'Other input expert'!I$8","v":0},{"$f":"Plantlist!$G108*'Production list'!L109*'Other input expert'!J$4*'Other input expert'!J$8","v":0},{"$f":"Plantlist!$G108*'Production list'!M109*'Other input expert'!K$4*'Other input expert'!K$8","v":0},{"$f":"Plantlist!$G108*'Production list'!N109*'Other input expert'!L$4*'Other input expert'!L$8","v":0},{"$f":"Plantlist!$G108*'Production list'!O109*'Other input expert'!M$4*'Other input expert'!M$8","v":0},null,{"$f":"C108*'Other input expert'!B$5","v":0},{"$f":"D108*'Other input expert'!C$5","v":0},{"$f":"E108*'Other input expert'!D$5","v":0},{"$f":"F108*'Other input expert'!E$5","v":0},{"$f":"G108*'Other input expert'!F$5","v":0},{"$f":"H108*'Other input expert'!G$5","v":0},{"$f":"I108*'Other input expert'!H$5","v":0},{"$f":"J108*'Other input expert'!I$5","v":0},{"$f":"K108*'Other input expert'!J$5","v":0},{"$f":"L108*'Other input expert'!K$5","v":0},{"$f":"M108*'Other input expert'!L$5","v":0},{"$f":"N108*'Other input expert'!M$5","v":0},null,{"$f":"C108*(100%-'Other input expert'!B$5)","v":0},{"$f":"D108*(100%-'Other input expert'!C$5)","v":0},{"$f":"E108*(100%-'Other input expert'!D$5)","v":0},{"$f":"F108*(100%-'Other input expert'!E$5)","v":0},{"$f":"G108*(100%-'Other input expert'!F$5)","v":0},{"$f":"H108*(100%-'Other input expert'!G$5)","v":0},{"$f":"I108*(100%-'Other input expert'!H$5)","v":0},{"$f":"J108*(100%-'Other input expert'!I$5)","v":0},{"$f":"K108*(100%-'Other input expert'!J$5)","v":0},{"$f":"L108*(100%-'Other input expert'!K$5)","v":0},{"$f":"M108*(100%-'Other input expert'!L$5)","v":0},{"$f":"N108*(100%-'Other input expert'!M$5)","v":0},null,{"$f":"P108*'Other input expert'!B$12*'Sales price per sales channel'!$G108*'Other input expert'!B$6","v":0},{"$f":"Q108*'Other input expert'!C$12*'Sales price per sales channel'!$G108*'Other input expert'!C$6","v":0},{"$f":"R108*'Other input expert'!D$12*'Sales price per sales channel'!$G108*'Other input expert'!D$6","v":0},{"$f":"S108*'Other input expert'!E$12*'Sales price per sales channel'!$G108*'Other input expert'!E$6","v":0},{"$f":"T108*'Other input expert'!F$12*'Sales price per sales channel'!$G108*'Other input expert'!F$6","v":0},{"$f":"U108*'Other input expert'!G$12*'Sales price per sales channel'!$G108*'Other input expert'!G$6","v":0},{"$f":"V108*'Other input expert'!H$12*'Sales price per sales channel'!$G108*'Other input expert'!H$6","v":0},{"$f":"W108*'Other input expert'!I$12*'Sales price per sales channel'!$G108*'Other input expert'!I$6","v":0},{"$f":"X108*'Other input expert'!J$12*'Sales price per sales channel'!$G108*'Other input expert'!J$6","v":0},{"$f":"Y108*'Other input expert'!K$12*'Sales price per sales channel'!$G108*'Other input expert'!K$6","v":0},{"$f":"Z108*'Other input expert'!L$12*'Sales price per sales channel'!$G108*'Other input expert'!L$6","v":0},{"$f":"AA108*'Other input expert'!M$12*'Sales price per sales channel'!$G108*'Other input expert'!M$6","v":0},null,{"$f":"P108*'Other input expert'!B$13*'Sales price per sales channel'!$H108*'Other input expert'!B$6","v":0},{"$f":"Q108*'Other input expert'!C$13*'Sales price per sales channel'!$H108*'Other input expert'!C$6","v":0},{"$f":"R108*'Other input expert'!D$13*'Sales price per sales channel'!$H108*'Other input expert'!D$6","v":0},{"$f":"S108*'Other input expert'!E$13*'Sales price per sales channel'!$H108*'Other input expert'!E$6","v":0},{"$f":"T108*'Other input expert'!F$13*'Sales price per sales channel'!$H108*'Other input expert'!F$6","v":0},{"$f":"U108*'Other input expert'!G$13*'Sales price per sales channel'!$H108*'Other input expert'!G$6","v":0},{"$f":"V108*'Other input expert'!H$13*'Sales price per sales channel'!$H108*'Other input expert'!H$6","v":0},{"$f":"W108*'Other input expert'!I$13*'Sales price per sales channel'!$H108*'Other input expert'!I$6","v":0},{"$f":"X108*'Other input expert'!J$13*'Sales price per sales channel'!$H108*'Other input expert'!J$6","v":0},{"$f":"Y108*'Other input expert'!K$13*'Sales price per sales channel'!$H108*'Other input expert'!K$6","v":0},{"$f":"Z108*'Other input expert'!L$13*'Sales price per sales channel'!$H108*'Other input expert'!L$6","v":0},{"$f":"AA108*'Other input expert'!M$13*'Sales price per sales channel'!$H108*'Other input expert'!M$6","v":0},null,{"$f":"P108*'Other input expert'!B$14*'Sales price per sales channel'!$I108*'Other input expert'!B$6","v":0},{"$f":"Q108*'Other input expert'!C$14*'Sales price per sales channel'!$I108*'Other input expert'!C$6","v":0},{"$f":"R108*'Other input expert'!D$14*'Sales price per sales channel'!$I108*'Other input expert'!D$6","v":0},{"$f":"S108*'Other input expert'!E$14*'Sales price per sales channel'!$I108*'Other input expert'!E$6","v":0},{"$f":"T108*'Other input expert'!F$14*'Sales price per sales channel'!$I108*'Other input expert'!F$6","v":0},{"$f":"U108*'Other input expert'!G$14*'Sales price per sales channel'!$I108*'Other input expert'!G$6","v":0},{"$f":"V108*'Other input expert'!H$14*'Sales price per sales channel'!$I108*'Other input expert'!H$6","v":0},{"$f":"W108*'Other input expert'!I$14*'Sales price per sales channel'!$I108*'Other input expert'!I$6","v":0},{"$f":"X108*'Other input expert'!J$14*'Sales price per sales channel'!$I108*'Other input expert'!J$6","v":0},{"$f":"Y108*'Other input expert'!K$14*'Sales price per sales channel'!$I108*'Other input expert'!K$6","v":0},{"$f":"Z108*'Other input expert'!L$14*'Sales price per sales channel'!$I108*'Other input expert'!L$6","v":0},{"$f":"AA108*'Other input expert'!M$14*'Sales price per sales channel'!$I108*'Other input expert'!M$6","v":0},null,{"$f":"AC108*'Other input expert'!B$12*'Sales price per sales channel'!$G108*'Other input expert'!B$7","v":0},{"$f":"AD108*'Other input expert'!C$12*'Sales price per sales channel'!$G108*'Other input expert'!C$7","v":0},{"$f":"AE108*'Other input expert'!D$12*'Sales price per sales channel'!$G108*'Other input expert'!D$7","v":0},{"$f":"AF108*'Other input expert'!E$12*'Sales price per sales channel'!$G108*'Other input expert'!E$7","v":0},{"$f":"AG108*'Other input expert'!F$12*'Sales price per sales channel'!$G108*'Other input expert'!F$7","v":0},{"$f":"AH108*'Other input expert'!G$12*'Sales price per sales channel'!$G108*'Other input expert'!G$7","v":0},{"$f":"AI108*'Other input expert'!H$12*'Sales price per sales channel'!$G108*'Other input expert'!H$7","v":0},{"$f":"AJ108*'Other input expert'!I$12*'Sales price per sales channel'!$G108*'Other input expert'!I$7","v":0},{"$f":"AK108*'Other input expert'!J$12*'Sales price per sales channel'!$G108*'Other input expert'!J$7","v":0},{"$f":"AL108*'Other input expert'!K$12*'Sales price per sales channel'!$G108*'Other input expert'!K$7","v":0},{"$f":"AM108*'Other input expert'!L$12*'Sales price per sales channel'!$G108*'Other input expert'!L$7","v":0},{"$f":"AN108*'Other input expert'!M$12*'Sales price per sales channel'!$G108*'Other input expert'!M$7","v":0},null,{"$f":"AC108*'Other input expert'!B$13*'Sales price per sales channel'!$H108*'Other input expert'!B$7","v":0},{"$f":"AD108*'Other input expert'!C$13*'Sales price per sales channel'!$H108*'Other input expert'!C$7","v":0},{"$f":"AE108*'Other input expert'!D$13*'Sales price per sales channel'!$H108*'Other input expert'!D$7","v":0},{"$f":"AF108*'Other input expert'!E$13*'Sales price per sales channel'!$H108*'Other input expert'!E$7","v":0},{"$f":"AG108*'Other input expert'!F$13*'Sales price per sales channel'!$H108*'Other input expert'!F$7","v":0},{"$f":"AH108*'Other input expert'!G$13*'Sales price per sales channel'!$H108*'Other input expert'!G$7","v":0},{"$f":"AI108*'Other input expert'!H$13*'Sales price per sales channel'!$H108*'Other input expert'!H$7","v":0},{"$f":"AJ108*'Other input expert'!I$13*'Sales price per sales channel'!$H108*'Other input expert'!I$7","v":0},{"$f":"AK108*'Other input expert'!J$13*'Sales price per sales channel'!$H108*'Other input expert'!J$7","v":0},{"$f":"AL108*'Other input expert'!K$13*'Sales price per sales channel'!$H108*'Other input expert'!K$7","v":0},{"$f":"AM108*'Other input expert'!L$13*'Sales price per sales channel'!$H108*'Other input expert'!L$7","v":0},{"$f":"AN108*'Other input expert'!M$13*'Sales price per sales channel'!$H108*'Other input expert'!M$7","v":0},null,{"$f":"AC108*'Other input expert'!B$14*'Sales price per sales channel'!$I108*'Other input expert'!B$7","v":0},{"$f":"AD108*'Other input expert'!C$14*'Sales price per sales channel'!$I108*'Other input expert'!C$7","v":0},{"$f":"AE108*'Other input expert'!D$14*'Sales price per sales channel'!$I108*'Other input expert'!D$7","v":0},{"$f":"AF108*'Other input expert'!E$14*'Sales price per sales channel'!$I108*'Other input expert'!E$7","v":0},{"$f":"AG108*'Other input expert'!F$14*'Sales price per sales channel'!$I108*'Other input expert'!F$7","v":0},{"$f":"AH108*'Other input expert'!G$14*'Sales price per sales channel'!$I108*'Other input expert'!G$7","v":0},{"$f":"AI108*'Other input expert'!H$14*'Sales price per sales channel'!$I108*'Other input expert'!H$7","v":0},{"$f":"AJ108*'Other input expert'!I$14*'Sales price per sales channel'!$I108*'Other input expert'!I$7","v":0},{"$f":"AK108*'Other input expert'!J$14*'Sales price per sales channel'!$I108*'Other input expert'!J$7","v":0},{"$f":"AL108*'Other input expert'!K$14*'Sales price per sales channel'!$I108*'Other input expert'!K$7","v":0},{"$f":"AM108*'Other input expert'!L$14*'Sales price per sales channel'!$I108*'Other input expert'!L$7","v":0},{"$f":"AN108*'Other input expert'!M$14*'Sales price per sales channel'!$I108*'Other input expert'!M$7","v":0}]
["Mespilus germanica ","Medlar",{"$f":"Plantlist!$G109*'Production list'!D110*'Other input expert'!B$4*'Other input expert'!B$8","v":0},{"$f":"Plantlist!$G109*'Production list'!E110*'Other input expert'!C$4*'Other input expert'!C$8","v":0},{"$f":"Plantlist!$G109*'Production list'!F110*'Other input expert'!D$4*'Other input expert'!D$8","v":0},{"$f":"Plantlist!$G109*'Production list'!G110*'Other input expert'!E$4*'Other input expert'!E$8","v":0},{"$f":"Plantlist!$G109*'Production list'!H110*'Other input expert'!F$4*'Other input expert'!F$8","v":0},{"$f":"Plantlist!$G109*'Production list'!I110*'Other input expert'!G$4*'Other input expert'!G$8","v":0},{"$f":"Plantlist!$G109*'Production list'!J110*'Other input expert'!H$4*'Other input expert'!H$8","v":0},{"$f":"Plantlist!$G109*'Production list'!K110*'Other input expert'!I$4*'Other input expert'!I$8","v":0},{"$f":"Plantlist!$G109*'Production list'!L110*'Other input expert'!J$4*'Other input expert'!J$8","v":0},{"$f":"Plantlist!$G109*'Production list'!M110*'Other input expert'!K$4*'Other input expert'!K$8","v":0},{"$f":"Plantlist!$G109*'Production list'!N110*'Other input expert'!L$4*'Other input expert'!L$8","v":0},{"$f":"Plantlist!$G109*'Production list'!O110*'Other input expert'!M$4*'Other input expert'!M$8","v":0},null,{"$f":"C109*'Other input expert'!B$5","v":0},{"$f":"D109*'Other input expert'!C$5","v":0},{"$f":"E109*'Other input expert'!D$5","v":0},{"$f":"F109*'Other input expert'!E$5","v":0},{"$f":"G109*'Other input expert'!F$5","v":0},{"$f":"H109*'Other input expert'!G$5","v":0},{"$f":"I109*'Other input expert'!H$5","v":0},{"$f":"J109*'Other input expert'!I$5","v":0},{"$f":"K109*'Other input expert'!J$5","v":0},{"$f":"L109*'Other input expert'!K$5","v":0},{"$f":"M109*'Other input expert'!L$5","v":0},{"$f":"N109*'Other input expert'!M$5","v":0},null,{"$f":"C109*(100%-'Other input expert'!B$5)","v":0},{"$f":"D109*(100%-'Other input expert'!C$5)","v":0},{"$f":"E109*(100%-'Other input expert'!D$5)","v":0},{"$f":"F109*(100%-'Other input expert'!E$5)","v":0},{"$f":"G109*(100%-'Other input expert'!F$5)","v":0},{"$f":"H109*(100%-'Other input expert'!G$5)","v":0},{"$f":"I109*(100%-'Other input expert'!H$5)","v":0},{"$f":"J109*(100%-'Other input expert'!I$5)","v":0},{"$f":"K109*(100%-'Other input expert'!J$5)","v":0},{"$f":"L109*(100%-'Other input expert'!K$5)","v":0},{"$f":"M109*(100%-'Other input expert'!L$5)","v":0},{"$f":"N109*(100%-'Other input expert'!M$5)","v":0},null,{"$f":"P109*'Other input expert'!B$12*'Sales price per sales channel'!$G109*'Other input expert'!B$6","v":0},{"$f":"Q109*'Other input expert'!C$12*'Sales price per sales channel'!$G109*'Other input expert'!C$6","v":0},{"$f":"R109*'Other input expert'!D$12*'Sales price per sales channel'!$G109*'Other input expert'!D$6","v":0},{"$f":"S109*'Other input expert'!E$12*'Sales price per sales channel'!$G109*'Other input expert'!E$6","v":0},{"$f":"T109*'Other input expert'!F$12*'Sales price per sales channel'!$G109*'Other input expert'!F$6","v":0},{"$f":"U109*'Other input expert'!G$12*'Sales price per sales channel'!$G109*'Other input expert'!G$6","v":0},{"$f":"V109*'Other input expert'!H$12*'Sales price per sales channel'!$G109*'Other input expert'!H$6","v":0},{"$f":"W109*'Other input expert'!I$12*'Sales price per sales channel'!$G109*'Other input expert'!I$6","v":0},{"$f":"X109*'Other input expert'!J$12*'Sales price per sales channel'!$G109*'Other input expert'!J$6","v":0},{"$f":"Y109*'Other input expert'!K$12*'Sales price per sales channel'!$G109*'Other input expert'!K$6","v":0},{"$f":"Z109*'Other input expert'!L$12*'Sales price per sales channel'!$G109*'Other input expert'!L$6","v":0},{"$f":"AA109*'Other input expert'!M$12*'Sales price per sales channel'!$G109*'Other input expert'!M$6","v":0},null,{"$f":"P109*'Other input expert'!B$13*'Sales price per sales channel'!$H109*'Other input expert'!B$6","v":0},{"$f":"Q109*'Other input expert'!C$13*'Sales price per sales channel'!$H109*'Other input expert'!C$6","v":0},{"$f":"R109*'Other input expert'!D$13*'Sales price per sales channel'!$H109*'Other input expert'!D$6","v":0},{"$f":"S109*'Other input expert'!E$13*'Sales price per sales channel'!$H109*'Other input expert'!E$6","v":0},{"$f":"T109*'Other input expert'!F$13*'Sales price per sales channel'!$H109*'Other input expert'!F$6","v":0},{"$f":"U109*'Other input expert'!G$13*'Sales price per sales channel'!$H109*'Other input expert'!G$6","v":0},{"$f":"V109*'Other input expert'!H$13*'Sales price per sales channel'!$H109*'Other input expert'!H$6","v":0},{"$f":"W109*'Other input expert'!I$13*'Sales price per sales channel'!$H109*'Other input expert'!I$6","v":0},{"$f":"X109*'Other input expert'!J$13*'Sales price per sales channel'!$H109*'Other input expert'!J$6","v":0},{"$f":"Y109*'Other input expert'!K$13*'Sales price per sales channel'!$H109*'Other input expert'!K$6","v":0},{"$f":"Z109*'Other input expert'!L$13*'Sales price per sales channel'!$H109*'Other input expert'!L$6","v":0},{"$f":"AA109*'Other input expert'!M$13*'Sales price per sales channel'!$H109*'Other input expert'!M$6","v":0},null,{"$f":"P109*'Other input expert'!B$14*'Sales price per sales channel'!$I109*'Other input expert'!B$6","v":0},{"$f":"Q109*'Other input expert'!C$14*'Sales price per sales channel'!$I109*'Other input expert'!C$6","v":0},{"$f":"R109*'Other input expert'!D$14*'Sales price per sales channel'!$I109*'Other input expert'!D$6","v":0},{"$f":"S109*'Other input expert'!E$14*'Sales price per sales channel'!$I109*'Other input expert'!E$6","v":0},{"$f":"T109*'Other input expert'!F$14*'Sales price per sales channel'!$I109*'Other input expert'!F$6","v":0},{"$f":"U109*'Other input expert'!G$14*'Sales price per sales channel'!$I109*'Other input expert'!G$6","v":0},{"$f":"V109*'Other input expert'!H$14*'Sales price per sales channel'!$I109*'Other input expert'!H$6","v":0},{"$f":"W109*'Other input expert'!I$14*'Sales price per sales channel'!$I109*'Other input expert'!I$6","v":0},{"$f":"X109*'Other input expert'!J$14*'Sales price per sales channel'!$I109*'Other input expert'!J$6","v":0},{"$f":"Y109*'Other input expert'!K$14*'Sales price per sales channel'!$I109*'Other input expert'!K$6","v":0},{"$f":"Z109*'Other input expert'!L$14*'Sales price per sales channel'!$I109*'Other input expert'!L$6","v":0},{"$f":"AA109*'Other input expert'!M$14*'Sales price per sales channel'!$I109*'Other input expert'!M$6","v":0},null,{"$f":"AC109*'Other input expert'!B$12*'Sales price per sales channel'!$G109*'Other input expert'!B$7","v":0},{"$f":"AD109*'Other input expert'!C$12*'Sales price per sales channel'!$G109*'Other input expert'!C$7","v":0},{"$f":"AE109*'Other input expert'!D$12*'Sales price per sales channel'!$G109*'Other input expert'!D$7","v":0},{"$f":"AF109*'Other input expert'!E$12*'Sales price per sales channel'!$G109*'Other input expert'!E$7","v":0},{"$f":"AG109*'Other input expert'!F$12*'Sales price per sales channel'!$G109*'Other input expert'!F$7","v":0},{"$f":"AH109*'Other input expert'!G$12*'Sales price per sales channel'!$G109*'Other input expert'!G$7","v":0},{"$f":"AI109*'Other input expert'!H$12*'Sales price per sales channel'!$G109*'Other input expert'!H$7","v":0},{"$f":"AJ109*'Other input expert'!I$12*'Sales price per sales channel'!$G109*'Other input expert'!I$7","v":0},{"$f":"AK109*'Other input expert'!J$12*'Sales price per sales channel'!$G109*'Other input expert'!J$7","v":0},{"$f":"AL109*'Other input expert'!K$12*'Sales price per sales channel'!$G109*'Other input expert'!K$7","v":0},{"$f":"AM109*'Other input expert'!L$12*'Sales price per sales channel'!$G109*'Other input expert'!L$7","v":0},{"$f":"AN109*'Other input expert'!M$12*'Sales price per sales channel'!$G109*'Other input expert'!M$7","v":0},null,{"$f":"AC109*'Other input expert'!B$13*'Sales price per sales channel'!$H109*'Other input expert'!B$7","v":0},{"$f":"AD109*'Other input expert'!C$13*'Sales price per sales channel'!$H109*'Other input expert'!C$7","v":0},{"$f":"AE109*'Other input expert'!D$13*'Sales price per sales channel'!$H109*'Other input expert'!D$7","v":0},{"$f":"AF109*'Other input expert'!E$13*'Sales price per sales channel'!$H109*'Other input expert'!E$7","v":0},{"$f":"AG109*'Other input expert'!F$13*'Sales price per sales channel'!$H109*'Other input expert'!F$7","v":0},{"$f":"AH109*'Other input expert'!G$13*'Sales price per sales channel'!$H109*'Other input expert'!G$7","v":0},{"$f":"AI109*'Other input expert'!H$13*'Sales price per sales channel'!$H109*'Other input expert'!H$7","v":0},{"$f":"AJ109*'Other input expert'!I$13*'Sales price per sales channel'!$H109*'Other input expert'!I$7","v":0},{"$f":"AK109*'Other input expert'!J$13*'Sales price per sales channel'!$H109*'Other input expert'!J$7","v":0},{"$f":"AL109*'Other input expert'!K$13*'Sales price per sales channel'!$H109*'Other input expert'!K$7","v":0},{"$f":"AM109*'Other input expert'!L$13*'Sales price per sales channel'!$H109*'Other input expert'!L$7","v":0},{"$f":"AN109*'Other input expert'!M$13*'Sales price per sales channel'!$H109*'Other input expert'!M$7","v":0},null,{"$f":"AC109*'Other input expert'!B$14*'Sales price per sales channel'!$I109*'Other input expert'!B$7","v":0},{"$f":"AD109*'Other input expert'!C$14*'Sales price per sales channel'!$I109*'Other input expert'!C$7","v":0},{"$f":"AE109*'Other input expert'!D$14*'Sales price per sales channel'!$I109*'Other input expert'!D$7","v":0},{"$f":"AF109*'Other input expert'!E$14*'Sales price per sales channel'!$I109*'Other input expert'!E$7","v":0},{"$f":"AG109*'Other input expert'!F$14*'Sales price per sales channel'!$I109*'Other input expert'!F$7","v":0},{"$f":"AH109*'Other input expert'!G$14*'Sales price per sales channel'!$I109*'Other input expert'!G$7","v":0},{"$f":"AI109*'Other input expert'!H$14*'Sales price per sales channel'!$I109*'Other input expert'!H$7","v":0},{"$f":"AJ109*'Other input expert'!I$14*'Sales price per sales channel'!$I109*'Other input expert'!I$7","v":0},{"$f":"AK109*'Other input expert'!J$14*'Sales price per sales channel'!$I109*'Other input expert'!J$7","v":0},{"$f":"AL109*'Other input expert'!K$14*'Sales price per sales channel'!$I109*'Other input expert'!K$7","v":0},{"$f":"AM109*'Other input expert'!L$14*'Sales price per sales channel'!$I109*'Other input expert'!L$7","v":0},{"$f":"AN109*'Other input expert'!M$14*'Sales price per sales channel'!$I109*'Other input expert'!M$7","v":0}]
["Monarda didyma","Bergamot",{"$f":"Plantlist!$G110*'Production list'!D111*'Other input expert'!B$4*'Other input expert'!B$8","v":0},{"$f":"Plantlist!$G110*'Production list'!E111*'Other input expert'!C$4*'Other input expert'!C$8","v":0},{"$f":"Plantlist!$G110*'Production list'!F111*'Other input expert'!D$4*'Other input expert'!D$8","v":0},{"$f":"Plantlist!$G110*'Production list'!G111*'Other input expert'!E$4*'Other input expert'!E$8","v":0},{"$f":"Plantlist!$G110*'Production list'!H111*'Other input expert'!F$4*'Other input expert'!F$8","v":0},{"$f":"Plantlist!$G110*'Production list'!I111*'Other input expert'!G$4*'Other input expert'!G$8","v":0},{"$f":"Plantlist!$G110*'Production list'!J111*'Other input expert'!H$4*'Other input expert'!H$8","v":0},{"$f":"Plantlist!$G110*'Production list'!K111*'Other input expert'!I$4*'Other input expert'!I$8","v":0},{"$f":"Plantlist!$G110*'Production list'!L111*'Other input expert'!J$4*'Other input expert'!J$8","v":0},{"$f":"Plantlist!$G110*'Production list'!M111*'Other input expert'!K$4*'Other input expert'!K$8","v":0},{"$f":"Plantlist!$G110*'Production list'!N111*'Other input expert'!L$4*'Other input expert'!L$8","v":0},{"$f":"Plantlist!$G110*'Production list'!O111*'Other input expert'!M$4*'Other input expert'!M$8","v":0},null,{"$f":"C110*'Other input expert'!B$5","v":0},{"$f":"D110*'Other input expert'!C$5","v":0},{"$f":"E110*'Other input expert'!D$5","v":0},{"$f":"F110*'Other input expert'!E$5","v":0},{"$f":"G110*'Other input expert'!F$5","v":0},{"$f":"H110*'Other input expert'!G$5","v":0},{"$f":"I110*'Other input expert'!H$5","v":0},{"$f":"J110*'Other input expert'!I$5","v":0},{"$f":"K110*'Other input expert'!J$5","v":0},{"$f":"L110*'Other input expert'!K$5","v":0},{"$f":"M110*'Other input expert'!L$5","v":0},{"$f":"N110*'Other input expert'!M$5","v":0},null,{"$f":"C110*(100%-'Other input expert'!B$5)","v":0},{"$f":"D110*(100%-'Other input expert'!C$5)","v":0},{"$f":"E110*(100%-'Other input expert'!D$5)","v":0},{"$f":"F110*(100%-'Other input expert'!E$5)","v":0},{"$f":"G110*(100%-'Other input expert'!F$5)","v":0},{"$f":"H110*(100%-'Other input expert'!G$5)","v":0},{"$f":"I110*(100%-'Other input expert'!H$5)","v":0},{"$f":"J110*(100%-'Other input expert'!I$5)","v":0},{"$f":"K110*(100%-'Other input expert'!J$5)","v":0},{"$f":"L110*(100%-'Other input expert'!K$5)","v":0},{"$f":"M110*(100%-'Other input expert'!L$5)","v":0},{"$f":"N110*(100%-'Other input expert'!M$5)","v":0},null,{"$f":"P110*'Other input expert'!B$12*'Sales price per sales channel'!$G110*'Other input expert'!B$6","v":0},{"$f":"Q110*'Other input expert'!C$12*'Sales price per sales channel'!$G110*'Other input expert'!C$6","v":0},{"$f":"R110*'Other input expert'!D$12*'Sales price per sales channel'!$G110*'Other input expert'!D$6","v":0},{"$f":"S110*'Other input expert'!E$12*'Sales price per sales channel'!$G110*'Other input expert'!E$6","v":0},{"$f":"T110*'Other input expert'!F$12*'Sales price per sales channel'!$G110*'Other input expert'!F$6","v":0},{"$f":"U110*'Other input expert'!G$12*'Sales price per sales channel'!$G110*'Other input expert'!G$6","v":0},{"$f":"V110*'Other input expert'!H$12*'Sales price per sales channel'!$G110*'Other input expert'!H$6","v":0},{"$f":"W110*'Other input expert'!I$12*'Sales price per sales channel'!$G110*'Other input expert'!I$6","v":0},{"$f":"X110*'Other input expert'!J$12*'Sales price per sales channel'!$G110*'Other input expert'!J$6","v":0},{"$f":"Y110*'Other input expert'!K$12*'Sales price per sales channel'!$G110*'Other input expert'!K$6","v":0},{"$f":"Z110*'Other input expert'!L$12*'Sales price per sales channel'!$G110*'Other input expert'!L$6","v":0},{"$f":"AA110*'Other input expert'!M$12*'Sales price per sales channel'!$G110*'Other input expert'!M$6","v":0},null,{"$f":"P110*'Other input expert'!B$13*'Sales price per sales channel'!$H110*'Other input expert'!B$6","v":0},{"$f":"Q110*'Other input expert'!C$13*'Sales price per sales channel'!$H110*'Other input expert'!C$6","v":0},{"$f":"R110*'Other input expert'!D$13*'Sales price per sales channel'!$H110*'Other input expert'!D$6","v":0},{"$f":"S110*'Other input expert'!E$13*'Sales price per sales channel'!$H110*'Other input expert'!E$6","v":0},{"$f":"T110*'Other input expert'!F$13*'Sales price per sales channel'!$H110*'Other input expert'!F$6","v":0},{"$f":"U110*'Other input expert'!G$13*'Sales price per sales channel'!$H110*'Other input expert'!G$6","v":0},{"$f":"V110*'Other input expert'!H$13*'Sales price per sales channel'!$H110*'Other input expert'!H$6","v":0},{"$f":"W110*'Other input expert'!I$13*'Sales price per sales channel'!$H110*'Other input expert'!I$6","v":0},{"$f":"X110*'Other input expert'!J$13*'Sales price per sales channel'!$H110*'Other input expert'!J$6","v":0},{"$f":"Y110*'Other input expert'!K$13*'Sales price per sales channel'!$H110*'Other input expert'!K$6","v":0},{"$f":"Z110*'Other input expert'!L$13*'Sales price per sales channel'!$H110*'Other input expert'!L$6","v":0},{"$f":"AA110*'Other input expert'!M$13*'Sales price per sales channel'!$H110*'Other input expert'!M$6","v":0},null,{"$f":"P110*'Other input expert'!B$14*'Sales price per sales channel'!$I110*'Other input expert'!B$6","v":0},{"$f":"Q110*'Other input expert'!C$14*'Sales price per sales channel'!$I110*'Other input expert'!C$6","v":0},{"$f":"R110*'Other input expert'!D$14*'Sales price per sales channel'!$I110*'Other input expert'!D$6","v":0},{"$f":"S110*'Other input expert'!E$14*'Sales price per sales channel'!$I110*'Other input expert'!E$6","v":0},{"$f":"T110*'Other input expert'!F$14*'Sales price per sales channel'!$I110*'Other input expert'!F$6","v":0},{"$f":"U110*'Other input expert'!G$14*'Sales price per sales channel'!$I110*'Other input expert'!G$6","v":0},{"$f":"V110*'Other input expert'!H$14*'Sales price per sales channel'!$I110*'Other input expert'!H$6","v":0},{"$f":"W110*'Other input expert'!I$14*'Sales price per sales channel'!$I110*'Other input expert'!I$6","v":0},{"$f":"X110*'Other input expert'!J$14*'Sales price per sales channel'!$I110*'Other input expert'!J$6","v":0},{"$f":"Y110*'Other input expert'!K$14*'Sales price per sales channel'!$I110*'Other input expert'!K$6","v":0},{"$f":"Z110*'Other input expert'!L$14*'Sales price per sales channel'!$I110*'Other input expert'!L$6","v":0},{"$f":"AA110*'Other input expert'!M$14*'Sales price per sales channel'!$I110*'Other input expert'!M$6","v":0},null,{"$f":"AC110*'Other input expert'!B$12*'Sales price per sales channel'!$G110*'Other input expert'!B$7","v":0},{"$f":"AD110*'Other input expert'!C$12*'Sales price per sales channel'!$G110*'Other input expert'!C$7","v":0},{"$f":"AE110*'Other input expert'!D$12*'Sales price per sales channel'!$G110*'Other input expert'!D$7","v":0},{"$f":"AF110*'Other input expert'!E$12*'Sales price per sales channel'!$G110*'Other input expert'!E$7","v":0},{"$f":"AG110*'Other input expert'!F$12*'Sales price per sales channel'!$G110*'Other input expert'!F$7","v":0},{"$f":"AH110*'Other input expert'!G$12*'Sales price per sales channel'!$G110*'Other input expert'!G$7","v":0},{"$f":"AI110*'Other input expert'!H$12*'Sales price per sales channel'!$G110*'Other input expert'!H$7","v":0},{"$f":"AJ110*'Other input expert'!I$12*'Sales price per sales channel'!$G110*'Other input expert'!I$7","v":0},{"$f":"AK110*'Other input expert'!J$12*'Sales price per sales channel'!$G110*'Other input expert'!J$7","v":0},{"$f":"AL110*'Other input expert'!K$12*'Sales price per sales channel'!$G110*'Other input expert'!K$7","v":0},{"$f":"AM110*'Other input expert'!L$12*'Sales price per sales channel'!$G110*'Other input expert'!L$7","v":0},{"$f":"AN110*'Other input expert'!M$12*'Sales price per sales channel'!$G110*'Other input expert'!M$7","v":0},null,{"$f":"AC110*'Other input expert'!B$13*'Sales price per sales channel'!$H110*'Other input expert'!B$7","v":0},{"$f":"AD110*'Other input expert'!C$13*'Sales price per sales channel'!$H110*'Other input expert'!C$7","v":0},{"$f":"AE110*'Other input expert'!D$13*'Sales price per sales channel'!$H110*'Other input expert'!D$7","v":0},{"$f":"AF110*'Other input expert'!E$13*'Sales price per sales channel'!$H110*'Other input expert'!E$7","v":0},{"$f":"AG110*'Other input expert'!F$13*'Sales price per sales channel'!$H110*'Other input expert'!F$7","v":0},{"$f":"AH110*'Other input expert'!G$13*'Sales price per sales channel'!$H110*'Other input expert'!G$7","v":0},{"$f":"AI110*'Other input expert'!H$13*'Sales price per sales channel'!$H110*'Other input expert'!H$7","v":0},{"$f":"AJ110*'Other input expert'!I$13*'Sales price per sales channel'!$H110*'Other input expert'!I$7","v":0},{"$f":"AK110*'Other input expert'!J$13*'Sales price per sales channel'!$H110*'Other input expert'!J$7","v":0},{"$f":"AL110*'Other input expert'!K$13*'Sales price per sales channel'!$H110*'Other input expert'!K$7","v":0},{"$f":"AM110*'Other input expert'!L$13*'Sales price per sales channel'!$H110*'Other input expert'!L$7","v":0},{"$f":"AN110*'Other input expert'!M$13*'Sales price per sales channel'!$H110*'Other input expert'!M$7","v":0},null,{"$f":"AC110*'Other input expert'!B$14*'Sales price per sales channel'!$I110*'Other input expert'!B$7","v":0},{"$f":"AD110*'Other input expert'!C$14*'Sales price per sales channel'!$I110*'Other input expert'!C$7","v":0},{"$f":"AE110*'Other input expert'!D$14*'Sales price per sales channel'!$I110*'Other input expert'!D$7","v":0},{"$f":"AF110*'Other input expert'!E$14*'Sales price per sales channel'!$I110*'Other input expert'!E$7","v":0},{"$f":"AG110*'Other input expert'!F$14*'Sales price per sales channel'!$I110*'Other input expert'!F$7","v":0},{"$f":"AH110*'Other input expert'!G$14*'Sales price per sales channel'!$I110*'Other input expert'!G$7","v":0},{"$f":"AI110*'Other input expert'!H$14*'Sales price per sales channel'!$I110*'Other input expert'!H$7","v":0},{"$f":"AJ110*'Other input expert'!I$14*'Sales price per sales channel'!$I110*'Other input expert'!I$7","v":0},{"$f":"AK110*'Other input expert'!J$14*'Sales price per sales channel'!$I110*'Other input expert'!J$7","v":0},{"$f":"AL110*'Other input expert'!K$14*'Sales price per sales channel'!$I110*'Other input expert'!K$7","v":0},{"$f":"AM110*'Other input expert'!L$14*'Sales price per sales channel'!$I110*'Other input expert'!L$7","v":0},{"$f":"AN110*'Other input expert'!M$14*'Sales price per sales channel'!$I110*'Other input expert'!M$7","v":0}]
["Morus alba","White mulberry",{"$f":"Plantlist!$G111*'Production list'!D112*'Other input expert'!B$4*'Other input expert'!B$8","v":0},{"$f":"Plantlist!$G111*'Production list'!E112*'Other input expert'!C$4*'Other input expert'!C$8","v":0},{"$f":"Plantlist!$G111*'Production list'!F112*'Other input expert'!D$4*'Other input expert'!D$8","v":0},{"$f":"Plantlist!$G111*'Production list'!G112*'Other input expert'!E$4*'Other input expert'!E$8","v":0},{"$f":"Plantlist!$G111*'Production list'!H112*'Other input expert'!F$4*'Other input expert'!F$8","v":0},{"$f":"Plantlist!$G111*'Production list'!I112*'Other input expert'!G$4*'Other input expert'!G$8","v":0},{"$f":"Plantlist!$G111*'Production list'!J112*'Other input expert'!H$4*'Other input expert'!H$8","v":0},{"$f":"Plantlist!$G111*'Production list'!K112*'Other input expert'!I$4*'Other input expert'!I$8","v":0},{"$f":"Plantlist!$G111*'Production list'!L112*'Other input expert'!J$4*'Other input expert'!J$8","v":0},{"$f":"Plantlist!$G111*'Production list'!M112*'Other input expert'!K$4*'Other input expert'!K$8","v":0},{"$f":"Plantlist!$G111*'Production list'!N112*'Other input expert'!L$4*'Other input expert'!L$8","v":0},{"$f":"Plantlist!$G111*'Production list'!O112*'Other input expert'!M$4*'Other input expert'!M$8","v":0},null,{"$f":"C111*'Other input expert'!B$5","v":0},{"$f":"D111*'Other input expert'!C$5","v":0},{"$f":"E111*'Other input expert'!D$5","v":0},{"$f":"F111*'Other input expert'!E$5","v":0},{"$f":"G111*'Other input expert'!F$5","v":0},{"$f":"H111*'Other input expert'!G$5","v":0},{"$f":"I111*'Other input expert'!H$5","v":0},{"$f":"J111*'Other input expert'!I$5","v":0},{"$f":"K111*'Other input expert'!J$5","v":0},{"$f":"L111*'Other input expert'!K$5","v":0},{"$f":"M111*'Other input expert'!L$5","v":0},{"$f":"N111*'Other input expert'!M$5","v":0},null,{"$f":"C111*(100%-'Other input expert'!B$5)","v":0},{"$f":"D111*(100%-'Other input expert'!C$5)","v":0},{"$f":"E111*(100%-'Other input expert'!D$5)","v":0},{"$f":"F111*(100%-'Other input expert'!E$5)","v":0},{"$f":"G111*(100%-'Other input expert'!F$5)","v":0},{"$f":"H111*(100%-'Other input expert'!G$5)","v":0},{"$f":"I111*(100%-'Other input expert'!H$5)","v":0},{"$f":"J111*(100%-'Other input expert'!I$5)","v":0},{"$f":"K111*(100%-'Other input expert'!J$5)","v":0},{"$f":"L111*(100%-'Other input expert'!K$5)","v":0},{"$f":"M111*(100%-'Other input expert'!L$5)","v":0},{"$f":"N111*(100%-'Other input expert'!M$5)","v":0},null,{"$f":"P111*'Other input expert'!B$12*'Sales price per sales channel'!$G111*'Other input expert'!B$6","v":0},{"$f":"Q111*'Other input expert'!C$12*'Sales price per sales channel'!$G111*'Other input expert'!C$6","v":0},{"$f":"R111*'Other input expert'!D$12*'Sales price per sales channel'!$G111*'Other input expert'!D$6","v":0},{"$f":"S111*'Other input expert'!E$12*'Sales price per sales channel'!$G111*'Other input expert'!E$6","v":0},{"$f":"T111*'Other input expert'!F$12*'Sales price per sales channel'!$G111*'Other input expert'!F$6","v":0},{"$f":"U111*'Other input expert'!G$12*'Sales price per sales channel'!$G111*'Other input expert'!G$6","v":0},{"$f":"V111*'Other input expert'!H$12*'Sales price per sales channel'!$G111*'Other input expert'!H$6","v":0},{"$f":"W111*'Other input expert'!I$12*'Sales price per sales channel'!$G111*'Other input expert'!I$6","v":0},{"$f":"X111*'Other input expert'!J$12*'Sales price per sales channel'!$G111*'Other input expert'!J$6","v":0},{"$f":"Y111*'Other input expert'!K$12*'Sales price per sales channel'!$G111*'Other input expert'!K$6","v":0},{"$f":"Z111*'Other input expert'!L$12*'Sales price per sales channel'!$G111*'Other input expert'!L$6","v":0},{"$f":"AA111*'Other input expert'!M$12*'Sales price per sales channel'!$G111*'Other input expert'!M$6","v":0},null,{"$f":"P111*'Other input expert'!B$13*'Sales price per sales channel'!$H111*'Other input expert'!B$6","v":0},{"$f":"Q111*'Other input expert'!C$13*'Sales price per sales channel'!$H111*'Other input expert'!C$6","v":0},{"$f":"R111*'Other input expert'!D$13*'Sales price per sales channel'!$H111*'Other input expert'!D$6","v":0},{"$f":"S111*'Other input expert'!E$13*'Sales price per sales channel'!$H111*'Other input expert'!E$6","v":0},{"$f":"T111*'Other input expert'!F$13*'Sales price per sales channel'!$H111*'Other input expert'!F$6","v":0},{"$f":"U111*'Other input expert'!G$13*'Sales price per sales channel'!$H111*'Other input expert'!G$6","v":0},{"$f":"V111*'Other input expert'!H$13*'Sales price per sales channel'!$H111*'Other input expert'!H$6","v":0},{"$f":"W111*'Other input expert'!I$13*'Sales price per sales channel'!$H111*'Other input expert'!I$6","v":0},{"$f":"X111*'Other input expert'!J$13*'Sales price per sales channel'!$H111*'Other input expert'!J$6","v":0},{"$f":"Y111*'Other input expert'!K$13*'Sales price per sales channel'!$H111*'Other input expert'!K$6","v":0},{"$f":"Z111*'Other input expert'!L$13*'Sales price per sales channel'!$H111*'Other input expert'!L$6","v":0},{"$f":"AA111*'Other input expert'!M$13*'Sales price per sales channel'!$H111*'Other input expert'!M$6","v":0},null,{"$f":"P111*'Other input expert'!B$14*'Sales price per sales channel'!$I111*'Other input expert'!B$6","v":0},{"$f":"Q111*'Other input expert'!C$14*'Sales price per sales channel'!$I111*'Other input expert'!C$6","v":0},{"$f":"R111*'Other input expert'!D$14*'Sales price per sales channel'!$I111*'Other input expert'!D$6","v":0},{"$f":"S111*'Other input expert'!E$14*'Sales price per sales channel'!$I111*'Other input expert'!E$6","v":0},{"$f":"T111*'Other input expert'!F$14*'Sales price per sales channel'!$I111*'Other input expert'!F$6","v":0},{"$f":"U111*'Other input expert'!G$14*'Sales price per sales channel'!$I111*'Other input expert'!G$6","v":0},{"$f":"V111*'Other input expert'!H$14*'Sales price per sales channel'!$I111*'Other input expert'!H$6","v":0},{"$f":"W111*'Other input expert'!I$14*'Sales price per sales channel'!$I111*'Other input expert'!I$6","v":0},{"$f":"X111*'Other input expert'!J$14*'Sales price per sales channel'!$I111*'Other input expert'!J$6","v":0},{"$f":"Y111*'Other input expert'!K$14*'Sales price per sales channel'!$I111*'Other input expert'!K$6","v":0},{"$f":"Z111*'Other input expert'!L$14*'Sales price per sales channel'!$I111*'Other input expert'!L$6","v":0},{"$f":"AA111*'Other input expert'!M$14*'Sales price per sales channel'!$I111*'Other input expert'!M$6","v":0},null,{"$f":"AC111*'Other input expert'!B$12*'Sales price per sales channel'!$G111*'Other input expert'!B$7","v":0},{"$f":"AD111*'Other input expert'!C$12*'Sales price per sales channel'!$G111*'Other input expert'!C$7","v":0},{"$f":"AE111*'Other input expert'!D$12*'Sales price per sales channel'!$G111*'Other input expert'!D$7","v":0},{"$f":"AF111*'Other input expert'!E$12*'Sales price per sales channel'!$G111*'Other input expert'!E$7","v":0},{"$f":"AG111*'Other input expert'!F$12*'Sales price per sales channel'!$G111*'Other input expert'!F$7","v":0},{"$f":"AH111*'Other input expert'!G$12*'Sales price per sales channel'!$G111*'Other input expert'!G$7","v":0},{"$f":"AI111*'Other input expert'!H$12*'Sales price per sales channel'!$G111*'Other input expert'!H$7","v":0},{"$f":"AJ111*'Other input expert'!I$12*'Sales price per sales channel'!$G111*'Other input expert'!I$7","v":0},{"$f":"AK111*'Other input expert'!J$12*'Sales price per sales channel'!$G111*'Other input expert'!J$7","v":0},{"$f":"AL111*'Other input expert'!K$12*'Sales price per sales channel'!$G111*'Other input expert'!K$7","v":0},{"$f":"AM111*'Other input expert'!L$12*'Sales price per sales channel'!$G111*'Other input expert'!L$7","v":0},{"$f":"AN111*'Other input expert'!M$12*'Sales price per sales channel'!$G111*'Other input expert'!M$7","v":0},null,{"$f":"AC111*'Other input expert'!B$13*'Sales price per sales channel'!$H111*'Other input expert'!B$7","v":0},{"$f":"AD111*'Other input expert'!C$13*'Sales price per sales channel'!$H111*'Other input expert'!C$7","v":0},{"$f":"AE111*'Other input expert'!D$13*'Sales price per sales channel'!$H111*'Other input expert'!D$7","v":0},{"$f":"AF111*'Other input expert'!E$13*'Sales price per sales channel'!$H111*'Other input expert'!E$7","v":0},{"$f":"AG111*'Other input expert'!F$13*'Sales price per sales channel'!$H111*'Other input expert'!F$7","v":0},{"$f":"AH111*'Other input expert'!G$13*'Sales price per sales channel'!$H111*'Other input expert'!G$7","v":0},{"$f":"AI111*'Other input expert'!H$13*'Sales price per sales channel'!$H111*'Other input expert'!H$7","v":0},{"$f":"AJ111*'Other input expert'!I$13*'Sales price per sales channel'!$H111*'Other input expert'!I$7","v":0},{"$f":"AK111*'Other input expert'!J$13*'Sales price per sales channel'!$H111*'Other input expert'!J$7","v":0},{"$f":"AL111*'Other input expert'!K$13*'Sales price per sales channel'!$H111*'Other input expert'!K$7","v":0},{"$f":"AM111*'Other input expert'!L$13*'Sales price per sales channel'!$H111*'Other input expert'!L$7","v":0},{"$f":"AN111*'Other input expert'!M$13*'Sales price per sales channel'!$H111*'Other input expert'!M$7","v":0},null,{"$f":"AC111*'Other input expert'!B$14*'Sales price per sales channel'!$I111*'Other input expert'!B$7","v":0},{"$f":"AD111*'Other input expert'!C$14*'Sales price per sales channel'!$I111*'Other input expert'!C$7","v":0},{"$f":"AE111*'Other input expert'!D$14*'Sales price per sales channel'!$I111*'Other input expert'!D$7","v":0},{"$f":"AF111*'Other input expert'!E$14*'Sales price per sales channel'!$I111*'Other input expert'!E$7","v":0},{"$f":"AG111*'Other input expert'!F$14*'Sales price per sales channel'!$I111*'Other input expert'!F$7","v":0},{"$f":"AH111*'Other input expert'!G$14*'Sales price per sales channel'!$I111*'Other input expert'!G$7","v":0},{"$f":"AI111*'Other input expert'!H$14*'Sales price per sales channel'!$I111*'Other input expert'!H$7","v":0},{"$f":"AJ111*'Other input expert'!I$14*'Sales price per sales channel'!$I111*'Other input expert'!I$7","v":0},{"$f":"AK111*'Other input expert'!J$14*'Sales price per sales channel'!$I111*'Other input expert'!J$7","v":0},{"$f":"AL111*'Other input expert'!K$14*'Sales price per sales channel'!$I111*'Other input expert'!K$7","v":0},{"$f":"AM111*'Other input expert'!L$14*'Sales price per sales channel'!$I111*'Other input expert'!L$7","v":0},{"$f":"AN111*'Other input expert'!M$14*'Sales price per sales channel'!$I111*'Other input expert'!M$7","v":0}]
["Morus nigra","Black mulberry",{"$f":"Plantlist!$G112*'Production list'!D113*'Other input expert'!B$4*'Other input expert'!B$8","v":0},{"$f":"Plantlist!$G112*'Production list'!E113*'Other input expert'!C$4*'Other input expert'!C$8","v":0},{"$f":"Plantlist!$G112*'Production list'!F113*'Other input expert'!D$4*'Other input expert'!D$8","v":0},{"$f":"Plantlist!$G112*'Production list'!G113*'Other input expert'!E$4*'Other input expert'!E$8","v":0},{"$f":"Plantlist!$G112*'Production list'!H113*'Other input expert'!F$4*'Other input expert'!F$8","v":0},{"$f":"Plantlist!$G112*'Production list'!I113*'Other input expert'!G$4*'Other input expert'!G$8","v":0},{"$f":"Plantlist!$G112*'Production list'!J113*'Other input expert'!H$4*'Other input expert'!H$8","v":0},{"$f":"Plantlist!$G112*'Production list'!K113*'Other input expert'!I$4*'Other input expert'!I$8","v":0},{"$f":"Plantlist!$G112*'Production list'!L113*'Other input expert'!J$4*'Other input expert'!J$8","v":0},{"$f":"Plantlist!$G112*'Production list'!M113*'Other input expert'!K$4*'Other input expert'!K$8","v":0},{"$f":"Plantlist!$G112*'Production list'!N113*'Other input expert'!L$4*'Other input expert'!L$8","v":0},{"$f":"Plantlist!$G112*'Production list'!O113*'Other input expert'!M$4*'Other input expert'!M$8","v":0},null,{"$f":"C112*'Other input expert'!B$5","v":0},{"$f":"D112*'Other input expert'!C$5","v":0},{"$f":"E112*'Other input expert'!D$5","v":0},{"$f":"F112*'Other input expert'!E$5","v":0},{"$f":"G112*'Other input expert'!F$5","v":0},{"$f":"H112*'Other input expert'!G$5","v":0},{"$f":"I112*'Other input expert'!H$5","v":0},{"$f":"J112*'Other input expert'!I$5","v":0},{"$f":"K112*'Other input expert'!J$5","v":0},{"$f":"L112*'Other input expert'!K$5","v":0},{"$f":"M112*'Other input expert'!L$5","v":0},{"$f":"N112*'Other input expert'!M$5","v":0},null,{"$f":"C112*(100%-'Other input expert'!B$5)","v":0},{"$f":"D112*(100%-'Other input expert'!C$5)","v":0},{"$f":"E112*(100%-'Other input expert'!D$5)","v":0},{"$f":"F112*(100%-'Other input expert'!E$5)","v":0},{"$f":"G112*(100%-'Other input expert'!F$5)","v":0},{"$f":"H112*(100%-'Other input expert'!G$5)","v":0},{"$f":"I112*(100%-'Other input expert'!H$5)","v":0},{"$f":"J112*(100%-'Other input expert'!I$5)","v":0},{"$f":"K112*(100%-'Other input expert'!J$5)","v":0},{"$f":"L112*(100%-'Other input expert'!K$5)","v":0},{"$f":"M112*(100%-'Other input expert'!L$5)","v":0},{"$f":"N112*(100%-'Other input expert'!M$5)","v":0},null,{"$f":"P112*'Other input expert'!B$12*'Sales price per sales channel'!$G112*'Other input expert'!B$6","v":0},{"$f":"Q112*'Other input expert'!C$12*'Sales price per sales channel'!$G112*'Other input expert'!C$6","v":0},{"$f":"R112*'Other input expert'!D$12*'Sales price per sales channel'!$G112*'Other input expert'!D$6","v":0},{"$f":"S112*'Other input expert'!E$12*'Sales price per sales channel'!$G112*'Other input expert'!E$6","v":0},{"$f":"T112*'Other input expert'!F$12*'Sales price per sales channel'!$G112*'Other input expert'!F$6","v":0},{"$f":"U112*'Other input expert'!G$12*'Sales price per sales channel'!$G112*'Other input expert'!G$6","v":0},{"$f":"V112*'Other input expert'!H$12*'Sales price per sales channel'!$G112*'Other input expert'!H$6","v":0},{"$f":"W112*'Other input expert'!I$12*'Sales price per sales channel'!$G112*'Other input expert'!I$6","v":0},{"$f":"X112*'Other input expert'!J$12*'Sales price per sales channel'!$G112*'Other input expert'!J$6","v":0},{"$f":"Y112*'Other input expert'!K$12*'Sales price per sales channel'!$G112*'Other input expert'!K$6","v":0},{"$f":"Z112*'Other input expert'!L$12*'Sales price per sales channel'!$G112*'Other input expert'!L$6","v":0},{"$f":"AA112*'Other input expert'!M$12*'Sales price per sales channel'!$G112*'Other input expert'!M$6","v":0},null,{"$f":"P112*'Other input expert'!B$13*'Sales price per sales channel'!$H112*'Other input expert'!B$6","v":0},{"$f":"Q112*'Other input expert'!C$13*'Sales price per sales channel'!$H112*'Other input expert'!C$6","v":0},{"$f":"R112*'Other input expert'!D$13*'Sales price per sales channel'!$H112*'Other input expert'!D$6","v":0},{"$f":"S112*'Other input expert'!E$13*'Sales price per sales channel'!$H112*'Other input expert'!E$6","v":0},{"$f":"T112*'Other input expert'!F$13*'Sales price per sales channel'!$H112*'Other input expert'!F$6","v":0},{"$f":"U112*'Other input expert'!G$13*'Sales price per sales channel'!$H112*'Other input expert'!G$6","v":0},{"$f":"V112*'Other input expert'!H$13*'Sales price per sales channel'!$H112*'Other input expert'!H$6","v":0},{"$f":"W112*'Other input expert'!I$13*'Sales price per sales channel'!$H112*'Other input expert'!I$6","v":0},{"$f":"X112*'Other input expert'!J$13*'Sales price per sales channel'!$H112*'Other input expert'!J$6","v":0},{"$f":"Y112*'Other input expert'!K$13*'Sales price per sales channel'!$H112*'Other input expert'!K$6","v":0},{"$f":"Z112*'Other input expert'!L$13*'Sales price per sales channel'!$H112*'Other input expert'!L$6","v":0},{"$f":"AA112*'Other input expert'!M$13*'Sales price per sales channel'!$H112*'Other input expert'!M$6","v":0},null,{"$f":"P112*'Other input expert'!B$14*'Sales price per sales channel'!$I112*'Other input expert'!B$6","v":0},{"$f":"Q112*'Other input expert'!C$14*'Sales price per sales channel'!$I112*'Other input expert'!C$6","v":0},{"$f":"R112*'Other input expert'!D$14*'Sales price per sales channel'!$I112*'Other input expert'!D$6","v":0},{"$f":"S112*'Other input expert'!E$14*'Sales price per sales channel'!$I112*'Other input expert'!E$6","v":0},{"$f":"T112*'Other input expert'!F$14*'Sales price per sales channel'!$I112*'Other input expert'!F$6","v":0},{"$f":"U112*'Other input expert'!G$14*'Sales price per sales channel'!$I112*'Other input expert'!G$6","v":0},{"$f":"V112*'Other input expert'!H$14*'Sales price per sales channel'!$I112*'Other input expert'!H$6","v":0},{"$f":"W112*'Other input expert'!I$14*'Sales price per sales channel'!$I112*'Other input expert'!I$6","v":0},{"$f":"X112*'Other input expert'!J$14*'Sales price per sales channel'!$I112*'Other input expert'!J$6","v":0},{"$f":"Y112*'Other input expert'!K$14*'Sales price per sales channel'!$I112*'Other input expert'!K$6","v":0},{"$f":"Z112*'Other input expert'!L$14*'Sales price per sales channel'!$I112*'Other input expert'!L$6","v":0},{"$f":"AA112*'Other input expert'!M$14*'Sales price per sales channel'!$I112*'Other input expert'!M$6","v":0},null,{"$f":"AC112*'Other input expert'!B$12*'Sales price per sales channel'!$G112*'Other input expert'!B$7","v":0},{"$f":"AD112*'Other input expert'!C$12*'Sales price per sales channel'!$G112*'Other input expert'!C$7","v":0},{"$f":"AE112*'Other input expert'!D$12*'Sales price per sales channel'!$G112*'Other input expert'!D$7","v":0},{"$f":"AF112*'Other input expert'!E$12*'Sales price per sales channel'!$G112*'Other input expert'!E$7","v":0},{"$f":"AG112*'Other input expert'!F$12*'Sales price per sales channel'!$G112*'Other input expert'!F$7","v":0},{"$f":"AH112*'Other input expert'!G$12*'Sales price per sales channel'!$G112*'Other input expert'!G$7","v":0},{"$f":"AI112*'Other input expert'!H$12*'Sales price per sales channel'!$G112*'Other input expert'!H$7","v":0},{"$f":"AJ112*'Other input expert'!I$12*'Sales price per sales channel'!$G112*'Other input expert'!I$7","v":0},{"$f":"AK112*'Other input expert'!J$12*'Sales price per sales channel'!$G112*'Other input expert'!J$7","v":0},{"$f":"AL112*'Other input expert'!K$12*'Sales price per sales channel'!$G112*'Other input expert'!K$7","v":0},{"$f":"AM112*'Other input expert'!L$12*'Sales price per sales channel'!$G112*'Other input expert'!L$7","v":0},{"$f":"AN112*'Other input expert'!M$12*'Sales price per sales channel'!$G112*'Other input expert'!M$7","v":0},null,{"$f":"AC112*'Other input expert'!B$13*'Sales price per sales channel'!$H112*'Other input expert'!B$7","v":0},{"$f":"AD112*'Other input expert'!C$13*'Sales price per sales channel'!$H112*'Other input expert'!C$7","v":0},{"$f":"AE112*'Other input expert'!D$13*'Sales price per sales channel'!$H112*'Other input expert'!D$7","v":0},{"$f":"AF112*'Other input expert'!E$13*'Sales price per sales channel'!$H112*'Other input expert'!E$7","v":0},{"$f":"AG112*'Other input expert'!F$13*'Sales price per sales channel'!$H112*'Other input expert'!F$7","v":0},{"$f":"AH112*'Other input expert'!G$13*'Sales price per sales channel'!$H112*'Other input expert'!G$7","v":0},{"$f":"AI112*'Other input expert'!H$13*'Sales price per sales channel'!$H112*'Other input expert'!H$7","v":0},{"$f":"AJ112*'Other input expert'!I$13*'Sales price per sales channel'!$H112*'Other input expert'!I$7","v":0},{"$f":"AK112*'Other input expert'!J$13*'Sales price per sales channel'!$H112*'Other input expert'!J$7","v":0},{"$f":"AL112*'Other input expert'!K$13*'Sales price per sales channel'!$H112*'Other input expert'!K$7","v":0},{"$f":"AM112*'Other input expert'!L$13*'Sales price per sales channel'!$H112*'Other input expert'!L$7","v":0},{"$f":"AN112*'Other input expert'!M$13*'Sales price per sales channel'!$H112*'Other input expert'!M$7","v":0},null,{"$f":"AC112*'Other input expert'!B$14*'Sales price per sales channel'!$I112*'Other input expert'!B$7","v":0},{"$f":"AD112*'Other input expert'!C$14*'Sales price per sales channel'!$I112*'Other input expert'!C$7","v":0},{"$f":"AE112*'Other input expert'!D$14*'Sales price per sales channel'!$I112*'Other input expert'!D$7","v":0},{"$f":"AF112*'Other input expert'!E$14*'Sales price per sales channel'!$I112*'Other input expert'!E$7","v":0},{"$f":"AG112*'Other input expert'!F$14*'Sales price per sales channel'!$I112*'Other input expert'!F$7","v":0},{"$f":"AH112*'Other input expert'!G$14*'Sales price per sales channel'!$I112*'Other input expert'!G$7","v":0},{"$f":"AI112*'Other input expert'!H$14*'Sales price per sales channel'!$I112*'Other input expert'!H$7","v":0},{"$f":"AJ112*'Other input expert'!I$14*'Sales price per sales channel'!$I112*'Other input expert'!I$7","v":0},{"$f":"AK112*'Other input expert'!J$14*'Sales price per sales channel'!$I112*'Other input expert'!J$7","v":0},{"$f":"AL112*'Other input expert'!K$14*'Sales price per sales channel'!$I112*'Other input expert'!K$7","v":0},{"$f":"AM112*'Other input expert'!L$14*'Sales price per sales channel'!$I112*'Other input expert'!L$7","v":0},{"$f":"AN112*'Other input expert'!M$14*'Sales price per sales channel'!$I112*'Other input expert'!M$7","v":0}]
["Myosotis spp.","Forget-me-not",{"$f":"Plantlist!$G113*'Production list'!D114*'Other input expert'!B$4*'Other input expert'!B$8","v":0},{"$f":"Plantlist!$G113*'Production list'!E114*'Other input expert'!C$4*'Other input expert'!C$8","v":0},{"$f":"Plantlist!$G113*'Production list'!F114*'Other input expert'!D$4*'Other input expert'!D$8","v":0},{"$f":"Plantlist!$G113*'Production list'!G114*'Other input expert'!E$4*'Other input expert'!E$8","v":0},{"$f":"Plantlist!$G113*'Production list'!H114*'Other input expert'!F$4*'Other input expert'!F$8","v":0},{"$f":"Plantlist!$G113*'Production list'!I114*'Other input expert'!G$4*'Other input expert'!G$8","v":0},{"$f":"Plantlist!$G113*'Production list'!J114*'Other input expert'!H$4*'Other input expert'!H$8","v":0},{"$f":"Plantlist!$G113*'Production list'!K114*'Other input expert'!I$4*'Other input expert'!I$8","v":0},{"$f":"Plantlist!$G113*'Production list'!L114*'Other input expert'!J$4*'Other input expert'!J$8","v":0},{"$f":"Plantlist!$G113*'Production list'!M114*'Other input expert'!K$4*'Other input expert'!K$8","v":0},{"$f":"Plantlist!$G113*'Production list'!N114*'Other input expert'!L$4*'Other input expert'!L$8","v":0},{"$f":"Plantlist!$G113*'Production list'!O114*'Other input expert'!M$4*'Other input expert'!M$8","v":0},null,{"$f":"C113*'Other input expert'!B$5","v":0},{"$f":"D113*'Other input expert'!C$5","v":0},{"$f":"E113*'Other input expert'!D$5","v":0},{"$f":"F113*'Other input expert'!E$5","v":0},{"$f":"G113*'Other input expert'!F$5","v":0},{"$f":"H113*'Other input expert'!G$5","v":0},{"$f":"I113*'Other input expert'!H$5","v":0},{"$f":"J113*'Other input expert'!I$5","v":0},{"$f":"K113*'Other input expert'!J$5","v":0},{"$f":"L113*'Other input expert'!K$5","v":0},{"$f":"M113*'Other input expert'!L$5","v":0},{"$f":"N113*'Other input expert'!M$5","v":0},null,{"$f":"C113*(100%-'Other input expert'!B$5)","v":0},{"$f":"D113*(100%-'Other input expert'!C$5)","v":0},{"$f":"E113*(100%-'Other input expert'!D$5)","v":0},{"$f":"F113*(100%-'Other input expert'!E$5)","v":0},{"$f":"G113*(100%-'Other input expert'!F$5)","v":0},{"$f":"H113*(100%-'Other input expert'!G$5)","v":0},{"$f":"I113*(100%-'Other input expert'!H$5)","v":0},{"$f":"J113*(100%-'Other input expert'!I$5)","v":0},{"$f":"K113*(100%-'Other input expert'!J$5)","v":0},{"$f":"L113*(100%-'Other input expert'!K$5)","v":0},{"$f":"M113*(100%-'Other input expert'!L$5)","v":0},{"$f":"N113*(100%-'Other input expert'!M$5)","v":0},null,{"$f":"P113*'Other input expert'!B$12*'Sales price per sales channel'!$G113*'Other input expert'!B$6","v":0},{"$f":"Q113*'Other input expert'!C$12*'Sales price per sales channel'!$G113*'Other input expert'!C$6","v":0},{"$f":"R113*'Other input expert'!D$12*'Sales price per sales channel'!$G113*'Other input expert'!D$6","v":0},{"$f":"S113*'Other input expert'!E$12*'Sales price per sales channel'!$G113*'Other input expert'!E$6","v":0},{"$f":"T113*'Other input expert'!F$12*'Sales price per sales channel'!$G113*'Other input expert'!F$6","v":0},{"$f":"U113*'Other input expert'!G$12*'Sales price per sales channel'!$G113*'Other input expert'!G$6","v":0},{"$f":"V113*'Other input expert'!H$12*'Sales price per sales channel'!$G113*'Other input expert'!H$6","v":0},{"$f":"W113*'Other input expert'!I$12*'Sales price per sales channel'!$G113*'Other input expert'!I$6","v":0},{"$f":"X113*'Other input expert'!J$12*'Sales price per sales channel'!$G113*'Other input expert'!J$6","v":0},{"$f":"Y113*'Other input expert'!K$12*'Sales price per sales channel'!$G113*'Other input expert'!K$6","v":0},{"$f":"Z113*'Other input expert'!L$12*'Sales price per sales channel'!$G113*'Other input expert'!L$6","v":0},{"$f":"AA113*'Other input expert'!M$12*'Sales price per sales channel'!$G113*'Other input expert'!M$6","v":0},null,{"$f":"P113*'Other input expert'!B$13*'Sales price per sales channel'!$H113*'Other input expert'!B$6","v":0},{"$f":"Q113*'Other input expert'!C$13*'Sales price per sales channel'!$H113*'Other input expert'!C$6","v":0},{"$f":"R113*'Other input expert'!D$13*'Sales price per sales channel'!$H113*'Other input expert'!D$6","v":0},{"$f":"S113*'Other input expert'!E$13*'Sales price per sales channel'!$H113*'Other input expert'!E$6","v":0},{"$f":"T113*'Other input expert'!F$13*'Sales price per sales channel'!$H113*'Other input expert'!F$6","v":0},{"$f":"U113*'Other input expert'!G$13*'Sales price per sales channel'!$H113*'Other input expert'!G$6","v":0},{"$f":"V113*'Other input expert'!H$13*'Sales price per sales channel'!$H113*'Other input expert'!H$6","v":0},{"$f":"W113*'Other input expert'!I$13*'Sales price per sales channel'!$H113*'Other input expert'!I$6","v":0},{"$f":"X113*'Other input expert'!J$13*'Sales price per sales channel'!$H113*'Other input expert'!J$6","v":0},{"$f":"Y113*'Other input expert'!K$13*'Sales price per sales channel'!$H113*'Other input expert'!K$6","v":0},{"$f":"Z113*'Other input expert'!L$13*'Sales price per sales channel'!$H113*'Other input expert'!L$6","v":0},{"$f":"AA113*'Other input expert'!M$13*'Sales price per sales channel'!$H113*'Other input expert'!M$6","v":0},null,{"$f":"P113*'Other input expert'!B$14*'Sales price per sales channel'!$I113*'Other input expert'!B$6","v":0},{"$f":"Q113*'Other input expert'!C$14*'Sales price per sales channel'!$I113*'Other input expert'!C$6","v":0},{"$f":"R113*'Other input expert'!D$14*'Sales price per sales channel'!$I113*'Other input expert'!D$6","v":0},{"$f":"S113*'Other input expert'!E$14*'Sales price per sales channel'!$I113*'Other input expert'!E$6","v":0},{"$f":"T113*'Other input expert'!F$14*'Sales price per sales channel'!$I113*'Other input expert'!F$6","v":0},{"$f":"U113*'Other input expert'!G$14*'Sales price per sales channel'!$I113*'Other input expert'!G$6","v":0},{"$f":"V113*'Other input expert'!H$14*'Sales price per sales channel'!$I113*'Other input expert'!H$6","v":0},{"$f":"W113*'Other input expert'!I$14*'Sales price per sales channel'!$I113*'Other input expert'!I$6","v":0},{"$f":"X113*'Other input expert'!J$14*'Sales price per sales channel'!$I113*'Other input expert'!J$6","v":0},{"$f":"Y113*'Other input expert'!K$14*'Sales price per sales channel'!$I113*'Other input expert'!K$6","v":0},{"$f":"Z113*'Other input expert'!L$14*'Sales price per sales channel'!$I113*'Other input expert'!L$6","v":0},{"$f":"AA113*'Other input expert'!M$14*'Sales price per sales channel'!$I113*'Other input expert'!M$6","v":0},null,{"$f":"AC113*'Other input expert'!B$12*'Sales price per sales channel'!$G113*'Other input expert'!B$7","v":0},{"$f":"AD113*'Other input expert'!C$12*'Sales price per sales channel'!$G113*'Other input expert'!C$7","v":0},{"$f":"AE113*'Other input expert'!D$12*'Sales price per sales channel'!$G113*'Other input expert'!D$7","v":0},{"$f":"AF113*'Other input expert'!E$12*'Sales price per sales channel'!$G113*'Other input expert'!E$7","v":0},{"$f":"AG113*'Other input expert'!F$12*'Sales price per sales channel'!$G113*'Other input expert'!F$7","v":0},{"$f":"AH113*'Other input expert'!G$12*'Sales price per sales channel'!$G113*'Other input expert'!G$7","v":0},{"$f":"AI113*'Other input expert'!H$12*'Sales price per sales channel'!$G113*'Other input expert'!H$7","v":0},{"$f":"AJ113*'Other input expert'!I$12*'Sales price per sales channel'!$G113*'Other input expert'!I$7","v":0},{"$f":"AK113*'Other input expert'!J$12*'Sales price per sales channel'!$G113*'Other input expert'!J$7","v":0},{"$f":"AL113*'Other input expert'!K$12*'Sales price per sales channel'!$G113*'Other input expert'!K$7","v":0},{"$f":"AM113*'Other input expert'!L$12*'Sales price per sales channel'!$G113*'Other input expert'!L$7","v":0},{"$f":"AN113*'Other input expert'!M$12*'Sales price per sales channel'!$G113*'Other input expert'!M$7","v":0},null,{"$f":"AC113*'Other input expert'!B$13*'Sales price per sales channel'!$H113*'Other input expert'!B$7","v":0},{"$f":"AD113*'Other input expert'!C$13*'Sales price per sales channel'!$H113*'Other input expert'!C$7","v":0},{"$f":"AE113*'Other input expert'!D$13*'Sales price per sales channel'!$H113*'Other input expert'!D$7","v":0},{"$f":"AF113*'Other input expert'!E$13*'Sales price per sales channel'!$H113*'Other input expert'!E$7","v":0},{"$f":"AG113*'Other input expert'!F$13*'Sales price per sales channel'!$H113*'Other input expert'!F$7","v":0},{"$f":"AH113*'Other input expert'!G$13*'Sales price per sales channel'!$H113*'Other input expert'!G$7","v":0},{"$f":"AI113*'Other input expert'!H$13*'Sales price per sales channel'!$H113*'Other input expert'!H$7","v":0},{"$f":"AJ113*'Other input expert'!I$13*'Sales price per sales channel'!$H113*'Other input expert'!I$7","v":0},{"$f":"AK113*'Other input expert'!J$13*'Sales price per sales channel'!$H113*'Other input expert'!J$7","v":0},{"$f":"AL113*'Other input expert'!K$13*'Sales price per sales channel'!$H113*'Other input expert'!K$7","v":0},{"$f":"AM113*'Other input expert'!L$13*'Sales price per sales channel'!$H113*'Other input expert'!L$7","v":0},{"$f":"AN113*'Other input expert'!M$13*'Sales price per sales channel'!$H113*'Other input expert'!M$7","v":0},null,{"$f":"AC113*'Other input expert'!B$14*'Sales price per sales channel'!$I113*'Other input expert'!B$7","v":0},{"$f":"AD113*'Other input expert'!C$14*'Sales price per sales channel'!$I113*'Other input expert'!C$7","v":0},{"$f":"AE113*'Other input expert'!D$14*'Sales price per sales channel'!$I113*'Other input expert'!D$7","v":0},{"$f":"AF113*'Other input expert'!E$14*'Sales price per sales channel'!$I113*'Other input expert'!E$7","v":0},{"$f":"AG113*'Other input expert'!F$14*'Sales price per sales channel'!$I113*'Other input expert'!F$7","v":0},{"$f":"AH113*'Other input expert'!G$14*'Sales price per sales channel'!$I113*'Other input expert'!G$7","v":0},{"$f":"AI113*'Other input expert'!H$14*'Sales price per sales channel'!$I113*'Other input expert'!H$7","v":0},{"$f":"AJ113*'Other input expert'!I$14*'Sales price per sales channel'!$I113*'Other input expert'!I$7","v":0},{"$f":"AK113*'Other input expert'!J$14*'Sales price per sales channel'!$I113*'Other input expert'!J$7","v":0},{"$f":"AL113*'Other input expert'!K$14*'Sales price per sales channel'!$I113*'Other input expert'!K$7","v":0},{"$f":"AM113*'Other input expert'!L$14*'Sales price per sales channel'!$I113*'Other input expert'!L$7","v":0},{"$f":"AN113*'Other input expert'!M$14*'Sales price per sales channel'!$I113*'Other input expert'!M$7","v":0}]
["Myrica gale","Bog myrtle",{"$f":"Plantlist!$G114*'Production list'!D115*'Other input expert'!B$4*'Other input expert'!B$8","v":0},{"$f":"Plantlist!$G114*'Production list'!E115*'Other input expert'!C$4*'Other input expert'!C$8","v":0},{"$f":"Plantlist!$G114*'Production list'!F115*'Other input expert'!D$4*'Other input expert'!D$8","v":0},{"$f":"Plantlist!$G114*'Production list'!G115*'Other input expert'!E$4*'Other input expert'!E$8","v":0},{"$f":"Plantlist!$G114*'Production list'!H115*'Other input expert'!F$4*'Other input expert'!F$8","v":0},{"$f":"Plantlist!$G114*'Production list'!I115*'Other input expert'!G$4*'Other input expert'!G$8","v":0},{"$f":"Plantlist!$G114*'Production list'!J115*'Other input expert'!H$4*'Other input expert'!H$8","v":0},{"$f":"Plantlist!$G114*'Production list'!K115*'Other input expert'!I$4*'Other input expert'!I$8","v":0},{"$f":"Plantlist!$G114*'Production list'!L115*'Other input expert'!J$4*'Other input expert'!J$8","v":0},{"$f":"Plantlist!$G114*'Production list'!M115*'Other input expert'!K$4*'Other input expert'!K$8","v":0},{"$f":"Plantlist!$G114*'Production list'!N115*'Other input expert'!L$4*'Other input expert'!L$8","v":0},{"$f":"Plantlist!$G114*'Production list'!O115*'Other input expert'!M$4*'Other input expert'!M$8","v":0},null,{"$f":"C114*'Other input expert'!B$5","v":0},{"$f":"D114*'Other input expert'!C$5","v":0},{"$f":"E114*'Other input expert'!D$5","v":0},{"$f":"F114*'Other input expert'!E$5","v":0},{"$f":"G114*'Other input expert'!F$5","v":0},{"$f":"H114*'Other input expert'!G$5","v":0},{"$f":"I114*'Other input expert'!H$5","v":0},{"$f":"J114*'Other input expert'!I$5","v":0},{"$f":"K114*'Other input expert'!J$5","v":0},{"$f":"L114*'Other input expert'!K$5","v":0},{"$f":"M114*'Other input expert'!L$5","v":0},{"$f":"N114*'Other input expert'!M$5","v":0},null,{"$f":"C114*(100%-'Other input expert'!B$5)","v":0},{"$f":"D114*(100%-'Other input expert'!C$5)","v":0},{"$f":"E114*(100%-'Other input expert'!D$5)","v":0},{"$f":"F114*(100%-'Other input expert'!E$5)","v":0},{"$f":"G114*(100%-'Other input expert'!F$5)","v":0},{"$f":"H114*(100%-'Other input expert'!G$5)","v":0},{"$f":"I114*(100%-'Other input expert'!H$5)","v":0},{"$f":"J114*(100%-'Other input expert'!I$5)","v":0},{"$f":"K114*(100%-'Other input expert'!J$5)","v":0},{"$f":"L114*(100%-'Other input expert'!K$5)","v":0},{"$f":"M114*(100%-'Other input expert'!L$5)","v":0},{"$f":"N114*(100%-'Other input expert'!M$5)","v":0},null,{"$f":"P114*'Other input expert'!B$12*'Sales price per sales channel'!$G114*'Other input expert'!B$6","v":0},{"$f":"Q114*'Other input expert'!C$12*'Sales price per sales channel'!$G114*'Other input expert'!C$6","v":0},{"$f":"R114*'Other input expert'!D$12*'Sales price per sales channel'!$G114*'Other input expert'!D$6","v":0},{"$f":"S114*'Other input expert'!E$12*'Sales price per sales channel'!$G114*'Other input expert'!E$6","v":0},{"$f":"T114*'Other input expert'!F$12*'Sales price per sales channel'!$G114*'Other input expert'!F$6","v":0},{"$f":"U114*'Other input expert'!G$12*'Sales price per sales channel'!$G114*'Other input expert'!G$6","v":0},{"$f":"V114*'Other input expert'!H$12*'Sales price per sales channel'!$G114*'Other input expert'!H$6","v":0},{"$f":"W114*'Other input expert'!I$12*'Sales price per sales channel'!$G114*'Other input expert'!I$6","v":0},{"$f":"X114*'Other input expert'!J$12*'Sales price per sales channel'!$G114*'Other input expert'!J$6","v":0},{"$f":"Y114*'Other input expert'!K$12*'Sales price per sales channel'!$G114*'Other input expert'!K$6","v":0},{"$f":"Z114*'Other input expert'!L$12*'Sales price per sales channel'!$G114*'Other input expert'!L$6","v":0},{"$f":"AA114*'Other input expert'!M$12*'Sales price per sales channel'!$G114*'Other input expert'!M$6","v":0},null,{"$f":"P114*'Other input expert'!B$13*'Sales price per sales channel'!$H114*'Other input expert'!B$6","v":0},{"$f":"Q114*'Other input expert'!C$13*'Sales price per sales channel'!$H114*'Other input expert'!C$6","v":0},{"$f":"R114*'Other input expert'!D$13*'Sales price per sales channel'!$H114*'Other input expert'!D$6","v":0},{"$f":"S114*'Other input expert'!E$13*'Sales price per sales channel'!$H114*'Other input expert'!E$6","v":0},{"$f":"T114*'Other input expert'!F$13*'Sales price per sales channel'!$H114*'Other input expert'!F$6","v":0},{"$f":"U114*'Other input expert'!G$13*'Sales price per sales channel'!$H114*'Other input expert'!G$6","v":0},{"$f":"V114*'Other input expert'!H$13*'Sales price per sales channel'!$H114*'Other input expert'!H$6","v":0},{"$f":"W114*'Other input expert'!I$13*'Sales price per sales channel'!$H114*'Other input expert'!I$6","v":0},{"$f":"X114*'Other input expert'!J$13*'Sales price per sales channel'!$H114*'Other input expert'!J$6","v":0},{"$f":"Y114*'Other input expert'!K$13*'Sales price per sales channel'!$H114*'Other input expert'!K$6","v":0},{"$f":"Z114*'Other input expert'!L$13*'Sales price per sales channel'!$H114*'Other input expert'!L$6","v":0},{"$f":"AA114*'Other input expert'!M$13*'Sales price per sales channel'!$H114*'Other input expert'!M$6","v":0},null,{"$f":"P114*'Other input expert'!B$14*'Sales price per sales channel'!$I114*'Other input expert'!B$6","v":0},{"$f":"Q114*'Other input expert'!C$14*'Sales price per sales channel'!$I114*'Other input expert'!C$6","v":0},{"$f":"R114*'Other input expert'!D$14*'Sales price per sales channel'!$I114*'Other input expert'!D$6","v":0},{"$f":"S114*'Other input expert'!E$14*'Sales price per sales channel'!$I114*'Other input expert'!E$6","v":0},{"$f":"T114*'Other input expert'!F$14*'Sales price per sales channel'!$I114*'Other input expert'!F$6","v":0},{"$f":"U114*'Other input expert'!G$14*'Sales price per sales channel'!$I114*'Other input expert'!G$6","v":0},{"$f":"V114*'Other input expert'!H$14*'Sales price per sales channel'!$I114*'Other input expert'!H$6","v":0},{"$f":"W114*'Other input expert'!I$14*'Sales price per sales channel'!$I114*'Other input expert'!I$6","v":0},{"$f":"X114*'Other input expert'!J$14*'Sales price per sales channel'!$I114*'Other input expert'!J$6","v":0},{"$f":"Y114*'Other input expert'!K$14*'Sales price per sales channel'!$I114*'Other input expert'!K$6","v":0},{"$f":"Z114*'Other input expert'!L$14*'Sales price per sales channel'!$I114*'Other input expert'!L$6","v":0},{"$f":"AA114*'Other input expert'!M$14*'Sales price per sales channel'!$I114*'Other input expert'!M$6","v":0},null,{"$f":"AC114*'Other input expert'!B$12*'Sales price per sales channel'!$G114*'Other input expert'!B$7","v":0},{"$f":"AD114*'Other input expert'!C$12*'Sales price per sales channel'!$G114*'Other input expert'!C$7","v":0},{"$f":"AE114*'Other input expert'!D$12*'Sales price per sales channel'!$G114*'Other input expert'!D$7","v":0},{"$f":"AF114*'Other input expert'!E$12*'Sales price per sales channel'!$G114*'Other input expert'!E$7","v":0},{"$f":"AG114*'Other input expert'!F$12*'Sales price per sales channel'!$G114*'Other input expert'!F$7","v":0},{"$f":"AH114*'Other input expert'!G$12*'Sales price per sales channel'!$G114*'Other input expert'!G$7","v":0},{"$f":"AI114*'Other input expert'!H$12*'Sales price per sales channel'!$G114*'Other input expert'!H$7","v":0},{"$f":"AJ114*'Other input expert'!I$12*'Sales price per sales channel'!$G114*'Other input expert'!I$7","v":0},{"$f":"AK114*'Other input expert'!J$12*'Sales price per sales channel'!$G114*'Other input expert'!J$7","v":0},{"$f":"AL114*'Other input expert'!K$12*'Sales price per sales channel'!$G114*'Other input expert'!K$7","v":0},{"$f":"AM114*'Other input expert'!L$12*'Sales price per sales channel'!$G114*'Other input expert'!L$7","v":0},{"$f":"AN114*'Other input expert'!M$12*'Sales price per sales channel'!$G114*'Other input expert'!M$7","v":0},null,{"$f":"AC114*'Other input expert'!B$13*'Sales price per sales channel'!$H114*'Other input expert'!B$7","v":0},{"$f":"AD114*'Other input expert'!C$13*'Sales price per sales channel'!$H114*'Other input expert'!C$7","v":0},{"$f":"AE114*'Other input expert'!D$13*'Sales price per sales channel'!$H114*'Other input expert'!D$7","v":0},{"$f":"AF114*'Other input expert'!E$13*'Sales price per sales channel'!$H114*'Other input expert'!E$7","v":0},{"$f":"AG114*'Other input expert'!F$13*'Sales price per sales channel'!$H114*'Other input expert'!F$7","v":0},{"$f":"AH114*'Other input expert'!G$13*'Sales price per sales channel'!$H114*'Other input expert'!G$7","v":0},{"$f":"AI114*'Other input expert'!H$13*'Sales price per sales channel'!$H114*'Other input expert'!H$7","v":0},{"$f":"AJ114*'Other input expert'!I$13*'Sales price per sales channel'!$H114*'Other input expert'!I$7","v":0},{"$f":"AK114*'Other input expert'!J$13*'Sales price per sales channel'!$H114*'Other input expert'!J$7","v":0},{"$f":"AL114*'Other input expert'!K$13*'Sales price per sales channel'!$H114*'Other input expert'!K$7","v":0},{"$f":"AM114*'Other input expert'!L$13*'Sales price per sales channel'!$H114*'Other input expert'!L$7","v":0},{"$f":"AN114*'Other input expert'!M$13*'Sales price per sales channel'!$H114*'Other input expert'!M$7","v":0},null,{"$f":"AC114*'Other input expert'!B$14*'Sales price per sales channel'!$I114*'Other input expert'!B$7","v":0},{"$f":"AD114*'Other input expert'!C$14*'Sales price per sales channel'!$I114*'Other input expert'!C$7","v":0},{"$f":"AE114*'Other input expert'!D$14*'Sales price per sales channel'!$I114*'Other input expert'!D$7","v":0},{"$f":"AF114*'Other input expert'!E$14*'Sales price per sales channel'!$I114*'Other input expert'!E$7","v":0},{"$f":"AG114*'Other input expert'!F$14*'Sales price per sales channel'!$I114*'Other input expert'!F$7","v":0},{"$f":"AH114*'Other input expert'!G$14*'Sales price per sales channel'!$I114*'Other input expert'!G$7","v":0},{"$f":"AI114*'Other input expert'!H$14*'Sales price per sales channel'!$I114*'Other input expert'!H$7","v":0},{"$f":"AJ114*'Other input expert'!I$14*'Sales price per sales channel'!$I114*'Other input expert'!I$7","v":0},{"$f":"AK114*'Other input expert'!J$14*'Sales price per sales channel'!$I114*'Other input expert'!J$7","v":0},{"$f":"AL114*'Other input expert'!K$14*'Sales price per sales channel'!$I114*'Other input expert'!K$7","v":0},{"$f":"AM114*'Other input expert'!L$14*'Sales price per sales channel'!$I114*'Other input expert'!L$7","v":0},{"$f":"AN114*'Other input expert'!M$14*'Sales price per sales channel'!$I114*'Other input expert'!M$7","v":0}]
["Myrica pensylvanica","myrtle",{"$f":"Plantlist!$G115*'Production list'!D116*'Other input expert'!B$4*'Other input expert'!B$8","v":0},{"$f":"Plantlist!$G115*'Production list'!E116*'Other input expert'!C$4*'Other input expert'!C$8","v":0},{"$f":"Plantlist!$G115*'Production list'!F116*'Other input expert'!D$4*'Other input expert'!D$8","v":0},{"$f":"Plantlist!$G115*'Production list'!G116*'Other input expert'!E$4*'Other input expert'!E$8","v":0},{"$f":"Plantlist!$G115*'Production list'!H116*'Other input expert'!F$4*'Other input expert'!F$8","v":0},{"$f":"Plantlist!$G115*'Production list'!I116*'Other input expert'!G$4*'Other input expert'!G$8","v":0},{"$f":"Plantlist!$G115*'Production list'!J116*'Other input expert'!H$4*'Other input expert'!H$8","v":0},{"$f":"Plantlist!$G115*'Production list'!K116*'Other input expert'!I$4*'Other input expert'!I$8","v":0},{"$f":"Plantlist!$G115*'Production list'!L116*'Other input expert'!J$4*'Other input expert'!J$8","v":0},{"$f":"Plantlist!$G115*'Production list'!M116*'Other input expert'!K$4*'Other input expert'!K$8","v":0},{"$f":"Plantlist!$G115*'Production list'!N116*'Other input expert'!L$4*'Other input expert'!L$8","v":0},{"$f":"Plantlist!$G115*'Production list'!O116*'Other input expert'!M$4*'Other input expert'!M$8","v":0},null,{"$f":"C115*'Other input expert'!B$5","v":0},{"$f":"D115*'Other input expert'!C$5","v":0},{"$f":"E115*'Other input expert'!D$5","v":0},{"$f":"F115*'Other input expert'!E$5","v":0},{"$f":"G115*'Other input expert'!F$5","v":0},{"$f":"H115*'Other input expert'!G$5","v":0},{"$f":"I115*'Other input expert'!H$5","v":0},{"$f":"J115*'Other input expert'!I$5","v":0},{"$f":"K115*'Other input expert'!J$5","v":0},{"$f":"L115*'Other input expert'!K$5","v":0},{"$f":"M115*'Other input expert'!L$5","v":0},{"$f":"N115*'Other input expert'!M$5","v":0},null,{"$f":"C115*(100%-'Other input expert'!B$5)","v":0},{"$f":"D115*(100%-'Other input expert'!C$5)","v":0},{"$f":"E115*(100%-'Other input expert'!D$5)","v":0},{"$f":"F115*(100%-'Other input expert'!E$5)","v":0},{"$f":"G115*(100%-'Other input expert'!F$5)","v":0},{"$f":"H115*(100%-'Other input expert'!G$5)","v":0},{"$f":"I115*(100%-'Other input expert'!H$5)","v":0},{"$f":"J115*(100%-'Other input expert'!I$5)","v":0},{"$f":"K115*(100%-'Other input expert'!J$5)","v":0},{"$f":"L115*(100%-'Other input expert'!K$5)","v":0},{"$f":"M115*(100%-'Other input expert'!L$5)","v":0},{"$f":"N115*(100%-'Other input expert'!M$5)","v":0},null,{"$f":"P115*'Other input expert'!B$12*'Sales price per sales channel'!$G115*'Other input expert'!B$6","v":0},{"$f":"Q115*'Other input expert'!C$12*'Sales price per sales channel'!$G115*'Other input expert'!C$6","v":0},{"$f":"R115*'Other input expert'!D$12*'Sales price per sales channel'!$G115*'Other input expert'!D$6","v":0},{"$f":"S115*'Other input expert'!E$12*'Sales price per sales channel'!$G115*'Other input expert'!E$6","v":0},{"$f":"T115*'Other input expert'!F$12*'Sales price per sales channel'!$G115*'Other input expert'!F$6","v":0},{"$f":"U115*'Other input expert'!G$12*'Sales price per sales channel'!$G115*'Other input expert'!G$6","v":0},{"$f":"V115*'Other input expert'!H$12*'Sales price per sales channel'!$G115*'Other input expert'!H$6","v":0},{"$f":"W115*'Other input expert'!I$12*'Sales price per sales channel'!$G115*'Other input expert'!I$6","v":0},{"$f":"X115*'Other input expert'!J$12*'Sales price per sales channel'!$G115*'Other input expert'!J$6","v":0},{"$f":"Y115*'Other input expert'!K$12*'Sales price per sales channel'!$G115*'Other input expert'!K$6","v":0},{"$f":"Z115*'Other input expert'!L$12*'Sales price per sales channel'!$G115*'Other input expert'!L$6","v":0},{"$f":"AA115*'Other input expert'!M$12*'Sales price per sales channel'!$G115*'Other input expert'!M$6","v":0},null,{"$f":"P115*'Other input expert'!B$13*'Sales price per sales channel'!$H115*'Other input expert'!B$6","v":0},{"$f":"Q115*'Other input expert'!C$13*'Sales price per sales channel'!$H115*'Other input expert'!C$6","v":0},{"$f":"R115*'Other input expert'!D$13*'Sales price per sales channel'!$H115*'Other input expert'!D$6","v":0},{"$f":"S115*'Other input expert'!E$13*'Sales price per sales channel'!$H115*'Other input expert'!E$6","v":0},{"$f":"T115*'Other input expert'!F$13*'Sales price per sales channel'!$H115*'Other input expert'!F$6","v":0},{"$f":"U115*'Other input expert'!G$13*'Sales price per sales channel'!$H115*'Other input expert'!G$6","v":0},{"$f":"V115*'Other input expert'!H$13*'Sales price per sales channel'!$H115*'Other input expert'!H$6","v":0},{"$f":"W115*'Other input expert'!I$13*'Sales price per sales channel'!$H115*'Other input expert'!I$6","v":0},{"$f":"X115*'Other input expert'!J$13*'Sales price per sales channel'!$H115*'Other input expert'!J$6","v":0},{"$f":"Y115*'Other input expert'!K$13*'Sales price per sales channel'!$H115*'Other input expert'!K$6","v":0},{"$f":"Z115*'Other input expert'!L$13*'Sales price per sales channel'!$H115*'Other input expert'!L$6","v":0},{"$f":"AA115*'Other input expert'!M$13*'Sales price per sales channel'!$H115*'Other input expert'!M$6","v":0},null,{"$f":"P115*'Other input expert'!B$14*'Sales price per sales channel'!$I115*'Other input expert'!B$6","v":0},{"$f":"Q115*'Other input expert'!C$14*'Sales price per sales channel'!$I115*'Other input expert'!C$6","v":0},{"$f":"R115*'Other input expert'!D$14*'Sales price per sales channel'!$I115*'Other input expert'!D$6","v":0},{"$f":"S115*'Other input expert'!E$14*'Sales price per sales channel'!$I115*'Other input expert'!E$6","v":0},{"$f":"T115*'Other input expert'!F$14*'Sales price per sales channel'!$I115*'Other input expert'!F$6","v":0},{"$f":"U115*'Other input expert'!G$14*'Sales price per sales channel'!$I115*'Other input expert'!G$6","v":0},{"$f":"V115*'Other input expert'!H$14*'Sales price per sales channel'!$I115*'Other input expert'!H$6","v":0},{"$f":"W115*'Other input expert'!I$14*'Sales price per sales channel'!$I115*'Other input expert'!I$6","v":0},{"$f":"X115*'Other input expert'!J$14*'Sales price per sales channel'!$I115*'Other input expert'!J$6","v":0},{"$f":"Y115*'Other input expert'!K$14*'Sales price per sales channel'!$I115*'Other input expert'!K$6","v":0},{"$f":"Z115*'Other input expert'!L$14*'Sales price per sales channel'!$I115*'Other input expert'!L$6","v":0},{"$f":"AA115*'Other input expert'!M$14*'Sales price per sales channel'!$I115*'Other input expert'!M$6","v":0},null,{"$f":"AC115*'Other input expert'!B$12*'Sales price per sales channel'!$G115*'Other input expert'!B$7","v":0},{"$f":"AD115*'Other input expert'!C$12*'Sales price per sales channel'!$G115*'Other input expert'!C$7","v":0},{"$f":"AE115*'Other input expert'!D$12*'Sales price per sales channel'!$G115*'Other input expert'!D$7","v":0},{"$f":"AF115*'Other input expert'!E$12*'Sales price per sales channel'!$G115*'Other input expert'!E$7","v":0},{"$f":"AG115*'Other input expert'!F$12*'Sales price per sales channel'!$G115*'Other input expert'!F$7","v":0},{"$f":"AH115*'Other input expert'!G$12*'Sales price per sales channel'!$G115*'Other input expert'!G$7","v":0},{"$f":"AI115*'Other input expert'!H$12*'Sales price per sales channel'!$G115*'Other input expert'!H$7","v":0},{"$f":"AJ115*'Other input expert'!I$12*'Sales price per sales channel'!$G115*'Other input expert'!I$7","v":0},{"$f":"AK115*'Other input expert'!J$12*'Sales price per sales channel'!$G115*'Other input expert'!J$7","v":0},{"$f":"AL115*'Other input expert'!K$12*'Sales price per sales channel'!$G115*'Other input expert'!K$7","v":0},{"$f":"AM115*'Other input expert'!L$12*'Sales price per sales channel'!$G115*'Other input expert'!L$7","v":0},{"$f":"AN115*'Other input expert'!M$12*'Sales price per sales channel'!$G115*'Other input expert'!M$7","v":0},null,{"$f":"AC115*'Other input expert'!B$13*'Sales price per sales channel'!$H115*'Other input expert'!B$7","v":0},{"$f":"AD115*'Other input expert'!C$13*'Sales price per sales channel'!$H115*'Other input expert'!C$7","v":0},{"$f":"AE115*'Other input expert'!D$13*'Sales price per sales channel'!$H115*'Other input expert'!D$7","v":0},{"$f":"AF115*'Other input expert'!E$13*'Sales price per sales channel'!$H115*'Other input expert'!E$7","v":0},{"$f":"AG115*'Other input expert'!F$13*'Sales price per sales channel'!$H115*'Other input expert'!F$7","v":0},{"$f":"AH115*'Other input expert'!G$13*'Sales price per sales channel'!$H115*'Other input expert'!G$7","v":0},{"$f":"AI115*'Other input expert'!H$13*'Sales price per sales channel'!$H115*'Other input expert'!H$7","v":0},{"$f":"AJ115*'Other input expert'!I$13*'Sales price per sales channel'!$H115*'Other input expert'!I$7","v":0},{"$f":"AK115*'Other input expert'!J$13*'Sales price per sales channel'!$H115*'Other input expert'!J$7","v":0},{"$f":"AL115*'Other input expert'!K$13*'Sales price per sales channel'!$H115*'Other input expert'!K$7","v":0},{"$f":"AM115*'Other input expert'!L$13*'Sales price per sales channel'!$H115*'Other input expert'!L$7","v":0},{"$f":"AN115*'Other input expert'!M$13*'Sales price per sales channel'!$H115*'Other input expert'!M$7","v":0},null,{"$f":"AC115*'Other input expert'!B$14*'Sales price per sales channel'!$I115*'Other input expert'!B$7","v":0},{"$f":"AD115*'Other input expert'!C$14*'Sales price per sales channel'!$I115*'Other input expert'!C$7","v":0},{"$f":"AE115*'Other input expert'!D$14*'Sales price per sales channel'!$I115*'Other input expert'!D$7","v":0},{"$f":"AF115*'Other input expert'!E$14*'Sales price per sales channel'!$I115*'Other input expert'!E$7","v":0},{"$f":"AG115*'Other input expert'!F$14*'Sales price per sales channel'!$I115*'Other input expert'!F$7","v":0},{"$f":"AH115*'Other input expert'!G$14*'Sales price per sales channel'!$I115*'Other input expert'!G$7","v":0},{"$f":"AI115*'Other input expert'!H$14*'Sales price per sales channel'!$I115*'Other input expert'!H$7","v":0},{"$f":"AJ115*'Other input expert'!I$14*'Sales price per sales channel'!$I115*'Other input expert'!I$7","v":0},{"$f":"AK115*'Other input expert'!J$14*'Sales price per sales channel'!$I115*'Other input expert'!J$7","v":0},{"$f":"AL115*'Other input expert'!K$14*'Sales price per sales channel'!$I115*'Other input expert'!K$7","v":0},{"$f":"AM115*'Other input expert'!L$14*'Sales price per sales channel'!$I115*'Other input expert'!L$7","v":0},{"$f":"AN115*'Other input expert'!M$14*'Sales price per sales channel'!$I115*'Other input expert'!M$7","v":0}]
["Nepeta nervosa","Catmint",{"$f":"Plantlist!$G116*'Production list'!D117*'Other input expert'!B$4*'Other input expert'!B$8","v":0},{"$f":"Plantlist!$G116*'Production list'!E117*'Other input expert'!C$4*'Other input expert'!C$8","v":0},{"$f":"Plantlist!$G116*'Production list'!F117*'Other input expert'!D$4*'Other input expert'!D$8","v":0},{"$f":"Plantlist!$G116*'Production list'!G117*'Other input expert'!E$4*'Other input expert'!E$8","v":0},{"$f":"Plantlist!$G116*'Production list'!H117*'Other input expert'!F$4*'Other input expert'!F$8","v":0},{"$f":"Plantlist!$G116*'Production list'!I117*'Other input expert'!G$4*'Other input expert'!G$8","v":0},{"$f":"Plantlist!$G116*'Production list'!J117*'Other input expert'!H$4*'Other input expert'!H$8","v":0},{"$f":"Plantlist!$G116*'Production list'!K117*'Other input expert'!I$4*'Other input expert'!I$8","v":0},{"$f":"Plantlist!$G116*'Production list'!L117*'Other input expert'!J$4*'Other input expert'!J$8","v":0},{"$f":"Plantlist!$G116*'Production list'!M117*'Other input expert'!K$4*'Other input expert'!K$8","v":0},{"$f":"Plantlist!$G116*'Production list'!N117*'Other input expert'!L$4*'Other input expert'!L$8","v":0},{"$f":"Plantlist!$G116*'Production list'!O117*'Other input expert'!M$4*'Other input expert'!M$8","v":0},null,{"$f":"C116*'Other input expert'!B$5","v":0},{"$f":"D116*'Other input expert'!C$5","v":0},{"$f":"E116*'Other input expert'!D$5","v":0},{"$f":"F116*'Other input expert'!E$5","v":0},{"$f":"G116*'Other input expert'!F$5","v":0},{"$f":"H116*'Other input expert'!G$5","v":0},{"$f":"I116*'Other input expert'!H$5","v":0},{"$f":"J116*'Other input expert'!I$5","v":0},{"$f":"K116*'Other input expert'!J$5","v":0},{"$f":"L116*'Other input expert'!K$5","v":0},{"$f":"M116*'Other input expert'!L$5","v":0},{"$f":"N116*'Other input expert'!M$5","v":0},null,{"$f":"C116*(100%-'Other input expert'!B$5)","v":0},{"$f":"D116*(100%-'Other input expert'!C$5)","v":0},{"$f":"E116*(100%-'Other input expert'!D$5)","v":0},{"$f":"F116*(100%-'Other input expert'!E$5)","v":0},{"$f":"G116*(100%-'Other input expert'!F$5)","v":0},{"$f":"H116*(100%-'Other input expert'!G$5)","v":0},{"$f":"I116*(100%-'Other input expert'!H$5)","v":0},{"$f":"J116*(100%-'Other input expert'!I$5)","v":0},{"$f":"K116*(100%-'Other input expert'!J$5)","v":0},{"$f":"L116*(100%-'Other input expert'!K$5)","v":0},{"$f":"M116*(100%-'Other input expert'!L$5)","v":0},{"$f":"N116*(100%-'Other input expert'!M$5)","v":0},null,{"$f":"P116*'Other input expert'!B$12*'Sales price per sales channel'!$G116*'Other input expert'!B$6","v":0},{"$f":"Q116*'Other input expert'!C$12*'Sales price per sales channel'!$G116*'Other input expert'!C$6","v":0},{"$f":"R116*'Other input expert'!D$12*'Sales price per sales channel'!$G116*'Other input expert'!D$6","v":0},{"$f":"S116*'Other input expert'!E$12*'Sales price per sales channel'!$G116*'Other input expert'!E$6","v":0},{"$f":"T116*'Other input expert'!F$12*'Sales price per sales channel'!$G116*'Other input expert'!F$6","v":0},{"$f":"U116*'Other input expert'!G$12*'Sales price per sales channel'!$G116*'Other input expert'!G$6","v":0},{"$f":"V116*'Other input expert'!H$12*'Sales price per sales channel'!$G116*'Other input expert'!H$6","v":0},{"$f":"W116*'Other input expert'!I$12*'Sales price per sales channel'!$G116*'Other input expert'!I$6","v":0},{"$f":"X116*'Other input expert'!J$12*'Sales price per sales channel'!$G116*'Other input expert'!J$6","v":0},{"$f":"Y116*'Other input expert'!K$12*'Sales price per sales channel'!$G116*'Other input expert'!K$6","v":0},{"$f":"Z116*'Other input expert'!L$12*'Sales price per sales channel'!$G116*'Other input expert'!L$6","v":0},{"$f":"AA116*'Other input expert'!M$12*'Sales price per sales channel'!$G116*'Other input expert'!M$6","v":0},null,{"$f":"P116*'Other input expert'!B$13*'Sales price per sales channel'!$H116*'Other input expert'!B$6","v":0},{"$f":"Q116*'Other input expert'!C$13*'Sales price per sales channel'!$H116*'Other input expert'!C$6","v":0},{"$f":"R116*'Other input expert'!D$13*'Sales price per sales channel'!$H116*'Other input expert'!D$6","v":0},{"$f":"S116*'Other input expert'!E$13*'Sales price per sales channel'!$H116*'Other input expert'!E$6","v":0},{"$f":"T116*'Other input expert'!F$13*'Sales price per sales channel'!$H116*'Other input expert'!F$6","v":0},{"$f":"U116*'Other input expert'!G$13*'Sales price per sales channel'!$H116*'Other input expert'!G$6","v":0},{"$f":"V116*'Other input expert'!H$13*'Sales price per sales channel'!$H116*'Other input expert'!H$6","v":0},{"$f":"W116*'Other input expert'!I$13*'Sales price per sales channel'!$H116*'Other input expert'!I$6","v":0},{"$f":"X116*'Other input expert'!J$13*'Sales price per sales channel'!$H116*'Other input expert'!J$6","v":0},{"$f":"Y116*'Other input expert'!K$13*'Sales price per sales channel'!$H116*'Other input expert'!K$6","v":0},{"$f":"Z116*'Other input expert'!L$13*'Sales price per sales channel'!$H116*'Other input expert'!L$6","v":0},{"$f":"AA116*'Other input expert'!M$13*'Sales price per sales channel'!$H116*'Other input expert'!M$6","v":0},null,{"$f":"P116*'Other input expert'!B$14*'Sales price per sales channel'!$I116*'Other input expert'!B$6","v":0},{"$f":"Q116*'Other input expert'!C$14*'Sales price per sales channel'!$I116*'Other input expert'!C$6","v":0},{"$f":"R116*'Other input expert'!D$14*'Sales price per sales channel'!$I116*'Other input expert'!D$6","v":0},{"$f":"S116*'Other input expert'!E$14*'Sales price per sales channel'!$I116*'Other input expert'!E$6","v":0},{"$f":"T116*'Other input expert'!F$14*'Sales price per sales channel'!$I116*'Other input expert'!F$6","v":0},{"$f":"U116*'Other input expert'!G$14*'Sales price per sales channel'!$I116*'Other input expert'!G$6","v":0},{"$f":"V116*'Other input expert'!H$14*'Sales price per sales channel'!$I116*'Other input expert'!H$6","v":0},{"$f":"W116*'Other input expert'!I$14*'Sales price per sales channel'!$I116*'Other input expert'!I$6","v":0},{"$f":"X116*'Other input expert'!J$14*'Sales price per sales channel'!$I116*'Other input expert'!J$6","v":0},{"$f":"Y116*'Other input expert'!K$14*'Sales price per sales channel'!$I116*'Other input expert'!K$6","v":0},{"$f":"Z116*'Other input expert'!L$14*'Sales price per sales channel'!$I116*'Other input expert'!L$6","v":0},{"$f":"AA116*'Other input expert'!M$14*'Sales price per sales channel'!$I116*'Other input expert'!M$6","v":0},null,{"$f":"AC116*'Other input expert'!B$12*'Sales price per sales channel'!$G116*'Other input expert'!B$7","v":0},{"$f":"AD116*'Other input expert'!C$12*'Sales price per sales channel'!$G116*'Other input expert'!C$7","v":0},{"$f":"AE116*'Other input expert'!D$12*'Sales price per sales channel'!$G116*'Other input expert'!D$7","v":0},{"$f":"AF116*'Other input expert'!E$12*'Sales price per sales channel'!$G116*'Other input expert'!E$7","v":0},{"$f":"AG116*'Other input expert'!F$12*'Sales price per sales channel'!$G116*'Other input expert'!F$7","v":0},{"$f":"AH116*'Other input expert'!G$12*'Sales price per sales channel'!$G116*'Other input expert'!G$7","v":0},{"$f":"AI116*'Other input expert'!H$12*'Sales price per sales channel'!$G116*'Other input expert'!H$7","v":0},{"$f":"AJ116*'Other input expert'!I$12*'Sales price per sales channel'!$G116*'Other input expert'!I$7","v":0},{"$f":"AK116*'Other input expert'!J$12*'Sales price per sales channel'!$G116*'Other input expert'!J$7","v":0},{"$f":"AL116*'Other input expert'!K$12*'Sales price per sales channel'!$G116*'Other input expert'!K$7","v":0},{"$f":"AM116*'Other input expert'!L$12*'Sales price per sales channel'!$G116*'Other input expert'!L$7","v":0},{"$f":"AN116*'Other input expert'!M$12*'Sales price per sales channel'!$G116*'Other input expert'!M$7","v":0},null,{"$f":"AC116*'Other input expert'!B$13*'Sales price per sales channel'!$H116*'Other input expert'!B$7","v":0},{"$f":"AD116*'Other input expert'!C$13*'Sales price per sales channel'!$H116*'Other input expert'!C$7","v":0},{"$f":"AE116*'Other input expert'!D$13*'Sales price per sales channel'!$H116*'Other input expert'!D$7","v":0},{"$f":"AF116*'Other input expert'!E$13*'Sales price per sales channel'!$H116*'Other input expert'!E$7","v":0},{"$f":"AG116*'Other input expert'!F$13*'Sales price per sales channel'!$H116*'Other input expert'!F$7","v":0},{"$f":"AH116*'Other input expert'!G$13*'Sales price per sales channel'!$H116*'Other input expert'!G$7","v":0},{"$f":"AI116*'Other input expert'!H$13*'Sales price per sales channel'!$H116*'Other input expert'!H$7","v":0},{"$f":"AJ116*'Other input expert'!I$13*'Sales price per sales channel'!$H116*'Other input expert'!I$7","v":0},{"$f":"AK116*'Other input expert'!J$13*'Sales price per sales channel'!$H116*'Other input expert'!J$7","v":0},{"$f":"AL116*'Other input expert'!K$13*'Sales price per sales channel'!$H116*'Other input expert'!K$7","v":0},{"$f":"AM116*'Other input expert'!L$13*'Sales price per sales channel'!$H116*'Other input expert'!L$7","v":0},{"$f":"AN116*'Other input expert'!M$13*'Sales price per sales channel'!$H116*'Other input expert'!M$7","v":0},null,{"$f":"AC116*'Other input expert'!B$14*'Sales price per sales channel'!$I116*'Other input expert'!B$7","v":0},{"$f":"AD116*'Other input expert'!C$14*'Sales price per sales channel'!$I116*'Other input expert'!C$7","v":0},{"$f":"AE116*'Other input expert'!D$14*'Sales price per sales channel'!$I116*'Other input expert'!D$7","v":0},{"$f":"AF116*'Other input expert'!E$14*'Sales price per sales channel'!$I116*'Other input expert'!E$7","v":0},{"$f":"AG116*'Other input expert'!F$14*'Sales price per sales channel'!$I116*'Other input expert'!F$7","v":0},{"$f":"AH116*'Other input expert'!G$14*'Sales price per sales channel'!$I116*'Other input expert'!G$7","v":0},{"$f":"AI116*'Other input expert'!H$14*'Sales price per sales channel'!$I116*'Other input expert'!H$7","v":0},{"$f":"AJ116*'Other input expert'!I$14*'Sales price per sales channel'!$I116*'Other input expert'!I$7","v":0},{"$f":"AK116*'Other input expert'!J$14*'Sales price per sales channel'!$I116*'Other input expert'!J$7","v":0},{"$f":"AL116*'Other input expert'!K$14*'Sales price per sales channel'!$I116*'Other input expert'!K$7","v":0},{"$f":"AM116*'Other input expert'!L$14*'Sales price per sales channel'!$I116*'Other input expert'!L$7","v":0},{"$f":"AN116*'Other input expert'!M$14*'Sales price per sales channel'!$I116*'Other input expert'!M$7","v":0}]
["Nepeta x. faassenii","Catmint",{"$f":"Plantlist!$G117*'Production list'!D118*'Other input expert'!B$4*'Other input expert'!B$8","v":0},{"$f":"Plantlist!$G117*'Production list'!E118*'Other input expert'!C$4*'Other input expert'!C$8","v":0},{"$f":"Plantlist!$G117*'Production list'!F118*'Other input expert'!D$4*'Other input expert'!D$8","v":0},{"$f":"Plantlist!$G117*'Production list'!G118*'Other input expert'!E$4*'Other input expert'!E$8","v":0},{"$f":"Plantlist!$G117*'Production list'!H118*'Other input expert'!F$4*'Other input expert'!F$8","v":0},{"$f":"Plantlist!$G117*'Production list'!I118*'Other input expert'!G$4*'Other input expert'!G$8","v":0},{"$f":"Plantlist!$G117*'Production list'!J118*'Other input expert'!H$4*'Other input expert'!H$8","v":0},{"$f":"Plantlist!$G117*'Production list'!K118*'Other input expert'!I$4*'Other input expert'!I$8","v":0},{"$f":"Plantlist!$G117*'Production list'!L118*'Other input expert'!J$4*'Other input expert'!J$8","v":0},{"$f":"Plantlist!$G117*'Production list'!M118*'Other input expert'!K$4*'Other input expert'!K$8","v":0},{"$f":"Plantlist!$G117*'Production list'!N118*'Other input expert'!L$4*'Other input expert'!L$8","v":0},{"$f":"Plantlist!$G117*'Production list'!O118*'Other input expert'!M$4*'Other input expert'!M$8","v":0},null,{"$f":"C117*'Other input expert'!B$5","v":0},{"$f":"D117*'Other input expert'!C$5","v":0},{"$f":"E117*'Other input expert'!D$5","v":0},{"$f":"F117*'Other input expert'!E$5","v":0},{"$f":"G117*'Other input expert'!F$5","v":0},{"$f":"H117*'Other input expert'!G$5","v":0},{"$f":"I117*'Other input expert'!H$5","v":0},{"$f":"J117*'Other input expert'!I$5","v":0},{"$f":"K117*'Other input expert'!J$5","v":0},{"$f":"L117*'Other input expert'!K$5","v":0},{"$f":"M117*'Other input expert'!L$5","v":0},{"$f":"N117*'Other input expert'!M$5","v":0},null,{"$f":"C117*(100%-'Other input expert'!B$5)","v":0},{"$f":"D117*(100%-'Other input expert'!C$5)","v":0},{"$f":"E117*(100%-'Other input expert'!D$5)","v":0},{"$f":"F117*(100%-'Other input expert'!E$5)","v":0},{"$f":"G117*(100%-'Other input expert'!F$5)","v":0},{"$f":"H117*(100%-'Other input expert'!G$5)","v":0},{"$f":"I117*(100%-'Other input expert'!H$5)","v":0},{"$f":"J117*(100%-'Other input expert'!I$5)","v":0},{"$f":"K117*(100%-'Other input expert'!J$5)","v":0},{"$f":"L117*(100%-'Other input expert'!K$5)","v":0},{"$f":"M117*(100%-'Other input expert'!L$5)","v":0},{"$f":"N117*(100%-'Other input expert'!M$5)","v":0},null,{"$f":"P117*'Other input expert'!B$12*'Sales price per sales channel'!$G117*'Other input expert'!B$6","v":0},{"$f":"Q117*'Other input expert'!C$12*'Sales price per sales channel'!$G117*'Other input expert'!C$6","v":0},{"$f":"R117*'Other input expert'!D$12*'Sales price per sales channel'!$G117*'Other input expert'!D$6","v":0},{"$f":"S117*'Other input expert'!E$12*'Sales price per sales channel'!$G117*'Other input expert'!E$6","v":0},{"$f":"T117*'Other input expert'!F$12*'Sales price per sales channel'!$G117*'Other input expert'!F$6","v":0},{"$f":"U117*'Other input expert'!G$12*'Sales price per sales channel'!$G117*'Other input expert'!G$6","v":0},{"$f":"V117*'Other input expert'!H$12*'Sales price per sales channel'!$G117*'Other input expert'!H$6","v":0},{"$f":"W117*'Other input expert'!I$12*'Sales price per sales channel'!$G117*'Other input expert'!I$6","v":0},{"$f":"X117*'Other input expert'!J$12*'Sales price per sales channel'!$G117*'Other input expert'!J$6","v":0},{"$f":"Y117*'Other input expert'!K$12*'Sales price per sales channel'!$G117*'Other input expert'!K$6","v":0},{"$f":"Z117*'Other input expert'!L$12*'Sales price per sales channel'!$G117*'Other input expert'!L$6","v":0},{"$f":"AA117*'Other input expert'!M$12*'Sales price per sales channel'!$G117*'Other input expert'!M$6","v":0},null,{"$f":"P117*'Other input expert'!B$13*'Sales price per sales channel'!$H117*'Other input expert'!B$6","v":0},{"$f":"Q117*'Other input expert'!C$13*'Sales price per sales channel'!$H117*'Other input expert'!C$6","v":0},{"$f":"R117*'Other input expert'!D$13*'Sales price per sales channel'!$H117*'Other input expert'!D$6","v":0},{"$f":"S117*'Other input expert'!E$13*'Sales price per sales channel'!$H117*'Other input expert'!E$6","v":0},{"$f":"T117*'Other input expert'!F$13*'Sales price per sales channel'!$H117*'Other input expert'!F$6","v":0},{"$f":"U117*'Other input expert'!G$13*'Sales price per sales channel'!$H117*'Other input expert'!G$6","v":0},{"$f":"V117*'Other input expert'!H$13*'Sales price per sales channel'!$H117*'Other input expert'!H$6","v":0},{"$f":"W117*'Other input expert'!I$13*'Sales price per sales channel'!$H117*'Other input expert'!I$6","v":0},{"$f":"X117*'Other input expert'!J$13*'Sales price per sales channel'!$H117*'Other input expert'!J$6","v":0},{"$f":"Y117*'Other input expert'!K$13*'Sales price per sales channel'!$H117*'Other input expert'!K$6","v":0},{"$f":"Z117*'Other input expert'!L$13*'Sales price per sales channel'!$H117*'Other input expert'!L$6","v":0},{"$f":"AA117*'Other input expert'!M$13*'Sales price per sales channel'!$H117*'Other input expert'!M$6","v":0},null,{"$f":"P117*'Other input expert'!B$14*'Sales price per sales channel'!$I117*'Other input expert'!B$6","v":0},{"$f":"Q117*'Other input expert'!C$14*'Sales price per sales channel'!$I117*'Other input expert'!C$6","v":0},{"$f":"R117*'Other input expert'!D$14*'Sales price per sales channel'!$I117*'Other input expert'!D$6","v":0},{"$f":"S117*'Other input expert'!E$14*'Sales price per sales channel'!$I117*'Other input expert'!E$6","v":0},{"$f":"T117*'Other input expert'!F$14*'Sales price per sales channel'!$I117*'Other input expert'!F$6","v":0},{"$f":"U117*'Other input expert'!G$14*'Sales price per sales channel'!$I117*'Other input expert'!G$6","v":0},{"$f":"V117*'Other input expert'!H$14*'Sales price per sales channel'!$I117*'Other input expert'!H$6","v":0},{"$f":"W117*'Other input expert'!I$14*'Sales price per sales channel'!$I117*'Other input expert'!I$6","v":0},{"$f":"X117*'Other input expert'!J$14*'Sales price per sales channel'!$I117*'Other input expert'!J$6","v":0},{"$f":"Y117*'Other input expert'!K$14*'Sales price per sales channel'!$I117*'Other input expert'!K$6","v":0},{"$f":"Z117*'Other input expert'!L$14*'Sales price per sales channel'!$I117*'Other input expert'!L$6","v":0},{"$f":"AA117*'Other input expert'!M$14*'Sales price per sales channel'!$I117*'Other input expert'!M$6","v":0},null,{"$f":"AC117*'Other input expert'!B$12*'Sales price per sales channel'!$G117*'Other input expert'!B$7","v":0},{"$f":"AD117*'Other input expert'!C$12*'Sales price per sales channel'!$G117*'Other input expert'!C$7","v":0},{"$f":"AE117*'Other input expert'!D$12*'Sales price per sales channel'!$G117*'Other input expert'!D$7","v":0},{"$f":"AF117*'Other input expert'!E$12*'Sales price per sales channel'!$G117*'Other input expert'!E$7","v":0},{"$f":"AG117*'Other input expert'!F$12*'Sales price per sales channel'!$G117*'Other input expert'!F$7","v":0},{"$f":"AH117*'Other input expert'!G$12*'Sales price per sales channel'!$G117*'Other input expert'!G$7","v":0},{"$f":"AI117*'Other input expert'!H$12*'Sales price per sales channel'!$G117*'Other input expert'!H$7","v":0},{"$f":"AJ117*'Other input expert'!I$12*'Sales price per sales channel'!$G117*'Other input expert'!I$7","v":0},{"$f":"AK117*'Other input expert'!J$12*'Sales price per sales channel'!$G117*'Other input expert'!J$7","v":0},{"$f":"AL117*'Other input expert'!K$12*'Sales price per sales channel'!$G117*'Other input expert'!K$7","v":0},{"$f":"AM117*'Other input expert'!L$12*'Sales price per sales channel'!$G117*'Other input expert'!L$7","v":0},{"$f":"AN117*'Other input expert'!M$12*'Sales price per sales channel'!$G117*'Other input expert'!M$7","v":0},null,{"$f":"AC117*'Other input expert'!B$13*'Sales price per sales channel'!$H117*'Other input expert'!B$7","v":0},{"$f":"AD117*'Other input expert'!C$13*'Sales price per sales channel'!$H117*'Other input expert'!C$7","v":0},{"$f":"AE117*'Other input expert'!D$13*'Sales price per sales channel'!$H117*'Other input expert'!D$7","v":0},{"$f":"AF117*'Other input expert'!E$13*'Sales price per sales channel'!$H117*'Other input expert'!E$7","v":0},{"$f":"AG117*'Other input expert'!F$13*'Sales price per sales channel'!$H117*'Other input expert'!F$7","v":0},{"$f":"AH117*'Other input expert'!G$13*'Sales price per sales channel'!$H117*'Other input expert'!G$7","v":0},{"$f":"AI117*'Other input expert'!H$13*'Sales price per sales channel'!$H117*'Other input expert'!H$7","v":0},{"$f":"AJ117*'Other input expert'!I$13*'Sales price per sales channel'!$H117*'Other input expert'!I$7","v":0},{"$f":"AK117*'Other input expert'!J$13*'Sales price per sales channel'!$H117*'Other input expert'!J$7","v":0},{"$f":"AL117*'Other input expert'!K$13*'Sales price per sales channel'!$H117*'Other input expert'!K$7","v":0},{"$f":"AM117*'Other input expert'!L$13*'Sales price per sales channel'!$H117*'Other input expert'!L$7","v":0},{"$f":"AN117*'Other input expert'!M$13*'Sales price per sales channel'!$H117*'Other input expert'!M$7","v":0},null,{"$f":"AC117*'Other input expert'!B$14*'Sales price per sales channel'!$I117*'Other input expert'!B$7","v":0},{"$f":"AD117*'Other input expert'!C$14*'Sales price per sales channel'!$I117*'Other input expert'!C$7","v":0},{"$f":"AE117*'Other input expert'!D$14*'Sales price per sales channel'!$I117*'Other input expert'!D$7","v":0},{"$f":"AF117*'Other input expert'!E$14*'Sales price per sales channel'!$I117*'Other input expert'!E$7","v":0},{"$f":"AG117*'Other input expert'!F$14*'Sales price per sales channel'!$I117*'Other input expert'!F$7","v":0},{"$f":"AH117*'Other input expert'!G$14*'Sales price per sales channel'!$I117*'Other input expert'!G$7","v":0},{"$f":"AI117*'Other input expert'!H$14*'Sales price per sales channel'!$I117*'Other input expert'!H$7","v":0},{"$f":"AJ117*'Other input expert'!I$14*'Sales price per sales channel'!$I117*'Other input expert'!I$7","v":0},{"$f":"AK117*'Other input expert'!J$14*'Sales price per sales channel'!$I117*'Other input expert'!J$7","v":0},{"$f":"AL117*'Other input expert'!K$14*'Sales price per sales channel'!$I117*'Other input expert'!K$7","v":0},{"$f":"AM117*'Other input expert'!L$14*'Sales price per sales channel'!$I117*'Other input expert'!L$7","v":0},{"$f":"AN117*'Other input expert'!M$14*'Sales price per sales channel'!$I117*'Other input expert'!M$7","v":0}]
["Paulownia tomentosa","Princess tree",{"$f":"Plantlist!$G118*'Production list'!D119*'Other input expert'!B$4*'Other input expert'!B$8","v":0},{"$f":"Plantlist!$G118*'Production list'!E119*'Other input expert'!C$4*'Other input expert'!C$8","v":0},{"$f":"Plantlist!$G118*'Production list'!F119*'Other input expert'!D$4*'Other input expert'!D$8","v":0},{"$f":"Plantlist!$G118*'Production list'!G119*'Other input expert'!E$4*'Other input expert'!E$8","v":0},{"$f":"Plantlist!$G118*'Production list'!H119*'Other input expert'!F$4*'Other input expert'!F$8","v":0},{"$f":"Plantlist!$G118*'Production list'!I119*'Other input expert'!G$4*'Other input expert'!G$8","v":0},{"$f":"Plantlist!$G118*'Production list'!J119*'Other input expert'!H$4*'Other input expert'!H$8","v":0},{"$f":"Plantlist!$G118*'Production list'!K119*'Other input expert'!I$4*'Other input expert'!I$8","v":0},{"$f":"Plantlist!$G118*'Production list'!L119*'Other input expert'!J$4*'Other input expert'!J$8","v":0},{"$f":"Plantlist!$G118*'Production list'!M119*'Other input expert'!K$4*'Other input expert'!K$8","v":0},{"$f":"Plantlist!$G118*'Production list'!N119*'Other input expert'!L$4*'Other input expert'!L$8","v":0},{"$f":"Plantlist!$G118*'Production list'!O119*'Other input expert'!M$4*'Other input expert'!M$8","v":0},null,{"$f":"C118*'Other input expert'!B$5","v":0},{"$f":"D118*'Other input expert'!C$5","v":0},{"$f":"E118*'Other input expert'!D$5","v":0},{"$f":"F118*'Other input expert'!E$5","v":0},{"$f":"G118*'Other input expert'!F$5","v":0},{"$f":"H118*'Other input expert'!G$5","v":0},{"$f":"I118*'Other input expert'!H$5","v":0},{"$f":"J118*'Other input expert'!I$5","v":0},{"$f":"K118*'Other input expert'!J$5","v":0},{"$f":"L118*'Other input expert'!K$5","v":0},{"$f":"M118*'Other input expert'!L$5","v":0},{"$f":"N118*'Other input expert'!M$5","v":0},null,{"$f":"C118*(100%-'Other input expert'!B$5)","v":0},{"$f":"D118*(100%-'Other input expert'!C$5)","v":0},{"$f":"E118*(100%-'Other input expert'!D$5)","v":0},{"$f":"F118*(100%-'Other input expert'!E$5)","v":0},{"$f":"G118*(100%-'Other input expert'!F$5)","v":0},{"$f":"H118*(100%-'Other input expert'!G$5)","v":0},{"$f":"I118*(100%-'Other input expert'!H$5)","v":0},{"$f":"J118*(100%-'Other input expert'!I$5)","v":0},{"$f":"K118*(100%-'Other input expert'!J$5)","v":0},{"$f":"L118*(100%-'Other input expert'!K$5)","v":0},{"$f":"M118*(100%-'Other input expert'!L$5)","v":0},{"$f":"N118*(100%-'Other input expert'!M$5)","v":0},null,{"$f":"P118*'Other input expert'!B$12*'Sales price per sales channel'!$G118*'Other input expert'!B$6","v":0},{"$f":"Q118*'Other input expert'!C$12*'Sales price per sales channel'!$G118*'Other input expert'!C$6","v":0},{"$f":"R118*'Other input expert'!D$12*'Sales price per sales channel'!$G118*'Other input expert'!D$6","v":0},{"$f":"S118*'Other input expert'!E$12*'Sales price per sales channel'!$G118*'Other input expert'!E$6","v":0},{"$f":"T118*'Other input expert'!F$12*'Sales price per sales channel'!$G118*'Other input expert'!F$6","v":0},{"$f":"U118*'Other input expert'!G$12*'Sales price per sales channel'!$G118*'Other input expert'!G$6","v":0},{"$f":"V118*'Other input expert'!H$12*'Sales price per sales channel'!$G118*'Other input expert'!H$6","v":0},{"$f":"W118*'Other input expert'!I$12*'Sales price per sales channel'!$G118*'Other input expert'!I$6","v":0},{"$f":"X118*'Other input expert'!J$12*'Sales price per sales channel'!$G118*'Other input expert'!J$6","v":0},{"$f":"Y118*'Other input expert'!K$12*'Sales price per sales channel'!$G118*'Other input expert'!K$6","v":0},{"$f":"Z118*'Other input expert'!L$12*'Sales price per sales channel'!$G118*'Other input expert'!L$6","v":0},{"$f":"AA118*'Other input expert'!M$12*'Sales price per sales channel'!$G118*'Other input expert'!M$6","v":0},null,{"$f":"P118*'Other input expert'!B$13*'Sales price per sales channel'!$H118*'Other input expert'!B$6","v":0},{"$f":"Q118*'Other input expert'!C$13*'Sales price per sales channel'!$H118*'Other input expert'!C$6","v":0},{"$f":"R118*'Other input expert'!D$13*'Sales price per sales channel'!$H118*'Other input expert'!D$6","v":0},{"$f":"S118*'Other input expert'!E$13*'Sales price per sales channel'!$H118*'Other input expert'!E$6","v":0},{"$f":"T118*'Other input expert'!F$13*'Sales price per sales channel'!$H118*'Other input expert'!F$6","v":0},{"$f":"U118*'Other input expert'!G$13*'Sales price per sales channel'!$H118*'Other input expert'!G$6","v":0},{"$f":"V118*'Other input expert'!H$13*'Sales price per sales channel'!$H118*'Other input expert'!H$6","v":0},{"$f":"W118*'Other input expert'!I$13*'Sales price per sales channel'!$H118*'Other input expert'!I$6","v":0},{"$f":"X118*'Other input expert'!J$13*'Sales price per sales channel'!$H118*'Other input expert'!J$6","v":0},{"$f":"Y118*'Other input expert'!K$13*'Sales price per sales channel'!$H118*'Other input expert'!K$6","v":0},{"$f":"Z118*'Other input expert'!L$13*'Sales price per sales channel'!$H118*'Other input expert'!L$6","v":0},{"$f":"AA118*'Other input expert'!M$13*'Sales price per sales channel'!$H118*'Other input expert'!M$6","v":0},null,{"$f":"P118*'Other input expert'!B$14*'Sales price per sales channel'!$I118*'Other input expert'!B$6","v":0},{"$f":"Q118*'Other input expert'!C$14*'Sales price per sales channel'!$I118*'Other input expert'!C$6","v":0},{"$f":"R118*'Other input expert'!D$14*'Sales price per sales channel'!$I118*'Other input expert'!D$6","v":0},{"$f":"S118*'Other input expert'!E$14*'Sales price per sales channel'!$I118*'Other input expert'!E$6","v":0},{"$f":"T118*'Other input expert'!F$14*'Sales price per sales channel'!$I118*'Other input expert'!F$6","v":0},{"$f":"U118*'Other input expert'!G$14*'Sales price per sales channel'!$I118*'Other input expert'!G$6","v":0},{"$f":"V118*'Other input expert'!H$14*'Sales price per sales channel'!$I118*'Other input expert'!H$6","v":0},{"$f":"W118*'Other input expert'!I$14*'Sales price per sales channel'!$I118*'Other input expert'!I$6","v":0},{"$f":"X118*'Other input expert'!J$14*'Sales price per sales channel'!$I118*'Other input expert'!J$6","v":0},{"$f":"Y118*'Other input expert'!K$14*'Sales price per sales channel'!$I118*'Other input expert'!K$6","v":0},{"$f":"Z118*'Other input expert'!L$14*'Sales price per sales channel'!$I118*'Other input expert'!L$6","v":0},{"$f":"AA118*'Other input expert'!M$14*'Sales price per sales channel'!$I118*'Other input expert'!M$6","v":0},null,{"$f":"AC118*'Other input expert'!B$12*'Sales price per sales channel'!$G118*'Other input expert'!B$7","v":0},{"$f":"AD118*'Other input expert'!C$12*'Sales price per sales channel'!$G118*'Other input expert'!C$7","v":0},{"$f":"AE118*'Other input expert'!D$12*'Sales price per sales channel'!$G118*'Other input expert'!D$7","v":0},{"$f":"AF118*'Other input expert'!E$12*'Sales price per sales channel'!$G118*'Other input expert'!E$7","v":0},{"$f":"AG118*'Other input expert'!F$12*'Sales price per sales channel'!$G118*'Other input expert'!F$7","v":0},{"$f":"AH118*'Other input expert'!G$12*'Sales price per sales channel'!$G118*'Other input expert'!G$7","v":0},{"$f":"AI118*'Other input expert'!H$12*'Sales price per sales channel'!$G118*'Other input expert'!H$7","v":0},{"$f":"AJ118*'Other input expert'!I$12*'Sales price per sales channel'!$G118*'Other input expert'!I$7","v":0},{"$f":"AK118*'Other input expert'!J$12*'Sales price per sales channel'!$G118*'Other input expert'!J$7","v":0},{"$f":"AL118*'Other input expert'!K$12*'Sales price per sales channel'!$G118*'Other input expert'!K$7","v":0},{"$f":"AM118*'Other input expert'!L$12*'Sales price per sales channel'!$G118*'Other input expert'!L$7","v":0},{"$f":"AN118*'Other input expert'!M$12*'Sales price per sales channel'!$G118*'Other input expert'!M$7","v":0},null,{"$f":"AC118*'Other input expert'!B$13*'Sales price per sales channel'!$H118*'Other input expert'!B$7","v":0},{"$f":"AD118*'Other input expert'!C$13*'Sales price per sales channel'!$H118*'Other input expert'!C$7","v":0},{"$f":"AE118*'Other input expert'!D$13*'Sales price per sales channel'!$H118*'Other input expert'!D$7","v":0},{"$f":"AF118*'Other input expert'!E$13*'Sales price per sales channel'!$H118*'Other input expert'!E$7","v":0},{"$f":"AG118*'Other input expert'!F$13*'Sales price per sales channel'!$H118*'Other input expert'!F$7","v":0},{"$f":"AH118*'Other input expert'!G$13*'Sales price per sales channel'!$H118*'Other input expert'!G$7","v":0},{"$f":"AI118*'Other input expert'!H$13*'Sales price per sales channel'!$H118*'Other input expert'!H$7","v":0},{"$f":"AJ118*'Other input expert'!I$13*'Sales price per sales channel'!$H118*'Other input expert'!I$7","v":0},{"$f":"AK118*'Other input expert'!J$13*'Sales price per sales channel'!$H118*'Other input expert'!J$7","v":0},{"$f":"AL118*'Other input expert'!K$13*'Sales price per sales channel'!$H118*'Other input expert'!K$7","v":0},{"$f":"AM118*'Other input expert'!L$13*'Sales price per sales channel'!$H118*'Other input expert'!L$7","v":0},{"$f":"AN118*'Other input expert'!M$13*'Sales price per sales channel'!$H118*'Other input expert'!M$7","v":0},null,{"$f":"AC118*'Other input expert'!B$14*'Sales price per sales channel'!$I118*'Other input expert'!B$7","v":0},{"$f":"AD118*'Other input expert'!C$14*'Sales price per sales channel'!$I118*'Other input expert'!C$7","v":0},{"$f":"AE118*'Other input expert'!D$14*'Sales price per sales channel'!$I118*'Other input expert'!D$7","v":0},{"$f":"AF118*'Other input expert'!E$14*'Sales price per sales channel'!$I118*'Other input expert'!E$7","v":0},{"$f":"AG118*'Other input expert'!F$14*'Sales price per sales channel'!$I118*'Other input expert'!F$7","v":0},{"$f":"AH118*'Other input expert'!G$14*'Sales price per sales channel'!$I118*'Other input expert'!G$7","v":0},{"$f":"AI118*'Other input expert'!H$14*'Sales price per sales channel'!$I118*'Other input expert'!H$7","v":0},{"$f":"AJ118*'Other input expert'!I$14*'Sales price per sales channel'!$I118*'Other input expert'!I$7","v":0},{"$f":"AK118*'Other input expert'!J$14*'Sales price per sales channel'!$I118*'Other input expert'!J$7","v":0},{"$f":"AL118*'Other input expert'!K$14*'Sales price per sales channel'!$I118*'Other input expert'!K$7","v":0},{"$f":"AM118*'Other input expert'!L$14*'Sales price per sales channel'!$I118*'Other input expert'!L$7","v":0},{"$f":"AN118*'Other input expert'!M$14*'Sales price per sales channel'!$I118*'Other input expert'!M$7","v":0}]
["Persicaria odorata","Vietnamese coriander",{"$f":"Plantlist!$G119*'Production list'!D120*'Other input expert'!B$4*'Other input expert'!B$8","v":0},{"$f":"Plantlist!$G119*'Production list'!E120*'Other input expert'!C$4*'Other input expert'!C$8","v":0},{"$f":"Plantlist!$G119*'Production list'!F120*'Other input expert'!D$4*'Other input expert'!D$8","v":0},{"$f":"Plantlist!$G119*'Production list'!G120*'Other input expert'!E$4*'Other input expert'!E$8","v":0},{"$f":"Plantlist!$G119*'Production list'!H120*'Other input expert'!F$4*'Other input expert'!F$8","v":0},{"$f":"Plantlist!$G119*'Production list'!I120*'Other input expert'!G$4*'Other input expert'!G$8","v":0},{"$f":"Plantlist!$G119*'Production list'!J120*'Other input expert'!H$4*'Other input expert'!H$8","v":0},{"$f":"Plantlist!$G119*'Production list'!K120*'Other input expert'!I$4*'Other input expert'!I$8","v":0},{"$f":"Plantlist!$G119*'Production list'!L120*'Other input expert'!J$4*'Other input expert'!J$8","v":0},{"$f":"Plantlist!$G119*'Production list'!M120*'Other input expert'!K$4*'Other input expert'!K$8","v":0},{"$f":"Plantlist!$G119*'Production list'!N120*'Other input expert'!L$4*'Other input expert'!L$8","v":0},{"$f":"Plantlist!$G119*'Production list'!O120*'Other input expert'!M$4*'Other input expert'!M$8","v":0},null,{"$f":"C119*'Other input expert'!B$5","v":0},{"$f":"D119*'Other input expert'!C$5","v":0},{"$f":"E119*'Other input expert'!D$5","v":0},{"$f":"F119*'Other input expert'!E$5","v":0},{"$f":"G119*'Other input expert'!F$5","v":0},{"$f":"H119*'Other input expert'!G$5","v":0},{"$f":"I119*'Other input expert'!H$5","v":0},{"$f":"J119*'Other input expert'!I$5","v":0},{"$f":"K119*'Other input expert'!J$5","v":0},{"$f":"L119*'Other input expert'!K$5","v":0},{"$f":"M119*'Other input expert'!L$5","v":0},{"$f":"N119*'Other input expert'!M$5","v":0},null,{"$f":"C119*(100%-'Other input expert'!B$5)","v":0},{"$f":"D119*(100%-'Other input expert'!C$5)","v":0},{"$f":"E119*(100%-'Other input expert'!D$5)","v":0},{"$f":"F119*(100%-'Other input expert'!E$5)","v":0},{"$f":"G119*(100%-'Other input expert'!F$5)","v":0},{"$f":"H119*(100%-'Other input expert'!G$5)","v":0},{"$f":"I119*(100%-'Other input expert'!H$5)","v":0},{"$f":"J119*(100%-'Other input expert'!I$5)","v":0},{"$f":"K119*(100%-'Other input expert'!J$5)","v":0},{"$f":"L119*(100%-'Other input expert'!K$5)","v":0},{"$f":"M119*(100%-'Other input expert'!L$5)","v":0},{"$f":"N119*(100%-'Other input expert'!M$5)","v":0},null,{"$f":"P119*'Other input expert'!B$12*'Sales price per sales channel'!$G119*'Other input expert'!B$6","v":0},{"$f":"Q119*'Other input expert'!C$12*'Sales price per sales channel'!$G119*'Other input expert'!C$6","v":0},{"$f":"R119*'Other input expert'!D$12*'Sales price per sales channel'!$G119*'Other input expert'!D$6","v":0},{"$f":"S119*'Other input expert'!E$12*'Sales price per sales channel'!$G119*'Other input expert'!E$6","v":0},{"$f":"T119*'Other input expert'!F$12*'Sales price per sales channel'!$G119*'Other input expert'!F$6","v":0},{"$f":"U119*'Other input expert'!G$12*'Sales price per sales channel'!$G119*'Other input expert'!G$6","v":0},{"$f":"V119*'Other input expert'!H$12*'Sales price per sales channel'!$G119*'Other input expert'!H$6","v":0},{"$f":"W119*'Other input expert'!I$12*'Sales price per sales channel'!$G119*'Other input expert'!I$6","v":0},{"$f":"X119*'Other input expert'!J$12*'Sales price per sales channel'!$G119*'Other input expert'!J$6","v":0},{"$f":"Y119*'Other input expert'!K$12*'Sales price per sales channel'!$G119*'Other input expert'!K$6","v":0},{"$f":"Z119*'Other input expert'!L$12*'Sales price per sales channel'!$G119*'Other input expert'!L$6","v":0},{"$f":"AA119*'Other input expert'!M$12*'Sales price per sales channel'!$G119*'Other input expert'!M$6","v":0},null,{"$f":"P119*'Other input expert'!B$13*'Sales price per sales channel'!$H119*'Other input expert'!B$6","v":0},{"$f":"Q119*'Other input expert'!C$13*'Sales price per sales channel'!$H119*'Other input expert'!C$6","v":0},{"$f":"R119*'Other input expert'!D$13*'Sales price per sales channel'!$H119*'Other input expert'!D$6","v":0},{"$f":"S119*'Other input expert'!E$13*'Sales price per sales channel'!$H119*'Other input expert'!E$6","v":0},{"$f":"T119*'Other input expert'!F$13*'Sales price per sales channel'!$H119*'Other input expert'!F$6","v":0},{"$f":"U119*'Other input expert'!G$13*'Sales price per sales channel'!$H119*'Other input expert'!G$6","v":0},{"$f":"V119*'Other input expert'!H$13*'Sales price per sales channel'!$H119*'Other input expert'!H$6","v":0},{"$f":"W119*'Other input expert'!I$13*'Sales price per sales channel'!$H119*'Other input expert'!I$6","v":0},{"$f":"X119*'Other input expert'!J$13*'Sales price per sales channel'!$H119*'Other input expert'!J$6","v":0},{"$f":"Y119*'Other input expert'!K$13*'Sales price per sales channel'!$H119*'Other input expert'!K$6","v":0},{"$f":"Z119*'Other input expert'!L$13*'Sales price per sales channel'!$H119*'Other input expert'!L$6","v":0},{"$f":"AA119*'Other input expert'!M$13*'Sales price per sales channel'!$H119*'Other input expert'!M$6","v":0},null,{"$f":"P119*'Other input expert'!B$14*'Sales price per sales channel'!$I119*'Other input expert'!B$6","v":0},{"$f":"Q119*'Other input expert'!C$14*'Sales price per sales channel'!$I119*'Other input expert'!C$6","v":0},{"$f":"R119*'Other input expert'!D$14*'Sales price per sales channel'!$I119*'Other input expert'!D$6","v":0},{"$f":"S119*'Other input expert'!E$14*'Sales price per sales channel'!$I119*'Other input expert'!E$6","v":0},{"$f":"T119*'Other input expert'!F$14*'Sales price per sales channel'!$I119*'Other input expert'!F$6","v":0},{"$f":"U119*'Other input expert'!G$14*'Sales price per sales channel'!$I119*'Other input expert'!G$6","v":0},{"$f":"V119*'Other input expert'!H$14*'Sales price per sales channel'!$I119*'Other input expert'!H$6","v":0},{"$f":"W119*'Other input expert'!I$14*'Sales price per sales channel'!$I119*'Other input expert'!I$6","v":0},{"$f":"X119*'Other input expert'!J$14*'Sales price per sales channel'!$I119*'Other input expert'!J$6","v":0},{"$f":"Y119*'Other input expert'!K$14*'Sales price per sales channel'!$I119*'Other input expert'!K$6","v":0},{"$f":"Z119*'Other input expert'!L$14*'Sales price per sales channel'!$I119*'Other input expert'!L$6","v":0},{"$f":"AA119*'Other input expert'!M$14*'Sales price per sales channel'!$I119*'Other input expert'!M$6","v":0},null,{"$f":"AC119*'Other input expert'!B$12*'Sales price per sales channel'!$G119*'Other input expert'!B$7","v":0},{"$f":"AD119*'Other input expert'!C$12*'Sales price per sales channel'!$G119*'Other input expert'!C$7","v":0},{"$f":"AE119*'Other input expert'!D$12*'Sales price per sales channel'!$G119*'Other input expert'!D$7","v":0},{"$f":"AF119*'Other input expert'!E$12*'Sales price per sales channel'!$G119*'Other input expert'!E$7","v":0},{"$f":"AG119*'Other input expert'!F$12*'Sales price per sales channel'!$G119*'Other input expert'!F$7","v":0},{"$f":"AH119*'Other input expert'!G$12*'Sales price per sales channel'!$G119*'Other input expert'!G$7","v":0},{"$f":"AI119*'Other input expert'!H$12*'Sales price per sales channel'!$G119*'Other input expert'!H$7","v":0},{"$f":"AJ119*'Other input expert'!I$12*'Sales price per sales channel'!$G119*'Other input expert'!I$7","v":0},{"$f":"AK119*'Other input expert'!J$12*'Sales price per sales channel'!$G119*'Other input expert'!J$7","v":0},{"$f":"AL119*'Other input expert'!K$12*'Sales price per sales channel'!$G119*'Other input expert'!K$7","v":0},{"$f":"AM119*'Other input expert'!L$12*'Sales price per sales channel'!$G119*'Other input expert'!L$7","v":0},{"$f":"AN119*'Other input expert'!M$12*'Sales price per sales channel'!$G119*'Other input expert'!M$7","v":0},null,{"$f":"AC119*'Other input expert'!B$13*'Sales price per sales channel'!$H119*'Other input expert'!B$7","v":0},{"$f":"AD119*'Other input expert'!C$13*'Sales price per sales channel'!$H119*'Other input expert'!C$7","v":0},{"$f":"AE119*'Other input expert'!D$13*'Sales price per sales channel'!$H119*'Other input expert'!D$7","v":0},{"$f":"AF119*'Other input expert'!E$13*'Sales price per sales channel'!$H119*'Other input expert'!E$7","v":0},{"$f":"AG119*'Other input expert'!F$13*'Sales price per sales channel'!$H119*'Other input expert'!F$7","v":0},{"$f":"AH119*'Other input expert'!G$13*'Sales price per sales channel'!$H119*'Other input expert'!G$7","v":0},{"$f":"AI119*'Other input expert'!H$13*'Sales price per sales channel'!$H119*'Other input expert'!H$7","v":0},{"$f":"AJ119*'Other input expert'!I$13*'Sales price per sales channel'!$H119*'Other input expert'!I$7","v":0},{"$f":"AK119*'Other input expert'!J$13*'Sales price per sales channel'!$H119*'Other input expert'!J$7","v":0},{"$f":"AL119*'Other input expert'!K$13*'Sales price per sales channel'!$H119*'Other input expert'!K$7","v":0},{"$f":"AM119*'Other input expert'!L$13*'Sales price per sales channel'!$H119*'Other input expert'!L$7","v":0},{"$f":"AN119*'Other input expert'!M$13*'Sales price per sales channel'!$H119*'Other input expert'!M$7","v":0},null,{"$f":"AC119*'Other input expert'!B$14*'Sales price per sales channel'!$I119*'Other input expert'!B$7","v":0},{"$f":"AD119*'Other input expert'!C$14*'Sales price per sales channel'!$I119*'Other input expert'!C$7","v":0},{"$f":"AE119*'Other input expert'!D$14*'Sales price per sales channel'!$I119*'Other input expert'!D$7","v":0},{"$f":"AF119*'Other input expert'!E$14*'Sales price per sales channel'!$I119*'Other input expert'!E$7","v":0},{"$f":"AG119*'Other input expert'!F$14*'Sales price per sales channel'!$I119*'Other input expert'!F$7","v":0},{"$f":"AH119*'Other input expert'!G$14*'Sales price per sales channel'!$I119*'Other input expert'!G$7","v":0},{"$f":"AI119*'Other input expert'!H$14*'Sales price per sales channel'!$I119*'Other input expert'!H$7","v":0},{"$f":"AJ119*'Other input expert'!I$14*'Sales price per sales channel'!$I119*'Other input expert'!I$7","v":0},{"$f":"AK119*'Other input expert'!J$14*'Sales price per sales channel'!$I119*'Other input expert'!J$7","v":0},{"$f":"AL119*'Other input expert'!K$14*'Sales price per sales channel'!$I119*'Other input expert'!K$7","v":0},{"$f":"AM119*'Other input expert'!L$14*'Sales price per sales channel'!$I119*'Other input expert'!L$7","v":0},{"$f":"AN119*'Other input expert'!M$14*'Sales price per sales channel'!$I119*'Other input expert'!M$7","v":0}]
["Phyllostachus bissetii 80","Bamboo",{"$f":"Plantlist!$G120*'Production list'!D121*'Other input expert'!B$4*'Other input expert'!B$8","v":0},{"$f":"Plantlist!$G120*'Production list'!E121*'Other input expert'!C$4*'Other input expert'!C$8","v":0},{"$f":"Plantlist!$G120*'Production list'!F121*'Other input expert'!D$4*'Other input expert'!D$8","v":0},{"$f":"Plantlist!$G120*'Production list'!G121*'Other input expert'!E$4*'Other input expert'!E$8","v":0},{"$f":"Plantlist!$G120*'Production list'!H121*'Other input expert'!F$4*'Other input expert'!F$8","v":0},{"$f":"Plantlist!$G120*'Production list'!I121*'Other input expert'!G$4*'Other input expert'!G$8","v":0},{"$f":"Plantlist!$G120*'Production list'!J121*'Other input expert'!H$4*'Other input expert'!H$8","v":0},{"$f":"Plantlist!$G120*'Production list'!K121*'Other input expert'!I$4*'Other input expert'!I$8","v":0},{"$f":"Plantlist!$G120*'Production list'!L121*'Other input expert'!J$4*'Other input expert'!J$8","v":0},{"$f":"Plantlist!$G120*'Production list'!M121*'Other input expert'!K$4*'Other input expert'!K$8","v":0},{"$f":"Plantlist!$G120*'Production list'!N121*'Other input expert'!L$4*'Other input expert'!L$8","v":0},{"$f":"Plantlist!$G120*'Production list'!O121*'Other input expert'!M$4*'Other input expert'!M$8","v":0},null,{"$f":"C120*'Other input expert'!B$5","v":0},{"$f":"D120*'Other input expert'!C$5","v":0},{"$f":"E120*'Other input expert'!D$5","v":0},{"$f":"F120*'Other input expert'!E$5","v":0},{"$f":"G120*'Other input expert'!F$5","v":0},{"$f":"H120*'Other input expert'!G$5","v":0},{"$f":"I120*'Other input expert'!H$5","v":0},{"$f":"J120*'Other input expert'!I$5","v":0},{"$f":"K120*'Other input expert'!J$5","v":0},{"$f":"L120*'Other input expert'!K$5","v":0},{"$f":"M120*'Other input expert'!L$5","v":0},{"$f":"N120*'Other input expert'!M$5","v":0},null,{"$f":"C120*(100%-'Other input expert'!B$5)","v":0},{"$f":"D120*(100%-'Other input expert'!C$5)","v":0},{"$f":"E120*(100%-'Other input expert'!D$5)","v":0},{"$f":"F120*(100%-'Other input expert'!E$5)","v":0},{"$f":"G120*(100%-'Other input expert'!F$5)","v":0},{"$f":"H120*(100%-'Other input expert'!G$5)","v":0},{"$f":"I120*(100%-'Other input expert'!H$5)","v":0},{"$f":"J120*(100%-'Other input expert'!I$5)","v":0},{"$f":"K120*(100%-'Other input expert'!J$5)","v":0},{"$f":"L120*(100%-'Other input expert'!K$5)","v":0},{"$f":"M120*(100%-'Other input expert'!L$5)","v":0},{"$f":"N120*(100%-'Other input expert'!M$5)","v":0},null,{"$f":"P120*'Other input expert'!B$12*'Sales price per sales channel'!$G120*'Other input expert'!B$6","v":0},{"$f":"Q120*'Other input expert'!C$12*'Sales price per sales channel'!$G120*'Other input expert'!C$6","v":0},{"$f":"R120*'Other input expert'!D$12*'Sales price per sales channel'!$G120*'Other input expert'!D$6","v":0},{"$f":"S120*'Other input expert'!E$12*'Sales price per sales channel'!$G120*'Other input expert'!E$6","v":0},{"$f":"T120*'Other input expert'!F$12*'Sales price per sales channel'!$G120*'Other input expert'!F$6","v":0},{"$f":"U120*'Other input expert'!G$12*'Sales price per sales channel'!$G120*'Other input expert'!G$6","v":0},{"$f":"V120*'Other input expert'!H$12*'Sales price per sales channel'!$G120*'Other input expert'!H$6","v":0},{"$f":"W120*'Other input expert'!I$12*'Sales price per sales channel'!$G120*'Other input expert'!I$6","v":0},{"$f":"X120*'Other input expert'!J$12*'Sales price per sales channel'!$G120*'Other input expert'!J$6","v":0},{"$f":"Y120*'Other input expert'!K$12*'Sales price per sales channel'!$G120*'Other input expert'!K$6","v":0},{"$f":"Z120*'Other input expert'!L$12*'Sales price per sales channel'!$G120*'Other input expert'!L$6","v":0},{"$f":"AA120*'Other input expert'!M$12*'Sales price per sales channel'!$G120*'Other input expert'!M$6","v":0},null,{"$f":"P120*'Other input expert'!B$13*'Sales price per sales channel'!$H120*'Other input expert'!B$6","v":0},{"$f":"Q120*'Other input expert'!C$13*'Sales price per sales channel'!$H120*'Other input expert'!C$6","v":0},{"$f":"R120*'Other input expert'!D$13*'Sales price per sales channel'!$H120*'Other input expert'!D$6","v":0},{"$f":"S120*'Other input expert'!E$13*'Sales price per sales channel'!$H120*'Other input expert'!E$6","v":0},{"$f":"T120*'Other input expert'!F$13*'Sales price per sales channel'!$H120*'Other input expert'!F$6","v":0},{"$f":"U120*'Other input expert'!G$13*'Sales price per sales channel'!$H120*'Other input expert'!G$6","v":0},{"$f":"V120*'Other input expert'!H$13*'Sales price per sales channel'!$H120*'Other input expert'!H$6","v":0},{"$f":"W120*'Other input expert'!I$13*'Sales price per sales channel'!$H120*'Other input expert'!I$6","v":0},{"$f":"X120*'Other input expert'!J$13*'Sales price per sales channel'!$H120*'Other input expert'!J$6","v":0},{"$f":"Y120*'Other input expert'!K$13*'Sales price per sales channel'!$H120*'Other input expert'!K$6","v":0},{"$f":"Z120*'Other input expert'!L$13*'Sales price per sales channel'!$H120*'Other input expert'!L$6","v":0},{"$f":"AA120*'Other input expert'!M$13*'Sales price per sales channel'!$H120*'Other input expert'!M$6","v":0},null,{"$f":"P120*'Other input expert'!B$14*'Sales price per sales channel'!$I120*'Other input expert'!B$6","v":0},{"$f":"Q120*'Other input expert'!C$14*'Sales price per sales channel'!$I120*'Other input expert'!C$6","v":0},{"$f":"R120*'Other input expert'!D$14*'Sales price per sales channel'!$I120*'Other input expert'!D$6","v":0},{"$f":"S120*'Other input expert'!E$14*'Sales price per sales channel'!$I120*'Other input expert'!E$6","v":0},{"$f":"T120*'Other input expert'!F$14*'Sales price per sales channel'!$I120*'Other input expert'!F$6","v":0},{"$f":"U120*'Other input expert'!G$14*'Sales price per sales channel'!$I120*'Other input expert'!G$6","v":0},{"$f":"V120*'Other input expert'!H$14*'Sales price per sales channel'!$I120*'Other input expert'!H$6","v":0},{"$f":"W120*'Other input expert'!I$14*'Sales price per sales channel'!$I120*'Other input expert'!I$6","v":0},{"$f":"X120*'Other input expert'!J$14*'Sales price per sales channel'!$I120*'Other input expert'!J$6","v":0},{"$f":"Y120*'Other input expert'!K$14*'Sales price per sales channel'!$I120*'Other input expert'!K$6","v":0},{"$f":"Z120*'Other input expert'!L$14*'Sales price per sales channel'!$I120*'Other input expert'!L$6","v":0},{"$f":"AA120*'Other input expert'!M$14*'Sales price per sales channel'!$I120*'Other input expert'!M$6","v":0},null,{"$f":"AC120*'Other input expert'!B$12*'Sales price per sales channel'!$G120*'Other input expert'!B$7","v":0},{"$f":"AD120*'Other input expert'!C$12*'Sales price per sales channel'!$G120*'Other input expert'!C$7","v":0},{"$f":"AE120*'Other input expert'!D$12*'Sales price per sales channel'!$G120*'Other input expert'!D$7","v":0},{"$f":"AF120*'Other input expert'!E$12*'Sales price per sales channel'!$G120*'Other input expert'!E$7","v":0},{"$f":"AG120*'Other input expert'!F$12*'Sales price per sales channel'!$G120*'Other input expert'!F$7","v":0},{"$f":"AH120*'Other input expert'!G$12*'Sales price per sales channel'!$G120*'Other input expert'!G$7","v":0},{"$f":"AI120*'Other input expert'!H$12*'Sales price per sales channel'!$G120*'Other input expert'!H$7","v":0},{"$f":"AJ120*'Other input expert'!I$12*'Sales price per sales channel'!$G120*'Other input expert'!I$7","v":0},{"$f":"AK120*'Other input expert'!J$12*'Sales price per sales channel'!$G120*'Other input expert'!J$7","v":0},{"$f":"AL120*'Other input expert'!K$12*'Sales price per sales channel'!$G120*'Other input expert'!K$7","v":0},{"$f":"AM120*'Other input expert'!L$12*'Sales price per sales channel'!$G120*'Other input expert'!L$7","v":0},{"$f":"AN120*'Other input expert'!M$12*'Sales price per sales channel'!$G120*'Other input expert'!M$7","v":0},null,{"$f":"AC120*'Other input expert'!B$13*'Sales price per sales channel'!$H120*'Other input expert'!B$7","v":0},{"$f":"AD120*'Other input expert'!C$13*'Sales price per sales channel'!$H120*'Other input expert'!C$7","v":0},{"$f":"AE120*'Other input expert'!D$13*'Sales price per sales channel'!$H120*'Other input expert'!D$7","v":0},{"$f":"AF120*'Other input expert'!E$13*'Sales price per sales channel'!$H120*'Other input expert'!E$7","v":0},{"$f":"AG120*'Other input expert'!F$13*'Sales price per sales channel'!$H120*'Other input expert'!F$7","v":0},{"$f":"AH120*'Other input expert'!G$13*'Sales price per sales channel'!$H120*'Other input expert'!G$7","v":0},{"$f":"AI120*'Other input expert'!H$13*'Sales price per sales channel'!$H120*'Other input expert'!H$7","v":0},{"$f":"AJ120*'Other input expert'!I$13*'Sales price per sales channel'!$H120*'Other input expert'!I$7","v":0},{"$f":"AK120*'Other input expert'!J$13*'Sales price per sales channel'!$H120*'Other input expert'!J$7","v":0},{"$f":"AL120*'Other input expert'!K$13*'Sales price per sales channel'!$H120*'Other input expert'!K$7","v":0},{"$f":"AM120*'Other input expert'!L$13*'Sales price per sales channel'!$H120*'Other input expert'!L$7","v":0},{"$f":"AN120*'Other input expert'!M$13*'Sales price per sales channel'!$H120*'Other input expert'!M$7","v":0},null,{"$f":"AC120*'Other input expert'!B$14*'Sales price per sales channel'!$I120*'Other input expert'!B$7","v":0},{"$f":"AD120*'Other input expert'!C$14*'Sales price per sales channel'!$I120*'Other input expert'!C$7","v":0},{"$f":"AE120*'Other input expert'!D$14*'Sales price per sales channel'!$I120*'Other input expert'!D$7","v":0},{"$f":"AF120*'Other input expert'!E$14*'Sales price per sales channel'!$I120*'Other input expert'!E$7","v":0},{"$f":"AG120*'Other input expert'!F$14*'Sales price per sales channel'!$I120*'Other input expert'!F$7","v":0},{"$f":"AH120*'Other input expert'!G$14*'Sales price per sales channel'!$I120*'Other input expert'!G$7","v":0},{"$f":"AI120*'Other input expert'!H$14*'Sales price per sales channel'!$I120*'Other input expert'!H$7","v":0},{"$f":"AJ120*'Other input expert'!I$14*'Sales price per sales channel'!$I120*'Other input expert'!I$7","v":0},{"$f":"AK120*'Other input expert'!J$14*'Sales price per sales channel'!$I120*'Other input expert'!J$7","v":0},{"$f":"AL120*'Other input expert'!K$14*'Sales price per sales channel'!$I120*'Other input expert'!K$7","v":0},{"$f":"AM120*'Other input expert'!L$14*'Sales price per sales channel'!$I120*'Other input expert'!L$7","v":0},{"$f":"AN120*'Other input expert'!M$14*'Sales price per sales channel'!$I120*'Other input expert'!M$7","v":0}]
["Pinus Koraiensis","Korean pine",{"$f":"Plantlist!$G121*'Production list'!D122*'Other input expert'!B$4*'Other input expert'!B$8","v":0},{"$f":"Plantlist!$G121*'Production list'!E122*'Other input expert'!C$4*'Other input expert'!C$8","v":0},{"$f":"Plantlist!$G121*'Production list'!F122*'Other input expert'!D$4*'Other input expert'!D$8","v":0},{"$f":"Plantlist!$G121*'Production list'!G122*'Other input expert'!E$4*'Other input expert'!E$8","v":0},{"$f":"Plantlist!$G121*'Production list'!H122*'Other input expert'!F$4*'Other input expert'!F$8","v":0},{"$f":"Plantlist!$G121*'Production list'!I122*'Other input expert'!G$4*'Other input expert'!G$8","v":0},{"$f":"Plantlist!$G121*'Production list'!J122*'Other input expert'!H$4*'Other input expert'!H$8","v":0},{"$f":"Plantlist!$G121*'Production list'!K122*'Other input expert'!I$4*'Other input expert'!I$8","v":0},{"$f":"Plantlist!$G121*'Production list'!L122*'Other input expert'!J$4*'Other input expert'!J$8","v":0},{"$f":"Plantlist!$G121*'Production list'!M122*'Other input expert'!K$4*'Other input expert'!K$8","v":0},{"$f":"Plantlist!$G121*'Production list'!N122*'Other input expert'!L$4*'Other input expert'!L$8","v":0},{"$f":"Plantlist!$G121*'Production list'!O122*'Other input expert'!M$4*'Other input expert'!M$8","v":0},null,{"$f":"C121*'Other input expert'!B$5","v":0},{"$f":"D121*'Other input expert'!C$5","v":0},{"$f":"E121*'Other input expert'!D$5","v":0},{"$f":"F121*'Other input expert'!E$5","v":0},{"$f":"G121*'Other input expert'!F$5","v":0},{"$f":"H121*'Other input expert'!G$5","v":0},{"$f":"I121*'Other input expert'!H$5","v":0},{"$f":"J121*'Other input expert'!I$5","v":0},{"$f":"K121*'Other input expert'!J$5","v":0},{"$f":"L121*'Other input expert'!K$5","v":0},{"$f":"M121*'Other input expert'!L$5","v":0},{"$f":"N121*'Other input expert'!M$5","v":0},null,{"$f":"C121*(100%-'Other input expert'!B$5)","v":0},{"$f":"D121*(100%-'Other input expert'!C$5)","v":0},{"$f":"E121*(100%-'Other input expert'!D$5)","v":0},{"$f":"F121*(100%-'Other input expert'!E$5)","v":0},{"$f":"G121*(100%-'Other input expert'!F$5)","v":0},{"$f":"H121*(100%-'Other input expert'!G$5)","v":0},{"$f":"I121*(100%-'Other input expert'!H$5)","v":0},{"$f":"J121*(100%-'Other input expert'!I$5)","v":0},{"$f":"K121*(100%-'Other input expert'!J$5)","v":0},{"$f":"L121*(100%-'Other input expert'!K$5)","v":0},{"$f":"M121*(100%-'Other input expert'!L$5)","v":0},{"$f":"N121*(100%-'Other input expert'!M$5)","v":0},null,{"$f":"P121*'Other input expert'!B$12*'Sales price per sales channel'!$G121*'Other input expert'!B$6","v":0},{"$f":"Q121*'Other input expert'!C$12*'Sales price per sales channel'!$G121*'Other input expert'!C$6","v":0},{"$f":"R121*'Other input expert'!D$12*'Sales price per sales channel'!$G121*'Other input expert'!D$6","v":0},{"$f":"S121*'Other input expert'!E$12*'Sales price per sales channel'!$G121*'Other input expert'!E$6","v":0},{"$f":"T121*'Other input expert'!F$12*'Sales price per sales channel'!$G121*'Other input expert'!F$6","v":0},{"$f":"U121*'Other input expert'!G$12*'Sales price per sales channel'!$G121*'Other input expert'!G$6","v":0},{"$f":"V121*'Other input expert'!H$12*'Sales price per sales channel'!$G121*'Other input expert'!H$6","v":0},{"$f":"W121*'Other input expert'!I$12*'Sales price per sales channel'!$G121*'Other input expert'!I$6","v":0},{"$f":"X121*'Other input expert'!J$12*'Sales price per sales channel'!$G121*'Other input expert'!J$6","v":0},{"$f":"Y121*'Other input expert'!K$12*'Sales price per sales channel'!$G121*'Other input expert'!K$6","v":0},{"$f":"Z121*'Other input expert'!L$12*'Sales price per sales channel'!$G121*'Other input expert'!L$6","v":0},{"$f":"AA121*'Other input expert'!M$12*'Sales price per sales channel'!$G121*'Other input expert'!M$6","v":0},null,{"$f":"P121*'Other input expert'!B$13*'Sales price per sales channel'!$H121*'Other input expert'!B$6","v":0},{"$f":"Q121*'Other input expert'!C$13*'Sales price per sales channel'!$H121*'Other input expert'!C$6","v":0},{"$f":"R121*'Other input expert'!D$13*'Sales price per sales channel'!$H121*'Other input expert'!D$6","v":0},{"$f":"S121*'Other input expert'!E$13*'Sales price per sales channel'!$H121*'Other input expert'!E$6","v":0},{"$f":"T121*'Other input expert'!F$13*'Sales price per sales channel'!$H121*'Other input expert'!F$6","v":0},{"$f":"U121*'Other input expert'!G$13*'Sales price per sales channel'!$H121*'Other input expert'!G$6","v":0},{"$f":"V121*'Other input expert'!H$13*'Sales price per sales channel'!$H121*'Other input expert'!H$6","v":0},{"$f":"W121*'Other input expert'!I$13*'Sales price per sales channel'!$H121*'Other input expert'!I$6","v":0},{"$f":"X121*'Other input expert'!J$13*'Sales price per sales channel'!$H121*'Other input expert'!J$6","v":0},{"$f":"Y121*'Other input expert'!K$13*'Sales price per sales channel'!$H121*'Other input expert'!K$6","v":0},{"$f":"Z121*'Other input expert'!L$13*'Sales price per sales channel'!$H121*'Other input expert'!L$6","v":0},{"$f":"AA121*'Other input expert'!M$13*'Sales price per sales channel'!$H121*'Other input expert'!M$6","v":0},null,{"$f":"P121*'Other input expert'!B$14*'Sales price per sales channel'!$I121*'Other input expert'!B$6","v":0},{"$f":"Q121*'Other input expert'!C$14*'Sales price per sales channel'!$I121*'Other input expert'!C$6","v":0},{"$f":"R121*'Other input expert'!D$14*'Sales price per sales channel'!$I121*'Other input expert'!D$6","v":0},{"$f":"S121*'Other input expert'!E$14*'Sales price per sales channel'!$I121*'Other input expert'!E$6","v":0},{"$f":"T121*'Other input expert'!F$14*'Sales price per sales channel'!$I121*'Other input expert'!F$6","v":0},{"$f":"U121*'Other input expert'!G$14*'Sales price per sales channel'!$I121*'Other input expert'!G$6","v":0},{"$f":"V121*'Other input expert'!H$14*'Sales price per sales channel'!$I121*'Other input expert'!H$6","v":0},{"$f":"W121*'Other input expert'!I$14*'Sales price per sales channel'!$I121*'Other input expert'!I$6","v":0},{"$f":"X121*'Other input expert'!J$14*'Sales price per sales channel'!$I121*'Other input expert'!J$6","v":0},{"$f":"Y121*'Other input expert'!K$14*'Sales price per sales channel'!$I121*'Other input expert'!K$6","v":0},{"$f":"Z121*'Other input expert'!L$14*'Sales price per sales channel'!$I121*'Other input expert'!L$6","v":0},{"$f":"AA121*'Other input expert'!M$14*'Sales price per sales channel'!$I121*'Other input expert'!M$6","v":0},null,{"$f":"AC121*'Other input expert'!B$12*'Sales price per sales channel'!$G121*'Other input expert'!B$7","v":0},{"$f":"AD121*'Other input expert'!C$12*'Sales price per sales channel'!$G121*'Other input expert'!C$7","v":0},{"$f":"AE121*'Other input expert'!D$12*'Sales price per sales channel'!$G121*'Other input expert'!D$7","v":0},{"$f":"AF121*'Other input expert'!E$12*'Sales price per sales channel'!$G121*'Other input expert'!E$7","v":0},{"$f":"AG121*'Other input expert'!F$12*'Sales price per sales channel'!$G121*'Other input expert'!F$7","v":0},{"$f":"AH121*'Other input expert'!G$12*'Sales price per sales channel'!$G121*'Other input expert'!G$7","v":0},{"$f":"AI121*'Other input expert'!H$12*'Sales price per sales channel'!$G121*'Other input expert'!H$7","v":0},{"$f":"AJ121*'Other input expert'!I$12*'Sales price per sales channel'!$G121*'Other input expert'!I$7","v":0},{"$f":"AK121*'Other input expert'!J$12*'Sales price per sales channel'!$G121*'Other input expert'!J$7","v":0},{"$f":"AL121*'Other input expert'!K$12*'Sales price per sales channel'!$G121*'Other input expert'!K$7","v":0},{"$f":"AM121*'Other input expert'!L$12*'Sales price per sales channel'!$G121*'Other input expert'!L$7","v":0},{"$f":"AN121*'Other input expert'!M$12*'Sales price per sales channel'!$G121*'Other input expert'!M$7","v":0},null,{"$f":"AC121*'Other input expert'!B$13*'Sales price per sales channel'!$H121*'Other input expert'!B$7","v":0},{"$f":"AD121*'Other input expert'!C$13*'Sales price per sales channel'!$H121*'Other input expert'!C$7","v":0},{"$f":"AE121*'Other input expert'!D$13*'Sales price per sales channel'!$H121*'Other input expert'!D$7","v":0},{"$f":"AF121*'Other input expert'!E$13*'Sales price per sales channel'!$H121*'Other input expert'!E$7","v":0},{"$f":"AG121*'Other input expert'!F$13*'Sales price per sales channel'!$H121*'Other input expert'!F$7","v":0},{"$f":"AH121*'Other input expert'!G$13*'Sales price per sales channel'!$H121*'Other input expert'!G$7","v":0},{"$f":"AI121*'Other input expert'!H$13*'Sales price per sales channel'!$H121*'Other input expert'!H$7","v":0},{"$f":"AJ121*'Other input expert'!I$13*'Sales price per sales channel'!$H121*'Other input expert'!I$7","v":0},{"$f":"AK121*'Other input expert'!J$13*'Sales price per sales channel'!$H121*'Other input expert'!J$7","v":0},{"$f":"AL121*'Other input expert'!K$13*'Sales price per sales channel'!$H121*'Other input expert'!K$7","v":0},{"$f":"AM121*'Other input expert'!L$13*'Sales price per sales channel'!$H121*'Other input expert'!L$7","v":0},{"$f":"AN121*'Other input expert'!M$13*'Sales price per sales channel'!$H121*'Other input expert'!M$7","v":0},null,{"$f":"AC121*'Other input expert'!B$14*'Sales price per sales channel'!$I121*'Other input expert'!B$7","v":0},{"$f":"AD121*'Other input expert'!C$14*'Sales price per sales channel'!$I121*'Other input expert'!C$7","v":0},{"$f":"AE121*'Other input expert'!D$14*'Sales price per sales channel'!$I121*'Other input expert'!D$7","v":0},{"$f":"AF121*'Other input expert'!E$14*'Sales price per sales channel'!$I121*'Other input expert'!E$7","v":0},{"$f":"AG121*'Other input expert'!F$14*'Sales price per sales channel'!$I121*'Other input expert'!F$7","v":0},{"$f":"AH121*'Other input expert'!G$14*'Sales price per sales channel'!$I121*'Other input expert'!G$7","v":0},{"$f":"AI121*'Other input expert'!H$14*'Sales price per sales channel'!$I121*'Other input expert'!H$7","v":0},{"$f":"AJ121*'Other input expert'!I$14*'Sales price per sales channel'!$I121*'Other input expert'!I$7","v":0},{"$f":"AK121*'Other input expert'!J$14*'Sales price per sales channel'!$I121*'Other input expert'!J$7","v":0},{"$f":"AL121*'Other input expert'!K$14*'Sales price per sales channel'!$I121*'Other input expert'!K$7","v":0},{"$f":"AM121*'Other input expert'!L$14*'Sales price per sales channel'!$I121*'Other input expert'!L$7","v":0},{"$f":"AN121*'Other input expert'!M$14*'Sales price per sales channel'!$I121*'Other input expert'!M$7","v":0}]
["Pleurotus ostreatus","Oyster mushroom",{"$f":"Plantlist!$G122*'Production list'!D123*'Other input expert'!B$4*'Other input expert'!B$8","v":0},{"$f":"Plantlist!$G122*'Production list'!E123*'Other input expert'!C$4*'Other input expert'!C$8","v":0},{"$f":"Plantlist!$G122*'Production list'!F123*'Other input expert'!D$4*'Other input expert'!D$8","v":0},{"$f":"Plantlist!$G122*'Production list'!G123*'Other input expert'!E$4*'Other input expert'!E$8","v":0},{"$f":"Plantlist!$G122*'Production list'!H123*'Other input expert'!F$4*'Other input expert'!F$8","v":0},{"$f":"Plantlist!$G122*'Production list'!I123*'Other input expert'!G$4*'Other input expert'!G$8","v":0},{"$f":"Plantlist!$G122*'Production list'!J123*'Other input expert'!H$4*'Other input expert'!H$8","v":0},{"$f":"Plantlist!$G122*'Production list'!K123*'Other input expert'!I$4*'Other input expert'!I$8","v":0},{"$f":"Plantlist!$G122*'Production list'!L123*'Other input expert'!J$4*'Other input expert'!J$8","v":0},{"$f":"Plantlist!$G122*'Production list'!M123*'Other input expert'!K$4*'Other input expert'!K$8","v":0},{"$f":"Plantlist!$G122*'Production list'!N123*'Other input expert'!L$4*'Other input expert'!L$8","v":0},{"$f":"Plantlist!$G122*'Production list'!O123*'Other input expert'!M$4*'Other input expert'!M$8","v":0},null,{"$f":"C122*'Other input expert'!B$5","v":0},{"$f":"D122*'Other input expert'!C$5","v":0},{"$f":"E122*'Other input expert'!D$5","v":0},{"$f":"F122*'Other input expert'!E$5","v":0},{"$f":"G122*'Other input expert'!F$5","v":0},{"$f":"H122*'Other input expert'!G$5","v":0},{"$f":"I122*'Other input expert'!H$5","v":0},{"$f":"J122*'Other input expert'!I$5","v":0},{"$f":"K122*'Other input expert'!J$5","v":0},{"$f":"L122*'Other input expert'!K$5","v":0},{"$f":"M122*'Other input expert'!L$5","v":0},{"$f":"N122*'Other input expert'!M$5","v":0},null,{"$f":"C122*(100%-'Other input expert'!B$5)","v":0},{"$f":"D122*(100%-'Other input expert'!C$5)","v":0},{"$f":"E122*(100%-'Other input expert'!D$5)","v":0},{"$f":"F122*(100%-'Other input expert'!E$5)","v":0},{"$f":"G122*(100%-'Other input expert'!F$5)","v":0},{"$f":"H122*(100%-'Other input expert'!G$5)","v":0},{"$f":"I122*(100%-'Other input expert'!H$5)","v":0},{"$f":"J122*(100%-'Other input expert'!I$5)","v":0},{"$f":"K122*(100%-'Other input expert'!J$5)","v":0},{"$f":"L122*(100%-'Other input expert'!K$5)","v":0},{"$f":"M122*(100%-'Other input expert'!L$5)","v":0},{"$f":"N122*(100%-'Other input expert'!M$5)","v":0},null,{"$f":"P122*'Other input expert'!B$12*'Sales price per sales channel'!$G122*'Other input expert'!B$6","v":0},{"$f":"Q122*'Other input expert'!C$12*'Sales price per sales channel'!$G122*'Other input expert'!C$6","v":0},{"$f":"R122*'Other input expert'!D$12*'Sales price per sales channel'!$G122*'Other input expert'!D$6","v":0},{"$f":"S122*'Other input expert'!E$12*'Sales price per sales channel'!$G122*'Other input expert'!E$6","v":0},{"$f":"T122*'Other input expert'!F$12*'Sales price per sales channel'!$G122*'Other input expert'!F$6","v":0},{"$f":"U122*'Other input expert'!G$12*'Sales price per sales channel'!$G122*'Other input expert'!G$6","v":0},{"$f":"V122*'Other input expert'!H$12*'Sales price per sales channel'!$G122*'Other input expert'!H$6","v":0},{"$f":"W122*'Other input expert'!I$12*'Sales price per sales channel'!$G122*'Other input expert'!I$6","v":0},{"$f":"X122*'Other input expert'!J$12*'Sales price per sales channel'!$G122*'Other input expert'!J$6","v":0},{"$f":"Y122*'Other input expert'!K$12*'Sales price per sales channel'!$G122*'Other input expert'!K$6","v":0},{"$f":"Z122*'Other input expert'!L$12*'Sales price per sales channel'!$G122*'Other input expert'!L$6","v":0},{"$f":"AA122*'Other input expert'!M$12*'Sales price per sales channel'!$G122*'Other input expert'!M$6","v":0},null,{"$f":"P122*'Other input expert'!B$13*'Sales price per sales channel'!$H122*'Other input expert'!B$6","v":0},{"$f":"Q122*'Other input expert'!C$13*'Sales price per sales channel'!$H122*'Other input expert'!C$6","v":0},{"$f":"R122*'Other input expert'!D$13*'Sales price per sales channel'!$H122*'Other input expert'!D$6","v":0},{"$f":"S122*'Other input expert'!E$13*'Sales price per sales channel'!$H122*'Other input expert'!E$6","v":0},{"$f":"T122*'Other input expert'!F$13*'Sales price per sales channel'!$H122*'Other input expert'!F$6","v":0},{"$f":"U122*'Other input expert'!G$13*'Sales price per sales channel'!$H122*'Other input expert'!G$6","v":0},{"$f":"V122*'Other input expert'!H$13*'Sales price per sales channel'!$H122*'Other input expert'!H$6","v":0},{"$f":"W122*'Other input expert'!I$13*'Sales price per sales channel'!$H122*'Other input expert'!I$6","v":0},{"$f":"X122*'Other input expert'!J$13*'Sales price per sales channel'!$H122*'Other input expert'!J$6","v":0},{"$f":"Y122*'Other input expert'!K$13*'Sales price per sales channel'!$H122*'Other input expert'!K$6","v":0},{"$f":"Z122*'Other input expert'!L$13*'Sales price per sales channel'!$H122*'Other input expert'!L$6","v":0},{"$f":"AA122*'Other input expert'!M$13*'Sales price per sales channel'!$H122*'Other input expert'!M$6","v":0},null,{"$f":"P122*'Other input expert'!B$14*'Sales price per sales channel'!$I122*'Other input expert'!B$6","v":0},{"$f":"Q122*'Other input expert'!C$14*'Sales price per sales channel'!$I122*'Other input expert'!C$6","v":0},{"$f":"R122*'Other input expert'!D$14*'Sales price per sales channel'!$I122*'Other input expert'!D$6","v":0},{"$f":"S122*'Other input expert'!E$14*'Sales price per sales channel'!$I122*'Other input expert'!E$6","v":0},{"$f":"T122*'Other input expert'!F$14*'Sales price per sales channel'!$I122*'Other input expert'!F$6","v":0},{"$f":"U122*'Other input expert'!G$14*'Sales price per sales channel'!$I122*'Other input expert'!G$6","v":0},{"$f":"V122*'Other input expert'!H$14*'Sales price per sales channel'!$I122*'Other input expert'!H$6","v":0},{"$f":"W122*'Other input expert'!I$14*'Sales price per sales channel'!$I122*'Other input expert'!I$6","v":0},{"$f":"X122*'Other input expert'!J$14*'Sales price per sales channel'!$I122*'Other input expert'!J$6","v":0},{"$f":"Y122*'Other input expert'!K$14*'Sales price per sales channel'!$I122*'Other input expert'!K$6","v":0},{"$f":"Z122*'Other input expert'!L$14*'Sales price per sales channel'!$I122*'Other input expert'!L$6","v":0},{"$f":"AA122*'Other input expert'!M$14*'Sales price per sales channel'!$I122*'Other input expert'!M$6","v":0},null,{"$f":"AC122*'Other input expert'!B$12*'Sales price per sales channel'!$G122*'Other input expert'!B$7","v":0},{"$f":"AD122*'Other input expert'!C$12*'Sales price per sales channel'!$G122*'Other input expert'!C$7","v":0},{"$f":"AE122*'Other input expert'!D$12*'Sales price per sales channel'!$G122*'Other input expert'!D$7","v":0},{"$f":"AF122*'Other input expert'!E$12*'Sales price per sales channel'!$G122*'Other input expert'!E$7","v":0},{"$f":"AG122*'Other input expert'!F$12*'Sales price per sales channel'!$G122*'Other input expert'!F$7","v":0},{"$f":"AH122*'Other input expert'!G$12*'Sales price per sales channel'!$G122*'Other input expert'!G$7","v":0},{"$f":"AI122*'Other input expert'!H$12*'Sales price per sales channel'!$G122*'Other input expert'!H$7","v":0},{"$f":"AJ122*'Other input expert'!I$12*'Sales price per sales channel'!$G122*'Other input expert'!I$7","v":0},{"$f":"AK122*'Other input expert'!J$12*'Sales price per sales channel'!$G122*'Other input expert'!J$7","v":0},{"$f":"AL122*'Other input expert'!K$12*'Sales price per sales channel'!$G122*'Other input expert'!K$7","v":0},{"$f":"AM122*'Other input expert'!L$12*'Sales price per sales channel'!$G122*'Other input expert'!L$7","v":0},{"$f":"AN122*'Other input expert'!M$12*'Sales price per sales channel'!$G122*'Other input expert'!M$7","v":0},null,{"$f":"AC122*'Other input expert'!B$13*'Sales price per sales channel'!$H122*'Other input expert'!B$7","v":0},{"$f":"AD122*'Other input expert'!C$13*'Sales price per sales channel'!$H122*'Other input expert'!C$7","v":0},{"$f":"AE122*'Other input expert'!D$13*'Sales price per sales channel'!$H122*'Other input expert'!D$7","v":0},{"$f":"AF122*'Other input expert'!E$13*'Sales price per sales channel'!$H122*'Other input expert'!E$7","v":0},{"$f":"AG122*'Other input expert'!F$13*'Sales price per sales channel'!$H122*'Other input expert'!F$7","v":0},{"$f":"AH122*'Other input expert'!G$13*'Sales price per sales channel'!$H122*'Other input expert'!G$7","v":0},{"$f":"AI122*'Other input expert'!H$13*'Sales price per sales channel'!$H122*'Other input expert'!H$7","v":0},{"$f":"AJ122*'Other input expert'!I$13*'Sales price per sales channel'!$H122*'Other input expert'!I$7","v":0},{"$f":"AK122*'Other input expert'!J$13*'Sales price per sales channel'!$H122*'Other input expert'!J$7","v":0},{"$f":"AL122*'Other input expert'!K$13*'Sales price per sales channel'!$H122*'Other input expert'!K$7","v":0},{"$f":"AM122*'Other input expert'!L$13*'Sales price per sales channel'!$H122*'Other input expert'!L$7","v":0},{"$f":"AN122*'Other input expert'!M$13*'Sales price per sales channel'!$H122*'Other input expert'!M$7","v":0},null,{"$f":"AC122*'Other input expert'!B$14*'Sales price per sales channel'!$I122*'Other input expert'!B$7","v":0},{"$f":"AD122*'Other input expert'!C$14*'Sales price per sales channel'!$I122*'Other input expert'!C$7","v":0},{"$f":"AE122*'Other input expert'!D$14*'Sales price per sales channel'!$I122*'Other input expert'!D$7","v":0},{"$f":"AF122*'Other input expert'!E$14*'Sales price per sales channel'!$I122*'Other input expert'!E$7","v":0},{"$f":"AG122*'Other input expert'!F$14*'Sales price per sales channel'!$I122*'Other input expert'!F$7","v":0},{"$f":"AH122*'Other input expert'!G$14*'Sales price per sales channel'!$I122*'Other input expert'!G$7","v":0},{"$f":"AI122*'Other input expert'!H$14*'Sales price per sales channel'!$I122*'Other input expert'!H$7","v":0},{"$f":"AJ122*'Other input expert'!I$14*'Sales price per sales channel'!$I122*'Other input expert'!I$7","v":0},{"$f":"AK122*'Other input expert'!J$14*'Sales price per sales channel'!$I122*'Other input expert'!J$7","v":0},{"$f":"AL122*'Other input expert'!K$14*'Sales price per sales channel'!$I122*'Other input expert'!K$7","v":0},{"$f":"AM122*'Other input expert'!L$14*'Sales price per sales channel'!$I122*'Other input expert'!L$7","v":0},{"$f":"AN122*'Other input expert'!M$14*'Sales price per sales channel'!$I122*'Other input expert'!M$7","v":0}]
["Poncirus trifoliata","Hardy orange",{"$f":"Plantlist!$G123*'Production list'!D124*'Other input expert'!B$4*'Other input expert'!B$8","v":0},{"$f":"Plantlist!$G123*'Production list'!E124*'Other input expert'!C$4*'Other input expert'!C$8","v":0},{"$f":"Plantlist!$G123*'Production list'!F124*'Other input expert'!D$4*'Other input expert'!D$8","v":0},{"$f":"Plantlist!$G123*'Production list'!G124*'Other input expert'!E$4*'Other input expert'!E$8","v":0},{"$f":"Plantlist!$G123*'Production list'!H124*'Other input expert'!F$4*'Other input expert'!F$8","v":0},{"$f":"Plantlist!$G123*'Production list'!I124*'Other input expert'!G$4*'Other input expert'!G$8","v":0},{"$f":"Plantlist!$G123*'Production list'!J124*'Other input expert'!H$4*'Other input expert'!H$8","v":0},{"$f":"Plantlist!$G123*'Production list'!K124*'Other input expert'!I$4*'Other input expert'!I$8","v":0},{"$f":"Plantlist!$G123*'Production list'!L124*'Other input expert'!J$4*'Other input expert'!J$8","v":0},{"$f":"Plantlist!$G123*'Production list'!M124*'Other input expert'!K$4*'Other input expert'!K$8","v":0},{"$f":"Plantlist!$G123*'Production list'!N124*'Other input expert'!L$4*'Other input expert'!L$8","v":0},{"$f":"Plantlist!$G123*'Production list'!O124*'Other input expert'!M$4*'Other input expert'!M$8","v":0},null,{"$f":"C123*'Other input expert'!B$5","v":0},{"$f":"D123*'Other input expert'!C$5","v":0},{"$f":"E123*'Other input expert'!D$5","v":0},{"$f":"F123*'Other input expert'!E$5","v":0},{"$f":"G123*'Other input expert'!F$5","v":0},{"$f":"H123*'Other input expert'!G$5","v":0},{"$f":"I123*'Other input expert'!H$5","v":0},{"$f":"J123*'Other input expert'!I$5","v":0},{"$f":"K123*'Other input expert'!J$5","v":0},{"$f":"L123*'Other input expert'!K$5","v":0},{"$f":"M123*'Other input expert'!L$5","v":0},{"$f":"N123*'Other input expert'!M$5","v":0},null,{"$f":"C123*(100%-'Other input expert'!B$5)","v":0},{"$f":"D123*(100%-'Other input expert'!C$5)","v":0},{"$f":"E123*(100%-'Other input expert'!D$5)","v":0},{"$f":"F123*(100%-'Other input expert'!E$5)","v":0},{"$f":"G123*(100%-'Other input expert'!F$5)","v":0},{"$f":"H123*(100%-'Other input expert'!G$5)","v":0},{"$f":"I123*(100%-'Other input expert'!H$5)","v":0},{"$f":"J123*(100%-'Other input expert'!I$5)","v":0},{"$f":"K123*(100%-'Other input expert'!J$5)","v":0},{"$f":"L123*(100%-'Other input expert'!K$5)","v":0},{"$f":"M123*(100%-'Other input expert'!L$5)","v":0},{"$f":"N123*(100%-'Other input expert'!M$5)","v":0},null,{"$f":"P123*'Other input expert'!B$12*'Sales price per sales channel'!$G123*'Other input expert'!B$6","v":0},{"$f":"Q123*'Other input expert'!C$12*'Sales price per sales channel'!$G123*'Other input expert'!C$6","v":0},{"$f":"R123*'Other input expert'!D$12*'Sales price per sales channel'!$G123*'Other input expert'!D$6","v":0},{"$f":"S123*'Other input expert'!E$12*'Sales price per sales channel'!$G123*'Other input expert'!E$6","v":0},{"$f":"T123*'Other input expert'!F$12*'Sales price per sales channel'!$G123*'Other input expert'!F$6","v":0},{"$f":"U123*'Other input expert'!G$12*'Sales price per sales channel'!$G123*'Other input expert'!G$6","v":0},{"$f":"V123*'Other input expert'!H$12*'Sales price per sales channel'!$G123*'Other input expert'!H$6","v":0},{"$f":"W123*'Other input expert'!I$12*'Sales price per sales channel'!$G123*'Other input expert'!I$6","v":0},{"$f":"X123*'Other input expert'!J$12*'Sales price per sales channel'!$G123*'Other input expert'!J$6","v":0},{"$f":"Y123*'Other input expert'!K$12*'Sales price per sales channel'!$G123*'Other input expert'!K$6","v":0},{"$f":"Z123*'Other input expert'!L$12*'Sales price per sales channel'!$G123*'Other input expert'!L$6","v":0},{"$f":"AA123*'Other input expert'!M$12*'Sales price per sales channel'!$G123*'Other input expert'!M$6","v":0},null,{"$f":"P123*'Other input expert'!B$13*'Sales price per sales channel'!$H123*'Other input expert'!B$6","v":0},{"$f":"Q123*'Other input expert'!C$13*'Sales price per sales channel'!$H123*'Other input expert'!C$6","v":0},{"$f":"R123*'Other input expert'!D$13*'Sales price per sales channel'!$H123*'Other input expert'!D$6","v":0},{"$f":"S123*'Other input expert'!E$13*'Sales price per sales channel'!$H123*'Other input expert'!E$6","v":0},{"$f":"T123*'Other input expert'!F$13*'Sales price per sales channel'!$H123*'Other input expert'!F$6","v":0},{"$f":"U123*'Other input expert'!G$13*'Sales price per sales channel'!$H123*'Other input expert'!G$6","v":0},{"$f":"V123*'Other input expert'!H$13*'Sales price per sales channel'!$H123*'Other input expert'!H$6","v":0},{"$f":"W123*'Other input expert'!I$13*'Sales price per sales channel'!$H123*'Other input expert'!I$6","v":0},{"$f":"X123*'Other input expert'!J$13*'Sales price per sales channel'!$H123*'Other input expert'!J$6","v":0},{"$f":"Y123*'Other input expert'!K$13*'Sales price per sales channel'!$H123*'Other input expert'!K$6","v":0},{"$f":"Z123*'Other input expert'!L$13*'Sales price per sales channel'!$H123*'Other input expert'!L$6","v":0},{"$f":"AA123*'Other input expert'!M$13*'Sales price per sales channel'!$H123*'Other input expert'!M$6","v":0},null,{"$f":"P123*'Other input expert'!B$14*'Sales price per sales channel'!$I123*'Other input expert'!B$6","v":0},{"$f":"Q123*'Other input expert'!C$14*'Sales price per sales channel'!$I123*'Other input expert'!C$6","v":0},{"$f":"R123*'Other input expert'!D$14*'Sales price per sales channel'!$I123*'Other input expert'!D$6","v":0},{"$f":"S123*'Other input expert'!E$14*'Sales price per sales channel'!$I123*'Other input expert'!E$6","v":0},{"$f":"T123*'Other input expert'!F$14*'Sales price per sales channel'!$I123*'Other input expert'!F$6","v":0},{"$f":"U123*'Other input expert'!G$14*'Sales price per sales channel'!$I123*'Other input expert'!G$6","v":0},{"$f":"V123*'Other input expert'!H$14*'Sales price per sales channel'!$I123*'Other input expert'!H$6","v":0},{"$f":"W123*'Other input expert'!I$14*'Sales price per sales channel'!$I123*'Other input expert'!I$6","v":0},{"$f":"X123*'Other input expert'!J$14*'Sales price per sales channel'!$I123*'Other input expert'!J$6","v":0},{"$f":"Y123*'Other input expert'!K$14*'Sales price per sales channel'!$I123*'Other input expert'!K$6","v":0},{"$f":"Z123*'Other input expert'!L$14*'Sales price per sales channel'!$I123*'Other input expert'!L$6","v":0},{"$f":"AA123*'Other input expert'!M$14*'Sales price per sales channel'!$I123*'Other input expert'!M$6","v":0},null,{"$f":"AC123*'Other input expert'!B$12*'Sales price per sales channel'!$G123*'Other input expert'!B$7","v":0},{"$f":"AD123*'Other input expert'!C$12*'Sales price per sales channel'!$G123*'Other input expert'!C$7","v":0},{"$f":"AE123*'Other input expert'!D$12*'Sales price per sales channel'!$G123*'Other input expert'!D$7","v":0},{"$f":"AF123*'Other input expert'!E$12*'Sales price per sales channel'!$G123*'Other input expert'!E$7","v":0},{"$f":"AG123*'Other input expert'!F$12*'Sales price per sales channel'!$G123*'Other input expert'!F$7","v":0},{"$f":"AH123*'Other input expert'!G$12*'Sales price per sales channel'!$G123*'Other input expert'!G$7","v":0},{"$f":"AI123*'Other input expert'!H$12*'Sales price per sales channel'!$G123*'Other input expert'!H$7","v":0},{"$f":"AJ123*'Other input expert'!I$12*'Sales price per sales channel'!$G123*'Other input expert'!I$7","v":0},{"$f":"AK123*'Other input expert'!J$12*'Sales price per sales channel'!$G123*'Other input expert'!J$7","v":0},{"$f":"AL123*'Other input expert'!K$12*'Sales price per sales channel'!$G123*'Other input expert'!K$7","v":0},{"$f":"AM123*'Other input expert'!L$12*'Sales price per sales channel'!$G123*'Other input expert'!L$7","v":0},{"$f":"AN123*'Other input expert'!M$12*'Sales price per sales channel'!$G123*'Other input expert'!M$7","v":0},null,{"$f":"AC123*'Other input expert'!B$13*'Sales price per sales channel'!$H123*'Other input expert'!B$7","v":0},{"$f":"AD123*'Other input expert'!C$13*'Sales price per sales channel'!$H123*'Other input expert'!C$7","v":0},{"$f":"AE123*'Other input expert'!D$13*'Sales price per sales channel'!$H123*'Other input expert'!D$7","v":0},{"$f":"AF123*'Other input expert'!E$13*'Sales price per sales channel'!$H123*'Other input expert'!E$7","v":0},{"$f":"AG123*'Other input expert'!F$13*'Sales price per sales channel'!$H123*'Other input expert'!F$7","v":0},{"$f":"AH123*'Other input expert'!G$13*'Sales price per sales channel'!$H123*'Other input expert'!G$7","v":0},{"$f":"AI123*'Other input expert'!H$13*'Sales price per sales channel'!$H123*'Other input expert'!H$7","v":0},{"$f":"AJ123*'Other input expert'!I$13*'Sales price per sales channel'!$H123*'Other input expert'!I$7","v":0},{"$f":"AK123*'Other input expert'!J$13*'Sales price per sales channel'!$H123*'Other input expert'!J$7","v":0},{"$f":"AL123*'Other input expert'!K$13*'Sales price per sales channel'!$H123*'Other input expert'!K$7","v":0},{"$f":"AM123*'Other input expert'!L$13*'Sales price per sales channel'!$H123*'Other input expert'!L$7","v":0},{"$f":"AN123*'Other input expert'!M$13*'Sales price per sales channel'!$H123*'Other input expert'!M$7","v":0},null,{"$f":"AC123*'Other input expert'!B$14*'Sales price per sales channel'!$I123*'Other input expert'!B$7","v":0},{"$f":"AD123*'Other input expert'!C$14*'Sales price per sales channel'!$I123*'Other input expert'!C$7","v":0},{"$f":"AE123*'Other input expert'!D$14*'Sales price per sales channel'!$I123*'Other input expert'!D$7","v":0},{"$f":"AF123*'Other input expert'!E$14*'Sales price per sales channel'!$I123*'Other input expert'!E$7","v":0},{"$f":"AG123*'Other input expert'!F$14*'Sales price per sales channel'!$I123*'Other input expert'!F$7","v":0},{"$f":"AH123*'Other input expert'!G$14*'Sales price per sales channel'!$I123*'Other input expert'!G$7","v":0},{"$f":"AI123*'Other input expert'!H$14*'Sales price per sales channel'!$I123*'Other input expert'!H$7","v":0},{"$f":"AJ123*'Other input expert'!I$14*'Sales price per sales channel'!$I123*'Other input expert'!I$7","v":0},{"$f":"AK123*'Other input expert'!J$14*'Sales price per sales channel'!$I123*'Other input expert'!J$7","v":0},{"$f":"AL123*'Other input expert'!K$14*'Sales price per sales channel'!$I123*'Other input expert'!K$7","v":0},{"$f":"AM123*'Other input expert'!L$14*'Sales price per sales channel'!$I123*'Other input expert'!L$7","v":0},{"$f":"AN123*'Other input expert'!M$14*'Sales price per sales channel'!$I123*'Other input expert'!M$7","v":0}]
["Populus canadensis","Poplar",{"$f":"Plantlist!$G124*'Production list'!D125*'Other input expert'!B$4*'Other input expert'!B$8","v":0},{"$f":"Plantlist!$G124*'Production list'!E125*'Other input expert'!C$4*'Other input expert'!C$8","v":0},{"$f":"Plantlist!$G124*'Production list'!F125*'Other input expert'!D$4*'Other input expert'!D$8","v":0},{"$f":"Plantlist!$G124*'Production list'!G125*'Other input expert'!E$4*'Other input expert'!E$8","v":0},{"$f":"Plantlist!$G124*'Production list'!H125*'Other input expert'!F$4*'Other input expert'!F$8","v":0},{"$f":"Plantlist!$G124*'Production list'!I125*'Other input expert'!G$4*'Other input expert'!G$8","v":0},{"$f":"Plantlist!$G124*'Production list'!J125*'Other input expert'!H$4*'Other input expert'!H$8","v":0},{"$f":"Plantlist!$G124*'Production list'!K125*'Other input expert'!I$4*'Other input expert'!I$8","v":0},{"$f":"Plantlist!$G124*'Production list'!L125*'Other input expert'!J$4*'Other input expert'!J$8","v":0},{"$f":"Plantlist!$G124*'Production list'!M125*'Other input expert'!K$4*'Other input expert'!K$8","v":0},{"$f":"Plantlist!$G124*'Production list'!N125*'Other input expert'!L$4*'Other input expert'!L$8","v":0},{"$f":"Plantlist!$G124*'Production list'!O125*'Other input expert'!M$4*'Other input expert'!M$8","v":0},null,{"$f":"C124*'Other input expert'!B$5","v":0},{"$f":"D124*'Other input expert'!C$5","v":0},{"$f":"E124*'Other input expert'!D$5","v":0},{"$f":"F124*'Other input expert'!E$5","v":0},{"$f":"G124*'Other input expert'!F$5","v":0},{"$f":"H124*'Other input expert'!G$5","v":0},{"$f":"I124*'Other input expert'!H$5","v":0},{"$f":"J124*'Other input expert'!I$5","v":0},{"$f":"K124*'Other input expert'!J$5","v":0},{"$f":"L124*'Other input expert'!K$5","v":0},{"$f":"M124*'Other input expert'!L$5","v":0},{"$f":"N124*'Other input expert'!M$5","v":0},null,{"$f":"C124*(100%-'Other input expert'!B$5)","v":0},{"$f":"D124*(100%-'Other input expert'!C$5)","v":0},{"$f":"E124*(100%-'Other input expert'!D$5)","v":0},{"$f":"F124*(100%-'Other input expert'!E$5)","v":0},{"$f":"G124*(100%-'Other input expert'!F$5)","v":0},{"$f":"H124*(100%-'Other input expert'!G$5)","v":0},{"$f":"I124*(100%-'Other input expert'!H$5)","v":0},{"$f":"J124*(100%-'Other input expert'!I$5)","v":0},{"$f":"K124*(100%-'Other input expert'!J$5)","v":0},{"$f":"L124*(100%-'Other input expert'!K$5)","v":0},{"$f":"M124*(100%-'Other input expert'!L$5)","v":0},{"$f":"N124*(100%-'Other input expert'!M$5)","v":0},null,{"$f":"P124*'Other input expert'!B$12*'Sales price per sales channel'!$G124*'Other input expert'!B$6","v":0},{"$f":"Q124*'Other input expert'!C$12*'Sales price per sales channel'!$G124*'Other input expert'!C$6","v":0},{"$f":"R124*'Other input expert'!D$12*'Sales price per sales channel'!$G124*'Other input expert'!D$6","v":0},{"$f":"S124*'Other input expert'!E$12*'Sales price per sales channel'!$G124*'Other input expert'!E$6","v":0},{"$f":"T124*'Other input expert'!F$12*'Sales price per sales channel'!$G124*'Other input expert'!F$6","v":0},{"$f":"U124*'Other input expert'!G$12*'Sales price per sales channel'!$G124*'Other input expert'!G$6","v":0},{"$f":"V124*'Other input expert'!H$12*'Sales price per sales channel'!$G124*'Other input expert'!H$6","v":0},{"$f":"W124*'Other input expert'!I$12*'Sales price per sales channel'!$G124*'Other input expert'!I$6","v":0},{"$f":"X124*'Other input expert'!J$12*'Sales price per sales channel'!$G124*'Other input expert'!J$6","v":0},{"$f":"Y124*'Other input expert'!K$12*'Sales price per sales channel'!$G124*'Other input expert'!K$6","v":0},{"$f":"Z124*'Other input expert'!L$12*'Sales price per sales channel'!$G124*'Other input expert'!L$6","v":0},{"$f":"AA124*'Other input expert'!M$12*'Sales price per sales channel'!$G124*'Other input expert'!M$6","v":0},null,{"$f":"P124*'Other input expert'!B$13*'Sales price per sales channel'!$H124*'Other input expert'!B$6","v":0},{"$f":"Q124*'Other input expert'!C$13*'Sales price per sales channel'!$H124*'Other input expert'!C$6","v":0},{"$f":"R124*'Other input expert'!D$13*'Sales price per sales channel'!$H124*'Other input expert'!D$6","v":0},{"$f":"S124*'Other input expert'!E$13*'Sales price per sales channel'!$H124*'Other input expert'!E$6","v":0},{"$f":"T124*'Other input expert'!F$13*'Sales price per sales channel'!$H124*'Other input expert'!F$6","v":0},{"$f":"U124*'Other input expert'!G$13*'Sales price per sales channel'!$H124*'Other input expert'!G$6","v":0},{"$f":"V124*'Other input expert'!H$13*'Sales price per sales channel'!$H124*'Other input expert'!H$6","v":0},{"$f":"W124*'Other input expert'!I$13*'Sales price per sales channel'!$H124*'Other input expert'!I$6","v":0},{"$f":"X124*'Other input expert'!J$13*'Sales price per sales channel'!$H124*'Other input expert'!J$6","v":0},{"$f":"Y124*'Other input expert'!K$13*'Sales price per sales channel'!$H124*'Other input expert'!K$6","v":0},{"$f":"Z124*'Other input expert'!L$13*'Sales price per sales channel'!$H124*'Other input expert'!L$6","v":0},{"$f":"AA124*'Other input expert'!M$13*'Sales price per sales channel'!$H124*'Other input expert'!M$6","v":0},null,{"$f":"P124*'Other input expert'!B$14*'Sales price per sales channel'!$I124*'Other input expert'!B$6","v":0},{"$f":"Q124*'Other input expert'!C$14*'Sales price per sales channel'!$I124*'Other input expert'!C$6","v":0},{"$f":"R124*'Other input expert'!D$14*'Sales price per sales channel'!$I124*'Other input expert'!D$6","v":0},{"$f":"S124*'Other input expert'!E$14*'Sales price per sales channel'!$I124*'Other input expert'!E$6","v":0},{"$f":"T124*'Other input expert'!F$14*'Sales price per sales channel'!$I124*'Other input expert'!F$6","v":0},{"$f":"U124*'Other input expert'!G$14*'Sales price per sales channel'!$I124*'Other input expert'!G$6","v":0},{"$f":"V124*'Other input expert'!H$14*'Sales price per sales channel'!$I124*'Other input expert'!H$6","v":0},{"$f":"W124*'Other input expert'!I$14*'Sales price per sales channel'!$I124*'Other input expert'!I$6","v":0},{"$f":"X124*'Other input expert'!J$14*'Sales price per sales channel'!$I124*'Other input expert'!J$6","v":0},{"$f":"Y124*'Other input expert'!K$14*'Sales price per sales channel'!$I124*'Other input expert'!K$6","v":0},{"$f":"Z124*'Other input expert'!L$14*'Sales price per sales channel'!$I124*'Other input expert'!L$6","v":0},{"$f":"AA124*'Other input expert'!M$14*'Sales price per sales channel'!$I124*'Other input expert'!M$6","v":0},null,{"$f":"AC124*'Other input expert'!B$12*'Sales price per sales channel'!$G124*'Other input expert'!B$7","v":0},{"$f":"AD124*'Other input expert'!C$12*'Sales price per sales channel'!$G124*'Other input expert'!C$7","v":0},{"$f":"AE124*'Other input expert'!D$12*'Sales price per sales channel'!$G124*'Other input expert'!D$7","v":0},{"$f":"AF124*'Other input expert'!E$12*'Sales price per sales channel'!$G124*'Other input expert'!E$7","v":0},{"$f":"AG124*'Other input expert'!F$12*'Sales price per sales channel'!$G124*'Other input expert'!F$7","v":0},{"$f":"AH124*'Other input expert'!G$12*'Sales price per sales channel'!$G124*'Other input expert'!G$7","v":0},{"$f":"AI124*'Other input expert'!H$12*'Sales price per sales channel'!$G124*'Other input expert'!H$7","v":0},{"$f":"AJ124*'Other input expert'!I$12*'Sales price per sales channel'!$G124*'Other input expert'!I$7","v":0},{"$f":"AK124*'Other input expert'!J$12*'Sales price per sales channel'!$G124*'Other input expert'!J$7","v":0},{"$f":"AL124*'Other input expert'!K$12*'Sales price per sales channel'!$G124*'Other input expert'!K$7","v":0},{"$f":"AM124*'Other input expert'!L$12*'Sales price per sales channel'!$G124*'Other input expert'!L$7","v":0},{"$f":"AN124*'Other input expert'!M$12*'Sales price per sales channel'!$G124*'Other input expert'!M$7","v":0},null,{"$f":"AC124*'Other input expert'!B$13*'Sales price per sales channel'!$H124*'Other input expert'!B$7","v":0},{"$f":"AD124*'Other input expert'!C$13*'Sales price per sales channel'!$H124*'Other input expert'!C$7","v":0},{"$f":"AE124*'Other input expert'!D$13*'Sales price per sales channel'!$H124*'Other input expert'!D$7","v":0},{"$f":"AF124*'Other input expert'!E$13*'Sales price per sales channel'!$H124*'Other input expert'!E$7","v":0},{"$f":"AG124*'Other input expert'!F$13*'Sales price per sales channel'!$H124*'Other input expert'!F$7","v":0},{"$f":"AH124*'Other input expert'!G$13*'Sales price per sales channel'!$H124*'Other input expert'!G$7","v":0},{"$f":"AI124*'Other input expert'!H$13*'Sales price per sales channel'!$H124*'Other input expert'!H$7","v":0},{"$f":"AJ124*'Other input expert'!I$13*'Sales price per sales channel'!$H124*'Other input expert'!I$7","v":0},{"$f":"AK124*'Other input expert'!J$13*'Sales price per sales channel'!$H124*'Other input expert'!J$7","v":0},{"$f":"AL124*'Other input expert'!K$13*'Sales price per sales channel'!$H124*'Other input expert'!K$7","v":0},{"$f":"AM124*'Other input expert'!L$13*'Sales price per sales channel'!$H124*'Other input expert'!L$7","v":0},{"$f":"AN124*'Other input expert'!M$13*'Sales price per sales channel'!$H124*'Other input expert'!M$7","v":0},null,{"$f":"AC124*'Other input expert'!B$14*'Sales price per sales channel'!$I124*'Other input expert'!B$7","v":0},{"$f":"AD124*'Other input expert'!C$14*'Sales price per sales channel'!$I124*'Other input expert'!C$7","v":0},{"$f":"AE124*'Other input expert'!D$14*'Sales price per sales channel'!$I124*'Other input expert'!D$7","v":0},{"$f":"AF124*'Other input expert'!E$14*'Sales price per sales channel'!$I124*'Other input expert'!E$7","v":0},{"$f":"AG124*'Other input expert'!F$14*'Sales price per sales channel'!$I124*'Other input expert'!F$7","v":0},{"$f":"AH124*'Other input expert'!G$14*'Sales price per sales channel'!$I124*'Other input expert'!G$7","v":0},{"$f":"AI124*'Other input expert'!H$14*'Sales price per sales channel'!$I124*'Other input expert'!H$7","v":0},{"$f":"AJ124*'Other input expert'!I$14*'Sales price per sales channel'!$I124*'Other input expert'!I$7","v":0},{"$f":"AK124*'Other input expert'!J$14*'Sales price per sales channel'!$I124*'Other input expert'!J$7","v":0},{"$f":"AL124*'Other input expert'!K$14*'Sales price per sales channel'!$I124*'Other input expert'!K$7","v":0},{"$f":"AM124*'Other input expert'!L$14*'Sales price per sales channel'!$I124*'Other input expert'!L$7","v":0},{"$f":"AN124*'Other input expert'!M$14*'Sales price per sales channel'!$I124*'Other input expert'!M$7","v":0}]
["Primula vulgaris","Primrose",{"$f":"Plantlist!$G125*'Production list'!D126*'Other input expert'!B$4*'Other input expert'!B$8","v":0},{"$f":"Plantlist!$G125*'Production list'!E126*'Other input expert'!C$4*'Other input expert'!C$8","v":0},{"$f":"Plantlist!$G125*'Production list'!F126*'Other input expert'!D$4*'Other input expert'!D$8","v":0},{"$f":"Plantlist!$G125*'Production list'!G126*'Other input expert'!E$4*'Other input expert'!E$8","v":0},{"$f":"Plantlist!$G125*'Production list'!H126*'Other input expert'!F$4*'Other input expert'!F$8","v":0},{"$f":"Plantlist!$G125*'Production list'!I126*'Other input expert'!G$4*'Other input expert'!G$8","v":0},{"$f":"Plantlist!$G125*'Production list'!J126*'Other input expert'!H$4*'Other input expert'!H$8","v":0},{"$f":"Plantlist!$G125*'Production list'!K126*'Other input expert'!I$4*'Other input expert'!I$8","v":0},{"$f":"Plantlist!$G125*'Production list'!L126*'Other input expert'!J$4*'Other input expert'!J$8","v":0},{"$f":"Plantlist!$G125*'Production list'!M126*'Other input expert'!K$4*'Other input expert'!K$8","v":0},{"$f":"Plantlist!$G125*'Production list'!N126*'Other input expert'!L$4*'Other input expert'!L$8","v":0},{"$f":"Plantlist!$G125*'Production list'!O126*'Other input expert'!M$4*'Other input expert'!M$8","v":0},null,{"$f":"C125*'Other input expert'!B$5","v":0},{"$f":"D125*'Other input expert'!C$5","v":0},{"$f":"E125*'Other input expert'!D$5","v":0},{"$f":"F125*'Other input expert'!E$5","v":0},{"$f":"G125*'Other input expert'!F$5","v":0},{"$f":"H125*'Other input expert'!G$5","v":0},{"$f":"I125*'Other input expert'!H$5","v":0},{"$f":"J125*'Other input expert'!I$5","v":0},{"$f":"K125*'Other input expert'!J$5","v":0},{"$f":"L125*'Other input expert'!K$5","v":0},{"$f":"M125*'Other input expert'!L$5","v":0},{"$f":"N125*'Other input expert'!M$5","v":0},null,{"$f":"C125*(100%-'Other input expert'!B$5)","v":0},{"$f":"D125*(100%-'Other input expert'!C$5)","v":0},{"$f":"E125*(100%-'Other input expert'!D$5)","v":0},{"$f":"F125*(100%-'Other input expert'!E$5)","v":0},{"$f":"G125*(100%-'Other input expert'!F$5)","v":0},{"$f":"H125*(100%-'Other input expert'!G$5)","v":0},{"$f":"I125*(100%-'Other input expert'!H$5)","v":0},{"$f":"J125*(100%-'Other input expert'!I$5)","v":0},{"$f":"K125*(100%-'Other input expert'!J$5)","v":0},{"$f":"L125*(100%-'Other input expert'!K$5)","v":0},{"$f":"M125*(100%-'Other input expert'!L$5)","v":0},{"$f":"N125*(100%-'Other input expert'!M$5)","v":0},null,{"$f":"P125*'Other input expert'!B$12*'Sales price per sales channel'!$G125*'Other input expert'!B$6","v":0},{"$f":"Q125*'Other input expert'!C$12*'Sales price per sales channel'!$G125*'Other input expert'!C$6","v":0},{"$f":"R125*'Other input expert'!D$12*'Sales price per sales channel'!$G125*'Other input expert'!D$6","v":0},{"$f":"S125*'Other input expert'!E$12*'Sales price per sales channel'!$G125*'Other input expert'!E$6","v":0},{"$f":"T125*'Other input expert'!F$12*'Sales price per sales channel'!$G125*'Other input expert'!F$6","v":0},{"$f":"U125*'Other input expert'!G$12*'Sales price per sales channel'!$G125*'Other input expert'!G$6","v":0},{"$f":"V125*'Other input expert'!H$12*'Sales price per sales channel'!$G125*'Other input expert'!H$6","v":0},{"$f":"W125*'Other input expert'!I$12*'Sales price per sales channel'!$G125*'Other input expert'!I$6","v":0},{"$f":"X125*'Other input expert'!J$12*'Sales price per sales channel'!$G125*'Other input expert'!J$6","v":0},{"$f":"Y125*'Other input expert'!K$12*'Sales price per sales channel'!$G125*'Other input expert'!K$6","v":0},{"$f":"Z125*'Other input expert'!L$12*'Sales price per sales channel'!$G125*'Other input expert'!L$6","v":0},{"$f":"AA125*'Other input expert'!M$12*'Sales price per sales channel'!$G125*'Other input expert'!M$6","v":0},null,{"$f":"P125*'Other input expert'!B$13*'Sales price per sales channel'!$H125*'Other input expert'!B$6","v":0},{"$f":"Q125*'Other input expert'!C$13*'Sales price per sales channel'!$H125*'Other input expert'!C$6","v":0},{"$f":"R125*'Other input expert'!D$13*'Sales price per sales channel'!$H125*'Other input expert'!D$6","v":0},{"$f":"S125*'Other input expert'!E$13*'Sales price per sales channel'!$H125*'Other input expert'!E$6","v":0},{"$f":"T125*'Other input expert'!F$13*'Sales price per sales channel'!$H125*'Other input expert'!F$6","v":0},{"$f":"U125*'Other input expert'!G$13*'Sales price per sales channel'!$H125*'Other input expert'!G$6","v":0},{"$f":"V125*'Other input expert'!H$13*'Sales price per sales channel'!$H125*'Other input expert'!H$6","v":0},{"$f":"W125*'Other input expert'!I$13*'Sales price per sales channel'!$H125*'Other input expert'!I$6","v":0},{"$f":"X125*'Other input expert'!J$13*'Sales price per sales channel'!$H125*'Other input expert'!J$6","v":0},{"$f":"Y125*'Other input expert'!K$13*'Sales price per sales channel'!$H125*'Other input expert'!K$6","v":0},{"$f":"Z125*'Other input expert'!L$13*'Sales price per sales channel'!$H125*'Other input expert'!L$6","v":0},{"$f":"AA125*'Other input expert'!M$13*'Sales price per sales channel'!$H125*'Other input expert'!M$6","v":0},null,{"$f":"P125*'Other input expert'!B$14*'Sales price per sales channel'!$I125*'Other input expert'!B$6","v":0},{"$f":"Q125*'Other input expert'!C$14*'Sales price per sales channel'!$I125*'Other input expert'!C$6","v":0},{"$f":"R125*'Other input expert'!D$14*'Sales price per sales channel'!$I125*'Other input expert'!D$6","v":0},{"$f":"S125*'Other input expert'!E$14*'Sales price per sales channel'!$I125*'Other input expert'!E$6","v":0},{"$f":"T125*'Other input expert'!F$14*'Sales price per sales channel'!$I125*'Other input expert'!F$6","v":0},{"$f":"U125*'Other input expert'!G$14*'Sales price per sales channel'!$I125*'Other input expert'!G$6","v":0},{"$f":"V125*'Other input expert'!H$14*'Sales price per sales channel'!$I125*'Other input expert'!H$6","v":0},{"$f":"W125*'Other input expert'!I$14*'Sales price per sales channel'!$I125*'Other input expert'!I$6","v":0},{"$f":"X125*'Other input expert'!J$14*'Sales price per sales channel'!$I125*'Other input expert'!J$6","v":0},{"$f":"Y125*'Other input expert'!K$14*'Sales price per sales channel'!$I125*'Other input expert'!K$6","v":0},{"$f":"Z125*'Other input expert'!L$14*'Sales price per sales channel'!$I125*'Other input expert'!L$6","v":0},{"$f":"AA125*'Other input expert'!M$14*'Sales price per sales channel'!$I125*'Other input expert'!M$6","v":0},null,{"$f":"AC125*'Other input expert'!B$12*'Sales price per sales channel'!$G125*'Other input expert'!B$7","v":0},{"$f":"AD125*'Other input expert'!C$12*'Sales price per sales channel'!$G125*'Other input expert'!C$7","v":0},{"$f":"AE125*'Other input expert'!D$12*'Sales price per sales channel'!$G125*'Other input expert'!D$7","v":0},{"$f":"AF125*'Other input expert'!E$12*'Sales price per sales channel'!$G125*'Other input expert'!E$7","v":0},{"$f":"AG125*'Other input expert'!F$12*'Sales price per sales channel'!$G125*'Other input expert'!F$7","v":0},{"$f":"AH125*'Other input expert'!G$12*'Sales price per sales channel'!$G125*'Other input expert'!G$7","v":0},{"$f":"AI125*'Other input expert'!H$12*'Sales price per sales channel'!$G125*'Other input expert'!H$7","v":0},{"$f":"AJ125*'Other input expert'!I$12*'Sales price per sales channel'!$G125*'Other input expert'!I$7","v":0},{"$f":"AK125*'Other input expert'!J$12*'Sales price per sales channel'!$G125*'Other input expert'!J$7","v":0},{"$f":"AL125*'Other input expert'!K$12*'Sales price per sales channel'!$G125*'Other input expert'!K$7","v":0},{"$f":"AM125*'Other input expert'!L$12*'Sales price per sales channel'!$G125*'Other input expert'!L$7","v":0},{"$f":"AN125*'Other input expert'!M$12*'Sales price per sales channel'!$G125*'Other input expert'!M$7","v":0},null,{"$f":"AC125*'Other input expert'!B$13*'Sales price per sales channel'!$H125*'Other input expert'!B$7","v":0},{"$f":"AD125*'Other input expert'!C$13*'Sales price per sales channel'!$H125*'Other input expert'!C$7","v":0},{"$f":"AE125*'Other input expert'!D$13*'Sales price per sales channel'!$H125*'Other input expert'!D$7","v":0},{"$f":"AF125*'Other input expert'!E$13*'Sales price per sales channel'!$H125*'Other input expert'!E$7","v":0},{"$f":"AG125*'Other input expert'!F$13*'Sales price per sales channel'!$H125*'Other input expert'!F$7","v":0},{"$f":"AH125*'Other input expert'!G$13*'Sales price per sales channel'!$H125*'Other input expert'!G$7","v":0},{"$f":"AI125*'Other input expert'!H$13*'Sales price per sales channel'!$H125*'Other input expert'!H$7","v":0},{"$f":"AJ125*'Other input expert'!I$13*'Sales price per sales channel'!$H125*'Other input expert'!I$7","v":0},{"$f":"AK125*'Other input expert'!J$13*'Sales price per sales channel'!$H125*'Other input expert'!J$7","v":0},{"$f":"AL125*'Other input expert'!K$13*'Sales price per sales channel'!$H125*'Other input expert'!K$7","v":0},{"$f":"AM125*'Other input expert'!L$13*'Sales price per sales channel'!$H125*'Other input expert'!L$7","v":0},{"$f":"AN125*'Other input expert'!M$13*'Sales price per sales channel'!$H125*'Other input expert'!M$7","v":0},null,{"$f":"AC125*'Other input expert'!B$14*'Sales price per sales channel'!$I125*'Other input expert'!B$7","v":0},{"$f":"AD125*'Other input expert'!C$14*'Sales price per sales channel'!$I125*'Other input expert'!C$7","v":0},{"$f":"AE125*'Other input expert'!D$14*'Sales price per sales channel'!$I125*'Other input expert'!D$7","v":0},{"$f":"AF125*'Other input expert'!E$14*'Sales price per sales channel'!$I125*'Other input expert'!E$7","v":0},{"$f":"AG125*'Other input expert'!F$14*'Sales price per sales channel'!$I125*'Other input expert'!F$7","v":0},{"$f":"AH125*'Other input expert'!G$14*'Sales price per sales channel'!$I125*'Other input expert'!G$7","v":0},{"$f":"AI125*'Other input expert'!H$14*'Sales price per sales channel'!$I125*'Other input expert'!H$7","v":0},{"$f":"AJ125*'Other input expert'!I$14*'Sales price per sales channel'!$I125*'Other input expert'!I$7","v":0},{"$f":"AK125*'Other input expert'!J$14*'Sales price per sales channel'!$I125*'Other input expert'!J$7","v":0},{"$f":"AL125*'Other input expert'!K$14*'Sales price per sales channel'!$I125*'Other input expert'!K$7","v":0},{"$f":"AM125*'Other input expert'!L$14*'Sales price per sales channel'!$I125*'Other input expert'!L$7","v":0},{"$f":"AN125*'Other input expert'!M$14*'Sales price per sales channel'!$I125*'Other input expert'!M$7","v":0}]
["Prunus armeniaca","Apricot",{"$f":"Plantlist!$G126*'Production list'!D127*'Other input expert'!B$4*'Other input expert'!B$8","v":0},{"$f":"Plantlist!$G126*'Production list'!E127*'Other input expert'!C$4*'Other input expert'!C$8","v":0},{"$f":"Plantlist!$G126*'Production list'!F127*'Other input expert'!D$4*'Other input expert'!D$8","v":0},{"$f":"Plantlist!$G126*'Production list'!G127*'Other input expert'!E$4*'Other input expert'!E$8","v":0},{"$f":"Plantlist!$G126*'Production list'!H127*'Other input expert'!F$4*'Other input expert'!F$8","v":0},{"$f":"Plantlist!$G126*'Production list'!I127*'Other input expert'!G$4*'Other input expert'!G$8","v":0},{"$f":"Plantlist!$G126*'Production list'!J127*'Other input expert'!H$4*'Other input expert'!H$8","v":0},{"$f":"Plantlist!$G126*'Production list'!K127*'Other input expert'!I$4*'Other input expert'!I$8","v":0},{"$f":"Plantlist!$G126*'Production list'!L127*'Other input expert'!J$4*'Other input expert'!J$8","v":0},{"$f":"Plantlist!$G126*'Production list'!M127*'Other input expert'!K$4*'Other input expert'!K$8","v":0},{"$f":"Plantlist!$G126*'Production list'!N127*'Other input expert'!L$4*'Other input expert'!L$8","v":0},{"$f":"Plantlist!$G126*'Production list'!O127*'Other input expert'!M$4*'Other input expert'!M$8","v":0},null,{"$f":"C126*'Other input expert'!B$5","v":0},{"$f":"D126*'Other input expert'!C$5","v":0},{"$f":"E126*'Other input expert'!D$5","v":0},{"$f":"F126*'Other input expert'!E$5","v":0},{"$f":"G126*'Other input expert'!F$5","v":0},{"$f":"H126*'Other input expert'!G$5","v":0},{"$f":"I126*'Other input expert'!H$5","v":0},{"$f":"J126*'Other input expert'!I$5","v":0},{"$f":"K126*'Other input expert'!J$5","v":0},{"$f":"L126*'Other input expert'!K$5","v":0},{"$f":"M126*'Other input expert'!L$5","v":0},{"$f":"N126*'Other input expert'!M$5","v":0},null,{"$f":"C126*(100%-'Other input expert'!B$5)","v":0},{"$f":"D126*(100%-'Other input expert'!C$5)","v":0},{"$f":"E126*(100%-'Other input expert'!D$5)","v":0},{"$f":"F126*(100%-'Other input expert'!E$5)","v":0},{"$f":"G126*(100%-'Other input expert'!F$5)","v":0},{"$f":"H126*(100%-'Other input expert'!G$5)","v":0},{"$f":"I126*(100%-'Other input expert'!H$5)","v":0},{"$f":"J126*(100%-'Other input expert'!I$5)","v":0},{"$f":"K126*(100%-'Other input expert'!J$5)","v":0},{"$f":"L126*(100%-'Other input expert'!K$5)","v":0},{"$f":"M126*(100%-'Other input expert'!L$5)","v":0},{"$f":"N126*(100%-'Other input expert'!M$5)","v":0},null,{"$f":"P126*'Other input expert'!B$12*'Sales price per sales channel'!$G126*'Other input expert'!B$6","v":0},{"$f":"Q126*'Other input expert'!C$12*'Sales price per sales channel'!$G126*'Other input expert'!C$6","v":0},{"$f":"R126*'Other input expert'!D$12*'Sales price per sales channel'!$G126*'Other input expert'!D$6","v":0},{"$f":"S126*'Other input expert'!E$12*'Sales price per sales channel'!$G126*'Other input expert'!E$6","v":0},{"$f":"T126*'Other input expert'!F$12*'Sales price per sales channel'!$G126*'Other input expert'!F$6","v":0},{"$f":"U126*'Other input expert'!G$12*'Sales price per sales channel'!$G126*'Other input expert'!G$6","v":0},{"$f":"V126*'Other input expert'!H$12*'Sales price per sales channel'!$G126*'Other input expert'!H$6","v":0},{"$f":"W126*'Other input expert'!I$12*'Sales price per sales channel'!$G126*'Other input expert'!I$6","v":0},{"$f":"X126*'Other input expert'!J$12*'Sales price per sales channel'!$G126*'Other input expert'!J$6","v":0},{"$f":"Y126*'Other input expert'!K$12*'Sales price per sales channel'!$G126*'Other input expert'!K$6","v":0},{"$f":"Z126*'Other input expert'!L$12*'Sales price per sales channel'!$G126*'Other input expert'!L$6","v":0},{"$f":"AA126*'Other input expert'!M$12*'Sales price per sales channel'!$G126*'Other input expert'!M$6","v":0},null,{"$f":"P126*'Other input expert'!B$13*'Sales price per sales channel'!$H126*'Other input expert'!B$6","v":0},{"$f":"Q126*'Other input expert'!C$13*'Sales price per sales channel'!$H126*'Other input expert'!C$6","v":0},{"$f":"R126*'Other input expert'!D$13*'Sales price per sales channel'!$H126*'Other input expert'!D$6","v":0},{"$f":"S126*'Other input expert'!E$13*'Sales price per sales channel'!$H126*'Other input expert'!E$6","v":0},{"$f":"T126*'Other input expert'!F$13*'Sales price per sales channel'!$H126*'Other input expert'!F$6","v":0},{"$f":"U126*'Other input expert'!G$13*'Sales price per sales channel'!$H126*'Other input expert'!G$6","v":0},{"$f":"V126*'Other input expert'!H$13*'Sales price per sales channel'!$H126*'Other input expert'!H$6","v":0},{"$f":"W126*'Other input expert'!I$13*'Sales price per sales channel'!$H126*'Other input expert'!I$6","v":0},{"$f":"X126*'Other input expert'!J$13*'Sales price per sales channel'!$H126*'Other input expert'!J$6","v":0},{"$f":"Y126*'Other input expert'!K$13*'Sales price per sales channel'!$H126*'Other input expert'!K$6","v":0},{"$f":"Z126*'Other input expert'!L$13*'Sales price per sales channel'!$H126*'Other input expert'!L$6","v":0},{"$f":"AA126*'Other input expert'!M$13*'Sales price per sales channel'!$H126*'Other input expert'!M$6","v":0},null,{"$f":"P126*'Other input expert'!B$14*'Sales price per sales channel'!$I126*'Other input expert'!B$6","v":0},{"$f":"Q126*'Other input expert'!C$14*'Sales price per sales channel'!$I126*'Other input expert'!C$6","v":0},{"$f":"R126*'Other input expert'!D$14*'Sales price per sales channel'!$I126*'Other input expert'!D$6","v":0},{"$f":"S126*'Other input expert'!E$14*'Sales price per sales channel'!$I126*'Other input expert'!E$6","v":0},{"$f":"T126*'Other input expert'!F$14*'Sales price per sales channel'!$I126*'Other input expert'!F$6","v":0},{"$f":"U126*'Other input expert'!G$14*'Sales price per sales channel'!$I126*'Other input expert'!G$6","v":0},{"$f":"V126*'Other input expert'!H$14*'Sales price per sales channel'!$I126*'Other input expert'!H$6","v":0},{"$f":"W126*'Other input expert'!I$14*'Sales price per sales channel'!$I126*'Other input expert'!I$6","v":0},{"$f":"X126*'Other input expert'!J$14*'Sales price per sales channel'!$I126*'Other input expert'!J$6","v":0},{"$f":"Y126*'Other input expert'!K$14*'Sales price per sales channel'!$I126*'Other input expert'!K$6","v":0},{"$f":"Z126*'Other input expert'!L$14*'Sales price per sales channel'!$I126*'Other input expert'!L$6","v":0},{"$f":"AA126*'Other input expert'!M$14*'Sales price per sales channel'!$I126*'Other input expert'!M$6","v":0},null,{"$f":"AC126*'Other input expert'!B$12*'Sales price per sales channel'!$G126*'Other input expert'!B$7","v":0},{"$f":"AD126*'Other input expert'!C$12*'Sales price per sales channel'!$G126*'Other input expert'!C$7","v":0},{"$f":"AE126*'Other input expert'!D$12*'Sales price per sales channel'!$G126*'Other input expert'!D$7","v":0},{"$f":"AF126*'Other input expert'!E$12*'Sales price per sales channel'!$G126*'Other input expert'!E$7","v":0},{"$f":"AG126*'Other input expert'!F$12*'Sales price per sales channel'!$G126*'Other input expert'!F$7","v":0},{"$f":"AH126*'Other input expert'!G$12*'Sales price per sales channel'!$G126*'Other input expert'!G$7","v":0},{"$f":"AI126*'Other input expert'!H$12*'Sales price per sales channel'!$G126*'Other input expert'!H$7","v":0},{"$f":"AJ126*'Other input expert'!I$12*'Sales price per sales channel'!$G126*'Other input expert'!I$7","v":0},{"$f":"AK126*'Other input expert'!J$12*'Sales price per sales channel'!$G126*'Other input expert'!J$7","v":0},{"$f":"AL126*'Other input expert'!K$12*'Sales price per sales channel'!$G126*'Other input expert'!K$7","v":0},{"$f":"AM126*'Other input expert'!L$12*'Sales price per sales channel'!$G126*'Other input expert'!L$7","v":0},{"$f":"AN126*'Other input expert'!M$12*'Sales price per sales channel'!$G126*'Other input expert'!M$7","v":0},null,{"$f":"AC126*'Other input expert'!B$13*'Sales price per sales channel'!$H126*'Other input expert'!B$7","v":0},{"$f":"AD126*'Other input expert'!C$13*'Sales price per sales channel'!$H126*'Other input expert'!C$7","v":0},{"$f":"AE126*'Other input expert'!D$13*'Sales price per sales channel'!$H126*'Other input expert'!D$7","v":0},{"$f":"AF126*'Other input expert'!E$13*'Sales price per sales channel'!$H126*'Other input expert'!E$7","v":0},{"$f":"AG126*'Other input expert'!F$13*'Sales price per sales channel'!$H126*'Other input expert'!F$7","v":0},{"$f":"AH126*'Other input expert'!G$13*'Sales price per sales channel'!$H126*'Other input expert'!G$7","v":0},{"$f":"AI126*'Other input expert'!H$13*'Sales price per sales channel'!$H126*'Other input expert'!H$7","v":0},{"$f":"AJ126*'Other input expert'!I$13*'Sales price per sales channel'!$H126*'Other input expert'!I$7","v":0},{"$f":"AK126*'Other input expert'!J$13*'Sales price per sales channel'!$H126*'Other input expert'!J$7","v":0},{"$f":"AL126*'Other input expert'!K$13*'Sales price per sales channel'!$H126*'Other input expert'!K$7","v":0},{"$f":"AM126*'Other input expert'!L$13*'Sales price per sales channel'!$H126*'Other input expert'!L$7","v":0},{"$f":"AN126*'Other input expert'!M$13*'Sales price per sales channel'!$H126*'Other input expert'!M$7","v":0},null,{"$f":"AC126*'Other input expert'!B$14*'Sales price per sales channel'!$I126*'Other input expert'!B$7","v":0},{"$f":"AD126*'Other input expert'!C$14*'Sales price per sales channel'!$I126*'Other input expert'!C$7","v":0},{"$f":"AE126*'Other input expert'!D$14*'Sales price per sales channel'!$I126*'Other input expert'!D$7","v":0},{"$f":"AF126*'Other input expert'!E$14*'Sales price per sales channel'!$I126*'Other input expert'!E$7","v":0},{"$f":"AG126*'Other input expert'!F$14*'Sales price per sales channel'!$I126*'Other input expert'!F$7","v":0},{"$f":"AH126*'Other input expert'!G$14*'Sales price per sales channel'!$I126*'Other input expert'!G$7","v":0},{"$f":"AI126*'Other input expert'!H$14*'Sales price per sales channel'!$I126*'Other input expert'!H$7","v":0},{"$f":"AJ126*'Other input expert'!I$14*'Sales price per sales channel'!$I126*'Other input expert'!I$7","v":0},{"$f":"AK126*'Other input expert'!J$14*'Sales price per sales channel'!$I126*'Other input expert'!J$7","v":0},{"$f":"AL126*'Other input expert'!K$14*'Sales price per sales channel'!$I126*'Other input expert'!K$7","v":0},{"$f":"AM126*'Other input expert'!L$14*'Sales price per sales channel'!$I126*'Other input expert'!L$7","v":0},{"$f":"AN126*'Other input expert'!M$14*'Sales price per sales channel'!$I126*'Other input expert'!M$7","v":0}]
["Prunus avium","Cherry",{"$f":"Plantlist!$G127*'Production list'!D128*'Other input expert'!B$4*'Other input expert'!B$8","v":0},{"$f":"Plantlist!$G127*'Production list'!E128*'Other input expert'!C$4*'Other input expert'!C$8","v":0},{"$f":"Plantlist!$G127*'Production list'!F128*'Other input expert'!D$4*'Other input expert'!D$8","v":0},{"$f":"Plantlist!$G127*'Production list'!G128*'Other input expert'!E$4*'Other input expert'!E$8","v":0},{"$f":"Plantlist!$G127*'Production list'!H128*'Other input expert'!F$4*'Other input expert'!F$8","v":0},{"$f":"Plantlist!$G127*'Production list'!I128*'Other input expert'!G$4*'Other input expert'!G$8","v":0},{"$f":"Plantlist!$G127*'Production list'!J128*'Other input expert'!H$4*'Other input expert'!H$8","v":0},{"$f":"Plantlist!$G127*'Production list'!K128*'Other input expert'!I$4*'Other input expert'!I$8","v":0},{"$f":"Plantlist!$G127*'Production list'!L128*'Other input expert'!J$4*'Other input expert'!J$8","v":0},{"$f":"Plantlist!$G127*'Production list'!M128*'Other input expert'!K$4*'Other input expert'!K$8","v":0},{"$f":"Plantlist!$G127*'Production list'!N128*'Other input expert'!L$4*'Other input expert'!L$8","v":0},{"$f":"Plantlist!$G127*'Production list'!O128*'Other input expert'!M$4*'Other input expert'!M$8","v":0},null,{"$f":"C127*'Other input expert'!B$5","v":0},{"$f":"D127*'Other input expert'!C$5","v":0},{"$f":"E127*'Other input expert'!D$5","v":0},{"$f":"F127*'Other input expert'!E$5","v":0},{"$f":"G127*'Other input expert'!F$5","v":0},{"$f":"H127*'Other input expert'!G$5","v":0},{"$f":"I127*'Other input expert'!H$5","v":0},{"$f":"J127*'Other input expert'!I$5","v":0},{"$f":"K127*'Other input expert'!J$5","v":0},{"$f":"L127*'Other input expert'!K$5","v":0},{"$f":"M127*'Other input expert'!L$5","v":0},{"$f":"N127*'Other input expert'!M$5","v":0},null,{"$f":"C127*(100%-'Other input expert'!B$5)","v":0},{"$f":"D127*(100%-'Other input expert'!C$5)","v":0},{"$f":"E127*(100%-'Other input expert'!D$5)","v":0},{"$f":"F127*(100%-'Other input expert'!E$5)","v":0},{"$f":"G127*(100%-'Other input expert'!F$5)","v":0},{"$f":"H127*(100%-'Other input expert'!G$5)","v":0},{"$f":"I127*(100%-'Other input expert'!H$5)","v":0},{"$f":"J127*(100%-'Other input expert'!I$5)","v":0},{"$f":"K127*(100%-'Other input expert'!J$5)","v":0},{"$f":"L127*(100%-'Other input expert'!K$5)","v":0},{"$f":"M127*(100%-'Other input expert'!L$5)","v":0},{"$f":"N127*(100%-'Other input expert'!M$5)","v":0},null,{"$f":"P127*'Other input expert'!B$12*'Sales price per sales channel'!$G127*'Other input expert'!B$6","v":0},{"$f":"Q127*'Other input expert'!C$12*'Sales price per sales channel'!$G127*'Other input expert'!C$6","v":0},{"$f":"R127*'Other input expert'!D$12*'Sales price per sales channel'!$G127*'Other input expert'!D$6","v":0},{"$f":"S127*'Other input expert'!E$12*'Sales price per sales channel'!$G127*'Other input expert'!E$6","v":0},{"$f":"T127*'Other input expert'!F$12*'Sales price per sales channel'!$G127*'Other input expert'!F$6","v":0},{"$f":"U127*'Other input expert'!G$12*'Sales price per sales channel'!$G127*'Other input expert'!G$6","v":0},{"$f":"V127*'Other input expert'!H$12*'Sales price per sales channel'!$G127*'Other input expert'!H$6","v":0},{"$f":"W127*'Other input expert'!I$12*'Sales price per sales channel'!$G127*'Other input expert'!I$6","v":0},{"$f":"X127*'Other input expert'!J$12*'Sales price per sales channel'!$G127*'Other input expert'!J$6","v":0},{"$f":"Y127*'Other input expert'!K$12*'Sales price per sales channel'!$G127*'Other input expert'!K$6","v":0},{"$f":"Z127*'Other input expert'!L$12*'Sales price per sales channel'!$G127*'Other input expert'!L$6","v":0},{"$f":"AA127*'Other input expert'!M$12*'Sales price per sales channel'!$G127*'Other input expert'!M$6","v":0},null,{"$f":"P127*'Other input expert'!B$13*'Sales price per sales channel'!$H127*'Other input expert'!B$6","v":0},{"$f":"Q127*'Other input expert'!C$13*'Sales price per sales channel'!$H127*'Other input expert'!C$6","v":0},{"$f":"R127*'Other input expert'!D$13*'Sales price per sales channel'!$H127*'Other input expert'!D$6","v":0},{"$f":"S127*'Other input expert'!E$13*'Sales price per sales channel'!$H127*'Other input expert'!E$6","v":0},{"$f":"T127*'Other input expert'!F$13*'Sales price per sales channel'!$H127*'Other input expert'!F$6","v":0},{"$f":"U127*'Other input expert'!G$13*'Sales price per sales channel'!$H127*'Other input expert'!G$6","v":0},{"$f":"V127*'Other input expert'!H$13*'Sales price per sales channel'!$H127*'Other input expert'!H$6","v":0},{"$f":"W127*'Other input expert'!I$13*'Sales price per sales channel'!$H127*'Other input expert'!I$6","v":0},{"$f":"X127*'Other input expert'!J$13*'Sales price per sales channel'!$H127*'Other input expert'!J$6","v":0},{"$f":"Y127*'Other input expert'!K$13*'Sales price per sales channel'!$H127*'Other input expert'!K$6","v":0},{"$f":"Z127*'Other input expert'!L$13*'Sales price per sales channel'!$H127*'Other input expert'!L$6","v":0},{"$f":"AA127*'Other input expert'!M$13*'Sales price per sales channel'!$H127*'Other input expert'!M$6","v":0},null,{"$f":"P127*'Other input expert'!B$14*'Sales price per sales channel'!$I127*'Other input expert'!B$6","v":0},{"$f":"Q127*'Other input expert'!C$14*'Sales price per sales channel'!$I127*'Other input expert'!C$6","v":0},{"$f":"R127*'Other input expert'!D$14*'Sales price per sales channel'!$I127*'Other input expert'!D$6","v":0},{"$f":"S127*'Other input expert'!E$14*'Sales price per sales channel'!$I127*'Other input expert'!E$6","v":0},{"$f":"T127*'Other input expert'!F$14*'Sales price per sales channel'!$I127*'Other input expert'!F$6","v":0},{"$f":"U127*'Other input expert'!G$14*'Sales price per sales channel'!$I127*'Other input expert'!G$6","v":0},{"$f":"V127*'Other input expert'!H$14*'Sales price per sales channel'!$I127*'Other input expert'!H$6","v":0},{"$f":"W127*'Other input expert'!I$14*'Sales price per sales channel'!$I127*'Other input expert'!I$6","v":0},{"$f":"X127*'Other input expert'!J$14*'Sales price per sales channel'!$I127*'Other input expert'!J$6","v":0},{"$f":"Y127*'Other input expert'!K$14*'Sales price per sales channel'!$I127*'Other input expert'!K$6","v":0},{"$f":"Z127*'Other input expert'!L$14*'Sales price per sales channel'!$I127*'Other input expert'!L$6","v":0},{"$f":"AA127*'Other input expert'!M$14*'Sales price per sales channel'!$I127*'Other input expert'!M$6","v":0},null,{"$f":"AC127*'Other input expert'!B$12*'Sales price per sales channel'!$G127*'Other input expert'!B$7","v":0},{"$f":"AD127*'Other input expert'!C$12*'Sales price per sales channel'!$G127*'Other input expert'!C$7","v":0},{"$f":"AE127*'Other input expert'!D$12*'Sales price per sales channel'!$G127*'Other input expert'!D$7","v":0},{"$f":"AF127*'Other input expert'!E$12*'Sales price per sales channel'!$G127*'Other input expert'!E$7","v":0},{"$f":"AG127*'Other input expert'!F$12*'Sales price per sales channel'!$G127*'Other input expert'!F$7","v":0},{"$f":"AH127*'Other input expert'!G$12*'Sales price per sales channel'!$G127*'Other input expert'!G$7","v":0},{"$f":"AI127*'Other input expert'!H$12*'Sales price per sales channel'!$G127*'Other input expert'!H$7","v":0},{"$f":"AJ127*'Other input expert'!I$12*'Sales price per sales channel'!$G127*'Other input expert'!I$7","v":0},{"$f":"AK127*'Other input expert'!J$12*'Sales price per sales channel'!$G127*'Other input expert'!J$7","v":0},{"$f":"AL127*'Other input expert'!K$12*'Sales price per sales channel'!$G127*'Other input expert'!K$7","v":0},{"$f":"AM127*'Other input expert'!L$12*'Sales price per sales channel'!$G127*'Other input expert'!L$7","v":0},{"$f":"AN127*'Other input expert'!M$12*'Sales price per sales channel'!$G127*'Other input expert'!M$7","v":0},null,{"$f":"AC127*'Other input expert'!B$13*'Sales price per sales channel'!$H127*'Other input expert'!B$7","v":0},{"$f":"AD127*'Other input expert'!C$13*'Sales price per sales channel'!$H127*'Other input expert'!C$7","v":0},{"$f":"AE127*'Other input expert'!D$13*'Sales price per sales channel'!$H127*'Other input expert'!D$7","v":0},{"$f":"AF127*'Other input expert'!E$13*'Sales price per sales channel'!$H127*'Other input expert'!E$7","v":0},{"$f":"AG127*'Other input expert'!F$13*'Sales price per sales channel'!$H127*'Other input expert'!F$7","v":0},{"$f":"AH127*'Other input expert'!G$13*'Sales price per sales channel'!$H127*'Other input expert'!G$7","v":0},{"$f":"AI127*'Other input expert'!H$13*'Sales price per sales channel'!$H127*'Other input expert'!H$7","v":0},{"$f":"AJ127*'Other input expert'!I$13*'Sales price per sales channel'!$H127*'Other input expert'!I$7","v":0},{"$f":"AK127*'Other input expert'!J$13*'Sales price per sales channel'!$H127*'Other input expert'!J$7","v":0},{"$f":"AL127*'Other input expert'!K$13*'Sales price per sales channel'!$H127*'Other input expert'!K$7","v":0},{"$f":"AM127*'Other input expert'!L$13*'Sales price per sales channel'!$H127*'Other input expert'!L$7","v":0},{"$f":"AN127*'Other input expert'!M$13*'Sales price per sales channel'!$H127*'Other input expert'!M$7","v":0},null,{"$f":"AC127*'Other input expert'!B$14*'Sales price per sales channel'!$I127*'Other input expert'!B$7","v":0},{"$f":"AD127*'Other input expert'!C$14*'Sales price per sales channel'!$I127*'Other input expert'!C$7","v":0},{"$f":"AE127*'Other input expert'!D$14*'Sales price per sales channel'!$I127*'Other input expert'!D$7","v":0},{"$f":"AF127*'Other input expert'!E$14*'Sales price per sales channel'!$I127*'Other input expert'!E$7","v":0},{"$f":"AG127*'Other input expert'!F$14*'Sales price per sales channel'!$I127*'Other input expert'!F$7","v":0},{"$f":"AH127*'Other input expert'!G$14*'Sales price per sales channel'!$I127*'Other input expert'!G$7","v":0},{"$f":"AI127*'Other input expert'!H$14*'Sales price per sales channel'!$I127*'Other input expert'!H$7","v":0},{"$f":"AJ127*'Other input expert'!I$14*'Sales price per sales channel'!$I127*'Other input expert'!I$7","v":0},{"$f":"AK127*'Other input expert'!J$14*'Sales price per sales channel'!$I127*'Other input expert'!J$7","v":0},{"$f":"AL127*'Other input expert'!K$14*'Sales price per sales channel'!$I127*'Other input expert'!K$7","v":0},{"$f":"AM127*'Other input expert'!L$14*'Sales price per sales channel'!$I127*'Other input expert'!L$7","v":0},{"$f":"AN127*'Other input expert'!M$14*'Sales price per sales channel'!$I127*'Other input expert'!M$7","v":0}]
["Prunus cerasifera","Cherry plum",{"$f":"Plantlist!$G128*'Production list'!D129*'Other input expert'!B$4*'Other input expert'!B$8","v":0},{"$f":"Plantlist!$G128*'Production list'!E129*'Other input expert'!C$4*'Other input expert'!C$8","v":0},{"$f":"Plantlist!$G128*'Production list'!F129*'Other input expert'!D$4*'Other input expert'!D$8","v":0},{"$f":"Plantlist!$G128*'Production list'!G129*'Other input expert'!E$4*'Other input expert'!E$8","v":0},{"$f":"Plantlist!$G128*'Production list'!H129*'Other input expert'!F$4*'Other input expert'!F$8","v":0},{"$f":"Plantlist!$G128*'Production list'!I129*'Other input expert'!G$4*'Other input expert'!G$8","v":0},{"$f":"Plantlist!$G128*'Production list'!J129*'Other input expert'!H$4*'Other input expert'!H$8","v":0},{"$f":"Plantlist!$G128*'Production list'!K129*'Other input expert'!I$4*'Other input expert'!I$8","v":0},{"$f":"Plantlist!$G128*'Production list'!L129*'Other input expert'!J$4*'Other input expert'!J$8","v":0},{"$f":"Plantlist!$G128*'Production list'!M129*'Other input expert'!K$4*'Other input expert'!K$8","v":0},{"$f":"Plantlist!$G128*'Production list'!N129*'Other input expert'!L$4*'Other input expert'!L$8","v":0},{"$f":"Plantlist!$G128*'Production list'!O129*'Other input expert'!M$4*'Other input expert'!M$8","v":0},null,{"$f":"C128*'Other input expert'!B$5","v":0},{"$f":"D128*'Other input expert'!C$5","v":0},{"$f":"E128*'Other input expert'!D$5","v":0},{"$f":"F128*'Other input expert'!E$5","v":0},{"$f":"G128*'Other input expert'!F$5","v":0},{"$f":"H128*'Other input expert'!G$5","v":0},{"$f":"I128*'Other input expert'!H$5","v":0},{"$f":"J128*'Other input expert'!I$5","v":0},{"$f":"K128*'Other input expert'!J$5","v":0},{"$f":"L128*'Other input expert'!K$5","v":0},{"$f":"M128*'Other input expert'!L$5","v":0},{"$f":"N128*'Other input expert'!M$5","v":0},null,{"$f":"C128*(100%-'Other input expert'!B$5)","v":0},{"$f":"D128*(100%-'Other input expert'!C$5)","v":0},{"$f":"E128*(100%-'Other input expert'!D$5)","v":0},{"$f":"F128*(100%-'Other input expert'!E$5)","v":0},{"$f":"G128*(100%-'Other input expert'!F$5)","v":0},{"$f":"H128*(100%-'Other input expert'!G$5)","v":0},{"$f":"I128*(100%-'Other input expert'!H$5)","v":0},{"$f":"J128*(100%-'Other input expert'!I$5)","v":0},{"$f":"K128*(100%-'Other input expert'!J$5)","v":0},{"$f":"L128*(100%-'Other input expert'!K$5)","v":0},{"$f":"M128*(100%-'Other input expert'!L$5)","v":0},{"$f":"N128*(100%-'Other input expert'!M$5)","v":0},null,{"$f":"P128*'Other input expert'!B$12*'Sales price per sales channel'!$G128*'Other input expert'!B$6","v":0},{"$f":"Q128*'Other input expert'!C$12*'Sales price per sales channel'!$G128*'Other input expert'!C$6","v":0},{"$f":"R128*'Other input expert'!D$12*'Sales price per sales channel'!$G128*'Other input expert'!D$6","v":0},{"$f":"S128*'Other input expert'!E$12*'Sales price per sales channel'!$G128*'Other input expert'!E$6","v":0},{"$f":"T128*'Other input expert'!F$12*'Sales price per sales channel'!$G128*'Other input expert'!F$6","v":0},{"$f":"U128*'Other input expert'!G$12*'Sales price per sales channel'!$G128*'Other input expert'!G$6","v":0},{"$f":"V128*'Other input expert'!H$12*'Sales price per sales channel'!$G128*'Other input expert'!H$6","v":0},{"$f":"W128*'Other input expert'!I$12*'Sales price per sales channel'!$G128*'Other input expert'!I$6","v":0},{"$f":"X128*'Other input expert'!J$12*'Sales price per sales channel'!$G128*'Other input expert'!J$6","v":0},{"$f":"Y128*'Other input expert'!K$12*'Sales price per sales channel'!$G128*'Other input expert'!K$6","v":0},{"$f":"Z128*'Other input expert'!L$12*'Sales price per sales channel'!$G128*'Other input expert'!L$6","v":0},{"$f":"AA128*'Other input expert'!M$12*'Sales price per sales channel'!$G128*'Other input expert'!M$6","v":0},null,{"$f":"P128*'Other input expert'!B$13*'Sales price per sales channel'!$H128*'Other input expert'!B$6","v":0},{"$f":"Q128*'Other input expert'!C$13*'Sales price per sales channel'!$H128*'Other input expert'!C$6","v":0},{"$f":"R128*'Other input expert'!D$13*'Sales price per sales channel'!$H128*'Other input expert'!D$6","v":0},{"$f":"S128*'Other input expert'!E$13*'Sales price per sales channel'!$H128*'Other input expert'!E$6","v":0},{"$f":"T128*'Other input expert'!F$13*'Sales price per sales channel'!$H128*'Other input expert'!F$6","v":0},{"$f":"U128*'Other input expert'!G$13*'Sales price per sales channel'!$H128*'Other input expert'!G$6","v":0},{"$f":"V128*'Other input expert'!H$13*'Sales price per sales channel'!$H128*'Other input expert'!H$6","v":0},{"$f":"W128*'Other input expert'!I$13*'Sales price per sales channel'!$H128*'Other input expert'!I$6","v":0},{"$f":"X128*'Other input expert'!J$13*'Sales price per sales channel'!$H128*'Other input expert'!J$6","v":0},{"$f":"Y128*'Other input expert'!K$13*'Sales price per sales channel'!$H128*'Other input expert'!K$6","v":0},{"$f":"Z128*'Other input expert'!L$13*'Sales price per sales channel'!$H128*'Other input expert'!L$6","v":0},{"$f":"AA128*'Other input expert'!M$13*'Sales price per sales channel'!$H128*'Other input expert'!M$6","v":0},null,{"$f":"P128*'Other input expert'!B$14*'Sales price per sales channel'!$I128*'Other input expert'!B$6","v":0},{"$f":"Q128*'Other input expert'!C$14*'Sales price per sales channel'!$I128*'Other input expert'!C$6","v":0},{"$f":"R128*'Other input expert'!D$14*'Sales price per sales channel'!$I128*'Other input expert'!D$6","v":0},{"$f":"S128*'Other input expert'!E$14*'Sales price per sales channel'!$I128*'Other input expert'!E$6","v":0},{"$f":"T128*'Other input expert'!F$14*'Sales price per sales channel'!$I128*'Other input expert'!F$6","v":0},{"$f":"U128*'Other input expert'!G$14*'Sales price per sales channel'!$I128*'Other input expert'!G$6","v":0},{"$f":"V128*'Other input expert'!H$14*'Sales price per sales channel'!$I128*'Other input expert'!H$6","v":0},{"$f":"W128*'Other input expert'!I$14*'Sales price per sales channel'!$I128*'Other input expert'!I$6","v":0},{"$f":"X128*'Other input expert'!J$14*'Sales price per sales channel'!$I128*'Other input expert'!J$6","v":0},{"$f":"Y128*'Other input expert'!K$14*'Sales price per sales channel'!$I128*'Other input expert'!K$6","v":0},{"$f":"Z128*'Other input expert'!L$14*'Sales price per sales channel'!$I128*'Other input expert'!L$6","v":0},{"$f":"AA128*'Other input expert'!M$14*'Sales price per sales channel'!$I128*'Other input expert'!M$6","v":0},null,{"$f":"AC128*'Other input expert'!B$12*'Sales price per sales channel'!$G128*'Other input expert'!B$7","v":0},{"$f":"AD128*'Other input expert'!C$12*'Sales price per sales channel'!$G128*'Other input expert'!C$7","v":0},{"$f":"AE128*'Other input expert'!D$12*'Sales price per sales channel'!$G128*'Other input expert'!D$7","v":0},{"$f":"AF128*'Other input expert'!E$12*'Sales price per sales channel'!$G128*'Other input expert'!E$7","v":0},{"$f":"AG128*'Other input expert'!F$12*'Sales price per sales channel'!$G128*'Other input expert'!F$7","v":0},{"$f":"AH128*'Other input expert'!G$12*'Sales price per sales channel'!$G128*'Other input expert'!G$7","v":0},{"$f":"AI128*'Other input expert'!H$12*'Sales price per sales channel'!$G128*'Other input expert'!H$7","v":0},{"$f":"AJ128*'Other input expert'!I$12*'Sales price per sales channel'!$G128*'Other input expert'!I$7","v":0},{"$f":"AK128*'Other input expert'!J$12*'Sales price per sales channel'!$G128*'Other input expert'!J$7","v":0},{"$f":"AL128*'Other input expert'!K$12*'Sales price per sales channel'!$G128*'Other input expert'!K$7","v":0},{"$f":"AM128*'Other input expert'!L$12*'Sales price per sales channel'!$G128*'Other input expert'!L$7","v":0},{"$f":"AN128*'Other input expert'!M$12*'Sales price per sales channel'!$G128*'Other input expert'!M$7","v":0},null,{"$f":"AC128*'Other input expert'!B$13*'Sales price per sales channel'!$H128*'Other input expert'!B$7","v":0},{"$f":"AD128*'Other input expert'!C$13*'Sales price per sales channel'!$H128*'Other input expert'!C$7","v":0},{"$f":"AE128*'Other input expert'!D$13*'Sales price per sales channel'!$H128*'Other input expert'!D$7","v":0},{"$f":"AF128*'Other input expert'!E$13*'Sales price per sales channel'!$H128*'Other input expert'!E$7","v":0},{"$f":"AG128*'Other input expert'!F$13*'Sales price per sales channel'!$H128*'Other input expert'!F$7","v":0},{"$f":"AH128*'Other input expert'!G$13*'Sales price per sales channel'!$H128*'Other input expert'!G$7","v":0},{"$f":"AI128*'Other input expert'!H$13*'Sales price per sales channel'!$H128*'Other input expert'!H$7","v":0},{"$f":"AJ128*'Other input expert'!I$13*'Sales price per sales channel'!$H128*'Other input expert'!I$7","v":0},{"$f":"AK128*'Other input expert'!J$13*'Sales price per sales channel'!$H128*'Other input expert'!J$7","v":0},{"$f":"AL128*'Other input expert'!K$13*'Sales price per sales channel'!$H128*'Other input expert'!K$7","v":0},{"$f":"AM128*'Other input expert'!L$13*'Sales price per sales channel'!$H128*'Other input expert'!L$7","v":0},{"$f":"AN128*'Other input expert'!M$13*'Sales price per sales channel'!$H128*'Other input expert'!M$7","v":0},null,{"$f":"AC128*'Other input expert'!B$14*'Sales price per sales channel'!$I128*'Other input expert'!B$7","v":0},{"$f":"AD128*'Other input expert'!C$14*'Sales price per sales channel'!$I128*'Other input expert'!C$7","v":0},{"$f":"AE128*'Other input expert'!D$14*'Sales price per sales channel'!$I128*'Other input expert'!D$7","v":0},{"$f":"AF128*'Other input expert'!E$14*'Sales price per sales channel'!$I128*'Other input expert'!E$7","v":0},{"$f":"AG128*'Other input expert'!F$14*'Sales price per sales channel'!$I128*'Other input expert'!F$7","v":0},{"$f":"AH128*'Other input expert'!G$14*'Sales price per sales channel'!$I128*'Other input expert'!G$7","v":0},{"$f":"AI128*'Other input expert'!H$14*'Sales price per sales channel'!$I128*'Other input expert'!H$7","v":0},{"$f":"AJ128*'Other input expert'!I$14*'Sales price per sales channel'!$I128*'Other input expert'!I$7","v":0},{"$f":"AK128*'Other input expert'!J$14*'Sales price per sales channel'!$I128*'Other input expert'!J$7","v":0},{"$f":"AL128*'Other input expert'!K$14*'Sales price per sales channel'!$I128*'Other input expert'!K$7","v":0},{"$f":"AM128*'Other input expert'!L$14*'Sales price per sales channel'!$I128*'Other input expert'!L$7","v":0},{"$f":"AN128*'Other input expert'!M$14*'Sales price per sales channel'!$I128*'Other input expert'!M$7","v":0}]
["Prunus cerasus","Sour cherry",{"$f":"Plantlist!$G129*'Production list'!D130*'Other input expert'!B$4*'Other input expert'!B$8","v":0},{"$f":"Plantlist!$G129*'Production list'!E130*'Other input expert'!C$4*'Other input expert'!C$8","v":0},{"$f":"Plantlist!$G129*'Production list'!F130*'Other input expert'!D$4*'Other input expert'!D$8","v":0},{"$f":"Plantlist!$G129*'Production list'!G130*'Other input expert'!E$4*'Other input expert'!E$8","v":0},{"$f":"Plantlist!$G129*'Production list'!H130*'Other input expert'!F$4*'Other input expert'!F$8","v":0},{"$f":"Plantlist!$G129*'Production list'!I130*'Other input expert'!G$4*'Other input expert'!G$8","v":0},{"$f":"Plantlist!$G129*'Production list'!J130*'Other input expert'!H$4*'Other input expert'!H$8","v":0},{"$f":"Plantlist!$G129*'Production list'!K130*'Other input expert'!I$4*'Other input expert'!I$8","v":0},{"$f":"Plantlist!$G129*'Production list'!L130*'Other input expert'!J$4*'Other input expert'!J$8","v":0},{"$f":"Plantlist!$G129*'Production list'!M130*'Other input expert'!K$4*'Other input expert'!K$8","v":0},{"$f":"Plantlist!$G129*'Production list'!N130*'Other input expert'!L$4*'Other input expert'!L$8","v":0},{"$f":"Plantlist!$G129*'Production list'!O130*'Other input expert'!M$4*'Other input expert'!M$8","v":0},null,{"$f":"C129*'Other input expert'!B$5","v":0},{"$f":"D129*'Other input expert'!C$5","v":0},{"$f":"E129*'Other input expert'!D$5","v":0},{"$f":"F129*'Other input expert'!E$5","v":0},{"$f":"G129*'Other input expert'!F$5","v":0},{"$f":"H129*'Other input expert'!G$5","v":0},{"$f":"I129*'Other input expert'!H$5","v":0},{"$f":"J129*'Other input expert'!I$5","v":0},{"$f":"K129*'Other input expert'!J$5","v":0},{"$f":"L129*'Other input expert'!K$5","v":0},{"$f":"M129*'Other input expert'!L$5","v":0},{"$f":"N129*'Other input expert'!M$5","v":0},null,{"$f":"C129*(100%-'Other input expert'!B$5)","v":0},{"$f":"D129*(100%-'Other input expert'!C$5)","v":0},{"$f":"E129*(100%-'Other input expert'!D$5)","v":0},{"$f":"F129*(100%-'Other input expert'!E$5)","v":0},{"$f":"G129*(100%-'Other input expert'!F$5)","v":0},{"$f":"H129*(100%-'Other input expert'!G$5)","v":0},{"$f":"I129*(100%-'Other input expert'!H$5)","v":0},{"$f":"J129*(100%-'Other input expert'!I$5)","v":0},{"$f":"K129*(100%-'Other input expert'!J$5)","v":0},{"$f":"L129*(100%-'Other input expert'!K$5)","v":0},{"$f":"M129*(100%-'Other input expert'!L$5)","v":0},{"$f":"N129*(100%-'Other input expert'!M$5)","v":0},null,{"$f":"P129*'Other input expert'!B$12*'Sales price per sales channel'!$G129*'Other input expert'!B$6","v":0},{"$f":"Q129*'Other input expert'!C$12*'Sales price per sales channel'!$G129*'Other input expert'!C$6","v":0},{"$f":"R129*'Other input expert'!D$12*'Sales price per sales channel'!$G129*'Other input expert'!D$6","v":0},{"$f":"S129*'Other input expert'!E$12*'Sales price per sales channel'!$G129*'Other input expert'!E$6","v":0},{"$f":"T129*'Other input expert'!F$12*'Sales price per sales channel'!$G129*'Other input expert'!F$6","v":0},{"$f":"U129*'Other input expert'!G$12*'Sales price per sales channel'!$G129*'Other input expert'!G$6","v":0},{"$f":"V129*'Other input expert'!H$12*'Sales price per sales channel'!$G129*'Other input expert'!H$6","v":0},{"$f":"W129*'Other input expert'!I$12*'Sales price per sales channel'!$G129*'Other input expert'!I$6","v":0},{"$f":"X129*'Other input expert'!J$12*'Sales price per sales channel'!$G129*'Other input expert'!J$6","v":0},{"$f":"Y129*'Other input expert'!K$12*'Sales price per sales channel'!$G129*'Other input expert'!K$6","v":0},{"$f":"Z129*'Other input expert'!L$12*'Sales price per sales channel'!$G129*'Other input expert'!L$6","v":0},{"$f":"AA129*'Other input expert'!M$12*'Sales price per sales channel'!$G129*'Other input expert'!M$6","v":0},null,{"$f":"P129*'Other input expert'!B$13*'Sales price per sales channel'!$H129*'Other input expert'!B$6","v":0},{"$f":"Q129*'Other input expert'!C$13*'Sales price per sales channel'!$H129*'Other input expert'!C$6","v":0},{"$f":"R129*'Other input expert'!D$13*'Sales price per sales channel'!$H129*'Other input expert'!D$6","v":0},{"$f":"S129*'Other input expert'!E$13*'Sales price per sales channel'!$H129*'Other input expert'!E$6","v":0},{"$f":"T129*'Other input expert'!F$13*'Sales price per sales channel'!$H129*'Other input expert'!F$6","v":0},{"$f":"U129*'Other input expert'!G$13*'Sales price per sales channel'!$H129*'Other input expert'!G$6","v":0},{"$f":"V129*'Other input expert'!H$13*'Sales price per sales channel'!$H129*'Other input expert'!H$6","v":0},{"$f":"W129*'Other input expert'!I$13*'Sales price per sales channel'!$H129*'Other input expert'!I$6","v":0},{"$f":"X129*'Other input expert'!J$13*'Sales price per sales channel'!$H129*'Other input expert'!J$6","v":0},{"$f":"Y129*'Other input expert'!K$13*'Sales price per sales channel'!$H129*'Other input expert'!K$6","v":0},{"$f":"Z129*'Other input expert'!L$13*'Sales price per sales channel'!$H129*'Other input expert'!L$6","v":0},{"$f":"AA129*'Other input expert'!M$13*'Sales price per sales channel'!$H129*'Other input expert'!M$6","v":0},null,{"$f":"P129*'Other input expert'!B$14*'Sales price per sales channel'!$I129*'Other input expert'!B$6","v":0},{"$f":"Q129*'Other input expert'!C$14*'Sales price per sales channel'!$I129*'Other input expert'!C$6","v":0},{"$f":"R129*'Other input expert'!D$14*'Sales price per sales channel'!$I129*'Other input expert'!D$6","v":0},{"$f":"S129*'Other input expert'!E$14*'Sales price per sales channel'!$I129*'Other input expert'!E$6","v":0},{"$f":"T129*'Other input expert'!F$14*'Sales price per sales channel'!$I129*'Other input expert'!F$6","v":0},{"$f":"U129*'Other input expert'!G$14*'Sales price per sales channel'!$I129*'Other input expert'!G$6","v":0},{"$f":"V129*'Other input expert'!H$14*'Sales price per sales channel'!$I129*'Other input expert'!H$6","v":0},{"$f":"W129*'Other input expert'!I$14*'Sales price per sales channel'!$I129*'Other input expert'!I$6","v":0},{"$f":"X129*'Other input expert'!J$14*'Sales price per sales channel'!$I129*'Other input expert'!J$6","v":0},{"$f":"Y129*'Other input expert'!K$14*'Sales price per sales channel'!$I129*'Other input expert'!K$6","v":0},{"$f":"Z129*'Other input expert'!L$14*'Sales price per sales channel'!$I129*'Other input expert'!L$6","v":0},{"$f":"AA129*'Other input expert'!M$14*'Sales price per sales channel'!$I129*'Other input expert'!M$6","v":0},null,{"$f":"AC129*'Other input expert'!B$12*'Sales price per sales channel'!$G129*'Other input expert'!B$7","v":0},{"$f":"AD129*'Other input expert'!C$12*'Sales price per sales channel'!$G129*'Other input expert'!C$7","v":0},{"$f":"AE129*'Other input expert'!D$12*'Sales price per sales channel'!$G129*'Other input expert'!D$7","v":0},{"$f":"AF129*'Other input expert'!E$12*'Sales price per sales channel'!$G129*'Other input expert'!E$7","v":0},{"$f":"AG129*'Other input expert'!F$12*'Sales price per sales channel'!$G129*'Other input expert'!F$7","v":0},{"$f":"AH129*'Other input expert'!G$12*'Sales price per sales channel'!$G129*'Other input expert'!G$7","v":0},{"$f":"AI129*'Other input expert'!H$12*'Sales price per sales channel'!$G129*'Other input expert'!H$7","v":0},{"$f":"AJ129*'Other input expert'!I$12*'Sales price per sales channel'!$G129*'Other input expert'!I$7","v":0},{"$f":"AK129*'Other input expert'!J$12*'Sales price per sales channel'!$G129*'Other input expert'!J$7","v":0},{"$f":"AL129*'Other input expert'!K$12*'Sales price per sales channel'!$G129*'Other input expert'!K$7","v":0},{"$f":"AM129*'Other input expert'!L$12*'Sales price per sales channel'!$G129*'Other input expert'!L$7","v":0},{"$f":"AN129*'Other input expert'!M$12*'Sales price per sales channel'!$G129*'Other input expert'!M$7","v":0},null,{"$f":"AC129*'Other input expert'!B$13*'Sales price per sales channel'!$H129*'Other input expert'!B$7","v":0},{"$f":"AD129*'Other input expert'!C$13*'Sales price per sales channel'!$H129*'Other input expert'!C$7","v":0},{"$f":"AE129*'Other input expert'!D$13*'Sales price per sales channel'!$H129*'Other input expert'!D$7","v":0},{"$f":"AF129*'Other input expert'!E$13*'Sales price per sales channel'!$H129*'Other input expert'!E$7","v":0},{"$f":"AG129*'Other input expert'!F$13*'Sales price per sales channel'!$H129*'Other input expert'!F$7","v":0},{"$f":"AH129*'Other input expert'!G$13*'Sales price per sales channel'!$H129*'Other input expert'!G$7","v":0},{"$f":"AI129*'Other input expert'!H$13*'Sales price per sales channel'!$H129*'Other input expert'!H$7","v":0},{"$f":"AJ129*'Other input expert'!I$13*'Sales price per sales channel'!$H129*'Other input expert'!I$7","v":0},{"$f":"AK129*'Other input expert'!J$13*'Sales price per sales channel'!$H129*'Other input expert'!J$7","v":0},{"$f":"AL129*'Other input expert'!K$13*'Sales price per sales channel'!$H129*'Other input expert'!K$7","v":0},{"$f":"AM129*'Other input expert'!L$13*'Sales price per sales channel'!$H129*'Other input expert'!L$7","v":0},{"$f":"AN129*'Other input expert'!M$13*'Sales price per sales channel'!$H129*'Other input expert'!M$7","v":0},null,{"$f":"AC129*'Other input expert'!B$14*'Sales price per sales channel'!$I129*'Other input expert'!B$7","v":0},{"$f":"AD129*'Other input expert'!C$14*'Sales price per sales channel'!$I129*'Other input expert'!C$7","v":0},{"$f":"AE129*'Other input expert'!D$14*'Sales price per sales channel'!$I129*'Other input expert'!D$7","v":0},{"$f":"AF129*'Other input expert'!E$14*'Sales price per sales channel'!$I129*'Other input expert'!E$7","v":0},{"$f":"AG129*'Other input expert'!F$14*'Sales price per sales channel'!$I129*'Other input expert'!F$7","v":0},{"$f":"AH129*'Other input expert'!G$14*'Sales price per sales channel'!$I129*'Other input expert'!G$7","v":0},{"$f":"AI129*'Other input expert'!H$14*'Sales price per sales channel'!$I129*'Other input expert'!H$7","v":0},{"$f":"AJ129*'Other input expert'!I$14*'Sales price per sales channel'!$I129*'Other input expert'!I$7","v":0},{"$f":"AK129*'Other input expert'!J$14*'Sales price per sales channel'!$I129*'Other input expert'!J$7","v":0},{"$f":"AL129*'Other input expert'!K$14*'Sales price per sales channel'!$I129*'Other input expert'!K$7","v":0},{"$f":"AM129*'Other input expert'!L$14*'Sales price per sales channel'!$I129*'Other input expert'!L$7","v":0},{"$f":"AN129*'Other input expert'!M$14*'Sales price per sales channel'!$I129*'Other input expert'!M$7","v":0}]
["Prunus domestica","Plum",{"$f":"Plantlist!$G130*'Production list'!D131*'Other input expert'!B$4*'Other input expert'!B$8","v":0},{"$f":"Plantlist!$G130*'Production list'!E131*'Other input expert'!C$4*'Other input expert'!C$8","v":0},{"$f":"Plantlist!$G130*'Production list'!F131*'Other input expert'!D$4*'Other input expert'!D$8","v":0},{"$f":"Plantlist!$G130*'Production list'!G131*'Other input expert'!E$4*'Other input expert'!E$8","v":0},{"$f":"Plantlist!$G130*'Production list'!H131*'Other input expert'!F$4*'Other input expert'!F$8","v":0},{"$f":"Plantlist!$G130*'Production list'!I131*'Other input expert'!G$4*'Other input expert'!G$8","v":0},{"$f":"Plantlist!$G130*'Production list'!J131*'Other input expert'!H$4*'Other input expert'!H$8","v":0},{"$f":"Plantlist!$G130*'Production list'!K131*'Other input expert'!I$4*'Other input expert'!I$8","v":0},{"$f":"Plantlist!$G130*'Production list'!L131*'Other input expert'!J$4*'Other input expert'!J$8","v":0},{"$f":"Plantlist!$G130*'Production list'!M131*'Other input expert'!K$4*'Other input expert'!K$8","v":0},{"$f":"Plantlist!$G130*'Production list'!N131*'Other input expert'!L$4*'Other input expert'!L$8","v":0},{"$f":"Plantlist!$G130*'Production list'!O131*'Other input expert'!M$4*'Other input expert'!M$8","v":0},null,{"$f":"C130*'Other input expert'!B$5","v":0},{"$f":"D130*'Other input expert'!C$5","v":0},{"$f":"E130*'Other input expert'!D$5","v":0},{"$f":"F130*'Other input expert'!E$5","v":0},{"$f":"G130*'Other input expert'!F$5","v":0},{"$f":"H130*'Other input expert'!G$5","v":0},{"$f":"I130*'Other input expert'!H$5","v":0},{"$f":"J130*'Other input expert'!I$5","v":0},{"$f":"K130*'Other input expert'!J$5","v":0},{"$f":"L130*'Other input expert'!K$5","v":0},{"$f":"M130*'Other input expert'!L$5","v":0},{"$f":"N130*'Other input expert'!M$5","v":0},null,{"$f":"C130*(100%-'Other input expert'!B$5)","v":0},{"$f":"D130*(100%-'Other input expert'!C$5)","v":0},{"$f":"E130*(100%-'Other input expert'!D$5)","v":0},{"$f":"F130*(100%-'Other input expert'!E$5)","v":0},{"$f":"G130*(100%-'Other input expert'!F$5)","v":0},{"$f":"H130*(100%-'Other input expert'!G$5)","v":0},{"$f":"I130*(100%-'Other input expert'!H$5)","v":0},{"$f":"J130*(100%-'Other input expert'!I$5)","v":0},{"$f":"K130*(100%-'Other input expert'!J$5)","v":0},{"$f":"L130*(100%-'Other input expert'!K$5)","v":0},{"$f":"M130*(100%-'Other input expert'!L$5)","v":0},{"$f":"N130*(100%-'Other input expert'!M$5)","v":0},null,{"$f":"P130*'Other input expert'!B$12*'Sales price per sales channel'!$G130*'Other input expert'!B$6","v":0},{"$f":"Q130*'Other input expert'!C$12*'Sales price per sales channel'!$G130*'Other input expert'!C$6","v":0},{"$f":"R130*'Other input expert'!D$12*'Sales price per sales channel'!$G130*'Other input expert'!D$6","v":0},{"$f":"S130*'Other input expert'!E$12*'Sales price per sales channel'!$G130*'Other input expert'!E$6","v":0},{"$f":"T130*'Other input expert'!F$12*'Sales price per sales channel'!$G130*'Other input expert'!F$6","v":0},{"$f":"U130*'Other input expert'!G$12*'Sales price per sales channel'!$G130*'Other input expert'!G$6","v":0},{"$f":"V130*'Other input expert'!H$12*'Sales price per sales channel'!$G130*'Other input expert'!H$6","v":0},{"$f":"W130*'Other input expert'!I$12*'Sales price per sales channel'!$G130*'Other input expert'!I$6","v":0},{"$f":"X130*'Other input expert'!J$12*'Sales price per sales channel'!$G130*'Other input expert'!J$6","v":0},{"$f":"Y130*'Other input expert'!K$12*'Sales price per sales channel'!$G130*'Other input expert'!K$6","v":0},{"$f":"Z130*'Other input expert'!L$12*'Sales price per sales channel'!$G130*'Other input expert'!L$6","v":0},{"$f":"AA130*'Other input expert'!M$12*'Sales price per sales channel'!$G130*'Other input expert'!M$6","v":0},null,{"$f":"P130*'Other input expert'!B$13*'Sales price per sales channel'!$H130*'Other input expert'!B$6","v":0},{"$f":"Q130*'Other input expert'!C$13*'Sales price per sales channel'!$H130*'Other input expert'!C$6","v":0},{"$f":"R130*'Other input expert'!D$13*'Sales price per sales channel'!$H130*'Other input expert'!D$6","v":0},{"$f":"S130*'Other input expert'!E$13*'Sales price per sales channel'!$H130*'Other input expert'!E$6","v":0},{"$f":"T130*'Other input expert'!F$13*'Sales price per sales channel'!$H130*'Other input expert'!F$6","v":0},{"$f":"U130*'Other input expert'!G$13*'Sales price per sales channel'!$H130*'Other input expert'!G$6","v":0},{"$f":"V130*'Other input expert'!H$13*'Sales price per sales channel'!$H130*'Other input expert'!H$6","v":0},{"$f":"W130*'Other input expert'!I$13*'Sales price per sales channel'!$H130*'Other input expert'!I$6","v":0},{"$f":"X130*'Other input expert'!J$13*'Sales price per sales channel'!$H130*'Other input expert'!J$6","v":0},{"$f":"Y130*'Other input expert'!K$13*'Sales price per sales channel'!$H130*'Other input expert'!K$6","v":0},{"$f":"Z130*'Other input expert'!L$13*'Sales price per sales channel'!$H130*'Other input expert'!L$6","v":0},{"$f":"AA130*'Other input expert'!M$13*'Sales price per sales channel'!$H130*'Other input expert'!M$6","v":0},null,{"$f":"P130*'Other input expert'!B$14*'Sales price per sales channel'!$I130*'Other input expert'!B$6","v":0},{"$f":"Q130*'Other input expert'!C$14*'Sales price per sales channel'!$I130*'Other input expert'!C$6","v":0},{"$f":"R130*'Other input expert'!D$14*'Sales price per sales channel'!$I130*'Other input expert'!D$6","v":0},{"$f":"S130*'Other input expert'!E$14*'Sales price per sales channel'!$I130*'Other input expert'!E$6","v":0},{"$f":"T130*'Other input expert'!F$14*'Sales price per sales channel'!$I130*'Other input expert'!F$6","v":0},{"$f":"U130*'Other input expert'!G$14*'Sales price per sales channel'!$I130*'Other input expert'!G$6","v":0},{"$f":"V130*'Other input expert'!H$14*'Sales price per sales channel'!$I130*'Other input expert'!H$6","v":0},{"$f":"W130*'Other input expert'!I$14*'Sales price per sales channel'!$I130*'Other input expert'!I$6","v":0},{"$f":"X130*'Other input expert'!J$14*'Sales price per sales channel'!$I130*'Other input expert'!J$6","v":0},{"$f":"Y130*'Other input expert'!K$14*'Sales price per sales channel'!$I130*'Other input expert'!K$6","v":0},{"$f":"Z130*'Other input expert'!L$14*'Sales price per sales channel'!$I130*'Other input expert'!L$6","v":0},{"$f":"AA130*'Other input expert'!M$14*'Sales price per sales channel'!$I130*'Other input expert'!M$6","v":0},null,{"$f":"AC130*'Other input expert'!B$12*'Sales price per sales channel'!$G130*'Other input expert'!B$7","v":0},{"$f":"AD130*'Other input expert'!C$12*'Sales price per sales channel'!$G130*'Other input expert'!C$7","v":0},{"$f":"AE130*'Other input expert'!D$12*'Sales price per sales channel'!$G130*'Other input expert'!D$7","v":0},{"$f":"AF130*'Other input expert'!E$12*'Sales price per sales channel'!$G130*'Other input expert'!E$7","v":0},{"$f":"AG130*'Other input expert'!F$12*'Sales price per sales channel'!$G130*'Other input expert'!F$7","v":0},{"$f":"AH130*'Other input expert'!G$12*'Sales price per sales channel'!$G130*'Other input expert'!G$7","v":0},{"$f":"AI130*'Other input expert'!H$12*'Sales price per sales channel'!$G130*'Other input expert'!H$7","v":0},{"$f":"AJ130*'Other input expert'!I$12*'Sales price per sales channel'!$G130*'Other input expert'!I$7","v":0},{"$f":"AK130*'Other input expert'!J$12*'Sales price per sales channel'!$G130*'Other input expert'!J$7","v":0},{"$f":"AL130*'Other input expert'!K$12*'Sales price per sales channel'!$G130*'Other input expert'!K$7","v":0},{"$f":"AM130*'Other input expert'!L$12*'Sales price per sales channel'!$G130*'Other input expert'!L$7","v":0},{"$f":"AN130*'Other input expert'!M$12*'Sales price per sales channel'!$G130*'Other input expert'!M$7","v":0},null,{"$f":"AC130*'Other input expert'!B$13*'Sales price per sales channel'!$H130*'Other input expert'!B$7","v":0},{"$f":"AD130*'Other input expert'!C$13*'Sales price per sales channel'!$H130*'Other input expert'!C$7","v":0},{"$f":"AE130*'Other input expert'!D$13*'Sales price per sales channel'!$H130*'Other input expert'!D$7","v":0},{"$f":"AF130*'Other input expert'!E$13*'Sales price per sales channel'!$H130*'Other input expert'!E$7","v":0},{"$f":"AG130*'Other input expert'!F$13*'Sales price per sales channel'!$H130*'Other input expert'!F$7","v":0},{"$f":"AH130*'Other input expert'!G$13*'Sales price per sales channel'!$H130*'Other input expert'!G$7","v":0},{"$f":"AI130*'Other input expert'!H$13*'Sales price per sales channel'!$H130*'Other input expert'!H$7","v":0},{"$f":"AJ130*'Other input expert'!I$13*'Sales price per sales channel'!$H130*'Other input expert'!I$7","v":0},{"$f":"AK130*'Other input expert'!J$13*'Sales price per sales channel'!$H130*'Other input expert'!J$7","v":0},{"$f":"AL130*'Other input expert'!K$13*'Sales price per sales channel'!$H130*'Other input expert'!K$7","v":0},{"$f":"AM130*'Other input expert'!L$13*'Sales price per sales channel'!$H130*'Other input expert'!L$7","v":0},{"$f":"AN130*'Other input expert'!M$13*'Sales price per sales channel'!$H130*'Other input expert'!M$7","v":0},null,{"$f":"AC130*'Other input expert'!B$14*'Sales price per sales channel'!$I130*'Other input expert'!B$7","v":0},{"$f":"AD130*'Other input expert'!C$14*'Sales price per sales channel'!$I130*'Other input expert'!C$7","v":0},{"$f":"AE130*'Other input expert'!D$14*'Sales price per sales channel'!$I130*'Other input expert'!D$7","v":0},{"$f":"AF130*'Other input expert'!E$14*'Sales price per sales channel'!$I130*'Other input expert'!E$7","v":0},{"$f":"AG130*'Other input expert'!F$14*'Sales price per sales channel'!$I130*'Other input expert'!F$7","v":0},{"$f":"AH130*'Other input expert'!G$14*'Sales price per sales channel'!$I130*'Other input expert'!G$7","v":0},{"$f":"AI130*'Other input expert'!H$14*'Sales price per sales channel'!$I130*'Other input expert'!H$7","v":0},{"$f":"AJ130*'Other input expert'!I$14*'Sales price per sales channel'!$I130*'Other input expert'!I$7","v":0},{"$f":"AK130*'Other input expert'!J$14*'Sales price per sales channel'!$I130*'Other input expert'!J$7","v":0},{"$f":"AL130*'Other input expert'!K$14*'Sales price per sales channel'!$I130*'Other input expert'!K$7","v":0},{"$f":"AM130*'Other input expert'!L$14*'Sales price per sales channel'!$I130*'Other input expert'!L$7","v":0},{"$f":"AN130*'Other input expert'!M$14*'Sales price per sales channel'!$I130*'Other input expert'!M$7","v":0}]
["Prunus dulcis","Almond",{"$f":"Plantlist!$G131*'Production list'!D132*'Other input expert'!B$4*'Other input expert'!B$8","v":0},{"$f":"Plantlist!$G131*'Production list'!E132*'Other input expert'!C$4*'Other input expert'!C$8","v":0},{"$f":"Plantlist!$G131*'Production list'!F132*'Other input expert'!D$4*'Other input expert'!D$8","v":0},{"$f":"Plantlist!$G131*'Production list'!G132*'Other input expert'!E$4*'Other input expert'!E$8","v":0},{"$f":"Plantlist!$G131*'Production list'!H132*'Other input expert'!F$4*'Other input expert'!F$8","v":0},{"$f":"Plantlist!$G131*'Production list'!I132*'Other input expert'!G$4*'Other input expert'!G$8","v":0},{"$f":"Plantlist!$G131*'Production list'!J132*'Other input expert'!H$4*'Other input expert'!H$8","v":0},{"$f":"Plantlist!$G131*'Production list'!K132*'Other input expert'!I$4*'Other input expert'!I$8","v":0},{"$f":"Plantlist!$G131*'Production list'!L132*'Other input expert'!J$4*'Other input expert'!J$8","v":0},{"$f":"Plantlist!$G131*'Production list'!M132*'Other input expert'!K$4*'Other input expert'!K$8","v":0},{"$f":"Plantlist!$G131*'Production list'!N132*'Other input expert'!L$4*'Other input expert'!L$8","v":0},{"$f":"Plantlist!$G131*'Production list'!O132*'Other input expert'!M$4*'Other input expert'!M$8","v":0},null,{"$f":"C131*'Other input expert'!B$5","v":0},{"$f":"D131*'Other input expert'!C$5","v":0},{"$f":"E131*'Other input expert'!D$5","v":0},{"$f":"F131*'Other input expert'!E$5","v":0},{"$f":"G131*'Other input expert'!F$5","v":0},{"$f":"H131*'Other input expert'!G$5","v":0},{"$f":"I131*'Other input expert'!H$5","v":0},{"$f":"J131*'Other input expert'!I$5","v":0},{"$f":"K131*'Other input expert'!J$5","v":0},{"$f":"L131*'Other input expert'!K$5","v":0},{"$f":"M131*'Other input expert'!L$5","v":0},{"$f":"N131*'Other input expert'!M$5","v":0},null,{"$f":"C131*(100%-'Other input expert'!B$5)","v":0},{"$f":"D131*(100%-'Other input expert'!C$5)","v":0},{"$f":"E131*(100%-'Other input expert'!D$5)","v":0},{"$f":"F131*(100%-'Other input expert'!E$5)","v":0},{"$f":"G131*(100%-'Other input expert'!F$5)","v":0},{"$f":"H131*(100%-'Other input expert'!G$5)","v":0},{"$f":"I131*(100%-'Other input expert'!H$5)","v":0},{"$f":"J131*(100%-'Other input expert'!I$5)","v":0},{"$f":"K131*(100%-'Other input expert'!J$5)","v":0},{"$f":"L131*(100%-'Other input expert'!K$5)","v":0},{"$f":"M131*(100%-'Other input expert'!L$5)","v":0},{"$f":"N131*(100%-'Other input expert'!M$5)","v":0},null,{"$f":"P131*'Other input expert'!B$12*'Sales price per sales channel'!$G131*'Other input expert'!B$6","v":0},{"$f":"Q131*'Other input expert'!C$12*'Sales price per sales channel'!$G131*'Other input expert'!C$6","v":0},{"$f":"R131*'Other input expert'!D$12*'Sales price per sales channel'!$G131*'Other input expert'!D$6","v":0},{"$f":"S131*'Other input expert'!E$12*'Sales price per sales channel'!$G131*'Other input expert'!E$6","v":0},{"$f":"T131*'Other input expert'!F$12*'Sales price per sales channel'!$G131*'Other input expert'!F$6","v":0},{"$f":"U131*'Other input expert'!G$12*'Sales price per sales channel'!$G131*'Other input expert'!G$6","v":0},{"$f":"V131*'Other input expert'!H$12*'Sales price per sales channel'!$G131*'Other input expert'!H$6","v":0},{"$f":"W131*'Other input expert'!I$12*'Sales price per sales channel'!$G131*'Other input expert'!I$6","v":0},{"$f":"X131*'Other input expert'!J$12*'Sales price per sales channel'!$G131*'Other input expert'!J$6","v":0},{"$f":"Y131*'Other input expert'!K$12*'Sales price per sales channel'!$G131*'Other input expert'!K$6","v":0},{"$f":"Z131*'Other input expert'!L$12*'Sales price per sales channel'!$G131*'Other input expert'!L$6","v":0},{"$f":"AA131*'Other input expert'!M$12*'Sales price per sales channel'!$G131*'Other input expert'!M$6","v":0},null,{"$f":"P131*'Other input expert'!B$13*'Sales price per sales channel'!$H131*'Other input expert'!B$6","v":0},{"$f":"Q131*'Other input expert'!C$13*'Sales price per sales channel'!$H131*'Other input expert'!C$6","v":0},{"$f":"R131*'Other input expert'!D$13*'Sales price per sales channel'!$H131*'Other input expert'!D$6","v":0},{"$f":"S131*'Other input expert'!E$13*'Sales price per sales channel'!$H131*'Other input expert'!E$6","v":0},{"$f":"T131*'Other input expert'!F$13*'Sales price per sales channel'!$H131*'Other input expert'!F$6","v":0},{"$f":"U131*'Other input expert'!G$13*'Sales price per sales channel'!$H131*'Other input expert'!G$6","v":0},{"$f":"V131*'Other input expert'!H$13*'Sales price per sales channel'!$H131*'Other input expert'!H$6","v":0},{"$f":"W131*'Other input expert'!I$13*'Sales price per sales channel'!$H131*'Other input expert'!I$6","v":0},{"$f":"X131*'Other input expert'!J$13*'Sales price per sales channel'!$H131*'Other input expert'!J$6","v":0},{"$f":"Y131*'Other input expert'!K$13*'Sales price per sales channel'!$H131*'Other input expert'!K$6","v":0},{"$f":"Z131*'Other input expert'!L$13*'Sales price per sales channel'!$H131*'Other input expert'!L$6","v":0},{"$f":"AA131*'Other input expert'!M$13*'Sales price per sales channel'!$H131*'Other input expert'!M$6","v":0},null,{"$f":"P131*'Other input expert'!B$14*'Sales price per sales channel'!$I131*'Other input expert'!B$6","v":0},{"$f":"Q131*'Other input expert'!C$14*'Sales price per sales channel'!$I131*'Other input expert'!C$6","v":0},{"$f":"R131*'Other input expert'!D$14*'Sales price per sales channel'!$I131*'Other input expert'!D$6","v":0},{"$f":"S131*'Other input expert'!E$14*'Sales price per sales channel'!$I131*'Other input expert'!E$6","v":0},{"$f":"T131*'Other input expert'!F$14*'Sales price per sales channel'!$I131*'Other input expert'!F$6","v":0},{"$f":"U131*'Other input expert'!G$14*'Sales price per sales channel'!$I131*'Other input expert'!G$6","v":0},{"$f":"V131*'Other input expert'!H$14*'Sales price per sales channel'!$I131*'Other input expert'!H$6","v":0},{"$f":"W131*'Other input expert'!I$14*'Sales price per sales channel'!$I131*'Other input expert'!I$6","v":0},{"$f":"X131*'Other input expert'!J$14*'Sales price per sales channel'!$I131*'Other input expert'!J$6","v":0},{"$f":"Y131*'Other input expert'!K$14*'Sales price per sales channel'!$I131*'Other input expert'!K$6","v":0},{"$f":"Z131*'Other input expert'!L$14*'Sales price per sales channel'!$I131*'Other input expert'!L$6","v":0},{"$f":"AA131*'Other input expert'!M$14*'Sales price per sales channel'!$I131*'Other input expert'!M$6","v":0},null,{"$f":"AC131*'Other input expert'!B$12*'Sales price per sales channel'!$G131*'Other input expert'!B$7","v":0},{"$f":"AD131*'Other input expert'!C$12*'Sales price per sales channel'!$G131*'Other input expert'!C$7","v":0},{"$f":"AE131*'Other input expert'!D$12*'Sales price per sales channel'!$G131*'Other input expert'!D$7","v":0},{"$f":"AF131*'Other input expert'!E$12*'Sales price per sales channel'!$G131*'Other input expert'!E$7","v":0},{"$f":"AG131*'Other input expert'!F$12*'Sales price per sales channel'!$G131*'Other input expert'!F$7","v":0},{"$f":"AH131*'Other input expert'!G$12*'Sales price per sales channel'!$G131*'Other input expert'!G$7","v":0},{"$f":"AI131*'Other input expert'!H$12*'Sales price per sales channel'!$G131*'Other input expert'!H$7","v":0},{"$f":"AJ131*'Other input expert'!I$12*'Sales price per sales channel'!$G131*'Other input expert'!I$7","v":0},{"$f":"AK131*'Other input expert'!J$12*'Sales price per sales channel'!$G131*'Other input expert'!J$7","v":0},{"$f":"AL131*'Other input expert'!K$12*'Sales price per sales channel'!$G131*'Other input expert'!K$7","v":0},{"$f":"AM131*'Other input expert'!L$12*'Sales price per sales channel'!$G131*'Other input expert'!L$7","v":0},{"$f":"AN131*'Other input expert'!M$12*'Sales price per sales channel'!$G131*'Other input expert'!M$7","v":0},null,{"$f":"AC131*'Other input expert'!B$13*'Sales price per sales channel'!$H131*'Other input expert'!B$7","v":0},{"$f":"AD131*'Other input expert'!C$13*'Sales price per sales channel'!$H131*'Other input expert'!C$7","v":0},{"$f":"AE131*'Other input expert'!D$13*'Sales price per sales channel'!$H131*'Other input expert'!D$7","v":0},{"$f":"AF131*'Other input expert'!E$13*'Sales price per sales channel'!$H131*'Other input expert'!E$7","v":0},{"$f":"AG131*'Other input expert'!F$13*'Sales price per sales channel'!$H131*'Other input expert'!F$7","v":0},{"$f":"AH131*'Other input expert'!G$13*'Sales price per sales channel'!$H131*'Other input expert'!G$7","v":0},{"$f":"AI131*'Other input expert'!H$13*'Sales price per sales channel'!$H131*'Other input expert'!H$7","v":0},{"$f":"AJ131*'Other input expert'!I$13*'Sales price per sales channel'!$H131*'Other input expert'!I$7","v":0},{"$f":"AK131*'Other input expert'!J$13*'Sales price per sales channel'!$H131*'Other input expert'!J$7","v":0},{"$f":"AL131*'Other input expert'!K$13*'Sales price per sales channel'!$H131*'Other input expert'!K$7","v":0},{"$f":"AM131*'Other input expert'!L$13*'Sales price per sales channel'!$H131*'Other input expert'!L$7","v":0},{"$f":"AN131*'Other input expert'!M$13*'Sales price per sales channel'!$H131*'Other input expert'!M$7","v":0},null,{"$f":"AC131*'Other input expert'!B$14*'Sales price per sales channel'!$I131*'Other input expert'!B$7","v":0},{"$f":"AD131*'Other input expert'!C$14*'Sales price per sales channel'!$I131*'Other input expert'!C$7","v":0},{"$f":"AE131*'Other input expert'!D$14*'Sales price per sales channel'!$I131*'Other input expert'!D$7","v":0},{"$f":"AF131*'Other input expert'!E$14*'Sales price per sales channel'!$I131*'Other input expert'!E$7","v":0},{"$f":"AG131*'Other input expert'!F$14*'Sales price per sales channel'!$I131*'Other input expert'!F$7","v":0},{"$f":"AH131*'Other input expert'!G$14*'Sales price per sales channel'!$I131*'Other input expert'!G$7","v":0},{"$f":"AI131*'Other input expert'!H$14*'Sales price per sales channel'!$I131*'Other input expert'!H$7","v":0},{"$f":"AJ131*'Other input expert'!I$14*'Sales price per sales channel'!$I131*'Other input expert'!I$7","v":0},{"$f":"AK131*'Other input expert'!J$14*'Sales price per sales channel'!$I131*'Other input expert'!J$7","v":0},{"$f":"AL131*'Other input expert'!K$14*'Sales price per sales channel'!$I131*'Other input expert'!K$7","v":0},{"$f":"AM131*'Other input expert'!L$14*'Sales price per sales channel'!$I131*'Other input expert'!L$7","v":0},{"$f":"AN131*'Other input expert'!M$14*'Sales price per sales channel'!$I131*'Other input expert'!M$7","v":0}]
["Prunus insititia","Damson",{"$f":"Plantlist!$G132*'Production list'!D133*'Other input expert'!B$4*'Other input expert'!B$8","v":0},{"$f":"Plantlist!$G132*'Production list'!E133*'Other input expert'!C$4*'Other input expert'!C$8","v":0},{"$f":"Plantlist!$G132*'Production list'!F133*'Other input expert'!D$4*'Other input expert'!D$8","v":0},{"$f":"Plantlist!$G132*'Production list'!G133*'Other input expert'!E$4*'Other input expert'!E$8","v":0},{"$f":"Plantlist!$G132*'Production list'!H133*'Other input expert'!F$4*'Other input expert'!F$8","v":0},{"$f":"Plantlist!$G132*'Production list'!I133*'Other input expert'!G$4*'Other input expert'!G$8","v":0},{"$f":"Plantlist!$G132*'Production list'!J133*'Other input expert'!H$4*'Other input expert'!H$8","v":0},{"$f":"Plantlist!$G132*'Production list'!K133*'Other input expert'!I$4*'Other input expert'!I$8","v":0},{"$f":"Plantlist!$G132*'Production list'!L133*'Other input expert'!J$4*'Other input expert'!J$8","v":0},{"$f":"Plantlist!$G132*'Production list'!M133*'Other input expert'!K$4*'Other input expert'!K$8","v":0},{"$f":"Plantlist!$G132*'Production list'!N133*'Other input expert'!L$4*'Other input expert'!L$8","v":0},{"$f":"Plantlist!$G132*'Production list'!O133*'Other input expert'!M$4*'Other input expert'!M$8","v":0},null,{"$f":"C132*'Other input expert'!B$5","v":0},{"$f":"D132*'Other input expert'!C$5","v":0},{"$f":"E132*'Other input expert'!D$5","v":0},{"$f":"F132*'Other input expert'!E$5","v":0},{"$f":"G132*'Other input expert'!F$5","v":0},{"$f":"H132*'Other input expert'!G$5","v":0},{"$f":"I132*'Other input expert'!H$5","v":0},{"$f":"J132*'Other input expert'!I$5","v":0},{"$f":"K132*'Other input expert'!J$5","v":0},{"$f":"L132*'Other input expert'!K$5","v":0},{"$f":"M132*'Other input expert'!L$5","v":0},{"$f":"N132*'Other input expert'!M$5","v":0},null,{"$f":"C132*(100%-'Other input expert'!B$5)","v":0},{"$f":"D132*(100%-'Other input expert'!C$5)","v":0},{"$f":"E132*(100%-'Other input expert'!D$5)","v":0},{"$f":"F132*(100%-'Other input expert'!E$5)","v":0},{"$f":"G132*(100%-'Other input expert'!F$5)","v":0},{"$f":"H132*(100%-'Other input expert'!G$5)","v":0},{"$f":"I132*(100%-'Other input expert'!H$5)","v":0},{"$f":"J132*(100%-'Other input expert'!I$5)","v":0},{"$f":"K132*(100%-'Other input expert'!J$5)","v":0},{"$f":"L132*(100%-'Other input expert'!K$5)","v":0},{"$f":"M132*(100%-'Other input expert'!L$5)","v":0},{"$f":"N132*(100%-'Other input expert'!M$5)","v":0},null,{"$f":"P132*'Other input expert'!B$12*'Sales price per sales channel'!$G132*'Other input expert'!B$6","v":0},{"$f":"Q132*'Other input expert'!C$12*'Sales price per sales channel'!$G132*'Other input expert'!C$6","v":0},{"$f":"R132*'Other input expert'!D$12*'Sales price per sales channel'!$G132*'Other input expert'!D$6","v":0},{"$f":"S132*'Other input expert'!E$12*'Sales price per sales channel'!$G132*'Other input expert'!E$6","v":0},{"$f":"T132*'Other input expert'!F$12*'Sales price per sales channel'!$G132*'Other input expert'!F$6","v":0},{"$f":"U132*'Other input expert'!G$12*'Sales price per sales channel'!$G132*'Other input expert'!G$6","v":0},{"$f":"V132*'Other input expert'!H$12*'Sales price per sales channel'!$G132*'Other input expert'!H$6","v":0},{"$f":"W132*'Other input expert'!I$12*'Sales price per sales channel'!$G132*'Other input expert'!I$6","v":0},{"$f":"X132*'Other input expert'!J$12*'Sales price per sales channel'!$G132*'Other input expert'!J$6","v":0},{"$f":"Y132*'Other input expert'!K$12*'Sales price per sales channel'!$G132*'Other input expert'!K$6","v":0},{"$f":"Z132*'Other input expert'!L$12*'Sales price per sales channel'!$G132*'Other input expert'!L$6","v":0},{"$f":"AA132*'Other input expert'!M$12*'Sales price per sales channel'!$G132*'Other input expert'!M$6","v":0},null,{"$f":"P132*'Other input expert'!B$13*'Sales price per sales channel'!$H132*'Other input expert'!B$6","v":0},{"$f":"Q132*'Other input expert'!C$13*'Sales price per sales channel'!$H132*'Other input expert'!C$6","v":0},{"$f":"R132*'Other input expert'!D$13*'Sales price per sales channel'!$H132*'Other input expert'!D$6","v":0},{"$f":"S132*'Other input expert'!E$13*'Sales price per sales channel'!$H132*'Other input expert'!E$6","v":0},{"$f":"T132*'Other input expert'!F$13*'Sales price per sales channel'!$H132*'Other input expert'!F$6","v":0},{"$f":"U132*'Other input expert'!G$13*'Sales price per sales channel'!$H132*'Other input expert'!G$6","v":0},{"$f":"V132*'Other input expert'!H$13*'Sales price per sales channel'!$H132*'Other input expert'!H$6","v":0},{"$f":"W132*'Other input expert'!I$13*'Sales price per sales channel'!$H132*'Other input expert'!I$6","v":0},{"$f":"X132*'Other input expert'!J$13*'Sales price per sales channel'!$H132*'Other input expert'!J$6","v":0},{"$f":"Y132*'Other input expert'!K$13*'Sales price per sales channel'!$H132*'Other input expert'!K$6","v":0},{"$f":"Z132*'Other input expert'!L$13*'Sales price per sales channel'!$H132*'Other input expert'!L$6","v":0},{"$f":"AA132*'Other input expert'!M$13*'Sales price per sales channel'!$H132*'Other input expert'!M$6","v":0},null,{"$f":"P132*'Other input expert'!B$14*'Sales price per sales channel'!$I132*'Other input expert'!B$6","v":0},{"$f":"Q132*'Other input expert'!C$14*'Sales price per sales channel'!$I132*'Other input expert'!C$6","v":0},{"$f":"R132*'Other input expert'!D$14*'Sales price per sales channel'!$I132*'Other input expert'!D$6","v":0},{"$f":"S132*'Other input expert'!E$14*'Sales price per sales channel'!$I132*'Other input expert'!E$6","v":0},{"$f":"T132*'Other input expert'!F$14*'Sales price per sales channel'!$I132*'Other input expert'!F$6","v":0},{"$f":"U132*'Other input expert'!G$14*'Sales price per sales channel'!$I132*'Other input expert'!G$6","v":0},{"$f":"V132*'Other input expert'!H$14*'Sales price per sales channel'!$I132*'Other input expert'!H$6","v":0},{"$f":"W132*'Other input expert'!I$14*'Sales price per sales channel'!$I132*'Other input expert'!I$6","v":0},{"$f":"X132*'Other input expert'!J$14*'Sales price per sales channel'!$I132*'Other input expert'!J$6","v":0},{"$f":"Y132*'Other input expert'!K$14*'Sales price per sales channel'!$I132*'Other input expert'!K$6","v":0},{"$f":"Z132*'Other input expert'!L$14*'Sales price per sales channel'!$I132*'Other input expert'!L$6","v":0},{"$f":"AA132*'Other input expert'!M$14*'Sales price per sales channel'!$I132*'Other input expert'!M$6","v":0},null,{"$f":"AC132*'Other input expert'!B$12*'Sales price per sales channel'!$G132*'Other input expert'!B$7","v":0},{"$f":"AD132*'Other input expert'!C$12*'Sales price per sales channel'!$G132*'Other input expert'!C$7","v":0},{"$f":"AE132*'Other input expert'!D$12*'Sales price per sales channel'!$G132*'Other input expert'!D$7","v":0},{"$f":"AF132*'Other input expert'!E$12*'Sales price per sales channel'!$G132*'Other input expert'!E$7","v":0},{"$f":"AG132*'Other input expert'!F$12*'Sales price per sales channel'!$G132*'Other input expert'!F$7","v":0},{"$f":"AH132*'Other input expert'!G$12*'Sales price per sales channel'!$G132*'Other input expert'!G$7","v":0},{"$f":"AI132*'Other input expert'!H$12*'Sales price per sales channel'!$G132*'Other input expert'!H$7","v":0},{"$f":"AJ132*'Other input expert'!I$12*'Sales price per sales channel'!$G132*'Other input expert'!I$7","v":0},{"$f":"AK132*'Other input expert'!J$12*'Sales price per sales channel'!$G132*'Other input expert'!J$7","v":0},{"$f":"AL132*'Other input expert'!K$12*'Sales price per sales channel'!$G132*'Other input expert'!K$7","v":0},{"$f":"AM132*'Other input expert'!L$12*'Sales price per sales channel'!$G132*'Other input expert'!L$7","v":0},{"$f":"AN132*'Other input expert'!M$12*'Sales price per sales channel'!$G132*'Other input expert'!M$7","v":0},null,{"$f":"AC132*'Other input expert'!B$13*'Sales price per sales channel'!$H132*'Other input expert'!B$7","v":0},{"$f":"AD132*'Other input expert'!C$13*'Sales price per sales channel'!$H132*'Other input expert'!C$7","v":0},{"$f":"AE132*'Other input expert'!D$13*'Sales price per sales channel'!$H132*'Other input expert'!D$7","v":0},{"$f":"AF132*'Other input expert'!E$13*'Sales price per sales channel'!$H132*'Other input expert'!E$7","v":0},{"$f":"AG132*'Other input expert'!F$13*'Sales price per sales channel'!$H132*'Other input expert'!F$7","v":0},{"$f":"AH132*'Other input expert'!G$13*'Sales price per sales channel'!$H132*'Other input expert'!G$7","v":0},{"$f":"AI132*'Other input expert'!H$13*'Sales price per sales channel'!$H132*'Other input expert'!H$7","v":0},{"$f":"AJ132*'Other input expert'!I$13*'Sales price per sales channel'!$H132*'Other input expert'!I$7","v":0},{"$f":"AK132*'Other input expert'!J$13*'Sales price per sales channel'!$H132*'Other input expert'!J$7","v":0},{"$f":"AL132*'Other input expert'!K$13*'Sales price per sales channel'!$H132*'Other input expert'!K$7","v":0},{"$f":"AM132*'Other input expert'!L$13*'Sales price per sales channel'!$H132*'Other input expert'!L$7","v":0},{"$f":"AN132*'Other input expert'!M$13*'Sales price per sales channel'!$H132*'Other input expert'!M$7","v":0},null,{"$f":"AC132*'Other input expert'!B$14*'Sales price per sales channel'!$I132*'Other input expert'!B$7","v":0},{"$f":"AD132*'Other input expert'!C$14*'Sales price per sales channel'!$I132*'Other input expert'!C$7","v":0},{"$f":"AE132*'Other input expert'!D$14*'Sales price per sales channel'!$I132*'Other input expert'!D$7","v":0},{"$f":"AF132*'Other input expert'!E$14*'Sales price per sales channel'!$I132*'Other input expert'!E$7","v":0},{"$f":"AG132*'Other input expert'!F$14*'Sales price per sales channel'!$I132*'Other input expert'!F$7","v":0},{"$f":"AH132*'Other input expert'!G$14*'Sales price per sales channel'!$I132*'Other input expert'!G$7","v":0},{"$f":"AI132*'Other input expert'!H$14*'Sales price per sales channel'!$I132*'Other input expert'!H$7","v":0},{"$f":"AJ132*'Other input expert'!I$14*'Sales price per sales channel'!$I132*'Other input expert'!I$7","v":0},{"$f":"AK132*'Other input expert'!J$14*'Sales price per sales channel'!$I132*'Other input expert'!J$7","v":0},{"$f":"AL132*'Other input expert'!K$14*'Sales price per sales channel'!$I132*'Other input expert'!K$7","v":0},{"$f":"AM132*'Other input expert'!L$14*'Sales price per sales channel'!$I132*'Other input expert'!L$7","v":0},{"$f":"AN132*'Other input expert'!M$14*'Sales price per sales channel'!$I132*'Other input expert'!M$7","v":0}]
["Prunus persica","Peach",{"$f":"Plantlist!$G133*'Production list'!D134*'Other input expert'!B$4*'Other input expert'!B$8","v":0},{"$f":"Plantlist!$G133*'Production list'!E134*'Other input expert'!C$4*'Other input expert'!C$8","v":0},{"$f":"Plantlist!$G133*'Production list'!F134*'Other input expert'!D$4*'Other input expert'!D$8","v":0},{"$f":"Plantlist!$G133*'Production list'!G134*'Other input expert'!E$4*'Other input expert'!E$8","v":0},{"$f":"Plantlist!$G133*'Production list'!H134*'Other input expert'!F$4*'Other input expert'!F$8","v":0},{"$f":"Plantlist!$G133*'Production list'!I134*'Other input expert'!G$4*'Other input expert'!G$8","v":0},{"$f":"Plantlist!$G133*'Production list'!J134*'Other input expert'!H$4*'Other input expert'!H$8","v":0},{"$f":"Plantlist!$G133*'Production list'!K134*'Other input expert'!I$4*'Other input expert'!I$8","v":0},{"$f":"Plantlist!$G133*'Production list'!L134*'Other input expert'!J$4*'Other input expert'!J$8","v":0},{"$f":"Plantlist!$G133*'Production list'!M134*'Other input expert'!K$4*'Other input expert'!K$8","v":0},{"$f":"Plantlist!$G133*'Production list'!N134*'Other input expert'!L$4*'Other input expert'!L$8","v":0},{"$f":"Plantlist!$G133*'Production list'!O134*'Other input expert'!M$4*'Other input expert'!M$8","v":0},null,{"$f":"C133*'Other input expert'!B$5","v":0},{"$f":"D133*'Other input expert'!C$5","v":0},{"$f":"E133*'Other input expert'!D$5","v":0},{"$f":"F133*'Other input expert'!E$5","v":0},{"$f":"G133*'Other input expert'!F$5","v":0},{"$f":"H133*'Other input expert'!G$5","v":0},{"$f":"I133*'Other input expert'!H$5","v":0},{"$f":"J133*'Other input expert'!I$5","v":0},{"$f":"K133*'Other input expert'!J$5","v":0},{"$f":"L133*'Other input expert'!K$5","v":0},{"$f":"M133*'Other input expert'!L$5","v":0},{"$f":"N133*'Other input expert'!M$5","v":0},null,{"$f":"C133*(100%-'Other input expert'!B$5)","v":0},{"$f":"D133*(100%-'Other input expert'!C$5)","v":0},{"$f":"E133*(100%-'Other input expert'!D$5)","v":0},{"$f":"F133*(100%-'Other input expert'!E$5)","v":0},{"$f":"G133*(100%-'Other input expert'!F$5)","v":0},{"$f":"H133*(100%-'Other input expert'!G$5)","v":0},{"$f":"I133*(100%-'Other input expert'!H$5)","v":0},{"$f":"J133*(100%-'Other input expert'!I$5)","v":0},{"$f":"K133*(100%-'Other input expert'!J$5)","v":0},{"$f":"L133*(100%-'Other input expert'!K$5)","v":0},{"$f":"M133*(100%-'Other input expert'!L$5)","v":0},{"$f":"N133*(100%-'Other input expert'!M$5)","v":0},null,{"$f":"P133*'Other input expert'!B$12*'Sales price per sales channel'!$G133*'Other input expert'!B$6","v":0},{"$f":"Q133*'Other input expert'!C$12*'Sales price per sales channel'!$G133*'Other input expert'!C$6","v":0},{"$f":"R133*'Other input expert'!D$12*'Sales price per sales channel'!$G133*'Other input expert'!D$6","v":0},{"$f":"S133*'Other input expert'!E$12*'Sales price per sales channel'!$G133*'Other input expert'!E$6","v":0},{"$f":"T133*'Other input expert'!F$12*'Sales price per sales channel'!$G133*'Other input expert'!F$6","v":0},{"$f":"U133*'Other input expert'!G$12*'Sales price per sales channel'!$G133*'Other input expert'!G$6","v":0},{"$f":"V133*'Other input expert'!H$12*'Sales price per sales channel'!$G133*'Other input expert'!H$6","v":0},{"$f":"W133*'Other input expert'!I$12*'Sales price per sales channel'!$G133*'Other input expert'!I$6","v":0},{"$f":"X133*'Other input expert'!J$12*'Sales price per sales channel'!$G133*'Other input expert'!J$6","v":0},{"$f":"Y133*'Other input expert'!K$12*'Sales price per sales channel'!$G133*'Other input expert'!K$6","v":0},{"$f":"Z133*'Other input expert'!L$12*'Sales price per sales channel'!$G133*'Other input expert'!L$6","v":0},{"$f":"AA133*'Other input expert'!M$12*'Sales price per sales channel'!$G133*'Other input expert'!M$6","v":0},null,{"$f":"P133*'Other input expert'!B$13*'Sales price per sales channel'!$H133*'Other input expert'!B$6","v":0},{"$f":"Q133*'Other input expert'!C$13*'Sales price per sales channel'!$H133*'Other input expert'!C$6","v":0},{"$f":"R133*'Other input expert'!D$13*'Sales price per sales channel'!$H133*'Other input expert'!D$6","v":0},{"$f":"S133*'Other input expert'!E$13*'Sales price per sales channel'!$H133*'Other input expert'!E$6","v":0},{"$f":"T133*'Other input expert'!F$13*'Sales price per sales channel'!$H133*'Other input expert'!F$6","v":0},{"$f":"U133*'Other input expert'!G$13*'Sales price per sales channel'!$H133*'Other input expert'!G$6","v":0},{"$f":"V133*'Other input expert'!H$13*'Sales price per sales channel'!$H133*'Other input expert'!H$6","v":0},{"$f":"W133*'Other input expert'!I$13*'Sales price per sales channel'!$H133*'Other input expert'!I$6","v":0},{"$f":"X133*'Other input expert'!J$13*'Sales price per sales channel'!$H133*'Other input expert'!J$6","v":0},{"$f":"Y133*'Other input expert'!K$13*'Sales price per sales channel'!$H133*'Other input expert'!K$6","v":0},{"$f":"Z133*'Other input expert'!L$13*'Sales price per sales channel'!$H133*'Other input expert'!L$6","v":0},{"$f":"AA133*'Other input expert'!M$13*'Sales price per sales channel'!$H133*'Other input expert'!M$6","v":0},null,{"$f":"P133*'Other input expert'!B$14*'Sales price per sales channel'!$I133*'Other input expert'!B$6","v":0},{"$f":"Q133*'Other input expert'!C$14*'Sales price per sales channel'!$I133*'Other input expert'!C$6","v":0},{"$f":"R133*'Other input expert'!D$14*'Sales price per sales channel'!$I133*'Other input expert'!D$6","v":0},{"$f":"S133*'Other input expert'!E$14*'Sales price per sales channel'!$I133*'Other input expert'!E$6","v":0},{"$f":"T133*'Other input expert'!F$14*'Sales price per sales channel'!$I133*'Other input expert'!F$6","v":0},{"$f":"U133*'Other input expert'!G$14*'Sales price per sales channel'!$I133*'Other input expert'!G$6","v":0},{"$f":"V133*'Other input expert'!H$14*'Sales price per sales channel'!$I133*'Other input expert'!H$6","v":0},{"$f":"W133*'Other input expert'!I$14*'Sales price per sales channel'!$I133*'Other input expert'!I$6","v":0},{"$f":"X133*'Other input expert'!J$14*'Sales price per sales channel'!$I133*'Other input expert'!J$6","v":0},{"$f":"Y133*'Other input expert'!K$14*'Sales price per sales channel'!$I133*'Other input expert'!K$6","v":0},{"$f":"Z133*'Other input expert'!L$14*'Sales price per sales channel'!$I133*'Other input expert'!L$6","v":0},{"$f":"AA133*'Other input expert'!M$14*'Sales price per sales channel'!$I133*'Other input expert'!M$6","v":0},null,{"$f":"AC133*'Other input expert'!B$12*'Sales price per sales channel'!$G133*'Other input expert'!B$7","v":0},{"$f":"AD133*'Other input expert'!C$12*'Sales price per sales channel'!$G133*'Other input expert'!C$7","v":0},{"$f":"AE133*'Other input expert'!D$12*'Sales price per sales channel'!$G133*'Other input expert'!D$7","v":0},{"$f":"AF133*'Other input expert'!E$12*'Sales price per sales channel'!$G133*'Other input expert'!E$7","v":0},{"$f":"AG133*'Other input expert'!F$12*'Sales price per sales channel'!$G133*'Other input expert'!F$7","v":0},{"$f":"AH133*'Other input expert'!G$12*'Sales price per sales channel'!$G133*'Other input expert'!G$7","v":0},{"$f":"AI133*'Other input expert'!H$12*'Sales price per sales channel'!$G133*'Other input expert'!H$7","v":0},{"$f":"AJ133*'Other input expert'!I$12*'Sales price per sales channel'!$G133*'Other input expert'!I$7","v":0},{"$f":"AK133*'Other input expert'!J$12*'Sales price per sales channel'!$G133*'Other input expert'!J$7","v":0},{"$f":"AL133*'Other input expert'!K$12*'Sales price per sales channel'!$G133*'Other input expert'!K$7","v":0},{"$f":"AM133*'Other input expert'!L$12*'Sales price per sales channel'!$G133*'Other input expert'!L$7","v":0},{"$f":"AN133*'Other input expert'!M$12*'Sales price per sales channel'!$G133*'Other input expert'!M$7","v":0},null,{"$f":"AC133*'Other input expert'!B$13*'Sales price per sales channel'!$H133*'Other input expert'!B$7","v":0},{"$f":"AD133*'Other input expert'!C$13*'Sales price per sales channel'!$H133*'Other input expert'!C$7","v":0},{"$f":"AE133*'Other input expert'!D$13*'Sales price per sales channel'!$H133*'Other input expert'!D$7","v":0},{"$f":"AF133*'Other input expert'!E$13*'Sales price per sales channel'!$H133*'Other input expert'!E$7","v":0},{"$f":"AG133*'Other input expert'!F$13*'Sales price per sales channel'!$H133*'Other input expert'!F$7","v":0},{"$f":"AH133*'Other input expert'!G$13*'Sales price per sales channel'!$H133*'Other input expert'!G$7","v":0},{"$f":"AI133*'Other input expert'!H$13*'Sales price per sales channel'!$H133*'Other input expert'!H$7","v":0},{"$f":"AJ133*'Other input expert'!I$13*'Sales price per sales channel'!$H133*'Other input expert'!I$7","v":0},{"$f":"AK133*'Other input expert'!J$13*'Sales price per sales channel'!$H133*'Other input expert'!J$7","v":0},{"$f":"AL133*'Other input expert'!K$13*'Sales price per sales channel'!$H133*'Other input expert'!K$7","v":0},{"$f":"AM133*'Other input expert'!L$13*'Sales price per sales channel'!$H133*'Other input expert'!L$7","v":0},{"$f":"AN133*'Other input expert'!M$13*'Sales price per sales channel'!$H133*'Other input expert'!M$7","v":0},null,{"$f":"AC133*'Other input expert'!B$14*'Sales price per sales channel'!$I133*'Other input expert'!B$7","v":0},{"$f":"AD133*'Other input expert'!C$14*'Sales price per sales channel'!$I133*'Other input expert'!C$7","v":0},{"$f":"AE133*'Other input expert'!D$14*'Sales price per sales channel'!$I133*'Other input expert'!D$7","v":0},{"$f":"AF133*'Other input expert'!E$14*'Sales price per sales channel'!$I133*'Other input expert'!E$7","v":0},{"$f":"AG133*'Other input expert'!F$14*'Sales price per sales channel'!$I133*'Other input expert'!F$7","v":0},{"$f":"AH133*'Other input expert'!G$14*'Sales price per sales channel'!$I133*'Other input expert'!G$7","v":0},{"$f":"AI133*'Other input expert'!H$14*'Sales price per sales channel'!$I133*'Other input expert'!H$7","v":0},{"$f":"AJ133*'Other input expert'!I$14*'Sales price per sales channel'!$I133*'Other input expert'!I$7","v":0},{"$f":"AK133*'Other input expert'!J$14*'Sales price per sales channel'!$I133*'Other input expert'!J$7","v":0},{"$f":"AL133*'Other input expert'!K$14*'Sales price per sales channel'!$I133*'Other input expert'!K$7","v":0},{"$f":"AM133*'Other input expert'!L$14*'Sales price per sales channel'!$I133*'Other input expert'!L$7","v":0},{"$f":"AN133*'Other input expert'!M$14*'Sales price per sales channel'!$I133*'Other input expert'!M$7","v":0}]
["Prunus persica nusipersica","Nectarine ",{"$f":"Plantlist!$G134*'Production list'!D135*'Other input expert'!B$4*'Other input expert'!B$8","v":0},{"$f":"Plantlist!$G134*'Production list'!E135*'Other input expert'!C$4*'Other input expert'!C$8","v":0},{"$f":"Plantlist!$G134*'Production list'!F135*'Other input expert'!D$4*'Other input expert'!D$8","v":0},{"$f":"Plantlist!$G134*'Production list'!G135*'Other input expert'!E$4*'Other input expert'!E$8","v":0},{"$f":"Plantlist!$G134*'Production list'!H135*'Other input expert'!F$4*'Other input expert'!F$8","v":0},{"$f":"Plantlist!$G134*'Production list'!I135*'Other input expert'!G$4*'Other input expert'!G$8","v":0},{"$f":"Plantlist!$G134*'Production list'!J135*'Other input expert'!H$4*'Other input expert'!H$8","v":0},{"$f":"Plantlist!$G134*'Production list'!K135*'Other input expert'!I$4*'Other input expert'!I$8","v":0},{"$f":"Plantlist!$G134*'Production list'!L135*'Other input expert'!J$4*'Other input expert'!J$8","v":0},{"$f":"Plantlist!$G134*'Production list'!M135*'Other input expert'!K$4*'Other input expert'!K$8","v":0},{"$f":"Plantlist!$G134*'Production list'!N135*'Other input expert'!L$4*'Other input expert'!L$8","v":0},{"$f":"Plantlist!$G134*'Production list'!O135*'Other input expert'!M$4*'Other input expert'!M$8","v":0},null,{"$f":"C134*'Other input expert'!B$5","v":0},{"$f":"D134*'Other input expert'!C$5","v":0},{"$f":"E134*'Other input expert'!D$5","v":0},{"$f":"F134*'Other input expert'!E$5","v":0},{"$f":"G134*'Other input expert'!F$5","v":0},{"$f":"H134*'Other input expert'!G$5","v":0},{"$f":"I134*'Other input expert'!H$5","v":0},{"$f":"J134*'Other input expert'!I$5","v":0},{"$f":"K134*'Other input expert'!J$5","v":0},{"$f":"L134*'Other input expert'!K$5","v":0},{"$f":"M134*'Other input expert'!L$5","v":0},{"$f":"N134*'Other input expert'!M$5","v":0},null,{"$f":"C134*(100%-'Other input expert'!B$5)","v":0},{"$f":"D134*(100%-'Other input expert'!C$5)","v":0},{"$f":"E134*(100%-'Other input expert'!D$5)","v":0},{"$f":"F134*(100%-'Other input expert'!E$5)","v":0},{"$f":"G134*(100%-'Other input expert'!F$5)","v":0},{"$f":"H134*(100%-'Other input expert'!G$5)","v":0},{"$f":"I134*(100%-'Other input expert'!H$5)","v":0},{"$f":"J134*(100%-'Other input expert'!I$5)","v":0},{"$f":"K134*(100%-'Other input expert'!J$5)","v":0},{"$f":"L134*(100%-'Other input expert'!K$5)","v":0},{"$f":"M134*(100%-'Other input expert'!L$5)","v":0},{"$f":"N134*(100%-'Other input expert'!M$5)","v":0},null,{"$f":"P134*'Other input expert'!B$12*'Sales price per sales channel'!$G134*'Other input expert'!B$6","v":0},{"$f":"Q134*'Other input expert'!C$12*'Sales price per sales channel'!$G134*'Other input expert'!C$6","v":0},{"$f":"R134*'Other input expert'!D$12*'Sales price per sales channel'!$G134*'Other input expert'!D$6","v":0},{"$f":"S134*'Other input expert'!E$12*'Sales price per sales channel'!$G134*'Other input expert'!E$6","v":0},{"$f":"T134*'Other input expert'!F$12*'Sales price per sales channel'!$G134*'Other input expert'!F$6","v":0},{"$f":"U134*'Other input expert'!G$12*'Sales price per sales channel'!$G134*'Other input expert'!G$6","v":0},{"$f":"V134*'Other input expert'!H$12*'Sales price per sales channel'!$G134*'Other input expert'!H$6","v":0},{"$f":"W134*'Other input expert'!I$12*'Sales price per sales channel'!$G134*'Other input expert'!I$6","v":0},{"$f":"X134*'Other input expert'!J$12*'Sales price per sales channel'!$G134*'Other input expert'!J$6","v":0},{"$f":"Y134*'Other input expert'!K$12*'Sales price per sales channel'!$G134*'Other input expert'!K$6","v":0},{"$f":"Z134*'Other input expert'!L$12*'Sales price per sales channel'!$G134*'Other input expert'!L$6","v":0},{"$f":"AA134*'Other input expert'!M$12*'Sales price per sales channel'!$G134*'Other input expert'!M$6","v":0},null,{"$f":"P134*'Other input expert'!B$13*'Sales price per sales channel'!$H134*'Other input expert'!B$6","v":0},{"$f":"Q134*'Other input expert'!C$13*'Sales price per sales channel'!$H134*'Other input expert'!C$6","v":0},{"$f":"R134*'Other input expert'!D$13*'Sales price per sales channel'!$H134*'Other input expert'!D$6","v":0},{"$f":"S134*'Other input expert'!E$13*'Sales price per sales channel'!$H134*'Other input expert'!E$6","v":0},{"$f":"T134*'Other input expert'!F$13*'Sales price per sales channel'!$H134*'Other input expert'!F$6","v":0},{"$f":"U134*'Other input expert'!G$13*'Sales price per sales channel'!$H134*'Other input expert'!G$6","v":0},{"$f":"V134*'Other input expert'!H$13*'Sales price per sales channel'!$H134*'Other input expert'!H$6","v":0},{"$f":"W134*'Other input expert'!I$13*'Sales price per sales channel'!$H134*'Other input expert'!I$6","v":0},{"$f":"X134*'Other input expert'!J$13*'Sales price per sales channel'!$H134*'Other input expert'!J$6","v":0},{"$f":"Y134*'Other input expert'!K$13*'Sales price per sales channel'!$H134*'Other input expert'!K$6","v":0},{"$f":"Z134*'Other input expert'!L$13*'Sales price per sales channel'!$H134*'Other input expert'!L$6","v":0},{"$f":"AA134*'Other input expert'!M$13*'Sales price per sales channel'!$H134*'Other input expert'!M$6","v":0},null,{"$f":"P134*'Other input expert'!B$14*'Sales price per sales channel'!$I134*'Other input expert'!B$6","v":0},{"$f":"Q134*'Other input expert'!C$14*'Sales price per sales channel'!$I134*'Other input expert'!C$6","v":0},{"$f":"R134*'Other input expert'!D$14*'Sales price per sales channel'!$I134*'Other input expert'!D$6","v":0},{"$f":"S134*'Other input expert'!E$14*'Sales price per sales channel'!$I134*'Other input expert'!E$6","v":0},{"$f":"T134*'Other input expert'!F$14*'Sales price per sales channel'!$I134*'Other input expert'!F$6","v":0},{"$f":"U134*'Other input expert'!G$14*'Sales price per sales channel'!$I134*'Other input expert'!G$6","v":0},{"$f":"V134*'Other input expert'!H$14*'Sales price per sales channel'!$I134*'Other input expert'!H$6","v":0},{"$f":"W134*'Other input expert'!I$14*'Sales price per sales channel'!$I134*'Other input expert'!I$6","v":0},{"$f":"X134*'Other input expert'!J$14*'Sales price per sales channel'!$I134*'Other input expert'!J$6","v":0},{"$f":"Y134*'Other input expert'!K$14*'Sales price per sales channel'!$I134*'Other input expert'!K$6","v":0},{"$f":"Z134*'Other input expert'!L$14*'Sales price per sales channel'!$I134*'Other input expert'!L$6","v":0},{"$f":"AA134*'Other input expert'!M$14*'Sales price per sales channel'!$I134*'Other input expert'!M$6","v":0},null,{"$f":"AC134*'Other input expert'!B$12*'Sales price per sales channel'!$G134*'Other input expert'!B$7","v":0},{"$f":"AD134*'Other input expert'!C$12*'Sales price per sales channel'!$G134*'Other input expert'!C$7","v":0},{"$f":"AE134*'Other input expert'!D$12*'Sales price per sales channel'!$G134*'Other input expert'!D$7","v":0},{"$f":"AF134*'Other input expert'!E$12*'Sales price per sales channel'!$G134*'Other input expert'!E$7","v":0},{"$f":"AG134*'Other input expert'!F$12*'Sales price per sales channel'!$G134*'Other input expert'!F$7","v":0},{"$f":"AH134*'Other input expert'!G$12*'Sales price per sales channel'!$G134*'Other input expert'!G$7","v":0},{"$f":"AI134*'Other input expert'!H$12*'Sales price per sales channel'!$G134*'Other input expert'!H$7","v":0},{"$f":"AJ134*'Other input expert'!I$12*'Sales price per sales channel'!$G134*'Other input expert'!I$7","v":0},{"$f":"AK134*'Other input expert'!J$12*'Sales price per sales channel'!$G134*'Other input expert'!J$7","v":0},{"$f":"AL134*'Other input expert'!K$12*'Sales price per sales channel'!$G134*'Other input expert'!K$7","v":0},{"$f":"AM134*'Other input expert'!L$12*'Sales price per sales channel'!$G134*'Other input expert'!L$7","v":0},{"$f":"AN134*'Other input expert'!M$12*'Sales price per sales channel'!$G134*'Other input expert'!M$7","v":0},null,{"$f":"AC134*'Other input expert'!B$13*'Sales price per sales channel'!$H134*'Other input expert'!B$7","v":0},{"$f":"AD134*'Other input expert'!C$13*'Sales price per sales channel'!$H134*'Other input expert'!C$7","v":0},{"$f":"AE134*'Other input expert'!D$13*'Sales price per sales channel'!$H134*'Other input expert'!D$7","v":0},{"$f":"AF134*'Other input expert'!E$13*'Sales price per sales channel'!$H134*'Other input expert'!E$7","v":0},{"$f":"AG134*'Other input expert'!F$13*'Sales price per sales channel'!$H134*'Other input expert'!F$7","v":0},{"$f":"AH134*'Other input expert'!G$13*'Sales price per sales channel'!$H134*'Other input expert'!G$7","v":0},{"$f":"AI134*'Other input expert'!H$13*'Sales price per sales channel'!$H134*'Other input expert'!H$7","v":0},{"$f":"AJ134*'Other input expert'!I$13*'Sales price per sales channel'!$H134*'Other input expert'!I$7","v":0},{"$f":"AK134*'Other input expert'!J$13*'Sales price per sales channel'!$H134*'Other input expert'!J$7","v":0},{"$f":"AL134*'Other input expert'!K$13*'Sales price per sales channel'!$H134*'Other input expert'!K$7","v":0},{"$f":"AM134*'Other input expert'!L$13*'Sales price per sales channel'!$H134*'Other input expert'!L$7","v":0},{"$f":"AN134*'Other input expert'!M$13*'Sales price per sales channel'!$H134*'Other input expert'!M$7","v":0},null,{"$f":"AC134*'Other input expert'!B$14*'Sales price per sales channel'!$I134*'Other input expert'!B$7","v":0},{"$f":"AD134*'Other input expert'!C$14*'Sales price per sales channel'!$I134*'Other input expert'!C$7","v":0},{"$f":"AE134*'Other input expert'!D$14*'Sales price per sales channel'!$I134*'Other input expert'!D$7","v":0},{"$f":"AF134*'Other input expert'!E$14*'Sales price per sales channel'!$I134*'Other input expert'!E$7","v":0},{"$f":"AG134*'Other input expert'!F$14*'Sales price per sales channel'!$I134*'Other input expert'!F$7","v":0},{"$f":"AH134*'Other input expert'!G$14*'Sales price per sales channel'!$I134*'Other input expert'!G$7","v":0},{"$f":"AI134*'Other input expert'!H$14*'Sales price per sales channel'!$I134*'Other input expert'!H$7","v":0},{"$f":"AJ134*'Other input expert'!I$14*'Sales price per sales channel'!$I134*'Other input expert'!I$7","v":0},{"$f":"AK134*'Other input expert'!J$14*'Sales price per sales channel'!$I134*'Other input expert'!J$7","v":0},{"$f":"AL134*'Other input expert'!K$14*'Sales price per sales channel'!$I134*'Other input expert'!K$7","v":0},{"$f":"AM134*'Other input expert'!L$14*'Sales price per sales channel'!$I134*'Other input expert'!L$7","v":0},{"$f":"AN134*'Other input expert'!M$14*'Sales price per sales channel'!$I134*'Other input expert'!M$7","v":0}]
["Prunus salicina","Japanese plum",{"$f":"Plantlist!$G135*'Production list'!D136*'Other input expert'!B$4*'Other input expert'!B$8","v":0},{"$f":"Plantlist!$G135*'Production list'!E136*'Other input expert'!C$4*'Other input expert'!C$8","v":0},{"$f":"Plantlist!$G135*'Production list'!F136*'Other input expert'!D$4*'Other input expert'!D$8","v":0},{"$f":"Plantlist!$G135*'Production list'!G136*'Other input expert'!E$4*'Other input expert'!E$8","v":0},{"$f":"Plantlist!$G135*'Production list'!H136*'Other input expert'!F$4*'Other input expert'!F$8","v":0},{"$f":"Plantlist!$G135*'Production list'!I136*'Other input expert'!G$4*'Other input expert'!G$8","v":0},{"$f":"Plantlist!$G135*'Production list'!J136*'Other input expert'!H$4*'Other input expert'!H$8","v":0},{"$f":"Plantlist!$G135*'Production list'!K136*'Other input expert'!I$4*'Other input expert'!I$8","v":0},{"$f":"Plantlist!$G135*'Production list'!L136*'Other input expert'!J$4*'Other input expert'!J$8","v":0},{"$f":"Plantlist!$G135*'Production list'!M136*'Other input expert'!K$4*'Other input expert'!K$8","v":0},{"$f":"Plantlist!$G135*'Production list'!N136*'Other input expert'!L$4*'Other input expert'!L$8","v":0},{"$f":"Plantlist!$G135*'Production list'!O136*'Other input expert'!M$4*'Other input expert'!M$8","v":0},null,{"$f":"C135*'Other input expert'!B$5","v":0},{"$f":"D135*'Other input expert'!C$5","v":0},{"$f":"E135*'Other input expert'!D$5","v":0},{"$f":"F135*'Other input expert'!E$5","v":0},{"$f":"G135*'Other input expert'!F$5","v":0},{"$f":"H135*'Other input expert'!G$5","v":0},{"$f":"I135*'Other input expert'!H$5","v":0},{"$f":"J135*'Other input expert'!I$5","v":0},{"$f":"K135*'Other input expert'!J$5","v":0},{"$f":"L135*'Other input expert'!K$5","v":0},{"$f":"M135*'Other input expert'!L$5","v":0},{"$f":"N135*'Other input expert'!M$5","v":0},null,{"$f":"C135*(100%-'Other input expert'!B$5)","v":0},{"$f":"D135*(100%-'Other input expert'!C$5)","v":0},{"$f":"E135*(100%-'Other input expert'!D$5)","v":0},{"$f":"F135*(100%-'Other input expert'!E$5)","v":0},{"$f":"G135*(100%-'Other input expert'!F$5)","v":0},{"$f":"H135*(100%-'Other input expert'!G$5)","v":0},{"$f":"I135*(100%-'Other input expert'!H$5)","v":0},{"$f":"J135*(100%-'Other input expert'!I$5)","v":0},{"$f":"K135*(100%-'Other input expert'!J$5)","v":0},{"$f":"L135*(100%-'Other input expert'!K$5)","v":0},{"$f":"M135*(100%-'Other input expert'!L$5)","v":0},{"$f":"N135*(100%-'Other input expert'!M$5)","v":0},null,{"$f":"P135*'Other input expert'!B$12*'Sales price per sales channel'!$G135*'Other input expert'!B$6","v":0},{"$f":"Q135*'Other input expert'!C$12*'Sales price per sales channel'!$G135*'Other input expert'!C$6","v":0},{"$f":"R135*'Other input expert'!D$12*'Sales price per sales channel'!$G135*'Other input expert'!D$6","v":0},{"$f":"S135*'Other input expert'!E$12*'Sales price per sales channel'!$G135*'Other input expert'!E$6","v":0},{"$f":"T135*'Other input expert'!F$12*'Sales price per sales channel'!$G135*'Other input expert'!F$6","v":0},{"$f":"U135*'Other input expert'!G$12*'Sales price per sales channel'!$G135*'Other input expert'!G$6","v":0},{"$f":"V135*'Other input expert'!H$12*'Sales price per sales channel'!$G135*'Other input expert'!H$6","v":0},{"$f":"W135*'Other input expert'!I$12*'Sales price per sales channel'!$G135*'Other input expert'!I$6","v":0},{"$f":"X135*'Other input expert'!J$12*'Sales price per sales channel'!$G135*'Other input expert'!J$6","v":0},{"$f":"Y135*'Other input expert'!K$12*'Sales price per sales channel'!$G135*'Other input expert'!K$6","v":0},{"$f":"Z135*'Other input expert'!L$12*'Sales price per sales channel'!$G135*'Other input expert'!L$6","v":0},{"$f":"AA135*'Other input expert'!M$12*'Sales price per sales channel'!$G135*'Other input expert'!M$6","v":0},null,{"$f":"P135*'Other input expert'!B$13*'Sales price per sales channel'!$H135*'Other input expert'!B$6","v":0},{"$f":"Q135*'Other input expert'!C$13*'Sales price per sales channel'!$H135*'Other input expert'!C$6","v":0},{"$f":"R135*'Other input expert'!D$13*'Sales price per sales channel'!$H135*'Other input expert'!D$6","v":0},{"$f":"S135*'Other input expert'!E$13*'Sales price per sales channel'!$H135*'Other input expert'!E$6","v":0},{"$f":"T135*'Other input expert'!F$13*'Sales price per sales channel'!$H135*'Other input expert'!F$6","v":0},{"$f":"U135*'Other input expert'!G$13*'Sales price per sales channel'!$H135*'Other input expert'!G$6","v":0},{"$f":"V135*'Other input expert'!H$13*'Sales price per sales channel'!$H135*'Other input expert'!H$6","v":0},{"$f":"W135*'Other input expert'!I$13*'Sales price per sales channel'!$H135*'Other input expert'!I$6","v":0},{"$f":"X135*'Other input expert'!J$13*'Sales price per sales channel'!$H135*'Other input expert'!J$6","v":0},{"$f":"Y135*'Other input expert'!K$13*'Sales price per sales channel'!$H135*'Other input expert'!K$6","v":0},{"$f":"Z135*'Other input expert'!L$13*'Sales price per sales channel'!$H135*'Other input expert'!L$6","v":0},{"$f":"AA135*'Other input expert'!M$13*'Sales price per sales channel'!$H135*'Other input expert'!M$6","v":0},null,{"$f":"P135*'Other input expert'!B$14*'Sales price per sales channel'!$I135*'Other input expert'!B$6","v":0},{"$f":"Q135*'Other input expert'!C$14*'Sales price per sales channel'!$I135*'Other input expert'!C$6","v":0},{"$f":"R135*'Other input expert'!D$14*'Sales price per sales channel'!$I135*'Other input expert'!D$6","v":0},{"$f":"S135*'Other input expert'!E$14*'Sales price per sales channel'!$I135*'Other input expert'!E$6","v":0},{"$f":"T135*'Other input expert'!F$14*'Sales price per sales channel'!$I135*'Other input expert'!F$6","v":0},{"$f":"U135*'Other input expert'!G$14*'Sales price per sales channel'!$I135*'Other input expert'!G$6","v":0},{"$f":"V135*'Other input expert'!H$14*'Sales price per sales channel'!$I135*'Other input expert'!H$6","v":0},{"$f":"W135*'Other input expert'!I$14*'Sales price per sales channel'!$I135*'Other input expert'!I$6","v":0},{"$f":"X135*'Other input expert'!J$14*'Sales price per sales channel'!$I135*'Other input expert'!J$6","v":0},{"$f":"Y135*'Other input expert'!K$14*'Sales price per sales channel'!$I135*'Other input expert'!K$6","v":0},{"$f":"Z135*'Other input expert'!L$14*'Sales price per sales channel'!$I135*'Other input expert'!L$6","v":0},{"$f":"AA135*'Other input expert'!M$14*'Sales price per sales channel'!$I135*'Other input expert'!M$6","v":0},null,{"$f":"AC135*'Other input expert'!B$12*'Sales price per sales channel'!$G135*'Other input expert'!B$7","v":0},{"$f":"AD135*'Other input expert'!C$12*'Sales price per sales channel'!$G135*'Other input expert'!C$7","v":0},{"$f":"AE135*'Other input expert'!D$12*'Sales price per sales channel'!$G135*'Other input expert'!D$7","v":0},{"$f":"AF135*'Other input expert'!E$12*'Sales price per sales channel'!$G135*'Other input expert'!E$7","v":0},{"$f":"AG135*'Other input expert'!F$12*'Sales price per sales channel'!$G135*'Other input expert'!F$7","v":0},{"$f":"AH135*'Other input expert'!G$12*'Sales price per sales channel'!$G135*'Other input expert'!G$7","v":0},{"$f":"AI135*'Other input expert'!H$12*'Sales price per sales channel'!$G135*'Other input expert'!H$7","v":0},{"$f":"AJ135*'Other input expert'!I$12*'Sales price per sales channel'!$G135*'Other input expert'!I$7","v":0},{"$f":"AK135*'Other input expert'!J$12*'Sales price per sales channel'!$G135*'Other input expert'!J$7","v":0},{"$f":"AL135*'Other input expert'!K$12*'Sales price per sales channel'!$G135*'Other input expert'!K$7","v":0},{"$f":"AM135*'Other input expert'!L$12*'Sales price per sales channel'!$G135*'Other input expert'!L$7","v":0},{"$f":"AN135*'Other input expert'!M$12*'Sales price per sales channel'!$G135*'Other input expert'!M$7","v":0},null,{"$f":"AC135*'Other input expert'!B$13*'Sales price per sales channel'!$H135*'Other input expert'!B$7","v":0},{"$f":"AD135*'Other input expert'!C$13*'Sales price per sales channel'!$H135*'Other input expert'!C$7","v":0},{"$f":"AE135*'Other input expert'!D$13*'Sales price per sales channel'!$H135*'Other input expert'!D$7","v":0},{"$f":"AF135*'Other input expert'!E$13*'Sales price per sales channel'!$H135*'Other input expert'!E$7","v":0},{"$f":"AG135*'Other input expert'!F$13*'Sales price per sales channel'!$H135*'Other input expert'!F$7","v":0},{"$f":"AH135*'Other input expert'!G$13*'Sales price per sales channel'!$H135*'Other input expert'!G$7","v":0},{"$f":"AI135*'Other input expert'!H$13*'Sales price per sales channel'!$H135*'Other input expert'!H$7","v":0},{"$f":"AJ135*'Other input expert'!I$13*'Sales price per sales channel'!$H135*'Other input expert'!I$7","v":0},{"$f":"AK135*'Other input expert'!J$13*'Sales price per sales channel'!$H135*'Other input expert'!J$7","v":0},{"$f":"AL135*'Other input expert'!K$13*'Sales price per sales channel'!$H135*'Other input expert'!K$7","v":0},{"$f":"AM135*'Other input expert'!L$13*'Sales price per sales channel'!$H135*'Other input expert'!L$7","v":0},{"$f":"AN135*'Other input expert'!M$13*'Sales price per sales channel'!$H135*'Other input expert'!M$7","v":0},null,{"$f":"AC135*'Other input expert'!B$14*'Sales price per sales channel'!$I135*'Other input expert'!B$7","v":0},{"$f":"AD135*'Other input expert'!C$14*'Sales price per sales channel'!$I135*'Other input expert'!C$7","v":0},{"$f":"AE135*'Other input expert'!D$14*'Sales price per sales channel'!$I135*'Other input expert'!D$7","v":0},{"$f":"AF135*'Other input expert'!E$14*'Sales price per sales channel'!$I135*'Other input expert'!E$7","v":0},{"$f":"AG135*'Other input expert'!F$14*'Sales price per sales channel'!$I135*'Other input expert'!F$7","v":0},{"$f":"AH135*'Other input expert'!G$14*'Sales price per sales channel'!$I135*'Other input expert'!G$7","v":0},{"$f":"AI135*'Other input expert'!H$14*'Sales price per sales channel'!$I135*'Other input expert'!H$7","v":0},{"$f":"AJ135*'Other input expert'!I$14*'Sales price per sales channel'!$I135*'Other input expert'!I$7","v":0},{"$f":"AK135*'Other input expert'!J$14*'Sales price per sales channel'!$I135*'Other input expert'!J$7","v":0},{"$f":"AL135*'Other input expert'!K$14*'Sales price per sales channel'!$I135*'Other input expert'!K$7","v":0},{"$f":"AM135*'Other input expert'!L$14*'Sales price per sales channel'!$I135*'Other input expert'!L$7","v":0},{"$f":"AN135*'Other input expert'!M$14*'Sales price per sales channel'!$I135*'Other input expert'!M$7","v":0}]
["Prunus salicina x Prunus armeniaca","Pluot",{"$f":"Plantlist!$G136*'Production list'!D137*'Other input expert'!B$4*'Other input expert'!B$8","v":0},{"$f":"Plantlist!$G136*'Production list'!E137*'Other input expert'!C$4*'Other input expert'!C$8","v":0},{"$f":"Plantlist!$G136*'Production list'!F137*'Other input expert'!D$4*'Other input expert'!D$8","v":0},{"$f":"Plantlist!$G136*'Production list'!G137*'Other input expert'!E$4*'Other input expert'!E$8","v":0},{"$f":"Plantlist!$G136*'Production list'!H137*'Other input expert'!F$4*'Other input expert'!F$8","v":0},{"$f":"Plantlist!$G136*'Production list'!I137*'Other input expert'!G$4*'Other input expert'!G$8","v":0},{"$f":"Plantlist!$G136*'Production list'!J137*'Other input expert'!H$4*'Other input expert'!H$8","v":0},{"$f":"Plantlist!$G136*'Production list'!K137*'Other input expert'!I$4*'Other input expert'!I$8","v":0},{"$f":"Plantlist!$G136*'Production list'!L137*'Other input expert'!J$4*'Other input expert'!J$8","v":0},{"$f":"Plantlist!$G136*'Production list'!M137*'Other input expert'!K$4*'Other input expert'!K$8","v":0},{"$f":"Plantlist!$G136*'Production list'!N137*'Other input expert'!L$4*'Other input expert'!L$8","v":0},{"$f":"Plantlist!$G136*'Production list'!O137*'Other input expert'!M$4*'Other input expert'!M$8","v":0},null,{"$f":"C136*'Other input expert'!B$5","v":0},{"$f":"D136*'Other input expert'!C$5","v":0},{"$f":"E136*'Other input expert'!D$5","v":0},{"$f":"F136*'Other input expert'!E$5","v":0},{"$f":"G136*'Other input expert'!F$5","v":0},{"$f":"H136*'Other input expert'!G$5","v":0},{"$f":"I136*'Other input expert'!H$5","v":0},{"$f":"J136*'Other input expert'!I$5","v":0},{"$f":"K136*'Other input expert'!J$5","v":0},{"$f":"L136*'Other input expert'!K$5","v":0},{"$f":"M136*'Other input expert'!L$5","v":0},{"$f":"N136*'Other input expert'!M$5","v":0},null,{"$f":"C136*(100%-'Other input expert'!B$5)","v":0},{"$f":"D136*(100%-'Other input expert'!C$5)","v":0},{"$f":"E136*(100%-'Other input expert'!D$5)","v":0},{"$f":"F136*(100%-'Other input expert'!E$5)","v":0},{"$f":"G136*(100%-'Other input expert'!F$5)","v":0},{"$f":"H136*(100%-'Other input expert'!G$5)","v":0},{"$f":"I136*(100%-'Other input expert'!H$5)","v":0},{"$f":"J136*(100%-'Other input expert'!I$5)","v":0},{"$f":"K136*(100%-'Other input expert'!J$5)","v":0},{"$f":"L136*(100%-'Other input expert'!K$5)","v":0},{"$f":"M136*(100%-'Other input expert'!L$5)","v":0},{"$f":"N136*(100%-'Other input expert'!M$5)","v":0},null,{"$f":"P136*'Other input expert'!B$12*'Sales price per sales channel'!$G136*'Other input expert'!B$6","v":0},{"$f":"Q136*'Other input expert'!C$12*'Sales price per sales channel'!$G136*'Other input expert'!C$6","v":0},{"$f":"R136*'Other input expert'!D$12*'Sales price per sales channel'!$G136*'Other input expert'!D$6","v":0},{"$f":"S136*'Other input expert'!E$12*'Sales price per sales channel'!$G136*'Other input expert'!E$6","v":0},{"$f":"T136*'Other input expert'!F$12*'Sales price per sales channel'!$G136*'Other input expert'!F$6","v":0},{"$f":"U136*'Other input expert'!G$12*'Sales price per sales channel'!$G136*'Other input expert'!G$6","v":0},{"$f":"V136*'Other input expert'!H$12*'Sales price per sales channel'!$G136*'Other input expert'!H$6","v":0},{"$f":"W136*'Other input expert'!I$12*'Sales price per sales channel'!$G136*'Other input expert'!I$6","v":0},{"$f":"X136*'Other input expert'!J$12*'Sales price per sales channel'!$G136*'Other input expert'!J$6","v":0},{"$f":"Y136*'Other input expert'!K$12*'Sales price per sales channel'!$G136*'Other input expert'!K$6","v":0},{"$f":"Z136*'Other input expert'!L$12*'Sales price per sales channel'!$G136*'Other input expert'!L$6","v":0},{"$f":"AA136*'Other input expert'!M$12*'Sales price per sales channel'!$G136*'Other input expert'!M$6","v":0},null,{"$f":"P136*'Other input expert'!B$13*'Sales price per sales channel'!$H136*'Other input expert'!B$6","v":0},{"$f":"Q136*'Other input expert'!C$13*'Sales price per sales channel'!$H136*'Other input expert'!C$6","v":0},{"$f":"R136*'Other input expert'!D$13*'Sales price per sales channel'!$H136*'Other input expert'!D$6","v":0},{"$f":"S136*'Other input expert'!E$13*'Sales price per sales channel'!$H136*'Other input expert'!E$6","v":0},{"$f":"T136*'Other input expert'!F$13*'Sales price per sales channel'!$H136*'Other input expert'!F$6","v":0},{"$f":"U136*'Other input expert'!G$13*'Sales price per sales channel'!$H136*'Other input expert'!G$6","v":0},{"$f":"V136*'Other input expert'!H$13*'Sales price per sales channel'!$H136*'Other input expert'!H$6","v":0},{"$f":"W136*'Other input expert'!I$13*'Sales price per sales channel'!$H136*'Other input expert'!I$6","v":0},{"$f":"X136*'Other input expert'!J$13*'Sales price per sales channel'!$H136*'Other input expert'!J$6","v":0},{"$f":"Y136*'Other input expert'!K$13*'Sales price per sales channel'!$H136*'Other input expert'!K$6","v":0},{"$f":"Z136*'Other input expert'!L$13*'Sales price per sales channel'!$H136*'Other input expert'!L$6","v":0},{"$f":"AA136*'Other input expert'!M$13*'Sales price per sales channel'!$H136*'Other input expert'!M$6","v":0},null,{"$f":"P136*'Other input expert'!B$14*'Sales price per sales channel'!$I136*'Other input expert'!B$6","v":0},{"$f":"Q136*'Other input expert'!C$14*'Sales price per sales channel'!$I136*'Other input expert'!C$6","v":0},{"$f":"R136*'Other input expert'!D$14*'Sales price per sales channel'!$I136*'Other input expert'!D$6","v":0},{"$f":"S136*'Other input expert'!E$14*'Sales price per sales channel'!$I136*'Other input expert'!E$6","v":0},{"$f":"T136*'Other input expert'!F$14*'Sales price per sales channel'!$I136*'Other input expert'!F$6","v":0},{"$f":"U136*'Other input expert'!G$14*'Sales price per sales channel'!$I136*'Other input expert'!G$6","v":0},{"$f":"V136*'Other input expert'!H$14*'Sales price per sales channel'!$I136*'Other input expert'!H$6","v":0},{"$f":"W136*'Other input expert'!I$14*'Sales price per sales channel'!$I136*'Other input expert'!I$6","v":0},{"$f":"X136*'Other input expert'!J$14*'Sales price per sales channel'!$I136*'Other input expert'!J$6","v":0},{"$f":"Y136*'Other input expert'!K$14*'Sales price per sales channel'!$I136*'Other input expert'!K$6","v":0},{"$f":"Z136*'Other input expert'!L$14*'Sales price per sales channel'!$I136*'Other input expert'!L$6","v":0},{"$f":"AA136*'Other input expert'!M$14*'Sales price per sales channel'!$I136*'Other input expert'!M$6","v":0},null,{"$f":"AC136*'Other input expert'!B$12*'Sales price per sales channel'!$G136*'Other input expert'!B$7","v":0},{"$f":"AD136*'Other input expert'!C$12*'Sales price per sales channel'!$G136*'Other input expert'!C$7","v":0},{"$f":"AE136*'Other input expert'!D$12*'Sales price per sales channel'!$G136*'Other input expert'!D$7","v":0},{"$f":"AF136*'Other input expert'!E$12*'Sales price per sales channel'!$G136*'Other input expert'!E$7","v":0},{"$f":"AG136*'Other input expert'!F$12*'Sales price per sales channel'!$G136*'Other input expert'!F$7","v":0},{"$f":"AH136*'Other input expert'!G$12*'Sales price per sales channel'!$G136*'Other input expert'!G$7","v":0},{"$f":"AI136*'Other input expert'!H$12*'Sales price per sales channel'!$G136*'Other input expert'!H$7","v":0},{"$f":"AJ136*'Other input expert'!I$12*'Sales price per sales channel'!$G136*'Other input expert'!I$7","v":0},{"$f":"AK136*'Other input expert'!J$12*'Sales price per sales channel'!$G136*'Other input expert'!J$7","v":0},{"$f":"AL136*'Other input expert'!K$12*'Sales price per sales channel'!$G136*'Other input expert'!K$7","v":0},{"$f":"AM136*'Other input expert'!L$12*'Sales price per sales channel'!$G136*'Other input expert'!L$7","v":0},{"$f":"AN136*'Other input expert'!M$12*'Sales price per sales channel'!$G136*'Other input expert'!M$7","v":0},null,{"$f":"AC136*'Other input expert'!B$13*'Sales price per sales channel'!$H136*'Other input expert'!B$7","v":0},{"$f":"AD136*'Other input expert'!C$13*'Sales price per sales channel'!$H136*'Other input expert'!C$7","v":0},{"$f":"AE136*'Other input expert'!D$13*'Sales price per sales channel'!$H136*'Other input expert'!D$7","v":0},{"$f":"AF136*'Other input expert'!E$13*'Sales price per sales channel'!$H136*'Other input expert'!E$7","v":0},{"$f":"AG136*'Other input expert'!F$13*'Sales price per sales channel'!$H136*'Other input expert'!F$7","v":0},{"$f":"AH136*'Other input expert'!G$13*'Sales price per sales channel'!$H136*'Other input expert'!G$7","v":0},{"$f":"AI136*'Other input expert'!H$13*'Sales price per sales channel'!$H136*'Other input expert'!H$7","v":0},{"$f":"AJ136*'Other input expert'!I$13*'Sales price per sales channel'!$H136*'Other input expert'!I$7","v":0},{"$f":"AK136*'Other input expert'!J$13*'Sales price per sales channel'!$H136*'Other input expert'!J$7","v":0},{"$f":"AL136*'Other input expert'!K$13*'Sales price per sales channel'!$H136*'Other input expert'!K$7","v":0},{"$f":"AM136*'Other input expert'!L$13*'Sales price per sales channel'!$H136*'Other input expert'!L$7","v":0},{"$f":"AN136*'Other input expert'!M$13*'Sales price per sales channel'!$H136*'Other input expert'!M$7","v":0},null,{"$f":"AC136*'Other input expert'!B$14*'Sales price per sales channel'!$I136*'Other input expert'!B$7","v":0},{"$f":"AD136*'Other input expert'!C$14*'Sales price per sales channel'!$I136*'Other input expert'!C$7","v":0},{"$f":"AE136*'Other input expert'!D$14*'Sales price per sales channel'!$I136*'Other input expert'!D$7","v":0},{"$f":"AF136*'Other input expert'!E$14*'Sales price per sales channel'!$I136*'Other input expert'!E$7","v":0},{"$f":"AG136*'Other input expert'!F$14*'Sales price per sales channel'!$I136*'Other input expert'!F$7","v":0},{"$f":"AH136*'Other input expert'!G$14*'Sales price per sales channel'!$I136*'Other input expert'!G$7","v":0},{"$f":"AI136*'Other input expert'!H$14*'Sales price per sales channel'!$I136*'Other input expert'!H$7","v":0},{"$f":"AJ136*'Other input expert'!I$14*'Sales price per sales channel'!$I136*'Other input expert'!I$7","v":0},{"$f":"AK136*'Other input expert'!J$14*'Sales price per sales channel'!$I136*'Other input expert'!J$7","v":0},{"$f":"AL136*'Other input expert'!K$14*'Sales price per sales channel'!$I136*'Other input expert'!K$7","v":0},{"$f":"AM136*'Other input expert'!L$14*'Sales price per sales channel'!$I136*'Other input expert'!L$7","v":0},{"$f":"AN136*'Other input expert'!M$14*'Sales price per sales channel'!$I136*'Other input expert'!M$7","v":0}]
["Prunus tomentosa","Nanking cherry",{"$f":"Plantlist!$G137*'Production list'!D138*'Other input expert'!B$4*'Other input expert'!B$8","v":0},{"$f":"Plantlist!$G137*'Production list'!E138*'Other input expert'!C$4*'Other input expert'!C$8","v":0},{"$f":"Plantlist!$G137*'Production list'!F138*'Other input expert'!D$4*'Other input expert'!D$8","v":0},{"$f":"Plantlist!$G137*'Production list'!G138*'Other input expert'!E$4*'Other input expert'!E$8","v":0},{"$f":"Plantlist!$G137*'Production list'!H138*'Other input expert'!F$4*'Other input expert'!F$8","v":0},{"$f":"Plantlist!$G137*'Production list'!I138*'Other input expert'!G$4*'Other input expert'!G$8","v":0},{"$f":"Plantlist!$G137*'Production list'!J138*'Other input expert'!H$4*'Other input expert'!H$8","v":0},{"$f":"Plantlist!$G137*'Production list'!K138*'Other input expert'!I$4*'Other input expert'!I$8","v":0},{"$f":"Plantlist!$G137*'Production list'!L138*'Other input expert'!J$4*'Other input expert'!J$8","v":0},{"$f":"Plantlist!$G137*'Production list'!M138*'Other input expert'!K$4*'Other input expert'!K$8","v":0},{"$f":"Plantlist!$G137*'Production list'!N138*'Other input expert'!L$4*'Other input expert'!L$8","v":0},{"$f":"Plantlist!$G137*'Production list'!O138*'Other input expert'!M$4*'Other input expert'!M$8","v":0},null,{"$f":"C137*'Other input expert'!B$5","v":0},{"$f":"D137*'Other input expert'!C$5","v":0},{"$f":"E137*'Other input expert'!D$5","v":0},{"$f":"F137*'Other input expert'!E$5","v":0},{"$f":"G137*'Other input expert'!F$5","v":0},{"$f":"H137*'Other input expert'!G$5","v":0},{"$f":"I137*'Other input expert'!H$5","v":0},{"$f":"J137*'Other input expert'!I$5","v":0},{"$f":"K137*'Other input expert'!J$5","v":0},{"$f":"L137*'Other input expert'!K$5","v":0},{"$f":"M137*'Other input expert'!L$5","v":0},{"$f":"N137*'Other input expert'!M$5","v":0},null,{"$f":"C137*(100%-'Other input expert'!B$5)","v":0},{"$f":"D137*(100%-'Other input expert'!C$5)","v":0},{"$f":"E137*(100%-'Other input expert'!D$5)","v":0},{"$f":"F137*(100%-'Other input expert'!E$5)","v":0},{"$f":"G137*(100%-'Other input expert'!F$5)","v":0},{"$f":"H137*(100%-'Other input expert'!G$5)","v":0},{"$f":"I137*(100%-'Other input expert'!H$5)","v":0},{"$f":"J137*(100%-'Other input expert'!I$5)","v":0},{"$f":"K137*(100%-'Other input expert'!J$5)","v":0},{"$f":"L137*(100%-'Other input expert'!K$5)","v":0},{"$f":"M137*(100%-'Other input expert'!L$5)","v":0},{"$f":"N137*(100%-'Other input expert'!M$5)","v":0},null,{"$f":"P137*'Other input expert'!B$12*'Sales price per sales channel'!$G137*'Other input expert'!B$6","v":0},{"$f":"Q137*'Other input expert'!C$12*'Sales price per sales channel'!$G137*'Other input expert'!C$6","v":0},{"$f":"R137*'Other input expert'!D$12*'Sales price per sales channel'!$G137*'Other input expert'!D$6","v":0},{"$f":"S137*'Other input expert'!E$12*'Sales price per sales channel'!$G137*'Other input expert'!E$6","v":0},{"$f":"T137*'Other input expert'!F$12*'Sales price per sales channel'!$G137*'Other input expert'!F$6","v":0},{"$f":"U137*'Other input expert'!G$12*'Sales price per sales channel'!$G137*'Other input expert'!G$6","v":0},{"$f":"V137*'Other input expert'!H$12*'Sales price per sales channel'!$G137*'Other input expert'!H$6","v":0},{"$f":"W137*'Other input expert'!I$12*'Sales price per sales channel'!$G137*'Other input expert'!I$6","v":0},{"$f":"X137*'Other input expert'!J$12*'Sales price per sales channel'!$G137*'Other input expert'!J$6","v":0},{"$f":"Y137*'Other input expert'!K$12*'Sales price per sales channel'!$G137*'Other input expert'!K$6","v":0},{"$f":"Z137*'Other input expert'!L$12*'Sales price per sales channel'!$G137*'Other input expert'!L$6","v":0},{"$f":"AA137*'Other input expert'!M$12*'Sales price per sales channel'!$G137*'Other input expert'!M$6","v":0},null,{"$f":"P137*'Other input expert'!B$13*'Sales price per sales channel'!$H137*'Other input expert'!B$6","v":0},{"$f":"Q137*'Other input expert'!C$13*'Sales price per sales channel'!$H137*'Other input expert'!C$6","v":0},{"$f":"R137*'Other input expert'!D$13*'Sales price per sales channel'!$H137*'Other input expert'!D$6","v":0},{"$f":"S137*'Other input expert'!E$13*'Sales price per sales channel'!$H137*'Other input expert'!E$6","v":0},{"$f":"T137*'Other input expert'!F$13*'Sales price per sales channel'!$H137*'Other input expert'!F$6","v":0},{"$f":"U137*'Other input expert'!G$13*'Sales price per sales channel'!$H137*'Other input expert'!G$6","v":0},{"$f":"V137*'Other input expert'!H$13*'Sales price per sales channel'!$H137*'Other input expert'!H$6","v":0},{"$f":"W137*'Other input expert'!I$13*'Sales price per sales channel'!$H137*'Other input expert'!I$6","v":0},{"$f":"X137*'Other input expert'!J$13*'Sales price per sales channel'!$H137*'Other input expert'!J$6","v":0},{"$f":"Y137*'Other input expert'!K$13*'Sales price per sales channel'!$H137*'Other input expert'!K$6","v":0},{"$f":"Z137*'Other input expert'!L$13*'Sales price per sales channel'!$H137*'Other input expert'!L$6","v":0},{"$f":"AA137*'Other input expert'!M$13*'Sales price per sales channel'!$H137*'Other input expert'!M$6","v":0},null,{"$f":"P137*'Other input expert'!B$14*'Sales price per sales channel'!$I137*'Other input expert'!B$6","v":0},{"$f":"Q137*'Other input expert'!C$14*'Sales price per sales channel'!$I137*'Other input expert'!C$6","v":0},{"$f":"R137*'Other input expert'!D$14*'Sales price per sales channel'!$I137*'Other input expert'!D$6","v":0},{"$f":"S137*'Other input expert'!E$14*'Sales price per sales channel'!$I137*'Other input expert'!E$6","v":0},{"$f":"T137*'Other input expert'!F$14*'Sales price per sales channel'!$I137*'Other input expert'!F$6","v":0},{"$f":"U137*'Other input expert'!G$14*'Sales price per sales channel'!$I137*'Other input expert'!G$6","v":0},{"$f":"V137*'Other input expert'!H$14*'Sales price per sales channel'!$I137*'Other input expert'!H$6","v":0},{"$f":"W137*'Other input expert'!I$14*'Sales price per sales channel'!$I137*'Other input expert'!I$6","v":0},{"$f":"X137*'Other input expert'!J$14*'Sales price per sales channel'!$I137*'Other input expert'!J$6","v":0},{"$f":"Y137*'Other input expert'!K$14*'Sales price per sales channel'!$I137*'Other input expert'!K$6","v":0},{"$f":"Z137*'Other input expert'!L$14*'Sales price per sales channel'!$I137*'Other input expert'!L$6","v":0},{"$f":"AA137*'Other input expert'!M$14*'Sales price per sales channel'!$I137*'Other input expert'!M$6","v":0},null,{"$f":"AC137*'Other input expert'!B$12*'Sales price per sales channel'!$G137*'Other input expert'!B$7","v":0},{"$f":"AD137*'Other input expert'!C$12*'Sales price per sales channel'!$G137*'Other input expert'!C$7","v":0},{"$f":"AE137*'Other input expert'!D$12*'Sales price per sales channel'!$G137*'Other input expert'!D$7","v":0},{"$f":"AF137*'Other input expert'!E$12*'Sales price per sales channel'!$G137*'Other input expert'!E$7","v":0},{"$f":"AG137*'Other input expert'!F$12*'Sales price per sales channel'!$G137*'Other input expert'!F$7","v":0},{"$f":"AH137*'Other input expert'!G$12*'Sales price per sales channel'!$G137*'Other input expert'!G$7","v":0},{"$f":"AI137*'Other input expert'!H$12*'Sales price per sales channel'!$G137*'Other input expert'!H$7","v":0},{"$f":"AJ137*'Other input expert'!I$12*'Sales price per sales channel'!$G137*'Other input expert'!I$7","v":0},{"$f":"AK137*'Other input expert'!J$12*'Sales price per sales channel'!$G137*'Other input expert'!J$7","v":0},{"$f":"AL137*'Other input expert'!K$12*'Sales price per sales channel'!$G137*'Other input expert'!K$7","v":0},{"$f":"AM137*'Other input expert'!L$12*'Sales price per sales channel'!$G137*'Other input expert'!L$7","v":0},{"$f":"AN137*'Other input expert'!M$12*'Sales price per sales channel'!$G137*'Other input expert'!M$7","v":0},null,{"$f":"AC137*'Other input expert'!B$13*'Sales price per sales channel'!$H137*'Other input expert'!B$7","v":0},{"$f":"AD137*'Other input expert'!C$13*'Sales price per sales channel'!$H137*'Other input expert'!C$7","v":0},{"$f":"AE137*'Other input expert'!D$13*'Sales price per sales channel'!$H137*'Other input expert'!D$7","v":0},{"$f":"AF137*'Other input expert'!E$13*'Sales price per sales channel'!$H137*'Other input expert'!E$7","v":0},{"$f":"AG137*'Other input expert'!F$13*'Sales price per sales channel'!$H137*'Other input expert'!F$7","v":0},{"$f":"AH137*'Other input expert'!G$13*'Sales price per sales channel'!$H137*'Other input expert'!G$7","v":0},{"$f":"AI137*'Other input expert'!H$13*'Sales price per sales channel'!$H137*'Other input expert'!H$7","v":0},{"$f":"AJ137*'Other input expert'!I$13*'Sales price per sales channel'!$H137*'Other input expert'!I$7","v":0},{"$f":"AK137*'Other input expert'!J$13*'Sales price per sales channel'!$H137*'Other input expert'!J$7","v":0},{"$f":"AL137*'Other input expert'!K$13*'Sales price per sales channel'!$H137*'Other input expert'!K$7","v":0},{"$f":"AM137*'Other input expert'!L$13*'Sales price per sales channel'!$H137*'Other input expert'!L$7","v":0},{"$f":"AN137*'Other input expert'!M$13*'Sales price per sales channel'!$H137*'Other input expert'!M$7","v":0},null,{"$f":"AC137*'Other input expert'!B$14*'Sales price per sales channel'!$I137*'Other input expert'!B$7","v":0},{"$f":"AD137*'Other input expert'!C$14*'Sales price per sales channel'!$I137*'Other input expert'!C$7","v":0},{"$f":"AE137*'Other input expert'!D$14*'Sales price per sales channel'!$I137*'Other input expert'!D$7","v":0},{"$f":"AF137*'Other input expert'!E$14*'Sales price per sales channel'!$I137*'Other input expert'!E$7","v":0},{"$f":"AG137*'Other input expert'!F$14*'Sales price per sales channel'!$I137*'Other input expert'!F$7","v":0},{"$f":"AH137*'Other input expert'!G$14*'Sales price per sales channel'!$I137*'Other input expert'!G$7","v":0},{"$f":"AI137*'Other input expert'!H$14*'Sales price per sales channel'!$I137*'Other input expert'!H$7","v":0},{"$f":"AJ137*'Other input expert'!I$14*'Sales price per sales channel'!$I137*'Other input expert'!I$7","v":0},{"$f":"AK137*'Other input expert'!J$14*'Sales price per sales channel'!$I137*'Other input expert'!J$7","v":0},{"$f":"AL137*'Other input expert'!K$14*'Sales price per sales channel'!$I137*'Other input expert'!K$7","v":0},{"$f":"AM137*'Other input expert'!L$14*'Sales price per sales channel'!$I137*'Other input expert'!L$7","v":0},{"$f":"AN137*'Other input expert'!M$14*'Sales price per sales channel'!$I137*'Other input expert'!M$7","v":0}]
["Pulmonaria off.","Lungwort",{"$f":"Plantlist!$G138*'Production list'!D139*'Other input expert'!B$4*'Other input expert'!B$8","v":0},{"$f":"Plantlist!$G138*'Production list'!E139*'Other input expert'!C$4*'Other input expert'!C$8","v":0},{"$f":"Plantlist!$G138*'Production list'!F139*'Other input expert'!D$4*'Other input expert'!D$8","v":0},{"$f":"Plantlist!$G138*'Production list'!G139*'Other input expert'!E$4*'Other input expert'!E$8","v":0},{"$f":"Plantlist!$G138*'Production list'!H139*'Other input expert'!F$4*'Other input expert'!F$8","v":0},{"$f":"Plantlist!$G138*'Production list'!I139*'Other input expert'!G$4*'Other input expert'!G$8","v":0},{"$f":"Plantlist!$G138*'Production list'!J139*'Other input expert'!H$4*'Other input expert'!H$8","v":0},{"$f":"Plantlist!$G138*'Production list'!K139*'Other input expert'!I$4*'Other input expert'!I$8","v":0},{"$f":"Plantlist!$G138*'Production list'!L139*'Other input expert'!J$4*'Other input expert'!J$8","v":0},{"$f":"Plantlist!$G138*'Production list'!M139*'Other input expert'!K$4*'Other input expert'!K$8","v":0},{"$f":"Plantlist!$G138*'Production list'!N139*'Other input expert'!L$4*'Other input expert'!L$8","v":0},{"$f":"Plantlist!$G138*'Production list'!O139*'Other input expert'!M$4*'Other input expert'!M$8","v":0},null,{"$f":"C138*'Other input expert'!B$5","v":0},{"$f":"D138*'Other input expert'!C$5","v":0},{"$f":"E138*'Other input expert'!D$5","v":0},{"$f":"F138*'Other input expert'!E$5","v":0},{"$f":"G138*'Other input expert'!F$5","v":0},{"$f":"H138*'Other input expert'!G$5","v":0},{"$f":"I138*'Other input expert'!H$5","v":0},{"$f":"J138*'Other input expert'!I$5","v":0},{"$f":"K138*'Other input expert'!J$5","v":0},{"$f":"L138*'Other input expert'!K$5","v":0},{"$f":"M138*'Other input expert'!L$5","v":0},{"$f":"N138*'Other input expert'!M$5","v":0},null,{"$f":"C138*(100%-'Other input expert'!B$5)","v":0},{"$f":"D138*(100%-'Other input expert'!C$5)","v":0},{"$f":"E138*(100%-'Other input expert'!D$5)","v":0},{"$f":"F138*(100%-'Other input expert'!E$5)","v":0},{"$f":"G138*(100%-'Other input expert'!F$5)","v":0},{"$f":"H138*(100%-'Other input expert'!G$5)","v":0},{"$f":"I138*(100%-'Other input expert'!H$5)","v":0},{"$f":"J138*(100%-'Other input expert'!I$5)","v":0},{"$f":"K138*(100%-'Other input expert'!J$5)","v":0},{"$f":"L138*(100%-'Other input expert'!K$5)","v":0},{"$f":"M138*(100%-'Other input expert'!L$5)","v":0},{"$f":"N138*(100%-'Other input expert'!M$5)","v":0},null,{"$f":"P138*'Other input expert'!B$12*'Sales price per sales channel'!$G138*'Other input expert'!B$6","v":0},{"$f":"Q138*'Other input expert'!C$12*'Sales price per sales channel'!$G138*'Other input expert'!C$6","v":0},{"$f":"R138*'Other input expert'!D$12*'Sales price per sales channel'!$G138*'Other input expert'!D$6","v":0},{"$f":"S138*'Other input expert'!E$12*'Sales price per sales channel'!$G138*'Other input expert'!E$6","v":0},{"$f":"T138*'Other input expert'!F$12*'Sales price per sales channel'!$G138*'Other input expert'!F$6","v":0},{"$f":"U138*'Other input expert'!G$12*'Sales price per sales channel'!$G138*'Other input expert'!G$6","v":0},{"$f":"V138*'Other input expert'!H$12*'Sales price per sales channel'!$G138*'Other input expert'!H$6","v":0},{"$f":"W138*'Other input expert'!I$12*'Sales price per sales channel'!$G138*'Other input expert'!I$6","v":0},{"$f":"X138*'Other input expert'!J$12*'Sales price per sales channel'!$G138*'Other input expert'!J$6","v":0},{"$f":"Y138*'Other input expert'!K$12*'Sales price per sales channel'!$G138*'Other input expert'!K$6","v":0},{"$f":"Z138*'Other input expert'!L$12*'Sales price per sales channel'!$G138*'Other input expert'!L$6","v":0},{"$f":"AA138*'Other input expert'!M$12*'Sales price per sales channel'!$G138*'Other input expert'!M$6","v":0},null,{"$f":"P138*'Other input expert'!B$13*'Sales price per sales channel'!$H138*'Other input expert'!B$6","v":0},{"$f":"Q138*'Other input expert'!C$13*'Sales price per sales channel'!$H138*'Other input expert'!C$6","v":0},{"$f":"R138*'Other input expert'!D$13*'Sales price per sales channel'!$H138*'Other input expert'!D$6","v":0},{"$f":"S138*'Other input expert'!E$13*'Sales price per sales channel'!$H138*'Other input expert'!E$6","v":0},{"$f":"T138*'Other input expert'!F$13*'Sales price per sales channel'!$H138*'Other input expert'!F$6","v":0},{"$f":"U138*'Other input expert'!G$13*'Sales price per sales channel'!$H138*'Other input expert'!G$6","v":0},{"$f":"V138*'Other input expert'!H$13*'Sales price per sales channel'!$H138*'Other input expert'!H$6","v":0},{"$f":"W138*'Other input expert'!I$13*'Sales price per sales channel'!$H138*'Other input expert'!I$6","v":0},{"$f":"X138*'Other input expert'!J$13*'Sales price per sales channel'!$H138*'Other input expert'!J$6","v":0},{"$f":"Y138*'Other input expert'!K$13*'Sales price per sales channel'!$H138*'Other input expert'!K$6","v":0},{"$f":"Z138*'Other input expert'!L$13*'Sales price per sales channel'!$H138*'Other input expert'!L$6","v":0},{"$f":"AA138*'Other input expert'!M$13*'Sales price per sales channel'!$H138*'Other input expert'!M$6","v":0},null,{"$f":"P138*'Other input expert'!B$14*'Sales price per sales channel'!$I138*'Other input expert'!B$6","v":0},{"$f":"Q138*'Other input expert'!C$14*'Sales price per sales channel'!$I138*'Other input expert'!C$6","v":0},{"$f":"R138*'Other input expert'!D$14*'Sales price per sales channel'!$I138*'Other input expert'!D$6","v":0},{"$f":"S138*'Other input expert'!E$14*'Sales price per sales channel'!$I138*'Other input expert'!E$6","v":0},{"$f":"T138*'Other input expert'!F$14*'Sales price per sales channel'!$I138*'Other input expert'!F$6","v":0},{"$f":"U138*'Other input expert'!G$14*'Sales price per sales channel'!$I138*'Other input expert'!G$6","v":0},{"$f":"V138*'Other input expert'!H$14*'Sales price per sales channel'!$I138*'Other input expert'!H$6","v":0},{"$f":"W138*'Other input expert'!I$14*'Sales price per sales channel'!$I138*'Other input expert'!I$6","v":0},{"$f":"X138*'Other input expert'!J$14*'Sales price per sales channel'!$I138*'Other input expert'!J$6","v":0},{"$f":"Y138*'Other input expert'!K$14*'Sales price per sales channel'!$I138*'Other input expert'!K$6","v":0},{"$f":"Z138*'Other input expert'!L$14*'Sales price per sales channel'!$I138*'Other input expert'!L$6","v":0},{"$f":"AA138*'Other input expert'!M$14*'Sales price per sales channel'!$I138*'Other input expert'!M$6","v":0},null,{"$f":"AC138*'Other input expert'!B$12*'Sales price per sales channel'!$G138*'Other input expert'!B$7","v":0},{"$f":"AD138*'Other input expert'!C$12*'Sales price per sales channel'!$G138*'Other input expert'!C$7","v":0},{"$f":"AE138*'Other input expert'!D$12*'Sales price per sales channel'!$G138*'Other input expert'!D$7","v":0},{"$f":"AF138*'Other input expert'!E$12*'Sales price per sales channel'!$G138*'Other input expert'!E$7","v":0},{"$f":"AG138*'Other input expert'!F$12*'Sales price per sales channel'!$G138*'Other input expert'!F$7","v":0},{"$f":"AH138*'Other input expert'!G$12*'Sales price per sales channel'!$G138*'Other input expert'!G$7","v":0},{"$f":"AI138*'Other input expert'!H$12*'Sales price per sales channel'!$G138*'Other input expert'!H$7","v":0},{"$f":"AJ138*'Other input expert'!I$12*'Sales price per sales channel'!$G138*'Other input expert'!I$7","v":0},{"$f":"AK138*'Other input expert'!J$12*'Sales price per sales channel'!$G138*'Other input expert'!J$7","v":0},{"$f":"AL138*'Other input expert'!K$12*'Sales price per sales channel'!$G138*'Other input expert'!K$7","v":0},{"$f":"AM138*'Other input expert'!L$12*'Sales price per sales channel'!$G138*'Other input expert'!L$7","v":0},{"$f":"AN138*'Other input expert'!M$12*'Sales price per sales channel'!$G138*'Other input expert'!M$7","v":0},null,{"$f":"AC138*'Other input expert'!B$13*'Sales price per sales channel'!$H138*'Other input expert'!B$7","v":0},{"$f":"AD138*'Other input expert'!C$13*'Sales price per sales channel'!$H138*'Other input expert'!C$7","v":0},{"$f":"AE138*'Other input expert'!D$13*'Sales price per sales channel'!$H138*'Other input expert'!D$7","v":0},{"$f":"AF138*'Other input expert'!E$13*'Sales price per sales channel'!$H138*'Other input expert'!E$7","v":0},{"$f":"AG138*'Other input expert'!F$13*'Sales price per sales channel'!$H138*'Other input expert'!F$7","v":0},{"$f":"AH138*'Other input expert'!G$13*'Sales price per sales channel'!$H138*'Other input expert'!G$7","v":0},{"$f":"AI138*'Other input expert'!H$13*'Sales price per sales channel'!$H138*'Other input expert'!H$7","v":0},{"$f":"AJ138*'Other input expert'!I$13*'Sales price per sales channel'!$H138*'Other input expert'!I$7","v":0},{"$f":"AK138*'Other input expert'!J$13*'Sales price per sales channel'!$H138*'Other input expert'!J$7","v":0},{"$f":"AL138*'Other input expert'!K$13*'Sales price per sales channel'!$H138*'Other input expert'!K$7","v":0},{"$f":"AM138*'Other input expert'!L$13*'Sales price per sales channel'!$H138*'Other input expert'!L$7","v":0},{"$f":"AN138*'Other input expert'!M$13*'Sales price per sales channel'!$H138*'Other input expert'!M$7","v":0},null,{"$f":"AC138*'Other input expert'!B$14*'Sales price per sales channel'!$I138*'Other input expert'!B$7","v":0},{"$f":"AD138*'Other input expert'!C$14*'Sales price per sales channel'!$I138*'Other input expert'!C$7","v":0},{"$f":"AE138*'Other input expert'!D$14*'Sales price per sales channel'!$I138*'Other input expert'!D$7","v":0},{"$f":"AF138*'Other input expert'!E$14*'Sales price per sales channel'!$I138*'Other input expert'!E$7","v":0},{"$f":"AG138*'Other input expert'!F$14*'Sales price per sales channel'!$I138*'Other input expert'!F$7","v":0},{"$f":"AH138*'Other input expert'!G$14*'Sales price per sales channel'!$I138*'Other input expert'!G$7","v":0},{"$f":"AI138*'Other input expert'!H$14*'Sales price per sales channel'!$I138*'Other input expert'!H$7","v":0},{"$f":"AJ138*'Other input expert'!I$14*'Sales price per sales channel'!$I138*'Other input expert'!I$7","v":0},{"$f":"AK138*'Other input expert'!J$14*'Sales price per sales channel'!$I138*'Other input expert'!J$7","v":0},{"$f":"AL138*'Other input expert'!K$14*'Sales price per sales channel'!$I138*'Other input expert'!K$7","v":0},{"$f":"AM138*'Other input expert'!L$14*'Sales price per sales channel'!$I138*'Other input expert'!L$7","v":0},{"$f":"AN138*'Other input expert'!M$14*'Sales price per sales channel'!$I138*'Other input expert'!M$7","v":0}]
["Punica granatum","Pomegranate",{"$f":"Plantlist!$G139*'Production list'!D140*'Other input expert'!B$4*'Other input expert'!B$8","v":0},{"$f":"Plantlist!$G139*'Production list'!E140*'Other input expert'!C$4*'Other input expert'!C$8","v":0},{"$f":"Plantlist!$G139*'Production list'!F140*'Other input expert'!D$4*'Other input expert'!D$8","v":0},{"$f":"Plantlist!$G139*'Production list'!G140*'Other input expert'!E$4*'Other input expert'!E$8","v":0},{"$f":"Plantlist!$G139*'Production list'!H140*'Other input expert'!F$4*'Other input expert'!F$8","v":0},{"$f":"Plantlist!$G139*'Production list'!I140*'Other input expert'!G$4*'Other input expert'!G$8","v":0},{"$f":"Plantlist!$G139*'Production list'!J140*'Other input expert'!H$4*'Other input expert'!H$8","v":0},{"$f":"Plantlist!$G139*'Production list'!K140*'Other input expert'!I$4*'Other input expert'!I$8","v":0},{"$f":"Plantlist!$G139*'Production list'!L140*'Other input expert'!J$4*'Other input expert'!J$8","v":0},{"$f":"Plantlist!$G139*'Production list'!M140*'Other input expert'!K$4*'Other input expert'!K$8","v":0},{"$f":"Plantlist!$G139*'Production list'!N140*'Other input expert'!L$4*'Other input expert'!L$8","v":0},{"$f":"Plantlist!$G139*'Production list'!O140*'Other input expert'!M$4*'Other input expert'!M$8","v":0},null,{"$f":"C139*'Other input expert'!B$5","v":0},{"$f":"D139*'Other input expert'!C$5","v":0},{"$f":"E139*'Other input expert'!D$5","v":0},{"$f":"F139*'Other input expert'!E$5","v":0},{"$f":"G139*'Other input expert'!F$5","v":0},{"$f":"H139*'Other input expert'!G$5","v":0},{"$f":"I139*'Other input expert'!H$5","v":0},{"$f":"J139*'Other input expert'!I$5","v":0},{"$f":"K139*'Other input expert'!J$5","v":0},{"$f":"L139*'Other input expert'!K$5","v":0},{"$f":"M139*'Other input expert'!L$5","v":0},{"$f":"N139*'Other input expert'!M$5","v":0},null,{"$f":"C139*(100%-'Other input expert'!B$5)","v":0},{"$f":"D139*(100%-'Other input expert'!C$5)","v":0},{"$f":"E139*(100%-'Other input expert'!D$5)","v":0},{"$f":"F139*(100%-'Other input expert'!E$5)","v":0},{"$f":"G139*(100%-'Other input expert'!F$5)","v":0},{"$f":"H139*(100%-'Other input expert'!G$5)","v":0},{"$f":"I139*(100%-'Other input expert'!H$5)","v":0},{"$f":"J139*(100%-'Other input expert'!I$5)","v":0},{"$f":"K139*(100%-'Other input expert'!J$5)","v":0},{"$f":"L139*(100%-'Other input expert'!K$5)","v":0},{"$f":"M139*(100%-'Other input expert'!L$5)","v":0},{"$f":"N139*(100%-'Other input expert'!M$5)","v":0},null,{"$f":"P139*'Other input expert'!B$12*'Sales price per sales channel'!$G139*'Other input expert'!B$6","v":0},{"$f":"Q139*'Other input expert'!C$12*'Sales price per sales channel'!$G139*'Other input expert'!C$6","v":0},{"$f":"R139*'Other input expert'!D$12*'Sales price per sales channel'!$G139*'Other input expert'!D$6","v":0},{"$f":"S139*'Other input expert'!E$12*'Sales price per sales channel'!$G139*'Other input expert'!E$6","v":0},{"$f":"T139*'Other input expert'!F$12*'Sales price per sales channel'!$G139*'Other input expert'!F$6","v":0},{"$f":"U139*'Other input expert'!G$12*'Sales price per sales channel'!$G139*'Other input expert'!G$6","v":0},{"$f":"V139*'Other input expert'!H$12*'Sales price per sales channel'!$G139*'Other input expert'!H$6","v":0},{"$f":"W139*'Other input expert'!I$12*'Sales price per sales channel'!$G139*'Other input expert'!I$6","v":0},{"$f":"X139*'Other input expert'!J$12*'Sales price per sales channel'!$G139*'Other input expert'!J$6","v":0},{"$f":"Y139*'Other input expert'!K$12*'Sales price per sales channel'!$G139*'Other input expert'!K$6","v":0},{"$f":"Z139*'Other input expert'!L$12*'Sales price per sales channel'!$G139*'Other input expert'!L$6","v":0},{"$f":"AA139*'Other input expert'!M$12*'Sales price per sales channel'!$G139*'Other input expert'!M$6","v":0},null,{"$f":"P139*'Other input expert'!B$13*'Sales price per sales channel'!$H139*'Other input expert'!B$6","v":0},{"$f":"Q139*'Other input expert'!C$13*'Sales price per sales channel'!$H139*'Other input expert'!C$6","v":0},{"$f":"R139*'Other input expert'!D$13*'Sales price per sales channel'!$H139*'Other input expert'!D$6","v":0},{"$f":"S139*'Other input expert'!E$13*'Sales price per sales channel'!$H139*'Other input expert'!E$6","v":0},{"$f":"T139*'Other input expert'!F$13*'Sales price per sales channel'!$H139*'Other input expert'!F$6","v":0},{"$f":"U139*'Other input expert'!G$13*'Sales price per sales channel'!$H139*'Other input expert'!G$6","v":0},{"$f":"V139*'Other input expert'!H$13*'Sales price per sales channel'!$H139*'Other input expert'!H$6","v":0},{"$f":"W139*'Other input expert'!I$13*'Sales price per sales channel'!$H139*'Other input expert'!I$6","v":0},{"$f":"X139*'Other input expert'!J$13*'Sales price per sales channel'!$H139*'Other input expert'!J$6","v":0},{"$f":"Y139*'Other input expert'!K$13*'Sales price per sales channel'!$H139*'Other input expert'!K$6","v":0},{"$f":"Z139*'Other input expert'!L$13*'Sales price per sales channel'!$H139*'Other input expert'!L$6","v":0},{"$f":"AA139*'Other input expert'!M$13*'Sales price per sales channel'!$H139*'Other input expert'!M$6","v":0},null,{"$f":"P139*'Other input expert'!B$14*'Sales price per sales channel'!$I139*'Other input expert'!B$6","v":0},{"$f":"Q139*'Other input expert'!C$14*'Sales price per sales channel'!$I139*'Other input expert'!C$6","v":0},{"$f":"R139*'Other input expert'!D$14*'Sales price per sales channel'!$I139*'Other input expert'!D$6","v":0},{"$f":"S139*'Other input expert'!E$14*'Sales price per sales channel'!$I139*'Other input expert'!E$6","v":0},{"$f":"T139*'Other input expert'!F$14*'Sales price per sales channel'!$I139*'Other input expert'!F$6","v":0},{"$f":"U139*'Other input expert'!G$14*'Sales price per sales channel'!$I139*'Other input expert'!G$6","v":0},{"$f":"V139*'Other input expert'!H$14*'Sales price per sales channel'!$I139*'Other input expert'!H$6","v":0},{"$f":"W139*'Other input expert'!I$14*'Sales price per sales channel'!$I139*'Other input expert'!I$6","v":0},{"$f":"X139*'Other input expert'!J$14*'Sales price per sales channel'!$I139*'Other input expert'!J$6","v":0},{"$f":"Y139*'Other input expert'!K$14*'Sales price per sales channel'!$I139*'Other input expert'!K$6","v":0},{"$f":"Z139*'Other input expert'!L$14*'Sales price per sales channel'!$I139*'Other input expert'!L$6","v":0},{"$f":"AA139*'Other input expert'!M$14*'Sales price per sales channel'!$I139*'Other input expert'!M$6","v":0},null,{"$f":"AC139*'Other input expert'!B$12*'Sales price per sales channel'!$G139*'Other input expert'!B$7","v":0},{"$f":"AD139*'Other input expert'!C$12*'Sales price per sales channel'!$G139*'Other input expert'!C$7","v":0},{"$f":"AE139*'Other input expert'!D$12*'Sales price per sales channel'!$G139*'Other input expert'!D$7","v":0},{"$f":"AF139*'Other input expert'!E$12*'Sales price per sales channel'!$G139*'Other input expert'!E$7","v":0},{"$f":"AG139*'Other input expert'!F$12*'Sales price per sales channel'!$G139*'Other input expert'!F$7","v":0},{"$f":"AH139*'Other input expert'!G$12*'Sales price per sales channel'!$G139*'Other input expert'!G$7","v":0},{"$f":"AI139*'Other input expert'!H$12*'Sales price per sales channel'!$G139*'Other input expert'!H$7","v":0},{"$f":"AJ139*'Other input expert'!I$12*'Sales price per sales channel'!$G139*'Other input expert'!I$7","v":0},{"$f":"AK139*'Other input expert'!J$12*'Sales price per sales channel'!$G139*'Other input expert'!J$7","v":0},{"$f":"AL139*'Other input expert'!K$12*'Sales price per sales channel'!$G139*'Other input expert'!K$7","v":0},{"$f":"AM139*'Other input expert'!L$12*'Sales price per sales channel'!$G139*'Other input expert'!L$7","v":0},{"$f":"AN139*'Other input expert'!M$12*'Sales price per sales channel'!$G139*'Other input expert'!M$7","v":0},null,{"$f":"AC139*'Other input expert'!B$13*'Sales price per sales channel'!$H139*'Other input expert'!B$7","v":0},{"$f":"AD139*'Other input expert'!C$13*'Sales price per sales channel'!$H139*'Other input expert'!C$7","v":0},{"$f":"AE139*'Other input expert'!D$13*'Sales price per sales channel'!$H139*'Other input expert'!D$7","v":0},{"$f":"AF139*'Other input expert'!E$13*'Sales price per sales channel'!$H139*'Other input expert'!E$7","v":0},{"$f":"AG139*'Other input expert'!F$13*'Sales price per sales channel'!$H139*'Other input expert'!F$7","v":0},{"$f":"AH139*'Other input expert'!G$13*'Sales price per sales channel'!$H139*'Other input expert'!G$7","v":0},{"$f":"AI139*'Other input expert'!H$13*'Sales price per sales channel'!$H139*'Other input expert'!H$7","v":0},{"$f":"AJ139*'Other input expert'!I$13*'Sales price per sales channel'!$H139*'Other input expert'!I$7","v":0},{"$f":"AK139*'Other input expert'!J$13*'Sales price per sales channel'!$H139*'Other input expert'!J$7","v":0},{"$f":"AL139*'Other input expert'!K$13*'Sales price per sales channel'!$H139*'Other input expert'!K$7","v":0},{"$f":"AM139*'Other input expert'!L$13*'Sales price per sales channel'!$H139*'Other input expert'!L$7","v":0},{"$f":"AN139*'Other input expert'!M$13*'Sales price per sales channel'!$H139*'Other input expert'!M$7","v":0},null,{"$f":"AC139*'Other input expert'!B$14*'Sales price per sales channel'!$I139*'Other input expert'!B$7","v":0},{"$f":"AD139*'Other input expert'!C$14*'Sales price per sales channel'!$I139*'Other input expert'!C$7","v":0},{"$f":"AE139*'Other input expert'!D$14*'Sales price per sales channel'!$I139*'Other input expert'!D$7","v":0},{"$f":"AF139*'Other input expert'!E$14*'Sales price per sales channel'!$I139*'Other input expert'!E$7","v":0},{"$f":"AG139*'Other input expert'!F$14*'Sales price per sales channel'!$I139*'Other input expert'!F$7","v":0},{"$f":"AH139*'Other input expert'!G$14*'Sales price per sales channel'!$I139*'Other input expert'!G$7","v":0},{"$f":"AI139*'Other input expert'!H$14*'Sales price per sales channel'!$I139*'Other input expert'!H$7","v":0},{"$f":"AJ139*'Other input expert'!I$14*'Sales price per sales channel'!$I139*'Other input expert'!I$7","v":0},{"$f":"AK139*'Other input expert'!J$14*'Sales price per sales channel'!$I139*'Other input expert'!J$7","v":0},{"$f":"AL139*'Other input expert'!K$14*'Sales price per sales channel'!$I139*'Other input expert'!K$7","v":0},{"$f":"AM139*'Other input expert'!L$14*'Sales price per sales channel'!$I139*'Other input expert'!L$7","v":0},{"$f":"AN139*'Other input expert'!M$14*'Sales price per sales channel'!$I139*'Other input expert'!M$7","v":0}]
["Pyrus bretschneideri","Chinese white pear",{"$f":"Plantlist!$G140*'Production list'!D141*'Other input expert'!B$4*'Other input expert'!B$8","v":0},{"$f":"Plantlist!$G140*'Production list'!E141*'Other input expert'!C$4*'Other input expert'!C$8","v":0},{"$f":"Plantlist!$G140*'Production list'!F141*'Other input expert'!D$4*'Other input expert'!D$8","v":0},{"$f":"Plantlist!$G140*'Production list'!G141*'Other input expert'!E$4*'Other input expert'!E$8","v":0},{"$f":"Plantlist!$G140*'Production list'!H141*'Other input expert'!F$4*'Other input expert'!F$8","v":0},{"$f":"Plantlist!$G140*'Production list'!I141*'Other input expert'!G$4*'Other input expert'!G$8","v":0},{"$f":"Plantlist!$G140*'Production list'!J141*'Other input expert'!H$4*'Other input expert'!H$8","v":0},{"$f":"Plantlist!$G140*'Production list'!K141*'Other input expert'!I$4*'Other input expert'!I$8","v":0},{"$f":"Plantlist!$G140*'Production list'!L141*'Other input expert'!J$4*'Other input expert'!J$8","v":0},{"$f":"Plantlist!$G140*'Production list'!M141*'Other input expert'!K$4*'Other input expert'!K$8","v":0},{"$f":"Plantlist!$G140*'Production list'!N141*'Other input expert'!L$4*'Other input expert'!L$8","v":0},{"$f":"Plantlist!$G140*'Production list'!O141*'Other input expert'!M$4*'Other input expert'!M$8","v":0},null,{"$f":"C140*'Other input expert'!B$5","v":0},{"$f":"D140*'Other input expert'!C$5","v":0},{"$f":"E140*'Other input expert'!D$5","v":0},{"$f":"F140*'Other input expert'!E$5","v":0},{"$f":"G140*'Other input expert'!F$5","v":0},{"$f":"H140*'Other input expert'!G$5","v":0},{"$f":"I140*'Other input expert'!H$5","v":0},{"$f":"J140*'Other input expert'!I$5","v":0},{"$f":"K140*'Other input expert'!J$5","v":0},{"$f":"L140*'Other input expert'!K$5","v":0},{"$f":"M140*'Other input expert'!L$5","v":0},{"$f":"N140*'Other input expert'!M$5","v":0},null,{"$f":"C140*(100%-'Other input expert'!B$5)","v":0},{"$f":"D140*(100%-'Other input expert'!C$5)","v":0},{"$f":"E140*(100%-'Other input expert'!D$5)","v":0},{"$f":"F140*(100%-'Other input expert'!E$5)","v":0},{"$f":"G140*(100%-'Other input expert'!F$5)","v":0},{"$f":"H140*(100%-'Other input expert'!G$5)","v":0},{"$f":"I140*(100%-'Other input expert'!H$5)","v":0},{"$f":"J140*(100%-'Other input expert'!I$5)","v":0},{"$f":"K140*(100%-'Other input expert'!J$5)","v":0},{"$f":"L140*(100%-'Other input expert'!K$5)","v":0},{"$f":"M140*(100%-'Other input expert'!L$5)","v":0},{"$f":"N140*(100%-'Other input expert'!M$5)","v":0},null,{"$f":"P140*'Other input expert'!B$12*'Sales price per sales channel'!$G140*'Other input expert'!B$6","v":0},{"$f":"Q140*'Other input expert'!C$12*'Sales price per sales channel'!$G140*'Other input expert'!C$6","v":0},{"$f":"R140*'Other input expert'!D$12*'Sales price per sales channel'!$G140*'Other input expert'!D$6","v":0},{"$f":"S140*'Other input expert'!E$12*'Sales price per sales channel'!$G140*'Other input expert'!E$6","v":0},{"$f":"T140*'Other input expert'!F$12*'Sales price per sales channel'!$G140*'Other input expert'!F$6","v":0},{"$f":"U140*'Other input expert'!G$12*'Sales price per sales channel'!$G140*'Other input expert'!G$6","v":0},{"$f":"V140*'Other input expert'!H$12*'Sales price per sales channel'!$G140*'Other input expert'!H$6","v":0},{"$f":"W140*'Other input expert'!I$12*'Sales price per sales channel'!$G140*'Other input expert'!I$6","v":0},{"$f":"X140*'Other input expert'!J$12*'Sales price per sales channel'!$G140*'Other input expert'!J$6","v":0},{"$f":"Y140*'Other input expert'!K$12*'Sales price per sales channel'!$G140*'Other input expert'!K$6","v":0},{"$f":"Z140*'Other input expert'!L$12*'Sales price per sales channel'!$G140*'Other input expert'!L$6","v":0},{"$f":"AA140*'Other input expert'!M$12*'Sales price per sales channel'!$G140*'Other input expert'!M$6","v":0},null,{"$f":"P140*'Other input expert'!B$13*'Sales price per sales channel'!$H140*'Other input expert'!B$6","v":0},{"$f":"Q140*'Other input expert'!C$13*'Sales price per sales channel'!$H140*'Other input expert'!C$6","v":0},{"$f":"R140*'Other input expert'!D$13*'Sales price per sales channel'!$H140*'Other input expert'!D$6","v":0},{"$f":"S140*'Other input expert'!E$13*'Sales price per sales channel'!$H140*'Other input expert'!E$6","v":0},{"$f":"T140*'Other input expert'!F$13*'Sales price per sales channel'!$H140*'Other input expert'!F$6","v":0},{"$f":"U140*'Other input expert'!G$13*'Sales price per sales channel'!$H140*'Other input expert'!G$6","v":0},{"$f":"V140*'Other input expert'!H$13*'Sales price per sales channel'!$H140*'Other input expert'!H$6","v":0},{"$f":"W140*'Other input expert'!I$13*'Sales price per sales channel'!$H140*'Other input expert'!I$6","v":0},{"$f":"X140*'Other input expert'!J$13*'Sales price per sales channel'!$H140*'Other input expert'!J$6","v":0},{"$f":"Y140*'Other input expert'!K$13*'Sales price per sales channel'!$H140*'Other input expert'!K$6","v":0},{"$f":"Z140*'Other input expert'!L$13*'Sales price per sales channel'!$H140*'Other input expert'!L$6","v":0},{"$f":"AA140*'Other input expert'!M$13*'Sales price per sales channel'!$H140*'Other input expert'!M$6","v":0},null,{"$f":"P140*'Other input expert'!B$14*'Sales price per sales channel'!$I140*'Other input expert'!B$6","v":0},{"$f":"Q140*'Other input expert'!C$14*'Sales price per sales channel'!$I140*'Other input expert'!C$6","v":0},{"$f":"R140*'Other input expert'!D$14*'Sales price per sales channel'!$I140*'Other input expert'!D$6","v":0},{"$f":"S140*'Other input expert'!E$14*'Sales price per sales channel'!$I140*'Other input expert'!E$6","v":0},{"$f":"T140*'Other input expert'!F$14*'Sales price per sales channel'!$I140*'Other input expert'!F$6","v":0},{"$f":"U140*'Other input expert'!G$14*'Sales price per sales channel'!$I140*'Other input expert'!G$6","v":0},{"$f":"V140*'Other input expert'!H$14*'Sales price per sales channel'!$I140*'Other input expert'!H$6","v":0},{"$f":"W140*'Other input expert'!I$14*'Sales price per sales channel'!$I140*'Other input expert'!I$6","v":0},{"$f":"X140*'Other input expert'!J$14*'Sales price per sales channel'!$I140*'Other input expert'!J$6","v":0},{"$f":"Y140*'Other input expert'!K$14*'Sales price per sales channel'!$I140*'Other input expert'!K$6","v":0},{"$f":"Z140*'Other input expert'!L$14*'Sales price per sales channel'!$I140*'Other input expert'!L$6","v":0},{"$f":"AA140*'Other input expert'!M$14*'Sales price per sales channel'!$I140*'Other input expert'!M$6","v":0},null,{"$f":"AC140*'Other input expert'!B$12*'Sales price per sales channel'!$G140*'Other input expert'!B$7","v":0},{"$f":"AD140*'Other input expert'!C$12*'Sales price per sales channel'!$G140*'Other input expert'!C$7","v":0},{"$f":"AE140*'Other input expert'!D$12*'Sales price per sales channel'!$G140*'Other input expert'!D$7","v":0},{"$f":"AF140*'Other input expert'!E$12*'Sales price per sales channel'!$G140*'Other input expert'!E$7","v":0},{"$f":"AG140*'Other input expert'!F$12*'Sales price per sales channel'!$G140*'Other input expert'!F$7","v":0},{"$f":"AH140*'Other input expert'!G$12*'Sales price per sales channel'!$G140*'Other input expert'!G$7","v":0},{"$f":"AI140*'Other input expert'!H$12*'Sales price per sales channel'!$G140*'Other input expert'!H$7","v":0},{"$f":"AJ140*'Other input expert'!I$12*'Sales price per sales channel'!$G140*'Other input expert'!I$7","v":0},{"$f":"AK140*'Other input expert'!J$12*'Sales price per sales channel'!$G140*'Other input expert'!J$7","v":0},{"$f":"AL140*'Other input expert'!K$12*'Sales price per sales channel'!$G140*'Other input expert'!K$7","v":0},{"$f":"AM140*'Other input expert'!L$12*'Sales price per sales channel'!$G140*'Other input expert'!L$7","v":0},{"$f":"AN140*'Other input expert'!M$12*'Sales price per sales channel'!$G140*'Other input expert'!M$7","v":0},null,{"$f":"AC140*'Other input expert'!B$13*'Sales price per sales channel'!$H140*'Other input expert'!B$7","v":0},{"$f":"AD140*'Other input expert'!C$13*'Sales price per sales channel'!$H140*'Other input expert'!C$7","v":0},{"$f":"AE140*'Other input expert'!D$13*'Sales price per sales channel'!$H140*'Other input expert'!D$7","v":0},{"$f":"AF140*'Other input expert'!E$13*'Sales price per sales channel'!$H140*'Other input expert'!E$7","v":0},{"$f":"AG140*'Other input expert'!F$13*'Sales price per sales channel'!$H140*'Other input expert'!F$7","v":0},{"$f":"AH140*'Other input expert'!G$13*'Sales price per sales channel'!$H140*'Other input expert'!G$7","v":0},{"$f":"AI140*'Other input expert'!H$13*'Sales price per sales channel'!$H140*'Other input expert'!H$7","v":0},{"$f":"AJ140*'Other input expert'!I$13*'Sales price per sales channel'!$H140*'Other input expert'!I$7","v":0},{"$f":"AK140*'Other input expert'!J$13*'Sales price per sales channel'!$H140*'Other input expert'!J$7","v":0},{"$f":"AL140*'Other input expert'!K$13*'Sales price per sales channel'!$H140*'Other input expert'!K$7","v":0},{"$f":"AM140*'Other input expert'!L$13*'Sales price per sales channel'!$H140*'Other input expert'!L$7","v":0},{"$f":"AN140*'Other input expert'!M$13*'Sales price per sales channel'!$H140*'Other input expert'!M$7","v":0},null,{"$f":"AC140*'Other input expert'!B$14*'Sales price per sales channel'!$I140*'Other input expert'!B$7","v":0},{"$f":"AD140*'Other input expert'!C$14*'Sales price per sales channel'!$I140*'Other input expert'!C$7","v":0},{"$f":"AE140*'Other input expert'!D$14*'Sales price per sales channel'!$I140*'Other input expert'!D$7","v":0},{"$f":"AF140*'Other input expert'!E$14*'Sales price per sales channel'!$I140*'Other input expert'!E$7","v":0},{"$f":"AG140*'Other input expert'!F$14*'Sales price per sales channel'!$I140*'Other input expert'!F$7","v":0},{"$f":"AH140*'Other input expert'!G$14*'Sales price per sales channel'!$I140*'Other input expert'!G$7","v":0},{"$f":"AI140*'Other input expert'!H$14*'Sales price per sales channel'!$I140*'Other input expert'!H$7","v":0},{"$f":"AJ140*'Other input expert'!I$14*'Sales price per sales channel'!$I140*'Other input expert'!I$7","v":0},{"$f":"AK140*'Other input expert'!J$14*'Sales price per sales channel'!$I140*'Other input expert'!J$7","v":0},{"$f":"AL140*'Other input expert'!K$14*'Sales price per sales channel'!$I140*'Other input expert'!K$7","v":0},{"$f":"AM140*'Other input expert'!L$14*'Sales price per sales channel'!$I140*'Other input expert'!L$7","v":0},{"$f":"AN140*'Other input expert'!M$14*'Sales price per sales channel'!$I140*'Other input expert'!M$7","v":0}]
["Pyrus communis","Pear",{"$f":"Plantlist!$G141*'Production list'!D142*'Other input expert'!B$4*'Other input expert'!B$8","v":0},{"$f":"Plantlist!$G141*'Production list'!E142*'Other input expert'!C$4*'Other input expert'!C$8","v":0},{"$f":"Plantlist!$G141*'Production list'!F142*'Other input expert'!D$4*'Other input expert'!D$8","v":0},{"$f":"Plantlist!$G141*'Production list'!G142*'Other input expert'!E$4*'Other input expert'!E$8","v":0},{"$f":"Plantlist!$G141*'Production list'!H142*'Other input expert'!F$4*'Other input expert'!F$8","v":0},{"$f":"Plantlist!$G141*'Production list'!I142*'Other input expert'!G$4*'Other input expert'!G$8","v":0},{"$f":"Plantlist!$G141*'Production list'!J142*'Other input expert'!H$4*'Other input expert'!H$8","v":0},{"$f":"Plantlist!$G141*'Production list'!K142*'Other input expert'!I$4*'Other input expert'!I$8","v":0},{"$f":"Plantlist!$G141*'Production list'!L142*'Other input expert'!J$4*'Other input expert'!J$8","v":0},{"$f":"Plantlist!$G141*'Production list'!M142*'Other input expert'!K$4*'Other input expert'!K$8","v":0},{"$f":"Plantlist!$G141*'Production list'!N142*'Other input expert'!L$4*'Other input expert'!L$8","v":0},{"$f":"Plantlist!$G141*'Production list'!O142*'Other input expert'!M$4*'Other input expert'!M$8","v":0},null,{"$f":"C141*'Other input expert'!B$5","v":0},{"$f":"D141*'Other input expert'!C$5","v":0},{"$f":"E141*'Other input expert'!D$5","v":0},{"$f":"F141*'Other input expert'!E$5","v":0},{"$f":"G141*'Other input expert'!F$5","v":0},{"$f":"H141*'Other input expert'!G$5","v":0},{"$f":"I141*'Other input expert'!H$5","v":0},{"$f":"J141*'Other input expert'!I$5","v":0},{"$f":"K141*'Other input expert'!J$5","v":0},{"$f":"L141*'Other input expert'!K$5","v":0},{"$f":"M141*'Other input expert'!L$5","v":0},{"$f":"N141*'Other input expert'!M$5","v":0},null,{"$f":"C141*(100%-'Other input expert'!B$5)","v":0},{"$f":"D141*(100%-'Other input expert'!C$5)","v":0},{"$f":"E141*(100%-'Other input expert'!D$5)","v":0},{"$f":"F141*(100%-'Other input expert'!E$5)","v":0},{"$f":"G141*(100%-'Other input expert'!F$5)","v":0},{"$f":"H141*(100%-'Other input expert'!G$5)","v":0},{"$f":"I141*(100%-'Other input expert'!H$5)","v":0},{"$f":"J141*(100%-'Other input expert'!I$5)","v":0},{"$f":"K141*(100%-'Other input expert'!J$5)","v":0},{"$f":"L141*(100%-'Other input expert'!K$5)","v":0},{"$f":"M141*(100%-'Other input expert'!L$5)","v":0},{"$f":"N141*(100%-'Other input expert'!M$5)","v":0},null,{"$f":"P141*'Other input expert'!B$12*'Sales price per sales channel'!$G141*'Other input expert'!B$6","v":0},{"$f":"Q141*'Other input expert'!C$12*'Sales price per sales channel'!$G141*'Other input expert'!C$6","v":0},{"$f":"R141*'Other input expert'!D$12*'Sales price per sales channel'!$G141*'Other input expert'!D$6","v":0},{"$f":"S141*'Other input expert'!E$12*'Sales price per sales channel'!$G141*'Other input expert'!E$6","v":0},{"$f":"T141*'Other input expert'!F$12*'Sales price per sales channel'!$G141*'Other input expert'!F$6","v":0},{"$f":"U141*'Other input expert'!G$12*'Sales price per sales channel'!$G141*'Other input expert'!G$6","v":0},{"$f":"V141*'Other input expert'!H$12*'Sales price per sales channel'!$G141*'Other input expert'!H$6","v":0},{"$f":"W141*'Other input expert'!I$12*'Sales price per sales channel'!$G141*'Other input expert'!I$6","v":0},{"$f":"X141*'Other input expert'!J$12*'Sales price per sales channel'!$G141*'Other input expert'!J$6","v":0},{"$f":"Y141*'Other input expert'!K$12*'Sales price per sales channel'!$G141*'Other input expert'!K$6","v":0},{"$f":"Z141*'Other input expert'!L$12*'Sales price per sales channel'!$G141*'Other input expert'!L$6","v":0},{"$f":"AA141*'Other input expert'!M$12*'Sales price per sales channel'!$G141*'Other input expert'!M$6","v":0},null,{"$f":"P141*'Other input expert'!B$13*'Sales price per sales channel'!$H141*'Other input expert'!B$6","v":0},{"$f":"Q141*'Other input expert'!C$13*'Sales price per sales channel'!$H141*'Other input expert'!C$6","v":0},{"$f":"R141*'Other input expert'!D$13*'Sales price per sales channel'!$H141*'Other input expert'!D$6","v":0},{"$f":"S141*'Other input expert'!E$13*'Sales price per sales channel'!$H141*'Other input expert'!E$6","v":0},{"$f":"T141*'Other input expert'!F$13*'Sales price per sales channel'!$H141*'Other input expert'!F$6","v":0},{"$f":"U141*'Other input expert'!G$13*'Sales price per sales channel'!$H141*'Other input expert'!G$6","v":0},{"$f":"V141*'Other input expert'!H$13*'Sales price per sales channel'!$H141*'Other input expert'!H$6","v":0},{"$f":"W141*'Other input expert'!I$13*'Sales price per sales channel'!$H141*'Other input expert'!I$6","v":0},{"$f":"X141*'Other input expert'!J$13*'Sales price per sales channel'!$H141*'Other input expert'!J$6","v":0},{"$f":"Y141*'Other input expert'!K$13*'Sales price per sales channel'!$H141*'Other input expert'!K$6","v":0},{"$f":"Z141*'Other input expert'!L$13*'Sales price per sales channel'!$H141*'Other input expert'!L$6","v":0},{"$f":"AA141*'Other input expert'!M$13*'Sales price per sales channel'!$H141*'Other input expert'!M$6","v":0},null,{"$f":"P141*'Other input expert'!B$14*'Sales price per sales channel'!$I141*'Other input expert'!B$6","v":0},{"$f":"Q141*'Other input expert'!C$14*'Sales price per sales channel'!$I141*'Other input expert'!C$6","v":0},{"$f":"R141*'Other input expert'!D$14*'Sales price per sales channel'!$I141*'Other input expert'!D$6","v":0},{"$f":"S141*'Other input expert'!E$14*'Sales price per sales channel'!$I141*'Other input expert'!E$6","v":0},{"$f":"T141*'Other input expert'!F$14*'Sales price per sales channel'!$I141*'Other input expert'!F$6","v":0},{"$f":"U141*'Other input expert'!G$14*'Sales price per sales channel'!$I141*'Other input expert'!G$6","v":0},{"$f":"V141*'Other input expert'!H$14*'Sales price per sales channel'!$I141*'Other input expert'!H$6","v":0},{"$f":"W141*'Other input expert'!I$14*'Sales price per sales channel'!$I141*'Other input expert'!I$6","v":0},{"$f":"X141*'Other input expert'!J$14*'Sales price per sales channel'!$I141*'Other input expert'!J$6","v":0},{"$f":"Y141*'Other input expert'!K$14*'Sales price per sales channel'!$I141*'Other input expert'!K$6","v":0},{"$f":"Z141*'Other input expert'!L$14*'Sales price per sales channel'!$I141*'Other input expert'!L$6","v":0},{"$f":"AA141*'Other input expert'!M$14*'Sales price per sales channel'!$I141*'Other input expert'!M$6","v":0},null,{"$f":"AC141*'Other input expert'!B$12*'Sales price per sales channel'!$G141*'Other input expert'!B$7","v":0},{"$f":"AD141*'Other input expert'!C$12*'Sales price per sales channel'!$G141*'Other input expert'!C$7","v":0},{"$f":"AE141*'Other input expert'!D$12*'Sales price per sales channel'!$G141*'Other input expert'!D$7","v":0},{"$f":"AF141*'Other input expert'!E$12*'Sales price per sales channel'!$G141*'Other input expert'!E$7","v":0},{"$f":"AG141*'Other input expert'!F$12*'Sales price per sales channel'!$G141*'Other input expert'!F$7","v":0},{"$f":"AH141*'Other input expert'!G$12*'Sales price per sales channel'!$G141*'Other input expert'!G$7","v":0},{"$f":"AI141*'Other input expert'!H$12*'Sales price per sales channel'!$G141*'Other input expert'!H$7","v":0},{"$f":"AJ141*'Other input expert'!I$12*'Sales price per sales channel'!$G141*'Other input expert'!I$7","v":0},{"$f":"AK141*'Other input expert'!J$12*'Sales price per sales channel'!$G141*'Other input expert'!J$7","v":0},{"$f":"AL141*'Other input expert'!K$12*'Sales price per sales channel'!$G141*'Other input expert'!K$7","v":0},{"$f":"AM141*'Other input expert'!L$12*'Sales price per sales channel'!$G141*'Other input expert'!L$7","v":0},{"$f":"AN141*'Other input expert'!M$12*'Sales price per sales channel'!$G141*'Other input expert'!M$7","v":0},null,{"$f":"AC141*'Other input expert'!B$13*'Sales price per sales channel'!$H141*'Other input expert'!B$7","v":0},{"$f":"AD141*'Other input expert'!C$13*'Sales price per sales channel'!$H141*'Other input expert'!C$7","v":0},{"$f":"AE141*'Other input expert'!D$13*'Sales price per sales channel'!$H141*'Other input expert'!D$7","v":0},{"$f":"AF141*'Other input expert'!E$13*'Sales price per sales channel'!$H141*'Other input expert'!E$7","v":0},{"$f":"AG141*'Other input expert'!F$13*'Sales price per sales channel'!$H141*'Other input expert'!F$7","v":0},{"$f":"AH141*'Other input expert'!G$13*'Sales price per sales channel'!$H141*'Other input expert'!G$7","v":0},{"$f":"AI141*'Other input expert'!H$13*'Sales price per sales channel'!$H141*'Other input expert'!H$7","v":0},{"$f":"AJ141*'Other input expert'!I$13*'Sales price per sales channel'!$H141*'Other input expert'!I$7","v":0},{"$f":"AK141*'Other input expert'!J$13*'Sales price per sales channel'!$H141*'Other input expert'!J$7","v":0},{"$f":"AL141*'Other input expert'!K$13*'Sales price per sales channel'!$H141*'Other input expert'!K$7","v":0},{"$f":"AM141*'Other input expert'!L$13*'Sales price per sales channel'!$H141*'Other input expert'!L$7","v":0},{"$f":"AN141*'Other input expert'!M$13*'Sales price per sales channel'!$H141*'Other input expert'!M$7","v":0},null,{"$f":"AC141*'Other input expert'!B$14*'Sales price per sales channel'!$I141*'Other input expert'!B$7","v":0},{"$f":"AD141*'Other input expert'!C$14*'Sales price per sales channel'!$I141*'Other input expert'!C$7","v":0},{"$f":"AE141*'Other input expert'!D$14*'Sales price per sales channel'!$I141*'Other input expert'!D$7","v":0},{"$f":"AF141*'Other input expert'!E$14*'Sales price per sales channel'!$I141*'Other input expert'!E$7","v":0},{"$f":"AG141*'Other input expert'!F$14*'Sales price per sales channel'!$I141*'Other input expert'!F$7","v":0},{"$f":"AH141*'Other input expert'!G$14*'Sales price per sales channel'!$I141*'Other input expert'!G$7","v":0},{"$f":"AI141*'Other input expert'!H$14*'Sales price per sales channel'!$I141*'Other input expert'!H$7","v":0},{"$f":"AJ141*'Other input expert'!I$14*'Sales price per sales channel'!$I141*'Other input expert'!I$7","v":0},{"$f":"AK141*'Other input expert'!J$14*'Sales price per sales channel'!$I141*'Other input expert'!J$7","v":0},{"$f":"AL141*'Other input expert'!K$14*'Sales price per sales channel'!$I141*'Other input expert'!K$7","v":0},{"$f":"AM141*'Other input expert'!L$14*'Sales price per sales channel'!$I141*'Other input expert'!L$7","v":0},{"$f":"AN141*'Other input expert'!M$14*'Sales price per sales channel'!$I141*'Other input expert'!M$7","v":0}]
["Pyrus pyrifolia","Chinese pear",{"$f":"Plantlist!$G142*'Production list'!D143*'Other input expert'!B$4*'Other input expert'!B$8","v":0},{"$f":"Plantlist!$G142*'Production list'!E143*'Other input expert'!C$4*'Other input expert'!C$8","v":0},{"$f":"Plantlist!$G142*'Production list'!F143*'Other input expert'!D$4*'Other input expert'!D$8","v":0},{"$f":"Plantlist!$G142*'Production list'!G143*'Other input expert'!E$4*'Other input expert'!E$8","v":0},{"$f":"Plantlist!$G142*'Production list'!H143*'Other input expert'!F$4*'Other input expert'!F$8","v":0},{"$f":"Plantlist!$G142*'Production list'!I143*'Other input expert'!G$4*'Other input expert'!G$8","v":0},{"$f":"Plantlist!$G142*'Production list'!J143*'Other input expert'!H$4*'Other input expert'!H$8","v":0},{"$f":"Plantlist!$G142*'Production list'!K143*'Other input expert'!I$4*'Other input expert'!I$8","v":0},{"$f":"Plantlist!$G142*'Production list'!L143*'Other input expert'!J$4*'Other input expert'!J$8","v":0},{"$f":"Plantlist!$G142*'Production list'!M143*'Other input expert'!K$4*'Other input expert'!K$8","v":0},{"$f":"Plantlist!$G142*'Production list'!N143*'Other input expert'!L$4*'Other input expert'!L$8","v":0},{"$f":"Plantlist!$G142*'Production list'!O143*'Other input expert'!M$4*'Other input expert'!M$8","v":0},null,{"$f":"C142*'Other input expert'!B$5","v":0},{"$f":"D142*'Other input expert'!C$5","v":0},{"$f":"E142*'Other input expert'!D$5","v":0},{"$f":"F142*'Other input expert'!E$5","v":0},{"$f":"G142*'Other input expert'!F$5","v":0},{"$f":"H142*'Other input expert'!G$5","v":0},{"$f":"I142*'Other input expert'!H$5","v":0},{"$f":"J142*'Other input expert'!I$5","v":0},{"$f":"K142*'Other input expert'!J$5","v":0},{"$f":"L142*'Other input expert'!K$5","v":0},{"$f":"M142*'Other input expert'!L$5","v":0},{"$f":"N142*'Other input expert'!M$5","v":0},null,{"$f":"C142*(100%-'Other input expert'!B$5)","v":0},{"$f":"D142*(100%-'Other input expert'!C$5)","v":0},{"$f":"E142*(100%-'Other input expert'!D$5)","v":0},{"$f":"F142*(100%-'Other input expert'!E$5)","v":0},{"$f":"G142*(100%-'Other input expert'!F$5)","v":0},{"$f":"H142*(100%-'Other input expert'!G$5)","v":0},{"$f":"I142*(100%-'Other input expert'!H$5)","v":0},{"$f":"J142*(100%-'Other input expert'!I$5)","v":0},{"$f":"K142*(100%-'Other input expert'!J$5)","v":0},{"$f":"L142*(100%-'Other input expert'!K$5)","v":0},{"$f":"M142*(100%-'Other input expert'!L$5)","v":0},{"$f":"N142*(100%-'Other input expert'!M$5)","v":0},null,{"$f":"P142*'Other input expert'!B$12*'Sales price per sales channel'!$G142*'Other input expert'!B$6","v":0},{"$f":"Q142*'Other input expert'!C$12*'Sales price per sales channel'!$G142*'Other input expert'!C$6","v":0},{"$f":"R142*'Other input expert'!D$12*'Sales price per sales channel'!$G142*'Other input expert'!D$6","v":0},{"$f":"S142*'Other input expert'!E$12*'Sales price per sales channel'!$G142*'Other input expert'!E$6","v":0},{"$f":"T142*'Other input expert'!F$12*'Sales price per sales channel'!$G142*'Other input expert'!F$6","v":0},{"$f":"U142*'Other input expert'!G$12*'Sales price per sales channel'!$G142*'Other input expert'!G$6","v":0},{"$f":"V142*'Other input expert'!H$12*'Sales price per sales channel'!$G142*'Other input expert'!H$6","v":0},{"$f":"W142*'Other input expert'!I$12*'Sales price per sales channel'!$G142*'Other input expert'!I$6","v":0},{"$f":"X142*'Other input expert'!J$12*'Sales price per sales channel'!$G142*'Other input expert'!J$6","v":0},{"$f":"Y142*'Other input expert'!K$12*'Sales price per sales channel'!$G142*'Other input expert'!K$6","v":0},{"$f":"Z142*'Other input expert'!L$12*'Sales price per sales channel'!$G142*'Other input expert'!L$6","v":0},{"$f":"AA142*'Other input expert'!M$12*'Sales price per sales channel'!$G142*'Other input expert'!M$6","v":0},null,{"$f":"P142*'Other input expert'!B$13*'Sales price per sales channel'!$H142*'Other input expert'!B$6","v":0},{"$f":"Q142*'Other input expert'!C$13*'Sales price per sales channel'!$H142*'Other input expert'!C$6","v":0},{"$f":"R142*'Other input expert'!D$13*'Sales price per sales channel'!$H142*'Other input expert'!D$6","v":0},{"$f":"S142*'Other input expert'!E$13*'Sales price per sales channel'!$H142*'Other input expert'!E$6","v":0},{"$f":"T142*'Other input expert'!F$13*'Sales price per sales channel'!$H142*'Other input expert'!F$6","v":0},{"$f":"U142*'Other input expert'!G$13*'Sales price per sales channel'!$H142*'Other input expert'!G$6","v":0},{"$f":"V142*'Other input expert'!H$13*'Sales price per sales channel'!$H142*'Other input expert'!H$6","v":0},{"$f":"W142*'Other input expert'!I$13*'Sales price per sales channel'!$H142*'Other input expert'!I$6","v":0},{"$f":"X142*'Other input expert'!J$13*'Sales price per sales channel'!$H142*'Other input expert'!J$6","v":0},{"$f":"Y142*'Other input expert'!K$13*'Sales price per sales channel'!$H142*'Other input expert'!K$6","v":0},{"$f":"Z142*'Other input expert'!L$13*'Sales price per sales channel'!$H142*'Other input expert'!L$6","v":0},{"$f":"AA142*'Other input expert'!M$13*'Sales price per sales channel'!$H142*'Other input expert'!M$6","v":0},null,{"$f":"P142*'Other input expert'!B$14*'Sales price per sales channel'!$I142*'Other input expert'!B$6","v":0},{"$f":"Q142*'Other input expert'!C$14*'Sales price per sales channel'!$I142*'Other input expert'!C$6","v":0},{"$f":"R142*'Other input expert'!D$14*'Sales price per sales channel'!$I142*'Other input expert'!D$6","v":0},{"$f":"S142*'Other input expert'!E$14*'Sales price per sales channel'!$I142*'Other input expert'!E$6","v":0},{"$f":"T142*'Other input expert'!F$14*'Sales price per sales channel'!$I142*'Other input expert'!F$6","v":0},{"$f":"U142*'Other input expert'!G$14*'Sales price per sales channel'!$I142*'Other input expert'!G$6","v":0},{"$f":"V142*'Other input expert'!H$14*'Sales price per sales channel'!$I142*'Other input expert'!H$6","v":0},{"$f":"W142*'Other input expert'!I$14*'Sales price per sales channel'!$I142*'Other input expert'!I$6","v":0},{"$f":"X142*'Other input expert'!J$14*'Sales price per sales channel'!$I142*'Other input expert'!J$6","v":0},{"$f":"Y142*'Other input expert'!K$14*'Sales price per sales channel'!$I142*'Other input expert'!K$6","v":0},{"$f":"Z142*'Other input expert'!L$14*'Sales price per sales channel'!$I142*'Other input expert'!L$6","v":0},{"$f":"AA142*'Other input expert'!M$14*'Sales price per sales channel'!$I142*'Other input expert'!M$6","v":0},null,{"$f":"AC142*'Other input expert'!B$12*'Sales price per sales channel'!$G142*'Other input expert'!B$7","v":0},{"$f":"AD142*'Other input expert'!C$12*'Sales price per sales channel'!$G142*'Other input expert'!C$7","v":0},{"$f":"AE142*'Other input expert'!D$12*'Sales price per sales channel'!$G142*'Other input expert'!D$7","v":0},{"$f":"AF142*'Other input expert'!E$12*'Sales price per sales channel'!$G142*'Other input expert'!E$7","v":0},{"$f":"AG142*'Other input expert'!F$12*'Sales price per sales channel'!$G142*'Other input expert'!F$7","v":0},{"$f":"AH142*'Other input expert'!G$12*'Sales price per sales channel'!$G142*'Other input expert'!G$7","v":0},{"$f":"AI142*'Other input expert'!H$12*'Sales price per sales channel'!$G142*'Other input expert'!H$7","v":0},{"$f":"AJ142*'Other input expert'!I$12*'Sales price per sales channel'!$G142*'Other input expert'!I$7","v":0},{"$f":"AK142*'Other input expert'!J$12*'Sales price per sales channel'!$G142*'Other input expert'!J$7","v":0},{"$f":"AL142*'Other input expert'!K$12*'Sales price per sales channel'!$G142*'Other input expert'!K$7","v":0},{"$f":"AM142*'Other input expert'!L$12*'Sales price per sales channel'!$G142*'Other input expert'!L$7","v":0},{"$f":"AN142*'Other input expert'!M$12*'Sales price per sales channel'!$G142*'Other input expert'!M$7","v":0},null,{"$f":"AC142*'Other input expert'!B$13*'Sales price per sales channel'!$H142*'Other input expert'!B$7","v":0},{"$f":"AD142*'Other input expert'!C$13*'Sales price per sales channel'!$H142*'Other input expert'!C$7","v":0},{"$f":"AE142*'Other input expert'!D$13*'Sales price per sales channel'!$H142*'Other input expert'!D$7","v":0},{"$f":"AF142*'Other input expert'!E$13*'Sales price per sales channel'!$H142*'Other input expert'!E$7","v":0},{"$f":"AG142*'Other input expert'!F$13*'Sales price per sales channel'!$H142*'Other input expert'!F$7","v":0},{"$f":"AH142*'Other input expert'!G$13*'Sales price per sales channel'!$H142*'Other input expert'!G$7","v":0},{"$f":"AI142*'Other input expert'!H$13*'Sales price per sales channel'!$H142*'Other input expert'!H$7","v":0},{"$f":"AJ142*'Other input expert'!I$13*'Sales price per sales channel'!$H142*'Other input expert'!I$7","v":0},{"$f":"AK142*'Other input expert'!J$13*'Sales price per sales channel'!$H142*'Other input expert'!J$7","v":0},{"$f":"AL142*'Other input expert'!K$13*'Sales price per sales channel'!$H142*'Other input expert'!K$7","v":0},{"$f":"AM142*'Other input expert'!L$13*'Sales price per sales channel'!$H142*'Other input expert'!L$7","v":0},{"$f":"AN142*'Other input expert'!M$13*'Sales price per sales channel'!$H142*'Other input expert'!M$7","v":0},null,{"$f":"AC142*'Other input expert'!B$14*'Sales price per sales channel'!$I142*'Other input expert'!B$7","v":0},{"$f":"AD142*'Other input expert'!C$14*'Sales price per sales channel'!$I142*'Other input expert'!C$7","v":0},{"$f":"AE142*'Other input expert'!D$14*'Sales price per sales channel'!$I142*'Other input expert'!D$7","v":0},{"$f":"AF142*'Other input expert'!E$14*'Sales price per sales channel'!$I142*'Other input expert'!E$7","v":0},{"$f":"AG142*'Other input expert'!F$14*'Sales price per sales channel'!$I142*'Other input expert'!F$7","v":0},{"$f":"AH142*'Other input expert'!G$14*'Sales price per sales channel'!$I142*'Other input expert'!G$7","v":0},{"$f":"AI142*'Other input expert'!H$14*'Sales price per sales channel'!$I142*'Other input expert'!H$7","v":0},{"$f":"AJ142*'Other input expert'!I$14*'Sales price per sales channel'!$I142*'Other input expert'!I$7","v":0},{"$f":"AK142*'Other input expert'!J$14*'Sales price per sales channel'!$I142*'Other input expert'!J$7","v":0},{"$f":"AL142*'Other input expert'!K$14*'Sales price per sales channel'!$I142*'Other input expert'!K$7","v":0},{"$f":"AM142*'Other input expert'!L$14*'Sales price per sales channel'!$I142*'Other input expert'!L$7","v":0},{"$f":"AN142*'Other input expert'!M$14*'Sales price per sales channel'!$I142*'Other input expert'!M$7","v":0}]
["Quercus spp.","Oak",{"$f":"Plantlist!$G143*'Production list'!D144*'Other input expert'!B$4*'Other input expert'!B$8","v":0},{"$f":"Plantlist!$G143*'Production list'!E144*'Other input expert'!C$4*'Other input expert'!C$8","v":0},{"$f":"Plantlist!$G143*'Production list'!F144*'Other input expert'!D$4*'Other input expert'!D$8","v":0},{"$f":"Plantlist!$G143*'Production list'!G144*'Other input expert'!E$4*'Other input expert'!E$8","v":0},{"$f":"Plantlist!$G143*'Production list'!H144*'Other input expert'!F$4*'Other input expert'!F$8","v":0},{"$f":"Plantlist!$G143*'Production list'!I144*'Other input expert'!G$4*'Other input expert'!G$8","v":0},{"$f":"Plantlist!$G143*'Production list'!J144*'Other input expert'!H$4*'Other input expert'!H$8","v":0},{"$f":"Plantlist!$G143*'Production list'!K144*'Other input expert'!I$4*'Other input expert'!I$8","v":0},{"$f":"Plantlist!$G143*'Production list'!L144*'Other input expert'!J$4*'Other input expert'!J$8","v":0},{"$f":"Plantlist!$G143*'Production list'!M144*'Other input expert'!K$4*'Other input expert'!K$8","v":0},{"$f":"Plantlist!$G143*'Production list'!N144*'Other input expert'!L$4*'Other input expert'!L$8","v":0},{"$f":"Plantlist!$G143*'Production list'!O144*'Other input expert'!M$4*'Other input expert'!M$8","v":0},null,{"$f":"C143*'Other input expert'!B$5","v":0},{"$f":"D143*'Other input expert'!C$5","v":0},{"$f":"E143*'Other input expert'!D$5","v":0},{"$f":"F143*'Other input expert'!E$5","v":0},{"$f":"G143*'Other input expert'!F$5","v":0},{"$f":"H143*'Other input expert'!G$5","v":0},{"$f":"I143*'Other input expert'!H$5","v":0},{"$f":"J143*'Other input expert'!I$5","v":0},{"$f":"K143*'Other input expert'!J$5","v":0},{"$f":"L143*'Other input expert'!K$5","v":0},{"$f":"M143*'Other input expert'!L$5","v":0},{"$f":"N143*'Other input expert'!M$5","v":0},null,{"$f":"C143*(100%-'Other input expert'!B$5)","v":0},{"$f":"D143*(100%-'Other input expert'!C$5)","v":0},{"$f":"E143*(100%-'Other input expert'!D$5)","v":0},{"$f":"F143*(100%-'Other input expert'!E$5)","v":0},{"$f":"G143*(100%-'Other input expert'!F$5)","v":0},{"$f":"H143*(100%-'Other input expert'!G$5)","v":0},{"$f":"I143*(100%-'Other input expert'!H$5)","v":0},{"$f":"J143*(100%-'Other input expert'!I$5)","v":0},{"$f":"K143*(100%-'Other input expert'!J$5)","v":0},{"$f":"L143*(100%-'Other input expert'!K$5)","v":0},{"$f":"M143*(100%-'Other input expert'!L$5)","v":0},{"$f":"N143*(100%-'Other input expert'!M$5)","v":0},null,{"$f":"P143*'Other input expert'!B$12*'Sales price per sales channel'!$G143*'Other input expert'!B$6","v":0},{"$f":"Q143*'Other input expert'!C$12*'Sales price per sales channel'!$G143*'Other input expert'!C$6","v":0},{"$f":"R143*'Other input expert'!D$12*'Sales price per sales channel'!$G143*'Other input expert'!D$6","v":0},{"$f":"S143*'Other input expert'!E$12*'Sales price per sales channel'!$G143*'Other input expert'!E$6","v":0},{"$f":"T143*'Other input expert'!F$12*'Sales price per sales channel'!$G143*'Other input expert'!F$6","v":0},{"$f":"U143*'Other input expert'!G$12*'Sales price per sales channel'!$G143*'Other input expert'!G$6","v":0},{"$f":"V143*'Other input expert'!H$12*'Sales price per sales channel'!$G143*'Other input expert'!H$6","v":0},{"$f":"W143*'Other input expert'!I$12*'Sales price per sales channel'!$G143*'Other input expert'!I$6","v":0},{"$f":"X143*'Other input expert'!J$12*'Sales price per sales channel'!$G143*'Other input expert'!J$6","v":0},{"$f":"Y143*'Other input expert'!K$12*'Sales price per sales channel'!$G143*'Other input expert'!K$6","v":0},{"$f":"Z143*'Other input expert'!L$12*'Sales price per sales channel'!$G143*'Other input expert'!L$6","v":0},{"$f":"AA143*'Other input expert'!M$12*'Sales price per sales channel'!$G143*'Other input expert'!M$6","v":0},null,{"$f":"P143*'Other input expert'!B$13*'Sales price per sales channel'!$H143*'Other input expert'!B$6","v":0},{"$f":"Q143*'Other input expert'!C$13*'Sales price per sales channel'!$H143*'Other input expert'!C$6","v":0},{"$f":"R143*'Other input expert'!D$13*'Sales price per sales channel'!$H143*'Other input expert'!D$6","v":0},{"$f":"S143*'Other input expert'!E$13*'Sales price per sales channel'!$H143*'Other input expert'!E$6","v":0},{"$f":"T143*'Other input expert'!F$13*'Sales price per sales channel'!$H143*'Other input expert'!F$6","v":0},{"$f":"U143*'Other input expert'!G$13*'Sales price per sales channel'!$H143*'Other input expert'!G$6","v":0},{"$f":"V143*'Other input expert'!H$13*'Sales price per sales channel'!$H143*'Other input expert'!H$6","v":0},{"$f":"W143*'Other input expert'!I$13*'Sales price per sales channel'!$H143*'Other input expert'!I$6","v":0},{"$f":"X143*'Other input expert'!J$13*'Sales price per sales channel'!$H143*'Other input expert'!J$6","v":0},{"$f":"Y143*'Other input expert'!K$13*'Sales price per sales channel'!$H143*'Other input expert'!K$6","v":0},{"$f":"Z143*'Other input expert'!L$13*'Sales price per sales channel'!$H143*'Other input expert'!L$6","v":0},{"$f":"AA143*'Other input expert'!M$13*'Sales price per sales channel'!$H143*'Other input expert'!M$6","v":0},null,{"$f":"P143*'Other input expert'!B$14*'Sales price per sales channel'!$I143*'Other input expert'!B$6","v":0},{"$f":"Q143*'Other input expert'!C$14*'Sales price per sales channel'!$I143*'Other input expert'!C$6","v":0},{"$f":"R143*'Other input expert'!D$14*'Sales price per sales channel'!$I143*'Other input expert'!D$6","v":0},{"$f":"S143*'Other input expert'!E$14*'Sales price per sales channel'!$I143*'Other input expert'!E$6","v":0},{"$f":"T143*'Other input expert'!F$14*'Sales price per sales channel'!$I143*'Other input expert'!F$6","v":0},{"$f":"U143*'Other input expert'!G$14*'Sales price per sales channel'!$I143*'Other input expert'!G$6","v":0},{"$f":"V143*'Other input expert'!H$14*'Sales price per sales channel'!$I143*'Other input expert'!H$6","v":0},{"$f":"W143*'Other input expert'!I$14*'Sales price per sales channel'!$I143*'Other input expert'!I$6","v":0},{"$f":"X143*'Other input expert'!J$14*'Sales price per sales channel'!$I143*'Other input expert'!J$6","v":0},{"$f":"Y143*'Other input expert'!K$14*'Sales price per sales channel'!$I143*'Other input expert'!K$6","v":0},{"$f":"Z143*'Other input expert'!L$14*'Sales price per sales channel'!$I143*'Other input expert'!L$6","v":0},{"$f":"AA143*'Other input expert'!M$14*'Sales price per sales channel'!$I143*'Other input expert'!M$6","v":0},null,{"$f":"AC143*'Other input expert'!B$12*'Sales price per sales channel'!$G143*'Other input expert'!B$7","v":0},{"$f":"AD143*'Other input expert'!C$12*'Sales price per sales channel'!$G143*'Other input expert'!C$7","v":0},{"$f":"AE143*'Other input expert'!D$12*'Sales price per sales channel'!$G143*'Other input expert'!D$7","v":0},{"$f":"AF143*'Other input expert'!E$12*'Sales price per sales channel'!$G143*'Other input expert'!E$7","v":0},{"$f":"AG143*'Other input expert'!F$12*'Sales price per sales channel'!$G143*'Other input expert'!F$7","v":0},{"$f":"AH143*'Other input expert'!G$12*'Sales price per sales channel'!$G143*'Other input expert'!G$7","v":0},{"$f":"AI143*'Other input expert'!H$12*'Sales price per sales channel'!$G143*'Other input expert'!H$7","v":0},{"$f":"AJ143*'Other input expert'!I$12*'Sales price per sales channel'!$G143*'Other input expert'!I$7","v":0},{"$f":"AK143*'Other input expert'!J$12*'Sales price per sales channel'!$G143*'Other input expert'!J$7","v":0},{"$f":"AL143*'Other input expert'!K$12*'Sales price per sales channel'!$G143*'Other input expert'!K$7","v":0},{"$f":"AM143*'Other input expert'!L$12*'Sales price per sales channel'!$G143*'Other input expert'!L$7","v":0},{"$f":"AN143*'Other input expert'!M$12*'Sales price per sales channel'!$G143*'Other input expert'!M$7","v":0},null,{"$f":"AC143*'Other input expert'!B$13*'Sales price per sales channel'!$H143*'Other input expert'!B$7","v":0},{"$f":"AD143*'Other input expert'!C$13*'Sales price per sales channel'!$H143*'Other input expert'!C$7","v":0},{"$f":"AE143*'Other input expert'!D$13*'Sales price per sales channel'!$H143*'Other input expert'!D$7","v":0},{"$f":"AF143*'Other input expert'!E$13*'Sales price per sales channel'!$H143*'Other input expert'!E$7","v":0},{"$f":"AG143*'Other input expert'!F$13*'Sales price per sales channel'!$H143*'Other input expert'!F$7","v":0},{"$f":"AH143*'Other input expert'!G$13*'Sales price per sales channel'!$H143*'Other input expert'!G$7","v":0},{"$f":"AI143*'Other input expert'!H$13*'Sales price per sales channel'!$H143*'Other input expert'!H$7","v":0},{"$f":"AJ143*'Other input expert'!I$13*'Sales price per sales channel'!$H143*'Other input expert'!I$7","v":0},{"$f":"AK143*'Other input expert'!J$13*'Sales price per sales channel'!$H143*'Other input expert'!J$7","v":0},{"$f":"AL143*'Other input expert'!K$13*'Sales price per sales channel'!$H143*'Other input expert'!K$7","v":0},{"$f":"AM143*'Other input expert'!L$13*'Sales price per sales channel'!$H143*'Other input expert'!L$7","v":0},{"$f":"AN143*'Other input expert'!M$13*'Sales price per sales channel'!$H143*'Other input expert'!M$7","v":0},null,{"$f":"AC143*'Other input expert'!B$14*'Sales price per sales channel'!$I143*'Other input expert'!B$7","v":0},{"$f":"AD143*'Other input expert'!C$14*'Sales price per sales channel'!$I143*'Other input expert'!C$7","v":0},{"$f":"AE143*'Other input expert'!D$14*'Sales price per sales channel'!$I143*'Other input expert'!D$7","v":0},{"$f":"AF143*'Other input expert'!E$14*'Sales price per sales channel'!$I143*'Other input expert'!E$7","v":0},{"$f":"AG143*'Other input expert'!F$14*'Sales price per sales channel'!$I143*'Other input expert'!F$7","v":0},{"$f":"AH143*'Other input expert'!G$14*'Sales price per sales channel'!$I143*'Other input expert'!G$7","v":0},{"$f":"AI143*'Other input expert'!H$14*'Sales price per sales channel'!$I143*'Other input expert'!H$7","v":0},{"$f":"AJ143*'Other input expert'!I$14*'Sales price per sales channel'!$I143*'Other input expert'!I$7","v":0},{"$f":"AK143*'Other input expert'!J$14*'Sales price per sales channel'!$I143*'Other input expert'!J$7","v":0},{"$f":"AL143*'Other input expert'!K$14*'Sales price per sales channel'!$I143*'Other input expert'!K$7","v":0},{"$f":"AM143*'Other input expert'!L$14*'Sales price per sales channel'!$I143*'Other input expert'!L$7","v":0},{"$f":"AN143*'Other input expert'!M$14*'Sales price per sales channel'!$I143*'Other input expert'!M$7","v":0}]
["Rhamnus frangula","Alder buckthorn",{"$f":"Plantlist!$G144*'Production list'!D145*'Other input expert'!B$4*'Other input expert'!B$8","v":0},{"$f":"Plantlist!$G144*'Production list'!E145*'Other input expert'!C$4*'Other input expert'!C$8","v":0},{"$f":"Plantlist!$G144*'Production list'!F145*'Other input expert'!D$4*'Other input expert'!D$8","v":0},{"$f":"Plantlist!$G144*'Production list'!G145*'Other input expert'!E$4*'Other input expert'!E$8","v":0},{"$f":"Plantlist!$G144*'Production list'!H145*'Other input expert'!F$4*'Other input expert'!F$8","v":0},{"$f":"Plantlist!$G144*'Production list'!I145*'Other input expert'!G$4*'Other input expert'!G$8","v":0},{"$f":"Plantlist!$G144*'Production list'!J145*'Other input expert'!H$4*'Other input expert'!H$8","v":0},{"$f":"Plantlist!$G144*'Production list'!K145*'Other input expert'!I$4*'Other input expert'!I$8","v":0},{"$f":"Plantlist!$G144*'Production list'!L145*'Other input expert'!J$4*'Other input expert'!J$8","v":0},{"$f":"Plantlist!$G144*'Production list'!M145*'Other input expert'!K$4*'Other input expert'!K$8","v":0},{"$f":"Plantlist!$G144*'Production list'!N145*'Other input expert'!L$4*'Other input expert'!L$8","v":0},{"$f":"Plantlist!$G144*'Production list'!O145*'Other input expert'!M$4*'Other input expert'!M$8","v":0},null,{"$f":"C144*'Other input expert'!B$5","v":0},{"$f":"D144*'Other input expert'!C$5","v":0},{"$f":"E144*'Other input expert'!D$5","v":0},{"$f":"F144*'Other input expert'!E$5","v":0},{"$f":"G144*'Other input expert'!F$5","v":0},{"$f":"H144*'Other input expert'!G$5","v":0},{"$f":"I144*'Other input expert'!H$5","v":0},{"$f":"J144*'Other input expert'!I$5","v":0},{"$f":"K144*'Other input expert'!J$5","v":0},{"$f":"L144*'Other input expert'!K$5","v":0},{"$f":"M144*'Other input expert'!L$5","v":0},{"$f":"N144*'Other input expert'!M$5","v":0},null,{"$f":"C144*(100%-'Other input expert'!B$5)","v":0},{"$f":"D144*(100%-'Other input expert'!C$5)","v":0},{"$f":"E144*(100%-'Other input expert'!D$5)","v":0},{"$f":"F144*(100%-'Other input expert'!E$5)","v":0},{"$f":"G144*(100%-'Other input expert'!F$5)","v":0},{"$f":"H144*(100%-'Other input expert'!G$5)","v":0},{"$f":"I144*(100%-'Other input expert'!H$5)","v":0},{"$f":"J144*(100%-'Other input expert'!I$5)","v":0},{"$f":"K144*(100%-'Other input expert'!J$5)","v":0},{"$f":"L144*(100%-'Other input expert'!K$5)","v":0},{"$f":"M144*(100%-'Other input expert'!L$5)","v":0},{"$f":"N144*(100%-'Other input expert'!M$5)","v":0},null,{"$f":"P144*'Other input expert'!B$12*'Sales price per sales channel'!$G144*'Other input expert'!B$6","v":0},{"$f":"Q144*'Other input expert'!C$12*'Sales price per sales channel'!$G144*'Other input expert'!C$6","v":0},{"$f":"R144*'Other input expert'!D$12*'Sales price per sales channel'!$G144*'Other input expert'!D$6","v":0},{"$f":"S144*'Other input expert'!E$12*'Sales price per sales channel'!$G144*'Other input expert'!E$6","v":0},{"$f":"T144*'Other input expert'!F$12*'Sales price per sales channel'!$G144*'Other input expert'!F$6","v":0},{"$f":"U144*'Other input expert'!G$12*'Sales price per sales channel'!$G144*'Other input expert'!G$6","v":0},{"$f":"V144*'Other input expert'!H$12*'Sales price per sales channel'!$G144*'Other input expert'!H$6","v":0},{"$f":"W144*'Other input expert'!I$12*'Sales price per sales channel'!$G144*'Other input expert'!I$6","v":0},{"$f":"X144*'Other input expert'!J$12*'Sales price per sales channel'!$G144*'Other input expert'!J$6","v":0},{"$f":"Y144*'Other input expert'!K$12*'Sales price per sales channel'!$G144*'Other input expert'!K$6","v":0},{"$f":"Z144*'Other input expert'!L$12*'Sales price per sales channel'!$G144*'Other input expert'!L$6","v":0},{"$f":"AA144*'Other input expert'!M$12*'Sales price per sales channel'!$G144*'Other input expert'!M$6","v":0},null,{"$f":"P144*'Other input expert'!B$13*'Sales price per sales channel'!$H144*'Other input expert'!B$6","v":0},{"$f":"Q144*'Other input expert'!C$13*'Sales price per sales channel'!$H144*'Other input expert'!C$6","v":0},{"$f":"R144*'Other input expert'!D$13*'Sales price per sales channel'!$H144*'Other input expert'!D$6","v":0},{"$f":"S144*'Other input expert'!E$13*'Sales price per sales channel'!$H144*'Other input expert'!E$6","v":0},{"$f":"T144*'Other input expert'!F$13*'Sales price per sales channel'!$H144*'Other input expert'!F$6","v":0},{"$f":"U144*'Other input expert'!G$13*'Sales price per sales channel'!$H144*'Other input expert'!G$6","v":0},{"$f":"V144*'Other input expert'!H$13*'Sales price per sales channel'!$H144*'Other input expert'!H$6","v":0},{"$f":"W144*'Other input expert'!I$13*'Sales price per sales channel'!$H144*'Other input expert'!I$6","v":0},{"$f":"X144*'Other input expert'!J$13*'Sales price per sales channel'!$H144*'Other input expert'!J$6","v":0},{"$f":"Y144*'Other input expert'!K$13*'Sales price per sales channel'!$H144*'Other input expert'!K$6","v":0},{"$f":"Z144*'Other input expert'!L$13*'Sales price per sales channel'!$H144*'Other input expert'!L$6","v":0},{"$f":"AA144*'Other input expert'!M$13*'Sales price per sales channel'!$H144*'Other input expert'!M$6","v":0},null,{"$f":"P144*'Other input expert'!B$14*'Sales price per sales channel'!$I144*'Other input expert'!B$6","v":0},{"$f":"Q144*'Other input expert'!C$14*'Sales price per sales channel'!$I144*'Other input expert'!C$6","v":0},{"$f":"R144*'Other input expert'!D$14*'Sales price per sales channel'!$I144*'Other input expert'!D$6","v":0},{"$f":"S144*'Other input expert'!E$14*'Sales price per sales channel'!$I144*'Other input expert'!E$6","v":0},{"$f":"T144*'Other input expert'!F$14*'Sales price per sales channel'!$I144*'Other input expert'!F$6","v":0},{"$f":"U144*'Other input expert'!G$14*'Sales price per sales channel'!$I144*'Other input expert'!G$6","v":0},{"$f":"V144*'Other input expert'!H$14*'Sales price per sales channel'!$I144*'Other input expert'!H$6","v":0},{"$f":"W144*'Other input expert'!I$14*'Sales price per sales channel'!$I144*'Other input expert'!I$6","v":0},{"$f":"X144*'Other input expert'!J$14*'Sales price per sales channel'!$I144*'Other input expert'!J$6","v":0},{"$f":"Y144*'Other input expert'!K$14*'Sales price per sales channel'!$I144*'Other input expert'!K$6","v":0},{"$f":"Z144*'Other input expert'!L$14*'Sales price per sales channel'!$I144*'Other input expert'!L$6","v":0},{"$f":"AA144*'Other input expert'!M$14*'Sales price per sales channel'!$I144*'Other input expert'!M$6","v":0},null,{"$f":"AC144*'Other input expert'!B$12*'Sales price per sales channel'!$G144*'Other input expert'!B$7","v":0},{"$f":"AD144*'Other input expert'!C$12*'Sales price per sales channel'!$G144*'Other input expert'!C$7","v":0},{"$f":"AE144*'Other input expert'!D$12*'Sales price per sales channel'!$G144*'Other input expert'!D$7","v":0},{"$f":"AF144*'Other input expert'!E$12*'Sales price per sales channel'!$G144*'Other input expert'!E$7","v":0},{"$f":"AG144*'Other input expert'!F$12*'Sales price per sales channel'!$G144*'Other input expert'!F$7","v":0},{"$f":"AH144*'Other input expert'!G$12*'Sales price per sales channel'!$G144*'Other input expert'!G$7","v":0},{"$f":"AI144*'Other input expert'!H$12*'Sales price per sales channel'!$G144*'Other input expert'!H$7","v":0},{"$f":"AJ144*'Other input expert'!I$12*'Sales price per sales channel'!$G144*'Other input expert'!I$7","v":0},{"$f":"AK144*'Other input expert'!J$12*'Sales price per sales channel'!$G144*'Other input expert'!J$7","v":0},{"$f":"AL144*'Other input expert'!K$12*'Sales price per sales channel'!$G144*'Other input expert'!K$7","v":0},{"$f":"AM144*'Other input expert'!L$12*'Sales price per sales channel'!$G144*'Other input expert'!L$7","v":0},{"$f":"AN144*'Other input expert'!M$12*'Sales price per sales channel'!$G144*'Other input expert'!M$7","v":0},null,{"$f":"AC144*'Other input expert'!B$13*'Sales price per sales channel'!$H144*'Other input expert'!B$7","v":0},{"$f":"AD144*'Other input expert'!C$13*'Sales price per sales channel'!$H144*'Other input expert'!C$7","v":0},{"$f":"AE144*'Other input expert'!D$13*'Sales price per sales channel'!$H144*'Other input expert'!D$7","v":0},{"$f":"AF144*'Other input expert'!E$13*'Sales price per sales channel'!$H144*'Other input expert'!E$7","v":0},{"$f":"AG144*'Other input expert'!F$13*'Sales price per sales channel'!$H144*'Other input expert'!F$7","v":0},{"$f":"AH144*'Other input expert'!G$13*'Sales price per sales channel'!$H144*'Other input expert'!G$7","v":0},{"$f":"AI144*'Other input expert'!H$13*'Sales price per sales channel'!$H144*'Other input expert'!H$7","v":0},{"$f":"AJ144*'Other input expert'!I$13*'Sales price per sales channel'!$H144*'Other input expert'!I$7","v":0},{"$f":"AK144*'Other input expert'!J$13*'Sales price per sales channel'!$H144*'Other input expert'!J$7","v":0},{"$f":"AL144*'Other input expert'!K$13*'Sales price per sales channel'!$H144*'Other input expert'!K$7","v":0},{"$f":"AM144*'Other input expert'!L$13*'Sales price per sales channel'!$H144*'Other input expert'!L$7","v":0},{"$f":"AN144*'Other input expert'!M$13*'Sales price per sales channel'!$H144*'Other input expert'!M$7","v":0},null,{"$f":"AC144*'Other input expert'!B$14*'Sales price per sales channel'!$I144*'Other input expert'!B$7","v":0},{"$f":"AD144*'Other input expert'!C$14*'Sales price per sales channel'!$I144*'Other input expert'!C$7","v":0},{"$f":"AE144*'Other input expert'!D$14*'Sales price per sales channel'!$I144*'Other input expert'!D$7","v":0},{"$f":"AF144*'Other input expert'!E$14*'Sales price per sales channel'!$I144*'Other input expert'!E$7","v":0},{"$f":"AG144*'Other input expert'!F$14*'Sales price per sales channel'!$I144*'Other input expert'!F$7","v":0},{"$f":"AH144*'Other input expert'!G$14*'Sales price per sales channel'!$I144*'Other input expert'!G$7","v":0},{"$f":"AI144*'Other input expert'!H$14*'Sales price per sales channel'!$I144*'Other input expert'!H$7","v":0},{"$f":"AJ144*'Other input expert'!I$14*'Sales price per sales channel'!$I144*'Other input expert'!I$7","v":0},{"$f":"AK144*'Other input expert'!J$14*'Sales price per sales channel'!$I144*'Other input expert'!J$7","v":0},{"$f":"AL144*'Other input expert'!K$14*'Sales price per sales channel'!$I144*'Other input expert'!K$7","v":0},{"$f":"AM144*'Other input expert'!L$14*'Sales price per sales channel'!$I144*'Other input expert'!L$7","v":0},{"$f":"AN144*'Other input expert'!M$14*'Sales price per sales channel'!$I144*'Other input expert'!M$7","v":0}]
["Rheum rabarberum","Rhubarb",{"$f":"Plantlist!$G145*'Production list'!D146*'Other input expert'!B$4*'Other input expert'!B$8","v":0},{"$f":"Plantlist!$G145*'Production list'!E146*'Other input expert'!C$4*'Other input expert'!C$8","v":0},{"$f":"Plantlist!$G145*'Production list'!F146*'Other input expert'!D$4*'Other input expert'!D$8","v":0},{"$f":"Plantlist!$G145*'Production list'!G146*'Other input expert'!E$4*'Other input expert'!E$8","v":0},{"$f":"Plantlist!$G145*'Production list'!H146*'Other input expert'!F$4*'Other input expert'!F$8","v":0},{"$f":"Plantlist!$G145*'Production list'!I146*'Other input expert'!G$4*'Other input expert'!G$8","v":0},{"$f":"Plantlist!$G145*'Production list'!J146*'Other input expert'!H$4*'Other input expert'!H$8","v":0},{"$f":"Plantlist!$G145*'Production list'!K146*'Other input expert'!I$4*'Other input expert'!I$8","v":0},{"$f":"Plantlist!$G145*'Production list'!L146*'Other input expert'!J$4*'Other input expert'!J$8","v":0},{"$f":"Plantlist!$G145*'Production list'!M146*'Other input expert'!K$4*'Other input expert'!K$8","v":0},{"$f":"Plantlist!$G145*'Production list'!N146*'Other input expert'!L$4*'Other input expert'!L$8","v":0},{"$f":"Plantlist!$G145*'Production list'!O146*'Other input expert'!M$4*'Other input expert'!M$8","v":0},null,{"$f":"C145*'Other input expert'!B$5","v":0},{"$f":"D145*'Other input expert'!C$5","v":0},{"$f":"E145*'Other input expert'!D$5","v":0},{"$f":"F145*'Other input expert'!E$5","v":0},{"$f":"G145*'Other input expert'!F$5","v":0},{"$f":"H145*'Other input expert'!G$5","v":0},{"$f":"I145*'Other input expert'!H$5","v":0},{"$f":"J145*'Other input expert'!I$5","v":0},{"$f":"K145*'Other input expert'!J$5","v":0},{"$f":"L145*'Other input expert'!K$5","v":0},{"$f":"M145*'Other input expert'!L$5","v":0},{"$f":"N145*'Other input expert'!M$5","v":0},null,{"$f":"C145*(100%-'Other input expert'!B$5)","v":0},{"$f":"D145*(100%-'Other input expert'!C$5)","v":0},{"$f":"E145*(100%-'Other input expert'!D$5)","v":0},{"$f":"F145*(100%-'Other input expert'!E$5)","v":0},{"$f":"G145*(100%-'Other input expert'!F$5)","v":0},{"$f":"H145*(100%-'Other input expert'!G$5)","v":0},{"$f":"I145*(100%-'Other input expert'!H$5)","v":0},{"$f":"J145*(100%-'Other input expert'!I$5)","v":0},{"$f":"K145*(100%-'Other input expert'!J$5)","v":0},{"$f":"L145*(100%-'Other input expert'!K$5)","v":0},{"$f":"M145*(100%-'Other input expert'!L$5)","v":0},{"$f":"N145*(100%-'Other input expert'!M$5)","v":0},null,{"$f":"P145*'Other input expert'!B$12*'Sales price per sales channel'!$G145*'Other input expert'!B$6","v":0},{"$f":"Q145*'Other input expert'!C$12*'Sales price per sales channel'!$G145*'Other input expert'!C$6","v":0},{"$f":"R145*'Other input expert'!D$12*'Sales price per sales channel'!$G145*'Other input expert'!D$6","v":0},{"$f":"S145*'Other input expert'!E$12*'Sales price per sales channel'!$G145*'Other input expert'!E$6","v":0},{"$f":"T145*'Other input expert'!F$12*'Sales price per sales channel'!$G145*'Other input expert'!F$6","v":0},{"$f":"U145*'Other input expert'!G$12*'Sales price per sales channel'!$G145*'Other input expert'!G$6","v":0},{"$f":"V145*'Other input expert'!H$12*'Sales price per sales channel'!$G145*'Other input expert'!H$6","v":0},{"$f":"W145*'Other input expert'!I$12*'Sales price per sales channel'!$G145*'Other input expert'!I$6","v":0},{"$f":"X145*'Other input expert'!J$12*'Sales price per sales channel'!$G145*'Other input expert'!J$6","v":0},{"$f":"Y145*'Other input expert'!K$12*'Sales price per sales channel'!$G145*'Other input expert'!K$6","v":0},{"$f":"Z145*'Other input expert'!L$12*'Sales price per sales channel'!$G145*'Other input expert'!L$6","v":0},{"$f":"AA145*'Other input expert'!M$12*'Sales price per sales channel'!$G145*'Other input expert'!M$6","v":0},null,{"$f":"P145*'Other input expert'!B$13*'Sales price per sales channel'!$H145*'Other input expert'!B$6","v":0},{"$f":"Q145*'Other input expert'!C$13*'Sales price per sales channel'!$H145*'Other input expert'!C$6","v":0},{"$f":"R145*'Other input expert'!D$13*'Sales price per sales channel'!$H145*'Other input expert'!D$6","v":0},{"$f":"S145*'Other input expert'!E$13*'Sales price per sales channel'!$H145*'Other input expert'!E$6","v":0},{"$f":"T145*'Other input expert'!F$13*'Sales price per sales channel'!$H145*'Other input expert'!F$6","v":0},{"$f":"U145*'Other input expert'!G$13*'Sales price per sales channel'!$H145*'Other input expert'!G$6","v":0},{"$f":"V145*'Other input expert'!H$13*'Sales price per sales channel'!$H145*'Other input expert'!H$6","v":0},{"$f":"W145*'Other input expert'!I$13*'Sales price per sales channel'!$H145*'Other input expert'!I$6","v":0},{"$f":"X145*'Other input expert'!J$13*'Sales price per sales channel'!$H145*'Other input expert'!J$6","v":0},{"$f":"Y145*'Other input expert'!K$13*'Sales price per sales channel'!$H145*'Other input expert'!K$6","v":0},{"$f":"Z145*'Other input expert'!L$13*'Sales price per sales channel'!$H145*'Other input expert'!L$6","v":0},{"$f":"AA145*'Other input expert'!M$13*'Sales price per sales channel'!$H145*'Other input expert'!M$6","v":0},null,{"$f":"P145*'Other input expert'!B$14*'Sales price per sales channel'!$I145*'Other input expert'!B$6","v":0},{"$f":"Q145*'Other input expert'!C$14*'Sales price per sales channel'!$I145*'Other input expert'!C$6","v":0},{"$f":"R145*'Other input expert'!D$14*'Sales price per sales channel'!$I145*'Other input expert'!D$6","v":0},{"$f":"S145*'Other input expert'!E$14*'Sales price per sales channel'!$I145*'Other input expert'!E$6","v":0},{"$f":"T145*'Other input expert'!F$14*'Sales price per sales channel'!$I145*'Other input expert'!F$6","v":0},{"$f":"U145*'Other input expert'!G$14*'Sales price per sales channel'!$I145*'Other input expert'!G$6","v":0},{"$f":"V145*'Other input expert'!H$14*'Sales price per sales channel'!$I145*'Other input expert'!H$6","v":0},{"$f":"W145*'Other input expert'!I$14*'Sales price per sales channel'!$I145*'Other input expert'!I$6","v":0},{"$f":"X145*'Other input expert'!J$14*'Sales price per sales channel'!$I145*'Other input expert'!J$6","v":0},{"$f":"Y145*'Other input expert'!K$14*'Sales price per sales channel'!$I145*'Other input expert'!K$6","v":0},{"$f":"Z145*'Other input expert'!L$14*'Sales price per sales channel'!$I145*'Other input expert'!L$6","v":0},{"$f":"AA145*'Other input expert'!M$14*'Sales price per sales channel'!$I145*'Other input expert'!M$6","v":0},null,{"$f":"AC145*'Other input expert'!B$12*'Sales price per sales channel'!$G145*'Other input expert'!B$7","v":0},{"$f":"AD145*'Other input expert'!C$12*'Sales price per sales channel'!$G145*'Other input expert'!C$7","v":0},{"$f":"AE145*'Other input expert'!D$12*'Sales price per sales channel'!$G145*'Other input expert'!D$7","v":0},{"$f":"AF145*'Other input expert'!E$12*'Sales price per sales channel'!$G145*'Other input expert'!E$7","v":0},{"$f":"AG145*'Other input expert'!F$12*'Sales price per sales channel'!$G145*'Other input expert'!F$7","v":0},{"$f":"AH145*'Other input expert'!G$12*'Sales price per sales channel'!$G145*'Other input expert'!G$7","v":0},{"$f":"AI145*'Other input expert'!H$12*'Sales price per sales channel'!$G145*'Other input expert'!H$7","v":0},{"$f":"AJ145*'Other input expert'!I$12*'Sales price per sales channel'!$G145*'Other input expert'!I$7","v":0},{"$f":"AK145*'Other input expert'!J$12*'Sales price per sales channel'!$G145*'Other input expert'!J$7","v":0},{"$f":"AL145*'Other input expert'!K$12*'Sales price per sales channel'!$G145*'Other input expert'!K$7","v":0},{"$f":"AM145*'Other input expert'!L$12*'Sales price per sales channel'!$G145*'Other input expert'!L$7","v":0},{"$f":"AN145*'Other input expert'!M$12*'Sales price per sales channel'!$G145*'Other input expert'!M$7","v":0},null,{"$f":"AC145*'Other input expert'!B$13*'Sales price per sales channel'!$H145*'Other input expert'!B$7","v":0},{"$f":"AD145*'Other input expert'!C$13*'Sales price per sales channel'!$H145*'Other input expert'!C$7","v":0},{"$f":"AE145*'Other input expert'!D$13*'Sales price per sales channel'!$H145*'Other input expert'!D$7","v":0},{"$f":"AF145*'Other input expert'!E$13*'Sales price per sales channel'!$H145*'Other input expert'!E$7","v":0},{"$f":"AG145*'Other input expert'!F$13*'Sales price per sales channel'!$H145*'Other input expert'!F$7","v":0},{"$f":"AH145*'Other input expert'!G$13*'Sales price per sales channel'!$H145*'Other input expert'!G$7","v":0},{"$f":"AI145*'Other input expert'!H$13*'Sales price per sales channel'!$H145*'Other input expert'!H$7","v":0},{"$f":"AJ145*'Other input expert'!I$13*'Sales price per sales channel'!$H145*'Other input expert'!I$7","v":0},{"$f":"AK145*'Other input expert'!J$13*'Sales price per sales channel'!$H145*'Other input expert'!J$7","v":0},{"$f":"AL145*'Other input expert'!K$13*'Sales price per sales channel'!$H145*'Other input expert'!K$7","v":0},{"$f":"AM145*'Other input expert'!L$13*'Sales price per sales channel'!$H145*'Other input expert'!L$7","v":0},{"$f":"AN145*'Other input expert'!M$13*'Sales price per sales channel'!$H145*'Other input expert'!M$7","v":0},null,{"$f":"AC145*'Other input expert'!B$14*'Sales price per sales channel'!$I145*'Other input expert'!B$7","v":0},{"$f":"AD145*'Other input expert'!C$14*'Sales price per sales channel'!$I145*'Other input expert'!C$7","v":0},{"$f":"AE145*'Other input expert'!D$14*'Sales price per sales channel'!$I145*'Other input expert'!D$7","v":0},{"$f":"AF145*'Other input expert'!E$14*'Sales price per sales channel'!$I145*'Other input expert'!E$7","v":0},{"$f":"AG145*'Other input expert'!F$14*'Sales price per sales channel'!$I145*'Other input expert'!F$7","v":0},{"$f":"AH145*'Other input expert'!G$14*'Sales price per sales channel'!$I145*'Other input expert'!G$7","v":0},{"$f":"AI145*'Other input expert'!H$14*'Sales price per sales channel'!$I145*'Other input expert'!H$7","v":0},{"$f":"AJ145*'Other input expert'!I$14*'Sales price per sales channel'!$I145*'Other input expert'!I$7","v":0},{"$f":"AK145*'Other input expert'!J$14*'Sales price per sales channel'!$I145*'Other input expert'!J$7","v":0},{"$f":"AL145*'Other input expert'!K$14*'Sales price per sales channel'!$I145*'Other input expert'!K$7","v":0},{"$f":"AM145*'Other input expert'!L$14*'Sales price per sales channel'!$I145*'Other input expert'!L$7","v":0},{"$f":"AN145*'Other input expert'!M$14*'Sales price per sales channel'!$I145*'Other input expert'!M$7","v":0}]
["Rhus aromatica","Sumac",{"$f":"Plantlist!$G146*'Production list'!D147*'Other input expert'!B$4*'Other input expert'!B$8","v":0},{"$f":"Plantlist!$G146*'Production list'!E147*'Other input expert'!C$4*'Other input expert'!C$8","v":0},{"$f":"Plantlist!$G146*'Production list'!F147*'Other input expert'!D$4*'Other input expert'!D$8","v":0},{"$f":"Plantlist!$G146*'Production list'!G147*'Other input expert'!E$4*'Other input expert'!E$8","v":0},{"$f":"Plantlist!$G146*'Production list'!H147*'Other input expert'!F$4*'Other input expert'!F$8","v":0},{"$f":"Plantlist!$G146*'Production list'!I147*'Other input expert'!G$4*'Other input expert'!G$8","v":0},{"$f":"Plantlist!$G146*'Production list'!J147*'Other input expert'!H$4*'Other input expert'!H$8","v":0},{"$f":"Plantlist!$G146*'Production list'!K147*'Other input expert'!I$4*'Other input expert'!I$8","v":0},{"$f":"Plantlist!$G146*'Production list'!L147*'Other input expert'!J$4*'Other input expert'!J$8","v":0},{"$f":"Plantlist!$G146*'Production list'!M147*'Other input expert'!K$4*'Other input expert'!K$8","v":0},{"$f":"Plantlist!$G146*'Production list'!N147*'Other input expert'!L$4*'Other input expert'!L$8","v":0},{"$f":"Plantlist!$G146*'Production list'!O147*'Other input expert'!M$4*'Other input expert'!M$8","v":0},null,{"$f":"C146*'Other input expert'!B$5","v":0},{"$f":"D146*'Other input expert'!C$5","v":0},{"$f":"E146*'Other input expert'!D$5","v":0},{"$f":"F146*'Other input expert'!E$5","v":0},{"$f":"G146*'Other input expert'!F$5","v":0},{"$f":"H146*'Other input expert'!G$5","v":0},{"$f":"I146*'Other input expert'!H$5","v":0},{"$f":"J146*'Other input expert'!I$5","v":0},{"$f":"K146*'Other input expert'!J$5","v":0},{"$f":"L146*'Other input expert'!K$5","v":0},{"$f":"M146*'Other input expert'!L$5","v":0},{"$f":"N146*'Other input expert'!M$5","v":0},null,{"$f":"C146*(100%-'Other input expert'!B$5)","v":0},{"$f":"D146*(100%-'Other input expert'!C$5)","v":0},{"$f":"E146*(100%-'Other input expert'!D$5)","v":0},{"$f":"F146*(100%-'Other input expert'!E$5)","v":0},{"$f":"G146*(100%-'Other input expert'!F$5)","v":0},{"$f":"H146*(100%-'Other input expert'!G$5)","v":0},{"$f":"I146*(100%-'Other input expert'!H$5)","v":0},{"$f":"J146*(100%-'Other input expert'!I$5)","v":0},{"$f":"K146*(100%-'Other input expert'!J$5)","v":0},{"$f":"L146*(100%-'Other input expert'!K$5)","v":0},{"$f":"M146*(100%-'Other input expert'!L$5)","v":0},{"$f":"N146*(100%-'Other input expert'!M$5)","v":0},null,{"$f":"P146*'Other input expert'!B$12*'Sales price per sales channel'!$G146*'Other input expert'!B$6","v":0},{"$f":"Q146*'Other input expert'!C$12*'Sales price per sales channel'!$G146*'Other input expert'!C$6","v":0},{"$f":"R146*'Other input expert'!D$12*'Sales price per sales channel'!$G146*'Other input expert'!D$6","v":0},{"$f":"S146*'Other input expert'!E$12*'Sales price per sales channel'!$G146*'Other input expert'!E$6","v":0},{"$f":"T146*'Other input expert'!F$12*'Sales price per sales channel'!$G146*'Other input expert'!F$6","v":0},{"$f":"U146*'Other input expert'!G$12*'Sales price per sales channel'!$G146*'Other input expert'!G$6","v":0},{"$f":"V146*'Other input expert'!H$12*'Sales price per sales channel'!$G146*'Other input expert'!H$6","v":0},{"$f":"W146*'Other input expert'!I$12*'Sales price per sales channel'!$G146*'Other input expert'!I$6","v":0},{"$f":"X146*'Other input expert'!J$12*'Sales price per sales channel'!$G146*'Other input expert'!J$6","v":0},{"$f":"Y146*'Other input expert'!K$12*'Sales price per sales channel'!$G146*'Other input expert'!K$6","v":0},{"$f":"Z146*'Other input expert'!L$12*'Sales price per sales channel'!$G146*'Other input expert'!L$6","v":0},{"$f":"AA146*'Other input expert'!M$12*'Sales price per sales channel'!$G146*'Other input expert'!M$6","v":0},null,{"$f":"P146*'Other input expert'!B$13*'Sales price per sales channel'!$H146*'Other input expert'!B$6","v":0},{"$f":"Q146*'Other input expert'!C$13*'Sales price per sales channel'!$H146*'Other input expert'!C$6","v":0},{"$f":"R146*'Other input expert'!D$13*'Sales price per sales channel'!$H146*'Other input expert'!D$6","v":0},{"$f":"S146*'Other input expert'!E$13*'Sales price per sales channel'!$H146*'Other input expert'!E$6","v":0},{"$f":"T146*'Other input expert'!F$13*'Sales price per sales channel'!$H146*'Other input expert'!F$6","v":0},{"$f":"U146*'Other input expert'!G$13*'Sales price per sales channel'!$H146*'Other input expert'!G$6","v":0},{"$f":"V146*'Other input expert'!H$13*'Sales price per sales channel'!$H146*'Other input expert'!H$6","v":0},{"$f":"W146*'Other input expert'!I$13*'Sales price per sales channel'!$H146*'Other input expert'!I$6","v":0},{"$f":"X146*'Other input expert'!J$13*'Sales price per sales channel'!$H146*'Other input expert'!J$6","v":0},{"$f":"Y146*'Other input expert'!K$13*'Sales price per sales channel'!$H146*'Other input expert'!K$6","v":0},{"$f":"Z146*'Other input expert'!L$13*'Sales price per sales channel'!$H146*'Other input expert'!L$6","v":0},{"$f":"AA146*'Other input expert'!M$13*'Sales price per sales channel'!$H146*'Other input expert'!M$6","v":0},null,{"$f":"P146*'Other input expert'!B$14*'Sales price per sales channel'!$I146*'Other input expert'!B$6","v":0},{"$f":"Q146*'Other input expert'!C$14*'Sales price per sales channel'!$I146*'Other input expert'!C$6","v":0},{"$f":"R146*'Other input expert'!D$14*'Sales price per sales channel'!$I146*'Other input expert'!D$6","v":0},{"$f":"S146*'Other input expert'!E$14*'Sales price per sales channel'!$I146*'Other input expert'!E$6","v":0},{"$f":"T146*'Other input expert'!F$14*'Sales price per sales channel'!$I146*'Other input expert'!F$6","v":0},{"$f":"U146*'Other input expert'!G$14*'Sales price per sales channel'!$I146*'Other input expert'!G$6","v":0},{"$f":"V146*'Other input expert'!H$14*'Sales price per sales channel'!$I146*'Other input expert'!H$6","v":0},{"$f":"W146*'Other input expert'!I$14*'Sales price per sales channel'!$I146*'Other input expert'!I$6","v":0},{"$f":"X146*'Other input expert'!J$14*'Sales price per sales channel'!$I146*'Other input expert'!J$6","v":0},{"$f":"Y146*'Other input expert'!K$14*'Sales price per sales channel'!$I146*'Other input expert'!K$6","v":0},{"$f":"Z146*'Other input expert'!L$14*'Sales price per sales channel'!$I146*'Other input expert'!L$6","v":0},{"$f":"AA146*'Other input expert'!M$14*'Sales price per sales channel'!$I146*'Other input expert'!M$6","v":0},null,{"$f":"AC146*'Other input expert'!B$12*'Sales price per sales channel'!$G146*'Other input expert'!B$7","v":0},{"$f":"AD146*'Other input expert'!C$12*'Sales price per sales channel'!$G146*'Other input expert'!C$7","v":0},{"$f":"AE146*'Other input expert'!D$12*'Sales price per sales channel'!$G146*'Other input expert'!D$7","v":0},{"$f":"AF146*'Other input expert'!E$12*'Sales price per sales channel'!$G146*'Other input expert'!E$7","v":0},{"$f":"AG146*'Other input expert'!F$12*'Sales price per sales channel'!$G146*'Other input expert'!F$7","v":0},{"$f":"AH146*'Other input expert'!G$12*'Sales price per sales channel'!$G146*'Other input expert'!G$7","v":0},{"$f":"AI146*'Other input expert'!H$12*'Sales price per sales channel'!$G146*'Other input expert'!H$7","v":0},{"$f":"AJ146*'Other input expert'!I$12*'Sales price per sales channel'!$G146*'Other input expert'!I$7","v":0},{"$f":"AK146*'Other input expert'!J$12*'Sales price per sales channel'!$G146*'Other input expert'!J$7","v":0},{"$f":"AL146*'Other input expert'!K$12*'Sales price per sales channel'!$G146*'Other input expert'!K$7","v":0},{"$f":"AM146*'Other input expert'!L$12*'Sales price per sales channel'!$G146*'Other input expert'!L$7","v":0},{"$f":"AN146*'Other input expert'!M$12*'Sales price per sales channel'!$G146*'Other input expert'!M$7","v":0},null,{"$f":"AC146*'Other input expert'!B$13*'Sales price per sales channel'!$H146*'Other input expert'!B$7","v":0},{"$f":"AD146*'Other input expert'!C$13*'Sales price per sales channel'!$H146*'Other input expert'!C$7","v":0},{"$f":"AE146*'Other input expert'!D$13*'Sales price per sales channel'!$H146*'Other input expert'!D$7","v":0},{"$f":"AF146*'Other input expert'!E$13*'Sales price per sales channel'!$H146*'Other input expert'!E$7","v":0},{"$f":"AG146*'Other input expert'!F$13*'Sales price per sales channel'!$H146*'Other input expert'!F$7","v":0},{"$f":"AH146*'Other input expert'!G$13*'Sales price per sales channel'!$H146*'Other input expert'!G$7","v":0},{"$f":"AI146*'Other input expert'!H$13*'Sales price per sales channel'!$H146*'Other input expert'!H$7","v":0},{"$f":"AJ146*'Other input expert'!I$13*'Sales price per sales channel'!$H146*'Other input expert'!I$7","v":0},{"$f":"AK146*'Other input expert'!J$13*'Sales price per sales channel'!$H146*'Other input expert'!J$7","v":0},{"$f":"AL146*'Other input expert'!K$13*'Sales price per sales channel'!$H146*'Other input expert'!K$7","v":0},{"$f":"AM146*'Other input expert'!L$13*'Sales price per sales channel'!$H146*'Other input expert'!L$7","v":0},{"$f":"AN146*'Other input expert'!M$13*'Sales price per sales channel'!$H146*'Other input expert'!M$7","v":0},null,{"$f":"AC146*'Other input expert'!B$14*'Sales price per sales channel'!$I146*'Other input expert'!B$7","v":0},{"$f":"AD146*'Other input expert'!C$14*'Sales price per sales channel'!$I146*'Other input expert'!C$7","v":0},{"$f":"AE146*'Other input expert'!D$14*'Sales price per sales channel'!$I146*'Other input expert'!D$7","v":0},{"$f":"AF146*'Other input expert'!E$14*'Sales price per sales channel'!$I146*'Other input expert'!E$7","v":0},{"$f":"AG146*'Other input expert'!F$14*'Sales price per sales channel'!$I146*'Other input expert'!F$7","v":0},{"$f":"AH146*'Other input expert'!G$14*'Sales price per sales channel'!$I146*'Other input expert'!G$7","v":0},{"$f":"AI146*'Other input expert'!H$14*'Sales price per sales channel'!$I146*'Other input expert'!H$7","v":0},{"$f":"AJ146*'Other input expert'!I$14*'Sales price per sales channel'!$I146*'Other input expert'!I$7","v":0},{"$f":"AK146*'Other input expert'!J$14*'Sales price per sales channel'!$I146*'Other input expert'!J$7","v":0},{"$f":"AL146*'Other input expert'!K$14*'Sales price per sales channel'!$I146*'Other input expert'!K$7","v":0},{"$f":"AM146*'Other input expert'!L$14*'Sales price per sales channel'!$I146*'Other input expert'!L$7","v":0},{"$f":"AN146*'Other input expert'!M$14*'Sales price per sales channel'!$I146*'Other input expert'!M$7","v":0}]
["Rhus glabra","Sumac ",{"$f":"Plantlist!$G147*'Production list'!D148*'Other input expert'!B$4*'Other input expert'!B$8","v":0},{"$f":"Plantlist!$G147*'Production list'!E148*'Other input expert'!C$4*'Other input expert'!C$8","v":0},{"$f":"Plantlist!$G147*'Production list'!F148*'Other input expert'!D$4*'Other input expert'!D$8","v":0},{"$f":"Plantlist!$G147*'Production list'!G148*'Other input expert'!E$4*'Other input expert'!E$8","v":0},{"$f":"Plantlist!$G147*'Production list'!H148*'Other input expert'!F$4*'Other input expert'!F$8","v":0},{"$f":"Plantlist!$G147*'Production list'!I148*'Other input expert'!G$4*'Other input expert'!G$8","v":0},{"$f":"Plantlist!$G147*'Production list'!J148*'Other input expert'!H$4*'Other input expert'!H$8","v":0},{"$f":"Plantlist!$G147*'Production list'!K148*'Other input expert'!I$4*'Other input expert'!I$8","v":0},{"$f":"Plantlist!$G147*'Production list'!L148*'Other input expert'!J$4*'Other input expert'!J$8","v":0},{"$f":"Plantlist!$G147*'Production list'!M148*'Other input expert'!K$4*'Other input expert'!K$8","v":0},{"$f":"Plantlist!$G147*'Production list'!N148*'Other input expert'!L$4*'Other input expert'!L$8","v":0},{"$f":"Plantlist!$G147*'Production list'!O148*'Other input expert'!M$4*'Other input expert'!M$8","v":0},null,{"$f":"C147*'Other input expert'!B$5","v":0},{"$f":"D147*'Other input expert'!C$5","v":0},{"$f":"E147*'Other input expert'!D$5","v":0},{"$f":"F147*'Other input expert'!E$5","v":0},{"$f":"G147*'Other input expert'!F$5","v":0},{"$f":"H147*'Other input expert'!G$5","v":0},{"$f":"I147*'Other input expert'!H$5","v":0},{"$f":"J147*'Other input expert'!I$5","v":0},{"$f":"K147*'Other input expert'!J$5","v":0},{"$f":"L147*'Other input expert'!K$5","v":0},{"$f":"M147*'Other input expert'!L$5","v":0},{"$f":"N147*'Other input expert'!M$5","v":0},null,{"$f":"C147*(100%-'Other input expert'!B$5)","v":0},{"$f":"D147*(100%-'Other input expert'!C$5)","v":0},{"$f":"E147*(100%-'Other input expert'!D$5)","v":0},{"$f":"F147*(100%-'Other input expert'!E$5)","v":0},{"$f":"G147*(100%-'Other input expert'!F$5)","v":0},{"$f":"H147*(100%-'Other input expert'!G$5)","v":0},{"$f":"I147*(100%-'Other input expert'!H$5)","v":0},{"$f":"J147*(100%-'Other input expert'!I$5)","v":0},{"$f":"K147*(100%-'Other input expert'!J$5)","v":0},{"$f":"L147*(100%-'Other input expert'!K$5)","v":0},{"$f":"M147*(100%-'Other input expert'!L$5)","v":0},{"$f":"N147*(100%-'Other input expert'!M$5)","v":0},null,{"$f":"P147*'Other input expert'!B$12*'Sales price per sales channel'!$G147*'Other input expert'!B$6","v":0},{"$f":"Q147*'Other input expert'!C$12*'Sales price per sales channel'!$G147*'Other input expert'!C$6","v":0},{"$f":"R147*'Other input expert'!D$12*'Sales price per sales channel'!$G147*'Other input expert'!D$6","v":0},{"$f":"S147*'Other input expert'!E$12*'Sales price per sales channel'!$G147*'Other input expert'!E$6","v":0},{"$f":"T147*'Other input expert'!F$12*'Sales price per sales channel'!$G147*'Other input expert'!F$6","v":0},{"$f":"U147*'Other input expert'!G$12*'Sales price per sales channel'!$G147*'Other input expert'!G$6","v":0},{"$f":"V147*'Other input expert'!H$12*'Sales price per sales channel'!$G147*'Other input expert'!H$6","v":0},{"$f":"W147*'Other input expert'!I$12*'Sales price per sales channel'!$G147*'Other input expert'!I$6","v":0},{"$f":"X147*'Other input expert'!J$12*'Sales price per sales channel'!$G147*'Other input expert'!J$6","v":0},{"$f":"Y147*'Other input expert'!K$12*'Sales price per sales channel'!$G147*'Other input expert'!K$6","v":0},{"$f":"Z147*'Other input expert'!L$12*'Sales price per sales channel'!$G147*'Other input expert'!L$6","v":0},{"$f":"AA147*'Other input expert'!M$12*'Sales price per sales channel'!$G147*'Other input expert'!M$6","v":0},null,{"$f":"P147*'Other input expert'!B$13*'Sales price per sales channel'!$H147*'Other input expert'!B$6","v":0},{"$f":"Q147*'Other input expert'!C$13*'Sales price per sales channel'!$H147*'Other input expert'!C$6","v":0},{"$f":"R147*'Other input expert'!D$13*'Sales price per sales channel'!$H147*'Other input expert'!D$6","v":0},{"$f":"S147*'Other input expert'!E$13*'Sales price per sales channel'!$H147*'Other input expert'!E$6","v":0},{"$f":"T147*'Other input expert'!F$13*'Sales price per sales channel'!$H147*'Other input expert'!F$6","v":0},{"$f":"U147*'Other input expert'!G$13*'Sales price per sales channel'!$H147*'Other input expert'!G$6","v":0},{"$f":"V147*'Other input expert'!H$13*'Sales price per sales channel'!$H147*'Other input expert'!H$6","v":0},{"$f":"W147*'Other input expert'!I$13*'Sales price per sales channel'!$H147*'Other input expert'!I$6","v":0},{"$f":"X147*'Other input expert'!J$13*'Sales price per sales channel'!$H147*'Other input expert'!J$6","v":0},{"$f":"Y147*'Other input expert'!K$13*'Sales price per sales channel'!$H147*'Other input expert'!K$6","v":0},{"$f":"Z147*'Other input expert'!L$13*'Sales price per sales channel'!$H147*'Other input expert'!L$6","v":0},{"$f":"AA147*'Other input expert'!M$13*'Sales price per sales channel'!$H147*'Other input expert'!M$6","v":0},null,{"$f":"P147*'Other input expert'!B$14*'Sales price per sales channel'!$I147*'Other input expert'!B$6","v":0},{"$f":"Q147*'Other input expert'!C$14*'Sales price per sales channel'!$I147*'Other input expert'!C$6","v":0},{"$f":"R147*'Other input expert'!D$14*'Sales price per sales channel'!$I147*'Other input expert'!D$6","v":0},{"$f":"S147*'Other input expert'!E$14*'Sales price per sales channel'!$I147*'Other input expert'!E$6","v":0},{"$f":"T147*'Other input expert'!F$14*'Sales price per sales channel'!$I147*'Other input expert'!F$6","v":0},{"$f":"U147*'Other input expert'!G$14*'Sales price per sales channel'!$I147*'Other input expert'!G$6","v":0},{"$f":"V147*'Other input expert'!H$14*'Sales price per sales channel'!$I147*'Other input expert'!H$6","v":0},{"$f":"W147*'Other input expert'!I$14*'Sales price per sales channel'!$I147*'Other input expert'!I$6","v":0},{"$f":"X147*'Other input expert'!J$14*'Sales price per sales channel'!$I147*'Other input expert'!J$6","v":0},{"$f":"Y147*'Other input expert'!K$14*'Sales price per sales channel'!$I147*'Other input expert'!K$6","v":0},{"$f":"Z147*'Other input expert'!L$14*'Sales price per sales channel'!$I147*'Other input expert'!L$6","v":0},{"$f":"AA147*'Other input expert'!M$14*'Sales price per sales channel'!$I147*'Other input expert'!M$6","v":0},null,{"$f":"AC147*'Other input expert'!B$12*'Sales price per sales channel'!$G147*'Other input expert'!B$7","v":0},{"$f":"AD147*'Other input expert'!C$12*'Sales price per sales channel'!$G147*'Other input expert'!C$7","v":0},{"$f":"AE147*'Other input expert'!D$12*'Sales price per sales channel'!$G147*'Other input expert'!D$7","v":0},{"$f":"AF147*'Other input expert'!E$12*'Sales price per sales channel'!$G147*'Other input expert'!E$7","v":0},{"$f":"AG147*'Other input expert'!F$12*'Sales price per sales channel'!$G147*'Other input expert'!F$7","v":0},{"$f":"AH147*'Other input expert'!G$12*'Sales price per sales channel'!$G147*'Other input expert'!G$7","v":0},{"$f":"AI147*'Other input expert'!H$12*'Sales price per sales channel'!$G147*'Other input expert'!H$7","v":0},{"$f":"AJ147*'Other input expert'!I$12*'Sales price per sales channel'!$G147*'Other input expert'!I$7","v":0},{"$f":"AK147*'Other input expert'!J$12*'Sales price per sales channel'!$G147*'Other input expert'!J$7","v":0},{"$f":"AL147*'Other input expert'!K$12*'Sales price per sales channel'!$G147*'Other input expert'!K$7","v":0},{"$f":"AM147*'Other input expert'!L$12*'Sales price per sales channel'!$G147*'Other input expert'!L$7","v":0},{"$f":"AN147*'Other input expert'!M$12*'Sales price per sales channel'!$G147*'Other input expert'!M$7","v":0},null,{"$f":"AC147*'Other input expert'!B$13*'Sales price per sales channel'!$H147*'Other input expert'!B$7","v":0},{"$f":"AD147*'Other input expert'!C$13*'Sales price per sales channel'!$H147*'Other input expert'!C$7","v":0},{"$f":"AE147*'Other input expert'!D$13*'Sales price per sales channel'!$H147*'Other input expert'!D$7","v":0},{"$f":"AF147*'Other input expert'!E$13*'Sales price per sales channel'!$H147*'Other input expert'!E$7","v":0},{"$f":"AG147*'Other input expert'!F$13*'Sales price per sales channel'!$H147*'Other input expert'!F$7","v":0},{"$f":"AH147*'Other input expert'!G$13*'Sales price per sales channel'!$H147*'Other input expert'!G$7","v":0},{"$f":"AI147*'Other input expert'!H$13*'Sales price per sales channel'!$H147*'Other input expert'!H$7","v":0},{"$f":"AJ147*'Other input expert'!I$13*'Sales price per sales channel'!$H147*'Other input expert'!I$7","v":0},{"$f":"AK147*'Other input expert'!J$13*'Sales price per sales channel'!$H147*'Other input expert'!J$7","v":0},{"$f":"AL147*'Other input expert'!K$13*'Sales price per sales channel'!$H147*'Other input expert'!K$7","v":0},{"$f":"AM147*'Other input expert'!L$13*'Sales price per sales channel'!$H147*'Other input expert'!L$7","v":0},{"$f":"AN147*'Other input expert'!M$13*'Sales price per sales channel'!$H147*'Other input expert'!M$7","v":0},null,{"$f":"AC147*'Other input expert'!B$14*'Sales price per sales channel'!$I147*'Other input expert'!B$7","v":0},{"$f":"AD147*'Other input expert'!C$14*'Sales price per sales channel'!$I147*'Other input expert'!C$7","v":0},{"$f":"AE147*'Other input expert'!D$14*'Sales price per sales channel'!$I147*'Other input expert'!D$7","v":0},{"$f":"AF147*'Other input expert'!E$14*'Sales price per sales channel'!$I147*'Other input expert'!E$7","v":0},{"$f":"AG147*'Other input expert'!F$14*'Sales price per sales channel'!$I147*'Other input expert'!F$7","v":0},{"$f":"AH147*'Other input expert'!G$14*'Sales price per sales channel'!$I147*'Other input expert'!G$7","v":0},{"$f":"AI147*'Other input expert'!H$14*'Sales price per sales channel'!$I147*'Other input expert'!H$7","v":0},{"$f":"AJ147*'Other input expert'!I$14*'Sales price per sales channel'!$I147*'Other input expert'!I$7","v":0},{"$f":"AK147*'Other input expert'!J$14*'Sales price per sales channel'!$I147*'Other input expert'!J$7","v":0},{"$f":"AL147*'Other input expert'!K$14*'Sales price per sales channel'!$I147*'Other input expert'!K$7","v":0},{"$f":"AM147*'Other input expert'!L$14*'Sales price per sales channel'!$I147*'Other input expert'!L$7","v":0},{"$f":"AN147*'Other input expert'!M$14*'Sales price per sales channel'!$I147*'Other input expert'!M$7","v":0}]
["Ribes divaricatum","Black gooseberry",{"$f":"Plantlist!$G148*'Production list'!D149*'Other input expert'!B$4*'Other input expert'!B$8","v":0},{"$f":"Plantlist!$G148*'Production list'!E149*'Other input expert'!C$4*'Other input expert'!C$8","v":0},{"$f":"Plantlist!$G148*'Production list'!F149*'Other input expert'!D$4*'Other input expert'!D$8","v":0},{"$f":"Plantlist!$G148*'Production list'!G149*'Other input expert'!E$4*'Other input expert'!E$8","v":0},{"$f":"Plantlist!$G148*'Production list'!H149*'Other input expert'!F$4*'Other input expert'!F$8","v":0},{"$f":"Plantlist!$G148*'Production list'!I149*'Other input expert'!G$4*'Other input expert'!G$8","v":0},{"$f":"Plantlist!$G148*'Production list'!J149*'Other input expert'!H$4*'Other input expert'!H$8","v":0},{"$f":"Plantlist!$G148*'Production list'!K149*'Other input expert'!I$4*'Other input expert'!I$8","v":0},{"$f":"Plantlist!$G148*'Production list'!L149*'Other input expert'!J$4*'Other input expert'!J$8","v":0},{"$f":"Plantlist!$G148*'Production list'!M149*'Other input expert'!K$4*'Other input expert'!K$8","v":0},{"$f":"Plantlist!$G148*'Production list'!N149*'Other input expert'!L$4*'Other input expert'!L$8","v":0},{"$f":"Plantlist!$G148*'Production list'!O149*'Other input expert'!M$4*'Other input expert'!M$8","v":0},null,{"$f":"C148*'Other input expert'!B$5","v":0},{"$f":"D148*'Other input expert'!C$5","v":0},{"$f":"E148*'Other input expert'!D$5","v":0},{"$f":"F148*'Other input expert'!E$5","v":0},{"$f":"G148*'Other input expert'!F$5","v":0},{"$f":"H148*'Other input expert'!G$5","v":0},{"$f":"I148*'Other input expert'!H$5","v":0},{"$f":"J148*'Other input expert'!I$5","v":0},{"$f":"K148*'Other input expert'!J$5","v":0},{"$f":"L148*'Other input expert'!K$5","v":0},{"$f":"M148*'Other input expert'!L$5","v":0},{"$f":"N148*'Other input expert'!M$5","v":0},null,{"$f":"C148*(100%-'Other input expert'!B$5)","v":0},{"$f":"D148*(100%-'Other input expert'!C$5)","v":0},{"$f":"E148*(100%-'Other input expert'!D$5)","v":0},{"$f":"F148*(100%-'Other input expert'!E$5)","v":0},{"$f":"G148*(100%-'Other input expert'!F$5)","v":0},{"$f":"H148*(100%-'Other input expert'!G$5)","v":0},{"$f":"I148*(100%-'Other input expert'!H$5)","v":0},{"$f":"J148*(100%-'Other input expert'!I$5)","v":0},{"$f":"K148*(100%-'Other input expert'!J$5)","v":0},{"$f":"L148*(100%-'Other input expert'!K$5)","v":0},{"$f":"M148*(100%-'Other input expert'!L$5)","v":0},{"$f":"N148*(100%-'Other input expert'!M$5)","v":0},null,{"$f":"P148*'Other input expert'!B$12*'Sales price per sales channel'!$G148*'Other input expert'!B$6","v":0},{"$f":"Q148*'Other input expert'!C$12*'Sales price per sales channel'!$G148*'Other input expert'!C$6","v":0},{"$f":"R148*'Other input expert'!D$12*'Sales price per sales channel'!$G148*'Other input expert'!D$6","v":0},{"$f":"S148*'Other input expert'!E$12*'Sales price per sales channel'!$G148*'Other input expert'!E$6","v":0},{"$f":"T148*'Other input expert'!F$12*'Sales price per sales channel'!$G148*'Other input expert'!F$6","v":0},{"$f":"U148*'Other input expert'!G$12*'Sales price per sales channel'!$G148*'Other input expert'!G$6","v":0},{"$f":"V148*'Other input expert'!H$12*'Sales price per sales channel'!$G148*'Other input expert'!H$6","v":0},{"$f":"W148*'Other input expert'!I$12*'Sales price per sales channel'!$G148*'Other input expert'!I$6","v":0},{"$f":"X148*'Other input expert'!J$12*'Sales price per sales channel'!$G148*'Other input expert'!J$6","v":0},{"$f":"Y148*'Other input expert'!K$12*'Sales price per sales channel'!$G148*'Other input expert'!K$6","v":0},{"$f":"Z148*'Other input expert'!L$12*'Sales price per sales channel'!$G148*'Other input expert'!L$6","v":0},{"$f":"AA148*'Other input expert'!M$12*'Sales price per sales channel'!$G148*'Other input expert'!M$6","v":0},null,{"$f":"P148*'Other input expert'!B$13*'Sales price per sales channel'!$H148*'Other input expert'!B$6","v":0},{"$f":"Q148*'Other input expert'!C$13*'Sales price per sales channel'!$H148*'Other input expert'!C$6","v":0},{"$f":"R148*'Other input expert'!D$13*'Sales price per sales channel'!$H148*'Other input expert'!D$6","v":0},{"$f":"S148*'Other input expert'!E$13*'Sales price per sales channel'!$H148*'Other input expert'!E$6","v":0},{"$f":"T148*'Other input expert'!F$13*'Sales price per sales channel'!$H148*'Other input expert'!F$6","v":0},{"$f":"U148*'Other input expert'!G$13*'Sales price per sales channel'!$H148*'Other input expert'!G$6","v":0},{"$f":"V148*'Other input expert'!H$13*'Sales price per sales channel'!$H148*'Other input expert'!H$6","v":0},{"$f":"W148*'Other input expert'!I$13*'Sales price per sales channel'!$H148*'Other input expert'!I$6","v":0},{"$f":"X148*'Other input expert'!J$13*'Sales price per sales channel'!$H148*'Other input expert'!J$6","v":0},{"$f":"Y148*'Other input expert'!K$13*'Sales price per sales channel'!$H148*'Other input expert'!K$6","v":0},{"$f":"Z148*'Other input expert'!L$13*'Sales price per sales channel'!$H148*'Other input expert'!L$6","v":0},{"$f":"AA148*'Other input expert'!M$13*'Sales price per sales channel'!$H148*'Other input expert'!M$6","v":0},null,{"$f":"P148*'Other input expert'!B$14*'Sales price per sales channel'!$I148*'Other input expert'!B$6","v":0},{"$f":"Q148*'Other input expert'!C$14*'Sales price per sales channel'!$I148*'Other input expert'!C$6","v":0},{"$f":"R148*'Other input expert'!D$14*'Sales price per sales channel'!$I148*'Other input expert'!D$6","v":0},{"$f":"S148*'Other input expert'!E$14*'Sales price per sales channel'!$I148*'Other input expert'!E$6","v":0},{"$f":"T148*'Other input expert'!F$14*'Sales price per sales channel'!$I148*'Other input expert'!F$6","v":0},{"$f":"U148*'Other input expert'!G$14*'Sales price per sales channel'!$I148*'Other input expert'!G$6","v":0},{"$f":"V148*'Other input expert'!H$14*'Sales price per sales channel'!$I148*'Other input expert'!H$6","v":0},{"$f":"W148*'Other input expert'!I$14*'Sales price per sales channel'!$I148*'Other input expert'!I$6","v":0},{"$f":"X148*'Other input expert'!J$14*'Sales price per sales channel'!$I148*'Other input expert'!J$6","v":0},{"$f":"Y148*'Other input expert'!K$14*'Sales price per sales channel'!$I148*'Other input expert'!K$6","v":0},{"$f":"Z148*'Other input expert'!L$14*'Sales price per sales channel'!$I148*'Other input expert'!L$6","v":0},{"$f":"AA148*'Other input expert'!M$14*'Sales price per sales channel'!$I148*'Other input expert'!M$6","v":0},null,{"$f":"AC148*'Other input expert'!B$12*'Sales price per sales channel'!$G148*'Other input expert'!B$7","v":0},{"$f":"AD148*'Other input expert'!C$12*'Sales price per sales channel'!$G148*'Other input expert'!C$7","v":0},{"$f":"AE148*'Other input expert'!D$12*'Sales price per sales channel'!$G148*'Other input expert'!D$7","v":0},{"$f":"AF148*'Other input expert'!E$12*'Sales price per sales channel'!$G148*'Other input expert'!E$7","v":0},{"$f":"AG148*'Other input expert'!F$12*'Sales price per sales channel'!$G148*'Other input expert'!F$7","v":0},{"$f":"AH148*'Other input expert'!G$12*'Sales price per sales channel'!$G148*'Other input expert'!G$7","v":0},{"$f":"AI148*'Other input expert'!H$12*'Sales price per sales channel'!$G148*'Other input expert'!H$7","v":0},{"$f":"AJ148*'Other input expert'!I$12*'Sales price per sales channel'!$G148*'Other input expert'!I$7","v":0},{"$f":"AK148*'Other input expert'!J$12*'Sales price per sales channel'!$G148*'Other input expert'!J$7","v":0},{"$f":"AL148*'Other input expert'!K$12*'Sales price per sales channel'!$G148*'Other input expert'!K$7","v":0},{"$f":"AM148*'Other input expert'!L$12*'Sales price per sales channel'!$G148*'Other input expert'!L$7","v":0},{"$f":"AN148*'Other input expert'!M$12*'Sales price per sales channel'!$G148*'Other input expert'!M$7","v":0},null,{"$f":"AC148*'Other input expert'!B$13*'Sales price per sales channel'!$H148*'Other input expert'!B$7","v":0},{"$f":"AD148*'Other input expert'!C$13*'Sales price per sales channel'!$H148*'Other input expert'!C$7","v":0},{"$f":"AE148*'Other input expert'!D$13*'Sales price per sales channel'!$H148*'Other input expert'!D$7","v":0},{"$f":"AF148*'Other input expert'!E$13*'Sales price per sales channel'!$H148*'Other input expert'!E$7","v":0},{"$f":"AG148*'Other input expert'!F$13*'Sales price per sales channel'!$H148*'Other input expert'!F$7","v":0},{"$f":"AH148*'Other input expert'!G$13*'Sales price per sales channel'!$H148*'Other input expert'!G$7","v":0},{"$f":"AI148*'Other input expert'!H$13*'Sales price per sales channel'!$H148*'Other input expert'!H$7","v":0},{"$f":"AJ148*'Other input expert'!I$13*'Sales price per sales channel'!$H148*'Other input expert'!I$7","v":0},{"$f":"AK148*'Other input expert'!J$13*'Sales price per sales channel'!$H148*'Other input expert'!J$7","v":0},{"$f":"AL148*'Other input expert'!K$13*'Sales price per sales channel'!$H148*'Other input expert'!K$7","v":0},{"$f":"AM148*'Other input expert'!L$13*'Sales price per sales channel'!$H148*'Other input expert'!L$7","v":0},{"$f":"AN148*'Other input expert'!M$13*'Sales price per sales channel'!$H148*'Other input expert'!M$7","v":0},null,{"$f":"AC148*'Other input expert'!B$14*'Sales price per sales channel'!$I148*'Other input expert'!B$7","v":0},{"$f":"AD148*'Other input expert'!C$14*'Sales price per sales channel'!$I148*'Other input expert'!C$7","v":0},{"$f":"AE148*'Other input expert'!D$14*'Sales price per sales channel'!$I148*'Other input expert'!D$7","v":0},{"$f":"AF148*'Other input expert'!E$14*'Sales price per sales channel'!$I148*'Other input expert'!E$7","v":0},{"$f":"AG148*'Other input expert'!F$14*'Sales price per sales channel'!$I148*'Other input expert'!F$7","v":0},{"$f":"AH148*'Other input expert'!G$14*'Sales price per sales channel'!$I148*'Other input expert'!G$7","v":0},{"$f":"AI148*'Other input expert'!H$14*'Sales price per sales channel'!$I148*'Other input expert'!H$7","v":0},{"$f":"AJ148*'Other input expert'!I$14*'Sales price per sales channel'!$I148*'Other input expert'!I$7","v":0},{"$f":"AK148*'Other input expert'!J$14*'Sales price per sales channel'!$I148*'Other input expert'!J$7","v":0},{"$f":"AL148*'Other input expert'!K$14*'Sales price per sales channel'!$I148*'Other input expert'!K$7","v":0},{"$f":"AM148*'Other input expert'!L$14*'Sales price per sales channel'!$I148*'Other input expert'!L$7","v":0},{"$f":"AN148*'Other input expert'!M$14*'Sales price per sales channel'!$I148*'Other input expert'!M$7","v":0}]
["Ribes 'Josta'","Jostaberry",{"$f":"Plantlist!$G149*'Production list'!D150*'Other input expert'!B$4*'Other input expert'!B$8","v":0},{"$f":"Plantlist!$G149*'Production list'!E150*'Other input expert'!C$4*'Other input expert'!C$8","v":0},{"$f":"Plantlist!$G149*'Production list'!F150*'Other input expert'!D$4*'Other input expert'!D$8","v":0},{"$f":"Plantlist!$G149*'Production list'!G150*'Other input expert'!E$4*'Other input expert'!E$8","v":0},{"$f":"Plantlist!$G149*'Production list'!H150*'Other input expert'!F$4*'Other input expert'!F$8","v":0},{"$f":"Plantlist!$G149*'Production list'!I150*'Other input expert'!G$4*'Other input expert'!G$8","v":0},{"$f":"Plantlist!$G149*'Production list'!J150*'Other input expert'!H$4*'Other input expert'!H$8","v":0},{"$f":"Plantlist!$G149*'Production list'!K150*'Other input expert'!I$4*'Other input expert'!I$8","v":0},{"$f":"Plantlist!$G149*'Production list'!L150*'Other input expert'!J$4*'Other input expert'!J$8","v":0},{"$f":"Plantlist!$G149*'Production list'!M150*'Other input expert'!K$4*'Other input expert'!K$8","v":0},{"$f":"Plantlist!$G149*'Production list'!N150*'Other input expert'!L$4*'Other input expert'!L$8","v":0},{"$f":"Plantlist!$G149*'Production list'!O150*'Other input expert'!M$4*'Other input expert'!M$8","v":0},null,{"$f":"C149*'Other input expert'!B$5","v":0},{"$f":"D149*'Other input expert'!C$5","v":0},{"$f":"E149*'Other input expert'!D$5","v":0},{"$f":"F149*'Other input expert'!E$5","v":0},{"$f":"G149*'Other input expert'!F$5","v":0},{"$f":"H149*'Other input expert'!G$5","v":0},{"$f":"I149*'Other input expert'!H$5","v":0},{"$f":"J149*'Other input expert'!I$5","v":0},{"$f":"K149*'Other input expert'!J$5","v":0},{"$f":"L149*'Other input expert'!K$5","v":0},{"$f":"M149*'Other input expert'!L$5","v":0},{"$f":"N149*'Other input expert'!M$5","v":0},null,{"$f":"C149*(100%-'Other input expert'!B$5)","v":0},{"$f":"D149*(100%-'Other input expert'!C$5)","v":0},{"$f":"E149*(100%-'Other input expert'!D$5)","v":0},{"$f":"F149*(100%-'Other input expert'!E$5)","v":0},{"$f":"G149*(100%-'Other input expert'!F$5)","v":0},{"$f":"H149*(100%-'Other input expert'!G$5)","v":0},{"$f":"I149*(100%-'Other input expert'!H$5)","v":0},{"$f":"J149*(100%-'Other input expert'!I$5)","v":0},{"$f":"K149*(100%-'Other input expert'!J$5)","v":0},{"$f":"L149*(100%-'Other input expert'!K$5)","v":0},{"$f":"M149*(100%-'Other input expert'!L$5)","v":0},{"$f":"N149*(100%-'Other input expert'!M$5)","v":0},null,{"$f":"P149*'Other input expert'!B$12*'Sales price per sales channel'!$G149*'Other input expert'!B$6","v":0},{"$f":"Q149*'Other input expert'!C$12*'Sales price per sales channel'!$G149*'Other input expert'!C$6","v":0},{"$f":"R149*'Other input expert'!D$12*'Sales price per sales channel'!$G149*'Other input expert'!D$6","v":0},{"$f":"S149*'Other input expert'!E$12*'Sales price per sales channel'!$G149*'Other input expert'!E$6","v":0},{"$f":"T149*'Other input expert'!F$12*'Sales price per sales channel'!$G149*'Other input expert'!F$6","v":0},{"$f":"U149*'Other input expert'!G$12*'Sales price per sales channel'!$G149*'Other input expert'!G$6","v":0},{"$f":"V149*'Other input expert'!H$12*'Sales price per sales channel'!$G149*'Other input expert'!H$6","v":0},{"$f":"W149*'Other input expert'!I$12*'Sales price per sales channel'!$G149*'Other input expert'!I$6","v":0},{"$f":"X149*'Other input expert'!J$12*'Sales price per sales channel'!$G149*'Other input expert'!J$6","v":0},{"$f":"Y149*'Other input expert'!K$12*'Sales price per sales channel'!$G149*'Other input expert'!K$6","v":0},{"$f":"Z149*'Other input expert'!L$12*'Sales price per sales channel'!$G149*'Other input expert'!L$6","v":0},{"$f":"AA149*'Other input expert'!M$12*'Sales price per sales channel'!$G149*'Other input expert'!M$6","v":0},null,{"$f":"P149*'Other input expert'!B$13*'Sales price per sales channel'!$H149*'Other input expert'!B$6","v":0},{"$f":"Q149*'Other input expert'!C$13*'Sales price per sales channel'!$H149*'Other input expert'!C$6","v":0},{"$f":"R149*'Other input expert'!D$13*'Sales price per sales channel'!$H149*'Other input expert'!D$6","v":0},{"$f":"S149*'Other input expert'!E$13*'Sales price per sales channel'!$H149*'Other input expert'!E$6","v":0},{"$f":"T149*'Other input expert'!F$13*'Sales price per sales channel'!$H149*'Other input expert'!F$6","v":0},{"$f":"U149*'Other input expert'!G$13*'Sales price per sales channel'!$H149*'Other input expert'!G$6","v":0},{"$f":"V149*'Other input expert'!H$13*'Sales price per sales channel'!$H149*'Other input expert'!H$6","v":0},{"$f":"W149*'Other input expert'!I$13*'Sales price per sales channel'!$H149*'Other input expert'!I$6","v":0},{"$f":"X149*'Other input expert'!J$13*'Sales price per sales channel'!$H149*'Other input expert'!J$6","v":0},{"$f":"Y149*'Other input expert'!K$13*'Sales price per sales channel'!$H149*'Other input expert'!K$6","v":0},{"$f":"Z149*'Other input expert'!L$13*'Sales price per sales channel'!$H149*'Other input expert'!L$6","v":0},{"$f":"AA149*'Other input expert'!M$13*'Sales price per sales channel'!$H149*'Other input expert'!M$6","v":0},null,{"$f":"P149*'Other input expert'!B$14*'Sales price per sales channel'!$I149*'Other input expert'!B$6","v":0},{"$f":"Q149*'Other input expert'!C$14*'Sales price per sales channel'!$I149*'Other input expert'!C$6","v":0},{"$f":"R149*'Other input expert'!D$14*'Sales price per sales channel'!$I149*'Other input expert'!D$6","v":0},{"$f":"S149*'Other input expert'!E$14*'Sales price per sales channel'!$I149*'Other input expert'!E$6","v":0},{"$f":"T149*'Other input expert'!F$14*'Sales price per sales channel'!$I149*'Other input expert'!F$6","v":0},{"$f":"U149*'Other input expert'!G$14*'Sales price per sales channel'!$I149*'Other input expert'!G$6","v":0},{"$f":"V149*'Other input expert'!H$14*'Sales price per sales channel'!$I149*'Other input expert'!H$6","v":0},{"$f":"W149*'Other input expert'!I$14*'Sales price per sales channel'!$I149*'Other input expert'!I$6","v":0},{"$f":"X149*'Other input expert'!J$14*'Sales price per sales channel'!$I149*'Other input expert'!J$6","v":0},{"$f":"Y149*'Other input expert'!K$14*'Sales price per sales channel'!$I149*'Other input expert'!K$6","v":0},{"$f":"Z149*'Other input expert'!L$14*'Sales price per sales channel'!$I149*'Other input expert'!L$6","v":0},{"$f":"AA149*'Other input expert'!M$14*'Sales price per sales channel'!$I149*'Other input expert'!M$6","v":0},null,{"$f":"AC149*'Other input expert'!B$12*'Sales price per sales channel'!$G149*'Other input expert'!B$7","v":0},{"$f":"AD149*'Other input expert'!C$12*'Sales price per sales channel'!$G149*'Other input expert'!C$7","v":0},{"$f":"AE149*'Other input expert'!D$12*'Sales price per sales channel'!$G149*'Other input expert'!D$7","v":0},{"$f":"AF149*'Other input expert'!E$12*'Sales price per sales channel'!$G149*'Other input expert'!E$7","v":0},{"$f":"AG149*'Other input expert'!F$12*'Sales price per sales channel'!$G149*'Other input expert'!F$7","v":0},{"$f":"AH149*'Other input expert'!G$12*'Sales price per sales channel'!$G149*'Other input expert'!G$7","v":0},{"$f":"AI149*'Other input expert'!H$12*'Sales price per sales channel'!$G149*'Other input expert'!H$7","v":0},{"$f":"AJ149*'Other input expert'!I$12*'Sales price per sales channel'!$G149*'Other input expert'!I$7","v":0},{"$f":"AK149*'Other input expert'!J$12*'Sales price per sales channel'!$G149*'Other input expert'!J$7","v":0},{"$f":"AL149*'Other input expert'!K$12*'Sales price per sales channel'!$G149*'Other input expert'!K$7","v":0},{"$f":"AM149*'Other input expert'!L$12*'Sales price per sales channel'!$G149*'Other input expert'!L$7","v":0},{"$f":"AN149*'Other input expert'!M$12*'Sales price per sales channel'!$G149*'Other input expert'!M$7","v":0},null,{"$f":"AC149*'Other input expert'!B$13*'Sales price per sales channel'!$H149*'Other input expert'!B$7","v":0},{"$f":"AD149*'Other input expert'!C$13*'Sales price per sales channel'!$H149*'Other input expert'!C$7","v":0},{"$f":"AE149*'Other input expert'!D$13*'Sales price per sales channel'!$H149*'Other input expert'!D$7","v":0},{"$f":"AF149*'Other input expert'!E$13*'Sales price per sales channel'!$H149*'Other input expert'!E$7","v":0},{"$f":"AG149*'Other input expert'!F$13*'Sales price per sales channel'!$H149*'Other input expert'!F$7","v":0},{"$f":"AH149*'Other input expert'!G$13*'Sales price per sales channel'!$H149*'Other input expert'!G$7","v":0},{"$f":"AI149*'Other input expert'!H$13*'Sales price per sales channel'!$H149*'Other input expert'!H$7","v":0},{"$f":"AJ149*'Other input expert'!I$13*'Sales price per sales channel'!$H149*'Other input expert'!I$7","v":0},{"$f":"AK149*'Other input expert'!J$13*'Sales price per sales channel'!$H149*'Other input expert'!J$7","v":0},{"$f":"AL149*'Other input expert'!K$13*'Sales price per sales channel'!$H149*'Other input expert'!K$7","v":0},{"$f":"AM149*'Other input expert'!L$13*'Sales price per sales channel'!$H149*'Other input expert'!L$7","v":0},{"$f":"AN149*'Other input expert'!M$13*'Sales price per sales channel'!$H149*'Other input expert'!M$7","v":0},null,{"$f":"AC149*'Other input expert'!B$14*'Sales price per sales channel'!$I149*'Other input expert'!B$7","v":0},{"$f":"AD149*'Other input expert'!C$14*'Sales price per sales channel'!$I149*'Other input expert'!C$7","v":0},{"$f":"AE149*'Other input expert'!D$14*'Sales price per sales channel'!$I149*'Other input expert'!D$7","v":0},{"$f":"AF149*'Other input expert'!E$14*'Sales price per sales channel'!$I149*'Other input expert'!E$7","v":0},{"$f":"AG149*'Other input expert'!F$14*'Sales price per sales channel'!$I149*'Other input expert'!F$7","v":0},{"$f":"AH149*'Other input expert'!G$14*'Sales price per sales channel'!$I149*'Other input expert'!G$7","v":0},{"$f":"AI149*'Other input expert'!H$14*'Sales price per sales channel'!$I149*'Other input expert'!H$7","v":0},{"$f":"AJ149*'Other input expert'!I$14*'Sales price per sales channel'!$I149*'Other input expert'!I$7","v":0},{"$f":"AK149*'Other input expert'!J$14*'Sales price per sales channel'!$I149*'Other input expert'!J$7","v":0},{"$f":"AL149*'Other input expert'!K$14*'Sales price per sales channel'!$I149*'Other input expert'!K$7","v":0},{"$f":"AM149*'Other input expert'!L$14*'Sales price per sales channel'!$I149*'Other input expert'!L$7","v":0},{"$f":"AN149*'Other input expert'!M$14*'Sales price per sales channel'!$I149*'Other input expert'!M$7","v":0}]
["Ribes nigrum","Black currant",{"$f":"Plantlist!$G150*'Production list'!D151*'Other input expert'!B$4*'Other input expert'!B$8","v":0},{"$f":"Plantlist!$G150*'Production list'!E151*'Other input expert'!C$4*'Other input expert'!C$8","v":0},{"$f":"Plantlist!$G150*'Production list'!F151*'Other input expert'!D$4*'Other input expert'!D$8","v":0},{"$f":"Plantlist!$G150*'Production list'!G151*'Other input expert'!E$4*'Other input expert'!E$8","v":0},{"$f":"Plantlist!$G150*'Production list'!H151*'Other input expert'!F$4*'Other input expert'!F$8","v":0},{"$f":"Plantlist!$G150*'Production list'!I151*'Other input expert'!G$4*'Other input expert'!G$8","v":0},{"$f":"Plantlist!$G150*'Production list'!J151*'Other input expert'!H$4*'Other input expert'!H$8","v":0},{"$f":"Plantlist!$G150*'Production list'!K151*'Other input expert'!I$4*'Other input expert'!I$8","v":0},{"$f":"Plantlist!$G150*'Production list'!L151*'Other input expert'!J$4*'Other input expert'!J$8","v":0},{"$f":"Plantlist!$G150*'Production list'!M151*'Other input expert'!K$4*'Other input expert'!K$8","v":0},{"$f":"Plantlist!$G150*'Production list'!N151*'Other input expert'!L$4*'Other input expert'!L$8","v":0},{"$f":"Plantlist!$G150*'Production list'!O151*'Other input expert'!M$4*'Other input expert'!M$8","v":0},null,{"$f":"C150*'Other input expert'!B$5","v":0},{"$f":"D150*'Other input expert'!C$5","v":0},{"$f":"E150*'Other input expert'!D$5","v":0},{"$f":"F150*'Other input expert'!E$5","v":0},{"$f":"G150*'Other input expert'!F$5","v":0},{"$f":"H150*'Other input expert'!G$5","v":0},{"$f":"I150*'Other input expert'!H$5","v":0},{"$f":"J150*'Other input expert'!I$5","v":0},{"$f":"K150*'Other input expert'!J$5","v":0},{"$f":"L150*'Other input expert'!K$5","v":0},{"$f":"M150*'Other input expert'!L$5","v":0},{"$f":"N150*'Other input expert'!M$5","v":0},null,{"$f":"C150*(100%-'Other input expert'!B$5)","v":0},{"$f":"D150*(100%-'Other input expert'!C$5)","v":0},{"$f":"E150*(100%-'Other input expert'!D$5)","v":0},{"$f":"F150*(100%-'Other input expert'!E$5)","v":0},{"$f":"G150*(100%-'Other input expert'!F$5)","v":0},{"$f":"H150*(100%-'Other input expert'!G$5)","v":0},{"$f":"I150*(100%-'Other input expert'!H$5)","v":0},{"$f":"J150*(100%-'Other input expert'!I$5)","v":0},{"$f":"K150*(100%-'Other input expert'!J$5)","v":0},{"$f":"L150*(100%-'Other input expert'!K$5)","v":0},{"$f":"M150*(100%-'Other input expert'!L$5)","v":0},{"$f":"N150*(100%-'Other input expert'!M$5)","v":0},null,{"$f":"P150*'Other input expert'!B$12*'Sales price per sales channel'!$G150*'Other input expert'!B$6","v":0},{"$f":"Q150*'Other input expert'!C$12*'Sales price per sales channel'!$G150*'Other input expert'!C$6","v":0},{"$f":"R150*'Other input expert'!D$12*'Sales price per sales channel'!$G150*'Other input expert'!D$6","v":0},{"$f":"S150*'Other input expert'!E$12*'Sales price per sales channel'!$G150*'Other input expert'!E$6","v":0},{"$f":"T150*'Other input expert'!F$12*'Sales price per sales channel'!$G150*'Other input expert'!F$6","v":0},{"$f":"U150*'Other input expert'!G$12*'Sales price per sales channel'!$G150*'Other input expert'!G$6","v":0},{"$f":"V150*'Other input expert'!H$12*'Sales price per sales channel'!$G150*'Other input expert'!H$6","v":0},{"$f":"W150*'Other input expert'!I$12*'Sales price per sales channel'!$G150*'Other input expert'!I$6","v":0},{"$f":"X150*'Other input expert'!J$12*'Sales price per sales channel'!$G150*'Other input expert'!J$6","v":0},{"$f":"Y150*'Other input expert'!K$12*'Sales price per sales channel'!$G150*'Other input expert'!K$6","v":0},{"$f":"Z150*'Other input expert'!L$12*'Sales price per sales channel'!$G150*'Other input expert'!L$6","v":0},{"$f":"AA150*'Other input expert'!M$12*'Sales price per sales channel'!$G150*'Other input expert'!M$6","v":0},null,{"$f":"P150*'Other input expert'!B$13*'Sales price per sales channel'!$H150*'Other input expert'!B$6","v":0},{"$f":"Q150*'Other input expert'!C$13*'Sales price per sales channel'!$H150*'Other input expert'!C$6","v":0},{"$f":"R150*'Other input expert'!D$13*'Sales price per sales channel'!$H150*'Other input expert'!D$6","v":0},{"$f":"S150*'Other input expert'!E$13*'Sales price per sales channel'!$H150*'Other input expert'!E$6","v":0},{"$f":"T150*'Other input expert'!F$13*'Sales price per sales channel'!$H150*'Other input expert'!F$6","v":0},{"$f":"U150*'Other input expert'!G$13*'Sales price per sales channel'!$H150*'Other input expert'!G$6","v":0},{"$f":"V150*'Other input expert'!H$13*'Sales price per sales channel'!$H150*'Other input expert'!H$6","v":0},{"$f":"W150*'Other input expert'!I$13*'Sales price per sales channel'!$H150*'Other input expert'!I$6","v":0},{"$f":"X150*'Other input expert'!J$13*'Sales price per sales channel'!$H150*'Other input expert'!J$6","v":0},{"$f":"Y150*'Other input expert'!K$13*'Sales price per sales channel'!$H150*'Other input expert'!K$6","v":0},{"$f":"Z150*'Other input expert'!L$13*'Sales price per sales channel'!$H150*'Other input expert'!L$6","v":0},{"$f":"AA150*'Other input expert'!M$13*'Sales price per sales channel'!$H150*'Other input expert'!M$6","v":0},null,{"$f":"P150*'Other input expert'!B$14*'Sales price per sales channel'!$I150*'Other input expert'!B$6","v":0},{"$f":"Q150*'Other input expert'!C$14*'Sales price per sales channel'!$I150*'Other input expert'!C$6","v":0},{"$f":"R150*'Other input expert'!D$14*'Sales price per sales channel'!$I150*'Other input expert'!D$6","v":0},{"$f":"S150*'Other input expert'!E$14*'Sales price per sales channel'!$I150*'Other input expert'!E$6","v":0},{"$f":"T150*'Other input expert'!F$14*'Sales price per sales channel'!$I150*'Other input expert'!F$6","v":0},{"$f":"U150*'Other input expert'!G$14*'Sales price per sales channel'!$I150*'Other input expert'!G$6","v":0},{"$f":"V150*'Other input expert'!H$14*'Sales price per sales channel'!$I150*'Other input expert'!H$6","v":0},{"$f":"W150*'Other input expert'!I$14*'Sales price per sales channel'!$I150*'Other input expert'!I$6","v":0},{"$f":"X150*'Other input expert'!J$14*'Sales price per sales channel'!$I150*'Other input expert'!J$6","v":0},{"$f":"Y150*'Other input expert'!K$14*'Sales price per sales channel'!$I150*'Other input expert'!K$6","v":0},{"$f":"Z150*'Other input expert'!L$14*'Sales price per sales channel'!$I150*'Other input expert'!L$6","v":0},{"$f":"AA150*'Other input expert'!M$14*'Sales price per sales channel'!$I150*'Other input expert'!M$6","v":0},null,{"$f":"AC150*'Other input expert'!B$12*'Sales price per sales channel'!$G150*'Other input expert'!B$7","v":0},{"$f":"AD150*'Other input expert'!C$12*'Sales price per sales channel'!$G150*'Other input expert'!C$7","v":0},{"$f":"AE150*'Other input expert'!D$12*'Sales price per sales channel'!$G150*'Other input expert'!D$7","v":0},{"$f":"AF150*'Other input expert'!E$12*'Sales price per sales channel'!$G150*'Other input expert'!E$7","v":0},{"$f":"AG150*'Other input expert'!F$12*'Sales price per sales channel'!$G150*'Other input expert'!F$7","v":0},{"$f":"AH150*'Other input expert'!G$12*'Sales price per sales channel'!$G150*'Other input expert'!G$7","v":0},{"$f":"AI150*'Other input expert'!H$12*'Sales price per sales channel'!$G150*'Other input expert'!H$7","v":0},{"$f":"AJ150*'Other input expert'!I$12*'Sales price per sales channel'!$G150*'Other input expert'!I$7","v":0},{"$f":"AK150*'Other input expert'!J$12*'Sales price per sales channel'!$G150*'Other input expert'!J$7","v":0},{"$f":"AL150*'Other input expert'!K$12*'Sales price per sales channel'!$G150*'Other input expert'!K$7","v":0},{"$f":"AM150*'Other input expert'!L$12*'Sales price per sales channel'!$G150*'Other input expert'!L$7","v":0},{"$f":"AN150*'Other input expert'!M$12*'Sales price per sales channel'!$G150*'Other input expert'!M$7","v":0},null,{"$f":"AC150*'Other input expert'!B$13*'Sales price per sales channel'!$H150*'Other input expert'!B$7","v":0},{"$f":"AD150*'Other input expert'!C$13*'Sales price per sales channel'!$H150*'Other input expert'!C$7","v":0},{"$f":"AE150*'Other input expert'!D$13*'Sales price per sales channel'!$H150*'Other input expert'!D$7","v":0},{"$f":"AF150*'Other input expert'!E$13*'Sales price per sales channel'!$H150*'Other input expert'!E$7","v":0},{"$f":"AG150*'Other input expert'!F$13*'Sales price per sales channel'!$H150*'Other input expert'!F$7","v":0},{"$f":"AH150*'Other input expert'!G$13*'Sales price per sales channel'!$H150*'Other input expert'!G$7","v":0},{"$f":"AI150*'Other input expert'!H$13*'Sales price per sales channel'!$H150*'Other input expert'!H$7","v":0},{"$f":"AJ150*'Other input expert'!I$13*'Sales price per sales channel'!$H150*'Other input expert'!I$7","v":0},{"$f":"AK150*'Other input expert'!J$13*'Sales price per sales channel'!$H150*'Other input expert'!J$7","v":0},{"$f":"AL150*'Other input expert'!K$13*'Sales price per sales channel'!$H150*'Other input expert'!K$7","v":0},{"$f":"AM150*'Other input expert'!L$13*'Sales price per sales channel'!$H150*'Other input expert'!L$7","v":0},{"$f":"AN150*'Other input expert'!M$13*'Sales price per sales channel'!$H150*'Other input expert'!M$7","v":0},null,{"$f":"AC150*'Other input expert'!B$14*'Sales price per sales channel'!$I150*'Other input expert'!B$7","v":0},{"$f":"AD150*'Other input expert'!C$14*'Sales price per sales channel'!$I150*'Other input expert'!C$7","v":0},{"$f":"AE150*'Other input expert'!D$14*'Sales price per sales channel'!$I150*'Other input expert'!D$7","v":0},{"$f":"AF150*'Other input expert'!E$14*'Sales price per sales channel'!$I150*'Other input expert'!E$7","v":0},{"$f":"AG150*'Other input expert'!F$14*'Sales price per sales channel'!$I150*'Other input expert'!F$7","v":0},{"$f":"AH150*'Other input expert'!G$14*'Sales price per sales channel'!$I150*'Other input expert'!G$7","v":0},{"$f":"AI150*'Other input expert'!H$14*'Sales price per sales channel'!$I150*'Other input expert'!H$7","v":0},{"$f":"AJ150*'Other input expert'!I$14*'Sales price per sales channel'!$I150*'Other input expert'!I$7","v":0},{"$f":"AK150*'Other input expert'!J$14*'Sales price per sales channel'!$I150*'Other input expert'!J$7","v":0},{"$f":"AL150*'Other input expert'!K$14*'Sales price per sales channel'!$I150*'Other input expert'!K$7","v":0},{"$f":"AM150*'Other input expert'!L$14*'Sales price per sales channel'!$I150*'Other input expert'!L$7","v":0},{"$f":"AN150*'Other input expert'!M$14*'Sales price per sales channel'!$I150*'Other input expert'!M$7","v":0}]
["Ribes rubrum","Red currant",{"$f":"Plantlist!$G151*'Production list'!D152*'Other input expert'!B$4*'Other input expert'!B$8","v":0},{"$f":"Plantlist!$G151*'Production list'!E152*'Other input expert'!C$4*'Other input expert'!C$8","v":0},{"$f":"Plantlist!$G151*'Production list'!F152*'Other input expert'!D$4*'Other input expert'!D$8","v":0},{"$f":"Plantlist!$G151*'Production list'!G152*'Other input expert'!E$4*'Other input expert'!E$8","v":0},{"$f":"Plantlist!$G151*'Production list'!H152*'Other input expert'!F$4*'Other input expert'!F$8","v":0},{"$f":"Plantlist!$G151*'Production list'!I152*'Other input expert'!G$4*'Other input expert'!G$8","v":0},{"$f":"Plantlist!$G151*'Production list'!J152*'Other input expert'!H$4*'Other input expert'!H$8","v":0},{"$f":"Plantlist!$G151*'Production list'!K152*'Other input expert'!I$4*'Other input expert'!I$8","v":0},{"$f":"Plantlist!$G151*'Production list'!L152*'Other input expert'!J$4*'Other input expert'!J$8","v":0},{"$f":"Plantlist!$G151*'Production list'!M152*'Other input expert'!K$4*'Other input expert'!K$8","v":0},{"$f":"Plantlist!$G151*'Production list'!N152*'Other input expert'!L$4*'Other input expert'!L$8","v":0},{"$f":"Plantlist!$G151*'Production list'!O152*'Other input expert'!M$4*'Other input expert'!M$8","v":0},null,{"$f":"C151*'Other input expert'!B$5","v":0},{"$f":"D151*'Other input expert'!C$5","v":0},{"$f":"E151*'Other input expert'!D$5","v":0},{"$f":"F151*'Other input expert'!E$5","v":0},{"$f":"G151*'Other input expert'!F$5","v":0},{"$f":"H151*'Other input expert'!G$5","v":0},{"$f":"I151*'Other input expert'!H$5","v":0},{"$f":"J151*'Other input expert'!I$5","v":0},{"$f":"K151*'Other input expert'!J$5","v":0},{"$f":"L151*'Other input expert'!K$5","v":0},{"$f":"M151*'Other input expert'!L$5","v":0},{"$f":"N151*'Other input expert'!M$5","v":0},null,{"$f":"C151*(100%-'Other input expert'!B$5)","v":0},{"$f":"D151*(100%-'Other input expert'!C$5)","v":0},{"$f":"E151*(100%-'Other input expert'!D$5)","v":0},{"$f":"F151*(100%-'Other input expert'!E$5)","v":0},{"$f":"G151*(100%-'Other input expert'!F$5)","v":0},{"$f":"H151*(100%-'Other input expert'!G$5)","v":0},{"$f":"I151*(100%-'Other input expert'!H$5)","v":0},{"$f":"J151*(100%-'Other input expert'!I$5)","v":0},{"$f":"K151*(100%-'Other input expert'!J$5)","v":0},{"$f":"L151*(100%-'Other input expert'!K$5)","v":0},{"$f":"M151*(100%-'Other input expert'!L$5)","v":0},{"$f":"N151*(100%-'Other input expert'!M$5)","v":0},null,{"$f":"P151*'Other input expert'!B$12*'Sales price per sales channel'!$G151*'Other input expert'!B$6","v":0},{"$f":"Q151*'Other input expert'!C$12*'Sales price per sales channel'!$G151*'Other input expert'!C$6","v":0},{"$f":"R151*'Other input expert'!D$12*'Sales price per sales channel'!$G151*'Other input expert'!D$6","v":0},{"$f":"S151*'Other input expert'!E$12*'Sales price per sales channel'!$G151*'Other input expert'!E$6","v":0},{"$f":"T151*'Other input expert'!F$12*'Sales price per sales channel'!$G151*'Other input expert'!F$6","v":0},{"$f":"U151*'Other input expert'!G$12*'Sales price per sales channel'!$G151*'Other input expert'!G$6","v":0},{"$f":"V151*'Other input expert'!H$12*'Sales price per sales channel'!$G151*'Other input expert'!H$6","v":0},{"$f":"W151*'Other input expert'!I$12*'Sales price per sales channel'!$G151*'Other input expert'!I$6","v":0},{"$f":"X151*'Other input expert'!J$12*'Sales price per sales channel'!$G151*'Other input expert'!J$6","v":0},{"$f":"Y151*'Other input expert'!K$12*'Sales price per sales channel'!$G151*'Other input expert'!K$6","v":0},{"$f":"Z151*'Other input expert'!L$12*'Sales price per sales channel'!$G151*'Other input expert'!L$6","v":0},{"$f":"AA151*'Other input expert'!M$12*'Sales price per sales channel'!$G151*'Other input expert'!M$6","v":0},null,{"$f":"P151*'Other input expert'!B$13*'Sales price per sales channel'!$H151*'Other input expert'!B$6","v":0},{"$f":"Q151*'Other input expert'!C$13*'Sales price per sales channel'!$H151*'Other input expert'!C$6","v":0},{"$f":"R151*'Other input expert'!D$13*'Sales price per sales channel'!$H151*'Other input expert'!D$6","v":0},{"$f":"S151*'Other input expert'!E$13*'Sales price per sales channel'!$H151*'Other input expert'!E$6","v":0},{"$f":"T151*'Other input expert'!F$13*'Sales price per sales channel'!$H151*'Other input expert'!F$6","v":0},{"$f":"U151*'Other input expert'!G$13*'Sales price per sales channel'!$H151*'Other input expert'!G$6","v":0},{"$f":"V151*'Other input expert'!H$13*'Sales price per sales channel'!$H151*'Other input expert'!H$6","v":0},{"$f":"W151*'Other input expert'!I$13*'Sales price per sales channel'!$H151*'Other input expert'!I$6","v":0},{"$f":"X151*'Other input expert'!J$13*'Sales price per sales channel'!$H151*'Other input expert'!J$6","v":0},{"$f":"Y151*'Other input expert'!K$13*'Sales price per sales channel'!$H151*'Other input expert'!K$6","v":0},{"$f":"Z151*'Other input expert'!L$13*'Sales price per sales channel'!$H151*'Other input expert'!L$6","v":0},{"$f":"AA151*'Other input expert'!M$13*'Sales price per sales channel'!$H151*'Other input expert'!M$6","v":0},null,{"$f":"P151*'Other input expert'!B$14*'Sales price per sales channel'!$I151*'Other input expert'!B$6","v":0},{"$f":"Q151*'Other input expert'!C$14*'Sales price per sales channel'!$I151*'Other input expert'!C$6","v":0},{"$f":"R151*'Other input expert'!D$14*'Sales price per sales channel'!$I151*'Other input expert'!D$6","v":0},{"$f":"S151*'Other input expert'!E$14*'Sales price per sales channel'!$I151*'Other input expert'!E$6","v":0},{"$f":"T151*'Other input expert'!F$14*'Sales price per sales channel'!$I151*'Other input expert'!F$6","v":0},{"$f":"U151*'Other input expert'!G$14*'Sales price per sales channel'!$I151*'Other input expert'!G$6","v":0},{"$f":"V151*'Other input expert'!H$14*'Sales price per sales channel'!$I151*'Other input expert'!H$6","v":0},{"$f":"W151*'Other input expert'!I$14*'Sales price per sales channel'!$I151*'Other input expert'!I$6","v":0},{"$f":"X151*'Other input expert'!J$14*'Sales price per sales channel'!$I151*'Other input expert'!J$6","v":0},{"$f":"Y151*'Other input expert'!K$14*'Sales price per sales channel'!$I151*'Other input expert'!K$6","v":0},{"$f":"Z151*'Other input expert'!L$14*'Sales price per sales channel'!$I151*'Other input expert'!L$6","v":0},{"$f":"AA151*'Other input expert'!M$14*'Sales price per sales channel'!$I151*'Other input expert'!M$6","v":0},null,{"$f":"AC151*'Other input expert'!B$12*'Sales price per sales channel'!$G151*'Other input expert'!B$7","v":0},{"$f":"AD151*'Other input expert'!C$12*'Sales price per sales channel'!$G151*'Other input expert'!C$7","v":0},{"$f":"AE151*'Other input expert'!D$12*'Sales price per sales channel'!$G151*'Other input expert'!D$7","v":0},{"$f":"AF151*'Other input expert'!E$12*'Sales price per sales channel'!$G151*'Other input expert'!E$7","v":0},{"$f":"AG151*'Other input expert'!F$12*'Sales price per sales channel'!$G151*'Other input expert'!F$7","v":0},{"$f":"AH151*'Other input expert'!G$12*'Sales price per sales channel'!$G151*'Other input expert'!G$7","v":0},{"$f":"AI151*'Other input expert'!H$12*'Sales price per sales channel'!$G151*'Other input expert'!H$7","v":0},{"$f":"AJ151*'Other input expert'!I$12*'Sales price per sales channel'!$G151*'Other input expert'!I$7","v":0},{"$f":"AK151*'Other input expert'!J$12*'Sales price per sales channel'!$G151*'Other input expert'!J$7","v":0},{"$f":"AL151*'Other input expert'!K$12*'Sales price per sales channel'!$G151*'Other input expert'!K$7","v":0},{"$f":"AM151*'Other input expert'!L$12*'Sales price per sales channel'!$G151*'Other input expert'!L$7","v":0},{"$f":"AN151*'Other input expert'!M$12*'Sales price per sales channel'!$G151*'Other input expert'!M$7","v":0},null,{"$f":"AC151*'Other input expert'!B$13*'Sales price per sales channel'!$H151*'Other input expert'!B$7","v":0},{"$f":"AD151*'Other input expert'!C$13*'Sales price per sales channel'!$H151*'Other input expert'!C$7","v":0},{"$f":"AE151*'Other input expert'!D$13*'Sales price per sales channel'!$H151*'Other input expert'!D$7","v":0},{"$f":"AF151*'Other input expert'!E$13*'Sales price per sales channel'!$H151*'Other input expert'!E$7","v":0},{"$f":"AG151*'Other input expert'!F$13*'Sales price per sales channel'!$H151*'Other input expert'!F$7","v":0},{"$f":"AH151*'Other input expert'!G$13*'Sales price per sales channel'!$H151*'Other input expert'!G$7","v":0},{"$f":"AI151*'Other input expert'!H$13*'Sales price per sales channel'!$H151*'Other input expert'!H$7","v":0},{"$f":"AJ151*'Other input expert'!I$13*'Sales price per sales channel'!$H151*'Other input expert'!I$7","v":0},{"$f":"AK151*'Other input expert'!J$13*'Sales price per sales channel'!$H151*'Other input expert'!J$7","v":0},{"$f":"AL151*'Other input expert'!K$13*'Sales price per sales channel'!$H151*'Other input expert'!K$7","v":0},{"$f":"AM151*'Other input expert'!L$13*'Sales price per sales channel'!$H151*'Other input expert'!L$7","v":0},{"$f":"AN151*'Other input expert'!M$13*'Sales price per sales channel'!$H151*'Other input expert'!M$7","v":0},null,{"$f":"AC151*'Other input expert'!B$14*'Sales price per sales channel'!$I151*'Other input expert'!B$7","v":0},{"$f":"AD151*'Other input expert'!C$14*'Sales price per sales channel'!$I151*'Other input expert'!C$7","v":0},{"$f":"AE151*'Other input expert'!D$14*'Sales price per sales channel'!$I151*'Other input expert'!D$7","v":0},{"$f":"AF151*'Other input expert'!E$14*'Sales price per sales channel'!$I151*'Other input expert'!E$7","v":0},{"$f":"AG151*'Other input expert'!F$14*'Sales price per sales channel'!$I151*'Other input expert'!F$7","v":0},{"$f":"AH151*'Other input expert'!G$14*'Sales price per sales channel'!$I151*'Other input expert'!G$7","v":0},{"$f":"AI151*'Other input expert'!H$14*'Sales price per sales channel'!$I151*'Other input expert'!H$7","v":0},{"$f":"AJ151*'Other input expert'!I$14*'Sales price per sales channel'!$I151*'Other input expert'!I$7","v":0},{"$f":"AK151*'Other input expert'!J$14*'Sales price per sales channel'!$I151*'Other input expert'!J$7","v":0},{"$f":"AL151*'Other input expert'!K$14*'Sales price per sales channel'!$I151*'Other input expert'!K$7","v":0},{"$f":"AM151*'Other input expert'!L$14*'Sales price per sales channel'!$I151*'Other input expert'!L$7","v":0},{"$f":"AN151*'Other input expert'!M$14*'Sales price per sales channel'!$I151*'Other input expert'!M$7","v":0}]
["Ribes Uva-Crispa","Gooseberry",{"$f":"Plantlist!$G152*'Production list'!D153*'Other input expert'!B$4*'Other input expert'!B$8","v":0},{"$f":"Plantlist!$G152*'Production list'!E153*'Other input expert'!C$4*'Other input expert'!C$8","v":0},{"$f":"Plantlist!$G152*'Production list'!F153*'Other input expert'!D$4*'Other input expert'!D$8","v":0},{"$f":"Plantlist!$G152*'Production list'!G153*'Other input expert'!E$4*'Other input expert'!E$8","v":0},{"$f":"Plantlist!$G152*'Production list'!H153*'Other input expert'!F$4*'Other input expert'!F$8","v":0},{"$f":"Plantlist!$G152*'Production list'!I153*'Other input expert'!G$4*'Other input expert'!G$8","v":0},{"$f":"Plantlist!$G152*'Production list'!J153*'Other input expert'!H$4*'Other input expert'!H$8","v":0},{"$f":"Plantlist!$G152*'Production list'!K153*'Other input expert'!I$4*'Other input expert'!I$8","v":0},{"$f":"Plantlist!$G152*'Production list'!L153*'Other input expert'!J$4*'Other input expert'!J$8","v":0},{"$f":"Plantlist!$G152*'Production list'!M153*'Other input expert'!K$4*'Other input expert'!K$8","v":0},{"$f":"Plantlist!$G152*'Production list'!N153*'Other input expert'!L$4*'Other input expert'!L$8","v":0},{"$f":"Plantlist!$G152*'Production list'!O153*'Other input expert'!M$4*'Other input expert'!M$8","v":0},null,{"$f":"C152*'Other input expert'!B$5","v":0},{"$f":"D152*'Other input expert'!C$5","v":0},{"$f":"E152*'Other input expert'!D$5","v":0},{"$f":"F152*'Other input expert'!E$5","v":0},{"$f":"G152*'Other input expert'!F$5","v":0},{"$f":"H152*'Other input expert'!G$5","v":0},{"$f":"I152*'Other input expert'!H$5","v":0},{"$f":"J152*'Other input expert'!I$5","v":0},{"$f":"K152*'Other input expert'!J$5","v":0},{"$f":"L152*'Other input expert'!K$5","v":0},{"$f":"M152*'Other input expert'!L$5","v":0},{"$f":"N152*'Other input expert'!M$5","v":0},null,{"$f":"C152*(100%-'Other input expert'!B$5)","v":0},{"$f":"D152*(100%-'Other input expert'!C$5)","v":0},{"$f":"E152*(100%-'Other input expert'!D$5)","v":0},{"$f":"F152*(100%-'Other input expert'!E$5)","v":0},{"$f":"G152*(100%-'Other input expert'!F$5)","v":0},{"$f":"H152*(100%-'Other input expert'!G$5)","v":0},{"$f":"I152*(100%-'Other input expert'!H$5)","v":0},{"$f":"J152*(100%-'Other input expert'!I$5)","v":0},{"$f":"K152*(100%-'Other input expert'!J$5)","v":0},{"$f":"L152*(100%-'Other input expert'!K$5)","v":0},{"$f":"M152*(100%-'Other input expert'!L$5)","v":0},{"$f":"N152*(100%-'Other input expert'!M$5)","v":0},null,{"$f":"P152*'Other input expert'!B$12*'Sales price per sales channel'!$G152*'Other input expert'!B$6","v":0},{"$f":"Q152*'Other input expert'!C$12*'Sales price per sales channel'!$G152*'Other input expert'!C$6","v":0},{"$f":"R152*'Other input expert'!D$12*'Sales price per sales channel'!$G152*'Other input expert'!D$6","v":0},{"$f":"S152*'Other input expert'!E$12*'Sales price per sales channel'!$G152*'Other input expert'!E$6","v":0},{"$f":"T152*'Other input expert'!F$12*'Sales price per sales channel'!$G152*'Other input expert'!F$6","v":0},{"$f":"U152*'Other input expert'!G$12*'Sales price per sales channel'!$G152*'Other input expert'!G$6","v":0},{"$f":"V152*'Other input expert'!H$12*'Sales price per sales channel'!$G152*'Other input expert'!H$6","v":0},{"$f":"W152*'Other input expert'!I$12*'Sales price per sales channel'!$G152*'Other input expert'!I$6","v":0},{"$f":"X152*'Other input expert'!J$12*'Sales price per sales channel'!$G152*'Other input expert'!J$6","v":0},{"$f":"Y152*'Other input expert'!K$12*'Sales price per sales channel'!$G152*'Other input expert'!K$6","v":0},{"$f":"Z152*'Other input expert'!L$12*'Sales price per sales channel'!$G152*'Other input expert'!L$6","v":0},{"$f":"AA152*'Other input expert'!M$12*'Sales price per sales channel'!$G152*'Other input expert'!M$6","v":0},null,{"$f":"P152*'Other input expert'!B$13*'Sales price per sales channel'!$H152*'Other input expert'!B$6","v":0},{"$f":"Q152*'Other input expert'!C$13*'Sales price per sales channel'!$H152*'Other input expert'!C$6","v":0},{"$f":"R152*'Other input expert'!D$13*'Sales price per sales channel'!$H152*'Other input expert'!D$6","v":0},{"$f":"S152*'Other input expert'!E$13*'Sales price per sales channel'!$H152*'Other input expert'!E$6","v":0},{"$f":"T152*'Other input expert'!F$13*'Sales price per sales channel'!$H152*'Other input expert'!F$6","v":0},{"$f":"U152*'Other input expert'!G$13*'Sales price per sales channel'!$H152*'Other input expert'!G$6","v":0},{"$f":"V152*'Other input expert'!H$13*'Sales price per sales channel'!$H152*'Other input expert'!H$6","v":0},{"$f":"W152*'Other input expert'!I$13*'Sales price per sales channel'!$H152*'Other input expert'!I$6","v":0},{"$f":"X152*'Other input expert'!J$13*'Sales price per sales channel'!$H152*'Other input expert'!J$6","v":0},{"$f":"Y152*'Other input expert'!K$13*'Sales price per sales channel'!$H152*'Other input expert'!K$6","v":0},{"$f":"Z152*'Other input expert'!L$13*'Sales price per sales channel'!$H152*'Other input expert'!L$6","v":0},{"$f":"AA152*'Other input expert'!M$13*'Sales price per sales channel'!$H152*'Other input expert'!M$6","v":0},null,{"$f":"P152*'Other input expert'!B$14*'Sales price per sales channel'!$I152*'Other input expert'!B$6","v":0},{"$f":"Q152*'Other input expert'!C$14*'Sales price per sales channel'!$I152*'Other input expert'!C$6","v":0},{"$f":"R152*'Other input expert'!D$14*'Sales price per sales channel'!$I152*'Other input expert'!D$6","v":0},{"$f":"S152*'Other input expert'!E$14*'Sales price per sales channel'!$I152*'Other input expert'!E$6","v":0},{"$f":"T152*'Other input expert'!F$14*'Sales price per sales channel'!$I152*'Other input expert'!F$6","v":0},{"$f":"U152*'Other input expert'!G$14*'Sales price per sales channel'!$I152*'Other input expert'!G$6","v":0},{"$f":"V152*'Other input expert'!H$14*'Sales price per sales channel'!$I152*'Other input expert'!H$6","v":0},{"$f":"W152*'Other input expert'!I$14*'Sales price per sales channel'!$I152*'Other input expert'!I$6","v":0},{"$f":"X152*'Other input expert'!J$14*'Sales price per sales channel'!$I152*'Other input expert'!J$6","v":0},{"$f":"Y152*'Other input expert'!K$14*'Sales price per sales channel'!$I152*'Other input expert'!K$6","v":0},{"$f":"Z152*'Other input expert'!L$14*'Sales price per sales channel'!$I152*'Other input expert'!L$6","v":0},{"$f":"AA152*'Other input expert'!M$14*'Sales price per sales channel'!$I152*'Other input expert'!M$6","v":0},null,{"$f":"AC152*'Other input expert'!B$12*'Sales price per sales channel'!$G152*'Other input expert'!B$7","v":0},{"$f":"AD152*'Other input expert'!C$12*'Sales price per sales channel'!$G152*'Other input expert'!C$7","v":0},{"$f":"AE152*'Other input expert'!D$12*'Sales price per sales channel'!$G152*'Other input expert'!D$7","v":0},{"$f":"AF152*'Other input expert'!E$12*'Sales price per sales channel'!$G152*'Other input expert'!E$7","v":0},{"$f":"AG152*'Other input expert'!F$12*'Sales price per sales channel'!$G152*'Other input expert'!F$7","v":0},{"$f":"AH152*'Other input expert'!G$12*'Sales price per sales channel'!$G152*'Other input expert'!G$7","v":0},{"$f":"AI152*'Other input expert'!H$12*'Sales price per sales channel'!$G152*'Other input expert'!H$7","v":0},{"$f":"AJ152*'Other input expert'!I$12*'Sales price per sales channel'!$G152*'Other input expert'!I$7","v":0},{"$f":"AK152*'Other input expert'!J$12*'Sales price per sales channel'!$G152*'Other input expert'!J$7","v":0},{"$f":"AL152*'Other input expert'!K$12*'Sales price per sales channel'!$G152*'Other input expert'!K$7","v":0},{"$f":"AM152*'Other input expert'!L$12*'Sales price per sales channel'!$G152*'Other input expert'!L$7","v":0},{"$f":"AN152*'Other input expert'!M$12*'Sales price per sales channel'!$G152*'Other input expert'!M$7","v":0},null,{"$f":"AC152*'Other input expert'!B$13*'Sales price per sales channel'!$H152*'Other input expert'!B$7","v":0},{"$f":"AD152*'Other input expert'!C$13*'Sales price per sales channel'!$H152*'Other input expert'!C$7","v":0},{"$f":"AE152*'Other input expert'!D$13*'Sales price per sales channel'!$H152*'Other input expert'!D$7","v":0},{"$f":"AF152*'Other input expert'!E$13*'Sales price per sales channel'!$H152*'Other input expert'!E$7","v":0},{"$f":"AG152*'Other input expert'!F$13*'Sales price per sales channel'!$H152*'Other input expert'!F$7","v":0},{"$f":"AH152*'Other input expert'!G$13*'Sales price per sales channel'!$H152*'Other input expert'!G$7","v":0},{"$f":"AI152*'Other input expert'!H$13*'Sales price per sales channel'!$H152*'Other input expert'!H$7","v":0},{"$f":"AJ152*'Other input expert'!I$13*'Sales price per sales channel'!$H152*'Other input expert'!I$7","v":0},{"$f":"AK152*'Other input expert'!J$13*'Sales price per sales channel'!$H152*'Other input expert'!J$7","v":0},{"$f":"AL152*'Other input expert'!K$13*'Sales price per sales channel'!$H152*'Other input expert'!K$7","v":0},{"$f":"AM152*'Other input expert'!L$13*'Sales price per sales channel'!$H152*'Other input expert'!L$7","v":0},{"$f":"AN152*'Other input expert'!M$13*'Sales price per sales channel'!$H152*'Other input expert'!M$7","v":0},null,{"$f":"AC152*'Other input expert'!B$14*'Sales price per sales channel'!$I152*'Other input expert'!B$7","v":0},{"$f":"AD152*'Other input expert'!C$14*'Sales price per sales channel'!$I152*'Other input expert'!C$7","v":0},{"$f":"AE152*'Other input expert'!D$14*'Sales price per sales channel'!$I152*'Other input expert'!D$7","v":0},{"$f":"AF152*'Other input expert'!E$14*'Sales price per sales channel'!$I152*'Other input expert'!E$7","v":0},{"$f":"AG152*'Other input expert'!F$14*'Sales price per sales channel'!$I152*'Other input expert'!F$7","v":0},{"$f":"AH152*'Other input expert'!G$14*'Sales price per sales channel'!$I152*'Other input expert'!G$7","v":0},{"$f":"AI152*'Other input expert'!H$14*'Sales price per sales channel'!$I152*'Other input expert'!H$7","v":0},{"$f":"AJ152*'Other input expert'!I$14*'Sales price per sales channel'!$I152*'Other input expert'!I$7","v":0},{"$f":"AK152*'Other input expert'!J$14*'Sales price per sales channel'!$I152*'Other input expert'!J$7","v":0},{"$f":"AL152*'Other input expert'!K$14*'Sales price per sales channel'!$I152*'Other input expert'!K$7","v":0},{"$f":"AM152*'Other input expert'!L$14*'Sales price per sales channel'!$I152*'Other input expert'!L$7","v":0},{"$f":"AN152*'Other input expert'!M$14*'Sales price per sales channel'!$I152*'Other input expert'!M$7","v":0}]
["Ribes x. nidigrolaria","Jostaberry",{"$f":"Plantlist!$G153*'Production list'!D154*'Other input expert'!B$4*'Other input expert'!B$8","v":0},{"$f":"Plantlist!$G153*'Production list'!E154*'Other input expert'!C$4*'Other input expert'!C$8","v":0},{"$f":"Plantlist!$G153*'Production list'!F154*'Other input expert'!D$4*'Other input expert'!D$8","v":0},{"$f":"Plantlist!$G153*'Production list'!G154*'Other input expert'!E$4*'Other input expert'!E$8","v":0},{"$f":"Plantlist!$G153*'Production list'!H154*'Other input expert'!F$4*'Other input expert'!F$8","v":0},{"$f":"Plantlist!$G153*'Production list'!I154*'Other input expert'!G$4*'Other input expert'!G$8","v":0},{"$f":"Plantlist!$G153*'Production list'!J154*'Other input expert'!H$4*'Other input expert'!H$8","v":0},{"$f":"Plantlist!$G153*'Production list'!K154*'Other input expert'!I$4*'Other input expert'!I$8","v":0},{"$f":"Plantlist!$G153*'Production list'!L154*'Other input expert'!J$4*'Other input expert'!J$8","v":0},{"$f":"Plantlist!$G153*'Production list'!M154*'Other input expert'!K$4*'Other input expert'!K$8","v":0},{"$f":"Plantlist!$G153*'Production list'!N154*'Other input expert'!L$4*'Other input expert'!L$8","v":0},{"$f":"Plantlist!$G153*'Production list'!O154*'Other input expert'!M$4*'Other input expert'!M$8","v":0},null,{"$f":"C153*'Other input expert'!B$5","v":0},{"$f":"D153*'Other input expert'!C$5","v":0},{"$f":"E153*'Other input expert'!D$5","v":0},{"$f":"F153*'Other input expert'!E$5","v":0},{"$f":"G153*'Other input expert'!F$5","v":0},{"$f":"H153*'Other input expert'!G$5","v":0},{"$f":"I153*'Other input expert'!H$5","v":0},{"$f":"J153*'Other input expert'!I$5","v":0},{"$f":"K153*'Other input expert'!J$5","v":0},{"$f":"L153*'Other input expert'!K$5","v":0},{"$f":"M153*'Other input expert'!L$5","v":0},{"$f":"N153*'Other input expert'!M$5","v":0},null,{"$f":"C153*(100%-'Other input expert'!B$5)","v":0},{"$f":"D153*(100%-'Other input expert'!C$5)","v":0},{"$f":"E153*(100%-'Other input expert'!D$5)","v":0},{"$f":"F153*(100%-'Other input expert'!E$5)","v":0},{"$f":"G153*(100%-'Other input expert'!F$5)","v":0},{"$f":"H153*(100%-'Other input expert'!G$5)","v":0},{"$f":"I153*(100%-'Other input expert'!H$5)","v":0},{"$f":"J153*(100%-'Other input expert'!I$5)","v":0},{"$f":"K153*(100%-'Other input expert'!J$5)","v":0},{"$f":"L153*(100%-'Other input expert'!K$5)","v":0},{"$f":"M153*(100%-'Other input expert'!L$5)","v":0},{"$f":"N153*(100%-'Other input expert'!M$5)","v":0},null,{"$f":"P153*'Other input expert'!B$12*'Sales price per sales channel'!$G153*'Other input expert'!B$6","v":0},{"$f":"Q153*'Other input expert'!C$12*'Sales price per sales channel'!$G153*'Other input expert'!C$6","v":0},{"$f":"R153*'Other input expert'!D$12*'Sales price per sales channel'!$G153*'Other input expert'!D$6","v":0},{"$f":"S153*'Other input expert'!E$12*'Sales price per sales channel'!$G153*'Other input expert'!E$6","v":0},{"$f":"T153*'Other input expert'!F$12*'Sales price per sales channel'!$G153*'Other input expert'!F$6","v":0},{"$f":"U153*'Other input expert'!G$12*'Sales price per sales channel'!$G153*'Other input expert'!G$6","v":0},{"$f":"V153*'Other input expert'!H$12*'Sales price per sales channel'!$G153*'Other input expert'!H$6","v":0},{"$f":"W153*'Other input expert'!I$12*'Sales price per sales channel'!$G153*'Other input expert'!I$6","v":0},{"$f":"X153*'Other input expert'!J$12*'Sales price per sales channel'!$G153*'Other input expert'!J$6","v":0},{"$f":"Y153*'Other input expert'!K$12*'Sales price per sales channel'!$G153*'Other input expert'!K$6","v":0},{"$f":"Z153*'Other input expert'!L$12*'Sales price per sales channel'!$G153*'Other input expert'!L$6","v":0},{"$f":"AA153*'Other input expert'!M$12*'Sales price per sales channel'!$G153*'Other input expert'!M$6","v":0},null,{"$f":"P153*'Other input expert'!B$13*'Sales price per sales channel'!$H153*'Other input expert'!B$6","v":0},{"$f":"Q153*'Other input expert'!C$13*'Sales price per sales channel'!$H153*'Other input expert'!C$6","v":0},{"$f":"R153*'Other input expert'!D$13*'Sales price per sales channel'!$H153*'Other input expert'!D$6","v":0},{"$f":"S153*'Other input expert'!E$13*'Sales price per sales channel'!$H153*'Other input expert'!E$6","v":0},{"$f":"T153*'Other input expert'!F$13*'Sales price per sales channel'!$H153*'Other input expert'!F$6","v":0},{"$f":"U153*'Other input expert'!G$13*'Sales price per sales channel'!$H153*'Other input expert'!G$6","v":0},{"$f":"V153*'Other input expert'!H$13*'Sales price per sales channel'!$H153*'Other input expert'!H$6","v":0},{"$f":"W153*'Other input expert'!I$13*'Sales price per sales channel'!$H153*'Other input expert'!I$6","v":0},{"$f":"X153*'Other input expert'!J$13*'Sales price per sales channel'!$H153*'Other input expert'!J$6","v":0},{"$f":"Y153*'Other input expert'!K$13*'Sales price per sales channel'!$H153*'Other input expert'!K$6","v":0},{"$f":"Z153*'Other input expert'!L$13*'Sales price per sales channel'!$H153*'Other input expert'!L$6","v":0},{"$f":"AA153*'Other input expert'!M$13*'Sales price per sales channel'!$H153*'Other input expert'!M$6","v":0},null,{"$f":"P153*'Other input expert'!B$14*'Sales price per sales channel'!$I153*'Other input expert'!B$6","v":0},{"$f":"Q153*'Other input expert'!C$14*'Sales price per sales channel'!$I153*'Other input expert'!C$6","v":0},{"$f":"R153*'Other input expert'!D$14*'Sales price per sales channel'!$I153*'Other input expert'!D$6","v":0},{"$f":"S153*'Other input expert'!E$14*'Sales price per sales channel'!$I153*'Other input expert'!E$6","v":0},{"$f":"T153*'Other input expert'!F$14*'Sales price per sales channel'!$I153*'Other input expert'!F$6","v":0},{"$f":"U153*'Other input expert'!G$14*'Sales price per sales channel'!$I153*'Other input expert'!G$6","v":0},{"$f":"V153*'Other input expert'!H$14*'Sales price per sales channel'!$I153*'Other input expert'!H$6","v":0},{"$f":"W153*'Other input expert'!I$14*'Sales price per sales channel'!$I153*'Other input expert'!I$6","v":0},{"$f":"X153*'Other input expert'!J$14*'Sales price per sales channel'!$I153*'Other input expert'!J$6","v":0},{"$f":"Y153*'Other input expert'!K$14*'Sales price per sales channel'!$I153*'Other input expert'!K$6","v":0},{"$f":"Z153*'Other input expert'!L$14*'Sales price per sales channel'!$I153*'Other input expert'!L$6","v":0},{"$f":"AA153*'Other input expert'!M$14*'Sales price per sales channel'!$I153*'Other input expert'!M$6","v":0},null,{"$f":"AC153*'Other input expert'!B$12*'Sales price per sales channel'!$G153*'Other input expert'!B$7","v":0},{"$f":"AD153*'Other input expert'!C$12*'Sales price per sales channel'!$G153*'Other input expert'!C$7","v":0},{"$f":"AE153*'Other input expert'!D$12*'Sales price per sales channel'!$G153*'Other input expert'!D$7","v":0},{"$f":"AF153*'Other input expert'!E$12*'Sales price per sales channel'!$G153*'Other input expert'!E$7","v":0},{"$f":"AG153*'Other input expert'!F$12*'Sales price per sales channel'!$G153*'Other input expert'!F$7","v":0},{"$f":"AH153*'Other input expert'!G$12*'Sales price per sales channel'!$G153*'Other input expert'!G$7","v":0},{"$f":"AI153*'Other input expert'!H$12*'Sales price per sales channel'!$G153*'Other input expert'!H$7","v":0},{"$f":"AJ153*'Other input expert'!I$12*'Sales price per sales channel'!$G153*'Other input expert'!I$7","v":0},{"$f":"AK153*'Other input expert'!J$12*'Sales price per sales channel'!$G153*'Other input expert'!J$7","v":0},{"$f":"AL153*'Other input expert'!K$12*'Sales price per sales channel'!$G153*'Other input expert'!K$7","v":0},{"$f":"AM153*'Other input expert'!L$12*'Sales price per sales channel'!$G153*'Other input expert'!L$7","v":0},{"$f":"AN153*'Other input expert'!M$12*'Sales price per sales channel'!$G153*'Other input expert'!M$7","v":0},null,{"$f":"AC153*'Other input expert'!B$13*'Sales price per sales channel'!$H153*'Other input expert'!B$7","v":0},{"$f":"AD153*'Other input expert'!C$13*'Sales price per sales channel'!$H153*'Other input expert'!C$7","v":0},{"$f":"AE153*'Other input expert'!D$13*'Sales price per sales channel'!$H153*'Other input expert'!D$7","v":0},{"$f":"AF153*'Other input expert'!E$13*'Sales price per sales channel'!$H153*'Other input expert'!E$7","v":0},{"$f":"AG153*'Other input expert'!F$13*'Sales price per sales channel'!$H153*'Other input expert'!F$7","v":0},{"$f":"AH153*'Other input expert'!G$13*'Sales price per sales channel'!$H153*'Other input expert'!G$7","v":0},{"$f":"AI153*'Other input expert'!H$13*'Sales price per sales channel'!$H153*'Other input expert'!H$7","v":0},{"$f":"AJ153*'Other input expert'!I$13*'Sales price per sales channel'!$H153*'Other input expert'!I$7","v":0},{"$f":"AK153*'Other input expert'!J$13*'Sales price per sales channel'!$H153*'Other input expert'!J$7","v":0},{"$f":"AL153*'Other input expert'!K$13*'Sales price per sales channel'!$H153*'Other input expert'!K$7","v":0},{"$f":"AM153*'Other input expert'!L$13*'Sales price per sales channel'!$H153*'Other input expert'!L$7","v":0},{"$f":"AN153*'Other input expert'!M$13*'Sales price per sales channel'!$H153*'Other input expert'!M$7","v":0},null,{"$f":"AC153*'Other input expert'!B$14*'Sales price per sales channel'!$I153*'Other input expert'!B$7","v":0},{"$f":"AD153*'Other input expert'!C$14*'Sales price per sales channel'!$I153*'Other input expert'!C$7","v":0},{"$f":"AE153*'Other input expert'!D$14*'Sales price per sales channel'!$I153*'Other input expert'!D$7","v":0},{"$f":"AF153*'Other input expert'!E$14*'Sales price per sales channel'!$I153*'Other input expert'!E$7","v":0},{"$f":"AG153*'Other input expert'!F$14*'Sales price per sales channel'!$I153*'Other input expert'!F$7","v":0},{"$f":"AH153*'Other input expert'!G$14*'Sales price per sales channel'!$I153*'Other input expert'!G$7","v":0},{"$f":"AI153*'Other input expert'!H$14*'Sales price per sales channel'!$I153*'Other input expert'!H$7","v":0},{"$f":"AJ153*'Other input expert'!I$14*'Sales price per sales channel'!$I153*'Other input expert'!I$7","v":0},{"$f":"AK153*'Other input expert'!J$14*'Sales price per sales channel'!$I153*'Other input expert'!J$7","v":0},{"$f":"AL153*'Other input expert'!K$14*'Sales price per sales channel'!$I153*'Other input expert'!K$7","v":0},{"$f":"AM153*'Other input expert'!L$14*'Sales price per sales channel'!$I153*'Other input expert'!L$7","v":0},{"$f":"AN153*'Other input expert'!M$14*'Sales price per sales channel'!$I153*'Other input expert'!M$7","v":0}]
["Robinia pseudoacacia","Black locust",{"$f":"Plantlist!$G154*'Production list'!D155*'Other input expert'!B$4*'Other input expert'!B$8","v":0},{"$f":"Plantlist!$G154*'Production list'!E155*'Other input expert'!C$4*'Other input expert'!C$8","v":0},{"$f":"Plantlist!$G154*'Production list'!F155*'Other input expert'!D$4*'Other input expert'!D$8","v":0},{"$f":"Plantlist!$G154*'Production list'!G155*'Other input expert'!E$4*'Other input expert'!E$8","v":0},{"$f":"Plantlist!$G154*'Production list'!H155*'Other input expert'!F$4*'Other input expert'!F$8","v":0},{"$f":"Plantlist!$G154*'Production list'!I155*'Other input expert'!G$4*'Other input expert'!G$8","v":0},{"$f":"Plantlist!$G154*'Production list'!J155*'Other input expert'!H$4*'Other input expert'!H$8","v":0},{"$f":"Plantlist!$G154*'Production list'!K155*'Other input expert'!I$4*'Other input expert'!I$8","v":0},{"$f":"Plantlist!$G154*'Production list'!L155*'Other input expert'!J$4*'Other input expert'!J$8","v":0},{"$f":"Plantlist!$G154*'Production list'!M155*'Other input expert'!K$4*'Other input expert'!K$8","v":0},{"$f":"Plantlist!$G154*'Production list'!N155*'Other input expert'!L$4*'Other input expert'!L$8","v":0},{"$f":"Plantlist!$G154*'Production list'!O155*'Other input expert'!M$4*'Other input expert'!M$8","v":0},null,{"$f":"C154*'Other input expert'!B$5","v":0},{"$f":"D154*'Other input expert'!C$5","v":0},{"$f":"E154*'Other input expert'!D$5","v":0},{"$f":"F154*'Other input expert'!E$5","v":0},{"$f":"G154*'Other input expert'!F$5","v":0},{"$f":"H154*'Other input expert'!G$5","v":0},{"$f":"I154*'Other input expert'!H$5","v":0},{"$f":"J154*'Other input expert'!I$5","v":0},{"$f":"K154*'Other input expert'!J$5","v":0},{"$f":"L154*'Other input expert'!K$5","v":0},{"$f":"M154*'Other input expert'!L$5","v":0},{"$f":"N154*'Other input expert'!M$5","v":0},null,{"$f":"C154*(100%-'Other input expert'!B$5)","v":0},{"$f":"D154*(100%-'Other input expert'!C$5)","v":0},{"$f":"E154*(100%-'Other input expert'!D$5)","v":0},{"$f":"F154*(100%-'Other input expert'!E$5)","v":0},{"$f":"G154*(100%-'Other input expert'!F$5)","v":0},{"$f":"H154*(100%-'Other input expert'!G$5)","v":0},{"$f":"I154*(100%-'Other input expert'!H$5)","v":0},{"$f":"J154*(100%-'Other input expert'!I$5)","v":0},{"$f":"K154*(100%-'Other input expert'!J$5)","v":0},{"$f":"L154*(100%-'Other input expert'!K$5)","v":0},{"$f":"M154*(100%-'Other input expert'!L$5)","v":0},{"$f":"N154*(100%-'Other input expert'!M$5)","v":0},null,{"$f":"P154*'Other input expert'!B$12*'Sales price per sales channel'!$G154*'Other input expert'!B$6","v":0},{"$f":"Q154*'Other input expert'!C$12*'Sales price per sales channel'!$G154*'Other input expert'!C$6","v":0},{"$f":"R154*'Other input expert'!D$12*'Sales price per sales channel'!$G154*'Other input expert'!D$6","v":0},{"$f":"S154*'Other input expert'!E$12*'Sales price per sales channel'!$G154*'Other input expert'!E$6","v":0},{"$f":"T154*'Other input expert'!F$12*'Sales price per sales channel'!$G154*'Other input expert'!F$6","v":0},{"$f":"U154*'Other input expert'!G$12*'Sales price per sales channel'!$G154*'Other input expert'!G$6","v":0},{"$f":"V154*'Other input expert'!H$12*'Sales price per sales channel'!$G154*'Other input expert'!H$6","v":0},{"$f":"W154*'Other input expert'!I$12*'Sales price per sales channel'!$G154*'Other input expert'!I$6","v":0},{"$f":"X154*'Other input expert'!J$12*'Sales price per sales channel'!$G154*'Other input expert'!J$6","v":0},{"$f":"Y154*'Other input expert'!K$12*'Sales price per sales channel'!$G154*'Other input expert'!K$6","v":0},{"$f":"Z154*'Other input expert'!L$12*'Sales price per sales channel'!$G154*'Other input expert'!L$6","v":0},{"$f":"AA154*'Other input expert'!M$12*'Sales price per sales channel'!$G154*'Other input expert'!M$6","v":0},null,{"$f":"P154*'Other input expert'!B$13*'Sales price per sales channel'!$H154*'Other input expert'!B$6","v":0},{"$f":"Q154*'Other input expert'!C$13*'Sales price per sales channel'!$H154*'Other input expert'!C$6","v":0},{"$f":"R154*'Other input expert'!D$13*'Sales price per sales channel'!$H154*'Other input expert'!D$6","v":0},{"$f":"S154*'Other input expert'!E$13*'Sales price per sales channel'!$H154*'Other input expert'!E$6","v":0},{"$f":"T154*'Other input expert'!F$13*'Sales price per sales channel'!$H154*'Other input expert'!F$6","v":0},{"$f":"U154*'Other input expert'!G$13*'Sales price per sales channel'!$H154*'Other input expert'!G$6","v":0},{"$f":"V154*'Other input expert'!H$13*'Sales price per sales channel'!$H154*'Other input expert'!H$6","v":0},{"$f":"W154*'Other input expert'!I$13*'Sales price per sales channel'!$H154*'Other input expert'!I$6","v":0},{"$f":"X154*'Other input expert'!J$13*'Sales price per sales channel'!$H154*'Other input expert'!J$6","v":0},{"$f":"Y154*'Other input expert'!K$13*'Sales price per sales channel'!$H154*'Other input expert'!K$6","v":0},{"$f":"Z154*'Other input expert'!L$13*'Sales price per sales channel'!$H154*'Other input expert'!L$6","v":0},{"$f":"AA154*'Other input expert'!M$13*'Sales price per sales channel'!$H154*'Other input expert'!M$6","v":0},null,{"$f":"P154*'Other input expert'!B$14*'Sales price per sales channel'!$I154*'Other input expert'!B$6","v":0},{"$f":"Q154*'Other input expert'!C$14*'Sales price per sales channel'!$I154*'Other input expert'!C$6","v":0},{"$f":"R154*'Other input expert'!D$14*'Sales price per sales channel'!$I154*'Other input expert'!D$6","v":0},{"$f":"S154*'Other input expert'!E$14*'Sales price per sales channel'!$I154*'Other input expert'!E$6","v":0},{"$f":"T154*'Other input expert'!F$14*'Sales price per sales channel'!$I154*'Other input expert'!F$6","v":0},{"$f":"U154*'Other input expert'!G$14*'Sales price per sales channel'!$I154*'Other input expert'!G$6","v":0},{"$f":"V154*'Other input expert'!H$14*'Sales price per sales channel'!$I154*'Other input expert'!H$6","v":0},{"$f":"W154*'Other input expert'!I$14*'Sales price per sales channel'!$I154*'Other input expert'!I$6","v":0},{"$f":"X154*'Other input expert'!J$14*'Sales price per sales channel'!$I154*'Other input expert'!J$6","v":0},{"$f":"Y154*'Other input expert'!K$14*'Sales price per sales channel'!$I154*'Other input expert'!K$6","v":0},{"$f":"Z154*'Other input expert'!L$14*'Sales price per sales channel'!$I154*'Other input expert'!L$6","v":0},{"$f":"AA154*'Other input expert'!M$14*'Sales price per sales channel'!$I154*'Other input expert'!M$6","v":0},null,{"$f":"AC154*'Other input expert'!B$12*'Sales price per sales channel'!$G154*'Other input expert'!B$7","v":0},{"$f":"AD154*'Other input expert'!C$12*'Sales price per sales channel'!$G154*'Other input expert'!C$7","v":0},{"$f":"AE154*'Other input expert'!D$12*'Sales price per sales channel'!$G154*'Other input expert'!D$7","v":0},{"$f":"AF154*'Other input expert'!E$12*'Sales price per sales channel'!$G154*'Other input expert'!E$7","v":0},{"$f":"AG154*'Other input expert'!F$12*'Sales price per sales channel'!$G154*'Other input expert'!F$7","v":0},{"$f":"AH154*'Other input expert'!G$12*'Sales price per sales channel'!$G154*'Other input expert'!G$7","v":0},{"$f":"AI154*'Other input expert'!H$12*'Sales price per sales channel'!$G154*'Other input expert'!H$7","v":0},{"$f":"AJ154*'Other input expert'!I$12*'Sales price per sales channel'!$G154*'Other input expert'!I$7","v":0},{"$f":"AK154*'Other input expert'!J$12*'Sales price per sales channel'!$G154*'Other input expert'!J$7","v":0},{"$f":"AL154*'Other input expert'!K$12*'Sales price per sales channel'!$G154*'Other input expert'!K$7","v":0},{"$f":"AM154*'Other input expert'!L$12*'Sales price per sales channel'!$G154*'Other input expert'!L$7","v":0},{"$f":"AN154*'Other input expert'!M$12*'Sales price per sales channel'!$G154*'Other input expert'!M$7","v":0},null,{"$f":"AC154*'Other input expert'!B$13*'Sales price per sales channel'!$H154*'Other input expert'!B$7","v":0},{"$f":"AD154*'Other input expert'!C$13*'Sales price per sales channel'!$H154*'Other input expert'!C$7","v":0},{"$f":"AE154*'Other input expert'!D$13*'Sales price per sales channel'!$H154*'Other input expert'!D$7","v":0},{"$f":"AF154*'Other input expert'!E$13*'Sales price per sales channel'!$H154*'Other input expert'!E$7","v":0},{"$f":"AG154*'Other input expert'!F$13*'Sales price per sales channel'!$H154*'Other input expert'!F$7","v":0},{"$f":"AH154*'Other input expert'!G$13*'Sales price per sales channel'!$H154*'Other input expert'!G$7","v":0},{"$f":"AI154*'Other input expert'!H$13*'Sales price per sales channel'!$H154*'Other input expert'!H$7","v":0},{"$f":"AJ154*'Other input expert'!I$13*'Sales price per sales channel'!$H154*'Other input expert'!I$7","v":0},{"$f":"AK154*'Other input expert'!J$13*'Sales price per sales channel'!$H154*'Other input expert'!J$7","v":0},{"$f":"AL154*'Other input expert'!K$13*'Sales price per sales channel'!$H154*'Other input expert'!K$7","v":0},{"$f":"AM154*'Other input expert'!L$13*'Sales price per sales channel'!$H154*'Other input expert'!L$7","v":0},{"$f":"AN154*'Other input expert'!M$13*'Sales price per sales channel'!$H154*'Other input expert'!M$7","v":0},null,{"$f":"AC154*'Other input expert'!B$14*'Sales price per sales channel'!$I154*'Other input expert'!B$7","v":0},{"$f":"AD154*'Other input expert'!C$14*'Sales price per sales channel'!$I154*'Other input expert'!C$7","v":0},{"$f":"AE154*'Other input expert'!D$14*'Sales price per sales channel'!$I154*'Other input expert'!D$7","v":0},{"$f":"AF154*'Other input expert'!E$14*'Sales price per sales channel'!$I154*'Other input expert'!E$7","v":0},{"$f":"AG154*'Other input expert'!F$14*'Sales price per sales channel'!$I154*'Other input expert'!F$7","v":0},{"$f":"AH154*'Other input expert'!G$14*'Sales price per sales channel'!$I154*'Other input expert'!G$7","v":0},{"$f":"AI154*'Other input expert'!H$14*'Sales price per sales channel'!$I154*'Other input expert'!H$7","v":0},{"$f":"AJ154*'Other input expert'!I$14*'Sales price per sales channel'!$I154*'Other input expert'!I$7","v":0},{"$f":"AK154*'Other input expert'!J$14*'Sales price per sales channel'!$I154*'Other input expert'!J$7","v":0},{"$f":"AL154*'Other input expert'!K$14*'Sales price per sales channel'!$I154*'Other input expert'!K$7","v":0},{"$f":"AM154*'Other input expert'!L$14*'Sales price per sales channel'!$I154*'Other input expert'!L$7","v":0},{"$f":"AN154*'Other input expert'!M$14*'Sales price per sales channel'!$I154*'Other input expert'!M$7","v":0}]
["Rosa rugosa","Rimpelroos",{"$f":"Plantlist!$G155*'Production list'!D156*'Other input expert'!B$4*'Other input expert'!B$8","v":0},{"$f":"Plantlist!$G155*'Production list'!E156*'Other input expert'!C$4*'Other input expert'!C$8","v":0},{"$f":"Plantlist!$G155*'Production list'!F156*'Other input expert'!D$4*'Other input expert'!D$8","v":0},{"$f":"Plantlist!$G155*'Production list'!G156*'Other input expert'!E$4*'Other input expert'!E$8","v":0},{"$f":"Plantlist!$G155*'Production list'!H156*'Other input expert'!F$4*'Other input expert'!F$8","v":0},{"$f":"Plantlist!$G155*'Production list'!I156*'Other input expert'!G$4*'Other input expert'!G$8","v":0},{"$f":"Plantlist!$G155*'Production list'!J156*'Other input expert'!H$4*'Other input expert'!H$8","v":0},{"$f":"Plantlist!$G155*'Production list'!K156*'Other input expert'!I$4*'Other input expert'!I$8","v":0},{"$f":"Plantlist!$G155*'Production list'!L156*'Other input expert'!J$4*'Other input expert'!J$8","v":0},{"$f":"Plantlist!$G155*'Production list'!M156*'Other input expert'!K$4*'Other input expert'!K$8","v":0},{"$f":"Plantlist!$G155*'Production list'!N156*'Other input expert'!L$4*'Other input expert'!L$8","v":0},{"$f":"Plantlist!$G155*'Production list'!O156*'Other input expert'!M$4*'Other input expert'!M$8","v":0},null,{"$f":"C155*'Other input expert'!B$5","v":0},{"$f":"D155*'Other input expert'!C$5","v":0},{"$f":"E155*'Other input expert'!D$5","v":0},{"$f":"F155*'Other input expert'!E$5","v":0},{"$f":"G155*'Other input expert'!F$5","v":0},{"$f":"H155*'Other input expert'!G$5","v":0},{"$f":"I155*'Other input expert'!H$5","v":0},{"$f":"J155*'Other input expert'!I$5","v":0},{"$f":"K155*'Other input expert'!J$5","v":0},{"$f":"L155*'Other input expert'!K$5","v":0},{"$f":"M155*'Other input expert'!L$5","v":0},{"$f":"N155*'Other input expert'!M$5","v":0},null,{"$f":"C155*(100%-'Other input expert'!B$5)","v":0},{"$f":"D155*(100%-'Other input expert'!C$5)","v":0},{"$f":"E155*(100%-'Other input expert'!D$5)","v":0},{"$f":"F155*(100%-'Other input expert'!E$5)","v":0},{"$f":"G155*(100%-'Other input expert'!F$5)","v":0},{"$f":"H155*(100%-'Other input expert'!G$5)","v":0},{"$f":"I155*(100%-'Other input expert'!H$5)","v":0},{"$f":"J155*(100%-'Other input expert'!I$5)","v":0},{"$f":"K155*(100%-'Other input expert'!J$5)","v":0},{"$f":"L155*(100%-'Other input expert'!K$5)","v":0},{"$f":"M155*(100%-'Other input expert'!L$5)","v":0},{"$f":"N155*(100%-'Other input expert'!M$5)","v":0},null,{"$f":"P155*'Other input expert'!B$12*'Sales price per sales channel'!$G155*'Other input expert'!B$6","v":0},{"$f":"Q155*'Other input expert'!C$12*'Sales price per sales channel'!$G155*'Other input expert'!C$6","v":0},{"$f":"R155*'Other input expert'!D$12*'Sales price per sales channel'!$G155*'Other input expert'!D$6","v":0},{"$f":"S155*'Other input expert'!E$12*'Sales price per sales channel'!$G155*'Other input expert'!E$6","v":0},{"$f":"T155*'Other input expert'!F$12*'Sales price per sales channel'!$G155*'Other input expert'!F$6","v":0},{"$f":"U155*'Other input expert'!G$12*'Sales price per sales channel'!$G155*'Other input expert'!G$6","v":0},{"$f":"V155*'Other input expert'!H$12*'Sales price per sales channel'!$G155*'Other input expert'!H$6","v":0},{"$f":"W155*'Other input expert'!I$12*'Sales price per sales channel'!$G155*'Other input expert'!I$6","v":0},{"$f":"X155*'Other input expert'!J$12*'Sales price per sales channel'!$G155*'Other input expert'!J$6","v":0},{"$f":"Y155*'Other input expert'!K$12*'Sales price per sales channel'!$G155*'Other input expert'!K$6","v":0},{"$f":"Z155*'Other input expert'!L$12*'Sales price per sales channel'!$G155*'Other input expert'!L$6","v":0},{"$f":"AA155*'Other input expert'!M$12*'Sales price per sales channel'!$G155*'Other input expert'!M$6","v":0},null,{"$f":"P155*'Other input expert'!B$13*'Sales price per sales channel'!$H155*'Other input expert'!B$6","v":0},{"$f":"Q155*'Other input expert'!C$13*'Sales price per sales channel'!$H155*'Other input expert'!C$6","v":0},{"$f":"R155*'Other input expert'!D$13*'Sales price per sales channel'!$H155*'Other input expert'!D$6","v":0},{"$f":"S155*'Other input expert'!E$13*'Sales price per sales channel'!$H155*'Other input expert'!E$6","v":0},{"$f":"T155*'Other input expert'!F$13*'Sales price per sales channel'!$H155*'Other input expert'!F$6","v":0},{"$f":"U155*'Other input expert'!G$13*'Sales price per sales channel'!$H155*'Other input expert'!G$6","v":0},{"$f":"V155*'Other input expert'!H$13*'Sales price per sales channel'!$H155*'Other input expert'!H$6","v":0},{"$f":"W155*'Other input expert'!I$13*'Sales price per sales channel'!$H155*'Other input expert'!I$6","v":0},{"$f":"X155*'Other input expert'!J$13*'Sales price per sales channel'!$H155*'Other input expert'!J$6","v":0},{"$f":"Y155*'Other input expert'!K$13*'Sales price per sales channel'!$H155*'Other input expert'!K$6","v":0},{"$f":"Z155*'Other input expert'!L$13*'Sales price per sales channel'!$H155*'Other input expert'!L$6","v":0},{"$f":"AA155*'Other input expert'!M$13*'Sales price per sales channel'!$H155*'Other input expert'!M$6","v":0},null,{"$f":"P155*'Other input expert'!B$14*'Sales price per sales channel'!$I155*'Other input expert'!B$6","v":0},{"$f":"Q155*'Other input expert'!C$14*'Sales price per sales channel'!$I155*'Other input expert'!C$6","v":0},{"$f":"R155*'Other input expert'!D$14*'Sales price per sales channel'!$I155*'Other input expert'!D$6","v":0},{"$f":"S155*'Other input expert'!E$14*'Sales price per sales channel'!$I155*'Other input expert'!E$6","v":0},{"$f":"T155*'Other input expert'!F$14*'Sales price per sales channel'!$I155*'Other input expert'!F$6","v":0},{"$f":"U155*'Other input expert'!G$14*'Sales price per sales channel'!$I155*'Other input expert'!G$6","v":0},{"$f":"V155*'Other input expert'!H$14*'Sales price per sales channel'!$I155*'Other input expert'!H$6","v":0},{"$f":"W155*'Other input expert'!I$14*'Sales price per sales channel'!$I155*'Other input expert'!I$6","v":0},{"$f":"X155*'Other input expert'!J$14*'Sales price per sales channel'!$I155*'Other input expert'!J$6","v":0},{"$f":"Y155*'Other input expert'!K$14*'Sales price per sales channel'!$I155*'Other input expert'!K$6","v":0},{"$f":"Z155*'Other input expert'!L$14*'Sales price per sales channel'!$I155*'Other input expert'!L$6","v":0},{"$f":"AA155*'Other input expert'!M$14*'Sales price per sales channel'!$I155*'Other input expert'!M$6","v":0},null,{"$f":"AC155*'Other input expert'!B$12*'Sales price per sales channel'!$G155*'Other input expert'!B$7","v":0},{"$f":"AD155*'Other input expert'!C$12*'Sales price per sales channel'!$G155*'Other input expert'!C$7","v":0},{"$f":"AE155*'Other input expert'!D$12*'Sales price per sales channel'!$G155*'Other input expert'!D$7","v":0},{"$f":"AF155*'Other input expert'!E$12*'Sales price per sales channel'!$G155*'Other input expert'!E$7","v":0},{"$f":"AG155*'Other input expert'!F$12*'Sales price per sales channel'!$G155*'Other input expert'!F$7","v":0},{"$f":"AH155*'Other input expert'!G$12*'Sales price per sales channel'!$G155*'Other input expert'!G$7","v":0},{"$f":"AI155*'Other input expert'!H$12*'Sales price per sales channel'!$G155*'Other input expert'!H$7","v":0},{"$f":"AJ155*'Other input expert'!I$12*'Sales price per sales channel'!$G155*'Other input expert'!I$7","v":0},{"$f":"AK155*'Other input expert'!J$12*'Sales price per sales channel'!$G155*'Other input expert'!J$7","v":0},{"$f":"AL155*'Other input expert'!K$12*'Sales price per sales channel'!$G155*'Other input expert'!K$7","v":0},{"$f":"AM155*'Other input expert'!L$12*'Sales price per sales channel'!$G155*'Other input expert'!L$7","v":0},{"$f":"AN155*'Other input expert'!M$12*'Sales price per sales channel'!$G155*'Other input expert'!M$7","v":0},null,{"$f":"AC155*'Other input expert'!B$13*'Sales price per sales channel'!$H155*'Other input expert'!B$7","v":0},{"$f":"AD155*'Other input expert'!C$13*'Sales price per sales channel'!$H155*'Other input expert'!C$7","v":0},{"$f":"AE155*'Other input expert'!D$13*'Sales price per sales channel'!$H155*'Other input expert'!D$7","v":0},{"$f":"AF155*'Other input expert'!E$13*'Sales price per sales channel'!$H155*'Other input expert'!E$7","v":0},{"$f":"AG155*'Other input expert'!F$13*'Sales price per sales channel'!$H155*'Other input expert'!F$7","v":0},{"$f":"AH155*'Other input expert'!G$13*'Sales price per sales channel'!$H155*'Other input expert'!G$7","v":0},{"$f":"AI155*'Other input expert'!H$13*'Sales price per sales channel'!$H155*'Other input expert'!H$7","v":0},{"$f":"AJ155*'Other input expert'!I$13*'Sales price per sales channel'!$H155*'Other input expert'!I$7","v":0},{"$f":"AK155*'Other input expert'!J$13*'Sales price per sales channel'!$H155*'Other input expert'!J$7","v":0},{"$f":"AL155*'Other input expert'!K$13*'Sales price per sales channel'!$H155*'Other input expert'!K$7","v":0},{"$f":"AM155*'Other input expert'!L$13*'Sales price per sales channel'!$H155*'Other input expert'!L$7","v":0},{"$f":"AN155*'Other input expert'!M$13*'Sales price per sales channel'!$H155*'Other input expert'!M$7","v":0},null,{"$f":"AC155*'Other input expert'!B$14*'Sales price per sales channel'!$I155*'Other input expert'!B$7","v":0},{"$f":"AD155*'Other input expert'!C$14*'Sales price per sales channel'!$I155*'Other input expert'!C$7","v":0},{"$f":"AE155*'Other input expert'!D$14*'Sales price per sales channel'!$I155*'Other input expert'!D$7","v":0},{"$f":"AF155*'Other input expert'!E$14*'Sales price per sales channel'!$I155*'Other input expert'!E$7","v":0},{"$f":"AG155*'Other input expert'!F$14*'Sales price per sales channel'!$I155*'Other input expert'!F$7","v":0},{"$f":"AH155*'Other input expert'!G$14*'Sales price per sales channel'!$I155*'Other input expert'!G$7","v":0},{"$f":"AI155*'Other input expert'!H$14*'Sales price per sales channel'!$I155*'Other input expert'!H$7","v":0},{"$f":"AJ155*'Other input expert'!I$14*'Sales price per sales channel'!$I155*'Other input expert'!I$7","v":0},{"$f":"AK155*'Other input expert'!J$14*'Sales price per sales channel'!$I155*'Other input expert'!J$7","v":0},{"$f":"AL155*'Other input expert'!K$14*'Sales price per sales channel'!$I155*'Other input expert'!K$7","v":0},{"$f":"AM155*'Other input expert'!L$14*'Sales price per sales channel'!$I155*'Other input expert'!L$7","v":0},{"$f":"AN155*'Other input expert'!M$14*'Sales price per sales channel'!$I155*'Other input expert'!M$7","v":0}]
["Rosmarinum off.","Rosemary",{"$f":"Plantlist!$G156*'Production list'!D157*'Other input expert'!B$4*'Other input expert'!B$8","v":0},{"$f":"Plantlist!$G156*'Production list'!E157*'Other input expert'!C$4*'Other input expert'!C$8","v":0},{"$f":"Plantlist!$G156*'Production list'!F157*'Other input expert'!D$4*'Other input expert'!D$8","v":0},{"$f":"Plantlist!$G156*'Production list'!G157*'Other input expert'!E$4*'Other input expert'!E$8","v":0},{"$f":"Plantlist!$G156*'Production list'!H157*'Other input expert'!F$4*'Other input expert'!F$8","v":0},{"$f":"Plantlist!$G156*'Production list'!I157*'Other input expert'!G$4*'Other input expert'!G$8","v":0},{"$f":"Plantlist!$G156*'Production list'!J157*'Other input expert'!H$4*'Other input expert'!H$8","v":0},{"$f":"Plantlist!$G156*'Production list'!K157*'Other input expert'!I$4*'Other input expert'!I$8","v":0},{"$f":"Plantlist!$G156*'Production list'!L157*'Other input expert'!J$4*'Other input expert'!J$8","v":0},{"$f":"Plantlist!$G156*'Production list'!M157*'Other input expert'!K$4*'Other input expert'!K$8","v":0},{"$f":"Plantlist!$G156*'Production list'!N157*'Other input expert'!L$4*'Other input expert'!L$8","v":0},{"$f":"Plantlist!$G156*'Production list'!O157*'Other input expert'!M$4*'Other input expert'!M$8","v":0},null,{"$f":"C156*'Other input expert'!B$5","v":0},{"$f":"D156*'Other input expert'!C$5","v":0},{"$f":"E156*'Other input expert'!D$5","v":0},{"$f":"F156*'Other input expert'!E$5","v":0},{"$f":"G156*'Other input expert'!F$5","v":0},{"$f":"H156*'Other input expert'!G$5","v":0},{"$f":"I156*'Other input expert'!H$5","v":0},{"$f":"J156*'Other input expert'!I$5","v":0},{"$f":"K156*'Other input expert'!J$5","v":0},{"$f":"L156*'Other input expert'!K$5","v":0},{"$f":"M156*'Other input expert'!L$5","v":0},{"$f":"N156*'Other input expert'!M$5","v":0},null,{"$f":"C156*(100%-'Other input expert'!B$5)","v":0},{"$f":"D156*(100%-'Other input expert'!C$5)","v":0},{"$f":"E156*(100%-'Other input expert'!D$5)","v":0},{"$f":"F156*(100%-'Other input expert'!E$5)","v":0},{"$f":"G156*(100%-'Other input expert'!F$5)","v":0},{"$f":"H156*(100%-'Other input expert'!G$5)","v":0},{"$f":"I156*(100%-'Other input expert'!H$5)","v":0},{"$f":"J156*(100%-'Other input expert'!I$5)","v":0},{"$f":"K156*(100%-'Other input expert'!J$5)","v":0},{"$f":"L156*(100%-'Other input expert'!K$5)","v":0},{"$f":"M156*(100%-'Other input expert'!L$5)","v":0},{"$f":"N156*(100%-'Other input expert'!M$5)","v":0},null,{"$f":"P156*'Other input expert'!B$12*'Sales price per sales channel'!$G156*'Other input expert'!B$6","v":0},{"$f":"Q156*'Other input expert'!C$12*'Sales price per sales channel'!$G156*'Other input expert'!C$6","v":0},{"$f":"R156*'Other input expert'!D$12*'Sales price per sales channel'!$G156*'Other input expert'!D$6","v":0},{"$f":"S156*'Other input expert'!E$12*'Sales price per sales channel'!$G156*'Other input expert'!E$6","v":0},{"$f":"T156*'Other input expert'!F$12*'Sales price per sales channel'!$G156*'Other input expert'!F$6","v":0},{"$f":"U156*'Other input expert'!G$12*'Sales price per sales channel'!$G156*'Other input expert'!G$6","v":0},{"$f":"V156*'Other input expert'!H$12*'Sales price per sales channel'!$G156*'Other input expert'!H$6","v":0},{"$f":"W156*'Other input expert'!I$12*'Sales price per sales channel'!$G156*'Other input expert'!I$6","v":0},{"$f":"X156*'Other input expert'!J$12*'Sales price per sales channel'!$G156*'Other input expert'!J$6","v":0},{"$f":"Y156*'Other input expert'!K$12*'Sales price per sales channel'!$G156*'Other input expert'!K$6","v":0},{"$f":"Z156*'Other input expert'!L$12*'Sales price per sales channel'!$G156*'Other input expert'!L$6","v":0},{"$f":"AA156*'Other input expert'!M$12*'Sales price per sales channel'!$G156*'Other input expert'!M$6","v":0},null,{"$f":"P156*'Other input expert'!B$13*'Sales price per sales channel'!$H156*'Other input expert'!B$6","v":0},{"$f":"Q156*'Other input expert'!C$13*'Sales price per sales channel'!$H156*'Other input expert'!C$6","v":0},{"$f":"R156*'Other input expert'!D$13*'Sales price per sales channel'!$H156*'Other input expert'!D$6","v":0},{"$f":"S156*'Other input expert'!E$13*'Sales price per sales channel'!$H156*'Other input expert'!E$6","v":0},{"$f":"T156*'Other input expert'!F$13*'Sales price per sales channel'!$H156*'Other input expert'!F$6","v":0},{"$f":"U156*'Other input expert'!G$13*'Sales price per sales channel'!$H156*'Other input expert'!G$6","v":0},{"$f":"V156*'Other input expert'!H$13*'Sales price per sales channel'!$H156*'Other input expert'!H$6","v":0},{"$f":"W156*'Other input expert'!I$13*'Sales price per sales channel'!$H156*'Other input expert'!I$6","v":0},{"$f":"X156*'Other input expert'!J$13*'Sales price per sales channel'!$H156*'Other input expert'!J$6","v":0},{"$f":"Y156*'Other input expert'!K$13*'Sales price per sales channel'!$H156*'Other input expert'!K$6","v":0},{"$f":"Z156*'Other input expert'!L$13*'Sales price per sales channel'!$H156*'Other input expert'!L$6","v":0},{"$f":"AA156*'Other input expert'!M$13*'Sales price per sales channel'!$H156*'Other input expert'!M$6","v":0},null,{"$f":"P156*'Other input expert'!B$14*'Sales price per sales channel'!$I156*'Other input expert'!B$6","v":0},{"$f":"Q156*'Other input expert'!C$14*'Sales price per sales channel'!$I156*'Other input expert'!C$6","v":0},{"$f":"R156*'Other input expert'!D$14*'Sales price per sales channel'!$I156*'Other input expert'!D$6","v":0},{"$f":"S156*'Other input expert'!E$14*'Sales price per sales channel'!$I156*'Other input expert'!E$6","v":0},{"$f":"T156*'Other input expert'!F$14*'Sales price per sales channel'!$I156*'Other input expert'!F$6","v":0},{"$f":"U156*'Other input expert'!G$14*'Sales price per sales channel'!$I156*'Other input expert'!G$6","v":0},{"$f":"V156*'Other input expert'!H$14*'Sales price per sales channel'!$I156*'Other input expert'!H$6","v":0},{"$f":"W156*'Other input expert'!I$14*'Sales price per sales channel'!$I156*'Other input expert'!I$6","v":0},{"$f":"X156*'Other input expert'!J$14*'Sales price per sales channel'!$I156*'Other input expert'!J$6","v":0},{"$f":"Y156*'Other input expert'!K$14*'Sales price per sales channel'!$I156*'Other input expert'!K$6","v":0},{"$f":"Z156*'Other input expert'!L$14*'Sales price per sales channel'!$I156*'Other input expert'!L$6","v":0},{"$f":"AA156*'Other input expert'!M$14*'Sales price per sales channel'!$I156*'Other input expert'!M$6","v":0},null,{"$f":"AC156*'Other input expert'!B$12*'Sales price per sales channel'!$G156*'Other input expert'!B$7","v":0},{"$f":"AD156*'Other input expert'!C$12*'Sales price per sales channel'!$G156*'Other input expert'!C$7","v":0},{"$f":"AE156*'Other input expert'!D$12*'Sales price per sales channel'!$G156*'Other input expert'!D$7","v":0},{"$f":"AF156*'Other input expert'!E$12*'Sales price per sales channel'!$G156*'Other input expert'!E$7","v":0},{"$f":"AG156*'Other input expert'!F$12*'Sales price per sales channel'!$G156*'Other input expert'!F$7","v":0},{"$f":"AH156*'Other input expert'!G$12*'Sales price per sales channel'!$G156*'Other input expert'!G$7","v":0},{"$f":"AI156*'Other input expert'!H$12*'Sales price per sales channel'!$G156*'Other input expert'!H$7","v":0},{"$f":"AJ156*'Other input expert'!I$12*'Sales price per sales channel'!$G156*'Other input expert'!I$7","v":0},{"$f":"AK156*'Other input expert'!J$12*'Sales price per sales channel'!$G156*'Other input expert'!J$7","v":0},{"$f":"AL156*'Other input expert'!K$12*'Sales price per sales channel'!$G156*'Other input expert'!K$7","v":0},{"$f":"AM156*'Other input expert'!L$12*'Sales price per sales channel'!$G156*'Other input expert'!L$7","v":0},{"$f":"AN156*'Other input expert'!M$12*'Sales price per sales channel'!$G156*'Other input expert'!M$7","v":0},null,{"$f":"AC156*'Other input expert'!B$13*'Sales price per sales channel'!$H156*'Other input expert'!B$7","v":0},{"$f":"AD156*'Other input expert'!C$13*'Sales price per sales channel'!$H156*'Other input expert'!C$7","v":0},{"$f":"AE156*'Other input expert'!D$13*'Sales price per sales channel'!$H156*'Other input expert'!D$7","v":0},{"$f":"AF156*'Other input expert'!E$13*'Sales price per sales channel'!$H156*'Other input expert'!E$7","v":0},{"$f":"AG156*'Other input expert'!F$13*'Sales price per sales channel'!$H156*'Other input expert'!F$7","v":0},{"$f":"AH156*'Other input expert'!G$13*'Sales price per sales channel'!$H156*'Other input expert'!G$7","v":0},{"$f":"AI156*'Other input expert'!H$13*'Sales price per sales channel'!$H156*'Other input expert'!H$7","v":0},{"$f":"AJ156*'Other input expert'!I$13*'Sales price per sales channel'!$H156*'Other input expert'!I$7","v":0},{"$f":"AK156*'Other input expert'!J$13*'Sales price per sales channel'!$H156*'Other input expert'!J$7","v":0},{"$f":"AL156*'Other input expert'!K$13*'Sales price per sales channel'!$H156*'Other input expert'!K$7","v":0},{"$f":"AM156*'Other input expert'!L$13*'Sales price per sales channel'!$H156*'Other input expert'!L$7","v":0},{"$f":"AN156*'Other input expert'!M$13*'Sales price per sales channel'!$H156*'Other input expert'!M$7","v":0},null,{"$f":"AC156*'Other input expert'!B$14*'Sales price per sales channel'!$I156*'Other input expert'!B$7","v":0},{"$f":"AD156*'Other input expert'!C$14*'Sales price per sales channel'!$I156*'Other input expert'!C$7","v":0},{"$f":"AE156*'Other input expert'!D$14*'Sales price per sales channel'!$I156*'Other input expert'!D$7","v":0},{"$f":"AF156*'Other input expert'!E$14*'Sales price per sales channel'!$I156*'Other input expert'!E$7","v":0},{"$f":"AG156*'Other input expert'!F$14*'Sales price per sales channel'!$I156*'Other input expert'!F$7","v":0},{"$f":"AH156*'Other input expert'!G$14*'Sales price per sales channel'!$I156*'Other input expert'!G$7","v":0},{"$f":"AI156*'Other input expert'!H$14*'Sales price per sales channel'!$I156*'Other input expert'!H$7","v":0},{"$f":"AJ156*'Other input expert'!I$14*'Sales price per sales channel'!$I156*'Other input expert'!I$7","v":0},{"$f":"AK156*'Other input expert'!J$14*'Sales price per sales channel'!$I156*'Other input expert'!J$7","v":0},{"$f":"AL156*'Other input expert'!K$14*'Sales price per sales channel'!$I156*'Other input expert'!K$7","v":0},{"$f":"AM156*'Other input expert'!L$14*'Sales price per sales channel'!$I156*'Other input expert'!L$7","v":0},{"$f":"AN156*'Other input expert'!M$14*'Sales price per sales channel'!$I156*'Other input expert'!M$7","v":0}]
["Rubus fruticosus","Blackberry",{"$f":"Plantlist!$G157*'Production list'!D158*'Other input expert'!B$4*'Other input expert'!B$8","v":0},{"$f":"Plantlist!$G157*'Production list'!E158*'Other input expert'!C$4*'Other input expert'!C$8","v":0},{"$f":"Plantlist!$G157*'Production list'!F158*'Other input expert'!D$4*'Other input expert'!D$8","v":0},{"$f":"Plantlist!$G157*'Production list'!G158*'Other input expert'!E$4*'Other input expert'!E$8","v":0},{"$f":"Plantlist!$G157*'Production list'!H158*'Other input expert'!F$4*'Other input expert'!F$8","v":0},{"$f":"Plantlist!$G157*'Production list'!I158*'Other input expert'!G$4*'Other input expert'!G$8","v":0},{"$f":"Plantlist!$G157*'Production list'!J158*'Other input expert'!H$4*'Other input expert'!H$8","v":0},{"$f":"Plantlist!$G157*'Production list'!K158*'Other input expert'!I$4*'Other input expert'!I$8","v":0},{"$f":"Plantlist!$G157*'Production list'!L158*'Other input expert'!J$4*'Other input expert'!J$8","v":0},{"$f":"Plantlist!$G157*'Production list'!M158*'Other input expert'!K$4*'Other input expert'!K$8","v":0},{"$f":"Plantlist!$G157*'Production list'!N158*'Other input expert'!L$4*'Other input expert'!L$8","v":0},{"$f":"Plantlist!$G157*'Production list'!O158*'Other input expert'!M$4*'Other input expert'!M$8","v":0},null,{"$f":"C157*'Other input expert'!B$5","v":0},{"$f":"D157*'Other input expert'!C$5","v":0},{"$f":"E157*'Other input expert'!D$5","v":0},{"$f":"F157*'Other input expert'!E$5","v":0},{"$f":"G157*'Other input expert'!F$5","v":0},{"$f":"H157*'Other input expert'!G$5","v":0},{"$f":"I157*'Other input expert'!H$5","v":0},{"$f":"J157*'Other input expert'!I$5","v":0},{"$f":"K157*'Other input expert'!J$5","v":0},{"$f":"L157*'Other input expert'!K$5","v":0},{"$f":"M157*'Other input expert'!L$5","v":0},{"$f":"N157*'Other input expert'!M$5","v":0},null,{"$f":"C157*(100%-'Other input expert'!B$5)","v":0},{"$f":"D157*(100%-'Other input expert'!C$5)","v":0},{"$f":"E157*(100%-'Other input expert'!D$5)","v":0},{"$f":"F157*(100%-'Other input expert'!E$5)","v":0},{"$f":"G157*(100%-'Other input expert'!F$5)","v":0},{"$f":"H157*(100%-'Other input expert'!G$5)","v":0},{"$f":"I157*(100%-'Other input expert'!H$5)","v":0},{"$f":"J157*(100%-'Other input expert'!I$5)","v":0},{"$f":"K157*(100%-'Other input expert'!J$5)","v":0},{"$f":"L157*(100%-'Other input expert'!K$5)","v":0},{"$f":"M157*(100%-'Other input expert'!L$5)","v":0},{"$f":"N157*(100%-'Other input expert'!M$5)","v":0},null,{"$f":"P157*'Other input expert'!B$12*'Sales price per sales channel'!$G157*'Other input expert'!B$6","v":0},{"$f":"Q157*'Other input expert'!C$12*'Sales price per sales channel'!$G157*'Other input expert'!C$6","v":0},{"$f":"R157*'Other input expert'!D$12*'Sales price per sales channel'!$G157*'Other input expert'!D$6","v":0},{"$f":"S157*'Other input expert'!E$12*'Sales price per sales channel'!$G157*'Other input expert'!E$6","v":0},{"$f":"T157*'Other input expert'!F$12*'Sales price per sales channel'!$G157*'Other input expert'!F$6","v":0},{"$f":"U157*'Other input expert'!G$12*'Sales price per sales channel'!$G157*'Other input expert'!G$6","v":0},{"$f":"V157*'Other input expert'!H$12*'Sales price per sales channel'!$G157*'Other input expert'!H$6","v":0},{"$f":"W157*'Other input expert'!I$12*'Sales price per sales channel'!$G157*'Other input expert'!I$6","v":0},{"$f":"X157*'Other input expert'!J$12*'Sales price per sales channel'!$G157*'Other input expert'!J$6","v":0},{"$f":"Y157*'Other input expert'!K$12*'Sales price per sales channel'!$G157*'Other input expert'!K$6","v":0},{"$f":"Z157*'Other input expert'!L$12*'Sales price per sales channel'!$G157*'Other input expert'!L$6","v":0},{"$f":"AA157*'Other input expert'!M$12*'Sales price per sales channel'!$G157*'Other input expert'!M$6","v":0},null,{"$f":"P157*'Other input expert'!B$13*'Sales price per sales channel'!$H157*'Other input expert'!B$6","v":0},{"$f":"Q157*'Other input expert'!C$13*'Sales price per sales channel'!$H157*'Other input expert'!C$6","v":0},{"$f":"R157*'Other input expert'!D$13*'Sales price per sales channel'!$H157*'Other input expert'!D$6","v":0},{"$f":"S157*'Other input expert'!E$13*'Sales price per sales channel'!$H157*'Other input expert'!E$6","v":0},{"$f":"T157*'Other input expert'!F$13*'Sales price per sales channel'!$H157*'Other input expert'!F$6","v":0},{"$f":"U157*'Other input expert'!G$13*'Sales price per sales channel'!$H157*'Other input expert'!G$6","v":0},{"$f":"V157*'Other input expert'!H$13*'Sales price per sales channel'!$H157*'Other input expert'!H$6","v":0},{"$f":"W157*'Other input expert'!I$13*'Sales price per sales channel'!$H157*'Other input expert'!I$6","v":0},{"$f":"X157*'Other input expert'!J$13*'Sales price per sales channel'!$H157*'Other input expert'!J$6","v":0},{"$f":"Y157*'Other input expert'!K$13*'Sales price per sales channel'!$H157*'Other input expert'!K$6","v":0},{"$f":"Z157*'Other input expert'!L$13*'Sales price per sales channel'!$H157*'Other input expert'!L$6","v":0},{"$f":"AA157*'Other input expert'!M$13*'Sales price per sales channel'!$H157*'Other input expert'!M$6","v":0},null,{"$f":"P157*'Other input expert'!B$14*'Sales price per sales channel'!$I157*'Other input expert'!B$6","v":0},{"$f":"Q157*'Other input expert'!C$14*'Sales price per sales channel'!$I157*'Other input expert'!C$6","v":0},{"$f":"R157*'Other input expert'!D$14*'Sales price per sales channel'!$I157*'Other input expert'!D$6","v":0},{"$f":"S157*'Other input expert'!E$14*'Sales price per sales channel'!$I157*'Other input expert'!E$6","v":0},{"$f":"T157*'Other input expert'!F$14*'Sales price per sales channel'!$I157*'Other input expert'!F$6","v":0},{"$f":"U157*'Other input expert'!G$14*'Sales price per sales channel'!$I157*'Other input expert'!G$6","v":0},{"$f":"V157*'Other input expert'!H$14*'Sales price per sales channel'!$I157*'Other input expert'!H$6","v":0},{"$f":"W157*'Other input expert'!I$14*'Sales price per sales channel'!$I157*'Other input expert'!I$6","v":0},{"$f":"X157*'Other input expert'!J$14*'Sales price per sales channel'!$I157*'Other input expert'!J$6","v":0},{"$f":"Y157*'Other input expert'!K$14*'Sales price per sales channel'!$I157*'Other input expert'!K$6","v":0},{"$f":"Z157*'Other input expert'!L$14*'Sales price per sales channel'!$I157*'Other input expert'!L$6","v":0},{"$f":"AA157*'Other input expert'!M$14*'Sales price per sales channel'!$I157*'Other input expert'!M$6","v":0},null,{"$f":"AC157*'Other input expert'!B$12*'Sales price per sales channel'!$G157*'Other input expert'!B$7","v":0},{"$f":"AD157*'Other input expert'!C$12*'Sales price per sales channel'!$G157*'Other input expert'!C$7","v":0},{"$f":"AE157*'Other input expert'!D$12*'Sales price per sales channel'!$G157*'Other input expert'!D$7","v":0},{"$f":"AF157*'Other input expert'!E$12*'Sales price per sales channel'!$G157*'Other input expert'!E$7","v":0},{"$f":"AG157*'Other input expert'!F$12*'Sales price per sales channel'!$G157*'Other input expert'!F$7","v":0},{"$f":"AH157*'Other input expert'!G$12*'Sales price per sales channel'!$G157*'Other input expert'!G$7","v":0},{"$f":"AI157*'Other input expert'!H$12*'Sales price per sales channel'!$G157*'Other input expert'!H$7","v":0},{"$f":"AJ157*'Other input expert'!I$12*'Sales price per sales channel'!$G157*'Other input expert'!I$7","v":0},{"$f":"AK157*'Other input expert'!J$12*'Sales price per sales channel'!$G157*'Other input expert'!J$7","v":0},{"$f":"AL157*'Other input expert'!K$12*'Sales price per sales channel'!$G157*'Other input expert'!K$7","v":0},{"$f":"AM157*'Other input expert'!L$12*'Sales price per sales channel'!$G157*'Other input expert'!L$7","v":0},{"$f":"AN157*'Other input expert'!M$12*'Sales price per sales channel'!$G157*'Other input expert'!M$7","v":0},null,{"$f":"AC157*'Other input expert'!B$13*'Sales price per sales channel'!$H157*'Other input expert'!B$7","v":0},{"$f":"AD157*'Other input expert'!C$13*'Sales price per sales channel'!$H157*'Other input expert'!C$7","v":0},{"$f":"AE157*'Other input expert'!D$13*'Sales price per sales channel'!$H157*'Other input expert'!D$7","v":0},{"$f":"AF157*'Other input expert'!E$13*'Sales price per sales channel'!$H157*'Other input expert'!E$7","v":0},{"$f":"AG157*'Other input expert'!F$13*'Sales price per sales channel'!$H157*'Other input expert'!F$7","v":0},{"$f":"AH157*'Other input expert'!G$13*'Sales price per sales channel'!$H157*'Other input expert'!G$7","v":0},{"$f":"AI157*'Other input expert'!H$13*'Sales price per sales channel'!$H157*'Other input expert'!H$7","v":0},{"$f":"AJ157*'Other input expert'!I$13*'Sales price per sales channel'!$H157*'Other input expert'!I$7","v":0},{"$f":"AK157*'Other input expert'!J$13*'Sales price per sales channel'!$H157*'Other input expert'!J$7","v":0},{"$f":"AL157*'Other input expert'!K$13*'Sales price per sales channel'!$H157*'Other input expert'!K$7","v":0},{"$f":"AM157*'Other input expert'!L$13*'Sales price per sales channel'!$H157*'Other input expert'!L$7","v":0},{"$f":"AN157*'Other input expert'!M$13*'Sales price per sales channel'!$H157*'Other input expert'!M$7","v":0},null,{"$f":"AC157*'Other input expert'!B$14*'Sales price per sales channel'!$I157*'Other input expert'!B$7","v":0},{"$f":"AD157*'Other input expert'!C$14*'Sales price per sales channel'!$I157*'Other input expert'!C$7","v":0},{"$f":"AE157*'Other input expert'!D$14*'Sales price per sales channel'!$I157*'Other input expert'!D$7","v":0},{"$f":"AF157*'Other input expert'!E$14*'Sales price per sales channel'!$I157*'Other input expert'!E$7","v":0},{"$f":"AG157*'Other input expert'!F$14*'Sales price per sales channel'!$I157*'Other input expert'!F$7","v":0},{"$f":"AH157*'Other input expert'!G$14*'Sales price per sales channel'!$I157*'Other input expert'!G$7","v":0},{"$f":"AI157*'Other input expert'!H$14*'Sales price per sales channel'!$I157*'Other input expert'!H$7","v":0},{"$f":"AJ157*'Other input expert'!I$14*'Sales price per sales channel'!$I157*'Other input expert'!I$7","v":0},{"$f":"AK157*'Other input expert'!J$14*'Sales price per sales channel'!$I157*'Other input expert'!J$7","v":0},{"$f":"AL157*'Other input expert'!K$14*'Sales price per sales channel'!$I157*'Other input expert'!K$7","v":0},{"$f":"AM157*'Other input expert'!L$14*'Sales price per sales channel'!$I157*'Other input expert'!L$7","v":0},{"$f":"AN157*'Other input expert'!M$14*'Sales price per sales channel'!$I157*'Other input expert'!M$7","v":0}]
["Rubus hibrids","Tayberry ",{"$f":"Plantlist!$G158*'Production list'!D159*'Other input expert'!B$4*'Other input expert'!B$8","v":0},{"$f":"Plantlist!$G158*'Production list'!E159*'Other input expert'!C$4*'Other input expert'!C$8","v":0},{"$f":"Plantlist!$G158*'Production list'!F159*'Other input expert'!D$4*'Other input expert'!D$8","v":0},{"$f":"Plantlist!$G158*'Production list'!G159*'Other input expert'!E$4*'Other input expert'!E$8","v":0},{"$f":"Plantlist!$G158*'Production list'!H159*'Other input expert'!F$4*'Other input expert'!F$8","v":0},{"$f":"Plantlist!$G158*'Production list'!I159*'Other input expert'!G$4*'Other input expert'!G$8","v":0},{"$f":"Plantlist!$G158*'Production list'!J159*'Other input expert'!H$4*'Other input expert'!H$8","v":0},{"$f":"Plantlist!$G158*'Production list'!K159*'Other input expert'!I$4*'Other input expert'!I$8","v":0},{"$f":"Plantlist!$G158*'Production list'!L159*'Other input expert'!J$4*'Other input expert'!J$8","v":0},{"$f":"Plantlist!$G158*'Production list'!M159*'Other input expert'!K$4*'Other input expert'!K$8","v":0},{"$f":"Plantlist!$G158*'Production list'!N159*'Other input expert'!L$4*'Other input expert'!L$8","v":0},{"$f":"Plantlist!$G158*'Production list'!O159*'Other input expert'!M$4*'Other input expert'!M$8","v":0},null,{"$f":"C158*'Other input expert'!B$5","v":0},{"$f":"D158*'Other input expert'!C$5","v":0},{"$f":"E158*'Other input expert'!D$5","v":0},{"$f":"F158*'Other input expert'!E$5","v":0},{"$f":"G158*'Other input expert'!F$5","v":0},{"$f":"H158*'Other input expert'!G$5","v":0},{"$f":"I158*'Other input expert'!H$5","v":0},{"$f":"J158*'Other input expert'!I$5","v":0},{"$f":"K158*'Other input expert'!J$5","v":0},{"$f":"L158*'Other input expert'!K$5","v":0},{"$f":"M158*'Other input expert'!L$5","v":0},{"$f":"N158*'Other input expert'!M$5","v":0},null,{"$f":"C158*(100%-'Other input expert'!B$5)","v":0},{"$f":"D158*(100%-'Other input expert'!C$5)","v":0},{"$f":"E158*(100%-'Other input expert'!D$5)","v":0},{"$f":"F158*(100%-'Other input expert'!E$5)","v":0},{"$f":"G158*(100%-'Other input expert'!F$5)","v":0},{"$f":"H158*(100%-'Other input expert'!G$5)","v":0},{"$f":"I158*(100%-'Other input expert'!H$5)","v":0},{"$f":"J158*(100%-'Other input expert'!I$5)","v":0},{"$f":"K158*(100%-'Other input expert'!J$5)","v":0},{"$f":"L158*(100%-'Other input expert'!K$5)","v":0},{"$f":"M158*(100%-'Other input expert'!L$5)","v":0},{"$f":"N158*(100%-'Other input expert'!M$5)","v":0},null,{"$f":"P158*'Other input expert'!B$12*'Sales price per sales channel'!$G158*'Other input expert'!B$6","v":0},{"$f":"Q158*'Other input expert'!C$12*'Sales price per sales channel'!$G158*'Other input expert'!C$6","v":0},{"$f":"R158*'Other input expert'!D$12*'Sales price per sales channel'!$G158*'Other input expert'!D$6","v":0},{"$f":"S158*'Other input expert'!E$12*'Sales price per sales channel'!$G158*'Other input expert'!E$6","v":0},{"$f":"T158*'Other input expert'!F$12*'Sales price per sales channel'!$G158*'Other input expert'!F$6","v":0},{"$f":"U158*'Other input expert'!G$12*'Sales price per sales channel'!$G158*'Other input expert'!G$6","v":0},{"$f":"V158*'Other input expert'!H$12*'Sales price per sales channel'!$G158*'Other input expert'!H$6","v":0},{"$f":"W158*'Other input expert'!I$12*'Sales price per sales channel'!$G158*'Other input expert'!I$6","v":0},{"$f":"X158*'Other input expert'!J$12*'Sales price per sales channel'!$G158*'Other input expert'!J$6","v":0},{"$f":"Y158*'Other input expert'!K$12*'Sales price per sales channel'!$G158*'Other input expert'!K$6","v":0},{"$f":"Z158*'Other input expert'!L$12*'Sales price per sales channel'!$G158*'Other input expert'!L$6","v":0},{"$f":"AA158*'Other input expert'!M$12*'Sales price per sales channel'!$G158*'Other input expert'!M$6","v":0},null,{"$f":"P158*'Other input expert'!B$13*'Sales price per sales channel'!$H158*'Other input expert'!B$6","v":0},{"$f":"Q158*'Other input expert'!C$13*'Sales price per sales channel'!$H158*'Other input expert'!C$6","v":0},{"$f":"R158*'Other input expert'!D$13*'Sales price per sales channel'!$H158*'Other input expert'!D$6","v":0},{"$f":"S158*'Other input expert'!E$13*'Sales price per sales channel'!$H158*'Other input expert'!E$6","v":0},{"$f":"T158*'Other input expert'!F$13*'Sales price per sales channel'!$H158*'Other input expert'!F$6","v":0},{"$f":"U158*'Other input expert'!G$13*'Sales price per sales channel'!$H158*'Other input expert'!G$6","v":0},{"$f":"V158*'Other input expert'!H$13*'Sales price per sales channel'!$H158*'Other input expert'!H$6","v":0},{"$f":"W158*'Other input expert'!I$13*'Sales price per sales channel'!$H158*'Other input expert'!I$6","v":0},{"$f":"X158*'Other input expert'!J$13*'Sales price per sales channel'!$H158*'Other input expert'!J$6","v":0},{"$f":"Y158*'Other input expert'!K$13*'Sales price per sales channel'!$H158*'Other input expert'!K$6","v":0},{"$f":"Z158*'Other input expert'!L$13*'Sales price per sales channel'!$H158*'Other input expert'!L$6","v":0},{"$f":"AA158*'Other input expert'!M$13*'Sales price per sales channel'!$H158*'Other input expert'!M$6","v":0},null,{"$f":"P158*'Other input expert'!B$14*'Sales price per sales channel'!$I158*'Other input expert'!B$6","v":0},{"$f":"Q158*'Other input expert'!C$14*'Sales price per sales channel'!$I158*'Other input expert'!C$6","v":0},{"$f":"R158*'Other input expert'!D$14*'Sales price per sales channel'!$I158*'Other input expert'!D$6","v":0},{"$f":"S158*'Other input expert'!E$14*'Sales price per sales channel'!$I158*'Other input expert'!E$6","v":0},{"$f":"T158*'Other input expert'!F$14*'Sales price per sales channel'!$I158*'Other input expert'!F$6","v":0},{"$f":"U158*'Other input expert'!G$14*'Sales price per sales channel'!$I158*'Other input expert'!G$6","v":0},{"$f":"V158*'Other input expert'!H$14*'Sales price per sales channel'!$I158*'Other input expert'!H$6","v":0},{"$f":"W158*'Other input expert'!I$14*'Sales price per sales channel'!$I158*'Other input expert'!I$6","v":0},{"$f":"X158*'Other input expert'!J$14*'Sales price per sales channel'!$I158*'Other input expert'!J$6","v":0},{"$f":"Y158*'Other input expert'!K$14*'Sales price per sales channel'!$I158*'Other input expert'!K$6","v":0},{"$f":"Z158*'Other input expert'!L$14*'Sales price per sales channel'!$I158*'Other input expert'!L$6","v":0},{"$f":"AA158*'Other input expert'!M$14*'Sales price per sales channel'!$I158*'Other input expert'!M$6","v":0},null,{"$f":"AC158*'Other input expert'!B$12*'Sales price per sales channel'!$G158*'Other input expert'!B$7","v":0},{"$f":"AD158*'Other input expert'!C$12*'Sales price per sales channel'!$G158*'Other input expert'!C$7","v":0},{"$f":"AE158*'Other input expert'!D$12*'Sales price per sales channel'!$G158*'Other input expert'!D$7","v":0},{"$f":"AF158*'Other input expert'!E$12*'Sales price per sales channel'!$G158*'Other input expert'!E$7","v":0},{"$f":"AG158*'Other input expert'!F$12*'Sales price per sales channel'!$G158*'Other input expert'!F$7","v":0},{"$f":"AH158*'Other input expert'!G$12*'Sales price per sales channel'!$G158*'Other input expert'!G$7","v":0},{"$f":"AI158*'Other input expert'!H$12*'Sales price per sales channel'!$G158*'Other input expert'!H$7","v":0},{"$f":"AJ158*'Other input expert'!I$12*'Sales price per sales channel'!$G158*'Other input expert'!I$7","v":0},{"$f":"AK158*'Other input expert'!J$12*'Sales price per sales channel'!$G158*'Other input expert'!J$7","v":0},{"$f":"AL158*'Other input expert'!K$12*'Sales price per sales channel'!$G158*'Other input expert'!K$7","v":0},{"$f":"AM158*'Other input expert'!L$12*'Sales price per sales channel'!$G158*'Other input expert'!L$7","v":0},{"$f":"AN158*'Other input expert'!M$12*'Sales price per sales channel'!$G158*'Other input expert'!M$7","v":0},null,{"$f":"AC158*'Other input expert'!B$13*'Sales price per sales channel'!$H158*'Other input expert'!B$7","v":0},{"$f":"AD158*'Other input expert'!C$13*'Sales price per sales channel'!$H158*'Other input expert'!C$7","v":0},{"$f":"AE158*'Other input expert'!D$13*'Sales price per sales channel'!$H158*'Other input expert'!D$7","v":0},{"$f":"AF158*'Other input expert'!E$13*'Sales price per sales channel'!$H158*'Other input expert'!E$7","v":0},{"$f":"AG158*'Other input expert'!F$13*'Sales price per sales channel'!$H158*'Other input expert'!F$7","v":0},{"$f":"AH158*'Other input expert'!G$13*'Sales price per sales channel'!$H158*'Other input expert'!G$7","v":0},{"$f":"AI158*'Other input expert'!H$13*'Sales price per sales channel'!$H158*'Other input expert'!H$7","v":0},{"$f":"AJ158*'Other input expert'!I$13*'Sales price per sales channel'!$H158*'Other input expert'!I$7","v":0},{"$f":"AK158*'Other input expert'!J$13*'Sales price per sales channel'!$H158*'Other input expert'!J$7","v":0},{"$f":"AL158*'Other input expert'!K$13*'Sales price per sales channel'!$H158*'Other input expert'!K$7","v":0},{"$f":"AM158*'Other input expert'!L$13*'Sales price per sales channel'!$H158*'Other input expert'!L$7","v":0},{"$f":"AN158*'Other input expert'!M$13*'Sales price per sales channel'!$H158*'Other input expert'!M$7","v":0},null,{"$f":"AC158*'Other input expert'!B$14*'Sales price per sales channel'!$I158*'Other input expert'!B$7","v":0},{"$f":"AD158*'Other input expert'!C$14*'Sales price per sales channel'!$I158*'Other input expert'!C$7","v":0},{"$f":"AE158*'Other input expert'!D$14*'Sales price per sales channel'!$I158*'Other input expert'!D$7","v":0},{"$f":"AF158*'Other input expert'!E$14*'Sales price per sales channel'!$I158*'Other input expert'!E$7","v":0},{"$f":"AG158*'Other input expert'!F$14*'Sales price per sales channel'!$I158*'Other input expert'!F$7","v":0},{"$f":"AH158*'Other input expert'!G$14*'Sales price per sales channel'!$I158*'Other input expert'!G$7","v":0},{"$f":"AI158*'Other input expert'!H$14*'Sales price per sales channel'!$I158*'Other input expert'!H$7","v":0},{"$f":"AJ158*'Other input expert'!I$14*'Sales price per sales channel'!$I158*'Other input expert'!I$7","v":0},{"$f":"AK158*'Other input expert'!J$14*'Sales price per sales channel'!$I158*'Other input expert'!J$7","v":0},{"$f":"AL158*'Other input expert'!K$14*'Sales price per sales channel'!$I158*'Other input expert'!K$7","v":0},{"$f":"AM158*'Other input expert'!L$14*'Sales price per sales channel'!$I158*'Other input expert'!L$7","v":0},{"$f":"AN158*'Other input expert'!M$14*'Sales price per sales channel'!$I158*'Other input expert'!M$7","v":0}]
["Rubus idaeus","Raspberry",{"$f":"Plantlist!$G159*'Production list'!D160*'Other input expert'!B$4*'Other input expert'!B$8","v":0},{"$f":"Plantlist!$G159*'Production list'!E160*'Other input expert'!C$4*'Other input expert'!C$8","v":0},{"$f":"Plantlist!$G159*'Production list'!F160*'Other input expert'!D$4*'Other input expert'!D$8","v":0},{"$f":"Plantlist!$G159*'Production list'!G160*'Other input expert'!E$4*'Other input expert'!E$8","v":0},{"$f":"Plantlist!$G159*'Production list'!H160*'Other input expert'!F$4*'Other input expert'!F$8","v":0},{"$f":"Plantlist!$G159*'Production list'!I160*'Other input expert'!G$4*'Other input expert'!G$8","v":0},{"$f":"Plantlist!$G159*'Production list'!J160*'Other input expert'!H$4*'Other input expert'!H$8","v":0},{"$f":"Plantlist!$G159*'Production list'!K160*'Other input expert'!I$4*'Other input expert'!I$8","v":0},{"$f":"Plantlist!$G159*'Production list'!L160*'Other input expert'!J$4*'Other input expert'!J$8","v":0},{"$f":"Plantlist!$G159*'Production list'!M160*'Other input expert'!K$4*'Other input expert'!K$8","v":0},{"$f":"Plantlist!$G159*'Production list'!N160*'Other input expert'!L$4*'Other input expert'!L$8","v":0},{"$f":"Plantlist!$G159*'Production list'!O160*'Other input expert'!M$4*'Other input expert'!M$8","v":0},null,{"$f":"C159*'Other input expert'!B$5","v":0},{"$f":"D159*'Other input expert'!C$5","v":0},{"$f":"E159*'Other input expert'!D$5","v":0},{"$f":"F159*'Other input expert'!E$5","v":0},{"$f":"G159*'Other input expert'!F$5","v":0},{"$f":"H159*'Other input expert'!G$5","v":0},{"$f":"I159*'Other input expert'!H$5","v":0},{"$f":"J159*'Other input expert'!I$5","v":0},{"$f":"K159*'Other input expert'!J$5","v":0},{"$f":"L159*'Other input expert'!K$5","v":0},{"$f":"M159*'Other input expert'!L$5","v":0},{"$f":"N159*'Other input expert'!M$5","v":0},null,{"$f":"C159*(100%-'Other input expert'!B$5)","v":0},{"$f":"D159*(100%-'Other input expert'!C$5)","v":0},{"$f":"E159*(100%-'Other input expert'!D$5)","v":0},{"$f":"F159*(100%-'Other input expert'!E$5)","v":0},{"$f":"G159*(100%-'Other input expert'!F$5)","v":0},{"$f":"H159*(100%-'Other input expert'!G$5)","v":0},{"$f":"I159*(100%-'Other input expert'!H$5)","v":0},{"$f":"J159*(100%-'Other input expert'!I$5)","v":0},{"$f":"K159*(100%-'Other input expert'!J$5)","v":0},{"$f":"L159*(100%-'Other input expert'!K$5)","v":0},{"$f":"M159*(100%-'Other input expert'!L$5)","v":0},{"$f":"N159*(100%-'Other input expert'!M$5)","v":0},null,{"$f":"P159*'Other input expert'!B$12*'Sales price per sales channel'!$G159*'Other input expert'!B$6","v":0},{"$f":"Q159*'Other input expert'!C$12*'Sales price per sales channel'!$G159*'Other input expert'!C$6","v":0},{"$f":"R159*'Other input expert'!D$12*'Sales price per sales channel'!$G159*'Other input expert'!D$6","v":0},{"$f":"S159*'Other input expert'!E$12*'Sales price per sales channel'!$G159*'Other input expert'!E$6","v":0},{"$f":"T159*'Other input expert'!F$12*'Sales price per sales channel'!$G159*'Other input expert'!F$6","v":0},{"$f":"U159*'Other input expert'!G$12*'Sales price per sales channel'!$G159*'Other input expert'!G$6","v":0},{"$f":"V159*'Other input expert'!H$12*'Sales price per sales channel'!$G159*'Other input expert'!H$6","v":0},{"$f":"W159*'Other input expert'!I$12*'Sales price per sales channel'!$G159*'Other input expert'!I$6","v":0},{"$f":"X159*'Other input expert'!J$12*'Sales price per sales channel'!$G159*'Other input expert'!J$6","v":0},{"$f":"Y159*'Other input expert'!K$12*'Sales price per sales channel'!$G159*'Other input expert'!K$6","v":0},{"$f":"Z159*'Other input expert'!L$12*'Sales price per sales channel'!$G159*'Other input expert'!L$6","v":0},{"$f":"AA159*'Other input expert'!M$12*'Sales price per sales channel'!$G159*'Other input expert'!M$6","v":0},null,{"$f":"P159*'Other input expert'!B$13*'Sales price per sales channel'!$H159*'Other input expert'!B$6","v":0},{"$f":"Q159*'Other input expert'!C$13*'Sales price per sales channel'!$H159*'Other input expert'!C$6","v":0},{"$f":"R159*'Other input expert'!D$13*'Sales price per sales channel'!$H159*'Other input expert'!D$6","v":0},{"$f":"S159*'Other input expert'!E$13*'Sales price per sales channel'!$H159*'Other input expert'!E$6","v":0},{"$f":"T159*'Other input expert'!F$13*'Sales price per sales channel'!$H159*'Other input expert'!F$6","v":0},{"$f":"U159*'Other input expert'!G$13*'Sales price per sales channel'!$H159*'Other input expert'!G$6","v":0},{"$f":"V159*'Other input expert'!H$13*'Sales price per sales channel'!$H159*'Other input expert'!H$6","v":0},{"$f":"W159*'Other input expert'!I$13*'Sales price per sales channel'!$H159*'Other input expert'!I$6","v":0},{"$f":"X159*'Other input expert'!J$13*'Sales price per sales channel'!$H159*'Other input expert'!J$6","v":0},{"$f":"Y159*'Other input expert'!K$13*'Sales price per sales channel'!$H159*'Other input expert'!K$6","v":0},{"$f":"Z159*'Other input expert'!L$13*'Sales price per sales channel'!$H159*'Other input expert'!L$6","v":0},{"$f":"AA159*'Other input expert'!M$13*'Sales price per sales channel'!$H159*'Other input expert'!M$6","v":0},null,{"$f":"P159*'Other input expert'!B$14*'Sales price per sales channel'!$I159*'Other input expert'!B$6","v":0},{"$f":"Q159*'Other input expert'!C$14*'Sales price per sales channel'!$I159*'Other input expert'!C$6","v":0},{"$f":"R159*'Other input expert'!D$14*'Sales price per sales channel'!$I159*'Other input expert'!D$6","v":0},{"$f":"S159*'Other input expert'!E$14*'Sales price per sales channel'!$I159*'Other input expert'!E$6","v":0},{"$f":"T159*'Other input expert'!F$14*'Sales price per sales channel'!$I159*'Other input expert'!F$6","v":0},{"$f":"U159*'Other input expert'!G$14*'Sales price per sales channel'!$I159*'Other input expert'!G$6","v":0},{"$f":"V159*'Other input expert'!H$14*'Sales price per sales channel'!$I159*'Other input expert'!H$6","v":0},{"$f":"W159*'Other input expert'!I$14*'Sales price per sales channel'!$I159*'Other input expert'!I$6","v":0},{"$f":"X159*'Other input expert'!J$14*'Sales price per sales channel'!$I159*'Other input expert'!J$6","v":0},{"$f":"Y159*'Other input expert'!K$14*'Sales price per sales channel'!$I159*'Other input expert'!K$6","v":0},{"$f":"Z159*'Other input expert'!L$14*'Sales price per sales channel'!$I159*'Other input expert'!L$6","v":0},{"$f":"AA159*'Other input expert'!M$14*'Sales price per sales channel'!$I159*'Other input expert'!M$6","v":0},null,{"$f":"AC159*'Other input expert'!B$12*'Sales price per sales channel'!$G159*'Other input expert'!B$7","v":0},{"$f":"AD159*'Other input expert'!C$12*'Sales price per sales channel'!$G159*'Other input expert'!C$7","v":0},{"$f":"AE159*'Other input expert'!D$12*'Sales price per sales channel'!$G159*'Other input expert'!D$7","v":0},{"$f":"AF159*'Other input expert'!E$12*'Sales price per sales channel'!$G159*'Other input expert'!E$7","v":0},{"$f":"AG159*'Other input expert'!F$12*'Sales price per sales channel'!$G159*'Other input expert'!F$7","v":0},{"$f":"AH159*'Other input expert'!G$12*'Sales price per sales channel'!$G159*'Other input expert'!G$7","v":0},{"$f":"AI159*'Other input expert'!H$12*'Sales price per sales channel'!$G159*'Other input expert'!H$7","v":0},{"$f":"AJ159*'Other input expert'!I$12*'Sales price per sales channel'!$G159*'Other input expert'!I$7","v":0},{"$f":"AK159*'Other input expert'!J$12*'Sales price per sales channel'!$G159*'Other input expert'!J$7","v":0},{"$f":"AL159*'Other input expert'!K$12*'Sales price per sales channel'!$G159*'Other input expert'!K$7","v":0},{"$f":"AM159*'Other input expert'!L$12*'Sales price per sales channel'!$G159*'Other input expert'!L$7","v":0},{"$f":"AN159*'Other input expert'!M$12*'Sales price per sales channel'!$G159*'Other input expert'!M$7","v":0},null,{"$f":"AC159*'Other input expert'!B$13*'Sales price per sales channel'!$H159*'Other input expert'!B$7","v":0},{"$f":"AD159*'Other input expert'!C$13*'Sales price per sales channel'!$H159*'Other input expert'!C$7","v":0},{"$f":"AE159*'Other input expert'!D$13*'Sales price per sales channel'!$H159*'Other input expert'!D$7","v":0},{"$f":"AF159*'Other input expert'!E$13*'Sales price per sales channel'!$H159*'Other input expert'!E$7","v":0},{"$f":"AG159*'Other input expert'!F$13*'Sales price per sales channel'!$H159*'Other input expert'!F$7","v":0},{"$f":"AH159*'Other input expert'!G$13*'Sales price per sales channel'!$H159*'Other input expert'!G$7","v":0},{"$f":"AI159*'Other input expert'!H$13*'Sales price per sales channel'!$H159*'Other input expert'!H$7","v":0},{"$f":"AJ159*'Other input expert'!I$13*'Sales price per sales channel'!$H159*'Other input expert'!I$7","v":0},{"$f":"AK159*'Other input expert'!J$13*'Sales price per sales channel'!$H159*'Other input expert'!J$7","v":0},{"$f":"AL159*'Other input expert'!K$13*'Sales price per sales channel'!$H159*'Other input expert'!K$7","v":0},{"$f":"AM159*'Other input expert'!L$13*'Sales price per sales channel'!$H159*'Other input expert'!L$7","v":0},{"$f":"AN159*'Other input expert'!M$13*'Sales price per sales channel'!$H159*'Other input expert'!M$7","v":0},null,{"$f":"AC159*'Other input expert'!B$14*'Sales price per sales channel'!$I159*'Other input expert'!B$7","v":0},{"$f":"AD159*'Other input expert'!C$14*'Sales price per sales channel'!$I159*'Other input expert'!C$7","v":0},{"$f":"AE159*'Other input expert'!D$14*'Sales price per sales channel'!$I159*'Other input expert'!D$7","v":0},{"$f":"AF159*'Other input expert'!E$14*'Sales price per sales channel'!$I159*'Other input expert'!E$7","v":0},{"$f":"AG159*'Other input expert'!F$14*'Sales price per sales channel'!$I159*'Other input expert'!F$7","v":0},{"$f":"AH159*'Other input expert'!G$14*'Sales price per sales channel'!$I159*'Other input expert'!G$7","v":0},{"$f":"AI159*'Other input expert'!H$14*'Sales price per sales channel'!$I159*'Other input expert'!H$7","v":0},{"$f":"AJ159*'Other input expert'!I$14*'Sales price per sales channel'!$I159*'Other input expert'!I$7","v":0},{"$f":"AK159*'Other input expert'!J$14*'Sales price per sales channel'!$I159*'Other input expert'!J$7","v":0},{"$f":"AL159*'Other input expert'!K$14*'Sales price per sales channel'!$I159*'Other input expert'!K$7","v":0},{"$f":"AM159*'Other input expert'!L$14*'Sales price per sales channel'!$I159*'Other input expert'!L$7","v":0},{"$f":"AN159*'Other input expert'!M$14*'Sales price per sales channel'!$I159*'Other input expert'!M$7","v":0}]
["Rubus loganobaccus","Loganberry",{"$f":"Plantlist!$G160*'Production list'!D161*'Other input expert'!B$4*'Other input expert'!B$8","v":0},{"$f":"Plantlist!$G160*'Production list'!E161*'Other input expert'!C$4*'Other input expert'!C$8","v":0},{"$f":"Plantlist!$G160*'Production list'!F161*'Other input expert'!D$4*'Other input expert'!D$8","v":0},{"$f":"Plantlist!$G160*'Production list'!G161*'Other input expert'!E$4*'Other input expert'!E$8","v":0},{"$f":"Plantlist!$G160*'Production list'!H161*'Other input expert'!F$4*'Other input expert'!F$8","v":0},{"$f":"Plantlist!$G160*'Production list'!I161*'Other input expert'!G$4*'Other input expert'!G$8","v":0},{"$f":"Plantlist!$G160*'Production list'!J161*'Other input expert'!H$4*'Other input expert'!H$8","v":0},{"$f":"Plantlist!$G160*'Production list'!K161*'Other input expert'!I$4*'Other input expert'!I$8","v":0},{"$f":"Plantlist!$G160*'Production list'!L161*'Other input expert'!J$4*'Other input expert'!J$8","v":0},{"$f":"Plantlist!$G160*'Production list'!M161*'Other input expert'!K$4*'Other input expert'!K$8","v":0},{"$f":"Plantlist!$G160*'Production list'!N161*'Other input expert'!L$4*'Other input expert'!L$8","v":0},{"$f":"Plantlist!$G160*'Production list'!O161*'Other input expert'!M$4*'Other input expert'!M$8","v":0},null,{"$f":"C160*'Other input expert'!B$5","v":0},{"$f":"D160*'Other input expert'!C$5","v":0},{"$f":"E160*'Other input expert'!D$5","v":0},{"$f":"F160*'Other input expert'!E$5","v":0},{"$f":"G160*'Other input expert'!F$5","v":0},{"$f":"H160*'Other input expert'!G$5","v":0},{"$f":"I160*'Other input expert'!H$5","v":0},{"$f":"J160*'Other input expert'!I$5","v":0},{"$f":"K160*'Other input expert'!J$5","v":0},{"$f":"L160*'Other input expert'!K$5","v":0},{"$f":"M160*'Other input expert'!L$5","v":0},{"$f":"N160*'Other input expert'!M$5","v":0},null,{"$f":"C160*(100%-'Other input expert'!B$5)","v":0},{"$f":"D160*(100%-'Other input expert'!C$5)","v":0},{"$f":"E160*(100%-'Other input expert'!D$5)","v":0},{"$f":"F160*(100%-'Other input expert'!E$5)","v":0},{"$f":"G160*(100%-'Other input expert'!F$5)","v":0},{"$f":"H160*(100%-'Other input expert'!G$5)","v":0},{"$f":"I160*(100%-'Other input expert'!H$5)","v":0},{"$f":"J160*(100%-'Other input expert'!I$5)","v":0},{"$f":"K160*(100%-'Other input expert'!J$5)","v":0},{"$f":"L160*(100%-'Other input expert'!K$5)","v":0},{"$f":"M160*(100%-'Other input expert'!L$5)","v":0},{"$f":"N160*(100%-'Other input expert'!M$5)","v":0},null,{"$f":"P160*'Other input expert'!B$12*'Sales price per sales channel'!$G160*'Other input expert'!B$6","v":0},{"$f":"Q160*'Other input expert'!C$12*'Sales price per sales channel'!$G160*'Other input expert'!C$6","v":0},{"$f":"R160*'Other input expert'!D$12*'Sales price per sales channel'!$G160*'Other input expert'!D$6","v":0},{"$f":"S160*'Other input expert'!E$12*'Sales price per sales channel'!$G160*'Other input expert'!E$6","v":0},{"$f":"T160*'Other input expert'!F$12*'Sales price per sales channel'!$G160*'Other input expert'!F$6","v":0},{"$f":"U160*'Other input expert'!G$12*'Sales price per sales channel'!$G160*'Other input expert'!G$6","v":0},{"$f":"V160*'Other input expert'!H$12*'Sales price per sales channel'!$G160*'Other input expert'!H$6","v":0},{"$f":"W160*'Other input expert'!I$12*'Sales price per sales channel'!$G160*'Other input expert'!I$6","v":0},{"$f":"X160*'Other input expert'!J$12*'Sales price per sales channel'!$G160*'Other input expert'!J$6","v":0},{"$f":"Y160*'Other input expert'!K$12*'Sales price per sales channel'!$G160*'Other input expert'!K$6","v":0},{"$f":"Z160*'Other input expert'!L$12*'Sales price per sales channel'!$G160*'Other input expert'!L$6","v":0},{"$f":"AA160*'Other input expert'!M$12*'Sales price per sales channel'!$G160*'Other input expert'!M$6","v":0},null,{"$f":"P160*'Other input expert'!B$13*'Sales price per sales channel'!$H160*'Other input expert'!B$6","v":0},{"$f":"Q160*'Other input expert'!C$13*'Sales price per sales channel'!$H160*'Other input expert'!C$6","v":0},{"$f":"R160*'Other input expert'!D$13*'Sales price per sales channel'!$H160*'Other input expert'!D$6","v":0},{"$f":"S160*'Other input expert'!E$13*'Sales price per sales channel'!$H160*'Other input expert'!E$6","v":0},{"$f":"T160*'Other input expert'!F$13*'Sales price per sales channel'!$H160*'Other input expert'!F$6","v":0},{"$f":"U160*'Other input expert'!G$13*'Sales price per sales channel'!$H160*'Other input expert'!G$6","v":0},{"$f":"V160*'Other input expert'!H$13*'Sales price per sales channel'!$H160*'Other input expert'!H$6","v":0},{"$f":"W160*'Other input expert'!I$13*'Sales price per sales channel'!$H160*'Other input expert'!I$6","v":0},{"$f":"X160*'Other input expert'!J$13*'Sales price per sales channel'!$H160*'Other input expert'!J$6","v":0},{"$f":"Y160*'Other input expert'!K$13*'Sales price per sales channel'!$H160*'Other input expert'!K$6","v":0},{"$f":"Z160*'Other input expert'!L$13*'Sales price per sales channel'!$H160*'Other input expert'!L$6","v":0},{"$f":"AA160*'Other input expert'!M$13*'Sales price per sales channel'!$H160*'Other input expert'!M$6","v":0},null,{"$f":"P160*'Other input expert'!B$14*'Sales price per sales channel'!$I160*'Other input expert'!B$6","v":0},{"$f":"Q160*'Other input expert'!C$14*'Sales price per sales channel'!$I160*'Other input expert'!C$6","v":0},{"$f":"R160*'Other input expert'!D$14*'Sales price per sales channel'!$I160*'Other input expert'!D$6","v":0},{"$f":"S160*'Other input expert'!E$14*'Sales price per sales channel'!$I160*'Other input expert'!E$6","v":0},{"$f":"T160*'Other input expert'!F$14*'Sales price per sales channel'!$I160*'Other input expert'!F$6","v":0},{"$f":"U160*'Other input expert'!G$14*'Sales price per sales channel'!$I160*'Other input expert'!G$6","v":0},{"$f":"V160*'Other input expert'!H$14*'Sales price per sales channel'!$I160*'Other input expert'!H$6","v":0},{"$f":"W160*'Other input expert'!I$14*'Sales price per sales channel'!$I160*'Other input expert'!I$6","v":0},{"$f":"X160*'Other input expert'!J$14*'Sales price per sales channel'!$I160*'Other input expert'!J$6","v":0},{"$f":"Y160*'Other input expert'!K$14*'Sales price per sales channel'!$I160*'Other input expert'!K$6","v":0},{"$f":"Z160*'Other input expert'!L$14*'Sales price per sales channel'!$I160*'Other input expert'!L$6","v":0},{"$f":"AA160*'Other input expert'!M$14*'Sales price per sales channel'!$I160*'Other input expert'!M$6","v":0},null,{"$f":"AC160*'Other input expert'!B$12*'Sales price per sales channel'!$G160*'Other input expert'!B$7","v":0},{"$f":"AD160*'Other input expert'!C$12*'Sales price per sales channel'!$G160*'Other input expert'!C$7","v":0},{"$f":"AE160*'Other input expert'!D$12*'Sales price per sales channel'!$G160*'Other input expert'!D$7","v":0},{"$f":"AF160*'Other input expert'!E$12*'Sales price per sales channel'!$G160*'Other input expert'!E$7","v":0},{"$f":"AG160*'Other input expert'!F$12*'Sales price per sales channel'!$G160*'Other input expert'!F$7","v":0},{"$f":"AH160*'Other input expert'!G$12*'Sales price per sales channel'!$G160*'Other input expert'!G$7","v":0},{"$f":"AI160*'Other input expert'!H$12*'Sales price per sales channel'!$G160*'Other input expert'!H$7","v":0},{"$f":"AJ160*'Other input expert'!I$12*'Sales price per sales channel'!$G160*'Other input expert'!I$7","v":0},{"$f":"AK160*'Other input expert'!J$12*'Sales price per sales channel'!$G160*'Other input expert'!J$7","v":0},{"$f":"AL160*'Other input expert'!K$12*'Sales price per sales channel'!$G160*'Other input expert'!K$7","v":0},{"$f":"AM160*'Other input expert'!L$12*'Sales price per sales channel'!$G160*'Other input expert'!L$7","v":0},{"$f":"AN160*'Other input expert'!M$12*'Sales price per sales channel'!$G160*'Other input expert'!M$7","v":0},null,{"$f":"AC160*'Other input expert'!B$13*'Sales price per sales channel'!$H160*'Other input expert'!B$7","v":0},{"$f":"AD160*'Other input expert'!C$13*'Sales price per sales channel'!$H160*'Other input expert'!C$7","v":0},{"$f":"AE160*'Other input expert'!D$13*'Sales price per sales channel'!$H160*'Other input expert'!D$7","v":0},{"$f":"AF160*'Other input expert'!E$13*'Sales price per sales channel'!$H160*'Other input expert'!E$7","v":0},{"$f":"AG160*'Other input expert'!F$13*'Sales price per sales channel'!$H160*'Other input expert'!F$7","v":0},{"$f":"AH160*'Other input expert'!G$13*'Sales price per sales channel'!$H160*'Other input expert'!G$7","v":0},{"$f":"AI160*'Other input expert'!H$13*'Sales price per sales channel'!$H160*'Other input expert'!H$7","v":0},{"$f":"AJ160*'Other input expert'!I$13*'Sales price per sales channel'!$H160*'Other input expert'!I$7","v":0},{"$f":"AK160*'Other input expert'!J$13*'Sales price per sales channel'!$H160*'Other input expert'!J$7","v":0},{"$f":"AL160*'Other input expert'!K$13*'Sales price per sales channel'!$H160*'Other input expert'!K$7","v":0},{"$f":"AM160*'Other input expert'!L$13*'Sales price per sales channel'!$H160*'Other input expert'!L$7","v":0},{"$f":"AN160*'Other input expert'!M$13*'Sales price per sales channel'!$H160*'Other input expert'!M$7","v":0},null,{"$f":"AC160*'Other input expert'!B$14*'Sales price per sales channel'!$I160*'Other input expert'!B$7","v":0},{"$f":"AD160*'Other input expert'!C$14*'Sales price per sales channel'!$I160*'Other input expert'!C$7","v":0},{"$f":"AE160*'Other input expert'!D$14*'Sales price per sales channel'!$I160*'Other input expert'!D$7","v":0},{"$f":"AF160*'Other input expert'!E$14*'Sales price per sales channel'!$I160*'Other input expert'!E$7","v":0},{"$f":"AG160*'Other input expert'!F$14*'Sales price per sales channel'!$I160*'Other input expert'!F$7","v":0},{"$f":"AH160*'Other input expert'!G$14*'Sales price per sales channel'!$I160*'Other input expert'!G$7","v":0},{"$f":"AI160*'Other input expert'!H$14*'Sales price per sales channel'!$I160*'Other input expert'!H$7","v":0},{"$f":"AJ160*'Other input expert'!I$14*'Sales price per sales channel'!$I160*'Other input expert'!I$7","v":0},{"$f":"AK160*'Other input expert'!J$14*'Sales price per sales channel'!$I160*'Other input expert'!J$7","v":0},{"$f":"AL160*'Other input expert'!K$14*'Sales price per sales channel'!$I160*'Other input expert'!K$7","v":0},{"$f":"AM160*'Other input expert'!L$14*'Sales price per sales channel'!$I160*'Other input expert'!L$7","v":0},{"$f":"AN160*'Other input expert'!M$14*'Sales price per sales channel'!$I160*'Other input expert'!M$7","v":0}]
["Rubus phoenicolasius","Japanese wineberry",{"$f":"Plantlist!$G161*'Production list'!D162*'Other input expert'!B$4*'Other input expert'!B$8","v":0},{"$f":"Plantlist!$G161*'Production list'!E162*'Other input expert'!C$4*'Other input expert'!C$8","v":0},{"$f":"Plantlist!$G161*'Production list'!F162*'Other input expert'!D$4*'Other input expert'!D$8","v":0},{"$f":"Plantlist!$G161*'Production list'!G162*'Other input expert'!E$4*'Other input expert'!E$8","v":0},{"$f":"Plantlist!$G161*'Production list'!H162*'Other input expert'!F$4*'Other input expert'!F$8","v":0},{"$f":"Plantlist!$G161*'Production list'!I162*'Other input expert'!G$4*'Other input expert'!G$8","v":0},{"$f":"Plantlist!$G161*'Production list'!J162*'Other input expert'!H$4*'Other input expert'!H$8","v":0},{"$f":"Plantlist!$G161*'Production list'!K162*'Other input expert'!I$4*'Other input expert'!I$8","v":0},{"$f":"Plantlist!$G161*'Production list'!L162*'Other input expert'!J$4*'Other input expert'!J$8","v":0},{"$f":"Plantlist!$G161*'Production list'!M162*'Other input expert'!K$4*'Other input expert'!K$8","v":0},{"$f":"Plantlist!$G161*'Production list'!N162*'Other input expert'!L$4*'Other input expert'!L$8","v":0},{"$f":"Plantlist!$G161*'Production list'!O162*'Other input expert'!M$4*'Other input expert'!M$8","v":0},null,{"$f":"C161*'Other input expert'!B$5","v":0},{"$f":"D161*'Other input expert'!C$5","v":0},{"$f":"E161*'Other input expert'!D$5","v":0},{"$f":"F161*'Other input expert'!E$5","v":0},{"$f":"G161*'Other input expert'!F$5","v":0},{"$f":"H161*'Other input expert'!G$5","v":0},{"$f":"I161*'Other input expert'!H$5","v":0},{"$f":"J161*'Other input expert'!I$5","v":0},{"$f":"K161*'Other input expert'!J$5","v":0},{"$f":"L161*'Other input expert'!K$5","v":0},{"$f":"M161*'Other input expert'!L$5","v":0},{"$f":"N161*'Other input expert'!M$5","v":0},null,{"$f":"C161*(100%-'Other input expert'!B$5)","v":0},{"$f":"D161*(100%-'Other input expert'!C$5)","v":0},{"$f":"E161*(100%-'Other input expert'!D$5)","v":0},{"$f":"F161*(100%-'Other input expert'!E$5)","v":0},{"$f":"G161*(100%-'Other input expert'!F$5)","v":0},{"$f":"H161*(100%-'Other input expert'!G$5)","v":0},{"$f":"I161*(100%-'Other input expert'!H$5)","v":0},{"$f":"J161*(100%-'Other input expert'!I$5)","v":0},{"$f":"K161*(100%-'Other input expert'!J$5)","v":0},{"$f":"L161*(100%-'Other input expert'!K$5)","v":0},{"$f":"M161*(100%-'Other input expert'!L$5)","v":0},{"$f":"N161*(100%-'Other input expert'!M$5)","v":0},null,{"$f":"P161*'Other input expert'!B$12*'Sales price per sales channel'!$G161*'Other input expert'!B$6","v":0},{"$f":"Q161*'Other input expert'!C$12*'Sales price per sales channel'!$G161*'Other input expert'!C$6","v":0},{"$f":"R161*'Other input expert'!D$12*'Sales price per sales channel'!$G161*'Other input expert'!D$6","v":0},{"$f":"S161*'Other input expert'!E$12*'Sales price per sales channel'!$G161*'Other input expert'!E$6","v":0},{"$f":"T161*'Other input expert'!F$12*'Sales price per sales channel'!$G161*'Other input expert'!F$6","v":0},{"$f":"U161*'Other input expert'!G$12*'Sales price per sales channel'!$G161*'Other input expert'!G$6","v":0},{"$f":"V161*'Other input expert'!H$12*'Sales price per sales channel'!$G161*'Other input expert'!H$6","v":0},{"$f":"W161*'Other input expert'!I$12*'Sales price per sales channel'!$G161*'Other input expert'!I$6","v":0},{"$f":"X161*'Other input expert'!J$12*'Sales price per sales channel'!$G161*'Other input expert'!J$6","v":0},{"$f":"Y161*'Other input expert'!K$12*'Sales price per sales channel'!$G161*'Other input expert'!K$6","v":0},{"$f":"Z161*'Other input expert'!L$12*'Sales price per sales channel'!$G161*'Other input expert'!L$6","v":0},{"$f":"AA161*'Other input expert'!M$12*'Sales price per sales channel'!$G161*'Other input expert'!M$6","v":0},null,{"$f":"P161*'Other input expert'!B$13*'Sales price per sales channel'!$H161*'Other input expert'!B$6","v":0},{"$f":"Q161*'Other input expert'!C$13*'Sales price per sales channel'!$H161*'Other input expert'!C$6","v":0},{"$f":"R161*'Other input expert'!D$13*'Sales price per sales channel'!$H161*'Other input expert'!D$6","v":0},{"$f":"S161*'Other input expert'!E$13*'Sales price per sales channel'!$H161*'Other input expert'!E$6","v":0},{"$f":"T161*'Other input expert'!F$13*'Sales price per sales channel'!$H161*'Other input expert'!F$6","v":0},{"$f":"U161*'Other input expert'!G$13*'Sales price per sales channel'!$H161*'Other input expert'!G$6","v":0},{"$f":"V161*'Other input expert'!H$13*'Sales price per sales channel'!$H161*'Other input expert'!H$6","v":0},{"$f":"W161*'Other input expert'!I$13*'Sales price per sales channel'!$H161*'Other input expert'!I$6","v":0},{"$f":"X161*'Other input expert'!J$13*'Sales price per sales channel'!$H161*'Other input expert'!J$6","v":0},{"$f":"Y161*'Other input expert'!K$13*'Sales price per sales channel'!$H161*'Other input expert'!K$6","v":0},{"$f":"Z161*'Other input expert'!L$13*'Sales price per sales channel'!$H161*'Other input expert'!L$6","v":0},{"$f":"AA161*'Other input expert'!M$13*'Sales price per sales channel'!$H161*'Other input expert'!M$6","v":0},null,{"$f":"P161*'Other input expert'!B$14*'Sales price per sales channel'!$I161*'Other input expert'!B$6","v":0},{"$f":"Q161*'Other input expert'!C$14*'Sales price per sales channel'!$I161*'Other input expert'!C$6","v":0},{"$f":"R161*'Other input expert'!D$14*'Sales price per sales channel'!$I161*'Other input expert'!D$6","v":0},{"$f":"S161*'Other input expert'!E$14*'Sales price per sales channel'!$I161*'Other input expert'!E$6","v":0},{"$f":"T161*'Other input expert'!F$14*'Sales price per sales channel'!$I161*'Other input expert'!F$6","v":0},{"$f":"U161*'Other input expert'!G$14*'Sales price per sales channel'!$I161*'Other input expert'!G$6","v":0},{"$f":"V161*'Other input expert'!H$14*'Sales price per sales channel'!$I161*'Other input expert'!H$6","v":0},{"$f":"W161*'Other input expert'!I$14*'Sales price per sales channel'!$I161*'Other input expert'!I$6","v":0},{"$f":"X161*'Other input expert'!J$14*'Sales price per sales channel'!$I161*'Other input expert'!J$6","v":0},{"$f":"Y161*'Other input expert'!K$14*'Sales price per sales channel'!$I161*'Other input expert'!K$6","v":0},{"$f":"Z161*'Other input expert'!L$14*'Sales price per sales channel'!$I161*'Other input expert'!L$6","v":0},{"$f":"AA161*'Other input expert'!M$14*'Sales price per sales channel'!$I161*'Other input expert'!M$6","v":0},null,{"$f":"AC161*'Other input expert'!B$12*'Sales price per sales channel'!$G161*'Other input expert'!B$7","v":0},{"$f":"AD161*'Other input expert'!C$12*'Sales price per sales channel'!$G161*'Other input expert'!C$7","v":0},{"$f":"AE161*'Other input expert'!D$12*'Sales price per sales channel'!$G161*'Other input expert'!D$7","v":0},{"$f":"AF161*'Other input expert'!E$12*'Sales price per sales channel'!$G161*'Other input expert'!E$7","v":0},{"$f":"AG161*'Other input expert'!F$12*'Sales price per sales channel'!$G161*'Other input expert'!F$7","v":0},{"$f":"AH161*'Other input expert'!G$12*'Sales price per sales channel'!$G161*'Other input expert'!G$7","v":0},{"$f":"AI161*'Other input expert'!H$12*'Sales price per sales channel'!$G161*'Other input expert'!H$7","v":0},{"$f":"AJ161*'Other input expert'!I$12*'Sales price per sales channel'!$G161*'Other input expert'!I$7","v":0},{"$f":"AK161*'Other input expert'!J$12*'Sales price per sales channel'!$G161*'Other input expert'!J$7","v":0},{"$f":"AL161*'Other input expert'!K$12*'Sales price per sales channel'!$G161*'Other input expert'!K$7","v":0},{"$f":"AM161*'Other input expert'!L$12*'Sales price per sales channel'!$G161*'Other input expert'!L$7","v":0},{"$f":"AN161*'Other input expert'!M$12*'Sales price per sales channel'!$G161*'Other input expert'!M$7","v":0},null,{"$f":"AC161*'Other input expert'!B$13*'Sales price per sales channel'!$H161*'Other input expert'!B$7","v":0},{"$f":"AD161*'Other input expert'!C$13*'Sales price per sales channel'!$H161*'Other input expert'!C$7","v":0},{"$f":"AE161*'Other input expert'!D$13*'Sales price per sales channel'!$H161*'Other input expert'!D$7","v":0},{"$f":"AF161*'Other input expert'!E$13*'Sales price per sales channel'!$H161*'Other input expert'!E$7","v":0},{"$f":"AG161*'Other input expert'!F$13*'Sales price per sales channel'!$H161*'Other input expert'!F$7","v":0},{"$f":"AH161*'Other input expert'!G$13*'Sales price per sales channel'!$H161*'Other input expert'!G$7","v":0},{"$f":"AI161*'Other input expert'!H$13*'Sales price per sales channel'!$H161*'Other input expert'!H$7","v":0},{"$f":"AJ161*'Other input expert'!I$13*'Sales price per sales channel'!$H161*'Other input expert'!I$7","v":0},{"$f":"AK161*'Other input expert'!J$13*'Sales price per sales channel'!$H161*'Other input expert'!J$7","v":0},{"$f":"AL161*'Other input expert'!K$13*'Sales price per sales channel'!$H161*'Other input expert'!K$7","v":0},{"$f":"AM161*'Other input expert'!L$13*'Sales price per sales channel'!$H161*'Other input expert'!L$7","v":0},{"$f":"AN161*'Other input expert'!M$13*'Sales price per sales channel'!$H161*'Other input expert'!M$7","v":0},null,{"$f":"AC161*'Other input expert'!B$14*'Sales price per sales channel'!$I161*'Other input expert'!B$7","v":0},{"$f":"AD161*'Other input expert'!C$14*'Sales price per sales channel'!$I161*'Other input expert'!C$7","v":0},{"$f":"AE161*'Other input expert'!D$14*'Sales price per sales channel'!$I161*'Other input expert'!D$7","v":0},{"$f":"AF161*'Other input expert'!E$14*'Sales price per sales channel'!$I161*'Other input expert'!E$7","v":0},{"$f":"AG161*'Other input expert'!F$14*'Sales price per sales channel'!$I161*'Other input expert'!F$7","v":0},{"$f":"AH161*'Other input expert'!G$14*'Sales price per sales channel'!$I161*'Other input expert'!G$7","v":0},{"$f":"AI161*'Other input expert'!H$14*'Sales price per sales channel'!$I161*'Other input expert'!H$7","v":0},{"$f":"AJ161*'Other input expert'!I$14*'Sales price per sales channel'!$I161*'Other input expert'!I$7","v":0},{"$f":"AK161*'Other input expert'!J$14*'Sales price per sales channel'!$I161*'Other input expert'!J$7","v":0},{"$f":"AL161*'Other input expert'!K$14*'Sales price per sales channel'!$I161*'Other input expert'!K$7","v":0},{"$f":"AM161*'Other input expert'!L$14*'Sales price per sales channel'!$I161*'Other input expert'!L$7","v":0},{"$f":"AN161*'Other input expert'!M$14*'Sales price per sales channel'!$I161*'Other input expert'!M$7","v":0}]
["Ruta graveolens","Rue",{"$f":"Plantlist!$G162*'Production list'!D163*'Other input expert'!B$4*'Other input expert'!B$8","v":0},{"$f":"Plantlist!$G162*'Production list'!E163*'Other input expert'!C$4*'Other input expert'!C$8","v":0},{"$f":"Plantlist!$G162*'Production list'!F163*'Other input expert'!D$4*'Other input expert'!D$8","v":0},{"$f":"Plantlist!$G162*'Production list'!G163*'Other input expert'!E$4*'Other input expert'!E$8","v":0},{"$f":"Plantlist!$G162*'Production list'!H163*'Other input expert'!F$4*'Other input expert'!F$8","v":0},{"$f":"Plantlist!$G162*'Production list'!I163*'Other input expert'!G$4*'Other input expert'!G$8","v":0},{"$f":"Plantlist!$G162*'Production list'!J163*'Other input expert'!H$4*'Other input expert'!H$8","v":0},{"$f":"Plantlist!$G162*'Production list'!K163*'Other input expert'!I$4*'Other input expert'!I$8","v":0},{"$f":"Plantlist!$G162*'Production list'!L163*'Other input expert'!J$4*'Other input expert'!J$8","v":0},{"$f":"Plantlist!$G162*'Production list'!M163*'Other input expert'!K$4*'Other input expert'!K$8","v":0},{"$f":"Plantlist!$G162*'Production list'!N163*'Other input expert'!L$4*'Other input expert'!L$8","v":0},{"$f":"Plantlist!$G162*'Production list'!O163*'Other input expert'!M$4*'Other input expert'!M$8","v":0},null,{"$f":"C162*'Other input expert'!B$5","v":0},{"$f":"D162*'Other input expert'!C$5","v":0},{"$f":"E162*'Other input expert'!D$5","v":0},{"$f":"F162*'Other input expert'!E$5","v":0},{"$f":"G162*'Other input expert'!F$5","v":0},{"$f":"H162*'Other input expert'!G$5","v":0},{"$f":"I162*'Other input expert'!H$5","v":0},{"$f":"J162*'Other input expert'!I$5","v":0},{"$f":"K162*'Other input expert'!J$5","v":0},{"$f":"L162*'Other input expert'!K$5","v":0},{"$f":"M162*'Other input expert'!L$5","v":0},{"$f":"N162*'Other input expert'!M$5","v":0},null,{"$f":"C162*(100%-'Other input expert'!B$5)","v":0},{"$f":"D162*(100%-'Other input expert'!C$5)","v":0},{"$f":"E162*(100%-'Other input expert'!D$5)","v":0},{"$f":"F162*(100%-'Other input expert'!E$5)","v":0},{"$f":"G162*(100%-'Other input expert'!F$5)","v":0},{"$f":"H162*(100%-'Other input expert'!G$5)","v":0},{"$f":"I162*(100%-'Other input expert'!H$5)","v":0},{"$f":"J162*(100%-'Other input expert'!I$5)","v":0},{"$f":"K162*(100%-'Other input expert'!J$5)","v":0},{"$f":"L162*(100%-'Other input expert'!K$5)","v":0},{"$f":"M162*(100%-'Other input expert'!L$5)","v":0},{"$f":"N162*(100%-'Other input expert'!M$5)","v":0},null,{"$f":"P162*'Other input expert'!B$12*'Sales price per sales channel'!$G162*'Other input expert'!B$6","v":0},{"$f":"Q162*'Other input expert'!C$12*'Sales price per sales channel'!$G162*'Other input expert'!C$6","v":0},{"$f":"R162*'Other input expert'!D$12*'Sales price per sales channel'!$G162*'Other input expert'!D$6","v":0},{"$f":"S162*'Other input expert'!E$12*'Sales price per sales channel'!$G162*'Other input expert'!E$6","v":0},{"$f":"T162*'Other input expert'!F$12*'Sales price per sales channel'!$G162*'Other input expert'!F$6","v":0},{"$f":"U162*'Other input expert'!G$12*'Sales price per sales channel'!$G162*'Other input expert'!G$6","v":0},{"$f":"V162*'Other input expert'!H$12*'Sales price per sales channel'!$G162*'Other input expert'!H$6","v":0},{"$f":"W162*'Other input expert'!I$12*'Sales price per sales channel'!$G162*'Other input expert'!I$6","v":0},{"$f":"X162*'Other input expert'!J$12*'Sales price per sales channel'!$G162*'Other input expert'!J$6","v":0},{"$f":"Y162*'Other input expert'!K$12*'Sales price per sales channel'!$G162*'Other input expert'!K$6","v":0},{"$f":"Z162*'Other input expert'!L$12*'Sales price per sales channel'!$G162*'Other input expert'!L$6","v":0},{"$f":"AA162*'Other input expert'!M$12*'Sales price per sales channel'!$G162*'Other input expert'!M$6","v":0},null,{"$f":"P162*'Other input expert'!B$13*'Sales price per sales channel'!$H162*'Other input expert'!B$6","v":0},{"$f":"Q162*'Other input expert'!C$13*'Sales price per sales channel'!$H162*'Other input expert'!C$6","v":0},{"$f":"R162*'Other input expert'!D$13*'Sales price per sales channel'!$H162*'Other input expert'!D$6","v":0},{"$f":"S162*'Other input expert'!E$13*'Sales price per sales channel'!$H162*'Other input expert'!E$6","v":0},{"$f":"T162*'Other input expert'!F$13*'Sales price per sales channel'!$H162*'Other input expert'!F$6","v":0},{"$f":"U162*'Other input expert'!G$13*'Sales price per sales channel'!$H162*'Other input expert'!G$6","v":0},{"$f":"V162*'Other input expert'!H$13*'Sales price per sales channel'!$H162*'Other input expert'!H$6","v":0},{"$f":"W162*'Other input expert'!I$13*'Sales price per sales channel'!$H162*'Other input expert'!I$6","v":0},{"$f":"X162*'Other input expert'!J$13*'Sales price per sales channel'!$H162*'Other input expert'!J$6","v":0},{"$f":"Y162*'Other input expert'!K$13*'Sales price per sales channel'!$H162*'Other input expert'!K$6","v":0},{"$f":"Z162*'Other input expert'!L$13*'Sales price per sales channel'!$H162*'Other input expert'!L$6","v":0},{"$f":"AA162*'Other input expert'!M$13*'Sales price per sales channel'!$H162*'Other input expert'!M$6","v":0},null,{"$f":"P162*'Other input expert'!B$14*'Sales price per sales channel'!$I162*'Other input expert'!B$6","v":0},{"$f":"Q162*'Other input expert'!C$14*'Sales price per sales channel'!$I162*'Other input expert'!C$6","v":0},{"$f":"R162*'Other input expert'!D$14*'Sales price per sales channel'!$I162*'Other input expert'!D$6","v":0},{"$f":"S162*'Other input expert'!E$14*'Sales price per sales channel'!$I162*'Other input expert'!E$6","v":0},{"$f":"T162*'Other input expert'!F$14*'Sales price per sales channel'!$I162*'Other input expert'!F$6","v":0},{"$f":"U162*'Other input expert'!G$14*'Sales price per sales channel'!$I162*'Other input expert'!G$6","v":0},{"$f":"V162*'Other input expert'!H$14*'Sales price per sales channel'!$I162*'Other input expert'!H$6","v":0},{"$f":"W162*'Other input expert'!I$14*'Sales price per sales channel'!$I162*'Other input expert'!I$6","v":0},{"$f":"X162*'Other input expert'!J$14*'Sales price per sales channel'!$I162*'Other input expert'!J$6","v":0},{"$f":"Y162*'Other input expert'!K$14*'Sales price per sales channel'!$I162*'Other input expert'!K$6","v":0},{"$f":"Z162*'Other input expert'!L$14*'Sales price per sales channel'!$I162*'Other input expert'!L$6","v":0},{"$f":"AA162*'Other input expert'!M$14*'Sales price per sales channel'!$I162*'Other input expert'!M$6","v":0},null,{"$f":"AC162*'Other input expert'!B$12*'Sales price per sales channel'!$G162*'Other input expert'!B$7","v":0},{"$f":"AD162*'Other input expert'!C$12*'Sales price per sales channel'!$G162*'Other input expert'!C$7","v":0},{"$f":"AE162*'Other input expert'!D$12*'Sales price per sales channel'!$G162*'Other input expert'!D$7","v":0},{"$f":"AF162*'Other input expert'!E$12*'Sales price per sales channel'!$G162*'Other input expert'!E$7","v":0},{"$f":"AG162*'Other input expert'!F$12*'Sales price per sales channel'!$G162*'Other input expert'!F$7","v":0},{"$f":"AH162*'Other input expert'!G$12*'Sales price per sales channel'!$G162*'Other input expert'!G$7","v":0},{"$f":"AI162*'Other input expert'!H$12*'Sales price per sales channel'!$G162*'Other input expert'!H$7","v":0},{"$f":"AJ162*'Other input expert'!I$12*'Sales price per sales channel'!$G162*'Other input expert'!I$7","v":0},{"$f":"AK162*'Other input expert'!J$12*'Sales price per sales channel'!$G162*'Other input expert'!J$7","v":0},{"$f":"AL162*'Other input expert'!K$12*'Sales price per sales channel'!$G162*'Other input expert'!K$7","v":0},{"$f":"AM162*'Other input expert'!L$12*'Sales price per sales channel'!$G162*'Other input expert'!L$7","v":0},{"$f":"AN162*'Other input expert'!M$12*'Sales price per sales channel'!$G162*'Other input expert'!M$7","v":0},null,{"$f":"AC162*'Other input expert'!B$13*'Sales price per sales channel'!$H162*'Other input expert'!B$7","v":0},{"$f":"AD162*'Other input expert'!C$13*'Sales price per sales channel'!$H162*'Other input expert'!C$7","v":0},{"$f":"AE162*'Other input expert'!D$13*'Sales price per sales channel'!$H162*'Other input expert'!D$7","v":0},{"$f":"AF162*'Other input expert'!E$13*'Sales price per sales channel'!$H162*'Other input expert'!E$7","v":0},{"$f":"AG162*'Other input expert'!F$13*'Sales price per sales channel'!$H162*'Other input expert'!F$7","v":0},{"$f":"AH162*'Other input expert'!G$13*'Sales price per sales channel'!$H162*'Other input expert'!G$7","v":0},{"$f":"AI162*'Other input expert'!H$13*'Sales price per sales channel'!$H162*'Other input expert'!H$7","v":0},{"$f":"AJ162*'Other input expert'!I$13*'Sales price per sales channel'!$H162*'Other input expert'!I$7","v":0},{"$f":"AK162*'Other input expert'!J$13*'Sales price per sales channel'!$H162*'Other input expert'!J$7","v":0},{"$f":"AL162*'Other input expert'!K$13*'Sales price per sales channel'!$H162*'Other input expert'!K$7","v":0},{"$f":"AM162*'Other input expert'!L$13*'Sales price per sales channel'!$H162*'Other input expert'!L$7","v":0},{"$f":"AN162*'Other input expert'!M$13*'Sales price per sales channel'!$H162*'Other input expert'!M$7","v":0},null,{"$f":"AC162*'Other input expert'!B$14*'Sales price per sales channel'!$I162*'Other input expert'!B$7","v":0},{"$f":"AD162*'Other input expert'!C$14*'Sales price per sales channel'!$I162*'Other input expert'!C$7","v":0},{"$f":"AE162*'Other input expert'!D$14*'Sales price per sales channel'!$I162*'Other input expert'!D$7","v":0},{"$f":"AF162*'Other input expert'!E$14*'Sales price per sales channel'!$I162*'Other input expert'!E$7","v":0},{"$f":"AG162*'Other input expert'!F$14*'Sales price per sales channel'!$I162*'Other input expert'!F$7","v":0},{"$f":"AH162*'Other input expert'!G$14*'Sales price per sales channel'!$I162*'Other input expert'!G$7","v":0},{"$f":"AI162*'Other input expert'!H$14*'Sales price per sales channel'!$I162*'Other input expert'!H$7","v":0},{"$f":"AJ162*'Other input expert'!I$14*'Sales price per sales channel'!$I162*'Other input expert'!I$7","v":0},{"$f":"AK162*'Other input expert'!J$14*'Sales price per sales channel'!$I162*'Other input expert'!J$7","v":0},{"$f":"AL162*'Other input expert'!K$14*'Sales price per sales channel'!$I162*'Other input expert'!K$7","v":0},{"$f":"AM162*'Other input expert'!L$14*'Sales price per sales channel'!$I162*'Other input expert'!L$7","v":0},{"$f":"AN162*'Other input expert'!M$14*'Sales price per sales channel'!$I162*'Other input expert'!M$7","v":0}]
["Salvia off.","Sage",{"$f":"Plantlist!$G163*'Production list'!D164*'Other input expert'!B$4*'Other input expert'!B$8","v":0},{"$f":"Plantlist!$G163*'Production list'!E164*'Other input expert'!C$4*'Other input expert'!C$8","v":0},{"$f":"Plantlist!$G163*'Production list'!F164*'Other input expert'!D$4*'Other input expert'!D$8","v":0},{"$f":"Plantlist!$G163*'Production list'!G164*'Other input expert'!E$4*'Other input expert'!E$8","v":0},{"$f":"Plantlist!$G163*'Production list'!H164*'Other input expert'!F$4*'Other input expert'!F$8","v":0},{"$f":"Plantlist!$G163*'Production list'!I164*'Other input expert'!G$4*'Other input expert'!G$8","v":0},{"$f":"Plantlist!$G163*'Production list'!J164*'Other input expert'!H$4*'Other input expert'!H$8","v":0},{"$f":"Plantlist!$G163*'Production list'!K164*'Other input expert'!I$4*'Other input expert'!I$8","v":0},{"$f":"Plantlist!$G163*'Production list'!L164*'Other input expert'!J$4*'Other input expert'!J$8","v":0},{"$f":"Plantlist!$G163*'Production list'!M164*'Other input expert'!K$4*'Other input expert'!K$8","v":0},{"$f":"Plantlist!$G163*'Production list'!N164*'Other input expert'!L$4*'Other input expert'!L$8","v":0},{"$f":"Plantlist!$G163*'Production list'!O164*'Other input expert'!M$4*'Other input expert'!M$8","v":0},null,{"$f":"C163*'Other input expert'!B$5","v":0},{"$f":"D163*'Other input expert'!C$5","v":0},{"$f":"E163*'Other input expert'!D$5","v":0},{"$f":"F163*'Other input expert'!E$5","v":0},{"$f":"G163*'Other input expert'!F$5","v":0},{"$f":"H163*'Other input expert'!G$5","v":0},{"$f":"I163*'Other input expert'!H$5","v":0},{"$f":"J163*'Other input expert'!I$5","v":0},{"$f":"K163*'Other input expert'!J$5","v":0},{"$f":"L163*'Other input expert'!K$5","v":0},{"$f":"M163*'Other input expert'!L$5","v":0},{"$f":"N163*'Other input expert'!M$5","v":0},null,{"$f":"C163*(100%-'Other input expert'!B$5)","v":0},{"$f":"D163*(100%-'Other input expert'!C$5)","v":0},{"$f":"E163*(100%-'Other input expert'!D$5)","v":0},{"$f":"F163*(100%-'Other input expert'!E$5)","v":0},{"$f":"G163*(100%-'Other input expert'!F$5)","v":0},{"$f":"H163*(100%-'Other input expert'!G$5)","v":0},{"$f":"I163*(100%-'Other input expert'!H$5)","v":0},{"$f":"J163*(100%-'Other input expert'!I$5)","v":0},{"$f":"K163*(100%-'Other input expert'!J$5)","v":0},{"$f":"L163*(100%-'Other input expert'!K$5)","v":0},{"$f":"M163*(100%-'Other input expert'!L$5)","v":0},{"$f":"N163*(100%-'Other input expert'!M$5)","v":0},null,{"$f":"P163*'Other input expert'!B$12*'Sales price per sales channel'!$G163*'Other input expert'!B$6","v":0},{"$f":"Q163*'Other input expert'!C$12*'Sales price per sales channel'!$G163*'Other input expert'!C$6","v":0},{"$f":"R163*'Other input expert'!D$12*'Sales price per sales channel'!$G163*'Other input expert'!D$6","v":0},{"$f":"S163*'Other input expert'!E$12*'Sales price per sales channel'!$G163*'Other input expert'!E$6","v":0},{"$f":"T163*'Other input expert'!F$12*'Sales price per sales channel'!$G163*'Other input expert'!F$6","v":0},{"$f":"U163*'Other input expert'!G$12*'Sales price per sales channel'!$G163*'Other input expert'!G$6","v":0},{"$f":"V163*'Other input expert'!H$12*'Sales price per sales channel'!$G163*'Other input expert'!H$6","v":0},{"$f":"W163*'Other input expert'!I$12*'Sales price per sales channel'!$G163*'Other input expert'!I$6","v":0},{"$f":"X163*'Other input expert'!J$12*'Sales price per sales channel'!$G163*'Other input expert'!J$6","v":0},{"$f":"Y163*'Other input expert'!K$12*'Sales price per sales channel'!$G163*'Other input expert'!K$6","v":0},{"$f":"Z163*'Other input expert'!L$12*'Sales price per sales channel'!$G163*'Other input expert'!L$6","v":0},{"$f":"AA163*'Other input expert'!M$12*'Sales price per sales channel'!$G163*'Other input expert'!M$6","v":0},null,{"$f":"P163*'Other input expert'!B$13*'Sales price per sales channel'!$H163*'Other input expert'!B$6","v":0},{"$f":"Q163*'Other input expert'!C$13*'Sales price per sales channel'!$H163*'Other input expert'!C$6","v":0},{"$f":"R163*'Other input expert'!D$13*'Sales price per sales channel'!$H163*'Other input expert'!D$6","v":0},{"$f":"S163*'Other input expert'!E$13*'Sales price per sales channel'!$H163*'Other input expert'!E$6","v":0},{"$f":"T163*'Other input expert'!F$13*'Sales price per sales channel'!$H163*'Other input expert'!F$6","v":0},{"$f":"U163*'Other input expert'!G$13*'Sales price per sales channel'!$H163*'Other input expert'!G$6","v":0},{"$f":"V163*'Other input expert'!H$13*'Sales price per sales channel'!$H163*'Other input expert'!H$6","v":0},{"$f":"W163*'Other input expert'!I$13*'Sales price per sales channel'!$H163*'Other input expert'!I$6","v":0},{"$f":"X163*'Other input expert'!J$13*'Sales price per sales channel'!$H163*'Other input expert'!J$6","v":0},{"$f":"Y163*'Other input expert'!K$13*'Sales price per sales channel'!$H163*'Other input expert'!K$6","v":0},{"$f":"Z163*'Other input expert'!L$13*'Sales price per sales channel'!$H163*'Other input expert'!L$6","v":0},{"$f":"AA163*'Other input expert'!M$13*'Sales price per sales channel'!$H163*'Other input expert'!M$6","v":0},null,{"$f":"P163*'Other input expert'!B$14*'Sales price per sales channel'!$I163*'Other input expert'!B$6","v":0},{"$f":"Q163*'Other input expert'!C$14*'Sales price per sales channel'!$I163*'Other input expert'!C$6","v":0},{"$f":"R163*'Other input expert'!D$14*'Sales price per sales channel'!$I163*'Other input expert'!D$6","v":0},{"$f":"S163*'Other input expert'!E$14*'Sales price per sales channel'!$I163*'Other input expert'!E$6","v":0},{"$f":"T163*'Other input expert'!F$14*'Sales price per sales channel'!$I163*'Other input expert'!F$6","v":0},{"$f":"U163*'Other input expert'!G$14*'Sales price per sales channel'!$I163*'Other input expert'!G$6","v":0},{"$f":"V163*'Other input expert'!H$14*'Sales price per sales channel'!$I163*'Other input expert'!H$6","v":0},{"$f":"W163*'Other input expert'!I$14*'Sales price per sales channel'!$I163*'Other input expert'!I$6","v":0},{"$f":"X163*'Other input expert'!J$14*'Sales price per sales channel'!$I163*'Other input expert'!J$6","v":0},{"$f":"Y163*'Other input expert'!K$14*'Sales price per sales channel'!$I163*'Other input expert'!K$6","v":0},{"$f":"Z163*'Other input expert'!L$14*'Sales price per sales channel'!$I163*'Other input expert'!L$6","v":0},{"$f":"AA163*'Other input expert'!M$14*'Sales price per sales channel'!$I163*'Other input expert'!M$6","v":0},null,{"$f":"AC163*'Other input expert'!B$12*'Sales price per sales channel'!$G163*'Other input expert'!B$7","v":0},{"$f":"AD163*'Other input expert'!C$12*'Sales price per sales channel'!$G163*'Other input expert'!C$7","v":0},{"$f":"AE163*'Other input expert'!D$12*'Sales price per sales channel'!$G163*'Other input expert'!D$7","v":0},{"$f":"AF163*'Other input expert'!E$12*'Sales price per sales channel'!$G163*'Other input expert'!E$7","v":0},{"$f":"AG163*'Other input expert'!F$12*'Sales price per sales channel'!$G163*'Other input expert'!F$7","v":0},{"$f":"AH163*'Other input expert'!G$12*'Sales price per sales channel'!$G163*'Other input expert'!G$7","v":0},{"$f":"AI163*'Other input expert'!H$12*'Sales price per sales channel'!$G163*'Other input expert'!H$7","v":0},{"$f":"AJ163*'Other input expert'!I$12*'Sales price per sales channel'!$G163*'Other input expert'!I$7","v":0},{"$f":"AK163*'Other input expert'!J$12*'Sales price per sales channel'!$G163*'Other input expert'!J$7","v":0},{"$f":"AL163*'Other input expert'!K$12*'Sales price per sales channel'!$G163*'Other input expert'!K$7","v":0},{"$f":"AM163*'Other input expert'!L$12*'Sales price per sales channel'!$G163*'Other input expert'!L$7","v":0},{"$f":"AN163*'Other input expert'!M$12*'Sales price per sales channel'!$G163*'Other input expert'!M$7","v":0},null,{"$f":"AC163*'Other input expert'!B$13*'Sales price per sales channel'!$H163*'Other input expert'!B$7","v":0},{"$f":"AD163*'Other input expert'!C$13*'Sales price per sales channel'!$H163*'Other input expert'!C$7","v":0},{"$f":"AE163*'Other input expert'!D$13*'Sales price per sales channel'!$H163*'Other input expert'!D$7","v":0},{"$f":"AF163*'Other input expert'!E$13*'Sales price per sales channel'!$H163*'Other input expert'!E$7","v":0},{"$f":"AG163*'Other input expert'!F$13*'Sales price per sales channel'!$H163*'Other input expert'!F$7","v":0},{"$f":"AH163*'Other input expert'!G$13*'Sales price per sales channel'!$H163*'Other input expert'!G$7","v":0},{"$f":"AI163*'Other input expert'!H$13*'Sales price per sales channel'!$H163*'Other input expert'!H$7","v":0},{"$f":"AJ163*'Other input expert'!I$13*'Sales price per sales channel'!$H163*'Other input expert'!I$7","v":0},{"$f":"AK163*'Other input expert'!J$13*'Sales price per sales channel'!$H163*'Other input expert'!J$7","v":0},{"$f":"AL163*'Other input expert'!K$13*'Sales price per sales channel'!$H163*'Other input expert'!K$7","v":0},{"$f":"AM163*'Other input expert'!L$13*'Sales price per sales channel'!$H163*'Other input expert'!L$7","v":0},{"$f":"AN163*'Other input expert'!M$13*'Sales price per sales channel'!$H163*'Other input expert'!M$7","v":0},null,{"$f":"AC163*'Other input expert'!B$14*'Sales price per sales channel'!$I163*'Other input expert'!B$7","v":0},{"$f":"AD163*'Other input expert'!C$14*'Sales price per sales channel'!$I163*'Other input expert'!C$7","v":0},{"$f":"AE163*'Other input expert'!D$14*'Sales price per sales channel'!$I163*'Other input expert'!D$7","v":0},{"$f":"AF163*'Other input expert'!E$14*'Sales price per sales channel'!$I163*'Other input expert'!E$7","v":0},{"$f":"AG163*'Other input expert'!F$14*'Sales price per sales channel'!$I163*'Other input expert'!F$7","v":0},{"$f":"AH163*'Other input expert'!G$14*'Sales price per sales channel'!$I163*'Other input expert'!G$7","v":0},{"$f":"AI163*'Other input expert'!H$14*'Sales price per sales channel'!$I163*'Other input expert'!H$7","v":0},{"$f":"AJ163*'Other input expert'!I$14*'Sales price per sales channel'!$I163*'Other input expert'!I$7","v":0},{"$f":"AK163*'Other input expert'!J$14*'Sales price per sales channel'!$I163*'Other input expert'!J$7","v":0},{"$f":"AL163*'Other input expert'!K$14*'Sales price per sales channel'!$I163*'Other input expert'!K$7","v":0},{"$f":"AM163*'Other input expert'!L$14*'Sales price per sales channel'!$I163*'Other input expert'!L$7","v":0},{"$f":"AN163*'Other input expert'!M$14*'Sales price per sales channel'!$I163*'Other input expert'!M$7","v":0}]
["Sambucus canadiensis","American elder",{"$f":"Plantlist!$G164*'Production list'!D165*'Other input expert'!B$4*'Other input expert'!B$8","v":0},{"$f":"Plantlist!$G164*'Production list'!E165*'Other input expert'!C$4*'Other input expert'!C$8","v":0},{"$f":"Plantlist!$G164*'Production list'!F165*'Other input expert'!D$4*'Other input expert'!D$8","v":0},{"$f":"Plantlist!$G164*'Production list'!G165*'Other input expert'!E$4*'Other input expert'!E$8","v":0},{"$f":"Plantlist!$G164*'Production list'!H165*'Other input expert'!F$4*'Other input expert'!F$8","v":0},{"$f":"Plantlist!$G164*'Production list'!I165*'Other input expert'!G$4*'Other input expert'!G$8","v":0},{"$f":"Plantlist!$G164*'Production list'!J165*'Other input expert'!H$4*'Other input expert'!H$8","v":0},{"$f":"Plantlist!$G164*'Production list'!K165*'Other input expert'!I$4*'Other input expert'!I$8","v":0},{"$f":"Plantlist!$G164*'Production list'!L165*'Other input expert'!J$4*'Other input expert'!J$8","v":0},{"$f":"Plantlist!$G164*'Production list'!M165*'Other input expert'!K$4*'Other input expert'!K$8","v":0},{"$f":"Plantlist!$G164*'Production list'!N165*'Other input expert'!L$4*'Other input expert'!L$8","v":0},{"$f":"Plantlist!$G164*'Production list'!O165*'Other input expert'!M$4*'Other input expert'!M$8","v":0},null,{"$f":"C164*'Other input expert'!B$5","v":0},{"$f":"D164*'Other input expert'!C$5","v":0},{"$f":"E164*'Other input expert'!D$5","v":0},{"$f":"F164*'Other input expert'!E$5","v":0},{"$f":"G164*'Other input expert'!F$5","v":0},{"$f":"H164*'Other input expert'!G$5","v":0},{"$f":"I164*'Other input expert'!H$5","v":0},{"$f":"J164*'Other input expert'!I$5","v":0},{"$f":"K164*'Other input expert'!J$5","v":0},{"$f":"L164*'Other input expert'!K$5","v":0},{"$f":"M164*'Other input expert'!L$5","v":0},{"$f":"N164*'Other input expert'!M$5","v":0},null,{"$f":"C164*(100%-'Other input expert'!B$5)","v":0},{"$f":"D164*(100%-'Other input expert'!C$5)","v":0},{"$f":"E164*(100%-'Other input expert'!D$5)","v":0},{"$f":"F164*(100%-'Other input expert'!E$5)","v":0},{"$f":"G164*(100%-'Other input expert'!F$5)","v":0},{"$f":"H164*(100%-'Other input expert'!G$5)","v":0},{"$f":"I164*(100%-'Other input expert'!H$5)","v":0},{"$f":"J164*(100%-'Other input expert'!I$5)","v":0},{"$f":"K164*(100%-'Other input expert'!J$5)","v":0},{"$f":"L164*(100%-'Other input expert'!K$5)","v":0},{"$f":"M164*(100%-'Other input expert'!L$5)","v":0},{"$f":"N164*(100%-'Other input expert'!M$5)","v":0},null,{"$f":"P164*'Other input expert'!B$12*'Sales price per sales channel'!$G164*'Other input expert'!B$6","v":0},{"$f":"Q164*'Other input expert'!C$12*'Sales price per sales channel'!$G164*'Other input expert'!C$6","v":0},{"$f":"R164*'Other input expert'!D$12*'Sales price per sales channel'!$G164*'Other input expert'!D$6","v":0},{"$f":"S164*'Other input expert'!E$12*'Sales price per sales channel'!$G164*'Other input expert'!E$6","v":0},{"$f":"T164*'Other input expert'!F$12*'Sales price per sales channel'!$G164*'Other input expert'!F$6","v":0},{"$f":"U164*'Other input expert'!G$12*'Sales price per sales channel'!$G164*'Other input expert'!G$6","v":0},{"$f":"V164*'Other input expert'!H$12*'Sales price per sales channel'!$G164*'Other input expert'!H$6","v":0},{"$f":"W164*'Other input expert'!I$12*'Sales price per sales channel'!$G164*'Other input expert'!I$6","v":0},{"$f":"X164*'Other input expert'!J$12*'Sales price per sales channel'!$G164*'Other input expert'!J$6","v":0},{"$f":"Y164*'Other input expert'!K$12*'Sales price per sales channel'!$G164*'Other input expert'!K$6","v":0},{"$f":"Z164*'Other input expert'!L$12*'Sales price per sales channel'!$G164*'Other input expert'!L$6","v":0},{"$f":"AA164*'Other input expert'!M$12*'Sales price per sales channel'!$G164*'Other input expert'!M$6","v":0},null,{"$f":"P164*'Other input expert'!B$13*'Sales price per sales channel'!$H164*'Other input expert'!B$6","v":0},{"$f":"Q164*'Other input expert'!C$13*'Sales price per sales channel'!$H164*'Other input expert'!C$6","v":0},{"$f":"R164*'Other input expert'!D$13*'Sales price per sales channel'!$H164*'Other input expert'!D$6","v":0},{"$f":"S164*'Other input expert'!E$13*'Sales price per sales channel'!$H164*'Other input expert'!E$6","v":0},{"$f":"T164*'Other input expert'!F$13*'Sales price per sales channel'!$H164*'Other input expert'!F$6","v":0},{"$f":"U164*'Other input expert'!G$13*'Sales price per sales channel'!$H164*'Other input expert'!G$6","v":0},{"$f":"V164*'Other input expert'!H$13*'Sales price per sales channel'!$H164*'Other input expert'!H$6","v":0},{"$f":"W164*'Other input expert'!I$13*'Sales price per sales channel'!$H164*'Other input expert'!I$6","v":0},{"$f":"X164*'Other input expert'!J$13*'Sales price per sales channel'!$H164*'Other input expert'!J$6","v":0},{"$f":"Y164*'Other input expert'!K$13*'Sales price per sales channel'!$H164*'Other input expert'!K$6","v":0},{"$f":"Z164*'Other input expert'!L$13*'Sales price per sales channel'!$H164*'Other input expert'!L$6","v":0},{"$f":"AA164*'Other input expert'!M$13*'Sales price per sales channel'!$H164*'Other input expert'!M$6","v":0},null,{"$f":"P164*'Other input expert'!B$14*'Sales price per sales channel'!$I164*'Other input expert'!B$6","v":0},{"$f":"Q164*'Other input expert'!C$14*'Sales price per sales channel'!$I164*'Other input expert'!C$6","v":0},{"$f":"R164*'Other input expert'!D$14*'Sales price per sales channel'!$I164*'Other input expert'!D$6","v":0},{"$f":"S164*'Other input expert'!E$14*'Sales price per sales channel'!$I164*'Other input expert'!E$6","v":0},{"$f":"T164*'Other input expert'!F$14*'Sales price per sales channel'!$I164*'Other input expert'!F$6","v":0},{"$f":"U164*'Other input expert'!G$14*'Sales price per sales channel'!$I164*'Other input expert'!G$6","v":0},{"$f":"V164*'Other input expert'!H$14*'Sales price per sales channel'!$I164*'Other input expert'!H$6","v":0},{"$f":"W164*'Other input expert'!I$14*'Sales price per sales channel'!$I164*'Other input expert'!I$6","v":0},{"$f":"X164*'Other input expert'!J$14*'Sales price per sales channel'!$I164*'Other input expert'!J$6","v":0},{"$f":"Y164*'Other input expert'!K$14*'Sales price per sales channel'!$I164*'Other input expert'!K$6","v":0},{"$f":"Z164*'Other input expert'!L$14*'Sales price per sales channel'!$I164*'Other input expert'!L$6","v":0},{"$f":"AA164*'Other input expert'!M$14*'Sales price per sales channel'!$I164*'Other input expert'!M$6","v":0},null,{"$f":"AC164*'Other input expert'!B$12*'Sales price per sales channel'!$G164*'Other input expert'!B$7","v":0},{"$f":"AD164*'Other input expert'!C$12*'Sales price per sales channel'!$G164*'Other input expert'!C$7","v":0},{"$f":"AE164*'Other input expert'!D$12*'Sales price per sales channel'!$G164*'Other input expert'!D$7","v":0},{"$f":"AF164*'Other input expert'!E$12*'Sales price per sales channel'!$G164*'Other input expert'!E$7","v":0},{"$f":"AG164*'Other input expert'!F$12*'Sales price per sales channel'!$G164*'Other input expert'!F$7","v":0},{"$f":"AH164*'Other input expert'!G$12*'Sales price per sales channel'!$G164*'Other input expert'!G$7","v":0},{"$f":"AI164*'Other input expert'!H$12*'Sales price per sales channel'!$G164*'Other input expert'!H$7","v":0},{"$f":"AJ164*'Other input expert'!I$12*'Sales price per sales channel'!$G164*'Other input expert'!I$7","v":0},{"$f":"AK164*'Other input expert'!J$12*'Sales price per sales channel'!$G164*'Other input expert'!J$7","v":0},{"$f":"AL164*'Other input expert'!K$12*'Sales price per sales channel'!$G164*'Other input expert'!K$7","v":0},{"$f":"AM164*'Other input expert'!L$12*'Sales price per sales channel'!$G164*'Other input expert'!L$7","v":0},{"$f":"AN164*'Other input expert'!M$12*'Sales price per sales channel'!$G164*'Other input expert'!M$7","v":0},null,{"$f":"AC164*'Other input expert'!B$13*'Sales price per sales channel'!$H164*'Other input expert'!B$7","v":0},{"$f":"AD164*'Other input expert'!C$13*'Sales price per sales channel'!$H164*'Other input expert'!C$7","v":0},{"$f":"AE164*'Other input expert'!D$13*'Sales price per sales channel'!$H164*'Other input expert'!D$7","v":0},{"$f":"AF164*'Other input expert'!E$13*'Sales price per sales channel'!$H164*'Other input expert'!E$7","v":0},{"$f":"AG164*'Other input expert'!F$13*'Sales price per sales channel'!$H164*'Other input expert'!F$7","v":0},{"$f":"AH164*'Other input expert'!G$13*'Sales price per sales channel'!$H164*'Other input expert'!G$7","v":0},{"$f":"AI164*'Other input expert'!H$13*'Sales price per sales channel'!$H164*'Other input expert'!H$7","v":0},{"$f":"AJ164*'Other input expert'!I$13*'Sales price per sales channel'!$H164*'Other input expert'!I$7","v":0},{"$f":"AK164*'Other input expert'!J$13*'Sales price per sales channel'!$H164*'Other input expert'!J$7","v":0},{"$f":"AL164*'Other input expert'!K$13*'Sales price per sales channel'!$H164*'Other input expert'!K$7","v":0},{"$f":"AM164*'Other input expert'!L$13*'Sales price per sales channel'!$H164*'Other input expert'!L$7","v":0},{"$f":"AN164*'Other input expert'!M$13*'Sales price per sales channel'!$H164*'Other input expert'!M$7","v":0},null,{"$f":"AC164*'Other input expert'!B$14*'Sales price per sales channel'!$I164*'Other input expert'!B$7","v":0},{"$f":"AD164*'Other input expert'!C$14*'Sales price per sales channel'!$I164*'Other input expert'!C$7","v":0},{"$f":"AE164*'Other input expert'!D$14*'Sales price per sales channel'!$I164*'Other input expert'!D$7","v":0},{"$f":"AF164*'Other input expert'!E$14*'Sales price per sales channel'!$I164*'Other input expert'!E$7","v":0},{"$f":"AG164*'Other input expert'!F$14*'Sales price per sales channel'!$I164*'Other input expert'!F$7","v":0},{"$f":"AH164*'Other input expert'!G$14*'Sales price per sales channel'!$I164*'Other input expert'!G$7","v":0},{"$f":"AI164*'Other input expert'!H$14*'Sales price per sales channel'!$I164*'Other input expert'!H$7","v":0},{"$f":"AJ164*'Other input expert'!I$14*'Sales price per sales channel'!$I164*'Other input expert'!I$7","v":0},{"$f":"AK164*'Other input expert'!J$14*'Sales price per sales channel'!$I164*'Other input expert'!J$7","v":0},{"$f":"AL164*'Other input expert'!K$14*'Sales price per sales channel'!$I164*'Other input expert'!K$7","v":0},{"$f":"AM164*'Other input expert'!L$14*'Sales price per sales channel'!$I164*'Other input expert'!L$7","v":0},{"$f":"AN164*'Other input expert'!M$14*'Sales price per sales channel'!$I164*'Other input expert'!M$7","v":0}]
["Sambucus nigra","Elderberry",{"$f":"Plantlist!$G165*'Production list'!D166*'Other input expert'!B$4*'Other input expert'!B$8","v":0},{"$f":"Plantlist!$G165*'Production list'!E166*'Other input expert'!C$4*'Other input expert'!C$8","v":0},{"$f":"Plantlist!$G165*'Production list'!F166*'Other input expert'!D$4*'Other input expert'!D$8","v":0},{"$f":"Plantlist!$G165*'Production list'!G166*'Other input expert'!E$4*'Other input expert'!E$8","v":0},{"$f":"Plantlist!$G165*'Production list'!H166*'Other input expert'!F$4*'Other input expert'!F$8","v":0},{"$f":"Plantlist!$G165*'Production list'!I166*'Other input expert'!G$4*'Other input expert'!G$8","v":0},{"$f":"Plantlist!$G165*'Production list'!J166*'Other input expert'!H$4*'Other input expert'!H$8","v":0},{"$f":"Plantlist!$G165*'Production list'!K166*'Other input expert'!I$4*'Other input expert'!I$8","v":0},{"$f":"Plantlist!$G165*'Production list'!L166*'Other input expert'!J$4*'Other input expert'!J$8","v":0},{"$f":"Plantlist!$G165*'Production list'!M166*'Other input expert'!K$4*'Other input expert'!K$8","v":0},{"$f":"Plantlist!$G165*'Production list'!N166*'Other input expert'!L$4*'Other input expert'!L$8","v":0},{"$f":"Plantlist!$G165*'Production list'!O166*'Other input expert'!M$4*'Other input expert'!M$8","v":0},null,{"$f":"C165*'Other input expert'!B$5","v":0},{"$f":"D165*'Other input expert'!C$5","v":0},{"$f":"E165*'Other input expert'!D$5","v":0},{"$f":"F165*'Other input expert'!E$5","v":0},{"$f":"G165*'Other input expert'!F$5","v":0},{"$f":"H165*'Other input expert'!G$5","v":0},{"$f":"I165*'Other input expert'!H$5","v":0},{"$f":"J165*'Other input expert'!I$5","v":0},{"$f":"K165*'Other input expert'!J$5","v":0},{"$f":"L165*'Other input expert'!K$5","v":0},{"$f":"M165*'Other input expert'!L$5","v":0},{"$f":"N165*'Other input expert'!M$5","v":0},null,{"$f":"C165*(100%-'Other input expert'!B$5)","v":0},{"$f":"D165*(100%-'Other input expert'!C$5)","v":0},{"$f":"E165*(100%-'Other input expert'!D$5)","v":0},{"$f":"F165*(100%-'Other input expert'!E$5)","v":0},{"$f":"G165*(100%-'Other input expert'!F$5)","v":0},{"$f":"H165*(100%-'Other input expert'!G$5)","v":0},{"$f":"I165*(100%-'Other input expert'!H$5)","v":0},{"$f":"J165*(100%-'Other input expert'!I$5)","v":0},{"$f":"K165*(100%-'Other input expert'!J$5)","v":0},{"$f":"L165*(100%-'Other input expert'!K$5)","v":0},{"$f":"M165*(100%-'Other input expert'!L$5)","v":0},{"$f":"N165*(100%-'Other input expert'!M$5)","v":0},null,{"$f":"P165*'Other input expert'!B$12*'Sales price per sales channel'!$G165*'Other input expert'!B$6","v":0},{"$f":"Q165*'Other input expert'!C$12*'Sales price per sales channel'!$G165*'Other input expert'!C$6","v":0},{"$f":"R165*'Other input expert'!D$12*'Sales price per sales channel'!$G165*'Other input expert'!D$6","v":0},{"$f":"S165*'Other input expert'!E$12*'Sales price per sales channel'!$G165*'Other input expert'!E$6","v":0},{"$f":"T165*'Other input expert'!F$12*'Sales price per sales channel'!$G165*'Other input expert'!F$6","v":0},{"$f":"U165*'Other input expert'!G$12*'Sales price per sales channel'!$G165*'Other input expert'!G$6","v":0},{"$f":"V165*'Other input expert'!H$12*'Sales price per sales channel'!$G165*'Other input expert'!H$6","v":0},{"$f":"W165*'Other input expert'!I$12*'Sales price per sales channel'!$G165*'Other input expert'!I$6","v":0},{"$f":"X165*'Other input expert'!J$12*'Sales price per sales channel'!$G165*'Other input expert'!J$6","v":0},{"$f":"Y165*'Other input expert'!K$12*'Sales price per sales channel'!$G165*'Other input expert'!K$6","v":0},{"$f":"Z165*'Other input expert'!L$12*'Sales price per sales channel'!$G165*'Other input expert'!L$6","v":0},{"$f":"AA165*'Other input expert'!M$12*'Sales price per sales channel'!$G165*'Other input expert'!M$6","v":0},null,{"$f":"P165*'Other input expert'!B$13*'Sales price per sales channel'!$H165*'Other input expert'!B$6","v":0},{"$f":"Q165*'Other input expert'!C$13*'Sales price per sales channel'!$H165*'Other input expert'!C$6","v":0},{"$f":"R165*'Other input expert'!D$13*'Sales price per sales channel'!$H165*'Other input expert'!D$6","v":0},{"$f":"S165*'Other input expert'!E$13*'Sales price per sales channel'!$H165*'Other input expert'!E$6","v":0},{"$f":"T165*'Other input expert'!F$13*'Sales price per sales channel'!$H165*'Other input expert'!F$6","v":0},{"$f":"U165*'Other input expert'!G$13*'Sales price per sales channel'!$H165*'Other input expert'!G$6","v":0},{"$f":"V165*'Other input expert'!H$13*'Sales price per sales channel'!$H165*'Other input expert'!H$6","v":0},{"$f":"W165*'Other input expert'!I$13*'Sales price per sales channel'!$H165*'Other input expert'!I$6","v":0},{"$f":"X165*'Other input expert'!J$13*'Sales price per sales channel'!$H165*'Other input expert'!J$6","v":0},{"$f":"Y165*'Other input expert'!K$13*'Sales price per sales channel'!$H165*'Other input expert'!K$6","v":0},{"$f":"Z165*'Other input expert'!L$13*'Sales price per sales channel'!$H165*'Other input expert'!L$6","v":0},{"$f":"AA165*'Other input expert'!M$13*'Sales price per sales channel'!$H165*'Other input expert'!M$6","v":0},null,{"$f":"P165*'Other input expert'!B$14*'Sales price per sales channel'!$I165*'Other input expert'!B$6","v":0},{"$f":"Q165*'Other input expert'!C$14*'Sales price per sales channel'!$I165*'Other input expert'!C$6","v":0},{"$f":"R165*'Other input expert'!D$14*'Sales price per sales channel'!$I165*'Other input expert'!D$6","v":0},{"$f":"S165*'Other input expert'!E$14*'Sales price per sales channel'!$I165*'Other input expert'!E$6","v":0},{"$f":"T165*'Other input expert'!F$14*'Sales price per sales channel'!$I165*'Other input expert'!F$6","v":0},{"$f":"U165*'Other input expert'!G$14*'Sales price per sales channel'!$I165*'Other input expert'!G$6","v":0},{"$f":"V165*'Other input expert'!H$14*'Sales price per sales channel'!$I165*'Other input expert'!H$6","v":0},{"$f":"W165*'Other input expert'!I$14*'Sales price per sales channel'!$I165*'Other input expert'!I$6","v":0},{"$f":"X165*'Other input expert'!J$14*'Sales price per sales channel'!$I165*'Other input expert'!J$6","v":0},{"$f":"Y165*'Other input expert'!K$14*'Sales price per sales channel'!$I165*'Other input expert'!K$6","v":0},{"$f":"Z165*'Other input expert'!L$14*'Sales price per sales channel'!$I165*'Other input expert'!L$6","v":0},{"$f":"AA165*'Other input expert'!M$14*'Sales price per sales channel'!$I165*'Other input expert'!M$6","v":0},null,{"$f":"AC165*'Other input expert'!B$12*'Sales price per sales channel'!$G165*'Other input expert'!B$7","v":0},{"$f":"AD165*'Other input expert'!C$12*'Sales price per sales channel'!$G165*'Other input expert'!C$7","v":0},{"$f":"AE165*'Other input expert'!D$12*'Sales price per sales channel'!$G165*'Other input expert'!D$7","v":0},{"$f":"AF165*'Other input expert'!E$12*'Sales price per sales channel'!$G165*'Other input expert'!E$7","v":0},{"$f":"AG165*'Other input expert'!F$12*'Sales price per sales channel'!$G165*'Other input expert'!F$7","v":0},{"$f":"AH165*'Other input expert'!G$12*'Sales price per sales channel'!$G165*'Other input expert'!G$7","v":0},{"$f":"AI165*'Other input expert'!H$12*'Sales price per sales channel'!$G165*'Other input expert'!H$7","v":0},{"$f":"AJ165*'Other input expert'!I$12*'Sales price per sales channel'!$G165*'Other input expert'!I$7","v":0},{"$f":"AK165*'Other input expert'!J$12*'Sales price per sales channel'!$G165*'Other input expert'!J$7","v":0},{"$f":"AL165*'Other input expert'!K$12*'Sales price per sales channel'!$G165*'Other input expert'!K$7","v":0},{"$f":"AM165*'Other input expert'!L$12*'Sales price per sales channel'!$G165*'Other input expert'!L$7","v":0},{"$f":"AN165*'Other input expert'!M$12*'Sales price per sales channel'!$G165*'Other input expert'!M$7","v":0},null,{"$f":"AC165*'Other input expert'!B$13*'Sales price per sales channel'!$H165*'Other input expert'!B$7","v":0},{"$f":"AD165*'Other input expert'!C$13*'Sales price per sales channel'!$H165*'Other input expert'!C$7","v":0},{"$f":"AE165*'Other input expert'!D$13*'Sales price per sales channel'!$H165*'Other input expert'!D$7","v":0},{"$f":"AF165*'Other input expert'!E$13*'Sales price per sales channel'!$H165*'Other input expert'!E$7","v":0},{"$f":"AG165*'Other input expert'!F$13*'Sales price per sales channel'!$H165*'Other input expert'!F$7","v":0},{"$f":"AH165*'Other input expert'!G$13*'Sales price per sales channel'!$H165*'Other input expert'!G$7","v":0},{"$f":"AI165*'Other input expert'!H$13*'Sales price per sales channel'!$H165*'Other input expert'!H$7","v":0},{"$f":"AJ165*'Other input expert'!I$13*'Sales price per sales channel'!$H165*'Other input expert'!I$7","v":0},{"$f":"AK165*'Other input expert'!J$13*'Sales price per sales channel'!$H165*'Other input expert'!J$7","v":0},{"$f":"AL165*'Other input expert'!K$13*'Sales price per sales channel'!$H165*'Other input expert'!K$7","v":0},{"$f":"AM165*'Other input expert'!L$13*'Sales price per sales channel'!$H165*'Other input expert'!L$7","v":0},{"$f":"AN165*'Other input expert'!M$13*'Sales price per sales channel'!$H165*'Other input expert'!M$7","v":0},null,{"$f":"AC165*'Other input expert'!B$14*'Sales price per sales channel'!$I165*'Other input expert'!B$7","v":0},{"$f":"AD165*'Other input expert'!C$14*'Sales price per sales channel'!$I165*'Other input expert'!C$7","v":0},{"$f":"AE165*'Other input expert'!D$14*'Sales price per sales channel'!$I165*'Other input expert'!D$7","v":0},{"$f":"AF165*'Other input expert'!E$14*'Sales price per sales channel'!$I165*'Other input expert'!E$7","v":0},{"$f":"AG165*'Other input expert'!F$14*'Sales price per sales channel'!$I165*'Other input expert'!F$7","v":0},{"$f":"AH165*'Other input expert'!G$14*'Sales price per sales channel'!$I165*'Other input expert'!G$7","v":0},{"$f":"AI165*'Other input expert'!H$14*'Sales price per sales channel'!$I165*'Other input expert'!H$7","v":0},{"$f":"AJ165*'Other input expert'!I$14*'Sales price per sales channel'!$I165*'Other input expert'!I$7","v":0},{"$f":"AK165*'Other input expert'!J$14*'Sales price per sales channel'!$I165*'Other input expert'!J$7","v":0},{"$f":"AL165*'Other input expert'!K$14*'Sales price per sales channel'!$I165*'Other input expert'!K$7","v":0},{"$f":"AM165*'Other input expert'!L$14*'Sales price per sales channel'!$I165*'Other input expert'!L$7","v":0},{"$f":"AN165*'Other input expert'!M$14*'Sales price per sales channel'!$I165*'Other input expert'!M$7","v":0}]
["Santolina spp.","Cotton lavender",{"$f":"Plantlist!$G166*'Production list'!D167*'Other input expert'!B$4*'Other input expert'!B$8","v":0},{"$f":"Plantlist!$G166*'Production list'!E167*'Other input expert'!C$4*'Other input expert'!C$8","v":0},{"$f":"Plantlist!$G166*'Production list'!F167*'Other input expert'!D$4*'Other input expert'!D$8","v":0},{"$f":"Plantlist!$G166*'Production list'!G167*'Other input expert'!E$4*'Other input expert'!E$8","v":0},{"$f":"Plantlist!$G166*'Production list'!H167*'Other input expert'!F$4*'Other input expert'!F$8","v":0},{"$f":"Plantlist!$G166*'Production list'!I167*'Other input expert'!G$4*'Other input expert'!G$8","v":0},{"$f":"Plantlist!$G166*'Production list'!J167*'Other input expert'!H$4*'Other input expert'!H$8","v":0},{"$f":"Plantlist!$G166*'Production list'!K167*'Other input expert'!I$4*'Other input expert'!I$8","v":0},{"$f":"Plantlist!$G166*'Production list'!L167*'Other input expert'!J$4*'Other input expert'!J$8","v":0},{"$f":"Plantlist!$G166*'Production list'!M167*'Other input expert'!K$4*'Other input expert'!K$8","v":0},{"$f":"Plantlist!$G166*'Production list'!N167*'Other input expert'!L$4*'Other input expert'!L$8","v":0},{"$f":"Plantlist!$G166*'Production list'!O167*'Other input expert'!M$4*'Other input expert'!M$8","v":0},null,{"$f":"C166*'Other input expert'!B$5","v":0},{"$f":"D166*'Other input expert'!C$5","v":0},{"$f":"E166*'Other input expert'!D$5","v":0},{"$f":"F166*'Other input expert'!E$5","v":0},{"$f":"G166*'Other input expert'!F$5","v":0},{"$f":"H166*'Other input expert'!G$5","v":0},{"$f":"I166*'Other input expert'!H$5","v":0},{"$f":"J166*'Other input expert'!I$5","v":0},{"$f":"K166*'Other input expert'!J$5","v":0},{"$f":"L166*'Other input expert'!K$5","v":0},{"$f":"M166*'Other input expert'!L$5","v":0},{"$f":"N166*'Other input expert'!M$5","v":0},null,{"$f":"C166*(100%-'Other input expert'!B$5)","v":0},{"$f":"D166*(100%-'Other input expert'!C$5)","v":0},{"$f":"E166*(100%-'Other input expert'!D$5)","v":0},{"$f":"F166*(100%-'Other input expert'!E$5)","v":0},{"$f":"G166*(100%-'Other input expert'!F$5)","v":0},{"$f":"H166*(100%-'Other input expert'!G$5)","v":0},{"$f":"I166*(100%-'Other input expert'!H$5)","v":0},{"$f":"J166*(100%-'Other input expert'!I$5)","v":0},{"$f":"K166*(100%-'Other input expert'!J$5)","v":0},{"$f":"L166*(100%-'Other input expert'!K$5)","v":0},{"$f":"M166*(100%-'Other input expert'!L$5)","v":0},{"$f":"N166*(100%-'Other input expert'!M$5)","v":0},null,{"$f":"P166*'Other input expert'!B$12*'Sales price per sales channel'!$G166*'Other input expert'!B$6","v":0},{"$f":"Q166*'Other input expert'!C$12*'Sales price per sales channel'!$G166*'Other input expert'!C$6","v":0},{"$f":"R166*'Other input expert'!D$12*'Sales price per sales channel'!$G166*'Other input expert'!D$6","v":0},{"$f":"S166*'Other input expert'!E$12*'Sales price per sales channel'!$G166*'Other input expert'!E$6","v":0},{"$f":"T166*'Other input expert'!F$12*'Sales price per sales channel'!$G166*'Other input expert'!F$6","v":0},{"$f":"U166*'Other input expert'!G$12*'Sales price per sales channel'!$G166*'Other input expert'!G$6","v":0},{"$f":"V166*'Other input expert'!H$12*'Sales price per sales channel'!$G166*'Other input expert'!H$6","v":0},{"$f":"W166*'Other input expert'!I$12*'Sales price per sales channel'!$G166*'Other input expert'!I$6","v":0},{"$f":"X166*'Other input expert'!J$12*'Sales price per sales channel'!$G166*'Other input expert'!J$6","v":0},{"$f":"Y166*'Other input expert'!K$12*'Sales price per sales channel'!$G166*'Other input expert'!K$6","v":0},{"$f":"Z166*'Other input expert'!L$12*'Sales price per sales channel'!$G166*'Other input expert'!L$6","v":0},{"$f":"AA166*'Other input expert'!M$12*'Sales price per sales channel'!$G166*'Other input expert'!M$6","v":0},null,{"$f":"P166*'Other input expert'!B$13*'Sales price per sales channel'!$H166*'Other input expert'!B$6","v":0},{"$f":"Q166*'Other input expert'!C$13*'Sales price per sales channel'!$H166*'Other input expert'!C$6","v":0},{"$f":"R166*'Other input expert'!D$13*'Sales price per sales channel'!$H166*'Other input expert'!D$6","v":0},{"$f":"S166*'Other input expert'!E$13*'Sales price per sales channel'!$H166*'Other input expert'!E$6","v":0},{"$f":"T166*'Other input expert'!F$13*'Sales price per sales channel'!$H166*'Other input expert'!F$6","v":0},{"$f":"U166*'Other input expert'!G$13*'Sales price per sales channel'!$H166*'Other input expert'!G$6","v":0},{"$f":"V166*'Other input expert'!H$13*'Sales price per sales channel'!$H166*'Other input expert'!H$6","v":0},{"$f":"W166*'Other input expert'!I$13*'Sales price per sales channel'!$H166*'Other input expert'!I$6","v":0},{"$f":"X166*'Other input expert'!J$13*'Sales price per sales channel'!$H166*'Other input expert'!J$6","v":0},{"$f":"Y166*'Other input expert'!K$13*'Sales price per sales channel'!$H166*'Other input expert'!K$6","v":0},{"$f":"Z166*'Other input expert'!L$13*'Sales price per sales channel'!$H166*'Other input expert'!L$6","v":0},{"$f":"AA166*'Other input expert'!M$13*'Sales price per sales channel'!$H166*'Other input expert'!M$6","v":0},null,{"$f":"P166*'Other input expert'!B$14*'Sales price per sales channel'!$I166*'Other input expert'!B$6","v":0},{"$f":"Q166*'Other input expert'!C$14*'Sales price per sales channel'!$I166*'Other input expert'!C$6","v":0},{"$f":"R166*'Other input expert'!D$14*'Sales price per sales channel'!$I166*'Other input expert'!D$6","v":0},{"$f":"S166*'Other input expert'!E$14*'Sales price per sales channel'!$I166*'Other input expert'!E$6","v":0},{"$f":"T166*'Other input expert'!F$14*'Sales price per sales channel'!$I166*'Other input expert'!F$6","v":0},{"$f":"U166*'Other input expert'!G$14*'Sales price per sales channel'!$I166*'Other input expert'!G$6","v":0},{"$f":"V166*'Other input expert'!H$14*'Sales price per sales channel'!$I166*'Other input expert'!H$6","v":0},{"$f":"W166*'Other input expert'!I$14*'Sales price per sales channel'!$I166*'Other input expert'!I$6","v":0},{"$f":"X166*'Other input expert'!J$14*'Sales price per sales channel'!$I166*'Other input expert'!J$6","v":0},{"$f":"Y166*'Other input expert'!K$14*'Sales price per sales channel'!$I166*'Other input expert'!K$6","v":0},{"$f":"Z166*'Other input expert'!L$14*'Sales price per sales channel'!$I166*'Other input expert'!L$6","v":0},{"$f":"AA166*'Other input expert'!M$14*'Sales price per sales channel'!$I166*'Other input expert'!M$6","v":0},null,{"$f":"AC166*'Other input expert'!B$12*'Sales price per sales channel'!$G166*'Other input expert'!B$7","v":0},{"$f":"AD166*'Other input expert'!C$12*'Sales price per sales channel'!$G166*'Other input expert'!C$7","v":0},{"$f":"AE166*'Other input expert'!D$12*'Sales price per sales channel'!$G166*'Other input expert'!D$7","v":0},{"$f":"AF166*'Other input expert'!E$12*'Sales price per sales channel'!$G166*'Other input expert'!E$7","v":0},{"$f":"AG166*'Other input expert'!F$12*'Sales price per sales channel'!$G166*'Other input expert'!F$7","v":0},{"$f":"AH166*'Other input expert'!G$12*'Sales price per sales channel'!$G166*'Other input expert'!G$7","v":0},{"$f":"AI166*'Other input expert'!H$12*'Sales price per sales channel'!$G166*'Other input expert'!H$7","v":0},{"$f":"AJ166*'Other input expert'!I$12*'Sales price per sales channel'!$G166*'Other input expert'!I$7","v":0},{"$f":"AK166*'Other input expert'!J$12*'Sales price per sales channel'!$G166*'Other input expert'!J$7","v":0},{"$f":"AL166*'Other input expert'!K$12*'Sales price per sales channel'!$G166*'Other input expert'!K$7","v":0},{"$f":"AM166*'Other input expert'!L$12*'Sales price per sales channel'!$G166*'Other input expert'!L$7","v":0},{"$f":"AN166*'Other input expert'!M$12*'Sales price per sales channel'!$G166*'Other input expert'!M$7","v":0},null,{"$f":"AC166*'Other input expert'!B$13*'Sales price per sales channel'!$H166*'Other input expert'!B$7","v":0},{"$f":"AD166*'Other input expert'!C$13*'Sales price per sales channel'!$H166*'Other input expert'!C$7","v":0},{"$f":"AE166*'Other input expert'!D$13*'Sales price per sales channel'!$H166*'Other input expert'!D$7","v":0},{"$f":"AF166*'Other input expert'!E$13*'Sales price per sales channel'!$H166*'Other input expert'!E$7","v":0},{"$f":"AG166*'Other input expert'!F$13*'Sales price per sales channel'!$H166*'Other input expert'!F$7","v":0},{"$f":"AH166*'Other input expert'!G$13*'Sales price per sales channel'!$H166*'Other input expert'!G$7","v":0},{"$f":"AI166*'Other input expert'!H$13*'Sales price per sales channel'!$H166*'Other input expert'!H$7","v":0},{"$f":"AJ166*'Other input expert'!I$13*'Sales price per sales channel'!$H166*'Other input expert'!I$7","v":0},{"$f":"AK166*'Other input expert'!J$13*'Sales price per sales channel'!$H166*'Other input expert'!J$7","v":0},{"$f":"AL166*'Other input expert'!K$13*'Sales price per sales channel'!$H166*'Other input expert'!K$7","v":0},{"$f":"AM166*'Other input expert'!L$13*'Sales price per sales channel'!$H166*'Other input expert'!L$7","v":0},{"$f":"AN166*'Other input expert'!M$13*'Sales price per sales channel'!$H166*'Other input expert'!M$7","v":0},null,{"$f":"AC166*'Other input expert'!B$14*'Sales price per sales channel'!$I166*'Other input expert'!B$7","v":0},{"$f":"AD166*'Other input expert'!C$14*'Sales price per sales channel'!$I166*'Other input expert'!C$7","v":0},{"$f":"AE166*'Other input expert'!D$14*'Sales price per sales channel'!$I166*'Other input expert'!D$7","v":0},{"$f":"AF166*'Other input expert'!E$14*'Sales price per sales channel'!$I166*'Other input expert'!E$7","v":0},{"$f":"AG166*'Other input expert'!F$14*'Sales price per sales channel'!$I166*'Other input expert'!F$7","v":0},{"$f":"AH166*'Other input expert'!G$14*'Sales price per sales channel'!$I166*'Other input expert'!G$7","v":0},{"$f":"AI166*'Other input expert'!H$14*'Sales price per sales channel'!$I166*'Other input expert'!H$7","v":0},{"$f":"AJ166*'Other input expert'!I$14*'Sales price per sales channel'!$I166*'Other input expert'!I$7","v":0},{"$f":"AK166*'Other input expert'!J$14*'Sales price per sales channel'!$I166*'Other input expert'!J$7","v":0},{"$f":"AL166*'Other input expert'!K$14*'Sales price per sales channel'!$I166*'Other input expert'!K$7","v":0},{"$f":"AM166*'Other input expert'!L$14*'Sales price per sales channel'!$I166*'Other input expert'!L$7","v":0},{"$f":"AN166*'Other input expert'!M$14*'Sales price per sales channel'!$I166*'Other input expert'!M$7","v":0}]
["Sassafras albidum","Sassafras",{"$f":"Plantlist!$G167*'Production list'!D168*'Other input expert'!B$4*'Other input expert'!B$8","v":0},{"$f":"Plantlist!$G167*'Production list'!E168*'Other input expert'!C$4*'Other input expert'!C$8","v":0},{"$f":"Plantlist!$G167*'Production list'!F168*'Other input expert'!D$4*'Other input expert'!D$8","v":0},{"$f":"Plantlist!$G167*'Production list'!G168*'Other input expert'!E$4*'Other input expert'!E$8","v":0},{"$f":"Plantlist!$G167*'Production list'!H168*'Other input expert'!F$4*'Other input expert'!F$8","v":0},{"$f":"Plantlist!$G167*'Production list'!I168*'Other input expert'!G$4*'Other input expert'!G$8","v":0},{"$f":"Plantlist!$G167*'Production list'!J168*'Other input expert'!H$4*'Other input expert'!H$8","v":0},{"$f":"Plantlist!$G167*'Production list'!K168*'Other input expert'!I$4*'Other input expert'!I$8","v":0},{"$f":"Plantlist!$G167*'Production list'!L168*'Other input expert'!J$4*'Other input expert'!J$8","v":0},{"$f":"Plantlist!$G167*'Production list'!M168*'Other input expert'!K$4*'Other input expert'!K$8","v":0},{"$f":"Plantlist!$G167*'Production list'!N168*'Other input expert'!L$4*'Other input expert'!L$8","v":0},{"$f":"Plantlist!$G167*'Production list'!O168*'Other input expert'!M$4*'Other input expert'!M$8","v":0},null,{"$f":"C167*'Other input expert'!B$5","v":0},{"$f":"D167*'Other input expert'!C$5","v":0},{"$f":"E167*'Other input expert'!D$5","v":0},{"$f":"F167*'Other input expert'!E$5","v":0},{"$f":"G167*'Other input expert'!F$5","v":0},{"$f":"H167*'Other input expert'!G$5","v":0},{"$f":"I167*'Other input expert'!H$5","v":0},{"$f":"J167*'Other input expert'!I$5","v":0},{"$f":"K167*'Other input expert'!J$5","v":0},{"$f":"L167*'Other input expert'!K$5","v":0},{"$f":"M167*'Other input expert'!L$5","v":0},{"$f":"N167*'Other input expert'!M$5","v":0},null,{"$f":"C167*(100%-'Other input expert'!B$5)","v":0},{"$f":"D167*(100%-'Other input expert'!C$5)","v":0},{"$f":"E167*(100%-'Other input expert'!D$5)","v":0},{"$f":"F167*(100%-'Other input expert'!E$5)","v":0},{"$f":"G167*(100%-'Other input expert'!F$5)","v":0},{"$f":"H167*(100%-'Other input expert'!G$5)","v":0},{"$f":"I167*(100%-'Other input expert'!H$5)","v":0},{"$f":"J167*(100%-'Other input expert'!I$5)","v":0},{"$f":"K167*(100%-'Other input expert'!J$5)","v":0},{"$f":"L167*(100%-'Other input expert'!K$5)","v":0},{"$f":"M167*(100%-'Other input expert'!L$5)","v":0},{"$f":"N167*(100%-'Other input expert'!M$5)","v":0},null,{"$f":"P167*'Other input expert'!B$12*'Sales price per sales channel'!$G167*'Other input expert'!B$6","v":0},{"$f":"Q167*'Other input expert'!C$12*'Sales price per sales channel'!$G167*'Other input expert'!C$6","v":0},{"$f":"R167*'Other input expert'!D$12*'Sales price per sales channel'!$G167*'Other input expert'!D$6","v":0},{"$f":"S167*'Other input expert'!E$12*'Sales price per sales channel'!$G167*'Other input expert'!E$6","v":0},{"$f":"T167*'Other input expert'!F$12*'Sales price per sales channel'!$G167*'Other input expert'!F$6","v":0},{"$f":"U167*'Other input expert'!G$12*'Sales price per sales channel'!$G167*'Other input expert'!G$6","v":0},{"$f":"V167*'Other input expert'!H$12*'Sales price per sales channel'!$G167*'Other input expert'!H$6","v":0},{"$f":"W167*'Other input expert'!I$12*'Sales price per sales channel'!$G167*'Other input expert'!I$6","v":0},{"$f":"X167*'Other input expert'!J$12*'Sales price per sales channel'!$G167*'Other input expert'!J$6","v":0},{"$f":"Y167*'Other input expert'!K$12*'Sales price per sales channel'!$G167*'Other input expert'!K$6","v":0},{"$f":"Z167*'Other input expert'!L$12*'Sales price per sales channel'!$G167*'Other input expert'!L$6","v":0},{"$f":"AA167*'Other input expert'!M$12*'Sales price per sales channel'!$G167*'Other input expert'!M$6","v":0},null,{"$f":"P167*'Other input expert'!B$13*'Sales price per sales channel'!$H167*'Other input expert'!B$6","v":0},{"$f":"Q167*'Other input expert'!C$13*'Sales price per sales channel'!$H167*'Other input expert'!C$6","v":0},{"$f":"R167*'Other input expert'!D$13*'Sales price per sales channel'!$H167*'Other input expert'!D$6","v":0},{"$f":"S167*'Other input expert'!E$13*'Sales price per sales channel'!$H167*'Other input expert'!E$6","v":0},{"$f":"T167*'Other input expert'!F$13*'Sales price per sales channel'!$H167*'Other input expert'!F$6","v":0},{"$f":"U167*'Other input expert'!G$13*'Sales price per sales channel'!$H167*'Other input expert'!G$6","v":0},{"$f":"V167*'Other input expert'!H$13*'Sales price per sales channel'!$H167*'Other input expert'!H$6","v":0},{"$f":"W167*'Other input expert'!I$13*'Sales price per sales channel'!$H167*'Other input expert'!I$6","v":0},{"$f":"X167*'Other input expert'!J$13*'Sales price per sales channel'!$H167*'Other input expert'!J$6","v":0},{"$f":"Y167*'Other input expert'!K$13*'Sales price per sales channel'!$H167*'Other input expert'!K$6","v":0},{"$f":"Z167*'Other input expert'!L$13*'Sales price per sales channel'!$H167*'Other input expert'!L$6","v":0},{"$f":"AA167*'Other input expert'!M$13*'Sales price per sales channel'!$H167*'Other input expert'!M$6","v":0},null,{"$f":"P167*'Other input expert'!B$14*'Sales price per sales channel'!$I167*'Other input expert'!B$6","v":0},{"$f":"Q167*'Other input expert'!C$14*'Sales price per sales channel'!$I167*'Other input expert'!C$6","v":0},{"$f":"R167*'Other input expert'!D$14*'Sales price per sales channel'!$I167*'Other input expert'!D$6","v":0},{"$f":"S167*'Other input expert'!E$14*'Sales price per sales channel'!$I167*'Other input expert'!E$6","v":0},{"$f":"T167*'Other input expert'!F$14*'Sales price per sales channel'!$I167*'Other input expert'!F$6","v":0},{"$f":"U167*'Other input expert'!G$14*'Sales price per sales channel'!$I167*'Other input expert'!G$6","v":0},{"$f":"V167*'Other input expert'!H$14*'Sales price per sales channel'!$I167*'Other input expert'!H$6","v":0},{"$f":"W167*'Other input expert'!I$14*'Sales price per sales channel'!$I167*'Other input expert'!I$6","v":0},{"$f":"X167*'Other input expert'!J$14*'Sales price per sales channel'!$I167*'Other input expert'!J$6","v":0},{"$f":"Y167*'Other input expert'!K$14*'Sales price per sales channel'!$I167*'Other input expert'!K$6","v":0},{"$f":"Z167*'Other input expert'!L$14*'Sales price per sales channel'!$I167*'Other input expert'!L$6","v":0},{"$f":"AA167*'Other input expert'!M$14*'Sales price per sales channel'!$I167*'Other input expert'!M$6","v":0},null,{"$f":"AC167*'Other input expert'!B$12*'Sales price per sales channel'!$G167*'Other input expert'!B$7","v":0},{"$f":"AD167*'Other input expert'!C$12*'Sales price per sales channel'!$G167*'Other input expert'!C$7","v":0},{"$f":"AE167*'Other input expert'!D$12*'Sales price per sales channel'!$G167*'Other input expert'!D$7","v":0},{"$f":"AF167*'Other input expert'!E$12*'Sales price per sales channel'!$G167*'Other input expert'!E$7","v":0},{"$f":"AG167*'Other input expert'!F$12*'Sales price per sales channel'!$G167*'Other input expert'!F$7","v":0},{"$f":"AH167*'Other input expert'!G$12*'Sales price per sales channel'!$G167*'Other input expert'!G$7","v":0},{"$f":"AI167*'Other input expert'!H$12*'Sales price per sales channel'!$G167*'Other input expert'!H$7","v":0},{"$f":"AJ167*'Other input expert'!I$12*'Sales price per sales channel'!$G167*'Other input expert'!I$7","v":0},{"$f":"AK167*'Other input expert'!J$12*'Sales price per sales channel'!$G167*'Other input expert'!J$7","v":0},{"$f":"AL167*'Other input expert'!K$12*'Sales price per sales channel'!$G167*'Other input expert'!K$7","v":0},{"$f":"AM167*'Other input expert'!L$12*'Sales price per sales channel'!$G167*'Other input expert'!L$7","v":0},{"$f":"AN167*'Other input expert'!M$12*'Sales price per sales channel'!$G167*'Other input expert'!M$7","v":0},null,{"$f":"AC167*'Other input expert'!B$13*'Sales price per sales channel'!$H167*'Other input expert'!B$7","v":0},{"$f":"AD167*'Other input expert'!C$13*'Sales price per sales channel'!$H167*'Other input expert'!C$7","v":0},{"$f":"AE167*'Other input expert'!D$13*'Sales price per sales channel'!$H167*'Other input expert'!D$7","v":0},{"$f":"AF167*'Other input expert'!E$13*'Sales price per sales channel'!$H167*'Other input expert'!E$7","v":0},{"$f":"AG167*'Other input expert'!F$13*'Sales price per sales channel'!$H167*'Other input expert'!F$7","v":0},{"$f":"AH167*'Other input expert'!G$13*'Sales price per sales channel'!$H167*'Other input expert'!G$7","v":0},{"$f":"AI167*'Other input expert'!H$13*'Sales price per sales channel'!$H167*'Other input expert'!H$7","v":0},{"$f":"AJ167*'Other input expert'!I$13*'Sales price per sales channel'!$H167*'Other input expert'!I$7","v":0},{"$f":"AK167*'Other input expert'!J$13*'Sales price per sales channel'!$H167*'Other input expert'!J$7","v":0},{"$f":"AL167*'Other input expert'!K$13*'Sales price per sales channel'!$H167*'Other input expert'!K$7","v":0},{"$f":"AM167*'Other input expert'!L$13*'Sales price per sales channel'!$H167*'Other input expert'!L$7","v":0},{"$f":"AN167*'Other input expert'!M$13*'Sales price per sales channel'!$H167*'Other input expert'!M$7","v":0},null,{"$f":"AC167*'Other input expert'!B$14*'Sales price per sales channel'!$I167*'Other input expert'!B$7","v":0},{"$f":"AD167*'Other input expert'!C$14*'Sales price per sales channel'!$I167*'Other input expert'!C$7","v":0},{"$f":"AE167*'Other input expert'!D$14*'Sales price per sales channel'!$I167*'Other input expert'!D$7","v":0},{"$f":"AF167*'Other input expert'!E$14*'Sales price per sales channel'!$I167*'Other input expert'!E$7","v":0},{"$f":"AG167*'Other input expert'!F$14*'Sales price per sales channel'!$I167*'Other input expert'!F$7","v":0},{"$f":"AH167*'Other input expert'!G$14*'Sales price per sales channel'!$I167*'Other input expert'!G$7","v":0},{"$f":"AI167*'Other input expert'!H$14*'Sales price per sales channel'!$I167*'Other input expert'!H$7","v":0},{"$f":"AJ167*'Other input expert'!I$14*'Sales price per sales channel'!$I167*'Other input expert'!I$7","v":0},{"$f":"AK167*'Other input expert'!J$14*'Sales price per sales channel'!$I167*'Other input expert'!J$7","v":0},{"$f":"AL167*'Other input expert'!K$14*'Sales price per sales channel'!$I167*'Other input expert'!K$7","v":0},{"$f":"AM167*'Other input expert'!L$14*'Sales price per sales channel'!$I167*'Other input expert'!L$7","v":0},{"$f":"AN167*'Other input expert'!M$14*'Sales price per sales channel'!$I167*'Other input expert'!M$7","v":0}]
["Schisandra spp.","Magnolia vine",{"$f":"Plantlist!$G168*'Production list'!D169*'Other input expert'!B$4*'Other input expert'!B$8","v":0},{"$f":"Plantlist!$G168*'Production list'!E169*'Other input expert'!C$4*'Other input expert'!C$8","v":0},{"$f":"Plantlist!$G168*'Production list'!F169*'Other input expert'!D$4*'Other input expert'!D$8","v":0},{"$f":"Plantlist!$G168*'Production list'!G169*'Other input expert'!E$4*'Other input expert'!E$8","v":0},{"$f":"Plantlist!$G168*'Production list'!H169*'Other input expert'!F$4*'Other input expert'!F$8","v":0},{"$f":"Plantlist!$G168*'Production list'!I169*'Other input expert'!G$4*'Other input expert'!G$8","v":0},{"$f":"Plantlist!$G168*'Production list'!J169*'Other input expert'!H$4*'Other input expert'!H$8","v":0},{"$f":"Plantlist!$G168*'Production list'!K169*'Other input expert'!I$4*'Other input expert'!I$8","v":0},{"$f":"Plantlist!$G168*'Production list'!L169*'Other input expert'!J$4*'Other input expert'!J$8","v":0},{"$f":"Plantlist!$G168*'Production list'!M169*'Other input expert'!K$4*'Other input expert'!K$8","v":0},{"$f":"Plantlist!$G168*'Production list'!N169*'Other input expert'!L$4*'Other input expert'!L$8","v":0},{"$f":"Plantlist!$G168*'Production list'!O169*'Other input expert'!M$4*'Other input expert'!M$8","v":0},null,{"$f":"C168*'Other input expert'!B$5","v":0},{"$f":"D168*'Other input expert'!C$5","v":0},{"$f":"E168*'Other input expert'!D$5","v":0},{"$f":"F168*'Other input expert'!E$5","v":0},{"$f":"G168*'Other input expert'!F$5","v":0},{"$f":"H168*'Other input expert'!G$5","v":0},{"$f":"I168*'Other input expert'!H$5","v":0},{"$f":"J168*'Other input expert'!I$5","v":0},{"$f":"K168*'Other input expert'!J$5","v":0},{"$f":"L168*'Other input expert'!K$5","v":0},{"$f":"M168*'Other input expert'!L$5","v":0},{"$f":"N168*'Other input expert'!M$5","v":0},null,{"$f":"C168*(100%-'Other input expert'!B$5)","v":0},{"$f":"D168*(100%-'Other input expert'!C$5)","v":0},{"$f":"E168*(100%-'Other input expert'!D$5)","v":0},{"$f":"F168*(100%-'Other input expert'!E$5)","v":0},{"$f":"G168*(100%-'Other input expert'!F$5)","v":0},{"$f":"H168*(100%-'Other input expert'!G$5)","v":0},{"$f":"I168*(100%-'Other input expert'!H$5)","v":0},{"$f":"J168*(100%-'Other input expert'!I$5)","v":0},{"$f":"K168*(100%-'Other input expert'!J$5)","v":0},{"$f":"L168*(100%-'Other input expert'!K$5)","v":0},{"$f":"M168*(100%-'Other input expert'!L$5)","v":0},{"$f":"N168*(100%-'Other input expert'!M$5)","v":0},null,{"$f":"P168*'Other input expert'!B$12*'Sales price per sales channel'!$G168*'Other input expert'!B$6","v":0},{"$f":"Q168*'Other input expert'!C$12*'Sales price per sales channel'!$G168*'Other input expert'!C$6","v":0},{"$f":"R168*'Other input expert'!D$12*'Sales price per sales channel'!$G168*'Other input expert'!D$6","v":0},{"$f":"S168*'Other input expert'!E$12*'Sales price per sales channel'!$G168*'Other input expert'!E$6","v":0},{"$f":"T168*'Other input expert'!F$12*'Sales price per sales channel'!$G168*'Other input expert'!F$6","v":0},{"$f":"U168*'Other input expert'!G$12*'Sales price per sales channel'!$G168*'Other input expert'!G$6","v":0},{"$f":"V168*'Other input expert'!H$12*'Sales price per sales channel'!$G168*'Other input expert'!H$6","v":0},{"$f":"W168*'Other input expert'!I$12*'Sales price per sales channel'!$G168*'Other input expert'!I$6","v":0},{"$f":"X168*'Other input expert'!J$12*'Sales price per sales channel'!$G168*'Other input expert'!J$6","v":0},{"$f":"Y168*'Other input expert'!K$12*'Sales price per sales channel'!$G168*'Other input expert'!K$6","v":0},{"$f":"Z168*'Other input expert'!L$12*'Sales price per sales channel'!$G168*'Other input expert'!L$6","v":0},{"$f":"AA168*'Other input expert'!M$12*'Sales price per sales channel'!$G168*'Other input expert'!M$6","v":0},null,{"$f":"P168*'Other input expert'!B$13*'Sales price per sales channel'!$H168*'Other input expert'!B$6","v":0},{"$f":"Q168*'Other input expert'!C$13*'Sales price per sales channel'!$H168*'Other input expert'!C$6","v":0},{"$f":"R168*'Other input expert'!D$13*'Sales price per sales channel'!$H168*'Other input expert'!D$6","v":0},{"$f":"S168*'Other input expert'!E$13*'Sales price per sales channel'!$H168*'Other input expert'!E$6","v":0},{"$f":"T168*'Other input expert'!F$13*'Sales price per sales channel'!$H168*'Other input expert'!F$6","v":0},{"$f":"U168*'Other input expert'!G$13*'Sales price per sales channel'!$H168*'Other input expert'!G$6","v":0},{"$f":"V168*'Other input expert'!H$13*'Sales price per sales channel'!$H168*'Other input expert'!H$6","v":0},{"$f":"W168*'Other input expert'!I$13*'Sales price per sales channel'!$H168*'Other input expert'!I$6","v":0},{"$f":"X168*'Other input expert'!J$13*'Sales price per sales channel'!$H168*'Other input expert'!J$6","v":0},{"$f":"Y168*'Other input expert'!K$13*'Sales price per sales channel'!$H168*'Other input expert'!K$6","v":0},{"$f":"Z168*'Other input expert'!L$13*'Sales price per sales channel'!$H168*'Other input expert'!L$6","v":0},{"$f":"AA168*'Other input expert'!M$13*'Sales price per sales channel'!$H168*'Other input expert'!M$6","v":0},null,{"$f":"P168*'Other input expert'!B$14*'Sales price per sales channel'!$I168*'Other input expert'!B$6","v":0},{"$f":"Q168*'Other input expert'!C$14*'Sales price per sales channel'!$I168*'Other input expert'!C$6","v":0},{"$f":"R168*'Other input expert'!D$14*'Sales price per sales channel'!$I168*'Other input expert'!D$6","v":0},{"$f":"S168*'Other input expert'!E$14*'Sales price per sales channel'!$I168*'Other input expert'!E$6","v":0},{"$f":"T168*'Other input expert'!F$14*'Sales price per sales channel'!$I168*'Other input expert'!F$6","v":0},{"$f":"U168*'Other input expert'!G$14*'Sales price per sales channel'!$I168*'Other input expert'!G$6","v":0},{"$f":"V168*'Other input expert'!H$14*'Sales price per sales channel'!$I168*'Other input expert'!H$6","v":0},{"$f":"W168*'Other input expert'!I$14*'Sales price per sales channel'!$I168*'Other input expert'!I$6","v":0},{"$f":"X168*'Other input expert'!J$14*'Sales price per sales channel'!$I168*'Other input expert'!J$6","v":0},{"$f":"Y168*'Other input expert'!K$14*'Sales price per sales channel'!$I168*'Other input expert'!K$6","v":0},{"$f":"Z168*'Other input expert'!L$14*'Sales price per sales channel'!$I168*'Other input expert'!L$6","v":0},{"$f":"AA168*'Other input expert'!M$14*'Sales price per sales channel'!$I168*'Other input expert'!M$6","v":0},null,{"$f":"AC168*'Other input expert'!B$12*'Sales price per sales channel'!$G168*'Other input expert'!B$7","v":0},{"$f":"AD168*'Other input expert'!C$12*'Sales price per sales channel'!$G168*'Other input expert'!C$7","v":0},{"$f":"AE168*'Other input expert'!D$12*'Sales price per sales channel'!$G168*'Other input expert'!D$7","v":0},{"$f":"AF168*'Other input expert'!E$12*'Sales price per sales channel'!$G168*'Other input expert'!E$7","v":0},{"$f":"AG168*'Other input expert'!F$12*'Sales price per sales channel'!$G168*'Other input expert'!F$7","v":0},{"$f":"AH168*'Other input expert'!G$12*'Sales price per sales channel'!$G168*'Other input expert'!G$7","v":0},{"$f":"AI168*'Other input expert'!H$12*'Sales price per sales channel'!$G168*'Other input expert'!H$7","v":0},{"$f":"AJ168*'Other input expert'!I$12*'Sales price per sales channel'!$G168*'Other input expert'!I$7","v":0},{"$f":"AK168*'Other input expert'!J$12*'Sales price per sales channel'!$G168*'Other input expert'!J$7","v":0},{"$f":"AL168*'Other input expert'!K$12*'Sales price per sales channel'!$G168*'Other input expert'!K$7","v":0},{"$f":"AM168*'Other input expert'!L$12*'Sales price per sales channel'!$G168*'Other input expert'!L$7","v":0},{"$f":"AN168*'Other input expert'!M$12*'Sales price per sales channel'!$G168*'Other input expert'!M$7","v":0},null,{"$f":"AC168*'Other input expert'!B$13*'Sales price per sales channel'!$H168*'Other input expert'!B$7","v":0},{"$f":"AD168*'Other input expert'!C$13*'Sales price per sales channel'!$H168*'Other input expert'!C$7","v":0},{"$f":"AE168*'Other input expert'!D$13*'Sales price per sales channel'!$H168*'Other input expert'!D$7","v":0},{"$f":"AF168*'Other input expert'!E$13*'Sales price per sales channel'!$H168*'Other input expert'!E$7","v":0},{"$f":"AG168*'Other input expert'!F$13*'Sales price per sales channel'!$H168*'Other input expert'!F$7","v":0},{"$f":"AH168*'Other input expert'!G$13*'Sales price per sales channel'!$H168*'Other input expert'!G$7","v":0},{"$f":"AI168*'Other input expert'!H$13*'Sales price per sales channel'!$H168*'Other input expert'!H$7","v":0},{"$f":"AJ168*'Other input expert'!I$13*'Sales price per sales channel'!$H168*'Other input expert'!I$7","v":0},{"$f":"AK168*'Other input expert'!J$13*'Sales price per sales channel'!$H168*'Other input expert'!J$7","v":0},{"$f":"AL168*'Other input expert'!K$13*'Sales price per sales channel'!$H168*'Other input expert'!K$7","v":0},{"$f":"AM168*'Other input expert'!L$13*'Sales price per sales channel'!$H168*'Other input expert'!L$7","v":0},{"$f":"AN168*'Other input expert'!M$13*'Sales price per sales channel'!$H168*'Other input expert'!M$7","v":0},null,{"$f":"AC168*'Other input expert'!B$14*'Sales price per sales channel'!$I168*'Other input expert'!B$7","v":0},{"$f":"AD168*'Other input expert'!C$14*'Sales price per sales channel'!$I168*'Other input expert'!C$7","v":0},{"$f":"AE168*'Other input expert'!D$14*'Sales price per sales channel'!$I168*'Other input expert'!D$7","v":0},{"$f":"AF168*'Other input expert'!E$14*'Sales price per sales channel'!$I168*'Other input expert'!E$7","v":0},{"$f":"AG168*'Other input expert'!F$14*'Sales price per sales channel'!$I168*'Other input expert'!F$7","v":0},{"$f":"AH168*'Other input expert'!G$14*'Sales price per sales channel'!$I168*'Other input expert'!G$7","v":0},{"$f":"AI168*'Other input expert'!H$14*'Sales price per sales channel'!$I168*'Other input expert'!H$7","v":0},{"$f":"AJ168*'Other input expert'!I$14*'Sales price per sales channel'!$I168*'Other input expert'!I$7","v":0},{"$f":"AK168*'Other input expert'!J$14*'Sales price per sales channel'!$I168*'Other input expert'!J$7","v":0},{"$f":"AL168*'Other input expert'!K$14*'Sales price per sales channel'!$I168*'Other input expert'!K$7","v":0},{"$f":"AM168*'Other input expert'!L$14*'Sales price per sales channel'!$I168*'Other input expert'!L$7","v":0},{"$f":"AN168*'Other input expert'!M$14*'Sales price per sales channel'!$I168*'Other input expert'!M$7","v":0}]
["Scutellaria galericulata","Common skullcap",{"$f":"Plantlist!$G169*'Production list'!D170*'Other input expert'!B$4*'Other input expert'!B$8","v":0},{"$f":"Plantlist!$G169*'Production list'!E170*'Other input expert'!C$4*'Other input expert'!C$8","v":0},{"$f":"Plantlist!$G169*'Production list'!F170*'Other input expert'!D$4*'Other input expert'!D$8","v":0},{"$f":"Plantlist!$G169*'Production list'!G170*'Other input expert'!E$4*'Other input expert'!E$8","v":0},{"$f":"Plantlist!$G169*'Production list'!H170*'Other input expert'!F$4*'Other input expert'!F$8","v":0},{"$f":"Plantlist!$G169*'Production list'!I170*'Other input expert'!G$4*'Other input expert'!G$8","v":0},{"$f":"Plantlist!$G169*'Production list'!J170*'Other input expert'!H$4*'Other input expert'!H$8","v":0},{"$f":"Plantlist!$G169*'Production list'!K170*'Other input expert'!I$4*'Other input expert'!I$8","v":0},{"$f":"Plantlist!$G169*'Production list'!L170*'Other input expert'!J$4*'Other input expert'!J$8","v":0},{"$f":"Plantlist!$G169*'Production list'!M170*'Other input expert'!K$4*'Other input expert'!K$8","v":0},{"$f":"Plantlist!$G169*'Production list'!N170*'Other input expert'!L$4*'Other input expert'!L$8","v":0},{"$f":"Plantlist!$G169*'Production list'!O170*'Other input expert'!M$4*'Other input expert'!M$8","v":0},null,{"$f":"C169*'Other input expert'!B$5","v":0},{"$f":"D169*'Other input expert'!C$5","v":0},{"$f":"E169*'Other input expert'!D$5","v":0},{"$f":"F169*'Other input expert'!E$5","v":0},{"$f":"G169*'Other input expert'!F$5","v":0},{"$f":"H169*'Other input expert'!G$5","v":0},{"$f":"I169*'Other input expert'!H$5","v":0},{"$f":"J169*'Other input expert'!I$5","v":0},{"$f":"K169*'Other input expert'!J$5","v":0},{"$f":"L169*'Other input expert'!K$5","v":0},{"$f":"M169*'Other input expert'!L$5","v":0},{"$f":"N169*'Other input expert'!M$5","v":0},null,{"$f":"C169*(100%-'Other input expert'!B$5)","v":0},{"$f":"D169*(100%-'Other input expert'!C$5)","v":0},{"$f":"E169*(100%-'Other input expert'!D$5)","v":0},{"$f":"F169*(100%-'Other input expert'!E$5)","v":0},{"$f":"G169*(100%-'Other input expert'!F$5)","v":0},{"$f":"H169*(100%-'Other input expert'!G$5)","v":0},{"$f":"I169*(100%-'Other input expert'!H$5)","v":0},{"$f":"J169*(100%-'Other input expert'!I$5)","v":0},{"$f":"K169*(100%-'Other input expert'!J$5)","v":0},{"$f":"L169*(100%-'Other input expert'!K$5)","v":0},{"$f":"M169*(100%-'Other input expert'!L$5)","v":0},{"$f":"N169*(100%-'Other input expert'!M$5)","v":0},null,{"$f":"P169*'Other input expert'!B$12*'Sales price per sales channel'!$G169*'Other input expert'!B$6","v":0},{"$f":"Q169*'Other input expert'!C$12*'Sales price per sales channel'!$G169*'Other input expert'!C$6","v":0},{"$f":"R169*'Other input expert'!D$12*'Sales price per sales channel'!$G169*'Other input expert'!D$6","v":0},{"$f":"S169*'Other input expert'!E$12*'Sales price per sales channel'!$G169*'Other input expert'!E$6","v":0},{"$f":"T169*'Other input expert'!F$12*'Sales price per sales channel'!$G169*'Other input expert'!F$6","v":0},{"$f":"U169*'Other input expert'!G$12*'Sales price per sales channel'!$G169*'Other input expert'!G$6","v":0},{"$f":"V169*'Other input expert'!H$12*'Sales price per sales channel'!$G169*'Other input expert'!H$6","v":0},{"$f":"W169*'Other input expert'!I$12*'Sales price per sales channel'!$G169*'Other input expert'!I$6","v":0},{"$f":"X169*'Other input expert'!J$12*'Sales price per sales channel'!$G169*'Other input expert'!J$6","v":0},{"$f":"Y169*'Other input expert'!K$12*'Sales price per sales channel'!$G169*'Other input expert'!K$6","v":0},{"$f":"Z169*'Other input expert'!L$12*'Sales price per sales channel'!$G169*'Other input expert'!L$6","v":0},{"$f":"AA169*'Other input expert'!M$12*'Sales price per sales channel'!$G169*'Other input expert'!M$6","v":0},null,{"$f":"P169*'Other input expert'!B$13*'Sales price per sales channel'!$H169*'Other input expert'!B$6","v":0},{"$f":"Q169*'Other input expert'!C$13*'Sales price per sales channel'!$H169*'Other input expert'!C$6","v":0},{"$f":"R169*'Other input expert'!D$13*'Sales price per sales channel'!$H169*'Other input expert'!D$6","v":0},{"$f":"S169*'Other input expert'!E$13*'Sales price per sales channel'!$H169*'Other input expert'!E$6","v":0},{"$f":"T169*'Other input expert'!F$13*'Sales price per sales channel'!$H169*'Other input expert'!F$6","v":0},{"$f":"U169*'Other input expert'!G$13*'Sales price per sales channel'!$H169*'Other input expert'!G$6","v":0},{"$f":"V169*'Other input expert'!H$13*'Sales price per sales channel'!$H169*'Other input expert'!H$6","v":0},{"$f":"W169*'Other input expert'!I$13*'Sales price per sales channel'!$H169*'Other input expert'!I$6","v":0},{"$f":"X169*'Other input expert'!J$13*'Sales price per sales channel'!$H169*'Other input expert'!J$6","v":0},{"$f":"Y169*'Other input expert'!K$13*'Sales price per sales channel'!$H169*'Other input expert'!K$6","v":0},{"$f":"Z169*'Other input expert'!L$13*'Sales price per sales channel'!$H169*'Other input expert'!L$6","v":0},{"$f":"AA169*'Other input expert'!M$13*'Sales price per sales channel'!$H169*'Other input expert'!M$6","v":0},null,{"$f":"P169*'Other input expert'!B$14*'Sales price per sales channel'!$I169*'Other input expert'!B$6","v":0},{"$f":"Q169*'Other input expert'!C$14*'Sales price per sales channel'!$I169*'Other input expert'!C$6","v":0},{"$f":"R169*'Other input expert'!D$14*'Sales price per sales channel'!$I169*'Other input expert'!D$6","v":0},{"$f":"S169*'Other input expert'!E$14*'Sales price per sales channel'!$I169*'Other input expert'!E$6","v":0},{"$f":"T169*'Other input expert'!F$14*'Sales price per sales channel'!$I169*'Other input expert'!F$6","v":0},{"$f":"U169*'Other input expert'!G$14*'Sales price per sales channel'!$I169*'Other input expert'!G$6","v":0},{"$f":"V169*'Other input expert'!H$14*'Sales price per sales channel'!$I169*'Other input expert'!H$6","v":0},{"$f":"W169*'Other input expert'!I$14*'Sales price per sales channel'!$I169*'Other input expert'!I$6","v":0},{"$f":"X169*'Other input expert'!J$14*'Sales price per sales channel'!$I169*'Other input expert'!J$6","v":0},{"$f":"Y169*'Other input expert'!K$14*'Sales price per sales channel'!$I169*'Other input expert'!K$6","v":0},{"$f":"Z169*'Other input expert'!L$14*'Sales price per sales channel'!$I169*'Other input expert'!L$6","v":0},{"$f":"AA169*'Other input expert'!M$14*'Sales price per sales channel'!$I169*'Other input expert'!M$6","v":0},null,{"$f":"AC169*'Other input expert'!B$12*'Sales price per sales channel'!$G169*'Other input expert'!B$7","v":0},{"$f":"AD169*'Other input expert'!C$12*'Sales price per sales channel'!$G169*'Other input expert'!C$7","v":0},{"$f":"AE169*'Other input expert'!D$12*'Sales price per sales channel'!$G169*'Other input expert'!D$7","v":0},{"$f":"AF169*'Other input expert'!E$12*'Sales price per sales channel'!$G169*'Other input expert'!E$7","v":0},{"$f":"AG169*'Other input expert'!F$12*'Sales price per sales channel'!$G169*'Other input expert'!F$7","v":0},{"$f":"AH169*'Other input expert'!G$12*'Sales price per sales channel'!$G169*'Other input expert'!G$7","v":0},{"$f":"AI169*'Other input expert'!H$12*'Sales price per sales channel'!$G169*'Other input expert'!H$7","v":0},{"$f":"AJ169*'Other input expert'!I$12*'Sales price per sales channel'!$G169*'Other input expert'!I$7","v":0},{"$f":"AK169*'Other input expert'!J$12*'Sales price per sales channel'!$G169*'Other input expert'!J$7","v":0},{"$f":"AL169*'Other input expert'!K$12*'Sales price per sales channel'!$G169*'Other input expert'!K$7","v":0},{"$f":"AM169*'Other input expert'!L$12*'Sales price per sales channel'!$G169*'Other input expert'!L$7","v":0},{"$f":"AN169*'Other input expert'!M$12*'Sales price per sales channel'!$G169*'Other input expert'!M$7","v":0},null,{"$f":"AC169*'Other input expert'!B$13*'Sales price per sales channel'!$H169*'Other input expert'!B$7","v":0},{"$f":"AD169*'Other input expert'!C$13*'Sales price per sales channel'!$H169*'Other input expert'!C$7","v":0},{"$f":"AE169*'Other input expert'!D$13*'Sales price per sales channel'!$H169*'Other input expert'!D$7","v":0},{"$f":"AF169*'Other input expert'!E$13*'Sales price per sales channel'!$H169*'Other input expert'!E$7","v":0},{"$f":"AG169*'Other input expert'!F$13*'Sales price per sales channel'!$H169*'Other input expert'!F$7","v":0},{"$f":"AH169*'Other input expert'!G$13*'Sales price per sales channel'!$H169*'Other input expert'!G$7","v":0},{"$f":"AI169*'Other input expert'!H$13*'Sales price per sales channel'!$H169*'Other input expert'!H$7","v":0},{"$f":"AJ169*'Other input expert'!I$13*'Sales price per sales channel'!$H169*'Other input expert'!I$7","v":0},{"$f":"AK169*'Other input expert'!J$13*'Sales price per sales channel'!$H169*'Other input expert'!J$7","v":0},{"$f":"AL169*'Other input expert'!K$13*'Sales price per sales channel'!$H169*'Other input expert'!K$7","v":0},{"$f":"AM169*'Other input expert'!L$13*'Sales price per sales channel'!$H169*'Other input expert'!L$7","v":0},{"$f":"AN169*'Other input expert'!M$13*'Sales price per sales channel'!$H169*'Other input expert'!M$7","v":0},null,{"$f":"AC169*'Other input expert'!B$14*'Sales price per sales channel'!$I169*'Other input expert'!B$7","v":0},{"$f":"AD169*'Other input expert'!C$14*'Sales price per sales channel'!$I169*'Other input expert'!C$7","v":0},{"$f":"AE169*'Other input expert'!D$14*'Sales price per sales channel'!$I169*'Other input expert'!D$7","v":0},{"$f":"AF169*'Other input expert'!E$14*'Sales price per sales channel'!$I169*'Other input expert'!E$7","v":0},{"$f":"AG169*'Other input expert'!F$14*'Sales price per sales channel'!$I169*'Other input expert'!F$7","v":0},{"$f":"AH169*'Other input expert'!G$14*'Sales price per sales channel'!$I169*'Other input expert'!G$7","v":0},{"$f":"AI169*'Other input expert'!H$14*'Sales price per sales channel'!$I169*'Other input expert'!H$7","v":0},{"$f":"AJ169*'Other input expert'!I$14*'Sales price per sales channel'!$I169*'Other input expert'!I$7","v":0},{"$f":"AK169*'Other input expert'!J$14*'Sales price per sales channel'!$I169*'Other input expert'!J$7","v":0},{"$f":"AL169*'Other input expert'!K$14*'Sales price per sales channel'!$I169*'Other input expert'!K$7","v":0},{"$f":"AM169*'Other input expert'!L$14*'Sales price per sales channel'!$I169*'Other input expert'!L$7","v":0},{"$f":"AN169*'Other input expert'!M$14*'Sales price per sales channel'!$I169*'Other input expert'!M$7","v":0}]
["Solidago spp.","goldenrod",{"$f":"Plantlist!$G170*'Production list'!D171*'Other input expert'!B$4*'Other input expert'!B$8","v":0},{"$f":"Plantlist!$G170*'Production list'!E171*'Other input expert'!C$4*'Other input expert'!C$8","v":0},{"$f":"Plantlist!$G170*'Production list'!F171*'Other input expert'!D$4*'Other input expert'!D$8","v":0},{"$f":"Plantlist!$G170*'Production list'!G171*'Other input expert'!E$4*'Other input expert'!E$8","v":0},{"$f":"Plantlist!$G170*'Production list'!H171*'Other input expert'!F$4*'Other input expert'!F$8","v":0},{"$f":"Plantlist!$G170*'Production list'!I171*'Other input expert'!G$4*'Other input expert'!G$8","v":0},{"$f":"Plantlist!$G170*'Production list'!J171*'Other input expert'!H$4*'Other input expert'!H$8","v":0},{"$f":"Plantlist!$G170*'Production list'!K171*'Other input expert'!I$4*'Other input expert'!I$8","v":0},{"$f":"Plantlist!$G170*'Production list'!L171*'Other input expert'!J$4*'Other input expert'!J$8","v":0},{"$f":"Plantlist!$G170*'Production list'!M171*'Other input expert'!K$4*'Other input expert'!K$8","v":0},{"$f":"Plantlist!$G170*'Production list'!N171*'Other input expert'!L$4*'Other input expert'!L$8","v":0},{"$f":"Plantlist!$G170*'Production list'!O171*'Other input expert'!M$4*'Other input expert'!M$8","v":0},null,{"$f":"C170*'Other input expert'!B$5","v":0},{"$f":"D170*'Other input expert'!C$5","v":0},{"$f":"E170*'Other input expert'!D$5","v":0},{"$f":"F170*'Other input expert'!E$5","v":0},{"$f":"G170*'Other input expert'!F$5","v":0},{"$f":"H170*'Other input expert'!G$5","v":0},{"$f":"I170*'Other input expert'!H$5","v":0},{"$f":"J170*'Other input expert'!I$5","v":0},{"$f":"K170*'Other input expert'!J$5","v":0},{"$f":"L170*'Other input expert'!K$5","v":0},{"$f":"M170*'Other input expert'!L$5","v":0},{"$f":"N170*'Other input expert'!M$5","v":0},null,{"$f":"C170*(100%-'Other input expert'!B$5)","v":0},{"$f":"D170*(100%-'Other input expert'!C$5)","v":0},{"$f":"E170*(100%-'Other input expert'!D$5)","v":0},{"$f":"F170*(100%-'Other input expert'!E$5)","v":0},{"$f":"G170*(100%-'Other input expert'!F$5)","v":0},{"$f":"H170*(100%-'Other input expert'!G$5)","v":0},{"$f":"I170*(100%-'Other input expert'!H$5)","v":0},{"$f":"J170*(100%-'Other input expert'!I$5)","v":0},{"$f":"K170*(100%-'Other input expert'!J$5)","v":0},{"$f":"L170*(100%-'Other input expert'!K$5)","v":0},{"$f":"M170*(100%-'Other input expert'!L$5)","v":0},{"$f":"N170*(100%-'Other input expert'!M$5)","v":0},null,{"$f":"P170*'Other input expert'!B$12*'Sales price per sales channel'!$G170*'Other input expert'!B$6","v":0},{"$f":"Q170*'Other input expert'!C$12*'Sales price per sales channel'!$G170*'Other input expert'!C$6","v":0},{"$f":"R170*'Other input expert'!D$12*'Sales price per sales channel'!$G170*'Other input expert'!D$6","v":0},{"$f":"S170*'Other input expert'!E$12*'Sales price per sales channel'!$G170*'Other input expert'!E$6","v":0},{"$f":"T170*'Other input expert'!F$12*'Sales price per sales channel'!$G170*'Other input expert'!F$6","v":0},{"$f":"U170*'Other input expert'!G$12*'Sales price per sales channel'!$G170*'Other input expert'!G$6","v":0},{"$f":"V170*'Other input expert'!H$12*'Sales price per sales channel'!$G170*'Other input expert'!H$6","v":0},{"$f":"W170*'Other input expert'!I$12*'Sales price per sales channel'!$G170*'Other input expert'!I$6","v":0},{"$f":"X170*'Other input expert'!J$12*'Sales price per sales channel'!$G170*'Other input expert'!J$6","v":0},{"$f":"Y170*'Other input expert'!K$12*'Sales price per sales channel'!$G170*'Other input expert'!K$6","v":0},{"$f":"Z170*'Other input expert'!L$12*'Sales price per sales channel'!$G170*'Other input expert'!L$6","v":0},{"$f":"AA170*'Other input expert'!M$12*'Sales price per sales channel'!$G170*'Other input expert'!M$6","v":0},null,{"$f":"P170*'Other input expert'!B$13*'Sales price per sales channel'!$H170*'Other input expert'!B$6","v":0},{"$f":"Q170*'Other input expert'!C$13*'Sales price per sales channel'!$H170*'Other input expert'!C$6","v":0},{"$f":"R170*'Other input expert'!D$13*'Sales price per sales channel'!$H170*'Other input expert'!D$6","v":0},{"$f":"S170*'Other input expert'!E$13*'Sales price per sales channel'!$H170*'Other input expert'!E$6","v":0},{"$f":"T170*'Other input expert'!F$13*'Sales price per sales channel'!$H170*'Other input expert'!F$6","v":0},{"$f":"U170*'Other input expert'!G$13*'Sales price per sales channel'!$H170*'Other input expert'!G$6","v":0},{"$f":"V170*'Other input expert'!H$13*'Sales price per sales channel'!$H170*'Other input expert'!H$6","v":0},{"$f":"W170*'Other input expert'!I$13*'Sales price per sales channel'!$H170*'Other input expert'!I$6","v":0},{"$f":"X170*'Other input expert'!J$13*'Sales price per sales channel'!$H170*'Other input expert'!J$6","v":0},{"$f":"Y170*'Other input expert'!K$13*'Sales price per sales channel'!$H170*'Other input expert'!K$6","v":0},{"$f":"Z170*'Other input expert'!L$13*'Sales price per sales channel'!$H170*'Other input expert'!L$6","v":0},{"$f":"AA170*'Other input expert'!M$13*'Sales price per sales channel'!$H170*'Other input expert'!M$6","v":0},null,{"$f":"P170*'Other input expert'!B$14*'Sales price per sales channel'!$I170*'Other input expert'!B$6","v":0},{"$f":"Q170*'Other input expert'!C$14*'Sales price per sales channel'!$I170*'Other input expert'!C$6","v":0},{"$f":"R170*'Other input expert'!D$14*'Sales price per sales channel'!$I170*'Other input expert'!D$6","v":0},{"$f":"S170*'Other input expert'!E$14*'Sales price per sales channel'!$I170*'Other input expert'!E$6","v":0},{"$f":"T170*'Other input expert'!F$14*'Sales price per sales channel'!$I170*'Other input expert'!F$6","v":0},{"$f":"U170*'Other input expert'!G$14*'Sales price per sales channel'!$I170*'Other input expert'!G$6","v":0},{"$f":"V170*'Other input expert'!H$14*'Sales price per sales channel'!$I170*'Other input expert'!H$6","v":0},{"$f":"W170*'Other input expert'!I$14*'Sales price per sales channel'!$I170*'Other input expert'!I$6","v":0},{"$f":"X170*'Other input expert'!J$14*'Sales price per sales channel'!$I170*'Other input expert'!J$6","v":0},{"$f":"Y170*'Other input expert'!K$14*'Sales price per sales channel'!$I170*'Other input expert'!K$6","v":0},{"$f":"Z170*'Other input expert'!L$14*'Sales price per sales channel'!$I170*'Other input expert'!L$6","v":0},{"$f":"AA170*'Other input expert'!M$14*'Sales price per sales channel'!$I170*'Other input expert'!M$6","v":0},null,{"$f":"AC170*'Other input expert'!B$12*'Sales price per sales channel'!$G170*'Other input expert'!B$7","v":0},{"$f":"AD170*'Other input expert'!C$12*'Sales price per sales channel'!$G170*'Other input expert'!C$7","v":0},{"$f":"AE170*'Other input expert'!D$12*'Sales price per sales channel'!$G170*'Other input expert'!D$7","v":0},{"$f":"AF170*'Other input expert'!E$12*'Sales price per sales channel'!$G170*'Other input expert'!E$7","v":0},{"$f":"AG170*'Other input expert'!F$12*'Sales price per sales channel'!$G170*'Other input expert'!F$7","v":0},{"$f":"AH170*'Other input expert'!G$12*'Sales price per sales channel'!$G170*'Other input expert'!G$7","v":0},{"$f":"AI170*'Other input expert'!H$12*'Sales price per sales channel'!$G170*'Other input expert'!H$7","v":0},{"$f":"AJ170*'Other input expert'!I$12*'Sales price per sales channel'!$G170*'Other input expert'!I$7","v":0},{"$f":"AK170*'Other input expert'!J$12*'Sales price per sales channel'!$G170*'Other input expert'!J$7","v":0},{"$f":"AL170*'Other input expert'!K$12*'Sales price per sales channel'!$G170*'Other input expert'!K$7","v":0},{"$f":"AM170*'Other input expert'!L$12*'Sales price per sales channel'!$G170*'Other input expert'!L$7","v":0},{"$f":"AN170*'Other input expert'!M$12*'Sales price per sales channel'!$G170*'Other input expert'!M$7","v":0},null,{"$f":"AC170*'Other input expert'!B$13*'Sales price per sales channel'!$H170*'Other input expert'!B$7","v":0},{"$f":"AD170*'Other input expert'!C$13*'Sales price per sales channel'!$H170*'Other input expert'!C$7","v":0},{"$f":"AE170*'Other input expert'!D$13*'Sales price per sales channel'!$H170*'Other input expert'!D$7","v":0},{"$f":"AF170*'Other input expert'!E$13*'Sales price per sales channel'!$H170*'Other input expert'!E$7","v":0},{"$f":"AG170*'Other input expert'!F$13*'Sales price per sales channel'!$H170*'Other input expert'!F$7","v":0},{"$f":"AH170*'Other input expert'!G$13*'Sales price per sales channel'!$H170*'Other input expert'!G$7","v":0},{"$f":"AI170*'Other input expert'!H$13*'Sales price per sales channel'!$H170*'Other input expert'!H$7","v":0},{"$f":"AJ170*'Other input expert'!I$13*'Sales price per sales channel'!$H170*'Other input expert'!I$7","v":0},{"$f":"AK170*'Other input expert'!J$13*'Sales price per sales channel'!$H170*'Other input expert'!J$7","v":0},{"$f":"AL170*'Other input expert'!K$13*'Sales price per sales channel'!$H170*'Other input expert'!K$7","v":0},{"$f":"AM170*'Other input expert'!L$13*'Sales price per sales channel'!$H170*'Other input expert'!L$7","v":0},{"$f":"AN170*'Other input expert'!M$13*'Sales price per sales channel'!$H170*'Other input expert'!M$7","v":0},null,{"$f":"AC170*'Other input expert'!B$14*'Sales price per sales channel'!$I170*'Other input expert'!B$7","v":0},{"$f":"AD170*'Other input expert'!C$14*'Sales price per sales channel'!$I170*'Other input expert'!C$7","v":0},{"$f":"AE170*'Other input expert'!D$14*'Sales price per sales channel'!$I170*'Other input expert'!D$7","v":0},{"$f":"AF170*'Other input expert'!E$14*'Sales price per sales channel'!$I170*'Other input expert'!E$7","v":0},{"$f":"AG170*'Other input expert'!F$14*'Sales price per sales channel'!$I170*'Other input expert'!F$7","v":0},{"$f":"AH170*'Other input expert'!G$14*'Sales price per sales channel'!$I170*'Other input expert'!G$7","v":0},{"$f":"AI170*'Other input expert'!H$14*'Sales price per sales channel'!$I170*'Other input expert'!H$7","v":0},{"$f":"AJ170*'Other input expert'!I$14*'Sales price per sales channel'!$I170*'Other input expert'!I$7","v":0},{"$f":"AK170*'Other input expert'!J$14*'Sales price per sales channel'!$I170*'Other input expert'!J$7","v":0},{"$f":"AL170*'Other input expert'!K$14*'Sales price per sales channel'!$I170*'Other input expert'!K$7","v":0},{"$f":"AM170*'Other input expert'!L$14*'Sales price per sales channel'!$I170*'Other input expert'!L$7","v":0},{"$f":"AN170*'Other input expert'!M$14*'Sales price per sales channel'!$I170*'Other input expert'!M$7","v":0}]
["Sorbus aucuparia","Mountain ash",{"$f":"Plantlist!$G171*'Production list'!D172*'Other input expert'!B$4*'Other input expert'!B$8","v":0},{"$f":"Plantlist!$G171*'Production list'!E172*'Other input expert'!C$4*'Other input expert'!C$8","v":0},{"$f":"Plantlist!$G171*'Production list'!F172*'Other input expert'!D$4*'Other input expert'!D$8","v":0},{"$f":"Plantlist!$G171*'Production list'!G172*'Other input expert'!E$4*'Other input expert'!E$8","v":0},{"$f":"Plantlist!$G171*'Production list'!H172*'Other input expert'!F$4*'Other input expert'!F$8","v":0},{"$f":"Plantlist!$G171*'Production list'!I172*'Other input expert'!G$4*'Other input expert'!G$8","v":0},{"$f":"Plantlist!$G171*'Production list'!J172*'Other input expert'!H$4*'Other input expert'!H$8","v":0},{"$f":"Plantlist!$G171*'Production list'!K172*'Other input expert'!I$4*'Other input expert'!I$8","v":0},{"$f":"Plantlist!$G171*'Production list'!L172*'Other input expert'!J$4*'Other input expert'!J$8","v":0},{"$f":"Plantlist!$G171*'Production list'!M172*'Other input expert'!K$4*'Other input expert'!K$8","v":0},{"$f":"Plantlist!$G171*'Production list'!N172*'Other input expert'!L$4*'Other input expert'!L$8","v":0},{"$f":"Plantlist!$G171*'Production list'!O172*'Other input expert'!M$4*'Other input expert'!M$8","v":0},null,{"$f":"C171*'Other input expert'!B$5","v":0},{"$f":"D171*'Other input expert'!C$5","v":0},{"$f":"E171*'Other input expert'!D$5","v":0},{"$f":"F171*'Other input expert'!E$5","v":0},{"$f":"G171*'Other input expert'!F$5","v":0},{"$f":"H171*'Other input expert'!G$5","v":0},{"$f":"I171*'Other input expert'!H$5","v":0},{"$f":"J171*'Other input expert'!I$5","v":0},{"$f":"K171*'Other input expert'!J$5","v":0},{"$f":"L171*'Other input expert'!K$5","v":0},{"$f":"M171*'Other input expert'!L$5","v":0},{"$f":"N171*'Other input expert'!M$5","v":0},null,{"$f":"C171*(100%-'Other input expert'!B$5)","v":0},{"$f":"D171*(100%-'Other input expert'!C$5)","v":0},{"$f":"E171*(100%-'Other input expert'!D$5)","v":0},{"$f":"F171*(100%-'Other input expert'!E$5)","v":0},{"$f":"G171*(100%-'Other input expert'!F$5)","v":0},{"$f":"H171*(100%-'Other input expert'!G$5)","v":0},{"$f":"I171*(100%-'Other input expert'!H$5)","v":0},{"$f":"J171*(100%-'Other input expert'!I$5)","v":0},{"$f":"K171*(100%-'Other input expert'!J$5)","v":0},{"$f":"L171*(100%-'Other input expert'!K$5)","v":0},{"$f":"M171*(100%-'Other input expert'!L$5)","v":0},{"$f":"N171*(100%-'Other input expert'!M$5)","v":0},null,{"$f":"P171*'Other input expert'!B$12*'Sales price per sales channel'!$G171*'Other input expert'!B$6","v":0},{"$f":"Q171*'Other input expert'!C$12*'Sales price per sales channel'!$G171*'Other input expert'!C$6","v":0},{"$f":"R171*'Other input expert'!D$12*'Sales price per sales channel'!$G171*'Other input expert'!D$6","v":0},{"$f":"S171*'Other input expert'!E$12*'Sales price per sales channel'!$G171*'Other input expert'!E$6","v":0},{"$f":"T171*'Other input expert'!F$12*'Sales price per sales channel'!$G171*'Other input expert'!F$6","v":0},{"$f":"U171*'Other input expert'!G$12*'Sales price per sales channel'!$G171*'Other input expert'!G$6","v":0},{"$f":"V171*'Other input expert'!H$12*'Sales price per sales channel'!$G171*'Other input expert'!H$6","v":0},{"$f":"W171*'Other input expert'!I$12*'Sales price per sales channel'!$G171*'Other input expert'!I$6","v":0},{"$f":"X171*'Other input expert'!J$12*'Sales price per sales channel'!$G171*'Other input expert'!J$6","v":0},{"$f":"Y171*'Other input expert'!K$12*'Sales price per sales channel'!$G171*'Other input expert'!K$6","v":0},{"$f":"Z171*'Other input expert'!L$12*'Sales price per sales channel'!$G171*'Other input expert'!L$6","v":0},{"$f":"AA171*'Other input expert'!M$12*'Sales price per sales channel'!$G171*'Other input expert'!M$6","v":0},null,{"$f":"P171*'Other input expert'!B$13*'Sales price per sales channel'!$H171*'Other input expert'!B$6","v":0},{"$f":"Q171*'Other input expert'!C$13*'Sales price per sales channel'!$H171*'Other input expert'!C$6","v":0},{"$f":"R171*'Other input expert'!D$13*'Sales price per sales channel'!$H171*'Other input expert'!D$6","v":0},{"$f":"S171*'Other input expert'!E$13*'Sales price per sales channel'!$H171*'Other input expert'!E$6","v":0},{"$f":"T171*'Other input expert'!F$13*'Sales price per sales channel'!$H171*'Other input expert'!F$6","v":0},{"$f":"U171*'Other input expert'!G$13*'Sales price per sales channel'!$H171*'Other input expert'!G$6","v":0},{"$f":"V171*'Other input expert'!H$13*'Sales price per sales channel'!$H171*'Other input expert'!H$6","v":0},{"$f":"W171*'Other input expert'!I$13*'Sales price per sales channel'!$H171*'Other input expert'!I$6","v":0},{"$f":"X171*'Other input expert'!J$13*'Sales price per sales channel'!$H171*'Other input expert'!J$6","v":0},{"$f":"Y171*'Other input expert'!K$13*'Sales price per sales channel'!$H171*'Other input expert'!K$6","v":0},{"$f":"Z171*'Other input expert'!L$13*'Sales price per sales channel'!$H171*'Other input expert'!L$6","v":0},{"$f":"AA171*'Other input expert'!M$13*'Sales price per sales channel'!$H171*'Other input expert'!M$6","v":0},null,{"$f":"P171*'Other input expert'!B$14*'Sales price per sales channel'!$I171*'Other input expert'!B$6","v":0},{"$f":"Q171*'Other input expert'!C$14*'Sales price per sales channel'!$I171*'Other input expert'!C$6","v":0},{"$f":"R171*'Other input expert'!D$14*'Sales price per sales channel'!$I171*'Other input expert'!D$6","v":0},{"$f":"S171*'Other input expert'!E$14*'Sales price per sales channel'!$I171*'Other input expert'!E$6","v":0},{"$f":"T171*'Other input expert'!F$14*'Sales price per sales channel'!$I171*'Other input expert'!F$6","v":0},{"$f":"U171*'Other input expert'!G$14*'Sales price per sales channel'!$I171*'Other input expert'!G$6","v":0},{"$f":"V171*'Other input expert'!H$14*'Sales price per sales channel'!$I171*'Other input expert'!H$6","v":0},{"$f":"W171*'Other input expert'!I$14*'Sales price per sales channel'!$I171*'Other input expert'!I$6","v":0},{"$f":"X171*'Other input expert'!J$14*'Sales price per sales channel'!$I171*'Other input expert'!J$6","v":0},{"$f":"Y171*'Other input expert'!K$14*'Sales price per sales channel'!$I171*'Other input expert'!K$6","v":0},{"$f":"Z171*'Other input expert'!L$14*'Sales price per sales channel'!$I171*'Other input expert'!L$6","v":0},{"$f":"AA171*'Other input expert'!M$14*'Sales price per sales channel'!$I171*'Other input expert'!M$6","v":0},null,{"$f":"AC171*'Other input expert'!B$12*'Sales price per sales channel'!$G171*'Other input expert'!B$7","v":0},{"$f":"AD171*'Other input expert'!C$12*'Sales price per sales channel'!$G171*'Other input expert'!C$7","v":0},{"$f":"AE171*'Other input expert'!D$12*'Sales price per sales channel'!$G171*'Other input expert'!D$7","v":0},{"$f":"AF171*'Other input expert'!E$12*'Sales price per sales channel'!$G171*'Other input expert'!E$7","v":0},{"$f":"AG171*'Other input expert'!F$12*'Sales price per sales channel'!$G171*'Other input expert'!F$7","v":0},{"$f":"AH171*'Other input expert'!G$12*'Sales price per sales channel'!$G171*'Other input expert'!G$7","v":0},{"$f":"AI171*'Other input expert'!H$12*'Sales price per sales channel'!$G171*'Other input expert'!H$7","v":0},{"$f":"AJ171*'Other input expert'!I$12*'Sales price per sales channel'!$G171*'Other input expert'!I$7","v":0},{"$f":"AK171*'Other input expert'!J$12*'Sales price per sales channel'!$G171*'Other input expert'!J$7","v":0},{"$f":"AL171*'Other input expert'!K$12*'Sales price per sales channel'!$G171*'Other input expert'!K$7","v":0},{"$f":"AM171*'Other input expert'!L$12*'Sales price per sales channel'!$G171*'Other input expert'!L$7","v":0},{"$f":"AN171*'Other input expert'!M$12*'Sales price per sales channel'!$G171*'Other input expert'!M$7","v":0},null,{"$f":"AC171*'Other input expert'!B$13*'Sales price per sales channel'!$H171*'Other input expert'!B$7","v":0},{"$f":"AD171*'Other input expert'!C$13*'Sales price per sales channel'!$H171*'Other input expert'!C$7","v":0},{"$f":"AE171*'Other input expert'!D$13*'Sales price per sales channel'!$H171*'Other input expert'!D$7","v":0},{"$f":"AF171*'Other input expert'!E$13*'Sales price per sales channel'!$H171*'Other input expert'!E$7","v":0},{"$f":"AG171*'Other input expert'!F$13*'Sales price per sales channel'!$H171*'Other input expert'!F$7","v":0},{"$f":"AH171*'Other input expert'!G$13*'Sales price per sales channel'!$H171*'Other input expert'!G$7","v":0},{"$f":"AI171*'Other input expert'!H$13*'Sales price per sales channel'!$H171*'Other input expert'!H$7","v":0},{"$f":"AJ171*'Other input expert'!I$13*'Sales price per sales channel'!$H171*'Other input expert'!I$7","v":0},{"$f":"AK171*'Other input expert'!J$13*'Sales price per sales channel'!$H171*'Other input expert'!J$7","v":0},{"$f":"AL171*'Other input expert'!K$13*'Sales price per sales channel'!$H171*'Other input expert'!K$7","v":0},{"$f":"AM171*'Other input expert'!L$13*'Sales price per sales channel'!$H171*'Other input expert'!L$7","v":0},{"$f":"AN171*'Other input expert'!M$13*'Sales price per sales channel'!$H171*'Other input expert'!M$7","v":0},null,{"$f":"AC171*'Other input expert'!B$14*'Sales price per sales channel'!$I171*'Other input expert'!B$7","v":0},{"$f":"AD171*'Other input expert'!C$14*'Sales price per sales channel'!$I171*'Other input expert'!C$7","v":0},{"$f":"AE171*'Other input expert'!D$14*'Sales price per sales channel'!$I171*'Other input expert'!D$7","v":0},{"$f":"AF171*'Other input expert'!E$14*'Sales price per sales channel'!$I171*'Other input expert'!E$7","v":0},{"$f":"AG171*'Other input expert'!F$14*'Sales price per sales channel'!$I171*'Other input expert'!F$7","v":0},{"$f":"AH171*'Other input expert'!G$14*'Sales price per sales channel'!$I171*'Other input expert'!G$7","v":0},{"$f":"AI171*'Other input expert'!H$14*'Sales price per sales channel'!$I171*'Other input expert'!H$7","v":0},{"$f":"AJ171*'Other input expert'!I$14*'Sales price per sales channel'!$I171*'Other input expert'!I$7","v":0},{"$f":"AK171*'Other input expert'!J$14*'Sales price per sales channel'!$I171*'Other input expert'!J$7","v":0},{"$f":"AL171*'Other input expert'!K$14*'Sales price per sales channel'!$I171*'Other input expert'!K$7","v":0},{"$f":"AM171*'Other input expert'!L$14*'Sales price per sales channel'!$I171*'Other input expert'!L$7","v":0},{"$f":"AN171*'Other input expert'!M$14*'Sales price per sales channel'!$I171*'Other input expert'!M$7","v":0}]
["Sorbus domestica","Service tree",{"$f":"Plantlist!$G172*'Production list'!D173*'Other input expert'!B$4*'Other input expert'!B$8","v":0},{"$f":"Plantlist!$G172*'Production list'!E173*'Other input expert'!C$4*'Other input expert'!C$8","v":0},{"$f":"Plantlist!$G172*'Production list'!F173*'Other input expert'!D$4*'Other input expert'!D$8","v":0},{"$f":"Plantlist!$G172*'Production list'!G173*'Other input expert'!E$4*'Other input expert'!E$8","v":0},{"$f":"Plantlist!$G172*'Production list'!H173*'Other input expert'!F$4*'Other input expert'!F$8","v":0},{"$f":"Plantlist!$G172*'Production list'!I173*'Other input expert'!G$4*'Other input expert'!G$8","v":0},{"$f":"Plantlist!$G172*'Production list'!J173*'Other input expert'!H$4*'Other input expert'!H$8","v":0},{"$f":"Plantlist!$G172*'Production list'!K173*'Other input expert'!I$4*'Other input expert'!I$8","v":0},{"$f":"Plantlist!$G172*'Production list'!L173*'Other input expert'!J$4*'Other input expert'!J$8","v":0},{"$f":"Plantlist!$G172*'Production list'!M173*'Other input expert'!K$4*'Other input expert'!K$8","v":0},{"$f":"Plantlist!$G172*'Production list'!N173*'Other input expert'!L$4*'Other input expert'!L$8","v":0},{"$f":"Plantlist!$G172*'Production list'!O173*'Other input expert'!M$4*'Other input expert'!M$8","v":0},null,{"$f":"C172*'Other input expert'!B$5","v":0},{"$f":"D172*'Other input expert'!C$5","v":0},{"$f":"E172*'Other input expert'!D$5","v":0},{"$f":"F172*'Other input expert'!E$5","v":0},{"$f":"G172*'Other input expert'!F$5","v":0},{"$f":"H172*'Other input expert'!G$5","v":0},{"$f":"I172*'Other input expert'!H$5","v":0},{"$f":"J172*'Other input expert'!I$5","v":0},{"$f":"K172*'Other input expert'!J$5","v":0},{"$f":"L172*'Other input expert'!K$5","v":0},{"$f":"M172*'Other input expert'!L$5","v":0},{"$f":"N172*'Other input expert'!M$5","v":0},null,{"$f":"C172*(100%-'Other input expert'!B$5)","v":0},{"$f":"D172*(100%-'Other input expert'!C$5)","v":0},{"$f":"E172*(100%-'Other input expert'!D$5)","v":0},{"$f":"F172*(100%-'Other input expert'!E$5)","v":0},{"$f":"G172*(100%-'Other input expert'!F$5)","v":0},{"$f":"H172*(100%-'Other input expert'!G$5)","v":0},{"$f":"I172*(100%-'Other input expert'!H$5)","v":0},{"$f":"J172*(100%-'Other input expert'!I$5)","v":0},{"$f":"K172*(100%-'Other input expert'!J$5)","v":0},{"$f":"L172*(100%-'Other input expert'!K$5)","v":0},{"$f":"M172*(100%-'Other input expert'!L$5)","v":0},{"$f":"N172*(100%-'Other input expert'!M$5)","v":0},null,{"$f":"P172*'Other input expert'!B$12*'Sales price per sales channel'!$G172*'Other input expert'!B$6","v":0},{"$f":"Q172*'Other input expert'!C$12*'Sales price per sales channel'!$G172*'Other input expert'!C$6","v":0},{"$f":"R172*'Other input expert'!D$12*'Sales price per sales channel'!$G172*'Other input expert'!D$6","v":0},{"$f":"S172*'Other input expert'!E$12*'Sales price per sales channel'!$G172*'Other input expert'!E$6","v":0},{"$f":"T172*'Other input expert'!F$12*'Sales price per sales channel'!$G172*'Other input expert'!F$6","v":0},{"$f":"U172*'Other input expert'!G$12*'Sales price per sales channel'!$G172*'Other input expert'!G$6","v":0},{"$f":"V172*'Other input expert'!H$12*'Sales price per sales channel'!$G172*'Other input expert'!H$6","v":0},{"$f":"W172*'Other input expert'!I$12*'Sales price per sales channel'!$G172*'Other input expert'!I$6","v":0},{"$f":"X172*'Other input expert'!J$12*'Sales price per sales channel'!$G172*'Other input expert'!J$6","v":0},{"$f":"Y172*'Other input expert'!K$12*'Sales price per sales channel'!$G172*'Other input expert'!K$6","v":0},{"$f":"Z172*'Other input expert'!L$12*'Sales price per sales channel'!$G172*'Other input expert'!L$6","v":0},{"$f":"AA172*'Other input expert'!M$12*'Sales price per sales channel'!$G172*'Other input expert'!M$6","v":0},null,{"$f":"P172*'Other input expert'!B$13*'Sales price per sales channel'!$H172*'Other input expert'!B$6","v":0},{"$f":"Q172*'Other input expert'!C$13*'Sales price per sales channel'!$H172*'Other input expert'!C$6","v":0},{"$f":"R172*'Other input expert'!D$13*'Sales price per sales channel'!$H172*'Other input expert'!D$6","v":0},{"$f":"S172*'Other input expert'!E$13*'Sales price per sales channel'!$H172*'Other input expert'!E$6","v":0},{"$f":"T172*'Other input expert'!F$13*'Sales price per sales channel'!$H172*'Other input expert'!F$6","v":0},{"$f":"U172*'Other input expert'!G$13*'Sales price per sales channel'!$H172*'Other input expert'!G$6","v":0},{"$f":"V172*'Other input expert'!H$13*'Sales price per sales channel'!$H172*'Other input expert'!H$6","v":0},{"$f":"W172*'Other input expert'!I$13*'Sales price per sales channel'!$H172*'Other input expert'!I$6","v":0},{"$f":"X172*'Other input expert'!J$13*'Sales price per sales channel'!$H172*'Other input expert'!J$6","v":0},{"$f":"Y172*'Other input expert'!K$13*'Sales price per sales channel'!$H172*'Other input expert'!K$6","v":0},{"$f":"Z172*'Other input expert'!L$13*'Sales price per sales channel'!$H172*'Other input expert'!L$6","v":0},{"$f":"AA172*'Other input expert'!M$13*'Sales price per sales channel'!$H172*'Other input expert'!M$6","v":0},null,{"$f":"P172*'Other input expert'!B$14*'Sales price per sales channel'!$I172*'Other input expert'!B$6","v":0},{"$f":"Q172*'Other input expert'!C$14*'Sales price per sales channel'!$I172*'Other input expert'!C$6","v":0},{"$f":"R172*'Other input expert'!D$14*'Sales price per sales channel'!$I172*'Other input expert'!D$6","v":0},{"$f":"S172*'Other input expert'!E$14*'Sales price per sales channel'!$I172*'Other input expert'!E$6","v":0},{"$f":"T172*'Other input expert'!F$14*'Sales price per sales channel'!$I172*'Other input expert'!F$6","v":0},{"$f":"U172*'Other input expert'!G$14*'Sales price per sales channel'!$I172*'Other input expert'!G$6","v":0},{"$f":"V172*'Other input expert'!H$14*'Sales price per sales channel'!$I172*'Other input expert'!H$6","v":0},{"$f":"W172*'Other input expert'!I$14*'Sales price per sales channel'!$I172*'Other input expert'!I$6","v":0},{"$f":"X172*'Other input expert'!J$14*'Sales price per sales channel'!$I172*'Other input expert'!J$6","v":0},{"$f":"Y172*'Other input expert'!K$14*'Sales price per sales channel'!$I172*'Other input expert'!K$6","v":0},{"$f":"Z172*'Other input expert'!L$14*'Sales price per sales channel'!$I172*'Other input expert'!L$6","v":0},{"$f":"AA172*'Other input expert'!M$14*'Sales price per sales channel'!$I172*'Other input expert'!M$6","v":0},null,{"$f":"AC172*'Other input expert'!B$12*'Sales price per sales channel'!$G172*'Other input expert'!B$7","v":0},{"$f":"AD172*'Other input expert'!C$12*'Sales price per sales channel'!$G172*'Other input expert'!C$7","v":0},{"$f":"AE172*'Other input expert'!D$12*'Sales price per sales channel'!$G172*'Other input expert'!D$7","v":0},{"$f":"AF172*'Other input expert'!E$12*'Sales price per sales channel'!$G172*'Other input expert'!E$7","v":0},{"$f":"AG172*'Other input expert'!F$12*'Sales price per sales channel'!$G172*'Other input expert'!F$7","v":0},{"$f":"AH172*'Other input expert'!G$12*'Sales price per sales channel'!$G172*'Other input expert'!G$7","v":0},{"$f":"AI172*'Other input expert'!H$12*'Sales price per sales channel'!$G172*'Other input expert'!H$7","v":0},{"$f":"AJ172*'Other input expert'!I$12*'Sales price per sales channel'!$G172*'Other input expert'!I$7","v":0},{"$f":"AK172*'Other input expert'!J$12*'Sales price per sales channel'!$G172*'Other input expert'!J$7","v":0},{"$f":"AL172*'Other input expert'!K$12*'Sales price per sales channel'!$G172*'Other input expert'!K$7","v":0},{"$f":"AM172*'Other input expert'!L$12*'Sales price per sales channel'!$G172*'Other input expert'!L$7","v":0},{"$f":"AN172*'Other input expert'!M$12*'Sales price per sales channel'!$G172*'Other input expert'!M$7","v":0},null,{"$f":"AC172*'Other input expert'!B$13*'Sales price per sales channel'!$H172*'Other input expert'!B$7","v":0},{"$f":"AD172*'Other input expert'!C$13*'Sales price per sales channel'!$H172*'Other input expert'!C$7","v":0},{"$f":"AE172*'Other input expert'!D$13*'Sales price per sales channel'!$H172*'Other input expert'!D$7","v":0},{"$f":"AF172*'Other input expert'!E$13*'Sales price per sales channel'!$H172*'Other input expert'!E$7","v":0},{"$f":"AG172*'Other input expert'!F$13*'Sales price per sales channel'!$H172*'Other input expert'!F$7","v":0},{"$f":"AH172*'Other input expert'!G$13*'Sales price per sales channel'!$H172*'Other input expert'!G$7","v":0},{"$f":"AI172*'Other input expert'!H$13*'Sales price per sales channel'!$H172*'Other input expert'!H$7","v":0},{"$f":"AJ172*'Other input expert'!I$13*'Sales price per sales channel'!$H172*'Other input expert'!I$7","v":0},{"$f":"AK172*'Other input expert'!J$13*'Sales price per sales channel'!$H172*'Other input expert'!J$7","v":0},{"$f":"AL172*'Other input expert'!K$13*'Sales price per sales channel'!$H172*'Other input expert'!K$7","v":0},{"$f":"AM172*'Other input expert'!L$13*'Sales price per sales channel'!$H172*'Other input expert'!L$7","v":0},{"$f":"AN172*'Other input expert'!M$13*'Sales price per sales channel'!$H172*'Other input expert'!M$7","v":0},null,{"$f":"AC172*'Other input expert'!B$14*'Sales price per sales channel'!$I172*'Other input expert'!B$7","v":0},{"$f":"AD172*'Other input expert'!C$14*'Sales price per sales channel'!$I172*'Other input expert'!C$7","v":0},{"$f":"AE172*'Other input expert'!D$14*'Sales price per sales channel'!$I172*'Other input expert'!D$7","v":0},{"$f":"AF172*'Other input expert'!E$14*'Sales price per sales channel'!$I172*'Other input expert'!E$7","v":0},{"$f":"AG172*'Other input expert'!F$14*'Sales price per sales channel'!$I172*'Other input expert'!F$7","v":0},{"$f":"AH172*'Other input expert'!G$14*'Sales price per sales channel'!$I172*'Other input expert'!G$7","v":0},{"$f":"AI172*'Other input expert'!H$14*'Sales price per sales channel'!$I172*'Other input expert'!H$7","v":0},{"$f":"AJ172*'Other input expert'!I$14*'Sales price per sales channel'!$I172*'Other input expert'!I$7","v":0},{"$f":"AK172*'Other input expert'!J$14*'Sales price per sales channel'!$I172*'Other input expert'!J$7","v":0},{"$f":"AL172*'Other input expert'!K$14*'Sales price per sales channel'!$I172*'Other input expert'!K$7","v":0},{"$f":"AM172*'Other input expert'!L$14*'Sales price per sales channel'!$I172*'Other input expert'!L$7","v":0},{"$f":"AN172*'Other input expert'!M$14*'Sales price per sales channel'!$I172*'Other input expert'!M$7","v":0}]
["Sorbus torminalis","Service tree",{"$f":"Plantlist!$G173*'Production list'!D174*'Other input expert'!B$4*'Other input expert'!B$8","v":0},{"$f":"Plantlist!$G173*'Production list'!E174*'Other input expert'!C$4*'Other input expert'!C$8","v":0},{"$f":"Plantlist!$G173*'Production list'!F174*'Other input expert'!D$4*'Other input expert'!D$8","v":0},{"$f":"Plantlist!$G173*'Production list'!G174*'Other input expert'!E$4*'Other input expert'!E$8","v":0},{"$f":"Plantlist!$G173*'Production list'!H174*'Other input expert'!F$4*'Other input expert'!F$8","v":0},{"$f":"Plantlist!$G173*'Production list'!I174*'Other input expert'!G$4*'Other input expert'!G$8","v":0},{"$f":"Plantlist!$G173*'Production list'!J174*'Other input expert'!H$4*'Other input expert'!H$8","v":0},{"$f":"Plantlist!$G173*'Production list'!K174*'Other input expert'!I$4*'Other input expert'!I$8","v":0},{"$f":"Plantlist!$G173*'Production list'!L174*'Other input expert'!J$4*'Other input expert'!J$8","v":0},{"$f":"Plantlist!$G173*'Production list'!M174*'Other input expert'!K$4*'Other input expert'!K$8","v":0},{"$f":"Plantlist!$G173*'Production list'!N174*'Other input expert'!L$4*'Other input expert'!L$8","v":0},{"$f":"Plantlist!$G173*'Production list'!O174*'Other input expert'!M$4*'Other input expert'!M$8","v":0},null,{"$f":"C173*'Other input expert'!B$5","v":0},{"$f":"D173*'Other input expert'!C$5","v":0},{"$f":"E173*'Other input expert'!D$5","v":0},{"$f":"F173*'Other input expert'!E$5","v":0},{"$f":"G173*'Other input expert'!F$5","v":0},{"$f":"H173*'Other input expert'!G$5","v":0},{"$f":"I173*'Other input expert'!H$5","v":0},{"$f":"J173*'Other input expert'!I$5","v":0},{"$f":"K173*'Other input expert'!J$5","v":0},{"$f":"L173*'Other input expert'!K$5","v":0},{"$f":"M173*'Other input expert'!L$5","v":0},{"$f":"N173*'Other input expert'!M$5","v":0},null,{"$f":"C173*(100%-'Other input expert'!B$5)","v":0},{"$f":"D173*(100%-'Other input expert'!C$5)","v":0},{"$f":"E173*(100%-'Other input expert'!D$5)","v":0},{"$f":"F173*(100%-'Other input expert'!E$5)","v":0},{"$f":"G173*(100%-'Other input expert'!F$5)","v":0},{"$f":"H173*(100%-'Other input expert'!G$5)","v":0},{"$f":"I173*(100%-'Other input expert'!H$5)","v":0},{"$f":"J173*(100%-'Other input expert'!I$5)","v":0},{"$f":"K173*(100%-'Other input expert'!J$5)","v":0},{"$f":"L173*(100%-'Other input expert'!K$5)","v":0},{"$f":"M173*(100%-'Other input expert'!L$5)","v":0},{"$f":"N173*(100%-'Other input expert'!M$5)","v":0},null,{"$f":"P173*'Other input expert'!B$12*'Sales price per sales channel'!$G173*'Other input expert'!B$6","v":0},{"$f":"Q173*'Other input expert'!C$12*'Sales price per sales channel'!$G173*'Other input expert'!C$6","v":0},{"$f":"R173*'Other input expert'!D$12*'Sales price per sales channel'!$G173*'Other input expert'!D$6","v":0},{"$f":"S173*'Other input expert'!E$12*'Sales price per sales channel'!$G173*'Other input expert'!E$6","v":0},{"$f":"T173*'Other input expert'!F$12*'Sales price per sales channel'!$G173*'Other input expert'!F$6","v":0},{"$f":"U173*'Other input expert'!G$12*'Sales price per sales channel'!$G173*'Other input expert'!G$6","v":0},{"$f":"V173*'Other input expert'!H$12*'Sales price per sales channel'!$G173*'Other input expert'!H$6","v":0},{"$f":"W173*'Other input expert'!I$12*'Sales price per sales channel'!$G173*'Other input expert'!I$6","v":0},{"$f":"X173*'Other input expert'!J$12*'Sales price per sales channel'!$G173*'Other input expert'!J$6","v":0},{"$f":"Y173*'Other input expert'!K$12*'Sales price per sales channel'!$G173*'Other input expert'!K$6","v":0},{"$f":"Z173*'Other input expert'!L$12*'Sales price per sales channel'!$G173*'Other input expert'!L$6","v":0},{"$f":"AA173*'Other input expert'!M$12*'Sales price per sales channel'!$G173*'Other input expert'!M$6","v":0},null,{"$f":"P173*'Other input expert'!B$13*'Sales price per sales channel'!$H173*'Other input expert'!B$6","v":0},{"$f":"Q173*'Other input expert'!C$13*'Sales price per sales channel'!$H173*'Other input expert'!C$6","v":0},{"$f":"R173*'Other input expert'!D$13*'Sales price per sales channel'!$H173*'Other input expert'!D$6","v":0},{"$f":"S173*'Other input expert'!E$13*'Sales price per sales channel'!$H173*'Other input expert'!E$6","v":0},{"$f":"T173*'Other input expert'!F$13*'Sales price per sales channel'!$H173*'Other input expert'!F$6","v":0},{"$f":"U173*'Other input expert'!G$13*'Sales price per sales channel'!$H173*'Other input expert'!G$6","v":0},{"$f":"V173*'Other input expert'!H$13*'Sales price per sales channel'!$H173*'Other input expert'!H$6","v":0},{"$f":"W173*'Other input expert'!I$13*'Sales price per sales channel'!$H173*'Other input expert'!I$6","v":0},{"$f":"X173*'Other input expert'!J$13*'Sales price per sales channel'!$H173*'Other input expert'!J$6","v":0},{"$f":"Y173*'Other input expert'!K$13*'Sales price per sales channel'!$H173*'Other input expert'!K$6","v":0},{"$f":"Z173*'Other input expert'!L$13*'Sales price per sales channel'!$H173*'Other input expert'!L$6","v":0},{"$f":"AA173*'Other input expert'!M$13*'Sales price per sales channel'!$H173*'Other input expert'!M$6","v":0},null,{"$f":"P173*'Other input expert'!B$14*'Sales price per sales channel'!$I173*'Other input expert'!B$6","v":0},{"$f":"Q173*'Other input expert'!C$14*'Sales price per sales channel'!$I173*'Other input expert'!C$6","v":0},{"$f":"R173*'Other input expert'!D$14*'Sales price per sales channel'!$I173*'Other input expert'!D$6","v":0},{"$f":"S173*'Other input expert'!E$14*'Sales price per sales channel'!$I173*'Other input expert'!E$6","v":0},{"$f":"T173*'Other input expert'!F$14*'Sales price per sales channel'!$I173*'Other input expert'!F$6","v":0},{"$f":"U173*'Other input expert'!G$14*'Sales price per sales channel'!$I173*'Other input expert'!G$6","v":0},{"$f":"V173*'Other input expert'!H$14*'Sales price per sales channel'!$I173*'Other input expert'!H$6","v":0},{"$f":"W173*'Other input expert'!I$14*'Sales price per sales channel'!$I173*'Other input expert'!I$6","v":0},{"$f":"X173*'Other input expert'!J$14*'Sales price per sales channel'!$I173*'Other input expert'!J$6","v":0},{"$f":"Y173*'Other input expert'!K$14*'Sales price per sales channel'!$I173*'Other input expert'!K$6","v":0},{"$f":"Z173*'Other input expert'!L$14*'Sales price per sales channel'!$I173*'Other input expert'!L$6","v":0},{"$f":"AA173*'Other input expert'!M$14*'Sales price per sales channel'!$I173*'Other input expert'!M$6","v":0},null,{"$f":"AC173*'Other input expert'!B$12*'Sales price per sales channel'!$G173*'Other input expert'!B$7","v":0},{"$f":"AD173*'Other input expert'!C$12*'Sales price per sales channel'!$G173*'Other input expert'!C$7","v":0},{"$f":"AE173*'Other input expert'!D$12*'Sales price per sales channel'!$G173*'Other input expert'!D$7","v":0},{"$f":"AF173*'Other input expert'!E$12*'Sales price per sales channel'!$G173*'Other input expert'!E$7","v":0},{"$f":"AG173*'Other input expert'!F$12*'Sales price per sales channel'!$G173*'Other input expert'!F$7","v":0},{"$f":"AH173*'Other input expert'!G$12*'Sales price per sales channel'!$G173*'Other input expert'!G$7","v":0},{"$f":"AI173*'Other input expert'!H$12*'Sales price per sales channel'!$G173*'Other input expert'!H$7","v":0},{"$f":"AJ173*'Other input expert'!I$12*'Sales price per sales channel'!$G173*'Other input expert'!I$7","v":0},{"$f":"AK173*'Other input expert'!J$12*'Sales price per sales channel'!$G173*'Other input expert'!J$7","v":0},{"$f":"AL173*'Other input expert'!K$12*'Sales price per sales channel'!$G173*'Other input expert'!K$7","v":0},{"$f":"AM173*'Other input expert'!L$12*'Sales price per sales channel'!$G173*'Other input expert'!L$7","v":0},{"$f":"AN173*'Other input expert'!M$12*'Sales price per sales channel'!$G173*'Other input expert'!M$7","v":0},null,{"$f":"AC173*'Other input expert'!B$13*'Sales price per sales channel'!$H173*'Other input expert'!B$7","v":0},{"$f":"AD173*'Other input expert'!C$13*'Sales price per sales channel'!$H173*'Other input expert'!C$7","v":0},{"$f":"AE173*'Other input expert'!D$13*'Sales price per sales channel'!$H173*'Other input expert'!D$7","v":0},{"$f":"AF173*'Other input expert'!E$13*'Sales price per sales channel'!$H173*'Other input expert'!E$7","v":0},{"$f":"AG173*'Other input expert'!F$13*'Sales price per sales channel'!$H173*'Other input expert'!F$7","v":0},{"$f":"AH173*'Other input expert'!G$13*'Sales price per sales channel'!$H173*'Other input expert'!G$7","v":0},{"$f":"AI173*'Other input expert'!H$13*'Sales price per sales channel'!$H173*'Other input expert'!H$7","v":0},{"$f":"AJ173*'Other input expert'!I$13*'Sales price per sales channel'!$H173*'Other input expert'!I$7","v":0},{"$f":"AK173*'Other input expert'!J$13*'Sales price per sales channel'!$H173*'Other input expert'!J$7","v":0},{"$f":"AL173*'Other input expert'!K$13*'Sales price per sales channel'!$H173*'Other input expert'!K$7","v":0},{"$f":"AM173*'Other input expert'!L$13*'Sales price per sales channel'!$H173*'Other input expert'!L$7","v":0},{"$f":"AN173*'Other input expert'!M$13*'Sales price per sales channel'!$H173*'Other input expert'!M$7","v":0},null,{"$f":"AC173*'Other input expert'!B$14*'Sales price per sales channel'!$I173*'Other input expert'!B$7","v":0},{"$f":"AD173*'Other input expert'!C$14*'Sales price per sales channel'!$I173*'Other input expert'!C$7","v":0},{"$f":"AE173*'Other input expert'!D$14*'Sales price per sales channel'!$I173*'Other input expert'!D$7","v":0},{"$f":"AF173*'Other input expert'!E$14*'Sales price per sales channel'!$I173*'Other input expert'!E$7","v":0},{"$f":"AG173*'Other input expert'!F$14*'Sales price per sales channel'!$I173*'Other input expert'!F$7","v":0},{"$f":"AH173*'Other input expert'!G$14*'Sales price per sales channel'!$I173*'Other input expert'!G$7","v":0},{"$f":"AI173*'Other input expert'!H$14*'Sales price per sales channel'!$I173*'Other input expert'!H$7","v":0},{"$f":"AJ173*'Other input expert'!I$14*'Sales price per sales channel'!$I173*'Other input expert'!I$7","v":0},{"$f":"AK173*'Other input expert'!J$14*'Sales price per sales channel'!$I173*'Other input expert'!J$7","v":0},{"$f":"AL173*'Other input expert'!K$14*'Sales price per sales channel'!$I173*'Other input expert'!K$7","v":0},{"$f":"AM173*'Other input expert'!L$14*'Sales price per sales channel'!$I173*'Other input expert'!L$7","v":0},{"$f":"AN173*'Other input expert'!M$14*'Sales price per sales channel'!$I173*'Other input expert'!M$7","v":0}]
["Staphylea pinnata","Bladder nut",{"$f":"Plantlist!$G174*'Production list'!D175*'Other input expert'!B$4*'Other input expert'!B$8","v":0},{"$f":"Plantlist!$G174*'Production list'!E175*'Other input expert'!C$4*'Other input expert'!C$8","v":0},{"$f":"Plantlist!$G174*'Production list'!F175*'Other input expert'!D$4*'Other input expert'!D$8","v":0},{"$f":"Plantlist!$G174*'Production list'!G175*'Other input expert'!E$4*'Other input expert'!E$8","v":0},{"$f":"Plantlist!$G174*'Production list'!H175*'Other input expert'!F$4*'Other input expert'!F$8","v":0},{"$f":"Plantlist!$G174*'Production list'!I175*'Other input expert'!G$4*'Other input expert'!G$8","v":0},{"$f":"Plantlist!$G174*'Production list'!J175*'Other input expert'!H$4*'Other input expert'!H$8","v":0},{"$f":"Plantlist!$G174*'Production list'!K175*'Other input expert'!I$4*'Other input expert'!I$8","v":0},{"$f":"Plantlist!$G174*'Production list'!L175*'Other input expert'!J$4*'Other input expert'!J$8","v":0},{"$f":"Plantlist!$G174*'Production list'!M175*'Other input expert'!K$4*'Other input expert'!K$8","v":0},{"$f":"Plantlist!$G174*'Production list'!N175*'Other input expert'!L$4*'Other input expert'!L$8","v":0},{"$f":"Plantlist!$G174*'Production list'!O175*'Other input expert'!M$4*'Other input expert'!M$8","v":0},null,{"$f":"C174*'Other input expert'!B$5","v":0},{"$f":"D174*'Other input expert'!C$5","v":0},{"$f":"E174*'Other input expert'!D$5","v":0},{"$f":"F174*'Other input expert'!E$5","v":0},{"$f":"G174*'Other input expert'!F$5","v":0},{"$f":"H174*'Other input expert'!G$5","v":0},{"$f":"I174*'Other input expert'!H$5","v":0},{"$f":"J174*'Other input expert'!I$5","v":0},{"$f":"K174*'Other input expert'!J$5","v":0},{"$f":"L174*'Other input expert'!K$5","v":0},{"$f":"M174*'Other input expert'!L$5","v":0},{"$f":"N174*'Other input expert'!M$5","v":0},null,{"$f":"C174*(100%-'Other input expert'!B$5)","v":0},{"$f":"D174*(100%-'Other input expert'!C$5)","v":0},{"$f":"E174*(100%-'Other input expert'!D$5)","v":0},{"$f":"F174*(100%-'Other input expert'!E$5)","v":0},{"$f":"G174*(100%-'Other input expert'!F$5)","v":0},{"$f":"H174*(100%-'Other input expert'!G$5)","v":0},{"$f":"I174*(100%-'Other input expert'!H$5)","v":0},{"$f":"J174*(100%-'Other input expert'!I$5)","v":0},{"$f":"K174*(100%-'Other input expert'!J$5)","v":0},{"$f":"L174*(100%-'Other input expert'!K$5)","v":0},{"$f":"M174*(100%-'Other input expert'!L$5)","v":0},{"$f":"N174*(100%-'Other input expert'!M$5)","v":0},null,{"$f":"P174*'Other input expert'!B$12*'Sales price per sales channel'!$G174*'Other input expert'!B$6","v":0},{"$f":"Q174*'Other input expert'!C$12*'Sales price per sales channel'!$G174*'Other input expert'!C$6","v":0},{"$f":"R174*'Other input expert'!D$12*'Sales price per sales channel'!$G174*'Other input expert'!D$6","v":0},{"$f":"S174*'Other input expert'!E$12*'Sales price per sales channel'!$G174*'Other input expert'!E$6","v":0},{"$f":"T174*'Other input expert'!F$12*'Sales price per sales channel'!$G174*'Other input expert'!F$6","v":0},{"$f":"U174*'Other input expert'!G$12*'Sales price per sales channel'!$G174*'Other input expert'!G$6","v":0},{"$f":"V174*'Other input expert'!H$12*'Sales price per sales channel'!$G174*'Other input expert'!H$6","v":0},{"$f":"W174*'Other input expert'!I$12*'Sales price per sales channel'!$G174*'Other input expert'!I$6","v":0},{"$f":"X174*'Other input expert'!J$12*'Sales price per sales channel'!$G174*'Other input expert'!J$6","v":0},{"$f":"Y174*'Other input expert'!K$12*'Sales price per sales channel'!$G174*'Other input expert'!K$6","v":0},{"$f":"Z174*'Other input expert'!L$12*'Sales price per sales channel'!$G174*'Other input expert'!L$6","v":0},{"$f":"AA174*'Other input expert'!M$12*'Sales price per sales channel'!$G174*'Other input expert'!M$6","v":0},null,{"$f":"P174*'Other input expert'!B$13*'Sales price per sales channel'!$H174*'Other input expert'!B$6","v":0},{"$f":"Q174*'Other input expert'!C$13*'Sales price per sales channel'!$H174*'Other input expert'!C$6","v":0},{"$f":"R174*'Other input expert'!D$13*'Sales price per sales channel'!$H174*'Other input expert'!D$6","v":0},{"$f":"S174*'Other input expert'!E$13*'Sales price per sales channel'!$H174*'Other input expert'!E$6","v":0},{"$f":"T174*'Other input expert'!F$13*'Sales price per sales channel'!$H174*'Other input expert'!F$6","v":0},{"$f":"U174*'Other input expert'!G$13*'Sales price per sales channel'!$H174*'Other input expert'!G$6","v":0},{"$f":"V174*'Other input expert'!H$13*'Sales price per sales channel'!$H174*'Other input expert'!H$6","v":0},{"$f":"W174*'Other input expert'!I$13*'Sales price per sales channel'!$H174*'Other input expert'!I$6","v":0},{"$f":"X174*'Other input expert'!J$13*'Sales price per sales channel'!$H174*'Other input expert'!J$6","v":0},{"$f":"Y174*'Other input expert'!K$13*'Sales price per sales channel'!$H174*'Other input expert'!K$6","v":0},{"$f":"Z174*'Other input expert'!L$13*'Sales price per sales channel'!$H174*'Other input expert'!L$6","v":0},{"$f":"AA174*'Other input expert'!M$13*'Sales price per sales channel'!$H174*'Other input expert'!M$6","v":0},null,{"$f":"P174*'Other input expert'!B$14*'Sales price per sales channel'!$I174*'Other input expert'!B$6","v":0},{"$f":"Q174*'Other input expert'!C$14*'Sales price per sales channel'!$I174*'Other input expert'!C$6","v":0},{"$f":"R174*'Other input expert'!D$14*'Sales price per sales channel'!$I174*'Other input expert'!D$6","v":0},{"$f":"S174*'Other input expert'!E$14*'Sales price per sales channel'!$I174*'Other input expert'!E$6","v":0},{"$f":"T174*'Other input expert'!F$14*'Sales price per sales channel'!$I174*'Other input expert'!F$6","v":0},{"$f":"U174*'Other input expert'!G$14*'Sales price per sales channel'!$I174*'Other input expert'!G$6","v":0},{"$f":"V174*'Other input expert'!H$14*'Sales price per sales channel'!$I174*'Other input expert'!H$6","v":0},{"$f":"W174*'Other input expert'!I$14*'Sales price per sales channel'!$I174*'Other input expert'!I$6","v":0},{"$f":"X174*'Other input expert'!J$14*'Sales price per sales channel'!$I174*'Other input expert'!J$6","v":0},{"$f":"Y174*'Other input expert'!K$14*'Sales price per sales channel'!$I174*'Other input expert'!K$6","v":0},{"$f":"Z174*'Other input expert'!L$14*'Sales price per sales channel'!$I174*'Other input expert'!L$6","v":0},{"$f":"AA174*'Other input expert'!M$14*'Sales price per sales channel'!$I174*'Other input expert'!M$6","v":0},null,{"$f":"AC174*'Other input expert'!B$12*'Sales price per sales channel'!$G174*'Other input expert'!B$7","v":0},{"$f":"AD174*'Other input expert'!C$12*'Sales price per sales channel'!$G174*'Other input expert'!C$7","v":0},{"$f":"AE174*'Other input expert'!D$12*'Sales price per sales channel'!$G174*'Other input expert'!D$7","v":0},{"$f":"AF174*'Other input expert'!E$12*'Sales price per sales channel'!$G174*'Other input expert'!E$7","v":0},{"$f":"AG174*'Other input expert'!F$12*'Sales price per sales channel'!$G174*'Other input expert'!F$7","v":0},{"$f":"AH174*'Other input expert'!G$12*'Sales price per sales channel'!$G174*'Other input expert'!G$7","v":0},{"$f":"AI174*'Other input expert'!H$12*'Sales price per sales channel'!$G174*'Other input expert'!H$7","v":0},{"$f":"AJ174*'Other input expert'!I$12*'Sales price per sales channel'!$G174*'Other input expert'!I$7","v":0},{"$f":"AK174*'Other input expert'!J$12*'Sales price per sales channel'!$G174*'Other input expert'!J$7","v":0},{"$f":"AL174*'Other input expert'!K$12*'Sales price per sales channel'!$G174*'Other input expert'!K$7","v":0},{"$f":"AM174*'Other input expert'!L$12*'Sales price per sales channel'!$G174*'Other input expert'!L$7","v":0},{"$f":"AN174*'Other input expert'!M$12*'Sales price per sales channel'!$G174*'Other input expert'!M$7","v":0},null,{"$f":"AC174*'Other input expert'!B$13*'Sales price per sales channel'!$H174*'Other input expert'!B$7","v":0},{"$f":"AD174*'Other input expert'!C$13*'Sales price per sales channel'!$H174*'Other input expert'!C$7","v":0},{"$f":"AE174*'Other input expert'!D$13*'Sales price per sales channel'!$H174*'Other input expert'!D$7","v":0},{"$f":"AF174*'Other input expert'!E$13*'Sales price per sales channel'!$H174*'Other input expert'!E$7","v":0},{"$f":"AG174*'Other input expert'!F$13*'Sales price per sales channel'!$H174*'Other input expert'!F$7","v":0},{"$f":"AH174*'Other input expert'!G$13*'Sales price per sales channel'!$H174*'Other input expert'!G$7","v":0},{"$f":"AI174*'Other input expert'!H$13*'Sales price per sales channel'!$H174*'Other input expert'!H$7","v":0},{"$f":"AJ174*'Other input expert'!I$13*'Sales price per sales channel'!$H174*'Other input expert'!I$7","v":0},{"$f":"AK174*'Other input expert'!J$13*'Sales price per sales channel'!$H174*'Other input expert'!J$7","v":0},{"$f":"AL174*'Other input expert'!K$13*'Sales price per sales channel'!$H174*'Other input expert'!K$7","v":0},{"$f":"AM174*'Other input expert'!L$13*'Sales price per sales channel'!$H174*'Other input expert'!L$7","v":0},{"$f":"AN174*'Other input expert'!M$13*'Sales price per sales channel'!$H174*'Other input expert'!M$7","v":0},null,{"$f":"AC174*'Other input expert'!B$14*'Sales price per sales channel'!$I174*'Other input expert'!B$7","v":0},{"$f":"AD174*'Other input expert'!C$14*'Sales price per sales channel'!$I174*'Other input expert'!C$7","v":0},{"$f":"AE174*'Other input expert'!D$14*'Sales price per sales channel'!$I174*'Other input expert'!D$7","v":0},{"$f":"AF174*'Other input expert'!E$14*'Sales price per sales channel'!$I174*'Other input expert'!E$7","v":0},{"$f":"AG174*'Other input expert'!F$14*'Sales price per sales channel'!$I174*'Other input expert'!F$7","v":0},{"$f":"AH174*'Other input expert'!G$14*'Sales price per sales channel'!$I174*'Other input expert'!G$7","v":0},{"$f":"AI174*'Other input expert'!H$14*'Sales price per sales channel'!$I174*'Other input expert'!H$7","v":0},{"$f":"AJ174*'Other input expert'!I$14*'Sales price per sales channel'!$I174*'Other input expert'!I$7","v":0},{"$f":"AK174*'Other input expert'!J$14*'Sales price per sales channel'!$I174*'Other input expert'!J$7","v":0},{"$f":"AL174*'Other input expert'!K$14*'Sales price per sales channel'!$I174*'Other input expert'!K$7","v":0},{"$f":"AM174*'Other input expert'!L$14*'Sales price per sales channel'!$I174*'Other input expert'!L$7","v":0},{"$f":"AN174*'Other input expert'!M$14*'Sales price per sales channel'!$I174*'Other input expert'!M$7","v":0}]
["Symphytum officinale","Comfrey",{"$f":"Plantlist!$G175*'Production list'!D176*'Other input expert'!B$4*'Other input expert'!B$8","v":0},{"$f":"Plantlist!$G175*'Production list'!E176*'Other input expert'!C$4*'Other input expert'!C$8","v":0},{"$f":"Plantlist!$G175*'Production list'!F176*'Other input expert'!D$4*'Other input expert'!D$8","v":0},{"$f":"Plantlist!$G175*'Production list'!G176*'Other input expert'!E$4*'Other input expert'!E$8","v":0},{"$f":"Plantlist!$G175*'Production list'!H176*'Other input expert'!F$4*'Other input expert'!F$8","v":0},{"$f":"Plantlist!$G175*'Production list'!I176*'Other input expert'!G$4*'Other input expert'!G$8","v":0},{"$f":"Plantlist!$G175*'Production list'!J176*'Other input expert'!H$4*'Other input expert'!H$8","v":0},{"$f":"Plantlist!$G175*'Production list'!K176*'Other input expert'!I$4*'Other input expert'!I$8","v":0},{"$f":"Plantlist!$G175*'Production list'!L176*'Other input expert'!J$4*'Other input expert'!J$8","v":0},{"$f":"Plantlist!$G175*'Production list'!M176*'Other input expert'!K$4*'Other input expert'!K$8","v":0},{"$f":"Plantlist!$G175*'Production list'!N176*'Other input expert'!L$4*'Other input expert'!L$8","v":0},{"$f":"Plantlist!$G175*'Production list'!O176*'Other input expert'!M$4*'Other input expert'!M$8","v":0},null,{"$f":"C175*'Other input expert'!B$5","v":0},{"$f":"D175*'Other input expert'!C$5","v":0},{"$f":"E175*'Other input expert'!D$5","v":0},{"$f":"F175*'Other input expert'!E$5","v":0},{"$f":"G175*'Other input expert'!F$5","v":0},{"$f":"H175*'Other input expert'!G$5","v":0},{"$f":"I175*'Other input expert'!H$5","v":0},{"$f":"J175*'Other input expert'!I$5","v":0},{"$f":"K175*'Other input expert'!J$5","v":0},{"$f":"L175*'Other input expert'!K$5","v":0},{"$f":"M175*'Other input expert'!L$5","v":0},{"$f":"N175*'Other input expert'!M$5","v":0},null,{"$f":"C175*(100%-'Other input expert'!B$5)","v":0},{"$f":"D175*(100%-'Other input expert'!C$5)","v":0},{"$f":"E175*(100%-'Other input expert'!D$5)","v":0},{"$f":"F175*(100%-'Other input expert'!E$5)","v":0},{"$f":"G175*(100%-'Other input expert'!F$5)","v":0},{"$f":"H175*(100%-'Other input expert'!G$5)","v":0},{"$f":"I175*(100%-'Other input expert'!H$5)","v":0},{"$f":"J175*(100%-'Other input expert'!I$5)","v":0},{"$f":"K175*(100%-'Other input expert'!J$5)","v":0},{"$f":"L175*(100%-'Other input expert'!K$5)","v":0},{"$f":"M175*(100%-'Other input expert'!L$5)","v":0},{"$f":"N175*(100%-'Other input expert'!M$5)","v":0},null,{"$f":"P175*'Other input expert'!B$12*'Sales price per sales channel'!$G175*'Other input expert'!B$6","v":0},{"$f":"Q175*'Other input expert'!C$12*'Sales price per sales channel'!$G175*'Other input expert'!C$6","v":0},{"$f":"R175*'Other input expert'!D$12*'Sales price per sales channel'!$G175*'Other input expert'!D$6","v":0},{"$f":"S175*'Other input expert'!E$12*'Sales price per sales channel'!$G175*'Other input expert'!E$6","v":0},{"$f":"T175*'Other input expert'!F$12*'Sales price per sales channel'!$G175*'Other input expert'!F$6","v":0},{"$f":"U175*'Other input expert'!G$12*'Sales price per sales channel'!$G175*'Other input expert'!G$6","v":0},{"$f":"V175*'Other input expert'!H$12*'Sales price per sales channel'!$G175*'Other input expert'!H$6","v":0},{"$f":"W175*'Other input expert'!I$12*'Sales price per sales channel'!$G175*'Other input expert'!I$6","v":0},{"$f":"X175*'Other input expert'!J$12*'Sales price per sales channel'!$G175*'Other input expert'!J$6","v":0},{"$f":"Y175*'Other input expert'!K$12*'Sales price per sales channel'!$G175*'Other input expert'!K$6","v":0},{"$f":"Z175*'Other input expert'!L$12*'Sales price per sales channel'!$G175*'Other input expert'!L$6","v":0},{"$f":"AA175*'Other input expert'!M$12*'Sales price per sales channel'!$G175*'Other input expert'!M$6","v":0},null,{"$f":"P175*'Other input expert'!B$13*'Sales price per sales channel'!$H175*'Other input expert'!B$6","v":0},{"$f":"Q175*'Other input expert'!C$13*'Sales price per sales channel'!$H175*'Other input expert'!C$6","v":0},{"$f":"R175*'Other input expert'!D$13*'Sales price per sales channel'!$H175*'Other input expert'!D$6","v":0},{"$f":"S175*'Other input expert'!E$13*'Sales price per sales channel'!$H175*'Other input expert'!E$6","v":0},{"$f":"T175*'Other input expert'!F$13*'Sales price per sales channel'!$H175*'Other input expert'!F$6","v":0},{"$f":"U175*'Other input expert'!G$13*'Sales price per sales channel'!$H175*'Other input expert'!G$6","v":0},{"$f":"V175*'Other input expert'!H$13*'Sales price per sales channel'!$H175*'Other input expert'!H$6","v":0},{"$f":"W175*'Other input expert'!I$13*'Sales price per sales channel'!$H175*'Other input expert'!I$6","v":0},{"$f":"X175*'Other input expert'!J$13*'Sales price per sales channel'!$H175*'Other input expert'!J$6","v":0},{"$f":"Y175*'Other input expert'!K$13*'Sales price per sales channel'!$H175*'Other input expert'!K$6","v":0},{"$f":"Z175*'Other input expert'!L$13*'Sales price per sales channel'!$H175*'Other input expert'!L$6","v":0},{"$f":"AA175*'Other input expert'!M$13*'Sales price per sales channel'!$H175*'Other input expert'!M$6","v":0},null,{"$f":"P175*'Other input expert'!B$14*'Sales price per sales channel'!$I175*'Other input expert'!B$6","v":0},{"$f":"Q175*'Other input expert'!C$14*'Sales price per sales channel'!$I175*'Other input expert'!C$6","v":0},{"$f":"R175*'Other input expert'!D$14*'Sales price per sales channel'!$I175*'Other input expert'!D$6","v":0},{"$f":"S175*'Other input expert'!E$14*'Sales price per sales channel'!$I175*'Other input expert'!E$6","v":0},{"$f":"T175*'Other input expert'!F$14*'Sales price per sales channel'!$I175*'Other input expert'!F$6","v":0},{"$f":"U175*'Other input expert'!G$14*'Sales price per sales channel'!$I175*'Other input expert'!G$6","v":0},{"$f":"V175*'Other input expert'!H$14*'Sales price per sales channel'!$I175*'Other input expert'!H$6","v":0},{"$f":"W175*'Other input expert'!I$14*'Sales price per sales channel'!$I175*'Other input expert'!I$6","v":0},{"$f":"X175*'Other input expert'!J$14*'Sales price per sales channel'!$I175*'Other input expert'!J$6","v":0},{"$f":"Y175*'Other input expert'!K$14*'Sales price per sales channel'!$I175*'Other input expert'!K$6","v":0},{"$f":"Z175*'Other input expert'!L$14*'Sales price per sales channel'!$I175*'Other input expert'!L$6","v":0},{"$f":"AA175*'Other input expert'!M$14*'Sales price per sales channel'!$I175*'Other input expert'!M$6","v":0},null,{"$f":"AC175*'Other input expert'!B$12*'Sales price per sales channel'!$G175*'Other input expert'!B$7","v":0},{"$f":"AD175*'Other input expert'!C$12*'Sales price per sales channel'!$G175*'Other input expert'!C$7","v":0},{"$f":"AE175*'Other input expert'!D$12*'Sales price per sales channel'!$G175*'Other input expert'!D$7","v":0},{"$f":"AF175*'Other input expert'!E$12*'Sales price per sales channel'!$G175*'Other input expert'!E$7","v":0},{"$f":"AG175*'Other input expert'!F$12*'Sales price per sales channel'!$G175*'Other input expert'!F$7","v":0},{"$f":"AH175*'Other input expert'!G$12*'Sales price per sales channel'!$G175*'Other input expert'!G$7","v":0},{"$f":"AI175*'Other input expert'!H$12*'Sales price per sales channel'!$G175*'Other input expert'!H$7","v":0},{"$f":"AJ175*'Other input expert'!I$12*'Sales price per sales channel'!$G175*'Other input expert'!I$7","v":0},{"$f":"AK175*'Other input expert'!J$12*'Sales price per sales channel'!$G175*'Other input expert'!J$7","v":0},{"$f":"AL175*'Other input expert'!K$12*'Sales price per sales channel'!$G175*'Other input expert'!K$7","v":0},{"$f":"AM175*'Other input expert'!L$12*'Sales price per sales channel'!$G175*'Other input expert'!L$7","v":0},{"$f":"AN175*'Other input expert'!M$12*'Sales price per sales channel'!$G175*'Other input expert'!M$7","v":0},null,{"$f":"AC175*'Other input expert'!B$13*'Sales price per sales channel'!$H175*'Other input expert'!B$7","v":0},{"$f":"AD175*'Other input expert'!C$13*'Sales price per sales channel'!$H175*'Other input expert'!C$7","v":0},{"$f":"AE175*'Other input expert'!D$13*'Sales price per sales channel'!$H175*'Other input expert'!D$7","v":0},{"$f":"AF175*'Other input expert'!E$13*'Sales price per sales channel'!$H175*'Other input expert'!E$7","v":0},{"$f":"AG175*'Other input expert'!F$13*'Sales price per sales channel'!$H175*'Other input expert'!F$7","v":0},{"$f":"AH175*'Other input expert'!G$13*'Sales price per sales channel'!$H175*'Other input expert'!G$7","v":0},{"$f":"AI175*'Other input expert'!H$13*'Sales price per sales channel'!$H175*'Other input expert'!H$7","v":0},{"$f":"AJ175*'Other input expert'!I$13*'Sales price per sales channel'!$H175*'Other input expert'!I$7","v":0},{"$f":"AK175*'Other input expert'!J$13*'Sales price per sales channel'!$H175*'Other input expert'!J$7","v":0},{"$f":"AL175*'Other input expert'!K$13*'Sales price per sales channel'!$H175*'Other input expert'!K$7","v":0},{"$f":"AM175*'Other input expert'!L$13*'Sales price per sales channel'!$H175*'Other input expert'!L$7","v":0},{"$f":"AN175*'Other input expert'!M$13*'Sales price per sales channel'!$H175*'Other input expert'!M$7","v":0},null,{"$f":"AC175*'Other input expert'!B$14*'Sales price per sales channel'!$I175*'Other input expert'!B$7","v":0},{"$f":"AD175*'Other input expert'!C$14*'Sales price per sales channel'!$I175*'Other input expert'!C$7","v":0},{"$f":"AE175*'Other input expert'!D$14*'Sales price per sales channel'!$I175*'Other input expert'!D$7","v":0},{"$f":"AF175*'Other input expert'!E$14*'Sales price per sales channel'!$I175*'Other input expert'!E$7","v":0},{"$f":"AG175*'Other input expert'!F$14*'Sales price per sales channel'!$I175*'Other input expert'!F$7","v":0},{"$f":"AH175*'Other input expert'!G$14*'Sales price per sales channel'!$I175*'Other input expert'!G$7","v":0},{"$f":"AI175*'Other input expert'!H$14*'Sales price per sales channel'!$I175*'Other input expert'!H$7","v":0},{"$f":"AJ175*'Other input expert'!I$14*'Sales price per sales channel'!$I175*'Other input expert'!I$7","v":0},{"$f":"AK175*'Other input expert'!J$14*'Sales price per sales channel'!$I175*'Other input expert'!J$7","v":0},{"$f":"AL175*'Other input expert'!K$14*'Sales price per sales channel'!$I175*'Other input expert'!K$7","v":0},{"$f":"AM175*'Other input expert'!L$14*'Sales price per sales channel'!$I175*'Other input expert'!L$7","v":0},{"$f":"AN175*'Other input expert'!M$14*'Sales price per sales channel'!$I175*'Other input expert'!M$7","v":0}]
["Tanacetum balsamita","Alecost",{"$f":"Plantlist!$G176*'Production list'!D177*'Other input expert'!B$4*'Other input expert'!B$8","v":0},{"$f":"Plantlist!$G176*'Production list'!E177*'Other input expert'!C$4*'Other input expert'!C$8","v":0},{"$f":"Plantlist!$G176*'Production list'!F177*'Other input expert'!D$4*'Other input expert'!D$8","v":0},{"$f":"Plantlist!$G176*'Production list'!G177*'Other input expert'!E$4*'Other input expert'!E$8","v":0},{"$f":"Plantlist!$G176*'Production list'!H177*'Other input expert'!F$4*'Other input expert'!F$8","v":0},{"$f":"Plantlist!$G176*'Production list'!I177*'Other input expert'!G$4*'Other input expert'!G$8","v":0},{"$f":"Plantlist!$G176*'Production list'!J177*'Other input expert'!H$4*'Other input expert'!H$8","v":0},{"$f":"Plantlist!$G176*'Production list'!K177*'Other input expert'!I$4*'Other input expert'!I$8","v":0},{"$f":"Plantlist!$G176*'Production list'!L177*'Other input expert'!J$4*'Other input expert'!J$8","v":0},{"$f":"Plantlist!$G176*'Production list'!M177*'Other input expert'!K$4*'Other input expert'!K$8","v":0},{"$f":"Plantlist!$G176*'Production list'!N177*'Other input expert'!L$4*'Other input expert'!L$8","v":0},{"$f":"Plantlist!$G176*'Production list'!O177*'Other input expert'!M$4*'Other input expert'!M$8","v":0},null,{"$f":"C176*'Other input expert'!B$5","v":0},{"$f":"D176*'Other input expert'!C$5","v":0},{"$f":"E176*'Other input expert'!D$5","v":0},{"$f":"F176*'Other input expert'!E$5","v":0},{"$f":"G176*'Other input expert'!F$5","v":0},{"$f":"H176*'Other input expert'!G$5","v":0},{"$f":"I176*'Other input expert'!H$5","v":0},{"$f":"J176*'Other input expert'!I$5","v":0},{"$f":"K176*'Other input expert'!J$5","v":0},{"$f":"L176*'Other input expert'!K$5","v":0},{"$f":"M176*'Other input expert'!L$5","v":0},{"$f":"N176*'Other input expert'!M$5","v":0},null,{"$f":"C176*(100%-'Other input expert'!B$5)","v":0},{"$f":"D176*(100%-'Other input expert'!C$5)","v":0},{"$f":"E176*(100%-'Other input expert'!D$5)","v":0},{"$f":"F176*(100%-'Other input expert'!E$5)","v":0},{"$f":"G176*(100%-'Other input expert'!F$5)","v":0},{"$f":"H176*(100%-'Other input expert'!G$5)","v":0},{"$f":"I176*(100%-'Other input expert'!H$5)","v":0},{"$f":"J176*(100%-'Other input expert'!I$5)","v":0},{"$f":"K176*(100%-'Other input expert'!J$5)","v":0},{"$f":"L176*(100%-'Other input expert'!K$5)","v":0},{"$f":"M176*(100%-'Other input expert'!L$5)","v":0},{"$f":"N176*(100%-'Other input expert'!M$5)","v":0},null,{"$f":"P176*'Other input expert'!B$12*'Sales price per sales channel'!$G176*'Other input expert'!B$6","v":0},{"$f":"Q176*'Other input expert'!C$12*'Sales price per sales channel'!$G176*'Other input expert'!C$6","v":0},{"$f":"R176*'Other input expert'!D$12*'Sales price per sales channel'!$G176*'Other input expert'!D$6","v":0},{"$f":"S176*'Other input expert'!E$12*'Sales price per sales channel'!$G176*'Other input expert'!E$6","v":0},{"$f":"T176*'Other input expert'!F$12*'Sales price per sales channel'!$G176*'Other input expert'!F$6","v":0},{"$f":"U176*'Other input expert'!G$12*'Sales price per sales channel'!$G176*'Other input expert'!G$6","v":0},{"$f":"V176*'Other input expert'!H$12*'Sales price per sales channel'!$G176*'Other input expert'!H$6","v":0},{"$f":"W176*'Other input expert'!I$12*'Sales price per sales channel'!$G176*'Other input expert'!I$6","v":0},{"$f":"X176*'Other input expert'!J$12*'Sales price per sales channel'!$G176*'Other input expert'!J$6","v":0},{"$f":"Y176*'Other input expert'!K$12*'Sales price per sales channel'!$G176*'Other input expert'!K$6","v":0},{"$f":"Z176*'Other input expert'!L$12*'Sales price per sales channel'!$G176*'Other input expert'!L$6","v":0},{"$f":"AA176*'Other input expert'!M$12*'Sales price per sales channel'!$G176*'Other input expert'!M$6","v":0},null,{"$f":"P176*'Other input expert'!B$13*'Sales price per sales channel'!$H176*'Other input expert'!B$6","v":0},{"$f":"Q176*'Other input expert'!C$13*'Sales price per sales channel'!$H176*'Other input expert'!C$6","v":0},{"$f":"R176*'Other input expert'!D$13*'Sales price per sales channel'!$H176*'Other input expert'!D$6","v":0},{"$f":"S176*'Other input expert'!E$13*'Sales price per sales channel'!$H176*'Other input expert'!E$6","v":0},{"$f":"T176*'Other input expert'!F$13*'Sales price per sales channel'!$H176*'Other input expert'!F$6","v":0},{"$f":"U176*'Other input expert'!G$13*'Sales price per sales channel'!$H176*'Other input expert'!G$6","v":0},{"$f":"V176*'Other input expert'!H$13*'Sales price per sales channel'!$H176*'Other input expert'!H$6","v":0},{"$f":"W176*'Other input expert'!I$13*'Sales price per sales channel'!$H176*'Other input expert'!I$6","v":0},{"$f":"X176*'Other input expert'!J$13*'Sales price per sales channel'!$H176*'Other input expert'!J$6","v":0},{"$f":"Y176*'Other input expert'!K$13*'Sales price per sales channel'!$H176*'Other input expert'!K$6","v":0},{"$f":"Z176*'Other input expert'!L$13*'Sales price per sales channel'!$H176*'Other input expert'!L$6","v":0},{"$f":"AA176*'Other input expert'!M$13*'Sales price per sales channel'!$H176*'Other input expert'!M$6","v":0},null,{"$f":"P176*'Other input expert'!B$14*'Sales price per sales channel'!$I176*'Other input expert'!B$6","v":0},{"$f":"Q176*'Other input expert'!C$14*'Sales price per sales channel'!$I176*'Other input expert'!C$6","v":0},{"$f":"R176*'Other input expert'!D$14*'Sales price per sales channel'!$I176*'Other input expert'!D$6","v":0},{"$f":"S176*'Other input expert'!E$14*'Sales price per sales channel'!$I176*'Other input expert'!E$6","v":0},{"$f":"T176*'Other input expert'!F$14*'Sales price per sales channel'!$I176*'Other input expert'!F$6","v":0},{"$f":"U176*'Other input expert'!G$14*'Sales price per sales channel'!$I176*'Other input expert'!G$6","v":0},{"$f":"V176*'Other input expert'!H$14*'Sales price per sales channel'!$I176*'Other input expert'!H$6","v":0},{"$f":"W176*'Other input expert'!I$14*'Sales price per sales channel'!$I176*'Other input expert'!I$6","v":0},{"$f":"X176*'Other input expert'!J$14*'Sales price per sales channel'!$I176*'Other input expert'!J$6","v":0},{"$f":"Y176*'Other input expert'!K$14*'Sales price per sales channel'!$I176*'Other input expert'!K$6","v":0},{"$f":"Z176*'Other input expert'!L$14*'Sales price per sales channel'!$I176*'Other input expert'!L$6","v":0},{"$f":"AA176*'Other input expert'!M$14*'Sales price per sales channel'!$I176*'Other input expert'!M$6","v":0},null,{"$f":"AC176*'Other input expert'!B$12*'Sales price per sales channel'!$G176*'Other input expert'!B$7","v":0},{"$f":"AD176*'Other input expert'!C$12*'Sales price per sales channel'!$G176*'Other input expert'!C$7","v":0},{"$f":"AE176*'Other input expert'!D$12*'Sales price per sales channel'!$G176*'Other input expert'!D$7","v":0},{"$f":"AF176*'Other input expert'!E$12*'Sales price per sales channel'!$G176*'Other input expert'!E$7","v":0},{"$f":"AG176*'Other input expert'!F$12*'Sales price per sales channel'!$G176*'Other input expert'!F$7","v":0},{"$f":"AH176*'Other input expert'!G$12*'Sales price per sales channel'!$G176*'Other input expert'!G$7","v":0},{"$f":"AI176*'Other input expert'!H$12*'Sales price per sales channel'!$G176*'Other input expert'!H$7","v":0},{"$f":"AJ176*'Other input expert'!I$12*'Sales price per sales channel'!$G176*'Other input expert'!I$7","v":0},{"$f":"AK176*'Other input expert'!J$12*'Sales price per sales channel'!$G176*'Other input expert'!J$7","v":0},{"$f":"AL176*'Other input expert'!K$12*'Sales price per sales channel'!$G176*'Other input expert'!K$7","v":0},{"$f":"AM176*'Other input expert'!L$12*'Sales price per sales channel'!$G176*'Other input expert'!L$7","v":0},{"$f":"AN176*'Other input expert'!M$12*'Sales price per sales channel'!$G176*'Other input expert'!M$7","v":0},null,{"$f":"AC176*'Other input expert'!B$13*'Sales price per sales channel'!$H176*'Other input expert'!B$7","v":0},{"$f":"AD176*'Other input expert'!C$13*'Sales price per sales channel'!$H176*'Other input expert'!C$7","v":0},{"$f":"AE176*'Other input expert'!D$13*'Sales price per sales channel'!$H176*'Other input expert'!D$7","v":0},{"$f":"AF176*'Other input expert'!E$13*'Sales price per sales channel'!$H176*'Other input expert'!E$7","v":0},{"$f":"AG176*'Other input expert'!F$13*'Sales price per sales channel'!$H176*'Other input expert'!F$7","v":0},{"$f":"AH176*'Other input expert'!G$13*'Sales price per sales channel'!$H176*'Other input expert'!G$7","v":0},{"$f":"AI176*'Other input expert'!H$13*'Sales price per sales channel'!$H176*'Other input expert'!H$7","v":0},{"$f":"AJ176*'Other input expert'!I$13*'Sales price per sales channel'!$H176*'Other input expert'!I$7","v":0},{"$f":"AK176*'Other input expert'!J$13*'Sales price per sales channel'!$H176*'Other input expert'!J$7","v":0},{"$f":"AL176*'Other input expert'!K$13*'Sales price per sales channel'!$H176*'Other input expert'!K$7","v":0},{"$f":"AM176*'Other input expert'!L$13*'Sales price per sales channel'!$H176*'Other input expert'!L$7","v":0},{"$f":"AN176*'Other input expert'!M$13*'Sales price per sales channel'!$H176*'Other input expert'!M$7","v":0},null,{"$f":"AC176*'Other input expert'!B$14*'Sales price per sales channel'!$I176*'Other input expert'!B$7","v":0},{"$f":"AD176*'Other input expert'!C$14*'Sales price per sales channel'!$I176*'Other input expert'!C$7","v":0},{"$f":"AE176*'Other input expert'!D$14*'Sales price per sales channel'!$I176*'Other input expert'!D$7","v":0},{"$f":"AF176*'Other input expert'!E$14*'Sales price per sales channel'!$I176*'Other input expert'!E$7","v":0},{"$f":"AG176*'Other input expert'!F$14*'Sales price per sales channel'!$I176*'Other input expert'!F$7","v":0},{"$f":"AH176*'Other input expert'!G$14*'Sales price per sales channel'!$I176*'Other input expert'!G$7","v":0},{"$f":"AI176*'Other input expert'!H$14*'Sales price per sales channel'!$I176*'Other input expert'!H$7","v":0},{"$f":"AJ176*'Other input expert'!I$14*'Sales price per sales channel'!$I176*'Other input expert'!I$7","v":0},{"$f":"AK176*'Other input expert'!J$14*'Sales price per sales channel'!$I176*'Other input expert'!J$7","v":0},{"$f":"AL176*'Other input expert'!K$14*'Sales price per sales channel'!$I176*'Other input expert'!K$7","v":0},{"$f":"AM176*'Other input expert'!L$14*'Sales price per sales channel'!$I176*'Other input expert'!L$7","v":0},{"$f":"AN176*'Other input expert'!M$14*'Sales price per sales channel'!$I176*'Other input expert'!M$7","v":0}]
["Tanacetum parthenium","Feverfew",{"$f":"Plantlist!$G177*'Production list'!D178*'Other input expert'!B$4*'Other input expert'!B$8","v":0},{"$f":"Plantlist!$G177*'Production list'!E178*'Other input expert'!C$4*'Other input expert'!C$8","v":0},{"$f":"Plantlist!$G177*'Production list'!F178*'Other input expert'!D$4*'Other input expert'!D$8","v":0},{"$f":"Plantlist!$G177*'Production list'!G178*'Other input expert'!E$4*'Other input expert'!E$8","v":0},{"$f":"Plantlist!$G177*'Production list'!H178*'Other input expert'!F$4*'Other input expert'!F$8","v":0},{"$f":"Plantlist!$G177*'Production list'!I178*'Other input expert'!G$4*'Other input expert'!G$8","v":0},{"$f":"Plantlist!$G177*'Production list'!J178*'Other input expert'!H$4*'Other input expert'!H$8","v":0},{"$f":"Plantlist!$G177*'Production list'!K178*'Other input expert'!I$4*'Other input expert'!I$8","v":0},{"$f":"Plantlist!$G177*'Production list'!L178*'Other input expert'!J$4*'Other input expert'!J$8","v":0},{"$f":"Plantlist!$G177*'Production list'!M178*'Other input expert'!K$4*'Other input expert'!K$8","v":0},{"$f":"Plantlist!$G177*'Production list'!N178*'Other input expert'!L$4*'Other input expert'!L$8","v":0},{"$f":"Plantlist!$G177*'Production list'!O178*'Other input expert'!M$4*'Other input expert'!M$8","v":0},null,{"$f":"C177*'Other input expert'!B$5","v":0},{"$f":"D177*'Other input expert'!C$5","v":0},{"$f":"E177*'Other input expert'!D$5","v":0},{"$f":"F177*'Other input expert'!E$5","v":0},{"$f":"G177*'Other input expert'!F$5","v":0},{"$f":"H177*'Other input expert'!G$5","v":0},{"$f":"I177*'Other input expert'!H$5","v":0},{"$f":"J177*'Other input expert'!I$5","v":0},{"$f":"K177*'Other input expert'!J$5","v":0},{"$f":"L177*'Other input expert'!K$5","v":0},{"$f":"M177*'Other input expert'!L$5","v":0},{"$f":"N177*'Other input expert'!M$5","v":0},null,{"$f":"C177*(100%-'Other input expert'!B$5)","v":0},{"$f":"D177*(100%-'Other input expert'!C$5)","v":0},{"$f":"E177*(100%-'Other input expert'!D$5)","v":0},{"$f":"F177*(100%-'Other input expert'!E$5)","v":0},{"$f":"G177*(100%-'Other input expert'!F$5)","v":0},{"$f":"H177*(100%-'Other input expert'!G$5)","v":0},{"$f":"I177*(100%-'Other input expert'!H$5)","v":0},{"$f":"J177*(100%-'Other input expert'!I$5)","v":0},{"$f":"K177*(100%-'Other input expert'!J$5)","v":0},{"$f":"L177*(100%-'Other input expert'!K$5)","v":0},{"$f":"M177*(100%-'Other input expert'!L$5)","v":0},{"$f":"N177*(100%-'Other input expert'!M$5)","v":0},null,{"$f":"P177*'Other input expert'!B$12*'Sales price per sales channel'!$G177*'Other input expert'!B$6","v":0},{"$f":"Q177*'Other input expert'!C$12*'Sales price per sales channel'!$G177*'Other input expert'!C$6","v":0},{"$f":"R177*'Other input expert'!D$12*'Sales price per sales channel'!$G177*'Other input expert'!D$6","v":0},{"$f":"S177*'Other input expert'!E$12*'Sales price per sales channel'!$G177*'Other input expert'!E$6","v":0},{"$f":"T177*'Other input expert'!F$12*'Sales price per sales channel'!$G177*'Other input expert'!F$6","v":0},{"$f":"U177*'Other input expert'!G$12*'Sales price per sales channel'!$G177*'Other input expert'!G$6","v":0},{"$f":"V177*'Other input expert'!H$12*'Sales price per sales channel'!$G177*'Other input expert'!H$6","v":0},{"$f":"W177*'Other input expert'!I$12*'Sales price per sales channel'!$G177*'Other input expert'!I$6","v":0},{"$f":"X177*'Other input expert'!J$12*'Sales price per sales channel'!$G177*'Other input expert'!J$6","v":0},{"$f":"Y177*'Other input expert'!K$12*'Sales price per sales channel'!$G177*'Other input expert'!K$6","v":0},{"$f":"Z177*'Other input expert'!L$12*'Sales price per sales channel'!$G177*'Other input expert'!L$6","v":0},{"$f":"AA177*'Other input expert'!M$12*'Sales price per sales channel'!$G177*'Other input expert'!M$6","v":0},null,{"$f":"P177*'Other input expert'!B$13*'Sales price per sales channel'!$H177*'Other input expert'!B$6","v":0},{"$f":"Q177*'Other input expert'!C$13*'Sales price per sales channel'!$H177*'Other input expert'!C$6","v":0},{"$f":"R177*'Other input expert'!D$13*'Sales price per sales channel'!$H177*'Other input expert'!D$6","v":0},{"$f":"S177*'Other input expert'!E$13*'Sales price per sales channel'!$H177*'Other input expert'!E$6","v":0},{"$f":"T177*'Other input expert'!F$13*'Sales price per sales channel'!$H177*'Other input expert'!F$6","v":0},{"$f":"U177*'Other input expert'!G$13*'Sales price per sales channel'!$H177*'Other input expert'!G$6","v":0},{"$f":"V177*'Other input expert'!H$13*'Sales price per sales channel'!$H177*'Other input expert'!H$6","v":0},{"$f":"W177*'Other input expert'!I$13*'Sales price per sales channel'!$H177*'Other input expert'!I$6","v":0},{"$f":"X177*'Other input expert'!J$13*'Sales price per sales channel'!$H177*'Other input expert'!J$6","v":0},{"$f":"Y177*'Other input expert'!K$13*'Sales price per sales channel'!$H177*'Other input expert'!K$6","v":0},{"$f":"Z177*'Other input expert'!L$13*'Sales price per sales channel'!$H177*'Other input expert'!L$6","v":0},{"$f":"AA177*'Other input expert'!M$13*'Sales price per sales channel'!$H177*'Other input expert'!M$6","v":0},null,{"$f":"P177*'Other input expert'!B$14*'Sales price per sales channel'!$I177*'Other input expert'!B$6","v":0},{"$f":"Q177*'Other input expert'!C$14*'Sales price per sales channel'!$I177*'Other input expert'!C$6","v":0},{"$f":"R177*'Other input expert'!D$14*'Sales price per sales channel'!$I177*'Other input expert'!D$6","v":0},{"$f":"S177*'Other input expert'!E$14*'Sales price per sales channel'!$I177*'Other input expert'!E$6","v":0},{"$f":"T177*'Other input expert'!F$14*'Sales price per sales channel'!$I177*'Other input expert'!F$6","v":0},{"$f":"U177*'Other input expert'!G$14*'Sales price per sales channel'!$I177*'Other input expert'!G$6","v":0},{"$f":"V177*'Other input expert'!H$14*'Sales price per sales channel'!$I177*'Other input expert'!H$6","v":0},{"$f":"W177*'Other input expert'!I$14*'Sales price per sales channel'!$I177*'Other input expert'!I$6","v":0},{"$f":"X177*'Other input expert'!J$14*'Sales price per sales channel'!$I177*'Other input expert'!J$6","v":0},{"$f":"Y177*'Other input expert'!K$14*'Sales price per sales channel'!$I177*'Other input expert'!K$6","v":0},{"$f":"Z177*'Other input expert'!L$14*'Sales price per sales channel'!$I177*'Other input expert'!L$6","v":0},{"$f":"AA177*'Other input expert'!M$14*'Sales price per sales channel'!$I177*'Other input expert'!M$6","v":0},null,{"$f":"AC177*'Other input expert'!B$12*'Sales price per sales channel'!$G177*'Other input expert'!B$7","v":0},{"$f":"AD177*'Other input expert'!C$12*'Sales price per sales channel'!$G177*'Other input expert'!C$7","v":0},{"$f":"AE177*'Other input expert'!D$12*'Sales price per sales channel'!$G177*'Other input expert'!D$7","v":0},{"$f":"AF177*'Other input expert'!E$12*'Sales price per sales channel'!$G177*'Other input expert'!E$7","v":0},{"$f":"AG177*'Other input expert'!F$12*'Sales price per sales channel'!$G177*'Other input expert'!F$7","v":0},{"$f":"AH177*'Other input expert'!G$12*'Sales price per sales channel'!$G177*'Other input expert'!G$7","v":0},{"$f":"AI177*'Other input expert'!H$12*'Sales price per sales channel'!$G177*'Other input expert'!H$7","v":0},{"$f":"AJ177*'Other input expert'!I$12*'Sales price per sales channel'!$G177*'Other input expert'!I$7","v":0},{"$f":"AK177*'Other input expert'!J$12*'Sales price per sales channel'!$G177*'Other input expert'!J$7","v":0},{"$f":"AL177*'Other input expert'!K$12*'Sales price per sales channel'!$G177*'Other input expert'!K$7","v":0},{"$f":"AM177*'Other input expert'!L$12*'Sales price per sales channel'!$G177*'Other input expert'!L$7","v":0},{"$f":"AN177*'Other input expert'!M$12*'Sales price per sales channel'!$G177*'Other input expert'!M$7","v":0},null,{"$f":"AC177*'Other input expert'!B$13*'Sales price per sales channel'!$H177*'Other input expert'!B$7","v":0},{"$f":"AD177*'Other input expert'!C$13*'Sales price per sales channel'!$H177*'Other input expert'!C$7","v":0},{"$f":"AE177*'Other input expert'!D$13*'Sales price per sales channel'!$H177*'Other input expert'!D$7","v":0},{"$f":"AF177*'Other input expert'!E$13*'Sales price per sales channel'!$H177*'Other input expert'!E$7","v":0},{"$f":"AG177*'Other input expert'!F$13*'Sales price per sales channel'!$H177*'Other input expert'!F$7","v":0},{"$f":"AH177*'Other input expert'!G$13*'Sales price per sales channel'!$H177*'Other input expert'!G$7","v":0},{"$f":"AI177*'Other input expert'!H$13*'Sales price per sales channel'!$H177*'Other input expert'!H$7","v":0},{"$f":"AJ177*'Other input expert'!I$13*'Sales price per sales channel'!$H177*'Other input expert'!I$7","v":0},{"$f":"AK177*'Other input expert'!J$13*'Sales price per sales channel'!$H177*'Other input expert'!J$7","v":0},{"$f":"AL177*'Other input expert'!K$13*'Sales price per sales channel'!$H177*'Other input expert'!K$7","v":0},{"$f":"AM177*'Other input expert'!L$13*'Sales price per sales channel'!$H177*'Other input expert'!L$7","v":0},{"$f":"AN177*'Other input expert'!M$13*'Sales price per sales channel'!$H177*'Other input expert'!M$7","v":0},null,{"$f":"AC177*'Other input expert'!B$14*'Sales price per sales channel'!$I177*'Other input expert'!B$7","v":0},{"$f":"AD177*'Other input expert'!C$14*'Sales price per sales channel'!$I177*'Other input expert'!C$7","v":0},{"$f":"AE177*'Other input expert'!D$14*'Sales price per sales channel'!$I177*'Other input expert'!D$7","v":0},{"$f":"AF177*'Other input expert'!E$14*'Sales price per sales channel'!$I177*'Other input expert'!E$7","v":0},{"$f":"AG177*'Other input expert'!F$14*'Sales price per sales channel'!$I177*'Other input expert'!F$7","v":0},{"$f":"AH177*'Other input expert'!G$14*'Sales price per sales channel'!$I177*'Other input expert'!G$7","v":0},{"$f":"AI177*'Other input expert'!H$14*'Sales price per sales channel'!$I177*'Other input expert'!H$7","v":0},{"$f":"AJ177*'Other input expert'!I$14*'Sales price per sales channel'!$I177*'Other input expert'!I$7","v":0},{"$f":"AK177*'Other input expert'!J$14*'Sales price per sales channel'!$I177*'Other input expert'!J$7","v":0},{"$f":"AL177*'Other input expert'!K$14*'Sales price per sales channel'!$I177*'Other input expert'!K$7","v":0},{"$f":"AM177*'Other input expert'!L$14*'Sales price per sales channel'!$I177*'Other input expert'!L$7","v":0},{"$f":"AN177*'Other input expert'!M$14*'Sales price per sales channel'!$I177*'Other input expert'!M$7","v":0}]
["Teucrium chamaedrys","Wall germander",{"$f":"Plantlist!$G178*'Production list'!D179*'Other input expert'!B$4*'Other input expert'!B$8","v":0},{"$f":"Plantlist!$G178*'Production list'!E179*'Other input expert'!C$4*'Other input expert'!C$8","v":0},{"$f":"Plantlist!$G178*'Production list'!F179*'Other input expert'!D$4*'Other input expert'!D$8","v":0},{"$f":"Plantlist!$G178*'Production list'!G179*'Other input expert'!E$4*'Other input expert'!E$8","v":0},{"$f":"Plantlist!$G178*'Production list'!H179*'Other input expert'!F$4*'Other input expert'!F$8","v":0},{"$f":"Plantlist!$G178*'Production list'!I179*'Other input expert'!G$4*'Other input expert'!G$8","v":0},{"$f":"Plantlist!$G178*'Production list'!J179*'Other input expert'!H$4*'Other input expert'!H$8","v":0},{"$f":"Plantlist!$G178*'Production list'!K179*'Other input expert'!I$4*'Other input expert'!I$8","v":0},{"$f":"Plantlist!$G178*'Production list'!L179*'Other input expert'!J$4*'Other input expert'!J$8","v":0},{"$f":"Plantlist!$G178*'Production list'!M179*'Other input expert'!K$4*'Other input expert'!K$8","v":0},{"$f":"Plantlist!$G178*'Production list'!N179*'Other input expert'!L$4*'Other input expert'!L$8","v":0},{"$f":"Plantlist!$G178*'Production list'!O179*'Other input expert'!M$4*'Other input expert'!M$8","v":0},null,{"$f":"C178*'Other input expert'!B$5","v":0},{"$f":"D178*'Other input expert'!C$5","v":0},{"$f":"E178*'Other input expert'!D$5","v":0},{"$f":"F178*'Other input expert'!E$5","v":0},{"$f":"G178*'Other input expert'!F$5","v":0},{"$f":"H178*'Other input expert'!G$5","v":0},{"$f":"I178*'Other input expert'!H$5","v":0},{"$f":"J178*'Other input expert'!I$5","v":0},{"$f":"K178*'Other input expert'!J$5","v":0},{"$f":"L178*'Other input expert'!K$5","v":0},{"$f":"M178*'Other input expert'!L$5","v":0},{"$f":"N178*'Other input expert'!M$5","v":0},null,{"$f":"C178*(100%-'Other input expert'!B$5)","v":0},{"$f":"D178*(100%-'Other input expert'!C$5)","v":0},{"$f":"E178*(100%-'Other input expert'!D$5)","v":0},{"$f":"F178*(100%-'Other input expert'!E$5)","v":0},{"$f":"G178*(100%-'Other input expert'!F$5)","v":0},{"$f":"H178*(100%-'Other input expert'!G$5)","v":0},{"$f":"I178*(100%-'Other input expert'!H$5)","v":0},{"$f":"J178*(100%-'Other input expert'!I$5)","v":0},{"$f":"K178*(100%-'Other input expert'!J$5)","v":0},{"$f":"L178*(100%-'Other input expert'!K$5)","v":0},{"$f":"M178*(100%-'Other input expert'!L$5)","v":0},{"$f":"N178*(100%-'Other input expert'!M$5)","v":0},null,{"$f":"P178*'Other input expert'!B$12*'Sales price per sales channel'!$G178*'Other input expert'!B$6","v":0},{"$f":"Q178*'Other input expert'!C$12*'Sales price per sales channel'!$G178*'Other input expert'!C$6","v":0},{"$f":"R178*'Other input expert'!D$12*'Sales price per sales channel'!$G178*'Other input expert'!D$6","v":0},{"$f":"S178*'Other input expert'!E$12*'Sales price per sales channel'!$G178*'Other input expert'!E$6","v":0},{"$f":"T178*'Other input expert'!F$12*'Sales price per sales channel'!$G178*'Other input expert'!F$6","v":0},{"$f":"U178*'Other input expert'!G$12*'Sales price per sales channel'!$G178*'Other input expert'!G$6","v":0},{"$f":"V178*'Other input expert'!H$12*'Sales price per sales channel'!$G178*'Other input expert'!H$6","v":0},{"$f":"W178*'Other input expert'!I$12*'Sales price per sales channel'!$G178*'Other input expert'!I$6","v":0},{"$f":"X178*'Other input expert'!J$12*'Sales price per sales channel'!$G178*'Other input expert'!J$6","v":0},{"$f":"Y178*'Other input expert'!K$12*'Sales price per sales channel'!$G178*'Other input expert'!K$6","v":0},{"$f":"Z178*'Other input expert'!L$12*'Sales price per sales channel'!$G178*'Other input expert'!L$6","v":0},{"$f":"AA178*'Other input expert'!M$12*'Sales price per sales channel'!$G178*'Other input expert'!M$6","v":0},null,{"$f":"P178*'Other input expert'!B$13*'Sales price per sales channel'!$H178*'Other input expert'!B$6","v":0},{"$f":"Q178*'Other input expert'!C$13*'Sales price per sales channel'!$H178*'Other input expert'!C$6","v":0},{"$f":"R178*'Other input expert'!D$13*'Sales price per sales channel'!$H178*'Other input expert'!D$6","v":0},{"$f":"S178*'Other input expert'!E$13*'Sales price per sales channel'!$H178*'Other input expert'!E$6","v":0},{"$f":"T178*'Other input expert'!F$13*'Sales price per sales channel'!$H178*'Other input expert'!F$6","v":0},{"$f":"U178*'Other input expert'!G$13*'Sales price per sales channel'!$H178*'Other input expert'!G$6","v":0},{"$f":"V178*'Other input expert'!H$13*'Sales price per sales channel'!$H178*'Other input expert'!H$6","v":0},{"$f":"W178*'Other input expert'!I$13*'Sales price per sales channel'!$H178*'Other input expert'!I$6","v":0},{"$f":"X178*'Other input expert'!J$13*'Sales price per sales channel'!$H178*'Other input expert'!J$6","v":0},{"$f":"Y178*'Other input expert'!K$13*'Sales price per sales channel'!$H178*'Other input expert'!K$6","v":0},{"$f":"Z178*'Other input expert'!L$13*'Sales price per sales channel'!$H178*'Other input expert'!L$6","v":0},{"$f":"AA178*'Other input expert'!M$13*'Sales price per sales channel'!$H178*'Other input expert'!M$6","v":0},null,{"$f":"P178*'Other input expert'!B$14*'Sales price per sales channel'!$I178*'Other input expert'!B$6","v":0},{"$f":"Q178*'Other input expert'!C$14*'Sales price per sales channel'!$I178*'Other input expert'!C$6","v":0},{"$f":"R178*'Other input expert'!D$14*'Sales price per sales channel'!$I178*'Other input expert'!D$6","v":0},{"$f":"S178*'Other input expert'!E$14*'Sales price per sales channel'!$I178*'Other input expert'!E$6","v":0},{"$f":"T178*'Other input expert'!F$14*'Sales price per sales channel'!$I178*'Other input expert'!F$6","v":0},{"$f":"U178*'Other input expert'!G$14*'Sales price per sales channel'!$I178*'Other input expert'!G$6","v":0},{"$f":"V178*'Other input expert'!H$14*'Sales price per sales channel'!$I178*'Other input expert'!H$6","v":0},{"$f":"W178*'Other input expert'!I$14*'Sales price per sales channel'!$I178*'Other input expert'!I$6","v":0},{"$f":"X178*'Other input expert'!J$14*'Sales price per sales channel'!$I178*'Other input expert'!J$6","v":0},{"$f":"Y178*'Other input expert'!K$14*'Sales price per sales channel'!$I178*'Other input expert'!K$6","v":0},{"$f":"Z178*'Other input expert'!L$14*'Sales price per sales channel'!$I178*'Other input expert'!L$6","v":0},{"$f":"AA178*'Other input expert'!M$14*'Sales price per sales channel'!$I178*'Other input expert'!M$6","v":0},null,{"$f":"AC178*'Other input expert'!B$12*'Sales price per sales channel'!$G178*'Other input expert'!B$7","v":0},{"$f":"AD178*'Other input expert'!C$12*'Sales price per sales channel'!$G178*'Other input expert'!C$7","v":0},{"$f":"AE178*'Other input expert'!D$12*'Sales price per sales channel'!$G178*'Other input expert'!D$7","v":0},{"$f":"AF178*'Other input expert'!E$12*'Sales price per sales channel'!$G178*'Other input expert'!E$7","v":0},{"$f":"AG178*'Other input expert'!F$12*'Sales price per sales channel'!$G178*'Other input expert'!F$7","v":0},{"$f":"AH178*'Other input expert'!G$12*'Sales price per sales channel'!$G178*'Other input expert'!G$7","v":0},{"$f":"AI178*'Other input expert'!H$12*'Sales price per sales channel'!$G178*'Other input expert'!H$7","v":0},{"$f":"AJ178*'Other input expert'!I$12*'Sales price per sales channel'!$G178*'Other input expert'!I$7","v":0},{"$f":"AK178*'Other input expert'!J$12*'Sales price per sales channel'!$G178*'Other input expert'!J$7","v":0},{"$f":"AL178*'Other input expert'!K$12*'Sales price per sales channel'!$G178*'Other input expert'!K$7","v":0},{"$f":"AM178*'Other input expert'!L$12*'Sales price per sales channel'!$G178*'Other input expert'!L$7","v":0},{"$f":"AN178*'Other input expert'!M$12*'Sales price per sales channel'!$G178*'Other input expert'!M$7","v":0},null,{"$f":"AC178*'Other input expert'!B$13*'Sales price per sales channel'!$H178*'Other input expert'!B$7","v":0},{"$f":"AD178*'Other input expert'!C$13*'Sales price per sales channel'!$H178*'Other input expert'!C$7","v":0},{"$f":"AE178*'Other input expert'!D$13*'Sales price per sales channel'!$H178*'Other input expert'!D$7","v":0},{"$f":"AF178*'Other input expert'!E$13*'Sales price per sales channel'!$H178*'Other input expert'!E$7","v":0},{"$f":"AG178*'Other input expert'!F$13*'Sales price per sales channel'!$H178*'Other input expert'!F$7","v":0},{"$f":"AH178*'Other input expert'!G$13*'Sales price per sales channel'!$H178*'Other input expert'!G$7","v":0},{"$f":"AI178*'Other input expert'!H$13*'Sales price per sales channel'!$H178*'Other input expert'!H$7","v":0},{"$f":"AJ178*'Other input expert'!I$13*'Sales price per sales channel'!$H178*'Other input expert'!I$7","v":0},{"$f":"AK178*'Other input expert'!J$13*'Sales price per sales channel'!$H178*'Other input expert'!J$7","v":0},{"$f":"AL178*'Other input expert'!K$13*'Sales price per sales channel'!$H178*'Other input expert'!K$7","v":0},{"$f":"AM178*'Other input expert'!L$13*'Sales price per sales channel'!$H178*'Other input expert'!L$7","v":0},{"$f":"AN178*'Other input expert'!M$13*'Sales price per sales channel'!$H178*'Other input expert'!M$7","v":0},null,{"$f":"AC178*'Other input expert'!B$14*'Sales price per sales channel'!$I178*'Other input expert'!B$7","v":0},{"$f":"AD178*'Other input expert'!C$14*'Sales price per sales channel'!$I178*'Other input expert'!C$7","v":0},{"$f":"AE178*'Other input expert'!D$14*'Sales price per sales channel'!$I178*'Other input expert'!D$7","v":0},{"$f":"AF178*'Other input expert'!E$14*'Sales price per sales channel'!$I178*'Other input expert'!E$7","v":0},{"$f":"AG178*'Other input expert'!F$14*'Sales price per sales channel'!$I178*'Other input expert'!F$7","v":0},{"$f":"AH178*'Other input expert'!G$14*'Sales price per sales channel'!$I178*'Other input expert'!G$7","v":0},{"$f":"AI178*'Other input expert'!H$14*'Sales price per sales channel'!$I178*'Other input expert'!H$7","v":0},{"$f":"AJ178*'Other input expert'!I$14*'Sales price per sales channel'!$I178*'Other input expert'!I$7","v":0},{"$f":"AK178*'Other input expert'!J$14*'Sales price per sales channel'!$I178*'Other input expert'!J$7","v":0},{"$f":"AL178*'Other input expert'!K$14*'Sales price per sales channel'!$I178*'Other input expert'!K$7","v":0},{"$f":"AM178*'Other input expert'!L$14*'Sales price per sales channel'!$I178*'Other input expert'!L$7","v":0},{"$f":"AN178*'Other input expert'!M$14*'Sales price per sales channel'!$I178*'Other input expert'!M$7","v":0}]
["Thymus Vulgaris","Thyme",{"$f":"Plantlist!$G179*'Production list'!D180*'Other input expert'!B$4*'Other input expert'!B$8","v":0},{"$f":"Plantlist!$G179*'Production list'!E180*'Other input expert'!C$4*'Other input expert'!C$8","v":0},{"$f":"Plantlist!$G179*'Production list'!F180*'Other input expert'!D$4*'Other input expert'!D$8","v":0},{"$f":"Plantlist!$G179*'Production list'!G180*'Other input expert'!E$4*'Other input expert'!E$8","v":0},{"$f":"Plantlist!$G179*'Production list'!H180*'Other input expert'!F$4*'Other input expert'!F$8","v":0},{"$f":"Plantlist!$G179*'Production list'!I180*'Other input expert'!G$4*'Other input expert'!G$8","v":0},{"$f":"Plantlist!$G179*'Production list'!J180*'Other input expert'!H$4*'Other input expert'!H$8","v":0},{"$f":"Plantlist!$G179*'Production list'!K180*'Other input expert'!I$4*'Other input expert'!I$8","v":0},{"$f":"Plantlist!$G179*'Production list'!L180*'Other input expert'!J$4*'Other input expert'!J$8","v":0},{"$f":"Plantlist!$G179*'Production list'!M180*'Other input expert'!K$4*'Other input expert'!K$8","v":0},{"$f":"Plantlist!$G179*'Production list'!N180*'Other input expert'!L$4*'Other input expert'!L$8","v":0},{"$f":"Plantlist!$G179*'Production list'!O180*'Other input expert'!M$4*'Other input expert'!M$8","v":0},null,{"$f":"C179*'Other input expert'!B$5","v":0},{"$f":"D179*'Other input expert'!C$5","v":0},{"$f":"E179*'Other input expert'!D$5","v":0},{"$f":"F179*'Other input expert'!E$5","v":0},{"$f":"G179*'Other input expert'!F$5","v":0},{"$f":"H179*'Other input expert'!G$5","v":0},{"$f":"I179*'Other input expert'!H$5","v":0},{"$f":"J179*'Other input expert'!I$5","v":0},{"$f":"K179*'Other input expert'!J$5","v":0},{"$f":"L179*'Other input expert'!K$5","v":0},{"$f":"M179*'Other input expert'!L$5","v":0},{"$f":"N179*'Other input expert'!M$5","v":0},null,{"$f":"C179*(100%-'Other input expert'!B$5)","v":0},{"$f":"D179*(100%-'Other input expert'!C$5)","v":0},{"$f":"E179*(100%-'Other input expert'!D$5)","v":0},{"$f":"F179*(100%-'Other input expert'!E$5)","v":0},{"$f":"G179*(100%-'Other input expert'!F$5)","v":0},{"$f":"H179*(100%-'Other input expert'!G$5)","v":0},{"$f":"I179*(100%-'Other input expert'!H$5)","v":0},{"$f":"J179*(100%-'Other input expert'!I$5)","v":0},{"$f":"K179*(100%-'Other input expert'!J$5)","v":0},{"$f":"L179*(100%-'Other input expert'!K$5)","v":0},{"$f":"M179*(100%-'Other input expert'!L$5)","v":0},{"$f":"N179*(100%-'Other input expert'!M$5)","v":0},null,{"$f":"P179*'Other input expert'!B$12*'Sales price per sales channel'!$G179*'Other input expert'!B$6","v":0},{"$f":"Q179*'Other input expert'!C$12*'Sales price per sales channel'!$G179*'Other input expert'!C$6","v":0},{"$f":"R179*'Other input expert'!D$12*'Sales price per sales channel'!$G179*'Other input expert'!D$6","v":0},{"$f":"S179*'Other input expert'!E$12*'Sales price per sales channel'!$G179*'Other input expert'!E$6","v":0},{"$f":"T179*'Other input expert'!F$12*'Sales price per sales channel'!$G179*'Other input expert'!F$6","v":0},{"$f":"U179*'Other input expert'!G$12*'Sales price per sales channel'!$G179*'Other input expert'!G$6","v":0},{"$f":"V179*'Other input expert'!H$12*'Sales price per sales channel'!$G179*'Other input expert'!H$6","v":0},{"$f":"W179*'Other input expert'!I$12*'Sales price per sales channel'!$G179*'Other input expert'!I$6","v":0},{"$f":"X179*'Other input expert'!J$12*'Sales price per sales channel'!$G179*'Other input expert'!J$6","v":0},{"$f":"Y179*'Other input expert'!K$12*'Sales price per sales channel'!$G179*'Other input expert'!K$6","v":0},{"$f":"Z179*'Other input expert'!L$12*'Sales price per sales channel'!$G179*'Other input expert'!L$6","v":0},{"$f":"AA179*'Other input expert'!M$12*'Sales price per sales channel'!$G179*'Other input expert'!M$6","v":0},null,{"$f":"P179*'Other input expert'!B$13*'Sales price per sales channel'!$H179*'Other input expert'!B$6","v":0},{"$f":"Q179*'Other input expert'!C$13*'Sales price per sales channel'!$H179*'Other input expert'!C$6","v":0},{"$f":"R179*'Other input expert'!D$13*'Sales price per sales channel'!$H179*'Other input expert'!D$6","v":0},{"$f":"S179*'Other input expert'!E$13*'Sales price per sales channel'!$H179*'Other input expert'!E$6","v":0},{"$f":"T179*'Other input expert'!F$13*'Sales price per sales channel'!$H179*'Other input expert'!F$6","v":0},{"$f":"U179*'Other input expert'!G$13*'Sales price per sales channel'!$H179*'Other input expert'!G$6","v":0},{"$f":"V179*'Other input expert'!H$13*'Sales price per sales channel'!$H179*'Other input expert'!H$6","v":0},{"$f":"W179*'Other input expert'!I$13*'Sales price per sales channel'!$H179*'Other input expert'!I$6","v":0},{"$f":"X179*'Other input expert'!J$13*'Sales price per sales channel'!$H179*'Other input expert'!J$6","v":0},{"$f":"Y179*'Other input expert'!K$13*'Sales price per sales channel'!$H179*'Other input expert'!K$6","v":0},{"$f":"Z179*'Other input expert'!L$13*'Sales price per sales channel'!$H179*'Other input expert'!L$6","v":0},{"$f":"AA179*'Other input expert'!M$13*'Sales price per sales channel'!$H179*'Other input expert'!M$6","v":0},null,{"$f":"P179*'Other input expert'!B$14*'Sales price per sales channel'!$I179*'Other input expert'!B$6","v":0},{"$f":"Q179*'Other input expert'!C$14*'Sales price per sales channel'!$I179*'Other input expert'!C$6","v":0},{"$f":"R179*'Other input expert'!D$14*'Sales price per sales channel'!$I179*'Other input expert'!D$6","v":0},{"$f":"S179*'Other input expert'!E$14*'Sales price per sales channel'!$I179*'Other input expert'!E$6","v":0},{"$f":"T179*'Other input expert'!F$14*'Sales price per sales channel'!$I179*'Other input expert'!F$6","v":0},{"$f":"U179*'Other input expert'!G$14*'Sales price per sales channel'!$I179*'Other input expert'!G$6","v":0},{"$f":"V179*'Other input expert'!H$14*'Sales price per sales channel'!$I179*'Other input expert'!H$6","v":0},{"$f":"W179*'Other input expert'!I$14*'Sales price per sales channel'!$I179*'Other input expert'!I$6","v":0},{"$f":"X179*'Other input expert'!J$14*'Sales price per sales channel'!$I179*'Other input expert'!J$6","v":0},{"$f":"Y179*'Other input expert'!K$14*'Sales price per sales channel'!$I179*'Other input expert'!K$6","v":0},{"$f":"Z179*'Other input expert'!L$14*'Sales price per sales channel'!$I179*'Other input expert'!L$6","v":0},{"$f":"AA179*'Other input expert'!M$14*'Sales price per sales channel'!$I179*'Other input expert'!M$6","v":0},null,{"$f":"AC179*'Other input expert'!B$12*'Sales price per sales channel'!$G179*'Other input expert'!B$7","v":0},{"$f":"AD179*'Other input expert'!C$12*'Sales price per sales channel'!$G179*'Other input expert'!C$7","v":0},{"$f":"AE179*'Other input expert'!D$12*'Sales price per sales channel'!$G179*'Other input expert'!D$7","v":0},{"$f":"AF179*'Other input expert'!E$12*'Sales price per sales channel'!$G179*'Other input expert'!E$7","v":0},{"$f":"AG179*'Other input expert'!F$12*'Sales price per sales channel'!$G179*'Other input expert'!F$7","v":0},{"$f":"AH179*'Other input expert'!G$12*'Sales price per sales channel'!$G179*'Other input expert'!G$7","v":0},{"$f":"AI179*'Other input expert'!H$12*'Sales price per sales channel'!$G179*'Other input expert'!H$7","v":0},{"$f":"AJ179*'Other input expert'!I$12*'Sales price per sales channel'!$G179*'Other input expert'!I$7","v":0},{"$f":"AK179*'Other input expert'!J$12*'Sales price per sales channel'!$G179*'Other input expert'!J$7","v":0},{"$f":"AL179*'Other input expert'!K$12*'Sales price per sales channel'!$G179*'Other input expert'!K$7","v":0},{"$f":"AM179*'Other input expert'!L$12*'Sales price per sales channel'!$G179*'Other input expert'!L$7","v":0},{"$f":"AN179*'Other input expert'!M$12*'Sales price per sales channel'!$G179*'Other input expert'!M$7","v":0},null,{"$f":"AC179*'Other input expert'!B$13*'Sales price per sales channel'!$H179*'Other input expert'!B$7","v":0},{"$f":"AD179*'Other input expert'!C$13*'Sales price per sales channel'!$H179*'Other input expert'!C$7","v":0},{"$f":"AE179*'Other input expert'!D$13*'Sales price per sales channel'!$H179*'Other input expert'!D$7","v":0},{"$f":"AF179*'Other input expert'!E$13*'Sales price per sales channel'!$H179*'Other input expert'!E$7","v":0},{"$f":"AG179*'Other input expert'!F$13*'Sales price per sales channel'!$H179*'Other input expert'!F$7","v":0},{"$f":"AH179*'Other input expert'!G$13*'Sales price per sales channel'!$H179*'Other input expert'!G$7","v":0},{"$f":"AI179*'Other input expert'!H$13*'Sales price per sales channel'!$H179*'Other input expert'!H$7","v":0},{"$f":"AJ179*'Other input expert'!I$13*'Sales price per sales channel'!$H179*'Other input expert'!I$7","v":0},{"$f":"AK179*'Other input expert'!J$13*'Sales price per sales channel'!$H179*'Other input expert'!J$7","v":0},{"$f":"AL179*'Other input expert'!K$13*'Sales price per sales channel'!$H179*'Other input expert'!K$7","v":0},{"$f":"AM179*'Other input expert'!L$13*'Sales price per sales channel'!$H179*'Other input expert'!L$7","v":0},{"$f":"AN179*'Other input expert'!M$13*'Sales price per sales channel'!$H179*'Other input expert'!M$7","v":0},null,{"$f":"AC179*'Other input expert'!B$14*'Sales price per sales channel'!$I179*'Other input expert'!B$7","v":0},{"$f":"AD179*'Other input expert'!C$14*'Sales price per sales channel'!$I179*'Other input expert'!C$7","v":0},{"$f":"AE179*'Other input expert'!D$14*'Sales price per sales channel'!$I179*'Other input expert'!D$7","v":0},{"$f":"AF179*'Other input expert'!E$14*'Sales price per sales channel'!$I179*'Other input expert'!E$7","v":0},{"$f":"AG179*'Other input expert'!F$14*'Sales price per sales channel'!$I179*'Other input expert'!F$7","v":0},{"$f":"AH179*'Other input expert'!G$14*'Sales price per sales channel'!$I179*'Other input expert'!G$7","v":0},{"$f":"AI179*'Other input expert'!H$14*'Sales price per sales channel'!$I179*'Other input expert'!H$7","v":0},{"$f":"AJ179*'Other input expert'!I$14*'Sales price per sales channel'!$I179*'Other input expert'!I$7","v":0},{"$f":"AK179*'Other input expert'!J$14*'Sales price per sales channel'!$I179*'Other input expert'!J$7","v":0},{"$f":"AL179*'Other input expert'!K$14*'Sales price per sales channel'!$I179*'Other input expert'!K$7","v":0},{"$f":"AM179*'Other input expert'!L$14*'Sales price per sales channel'!$I179*'Other input expert'!L$7","v":0},{"$f":"AN179*'Other input expert'!M$14*'Sales price per sales channel'!$I179*'Other input expert'!M$7","v":0}]
["Tilia cordata","Lime ",{"$f":"Plantlist!$G180*'Production list'!D181*'Other input expert'!B$4*'Other input expert'!B$8","v":0},{"$f":"Plantlist!$G180*'Production list'!E181*'Other input expert'!C$4*'Other input expert'!C$8","v":0},{"$f":"Plantlist!$G180*'Production list'!F181*'Other input expert'!D$4*'Other input expert'!D$8","v":0},{"$f":"Plantlist!$G180*'Production list'!G181*'Other input expert'!E$4*'Other input expert'!E$8","v":0},{"$f":"Plantlist!$G180*'Production list'!H181*'Other input expert'!F$4*'Other input expert'!F$8","v":0},{"$f":"Plantlist!$G180*'Production list'!I181*'Other input expert'!G$4*'Other input expert'!G$8","v":0},{"$f":"Plantlist!$G180*'Production list'!J181*'Other input expert'!H$4*'Other input expert'!H$8","v":0},{"$f":"Plantlist!$G180*'Production list'!K181*'Other input expert'!I$4*'Other input expert'!I$8","v":0},{"$f":"Plantlist!$G180*'Production list'!L181*'Other input expert'!J$4*'Other input expert'!J$8","v":0},{"$f":"Plantlist!$G180*'Production list'!M181*'Other input expert'!K$4*'Other input expert'!K$8","v":0},{"$f":"Plantlist!$G180*'Production list'!N181*'Other input expert'!L$4*'Other input expert'!L$8","v":0},{"$f":"Plantlist!$G180*'Production list'!O181*'Other input expert'!M$4*'Other input expert'!M$8","v":0},null,{"$f":"C180*'Other input expert'!B$5","v":0},{"$f":"D180*'Other input expert'!C$5","v":0},{"$f":"E180*'Other input expert'!D$5","v":0},{"$f":"F180*'Other input expert'!E$5","v":0},{"$f":"G180*'Other input expert'!F$5","v":0},{"$f":"H180*'Other input expert'!G$5","v":0},{"$f":"I180*'Other input expert'!H$5","v":0},{"$f":"J180*'Other input expert'!I$5","v":0},{"$f":"K180*'Other input expert'!J$5","v":0},{"$f":"L180*'Other input expert'!K$5","v":0},{"$f":"M180*'Other input expert'!L$5","v":0},{"$f":"N180*'Other input expert'!M$5","v":0},null,{"$f":"C180*(100%-'Other input expert'!B$5)","v":0},{"$f":"D180*(100%-'Other input expert'!C$5)","v":0},{"$f":"E180*(100%-'Other input expert'!D$5)","v":0},{"$f":"F180*(100%-'Other input expert'!E$5)","v":0},{"$f":"G180*(100%-'Other input expert'!F$5)","v":0},{"$f":"H180*(100%-'Other input expert'!G$5)","v":0},{"$f":"I180*(100%-'Other input expert'!H$5)","v":0},{"$f":"J180*(100%-'Other input expert'!I$5)","v":0},{"$f":"K180*(100%-'Other input expert'!J$5)","v":0},{"$f":"L180*(100%-'Other input expert'!K$5)","v":0},{"$f":"M180*(100%-'Other input expert'!L$5)","v":0},{"$f":"N180*(100%-'Other input expert'!M$5)","v":0},null,{"$f":"P180*'Other input expert'!B$12*'Sales price per sales channel'!$G180*'Other input expert'!B$6","v":0},{"$f":"Q180*'Other input expert'!C$12*'Sales price per sales channel'!$G180*'Other input expert'!C$6","v":0},{"$f":"R180*'Other input expert'!D$12*'Sales price per sales channel'!$G180*'Other input expert'!D$6","v":0},{"$f":"S180*'Other input expert'!E$12*'Sales price per sales channel'!$G180*'Other input expert'!E$6","v":0},{"$f":"T180*'Other input expert'!F$12*'Sales price per sales channel'!$G180*'Other input expert'!F$6","v":0},{"$f":"U180*'Other input expert'!G$12*'Sales price per sales channel'!$G180*'Other input expert'!G$6","v":0},{"$f":"V180*'Other input expert'!H$12*'Sales price per sales channel'!$G180*'Other input expert'!H$6","v":0},{"$f":"W180*'Other input expert'!I$12*'Sales price per sales channel'!$G180*'Other input expert'!I$6","v":0},{"$f":"X180*'Other input expert'!J$12*'Sales price per sales channel'!$G180*'Other input expert'!J$6","v":0},{"$f":"Y180*'Other input expert'!K$12*'Sales price per sales channel'!$G180*'Other input expert'!K$6","v":0},{"$f":"Z180*'Other input expert'!L$12*'Sales price per sales channel'!$G180*'Other input expert'!L$6","v":0},{"$f":"AA180*'Other input expert'!M$12*'Sales price per sales channel'!$G180*'Other input expert'!M$6","v":0},null,{"$f":"P180*'Other input expert'!B$13*'Sales price per sales channel'!$H180*'Other input expert'!B$6","v":0},{"$f":"Q180*'Other input expert'!C$13*'Sales price per sales channel'!$H180*'Other input expert'!C$6","v":0},{"$f":"R180*'Other input expert'!D$13*'Sales price per sales channel'!$H180*'Other input expert'!D$6","v":0},{"$f":"S180*'Other input expert'!E$13*'Sales price per sales channel'!$H180*'Other input expert'!E$6","v":0},{"$f":"T180*'Other input expert'!F$13*'Sales price per sales channel'!$H180*'Other input expert'!F$6","v":0},{"$f":"U180*'Other input expert'!G$13*'Sales price per sales channel'!$H180*'Other input expert'!G$6","v":0},{"$f":"V180*'Other input expert'!H$13*'Sales price per sales channel'!$H180*'Other input expert'!H$6","v":0},{"$f":"W180*'Other input expert'!I$13*'Sales price per sales channel'!$H180*'Other input expert'!I$6","v":0},{"$f":"X180*'Other input expert'!J$13*'Sales price per sales channel'!$H180*'Other input expert'!J$6","v":0},{"$f":"Y180*'Other input expert'!K$13*'Sales price per sales channel'!$H180*'Other input expert'!K$6","v":0},{"$f":"Z180*'Other input expert'!L$13*'Sales price per sales channel'!$H180*'Other input expert'!L$6","v":0},{"$f":"AA180*'Other input expert'!M$13*'Sales price per sales channel'!$H180*'Other input expert'!M$6","v":0},null,{"$f":"P180*'Other input expert'!B$14*'Sales price per sales channel'!$I180*'Other input expert'!B$6","v":0},{"$f":"Q180*'Other input expert'!C$14*'Sales price per sales channel'!$I180*'Other input expert'!C$6","v":0},{"$f":"R180*'Other input expert'!D$14*'Sales price per sales channel'!$I180*'Other input expert'!D$6","v":0},{"$f":"S180*'Other input expert'!E$14*'Sales price per sales channel'!$I180*'Other input expert'!E$6","v":0},{"$f":"T180*'Other input expert'!F$14*'Sales price per sales channel'!$I180*'Other input expert'!F$6","v":0},{"$f":"U180*'Other input expert'!G$14*'Sales price per sales channel'!$I180*'Other input expert'!G$6","v":0},{"$f":"V180*'Other input expert'!H$14*'Sales price per sales channel'!$I180*'Other input expert'!H$6","v":0},{"$f":"W180*'Other input expert'!I$14*'Sales price per sales channel'!$I180*'Other input expert'!I$6","v":0},{"$f":"X180*'Other input expert'!J$14*'Sales price per sales channel'!$I180*'Other input expert'!J$6","v":0},{"$f":"Y180*'Other input expert'!K$14*'Sales price per sales channel'!$I180*'Other input expert'!K$6","v":0},{"$f":"Z180*'Other input expert'!L$14*'Sales price per sales channel'!$I180*'Other input expert'!L$6","v":0},{"$f":"AA180*'Other input expert'!M$14*'Sales price per sales channel'!$I180*'Other input expert'!M$6","v":0},null,{"$f":"AC180*'Other input expert'!B$12*'Sales price per sales channel'!$G180*'Other input expert'!B$7","v":0},{"$f":"AD180*'Other input expert'!C$12*'Sales price per sales channel'!$G180*'Other input expert'!C$7","v":0},{"$f":"AE180*'Other input expert'!D$12*'Sales price per sales channel'!$G180*'Other input expert'!D$7","v":0},{"$f":"AF180*'Other input expert'!E$12*'Sales price per sales channel'!$G180*'Other input expert'!E$7","v":0},{"$f":"AG180*'Other input expert'!F$12*'Sales price per sales channel'!$G180*'Other input expert'!F$7","v":0},{"$f":"AH180*'Other input expert'!G$12*'Sales price per sales channel'!$G180*'Other input expert'!G$7","v":0},{"$f":"AI180*'Other input expert'!H$12*'Sales price per sales channel'!$G180*'Other input expert'!H$7","v":0},{"$f":"AJ180*'Other input expert'!I$12*'Sales price per sales channel'!$G180*'Other input expert'!I$7","v":0},{"$f":"AK180*'Other input expert'!J$12*'Sales price per sales channel'!$G180*'Other input expert'!J$7","v":0},{"$f":"AL180*'Other input expert'!K$12*'Sales price per sales channel'!$G180*'Other input expert'!K$7","v":0},{"$f":"AM180*'Other input expert'!L$12*'Sales price per sales channel'!$G180*'Other input expert'!L$7","v":0},{"$f":"AN180*'Other input expert'!M$12*'Sales price per sales channel'!$G180*'Other input expert'!M$7","v":0},null,{"$f":"AC180*'Other input expert'!B$13*'Sales price per sales channel'!$H180*'Other input expert'!B$7","v":0},{"$f":"AD180*'Other input expert'!C$13*'Sales price per sales channel'!$H180*'Other input expert'!C$7","v":0},{"$f":"AE180*'Other input expert'!D$13*'Sales price per sales channel'!$H180*'Other input expert'!D$7","v":0},{"$f":"AF180*'Other input expert'!E$13*'Sales price per sales channel'!$H180*'Other input expert'!E$7","v":0},{"$f":"AG180*'Other input expert'!F$13*'Sales price per sales channel'!$H180*'Other input expert'!F$7","v":0},{"$f":"AH180*'Other input expert'!G$13*'Sales price per sales channel'!$H180*'Other input expert'!G$7","v":0},{"$f":"AI180*'Other input expert'!H$13*'Sales price per sales channel'!$H180*'Other input expert'!H$7","v":0},{"$f":"AJ180*'Other input expert'!I$13*'Sales price per sales channel'!$H180*'Other input expert'!I$7","v":0},{"$f":"AK180*'Other input expert'!J$13*'Sales price per sales channel'!$H180*'Other input expert'!J$7","v":0},{"$f":"AL180*'Other input expert'!K$13*'Sales price per sales channel'!$H180*'Other input expert'!K$7","v":0},{"$f":"AM180*'Other input expert'!L$13*'Sales price per sales channel'!$H180*'Other input expert'!L$7","v":0},{"$f":"AN180*'Other input expert'!M$13*'Sales price per sales channel'!$H180*'Other input expert'!M$7","v":0},null,{"$f":"AC180*'Other input expert'!B$14*'Sales price per sales channel'!$I180*'Other input expert'!B$7","v":0},{"$f":"AD180*'Other input expert'!C$14*'Sales price per sales channel'!$I180*'Other input expert'!C$7","v":0},{"$f":"AE180*'Other input expert'!D$14*'Sales price per sales channel'!$I180*'Other input expert'!D$7","v":0},{"$f":"AF180*'Other input expert'!E$14*'Sales price per sales channel'!$I180*'Other input expert'!E$7","v":0},{"$f":"AG180*'Other input expert'!F$14*'Sales price per sales channel'!$I180*'Other input expert'!F$7","v":0},{"$f":"AH180*'Other input expert'!G$14*'Sales price per sales channel'!$I180*'Other input expert'!G$7","v":0},{"$f":"AI180*'Other input expert'!H$14*'Sales price per sales channel'!$I180*'Other input expert'!H$7","v":0},{"$f":"AJ180*'Other input expert'!I$14*'Sales price per sales channel'!$I180*'Other input expert'!I$7","v":0},{"$f":"AK180*'Other input expert'!J$14*'Sales price per sales channel'!$I180*'Other input expert'!J$7","v":0},{"$f":"AL180*'Other input expert'!K$14*'Sales price per sales channel'!$I180*'Other input expert'!K$7","v":0},{"$f":"AM180*'Other input expert'!L$14*'Sales price per sales channel'!$I180*'Other input expert'!L$7","v":0},{"$f":"AN180*'Other input expert'!M$14*'Sales price per sales channel'!$I180*'Other input expert'!M$7","v":0}]
["Toona sinensis","Chinese cedar",{"$f":"Plantlist!$G181*'Production list'!D182*'Other input expert'!B$4*'Other input expert'!B$8","v":0},{"$f":"Plantlist!$G181*'Production list'!E182*'Other input expert'!C$4*'Other input expert'!C$8","v":0},{"$f":"Plantlist!$G181*'Production list'!F182*'Other input expert'!D$4*'Other input expert'!D$8","v":0},{"$f":"Plantlist!$G181*'Production list'!G182*'Other input expert'!E$4*'Other input expert'!E$8","v":0},{"$f":"Plantlist!$G181*'Production list'!H182*'Other input expert'!F$4*'Other input expert'!F$8","v":0},{"$f":"Plantlist!$G181*'Production list'!I182*'Other input expert'!G$4*'Other input expert'!G$8","v":0},{"$f":"Plantlist!$G181*'Production list'!J182*'Other input expert'!H$4*'Other input expert'!H$8","v":0},{"$f":"Plantlist!$G181*'Production list'!K182*'Other input expert'!I$4*'Other input expert'!I$8","v":0},{"$f":"Plantlist!$G181*'Production list'!L182*'Other input expert'!J$4*'Other input expert'!J$8","v":0},{"$f":"Plantlist!$G181*'Production list'!M182*'Other input expert'!K$4*'Other input expert'!K$8","v":0},{"$f":"Plantlist!$G181*'Production list'!N182*'Other input expert'!L$4*'Other input expert'!L$8","v":0},{"$f":"Plantlist!$G181*'Production list'!O182*'Other input expert'!M$4*'Other input expert'!M$8","v":0},null,{"$f":"C181*'Other input expert'!B$5","v":0},{"$f":"D181*'Other input expert'!C$5","v":0},{"$f":"E181*'Other input expert'!D$5","v":0},{"$f":"F181*'Other input expert'!E$5","v":0},{"$f":"G181*'Other input expert'!F$5","v":0},{"$f":"H181*'Other input expert'!G$5","v":0},{"$f":"I181*'Other input expert'!H$5","v":0},{"$f":"J181*'Other input expert'!I$5","v":0},{"$f":"K181*'Other input expert'!J$5","v":0},{"$f":"L181*'Other input expert'!K$5","v":0},{"$f":"M181*'Other input expert'!L$5","v":0},{"$f":"N181*'Other input expert'!M$5","v":0},null,{"$f":"C181*(100%-'Other input expert'!B$5)","v":0},{"$f":"D181*(100%-'Other input expert'!C$5)","v":0},{"$f":"E181*(100%-'Other input expert'!D$5)","v":0},{"$f":"F181*(100%-'Other input expert'!E$5)","v":0},{"$f":"G181*(100%-'Other input expert'!F$5)","v":0},{"$f":"H181*(100%-'Other input expert'!G$5)","v":0},{"$f":"I181*(100%-'Other input expert'!H$5)","v":0},{"$f":"J181*(100%-'Other input expert'!I$5)","v":0},{"$f":"K181*(100%-'Other input expert'!J$5)","v":0},{"$f":"L181*(100%-'Other input expert'!K$5)","v":0},{"$f":"M181*(100%-'Other input expert'!L$5)","v":0},{"$f":"N181*(100%-'Other input expert'!M$5)","v":0},null,{"$f":"P181*'Other input expert'!B$12*'Sales price per sales channel'!$G181*'Other input expert'!B$6","v":0},{"$f":"Q181*'Other input expert'!C$12*'Sales price per sales channel'!$G181*'Other input expert'!C$6","v":0},{"$f":"R181*'Other input expert'!D$12*'Sales price per sales channel'!$G181*'Other input expert'!D$6","v":0},{"$f":"S181*'Other input expert'!E$12*'Sales price per sales channel'!$G181*'Other input expert'!E$6","v":0},{"$f":"T181*'Other input expert'!F$12*'Sales price per sales channel'!$G181*'Other input expert'!F$6","v":0},{"$f":"U181*'Other input expert'!G$12*'Sales price per sales channel'!$G181*'Other input expert'!G$6","v":0},{"$f":"V181*'Other input expert'!H$12*'Sales price per sales channel'!$G181*'Other input expert'!H$6","v":0},{"$f":"W181*'Other input expert'!I$12*'Sales price per sales channel'!$G181*'Other input expert'!I$6","v":0},{"$f":"X181*'Other input expert'!J$12*'Sales price per sales channel'!$G181*'Other input expert'!J$6","v":0},{"$f":"Y181*'Other input expert'!K$12*'Sales price per sales channel'!$G181*'Other input expert'!K$6","v":0},{"$f":"Z181*'Other input expert'!L$12*'Sales price per sales channel'!$G181*'Other input expert'!L$6","v":0},{"$f":"AA181*'Other input expert'!M$12*'Sales price per sales channel'!$G181*'Other input expert'!M$6","v":0},null,{"$f":"P181*'Other input expert'!B$13*'Sales price per sales channel'!$H181*'Other input expert'!B$6","v":0},{"$f":"Q181*'Other input expert'!C$13*'Sales price per sales channel'!$H181*'Other input expert'!C$6","v":0},{"$f":"R181*'Other input expert'!D$13*'Sales price per sales channel'!$H181*'Other input expert'!D$6","v":0},{"$f":"S181*'Other input expert'!E$13*'Sales price per sales channel'!$H181*'Other input expert'!E$6","v":0},{"$f":"T181*'Other input expert'!F$13*'Sales price per sales channel'!$H181*'Other input expert'!F$6","v":0},{"$f":"U181*'Other input expert'!G$13*'Sales price per sales channel'!$H181*'Other input expert'!G$6","v":0},{"$f":"V181*'Other input expert'!H$13*'Sales price per sales channel'!$H181*'Other input expert'!H$6","v":0},{"$f":"W181*'Other input expert'!I$13*'Sales price per sales channel'!$H181*'Other input expert'!I$6","v":0},{"$f":"X181*'Other input expert'!J$13*'Sales price per sales channel'!$H181*'Other input expert'!J$6","v":0},{"$f":"Y181*'Other input expert'!K$13*'Sales price per sales channel'!$H181*'Other input expert'!K$6","v":0},{"$f":"Z181*'Other input expert'!L$13*'Sales price per sales channel'!$H181*'Other input expert'!L$6","v":0},{"$f":"AA181*'Other input expert'!M$13*'Sales price per sales channel'!$H181*'Other input expert'!M$6","v":0},null,{"$f":"P181*'Other input expert'!B$14*'Sales price per sales channel'!$I181*'Other input expert'!B$6","v":0},{"$f":"Q181*'Other input expert'!C$14*'Sales price per sales channel'!$I181*'Other input expert'!C$6","v":0},{"$f":"R181*'Other input expert'!D$14*'Sales price per sales channel'!$I181*'Other input expert'!D$6","v":0},{"$f":"S181*'Other input expert'!E$14*'Sales price per sales channel'!$I181*'Other input expert'!E$6","v":0},{"$f":"T181*'Other input expert'!F$14*'Sales price per sales channel'!$I181*'Other input expert'!F$6","v":0},{"$f":"U181*'Other input expert'!G$14*'Sales price per sales channel'!$I181*'Other input expert'!G$6","v":0},{"$f":"V181*'Other input expert'!H$14*'Sales price per sales channel'!$I181*'Other input expert'!H$6","v":0},{"$f":"W181*'Other input expert'!I$14*'Sales price per sales channel'!$I181*'Other input expert'!I$6","v":0},{"$f":"X181*'Other input expert'!J$14*'Sales price per sales channel'!$I181*'Other input expert'!J$6","v":0},{"$f":"Y181*'Other input expert'!K$14*'Sales price per sales channel'!$I181*'Other input expert'!K$6","v":0},{"$f":"Z181*'Other input expert'!L$14*'Sales price per sales channel'!$I181*'Other input expert'!L$6","v":0},{"$f":"AA181*'Other input expert'!M$14*'Sales price per sales channel'!$I181*'Other input expert'!M$6","v":0},null,{"$f":"AC181*'Other input expert'!B$12*'Sales price per sales channel'!$G181*'Other input expert'!B$7","v":0},{"$f":"AD181*'Other input expert'!C$12*'Sales price per sales channel'!$G181*'Other input expert'!C$7","v":0},{"$f":"AE181*'Other input expert'!D$12*'Sales price per sales channel'!$G181*'Other input expert'!D$7","v":0},{"$f":"AF181*'Other input expert'!E$12*'Sales price per sales channel'!$G181*'Other input expert'!E$7","v":0},{"$f":"AG181*'Other input expert'!F$12*'Sales price per sales channel'!$G181*'Other input expert'!F$7","v":0},{"$f":"AH181*'Other input expert'!G$12*'Sales price per sales channel'!$G181*'Other input expert'!G$7","v":0},{"$f":"AI181*'Other input expert'!H$12*'Sales price per sales channel'!$G181*'Other input expert'!H$7","v":0},{"$f":"AJ181*'Other input expert'!I$12*'Sales price per sales channel'!$G181*'Other input expert'!I$7","v":0},{"$f":"AK181*'Other input expert'!J$12*'Sales price per sales channel'!$G181*'Other input expert'!J$7","v":0},{"$f":"AL181*'Other input expert'!K$12*'Sales price per sales channel'!$G181*'Other input expert'!K$7","v":0},{"$f":"AM181*'Other input expert'!L$12*'Sales price per sales channel'!$G181*'Other input expert'!L$7","v":0},{"$f":"AN181*'Other input expert'!M$12*'Sales price per sales channel'!$G181*'Other input expert'!M$7","v":0},null,{"$f":"AC181*'Other input expert'!B$13*'Sales price per sales channel'!$H181*'Other input expert'!B$7","v":0},{"$f":"AD181*'Other input expert'!C$13*'Sales price per sales channel'!$H181*'Other input expert'!C$7","v":0},{"$f":"AE181*'Other input expert'!D$13*'Sales price per sales channel'!$H181*'Other input expert'!D$7","v":0},{"$f":"AF181*'Other input expert'!E$13*'Sales price per sales channel'!$H181*'Other input expert'!E$7","v":0},{"$f":"AG181*'Other input expert'!F$13*'Sales price per sales channel'!$H181*'Other input expert'!F$7","v":0},{"$f":"AH181*'Other input expert'!G$13*'Sales price per sales channel'!$H181*'Other input expert'!G$7","v":0},{"$f":"AI181*'Other input expert'!H$13*'Sales price per sales channel'!$H181*'Other input expert'!H$7","v":0},{"$f":"AJ181*'Other input expert'!I$13*'Sales price per sales channel'!$H181*'Other input expert'!I$7","v":0},{"$f":"AK181*'Other input expert'!J$13*'Sales price per sales channel'!$H181*'Other input expert'!J$7","v":0},{"$f":"AL181*'Other input expert'!K$13*'Sales price per sales channel'!$H181*'Other input expert'!K$7","v":0},{"$f":"AM181*'Other input expert'!L$13*'Sales price per sales channel'!$H181*'Other input expert'!L$7","v":0},{"$f":"AN181*'Other input expert'!M$13*'Sales price per sales channel'!$H181*'Other input expert'!M$7","v":0},null,{"$f":"AC181*'Other input expert'!B$14*'Sales price per sales channel'!$I181*'Other input expert'!B$7","v":0},{"$f":"AD181*'Other input expert'!C$14*'Sales price per sales channel'!$I181*'Other input expert'!C$7","v":0},{"$f":"AE181*'Other input expert'!D$14*'Sales price per sales channel'!$I181*'Other input expert'!D$7","v":0},{"$f":"AF181*'Other input expert'!E$14*'Sales price per sales channel'!$I181*'Other input expert'!E$7","v":0},{"$f":"AG181*'Other input expert'!F$14*'Sales price per sales channel'!$I181*'Other input expert'!F$7","v":0},{"$f":"AH181*'Other input expert'!G$14*'Sales price per sales channel'!$I181*'Other input expert'!G$7","v":0},{"$f":"AI181*'Other input expert'!H$14*'Sales price per sales channel'!$I181*'Other input expert'!H$7","v":0},{"$f":"AJ181*'Other input expert'!I$14*'Sales price per sales channel'!$I181*'Other input expert'!I$7","v":0},{"$f":"AK181*'Other input expert'!J$14*'Sales price per sales channel'!$I181*'Other input expert'!J$7","v":0},{"$f":"AL181*'Other input expert'!K$14*'Sales price per sales channel'!$I181*'Other input expert'!K$7","v":0},{"$f":"AM181*'Other input expert'!L$14*'Sales price per sales channel'!$I181*'Other input expert'!L$7","v":0},{"$f":"AN181*'Other input expert'!M$14*'Sales price per sales channel'!$I181*'Other input expert'!M$7","v":0}]
["Ugni Molinae","Chilean guava",{"$f":"Plantlist!$G182*'Production list'!D183*'Other input expert'!B$4*'Other input expert'!B$8","v":0},{"$f":"Plantlist!$G182*'Production list'!E183*'Other input expert'!C$4*'Other input expert'!C$8","v":0},{"$f":"Plantlist!$G182*'Production list'!F183*'Other input expert'!D$4*'Other input expert'!D$8","v":0},{"$f":"Plantlist!$G182*'Production list'!G183*'Other input expert'!E$4*'Other input expert'!E$8","v":0},{"$f":"Plantlist!$G182*'Production list'!H183*'Other input expert'!F$4*'Other input expert'!F$8","v":0},{"$f":"Plantlist!$G182*'Production list'!I183*'Other input expert'!G$4*'Other input expert'!G$8","v":0},{"$f":"Plantlist!$G182*'Production list'!J183*'Other input expert'!H$4*'Other input expert'!H$8","v":0},{"$f":"Plantlist!$G182*'Production list'!K183*'Other input expert'!I$4*'Other input expert'!I$8","v":0},{"$f":"Plantlist!$G182*'Production list'!L183*'Other input expert'!J$4*'Other input expert'!J$8","v":0},{"$f":"Plantlist!$G182*'Production list'!M183*'Other input expert'!K$4*'Other input expert'!K$8","v":0},{"$f":"Plantlist!$G182*'Production list'!N183*'Other input expert'!L$4*'Other input expert'!L$8","v":0},{"$f":"Plantlist!$G182*'Production list'!O183*'Other input expert'!M$4*'Other input expert'!M$8","v":0},null,{"$f":"C182*'Other input expert'!B$5","v":0},{"$f":"D182*'Other input expert'!C$5","v":0},{"$f":"E182*'Other input expert'!D$5","v":0},{"$f":"F182*'Other input expert'!E$5","v":0},{"$f":"G182*'Other input expert'!F$5","v":0},{"$f":"H182*'Other input expert'!G$5","v":0},{"$f":"I182*'Other input expert'!H$5","v":0},{"$f":"J182*'Other input expert'!I$5","v":0},{"$f":"K182*'Other input expert'!J$5","v":0},{"$f":"L182*'Other input expert'!K$5","v":0},{"$f":"M182*'Other input expert'!L$5","v":0},{"$f":"N182*'Other input expert'!M$5","v":0},null,{"$f":"C182*(100%-'Other input expert'!B$5)","v":0},{"$f":"D182*(100%-'Other input expert'!C$5)","v":0},{"$f":"E182*(100%-'Other input expert'!D$5)","v":0},{"$f":"F182*(100%-'Other input expert'!E$5)","v":0},{"$f":"G182*(100%-'Other input expert'!F$5)","v":0},{"$f":"H182*(100%-'Other input expert'!G$5)","v":0},{"$f":"I182*(100%-'Other input expert'!H$5)","v":0},{"$f":"J182*(100%-'Other input expert'!I$5)","v":0},{"$f":"K182*(100%-'Other input expert'!J$5)","v":0},{"$f":"L182*(100%-'Other input expert'!K$5)","v":0},{"$f":"M182*(100%-'Other input expert'!L$5)","v":0},{"$f":"N182*(100%-'Other input expert'!M$5)","v":0},null,{"$f":"P182*'Other input expert'!B$12*'Sales price per sales channel'!$G182*'Other input expert'!B$6","v":0},{"$f":"Q182*'Other input expert'!C$12*'Sales price per sales channel'!$G182*'Other input expert'!C$6","v":0},{"$f":"R182*'Other input expert'!D$12*'Sales price per sales channel'!$G182*'Other input expert'!D$6","v":0},{"$f":"S182*'Other input expert'!E$12*'Sales price per sales channel'!$G182*'Other input expert'!E$6","v":0},{"$f":"T182*'Other input expert'!F$12*'Sales price per sales channel'!$G182*'Other input expert'!F$6","v":0},{"$f":"U182*'Other input expert'!G$12*'Sales price per sales channel'!$G182*'Other input expert'!G$6","v":0},{"$f":"V182*'Other input expert'!H$12*'Sales price per sales channel'!$G182*'Other input expert'!H$6","v":0},{"$f":"W182*'Other input expert'!I$12*'Sales price per sales channel'!$G182*'Other input expert'!I$6","v":0},{"$f":"X182*'Other input expert'!J$12*'Sales price per sales channel'!$G182*'Other input expert'!J$6","v":0},{"$f":"Y182*'Other input expert'!K$12*'Sales price per sales channel'!$G182*'Other input expert'!K$6","v":0},{"$f":"Z182*'Other input expert'!L$12*'Sales price per sales channel'!$G182*'Other input expert'!L$6","v":0},{"$f":"AA182*'Other input expert'!M$12*'Sales price per sales channel'!$G182*'Other input expert'!M$6","v":0},null,{"$f":"P182*'Other input expert'!B$13*'Sales price per sales channel'!$H182*'Other input expert'!B$6","v":0},{"$f":"Q182*'Other input expert'!C$13*'Sales price per sales channel'!$H182*'Other input expert'!C$6","v":0},{"$f":"R182*'Other input expert'!D$13*'Sales price per sales channel'!$H182*'Other input expert'!D$6","v":0},{"$f":"S182*'Other input expert'!E$13*'Sales price per sales channel'!$H182*'Other input expert'!E$6","v":0},{"$f":"T182*'Other input expert'!F$13*'Sales price per sales channel'!$H182*'Other input expert'!F$6","v":0},{"$f":"U182*'Other input expert'!G$13*'Sales price per sales channel'!$H182*'Other input expert'!G$6","v":0},{"$f":"V182*'Other input expert'!H$13*'Sales price per sales channel'!$H182*'Other input expert'!H$6","v":0},{"$f":"W182*'Other input expert'!I$13*'Sales price per sales channel'!$H182*'Other input expert'!I$6","v":0},{"$f":"X182*'Other input expert'!J$13*'Sales price per sales channel'!$H182*'Other input expert'!J$6","v":0},{"$f":"Y182*'Other input expert'!K$13*'Sales price per sales channel'!$H182*'Other input expert'!K$6","v":0},{"$f":"Z182*'Other input expert'!L$13*'Sales price per sales channel'!$H182*'Other input expert'!L$6","v":0},{"$f":"AA182*'Other input expert'!M$13*'Sales price per sales channel'!$H182*'Other input expert'!M$6","v":0},null,{"$f":"P182*'Other input expert'!B$14*'Sales price per sales channel'!$I182*'Other input expert'!B$6","v":0},{"$f":"Q182*'Other input expert'!C$14*'Sales price per sales channel'!$I182*'Other input expert'!C$6","v":0},{"$f":"R182*'Other input expert'!D$14*'Sales price per sales channel'!$I182*'Other input expert'!D$6","v":0},{"$f":"S182*'Other input expert'!E$14*'Sales price per sales channel'!$I182*'Other input expert'!E$6","v":0},{"$f":"T182*'Other input expert'!F$14*'Sales price per sales channel'!$I182*'Other input expert'!F$6","v":0},{"$f":"U182*'Other input expert'!G$14*'Sales price per sales channel'!$I182*'Other input expert'!G$6","v":0},{"$f":"V182*'Other input expert'!H$14*'Sales price per sales channel'!$I182*'Other input expert'!H$6","v":0},{"$f":"W182*'Other input expert'!I$14*'Sales price per sales channel'!$I182*'Other input expert'!I$6","v":0},{"$f":"X182*'Other input expert'!J$14*'Sales price per sales channel'!$I182*'Other input expert'!J$6","v":0},{"$f":"Y182*'Other input expert'!K$14*'Sales price per sales channel'!$I182*'Other input expert'!K$6","v":0},{"$f":"Z182*'Other input expert'!L$14*'Sales price per sales channel'!$I182*'Other input expert'!L$6","v":0},{"$f":"AA182*'Other input expert'!M$14*'Sales price per sales channel'!$I182*'Other input expert'!M$6","v":0},null,{"$f":"AC182*'Other input expert'!B$12*'Sales price per sales channel'!$G182*'Other input expert'!B$7","v":0},{"$f":"AD182*'Other input expert'!C$12*'Sales price per sales channel'!$G182*'Other input expert'!C$7","v":0},{"$f":"AE182*'Other input expert'!D$12*'Sales price per sales channel'!$G182*'Other input expert'!D$7","v":0},{"$f":"AF182*'Other input expert'!E$12*'Sales price per sales channel'!$G182*'Other input expert'!E$7","v":0},{"$f":"AG182*'Other input expert'!F$12*'Sales price per sales channel'!$G182*'Other input expert'!F$7","v":0},{"$f":"AH182*'Other input expert'!G$12*'Sales price per sales channel'!$G182*'Other input expert'!G$7","v":0},{"$f":"AI182*'Other input expert'!H$12*'Sales price per sales channel'!$G182*'Other input expert'!H$7","v":0},{"$f":"AJ182*'Other input expert'!I$12*'Sales price per sales channel'!$G182*'Other input expert'!I$7","v":0},{"$f":"AK182*'Other input expert'!J$12*'Sales price per sales channel'!$G182*'Other input expert'!J$7","v":0},{"$f":"AL182*'Other input expert'!K$12*'Sales price per sales channel'!$G182*'Other input expert'!K$7","v":0},{"$f":"AM182*'Other input expert'!L$12*'Sales price per sales channel'!$G182*'Other input expert'!L$7","v":0},{"$f":"AN182*'Other input expert'!M$12*'Sales price per sales channel'!$G182*'Other input expert'!M$7","v":0},null,{"$f":"AC182*'Other input expert'!B$13*'Sales price per sales channel'!$H182*'Other input expert'!B$7","v":0},{"$f":"AD182*'Other input expert'!C$13*'Sales price per sales channel'!$H182*'Other input expert'!C$7","v":0},{"$f":"AE182*'Other input expert'!D$13*'Sales price per sales channel'!$H182*'Other input expert'!D$7","v":0},{"$f":"AF182*'Other input expert'!E$13*'Sales price per sales channel'!$H182*'Other input expert'!E$7","v":0},{"$f":"AG182*'Other input expert'!F$13*'Sales price per sales channel'!$H182*'Other input expert'!F$7","v":0},{"$f":"AH182*'Other input expert'!G$13*'Sales price per sales channel'!$H182*'Other input expert'!G$7","v":0},{"$f":"AI182*'Other input expert'!H$13*'Sales price per sales channel'!$H182*'Other input expert'!H$7","v":0},{"$f":"AJ182*'Other input expert'!I$13*'Sales price per sales channel'!$H182*'Other input expert'!I$7","v":0},{"$f":"AK182*'Other input expert'!J$13*'Sales price per sales channel'!$H182*'Other input expert'!J$7","v":0},{"$f":"AL182*'Other input expert'!K$13*'Sales price per sales channel'!$H182*'Other input expert'!K$7","v":0},{"$f":"AM182*'Other input expert'!L$13*'Sales price per sales channel'!$H182*'Other input expert'!L$7","v":0},{"$f":"AN182*'Other input expert'!M$13*'Sales price per sales channel'!$H182*'Other input expert'!M$7","v":0},null,{"$f":"AC182*'Other input expert'!B$14*'Sales price per sales channel'!$I182*'Other input expert'!B$7","v":0},{"$f":"AD182*'Other input expert'!C$14*'Sales price per sales channel'!$I182*'Other input expert'!C$7","v":0},{"$f":"AE182*'Other input expert'!D$14*'Sales price per sales channel'!$I182*'Other input expert'!D$7","v":0},{"$f":"AF182*'Other input expert'!E$14*'Sales price per sales channel'!$I182*'Other input expert'!E$7","v":0},{"$f":"AG182*'Other input expert'!F$14*'Sales price per sales channel'!$I182*'Other input expert'!F$7","v":0},{"$f":"AH182*'Other input expert'!G$14*'Sales price per sales channel'!$I182*'Other input expert'!G$7","v":0},{"$f":"AI182*'Other input expert'!H$14*'Sales price per sales channel'!$I182*'Other input expert'!H$7","v":0},{"$f":"AJ182*'Other input expert'!I$14*'Sales price per sales channel'!$I182*'Other input expert'!I$7","v":0},{"$f":"AK182*'Other input expert'!J$14*'Sales price per sales channel'!$I182*'Other input expert'!J$7","v":0},{"$f":"AL182*'Other input expert'!K$14*'Sales price per sales channel'!$I182*'Other input expert'!K$7","v":0},{"$f":"AM182*'Other input expert'!L$14*'Sales price per sales channel'!$I182*'Other input expert'!L$7","v":0},{"$f":"AN182*'Other input expert'!M$14*'Sales price per sales channel'!$I182*'Other input expert'!M$7","v":0}]
["Ulmus laevis","Elm",{"$f":"Plantlist!$G183*'Production list'!D184*'Other input expert'!B$4*'Other input expert'!B$8","v":0},{"$f":"Plantlist!$G183*'Production list'!E184*'Other input expert'!C$4*'Other input expert'!C$8","v":0},{"$f":"Plantlist!$G183*'Production list'!F184*'Other input expert'!D$4*'Other input expert'!D$8","v":0},{"$f":"Plantlist!$G183*'Production list'!G184*'Other input expert'!E$4*'Other input expert'!E$8","v":0},{"$f":"Plantlist!$G183*'Production list'!H184*'Other input expert'!F$4*'Other input expert'!F$8","v":0},{"$f":"Plantlist!$G183*'Production list'!I184*'Other input expert'!G$4*'Other input expert'!G$8","v":0},{"$f":"Plantlist!$G183*'Production list'!J184*'Other input expert'!H$4*'Other input expert'!H$8","v":0},{"$f":"Plantlist!$G183*'Production list'!K184*'Other input expert'!I$4*'Other input expert'!I$8","v":0},{"$f":"Plantlist!$G183*'Production list'!L184*'Other input expert'!J$4*'Other input expert'!J$8","v":0},{"$f":"Plantlist!$G183*'Production list'!M184*'Other input expert'!K$4*'Other input expert'!K$8","v":0},{"$f":"Plantlist!$G183*'Production list'!N184*'Other input expert'!L$4*'Other input expert'!L$8","v":0},{"$f":"Plantlist!$G183*'Production list'!O184*'Other input expert'!M$4*'Other input expert'!M$8","v":0},null,{"$f":"C183*'Other input expert'!B$5","v":0},{"$f":"D183*'Other input expert'!C$5","v":0},{"$f":"E183*'Other input expert'!D$5","v":0},{"$f":"F183*'Other input expert'!E$5","v":0},{"$f":"G183*'Other input expert'!F$5","v":0},{"$f":"H183*'Other input expert'!G$5","v":0},{"$f":"I183*'Other input expert'!H$5","v":0},{"$f":"J183*'Other input expert'!I$5","v":0},{"$f":"K183*'Other input expert'!J$5","v":0},{"$f":"L183*'Other input expert'!K$5","v":0},{"$f":"M183*'Other input expert'!L$5","v":0},{"$f":"N183*'Other input expert'!M$5","v":0},null,{"$f":"C183*(100%-'Other input expert'!B$5)","v":0},{"$f":"D183*(100%-'Other input expert'!C$5)","v":0},{"$f":"E183*(100%-'Other input expert'!D$5)","v":0},{"$f":"F183*(100%-'Other input expert'!E$5)","v":0},{"$f":"G183*(100%-'Other input expert'!F$5)","v":0},{"$f":"H183*(100%-'Other input expert'!G$5)","v":0},{"$f":"I183*(100%-'Other input expert'!H$5)","v":0},{"$f":"J183*(100%-'Other input expert'!I$5)","v":0},{"$f":"K183*(100%-'Other input expert'!J$5)","v":0},{"$f":"L183*(100%-'Other input expert'!K$5)","v":0},{"$f":"M183*(100%-'Other input expert'!L$5)","v":0},{"$f":"N183*(100%-'Other input expert'!M$5)","v":0},null,{"$f":"P183*'Other input expert'!B$12*'Sales price per sales channel'!$G183*'Other input expert'!B$6","v":0},{"$f":"Q183*'Other input expert'!C$12*'Sales price per sales channel'!$G183*'Other input expert'!C$6","v":0},{"$f":"R183*'Other input expert'!D$12*'Sales price per sales channel'!$G183*'Other input expert'!D$6","v":0},{"$f":"S183*'Other input expert'!E$12*'Sales price per sales channel'!$G183*'Other input expert'!E$6","v":0},{"$f":"T183*'Other input expert'!F$12*'Sales price per sales channel'!$G183*'Other input expert'!F$6","v":0},{"$f":"U183*'Other input expert'!G$12*'Sales price per sales channel'!$G183*'Other input expert'!G$6","v":0},{"$f":"V183*'Other input expert'!H$12*'Sales price per sales channel'!$G183*'Other input expert'!H$6","v":0},{"$f":"W183*'Other input expert'!I$12*'Sales price per sales channel'!$G183*'Other input expert'!I$6","v":0},{"$f":"X183*'Other input expert'!J$12*'Sales price per sales channel'!$G183*'Other input expert'!J$6","v":0},{"$f":"Y183*'Other input expert'!K$12*'Sales price per sales channel'!$G183*'Other input expert'!K$6","v":0},{"$f":"Z183*'Other input expert'!L$12*'Sales price per sales channel'!$G183*'Other input expert'!L$6","v":0},{"$f":"AA183*'Other input expert'!M$12*'Sales price per sales channel'!$G183*'Other input expert'!M$6","v":0},null,{"$f":"P183*'Other input expert'!B$13*'Sales price per sales channel'!$H183*'Other input expert'!B$6","v":0},{"$f":"Q183*'Other input expert'!C$13*'Sales price per sales channel'!$H183*'Other input expert'!C$6","v":0},{"$f":"R183*'Other input expert'!D$13*'Sales price per sales channel'!$H183*'Other input expert'!D$6","v":0},{"$f":"S183*'Other input expert'!E$13*'Sales price per sales channel'!$H183*'Other input expert'!E$6","v":0},{"$f":"T183*'Other input expert'!F$13*'Sales price per sales channel'!$H183*'Other input expert'!F$6","v":0},{"$f":"U183*'Other input expert'!G$13*'Sales price per sales channel'!$H183*'Other input expert'!G$6","v":0},{"$f":"V183*'Other input expert'!H$13*'Sales price per sales channel'!$H183*'Other input expert'!H$6","v":0},{"$f":"W183*'Other input expert'!I$13*'Sales price per sales channel'!$H183*'Other input expert'!I$6","v":0},{"$f":"X183*'Other input expert'!J$13*'Sales price per sales channel'!$H183*'Other input expert'!J$6","v":0},{"$f":"Y183*'Other input expert'!K$13*'Sales price per sales channel'!$H183*'Other input expert'!K$6","v":0},{"$f":"Z183*'Other input expert'!L$13*'Sales price per sales channel'!$H183*'Other input expert'!L$6","v":0},{"$f":"AA183*'Other input expert'!M$13*'Sales price per sales channel'!$H183*'Other input expert'!M$6","v":0},null,{"$f":"P183*'Other input expert'!B$14*'Sales price per sales channel'!$I183*'Other input expert'!B$6","v":0},{"$f":"Q183*'Other input expert'!C$14*'Sales price per sales channel'!$I183*'Other input expert'!C$6","v":0},{"$f":"R183*'Other input expert'!D$14*'Sales price per sales channel'!$I183*'Other input expert'!D$6","v":0},{"$f":"S183*'Other input expert'!E$14*'Sales price per sales channel'!$I183*'Other input expert'!E$6","v":0},{"$f":"T183*'Other input expert'!F$14*'Sales price per sales channel'!$I183*'Other input expert'!F$6","v":0},{"$f":"U183*'Other input expert'!G$14*'Sales price per sales channel'!$I183*'Other input expert'!G$6","v":0},{"$f":"V183*'Other input expert'!H$14*'Sales price per sales channel'!$I183*'Other input expert'!H$6","v":0},{"$f":"W183*'Other input expert'!I$14*'Sales price per sales channel'!$I183*'Other input expert'!I$6","v":0},{"$f":"X183*'Other input expert'!J$14*'Sales price per sales channel'!$I183*'Other input expert'!J$6","v":0},{"$f":"Y183*'Other input expert'!K$14*'Sales price per sales channel'!$I183*'Other input expert'!K$6","v":0},{"$f":"Z183*'Other input expert'!L$14*'Sales price per sales channel'!$I183*'Other input expert'!L$6","v":0},{"$f":"AA183*'Other input expert'!M$14*'Sales price per sales channel'!$I183*'Other input expert'!M$6","v":0},null,{"$f":"AC183*'Other input expert'!B$12*'Sales price per sales channel'!$G183*'Other input expert'!B$7","v":0},{"$f":"AD183*'Other input expert'!C$12*'Sales price per sales channel'!$G183*'Other input expert'!C$7","v":0},{"$f":"AE183*'Other input expert'!D$12*'Sales price per sales channel'!$G183*'Other input expert'!D$7","v":0},{"$f":"AF183*'Other input expert'!E$12*'Sales price per sales channel'!$G183*'Other input expert'!E$7","v":0},{"$f":"AG183*'Other input expert'!F$12*'Sales price per sales channel'!$G183*'Other input expert'!F$7","v":0},{"$f":"AH183*'Other input expert'!G$12*'Sales price per sales channel'!$G183*'Other input expert'!G$7","v":0},{"$f":"AI183*'Other input expert'!H$12*'Sales price per sales channel'!$G183*'Other input expert'!H$7","v":0},{"$f":"AJ183*'Other input expert'!I$12*'Sales price per sales channel'!$G183*'Other input expert'!I$7","v":0},{"$f":"AK183*'Other input expert'!J$12*'Sales price per sales channel'!$G183*'Other input expert'!J$7","v":0},{"$f":"AL183*'Other input expert'!K$12*'Sales price per sales channel'!$G183*'Other input expert'!K$7","v":0},{"$f":"AM183*'Other input expert'!L$12*'Sales price per sales channel'!$G183*'Other input expert'!L$7","v":0},{"$f":"AN183*'Other input expert'!M$12*'Sales price per sales channel'!$G183*'Other input expert'!M$7","v":0},null,{"$f":"AC183*'Other input expert'!B$13*'Sales price per sales channel'!$H183*'Other input expert'!B$7","v":0},{"$f":"AD183*'Other input expert'!C$13*'Sales price per sales channel'!$H183*'Other input expert'!C$7","v":0},{"$f":"AE183*'Other input expert'!D$13*'Sales price per sales channel'!$H183*'Other input expert'!D$7","v":0},{"$f":"AF183*'Other input expert'!E$13*'Sales price per sales channel'!$H183*'Other input expert'!E$7","v":0},{"$f":"AG183*'Other input expert'!F$13*'Sales price per sales channel'!$H183*'Other input expert'!F$7","v":0},{"$f":"AH183*'Other input expert'!G$13*'Sales price per sales channel'!$H183*'Other input expert'!G$7","v":0},{"$f":"AI183*'Other input expert'!H$13*'Sales price per sales channel'!$H183*'Other input expert'!H$7","v":0},{"$f":"AJ183*'Other input expert'!I$13*'Sales price per sales channel'!$H183*'Other input expert'!I$7","v":0},{"$f":"AK183*'Other input expert'!J$13*'Sales price per sales channel'!$H183*'Other input expert'!J$7","v":0},{"$f":"AL183*'Other input expert'!K$13*'Sales price per sales channel'!$H183*'Other input expert'!K$7","v":0},{"$f":"AM183*'Other input expert'!L$13*'Sales price per sales channel'!$H183*'Other input expert'!L$7","v":0},{"$f":"AN183*'Other input expert'!M$13*'Sales price per sales channel'!$H183*'Other input expert'!M$7","v":0},null,{"$f":"AC183*'Other input expert'!B$14*'Sales price per sales channel'!$I183*'Other input expert'!B$7","v":0},{"$f":"AD183*'Other input expert'!C$14*'Sales price per sales channel'!$I183*'Other input expert'!C$7","v":0},{"$f":"AE183*'Other input expert'!D$14*'Sales price per sales channel'!$I183*'Other input expert'!D$7","v":0},{"$f":"AF183*'Other input expert'!E$14*'Sales price per sales channel'!$I183*'Other input expert'!E$7","v":0},{"$f":"AG183*'Other input expert'!F$14*'Sales price per sales channel'!$I183*'Other input expert'!F$7","v":0},{"$f":"AH183*'Other input expert'!G$14*'Sales price per sales channel'!$I183*'Other input expert'!G$7","v":0},{"$f":"AI183*'Other input expert'!H$14*'Sales price per sales channel'!$I183*'Other input expert'!H$7","v":0},{"$f":"AJ183*'Other input expert'!I$14*'Sales price per sales channel'!$I183*'Other input expert'!I$7","v":0},{"$f":"AK183*'Other input expert'!J$14*'Sales price per sales channel'!$I183*'Other input expert'!J$7","v":0},{"$f":"AL183*'Other input expert'!K$14*'Sales price per sales channel'!$I183*'Other input expert'!K$7","v":0},{"$f":"AM183*'Other input expert'!L$14*'Sales price per sales channel'!$I183*'Other input expert'!L$7","v":0},{"$f":"AN183*'Other input expert'!M$14*'Sales price per sales channel'!$I183*'Other input expert'!M$7","v":0}]
["Urtica Dioica","Nettle",{"$f":"Plantlist!$G184*'Production list'!D185*'Other input expert'!B$4*'Other input expert'!B$8","v":0},{"$f":"Plantlist!$G184*'Production list'!E185*'Other input expert'!C$4*'Other input expert'!C$8","v":0},{"$f":"Plantlist!$G184*'Production list'!F185*'Other input expert'!D$4*'Other input expert'!D$8","v":0},{"$f":"Plantlist!$G184*'Production list'!G185*'Other input expert'!E$4*'Other input expert'!E$8","v":0},{"$f":"Plantlist!$G184*'Production list'!H185*'Other input expert'!F$4*'Other input expert'!F$8","v":0},{"$f":"Plantlist!$G184*'Production list'!I185*'Other input expert'!G$4*'Other input expert'!G$8","v":0},{"$f":"Plantlist!$G184*'Production list'!J185*'Other input expert'!H$4*'Other input expert'!H$8","v":0},{"$f":"Plantlist!$G184*'Production list'!K185*'Other input expert'!I$4*'Other input expert'!I$8","v":0},{"$f":"Plantlist!$G184*'Production list'!L185*'Other input expert'!J$4*'Other input expert'!J$8","v":0},{"$f":"Plantlist!$G184*'Production list'!M185*'Other input expert'!K$4*'Other input expert'!K$8","v":0},{"$f":"Plantlist!$G184*'Production list'!N185*'Other input expert'!L$4*'Other input expert'!L$8","v":0},{"$f":"Plantlist!$G184*'Production list'!O185*'Other input expert'!M$4*'Other input expert'!M$8","v":0},null,{"$f":"C184*'Other input expert'!B$5","v":0},{"$f":"D184*'Other input expert'!C$5","v":0},{"$f":"E184*'Other input expert'!D$5","v":0},{"$f":"F184*'Other input expert'!E$5","v":0},{"$f":"G184*'Other input expert'!F$5","v":0},{"$f":"H184*'Other input expert'!G$5","v":0},{"$f":"I184*'Other input expert'!H$5","v":0},{"$f":"J184*'Other input expert'!I$5","v":0},{"$f":"K184*'Other input expert'!J$5","v":0},{"$f":"L184*'Other input expert'!K$5","v":0},{"$f":"M184*'Other input expert'!L$5","v":0},{"$f":"N184*'Other input expert'!M$5","v":0},null,{"$f":"C184*(100%-'Other input expert'!B$5)","v":0},{"$f":"D184*(100%-'Other input expert'!C$5)","v":0},{"$f":"E184*(100%-'Other input expert'!D$5)","v":0},{"$f":"F184*(100%-'Other input expert'!E$5)","v":0},{"$f":"G184*(100%-'Other input expert'!F$5)","v":0},{"$f":"H184*(100%-'Other input expert'!G$5)","v":0},{"$f":"I184*(100%-'Other input expert'!H$5)","v":0},{"$f":"J184*(100%-'Other input expert'!I$5)","v":0},{"$f":"K184*(100%-'Other input expert'!J$5)","v":0},{"$f":"L184*(100%-'Other input expert'!K$5)","v":0},{"$f":"M184*(100%-'Other input expert'!L$5)","v":0},{"$f":"N184*(100%-'Other input expert'!M$5)","v":0},null,{"$f":"P184*'Other input expert'!B$12*'Sales price per sales channel'!$G184*'Other input expert'!B$6","v":0},{"$f":"Q184*'Other input expert'!C$12*'Sales price per sales channel'!$G184*'Other input expert'!C$6","v":0},{"$f":"R184*'Other input expert'!D$12*'Sales price per sales channel'!$G184*'Other input expert'!D$6","v":0},{"$f":"S184*'Other input expert'!E$12*'Sales price per sales channel'!$G184*'Other input expert'!E$6","v":0},{"$f":"T184*'Other input expert'!F$12*'Sales price per sales channel'!$G184*'Other input expert'!F$6","v":0},{"$f":"U184*'Other input expert'!G$12*'Sales price per sales channel'!$G184*'Other input expert'!G$6","v":0},{"$f":"V184*'Other input expert'!H$12*'Sales price per sales channel'!$G184*'Other input expert'!H$6","v":0},{"$f":"W184*'Other input expert'!I$12*'Sales price per sales channel'!$G184*'Other input expert'!I$6","v":0},{"$f":"X184*'Other input expert'!J$12*'Sales price per sales channel'!$G184*'Other input expert'!J$6","v":0},{"$f":"Y184*'Other input expert'!K$12*'Sales price per sales channel'!$G184*'Other input expert'!K$6","v":0},{"$f":"Z184*'Other input expert'!L$12*'Sales price per sales channel'!$G184*'Other input expert'!L$6","v":0},{"$f":"AA184*'Other input expert'!M$12*'Sales price per sales channel'!$G184*'Other input expert'!M$6","v":0},null,{"$f":"P184*'Other input expert'!B$13*'Sales price per sales channel'!$H184*'Other input expert'!B$6","v":0},{"$f":"Q184*'Other input expert'!C$13*'Sales price per sales channel'!$H184*'Other input expert'!C$6","v":0},{"$f":"R184*'Other input expert'!D$13*'Sales price per sales channel'!$H184*'Other input expert'!D$6","v":0},{"$f":"S184*'Other input expert'!E$13*'Sales price per sales channel'!$H184*'Other input expert'!E$6","v":0},{"$f":"T184*'Other input expert'!F$13*'Sales price per sales channel'!$H184*'Other input expert'!F$6","v":0},{"$f":"U184*'Other input expert'!G$13*'Sales price per sales channel'!$H184*'Other input expert'!G$6","v":0},{"$f":"V184*'Other input expert'!H$13*'Sales price per sales channel'!$H184*'Other input expert'!H$6","v":0},{"$f":"W184*'Other input expert'!I$13*'Sales price per sales channel'!$H184*'Other input expert'!I$6","v":0},{"$f":"X184*'Other input expert'!J$13*'Sales price per sales channel'!$H184*'Other input expert'!J$6","v":0},{"$f":"Y184*'Other input expert'!K$13*'Sales price per sales channel'!$H184*'Other input expert'!K$6","v":0},{"$f":"Z184*'Other input expert'!L$13*'Sales price per sales channel'!$H184*'Other input expert'!L$6","v":0},{"$f":"AA184*'Other input expert'!M$13*'Sales price per sales channel'!$H184*'Other input expert'!M$6","v":0},null,{"$f":"P184*'Other input expert'!B$14*'Sales price per sales channel'!$I184*'Other input expert'!B$6","v":0},{"$f":"Q184*'Other input expert'!C$14*'Sales price per sales channel'!$I184*'Other input expert'!C$6","v":0},{"$f":"R184*'Other input expert'!D$14*'Sales price per sales channel'!$I184*'Other input expert'!D$6","v":0},{"$f":"S184*'Other input expert'!E$14*'Sales price per sales channel'!$I184*'Other input expert'!E$6","v":0},{"$f":"T184*'Other input expert'!F$14*'Sales price per sales channel'!$I184*'Other input expert'!F$6","v":0},{"$f":"U184*'Other input expert'!G$14*'Sales price per sales channel'!$I184*'Other input expert'!G$6","v":0},{"$f":"V184*'Other input expert'!H$14*'Sales price per sales channel'!$I184*'Other input expert'!H$6","v":0},{"$f":"W184*'Other input expert'!I$14*'Sales price per sales channel'!$I184*'Other input expert'!I$6","v":0},{"$f":"X184*'Other input expert'!J$14*'Sales price per sales channel'!$I184*'Other input expert'!J$6","v":0},{"$f":"Y184*'Other input expert'!K$14*'Sales price per sales channel'!$I184*'Other input expert'!K$6","v":0},{"$f":"Z184*'Other input expert'!L$14*'Sales price per sales channel'!$I184*'Other input expert'!L$6","v":0},{"$f":"AA184*'Other input expert'!M$14*'Sales price per sales channel'!$I184*'Other input expert'!M$6","v":0},null,{"$f":"AC184*'Other input expert'!B$12*'Sales price per sales channel'!$G184*'Other input expert'!B$7","v":0},{"$f":"AD184*'Other input expert'!C$12*'Sales price per sales channel'!$G184*'Other input expert'!C$7","v":0},{"$f":"AE184*'Other input expert'!D$12*'Sales price per sales channel'!$G184*'Other input expert'!D$7","v":0},{"$f":"AF184*'Other input expert'!E$12*'Sales price per sales channel'!$G184*'Other input expert'!E$7","v":0},{"$f":"AG184*'Other input expert'!F$12*'Sales price per sales channel'!$G184*'Other input expert'!F$7","v":0},{"$f":"AH184*'Other input expert'!G$12*'Sales price per sales channel'!$G184*'Other input expert'!G$7","v":0},{"$f":"AI184*'Other input expert'!H$12*'Sales price per sales channel'!$G184*'Other input expert'!H$7","v":0},{"$f":"AJ184*'Other input expert'!I$12*'Sales price per sales channel'!$G184*'Other input expert'!I$7","v":0},{"$f":"AK184*'Other input expert'!J$12*'Sales price per sales channel'!$G184*'Other input expert'!J$7","v":0},{"$f":"AL184*'Other input expert'!K$12*'Sales price per sales channel'!$G184*'Other input expert'!K$7","v":0},{"$f":"AM184*'Other input expert'!L$12*'Sales price per sales channel'!$G184*'Other input expert'!L$7","v":0},{"$f":"AN184*'Other input expert'!M$12*'Sales price per sales channel'!$G184*'Other input expert'!M$7","v":0},null,{"$f":"AC184*'Other input expert'!B$13*'Sales price per sales channel'!$H184*'Other input expert'!B$7","v":0},{"$f":"AD184*'Other input expert'!C$13*'Sales price per sales channel'!$H184*'Other input expert'!C$7","v":0},{"$f":"AE184*'Other input expert'!D$13*'Sales price per sales channel'!$H184*'Other input expert'!D$7","v":0},{"$f":"AF184*'Other input expert'!E$13*'Sales price per sales channel'!$H184*'Other input expert'!E$7","v":0},{"$f":"AG184*'Other input expert'!F$13*'Sales price per sales channel'!$H184*'Other input expert'!F$7","v":0},{"$f":"AH184*'Other input expert'!G$13*'Sales price per sales channel'!$H184*'Other input expert'!G$7","v":0},{"$f":"AI184*'Other input expert'!H$13*'Sales price per sales channel'!$H184*'Other input expert'!H$7","v":0},{"$f":"AJ184*'Other input expert'!I$13*'Sales price per sales channel'!$H184*'Other input expert'!I$7","v":0},{"$f":"AK184*'Other input expert'!J$13*'Sales price per sales channel'!$H184*'Other input expert'!J$7","v":0},{"$f":"AL184*'Other input expert'!K$13*'Sales price per sales channel'!$H184*'Other input expert'!K$7","v":0},{"$f":"AM184*'Other input expert'!L$13*'Sales price per sales channel'!$H184*'Other input expert'!L$7","v":0},{"$f":"AN184*'Other input expert'!M$13*'Sales price per sales channel'!$H184*'Other input expert'!M$7","v":0},null,{"$f":"AC184*'Other input expert'!B$14*'Sales price per sales channel'!$I184*'Other input expert'!B$7","v":0},{"$f":"AD184*'Other input expert'!C$14*'Sales price per sales channel'!$I184*'Other input expert'!C$7","v":0},{"$f":"AE184*'Other input expert'!D$14*'Sales price per sales channel'!$I184*'Other input expert'!D$7","v":0},{"$f":"AF184*'Other input expert'!E$14*'Sales price per sales channel'!$I184*'Other input expert'!E$7","v":0},{"$f":"AG184*'Other input expert'!F$14*'Sales price per sales channel'!$I184*'Other input expert'!F$7","v":0},{"$f":"AH184*'Other input expert'!G$14*'Sales price per sales channel'!$I184*'Other input expert'!G$7","v":0},{"$f":"AI184*'Other input expert'!H$14*'Sales price per sales channel'!$I184*'Other input expert'!H$7","v":0},{"$f":"AJ184*'Other input expert'!I$14*'Sales price per sales channel'!$I184*'Other input expert'!I$7","v":0},{"$f":"AK184*'Other input expert'!J$14*'Sales price per sales channel'!$I184*'Other input expert'!J$7","v":0},{"$f":"AL184*'Other input expert'!K$14*'Sales price per sales channel'!$I184*'Other input expert'!K$7","v":0},{"$f":"AM184*'Other input expert'!L$14*'Sales price per sales channel'!$I184*'Other input expert'!L$7","v":0},{"$f":"AN184*'Other input expert'!M$14*'Sales price per sales channel'!$I184*'Other input expert'!M$7","v":0}]
["Vaccinium Corymbosum","Blueberry",{"$f":"Plantlist!$G185*'Production list'!D186*'Other input expert'!B$4*'Other input expert'!B$8","v":0},{"$f":"Plantlist!$G185*'Production list'!E186*'Other input expert'!C$4*'Other input expert'!C$8","v":0},{"$f":"Plantlist!$G185*'Production list'!F186*'Other input expert'!D$4*'Other input expert'!D$8","v":0},{"$f":"Plantlist!$G185*'Production list'!G186*'Other input expert'!E$4*'Other input expert'!E$8","v":0},{"$f":"Plantlist!$G185*'Production list'!H186*'Other input expert'!F$4*'Other input expert'!F$8","v":0},{"$f":"Plantlist!$G185*'Production list'!I186*'Other input expert'!G$4*'Other input expert'!G$8","v":0},{"$f":"Plantlist!$G185*'Production list'!J186*'Other input expert'!H$4*'Other input expert'!H$8","v":0},{"$f":"Plantlist!$G185*'Production list'!K186*'Other input expert'!I$4*'Other input expert'!I$8","v":0},{"$f":"Plantlist!$G185*'Production list'!L186*'Other input expert'!J$4*'Other input expert'!J$8","v":0},{"$f":"Plantlist!$G185*'Production list'!M186*'Other input expert'!K$4*'Other input expert'!K$8","v":0},{"$f":"Plantlist!$G185*'Production list'!N186*'Other input expert'!L$4*'Other input expert'!L$8","v":0},{"$f":"Plantlist!$G185*'Production list'!O186*'Other input expert'!M$4*'Other input expert'!M$8","v":0},null,{"$f":"C185*'Other input expert'!B$5","v":0},{"$f":"D185*'Other input expert'!C$5","v":0},{"$f":"E185*'Other input expert'!D$5","v":0},{"$f":"F185*'Other input expert'!E$5","v":0},{"$f":"G185*'Other input expert'!F$5","v":0},{"$f":"H185*'Other input expert'!G$5","v":0},{"$f":"I185*'Other input expert'!H$5","v":0},{"$f":"J185*'Other input expert'!I$5","v":0},{"$f":"K185*'Other input expert'!J$5","v":0},{"$f":"L185*'Other input expert'!K$5","v":0},{"$f":"M185*'Other input expert'!L$5","v":0},{"$f":"N185*'Other input expert'!M$5","v":0},null,{"$f":"C185*(100%-'Other input expert'!B$5)","v":0},{"$f":"D185*(100%-'Other input expert'!C$5)","v":0},{"$f":"E185*(100%-'Other input expert'!D$5)","v":0},{"$f":"F185*(100%-'Other input expert'!E$5)","v":0},{"$f":"G185*(100%-'Other input expert'!F$5)","v":0},{"$f":"H185*(100%-'Other input expert'!G$5)","v":0},{"$f":"I185*(100%-'Other input expert'!H$5)","v":0},{"$f":"J185*(100%-'Other input expert'!I$5)","v":0},{"$f":"K185*(100%-'Other input expert'!J$5)","v":0},{"$f":"L185*(100%-'Other input expert'!K$5)","v":0},{"$f":"M185*(100%-'Other input expert'!L$5)","v":0},{"$f":"N185*(100%-'Other input expert'!M$5)","v":0},null,{"$f":"P185*'Other input expert'!B$12*'Sales price per sales channel'!$G185*'Other input expert'!B$6","v":0},{"$f":"Q185*'Other input expert'!C$12*'Sales price per sales channel'!$G185*'Other input expert'!C$6","v":0},{"$f":"R185*'Other input expert'!D$12*'Sales price per sales channel'!$G185*'Other input expert'!D$6","v":0},{"$f":"S185*'Other input expert'!E$12*'Sales price per sales channel'!$G185*'Other input expert'!E$6","v":0},{"$f":"T185*'Other input expert'!F$12*'Sales price per sales channel'!$G185*'Other input expert'!F$6","v":0},{"$f":"U185*'Other input expert'!G$12*'Sales price per sales channel'!$G185*'Other input expert'!G$6","v":0},{"$f":"V185*'Other input expert'!H$12*'Sales price per sales channel'!$G185*'Other input expert'!H$6","v":0},{"$f":"W185*'Other input expert'!I$12*'Sales price per sales channel'!$G185*'Other input expert'!I$6","v":0},{"$f":"X185*'Other input expert'!J$12*'Sales price per sales channel'!$G185*'Other input expert'!J$6","v":0},{"$f":"Y185*'Other input expert'!K$12*'Sales price per sales channel'!$G185*'Other input expert'!K$6","v":0},{"$f":"Z185*'Other input expert'!L$12*'Sales price per sales channel'!$G185*'Other input expert'!L$6","v":0},{"$f":"AA185*'Other input expert'!M$12*'Sales price per sales channel'!$G185*'Other input expert'!M$6","v":0},null,{"$f":"P185*'Other input expert'!B$13*'Sales price per sales channel'!$H185*'Other input expert'!B$6","v":0},{"$f":"Q185*'Other input expert'!C$13*'Sales price per sales channel'!$H185*'Other input expert'!C$6","v":0},{"$f":"R185*'Other input expert'!D$13*'Sales price per sales channel'!$H185*'Other input expert'!D$6","v":0},{"$f":"S185*'Other input expert'!E$13*'Sales price per sales channel'!$H185*'Other input expert'!E$6","v":0},{"$f":"T185*'Other input expert'!F$13*'Sales price per sales channel'!$H185*'Other input expert'!F$6","v":0},{"$f":"U185*'Other input expert'!G$13*'Sales price per sales channel'!$H185*'Other input expert'!G$6","v":0},{"$f":"V185*'Other input expert'!H$13*'Sales price per sales channel'!$H185*'Other input expert'!H$6","v":0},{"$f":"W185*'Other input expert'!I$13*'Sales price per sales channel'!$H185*'Other input expert'!I$6","v":0},{"$f":"X185*'Other input expert'!J$13*'Sales price per sales channel'!$H185*'Other input expert'!J$6","v":0},{"$f":"Y185*'Other input expert'!K$13*'Sales price per sales channel'!$H185*'Other input expert'!K$6","v":0},{"$f":"Z185*'Other input expert'!L$13*'Sales price per sales channel'!$H185*'Other input expert'!L$6","v":0},{"$f":"AA185*'Other input expert'!M$13*'Sales price per sales channel'!$H185*'Other input expert'!M$6","v":0},null,{"$f":"P185*'Other input expert'!B$14*'Sales price per sales channel'!$I185*'Other input expert'!B$6","v":0},{"$f":"Q185*'Other input expert'!C$14*'Sales price per sales channel'!$I185*'Other input expert'!C$6","v":0},{"$f":"R185*'Other input expert'!D$14*'Sales price per sales channel'!$I185*'Other input expert'!D$6","v":0},{"$f":"S185*'Other input expert'!E$14*'Sales price per sales channel'!$I185*'Other input expert'!E$6","v":0},{"$f":"T185*'Other input expert'!F$14*'Sales price per sales channel'!$I185*'Other input expert'!F$6","v":0},{"$f":"U185*'Other input expert'!G$14*'Sales price per sales channel'!$I185*'Other input expert'!G$6","v":0},{"$f":"V185*'Other input expert'!H$14*'Sales price per sales channel'!$I185*'Other input expert'!H$6","v":0},{"$f":"W185*'Other input expert'!I$14*'Sales price per sales channel'!$I185*'Other input expert'!I$6","v":0},{"$f":"X185*'Other input expert'!J$14*'Sales price per sales channel'!$I185*'Other input expert'!J$6","v":0},{"$f":"Y185*'Other input expert'!K$14*'Sales price per sales channel'!$I185*'Other input expert'!K$6","v":0},{"$f":"Z185*'Other input expert'!L$14*'Sales price per sales channel'!$I185*'Other input expert'!L$6","v":0},{"$f":"AA185*'Other input expert'!M$14*'Sales price per sales channel'!$I185*'Other input expert'!M$6","v":0},null,{"$f":"AC185*'Other input expert'!B$12*'Sales price per sales channel'!$G185*'Other input expert'!B$7","v":0},{"$f":"AD185*'Other input expert'!C$12*'Sales price per sales channel'!$G185*'Other input expert'!C$7","v":0},{"$f":"AE185*'Other input expert'!D$12*'Sales price per sales channel'!$G185*'Other input expert'!D$7","v":0},{"$f":"AF185*'Other input expert'!E$12*'Sales price per sales channel'!$G185*'Other input expert'!E$7","v":0},{"$f":"AG185*'Other input expert'!F$12*'Sales price per sales channel'!$G185*'Other input expert'!F$7","v":0},{"$f":"AH185*'Other input expert'!G$12*'Sales price per sales channel'!$G185*'Other input expert'!G$7","v":0},{"$f":"AI185*'Other input expert'!H$12*'Sales price per sales channel'!$G185*'Other input expert'!H$7","v":0},{"$f":"AJ185*'Other input expert'!I$12*'Sales price per sales channel'!$G185*'Other input expert'!I$7","v":0},{"$f":"AK185*'Other input expert'!J$12*'Sales price per sales channel'!$G185*'Other input expert'!J$7","v":0},{"$f":"AL185*'Other input expert'!K$12*'Sales price per sales channel'!$G185*'Other input expert'!K$7","v":0},{"$f":"AM185*'Other input expert'!L$12*'Sales price per sales channel'!$G185*'Other input expert'!L$7","v":0},{"$f":"AN185*'Other input expert'!M$12*'Sales price per sales channel'!$G185*'Other input expert'!M$7","v":0},null,{"$f":"AC185*'Other input expert'!B$13*'Sales price per sales channel'!$H185*'Other input expert'!B$7","v":0},{"$f":"AD185*'Other input expert'!C$13*'Sales price per sales channel'!$H185*'Other input expert'!C$7","v":0},{"$f":"AE185*'Other input expert'!D$13*'Sales price per sales channel'!$H185*'Other input expert'!D$7","v":0},{"$f":"AF185*'Other input expert'!E$13*'Sales price per sales channel'!$H185*'Other input expert'!E$7","v":0},{"$f":"AG185*'Other input expert'!F$13*'Sales price per sales channel'!$H185*'Other input expert'!F$7","v":0},{"$f":"AH185*'Other input expert'!G$13*'Sales price per sales channel'!$H185*'Other input expert'!G$7","v":0},{"$f":"AI185*'Other input expert'!H$13*'Sales price per sales channel'!$H185*'Other input expert'!H$7","v":0},{"$f":"AJ185*'Other input expert'!I$13*'Sales price per sales channel'!$H185*'Other input expert'!I$7","v":0},{"$f":"AK185*'Other input expert'!J$13*'Sales price per sales channel'!$H185*'Other input expert'!J$7","v":0},{"$f":"AL185*'Other input expert'!K$13*'Sales price per sales channel'!$H185*'Other input expert'!K$7","v":0},{"$f":"AM185*'Other input expert'!L$13*'Sales price per sales channel'!$H185*'Other input expert'!L$7","v":0},{"$f":"AN185*'Other input expert'!M$13*'Sales price per sales channel'!$H185*'Other input expert'!M$7","v":0},null,{"$f":"AC185*'Other input expert'!B$14*'Sales price per sales channel'!$I185*'Other input expert'!B$7","v":0},{"$f":"AD185*'Other input expert'!C$14*'Sales price per sales channel'!$I185*'Other input expert'!C$7","v":0},{"$f":"AE185*'Other input expert'!D$14*'Sales price per sales channel'!$I185*'Other input expert'!D$7","v":0},{"$f":"AF185*'Other input expert'!E$14*'Sales price per sales channel'!$I185*'Other input expert'!E$7","v":0},{"$f":"AG185*'Other input expert'!F$14*'Sales price per sales channel'!$I185*'Other input expert'!F$7","v":0},{"$f":"AH185*'Other input expert'!G$14*'Sales price per sales channel'!$I185*'Other input expert'!G$7","v":0},{"$f":"AI185*'Other input expert'!H$14*'Sales price per sales channel'!$I185*'Other input expert'!H$7","v":0},{"$f":"AJ185*'Other input expert'!I$14*'Sales price per sales channel'!$I185*'Other input expert'!I$7","v":0},{"$f":"AK185*'Other input expert'!J$14*'Sales price per sales channel'!$I185*'Other input expert'!J$7","v":0},{"$f":"AL185*'Other input expert'!K$14*'Sales price per sales channel'!$I185*'Other input expert'!K$7","v":0},{"$f":"AM185*'Other input expert'!L$14*'Sales price per sales channel'!$I185*'Other input expert'!L$7","v":0},{"$f":"AN185*'Other input expert'!M$14*'Sales price per sales channel'!$I185*'Other input expert'!M$7","v":0}]
["Vaccinium Macrocarpon","Cranberry ",{"$f":"Plantlist!$G186*'Production list'!D187*'Other input expert'!B$4*'Other input expert'!B$8","v":0},{"$f":"Plantlist!$G186*'Production list'!E187*'Other input expert'!C$4*'Other input expert'!C$8","v":0},{"$f":"Plantlist!$G186*'Production list'!F187*'Other input expert'!D$4*'Other input expert'!D$8","v":0},{"$f":"Plantlist!$G186*'Production list'!G187*'Other input expert'!E$4*'Other input expert'!E$8","v":0},{"$f":"Plantlist!$G186*'Production list'!H187*'Other input expert'!F$4*'Other input expert'!F$8","v":0},{"$f":"Plantlist!$G186*'Production list'!I187*'Other input expert'!G$4*'Other input expert'!G$8","v":0},{"$f":"Plantlist!$G186*'Production list'!J187*'Other input expert'!H$4*'Other input expert'!H$8","v":0},{"$f":"Plantlist!$G186*'Production list'!K187*'Other input expert'!I$4*'Other input expert'!I$8","v":0},{"$f":"Plantlist!$G186*'Production list'!L187*'Other input expert'!J$4*'Other input expert'!J$8","v":0},{"$f":"Plantlist!$G186*'Production list'!M187*'Other input expert'!K$4*'Other input expert'!K$8","v":0},{"$f":"Plantlist!$G186*'Production list'!N187*'Other input expert'!L$4*'Other input expert'!L$8","v":0},{"$f":"Plantlist!$G186*'Production list'!O187*'Other input expert'!M$4*'Other input expert'!M$8","v":0},null,{"$f":"C186*'Other input expert'!B$5","v":0},{"$f":"D186*'Other input expert'!C$5","v":0},{"$f":"E186*'Other input expert'!D$5","v":0},{"$f":"F186*'Other input expert'!E$5","v":0},{"$f":"G186*'Other input expert'!F$5","v":0},{"$f":"H186*'Other input expert'!G$5","v":0},{"$f":"I186*'Other input expert'!H$5","v":0},{"$f":"J186*'Other input expert'!I$5","v":0},{"$f":"K186*'Other input expert'!J$5","v":0},{"$f":"L186*'Other input expert'!K$5","v":0},{"$f":"M186*'Other input expert'!L$5","v":0},{"$f":"N186*'Other input expert'!M$5","v":0},null,{"$f":"C186*(100%-'Other input expert'!B$5)","v":0},{"$f":"D186*(100%-'Other input expert'!C$5)","v":0},{"$f":"E186*(100%-'Other input expert'!D$5)","v":0},{"$f":"F186*(100%-'Other input expert'!E$5)","v":0},{"$f":"G186*(100%-'Other input expert'!F$5)","v":0},{"$f":"H186*(100%-'Other input expert'!G$5)","v":0},{"$f":"I186*(100%-'Other input expert'!H$5)","v":0},{"$f":"J186*(100%-'Other input expert'!I$5)","v":0},{"$f":"K186*(100%-'Other input expert'!J$5)","v":0},{"$f":"L186*(100%-'Other input expert'!K$5)","v":0},{"$f":"M186*(100%-'Other input expert'!L$5)","v":0},{"$f":"N186*(100%-'Other input expert'!M$5)","v":0},null,{"$f":"P186*'Other input expert'!B$12*'Sales price per sales channel'!$G186*'Other input expert'!B$6","v":0},{"$f":"Q186*'Other input expert'!C$12*'Sales price per sales channel'!$G186*'Other input expert'!C$6","v":0},{"$f":"R186*'Other input expert'!D$12*'Sales price per sales channel'!$G186*'Other input expert'!D$6","v":0},{"$f":"S186*'Other input expert'!E$12*'Sales price per sales channel'!$G186*'Other input expert'!E$6","v":0},{"$f":"T186*'Other input expert'!F$12*'Sales price per sales channel'!$G186*'Other input expert'!F$6","v":0},{"$f":"U186*'Other input expert'!G$12*'Sales price per sales channel'!$G186*'Other input expert'!G$6","v":0},{"$f":"V186*'Other input expert'!H$12*'Sales price per sales channel'!$G186*'Other input expert'!H$6","v":0},{"$f":"W186*'Other input expert'!I$12*'Sales price per sales channel'!$G186*'Other input expert'!I$6","v":0},{"$f":"X186*'Other input expert'!J$12*'Sales price per sales channel'!$G186*'Other input expert'!J$6","v":0},{"$f":"Y186*'Other input expert'!K$12*'Sales price per sales channel'!$G186*'Other input expert'!K$6","v":0},{"$f":"Z186*'Other input expert'!L$12*'Sales price per sales channel'!$G186*'Other input expert'!L$6","v":0},{"$f":"AA186*'Other input expert'!M$12*'Sales price per sales channel'!$G186*'Other input expert'!M$6","v":0},null,{"$f":"P186*'Other input expert'!B$13*'Sales price per sales channel'!$H186*'Other input expert'!B$6","v":0},{"$f":"Q186*'Other input expert'!C$13*'Sales price per sales channel'!$H186*'Other input expert'!C$6","v":0},{"$f":"R186*'Other input expert'!D$13*'Sales price per sales channel'!$H186*'Other input expert'!D$6","v":0},{"$f":"S186*'Other input expert'!E$13*'Sales price per sales channel'!$H186*'Other input expert'!E$6","v":0},{"$f":"T186*'Other input expert'!F$13*'Sales price per sales channel'!$H186*'Other input expert'!F$6","v":0},{"$f":"U186*'Other input expert'!G$13*'Sales price per sales channel'!$H186*'Other input expert'!G$6","v":0},{"$f":"V186*'Other input expert'!H$13*'Sales price per sales channel'!$H186*'Other input expert'!H$6","v":0},{"$f":"W186*'Other input expert'!I$13*'Sales price per sales channel'!$H186*'Other input expert'!I$6","v":0},{"$f":"X186*'Other input expert'!J$13*'Sales price per sales channel'!$H186*'Other input expert'!J$6","v":0},{"$f":"Y186*'Other input expert'!K$13*'Sales price per sales channel'!$H186*'Other input expert'!K$6","v":0},{"$f":"Z186*'Other input expert'!L$13*'Sales price per sales channel'!$H186*'Other input expert'!L$6","v":0},{"$f":"AA186*'Other input expert'!M$13*'Sales price per sales channel'!$H186*'Other input expert'!M$6","v":0},null,{"$f":"P186*'Other input expert'!B$14*'Sales price per sales channel'!$I186*'Other input expert'!B$6","v":0},{"$f":"Q186*'Other input expert'!C$14*'Sales price per sales channel'!$I186*'Other input expert'!C$6","v":0},{"$f":"R186*'Other input expert'!D$14*'Sales price per sales channel'!$I186*'Other input expert'!D$6","v":0},{"$f":"S186*'Other input expert'!E$14*'Sales price per sales channel'!$I186*'Other input expert'!E$6","v":0},{"$f":"T186*'Other input expert'!F$14*'Sales price per sales channel'!$I186*'Other input expert'!F$6","v":0},{"$f":"U186*'Other input expert'!G$14*'Sales price per sales channel'!$I186*'Other input expert'!G$6","v":0},{"$f":"V186*'Other input expert'!H$14*'Sales price per sales channel'!$I186*'Other input expert'!H$6","v":0},{"$f":"W186*'Other input expert'!I$14*'Sales price per sales channel'!$I186*'Other input expert'!I$6","v":0},{"$f":"X186*'Other input expert'!J$14*'Sales price per sales channel'!$I186*'Other input expert'!J$6","v":0},{"$f":"Y186*'Other input expert'!K$14*'Sales price per sales channel'!$I186*'Other input expert'!K$6","v":0},{"$f":"Z186*'Other input expert'!L$14*'Sales price per sales channel'!$I186*'Other input expert'!L$6","v":0},{"$f":"AA186*'Other input expert'!M$14*'Sales price per sales channel'!$I186*'Other input expert'!M$6","v":0},null,{"$f":"AC186*'Other input expert'!B$12*'Sales price per sales channel'!$G186*'Other input expert'!B$7","v":0},{"$f":"AD186*'Other input expert'!C$12*'Sales price per sales channel'!$G186*'Other input expert'!C$7","v":0},{"$f":"AE186*'Other input expert'!D$12*'Sales price per sales channel'!$G186*'Other input expert'!D$7","v":0},{"$f":"AF186*'Other input expert'!E$12*'Sales price per sales channel'!$G186*'Other input expert'!E$7","v":0},{"$f":"AG186*'Other input expert'!F$12*'Sales price per sales channel'!$G186*'Other input expert'!F$7","v":0},{"$f":"AH186*'Other input expert'!G$12*'Sales price per sales channel'!$G186*'Other input expert'!G$7","v":0},{"$f":"AI186*'Other input expert'!H$12*'Sales price per sales channel'!$G186*'Other input expert'!H$7","v":0},{"$f":"AJ186*'Other input expert'!I$12*'Sales price per sales channel'!$G186*'Other input expert'!I$7","v":0},{"$f":"AK186*'Other input expert'!J$12*'Sales price per sales channel'!$G186*'Other input expert'!J$7","v":0},{"$f":"AL186*'Other input expert'!K$12*'Sales price per sales channel'!$G186*'Other input expert'!K$7","v":0},{"$f":"AM186*'Other input expert'!L$12*'Sales price per sales channel'!$G186*'Other input expert'!L$7","v":0},{"$f":"AN186*'Other input expert'!M$12*'Sales price per sales channel'!$G186*'Other input expert'!M$7","v":0},null,{"$f":"AC186*'Other input expert'!B$13*'Sales price per sales channel'!$H186*'Other input expert'!B$7","v":0},{"$f":"AD186*'Other input expert'!C$13*'Sales price per sales channel'!$H186*'Other input expert'!C$7","v":0},{"$f":"AE186*'Other input expert'!D$13*'Sales price per sales channel'!$H186*'Other input expert'!D$7","v":0},{"$f":"AF186*'Other input expert'!E$13*'Sales price per sales channel'!$H186*'Other input expert'!E$7","v":0},{"$f":"AG186*'Other input expert'!F$13*'Sales price per sales channel'!$H186*'Other input expert'!F$7","v":0},{"$f":"AH186*'Other input expert'!G$13*'Sales price per sales channel'!$H186*'Other input expert'!G$7","v":0},{"$f":"AI186*'Other input expert'!H$13*'Sales price per sales channel'!$H186*'Other input expert'!H$7","v":0},{"$f":"AJ186*'Other input expert'!I$13*'Sales price per sales channel'!$H186*'Other input expert'!I$7","v":0},{"$f":"AK186*'Other input expert'!J$13*'Sales price per sales channel'!$H186*'Other input expert'!J$7","v":0},{"$f":"AL186*'Other input expert'!K$13*'Sales price per sales channel'!$H186*'Other input expert'!K$7","v":0},{"$f":"AM186*'Other input expert'!L$13*'Sales price per sales channel'!$H186*'Other input expert'!L$7","v":0},{"$f":"AN186*'Other input expert'!M$13*'Sales price per sales channel'!$H186*'Other input expert'!M$7","v":0},null,{"$f":"AC186*'Other input expert'!B$14*'Sales price per sales channel'!$I186*'Other input expert'!B$7","v":0},{"$f":"AD186*'Other input expert'!C$14*'Sales price per sales channel'!$I186*'Other input expert'!C$7","v":0},{"$f":"AE186*'Other input expert'!D$14*'Sales price per sales channel'!$I186*'Other input expert'!D$7","v":0},{"$f":"AF186*'Other input expert'!E$14*'Sales price per sales channel'!$I186*'Other input expert'!E$7","v":0},{"$f":"AG186*'Other input expert'!F$14*'Sales price per sales channel'!$I186*'Other input expert'!F$7","v":0},{"$f":"AH186*'Other input expert'!G$14*'Sales price per sales channel'!$I186*'Other input expert'!G$7","v":0},{"$f":"AI186*'Other input expert'!H$14*'Sales price per sales channel'!$I186*'Other input expert'!H$7","v":0},{"$f":"AJ186*'Other input expert'!I$14*'Sales price per sales channel'!$I186*'Other input expert'!I$7","v":0},{"$f":"AK186*'Other input expert'!J$14*'Sales price per sales channel'!$I186*'Other input expert'!J$7","v":0},{"$f":"AL186*'Other input expert'!K$14*'Sales price per sales channel'!$I186*'Other input expert'!K$7","v":0},{"$f":"AM186*'Other input expert'!L$14*'Sales price per sales channel'!$I186*'Other input expert'!L$7","v":0},{"$f":"AN186*'Other input expert'!M$14*'Sales price per sales channel'!$I186*'Other input expert'!M$7","v":0}]
["Valeriana off.","Valerian",{"$f":"Plantlist!$G187*'Production list'!D188*'Other input expert'!B$4*'Other input expert'!B$8","v":0},{"$f":"Plantlist!$G187*'Production list'!E188*'Other input expert'!C$4*'Other input expert'!C$8","v":0},{"$f":"Plantlist!$G187*'Production list'!F188*'Other input expert'!D$4*'Other input expert'!D$8","v":0},{"$f":"Plantlist!$G187*'Production list'!G188*'Other input expert'!E$4*'Other input expert'!E$8","v":0},{"$f":"Plantlist!$G187*'Production list'!H188*'Other input expert'!F$4*'Other input expert'!F$8","v":0},{"$f":"Plantlist!$G187*'Production list'!I188*'Other input expert'!G$4*'Other input expert'!G$8","v":0},{"$f":"Plantlist!$G187*'Production list'!J188*'Other input expert'!H$4*'Other input expert'!H$8","v":0},{"$f":"Plantlist!$G187*'Production list'!K188*'Other input expert'!I$4*'Other input expert'!I$8","v":0},{"$f":"Plantlist!$G187*'Production list'!L188*'Other input expert'!J$4*'Other input expert'!J$8","v":0},{"$f":"Plantlist!$G187*'Production list'!M188*'Other input expert'!K$4*'Other input expert'!K$8","v":0},{"$f":"Plantlist!$G187*'Production list'!N188*'Other input expert'!L$4*'Other input expert'!L$8","v":0},{"$f":"Plantlist!$G187*'Production list'!O188*'Other input expert'!M$4*'Other input expert'!M$8","v":0},null,{"$f":"C187*'Other input expert'!B$5","v":0},{"$f":"D187*'Other input expert'!C$5","v":0},{"$f":"E187*'Other input expert'!D$5","v":0},{"$f":"F187*'Other input expert'!E$5","v":0},{"$f":"G187*'Other input expert'!F$5","v":0},{"$f":"H187*'Other input expert'!G$5","v":0},{"$f":"I187*'Other input expert'!H$5","v":0},{"$f":"J187*'Other input expert'!I$5","v":0},{"$f":"K187*'Other input expert'!J$5","v":0},{"$f":"L187*'Other input expert'!K$5","v":0},{"$f":"M187*'Other input expert'!L$5","v":0},{"$f":"N187*'Other input expert'!M$5","v":0},null,{"$f":"C187*(100%-'Other input expert'!B$5)","v":0},{"$f":"D187*(100%-'Other input expert'!C$5)","v":0},{"$f":"E187*(100%-'Other input expert'!D$5)","v":0},{"$f":"F187*(100%-'Other input expert'!E$5)","v":0},{"$f":"G187*(100%-'Other input expert'!F$5)","v":0},{"$f":"H187*(100%-'Other input expert'!G$5)","v":0},{"$f":"I187*(100%-'Other input expert'!H$5)","v":0},{"$f":"J187*(100%-'Other input expert'!I$5)","v":0},{"$f":"K187*(100%-'Other input expert'!J$5)","v":0},{"$f":"L187*(100%-'Other input expert'!K$5)","v":0},{"$f":"M187*(100%-'Other input expert'!L$5)","v":0},{"$f":"N187*(100%-'Other input expert'!M$5)","v":0},null,{"$f":"P187*'Other input expert'!B$12*'Sales price per sales channel'!$G187*'Other input expert'!B$6","v":0},{"$f":"Q187*'Other input expert'!C$12*'Sales price per sales channel'!$G187*'Other input expert'!C$6","v":0},{"$f":"R187*'Other input expert'!D$12*'Sales price per sales channel'!$G187*'Other input expert'!D$6","v":0},{"$f":"S187*'Other input expert'!E$12*'Sales price per sales channel'!$G187*'Other input expert'!E$6","v":0},{"$f":"T187*'Other input expert'!F$12*'Sales price per sales channel'!$G187*'Other input expert'!F$6","v":0},{"$f":"U187*'Other input expert'!G$12*'Sales price per sales channel'!$G187*'Other input expert'!G$6","v":0},{"$f":"V187*'Other input expert'!H$12*'Sales price per sales channel'!$G187*'Other input expert'!H$6","v":0},{"$f":"W187*'Other input expert'!I$12*'Sales price per sales channel'!$G187*'Other input expert'!I$6","v":0},{"$f":"X187*'Other input expert'!J$12*'Sales price per sales channel'!$G187*'Other input expert'!J$6","v":0},{"$f":"Y187*'Other input expert'!K$12*'Sales price per sales channel'!$G187*'Other input expert'!K$6","v":0},{"$f":"Z187*'Other input expert'!L$12*'Sales price per sales channel'!$G187*'Other input expert'!L$6","v":0},{"$f":"AA187*'Other input expert'!M$12*'Sales price per sales channel'!$G187*'Other input expert'!M$6","v":0},null,{"$f":"P187*'Other input expert'!B$13*'Sales price per sales channel'!$H187*'Other input expert'!B$6","v":0},{"$f":"Q187*'Other input expert'!C$13*'Sales price per sales channel'!$H187*'Other input expert'!C$6","v":0},{"$f":"R187*'Other input expert'!D$13*'Sales price per sales channel'!$H187*'Other input expert'!D$6","v":0},{"$f":"S187*'Other input expert'!E$13*'Sales price per sales channel'!$H187*'Other input expert'!E$6","v":0},{"$f":"T187*'Other input expert'!F$13*'Sales price per sales channel'!$H187*'Other input expert'!F$6","v":0},{"$f":"U187*'Other input expert'!G$13*'Sales price per sales channel'!$H187*'Other input expert'!G$6","v":0},{"$f":"V187*'Other input expert'!H$13*'Sales price per sales channel'!$H187*'Other input expert'!H$6","v":0},{"$f":"W187*'Other input expert'!I$13*'Sales price per sales channel'!$H187*'Other input expert'!I$6","v":0},{"$f":"X187*'Other input expert'!J$13*'Sales price per sales channel'!$H187*'Other input expert'!J$6","v":0},{"$f":"Y187*'Other input expert'!K$13*'Sales price per sales channel'!$H187*'Other input expert'!K$6","v":0},{"$f":"Z187*'Other input expert'!L$13*'Sales price per sales channel'!$H187*'Other input expert'!L$6","v":0},{"$f":"AA187*'Other input expert'!M$13*'Sales price per sales channel'!$H187*'Other input expert'!M$6","v":0},null,{"$f":"P187*'Other input expert'!B$14*'Sales price per sales channel'!$I187*'Other input expert'!B$6","v":0},{"$f":"Q187*'Other input expert'!C$14*'Sales price per sales channel'!$I187*'Other input expert'!C$6","v":0},{"$f":"R187*'Other input expert'!D$14*'Sales price per sales channel'!$I187*'Other input expert'!D$6","v":0},{"$f":"S187*'Other input expert'!E$14*'Sales price per sales channel'!$I187*'Other input expert'!E$6","v":0},{"$f":"T187*'Other input expert'!F$14*'Sales price per sales channel'!$I187*'Other input expert'!F$6","v":0},{"$f":"U187*'Other input expert'!G$14*'Sales price per sales channel'!$I187*'Other input expert'!G$6","v":0},{"$f":"V187*'Other input expert'!H$14*'Sales price per sales channel'!$I187*'Other input expert'!H$6","v":0},{"$f":"W187*'Other input expert'!I$14*'Sales price per sales channel'!$I187*'Other input expert'!I$6","v":0},{"$f":"X187*'Other input expert'!J$14*'Sales price per sales channel'!$I187*'Other input expert'!J$6","v":0},{"$f":"Y187*'Other input expert'!K$14*'Sales price per sales channel'!$I187*'Other input expert'!K$6","v":0},{"$f":"Z187*'Other input expert'!L$14*'Sales price per sales channel'!$I187*'Other input expert'!L$6","v":0},{"$f":"AA187*'Other input expert'!M$14*'Sales price per sales channel'!$I187*'Other input expert'!M$6","v":0},null,{"$f":"AC187*'Other input expert'!B$12*'Sales price per sales channel'!$G187*'Other input expert'!B$7","v":0},{"$f":"AD187*'Other input expert'!C$12*'Sales price per sales channel'!$G187*'Other input expert'!C$7","v":0},{"$f":"AE187*'Other input expert'!D$12*'Sales price per sales channel'!$G187*'Other input expert'!D$7","v":0},{"$f":"AF187*'Other input expert'!E$12*'Sales price per sales channel'!$G187*'Other input expert'!E$7","v":0},{"$f":"AG187*'Other input expert'!F$12*'Sales price per sales channel'!$G187*'Other input expert'!F$7","v":0},{"$f":"AH187*'Other input expert'!G$12*'Sales price per sales channel'!$G187*'Other input expert'!G$7","v":0},{"$f":"AI187*'Other input expert'!H$12*'Sales price per sales channel'!$G187*'Other input expert'!H$7","v":0},{"$f":"AJ187*'Other input expert'!I$12*'Sales price per sales channel'!$G187*'Other input expert'!I$7","v":0},{"$f":"AK187*'Other input expert'!J$12*'Sales price per sales channel'!$G187*'Other input expert'!J$7","v":0},{"$f":"AL187*'Other input expert'!K$12*'Sales price per sales channel'!$G187*'Other input expert'!K$7","v":0},{"$f":"AM187*'Other input expert'!L$12*'Sales price per sales channel'!$G187*'Other input expert'!L$7","v":0},{"$f":"AN187*'Other input expert'!M$12*'Sales price per sales channel'!$G187*'Other input expert'!M$7","v":0},null,{"$f":"AC187*'Other input expert'!B$13*'Sales price per sales channel'!$H187*'Other input expert'!B$7","v":0},{"$f":"AD187*'Other input expert'!C$13*'Sales price per sales channel'!$H187*'Other input expert'!C$7","v":0},{"$f":"AE187*'Other input expert'!D$13*'Sales price per sales channel'!$H187*'Other input expert'!D$7","v":0},{"$f":"AF187*'Other input expert'!E$13*'Sales price per sales channel'!$H187*'Other input expert'!E$7","v":0},{"$f":"AG187*'Other input expert'!F$13*'Sales price per sales channel'!$H187*'Other input expert'!F$7","v":0},{"$f":"AH187*'Other input expert'!G$13*'Sales price per sales channel'!$H187*'Other input expert'!G$7","v":0},{"$f":"AI187*'Other input expert'!H$13*'Sales price per sales channel'!$H187*'Other input expert'!H$7","v":0},{"$f":"AJ187*'Other input expert'!I$13*'Sales price per sales channel'!$H187*'Other input expert'!I$7","v":0},{"$f":"AK187*'Other input expert'!J$13*'Sales price per sales channel'!$H187*'Other input expert'!J$7","v":0},{"$f":"AL187*'Other input expert'!K$13*'Sales price per sales channel'!$H187*'Other input expert'!K$7","v":0},{"$f":"AM187*'Other input expert'!L$13*'Sales price per sales channel'!$H187*'Other input expert'!L$7","v":0},{"$f":"AN187*'Other input expert'!M$13*'Sales price per sales channel'!$H187*'Other input expert'!M$7","v":0},null,{"$f":"AC187*'Other input expert'!B$14*'Sales price per sales channel'!$I187*'Other input expert'!B$7","v":0},{"$f":"AD187*'Other input expert'!C$14*'Sales price per sales channel'!$I187*'Other input expert'!C$7","v":0},{"$f":"AE187*'Other input expert'!D$14*'Sales price per sales channel'!$I187*'Other input expert'!D$7","v":0},{"$f":"AF187*'Other input expert'!E$14*'Sales price per sales channel'!$I187*'Other input expert'!E$7","v":0},{"$f":"AG187*'Other input expert'!F$14*'Sales price per sales channel'!$I187*'Other input expert'!F$7","v":0},{"$f":"AH187*'Other input expert'!G$14*'Sales price per sales channel'!$I187*'Other input expert'!G$7","v":0},{"$f":"AI187*'Other input expert'!H$14*'Sales price per sales channel'!$I187*'Other input expert'!H$7","v":0},{"$f":"AJ187*'Other input expert'!I$14*'Sales price per sales channel'!$I187*'Other input expert'!I$7","v":0},{"$f":"AK187*'Other input expert'!J$14*'Sales price per sales channel'!$I187*'Other input expert'!J$7","v":0},{"$f":"AL187*'Other input expert'!K$14*'Sales price per sales channel'!$I187*'Other input expert'!K$7","v":0},{"$f":"AM187*'Other input expert'!L$14*'Sales price per sales channel'!$I187*'Other input expert'!L$7","v":0},{"$f":"AN187*'Other input expert'!M$14*'Sales price per sales channel'!$I187*'Other input expert'!M$7","v":0}]
["Viburnum Lentago","Sheepberry",{"$f":"Plantlist!$G188*'Production list'!D189*'Other input expert'!B$4*'Other input expert'!B$8","v":0},{"$f":"Plantlist!$G188*'Production list'!E189*'Other input expert'!C$4*'Other input expert'!C$8","v":0},{"$f":"Plantlist!$G188*'Production list'!F189*'Other input expert'!D$4*'Other input expert'!D$8","v":0},{"$f":"Plantlist!$G188*'Production list'!G189*'Other input expert'!E$4*'Other input expert'!E$8","v":0},{"$f":"Plantlist!$G188*'Production list'!H189*'Other input expert'!F$4*'Other input expert'!F$8","v":0},{"$f":"Plantlist!$G188*'Production list'!I189*'Other input expert'!G$4*'Other input expert'!G$8","v":0},{"$f":"Plantlist!$G188*'Production list'!J189*'Other input expert'!H$4*'Other input expert'!H$8","v":0},{"$f":"Plantlist!$G188*'Production list'!K189*'Other input expert'!I$4*'Other input expert'!I$8","v":0},{"$f":"Plantlist!$G188*'Production list'!L189*'Other input expert'!J$4*'Other input expert'!J$8","v":0},{"$f":"Plantlist!$G188*'Production list'!M189*'Other input expert'!K$4*'Other input expert'!K$8","v":0},{"$f":"Plantlist!$G188*'Production list'!N189*'Other input expert'!L$4*'Other input expert'!L$8","v":0},{"$f":"Plantlist!$G188*'Production list'!O189*'Other input expert'!M$4*'Other input expert'!M$8","v":0},null,{"$f":"C188*'Other input expert'!B$5","v":0},{"$f":"D188*'Other input expert'!C$5","v":0},{"$f":"E188*'Other input expert'!D$5","v":0},{"$f":"F188*'Other input expert'!E$5","v":0},{"$f":"G188*'Other input expert'!F$5","v":0},{"$f":"H188*'Other input expert'!G$5","v":0},{"$f":"I188*'Other input expert'!H$5","v":0},{"$f":"J188*'Other input expert'!I$5","v":0},{"$f":"K188*'Other input expert'!J$5","v":0},{"$f":"L188*'Other input expert'!K$5","v":0},{"$f":"M188*'Other input expert'!L$5","v":0},{"$f":"N188*'Other input expert'!M$5","v":0},null,{"$f":"C188*(100%-'Other input expert'!B$5)","v":0},{"$f":"D188*(100%-'Other input expert'!C$5)","v":0},{"$f":"E188*(100%-'Other input expert'!D$5)","v":0},{"$f":"F188*(100%-'Other input expert'!E$5)","v":0},{"$f":"G188*(100%-'Other input expert'!F$5)","v":0},{"$f":"H188*(100%-'Other input expert'!G$5)","v":0},{"$f":"I188*(100%-'Other input expert'!H$5)","v":0},{"$f":"J188*(100%-'Other input expert'!I$5)","v":0},{"$f":"K188*(100%-'Other input expert'!J$5)","v":0},{"$f":"L188*(100%-'Other input expert'!K$5)","v":0},{"$f":"M188*(100%-'Other input expert'!L$5)","v":0},{"$f":"N188*(100%-'Other input expert'!M$5)","v":0},null,{"$f":"P188*'Other input expert'!B$12*'Sales price per sales channel'!$G188*'Other input expert'!B$6","v":0},{"$f":"Q188*'Other input expert'!C$12*'Sales price per sales channel'!$G188*'Other input expert'!C$6","v":0},{"$f":"R188*'Other input expert'!D$12*'Sales price per sales channel'!$G188*'Other input expert'!D$6","v":0},{"$f":"S188*'Other input expert'!E$12*'Sales price per sales channel'!$G188*'Other input expert'!E$6","v":0},{"$f":"T188*'Other input expert'!F$12*'Sales price per sales channel'!$G188*'Other input expert'!F$6","v":0},{"$f":"U188*'Other input expert'!G$12*'Sales price per sales channel'!$G188*'Other input expert'!G$6","v":0},{"$f":"V188*'Other input expert'!H$12*'Sales price per sales channel'!$G188*'Other input expert'!H$6","v":0},{"$f":"W188*'Other input expert'!I$12*'Sales price per sales channel'!$G188*'Other input expert'!I$6","v":0},{"$f":"X188*'Other input expert'!J$12*'Sales price per sales channel'!$G188*'Other input expert'!J$6","v":0},{"$f":"Y188*'Other input expert'!K$12*'Sales price per sales channel'!$G188*'Other input expert'!K$6","v":0},{"$f":"Z188*'Other input expert'!L$12*'Sales price per sales channel'!$G188*'Other input expert'!L$6","v":0},{"$f":"AA188*'Other input expert'!M$12*'Sales price per sales channel'!$G188*'Other input expert'!M$6","v":0},null,{"$f":"P188*'Other input expert'!B$13*'Sales price per sales channel'!$H188*'Other input expert'!B$6","v":0},{"$f":"Q188*'Other input expert'!C$13*'Sales price per sales channel'!$H188*'Other input expert'!C$6","v":0},{"$f":"R188*'Other input expert'!D$13*'Sales price per sales channel'!$H188*'Other input expert'!D$6","v":0},{"$f":"S188*'Other input expert'!E$13*'Sales price per sales channel'!$H188*'Other input expert'!E$6","v":0},{"$f":"T188*'Other input expert'!F$13*'Sales price per sales channel'!$H188*'Other input expert'!F$6","v":0},{"$f":"U188*'Other input expert'!G$13*'Sales price per sales channel'!$H188*'Other input expert'!G$6","v":0},{"$f":"V188*'Other input expert'!H$13*'Sales price per sales channel'!$H188*'Other input expert'!H$6","v":0},{"$f":"W188*'Other input expert'!I$13*'Sales price per sales channel'!$H188*'Other input expert'!I$6","v":0},{"$f":"X188*'Other input expert'!J$13*'Sales price per sales channel'!$H188*'Other input expert'!J$6","v":0},{"$f":"Y188*'Other input expert'!K$13*'Sales price per sales channel'!$H188*'Other input expert'!K$6","v":0},{"$f":"Z188*'Other input expert'!L$13*'Sales price per sales channel'!$H188*'Other input expert'!L$6","v":0},{"$f":"AA188*'Other input expert'!M$13*'Sales price per sales channel'!$H188*'Other input expert'!M$6","v":0},null,{"$f":"P188*'Other input expert'!B$14*'Sales price per sales channel'!$I188*'Other input expert'!B$6","v":0},{"$f":"Q188*'Other input expert'!C$14*'Sales price per sales channel'!$I188*'Other input expert'!C$6","v":0},{"$f":"R188*'Other input expert'!D$14*'Sales price per sales channel'!$I188*'Other input expert'!D$6","v":0},{"$f":"S188*'Other input expert'!E$14*'Sales price per sales channel'!$I188*'Other input expert'!E$6","v":0},{"$f":"T188*'Other input expert'!F$14*'Sales price per sales channel'!$I188*'Other input expert'!F$6","v":0},{"$f":"U188*'Other input expert'!G$14*'Sales price per sales channel'!$I188*'Other input expert'!G$6","v":0},{"$f":"V188*'Other input expert'!H$14*'Sales price per sales channel'!$I188*'Other input expert'!H$6","v":0},{"$f":"W188*'Other input expert'!I$14*'Sales price per sales channel'!$I188*'Other input expert'!I$6","v":0},{"$f":"X188*'Other input expert'!J$14*'Sales price per sales channel'!$I188*'Other input expert'!J$6","v":0},{"$f":"Y188*'Other input expert'!K$14*'Sales price per sales channel'!$I188*'Other input expert'!K$6","v":0},{"$f":"Z188*'Other input expert'!L$14*'Sales price per sales channel'!$I188*'Other input expert'!L$6","v":0},{"$f":"AA188*'Other input expert'!M$14*'Sales price per sales channel'!$I188*'Other input expert'!M$6","v":0},null,{"$f":"AC188*'Other input expert'!B$12*'Sales price per sales channel'!$G188*'Other input expert'!B$7","v":0},{"$f":"AD188*'Other input expert'!C$12*'Sales price per sales channel'!$G188*'Other input expert'!C$7","v":0},{"$f":"AE188*'Other input expert'!D$12*'Sales price per sales channel'!$G188*'Other input expert'!D$7","v":0},{"$f":"AF188*'Other input expert'!E$12*'Sales price per sales channel'!$G188*'Other input expert'!E$7","v":0},{"$f":"AG188*'Other input expert'!F$12*'Sales price per sales channel'!$G188*'Other input expert'!F$7","v":0},{"$f":"AH188*'Other input expert'!G$12*'Sales price per sales channel'!$G188*'Other input expert'!G$7","v":0},{"$f":"AI188*'Other input expert'!H$12*'Sales price per sales channel'!$G188*'Other input expert'!H$7","v":0},{"$f":"AJ188*'Other input expert'!I$12*'Sales price per sales channel'!$G188*'Other input expert'!I$7","v":0},{"$f":"AK188*'Other input expert'!J$12*'Sales price per sales channel'!$G188*'Other input expert'!J$7","v":0},{"$f":"AL188*'Other input expert'!K$12*'Sales price per sales channel'!$G188*'Other input expert'!K$7","v":0},{"$f":"AM188*'Other input expert'!L$12*'Sales price per sales channel'!$G188*'Other input expert'!L$7","v":0},{"$f":"AN188*'Other input expert'!M$12*'Sales price per sales channel'!$G188*'Other input expert'!M$7","v":0},null,{"$f":"AC188*'Other input expert'!B$13*'Sales price per sales channel'!$H188*'Other input expert'!B$7","v":0},{"$f":"AD188*'Other input expert'!C$13*'Sales price per sales channel'!$H188*'Other input expert'!C$7","v":0},{"$f":"AE188*'Other input expert'!D$13*'Sales price per sales channel'!$H188*'Other input expert'!D$7","v":0},{"$f":"AF188*'Other input expert'!E$13*'Sales price per sales channel'!$H188*'Other input expert'!E$7","v":0},{"$f":"AG188*'Other input expert'!F$13*'Sales price per sales channel'!$H188*'Other input expert'!F$7","v":0},{"$f":"AH188*'Other input expert'!G$13*'Sales price per sales channel'!$H188*'Other input expert'!G$7","v":0},{"$f":"AI188*'Other input expert'!H$13*'Sales price per sales channel'!$H188*'Other input expert'!H$7","v":0},{"$f":"AJ188*'Other input expert'!I$13*'Sales price per sales channel'!$H188*'Other input expert'!I$7","v":0},{"$f":"AK188*'Other input expert'!J$13*'Sales price per sales channel'!$H188*'Other input expert'!J$7","v":0},{"$f":"AL188*'Other input expert'!K$13*'Sales price per sales channel'!$H188*'Other input expert'!K$7","v":0},{"$f":"AM188*'Other input expert'!L$13*'Sales price per sales channel'!$H188*'Other input expert'!L$7","v":0},{"$f":"AN188*'Other input expert'!M$13*'Sales price per sales channel'!$H188*'Other input expert'!M$7","v":0},null,{"$f":"AC188*'Other input expert'!B$14*'Sales price per sales channel'!$I188*'Other input expert'!B$7","v":0},{"$f":"AD188*'Other input expert'!C$14*'Sales price per sales channel'!$I188*'Other input expert'!C$7","v":0},{"$f":"AE188*'Other input expert'!D$14*'Sales price per sales channel'!$I188*'Other input expert'!D$7","v":0},{"$f":"AF188*'Other input expert'!E$14*'Sales price per sales channel'!$I188*'Other input expert'!E$7","v":0},{"$f":"AG188*'Other input expert'!F$14*'Sales price per sales channel'!$I188*'Other input expert'!F$7","v":0},{"$f":"AH188*'Other input expert'!G$14*'Sales price per sales channel'!$I188*'Other input expert'!G$7","v":0},{"$f":"AI188*'Other input expert'!H$14*'Sales price per sales channel'!$I188*'Other input expert'!H$7","v":0},{"$f":"AJ188*'Other input expert'!I$14*'Sales price per sales channel'!$I188*'Other input expert'!I$7","v":0},{"$f":"AK188*'Other input expert'!J$14*'Sales price per sales channel'!$I188*'Other input expert'!J$7","v":0},{"$f":"AL188*'Other input expert'!K$14*'Sales price per sales channel'!$I188*'Other input expert'!K$7","v":0},{"$f":"AM188*'Other input expert'!L$14*'Sales price per sales channel'!$I188*'Other input expert'!L$7","v":0},{"$f":"AN188*'Other input expert'!M$14*'Sales price per sales channel'!$I188*'Other input expert'!M$7","v":0}]
["Viburnum setigerum","Tea-leaf viburnum",{"$f":"Plantlist!$G189*'Production list'!D190*'Other input expert'!B$4*'Other input expert'!B$8","v":0},{"$f":"Plantlist!$G189*'Production list'!E190*'Other input expert'!C$4*'Other input expert'!C$8","v":0},{"$f":"Plantlist!$G189*'Production list'!F190*'Other input expert'!D$4*'Other input expert'!D$8","v":0},{"$f":"Plantlist!$G189*'Production list'!G190*'Other input expert'!E$4*'Other input expert'!E$8","v":0},{"$f":"Plantlist!$G189*'Production list'!H190*'Other input expert'!F$4*'Other input expert'!F$8","v":0},{"$f":"Plantlist!$G189*'Production list'!I190*'Other input expert'!G$4*'Other input expert'!G$8","v":0},{"$f":"Plantlist!$G189*'Production list'!J190*'Other input expert'!H$4*'Other input expert'!H$8","v":0},{"$f":"Plantlist!$G189*'Production list'!K190*'Other input expert'!I$4*'Other input expert'!I$8","v":0},{"$f":"Plantlist!$G189*'Production list'!L190*'Other input expert'!J$4*'Other input expert'!J$8","v":0},{"$f":"Plantlist!$G189*'Production list'!M190*'Other input expert'!K$4*'Other input expert'!K$8","v":0},{"$f":"Plantlist!$G189*'Production list'!N190*'Other input expert'!L$4*'Other input expert'!L$8","v":0},{"$f":"Plantlist!$G189*'Production list'!O190*'Other input expert'!M$4*'Other input expert'!M$8","v":0},null,{"$f":"C189*'Other input expert'!B$5","v":0},{"$f":"D189*'Other input expert'!C$5","v":0},{"$f":"E189*'Other input expert'!D$5","v":0},{"$f":"F189*'Other input expert'!E$5","v":0},{"$f":"G189*'Other input expert'!F$5","v":0},{"$f":"H189*'Other input expert'!G$5","v":0},{"$f":"I189*'Other input expert'!H$5","v":0},{"$f":"J189*'Other input expert'!I$5","v":0},{"$f":"K189*'Other input expert'!J$5","v":0},{"$f":"L189*'Other input expert'!K$5","v":0},{"$f":"M189*'Other input expert'!L$5","v":0},{"$f":"N189*'Other input expert'!M$5","v":0},null,{"$f":"C189*(100%-'Other input expert'!B$5)","v":0},{"$f":"D189*(100%-'Other input expert'!C$5)","v":0},{"$f":"E189*(100%-'Other input expert'!D$5)","v":0},{"$f":"F189*(100%-'Other input expert'!E$5)","v":0},{"$f":"G189*(100%-'Other input expert'!F$5)","v":0},{"$f":"H189*(100%-'Other input expert'!G$5)","v":0},{"$f":"I189*(100%-'Other input expert'!H$5)","v":0},{"$f":"J189*(100%-'Other input expert'!I$5)","v":0},{"$f":"K189*(100%-'Other input expert'!J$5)","v":0},{"$f":"L189*(100%-'Other input expert'!K$5)","v":0},{"$f":"M189*(100%-'Other input expert'!L$5)","v":0},{"$f":"N189*(100%-'Other input expert'!M$5)","v":0},null,{"$f":"P189*'Other input expert'!B$12*'Sales price per sales channel'!$G189*'Other input expert'!B$6","v":0},{"$f":"Q189*'Other input expert'!C$12*'Sales price per sales channel'!$G189*'Other input expert'!C$6","v":0},{"$f":"R189*'Other input expert'!D$12*'Sales price per sales channel'!$G189*'Other input expert'!D$6","v":0},{"$f":"S189*'Other input expert'!E$12*'Sales price per sales channel'!$G189*'Other input expert'!E$6","v":0},{"$f":"T189*'Other input expert'!F$12*'Sales price per sales channel'!$G189*'Other input expert'!F$6","v":0},{"$f":"U189*'Other input expert'!G$12*'Sales price per sales channel'!$G189*'Other input expert'!G$6","v":0},{"$f":"V189*'Other input expert'!H$12*'Sales price per sales channel'!$G189*'Other input expert'!H$6","v":0},{"$f":"W189*'Other input expert'!I$12*'Sales price per sales channel'!$G189*'Other input expert'!I$6","v":0},{"$f":"X189*'Other input expert'!J$12*'Sales price per sales channel'!$G189*'Other input expert'!J$6","v":0},{"$f":"Y189*'Other input expert'!K$12*'Sales price per sales channel'!$G189*'Other input expert'!K$6","v":0},{"$f":"Z189*'Other input expert'!L$12*'Sales price per sales channel'!$G189*'Other input expert'!L$6","v":0},{"$f":"AA189*'Other input expert'!M$12*'Sales price per sales channel'!$G189*'Other input expert'!M$6","v":0},null,{"$f":"P189*'Other input expert'!B$13*'Sales price per sales channel'!$H189*'Other input expert'!B$6","v":0},{"$f":"Q189*'Other input expert'!C$13*'Sales price per sales channel'!$H189*'Other input expert'!C$6","v":0},{"$f":"R189*'Other input expert'!D$13*'Sales price per sales channel'!$H189*'Other input expert'!D$6","v":0},{"$f":"S189*'Other input expert'!E$13*'Sales price per sales channel'!$H189*'Other input expert'!E$6","v":0},{"$f":"T189*'Other input expert'!F$13*'Sales price per sales channel'!$H189*'Other input expert'!F$6","v":0},{"$f":"U189*'Other input expert'!G$13*'Sales price per sales channel'!$H189*'Other input expert'!G$6","v":0},{"$f":"V189*'Other input expert'!H$13*'Sales price per sales channel'!$H189*'Other input expert'!H$6","v":0},{"$f":"W189*'Other input expert'!I$13*'Sales price per sales channel'!$H189*'Other input expert'!I$6","v":0},{"$f":"X189*'Other input expert'!J$13*'Sales price per sales channel'!$H189*'Other input expert'!J$6","v":0},{"$f":"Y189*'Other input expert'!K$13*'Sales price per sales channel'!$H189*'Other input expert'!K$6","v":0},{"$f":"Z189*'Other input expert'!L$13*'Sales price per sales channel'!$H189*'Other input expert'!L$6","v":0},{"$f":"AA189*'Other input expert'!M$13*'Sales price per sales channel'!$H189*'Other input expert'!M$6","v":0},null,{"$f":"P189*'Other input expert'!B$14*'Sales price per sales channel'!$I189*'Other input expert'!B$6","v":0},{"$f":"Q189*'Other input expert'!C$14*'Sales price per sales channel'!$I189*'Other input expert'!C$6","v":0},{"$f":"R189*'Other input expert'!D$14*'Sales price per sales channel'!$I189*'Other input expert'!D$6","v":0},{"$f":"S189*'Other input expert'!E$14*'Sales price per sales channel'!$I189*'Other input expert'!E$6","v":0},{"$f":"T189*'Other input expert'!F$14*'Sales price per sales channel'!$I189*'Other input expert'!F$6","v":0},{"$f":"U189*'Other input expert'!G$14*'Sales price per sales channel'!$I189*'Other input expert'!G$6","v":0},{"$f":"V189*'Other input expert'!H$14*'Sales price per sales channel'!$I189*'Other input expert'!H$6","v":0},{"$f":"W189*'Other input expert'!I$14*'Sales price per sales channel'!$I189*'Other input expert'!I$6","v":0},{"$f":"X189*'Other input expert'!J$14*'Sales price per sales channel'!$I189*'Other input expert'!J$6","v":0},{"$f":"Y189*'Other input expert'!K$14*'Sales price per sales channel'!$I189*'Other input expert'!K$6","v":0},{"$f":"Z189*'Other input expert'!L$14*'Sales price per sales channel'!$I189*'Other input expert'!L$6","v":0},{"$f":"AA189*'Other input expert'!M$14*'Sales price per sales channel'!$I189*'Other input expert'!M$6","v":0},null,{"$f":"AC189*'Other input expert'!B$12*'Sales price per sales channel'!$G189*'Other input expert'!B$7","v":0},{"$f":"AD189*'Other input expert'!C$12*'Sales price per sales channel'!$G189*'Other input expert'!C$7","v":0},{"$f":"AE189*'Other input expert'!D$12*'Sales price per sales channel'!$G189*'Other input expert'!D$7","v":0},{"$f":"AF189*'Other input expert'!E$12*'Sales price per sales channel'!$G189*'Other input expert'!E$7","v":0},{"$f":"AG189*'Other input expert'!F$12*'Sales price per sales channel'!$G189*'Other input expert'!F$7","v":0},{"$f":"AH189*'Other input expert'!G$12*'Sales price per sales channel'!$G189*'Other input expert'!G$7","v":0},{"$f":"AI189*'Other input expert'!H$12*'Sales price per sales channel'!$G189*'Other input expert'!H$7","v":0},{"$f":"AJ189*'Other input expert'!I$12*'Sales price per sales channel'!$G189*'Other input expert'!I$7","v":0},{"$f":"AK189*'Other input expert'!J$12*'Sales price per sales channel'!$G189*'Other input expert'!J$7","v":0},{"$f":"AL189*'Other input expert'!K$12*'Sales price per sales channel'!$G189*'Other input expert'!K$7","v":0},{"$f":"AM189*'Other input expert'!L$12*'Sales price per sales channel'!$G189*'Other input expert'!L$7","v":0},{"$f":"AN189*'Other input expert'!M$12*'Sales price per sales channel'!$G189*'Other input expert'!M$7","v":0},null,{"$f":"AC189*'Other input expert'!B$13*'Sales price per sales channel'!$H189*'Other input expert'!B$7","v":0},{"$f":"AD189*'Other input expert'!C$13*'Sales price per sales channel'!$H189*'Other input expert'!C$7","v":0},{"$f":"AE189*'Other input expert'!D$13*'Sales price per sales channel'!$H189*'Other input expert'!D$7","v":0},{"$f":"AF189*'Other input expert'!E$13*'Sales price per sales channel'!$H189*'Other input expert'!E$7","v":0},{"$f":"AG189*'Other input expert'!F$13*'Sales price per sales channel'!$H189*'Other input expert'!F$7","v":0},{"$f":"AH189*'Other input expert'!G$13*'Sales price per sales channel'!$H189*'Other input expert'!G$7","v":0},{"$f":"AI189*'Other input expert'!H$13*'Sales price per sales channel'!$H189*'Other input expert'!H$7","v":0},{"$f":"AJ189*'Other input expert'!I$13*'Sales price per sales channel'!$H189*'Other input expert'!I$7","v":0},{"$f":"AK189*'Other input expert'!J$13*'Sales price per sales channel'!$H189*'Other input expert'!J$7","v":0},{"$f":"AL189*'Other input expert'!K$13*'Sales price per sales channel'!$H189*'Other input expert'!K$7","v":0},{"$f":"AM189*'Other input expert'!L$13*'Sales price per sales channel'!$H189*'Other input expert'!L$7","v":0},{"$f":"AN189*'Other input expert'!M$13*'Sales price per sales channel'!$H189*'Other input expert'!M$7","v":0},null,{"$f":"AC189*'Other input expert'!B$14*'Sales price per sales channel'!$I189*'Other input expert'!B$7","v":0},{"$f":"AD189*'Other input expert'!C$14*'Sales price per sales channel'!$I189*'Other input expert'!C$7","v":0},{"$f":"AE189*'Other input expert'!D$14*'Sales price per sales channel'!$I189*'Other input expert'!D$7","v":0},{"$f":"AF189*'Other input expert'!E$14*'Sales price per sales channel'!$I189*'Other input expert'!E$7","v":0},{"$f":"AG189*'Other input expert'!F$14*'Sales price per sales channel'!$I189*'Other input expert'!F$7","v":0},{"$f":"AH189*'Other input expert'!G$14*'Sales price per sales channel'!$I189*'Other input expert'!G$7","v":0},{"$f":"AI189*'Other input expert'!H$14*'Sales price per sales channel'!$I189*'Other input expert'!H$7","v":0},{"$f":"AJ189*'Other input expert'!I$14*'Sales price per sales channel'!$I189*'Other input expert'!I$7","v":0},{"$f":"AK189*'Other input expert'!J$14*'Sales price per sales channel'!$I189*'Other input expert'!J$7","v":0},{"$f":"AL189*'Other input expert'!K$14*'Sales price per sales channel'!$I189*'Other input expert'!K$7","v":0},{"$f":"AM189*'Other input expert'!L$14*'Sales price per sales channel'!$I189*'Other input expert'!L$7","v":0},{"$f":"AN189*'Other input expert'!M$14*'Sales price per sales channel'!$I189*'Other input expert'!M$7","v":0}]
["Vitis vinifera","Grape",{"$f":"Plantlist!$G190*'Production list'!D191*'Other input expert'!B$4*'Other input expert'!B$8","v":0},{"$f":"Plantlist!$G190*'Production list'!E191*'Other input expert'!C$4*'Other input expert'!C$8","v":0},{"$f":"Plantlist!$G190*'Production list'!F191*'Other input expert'!D$4*'Other input expert'!D$8","v":0},{"$f":"Plantlist!$G190*'Production list'!G191*'Other input expert'!E$4*'Other input expert'!E$8","v":0},{"$f":"Plantlist!$G190*'Production list'!H191*'Other input expert'!F$4*'Other input expert'!F$8","v":0},{"$f":"Plantlist!$G190*'Production list'!I191*'Other input expert'!G$4*'Other input expert'!G$8","v":0},{"$f":"Plantlist!$G190*'Production list'!J191*'Other input expert'!H$4*'Other input expert'!H$8","v":0},{"$f":"Plantlist!$G190*'Production list'!K191*'Other input expert'!I$4*'Other input expert'!I$8","v":0},{"$f":"Plantlist!$G190*'Production list'!L191*'Other input expert'!J$4*'Other input expert'!J$8","v":0},{"$f":"Plantlist!$G190*'Production list'!M191*'Other input expert'!K$4*'Other input expert'!K$8","v":0},{"$f":"Plantlist!$G190*'Production list'!N191*'Other input expert'!L$4*'Other input expert'!L$8","v":0},{"$f":"Plantlist!$G190*'Production list'!O191*'Other input expert'!M$4*'Other input expert'!M$8","v":0},null,{"$f":"C190*'Other input expert'!B$5","v":0},{"$f":"D190*'Other input expert'!C$5","v":0},{"$f":"E190*'Other input expert'!D$5","v":0},{"$f":"F190*'Other input expert'!E$5","v":0},{"$f":"G190*'Other input expert'!F$5","v":0},{"$f":"H190*'Other input expert'!G$5","v":0},{"$f":"I190*'Other input expert'!H$5","v":0},{"$f":"J190*'Other input expert'!I$5","v":0},{"$f":"K190*'Other input expert'!J$5","v":0},{"$f":"L190*'Other input expert'!K$5","v":0},{"$f":"M190*'Other input expert'!L$5","v":0},{"$f":"N190*'Other input expert'!M$5","v":0},null,{"$f":"C190*(100%-'Other input expert'!B$5)","v":0},{"$f":"D190*(100%-'Other input expert'!C$5)","v":0},{"$f":"E190*(100%-'Other input expert'!D$5)","v":0},{"$f":"F190*(100%-'Other input expert'!E$5)","v":0},{"$f":"G190*(100%-'Other input expert'!F$5)","v":0},{"$f":"H190*(100%-'Other input expert'!G$5)","v":0},{"$f":"I190*(100%-'Other input expert'!H$5)","v":0},{"$f":"J190*(100%-'Other input expert'!I$5)","v":0},{"$f":"K190*(100%-'Other input expert'!J$5)","v":0},{"$f":"L190*(100%-'Other input expert'!K$5)","v":0},{"$f":"M190*(100%-'Other input expert'!L$5)","v":0},{"$f":"N190*(100%-'Other input expert'!M$5)","v":0},null,{"$f":"P190*'Other input expert'!B$12*'Sales price per sales channel'!$G190*'Other input expert'!B$6","v":0},{"$f":"Q190*'Other input expert'!C$12*'Sales price per sales channel'!$G190*'Other input expert'!C$6","v":0},{"$f":"R190*'Other input expert'!D$12*'Sales price per sales channel'!$G190*'Other input expert'!D$6","v":0},{"$f":"S190*'Other input expert'!E$12*'Sales price per sales channel'!$G190*'Other input expert'!E$6","v":0},{"$f":"T190*'Other input expert'!F$12*'Sales price per sales channel'!$G190*'Other input expert'!F$6","v":0},{"$f":"U190*'Other input expert'!G$12*'Sales price per sales channel'!$G190*'Other input expert'!G$6","v":0},{"$f":"V190*'Other input expert'!H$12*'Sales price per sales channel'!$G190*'Other input expert'!H$6","v":0},{"$f":"W190*'Other input expert'!I$12*'Sales price per sales channel'!$G190*'Other input expert'!I$6","v":0},{"$f":"X190*'Other input expert'!J$12*'Sales price per sales channel'!$G190*'Other input expert'!J$6","v":0},{"$f":"Y190*'Other input expert'!K$12*'Sales price per sales channel'!$G190*'Other input expert'!K$6","v":0},{"$f":"Z190*'Other input expert'!L$12*'Sales price per sales channel'!$G190*'Other input expert'!L$6","v":0},{"$f":"AA190*'Other input expert'!M$12*'Sales price per sales channel'!$G190*'Other input expert'!M$6","v":0},null,{"$f":"P190*'Other input expert'!B$13*'Sales price per sales channel'!$H190*'Other input expert'!B$6","v":0},{"$f":"Q190*'Other input expert'!C$13*'Sales price per sales channel'!$H190*'Other input expert'!C$6","v":0},{"$f":"R190*'Other input expert'!D$13*'Sales price per sales channel'!$H190*'Other input expert'!D$6","v":0},{"$f":"S190*'Other input expert'!E$13*'Sales price per sales channel'!$H190*'Other input expert'!E$6","v":0},{"$f":"T190*'Other input expert'!F$13*'Sales price per sales channel'!$H190*'Other input expert'!F$6","v":0},{"$f":"U190*'Other input expert'!G$13*'Sales price per sales channel'!$H190*'Other input expert'!G$6","v":0},{"$f":"V190*'Other input expert'!H$13*'Sales price per sales channel'!$H190*'Other input expert'!H$6","v":0},{"$f":"W190*'Other input expert'!I$13*'Sales price per sales channel'!$H190*'Other input expert'!I$6","v":0},{"$f":"X190*'Other input expert'!J$13*'Sales price per sales channel'!$H190*'Other input expert'!J$6","v":0},{"$f":"Y190*'Other input expert'!K$13*'Sales price per sales channel'!$H190*'Other input expert'!K$6","v":0},{"$f":"Z190*'Other input expert'!L$13*'Sales price per sales channel'!$H190*'Other input expert'!L$6","v":0},{"$f":"AA190*'Other input expert'!M$13*'Sales price per sales channel'!$H190*'Other input expert'!M$6","v":0},null,{"$f":"P190*'Other input expert'!B$14*'Sales price per sales channel'!$I190*'Other input expert'!B$6","v":0},{"$f":"Q190*'Other input expert'!C$14*'Sales price per sales channel'!$I190*'Other input expert'!C$6","v":0},{"$f":"R190*'Other input expert'!D$14*'Sales price per sales channel'!$I190*'Other input expert'!D$6","v":0},{"$f":"S190*'Other input expert'!E$14*'Sales price per sales channel'!$I190*'Other input expert'!E$6","v":0},{"$f":"T190*'Other input expert'!F$14*'Sales price per sales channel'!$I190*'Other input expert'!F$6","v":0},{"$f":"U190*'Other input expert'!G$14*'Sales price per sales channel'!$I190*'Other input expert'!G$6","v":0},{"$f":"V190*'Other input expert'!H$14*'Sales price per sales channel'!$I190*'Other input expert'!H$6","v":0},{"$f":"W190*'Other input expert'!I$14*'Sales price per sales channel'!$I190*'Other input expert'!I$6","v":0},{"$f":"X190*'Other input expert'!J$14*'Sales price per sales channel'!$I190*'Other input expert'!J$6","v":0},{"$f":"Y190*'Other input expert'!K$14*'Sales price per sales channel'!$I190*'Other input expert'!K$6","v":0},{"$f":"Z190*'Other input expert'!L$14*'Sales price per sales channel'!$I190*'Other input expert'!L$6","v":0},{"$f":"AA190*'Other input expert'!M$14*'Sales price per sales channel'!$I190*'Other input expert'!M$6","v":0},null,{"$f":"AC190*'Other input expert'!B$12*'Sales price per sales channel'!$G190*'Other input expert'!B$7","v":0},{"$f":"AD190*'Other input expert'!C$12*'Sales price per sales channel'!$G190*'Other input expert'!C$7","v":0},{"$f":"AE190*'Other input expert'!D$12*'Sales price per sales channel'!$G190*'Other input expert'!D$7","v":0},{"$f":"AF190*'Other input expert'!E$12*'Sales price per sales channel'!$G190*'Other input expert'!E$7","v":0},{"$f":"AG190*'Other input expert'!F$12*'Sales price per sales channel'!$G190*'Other input expert'!F$7","v":0},{"$f":"AH190*'Other input expert'!G$12*'Sales price per sales channel'!$G190*'Other input expert'!G$7","v":0},{"$f":"AI190*'Other input expert'!H$12*'Sales price per sales channel'!$G190*'Other input expert'!H$7","v":0},{"$f":"AJ190*'Other input expert'!I$12*'Sales price per sales channel'!$G190*'Other input expert'!I$7","v":0},{"$f":"AK190*'Other input expert'!J$12*'Sales price per sales channel'!$G190*'Other input expert'!J$7","v":0},{"$f":"AL190*'Other input expert'!K$12*'Sales price per sales channel'!$G190*'Other input expert'!K$7","v":0},{"$f":"AM190*'Other input expert'!L$12*'Sales price per sales channel'!$G190*'Other input expert'!L$7","v":0},{"$f":"AN190*'Other input expert'!M$12*'Sales price per sales channel'!$G190*'Other input expert'!M$7","v":0},null,{"$f":"AC190*'Other input expert'!B$13*'Sales price per sales channel'!$H190*'Other input expert'!B$7","v":0},{"$f":"AD190*'Other input expert'!C$13*'Sales price per sales channel'!$H190*'Other input expert'!C$7","v":0},{"$f":"AE190*'Other input expert'!D$13*'Sales price per sales channel'!$H190*'Other input expert'!D$7","v":0},{"$f":"AF190*'Other input expert'!E$13*'Sales price per sales channel'!$H190*'Other input expert'!E$7","v":0},{"$f":"AG190*'Other input expert'!F$13*'Sales price per sales channel'!$H190*'Other input expert'!F$7","v":0},{"$f":"AH190*'Other input expert'!G$13*'Sales price per sales channel'!$H190*'Other input expert'!G$7","v":0},{"$f":"AI190*'Other input expert'!H$13*'Sales price per sales channel'!$H190*'Other input expert'!H$7","v":0},{"$f":"AJ190*'Other input expert'!I$13*'Sales price per sales channel'!$H190*'Other input expert'!I$7","v":0},{"$f":"AK190*'Other input expert'!J$13*'Sales price per sales channel'!$H190*'Other input expert'!J$7","v":0},{"$f":"AL190*'Other input expert'!K$13*'Sales price per sales channel'!$H190*'Other input expert'!K$7","v":0},{"$f":"AM190*'Other input expert'!L$13*'Sales price per sales channel'!$H190*'Other input expert'!L$7","v":0},{"$f":"AN190*'Other input expert'!M$13*'Sales price per sales channel'!$H190*'Other input expert'!M$7","v":0},null,{"$f":"AC190*'Other input expert'!B$14*'Sales price per sales channel'!$I190*'Other input expert'!B$7","v":0},{"$f":"AD190*'Other input expert'!C$14*'Sales price per sales channel'!$I190*'Other input expert'!C$7","v":0},{"$f":"AE190*'Other input expert'!D$14*'Sales price per sales channel'!$I190*'Other input expert'!D$7","v":0},{"$f":"AF190*'Other input expert'!E$14*'Sales price per sales channel'!$I190*'Other input expert'!E$7","v":0},{"$f":"AG190*'Other input expert'!F$14*'Sales price per sales channel'!$I190*'Other input expert'!F$7","v":0},{"$f":"AH190*'Other input expert'!G$14*'Sales price per sales channel'!$I190*'Other input expert'!G$7","v":0},{"$f":"AI190*'Other input expert'!H$14*'Sales price per sales channel'!$I190*'Other input expert'!H$7","v":0},{"$f":"AJ190*'Other input expert'!I$14*'Sales price per sales channel'!$I190*'Other input expert'!I$7","v":0},{"$f":"AK190*'Other input expert'!J$14*'Sales price per sales channel'!$I190*'Other input expert'!J$7","v":0},{"$f":"AL190*'Other input expert'!K$14*'Sales price per sales channel'!$I190*'Other input expert'!K$7","v":0},{"$f":"AM190*'Other input expert'!L$14*'Sales price per sales channel'!$I190*'Other input expert'!L$7","v":0},{"$f":"AN190*'Other input expert'!M$14*'Sales price per sales channel'!$I190*'Other input expert'!M$7","v":0}]
["Xanthoceras sorbifolium","Yellowhorn",{"$f":"Plantlist!$G191*'Production list'!D192*'Other input expert'!B$4*'Other input expert'!B$8","v":0},{"$f":"Plantlist!$G191*'Production list'!E192*'Other input expert'!C$4*'Other input expert'!C$8","v":0},{"$f":"Plantlist!$G191*'Production list'!F192*'Other input expert'!D$4*'Other input expert'!D$8","v":0},{"$f":"Plantlist!$G191*'Production list'!G192*'Other input expert'!E$4*'Other input expert'!E$8","v":0},{"$f":"Plantlist!$G191*'Production list'!H192*'Other input expert'!F$4*'Other input expert'!F$8","v":0},{"$f":"Plantlist!$G191*'Production list'!I192*'Other input expert'!G$4*'Other input expert'!G$8","v":0},{"$f":"Plantlist!$G191*'Production list'!J192*'Other input expert'!H$4*'Other input expert'!H$8","v":0},{"$f":"Plantlist!$G191*'Production list'!K192*'Other input expert'!I$4*'Other input expert'!I$8","v":0},{"$f":"Plantlist!$G191*'Production list'!L192*'Other input expert'!J$4*'Other input expert'!J$8","v":0},{"$f":"Plantlist!$G191*'Production list'!M192*'Other input expert'!K$4*'Other input expert'!K$8","v":0},{"$f":"Plantlist!$G191*'Production list'!N192*'Other input expert'!L$4*'Other input expert'!L$8","v":0},{"$f":"Plantlist!$G191*'Production list'!O192*'Other input expert'!M$4*'Other input expert'!M$8","v":0},null,{"$f":"C191*'Other input expert'!B$5","v":0},{"$f":"D191*'Other input expert'!C$5","v":0},{"$f":"E191*'Other input expert'!D$5","v":0},{"$f":"F191*'Other input expert'!E$5","v":0},{"$f":"G191*'Other input expert'!F$5","v":0},{"$f":"H191*'Other input expert'!G$5","v":0},{"$f":"I191*'Other input expert'!H$5","v":0},{"$f":"J191*'Other input expert'!I$5","v":0},{"$f":"K191*'Other input expert'!J$5","v":0},{"$f":"L191*'Other input expert'!K$5","v":0},{"$f":"M191*'Other input expert'!L$5","v":0},{"$f":"N191*'Other input expert'!M$5","v":0},null,{"$f":"C191*(100%-'Other input expert'!B$5)","v":0},{"$f":"D191*(100%-'Other input expert'!C$5)","v":0},{"$f":"E191*(100%-'Other input expert'!D$5)","v":0},{"$f":"F191*(100%-'Other input expert'!E$5)","v":0},{"$f":"G191*(100%-'Other input expert'!F$5)","v":0},{"$f":"H191*(100%-'Other input expert'!G$5)","v":0},{"$f":"I191*(100%-'Other input expert'!H$5)","v":0},{"$f":"J191*(100%-'Other input expert'!I$5)","v":0},{"$f":"K191*(100%-'Other input expert'!J$5)","v":0},{"$f":"L191*(100%-'Other input expert'!K$5)","v":0},{"$f":"M191*(100%-'Other input expert'!L$5)","v":0},{"$f":"N191*(100%-'Other input expert'!M$5)","v":0},null,{"$f":"P191*'Other input expert'!B$12*'Sales price per sales channel'!$G191*'Other input expert'!B$6","v":0},{"$f":"Q191*'Other input expert'!C$12*'Sales price per sales channel'!$G191*'Other input expert'!C$6","v":0},{"$f":"R191*'Other input expert'!D$12*'Sales price per sales channel'!$G191*'Other input expert'!D$6","v":0},{"$f":"S191*'Other input expert'!E$12*'Sales price per sales channel'!$G191*'Other input expert'!E$6","v":0},{"$f":"T191*'Other input expert'!F$12*'Sales price per sales channel'!$G191*'Other input expert'!F$6","v":0},{"$f":"U191*'Other input expert'!G$12*'Sales price per sales channel'!$G191*'Other input expert'!G$6","v":0},{"$f":"V191*'Other input expert'!H$12*'Sales price per sales channel'!$G191*'Other input expert'!H$6","v":0},{"$f":"W191*'Other input expert'!I$12*'Sales price per sales channel'!$G191*'Other input expert'!I$6","v":0},{"$f":"X191*'Other input expert'!J$12*'Sales price per sales channel'!$G191*'Other input expert'!J$6","v":0},{"$f":"Y191*'Other input expert'!K$12*'Sales price per sales channel'!$G191*'Other input expert'!K$6","v":0},{"$f":"Z191*'Other input expert'!L$12*'Sales price per sales channel'!$G191*'Other input expert'!L$6","v":0},{"$f":"AA191*'Other input expert'!M$12*'Sales price per sales channel'!$G191*'Other input expert'!M$6","v":0},null,{"$f":"P191*'Other input expert'!B$13*'Sales price per sales channel'!$H191*'Other input expert'!B$6","v":0},{"$f":"Q191*'Other input expert'!C$13*'Sales price per sales channel'!$H191*'Other input expert'!C$6","v":0},{"$f":"R191*'Other input expert'!D$13*'Sales price per sales channel'!$H191*'Other input expert'!D$6","v":0},{"$f":"S191*'Other input expert'!E$13*'Sales price per sales channel'!$H191*'Other input expert'!E$6","v":0},{"$f":"T191*'Other input expert'!F$13*'Sales price per sales channel'!$H191*'Other input expert'!F$6","v":0},{"$f":"U191*'Other input expert'!G$13*'Sales price per sales channel'!$H191*'Other input expert'!G$6","v":0},{"$f":"V191*'Other input expert'!H$13*'Sales price per sales channel'!$H191*'Other input expert'!H$6","v":0},{"$f":"W191*'Other input expert'!I$13*'Sales price per sales channel'!$H191*'Other input expert'!I$6","v":0},{"$f":"X191*'Other input expert'!J$13*'Sales price per sales channel'!$H191*'Other input expert'!J$6","v":0},{"$f":"Y191*'Other input expert'!K$13*'Sales price per sales channel'!$H191*'Other input expert'!K$6","v":0},{"$f":"Z191*'Other input expert'!L$13*'Sales price per sales channel'!$H191*'Other input expert'!L$6","v":0},{"$f":"AA191*'Other input expert'!M$13*'Sales price per sales channel'!$H191*'Other input expert'!M$6","v":0},null,{"$f":"P191*'Other input expert'!B$14*'Sales price per sales channel'!$I191*'Other input expert'!B$6","v":0},{"$f":"Q191*'Other input expert'!C$14*'Sales price per sales channel'!$I191*'Other input expert'!C$6","v":0},{"$f":"R191*'Other input expert'!D$14*'Sales price per sales channel'!$I191*'Other input expert'!D$6","v":0},{"$f":"S191*'Other input expert'!E$14*'Sales price per sales channel'!$I191*'Other input expert'!E$6","v":0},{"$f":"T191*'Other input expert'!F$14*'Sales price per sales channel'!$I191*'Other input expert'!F$6","v":0},{"$f":"U191*'Other input expert'!G$14*'Sales price per sales channel'!$I191*'Other input expert'!G$6","v":0},{"$f":"V191*'Other input expert'!H$14*'Sales price per sales channel'!$I191*'Other input expert'!H$6","v":0},{"$f":"W191*'Other input expert'!I$14*'Sales price per sales channel'!$I191*'Other input expert'!I$6","v":0},{"$f":"X191*'Other input expert'!J$14*'Sales price per sales channel'!$I191*'Other input expert'!J$6","v":0},{"$f":"Y191*'Other input expert'!K$14*'Sales price per sales channel'!$I191*'Other input expert'!K$6","v":0},{"$f":"Z191*'Other input expert'!L$14*'Sales price per sales channel'!$I191*'Other input expert'!L$6","v":0},{"$f":"AA191*'Other input expert'!M$14*'Sales price per sales channel'!$I191*'Other input expert'!M$6","v":0},null,{"$f":"AC191*'Other input expert'!B$12*'Sales price per sales channel'!$G191*'Other input expert'!B$7","v":0},{"$f":"AD191*'Other input expert'!C$12*'Sales price per sales channel'!$G191*'Other input expert'!C$7","v":0},{"$f":"AE191*'Other input expert'!D$12*'Sales price per sales channel'!$G191*'Other input expert'!D$7","v":0},{"$f":"AF191*'Other input expert'!E$12*'Sales price per sales channel'!$G191*'Other input expert'!E$7","v":0},{"$f":"AG191*'Other input expert'!F$12*'Sales price per sales channel'!$G191*'Other input expert'!F$7","v":0},{"$f":"AH191*'Other input expert'!G$12*'Sales price per sales channel'!$G191*'Other input expert'!G$7","v":0},{"$f":"AI191*'Other input expert'!H$12*'Sales price per sales channel'!$G191*'Other input expert'!H$7","v":0},{"$f":"AJ191*'Other input expert'!I$12*'Sales price per sales channel'!$G191*'Other input expert'!I$7","v":0},{"$f":"AK191*'Other input expert'!J$12*'Sales price per sales channel'!$G191*'Other input expert'!J$7","v":0},{"$f":"AL191*'Other input expert'!K$12*'Sales price per sales channel'!$G191*'Other input expert'!K$7","v":0},{"$f":"AM191*'Other input expert'!L$12*'Sales price per sales channel'!$G191*'Other input expert'!L$7","v":0},{"$f":"AN191*'Other input expert'!M$12*'Sales price per sales channel'!$G191*'Other input expert'!M$7","v":0},null,{"$f":"AC191*'Other input expert'!B$13*'Sales price per sales channel'!$H191*'Other input expert'!B$7","v":0},{"$f":"AD191*'Other input expert'!C$13*'Sales price per sales channel'!$H191*'Other input expert'!C$7","v":0},{"$f":"AE191*'Other input expert'!D$13*'Sales price per sales channel'!$H191*'Other input expert'!D$7","v":0},{"$f":"AF191*'Other input expert'!E$13*'Sales price per sales channel'!$H191*'Other input expert'!E$7","v":0},{"$f":"AG191*'Other input expert'!F$13*'Sales price per sales channel'!$H191*'Other input expert'!F$7","v":0},{"$f":"AH191*'Other input expert'!G$13*'Sales price per sales channel'!$H191*'Other input expert'!G$7","v":0},{"$f":"AI191*'Other input expert'!H$13*'Sales price per sales channel'!$H191*'Other input expert'!H$7","v":0},{"$f":"AJ191*'Other input expert'!I$13*'Sales price per sales channel'!$H191*'Other input expert'!I$7","v":0},{"$f":"AK191*'Other input expert'!J$13*'Sales price per sales channel'!$H191*'Other input expert'!J$7","v":0},{"$f":"AL191*'Other input expert'!K$13*'Sales price per sales channel'!$H191*'Other input expert'!K$7","v":0},{"$f":"AM191*'Other input expert'!L$13*'Sales price per sales channel'!$H191*'Other input expert'!L$7","v":0},{"$f":"AN191*'Other input expert'!M$13*'Sales price per sales channel'!$H191*'Other input expert'!M$7","v":0},null,{"$f":"AC191*'Other input expert'!B$14*'Sales price per sales channel'!$I191*'Other input expert'!B$7","v":0},{"$f":"AD191*'Other input expert'!C$14*'Sales price per sales channel'!$I191*'Other input expert'!C$7","v":0},{"$f":"AE191*'Other input expert'!D$14*'Sales price per sales channel'!$I191*'Other input expert'!D$7","v":0},{"$f":"AF191*'Other input expert'!E$14*'Sales price per sales channel'!$I191*'Other input expert'!E$7","v":0},{"$f":"AG191*'Other input expert'!F$14*'Sales price per sales channel'!$I191*'Other input expert'!F$7","v":0},{"$f":"AH191*'Other input expert'!G$14*'Sales price per sales channel'!$I191*'Other input expert'!G$7","v":0},{"$f":"AI191*'Other input expert'!H$14*'Sales price per sales channel'!$I191*'Other input expert'!H$7","v":0},{"$f":"AJ191*'Other input expert'!I$14*'Sales price per sales channel'!$I191*'Other input expert'!I$7","v":0},{"$f":"AK191*'Other input expert'!J$14*'Sales price per sales channel'!$I191*'Other input expert'!J$7","v":0},{"$f":"AL191*'Other input expert'!K$14*'Sales price per sales channel'!$I191*'Other input expert'!K$7","v":0},{"$f":"AM191*'Other input expert'!L$14*'Sales price per sales channel'!$I191*'Other input expert'!L$7","v":0},{"$f":"AN191*'Other input expert'!M$14*'Sales price per sales channel'!$I191*'Other input expert'!M$7","v":0}]
["Zanthoxylum spp","Szechuan pepper",{"$f":"Plantlist!$G192*'Production list'!D193*'Other input expert'!B$4*'Other input expert'!B$8","v":0},{"$f":"Plantlist!$G192*'Production list'!E193*'Other input expert'!C$4*'Other input expert'!C$8","v":0},{"$f":"Plantlist!$G192*'Production list'!F193*'Other input expert'!D$4*'Other input expert'!D$8","v":0},{"$f":"Plantlist!$G192*'Production list'!G193*'Other input expert'!E$4*'Other input expert'!E$8","v":0},{"$f":"Plantlist!$G192*'Production list'!H193*'Other input expert'!F$4*'Other input expert'!F$8","v":0},{"$f":"Plantlist!$G192*'Production list'!I193*'Other input expert'!G$4*'Other input expert'!G$8","v":0},{"$f":"Plantlist!$G192*'Production list'!J193*'Other input expert'!H$4*'Other input expert'!H$8","v":0},{"$f":"Plantlist!$G192*'Production list'!K193*'Other input expert'!I$4*'Other input expert'!I$8","v":0},{"$f":"Plantlist!$G192*'Production list'!L193*'Other input expert'!J$4*'Other input expert'!J$8","v":0},{"$f":"Plantlist!$G192*'Production list'!M193*'Other input expert'!K$4*'Other input expert'!K$8","v":0},{"$f":"Plantlist!$G192*'Production list'!N193*'Other input expert'!L$4*'Other input expert'!L$8","v":0},{"$f":"Plantlist!$G192*'Production list'!O193*'Other input expert'!M$4*'Other input expert'!M$8","v":0},null,{"$f":"C192*'Other input expert'!B$5","v":0},{"$f":"D192*'Other input expert'!C$5","v":0},{"$f":"E192*'Other input expert'!D$5","v":0},{"$f":"F192*'Other input expert'!E$5","v":0},{"$f":"G192*'Other input expert'!F$5","v":0},{"$f":"H192*'Other input expert'!G$5","v":0},{"$f":"I192*'Other input expert'!H$5","v":0},{"$f":"J192*'Other input expert'!I$5","v":0},{"$f":"K192*'Other input expert'!J$5","v":0},{"$f":"L192*'Other input expert'!K$5","v":0},{"$f":"M192*'Other input expert'!L$5","v":0},{"$f":"N192*'Other input expert'!M$5","v":0},null,{"$f":"C192*(100%-'Other input expert'!B$5)","v":0},{"$f":"D192*(100%-'Other input expert'!C$5)","v":0},{"$f":"E192*(100%-'Other input expert'!D$5)","v":0},{"$f":"F192*(100%-'Other input expert'!E$5)","v":0},{"$f":"G192*(100%-'Other input expert'!F$5)","v":0},{"$f":"H192*(100%-'Other input expert'!G$5)","v":0},{"$f":"I192*(100%-'Other input expert'!H$5)","v":0},{"$f":"J192*(100%-'Other input expert'!I$5)","v":0},{"$f":"K192*(100%-'Other input expert'!J$5)","v":0},{"$f":"L192*(100%-'Other input expert'!K$5)","v":0},{"$f":"M192*(100%-'Other input expert'!L$5)","v":0},{"$f":"N192*(100%-'Other input expert'!M$5)","v":0},null,{"$f":"P192*'Other input expert'!B$12*'Sales price per sales channel'!$G192*'Other input expert'!B$6","v":0},{"$f":"Q192*'Other input expert'!C$12*'Sales price per sales channel'!$G192*'Other input expert'!C$6","v":0},{"$f":"R192*'Other input expert'!D$12*'Sales price per sales channel'!$G192*'Other input expert'!D$6","v":0},{"$f":"S192*'Other input expert'!E$12*'Sales price per sales channel'!$G192*'Other input expert'!E$6","v":0},{"$f":"T192*'Other input expert'!F$12*'Sales price per sales channel'!$G192*'Other input expert'!F$6","v":0},{"$f":"U192*'Other input expert'!G$12*'Sales price per sales channel'!$G192*'Other input expert'!G$6","v":0},{"$f":"V192*'Other input expert'!H$12*'Sales price per sales channel'!$G192*'Other input expert'!H$6","v":0},{"$f":"W192*'Other input expert'!I$12*'Sales price per sales channel'!$G192*'Other input expert'!I$6","v":0},{"$f":"X192*'Other input expert'!J$12*'Sales price per sales channel'!$G192*'Other input expert'!J$6","v":0},{"$f":"Y192*'Other input expert'!K$12*'Sales price per sales channel'!$G192*'Other input expert'!K$6","v":0},{"$f":"Z192*'Other input expert'!L$12*'Sales price per sales channel'!$G192*'Other input expert'!L$6","v":0},{"$f":"AA192*'Other input expert'!M$12*'Sales price per sales channel'!$G192*'Other input expert'!M$6","v":0},null,{"$f":"P192*'Other input expert'!B$13*'Sales price per sales channel'!$H192*'Other input expert'!B$6","v":0},{"$f":"Q192*'Other input expert'!C$13*'Sales price per sales channel'!$H192*'Other input expert'!C$6","v":0},{"$f":"R192*'Other input expert'!D$13*'Sales price per sales channel'!$H192*'Other input expert'!D$6","v":0},{"$f":"S192*'Other input expert'!E$13*'Sales price per sales channel'!$H192*'Other input expert'!E$6","v":0},{"$f":"T192*'Other input expert'!F$13*'Sales price per sales channel'!$H192*'Other input expert'!F$6","v":0},{"$f":"U192*'Other input expert'!G$13*'Sales price per sales channel'!$H192*'Other input expert'!G$6","v":0},{"$f":"V192*'Other input expert'!H$13*'Sales price per sales channel'!$H192*'Other input expert'!H$6","v":0},{"$f":"W192*'Other input expert'!I$13*'Sales price per sales channel'!$H192*'Other input expert'!I$6","v":0},{"$f":"X192*'Other input expert'!J$13*'Sales price per sales channel'!$H192*'Other input expert'!J$6","v":0},{"$f":"Y192*'Other input expert'!K$13*'Sales price per sales channel'!$H192*'Other input expert'!K$6","v":0},{"$f":"Z192*'Other input expert'!L$13*'Sales price per sales channel'!$H192*'Other input expert'!L$6","v":0},{"$f":"AA192*'Other input expert'!M$13*'Sales price per sales channel'!$H192*'Other input expert'!M$6","v":0},null,{"$f":"P192*'Other input expert'!B$14*'Sales price per sales channel'!$I192*'Other input expert'!B$6","v":0},{"$f":"Q192*'Other input expert'!C$14*'Sales price per sales channel'!$I192*'Other input expert'!C$6","v":0},{"$f":"R192*'Other input expert'!D$14*'Sales price per sales channel'!$I192*'Other input expert'!D$6","v":0},{"$f":"S192*'Other input expert'!E$14*'Sales price per sales channel'!$I192*'Other input expert'!E$6","v":0},{"$f":"T192*'Other input expert'!F$14*'Sales price per sales channel'!$I192*'Other input expert'!F$6","v":0},{"$f":"U192*'Other input expert'!G$14*'Sales price per sales channel'!$I192*'Other input expert'!G$6","v":0},{"$f":"V192*'Other input expert'!H$14*'Sales price per sales channel'!$I192*'Other input expert'!H$6","v":0},{"$f":"W192*'Other input expert'!I$14*'Sales price per sales channel'!$I192*'Other input expert'!I$6","v":0},{"$f":"X192*'Other input expert'!J$14*'Sales price per sales channel'!$I192*'Other input expert'!J$6","v":0},{"$f":"Y192*'Other input expert'!K$14*'Sales price per sales channel'!$I192*'Other input expert'!K$6","v":0},{"$f":"Z192*'Other input expert'!L$14*'Sales price per sales channel'!$I192*'Other input expert'!L$6","v":0},{"$f":"AA192*'Other input expert'!M$14*'Sales price per sales channel'!$I192*'Other input expert'!M$6","v":0},null,{"$f":"AC192*'Other input expert'!B$12*'Sales price per sales channel'!$G192*'Other input expert'!B$7","v":0},{"$f":"AD192*'Other input expert'!C$12*'Sales price per sales channel'!$G192*'Other input expert'!C$7","v":0},{"$f":"AE192*'Other input expert'!D$12*'Sales price per sales channel'!$G192*'Other input expert'!D$7","v":0},{"$f":"AF192*'Other input expert'!E$12*'Sales price per sales channel'!$G192*'Other input expert'!E$7","v":0},{"$f":"AG192*'Other input expert'!F$12*'Sales price per sales channel'!$G192*'Other input expert'!F$7","v":0},{"$f":"AH192*'Other input expert'!G$12*'Sales price per sales channel'!$G192*'Other input expert'!G$7","v":0},{"$f":"AI192*'Other input expert'!H$12*'Sales price per sales channel'!$G192*'Other input expert'!H$7","v":0},{"$f":"AJ192*'Other input expert'!I$12*'Sales price per sales channel'!$G192*'Other input expert'!I$7","v":0},{"$f":"AK192*'Other input expert'!J$12*'Sales price per sales channel'!$G192*'Other input expert'!J$7","v":0},{"$f":"AL192*'Other input expert'!K$12*'Sales price per sales channel'!$G192*'Other input expert'!K$7","v":0},{"$f":"AM192*'Other input expert'!L$12*'Sales price per sales channel'!$G192*'Other input expert'!L$7","v":0},{"$f":"AN192*'Other input expert'!M$12*'Sales price per sales channel'!$G192*'Other input expert'!M$7","v":0},null,{"$f":"AC192*'Other input expert'!B$13*'Sales price per sales channel'!$H192*'Other input expert'!B$7","v":0},{"$f":"AD192*'Other input expert'!C$13*'Sales price per sales channel'!$H192*'Other input expert'!C$7","v":0},{"$f":"AE192*'Other input expert'!D$13*'Sales price per sales channel'!$H192*'Other input expert'!D$7","v":0},{"$f":"AF192*'Other input expert'!E$13*'Sales price per sales channel'!$H192*'Other input expert'!E$7","v":0},{"$f":"AG192*'Other input expert'!F$13*'Sales price per sales channel'!$H192*'Other input expert'!F$7","v":0},{"$f":"AH192*'Other input expert'!G$13*'Sales price per sales channel'!$H192*'Other input expert'!G$7","v":0},{"$f":"AI192*'Other input expert'!H$13*'Sales price per sales channel'!$H192*'Other input expert'!H$7","v":0},{"$f":"AJ192*'Other input expert'!I$13*'Sales price per sales channel'!$H192*'Other input expert'!I$7","v":0},{"$f":"AK192*'Other input expert'!J$13*'Sales price per sales channel'!$H192*'Other input expert'!J$7","v":0},{"$f":"AL192*'Other input expert'!K$13*'Sales price per sales channel'!$H192*'Other input expert'!K$7","v":0},{"$f":"AM192*'Other input expert'!L$13*'Sales price per sales channel'!$H192*'Other input expert'!L$7","v":0},{"$f":"AN192*'Other input expert'!M$13*'Sales price per sales channel'!$H192*'Other input expert'!M$7","v":0},null,{"$f":"AC192*'Other input expert'!B$14*'Sales price per sales channel'!$I192*'Other input expert'!B$7","v":0},{"$f":"AD192*'Other input expert'!C$14*'Sales price per sales channel'!$I192*'Other input expert'!C$7","v":0},{"$f":"AE192*'Other input expert'!D$14*'Sales price per sales channel'!$I192*'Other input expert'!D$7","v":0},{"$f":"AF192*'Other input expert'!E$14*'Sales price per sales channel'!$I192*'Other input expert'!E$7","v":0},{"$f":"AG192*'Other input expert'!F$14*'Sales price per sales channel'!$I192*'Other input expert'!F$7","v":0},{"$f":"AH192*'Other input expert'!G$14*'Sales price per sales channel'!$I192*'Other input expert'!G$7","v":0},{"$f":"AI192*'Other input expert'!H$14*'Sales price per sales channel'!$I192*'Other input expert'!H$7","v":0},{"$f":"AJ192*'Other input expert'!I$14*'Sales price per sales channel'!$I192*'Other input expert'!I$7","v":0},{"$f":"AK192*'Other input expert'!J$14*'Sales price per sales channel'!$I192*'Other input expert'!J$7","v":0},{"$f":"AL192*'Other input expert'!K$14*'Sales price per sales channel'!$I192*'Other input expert'!K$7","v":0},{"$f":"AM192*'Other input expert'!L$14*'Sales price per sales channel'!$I192*'Other input expert'!L$7","v":0},{"$f":"AN192*'Other input expert'!M$14*'Sales price per sales channel'!$I192*'Other input expert'!M$7","v":0}]
["Ziziphus jujube","Jujube",{"$f":"Plantlist!$G193*'Production list'!D194*'Other input expert'!B$4*'Other input expert'!B$8","v":0},{"$f":"Plantlist!$G193*'Production list'!E194*'Other input expert'!C$4*'Other input expert'!C$8","v":0},{"$f":"Plantlist!$G193*'Production list'!F194*'Other input expert'!D$4*'Other input expert'!D$8","v":0},{"$f":"Plantlist!$G193*'Production list'!G194*'Other input expert'!E$4*'Other input expert'!E$8","v":0},{"$f":"Plantlist!$G193*'Production list'!H194*'Other input expert'!F$4*'Other input expert'!F$8","v":0},{"$f":"Plantlist!$G193*'Production list'!I194*'Other input expert'!G$4*'Other input expert'!G$8","v":0},{"$f":"Plantlist!$G193*'Production list'!J194*'Other input expert'!H$4*'Other input expert'!H$8","v":0},{"$f":"Plantlist!$G193*'Production list'!K194*'Other input expert'!I$4*'Other input expert'!I$8","v":0},{"$f":"Plantlist!$G193*'Production list'!L194*'Other input expert'!J$4*'Other input expert'!J$8","v":0},{"$f":"Plantlist!$G193*'Production list'!M194*'Other input expert'!K$4*'Other input expert'!K$8","v":0},{"$f":"Plantlist!$G193*'Production list'!N194*'Other input expert'!L$4*'Other input expert'!L$8","v":0},{"$f":"Plantlist!$G193*'Production list'!O194*'Other input expert'!M$4*'Other input expert'!M$8","v":0},null,{"$f":"C193*'Other input expert'!B$5","v":0},{"$f":"D193*'Other input expert'!C$5","v":0},{"$f":"E193*'Other input expert'!D$5","v":0},{"$f":"F193*'Other input expert'!E$5","v":0},{"$f":"G193*'Other input expert'!F$5","v":0},{"$f":"H193*'Other input expert'!G$5","v":0},{"$f":"I193*'Other input expert'!H$5","v":0},{"$f":"J193*'Other input expert'!I$5","v":0},{"$f":"K193*'Other input expert'!J$5","v":0},{"$f":"L193*'Other input expert'!K$5","v":0},{"$f":"M193*'Other input expert'!L$5","v":0},{"$f":"N193*'Other input expert'!M$5","v":0},null,{"$f":"C193*(100%-'Other input expert'!B$5)","v":0},{"$f":"D193*(100%-'Other input expert'!C$5)","v":0},{"$f":"E193*(100%-'Other input expert'!D$5)","v":0},{"$f":"F193*(100%-'Other input expert'!E$5)","v":0},{"$f":"G193*(100%-'Other input expert'!F$5)","v":0},{"$f":"H193*(100%-'Other input expert'!G$5)","v":0},{"$f":"I193*(100%-'Other input expert'!H$5)","v":0},{"$f":"J193*(100%-'Other input expert'!I$5)","v":0},{"$f":"K193*(100%-'Other input expert'!J$5)","v":0},{"$f":"L193*(100%-'Other input expert'!K$5)","v":0},{"$f":"M193*(100%-'Other input expert'!L$5)","v":0},{"$f":"N193*(100%-'Other input expert'!M$5)","v":0},null,{"$f":"P193*'Other input expert'!B$12*'Sales price per sales channel'!$G193*'Other input expert'!B$6","v":0},{"$f":"Q193*'Other input expert'!C$12*'Sales price per sales channel'!$G193*'Other input expert'!C$6","v":0},{"$f":"R193*'Other input expert'!D$12*'Sales price per sales channel'!$G193*'Other input expert'!D$6","v":0},{"$f":"S193*'Other input expert'!E$12*'Sales price per sales channel'!$G193*'Other input expert'!E$6","v":0},{"$f":"T193*'Other input expert'!F$12*'Sales price per sales channel'!$G193*'Other input expert'!F$6","v":0},{"$f":"U193*'Other input expert'!G$12*'Sales price per sales channel'!$G193*'Other input expert'!G$6","v":0},{"$f":"V193*'Other input expert'!H$12*'Sales price per sales channel'!$G193*'Other input expert'!H$6","v":0},{"$f":"W193*'Other input expert'!I$12*'Sales price per sales channel'!$G193*'Other input expert'!I$6","v":0},{"$f":"X193*'Other input expert'!J$12*'Sales price per sales channel'!$G193*'Other input expert'!J$6","v":0},{"$f":"Y193*'Other input expert'!K$12*'Sales price per sales channel'!$G193*'Other input expert'!K$6","v":0},{"$f":"Z193*'Other input expert'!L$12*'Sales price per sales channel'!$G193*'Other input expert'!L$6","v":0},{"$f":"AA193*'Other input expert'!M$12*'Sales price per sales channel'!$G193*'Other input expert'!M$6","v":0},null,{"$f":"P193*'Other input expert'!B$13*'Sales price per sales channel'!$H193*'Other input expert'!B$6","v":0},{"$f":"Q193*'Other input expert'!C$13*'Sales price per sales channel'!$H193*'Other input expert'!C$6","v":0},{"$f":"R193*'Other input expert'!D$13*'Sales price per sales channel'!$H193*'Other input expert'!D$6","v":0},{"$f":"S193*'Other input expert'!E$13*'Sales price per sales channel'!$H193*'Other input expert'!E$6","v":0},{"$f":"T193*'Other input expert'!F$13*'Sales price per sales channel'!$H193*'Other input expert'!F$6","v":0},{"$f":"U193*'Other input expert'!G$13*'Sales price per sales channel'!$H193*'Other input expert'!G$6","v":0},{"$f":"V193*'Other input expert'!H$13*'Sales price per sales channel'!$H193*'Other input expert'!H$6","v":0},{"$f":"W193*'Other input expert'!I$13*'Sales price per sales channel'!$H193*'Other input expert'!I$6","v":0},{"$f":"X193*'Other input expert'!J$13*'Sales price per sales channel'!$H193*'Other input expert'!J$6","v":0},{"$f":"Y193*'Other input expert'!K$13*'Sales price per sales channel'!$H193*'Other input expert'!K$6","v":0},{"$f":"Z193*'Other input expert'!L$13*'Sales price per sales channel'!$H193*'Other input expert'!L$6","v":0},{"$f":"AA193*'Other input expert'!M$13*'Sales price per sales channel'!$H193*'Other input expert'!M$6","v":0},null,{"$f":"P193*'Other input expert'!B$14*'Sales price per sales channel'!$I193*'Other input expert'!B$6","v":0},{"$f":"Q193*'Other input expert'!C$14*'Sales price per sales channel'!$I193*'Other input expert'!C$6","v":0},{"$f":"R193*'Other input expert'!D$14*'Sales price per sales channel'!$I193*'Other input expert'!D$6","v":0},{"$f":"S193*'Other input expert'!E$14*'Sales price per sales channel'!$I193*'Other input expert'!E$6","v":0},{"$f":"T193*'Other input expert'!F$14*'Sales price per sales channel'!$I193*'Other input expert'!F$6","v":0},{"$f":"U193*'Other input expert'!G$14*'Sales price per sales channel'!$I193*'Other input expert'!G$6","v":0},{"$f":"V193*'Other input expert'!H$14*'Sales price per sales channel'!$I193*'Other input expert'!H$6","v":0},{"$f":"W193*'Other input expert'!I$14*'Sales price per sales channel'!$I193*'Other input expert'!I$6","v":0},{"$f":"X193*'Other input expert'!J$14*'Sales price per sales channel'!$I193*'Other input expert'!J$6","v":0},{"$f":"Y193*'Other input expert'!K$14*'Sales price per sales channel'!$I193*'Other input expert'!K$6","v":0},{"$f":"Z193*'Other input expert'!L$14*'Sales price per sales channel'!$I193*'Other input expert'!L$6","v":0},{"$f":"AA193*'Other input expert'!M$14*'Sales price per sales channel'!$I193*'Other input expert'!M$6","v":0},null,{"$f":"AC193*'Other input expert'!B$12*'Sales price per sales channel'!$G193*'Other input expert'!B$7","v":0},{"$f":"AD193*'Other input expert'!C$12*'Sales price per sales channel'!$G193*'Other input expert'!C$7","v":0},{"$f":"AE193*'Other input expert'!D$12*'Sales price per sales channel'!$G193*'Other input expert'!D$7","v":0},{"$f":"AF193*'Other input expert'!E$12*'Sales price per sales channel'!$G193*'Other input expert'!E$7","v":0},{"$f":"AG193*'Other input expert'!F$12*'Sales price per sales channel'!$G193*'Other input expert'!F$7","v":0},{"$f":"AH193*'Other input expert'!G$12*'Sales price per sales channel'!$G193*'Other input expert'!G$7","v":0},{"$f":"AI193*'Other input expert'!H$12*'Sales price per sales channel'!$G193*'Other input expert'!H$7","v":0},{"$f":"AJ193*'Other input expert'!I$12*'Sales price per sales channel'!$G193*'Other input expert'!I$7","v":0},{"$f":"AK193*'Other input expert'!J$12*'Sales price per sales channel'!$G193*'Other input expert'!J$7","v":0},{"$f":"AL193*'Other input expert'!K$12*'Sales price per sales channel'!$G193*'Other input expert'!K$7","v":0},{"$f":"AM193*'Other input expert'!L$12*'Sales price per sales channel'!$G193*'Other input expert'!L$7","v":0},{"$f":"AN193*'Other input expert'!M$12*'Sales price per sales channel'!$G193*'Other input expert'!M$7","v":0},null,{"$f":"AC193*'Other input expert'!B$13*'Sales price per sales channel'!$H193*'Other input expert'!B$7","v":0},{"$f":"AD193*'Other input expert'!C$13*'Sales price per sales channel'!$H193*'Other input expert'!C$7","v":0},{"$f":"AE193*'Other input expert'!D$13*'Sales price per sales channel'!$H193*'Other input expert'!D$7","v":0},{"$f":"AF193*'Other input expert'!E$13*'Sales price per sales channel'!$H193*'Other input expert'!E$7","v":0},{"$f":"AG193*'Other input expert'!F$13*'Sales price per sales channel'!$H193*'Other input expert'!F$7","v":0},{"$f":"AH193*'Other input expert'!G$13*'Sales price per sales channel'!$H193*'Other input expert'!G$7","v":0},{"$f":"AI193*'Other input expert'!H$13*'Sales price per sales channel'!$H193*'Other input expert'!H$7","v":0},{"$f":"AJ193*'Other input expert'!I$13*'Sales price per sales channel'!$H193*'Other input expert'!I$7","v":0},{"$f":"AK193*'Other input expert'!J$13*'Sales price per sales channel'!$H193*'Other input expert'!J$7","v":0},{"$f":"AL193*'Other input expert'!K$13*'Sales price per sales channel'!$H193*'Other input expert'!K$7","v":0},{"$f":"AM193*'Other input expert'!L$13*'Sales price per sales channel'!$H193*'Other input expert'!L$7","v":0},{"$f":"AN193*'Other input expert'!M$13*'Sales price per sales channel'!$H193*'Other input expert'!M$7","v":0},null,{"$f":"AC193*'Other input expert'!B$14*'Sales price per sales channel'!$I193*'Other input expert'!B$7","v":0},{"$f":"AD193*'Other input expert'!C$14*'Sales price per sales channel'!$I193*'Other input expert'!C$7","v":0},{"$f":"AE193*'Other input expert'!D$14*'Sales price per sales channel'!$I193*'Other input expert'!D$7","v":0},{"$f":"AF193*'Other input expert'!E$14*'Sales price per sales channel'!$I193*'Other input expert'!E$7","v":0},{"$f":"AG193*'Other input expert'!F$14*'Sales price per sales channel'!$I193*'Other input expert'!F$7","v":0},{"$f":"AH193*'Other input expert'!G$14*'Sales price per sales channel'!$I193*'Other input expert'!G$7","v":0},{"$f":"AI193*'Other input expert'!H$14*'Sales price per sales channel'!$I193*'Other input expert'!H$7","v":0},{"$f":"AJ193*'Other input expert'!I$14*'Sales price per sales channel'!$I193*'Other input expert'!I$7","v":0},{"$f":"AK193*'Other input expert'!J$14*'Sales price per sales channel'!$I193*'Other input expert'!J$7","v":0},{"$f":"AL193*'Other input expert'!K$14*'Sales price per sales channel'!$I193*'Other input expert'!K$7","v":0},{"$f":"AM193*'Other input expert'!L$14*'Sales price per sales channel'!$I193*'Other input expert'!L$7","v":0},{"$f":"AN193*'Other input expert'!M$14*'Sales price per sales channel'!$I193*'Other input expert'!M$7","v":0}]
["Chephalotaxus","Chinese plum yew",{"$f":"Plantlist!$G194*'Production list'!D195*'Other input expert'!B$4*'Other input expert'!B$8","v":0},{"$f":"Plantlist!$G194*'Production list'!E195*'Other input expert'!C$4*'Other input expert'!C$8","v":0},{"$f":"Plantlist!$G194*'Production list'!F195*'Other input expert'!D$4*'Other input expert'!D$8","v":0},{"$f":"Plantlist!$G194*'Production list'!G195*'Other input expert'!E$4*'Other input expert'!E$8","v":0},{"$f":"Plantlist!$G194*'Production list'!H195*'Other input expert'!F$4*'Other input expert'!F$8","v":0},{"$f":"Plantlist!$G194*'Production list'!I195*'Other input expert'!G$4*'Other input expert'!G$8","v":0},{"$f":"Plantlist!$G194*'Production list'!J195*'Other input expert'!H$4*'Other input expert'!H$8","v":0},{"$f":"Plantlist!$G194*'Production list'!K195*'Other input expert'!I$4*'Other input expert'!I$8","v":0},{"$f":"Plantlist!$G194*'Production list'!L195*'Other input expert'!J$4*'Other input expert'!J$8","v":0},{"$f":"Plantlist!$G194*'Production list'!M195*'Other input expert'!K$4*'Other input expert'!K$8","v":0},{"$f":"Plantlist!$G194*'Production list'!N195*'Other input expert'!L$4*'Other input expert'!L$8","v":0},{"$f":"Plantlist!$G194*'Production list'!O195*'Other input expert'!M$4*'Other input expert'!M$8","v":0},null,{"$f":"C194*'Other input expert'!B$5","v":0},{"$f":"D194*'Other input expert'!C$5","v":0},{"$f":"E194*'Other input expert'!D$5","v":0},{"$f":"F194*'Other input expert'!E$5","v":0},{"$f":"G194*'Other input expert'!F$5","v":0},{"$f":"H194*'Other input expert'!G$5","v":0},{"$f":"I194*'Other input expert'!H$5","v":0},{"$f":"J194*'Other input expert'!I$5","v":0},{"$f":"K194*'Other input expert'!J$5","v":0},{"$f":"L194*'Other input expert'!K$5","v":0},{"$f":"M194*'Other input expert'!L$5","v":0},{"$f":"N194*'Other input expert'!M$5","v":0},null,{"$f":"C194*(100%-'Other input expert'!B$5)","v":0},{"$f":"D194*(100%-'Other input expert'!C$5)","v":0},{"$f":"E194*(100%-'Other input expert'!D$5)","v":0},{"$f":"F194*(100%-'Other input expert'!E$5)","v":0},{"$f":"G194*(100%-'Other input expert'!F$5)","v":0},{"$f":"H194*(100%-'Other input expert'!G$5)","v":0},{"$f":"I194*(100%-'Other input expert'!H$5)","v":0},{"$f":"J194*(100%-'Other input expert'!I$5)","v":0},{"$f":"K194*(100%-'Other input expert'!J$5)","v":0},{"$f":"L194*(100%-'Other input expert'!K$5)","v":0},{"$f":"M194*(100%-'Other input expert'!L$5)","v":0},{"$f":"N194*(100%-'Other input expert'!M$5)","v":0},null,{"$f":"P194*'Other input expert'!B$12*'Sales price per sales channel'!$G194*'Other input expert'!B$6","v":0},{"$f":"Q194*'Other input expert'!C$12*'Sales price per sales channel'!$G194*'Other input expert'!C$6","v":0},{"$f":"R194*'Other input expert'!D$12*'Sales price per sales channel'!$G194*'Other input expert'!D$6","v":0},{"$f":"S194*'Other input expert'!E$12*'Sales price per sales channel'!$G194*'Other input expert'!E$6","v":0},{"$f":"T194*'Other input expert'!F$12*'Sales price per sales channel'!$G194*'Other input expert'!F$6","v":0},{"$f":"U194*'Other input expert'!G$12*'Sales price per sales channel'!$G194*'Other input expert'!G$6","v":0},{"$f":"V194*'Other input expert'!H$12*'Sales price per sales channel'!$G194*'Other input expert'!H$6","v":0},{"$f":"W194*'Other input expert'!I$12*'Sales price per sales channel'!$G194*'Other input expert'!I$6","v":0},{"$f":"X194*'Other input expert'!J$12*'Sales price per sales channel'!$G194*'Other input expert'!J$6","v":0},{"$f":"Y194*'Other input expert'!K$12*'Sales price per sales channel'!$G194*'Other input expert'!K$6","v":0},{"$f":"Z194*'Other input expert'!L$12*'Sales price per sales channel'!$G194*'Other input expert'!L$6","v":0},{"$f":"AA194*'Other input expert'!M$12*'Sales price per sales channel'!$G194*'Other input expert'!M$6","v":0},null,{"$f":"P194*'Other input expert'!B$13*'Sales price per sales channel'!$H194*'Other input expert'!B$6","v":0},{"$f":"Q194*'Other input expert'!C$13*'Sales price per sales channel'!$H194*'Other input expert'!C$6","v":0},{"$f":"R194*'Other input expert'!D$13*'Sales price per sales channel'!$H194*'Other input expert'!D$6","v":0},{"$f":"S194*'Other input expert'!E$13*'Sales price per sales channel'!$H194*'Other input expert'!E$6","v":0},{"$f":"T194*'Other input expert'!F$13*'Sales price per sales channel'!$H194*'Other input expert'!F$6","v":0},{"$f":"U194*'Other input expert'!G$13*'Sales price per sales channel'!$H194*'Other input expert'!G$6","v":0},{"$f":"V194*'Other input expert'!H$13*'Sales price per sales channel'!$H194*'Other input expert'!H$6","v":0},{"$f":"W194*'Other input expert'!I$13*'Sales price per sales channel'!$H194*'Other input expert'!I$6","v":0},{"$f":"X194*'Other input expert'!J$13*'Sales price per sales channel'!$H194*'Other input expert'!J$6","v":0},{"$f":"Y194*'Other input expert'!K$13*'Sales price per sales channel'!$H194*'Other input expert'!K$6","v":0},{"$f":"Z194*'Other input expert'!L$13*'Sales price per sales channel'!$H194*'Other input expert'!L$6","v":0},{"$f":"AA194*'Other input expert'!M$13*'Sales price per sales channel'!$H194*'Other input expert'!M$6","v":0},null,{"$f":"P194*'Other input expert'!B$14*'Sales price per sales channel'!$I194*'Other input expert'!B$6","v":0},{"$f":"Q194*'Other input expert'!C$14*'Sales price per sales channel'!$I194*'Other input expert'!C$6","v":0},{"$f":"R194*'Other input expert'!D$14*'Sales price per sales channel'!$I194*'Other input expert'!D$6","v":0},{"$f":"S194*'Other input expert'!E$14*'Sales price per sales channel'!$I194*'Other input expert'!E$6","v":0},{"$f":"T194*'Other input expert'!F$14*'Sales price per sales channel'!$I194*'Other input expert'!F$6","v":0},{"$f":"U194*'Other input expert'!G$14*'Sales price per sales channel'!$I194*'Other input expert'!G$6","v":0},{"$f":"V194*'Other input expert'!H$14*'Sales price per sales channel'!$I194*'Other input expert'!H$6","v":0},{"$f":"W194*'Other input expert'!I$14*'Sales price per sales channel'!$I194*'Other input expert'!I$6","v":0},{"$f":"X194*'Other input expert'!J$14*'Sales price per sales channel'!$I194*'Other input expert'!J$6","v":0},{"$f":"Y194*'Other input expert'!K$14*'Sales price per sales channel'!$I194*'Other input expert'!K$6","v":0},{"$f":"Z194*'Other input expert'!L$14*'Sales price per sales channel'!$I194*'Other input expert'!L$6","v":0},{"$f":"AA194*'Other input expert'!M$14*'Sales price per sales channel'!$I194*'Other input expert'!M$6","v":0},null,{"$f":"AC194*'Other input expert'!B$12*'Sales price per sales channel'!$G194*'Other input expert'!B$7","v":0},{"$f":"AD194*'Other input expert'!C$12*'Sales price per sales channel'!$G194*'Other input expert'!C$7","v":0},{"$f":"AE194*'Other input expert'!D$12*'Sales price per sales channel'!$G194*'Other input expert'!D$7","v":0},{"$f":"AF194*'Other input expert'!E$12*'Sales price per sales channel'!$G194*'Other input expert'!E$7","v":0},{"$f":"AG194*'Other input expert'!F$12*'Sales price per sales channel'!$G194*'Other input expert'!F$7","v":0},{"$f":"AH194*'Other input expert'!G$12*'Sales price per sales channel'!$G194*'Other input expert'!G$7","v":0},{"$f":"AI194*'Other input expert'!H$12*'Sales price per sales channel'!$G194*'Other input expert'!H$7","v":0},{"$f":"AJ194*'Other input expert'!I$12*'Sales price per sales channel'!$G194*'Other input expert'!I$7","v":0},{"$f":"AK194*'Other input expert'!J$12*'Sales price per sales channel'!$G194*'Other input expert'!J$7","v":0},{"$f":"AL194*'Other input expert'!K$12*'Sales price per sales channel'!$G194*'Other input expert'!K$7","v":0},{"$f":"AM194*'Other input expert'!L$12*'Sales price per sales channel'!$G194*'Other input expert'!L$7","v":0},{"$f":"AN194*'Other input expert'!M$12*'Sales price per sales channel'!$G194*'Other input expert'!M$7","v":0},null,{"$f":"AC194*'Other input expert'!B$13*'Sales price per sales channel'!$H194*'Other input expert'!B$7","v":0},{"$f":"AD194*'Other input expert'!C$13*'Sales price per sales channel'!$H194*'Other input expert'!C$7","v":0},{"$f":"AE194*'Other input expert'!D$13*'Sales price per sales channel'!$H194*'Other input expert'!D$7","v":0},{"$f":"AF194*'Other input expert'!E$13*'Sales price per sales channel'!$H194*'Other input expert'!E$7","v":0},{"$f":"AG194*'Other input expert'!F$13*'Sales price per sales channel'!$H194*'Other input expert'!F$7","v":0},{"$f":"AH194*'Other input expert'!G$13*'Sales price per sales channel'!$H194*'Other input expert'!G$7","v":0},{"$f":"AI194*'Other input expert'!H$13*'Sales price per sales channel'!$H194*'Other input expert'!H$7","v":0},{"$f":"AJ194*'Other input expert'!I$13*'Sales price per sales channel'!$H194*'Other input expert'!I$7","v":0},{"$f":"AK194*'Other input expert'!J$13*'Sales price per sales channel'!$H194*'Other input expert'!J$7","v":0},{"$f":"AL194*'Other input expert'!K$13*'Sales price per sales channel'!$H194*'Other input expert'!K$7","v":0},{"$f":"AM194*'Other input expert'!L$13*'Sales price per sales channel'!$H194*'Other input expert'!L$7","v":0},{"$f":"AN194*'Other input expert'!M$13*'Sales price per sales channel'!$H194*'Other input expert'!M$7","v":0},null,{"$f":"AC194*'Other input expert'!B$14*'Sales price per sales channel'!$I194*'Other input expert'!B$7","v":0},{"$f":"AD194*'Other input expert'!C$14*'Sales price per sales channel'!$I194*'Other input expert'!C$7","v":0},{"$f":"AE194*'Other input expert'!D$14*'Sales price per sales channel'!$I194*'Other input expert'!D$7","v":0},{"$f":"AF194*'Other input expert'!E$14*'Sales price per sales channel'!$I194*'Other input expert'!E$7","v":0},{"$f":"AG194*'Other input expert'!F$14*'Sales price per sales channel'!$I194*'Other input expert'!F$7","v":0},{"$f":"AH194*'Other input expert'!G$14*'Sales price per sales channel'!$I194*'Other input expert'!G$7","v":0},{"$f":"AI194*'Other input expert'!H$14*'Sales price per sales channel'!$I194*'Other input expert'!H$7","v":0},{"$f":"AJ194*'Other input expert'!I$14*'Sales price per sales channel'!$I194*'Other input expert'!I$7","v":0},{"$f":"AK194*'Other input expert'!J$14*'Sales price per sales channel'!$I194*'Other input expert'!J$7","v":0},{"$f":"AL194*'Other input expert'!K$14*'Sales price per sales channel'!$I194*'Other input expert'!K$7","v":0},{"$f":"AM194*'Other input expert'!L$14*'Sales price per sales channel'!$I194*'Other input expert'!L$7","v":0},{"$f":"AN194*'Other input expert'!M$14*'Sales price per sales channel'!$I194*'Other input expert'!M$7","v":0}]
["ZR other",null,{"$f":"Plantlist!$G195*'Production list'!D196*'Other input expert'!B$4*'Other input expert'!B$8","v":0},{"$f":"Plantlist!$G195*'Production list'!E196*'Other input expert'!C$4*'Other input expert'!C$8","v":0},{"$f":"Plantlist!$G195*'Production list'!F196*'Other input expert'!D$4*'Other input expert'!D$8","v":0},{"$f":"Plantlist!$G195*'Production list'!G196*'Other input expert'!E$4*'Other input expert'!E$8","v":0},{"$f":"Plantlist!$G195*'Production list'!H196*'Other input expert'!F$4*'Other input expert'!F$8","v":0},{"$f":"Plantlist!$G195*'Production list'!I196*'Other input expert'!G$4*'Other input expert'!G$8","v":0},{"$f":"Plantlist!$G195*'Production list'!J196*'Other input expert'!H$4*'Other input expert'!H$8","v":0},{"$f":"Plantlist!$G195*'Production list'!K196*'Other input expert'!I$4*'Other input expert'!I$8","v":0},{"$f":"Plantlist!$G195*'Production list'!L196*'Other input expert'!J$4*'Other input expert'!J$8","v":0},{"$f":"Plantlist!$G195*'Production list'!M196*'Other input expert'!K$4*'Other input expert'!K$8","v":0},{"$f":"Plantlist!$G195*'Production list'!N196*'Other input expert'!L$4*'Other input expert'!L$8","v":0},{"$f":"Plantlist!$G195*'Production list'!O196*'Other input expert'!M$4*'Other input expert'!M$8","v":0},null,{"$f":"C195*'Other input expert'!B$5","v":0},{"$f":"D195*'Other input expert'!C$5","v":0},{"$f":"E195*'Other input expert'!D$5","v":0},{"$f":"F195*'Other input expert'!E$5","v":0},{"$f":"G195*'Other input expert'!F$5","v":0},{"$f":"H195*'Other input expert'!G$5","v":0},{"$f":"I195*'Other input expert'!H$5","v":0},{"$f":"J195*'Other input expert'!I$5","v":0},{"$f":"K195*'Other input expert'!J$5","v":0},{"$f":"L195*'Other input expert'!K$5","v":0},{"$f":"M195*'Other input expert'!L$5","v":0},{"$f":"N195*'Other input expert'!M$5","v":0},null,{"$f":"C195*(100%-'Other input expert'!B$5)","v":0},{"$f":"D195*(100%-'Other input expert'!C$5)","v":0},{"$f":"E195*(100%-'Other input expert'!D$5)","v":0},{"$f":"F195*(100%-'Other input expert'!E$5)","v":0},{"$f":"G195*(100%-'Other input expert'!F$5)","v":0},{"$f":"H195*(100%-'Other input expert'!G$5)","v":0},{"$f":"I195*(100%-'Other input expert'!H$5)","v":0},{"$f":"J195*(100%-'Other input expert'!I$5)","v":0},{"$f":"K195*(100%-'Other input expert'!J$5)","v":0},{"$f":"L195*(100%-'Other input expert'!K$5)","v":0},{"$f":"M195*(100%-'Other input expert'!L$5)","v":0},{"$f":"N195*(100%-'Other input expert'!M$5)","v":0},null,{"$f":"P195*'Other input expert'!B$12*'Sales price per sales channel'!$G195*'Other input expert'!B$6","v":0},{"$f":"Q195*'Other input expert'!C$12*'Sales price per sales channel'!$G195*'Other input expert'!C$6","v":0},{"$f":"R195*'Other input expert'!D$12*'Sales price per sales channel'!$G195*'Other input expert'!D$6","v":0},{"$f":"S195*'Other input expert'!E$12*'Sales price per sales channel'!$G195*'Other input expert'!E$6","v":0},{"$f":"T195*'Other input expert'!F$12*'Sales price per sales channel'!$G195*'Other input expert'!F$6","v":0},{"$f":"U195*'Other input expert'!G$12*'Sales price per sales channel'!$G195*'Other input expert'!G$6","v":0},{"$f":"V195*'Other input expert'!H$12*'Sales price per sales channel'!$G195*'Other input expert'!H$6","v":0},{"$f":"W195*'Other input expert'!I$12*'Sales price per sales channel'!$G195*'Other input expert'!I$6","v":0},{"$f":"X195*'Other input expert'!J$12*'Sales price per sales channel'!$G195*'Other input expert'!J$6","v":0},{"$f":"Y195*'Other input expert'!K$12*'Sales price per sales channel'!$G195*'Other input expert'!K$6","v":0},{"$f":"Z195*'Other input expert'!L$12*'Sales price per sales channel'!$G195*'Other input expert'!L$6","v":0},{"$f":"AA195*'Other input expert'!M$12*'Sales price per sales channel'!$G195*'Other input expert'!M$6","v":0},null,{"$f":"P195*'Other input expert'!B$13*'Sales price per sales channel'!$H195*'Other input expert'!B$6","v":0},{"$f":"Q195*'Other input expert'!C$13*'Sales price per sales channel'!$H195*'Other input expert'!C$6","v":0},{"$f":"R195*'Other input expert'!D$13*'Sales price per sales channel'!$H195*'Other input expert'!D$6","v":0},{"$f":"S195*'Other input expert'!E$13*'Sales price per sales channel'!$H195*'Other input expert'!E$6","v":0},{"$f":"T195*'Other input expert'!F$13*'Sales price per sales channel'!$H195*'Other input expert'!F$6","v":0},{"$f":"U195*'Other input expert'!G$13*'Sales price per sales channel'!$H195*'Other input expert'!G$6","v":0},{"$f":"V195*'Other input expert'!H$13*'Sales price per sales channel'!$H195*'Other input expert'!H$6","v":0},{"$f":"W195*'Other input expert'!I$13*'Sales price per sales channel'!$H195*'Other input expert'!I$6","v":0},{"$f":"X195*'Other input expert'!J$13*'Sales price per sales channel'!$H195*'Other input expert'!J$6","v":0},{"$f":"Y195*'Other input expert'!K$13*'Sales price per sales channel'!$H195*'Other input expert'!K$6","v":0},{"$f":"Z195*'Other input expert'!L$13*'Sales price per sales channel'!$H195*'Other input expert'!L$6","v":0},{"$f":"AA195*'Other input expert'!M$13*'Sales price per sales channel'!$H195*'Other input expert'!M$6","v":0},null,{"$f":"P195*'Other input expert'!B$14*'Sales price per sales channel'!$I195*'Other input expert'!B$6","v":0},{"$f":"Q195*'Other input expert'!C$14*'Sales price per sales channel'!$I195*'Other input expert'!C$6","v":0},{"$f":"R195*'Other input expert'!D$14*'Sales price per sales channel'!$I195*'Other input expert'!D$6","v":0},{"$f":"S195*'Other input expert'!E$14*'Sales price per sales channel'!$I195*'Other input expert'!E$6","v":0},{"$f":"T195*'Other input expert'!F$14*'Sales price per sales channel'!$I195*'Other input expert'!F$6","v":0},{"$f":"U195*'Other input expert'!G$14*'Sales price per sales channel'!$I195*'Other input expert'!G$6","v":0},{"$f":"V195*'Other input expert'!H$14*'Sales price per sales channel'!$I195*'Other input expert'!H$6","v":0},{"$f":"W195*'Other input expert'!I$14*'Sales price per sales channel'!$I195*'Other input expert'!I$6","v":0},{"$f":"X195*'Other input expert'!J$14*'Sales price per sales channel'!$I195*'Other input expert'!J$6","v":0},{"$f":"Y195*'Other input expert'!K$14*'Sales price per sales channel'!$I195*'Other input expert'!K$6","v":0},{"$f":"Z195*'Other input expert'!L$14*'Sales price per sales channel'!$I195*'Other input expert'!L$6","v":0},{"$f":"AA195*'Other input expert'!M$14*'Sales price per sales channel'!$I195*'Other input expert'!M$6","v":0},null,{"$f":"AC195*'Other input expert'!B$12*'Sales price per sales channel'!$G195*'Other input expert'!B$7","v":0},{"$f":"AD195*'Other input expert'!C$12*'Sales price per sales channel'!$G195*'Other input expert'!C$7","v":0},{"$f":"AE195*'Other input expert'!D$12*'Sales price per sales channel'!$G195*'Other input expert'!D$7","v":0},{"$f":"AF195*'Other input expert'!E$12*'Sales price per sales channel'!$G195*'Other input expert'!E$7","v":0},{"$f":"AG195*'Other input expert'!F$12*'Sales price per sales channel'!$G195*'Other input expert'!F$7","v":0},{"$f":"AH195*'Other input expert'!G$12*'Sales price per sales channel'!$G195*'Other input expert'!G$7","v":0},{"$f":"AI195*'Other input expert'!H$12*'Sales price per sales channel'!$G195*'Other input expert'!H$7","v":0},{"$f":"AJ195*'Other input expert'!I$12*'Sales price per sales channel'!$G195*'Other input expert'!I$7","v":0},{"$f":"AK195*'Other input expert'!J$12*'Sales price per sales channel'!$G195*'Other input expert'!J$7","v":0},{"$f":"AL195*'Other input expert'!K$12*'Sales price per sales channel'!$G195*'Other input expert'!K$7","v":0},{"$f":"AM195*'Other input expert'!L$12*'Sales price per sales channel'!$G195*'Other input expert'!L$7","v":0},{"$f":"AN195*'Other input expert'!M$12*'Sales price per sales channel'!$G195*'Other input expert'!M$7","v":0},null,{"$f":"AC195*'Other input expert'!B$13*'Sales price per sales channel'!$H195*'Other input expert'!B$7","v":0},{"$f":"AD195*'Other input expert'!C$13*'Sales price per sales channel'!$H195*'Other input expert'!C$7","v":0},{"$f":"AE195*'Other input expert'!D$13*'Sales price per sales channel'!$H195*'Other input expert'!D$7","v":0},{"$f":"AF195*'Other input expert'!E$13*'Sales price per sales channel'!$H195*'Other input expert'!E$7","v":0},{"$f":"AG195*'Other input expert'!F$13*'Sales price per sales channel'!$H195*'Other input expert'!F$7","v":0},{"$f":"AH195*'Other input expert'!G$13*'Sales price per sales channel'!$H195*'Other input expert'!G$7","v":0},{"$f":"AI195*'Other input expert'!H$13*'Sales price per sales channel'!$H195*'Other input expert'!H$7","v":0},{"$f":"AJ195*'Other input expert'!I$13*'Sales price per sales channel'!$H195*'Other input expert'!I$7","v":0},{"$f":"AK195*'Other input expert'!J$13*'Sales price per sales channel'!$H195*'Other input expert'!J$7","v":0},{"$f":"AL195*'Other input expert'!K$13*'Sales price per sales channel'!$H195*'Other input expert'!K$7","v":0},{"$f":"AM195*'Other input expert'!L$13*'Sales price per sales channel'!$H195*'Other input expert'!L$7","v":0},{"$f":"AN195*'Other input expert'!M$13*'Sales price per sales channel'!$H195*'Other input expert'!M$7","v":0},null,{"$f":"AC195*'Other input expert'!B$14*'Sales price per sales channel'!$I195*'Other input expert'!B$7","v":0},{"$f":"AD195*'Other input expert'!C$14*'Sales price per sales channel'!$I195*'Other input expert'!C$7","v":0},{"$f":"AE195*'Other input expert'!D$14*'Sales price per sales channel'!$I195*'Other input expert'!D$7","v":0},{"$f":"AF195*'Other input expert'!E$14*'Sales price per sales channel'!$I195*'Other input expert'!E$7","v":0},{"$f":"AG195*'Other input expert'!F$14*'Sales price per sales channel'!$I195*'Other input expert'!F$7","v":0},{"$f":"AH195*'Other input expert'!G$14*'Sales price per sales channel'!$I195*'Other input expert'!G$7","v":0},{"$f":"AI195*'Other input expert'!H$14*'Sales price per sales channel'!$I195*'Other input expert'!H$7","v":0},{"$f":"AJ195*'Other input expert'!I$14*'Sales price per sales channel'!$I195*'Other input expert'!I$7","v":0},{"$f":"AK195*'Other input expert'!J$14*'Sales price per sales channel'!$I195*'Other input expert'!J$7","v":0},{"$f":"AL195*'Other input expert'!K$14*'Sales price per sales channel'!$I195*'Other input expert'!K$7","v":0},{"$f":"AM195*'Other input expert'!L$14*'Sales price per sales channel'!$I195*'Other input expert'!L$7","v":0},{"$f":"AN195*'Other input expert'!M$14*'Sales price per sales channel'!$I195*'Other input expert'!M$7","v":0}]
["ZR other",null,{"$f":"Plantlist!$G196*'Production list'!D197*'Other input expert'!B$4*'Other input expert'!B$8","v":0},{"$f":"Plantlist!$G196*'Production list'!E197*'Other input expert'!C$4*'Other input expert'!C$8","v":0},{"$f":"Plantlist!$G196*'Production list'!F197*'Other input expert'!D$4*'Other input expert'!D$8","v":0},{"$f":"Plantlist!$G196*'Production list'!G197*'Other input expert'!E$4*'Other input expert'!E$8","v":0},{"$f":"Plantlist!$G196*'Production list'!H197*'Other input expert'!F$4*'Other input expert'!F$8","v":0},{"$f":"Plantlist!$G196*'Production list'!I197*'Other input expert'!G$4*'Other input expert'!G$8","v":0},{"$f":"Plantlist!$G196*'Production list'!J197*'Other input expert'!H$4*'Other input expert'!H$8","v":0},{"$f":"Plantlist!$G196*'Production list'!K197*'Other input expert'!I$4*'Other input expert'!I$8","v":0},{"$f":"Plantlist!$G196*'Production list'!L197*'Other input expert'!J$4*'Other input expert'!J$8","v":0},{"$f":"Plantlist!$G196*'Production list'!M197*'Other input expert'!K$4*'Other input expert'!K$8","v":0},{"$f":"Plantlist!$G196*'Production list'!N197*'Other input expert'!L$4*'Other input expert'!L$8","v":0},{"$f":"Plantlist!$G196*'Production list'!O197*'Other input expert'!M$4*'Other input expert'!M$8","v":0},null,{"$f":"C196*'Other input expert'!B$5","v":0},{"$f":"D196*'Other input expert'!C$5","v":0},{"$f":"E196*'Other input expert'!D$5","v":0},{"$f":"F196*'Other input expert'!E$5","v":0},{"$f":"G196*'Other input expert'!F$5","v":0},{"$f":"H196*'Other input expert'!G$5","v":0},{"$f":"I196*'Other input expert'!H$5","v":0},{"$f":"J196*'Other input expert'!I$5","v":0},{"$f":"K196*'Other input expert'!J$5","v":0},{"$f":"L196*'Other input expert'!K$5","v":0},{"$f":"M196*'Other input expert'!L$5","v":0},{"$f":"N196*'Other input expert'!M$5","v":0},null,{"$f":"C196*(100%-'Other input expert'!B$5)","v":0},{"$f":"D196*(100%-'Other input expert'!C$5)","v":0},{"$f":"E196*(100%-'Other input expert'!D$5)","v":0},{"$f":"F196*(100%-'Other input expert'!E$5)","v":0},{"$f":"G196*(100%-'Other input expert'!F$5)","v":0},{"$f":"H196*(100%-'Other input expert'!G$5)","v":0},{"$f":"I196*(100%-'Other input expert'!H$5)","v":0},{"$f":"J196*(100%-'Other input expert'!I$5)","v":0},{"$f":"K196*(100%-'Other input expert'!J$5)","v":0},{"$f":"L196*(100%-'Other input expert'!K$5)","v":0},{"$f":"M196*(100%-'Other input expert'!L$5)","v":0},{"$f":"N196*(100%-'Other input expert'!M$5)","v":0},null,{"$f":"P196*'Other input expert'!B$12*'Sales price per sales channel'!$G196*'Other input expert'!B$6","v":0},{"$f":"Q196*'Other input expert'!C$12*'Sales price per sales channel'!$G196*'Other input expert'!C$6","v":0},{"$f":"R196*'Other input expert'!D$12*'Sales price per sales channel'!$G196*'Other input expert'!D$6","v":0},{"$f":"S196*'Other input expert'!E$12*'Sales price per sales channel'!$G196*'Other input expert'!E$6","v":0},{"$f":"T196*'Other input expert'!F$12*'Sales price per sales channel'!$G196*'Other input expert'!F$6","v":0},{"$f":"U196*'Other input expert'!G$12*'Sales price per sales channel'!$G196*'Other input expert'!G$6","v":0},{"$f":"V196*'Other input expert'!H$12*'Sales price per sales channel'!$G196*'Other input expert'!H$6","v":0},{"$f":"W196*'Other input expert'!I$12*'Sales price per sales channel'!$G196*'Other input expert'!I$6","v":0},{"$f":"X196*'Other input expert'!J$12*'Sales price per sales channel'!$G196*'Other input expert'!J$6","v":0},{"$f":"Y196*'Other input expert'!K$12*'Sales price per sales channel'!$G196*'Other input expert'!K$6","v":0},{"$f":"Z196*'Other input expert'!L$12*'Sales price per sales channel'!$G196*'Other input expert'!L$6","v":0},{"$f":"AA196*'Other input expert'!M$12*'Sales price per sales channel'!$G196*'Other input expert'!M$6","v":0},null,{"$f":"P196*'Other input expert'!B$13*'Sales price per sales channel'!$H196*'Other input expert'!B$6","v":0},{"$f":"Q196*'Other input expert'!C$13*'Sales price per sales channel'!$H196*'Other input expert'!C$6","v":0},{"$f":"R196*'Other input expert'!D$13*'Sales price per sales channel'!$H196*'Other input expert'!D$6","v":0},{"$f":"S196*'Other input expert'!E$13*'Sales price per sales channel'!$H196*'Other input expert'!E$6","v":0},{"$f":"T196*'Other input expert'!F$13*'Sales price per sales channel'!$H196*'Other input expert'!F$6","v":0},{"$f":"U196*'Other input expert'!G$13*'Sales price per sales channel'!$H196*'Other input expert'!G$6","v":0},{"$f":"V196*'Other input expert'!H$13*'Sales price per sales channel'!$H196*'Other input expert'!H$6","v":0},{"$f":"W196*'Other input expert'!I$13*'Sales price per sales channel'!$H196*'Other input expert'!I$6","v":0},{"$f":"X196*'Other input expert'!J$13*'Sales price per sales channel'!$H196*'Other input expert'!J$6","v":0},{"$f":"Y196*'Other input expert'!K$13*'Sales price per sales channel'!$H196*'Other input expert'!K$6","v":0},{"$f":"Z196*'Other input expert'!L$13*'Sales price per sales channel'!$H196*'Other input expert'!L$6","v":0},{"$f":"AA196*'Other input expert'!M$13*'Sales price per sales channel'!$H196*'Other input expert'!M$6","v":0},null,{"$f":"P196*'Other input expert'!B$14*'Sales price per sales channel'!$I196*'Other input expert'!B$6","v":0},{"$f":"Q196*'Other input expert'!C$14*'Sales price per sales channel'!$I196*'Other input expert'!C$6","v":0},{"$f":"R196*'Other input expert'!D$14*'Sales price per sales channel'!$I196*'Other input expert'!D$6","v":0},{"$f":"S196*'Other input expert'!E$14*'Sales price per sales channel'!$I196*'Other input expert'!E$6","v":0},{"$f":"T196*'Other input expert'!F$14*'Sales price per sales channel'!$I196*'Other input expert'!F$6","v":0},{"$f":"U196*'Other input expert'!G$14*'Sales price per sales channel'!$I196*'Other input expert'!G$6","v":0},{"$f":"V196*'Other input expert'!H$14*'Sales price per sales channel'!$I196*'Other input expert'!H$6","v":0},{"$f":"W196*'Other input expert'!I$14*'Sales price per sales channel'!$I196*'Other input expert'!I$6","v":0},{"$f":"X196*'Other input expert'!J$14*'Sales price per sales channel'!$I196*'Other input expert'!J$6","v":0},{"$f":"Y196*'Other input expert'!K$14*'Sales price per sales channel'!$I196*'Other input expert'!K$6","v":0},{"$f":"Z196*'Other input expert'!L$14*'Sales price per sales channel'!$I196*'Other input expert'!L$6","v":0},{"$f":"AA196*'Other input expert'!M$14*'Sales price per sales channel'!$I196*'Other input expert'!M$6","v":0},null,{"$f":"AC196*'Other input expert'!B$12*'Sales price per sales channel'!$G196*'Other input expert'!B$7","v":0},{"$f":"AD196*'Other input expert'!C$12*'Sales price per sales channel'!$G196*'Other input expert'!C$7","v":0},{"$f":"AE196*'Other input expert'!D$12*'Sales price per sales channel'!$G196*'Other input expert'!D$7","v":0},{"$f":"AF196*'Other input expert'!E$12*'Sales price per sales channel'!$G196*'Other input expert'!E$7","v":0},{"$f":"AG196*'Other input expert'!F$12*'Sales price per sales channel'!$G196*'Other input expert'!F$7","v":0},{"$f":"AH196*'Other input expert'!G$12*'Sales price per sales channel'!$G196*'Other input expert'!G$7","v":0},{"$f":"AI196*'Other input expert'!H$12*'Sales price per sales channel'!$G196*'Other input expert'!H$7","v":0},{"$f":"AJ196*'Other input expert'!I$12*'Sales price per sales channel'!$G196*'Other input expert'!I$7","v":0},{"$f":"AK196*'Other input expert'!J$12*'Sales price per sales channel'!$G196*'Other input expert'!J$7","v":0},{"$f":"AL196*'Other input expert'!K$12*'Sales price per sales channel'!$G196*'Other input expert'!K$7","v":0},{"$f":"AM196*'Other input expert'!L$12*'Sales price per sales channel'!$G196*'Other input expert'!L$7","v":0},{"$f":"AN196*'Other input expert'!M$12*'Sales price per sales channel'!$G196*'Other input expert'!M$7","v":0},null,{"$f":"AC196*'Other input expert'!B$13*'Sales price per sales channel'!$H196*'Other input expert'!B$7","v":0},{"$f":"AD196*'Other input expert'!C$13*'Sales price per sales channel'!$H196*'Other input expert'!C$7","v":0},{"$f":"AE196*'Other input expert'!D$13*'Sales price per sales channel'!$H196*'Other input expert'!D$7","v":0},{"$f":"AF196*'Other input expert'!E$13*'Sales price per sales channel'!$H196*'Other input expert'!E$7","v":0},{"$f":"AG196*'Other input expert'!F$13*'Sales price per sales channel'!$H196*'Other input expert'!F$7","v":0},{"$f":"AH196*'Other input expert'!G$13*'Sales price per sales channel'!$H196*'Other input expert'!G$7","v":0},{"$f":"AI196*'Other input expert'!H$13*'Sales price per sales channel'!$H196*'Other input expert'!H$7","v":0},{"$f":"AJ196*'Other input expert'!I$13*'Sales price per sales channel'!$H196*'Other input expert'!I$7","v":0},{"$f":"AK196*'Other input expert'!J$13*'Sales price per sales channel'!$H196*'Other input expert'!J$7","v":0},{"$f":"AL196*'Other input expert'!K$13*'Sales price per sales channel'!$H196*'Other input expert'!K$7","v":0},{"$f":"AM196*'Other input expert'!L$13*'Sales price per sales channel'!$H196*'Other input expert'!L$7","v":0},{"$f":"AN196*'Other input expert'!M$13*'Sales price per sales channel'!$H196*'Other input expert'!M$7","v":0},null,{"$f":"AC196*'Other input expert'!B$14*'Sales price per sales channel'!$I196*'Other input expert'!B$7","v":0},{"$f":"AD196*'Other input expert'!C$14*'Sales price per sales channel'!$I196*'Other input expert'!C$7","v":0},{"$f":"AE196*'Other input expert'!D$14*'Sales price per sales channel'!$I196*'Other input expert'!D$7","v":0},{"$f":"AF196*'Other input expert'!E$14*'Sales price per sales channel'!$I196*'Other input expert'!E$7","v":0},{"$f":"AG196*'Other input expert'!F$14*'Sales price per sales channel'!$I196*'Other input expert'!F$7","v":0},{"$f":"AH196*'Other input expert'!G$14*'Sales price per sales channel'!$I196*'Other input expert'!G$7","v":0},{"$f":"AI196*'Other input expert'!H$14*'Sales price per sales channel'!$I196*'Other input expert'!H$7","v":0},{"$f":"AJ196*'Other input expert'!I$14*'Sales price per sales channel'!$I196*'Other input expert'!I$7","v":0},{"$f":"AK196*'Other input expert'!J$14*'Sales price per sales channel'!$I196*'Other input expert'!J$7","v":0},{"$f":"AL196*'Other input expert'!K$14*'Sales price per sales channel'!$I196*'Other input expert'!K$7","v":0},{"$f":"AM196*'Other input expert'!L$14*'Sales price per sales channel'!$I196*'Other input expert'!L$7","v":0},{"$f":"AN196*'Other input expert'!M$14*'Sales price per sales channel'!$I196*'Other input expert'!M$7","v":0}]
["ZR other",null,{"$f":"Plantlist!$G197*'Production list'!D198*'Other input expert'!B$4*'Other input expert'!B$8","v":0},{"$f":"Plantlist!$G197*'Production list'!E198*'Other input expert'!C$4*'Other input expert'!C$8","v":0},{"$f":"Plantlist!$G197*'Production list'!F198*'Other input expert'!D$4*'Other input expert'!D$8","v":0},{"$f":"Plantlist!$G197*'Production list'!G198*'Other input expert'!E$4*'Other input expert'!E$8","v":0},{"$f":"Plantlist!$G197*'Production list'!H198*'Other input expert'!F$4*'Other input expert'!F$8","v":0},{"$f":"Plantlist!$G197*'Production list'!I198*'Other input expert'!G$4*'Other input expert'!G$8","v":0},{"$f":"Plantlist!$G197*'Production list'!J198*'Other input expert'!H$4*'Other input expert'!H$8","v":0},{"$f":"Plantlist!$G197*'Production list'!K198*'Other input expert'!I$4*'Other input expert'!I$8","v":0},{"$f":"Plantlist!$G197*'Production list'!L198*'Other input expert'!J$4*'Other input expert'!J$8","v":0},{"$f":"Plantlist!$G197*'Production list'!M198*'Other input expert'!K$4*'Other input expert'!K$8","v":0},{"$f":"Plantlist!$G197*'Production list'!N198*'Other input expert'!L$4*'Other input expert'!L$8","v":0},{"$f":"Plantlist!$G197*'Production list'!O198*'Other input expert'!M$4*'Other input expert'!M$8","v":0},null,{"$f":"C197*'Other input expert'!B$5","v":0},{"$f":"D197*'Other input expert'!C$5","v":0},{"$f":"E197*'Other input expert'!D$5","v":0},{"$f":"F197*'Other input expert'!E$5","v":0},{"$f":"G197*'Other input expert'!F$5","v":0},{"$f":"H197*'Other input expert'!G$5","v":0},{"$f":"I197*'Other input expert'!H$5","v":0},{"$f":"J197*'Other input expert'!I$5","v":0},{"$f":"K197*'Other input expert'!J$5","v":0},{"$f":"L197*'Other input expert'!K$5","v":0},{"$f":"M197*'Other input expert'!L$5","v":0},{"$f":"N197*'Other input expert'!M$5","v":0},null,{"$f":"C197*(100%-'Other input expert'!B$5)","v":0},{"$f":"D197*(100%-'Other input expert'!C$5)","v":0},{"$f":"E197*(100%-'Other input expert'!D$5)","v":0},{"$f":"F197*(100%-'Other input expert'!E$5)","v":0},{"$f":"G197*(100%-'Other input expert'!F$5)","v":0},{"$f":"H197*(100%-'Other input expert'!G$5)","v":0},{"$f":"I197*(100%-'Other input expert'!H$5)","v":0},{"$f":"J197*(100%-'Other input expert'!I$5)","v":0},{"$f":"K197*(100%-'Other input expert'!J$5)","v":0},{"$f":"L197*(100%-'Other input expert'!K$5)","v":0},{"$f":"M197*(100%-'Other input expert'!L$5)","v":0},{"$f":"N197*(100%-'Other input expert'!M$5)","v":0},null,{"$f":"P197*'Other input expert'!B$12*'Sales price per sales channel'!$G197*'Other input expert'!B$6","v":0},{"$f":"Q197*'Other input expert'!C$12*'Sales price per sales channel'!$G197*'Other input expert'!C$6","v":0},{"$f":"R197*'Other input expert'!D$12*'Sales price per sales channel'!$G197*'Other input expert'!D$6","v":0},{"$f":"S197*'Other input expert'!E$12*'Sales price per sales channel'!$G197*'Other input expert'!E$6","v":0},{"$f":"T197*'Other input expert'!F$12*'Sales price per sales channel'!$G197*'Other input expert'!F$6","v":0},{"$f":"U197*'Other input expert'!G$12*'Sales price per sales channel'!$G197*'Other input expert'!G$6","v":0},{"$f":"V197*'Other input expert'!H$12*'Sales price per sales channel'!$G197*'Other input expert'!H$6","v":0},{"$f":"W197*'Other input expert'!I$12*'Sales price per sales channel'!$G197*'Other input expert'!I$6","v":0},{"$f":"X197*'Other input expert'!J$12*'Sales price per sales channel'!$G197*'Other input expert'!J$6","v":0},{"$f":"Y197*'Other input expert'!K$12*'Sales price per sales channel'!$G197*'Other input expert'!K$6","v":0},{"$f":"Z197*'Other input expert'!L$12*'Sales price per sales channel'!$G197*'Other input expert'!L$6","v":0},{"$f":"AA197*'Other input expert'!M$12*'Sales price per sales channel'!$G197*'Other input expert'!M$6","v":0},null,{"$f":"P197*'Other input expert'!B$13*'Sales price per sales channel'!$H197*'Other input expert'!B$6","v":0},{"$f":"Q197*'Other input expert'!C$13*'Sales price per sales channel'!$H197*'Other input expert'!C$6","v":0},{"$f":"R197*'Other input expert'!D$13*'Sales price per sales channel'!$H197*'Other input expert'!D$6","v":0},{"$f":"S197*'Other input expert'!E$13*'Sales price per sales channel'!$H197*'Other input expert'!E$6","v":0},{"$f":"T197*'Other input expert'!F$13*'Sales price per sales channel'!$H197*'Other input expert'!F$6","v":0},{"$f":"U197*'Other input expert'!G$13*'Sales price per sales channel'!$H197*'Other input expert'!G$6","v":0},{"$f":"V197*'Other input expert'!H$13*'Sales price per sales channel'!$H197*'Other input expert'!H$6","v":0},{"$f":"W197*'Other input expert'!I$13*'Sales price per sales channel'!$H197*'Other input expert'!I$6","v":0},{"$f":"X197*'Other input expert'!J$13*'Sales price per sales channel'!$H197*'Other input expert'!J$6","v":0},{"$f":"Y197*'Other input expert'!K$13*'Sales price per sales channel'!$H197*'Other input expert'!K$6","v":0},{"$f":"Z197*'Other input expert'!L$13*'Sales price per sales channel'!$H197*'Other input expert'!L$6","v":0},{"$f":"AA197*'Other input expert'!M$13*'Sales price per sales channel'!$H197*'Other input expert'!M$6","v":0},null,{"$f":"P197*'Other input expert'!B$14*'Sales price per sales channel'!$I197*'Other input expert'!B$6","v":0},{"$f":"Q197*'Other input expert'!C$14*'Sales price per sales channel'!$I197*'Other input expert'!C$6","v":0},{"$f":"R197*'Other input expert'!D$14*'Sales price per sales channel'!$I197*'Other input expert'!D$6","v":0},{"$f":"S197*'Other input expert'!E$14*'Sales price per sales channel'!$I197*'Other input expert'!E$6","v":0},{"$f":"T197*'Other input expert'!F$14*'Sales price per sales channel'!$I197*'Other input expert'!F$6","v":0},{"$f":"U197*'Other input expert'!G$14*'Sales price per sales channel'!$I197*'Other input expert'!G$6","v":0},{"$f":"V197*'Other input expert'!H$14*'Sales price per sales channel'!$I197*'Other input expert'!H$6","v":0},{"$f":"W197*'Other input expert'!I$14*'Sales price per sales channel'!$I197*'Other input expert'!I$6","v":0},{"$f":"X197*'Other input expert'!J$14*'Sales price per sales channel'!$I197*'Other input expert'!J$6","v":0},{"$f":"Y197*'Other input expert'!K$14*'Sales price per sales channel'!$I197*'Other input expert'!K$6","v":0},{"$f":"Z197*'Other input expert'!L$14*'Sales price per sales channel'!$I197*'Other input expert'!L$6","v":0},{"$f":"AA197*'Other input expert'!M$14*'Sales price per sales channel'!$I197*'Other input expert'!M$6","v":0},null,{"$f":"AC197*'Other input expert'!B$12*'Sales price per sales channel'!$G197*'Other input expert'!B$7","v":0},{"$f":"AD197*'Other input expert'!C$12*'Sales price per sales channel'!$G197*'Other input expert'!C$7","v":0},{"$f":"AE197*'Other input expert'!D$12*'Sales price per sales channel'!$G197*'Other input expert'!D$7","v":0},{"$f":"AF197*'Other input expert'!E$12*'Sales price per sales channel'!$G197*'Other input expert'!E$7","v":0},{"$f":"AG197*'Other input expert'!F$12*'Sales price per sales channel'!$G197*'Other input expert'!F$7","v":0},{"$f":"AH197*'Other input expert'!G$12*'Sales price per sales channel'!$G197*'Other input expert'!G$7","v":0},{"$f":"AI197*'Other input expert'!H$12*'Sales price per sales channel'!$G197*'Other input expert'!H$7","v":0},{"$f":"AJ197*'Other input expert'!I$12*'Sales price per sales channel'!$G197*'Other input expert'!I$7","v":0},{"$f":"AK197*'Other input expert'!J$12*'Sales price per sales channel'!$G197*'Other input expert'!J$7","v":0},{"$f":"AL197*'Other input expert'!K$12*'Sales price per sales channel'!$G197*'Other input expert'!K$7","v":0},{"$f":"AM197*'Other input expert'!L$12*'Sales price per sales channel'!$G197*'Other input expert'!L$7","v":0},{"$f":"AN197*'Other input expert'!M$12*'Sales price per sales channel'!$G197*'Other input expert'!M$7","v":0},null,{"$f":"AC197*'Other input expert'!B$13*'Sales price per sales channel'!$H197*'Other input expert'!B$7","v":0},{"$f":"AD197*'Other input expert'!C$13*'Sales price per sales channel'!$H197*'Other input expert'!C$7","v":0},{"$f":"AE197*'Other input expert'!D$13*'Sales price per sales channel'!$H197*'Other input expert'!D$7","v":0},{"$f":"AF197*'Other input expert'!E$13*'Sales price per sales channel'!$H197*'Other input expert'!E$7","v":0},{"$f":"AG197*'Other input expert'!F$13*'Sales price per sales channel'!$H197*'Other input expert'!F$7","v":0},{"$f":"AH197*'Other input expert'!G$13*'Sales price per sales channel'!$H197*'Other input expert'!G$7","v":0},{"$f":"AI197*'Other input expert'!H$13*'Sales price per sales channel'!$H197*'Other input expert'!H$7","v":0},{"$f":"AJ197*'Other input expert'!I$13*'Sales price per sales channel'!$H197*'Other input expert'!I$7","v":0},{"$f":"AK197*'Other input expert'!J$13*'Sales price per sales channel'!$H197*'Other input expert'!J$7","v":0},{"$f":"AL197*'Other input expert'!K$13*'Sales price per sales channel'!$H197*'Other input expert'!K$7","v":0},{"$f":"AM197*'Other input expert'!L$13*'Sales price per sales channel'!$H197*'Other input expert'!L$7","v":0},{"$f":"AN197*'Other input expert'!M$13*'Sales price per sales channel'!$H197*'Other input expert'!M$7","v":0},null,{"$f":"AC197*'Other input expert'!B$14*'Sales price per sales channel'!$I197*'Other input expert'!B$7","v":0},{"$f":"AD197*'Other input expert'!C$14*'Sales price per sales channel'!$I197*'Other input expert'!C$7","v":0},{"$f":"AE197*'Other input expert'!D$14*'Sales price per sales channel'!$I197*'Other input expert'!D$7","v":0},{"$f":"AF197*'Other input expert'!E$14*'Sales price per sales channel'!$I197*'Other input expert'!E$7","v":0},{"$f":"AG197*'Other input expert'!F$14*'Sales price per sales channel'!$I197*'Other input expert'!F$7","v":0},{"$f":"AH197*'Other input expert'!G$14*'Sales price per sales channel'!$I197*'Other input expert'!G$7","v":0},{"$f":"AI197*'Other input expert'!H$14*'Sales price per sales channel'!$I197*'Other input expert'!H$7","v":0},{"$f":"AJ197*'Other input expert'!I$14*'Sales price per sales channel'!$I197*'Other input expert'!I$7","v":0},{"$f":"AK197*'Other input expert'!J$14*'Sales price per sales channel'!$I197*'Other input expert'!J$7","v":0},{"$f":"AL197*'Other input expert'!K$14*'Sales price per sales channel'!$I197*'Other input expert'!K$7","v":0},{"$f":"AM197*'Other input expert'!L$14*'Sales price per sales channel'!$I197*'Other input expert'!L$7","v":0},{"$f":"AN197*'Other input expert'!M$14*'Sales price per sales channel'!$I197*'Other input expert'!M$7","v":0}]
["ZR other",null,{"$f":"Plantlist!$G198*'Production list'!D199*'Other input expert'!B$4*'Other input expert'!B$8","v":0},{"$f":"Plantlist!$G198*'Production list'!E199*'Other input expert'!C$4*'Other input expert'!C$8","v":0},{"$f":"Plantlist!$G198*'Production list'!F199*'Other input expert'!D$4*'Other input expert'!D$8","v":0},{"$f":"Plantlist!$G198*'Production list'!G199*'Other input expert'!E$4*'Other input expert'!E$8","v":0},{"$f":"Plantlist!$G198*'Production list'!H199*'Other input expert'!F$4*'Other input expert'!F$8","v":0},{"$f":"Plantlist!$G198*'Production list'!I199*'Other input expert'!G$4*'Other input expert'!G$8","v":0},{"$f":"Plantlist!$G198*'Production list'!J199*'Other input expert'!H$4*'Other input expert'!H$8","v":0},{"$f":"Plantlist!$G198*'Production list'!K199*'Other input expert'!I$4*'Other input expert'!I$8","v":0},{"$f":"Plantlist!$G198*'Production list'!L199*'Other input expert'!J$4*'Other input expert'!J$8","v":0},{"$f":"Plantlist!$G198*'Production list'!M199*'Other input expert'!K$4*'Other input expert'!K$8","v":0},{"$f":"Plantlist!$G198*'Production list'!N199*'Other input expert'!L$4*'Other input expert'!L$8","v":0},{"$f":"Plantlist!$G198*'Production list'!O199*'Other input expert'!M$4*'Other input expert'!M$8","v":0},null,{"$f":"C198*'Other input expert'!B$5","v":0},{"$f":"D198*'Other input expert'!C$5","v":0},{"$f":"E198*'Other input expert'!D$5","v":0},{"$f":"F198*'Other input expert'!E$5","v":0},{"$f":"G198*'Other input expert'!F$5","v":0},{"$f":"H198*'Other input expert'!G$5","v":0},{"$f":"I198*'Other input expert'!H$5","v":0},{"$f":"J198*'Other input expert'!I$5","v":0},{"$f":"K198*'Other input expert'!J$5","v":0},{"$f":"L198*'Other input expert'!K$5","v":0},{"$f":"M198*'Other input expert'!L$5","v":0},{"$f":"N198*'Other input expert'!M$5","v":0},null,{"$f":"C198*(100%-'Other input expert'!B$5)","v":0},{"$f":"D198*(100%-'Other input expert'!C$5)","v":0},{"$f":"E198*(100%-'Other input expert'!D$5)","v":0},{"$f":"F198*(100%-'Other input expert'!E$5)","v":0},{"$f":"G198*(100%-'Other input expert'!F$5)","v":0},{"$f":"H198*(100%-'Other input expert'!G$5)","v":0},{"$f":"I198*(100%-'Other input expert'!H$5)","v":0},{"$f":"J198*(100%-'Other input expert'!I$5)","v":0},{"$f":"K198*(100%-'Other input expert'!J$5)","v":0},{"$f":"L198*(100%-'Other input expert'!K$5)","v":0},{"$f":"M198*(100%-'Other input expert'!L$5)","v":0},{"$f":"N198*(100%-'Other input expert'!M$5)","v":0},null,{"$f":"P198*'Other input expert'!B$12*'Sales price per sales channel'!$G198*'Other input expert'!B$6","v":0},{"$f":"Q198*'Other input expert'!C$12*'Sales price per sales channel'!$G198*'Other input expert'!C$6","v":0},{"$f":"R198*'Other input expert'!D$12*'Sales price per sales channel'!$G198*'Other input expert'!D$6","v":0},{"$f":"S198*'Other input expert'!E$12*'Sales price per sales channel'!$G198*'Other input expert'!E$6","v":0},{"$f":"T198*'Other input expert'!F$12*'Sales price per sales channel'!$G198*'Other input expert'!F$6","v":0},{"$f":"U198*'Other input expert'!G$12*'Sales price per sales channel'!$G198*'Other input expert'!G$6","v":0},{"$f":"V198*'Other input expert'!H$12*'Sales price per sales channel'!$G198*'Other input expert'!H$6","v":0},{"$f":"W198*'Other input expert'!I$12*'Sales price per sales channel'!$G198*'Other input expert'!I$6","v":0},{"$f":"X198*'Other input expert'!J$12*'Sales price per sales channel'!$G198*'Other input expert'!J$6","v":0},{"$f":"Y198*'Other input expert'!K$12*'Sales price per sales channel'!$G198*'Other input expert'!K$6","v":0},{"$f":"Z198*'Other input expert'!L$12*'Sales price per sales channel'!$G198*'Other input expert'!L$6","v":0},{"$f":"AA198*'Other input expert'!M$12*'Sales price per sales channel'!$G198*'Other input expert'!M$6","v":0},null,{"$f":"P198*'Other input expert'!B$13*'Sales price per sales channel'!$H198*'Other input expert'!B$6","v":0},{"$f":"Q198*'Other input expert'!C$13*'Sales price per sales channel'!$H198*'Other input expert'!C$6","v":0},{"$f":"R198*'Other input expert'!D$13*'Sales price per sales channel'!$H198*'Other input expert'!D$6","v":0},{"$f":"S198*'Other input expert'!E$13*'Sales price per sales channel'!$H198*'Other input expert'!E$6","v":0},{"$f":"T198*'Other input expert'!F$13*'Sales price per sales channel'!$H198*'Other input expert'!F$6","v":0},{"$f":"U198*'Other input expert'!G$13*'Sales price per sales channel'!$H198*'Other input expert'!G$6","v":0},{"$f":"V198*'Other input expert'!H$13*'Sales price per sales channel'!$H198*'Other input expert'!H$6","v":0},{"$f":"W198*'Other input expert'!I$13*'Sales price per sales channel'!$H198*'Other input expert'!I$6","v":0},{"$f":"X198*'Other input expert'!J$13*'Sales price per sales channel'!$H198*'Other input expert'!J$6","v":0},{"$f":"Y198*'Other input expert'!K$13*'Sales price per sales channel'!$H198*'Other input expert'!K$6","v":0},{"$f":"Z198*'Other input expert'!L$13*'Sales price per sales channel'!$H198*'Other input expert'!L$6","v":0},{"$f":"AA198*'Other input expert'!M$13*'Sales price per sales channel'!$H198*'Other input expert'!M$6","v":0},null,{"$f":"P198*'Other input expert'!B$14*'Sales price per sales channel'!$I198*'Other input expert'!B$6","v":0},{"$f":"Q198*'Other input expert'!C$14*'Sales price per sales channel'!$I198*'Other input expert'!C$6","v":0},{"$f":"R198*'Other input expert'!D$14*'Sales price per sales channel'!$I198*'Other input expert'!D$6","v":0},{"$f":"S198*'Other input expert'!E$14*'Sales price per sales channel'!$I198*'Other input expert'!E$6","v":0},{"$f":"T198*'Other input expert'!F$14*'Sales price per sales channel'!$I198*'Other input expert'!F$6","v":0},{"$f":"U198*'Other input expert'!G$14*'Sales price per sales channel'!$I198*'Other input expert'!G$6","v":0},{"$f":"V198*'Other input expert'!H$14*'Sales price per sales channel'!$I198*'Other input expert'!H$6","v":0},{"$f":"W198*'Other input expert'!I$14*'Sales price per sales channel'!$I198*'Other input expert'!I$6","v":0},{"$f":"X198*'Other input expert'!J$14*'Sales price per sales channel'!$I198*'Other input expert'!J$6","v":0},{"$f":"Y198*'Other input expert'!K$14*'Sales price per sales channel'!$I198*'Other input expert'!K$6","v":0},{"$f":"Z198*'Other input expert'!L$14*'Sales price per sales channel'!$I198*'Other input expert'!L$6","v":0},{"$f":"AA198*'Other input expert'!M$14*'Sales price per sales channel'!$I198*'Other input expert'!M$6","v":0},null,{"$f":"AC198*'Other input expert'!B$12*'Sales price per sales channel'!$G198*'Other input expert'!B$7","v":0},{"$f":"AD198*'Other input expert'!C$12*'Sales price per sales channel'!$G198*'Other input expert'!C$7","v":0},{"$f":"AE198*'Other input expert'!D$12*'Sales price per sales channel'!$G198*'Other input expert'!D$7","v":0},{"$f":"AF198*'Other input expert'!E$12*'Sales price per sales channel'!$G198*'Other input expert'!E$7","v":0},{"$f":"AG198*'Other input expert'!F$12*'Sales price per sales channel'!$G198*'Other input expert'!F$7","v":0},{"$f":"AH198*'Other input expert'!G$12*'Sales price per sales channel'!$G198*'Other input expert'!G$7","v":0},{"$f":"AI198*'Other input expert'!H$12*'Sales price per sales channel'!$G198*'Other input expert'!H$7","v":0},{"$f":"AJ198*'Other input expert'!I$12*'Sales price per sales channel'!$G198*'Other input expert'!I$7","v":0},{"$f":"AK198*'Other input expert'!J$12*'Sales price per sales channel'!$G198*'Other input expert'!J$7","v":0},{"$f":"AL198*'Other input expert'!K$12*'Sales price per sales channel'!$G198*'Other input expert'!K$7","v":0},{"$f":"AM198*'Other input expert'!L$12*'Sales price per sales channel'!$G198*'Other input expert'!L$7","v":0},{"$f":"AN198*'Other input expert'!M$12*'Sales price per sales channel'!$G198*'Other input expert'!M$7","v":0},null,{"$f":"AC198*'Other input expert'!B$13*'Sales price per sales channel'!$H198*'Other input expert'!B$7","v":0},{"$f":"AD198*'Other input expert'!C$13*'Sales price per sales channel'!$H198*'Other input expert'!C$7","v":0},{"$f":"AE198*'Other input expert'!D$13*'Sales price per sales channel'!$H198*'Other input expert'!D$7","v":0},{"$f":"AF198*'Other input expert'!E$13*'Sales price per sales channel'!$H198*'Other input expert'!E$7","v":0},{"$f":"AG198*'Other input expert'!F$13*'Sales price per sales channel'!$H198*'Other input expert'!F$7","v":0},{"$f":"AH198*'Other input expert'!G$13*'Sales price per sales channel'!$H198*'Other input expert'!G$7","v":0},{"$f":"AI198*'Other input expert'!H$13*'Sales price per sales channel'!$H198*'Other input expert'!H$7","v":0},{"$f":"AJ198*'Other input expert'!I$13*'Sales price per sales channel'!$H198*'Other input expert'!I$7","v":0},{"$f":"AK198*'Other input expert'!J$13*'Sales price per sales channel'!$H198*'Other input expert'!J$7","v":0},{"$f":"AL198*'Other input expert'!K$13*'Sales price per sales channel'!$H198*'Other input expert'!K$7","v":0},{"$f":"AM198*'Other input expert'!L$13*'Sales price per sales channel'!$H198*'Other input expert'!L$7","v":0},{"$f":"AN198*'Other input expert'!M$13*'Sales price per sales channel'!$H198*'Other input expert'!M$7","v":0},null,{"$f":"AC198*'Other input expert'!B$14*'Sales price per sales channel'!$I198*'Other input expert'!B$7","v":0},{"$f":"AD198*'Other input expert'!C$14*'Sales price per sales channel'!$I198*'Other input expert'!C$7","v":0},{"$f":"AE198*'Other input expert'!D$14*'Sales price per sales channel'!$I198*'Other input expert'!D$7","v":0},{"$f":"AF198*'Other input expert'!E$14*'Sales price per sales channel'!$I198*'Other input expert'!E$7","v":0},{"$f":"AG198*'Other input expert'!F$14*'Sales price per sales channel'!$I198*'Other input expert'!F$7","v":0},{"$f":"AH198*'Other input expert'!G$14*'Sales price per sales channel'!$I198*'Other input expert'!G$7","v":0},{"$f":"AI198*'Other input expert'!H$14*'Sales price per sales channel'!$I198*'Other input expert'!H$7","v":0},{"$f":"AJ198*'Other input expert'!I$14*'Sales price per sales channel'!$I198*'Other input expert'!I$7","v":0},{"$f":"AK198*'Other input expert'!J$14*'Sales price per sales channel'!$I198*'Other input expert'!J$7","v":0},{"$f":"AL198*'Other input expert'!K$14*'Sales price per sales channel'!$I198*'Other input expert'!K$7","v":0},{"$f":"AM198*'Other input expert'!L$14*'Sales price per sales channel'!$I198*'Other input expert'!L$7","v":0},{"$f":"AN198*'Other input expert'!M$14*'Sales price per sales channel'!$I198*'Other input expert'!M$7","v":0}]
[null,"Total",{"$f":"SUM(C4:C198)","v":0},{"$f":"SUM(D4:D198)","v":0},0,0,0,0,0,0,0,0,0,0,null,0,0,0,0,0,0,0,0,0,0,0,0,null,0,0,0,0,0,0,0,0,0,0,0,0,null,0,0,0,0,0,0,0,0,0,0,0,0,null,0,0,0,0,0,0,0,0,0,0,0,0,null,{"$f":"SUM(BP4:BP198)","v":0},0,0,0,0,0,0,0,0,0,0,0,null,0,0,0,0,0,0,0,0,0,0,0,0,null,0,0,0,0,0,0,0,0,0,0,0,0,null,0,0,0,0,0,0,0,0,0,0,0,0]

{"sheet":"Harvest labour calculation","index":13,"n_rows":200,"n_cols":29,"rows_kept":200,"cut":false,"hidden":false,"merged":[[1,2,1,13],[1,15,1,26]]}
[]
[null,null,"Calculated harvest labour hours per year",null,null,null,null,null,null,null,null,null,null,null,null,"Total annual harvest labour hours "]
["Scientific name","Common name",1,2,3,4,5,6,7,8,9,10,"11/15 yr","16/20 yr",null,1,2,3,4,5,6,7,8,9,10,"11/15 jr","16/20 jr"]
["Acer campestre","Field maple",{"$f":"IF('Picking rates'!$G4>0,'Yield & Sales calculation'!C4/('Picking rates'!$G4*'Other input expert'!B$9),0)","v":0},{"$f":"IF('Picking rates'!$G4>0,'Yield & Sales calculation'!D4/('Picking rates'!$G4*'Other input expert'!C$9),0)","v":0},{"$f":"IF('Picking rates'!$G4>0,'Yield & Sales calculation'!E4/('Picking rates'!$G4*'Other input expert'!D$9),0)","v":0},{"$f":"IF('Picking rates'!$G4>0,'Yield & Sales calculation'!F4/('Picking rates'!$G4*'Other input expert'!E$9),0)","v":0},{"$f":"IF('Picking rates'!$G4>0,'Yield & Sales calculation'!G4/('Picking rates'!$G4*'Other input expert'!F$9),0)","v":0},{"$f":"IF('Picking rates'!$G4>0,'Yield & Sales calculation'!H4/('Picking rates'!$G4*'Other input expert'!G$9),0)","v":0},{"$f":"IF('Picking rates'!$G4>0,'Yield & Sales calculation'!I4/('Picking rates'!$G4*'Other input expert'!H$9),0)","v":0},{"$f":"IF('Picking rates'!$G4>0,'Yield & Sales calculation'!J4/('Picking rates'!$G4*'Other input expert'!I$9),0)","v":0},{"$f":"IF('Picking rates'!$G4>0,'Yield & Sales calculation'!K4/('Picking rates'!$G4*'Other input expert'!J$9),0)","v":0},{"$f":"IF('Picking rates'!$G4>0,'Yield & Sales calculation'!L4/('Picking rates'!$G4*'Other input expert'!K$9),0)","v":0},{"$f":"IF('Picking rates'!$G4>0,'Yield & Sales calculation'!M4/('Picking rates'!$G4*'Other input expert'!L$9),0)","v":0},{"$f":"IF('Picking rates'!$G4>0,'Yield & Sales calculation'!N4/('Picking rates'!$G4*'Other input expert'!M$9),0)","v":0},null,{"$f":"C200","v":0},0,0,0,0,0,0,0,0,0,0,0]
["Acer platanoides","Norway maple",{"$f":"IF('Picking rates'!$G5>0,'Yield & Sales calculation'!C5/('Picking rates'!$G5*'Other input expert'!B$9),0)","v":0},{"$f":"IF('Picking rates'!$G5>0,'Yield & Sales calculation'!D5/('Picking rates'!$G5*'Other input expert'!C$9),0)","v":0},{"$f":"IF('Picking rates'!$G5>0,'Yield & Sales calculation'!E5/('Picking rates'!$G5*'Other input expert'!D$9),0)","v":0},{"$f":"IF('Picking rates'!$G5>0,'Yield & Sales calculation'!F5/('Picking rates'!$G5*'Other input expert'!E$9),0)","v":0},{"$f":"IF('Picking rates'!$G5>0,'Yield & Sales calculation'!G5/('Picking rates'!$G5*'Other input expert'!F$9),0)","v":0},{"$f":"IF('Picking rates'!$G5>0,'Yield & Sales calculation'!H5/('Picking rates'!$G5*'Other input expert'!G$9),0)","v":0},{"$f":"IF('Picking rates'!$G5>0,'Yield & Sales calculation'!I5/('Picking rates'!$G5*'Other input expert'!H$9),0)","v":0},{"$f":"IF('Picking rates'!$G5>0,'Yield & Sales calculation'!J5/('Picking rates'!$G5*'Other input expert'!I$9),0)","v":0},{"$f":"IF('Picking rates'!$G5>0,'Yield & Sales calculation'!K5/('Picking rates'!$G5*'Other input expert'!J$9),0)","v":0},{"$f":"IF('Picking rates'!$G5>0,'Yield & Sales calculation'!L5/('Picking rates'!$G5*'Other input expert'!K$9),0)","v":0},{"$f":"IF('Picking rates'!$G5>0,'Yield & Sales calculation'!M5/('Picking rates'!$G5*'Other input expert'!L$9),0)","v":0},{"$f":"IF('Picking rates'!$G5>0,'Yield & Sales calculation'!N5/('Picking rates'!$G5*'Other input expert'!M$9),0)","v":0}]
["Acer pseudoplatanus","Sycamore",{"$f":"IF('Picking rates'!$G6>0,'Yield & Sales calculation'!C6/('Picking rates'!$G6*'Other input expert'!B$9),0)","v":0},{"$f":"IF('Picking rates'!$G6>0,'Yield & Sales calculation'!D6/('Picking rates'!$G6*'Other input expert'!C$9),0)","v":0},{"$f":"IF('Picking rates'!$G6>0,'Yield & Sales calculation'!E6/('Picking rates'!$G6*'Other input expert'!D$9),0)","v":0},{"$f":"IF('Picking rates'!$G6>0,'Yield & Sales calculation'!F6/('Picking rates'!$G6*'Other input expert'!E$9),0)","v":0},{"$f":"IF('Picking rates'!$G6>0,'Yield & Sales calculation'!G6/('Picking rates'!$G6*'Other input expert'!F$9),0)","v":0},{"$f":"IF('Picking rates'!$G6>0,'Yield & Sales calculation'!H6/('Picking rates'!$G6*'Other input expert'!G$9),0)","v":0},{"$f":"IF('Picking rates'!$G6>0,'Yield & Sales calculation'!I6/('Picking rates'!$G6*'Other input expert'!H$9),0)","v":0},{"$f":"IF('Picking rates'!$G6>0,'Yield & Sales calculation'!J6/('Picking rates'!$G6*'Other input expert'!I$9),0)","v":0},{"$f":"IF('Picking rates'!$G6>0,'Yield & Sales calculation'!K6/('Picking rates'!$G6*'Other input expert'!J$9),0)","v":0},{"$f":"IF('Picking rates'!$G6>0,'Yield & Sales calculation'!L6/('Picking rates'!$G6*'Other input expert'!K$9),0)","v":0},{"$f":"IF('Picking rates'!$G6>0,'Yield & Sales calculation'!M6/('Picking rates'!$G6*'Other input expert'!L$9),0)","v":0},{"$f":"IF('Picking rates'!$G6>0,'Yield & Sales calculation'!N6/('Picking rates'!$G6*'Other input expert'!M$9),0)","v":0},null,{"$f":"P4/8","v":0},{"$f":"Q4/8","v":0},0,{"$f":"S4/8","v":0},0,0,0,0,{"$f":"X4/8","v":0},0,0,0,null,"Total harvest days (8 hours)"]
["Acer saccharum","Sugar maple",{"$f":"IF('Picking rates'!$G7>0,'Yield & Sales calculation'!C7/('Picking rates'!$G7*'Other input expert'!B$9),0)","v":0},{"$f":"IF('Picking rates'!$G7>0,'Yield & Sales calculation'!D7/('Picking rates'!$G7*'Other input expert'!C$9),0)","v":0},{"$f":"IF('Picking rates'!$G7>0,'Yield & Sales calculation'!E7/('Picking rates'!$G7*'Other input expert'!D$9),0)","v":0},{"$f":"IF('Picking rates'!$G7>0,'Yield & Sales calculation'!F7/('Picking rates'!$G7*'Other input expert'!E$9),0)","v":0},{"$f":"IF('Picking rates'!$G7>0,'Yield & Sales calculation'!G7/('Picking rates'!$G7*'Other input expert'!F$9),0)","v":0},{"$f":"IF('Picking rates'!$G7>0,'Yield & Sales calculation'!H7/('Picking rates'!$G7*'Other input expert'!G$9),0)","v":0},{"$f":"IF('Picking rates'!$G7>0,'Yield & Sales calculation'!I7/('Picking rates'!$G7*'Other input expert'!H$9),0)","v":0},{"$f":"IF('Picking rates'!$G7>0,'Yield & Sales calculation'!J7/('Picking rates'!$G7*'Other input expert'!I$9),0)","v":0},{"$f":"IF('Picking rates'!$G7>0,'Yield & Sales calculation'!K7/('Picking rates'!$G7*'Other input expert'!J$9),0)","v":0},{"$f":"IF('Picking rates'!$G7>0,'Yield & Sales calculation'!L7/('Picking rates'!$G7*'Other input expert'!K$9),0)","v":0},{"$f":"IF('Picking rates'!$G7>0,'Yield & Sales calculation'!M7/('Picking rates'!$G7*'Other input expert'!L$9),0)","v":0},{"$f":"IF('Picking rates'!$G7>0,'Yield & Sales calculation'!N7/('Picking rates'!$G7*'Other input expert'!M$9),0)","v":0},null,{"$f":"P4/40","v":0},{"$f":"Q4/40","v":0},0,0,0,0,0,0,0,0,0,{"$f":"AA4/40","v":0},null,"Total FTE in weeks (40 hours/week)"]
["Achillea millefolium","Yarrow",{"$f":"IF('Picking rates'!$G8>0,'Yield & Sales calculation'!C8/('Picking rates'!$G8*'Other input expert'!B$9),0)","v":0},{"$f":"IF('Picking rates'!$G8>0,'Yield & Sales calculation'!D8/('Picking rates'!$G8*'Other input expert'!C$9),0)","v":0},{"$f":"IF('Picking rates'!$G8>0,'Yield & Sales calculation'!E8/('Picking rates'!$G8*'Other input expert'!D$9),0)","v":0},{"$f":"IF('Picking rates'!$G8>0,'Yield & Sales calculation'!F8/('Picking rates'!$G8*'Other input expert'!E$9),0)","v":0},{"$f":"IF('Picking rates'!$G8>0,'Yield & Sales calculation'!G8/('Picking rates'!$G8*'Other input expert'!F$9),0)","v":0},{"$f":"IF('Picking rates'!$G8>0,'Yield & Sales calculation'!H8/('Picking rates'!$G8*'Other input expert'!G$9),0)","v":0},{"$f":"IF('Picking rates'!$G8>0,'Yield & Sales calculation'!I8/('Picking rates'!$G8*'Other input expert'!H$9),0)","v":0},{"$f":"IF('Picking rates'!$G8>0,'Yield & Sales calculation'!J8/('Picking rates'!$G8*'Other input expert'!I$9),0)","v":0},{"$f":"IF('Picking rates'!$G8>0,'Yield & Sales calculation'!K8/('Picking rates'!$G8*'Other input expert'!J$9),0)","v":0},{"$f":"IF('Picking rates'!$G8>0,'Yield & Sales calculation'!L8/('Picking rates'!$G8*'Other input expert'!K$9),0)","v":0},{"$f":"IF('Picking rates'!$G8>0,'Yield & Sales calculation'!M8/('Picking rates'!$G8*'Other input expert'!L$9),0)","v":0},{"$f":"IF('Picking rates'!$G8>0,'Yield & Sales calculation'!N8/('Picking rates'!$G8*'Other input expert'!M$9),0)","v":0},null,{"$f":"P4/2000","v":0},0,0,0,0,0,0,0,0,0,0,{"$f":"AA4/2000","v":0},null,"Total FTE in years (2000 hours / year)"]
["Actinidia arguta","Hardy kiwi",{"$f":"IF('Picking rates'!$G9>0,'Yield & Sales calculation'!C9/('Picking rates'!$G9*'Other input expert'!B$9),0)","v":0},{"$f":"IF('Picking rates'!$G9>0,'Yield & Sales calculation'!D9/('Picking rates'!$G9*'Other input expert'!C$9),0)","v":0},{"$f":"IF('Picking rates'!$G9>0,'Yield & Sales calculation'!E9/('Picking rates'!$G9*'Other input expert'!D$9),0)","v":0},{"$f":"IF('Picking rates'!$G9>0,'Yield & Sales calculation'!F9/('Picking rates'!$G9*'Other input expert'!E$9),0)","v":0},{"$f":"IF('Picking rates'!$G9>0,'Yield & Sales calculation'!G9/('Picking rates'!$G9*'Other input expert'!F$9),0)","v":0},{"$f":"IF('Picking rates'!$G9>0,'Yield & Sales calculation'!H9/('Picking rates'!$G9*'Other input expert'!G$9),0)","v":0},{"$f":"IF('Picking rates'!$G9>0,'Yield & Sales calculation'!I9/('Picking rates'!$G9*'Other input expert'!H$9),0)","v":0},{"$f":"IF('Picking rates'!$G9>0,'Yield & Sales calculation'!J9/('Picking rates'!$G9*'Other input expert'!I$9),0)","v":0},{"$f":"IF('Picking rates'!$G9>0,'Yield & Sales calculation'!K9/('Picking rates'!$G9*'Other input expert'!J$9),0)","v":0},{"$f":"IF('Picking rates'!$G9>0,'Yield & Sales calculation'!L9/('Picking rates'!$G9*'Other input expert'!K$9),0)","v":0},{"$f":"IF('Picking rates'!$G9>0,'Yield & Sales calculation'!M9/('Picking rates'!$G9*'Other input expert'!L$9),0)","v":0},{"$f":"IF('Picking rates'!$G9>0,'Yield & Sales calculation'!N9/('Picking rates'!$G9*'Other input expert'!M$9),0)","v":0}]
["Actinidia deliciosa","Kiwi",{"$f":"IF('Picking rates'!$G10>0,'Yield & Sales calculation'!C10/('Picking rates'!$G10*'Other input expert'!B$9),0)","v":0},{"$f":"IF('Picking rates'!$G10>0,'Yield & Sales calculation'!D10/('Picking rates'!$G10*'Other input expert'!C$9),0)","v":0},{"$f":"IF('Picking rates'!$G10>0,'Yield & Sales calculation'!E10/('Picking rates'!$G10*'Other input expert'!D$9),0)","v":0},{"$f":"IF('Picking rates'!$G10>0,'Yield & Sales calculation'!F10/('Picking rates'!$G10*'Other input expert'!E$9),0)","v":0},{"$f":"IF('Picking rates'!$G10>0,'Yield & Sales calculation'!G10/('Picking rates'!$G10*'Other input expert'!F$9),0)","v":0},{"$f":"IF('Picking rates'!$G10>0,'Yield & Sales calculation'!H10/('Picking rates'!$G10*'Other input expert'!G$9),0)","v":0},{"$f":"IF('Picking rates'!$G10>0,'Yield & Sales calculation'!I10/('Picking rates'!$G10*'Other input expert'!H$9),0)","v":0},{"$f":"IF('Picking rates'!$G10>0,'Yield & Sales calculation'!J10/('Picking rates'!$G10*'Other input expert'!I$9),0)","v":0},{"$f":"IF('Picking rates'!$G10>0,'Yield & Sales calculation'!K10/('Picking rates'!$G10*'Other input expert'!J$9),0)","v":0},{"$f":"IF('Picking rates'!$G10>0,'Yield & Sales calculation'!L10/('Picking rates'!$G10*'Other input expert'!K$9),0)","v":0},{"$f":"IF('Picking rates'!$G10>0,'Yield & Sales calculation'!M10/('Picking rates'!$G10*'Other input expert'!L$9),0)","v":0},{"$f":"IF('Picking rates'!$G10>0,'Yield & Sales calculation'!N10/('Picking rates'!$G10*'Other input expert'!M$9),0)","v":0}]
["Actinidia komikta","Arctisch",{"$f":"IF('Picking rates'!$G11>0,'Yield & Sales calculation'!C11/('Picking rates'!$G11*'Other input expert'!B$9),0)","v":0},{"$f":"IF('Picking rates'!$G11>0,'Yield & Sales calculation'!D11/('Picking rates'!$G11*'Other input expert'!C$9),0)","v":0},{"$f":"IF('Picking rates'!$G11>0,'Yield & Sales calculation'!E11/('Picking rates'!$G11*'Other input expert'!D$9),0)","v":0},{"$f":"IF('Picking rates'!$G11>0,'Yield & Sales calculation'!F11/('Picking rates'!$G11*'Other input expert'!E$9),0)","v":0},{"$f":"IF('Picking rates'!$G11>0,'Yield & Sales calculation'!G11/('Picking rates'!$G11*'Other input expert'!F$9),0)","v":0},{"$f":"IF('Picking rates'!$G11>0,'Yield & Sales calculation'!H11/('Picking rates'!$G11*'Other input expert'!G$9),0)","v":0},{"$f":"IF('Picking rates'!$G11>0,'Yield & Sales calculation'!I11/('Picking rates'!$G11*'Other input expert'!H$9),0)","v":0},{"$f":"IF('Picking rates'!$G11>0,'Yield & Sales calculation'!J11/('Picking rates'!$G11*'Other input expert'!I$9),0)","v":0},{"$f":"IF('Picking rates'!$G11>0,'Yield & Sales calculation'!K11/('Picking rates'!$G11*'Other input expert'!J$9),0)","v":0},{"$f":"IF('Picking rates'!$G11>0,'Yield & Sales calculation'!L11/('Picking rates'!$G11*'Other input expert'!K$9),0)","v":0},{"$f":"IF('Picking rates'!$G11>0,'Yield & Sales calculation'!M11/('Picking rates'!$G11*'Other input expert'!L$9),0)","v":0},{"$f":"IF('Picking rates'!$G11>0,'Yield & Sales calculation'!N11/('Picking rates'!$G11*'Other input expert'!M$9),0)","v":0}]
["Agaricus bisporus","Common white mushroom",{"$f":"IF('Picking rates'!$G12>0,'Yield & Sales calculation'!C12/('Picking rates'!$G12*'Other input expert'!B$9),0)","v":0},{"$f":"IF('Picking rates'!$G12>0,'Yield & Sales calculation'!D12/('Picking rates'!$G12*'Other input expert'!C$9),0)","v":0},{"$f":"IF('Picking rates'!$G12>0,'Yield & Sales calculation'!E12/('Picking rates'!$G12*'Other input expert'!D$9),0)","v":0},{"$f":"IF('Picking rates'!$G12>0,'Yield & Sales calculation'!F12/('Picking rates'!$G12*'Other input expert'!E$9),0)","v":0},{"$f":"IF('Picking rates'!$G12>0,'Yield & Sales calculation'!G12/('Picking rates'!$G12*'Other input expert'!F$9),0)","v":0},{"$f":"IF('Picking rates'!$G12>0,'Yield & Sales calculation'!H12/('Picking rates'!$G12*'Other input expert'!G$9),0)","v":0},{"$f":"IF('Picking rates'!$G12>0,'Yield & Sales calculation'!I12/('Picking rates'!$G12*'Other input expert'!H$9),0)","v":0},{"$f":"IF('Picking rates'!$G12>0,'Yield & Sales calculation'!J12/('Picking rates'!$G12*'Other input expert'!I$9),0)","v":0},{"$f":"IF('Picking rates'!$G12>0,'Yield & Sales calculation'!K12/('Picking rates'!$G12*'Other input expert'!J$9),0)","v":0},{"$f":"IF('Picking rates'!$G12>0,'Yield & Sales calculation'!L12/('Picking rates'!$G12*'Other input expert'!K$9),0)","v":0},{"$f":"IF('Picking rates'!$G12>0,'Yield & Sales calculation'!M12/('Picking rates'!$G12*'Other input expert'!L$9),0)","v":0},{"$f":"IF('Picking rates'!$G12>0,'Yield & Sales calculation'!N12/('Picking rates'!$G12*'Other input expert'!M$9),0)","v":0}]
["Agastache foeniculum","Anise Hyssop",{"$f":"IF('Picking rates'!$G13>0,'Yield & Sales calculation'!C13/('Picking rates'!$G13*'Other input expert'!B$9),0)","v":0},{"$f":"IF('Picking rates'!$G13>0,'Yield & Sales calculation'!D13/('Picking rates'!$G13*'Other input expert'!C$9),0)","v":0},{"$f":"IF('Picking rates'!$G13>0,'Yield & Sales calculation'!E13/('Picking rates'!$G13*'Other input expert'!D$9),0)","v":0},{"$f":"IF('Picking rates'!$G13>0,'Yield & Sales calculation'!F13/('Picking rates'!$G13*'Other input expert'!E$9),0)","v":0},{"$f":"IF('Picking rates'!$G13>0,'Yield & Sales calculation'!G13/('Picking rates'!$G13*'Other input expert'!F$9),0)","v":0},{"$f":"IF('Picking rates'!$G13>0,'Yield & Sales calculation'!H13/('Picking rates'!$G13*'Other input expert'!G$9),0)","v":0},{"$f":"IF('Picking rates'!$G13>0,'Yield & Sales calculation'!I13/('Picking rates'!$G13*'Other input expert'!H$9),0)","v":0},{"$f":"IF('Picking rates'!$G13>0,'Yield & Sales calculation'!J13/('Picking rates'!$G13*'Other input expert'!I$9),0)","v":0},{"$f":"IF('Picking rates'!$G13>0,'Yield & Sales calculation'!K13/('Picking rates'!$G13*'Other input expert'!J$9),0)","v":0},{"$f":"IF('Picking rates'!$G13>0,'Yield & Sales calculation'!L13/('Picking rates'!$G13*'Other input expert'!K$9),0)","v":0},{"$f":"IF('Picking rates'!$G13>0,'Yield & Sales calculation'!M13/('Picking rates'!$G13*'Other input expert'!L$9),0)","v":0},{"$f":"IF('Picking rates'!$G13>0,'Yield & Sales calculation'!N13/('Picking rates'!$G13*'Other input expert'!M$9),0)","v":0}]
["Akebia quinata","Chocolate vine",{"$f":"IF('Picking rates'!$G14>0,'Yield & Sales calculation'!C14/('Picking rates'!$G14*'Other input expert'!B$9),0)","v":0},{"$f":"IF('Picking rates'!$G14>0,'Yield & Sales calculation'!D14/('Picking rates'!$G14*'Other input expert'!C$9),0)","v":0},{"$f":"IF('Picking rates'!$G14>0,'Yield & Sales calculation'!E14/('Picking rates'!$G14*'Other input expert'!D$9),0)","v":0},{"$f":"IF('Picking rates'!$G14>0,'Yield & Sales calculation'!F14/('Picking rates'!$G14*'Other input expert'!E$9),0)","v":0},{"$f":"IF('Picking rates'!$G14>0,'Yield & Sales calculation'!G14/('Picking rates'!$G14*'Other input expert'!F$9),0)","v":0},{"$f":"IF('Picking rates'!$G14>0,'Yield & Sales calculation'!H14/('Picking rates'!$G14*'Other input expert'!G$9),0)","v":0},{"$f":"IF('Picking rates'!$G14>0,'Yield & Sales calculation'!I14/('Picking rates'!$G14*'Other input expert'!H$9),0)","v":0},{"$f":"IF('Picking rates'!$G14>0,'Yield & Sales calculation'!J14/('Picking rates'!$G14*'Other input expert'!I$9),0)","v":0},{"$f":"IF('Picking rates'!$G14>0,'Yield & Sales calculation'!K14/('Picking rates'!$G14*'Other input expert'!J$9),0)","v":0},{"$f":"IF('Picking rates'!$G14>0,'Yield & Sales calculation'!L14/('Picking rates'!$G14*'Other input expert'!K$9),0)","v":0},{"$f":"IF('Picking rates'!$G14>0,'Yield & Sales calculation'!M14/('Picking rates'!$G14*'Other input expert'!L$9),0)","v":0},{"$f":"IF('Picking rates'!$G14>0,'Yield & Sales calculation'!N14/('Picking rates'!$G14*'Other input expert'!M$9),0)","v":0}]
["Alcea ficifolia","Hollyhocks",{"$f":"IF('Picking rates'!$G15>0,'Yield & Sales calculation'!C15/('Picking rates'!$G15*'Other input expert'!B$9),0)","v":0},{"$f":"IF('Picking rates'!$G15>0,'Yield & Sales calculation'!D15/('Picking rates'!$G15*'Other input expert'!C$9),0)","v":0},{"$f":"IF('Picking rates'!$G15>0,'Yield & Sales calculation'!E15/('Picking rates'!$G15*'Other input expert'!D$9),0)","v":0},{"$f":"IF('Picking rates'!$G15>0,'Yield & Sales calculation'!F15/('Picking rates'!$G15*'Other input expert'!E$9),0)","v":0},{"$f":"IF('Picking rates'!$G15>0,'Yield & Sales calculation'!G15/('Picking rates'!$G15*'Other input expert'!F$9),0)","v":0},{"$f":"IF('Picking rates'!$G15>0,'Yield & Sales calculation'!H15/('Picking rates'!$G15*'Other input expert'!G$9),0)","v":0},{"$f":"IF('Picking rates'!$G15>0,'Yield & Sales calculation'!I15/('Picking rates'!$G15*'Other input expert'!H$9),0)","v":0},{"$f":"IF('Picking rates'!$G15>0,'Yield & Sales calculation'!J15/('Picking rates'!$G15*'Other input expert'!I$9),0)","v":0},{"$f":"IF('Picking rates'!$G15>0,'Yield & Sales calculation'!K15/('Picking rates'!$G15*'Other input expert'!J$9),0)","v":0},{"$f":"IF('Picking rates'!$G15>0,'Yield & Sales calculation'!L15/('Picking rates'!$G15*'Other input expert'!K$9),0)","v":0},{"$f":"IF('Picking rates'!$G15>0,'Yield & Sales calculation'!M15/('Picking rates'!$G15*'Other input expert'!L$9),0)","v":0},{"$f":"IF('Picking rates'!$G15>0,'Yield & Sales calculation'!N15/('Picking rates'!$G15*'Other input expert'!M$9),0)","v":0}]
["Alchemilla xanthochlora","Lady's mantle",{"$f":"IF('Picking rates'!$G16>0,'Yield & Sales calculation'!C16/('Picking rates'!$G16*'Other input expert'!B$9),0)","v":0},{"$f":"IF('Picking rates'!$G16>0,'Yield & Sales calculation'!D16/('Picking rates'!$G16*'Other input expert'!C$9),0)","v":0},{"$f":"IF('Picking rates'!$G16>0,'Yield & Sales calculation'!E16/('Picking rates'!$G16*'Other input expert'!D$9),0)","v":0},{"$f":"IF('Picking rates'!$G16>0,'Yield & Sales calculation'!F16/('Picking rates'!$G16*'Other input expert'!E$9),0)","v":0},{"$f":"IF('Picking rates'!$G16>0,'Yield & Sales calculation'!G16/('Picking rates'!$G16*'Other input expert'!F$9),0)","v":0},{"$f":"IF('Picking rates'!$G16>0,'Yield & Sales calculation'!H16/('Picking rates'!$G16*'Other input expert'!G$9),0)","v":0},{"$f":"IF('Picking rates'!$G16>0,'Yield & Sales calculation'!I16/('Picking rates'!$G16*'Other input expert'!H$9),0)","v":0},{"$f":"IF('Picking rates'!$G16>0,'Yield & Sales calculation'!J16/('Picking rates'!$G16*'Other input expert'!I$9),0)","v":0},{"$f":"IF('Picking rates'!$G16>0,'Yield & Sales calculation'!K16/('Picking rates'!$G16*'Other input expert'!J$9),0)","v":0},{"$f":"IF('Picking rates'!$G16>0,'Yield & Sales calculation'!L16/('Picking rates'!$G16*'Other input expert'!K$9),0)","v":0},{"$f":"IF('Picking rates'!$G16>0,'Yield & Sales calculation'!M16/('Picking rates'!$G16*'Other input expert'!L$9),0)","v":0},{"$f":"IF('Picking rates'!$G16>0,'Yield & Sales calculation'!N16/('Picking rates'!$G16*'Other input expert'!M$9),0)","v":0}]
["Allium schoenoprasum","Chives",{"$f":"IF('Picking rates'!$G17>0,'Yield & Sales calculation'!C17/('Picking rates'!$G17*'Other input expert'!B$9),0)","v":0},{"$f":"IF('Picking rates'!$G17>0,'Yield & Sales calculation'!D17/('Picking rates'!$G17*'Other input expert'!C$9),0)","v":0},{"$f":"IF('Picking rates'!$G17>0,'Yield & Sales calculation'!E17/('Picking rates'!$G17*'Other input expert'!D$9),0)","v":0},{"$f":"IF('Picking rates'!$G17>0,'Yield & Sales calculation'!F17/('Picking rates'!$G17*'Other input expert'!E$9),0)","v":0},{"$f":"IF('Picking rates'!$G17>0,'Yield & Sales calculation'!G17/('Picking rates'!$G17*'Other input expert'!F$9),0)","v":0},{"$f":"IF('Picking rates'!$G17>0,'Yield & Sales calculation'!H17/('Picking rates'!$G17*'Other input expert'!G$9),0)","v":0},{"$f":"IF('Picking rates'!$G17>0,'Yield & Sales calculation'!I17/('Picking rates'!$G17*'Other input expert'!H$9),0)","v":0},{"$f":"IF('Picking rates'!$G17>0,'Yield & Sales calculation'!J17/('Picking rates'!$G17*'Other input expert'!I$9),0)","v":0},{"$f":"IF('Picking rates'!$G17>0,'Yield & Sales calculation'!K17/('Picking rates'!$G17*'Other input expert'!J$9),0)","v":0},{"$f":"IF('Picking rates'!$G17>0,'Yield & Sales calculation'!L17/('Picking rates'!$G17*'Other input expert'!K$9),0)","v":0},{"$f":"IF('Picking rates'!$G17>0,'Yield & Sales calculation'!M17/('Picking rates'!$G17*'Other input expert'!L$9),0)","v":0},{"$f":"IF('Picking rates'!$G17>0,'Yield & Sales calculation'!N17/('Picking rates'!$G17*'Other input expert'!M$9),0)","v":0}]
["Allium Ursinum","Wild garlic",{"$f":"IF('Picking rates'!$G18>0,'Yield & Sales calculation'!C18/('Picking rates'!$G18*'Other input expert'!B$9),0)","v":0},{"$f":"IF('Picking rates'!$G18>0,'Yield & Sales calculation'!D18/('Picking rates'!$G18*'Other input expert'!C$9),0)","v":0},{"$f":"IF('Picking rates'!$G18>0,'Yield & Sales calculation'!E18/('Picking rates'!$G18*'Other input expert'!D$9),0)","v":0},{"$f":"IF('Picking rates'!$G18>0,'Yield & Sales calculation'!F18/('Picking rates'!$G18*'Other input expert'!E$9),0)","v":0},{"$f":"IF('Picking rates'!$G18>0,'Yield & Sales calculation'!G18/('Picking rates'!$G18*'Other input expert'!F$9),0)","v":0},{"$f":"IF('Picking rates'!$G18>0,'Yield & Sales calculation'!H18/('Picking rates'!$G18*'Other input expert'!G$9),0)","v":0},{"$f":"IF('Picking rates'!$G18>0,'Yield & Sales calculation'!I18/('Picking rates'!$G18*'Other input expert'!H$9),0)","v":0},{"$f":"IF('Picking rates'!$G18>0,'Yield & Sales calculation'!J18/('Picking rates'!$G18*'Other input expert'!I$9),0)","v":0},{"$f":"IF('Picking rates'!$G18>0,'Yield & Sales calculation'!K18/('Picking rates'!$G18*'Other input expert'!J$9),0)","v":0},{"$f":"IF('Picking rates'!$G18>0,'Yield & Sales calculation'!L18/('Picking rates'!$G18*'Other input expert'!K$9),0)","v":0},{"$f":"IF('Picking rates'!$G18>0,'Yield & Sales calculation'!M18/('Picking rates'!$G18*'Other input expert'!L$9),0)","v":0},{"$f":"IF('Picking rates'!$G18>0,'Yield & Sales calculation'!N18/('Picking rates'!$G18*'Other input expert'!M$9),0)","v":0}]
["Alnus cordata","Italian alder",{"$f":"IF('Picking rates'!$G19>0,'Yield & Sales calculation'!C19/('Picking rates'!$G19*'Other input expert'!B$9),0)","v":0},{"$f":"IF('Picking rates'!$G19>0,'Yield & Sales calculation'!D19/('Picking rates'!$G19*'Other input expert'!C$9),0)","v":0},{"$f":"IF('Picking rates'!$G19>0,'Yield & Sales calculation'!E19/('Picking rates'!$G19*'Other input expert'!D$9),0)","v":0},{"$f":"IF('Picking rates'!$G19>0,'Yield & Sales calculation'!F19/('Picking rates'!$G19*'Other input expert'!E$9),0)","v":0},{"$f":"IF('Picking rates'!$G19>0,'Yield & Sales calculation'!G19/('Picking rates'!$G19*'Other input expert'!F$9),0)","v":0},{"$f":"IF('Picking rates'!$G19>0,'Yield & Sales calculation'!H19/('Picking rates'!$G19*'Other input expert'!G$9),0)","v":0},{"$f":"IF('Picking rates'!$G19>0,'Yield & Sales calculation'!I19/('Picking rates'!$G19*'Other input expert'!H$9),0)","v":0},{"$f":"IF('Picking rates'!$G19>0,'Yield & Sales calculation'!J19/('Picking rates'!$G19*'Other input expert'!I$9),0)","v":0},{"$f":"IF('Picking rates'!$G19>0,'Yield & Sales calculation'!K19/('Picking rates'!$G19*'Other input expert'!J$9),0)","v":0},{"$f":"IF('Picking rates'!$G19>0,'Yield & Sales calculation'!L19/('Picking rates'!$G19*'Other input expert'!K$9),0)","v":0},{"$f":"IF('Picking rates'!$G19>0,'Yield & Sales calculation'!M19/('Picking rates'!$G19*'Other input expert'!L$9),0)","v":0},{"$f":"IF('Picking rates'!$G19>0,'Yield & Sales calculation'!N19/('Picking rates'!$G19*'Other input expert'!M$9),0)","v":0}]
["Alnus glutinosa","European alder",{"$f":"IF('Picking rates'!$G20>0,'Yield & Sales calculation'!C20/('Picking rates'!$G20*'Other input expert'!B$9),0)","v":0},{"$f":"IF('Picking rates'!$G20>0,'Yield & Sales calculation'!D20/('Picking rates'!$G20*'Other input expert'!C$9),0)","v":0},{"$f":"IF('Picking rates'!$G20>0,'Yield & Sales calculation'!E20/('Picking rates'!$G20*'Other input expert'!D$9),0)","v":0},{"$f":"IF('Picking rates'!$G20>0,'Yield & Sales calculation'!F20/('Picking rates'!$G20*'Other input expert'!E$9),0)","v":0},{"$f":"IF('Picking rates'!$G20>0,'Yield & Sales calculation'!G20/('Picking rates'!$G20*'Other input expert'!F$9),0)","v":0},{"$f":"IF('Picking rates'!$G20>0,'Yield & Sales calculation'!H20/('Picking rates'!$G20*'Other input expert'!G$9),0)","v":0},{"$f":"IF('Picking rates'!$G20>0,'Yield & Sales calculation'!I20/('Picking rates'!$G20*'Other input expert'!H$9),0)","v":0},{"$f":"IF('Picking rates'!$G20>0,'Yield & Sales calculation'!J20/('Picking rates'!$G20*'Other input expert'!I$9),0)","v":0},{"$f":"IF('Picking rates'!$G20>0,'Yield & Sales calculation'!K20/('Picking rates'!$G20*'Other input expert'!J$9),0)","v":0},{"$f":"IF('Picking rates'!$G20>0,'Yield & Sales calculation'!L20/('Picking rates'!$G20*'Other input expert'!K$9),0)","v":0},{"$f":"IF('Picking rates'!$G20>0,'Yield & Sales calculation'!M20/('Picking rates'!$G20*'Other input expert'!L$9),0)","v":0},{"$f":"IF('Picking rates'!$G20>0,'Yield & Sales calculation'!N20/('Picking rates'!$G20*'Other input expert'!M$9),0)","v":0}]
["Alnus incana","Gray alder",{"$f":"IF('Picking rates'!$G21>0,'Yield & Sales calculation'!C21/('Picking rates'!$G21*'Other input expert'!B$9),0)","v":0},{"$f":"IF('Picking rates'!$G21>0,'Yield & Sales calculation'!D21/('Picking rates'!$G21*'Other input expert'!C$9),0)","v":0},{"$f":"IF('Picking rates'!$G21>0,'Yield & Sales calculation'!E21/('Picking rates'!$G21*'Other input expert'!D$9),0)","v":0},{"$f":"IF('Picking rates'!$G21>0,'Yield & Sales calculation'!F21/('Picking rates'!$G21*'Other input expert'!E$9),0)","v":0},{"$f":"IF('Picking rates'!$G21>0,'Yield & Sales calculation'!G21/('Picking rates'!$G21*'Other input expert'!F$9),0)","v":0},{"$f":"IF('Picking rates'!$G21>0,'Yield & Sales calculation'!H21/('Picking rates'!$G21*'Other input expert'!G$9),0)","v":0},{"$f":"IF('Picking rates'!$G21>0,'Yield & Sales calculation'!I21/('Picking rates'!$G21*'Other input expert'!H$9),0)","v":0},{"$f":"IF('Picking rates'!$G21>0,'Yield & Sales calculation'!J21/('Picking rates'!$G21*'Other input expert'!I$9),0)","v":0},{"$f":"IF('Picking rates'!$G21>0,'Yield & Sales calculation'!K21/('Picking rates'!$G21*'Other input expert'!J$9),0)","v":0},{"$f":"IF('Picking rates'!$G21>0,'Yield & Sales calculation'!L21/('Picking rates'!$G21*'Other input expert'!K$9),0)","v":0},{"$f":"IF('Picking rates'!$G21>0,'Yield & Sales calculation'!M21/('Picking rates'!$G21*'Other input expert'!L$9),0)","v":0},{"$f":"IF('Picking rates'!$G21>0,'Yield & Sales calculation'!N21/('Picking rates'!$G21*'Other input expert'!M$9),0)","v":0}]
["Aloysia citrodora","Lemon verbena",{"$f":"IF('Picking rates'!$G22>0,'Yield & Sales calculation'!C22/('Picking rates'!$G22*'Other input expert'!B$9),0)","v":0},{"$f":"IF('Picking rates'!$G22>0,'Yield & Sales calculation'!D22/('Picking rates'!$G22*'Other input expert'!C$9),0)","v":0},{"$f":"IF('Picking rates'!$G22>0,'Yield & Sales calculation'!E22/('Picking rates'!$G22*'Other input expert'!D$9),0)","v":0},{"$f":"IF('Picking rates'!$G22>0,'Yield & Sales calculation'!F22/('Picking rates'!$G22*'Other input expert'!E$9),0)","v":0},{"$f":"IF('Picking rates'!$G22>0,'Yield & Sales calculation'!G22/('Picking rates'!$G22*'Other input expert'!F$9),0)","v":0},{"$f":"IF('Picking rates'!$G22>0,'Yield & Sales calculation'!H22/('Picking rates'!$G22*'Other input expert'!G$9),0)","v":0},{"$f":"IF('Picking rates'!$G22>0,'Yield & Sales calculation'!I22/('Picking rates'!$G22*'Other input expert'!H$9),0)","v":0},{"$f":"IF('Picking rates'!$G22>0,'Yield & Sales calculation'!J22/('Picking rates'!$G22*'Other input expert'!I$9),0)","v":0},{"$f":"IF('Picking rates'!$G22>0,'Yield & Sales calculation'!K22/('Picking rates'!$G22*'Other input expert'!J$9),0)","v":0},{"$f":"IF('Picking rates'!$G22>0,'Yield & Sales calculation'!L22/('Picking rates'!$G22*'Other input expert'!K$9),0)","v":0},{"$f":"IF('Picking rates'!$G22>0,'Yield & Sales calculation'!M22/('Picking rates'!$G22*'Other input expert'!L$9),0)","v":0},{"$f":"IF('Picking rates'!$G22>0,'Yield & Sales calculation'!N22/('Picking rates'!$G22*'Other input expert'!M$9),0)","v":0}]
["Amelanchier alnifolia","Saskatoon serviceberry",{"$f":"IF('Picking rates'!$G23>0,'Yield & Sales calculation'!C23/('Picking rates'!$G23*'Other input expert'!B$9),0)","v":0},{"$f":"IF('Picking rates'!$G23>0,'Yield & Sales calculation'!D23/('Picking rates'!$G23*'Other input expert'!C$9),0)","v":0},{"$f":"IF('Picking rates'!$G23>0,'Yield & Sales calculation'!E23/('Picking rates'!$G23*'Other input expert'!D$9),0)","v":0},{"$f":"IF('Picking rates'!$G23>0,'Yield & Sales calculation'!F23/('Picking rates'!$G23*'Other input expert'!E$9),0)","v":0},{"$f":"IF('Picking rates'!$G23>0,'Yield & Sales calculation'!G23/('Picking rates'!$G23*'Other input expert'!F$9),0)","v":0},{"$f":"IF('Picking rates'!$G23>0,'Yield & Sales calculation'!H23/('Picking rates'!$G23*'Other input expert'!G$9),0)","v":0},{"$f":"IF('Picking rates'!$G23>0,'Yield & Sales calculation'!I23/('Picking rates'!$G23*'Other input expert'!H$9),0)","v":0},{"$f":"IF('Picking rates'!$G23>0,'Yield & Sales calculation'!J23/('Picking rates'!$G23*'Other input expert'!I$9),0)","v":0},{"$f":"IF('Picking rates'!$G23>0,'Yield & Sales calculation'!K23/('Picking rates'!$G23*'Other input expert'!J$9),0)","v":0},{"$f":"IF('Picking rates'!$G23>0,'Yield & Sales calculation'!L23/('Picking rates'!$G23*'Other input expert'!K$9),0)","v":0},{"$f":"IF('Picking rates'!$G23>0,'Yield & Sales calculation'!M23/('Picking rates'!$G23*'Other input expert'!L$9),0)","v":0},{"$f":"IF('Picking rates'!$G23>0,'Yield & Sales calculation'!N23/('Picking rates'!$G23*'Other input expert'!M$9),0)","v":0}]
["Amelanchier laevis","serviceberry",{"$f":"IF('Picking rates'!$G24>0,'Yield & Sales calculation'!C24/('Picking rates'!$G24*'Other input expert'!B$9),0)","v":0},{"$f":"IF('Picking rates'!$G24>0,'Yield & Sales calculation'!D24/('Picking rates'!$G24*'Other input expert'!C$9),0)","v":0},{"$f":"IF('Picking rates'!$G24>0,'Yield & Sales calculation'!E24/('Picking rates'!$G24*'Other input expert'!D$9),0)","v":0},{"$f":"IF('Picking rates'!$G24>0,'Yield & Sales calculation'!F24/('Picking rates'!$G24*'Other input expert'!E$9),0)","v":0},{"$f":"IF('Picking rates'!$G24>0,'Yield & Sales calculation'!G24/('Picking rates'!$G24*'Other input expert'!F$9),0)","v":0},{"$f":"IF('Picking rates'!$G24>0,'Yield & Sales calculation'!H24/('Picking rates'!$G24*'Other input expert'!G$9),0)","v":0},{"$f":"IF('Picking rates'!$G24>0,'Yield & Sales calculation'!I24/('Picking rates'!$G24*'Other input expert'!H$9),0)","v":0},{"$f":"IF('Picking rates'!$G24>0,'Yield & Sales calculation'!J24/('Picking rates'!$G24*'Other input expert'!I$9),0)","v":0},{"$f":"IF('Picking rates'!$G24>0,'Yield & Sales calculation'!K24/('Picking rates'!$G24*'Other input expert'!J$9),0)","v":0},{"$f":"IF('Picking rates'!$G24>0,'Yield & Sales calculation'!L24/('Picking rates'!$G24*'Other input expert'!K$9),0)","v":0},{"$f":"IF('Picking rates'!$G24>0,'Yield & Sales calculation'!M24/('Picking rates'!$G24*'Other input expert'!L$9),0)","v":0},{"$f":"IF('Picking rates'!$G24>0,'Yield & Sales calculation'!N24/('Picking rates'!$G24*'Other input expert'!M$9),0)","v":0}]
["Amelanchier lamarckii","serviceberry",{"$f":"IF('Picking rates'!$G25>0,'Yield & Sales calculation'!C25/('Picking rates'!$G25*'Other input expert'!B$9),0)","v":0},{"$f":"IF('Picking rates'!$G25>0,'Yield & Sales calculation'!D25/('Picking rates'!$G25*'Other input expert'!C$9),0)","v":0},{"$f":"IF('Picking rates'!$G25>0,'Yield & Sales calculation'!E25/('Picking rates'!$G25*'Other input expert'!D$9),0)","v":0},{"$f":"IF('Picking rates'!$G25>0,'Yield & Sales calculation'!F25/('Picking rates'!$G25*'Other input expert'!E$9),0)","v":0},{"$f":"IF('Picking rates'!$G25>0,'Yield & Sales calculation'!G25/('Picking rates'!$G25*'Other input expert'!F$9),0)","v":0},{"$f":"IF('Picking rates'!$G25>0,'Yield & Sales calculation'!H25/('Picking rates'!$G25*'Other input expert'!G$9),0)","v":0},{"$f":"IF('Picking rates'!$G25>0,'Yield & Sales calculation'!I25/('Picking rates'!$G25*'Other input expert'!H$9),0)","v":0},{"$f":"IF('Picking rates'!$G25>0,'Yield & Sales calculation'!J25/('Picking rates'!$G25*'Other input expert'!I$9),0)","v":0},{"$f":"IF('Picking rates'!$G25>0,'Yield & Sales calculation'!K25/('Picking rates'!$G25*'Other input expert'!J$9),0)","v":0},{"$f":"IF('Picking rates'!$G25>0,'Yield & Sales calculation'!L25/('Picking rates'!$G25*'Other input expert'!K$9),0)","v":0},{"$f":"IF('Picking rates'!$G25>0,'Yield & Sales calculation'!M25/('Picking rates'!$G25*'Other input expert'!L$9),0)","v":0},{"$f":"IF('Picking rates'!$G25>0,'Yield & Sales calculation'!N25/('Picking rates'!$G25*'Other input expert'!M$9),0)","v":0}]
["Amorpha fruticosa","False indigo",{"$f":"IF('Picking rates'!$G26>0,'Yield & Sales calculation'!C26/('Picking rates'!$G26*'Other input expert'!B$9),0)","v":0},{"$f":"IF('Picking rates'!$G26>0,'Yield & Sales calculation'!D26/('Picking rates'!$G26*'Other input expert'!C$9),0)","v":0},{"$f":"IF('Picking rates'!$G26>0,'Yield & Sales calculation'!E26/('Picking rates'!$G26*'Other input expert'!D$9),0)","v":0},{"$f":"IF('Picking rates'!$G26>0,'Yield & Sales calculation'!F26/('Picking rates'!$G26*'Other input expert'!E$9),0)","v":0},{"$f":"IF('Picking rates'!$G26>0,'Yield & Sales calculation'!G26/('Picking rates'!$G26*'Other input expert'!F$9),0)","v":0},{"$f":"IF('Picking rates'!$G26>0,'Yield & Sales calculation'!H26/('Picking rates'!$G26*'Other input expert'!G$9),0)","v":0},{"$f":"IF('Picking rates'!$G26>0,'Yield & Sales calculation'!I26/('Picking rates'!$G26*'Other input expert'!H$9),0)","v":0},{"$f":"IF('Picking rates'!$G26>0,'Yield & Sales calculation'!J26/('Picking rates'!$G26*'Other input expert'!I$9),0)","v":0},{"$f":"IF('Picking rates'!$G26>0,'Yield & Sales calculation'!K26/('Picking rates'!$G26*'Other input expert'!J$9),0)","v":0},{"$f":"IF('Picking rates'!$G26>0,'Yield & Sales calculation'!L26/('Picking rates'!$G26*'Other input expert'!K$9),0)","v":0},{"$f":"IF('Picking rates'!$G26>0,'Yield & Sales calculation'!M26/('Picking rates'!$G26*'Other input expert'!L$9),0)","v":0},{"$f":"IF('Picking rates'!$G26>0,'Yield & Sales calculation'!N26/('Picking rates'!$G26*'Other input expert'!M$9),0)","v":0}]
["Angelica archangelica","Norwegian angelica",{"$f":"IF('Picking rates'!$G27>0,'Yield & Sales calculation'!C27/('Picking rates'!$G27*'Other input expert'!B$9),0)","v":0},{"$f":"IF('Picking rates'!$G27>0,'Yield & Sales calculation'!D27/('Picking rates'!$G27*'Other input expert'!C$9),0)","v":0},{"$f":"IF('Picking rates'!$G27>0,'Yield & Sales calculation'!E27/('Picking rates'!$G27*'Other input expert'!D$9),0)","v":0},{"$f":"IF('Picking rates'!$G27>0,'Yield & Sales calculation'!F27/('Picking rates'!$G27*'Other input expert'!E$9),0)","v":0},{"$f":"IF('Picking rates'!$G27>0,'Yield & Sales calculation'!G27/('Picking rates'!$G27*'Other input expert'!F$9),0)","v":0},{"$f":"IF('Picking rates'!$G27>0,'Yield & Sales calculation'!H27/('Picking rates'!$G27*'Other input expert'!G$9),0)","v":0},{"$f":"IF('Picking rates'!$G27>0,'Yield & Sales calculation'!I27/('Picking rates'!$G27*'Other input expert'!H$9),0)","v":0},{"$f":"IF('Picking rates'!$G27>0,'Yield & Sales calculation'!J27/('Picking rates'!$G27*'Other input expert'!I$9),0)","v":0},{"$f":"IF('Picking rates'!$G27>0,'Yield & Sales calculation'!K27/('Picking rates'!$G27*'Other input expert'!J$9),0)","v":0},{"$f":"IF('Picking rates'!$G27>0,'Yield & Sales calculation'!L27/('Picking rates'!$G27*'Other input expert'!K$9),0)","v":0},{"$f":"IF('Picking rates'!$G27>0,'Yield & Sales calculation'!M27/('Picking rates'!$G27*'Other input expert'!L$9),0)","v":0},{"$f":"IF('Picking rates'!$G27>0,'Yield & Sales calculation'!N27/('Picking rates'!$G27*'Other input expert'!M$9),0)","v":0}]
["Aralia elata","Angelica tree",{"$f":"IF('Picking rates'!$G28>0,'Yield & Sales calculation'!C28/('Picking rates'!$G28*'Other input expert'!B$9),0)","v":0},{"$f":"IF('Picking rates'!$G28>0,'Yield & Sales calculation'!D28/('Picking rates'!$G28*'Other input expert'!C$9),0)","v":0},{"$f":"IF('Picking rates'!$G28>0,'Yield & Sales calculation'!E28/('Picking rates'!$G28*'Other input expert'!D$9),0)","v":0},{"$f":"IF('Picking rates'!$G28>0,'Yield & Sales calculation'!F28/('Picking rates'!$G28*'Other input expert'!E$9),0)","v":0},{"$f":"IF('Picking rates'!$G28>0,'Yield & Sales calculation'!G28/('Picking rates'!$G28*'Other input expert'!F$9),0)","v":0},{"$f":"IF('Picking rates'!$G28>0,'Yield & Sales calculation'!H28/('Picking rates'!$G28*'Other input expert'!G$9),0)","v":0},{"$f":"IF('Picking rates'!$G28>0,'Yield & Sales calculation'!I28/('Picking rates'!$G28*'Other input expert'!H$9),0)","v":0},{"$f":"IF('Picking rates'!$G28>0,'Yield & Sales calculation'!J28/('Picking rates'!$G28*'Other input expert'!I$9),0)","v":0},{"$f":"IF('Picking rates'!$G28>0,'Yield & Sales calculation'!K28/('Picking rates'!$G28*'Other input expert'!J$9),0)","v":0},{"$f":"IF('Picking rates'!$G28>0,'Yield & Sales calculation'!L28/('Picking rates'!$G28*'Other input expert'!K$9),0)","v":0},{"$f":"IF('Picking rates'!$G28>0,'Yield & Sales calculation'!M28/('Picking rates'!$G28*'Other input expert'!L$9),0)","v":0},{"$f":"IF('Picking rates'!$G28>0,'Yield & Sales calculation'!N28/('Picking rates'!$G28*'Other input expert'!M$9),0)","v":0}]
["Araucaria araucana","Monkey puzzle",{"$f":"IF('Picking rates'!$G29>0,'Yield & Sales calculation'!C29/('Picking rates'!$G29*'Other input expert'!B$9),0)","v":0},{"$f":"IF('Picking rates'!$G29>0,'Yield & Sales calculation'!D29/('Picking rates'!$G29*'Other input expert'!C$9),0)","v":0},{"$f":"IF('Picking rates'!$G29>0,'Yield & Sales calculation'!E29/('Picking rates'!$G29*'Other input expert'!D$9),0)","v":0},{"$f":"IF('Picking rates'!$G29>0,'Yield & Sales calculation'!F29/('Picking rates'!$G29*'Other input expert'!E$9),0)","v":0},{"$f":"IF('Picking rates'!$G29>0,'Yield & Sales calculation'!G29/('Picking rates'!$G29*'Other input expert'!F$9),0)","v":0},{"$f":"IF('Picking rates'!$G29>0,'Yield & Sales calculation'!H29/('Picking rates'!$G29*'Other input expert'!G$9),0)","v":0},{"$f":"IF('Picking rates'!$G29>0,'Yield & Sales calculation'!I29/('Picking rates'!$G29*'Other input expert'!H$9),0)","v":0},{"$f":"IF('Picking rates'!$G29>0,'Yield & Sales calculation'!J29/('Picking rates'!$G29*'Other input expert'!I$9),0)","v":0},{"$f":"IF('Picking rates'!$G29>0,'Yield & Sales calculation'!K29/('Picking rates'!$G29*'Other input expert'!J$9),0)","v":0},{"$f":"IF('Picking rates'!$G29>0,'Yield & Sales calculation'!L29/('Picking rates'!$G29*'Other input expert'!K$9),0)","v":0},{"$f":"IF('Picking rates'!$G29>0,'Yield & Sales calculation'!M29/('Picking rates'!$G29*'Other input expert'!L$9),0)","v":0},{"$f":"IF('Picking rates'!$G29>0,'Yield & Sales calculation'!N29/('Picking rates'!$G29*'Other input expert'!M$9),0)","v":0}]
["Arbutus unedo","Strawberry tree",{"$f":"IF('Picking rates'!$G30>0,'Yield & Sales calculation'!C30/('Picking rates'!$G30*'Other input expert'!B$9),0)","v":0},{"$f":"IF('Picking rates'!$G30>0,'Yield & Sales calculation'!D30/('Picking rates'!$G30*'Other input expert'!C$9),0)","v":0},{"$f":"IF('Picking rates'!$G30>0,'Yield & Sales calculation'!E30/('Picking rates'!$G30*'Other input expert'!D$9),0)","v":0},{"$f":"IF('Picking rates'!$G30>0,'Yield & Sales calculation'!F30/('Picking rates'!$G30*'Other input expert'!E$9),0)","v":0},{"$f":"IF('Picking rates'!$G30>0,'Yield & Sales calculation'!G30/('Picking rates'!$G30*'Other input expert'!F$9),0)","v":0},{"$f":"IF('Picking rates'!$G30>0,'Yield & Sales calculation'!H30/('Picking rates'!$G30*'Other input expert'!G$9),0)","v":0},{"$f":"IF('Picking rates'!$G30>0,'Yield & Sales calculation'!I30/('Picking rates'!$G30*'Other input expert'!H$9),0)","v":0},{"$f":"IF('Picking rates'!$G30>0,'Yield & Sales calculation'!J30/('Picking rates'!$G30*'Other input expert'!I$9),0)","v":0},{"$f":"IF('Picking rates'!$G30>0,'Yield & Sales calculation'!K30/('Picking rates'!$G30*'Other input expert'!J$9),0)","v":0},{"$f":"IF('Picking rates'!$G30>0,'Yield & Sales calculation'!L30/('Picking rates'!$G30*'Other input expert'!K$9),0)","v":0},{"$f":"IF('Picking rates'!$G30>0,'Yield & Sales calculation'!M30/('Picking rates'!$G30*'Other input expert'!L$9),0)","v":0},{"$f":"IF('Picking rates'!$G30>0,'Yield & Sales calculation'!N30/('Picking rates'!$G30*'Other input expert'!M$9),0)","v":0}]
["Arnica spp.","Arnica",{"$f":"IF('Picking rates'!$G31>0,'Yield & Sales calculation'!C31/('Picking rates'!$G31*'Other input expert'!B$9),0)","v":0},{"$f":"IF('Picking rates'!$G31>0,'Yield & Sales calculation'!D31/('Picking rates'!$G31*'Other input expert'!C$9),0)","v":0},{"$f":"IF('Picking rates'!$G31>0,'Yield & Sales calculation'!E31/('Picking rates'!$G31*'Other input expert'!D$9),0)","v":0},{"$f":"IF('Picking rates'!$G31>0,'Yield & Sales calculation'!F31/('Picking rates'!$G31*'Other input expert'!E$9),0)","v":0},{"$f":"IF('Picking rates'!$G31>0,'Yield & Sales calculation'!G31/('Picking rates'!$G31*'Other input expert'!F$9),0)","v":0},{"$f":"IF('Picking rates'!$G31>0,'Yield & Sales calculation'!H31/('Picking rates'!$G31*'Other input expert'!G$9),0)","v":0},{"$f":"IF('Picking rates'!$G31>0,'Yield & Sales calculation'!I31/('Picking rates'!$G31*'Other input expert'!H$9),0)","v":0},{"$f":"IF('Picking rates'!$G31>0,'Yield & Sales calculation'!J31/('Picking rates'!$G31*'Other input expert'!I$9),0)","v":0},{"$f":"IF('Picking rates'!$G31>0,'Yield & Sales calculation'!K31/('Picking rates'!$G31*'Other input expert'!J$9),0)","v":0},{"$f":"IF('Picking rates'!$G31>0,'Yield & Sales calculation'!L31/('Picking rates'!$G31*'Other input expert'!K$9),0)","v":0},{"$f":"IF('Picking rates'!$G31>0,'Yield & Sales calculation'!M31/('Picking rates'!$G31*'Other input expert'!L$9),0)","v":0},{"$f":"IF('Picking rates'!$G31>0,'Yield & Sales calculation'!N31/('Picking rates'!$G31*'Other input expert'!M$9),0)","v":0}]
["Aronia arbutifolia","Chokeberry",{"$f":"IF('Picking rates'!$G32>0,'Yield & Sales calculation'!C32/('Picking rates'!$G32*'Other input expert'!B$9),0)","v":0},{"$f":"IF('Picking rates'!$G32>0,'Yield & Sales calculation'!D32/('Picking rates'!$G32*'Other input expert'!C$9),0)","v":0},{"$f":"IF('Picking rates'!$G32>0,'Yield & Sales calculation'!E32/('Picking rates'!$G32*'Other input expert'!D$9),0)","v":0},{"$f":"IF('Picking rates'!$G32>0,'Yield & Sales calculation'!F32/('Picking rates'!$G32*'Other input expert'!E$9),0)","v":0},{"$f":"IF('Picking rates'!$G32>0,'Yield & Sales calculation'!G32/('Picking rates'!$G32*'Other input expert'!F$9),0)","v":0},{"$f":"IF('Picking rates'!$G32>0,'Yield & Sales calculation'!H32/('Picking rates'!$G32*'Other input expert'!G$9),0)","v":0},{"$f":"IF('Picking rates'!$G32>0,'Yield & Sales calculation'!I32/('Picking rates'!$G32*'Other input expert'!H$9),0)","v":0},{"$f":"IF('Picking rates'!$G32>0,'Yield & Sales calculation'!J32/('Picking rates'!$G32*'Other input expert'!I$9),0)","v":0},{"$f":"IF('Picking rates'!$G32>0,'Yield & Sales calculation'!K32/('Picking rates'!$G32*'Other input expert'!J$9),0)","v":0},{"$f":"IF('Picking rates'!$G32>0,'Yield & Sales calculation'!L32/('Picking rates'!$G32*'Other input expert'!K$9),0)","v":0},{"$f":"IF('Picking rates'!$G32>0,'Yield & Sales calculation'!M32/('Picking rates'!$G32*'Other input expert'!L$9),0)","v":0},{"$f":"IF('Picking rates'!$G32>0,'Yield & Sales calculation'!N32/('Picking rates'!$G32*'Other input expert'!M$9),0)","v":0}]
["Aronia melanocarpa","Chokeberry",{"$f":"IF('Picking rates'!$G33>0,'Yield & Sales calculation'!C33/('Picking rates'!$G33*'Other input expert'!B$9),0)","v":0},{"$f":"IF('Picking rates'!$G33>0,'Yield & Sales calculation'!D33/('Picking rates'!$G33*'Other input expert'!C$9),0)","v":0},{"$f":"IF('Picking rates'!$G33>0,'Yield & Sales calculation'!E33/('Picking rates'!$G33*'Other input expert'!D$9),0)","v":0},{"$f":"IF('Picking rates'!$G33>0,'Yield & Sales calculation'!F33/('Picking rates'!$G33*'Other input expert'!E$9),0)","v":0},{"$f":"IF('Picking rates'!$G33>0,'Yield & Sales calculation'!G33/('Picking rates'!$G33*'Other input expert'!F$9),0)","v":0},{"$f":"IF('Picking rates'!$G33>0,'Yield & Sales calculation'!H33/('Picking rates'!$G33*'Other input expert'!G$9),0)","v":0},{"$f":"IF('Picking rates'!$G33>0,'Yield & Sales calculation'!I33/('Picking rates'!$G33*'Other input expert'!H$9),0)","v":0},{"$f":"IF('Picking rates'!$G33>0,'Yield & Sales calculation'!J33/('Picking rates'!$G33*'Other input expert'!I$9),0)","v":0},{"$f":"IF('Picking rates'!$G33>0,'Yield & Sales calculation'!K33/('Picking rates'!$G33*'Other input expert'!J$9),0)","v":0},{"$f":"IF('Picking rates'!$G33>0,'Yield & Sales calculation'!L33/('Picking rates'!$G33*'Other input expert'!K$9),0)","v":0},{"$f":"IF('Picking rates'!$G33>0,'Yield & Sales calculation'!M33/('Picking rates'!$G33*'Other input expert'!L$9),0)","v":0},{"$f":"IF('Picking rates'!$G33>0,'Yield & Sales calculation'!N33/('Picking rates'!$G33*'Other input expert'!M$9),0)","v":0}]
["Aronia prunifolia","Chokeberry",{"$f":"IF('Picking rates'!$G34>0,'Yield & Sales calculation'!C34/('Picking rates'!$G34*'Other input expert'!B$9),0)","v":0},{"$f":"IF('Picking rates'!$G34>0,'Yield & Sales calculation'!D34/('Picking rates'!$G34*'Other input expert'!C$9),0)","v":0},{"$f":"IF('Picking rates'!$G34>0,'Yield & Sales calculation'!E34/('Picking rates'!$G34*'Other input expert'!D$9),0)","v":0},{"$f":"IF('Picking rates'!$G34>0,'Yield & Sales calculation'!F34/('Picking rates'!$G34*'Other input expert'!E$9),0)","v":0},{"$f":"IF('Picking rates'!$G34>0,'Yield & Sales calculation'!G34/('Picking rates'!$G34*'Other input expert'!F$9),0)","v":0},{"$f":"IF('Picking rates'!$G34>0,'Yield & Sales calculation'!H34/('Picking rates'!$G34*'Other input expert'!G$9),0)","v":0},{"$f":"IF('Picking rates'!$G34>0,'Yield & Sales calculation'!I34/('Picking rates'!$G34*'Other input expert'!H$9),0)","v":0},{"$f":"IF('Picking rates'!$G34>0,'Yield & Sales calculation'!J34/('Picking rates'!$G34*'Other input expert'!I$9),0)","v":0},{"$f":"IF('Picking rates'!$G34>0,'Yield & Sales calculation'!K34/('Picking rates'!$G34*'Other input expert'!J$9),0)","v":0},{"$f":"IF('Picking rates'!$G34>0,'Yield & Sales calculation'!L34/('Picking rates'!$G34*'Other input expert'!K$9),0)","v":0},{"$f":"IF('Picking rates'!$G34>0,'Yield & Sales calculation'!M34/('Picking rates'!$G34*'Other input expert'!L$9),0)","v":0},{"$f":"IF('Picking rates'!$G34>0,'Yield & Sales calculation'!N34/('Picking rates'!$G34*'Other input expert'!M$9),0)","v":0}]
["Artemisia abrotanum","Mugwort",{"$f":"IF('Picking rates'!$G35>0,'Yield & Sales calculation'!C35/('Picking rates'!$G35*'Other input expert'!B$9),0)","v":0},{"$f":"IF('Picking rates'!$G35>0,'Yield & Sales calculation'!D35/('Picking rates'!$G35*'Other input expert'!C$9),0)","v":0},{"$f":"IF('Picking rates'!$G35>0,'Yield & Sales calculation'!E35/('Picking rates'!$G35*'Other input expert'!D$9),0)","v":0},{"$f":"IF('Picking rates'!$G35>0,'Yield & Sales calculation'!F35/('Picking rates'!$G35*'Other input expert'!E$9),0)","v":0},{"$f":"IF('Picking rates'!$G35>0,'Yield & Sales calculation'!G35/('Picking rates'!$G35*'Other input expert'!F$9),0)","v":0},{"$f":"IF('Picking rates'!$G35>0,'Yield & Sales calculation'!H35/('Picking rates'!$G35*'Other input expert'!G$9),0)","v":0},{"$f":"IF('Picking rates'!$G35>0,'Yield & Sales calculation'!I35/('Picking rates'!$G35*'Other input expert'!H$9),0)","v":0},{"$f":"IF('Picking rates'!$G35>0,'Yield & Sales calculation'!J35/('Picking rates'!$G35*'Other input expert'!I$9),0)","v":0},{"$f":"IF('Picking rates'!$G35>0,'Yield & Sales calculation'!K35/('Picking rates'!$G35*'Other input expert'!J$9),0)","v":0},{"$f":"IF('Picking rates'!$G35>0,'Yield & Sales calculation'!L35/('Picking rates'!$G35*'Other input expert'!K$9),0)","v":0},{"$f":"IF('Picking rates'!$G35>0,'Yield & Sales calculation'!M35/('Picking rates'!$G35*'Other input expert'!L$9),0)","v":0},{"$f":"IF('Picking rates'!$G35>0,'Yield & Sales calculation'!N35/('Picking rates'!$G35*'Other input expert'!M$9),0)","v":0}]
["Artemisia dracunculus","Mugwort",{"$f":"IF('Picking rates'!$G36>0,'Yield & Sales calculation'!C36/('Picking rates'!$G36*'Other input expert'!B$9),0)","v":0},{"$f":"IF('Picking rates'!$G36>0,'Yield & Sales calculation'!D36/('Picking rates'!$G36*'Other input expert'!C$9),0)","v":0},{"$f":"IF('Picking rates'!$G36>0,'Yield & Sales calculation'!E36/('Picking rates'!$G36*'Other input expert'!D$9),0)","v":0},{"$f":"IF('Picking rates'!$G36>0,'Yield & Sales calculation'!F36/('Picking rates'!$G36*'Other input expert'!E$9),0)","v":0},{"$f":"IF('Picking rates'!$G36>0,'Yield & Sales calculation'!G36/('Picking rates'!$G36*'Other input expert'!F$9),0)","v":0},{"$f":"IF('Picking rates'!$G36>0,'Yield & Sales calculation'!H36/('Picking rates'!$G36*'Other input expert'!G$9),0)","v":0},{"$f":"IF('Picking rates'!$G36>0,'Yield & Sales calculation'!I36/('Picking rates'!$G36*'Other input expert'!H$9),0)","v":0},{"$f":"IF('Picking rates'!$G36>0,'Yield & Sales calculation'!J36/('Picking rates'!$G36*'Other input expert'!I$9),0)","v":0},{"$f":"IF('Picking rates'!$G36>0,'Yield & Sales calculation'!K36/('Picking rates'!$G36*'Other input expert'!J$9),0)","v":0},{"$f":"IF('Picking rates'!$G36>0,'Yield & Sales calculation'!L36/('Picking rates'!$G36*'Other input expert'!K$9),0)","v":0},{"$f":"IF('Picking rates'!$G36>0,'Yield & Sales calculation'!M36/('Picking rates'!$G36*'Other input expert'!L$9),0)","v":0},{"$f":"IF('Picking rates'!$G36>0,'Yield & Sales calculation'!N36/('Picking rates'!$G36*'Other input expert'!M$9),0)","v":0}]
["Artemisia moxa","Mugwort",{"$f":"IF('Picking rates'!$G37>0,'Yield & Sales calculation'!C37/('Picking rates'!$G37*'Other input expert'!B$9),0)","v":0},{"$f":"IF('Picking rates'!$G37>0,'Yield & Sales calculation'!D37/('Picking rates'!$G37*'Other input expert'!C$9),0)","v":0},{"$f":"IF('Picking rates'!$G37>0,'Yield & Sales calculation'!E37/('Picking rates'!$G37*'Other input expert'!D$9),0)","v":0},{"$f":"IF('Picking rates'!$G37>0,'Yield & Sales calculation'!F37/('Picking rates'!$G37*'Other input expert'!E$9),0)","v":0},{"$f":"IF('Picking rates'!$G37>0,'Yield & Sales calculation'!G37/('Picking rates'!$G37*'Other input expert'!F$9),0)","v":0},{"$f":"IF('Picking rates'!$G37>0,'Yield & Sales calculation'!H37/('Picking rates'!$G37*'Other input expert'!G$9),0)","v":0},{"$f":"IF('Picking rates'!$G37>0,'Yield & Sales calculation'!I37/('Picking rates'!$G37*'Other input expert'!H$9),0)","v":0},{"$f":"IF('Picking rates'!$G37>0,'Yield & Sales calculation'!J37/('Picking rates'!$G37*'Other input expert'!I$9),0)","v":0},{"$f":"IF('Picking rates'!$G37>0,'Yield & Sales calculation'!K37/('Picking rates'!$G37*'Other input expert'!J$9),0)","v":0},{"$f":"IF('Picking rates'!$G37>0,'Yield & Sales calculation'!L37/('Picking rates'!$G37*'Other input expert'!K$9),0)","v":0},{"$f":"IF('Picking rates'!$G37>0,'Yield & Sales calculation'!M37/('Picking rates'!$G37*'Other input expert'!L$9),0)","v":0},{"$f":"IF('Picking rates'!$G37>0,'Yield & Sales calculation'!N37/('Picking rates'!$G37*'Other input expert'!M$9),0)","v":0}]
["Asimina triloba","Pawpaw",{"$f":"IF('Picking rates'!$G38>0,'Yield & Sales calculation'!C38/('Picking rates'!$G38*'Other input expert'!B$9),0)","v":0},{"$f":"IF('Picking rates'!$G38>0,'Yield & Sales calculation'!D38/('Picking rates'!$G38*'Other input expert'!C$9),0)","v":0},{"$f":"IF('Picking rates'!$G38>0,'Yield & Sales calculation'!E38/('Picking rates'!$G38*'Other input expert'!D$9),0)","v":0},{"$f":"IF('Picking rates'!$G38>0,'Yield & Sales calculation'!F38/('Picking rates'!$G38*'Other input expert'!E$9),0)","v":0},{"$f":"IF('Picking rates'!$G38>0,'Yield & Sales calculation'!G38/('Picking rates'!$G38*'Other input expert'!F$9),0)","v":0},{"$f":"IF('Picking rates'!$G38>0,'Yield & Sales calculation'!H38/('Picking rates'!$G38*'Other input expert'!G$9),0)","v":0},{"$f":"IF('Picking rates'!$G38>0,'Yield & Sales calculation'!I38/('Picking rates'!$G38*'Other input expert'!H$9),0)","v":0},{"$f":"IF('Picking rates'!$G38>0,'Yield & Sales calculation'!J38/('Picking rates'!$G38*'Other input expert'!I$9),0)","v":0},{"$f":"IF('Picking rates'!$G38>0,'Yield & Sales calculation'!K38/('Picking rates'!$G38*'Other input expert'!J$9),0)","v":0},{"$f":"IF('Picking rates'!$G38>0,'Yield & Sales calculation'!L38/('Picking rates'!$G38*'Other input expert'!K$9),0)","v":0},{"$f":"IF('Picking rates'!$G38>0,'Yield & Sales calculation'!M38/('Picking rates'!$G38*'Other input expert'!L$9),0)","v":0},{"$f":"IF('Picking rates'!$G38>0,'Yield & Sales calculation'!N38/('Picking rates'!$G38*'Other input expert'!M$9),0)","v":0}]
["Berberis aristata","European barberry",{"$f":"IF('Picking rates'!$G39>0,'Yield & Sales calculation'!C39/('Picking rates'!$G39*'Other input expert'!B$9),0)","v":0},{"$f":"IF('Picking rates'!$G39>0,'Yield & Sales calculation'!D39/('Picking rates'!$G39*'Other input expert'!C$9),0)","v":0},{"$f":"IF('Picking rates'!$G39>0,'Yield & Sales calculation'!E39/('Picking rates'!$G39*'Other input expert'!D$9),0)","v":0},{"$f":"IF('Picking rates'!$G39>0,'Yield & Sales calculation'!F39/('Picking rates'!$G39*'Other input expert'!E$9),0)","v":0},{"$f":"IF('Picking rates'!$G39>0,'Yield & Sales calculation'!G39/('Picking rates'!$G39*'Other input expert'!F$9),0)","v":0},{"$f":"IF('Picking rates'!$G39>0,'Yield & Sales calculation'!H39/('Picking rates'!$G39*'Other input expert'!G$9),0)","v":0},{"$f":"IF('Picking rates'!$G39>0,'Yield & Sales calculation'!I39/('Picking rates'!$G39*'Other input expert'!H$9),0)","v":0},{"$f":"IF('Picking rates'!$G39>0,'Yield & Sales calculation'!J39/('Picking rates'!$G39*'Other input expert'!I$9),0)","v":0},{"$f":"IF('Picking rates'!$G39>0,'Yield & Sales calculation'!K39/('Picking rates'!$G39*'Other input expert'!J$9),0)","v":0},{"$f":"IF('Picking rates'!$G39>0,'Yield & Sales calculation'!L39/('Picking rates'!$G39*'Other input expert'!K$9),0)","v":0},{"$f":"IF('Picking rates'!$G39>0,'Yield & Sales calculation'!M39/('Picking rates'!$G39*'Other input expert'!L$9),0)","v":0},{"$f":"IF('Picking rates'!$G39>0,'Yield & Sales calculation'!N39/('Picking rates'!$G39*'Other input expert'!M$9),0)","v":0}]
["Berberis vulgaris","barberry",{"$f":"IF('Picking rates'!$G40>0,'Yield & Sales calculation'!C40/('Picking rates'!$G40*'Other input expert'!B$9),0)","v":0},{"$f":"IF('Picking rates'!$G40>0,'Yield & Sales calculation'!D40/('Picking rates'!$G40*'Other input expert'!C$9),0)","v":0},{"$f":"IF('Picking rates'!$G40>0,'Yield & Sales calculation'!E40/('Picking rates'!$G40*'Other input expert'!D$9),0)","v":0},{"$f":"IF('Picking rates'!$G40>0,'Yield & Sales calculation'!F40/('Picking rates'!$G40*'Other input expert'!E$9),0)","v":0},{"$f":"IF('Picking rates'!$G40>0,'Yield & Sales calculation'!G40/('Picking rates'!$G40*'Other input expert'!F$9),0)","v":0},{"$f":"IF('Picking rates'!$G40>0,'Yield & Sales calculation'!H40/('Picking rates'!$G40*'Other input expert'!G$9),0)","v":0},{"$f":"IF('Picking rates'!$G40>0,'Yield & Sales calculation'!I40/('Picking rates'!$G40*'Other input expert'!H$9),0)","v":0},{"$f":"IF('Picking rates'!$G40>0,'Yield & Sales calculation'!J40/('Picking rates'!$G40*'Other input expert'!I$9),0)","v":0},{"$f":"IF('Picking rates'!$G40>0,'Yield & Sales calculation'!K40/('Picking rates'!$G40*'Other input expert'!J$9),0)","v":0},{"$f":"IF('Picking rates'!$G40>0,'Yield & Sales calculation'!L40/('Picking rates'!$G40*'Other input expert'!K$9),0)","v":0},{"$f":"IF('Picking rates'!$G40>0,'Yield & Sales calculation'!M40/('Picking rates'!$G40*'Other input expert'!L$9),0)","v":0},{"$f":"IF('Picking rates'!$G40>0,'Yield & Sales calculation'!N40/('Picking rates'!$G40*'Other input expert'!M$9),0)","v":0}]
["Bunimum bulbocastanum","Pig nut",{"$f":"IF('Picking rates'!$G41>0,'Yield & Sales calculation'!C41/('Picking rates'!$G41*'Other input expert'!B$9),0)","v":0},{"$f":"IF('Picking rates'!$G41>0,'Yield & Sales calculation'!D41/('Picking rates'!$G41*'Other input expert'!C$9),0)","v":0},{"$f":"IF('Picking rates'!$G41>0,'Yield & Sales calculation'!E41/('Picking rates'!$G41*'Other input expert'!D$9),0)","v":0},{"$f":"IF('Picking rates'!$G41>0,'Yield & Sales calculation'!F41/('Picking rates'!$G41*'Other input expert'!E$9),0)","v":0},{"$f":"IF('Picking rates'!$G41>0,'Yield & Sales calculation'!G41/('Picking rates'!$G41*'Other input expert'!F$9),0)","v":0},{"$f":"IF('Picking rates'!$G41>0,'Yield & Sales calculation'!H41/('Picking rates'!$G41*'Other input expert'!G$9),0)","v":0},{"$f":"IF('Picking rates'!$G41>0,'Yield & Sales calculation'!I41/('Picking rates'!$G41*'Other input expert'!H$9),0)","v":0},{"$f":"IF('Picking rates'!$G41>0,'Yield & Sales calculation'!J41/('Picking rates'!$G41*'Other input expert'!I$9),0)","v":0},{"$f":"IF('Picking rates'!$G41>0,'Yield & Sales calculation'!K41/('Picking rates'!$G41*'Other input expert'!J$9),0)","v":0},{"$f":"IF('Picking rates'!$G41>0,'Yield & Sales calculation'!L41/('Picking rates'!$G41*'Other input expert'!K$9),0)","v":0},{"$f":"IF('Picking rates'!$G41>0,'Yield & Sales calculation'!M41/('Picking rates'!$G41*'Other input expert'!L$9),0)","v":0},{"$f":"IF('Picking rates'!$G41>0,'Yield & Sales calculation'!N41/('Picking rates'!$G41*'Other input expert'!M$9),0)","v":0}]
["Capparis Spinosa","Caper",{"$f":"IF('Picking rates'!$G42>0,'Yield & Sales calculation'!C42/('Picking rates'!$G42*'Other input expert'!B$9),0)","v":0},{"$f":"IF('Picking rates'!$G42>0,'Yield & Sales calculation'!D42/('Picking rates'!$G42*'Other input expert'!C$9),0)","v":0},{"$f":"IF('Picking rates'!$G42>0,'Yield & Sales calculation'!E42/('Picking rates'!$G42*'Other input expert'!D$9),0)","v":0},{"$f":"IF('Picking rates'!$G42>0,'Yield & Sales calculation'!F42/('Picking rates'!$G42*'Other input expert'!E$9),0)","v":0},{"$f":"IF('Picking rates'!$G42>0,'Yield & Sales calculation'!G42/('Picking rates'!$G42*'Other input expert'!F$9),0)","v":0},{"$f":"IF('Picking rates'!$G42>0,'Yield & Sales calculation'!H42/('Picking rates'!$G42*'Other input expert'!G$9),0)","v":0},{"$f":"IF('Picking rates'!$G42>0,'Yield & Sales calculation'!I42/('Picking rates'!$G42*'Other input expert'!H$9),0)","v":0},{"$f":"IF('Picking rates'!$G42>0,'Yield & Sales calculation'!J42/('Picking rates'!$G42*'Other input expert'!I$9),0)","v":0},{"$f":"IF('Picking rates'!$G42>0,'Yield & Sales calculation'!K42/('Picking rates'!$G42*'Other input expert'!J$9),0)","v":0},{"$f":"IF('Picking rates'!$G42>0,'Yield & Sales calculation'!L42/('Picking rates'!$G42*'Other input expert'!K$9),0)","v":0},{"$f":"IF('Picking rates'!$G42>0,'Yield & Sales calculation'!M42/('Picking rates'!$G42*'Other input expert'!L$9),0)","v":0},{"$f":"IF('Picking rates'!$G42>0,'Yield & Sales calculation'!N42/('Picking rates'!$G42*'Other input expert'!M$9),0)","v":0}]
["Caragana arborecens","Siberian pea tree",{"$f":"IF('Picking rates'!$G43>0,'Yield & Sales calculation'!C43/('Picking rates'!$G43*'Other input expert'!B$9),0)","v":0},{"$f":"IF('Picking rates'!$G43>0,'Yield & Sales calculation'!D43/('Picking rates'!$G43*'Other input expert'!C$9),0)","v":0},{"$f":"IF('Picking rates'!$G43>0,'Yield & Sales calculation'!E43/('Picking rates'!$G43*'Other input expert'!D$9),0)","v":0},{"$f":"IF('Picking rates'!$G43>0,'Yield & Sales calculation'!F43/('Picking rates'!$G43*'Other input expert'!E$9),0)","v":0},{"$f":"IF('Picking rates'!$G43>0,'Yield & Sales calculation'!G43/('Picking rates'!$G43*'Other input expert'!F$9),0)","v":0},{"$f":"IF('Picking rates'!$G43>0,'Yield & Sales calculation'!H43/('Picking rates'!$G43*'Other input expert'!G$9),0)","v":0},{"$f":"IF('Picking rates'!$G43>0,'Yield & Sales calculation'!I43/('Picking rates'!$G43*'Other input expert'!H$9),0)","v":0},{"$f":"IF('Picking rates'!$G43>0,'Yield & Sales calculation'!J43/('Picking rates'!$G43*'Other input expert'!I$9),0)","v":0},{"$f":"IF('Picking rates'!$G43>0,'Yield & Sales calculation'!K43/('Picking rates'!$G43*'Other input expert'!J$9),0)","v":0},{"$f":"IF('Picking rates'!$G43>0,'Yield & Sales calculation'!L43/('Picking rates'!$G43*'Other input expert'!K$9),0)","v":0},{"$f":"IF('Picking rates'!$G43>0,'Yield & Sales calculation'!M43/('Picking rates'!$G43*'Other input expert'!L$9),0)","v":0},{"$f":"IF('Picking rates'!$G43>0,'Yield & Sales calculation'!N43/('Picking rates'!$G43*'Other input expert'!M$9),0)","v":0}]
["Carya illinoiensis","Pecan",{"$f":"IF('Picking rates'!$G44>0,'Yield & Sales calculation'!C44/('Picking rates'!$G44*'Other input expert'!B$9),0)","v":0},{"$f":"IF('Picking rates'!$G44>0,'Yield & Sales calculation'!D44/('Picking rates'!$G44*'Other input expert'!C$9),0)","v":0},{"$f":"IF('Picking rates'!$G44>0,'Yield & Sales calculation'!E44/('Picking rates'!$G44*'Other input expert'!D$9),0)","v":0},{"$f":"IF('Picking rates'!$G44>0,'Yield & Sales calculation'!F44/('Picking rates'!$G44*'Other input expert'!E$9),0)","v":0},{"$f":"IF('Picking rates'!$G44>0,'Yield & Sales calculation'!G44/('Picking rates'!$G44*'Other input expert'!F$9),0)","v":0},{"$f":"IF('Picking rates'!$G44>0,'Yield & Sales calculation'!H44/('Picking rates'!$G44*'Other input expert'!G$9),0)","v":0},{"$f":"IF('Picking rates'!$G44>0,'Yield & Sales calculation'!I44/('Picking rates'!$G44*'Other input expert'!H$9),0)","v":0},{"$f":"IF('Picking rates'!$G44>0,'Yield & Sales calculation'!J44/('Picking rates'!$G44*'Other input expert'!I$9),0)","v":0},{"$f":"IF('Picking rates'!$G44>0,'Yield & Sales calculation'!K44/('Picking rates'!$G44*'Other input expert'!J$9),0)","v":0},{"$f":"IF('Picking rates'!$G44>0,'Yield & Sales calculation'!L44/('Picking rates'!$G44*'Other input expert'!K$9),0)","v":0},{"$f":"IF('Picking rates'!$G44>0,'Yield & Sales calculation'!M44/('Picking rates'!$G44*'Other input expert'!L$9),0)","v":0},{"$f":"IF('Picking rates'!$G44>0,'Yield & Sales calculation'!N44/('Picking rates'!$G44*'Other input expert'!M$9),0)","v":0}]
["Carya spp","Hickory",{"$f":"IF('Picking rates'!$G45>0,'Yield & Sales calculation'!C45/('Picking rates'!$G45*'Other input expert'!B$9),0)","v":0},{"$f":"IF('Picking rates'!$G45>0,'Yield & Sales calculation'!D45/('Picking rates'!$G45*'Other input expert'!C$9),0)","v":0},{"$f":"IF('Picking rates'!$G45>0,'Yield & Sales calculation'!E45/('Picking rates'!$G45*'Other input expert'!D$9),0)","v":0},{"$f":"IF('Picking rates'!$G45>0,'Yield & Sales calculation'!F45/('Picking rates'!$G45*'Other input expert'!E$9),0)","v":0},{"$f":"IF('Picking rates'!$G45>0,'Yield & Sales calculation'!G45/('Picking rates'!$G45*'Other input expert'!F$9),0)","v":0},{"$f":"IF('Picking rates'!$G45>0,'Yield & Sales calculation'!H45/('Picking rates'!$G45*'Other input expert'!G$9),0)","v":0},{"$f":"IF('Picking rates'!$G45>0,'Yield & Sales calculation'!I45/('Picking rates'!$G45*'Other input expert'!H$9),0)","v":0},{"$f":"IF('Picking rates'!$G45>0,'Yield & Sales calculation'!J45/('Picking rates'!$G45*'Other input expert'!I$9),0)","v":0},{"$f":"IF('Picking rates'!$G45>0,'Yield & Sales calculation'!K45/('Picking rates'!$G45*'Other input expert'!J$9),0)","v":0},{"$f":"IF('Picking rates'!$G45>0,'Yield & Sales calculation'!L45/('Picking rates'!$G45*'Other input expert'!K$9),0)","v":0},{"$f":"IF('Picking rates'!$G45>0,'Yield & Sales calculation'!M45/('Picking rates'!$G45*'Other input expert'!L$9),0)","v":0},{"$f":"IF('Picking rates'!$G45>0,'Yield & Sales calculation'!N45/('Picking rates'!$G45*'Other input expert'!M$9),0)","v":0}]
["Castanea mollissima","Chinese chestnut",{"$f":"IF('Picking rates'!$G46>0,'Yield & Sales calculation'!C46/('Picking rates'!$G46*'Other input expert'!B$9),0)","v":0},{"$f":"IF('Picking rates'!$G46>0,'Yield & Sales calculation'!D46/('Picking rates'!$G46*'Other input expert'!C$9),0)","v":0},{"$f":"IF('Picking rates'!$G46>0,'Yield & Sales calculation'!E46/('Picking rates'!$G46*'Other input expert'!D$9),0)","v":0},{"$f":"IF('Picking rates'!$G46>0,'Yield & Sales calculation'!F46/('Picking rates'!$G46*'Other input expert'!E$9),0)","v":0},{"$f":"IF('Picking rates'!$G46>0,'Yield & Sales calculation'!G46/('Picking rates'!$G46*'Other input expert'!F$9),0)","v":0},{"$f":"IF('Picking rates'!$G46>0,'Yield & Sales calculation'!H46/('Picking rates'!$G46*'Other input expert'!G$9),0)","v":0},{"$f":"IF('Picking rates'!$G46>0,'Yield & Sales calculation'!I46/('Picking rates'!$G46*'Other input expert'!H$9),0)","v":0},{"$f":"IF('Picking rates'!$G46>0,'Yield & Sales calculation'!J46/('Picking rates'!$G46*'Other input expert'!I$9),0)","v":0},{"$f":"IF('Picking rates'!$G46>0,'Yield & Sales calculation'!K46/('Picking rates'!$G46*'Other input expert'!J$9),0)","v":0},{"$f":"IF('Picking rates'!$G46>0,'Yield & Sales calculation'!L46/('Picking rates'!$G46*'Other input expert'!K$9),0)","v":0},{"$f":"IF('Picking rates'!$G46>0,'Yield & Sales calculation'!M46/('Picking rates'!$G46*'Other input expert'!L$9),0)","v":0},{"$f":"IF('Picking rates'!$G46>0,'Yield & Sales calculation'!N46/('Picking rates'!$G46*'Other input expert'!M$9),0)","v":0}]
["Castanea sativa","Sweet chestnut",{"$f":"IF('Picking rates'!$G47>0,'Yield & Sales calculation'!C47/('Picking rates'!$G47*'Other input expert'!B$9),0)","v":0},{"$f":"IF('Picking rates'!$G47>0,'Yield & Sales calculation'!D47/('Picking rates'!$G47*'Other input expert'!C$9),0)","v":0},{"$f":"IF('Picking rates'!$G47>0,'Yield & Sales calculation'!E47/('Picking rates'!$G47*'Other input expert'!D$9),0)","v":0},{"$f":"IF('Picking rates'!$G47>0,'Yield & Sales calculation'!F47/('Picking rates'!$G47*'Other input expert'!E$9),0)","v":0},{"$f":"IF('Picking rates'!$G47>0,'Yield & Sales calculation'!G47/('Picking rates'!$G47*'Other input expert'!F$9),0)","v":0},{"$f":"IF('Picking rates'!$G47>0,'Yield & Sales calculation'!H47/('Picking rates'!$G47*'Other input expert'!G$9),0)","v":0},{"$f":"IF('Picking rates'!$G47>0,'Yield & Sales calculation'!I47/('Picking rates'!$G47*'Other input expert'!H$9),0)","v":0},{"$f":"IF('Picking rates'!$G47>0,'Yield & Sales calculation'!J47/('Picking rates'!$G47*'Other input expert'!I$9),0)","v":0},{"$f":"IF('Picking rates'!$G47>0,'Yield & Sales calculation'!K47/('Picking rates'!$G47*'Other input expert'!J$9),0)","v":0},{"$f":"IF('Picking rates'!$G47>0,'Yield & Sales calculation'!L47/('Picking rates'!$G47*'Other input expert'!K$9),0)","v":0},{"$f":"IF('Picking rates'!$G47>0,'Yield & Sales calculation'!M47/('Picking rates'!$G47*'Other input expert'!L$9),0)","v":0},{"$f":"IF('Picking rates'!$G47>0,'Yield & Sales calculation'!N47/('Picking rates'!$G47*'Other input expert'!M$9),0)","v":0}]
["Casteana Pumiles","Chinquapin",{"$f":"IF('Picking rates'!$G48>0,'Yield & Sales calculation'!C48/('Picking rates'!$G48*'Other input expert'!B$9),0)","v":0},{"$f":"IF('Picking rates'!$G48>0,'Yield & Sales calculation'!D48/('Picking rates'!$G48*'Other input expert'!C$9),0)","v":0},{"$f":"IF('Picking rates'!$G48>0,'Yield & Sales calculation'!E48/('Picking rates'!$G48*'Other input expert'!D$9),0)","v":0},{"$f":"IF('Picking rates'!$G48>0,'Yield & Sales calculation'!F48/('Picking rates'!$G48*'Other input expert'!E$9),0)","v":0},{"$f":"IF('Picking rates'!$G48>0,'Yield & Sales calculation'!G48/('Picking rates'!$G48*'Other input expert'!F$9),0)","v":0},{"$f":"IF('Picking rates'!$G48>0,'Yield & Sales calculation'!H48/('Picking rates'!$G48*'Other input expert'!G$9),0)","v":0},{"$f":"IF('Picking rates'!$G48>0,'Yield & Sales calculation'!I48/('Picking rates'!$G48*'Other input expert'!H$9),0)","v":0},{"$f":"IF('Picking rates'!$G48>0,'Yield & Sales calculation'!J48/('Picking rates'!$G48*'Other input expert'!I$9),0)","v":0},{"$f":"IF('Picking rates'!$G48>0,'Yield & Sales calculation'!K48/('Picking rates'!$G48*'Other input expert'!J$9),0)","v":0},{"$f":"IF('Picking rates'!$G48>0,'Yield & Sales calculation'!L48/('Picking rates'!$G48*'Other input expert'!K$9),0)","v":0},{"$f":"IF('Picking rates'!$G48>0,'Yield & Sales calculation'!M48/('Picking rates'!$G48*'Other input expert'!L$9),0)","v":0},{"$f":"IF('Picking rates'!$G48>0,'Yield & Sales calculation'!N48/('Picking rates'!$G48*'Other input expert'!M$9),0)","v":0}]
["Celtis australis","Nettle tree",{"$f":"IF('Picking rates'!$G49>0,'Yield & Sales calculation'!C49/('Picking rates'!$G49*'Other input expert'!B$9),0)","v":0},{"$f":"IF('Picking rates'!$G49>0,'Yield & Sales calculation'!D49/('Picking rates'!$G49*'Other input expert'!C$9),0)","v":0},{"$f":"IF('Picking rates'!$G49>0,'Yield & Sales calculation'!E49/('Picking rates'!$G49*'Other input expert'!D$9),0)","v":0},{"$f":"IF('Picking rates'!$G49>0,'Yield & Sales calculation'!F49/('Picking rates'!$G49*'Other input expert'!E$9),0)","v":0},{"$f":"IF('Picking rates'!$G49>0,'Yield & Sales calculation'!G49/('Picking rates'!$G49*'Other input expert'!F$9),0)","v":0},{"$f":"IF('Picking rates'!$G49>0,'Yield & Sales calculation'!H49/('Picking rates'!$G49*'Other input expert'!G$9),0)","v":0},{"$f":"IF('Picking rates'!$G49>0,'Yield & Sales calculation'!I49/('Picking rates'!$G49*'Other input expert'!H$9),0)","v":0},{"$f":"IF('Picking rates'!$G49>0,'Yield & Sales calculation'!J49/('Picking rates'!$G49*'Other input expert'!I$9),0)","v":0},{"$f":"IF('Picking rates'!$G49>0,'Yield & Sales calculation'!K49/('Picking rates'!$G49*'Other input expert'!J$9),0)","v":0},{"$f":"IF('Picking rates'!$G49>0,'Yield & Sales calculation'!L49/('Picking rates'!$G49*'Other input expert'!K$9),0)","v":0},{"$f":"IF('Picking rates'!$G49>0,'Yield & Sales calculation'!M49/('Picking rates'!$G49*'Other input expert'!L$9),0)","v":0},{"$f":"IF('Picking rates'!$G49>0,'Yield & Sales calculation'!N49/('Picking rates'!$G49*'Other input expert'!M$9),0)","v":0}]
["Cercis siliquastrum","Judas tree",{"$f":"IF('Picking rates'!$G50>0,'Yield & Sales calculation'!C50/('Picking rates'!$G50*'Other input expert'!B$9),0)","v":0},{"$f":"IF('Picking rates'!$G50>0,'Yield & Sales calculation'!D50/('Picking rates'!$G50*'Other input expert'!C$9),0)","v":0},{"$f":"IF('Picking rates'!$G50>0,'Yield & Sales calculation'!E50/('Picking rates'!$G50*'Other input expert'!D$9),0)","v":0},{"$f":"IF('Picking rates'!$G50>0,'Yield & Sales calculation'!F50/('Picking rates'!$G50*'Other input expert'!E$9),0)","v":0},{"$f":"IF('Picking rates'!$G50>0,'Yield & Sales calculation'!G50/('Picking rates'!$G50*'Other input expert'!F$9),0)","v":0},{"$f":"IF('Picking rates'!$G50>0,'Yield & Sales calculation'!H50/('Picking rates'!$G50*'Other input expert'!G$9),0)","v":0},{"$f":"IF('Picking rates'!$G50>0,'Yield & Sales calculation'!I50/('Picking rates'!$G50*'Other input expert'!H$9),0)","v":0},{"$f":"IF('Picking rates'!$G50>0,'Yield & Sales calculation'!J50/('Picking rates'!$G50*'Other input expert'!I$9),0)","v":0},{"$f":"IF('Picking rates'!$G50>0,'Yield & Sales calculation'!K50/('Picking rates'!$G50*'Other input expert'!J$9),0)","v":0},{"$f":"IF('Picking rates'!$G50>0,'Yield & Sales calculation'!L50/('Picking rates'!$G50*'Other input expert'!K$9),0)","v":0},{"$f":"IF('Picking rates'!$G50>0,'Yield & Sales calculation'!M50/('Picking rates'!$G50*'Other input expert'!L$9),0)","v":0},{"$f":"IF('Picking rates'!$G50>0,'Yield & Sales calculation'!N50/('Picking rates'!$G50*'Other input expert'!M$9),0)","v":0}]
["Chaenomeles cathayensis","Chinese quince",{"$f":"IF('Picking rates'!$G51>0,'Yield & Sales calculation'!C51/('Picking rates'!$G51*'Other input expert'!B$9),0)","v":0},{"$f":"IF('Picking rates'!$G51>0,'Yield & Sales calculation'!D51/('Picking rates'!$G51*'Other input expert'!C$9),0)","v":0},{"$f":"IF('Picking rates'!$G51>0,'Yield & Sales calculation'!E51/('Picking rates'!$G51*'Other input expert'!D$9),0)","v":0},{"$f":"IF('Picking rates'!$G51>0,'Yield & Sales calculation'!F51/('Picking rates'!$G51*'Other input expert'!E$9),0)","v":0},{"$f":"IF('Picking rates'!$G51>0,'Yield & Sales calculation'!G51/('Picking rates'!$G51*'Other input expert'!F$9),0)","v":0},{"$f":"IF('Picking rates'!$G51>0,'Yield & Sales calculation'!H51/('Picking rates'!$G51*'Other input expert'!G$9),0)","v":0},{"$f":"IF('Picking rates'!$G51>0,'Yield & Sales calculation'!I51/('Picking rates'!$G51*'Other input expert'!H$9),0)","v":0},{"$f":"IF('Picking rates'!$G51>0,'Yield & Sales calculation'!J51/('Picking rates'!$G51*'Other input expert'!I$9),0)","v":0},{"$f":"IF('Picking rates'!$G51>0,'Yield & Sales calculation'!K51/('Picking rates'!$G51*'Other input expert'!J$9),0)","v":0},{"$f":"IF('Picking rates'!$G51>0,'Yield & Sales calculation'!L51/('Picking rates'!$G51*'Other input expert'!K$9),0)","v":0},{"$f":"IF('Picking rates'!$G51>0,'Yield & Sales calculation'!M51/('Picking rates'!$G51*'Other input expert'!L$9),0)","v":0},{"$f":"IF('Picking rates'!$G51>0,'Yield & Sales calculation'!N51/('Picking rates'!$G51*'Other input expert'!M$9),0)","v":0}]
["Chaenomeles speciosa","Japanse quince",{"$f":"IF('Picking rates'!$G52>0,'Yield & Sales calculation'!C52/('Picking rates'!$G52*'Other input expert'!B$9),0)","v":0},{"$f":"IF('Picking rates'!$G52>0,'Yield & Sales calculation'!D52/('Picking rates'!$G52*'Other input expert'!C$9),0)","v":0},{"$f":"IF('Picking rates'!$G52>0,'Yield & Sales calculation'!E52/('Picking rates'!$G52*'Other input expert'!D$9),0)","v":0},{"$f":"IF('Picking rates'!$G52>0,'Yield & Sales calculation'!F52/('Picking rates'!$G52*'Other input expert'!E$9),0)","v":0},{"$f":"IF('Picking rates'!$G52>0,'Yield & Sales calculation'!G52/('Picking rates'!$G52*'Other input expert'!F$9),0)","v":0},{"$f":"IF('Picking rates'!$G52>0,'Yield & Sales calculation'!H52/('Picking rates'!$G52*'Other input expert'!G$9),0)","v":0},{"$f":"IF('Picking rates'!$G52>0,'Yield & Sales calculation'!I52/('Picking rates'!$G52*'Other input expert'!H$9),0)","v":0},{"$f":"IF('Picking rates'!$G52>0,'Yield & Sales calculation'!J52/('Picking rates'!$G52*'Other input expert'!I$9),0)","v":0},{"$f":"IF('Picking rates'!$G52>0,'Yield & Sales calculation'!K52/('Picking rates'!$G52*'Other input expert'!J$9),0)","v":0},{"$f":"IF('Picking rates'!$G52>0,'Yield & Sales calculation'!L52/('Picking rates'!$G52*'Other input expert'!K$9),0)","v":0},{"$f":"IF('Picking rates'!$G52>0,'Yield & Sales calculation'!M52/('Picking rates'!$G52*'Other input expert'!L$9),0)","v":0},{"$f":"IF('Picking rates'!$G52>0,'Yield & Sales calculation'!N52/('Picking rates'!$G52*'Other input expert'!M$9),0)","v":0}]
["Chaenomeles spp.","Flowering quince",{"$f":"IF('Picking rates'!$G53>0,'Yield & Sales calculation'!C53/('Picking rates'!$G53*'Other input expert'!B$9),0)","v":0},{"$f":"IF('Picking rates'!$G53>0,'Yield & Sales calculation'!D53/('Picking rates'!$G53*'Other input expert'!C$9),0)","v":0},{"$f":"IF('Picking rates'!$G53>0,'Yield & Sales calculation'!E53/('Picking rates'!$G53*'Other input expert'!D$9),0)","v":0},{"$f":"IF('Picking rates'!$G53>0,'Yield & Sales calculation'!F53/('Picking rates'!$G53*'Other input expert'!E$9),0)","v":0},{"$f":"IF('Picking rates'!$G53>0,'Yield & Sales calculation'!G53/('Picking rates'!$G53*'Other input expert'!F$9),0)","v":0},{"$f":"IF('Picking rates'!$G53>0,'Yield & Sales calculation'!H53/('Picking rates'!$G53*'Other input expert'!G$9),0)","v":0},{"$f":"IF('Picking rates'!$G53>0,'Yield & Sales calculation'!I53/('Picking rates'!$G53*'Other input expert'!H$9),0)","v":0},{"$f":"IF('Picking rates'!$G53>0,'Yield & Sales calculation'!J53/('Picking rates'!$G53*'Other input expert'!I$9),0)","v":0},{"$f":"IF('Picking rates'!$G53>0,'Yield & Sales calculation'!K53/('Picking rates'!$G53*'Other input expert'!J$9),0)","v":0},{"$f":"IF('Picking rates'!$G53>0,'Yield & Sales calculation'!L53/('Picking rates'!$G53*'Other input expert'!K$9),0)","v":0},{"$f":"IF('Picking rates'!$G53>0,'Yield & Sales calculation'!M53/('Picking rates'!$G53*'Other input expert'!L$9),0)","v":0},{"$f":"IF('Picking rates'!$G53>0,'Yield & Sales calculation'!N53/('Picking rates'!$G53*'Other input expert'!M$9),0)","v":0}]
["Chelidonium majus","Greater celandine",{"$f":"IF('Picking rates'!$G54>0,'Yield & Sales calculation'!C54/('Picking rates'!$G54*'Other input expert'!B$9),0)","v":0},{"$f":"IF('Picking rates'!$G54>0,'Yield & Sales calculation'!D54/('Picking rates'!$G54*'Other input expert'!C$9),0)","v":0},{"$f":"IF('Picking rates'!$G54>0,'Yield & Sales calculation'!E54/('Picking rates'!$G54*'Other input expert'!D$9),0)","v":0},{"$f":"IF('Picking rates'!$G54>0,'Yield & Sales calculation'!F54/('Picking rates'!$G54*'Other input expert'!E$9),0)","v":0},{"$f":"IF('Picking rates'!$G54>0,'Yield & Sales calculation'!G54/('Picking rates'!$G54*'Other input expert'!F$9),0)","v":0},{"$f":"IF('Picking rates'!$G54>0,'Yield & Sales calculation'!H54/('Picking rates'!$G54*'Other input expert'!G$9),0)","v":0},{"$f":"IF('Picking rates'!$G54>0,'Yield & Sales calculation'!I54/('Picking rates'!$G54*'Other input expert'!H$9),0)","v":0},{"$f":"IF('Picking rates'!$G54>0,'Yield & Sales calculation'!J54/('Picking rates'!$G54*'Other input expert'!I$9),0)","v":0},{"$f":"IF('Picking rates'!$G54>0,'Yield & Sales calculation'!K54/('Picking rates'!$G54*'Other input expert'!J$9),0)","v":0},{"$f":"IF('Picking rates'!$G54>0,'Yield & Sales calculation'!L54/('Picking rates'!$G54*'Other input expert'!K$9),0)","v":0},{"$f":"IF('Picking rates'!$G54>0,'Yield & Sales calculation'!M54/('Picking rates'!$G54*'Other input expert'!L$9),0)","v":0},{"$f":"IF('Picking rates'!$G54>0,'Yield & Sales calculation'!N54/('Picking rates'!$G54*'Other input expert'!M$9),0)","v":0}]
["Cornus kousa","Japanese dogwood",{"$f":"IF('Picking rates'!$G55>0,'Yield & Sales calculation'!C55/('Picking rates'!$G55*'Other input expert'!B$9),0)","v":0},{"$f":"IF('Picking rates'!$G55>0,'Yield & Sales calculation'!D55/('Picking rates'!$G55*'Other input expert'!C$9),0)","v":0},{"$f":"IF('Picking rates'!$G55>0,'Yield & Sales calculation'!E55/('Picking rates'!$G55*'Other input expert'!D$9),0)","v":0},{"$f":"IF('Picking rates'!$G55>0,'Yield & Sales calculation'!F55/('Picking rates'!$G55*'Other input expert'!E$9),0)","v":0},{"$f":"IF('Picking rates'!$G55>0,'Yield & Sales calculation'!G55/('Picking rates'!$G55*'Other input expert'!F$9),0)","v":0},{"$f":"IF('Picking rates'!$G55>0,'Yield & Sales calculation'!H55/('Picking rates'!$G55*'Other input expert'!G$9),0)","v":0},{"$f":"IF('Picking rates'!$G55>0,'Yield & Sales calculation'!I55/('Picking rates'!$G55*'Other input expert'!H$9),0)","v":0},{"$f":"IF('Picking rates'!$G55>0,'Yield & Sales calculation'!J55/('Picking rates'!$G55*'Other input expert'!I$9),0)","v":0},{"$f":"IF('Picking rates'!$G55>0,'Yield & Sales calculation'!K55/('Picking rates'!$G55*'Other input expert'!J$9),0)","v":0},{"$f":"IF('Picking rates'!$G55>0,'Yield & Sales calculation'!L55/('Picking rates'!$G55*'Other input expert'!K$9),0)","v":0},{"$f":"IF('Picking rates'!$G55>0,'Yield & Sales calculation'!M55/('Picking rates'!$G55*'Other input expert'!L$9),0)","v":0},{"$f":"IF('Picking rates'!$G55>0,'Yield & Sales calculation'!N55/('Picking rates'!$G55*'Other input expert'!M$9),0)","v":0}]
["Cornus mas","Cornelian cherry",{"$f":"IF('Picking rates'!$G56>0,'Yield & Sales calculation'!C56/('Picking rates'!$G56*'Other input expert'!B$9),0)","v":0},{"$f":"IF('Picking rates'!$G56>0,'Yield & Sales calculation'!D56/('Picking rates'!$G56*'Other input expert'!C$9),0)","v":0},{"$f":"IF('Picking rates'!$G56>0,'Yield & Sales calculation'!E56/('Picking rates'!$G56*'Other input expert'!D$9),0)","v":0},{"$f":"IF('Picking rates'!$G56>0,'Yield & Sales calculation'!F56/('Picking rates'!$G56*'Other input expert'!E$9),0)","v":0},{"$f":"IF('Picking rates'!$G56>0,'Yield & Sales calculation'!G56/('Picking rates'!$G56*'Other input expert'!F$9),0)","v":0},{"$f":"IF('Picking rates'!$G56>0,'Yield & Sales calculation'!H56/('Picking rates'!$G56*'Other input expert'!G$9),0)","v":0},{"$f":"IF('Picking rates'!$G56>0,'Yield & Sales calculation'!I56/('Picking rates'!$G56*'Other input expert'!H$9),0)","v":0},{"$f":"IF('Picking rates'!$G56>0,'Yield & Sales calculation'!J56/('Picking rates'!$G56*'Other input expert'!I$9),0)","v":0},{"$f":"IF('Picking rates'!$G56>0,'Yield & Sales calculation'!K56/('Picking rates'!$G56*'Other input expert'!J$9),0)","v":0},{"$f":"IF('Picking rates'!$G56>0,'Yield & Sales calculation'!L56/('Picking rates'!$G56*'Other input expert'!K$9),0)","v":0},{"$f":"IF('Picking rates'!$G56>0,'Yield & Sales calculation'!M56/('Picking rates'!$G56*'Other input expert'!L$9),0)","v":0},{"$f":"IF('Picking rates'!$G56>0,'Yield & Sales calculation'!N56/('Picking rates'!$G56*'Other input expert'!M$9),0)","v":0}]
["Cornus sanguinea","Dogwood",{"$f":"IF('Picking rates'!$G57>0,'Yield & Sales calculation'!C57/('Picking rates'!$G57*'Other input expert'!B$9),0)","v":0},{"$f":"IF('Picking rates'!$G57>0,'Yield & Sales calculation'!D57/('Picking rates'!$G57*'Other input expert'!C$9),0)","v":0},{"$f":"IF('Picking rates'!$G57>0,'Yield & Sales calculation'!E57/('Picking rates'!$G57*'Other input expert'!D$9),0)","v":0},{"$f":"IF('Picking rates'!$G57>0,'Yield & Sales calculation'!F57/('Picking rates'!$G57*'Other input expert'!E$9),0)","v":0},{"$f":"IF('Picking rates'!$G57>0,'Yield & Sales calculation'!G57/('Picking rates'!$G57*'Other input expert'!F$9),0)","v":0},{"$f":"IF('Picking rates'!$G57>0,'Yield & Sales calculation'!H57/('Picking rates'!$G57*'Other input expert'!G$9),0)","v":0},{"$f":"IF('Picking rates'!$G57>0,'Yield & Sales calculation'!I57/('Picking rates'!$G57*'Other input expert'!H$9),0)","v":0},{"$f":"IF('Picking rates'!$G57>0,'Yield & Sales calculation'!J57/('Picking rates'!$G57*'Other input expert'!I$9),0)","v":0},{"$f":"IF('Picking rates'!$G57>0,'Yield & Sales calculation'!K57/('Picking rates'!$G57*'Other input expert'!J$9),0)","v":0},{"$f":"IF('Picking rates'!$G57>0,'Yield & Sales calculation'!L57/('Picking rates'!$G57*'Other input expert'!K$9),0)","v":0},{"$f":"IF('Picking rates'!$G57>0,'Yield & Sales calculation'!M57/('Picking rates'!$G57*'Other input expert'!L$9),0)","v":0},{"$f":"IF('Picking rates'!$G57>0,'Yield & Sales calculation'!N57/('Picking rates'!$G57*'Other input expert'!M$9),0)","v":0}]
["Corylus avellana","Hazelnut",{"$f":"IF('Picking rates'!$G58>0,'Yield & Sales calculation'!C58/('Picking rates'!$G58*'Other input expert'!B$9),0)","v":0},{"$f":"IF('Picking rates'!$G58>0,'Yield & Sales calculation'!D58/('Picking rates'!$G58*'Other input expert'!C$9),0)","v":0},{"$f":"IF('Picking rates'!$G58>0,'Yield & Sales calculation'!E58/('Picking rates'!$G58*'Other input expert'!D$9),0)","v":0},{"$f":"IF('Picking rates'!$G58>0,'Yield & Sales calculation'!F58/('Picking rates'!$G58*'Other input expert'!E$9),0)","v":0},{"$f":"IF('Picking rates'!$G58>0,'Yield & Sales calculation'!G58/('Picking rates'!$G58*'Other input expert'!F$9),0)","v":0},{"$f":"IF('Picking rates'!$G58>0,'Yield & Sales calculation'!H58/('Picking rates'!$G58*'Other input expert'!G$9),0)","v":0},{"$f":"IF('Picking rates'!$G58>0,'Yield & Sales calculation'!I58/('Picking rates'!$G58*'Other input expert'!H$9),0)","v":0},{"$f":"IF('Picking rates'!$G58>0,'Yield & Sales calculation'!J58/('Picking rates'!$G58*'Other input expert'!I$9),0)","v":0},{"$f":"IF('Picking rates'!$G58>0,'Yield & Sales calculation'!K58/('Picking rates'!$G58*'Other input expert'!J$9),0)","v":0},{"$f":"IF('Picking rates'!$G58>0,'Yield & Sales calculation'!L58/('Picking rates'!$G58*'Other input expert'!K$9),0)","v":0},{"$f":"IF('Picking rates'!$G58>0,'Yield & Sales calculation'!M58/('Picking rates'!$G58*'Other input expert'!L$9),0)","v":0},{"$f":"IF('Picking rates'!$G58>0,'Yield & Sales calculation'!N58/('Picking rates'!$G58*'Other input expert'!M$9),0)","v":0}]
["Crataegus persimilis","hawthorn",{"$f":"IF('Picking rates'!$G59>0,'Yield & Sales calculation'!C59/('Picking rates'!$G59*'Other input expert'!B$9),0)","v":0},{"$f":"IF('Picking rates'!$G59>0,'Yield & Sales calculation'!D59/('Picking rates'!$G59*'Other input expert'!C$9),0)","v":0},{"$f":"IF('Picking rates'!$G59>0,'Yield & Sales calculation'!E59/('Picking rates'!$G59*'Other input expert'!D$9),0)","v":0},{"$f":"IF('Picking rates'!$G59>0,'Yield & Sales calculation'!F59/('Picking rates'!$G59*'Other input expert'!E$9),0)","v":0},{"$f":"IF('Picking rates'!$G59>0,'Yield & Sales calculation'!G59/('Picking rates'!$G59*'Other input expert'!F$9),0)","v":0},{"$f":"IF('Picking rates'!$G59>0,'Yield & Sales calculation'!H59/('Picking rates'!$G59*'Other input expert'!G$9),0)","v":0},{"$f":"IF('Picking rates'!$G59>0,'Yield & Sales calculation'!I59/('Picking rates'!$G59*'Other input expert'!H$9),0)","v":0},{"$f":"IF('Picking rates'!$G59>0,'Yield & Sales calculation'!J59/('Picking rates'!$G59*'Other input expert'!I$9),0)","v":0},{"$f":"IF('Picking rates'!$G59>0,'Yield & Sales calculation'!K59/('Picking rates'!$G59*'Other input expert'!J$9),0)","v":0},{"$f":"IF('Picking rates'!$G59>0,'Yield & Sales calculation'!L59/('Picking rates'!$G59*'Other input expert'!K$9),0)","v":0},{"$f":"IF('Picking rates'!$G59>0,'Yield & Sales calculation'!M59/('Picking rates'!$G59*'Other input expert'!L$9),0)","v":0},{"$f":"IF('Picking rates'!$G59>0,'Yield & Sales calculation'!N59/('Picking rates'!$G59*'Other input expert'!M$9),0)","v":0}]
["Crataegus pinnatifida","hawthorn",{"$f":"IF('Picking rates'!$G60>0,'Yield & Sales calculation'!C60/('Picking rates'!$G60*'Other input expert'!B$9),0)","v":0},{"$f":"IF('Picking rates'!$G60>0,'Yield & Sales calculation'!D60/('Picking rates'!$G60*'Other input expert'!C$9),0)","v":0},{"$f":"IF('Picking rates'!$G60>0,'Yield & Sales calculation'!E60/('Picking rates'!$G60*'Other input expert'!D$9),0)","v":0},{"$f":"IF('Picking rates'!$G60>0,'Yield & Sales calculation'!F60/('Picking rates'!$G60*'Other input expert'!E$9),0)","v":0},{"$f":"IF('Picking rates'!$G60>0,'Yield & Sales calculation'!G60/('Picking rates'!$G60*'Other input expert'!F$9),0)","v":0},{"$f":"IF('Picking rates'!$G60>0,'Yield & Sales calculation'!H60/('Picking rates'!$G60*'Other input expert'!G$9),0)","v":0},{"$f":"IF('Picking rates'!$G60>0,'Yield & Sales calculation'!I60/('Picking rates'!$G60*'Other input expert'!H$9),0)","v":0},{"$f":"IF('Picking rates'!$G60>0,'Yield & Sales calculation'!J60/('Picking rates'!$G60*'Other input expert'!I$9),0)","v":0},{"$f":"IF('Picking rates'!$G60>0,'Yield & Sales calculation'!K60/('Picking rates'!$G60*'Other input expert'!J$9),0)","v":0},{"$f":"IF('Picking rates'!$G60>0,'Yield & Sales calculation'!L60/('Picking rates'!$G60*'Other input expert'!K$9),0)","v":0},{"$f":"IF('Picking rates'!$G60>0,'Yield & Sales calculation'!M60/('Picking rates'!$G60*'Other input expert'!L$9),0)","v":0},{"$f":"IF('Picking rates'!$G60>0,'Yield & Sales calculation'!N60/('Picking rates'!$G60*'Other input expert'!M$9),0)","v":0}]
["Cydonia oblonga (sept)","Quince",{"$f":"IF('Picking rates'!$G61>0,'Yield & Sales calculation'!C61/('Picking rates'!$G61*'Other input expert'!B$9),0)","v":0},{"$f":"IF('Picking rates'!$G61>0,'Yield & Sales calculation'!D61/('Picking rates'!$G61*'Other input expert'!C$9),0)","v":0},{"$f":"IF('Picking rates'!$G61>0,'Yield & Sales calculation'!E61/('Picking rates'!$G61*'Other input expert'!D$9),0)","v":0},{"$f":"IF('Picking rates'!$G61>0,'Yield & Sales calculation'!F61/('Picking rates'!$G61*'Other input expert'!E$9),0)","v":0},{"$f":"IF('Picking rates'!$G61>0,'Yield & Sales calculation'!G61/('Picking rates'!$G61*'Other input expert'!F$9),0)","v":0},{"$f":"IF('Picking rates'!$G61>0,'Yield & Sales calculation'!H61/('Picking rates'!$G61*'Other input expert'!G$9),0)","v":0},{"$f":"IF('Picking rates'!$G61>0,'Yield & Sales calculation'!I61/('Picking rates'!$G61*'Other input expert'!H$9),0)","v":0},{"$f":"IF('Picking rates'!$G61>0,'Yield & Sales calculation'!J61/('Picking rates'!$G61*'Other input expert'!I$9),0)","v":0},{"$f":"IF('Picking rates'!$G61>0,'Yield & Sales calculation'!K61/('Picking rates'!$G61*'Other input expert'!J$9),0)","v":0},{"$f":"IF('Picking rates'!$G61>0,'Yield & Sales calculation'!L61/('Picking rates'!$G61*'Other input expert'!K$9),0)","v":0},{"$f":"IF('Picking rates'!$G61>0,'Yield & Sales calculation'!M61/('Picking rates'!$G61*'Other input expert'!L$9),0)","v":0},{"$f":"IF('Picking rates'!$G61>0,'Yield & Sales calculation'!N61/('Picking rates'!$G61*'Other input expert'!M$9),0)","v":0}]
["Cynara cardunculus","Cardoon",{"$f":"IF('Picking rates'!$G62>0,'Yield & Sales calculation'!C62/('Picking rates'!$G62*'Other input expert'!B$9),0)","v":0},{"$f":"IF('Picking rates'!$G62>0,'Yield & Sales calculation'!D62/('Picking rates'!$G62*'Other input expert'!C$9),0)","v":0},{"$f":"IF('Picking rates'!$G62>0,'Yield & Sales calculation'!E62/('Picking rates'!$G62*'Other input expert'!D$9),0)","v":0},{"$f":"IF('Picking rates'!$G62>0,'Yield & Sales calculation'!F62/('Picking rates'!$G62*'Other input expert'!E$9),0)","v":0},{"$f":"IF('Picking rates'!$G62>0,'Yield & Sales calculation'!G62/('Picking rates'!$G62*'Other input expert'!F$9),0)","v":0},{"$f":"IF('Picking rates'!$G62>0,'Yield & Sales calculation'!H62/('Picking rates'!$G62*'Other input expert'!G$9),0)","v":0},{"$f":"IF('Picking rates'!$G62>0,'Yield & Sales calculation'!I62/('Picking rates'!$G62*'Other input expert'!H$9),0)","v":0},{"$f":"IF('Picking rates'!$G62>0,'Yield & Sales calculation'!J62/('Picking rates'!$G62*'Other input expert'!I$9),0)","v":0},{"$f":"IF('Picking rates'!$G62>0,'Yield & Sales calculation'!K62/('Picking rates'!$G62*'Other input expert'!J$9),0)","v":0},{"$f":"IF('Picking rates'!$G62>0,'Yield & Sales calculation'!L62/('Picking rates'!$G62*'Other input expert'!K$9),0)","v":0},{"$f":"IF('Picking rates'!$G62>0,'Yield & Sales calculation'!M62/('Picking rates'!$G62*'Other input expert'!L$9),0)","v":0},{"$f":"IF('Picking rates'!$G62>0,'Yield & Sales calculation'!N62/('Picking rates'!$G62*'Other input expert'!M$9),0)","v":0}]
["Decaisnea fargesii","Blue sausage fruit",{"$f":"IF('Picking rates'!$G63>0,'Yield & Sales calculation'!C63/('Picking rates'!$G63*'Other input expert'!B$9),0)","v":0},{"$f":"IF('Picking rates'!$G63>0,'Yield & Sales calculation'!D63/('Picking rates'!$G63*'Other input expert'!C$9),0)","v":0},{"$f":"IF('Picking rates'!$G63>0,'Yield & Sales calculation'!E63/('Picking rates'!$G63*'Other input expert'!D$9),0)","v":0},{"$f":"IF('Picking rates'!$G63>0,'Yield & Sales calculation'!F63/('Picking rates'!$G63*'Other input expert'!E$9),0)","v":0},{"$f":"IF('Picking rates'!$G63>0,'Yield & Sales calculation'!G63/('Picking rates'!$G63*'Other input expert'!F$9),0)","v":0},{"$f":"IF('Picking rates'!$G63>0,'Yield & Sales calculation'!H63/('Picking rates'!$G63*'Other input expert'!G$9),0)","v":0},{"$f":"IF('Picking rates'!$G63>0,'Yield & Sales calculation'!I63/('Picking rates'!$G63*'Other input expert'!H$9),0)","v":0},{"$f":"IF('Picking rates'!$G63>0,'Yield & Sales calculation'!J63/('Picking rates'!$G63*'Other input expert'!I$9),0)","v":0},{"$f":"IF('Picking rates'!$G63>0,'Yield & Sales calculation'!K63/('Picking rates'!$G63*'Other input expert'!J$9),0)","v":0},{"$f":"IF('Picking rates'!$G63>0,'Yield & Sales calculation'!L63/('Picking rates'!$G63*'Other input expert'!K$9),0)","v":0},{"$f":"IF('Picking rates'!$G63>0,'Yield & Sales calculation'!M63/('Picking rates'!$G63*'Other input expert'!L$9),0)","v":0},{"$f":"IF('Picking rates'!$G63>0,'Yield & Sales calculation'!N63/('Picking rates'!$G63*'Other input expert'!M$9),0)","v":0}]
["Diospyros virginiana","Persimmon, Kaki",{"$f":"IF('Picking rates'!$G64>0,'Yield & Sales calculation'!C64/('Picking rates'!$G64*'Other input expert'!B$9),0)","v":0},{"$f":"IF('Picking rates'!$G64>0,'Yield & Sales calculation'!D64/('Picking rates'!$G64*'Other input expert'!C$9),0)","v":0},{"$f":"IF('Picking rates'!$G64>0,'Yield & Sales calculation'!E64/('Picking rates'!$G64*'Other input expert'!D$9),0)","v":0},{"$f":"IF('Picking rates'!$G64>0,'Yield & Sales calculation'!F64/('Picking rates'!$G64*'Other input expert'!E$9),0)","v":0},{"$f":"IF('Picking rates'!$G64>0,'Yield & Sales calculation'!G64/('Picking rates'!$G64*'Other input expert'!F$9),0)","v":0},{"$f":"IF('Picking rates'!$G64>0,'Yield & Sales calculation'!H64/('Picking rates'!$G64*'Other input expert'!G$9),0)","v":0},{"$f":"IF('Picking rates'!$G64>0,'Yield & Sales calculation'!I64/('Picking rates'!$G64*'Other input expert'!H$9),0)","v":0},{"$f":"IF('Picking rates'!$G64>0,'Yield & Sales calculation'!J64/('Picking rates'!$G64*'Other input expert'!I$9),0)","v":0},{"$f":"IF('Picking rates'!$G64>0,'Yield & Sales calculation'!K64/('Picking rates'!$G64*'Other input expert'!J$9),0)","v":0},{"$f":"IF('Picking rates'!$G64>0,'Yield & Sales calculation'!L64/('Picking rates'!$G64*'Other input expert'!K$9),0)","v":0},{"$f":"IF('Picking rates'!$G64>0,'Yield & Sales calculation'!M64/('Picking rates'!$G64*'Other input expert'!L$9),0)","v":0},{"$f":"IF('Picking rates'!$G64>0,'Yield & Sales calculation'!N64/('Picking rates'!$G64*'Other input expert'!M$9),0)","v":0}]
["Diospyrus kaki","Persimmon, Kaki",{"$f":"IF('Picking rates'!$G65>0,'Yield & Sales calculation'!C65/('Picking rates'!$G65*'Other input expert'!B$9),0)","v":0},{"$f":"IF('Picking rates'!$G65>0,'Yield & Sales calculation'!D65/('Picking rates'!$G65*'Other input expert'!C$9),0)","v":0},{"$f":"IF('Picking rates'!$G65>0,'Yield & Sales calculation'!E65/('Picking rates'!$G65*'Other input expert'!D$9),0)","v":0},{"$f":"IF('Picking rates'!$G65>0,'Yield & Sales calculation'!F65/('Picking rates'!$G65*'Other input expert'!E$9),0)","v":0},{"$f":"IF('Picking rates'!$G65>0,'Yield & Sales calculation'!G65/('Picking rates'!$G65*'Other input expert'!F$9),0)","v":0},{"$f":"IF('Picking rates'!$G65>0,'Yield & Sales calculation'!H65/('Picking rates'!$G65*'Other input expert'!G$9),0)","v":0},{"$f":"IF('Picking rates'!$G65>0,'Yield & Sales calculation'!I65/('Picking rates'!$G65*'Other input expert'!H$9),0)","v":0},{"$f":"IF('Picking rates'!$G65>0,'Yield & Sales calculation'!J65/('Picking rates'!$G65*'Other input expert'!I$9),0)","v":0},{"$f":"IF('Picking rates'!$G65>0,'Yield & Sales calculation'!K65/('Picking rates'!$G65*'Other input expert'!J$9),0)","v":0},{"$f":"IF('Picking rates'!$G65>0,'Yield & Sales calculation'!L65/('Picking rates'!$G65*'Other input expert'!K$9),0)","v":0},{"$f":"IF('Picking rates'!$G65>0,'Yield & Sales calculation'!M65/('Picking rates'!$G65*'Other input expert'!L$9),0)","v":0},{"$f":"IF('Picking rates'!$G65>0,'Yield & Sales calculation'!N65/('Picking rates'!$G65*'Other input expert'!M$9),0)","v":0}]
["Diospyrus virginia","Persimmon, Kaki",{"$f":"IF('Picking rates'!$G66>0,'Yield & Sales calculation'!C66/('Picking rates'!$G66*'Other input expert'!B$9),0)","v":0},{"$f":"IF('Picking rates'!$G66>0,'Yield & Sales calculation'!D66/('Picking rates'!$G66*'Other input expert'!C$9),0)","v":0},{"$f":"IF('Picking rates'!$G66>0,'Yield & Sales calculation'!E66/('Picking rates'!$G66*'Other input expert'!D$9),0)","v":0},{"$f":"IF('Picking rates'!$G66>0,'Yield & Sales calculation'!F66/('Picking rates'!$G66*'Other input expert'!E$9),0)","v":0},{"$f":"IF('Picking rates'!$G66>0,'Yield & Sales calculation'!G66/('Picking rates'!$G66*'Other input expert'!F$9),0)","v":0},{"$f":"IF('Picking rates'!$G66>0,'Yield & Sales calculation'!H66/('Picking rates'!$G66*'Other input expert'!G$9),0)","v":0},{"$f":"IF('Picking rates'!$G66>0,'Yield & Sales calculation'!I66/('Picking rates'!$G66*'Other input expert'!H$9),0)","v":0},{"$f":"IF('Picking rates'!$G66>0,'Yield & Sales calculation'!J66/('Picking rates'!$G66*'Other input expert'!I$9),0)","v":0},{"$f":"IF('Picking rates'!$G66>0,'Yield & Sales calculation'!K66/('Picking rates'!$G66*'Other input expert'!J$9),0)","v":0},{"$f":"IF('Picking rates'!$G66>0,'Yield & Sales calculation'!L66/('Picking rates'!$G66*'Other input expert'!K$9),0)","v":0},{"$f":"IF('Picking rates'!$G66>0,'Yield & Sales calculation'!M66/('Picking rates'!$G66*'Other input expert'!L$9),0)","v":0},{"$f":"IF('Picking rates'!$G66>0,'Yield & Sales calculation'!N66/('Picking rates'!$G66*'Other input expert'!M$9),0)","v":0}]
["Echinacea spp.","Echinasea",{"$f":"IF('Picking rates'!$G67>0,'Yield & Sales calculation'!C67/('Picking rates'!$G67*'Other input expert'!B$9),0)","v":0},{"$f":"IF('Picking rates'!$G67>0,'Yield & Sales calculation'!D67/('Picking rates'!$G67*'Other input expert'!C$9),0)","v":0},{"$f":"IF('Picking rates'!$G67>0,'Yield & Sales calculation'!E67/('Picking rates'!$G67*'Other input expert'!D$9),0)","v":0},{"$f":"IF('Picking rates'!$G67>0,'Yield & Sales calculation'!F67/('Picking rates'!$G67*'Other input expert'!E$9),0)","v":0},{"$f":"IF('Picking rates'!$G67>0,'Yield & Sales calculation'!G67/('Picking rates'!$G67*'Other input expert'!F$9),0)","v":0},{"$f":"IF('Picking rates'!$G67>0,'Yield & Sales calculation'!H67/('Picking rates'!$G67*'Other input expert'!G$9),0)","v":0},{"$f":"IF('Picking rates'!$G67>0,'Yield & Sales calculation'!I67/('Picking rates'!$G67*'Other input expert'!H$9),0)","v":0},{"$f":"IF('Picking rates'!$G67>0,'Yield & Sales calculation'!J67/('Picking rates'!$G67*'Other input expert'!I$9),0)","v":0},{"$f":"IF('Picking rates'!$G67>0,'Yield & Sales calculation'!K67/('Picking rates'!$G67*'Other input expert'!J$9),0)","v":0},{"$f":"IF('Picking rates'!$G67>0,'Yield & Sales calculation'!L67/('Picking rates'!$G67*'Other input expert'!K$9),0)","v":0},{"$f":"IF('Picking rates'!$G67>0,'Yield & Sales calculation'!M67/('Picking rates'!$G67*'Other input expert'!L$9),0)","v":0},{"$f":"IF('Picking rates'!$G67>0,'Yield & Sales calculation'!N67/('Picking rates'!$G67*'Other input expert'!M$9),0)","v":0}]
["Elaeagnus umbellata","Autumn olive",{"$f":"IF('Picking rates'!$G68>0,'Yield & Sales calculation'!C68/('Picking rates'!$G68*'Other input expert'!B$9),0)","v":0},{"$f":"IF('Picking rates'!$G68>0,'Yield & Sales calculation'!D68/('Picking rates'!$G68*'Other input expert'!C$9),0)","v":0},{"$f":"IF('Picking rates'!$G68>0,'Yield & Sales calculation'!E68/('Picking rates'!$G68*'Other input expert'!D$9),0)","v":0},{"$f":"IF('Picking rates'!$G68>0,'Yield & Sales calculation'!F68/('Picking rates'!$G68*'Other input expert'!E$9),0)","v":0},{"$f":"IF('Picking rates'!$G68>0,'Yield & Sales calculation'!G68/('Picking rates'!$G68*'Other input expert'!F$9),0)","v":0},{"$f":"IF('Picking rates'!$G68>0,'Yield & Sales calculation'!H68/('Picking rates'!$G68*'Other input expert'!G$9),0)","v":0},{"$f":"IF('Picking rates'!$G68>0,'Yield & Sales calculation'!I68/('Picking rates'!$G68*'Other input expert'!H$9),0)","v":0},{"$f":"IF('Picking rates'!$G68>0,'Yield & Sales calculation'!J68/('Picking rates'!$G68*'Other input expert'!I$9),0)","v":0},{"$f":"IF('Picking rates'!$G68>0,'Yield & Sales calculation'!K68/('Picking rates'!$G68*'Other input expert'!J$9),0)","v":0},{"$f":"IF('Picking rates'!$G68>0,'Yield & Sales calculation'!L68/('Picking rates'!$G68*'Other input expert'!K$9),0)","v":0},{"$f":"IF('Picking rates'!$G68>0,'Yield & Sales calculation'!M68/('Picking rates'!$G68*'Other input expert'!L$9),0)","v":0},{"$f":"IF('Picking rates'!$G68>0,'Yield & Sales calculation'!N68/('Picking rates'!$G68*'Other input expert'!M$9),0)","v":0}]
["Elaeagnus x ebbingei","Ebbing's silverberry",{"$f":"IF('Picking rates'!$G69>0,'Yield & Sales calculation'!C69/('Picking rates'!$G69*'Other input expert'!B$9),0)","v":0},{"$f":"IF('Picking rates'!$G69>0,'Yield & Sales calculation'!D69/('Picking rates'!$G69*'Other input expert'!C$9),0)","v":0},{"$f":"IF('Picking rates'!$G69>0,'Yield & Sales calculation'!E69/('Picking rates'!$G69*'Other input expert'!D$9),0)","v":0},{"$f":"IF('Picking rates'!$G69>0,'Yield & Sales calculation'!F69/('Picking rates'!$G69*'Other input expert'!E$9),0)","v":0},{"$f":"IF('Picking rates'!$G69>0,'Yield & Sales calculation'!G69/('Picking rates'!$G69*'Other input expert'!F$9),0)","v":0},{"$f":"IF('Picking rates'!$G69>0,'Yield & Sales calculation'!H69/('Picking rates'!$G69*'Other input expert'!G$9),0)","v":0},{"$f":"IF('Picking rates'!$G69>0,'Yield & Sales calculation'!I69/('Picking rates'!$G69*'Other input expert'!H$9),0)","v":0},{"$f":"IF('Picking rates'!$G69>0,'Yield & Sales calculation'!J69/('Picking rates'!$G69*'Other input expert'!I$9),0)","v":0},{"$f":"IF('Picking rates'!$G69>0,'Yield & Sales calculation'!K69/('Picking rates'!$G69*'Other input expert'!J$9),0)","v":0},{"$f":"IF('Picking rates'!$G69>0,'Yield & Sales calculation'!L69/('Picking rates'!$G69*'Other input expert'!K$9),0)","v":0},{"$f":"IF('Picking rates'!$G69>0,'Yield & Sales calculation'!M69/('Picking rates'!$G69*'Other input expert'!L$9),0)","v":0},{"$f":"IF('Picking rates'!$G69>0,'Yield & Sales calculation'!N69/('Picking rates'!$G69*'Other input expert'!M$9),0)","v":0}]
["Eleutherococcus Ginseng","Ginseng",{"$f":"IF('Picking rates'!$G70>0,'Yield & Sales calculation'!C70/('Picking rates'!$G70*'Other input expert'!B$9),0)","v":0},{"$f":"IF('Picking rates'!$G70>0,'Yield & Sales calculation'!D70/('Picking rates'!$G70*'Other input expert'!C$9),0)","v":0},{"$f":"IF('Picking rates'!$G70>0,'Yield & Sales calculation'!E70/('Picking rates'!$G70*'Other input expert'!D$9),0)","v":0},{"$f":"IF('Picking rates'!$G70>0,'Yield & Sales calculation'!F70/('Picking rates'!$G70*'Other input expert'!E$9),0)","v":0},{"$f":"IF('Picking rates'!$G70>0,'Yield & Sales calculation'!G70/('Picking rates'!$G70*'Other input expert'!F$9),0)","v":0},{"$f":"IF('Picking rates'!$G70>0,'Yield & Sales calculation'!H70/('Picking rates'!$G70*'Other input expert'!G$9),0)","v":0},{"$f":"IF('Picking rates'!$G70>0,'Yield & Sales calculation'!I70/('Picking rates'!$G70*'Other input expert'!H$9),0)","v":0},{"$f":"IF('Picking rates'!$G70>0,'Yield & Sales calculation'!J70/('Picking rates'!$G70*'Other input expert'!I$9),0)","v":0},{"$f":"IF('Picking rates'!$G70>0,'Yield & Sales calculation'!K70/('Picking rates'!$G70*'Other input expert'!J$9),0)","v":0},{"$f":"IF('Picking rates'!$G70>0,'Yield & Sales calculation'!L70/('Picking rates'!$G70*'Other input expert'!K$9),0)","v":0},{"$f":"IF('Picking rates'!$G70>0,'Yield & Sales calculation'!M70/('Picking rates'!$G70*'Other input expert'!L$9),0)","v":0},{"$f":"IF('Picking rates'!$G70>0,'Yield & Sales calculation'!N70/('Picking rates'!$G70*'Other input expert'!M$9),0)","v":0}]
["Fagus spp","Beech",{"$f":"IF('Picking rates'!$G71>0,'Yield & Sales calculation'!C71/('Picking rates'!$G71*'Other input expert'!B$9),0)","v":0},{"$f":"IF('Picking rates'!$G71>0,'Yield & Sales calculation'!D71/('Picking rates'!$G71*'Other input expert'!C$9),0)","v":0},{"$f":"IF('Picking rates'!$G71>0,'Yield & Sales calculation'!E71/('Picking rates'!$G71*'Other input expert'!D$9),0)","v":0},{"$f":"IF('Picking rates'!$G71>0,'Yield & Sales calculation'!F71/('Picking rates'!$G71*'Other input expert'!E$9),0)","v":0},{"$f":"IF('Picking rates'!$G71>0,'Yield & Sales calculation'!G71/('Picking rates'!$G71*'Other input expert'!F$9),0)","v":0},{"$f":"IF('Picking rates'!$G71>0,'Yield & Sales calculation'!H71/('Picking rates'!$G71*'Other input expert'!G$9),0)","v":0},{"$f":"IF('Picking rates'!$G71>0,'Yield & Sales calculation'!I71/('Picking rates'!$G71*'Other input expert'!H$9),0)","v":0},{"$f":"IF('Picking rates'!$G71>0,'Yield & Sales calculation'!J71/('Picking rates'!$G71*'Other input expert'!I$9),0)","v":0},{"$f":"IF('Picking rates'!$G71>0,'Yield & Sales calculation'!K71/('Picking rates'!$G71*'Other input expert'!J$9),0)","v":0},{"$f":"IF('Picking rates'!$G71>0,'Yield & Sales calculation'!L71/('Picking rates'!$G71*'Other input expert'!K$9),0)","v":0},{"$f":"IF('Picking rates'!$G71>0,'Yield & Sales calculation'!M71/('Picking rates'!$G71*'Other input expert'!L$9),0)","v":0},{"$f":"IF('Picking rates'!$G71>0,'Yield & Sales calculation'!N71/('Picking rates'!$G71*'Other input expert'!M$9),0)","v":0}]
["Feijoa sellowiana","Pineapple guava",{"$f":"IF('Picking rates'!$G72>0,'Yield & Sales calculation'!C72/('Picking rates'!$G72*'Other input expert'!B$9),0)","v":0},{"$f":"IF('Picking rates'!$G72>0,'Yield & Sales calculation'!D72/('Picking rates'!$G72*'Other input expert'!C$9),0)","v":0},{"$f":"IF('Picking rates'!$G72>0,'Yield & Sales calculation'!E72/('Picking rates'!$G72*'Other input expert'!D$9),0)","v":0},{"$f":"IF('Picking rates'!$G72>0,'Yield & Sales calculation'!F72/('Picking rates'!$G72*'Other input expert'!E$9),0)","v":0},{"$f":"IF('Picking rates'!$G72>0,'Yield & Sales calculation'!G72/('Picking rates'!$G72*'Other input expert'!F$9),0)","v":0},{"$f":"IF('Picking rates'!$G72>0,'Yield & Sales calculation'!H72/('Picking rates'!$G72*'Other input expert'!G$9),0)","v":0},{"$f":"IF('Picking rates'!$G72>0,'Yield & Sales calculation'!I72/('Picking rates'!$G72*'Other input expert'!H$9),0)","v":0},{"$f":"IF('Picking rates'!$G72>0,'Yield & Sales calculation'!J72/('Picking rates'!$G72*'Other input expert'!I$9),0)","v":0},{"$f":"IF('Picking rates'!$G72>0,'Yield & Sales calculation'!K72/('Picking rates'!$G72*'Other input expert'!J$9),0)","v":0},{"$f":"IF('Picking rates'!$G72>0,'Yield & Sales calculation'!L72/('Picking rates'!$G72*'Other input expert'!K$9),0)","v":0},{"$f":"IF('Picking rates'!$G72>0,'Yield & Sales calculation'!M72/('Picking rates'!$G72*'Other input expert'!L$9),0)","v":0},{"$f":"IF('Picking rates'!$G72>0,'Yield & Sales calculation'!N72/('Picking rates'!$G72*'Other input expert'!M$9),0)","v":0}]
["Ficus carica","Fig",{"$f":"IF('Picking rates'!$G73>0,'Yield & Sales calculation'!C73/('Picking rates'!$G73*'Other input expert'!B$9),0)","v":0},{"$f":"IF('Picking rates'!$G73>0,'Yield & Sales calculation'!D73/('Picking rates'!$G73*'Other input expert'!C$9),0)","v":0},{"$f":"IF('Picking rates'!$G73>0,'Yield & Sales calculation'!E73/('Picking rates'!$G73*'Other input expert'!D$9),0)","v":0},{"$f":"IF('Picking rates'!$G73>0,'Yield & Sales calculation'!F73/('Picking rates'!$G73*'Other input expert'!E$9),0)","v":0},{"$f":"IF('Picking rates'!$G73>0,'Yield & Sales calculation'!G73/('Picking rates'!$G73*'Other input expert'!F$9),0)","v":0},{"$f":"IF('Picking rates'!$G73>0,'Yield & Sales calculation'!H73/('Picking rates'!$G73*'Other input expert'!G$9),0)","v":0},{"$f":"IF('Picking rates'!$G73>0,'Yield & Sales calculation'!I73/('Picking rates'!$G73*'Other input expert'!H$9),0)","v":0},{"$f":"IF('Picking rates'!$G73>0,'Yield & Sales calculation'!J73/('Picking rates'!$G73*'Other input expert'!I$9),0)","v":0},{"$f":"IF('Picking rates'!$G73>0,'Yield & Sales calculation'!K73/('Picking rates'!$G73*'Other input expert'!J$9),0)","v":0},{"$f":"IF('Picking rates'!$G73>0,'Yield & Sales calculation'!L73/('Picking rates'!$G73*'Other input expert'!K$9),0)","v":0},{"$f":"IF('Picking rates'!$G73>0,'Yield & Sales calculation'!M73/('Picking rates'!$G73*'Other input expert'!L$9),0)","v":0},{"$f":"IF('Picking rates'!$G73>0,'Yield & Sales calculation'!N73/('Picking rates'!$G73*'Other input expert'!M$9),0)","v":0}]
["Foeniculum vulgare","Fennel",{"$f":"IF('Picking rates'!$G74>0,'Yield & Sales calculation'!C74/('Picking rates'!$G74*'Other input expert'!B$9),0)","v":0},{"$f":"IF('Picking rates'!$G74>0,'Yield & Sales calculation'!D74/('Picking rates'!$G74*'Other input expert'!C$9),0)","v":0},{"$f":"IF('Picking rates'!$G74>0,'Yield & Sales calculation'!E74/('Picking rates'!$G74*'Other input expert'!D$9),0)","v":0},{"$f":"IF('Picking rates'!$G74>0,'Yield & Sales calculation'!F74/('Picking rates'!$G74*'Other input expert'!E$9),0)","v":0},{"$f":"IF('Picking rates'!$G74>0,'Yield & Sales calculation'!G74/('Picking rates'!$G74*'Other input expert'!F$9),0)","v":0},{"$f":"IF('Picking rates'!$G74>0,'Yield & Sales calculation'!H74/('Picking rates'!$G74*'Other input expert'!G$9),0)","v":0},{"$f":"IF('Picking rates'!$G74>0,'Yield & Sales calculation'!I74/('Picking rates'!$G74*'Other input expert'!H$9),0)","v":0},{"$f":"IF('Picking rates'!$G74>0,'Yield & Sales calculation'!J74/('Picking rates'!$G74*'Other input expert'!I$9),0)","v":0},{"$f":"IF('Picking rates'!$G74>0,'Yield & Sales calculation'!K74/('Picking rates'!$G74*'Other input expert'!J$9),0)","v":0},{"$f":"IF('Picking rates'!$G74>0,'Yield & Sales calculation'!L74/('Picking rates'!$G74*'Other input expert'!K$9),0)","v":0},{"$f":"IF('Picking rates'!$G74>0,'Yield & Sales calculation'!M74/('Picking rates'!$G74*'Other input expert'!L$9),0)","v":0},{"$f":"IF('Picking rates'!$G74>0,'Yield & Sales calculation'!N74/('Picking rates'!$G74*'Other input expert'!M$9),0)","v":0}]
["Gaultheria salal","Salal",{"$f":"IF('Picking rates'!$G75>0,'Yield & Sales calculation'!C75/('Picking rates'!$G75*'Other input expert'!B$9),0)","v":0},{"$f":"IF('Picking rates'!$G75>0,'Yield & Sales calculation'!D75/('Picking rates'!$G75*'Other input expert'!C$9),0)","v":0},{"$f":"IF('Picking rates'!$G75>0,'Yield & Sales calculation'!E75/('Picking rates'!$G75*'Other input expert'!D$9),0)","v":0},{"$f":"IF('Picking rates'!$G75>0,'Yield & Sales calculation'!F75/('Picking rates'!$G75*'Other input expert'!E$9),0)","v":0},{"$f":"IF('Picking rates'!$G75>0,'Yield & Sales calculation'!G75/('Picking rates'!$G75*'Other input expert'!F$9),0)","v":0},{"$f":"IF('Picking rates'!$G75>0,'Yield & Sales calculation'!H75/('Picking rates'!$G75*'Other input expert'!G$9),0)","v":0},{"$f":"IF('Picking rates'!$G75>0,'Yield & Sales calculation'!I75/('Picking rates'!$G75*'Other input expert'!H$9),0)","v":0},{"$f":"IF('Picking rates'!$G75>0,'Yield & Sales calculation'!J75/('Picking rates'!$G75*'Other input expert'!I$9),0)","v":0},{"$f":"IF('Picking rates'!$G75>0,'Yield & Sales calculation'!K75/('Picking rates'!$G75*'Other input expert'!J$9),0)","v":0},{"$f":"IF('Picking rates'!$G75>0,'Yield & Sales calculation'!L75/('Picking rates'!$G75*'Other input expert'!K$9),0)","v":0},{"$f":"IF('Picking rates'!$G75>0,'Yield & Sales calculation'!M75/('Picking rates'!$G75*'Other input expert'!L$9),0)","v":0},{"$f":"IF('Picking rates'!$G75>0,'Yield & Sales calculation'!N75/('Picking rates'!$G75*'Other input expert'!M$9),0)","v":0}]
["Geum spp-.","Wood avens",{"$f":"IF('Picking rates'!$G76>0,'Yield & Sales calculation'!C76/('Picking rates'!$G76*'Other input expert'!B$9),0)","v":0},{"$f":"IF('Picking rates'!$G76>0,'Yield & Sales calculation'!D76/('Picking rates'!$G76*'Other input expert'!C$9),0)","v":0},{"$f":"IF('Picking rates'!$G76>0,'Yield & Sales calculation'!E76/('Picking rates'!$G76*'Other input expert'!D$9),0)","v":0},{"$f":"IF('Picking rates'!$G76>0,'Yield & Sales calculation'!F76/('Picking rates'!$G76*'Other input expert'!E$9),0)","v":0},{"$f":"IF('Picking rates'!$G76>0,'Yield & Sales calculation'!G76/('Picking rates'!$G76*'Other input expert'!F$9),0)","v":0},{"$f":"IF('Picking rates'!$G76>0,'Yield & Sales calculation'!H76/('Picking rates'!$G76*'Other input expert'!G$9),0)","v":0},{"$f":"IF('Picking rates'!$G76>0,'Yield & Sales calculation'!I76/('Picking rates'!$G76*'Other input expert'!H$9),0)","v":0},{"$f":"IF('Picking rates'!$G76>0,'Yield & Sales calculation'!J76/('Picking rates'!$G76*'Other input expert'!I$9),0)","v":0},{"$f":"IF('Picking rates'!$G76>0,'Yield & Sales calculation'!K76/('Picking rates'!$G76*'Other input expert'!J$9),0)","v":0},{"$f":"IF('Picking rates'!$G76>0,'Yield & Sales calculation'!L76/('Picking rates'!$G76*'Other input expert'!K$9),0)","v":0},{"$f":"IF('Picking rates'!$G76>0,'Yield & Sales calculation'!M76/('Picking rates'!$G76*'Other input expert'!L$9),0)","v":0},{"$f":"IF('Picking rates'!$G76>0,'Yield & Sales calculation'!N76/('Picking rates'!$G76*'Other input expert'!M$9),0)","v":0}]
["Ginkgo Biloba","Ginkgo",{"$f":"IF('Picking rates'!$G77>0,'Yield & Sales calculation'!C77/('Picking rates'!$G77*'Other input expert'!B$9),0)","v":0},{"$f":"IF('Picking rates'!$G77>0,'Yield & Sales calculation'!D77/('Picking rates'!$G77*'Other input expert'!C$9),0)","v":0},{"$f":"IF('Picking rates'!$G77>0,'Yield & Sales calculation'!E77/('Picking rates'!$G77*'Other input expert'!D$9),0)","v":0},{"$f":"IF('Picking rates'!$G77>0,'Yield & Sales calculation'!F77/('Picking rates'!$G77*'Other input expert'!E$9),0)","v":0},{"$f":"IF('Picking rates'!$G77>0,'Yield & Sales calculation'!G77/('Picking rates'!$G77*'Other input expert'!F$9),0)","v":0},{"$f":"IF('Picking rates'!$G77>0,'Yield & Sales calculation'!H77/('Picking rates'!$G77*'Other input expert'!G$9),0)","v":0},{"$f":"IF('Picking rates'!$G77>0,'Yield & Sales calculation'!I77/('Picking rates'!$G77*'Other input expert'!H$9),0)","v":0},{"$f":"IF('Picking rates'!$G77>0,'Yield & Sales calculation'!J77/('Picking rates'!$G77*'Other input expert'!I$9),0)","v":0},{"$f":"IF('Picking rates'!$G77>0,'Yield & Sales calculation'!K77/('Picking rates'!$G77*'Other input expert'!J$9),0)","v":0},{"$f":"IF('Picking rates'!$G77>0,'Yield & Sales calculation'!L77/('Picking rates'!$G77*'Other input expert'!K$9),0)","v":0},{"$f":"IF('Picking rates'!$G77>0,'Yield & Sales calculation'!M77/('Picking rates'!$G77*'Other input expert'!L$9),0)","v":0},{"$f":"IF('Picking rates'!$G77>0,'Yield & Sales calculation'!N77/('Picking rates'!$G77*'Other input expert'!M$9),0)","v":0}]
["Gleditsia triacanthos","Honey locust",{"$f":"IF('Picking rates'!$G78>0,'Yield & Sales calculation'!C78/('Picking rates'!$G78*'Other input expert'!B$9),0)","v":0},{"$f":"IF('Picking rates'!$G78>0,'Yield & Sales calculation'!D78/('Picking rates'!$G78*'Other input expert'!C$9),0)","v":0},{"$f":"IF('Picking rates'!$G78>0,'Yield & Sales calculation'!E78/('Picking rates'!$G78*'Other input expert'!D$9),0)","v":0},{"$f":"IF('Picking rates'!$G78>0,'Yield & Sales calculation'!F78/('Picking rates'!$G78*'Other input expert'!E$9),0)","v":0},{"$f":"IF('Picking rates'!$G78>0,'Yield & Sales calculation'!G78/('Picking rates'!$G78*'Other input expert'!F$9),0)","v":0},{"$f":"IF('Picking rates'!$G78>0,'Yield & Sales calculation'!H78/('Picking rates'!$G78*'Other input expert'!G$9),0)","v":0},{"$f":"IF('Picking rates'!$G78>0,'Yield & Sales calculation'!I78/('Picking rates'!$G78*'Other input expert'!H$9),0)","v":0},{"$f":"IF('Picking rates'!$G78>0,'Yield & Sales calculation'!J78/('Picking rates'!$G78*'Other input expert'!I$9),0)","v":0},{"$f":"IF('Picking rates'!$G78>0,'Yield & Sales calculation'!K78/('Picking rates'!$G78*'Other input expert'!J$9),0)","v":0},{"$f":"IF('Picking rates'!$G78>0,'Yield & Sales calculation'!L78/('Picking rates'!$G78*'Other input expert'!K$9),0)","v":0},{"$f":"IF('Picking rates'!$G78>0,'Yield & Sales calculation'!M78/('Picking rates'!$G78*'Other input expert'!L$9),0)","v":0},{"$f":"IF('Picking rates'!$G78>0,'Yield & Sales calculation'!N78/('Picking rates'!$G78*'Other input expert'!M$9),0)","v":0}]
["Halesia carolina","Silver-bell tree",{"$f":"IF('Picking rates'!$G79>0,'Yield & Sales calculation'!C79/('Picking rates'!$G79*'Other input expert'!B$9),0)","v":0},{"$f":"IF('Picking rates'!$G79>0,'Yield & Sales calculation'!D79/('Picking rates'!$G79*'Other input expert'!C$9),0)","v":0},{"$f":"IF('Picking rates'!$G79>0,'Yield & Sales calculation'!E79/('Picking rates'!$G79*'Other input expert'!D$9),0)","v":0},{"$f":"IF('Picking rates'!$G79>0,'Yield & Sales calculation'!F79/('Picking rates'!$G79*'Other input expert'!E$9),0)","v":0},{"$f":"IF('Picking rates'!$G79>0,'Yield & Sales calculation'!G79/('Picking rates'!$G79*'Other input expert'!F$9),0)","v":0},{"$f":"IF('Picking rates'!$G79>0,'Yield & Sales calculation'!H79/('Picking rates'!$G79*'Other input expert'!G$9),0)","v":0},{"$f":"IF('Picking rates'!$G79>0,'Yield & Sales calculation'!I79/('Picking rates'!$G79*'Other input expert'!H$9),0)","v":0},{"$f":"IF('Picking rates'!$G79>0,'Yield & Sales calculation'!J79/('Picking rates'!$G79*'Other input expert'!I$9),0)","v":0},{"$f":"IF('Picking rates'!$G79>0,'Yield & Sales calculation'!K79/('Picking rates'!$G79*'Other input expert'!J$9),0)","v":0},{"$f":"IF('Picking rates'!$G79>0,'Yield & Sales calculation'!L79/('Picking rates'!$G79*'Other input expert'!K$9),0)","v":0},{"$f":"IF('Picking rates'!$G79>0,'Yield & Sales calculation'!M79/('Picking rates'!$G79*'Other input expert'!L$9),0)","v":0},{"$f":"IF('Picking rates'!$G79>0,'Yield & Sales calculation'!N79/('Picking rates'!$G79*'Other input expert'!M$9),0)","v":0}]
["Helichrysum italicum","Curry plant",{"$f":"IF('Picking rates'!$G80>0,'Yield & Sales calculation'!C80/('Picking rates'!$G80*'Other input expert'!B$9),0)","v":0},{"$f":"IF('Picking rates'!$G80>0,'Yield & Sales calculation'!D80/('Picking rates'!$G80*'Other input expert'!C$9),0)","v":0},{"$f":"IF('Picking rates'!$G80>0,'Yield & Sales calculation'!E80/('Picking rates'!$G80*'Other input expert'!D$9),0)","v":0},{"$f":"IF('Picking rates'!$G80>0,'Yield & Sales calculation'!F80/('Picking rates'!$G80*'Other input expert'!E$9),0)","v":0},{"$f":"IF('Picking rates'!$G80>0,'Yield & Sales calculation'!G80/('Picking rates'!$G80*'Other input expert'!F$9),0)","v":0},{"$f":"IF('Picking rates'!$G80>0,'Yield & Sales calculation'!H80/('Picking rates'!$G80*'Other input expert'!G$9),0)","v":0},{"$f":"IF('Picking rates'!$G80>0,'Yield & Sales calculation'!I80/('Picking rates'!$G80*'Other input expert'!H$9),0)","v":0},{"$f":"IF('Picking rates'!$G80>0,'Yield & Sales calculation'!J80/('Picking rates'!$G80*'Other input expert'!I$9),0)","v":0},{"$f":"IF('Picking rates'!$G80>0,'Yield & Sales calculation'!K80/('Picking rates'!$G80*'Other input expert'!J$9),0)","v":0},{"$f":"IF('Picking rates'!$G80>0,'Yield & Sales calculation'!L80/('Picking rates'!$G80*'Other input expert'!K$9),0)","v":0},{"$f":"IF('Picking rates'!$G80>0,'Yield & Sales calculation'!M80/('Picking rates'!$G80*'Other input expert'!L$9),0)","v":0},{"$f":"IF('Picking rates'!$G80>0,'Yield & Sales calculation'!N80/('Picking rates'!$G80*'Other input expert'!M$9),0)","v":0}]
["Hemercallis","Day lily",{"$f":"IF('Picking rates'!$G81>0,'Yield & Sales calculation'!C81/('Picking rates'!$G81*'Other input expert'!B$9),0)","v":0},{"$f":"IF('Picking rates'!$G81>0,'Yield & Sales calculation'!D81/('Picking rates'!$G81*'Other input expert'!C$9),0)","v":0},{"$f":"IF('Picking rates'!$G81>0,'Yield & Sales calculation'!E81/('Picking rates'!$G81*'Other input expert'!D$9),0)","v":0},{"$f":"IF('Picking rates'!$G81>0,'Yield & Sales calculation'!F81/('Picking rates'!$G81*'Other input expert'!E$9),0)","v":0},{"$f":"IF('Picking rates'!$G81>0,'Yield & Sales calculation'!G81/('Picking rates'!$G81*'Other input expert'!F$9),0)","v":0},{"$f":"IF('Picking rates'!$G81>0,'Yield & Sales calculation'!H81/('Picking rates'!$G81*'Other input expert'!G$9),0)","v":0},{"$f":"IF('Picking rates'!$G81>0,'Yield & Sales calculation'!I81/('Picking rates'!$G81*'Other input expert'!H$9),0)","v":0},{"$f":"IF('Picking rates'!$G81>0,'Yield & Sales calculation'!J81/('Picking rates'!$G81*'Other input expert'!I$9),0)","v":0},{"$f":"IF('Picking rates'!$G81>0,'Yield & Sales calculation'!K81/('Picking rates'!$G81*'Other input expert'!J$9),0)","v":0},{"$f":"IF('Picking rates'!$G81>0,'Yield & Sales calculation'!L81/('Picking rates'!$G81*'Other input expert'!K$9),0)","v":0},{"$f":"IF('Picking rates'!$G81>0,'Yield & Sales calculation'!M81/('Picking rates'!$G81*'Other input expert'!L$9),0)","v":0},{"$f":"IF('Picking rates'!$G81>0,'Yield & Sales calculation'!N81/('Picking rates'!$G81*'Other input expert'!M$9),0)","v":0}]
["Hibiscus syriacus","Hibiscus",{"$f":"IF('Picking rates'!$G82>0,'Yield & Sales calculation'!C82/('Picking rates'!$G82*'Other input expert'!B$9),0)","v":0},{"$f":"IF('Picking rates'!$G82>0,'Yield & Sales calculation'!D82/('Picking rates'!$G82*'Other input expert'!C$9),0)","v":0},{"$f":"IF('Picking rates'!$G82>0,'Yield & Sales calculation'!E82/('Picking rates'!$G82*'Other input expert'!D$9),0)","v":0},{"$f":"IF('Picking rates'!$G82>0,'Yield & Sales calculation'!F82/('Picking rates'!$G82*'Other input expert'!E$9),0)","v":0},{"$f":"IF('Picking rates'!$G82>0,'Yield & Sales calculation'!G82/('Picking rates'!$G82*'Other input expert'!F$9),0)","v":0},{"$f":"IF('Picking rates'!$G82>0,'Yield & Sales calculation'!H82/('Picking rates'!$G82*'Other input expert'!G$9),0)","v":0},{"$f":"IF('Picking rates'!$G82>0,'Yield & Sales calculation'!I82/('Picking rates'!$G82*'Other input expert'!H$9),0)","v":0},{"$f":"IF('Picking rates'!$G82>0,'Yield & Sales calculation'!J82/('Picking rates'!$G82*'Other input expert'!I$9),0)","v":0},{"$f":"IF('Picking rates'!$G82>0,'Yield & Sales calculation'!K82/('Picking rates'!$G82*'Other input expert'!J$9),0)","v":0},{"$f":"IF('Picking rates'!$G82>0,'Yield & Sales calculation'!L82/('Picking rates'!$G82*'Other input expert'!K$9),0)","v":0},{"$f":"IF('Picking rates'!$G82>0,'Yield & Sales calculation'!M82/('Picking rates'!$G82*'Other input expert'!L$9),0)","v":0},{"$f":"IF('Picking rates'!$G82>0,'Yield & Sales calculation'!N82/('Picking rates'!$G82*'Other input expert'!M$9),0)","v":0}]
["Hippophae rhamnoides","Sea Buckthorn",{"$f":"IF('Picking rates'!$G83>0,'Yield & Sales calculation'!C83/('Picking rates'!$G83*'Other input expert'!B$9),0)","v":0},{"$f":"IF('Picking rates'!$G83>0,'Yield & Sales calculation'!D83/('Picking rates'!$G83*'Other input expert'!C$9),0)","v":0},{"$f":"IF('Picking rates'!$G83>0,'Yield & Sales calculation'!E83/('Picking rates'!$G83*'Other input expert'!D$9),0)","v":0},{"$f":"IF('Picking rates'!$G83>0,'Yield & Sales calculation'!F83/('Picking rates'!$G83*'Other input expert'!E$9),0)","v":0},{"$f":"IF('Picking rates'!$G83>0,'Yield & Sales calculation'!G83/('Picking rates'!$G83*'Other input expert'!F$9),0)","v":0},{"$f":"IF('Picking rates'!$G83>0,'Yield & Sales calculation'!H83/('Picking rates'!$G83*'Other input expert'!G$9),0)","v":0},{"$f":"IF('Picking rates'!$G83>0,'Yield & Sales calculation'!I83/('Picking rates'!$G83*'Other input expert'!H$9),0)","v":0},{"$f":"IF('Picking rates'!$G83>0,'Yield & Sales calculation'!J83/('Picking rates'!$G83*'Other input expert'!I$9),0)","v":0},{"$f":"IF('Picking rates'!$G83>0,'Yield & Sales calculation'!K83/('Picking rates'!$G83*'Other input expert'!J$9),0)","v":0},{"$f":"IF('Picking rates'!$G83>0,'Yield & Sales calculation'!L83/('Picking rates'!$G83*'Other input expert'!K$9),0)","v":0},{"$f":"IF('Picking rates'!$G83>0,'Yield & Sales calculation'!M83/('Picking rates'!$G83*'Other input expert'!L$9),0)","v":0},{"$f":"IF('Picking rates'!$G83>0,'Yield & Sales calculation'!N83/('Picking rates'!$G83*'Other input expert'!M$9),0)","v":0}]
["Hosta spp.","Hosta",{"$f":"IF('Picking rates'!$G84>0,'Yield & Sales calculation'!C84/('Picking rates'!$G84*'Other input expert'!B$9),0)","v":0},{"$f":"IF('Picking rates'!$G84>0,'Yield & Sales calculation'!D84/('Picking rates'!$G84*'Other input expert'!C$9),0)","v":0},{"$f":"IF('Picking rates'!$G84>0,'Yield & Sales calculation'!E84/('Picking rates'!$G84*'Other input expert'!D$9),0)","v":0},{"$f":"IF('Picking rates'!$G84>0,'Yield & Sales calculation'!F84/('Picking rates'!$G84*'Other input expert'!E$9),0)","v":0},{"$f":"IF('Picking rates'!$G84>0,'Yield & Sales calculation'!G84/('Picking rates'!$G84*'Other input expert'!F$9),0)","v":0},{"$f":"IF('Picking rates'!$G84>0,'Yield & Sales calculation'!H84/('Picking rates'!$G84*'Other input expert'!G$9),0)","v":0},{"$f":"IF('Picking rates'!$G84>0,'Yield & Sales calculation'!I84/('Picking rates'!$G84*'Other input expert'!H$9),0)","v":0},{"$f":"IF('Picking rates'!$G84>0,'Yield & Sales calculation'!J84/('Picking rates'!$G84*'Other input expert'!I$9),0)","v":0},{"$f":"IF('Picking rates'!$G84>0,'Yield & Sales calculation'!K84/('Picking rates'!$G84*'Other input expert'!J$9),0)","v":0},{"$f":"IF('Picking rates'!$G84>0,'Yield & Sales calculation'!L84/('Picking rates'!$G84*'Other input expert'!K$9),0)","v":0},{"$f":"IF('Picking rates'!$G84>0,'Yield & Sales calculation'!M84/('Picking rates'!$G84*'Other input expert'!L$9),0)","v":0},{"$f":"IF('Picking rates'!$G84>0,'Yield & Sales calculation'!N84/('Picking rates'!$G84*'Other input expert'!M$9),0)","v":0}]
["Hovenia Dulcis","Japanese raisin tree",{"$f":"IF('Picking rates'!$G85>0,'Yield & Sales calculation'!C85/('Picking rates'!$G85*'Other input expert'!B$9),0)","v":0},{"$f":"IF('Picking rates'!$G85>0,'Yield & Sales calculation'!D85/('Picking rates'!$G85*'Other input expert'!C$9),0)","v":0},{"$f":"IF('Picking rates'!$G85>0,'Yield & Sales calculation'!E85/('Picking rates'!$G85*'Other input expert'!D$9),0)","v":0},{"$f":"IF('Picking rates'!$G85>0,'Yield & Sales calculation'!F85/('Picking rates'!$G85*'Other input expert'!E$9),0)","v":0},{"$f":"IF('Picking rates'!$G85>0,'Yield & Sales calculation'!G85/('Picking rates'!$G85*'Other input expert'!F$9),0)","v":0},{"$f":"IF('Picking rates'!$G85>0,'Yield & Sales calculation'!H85/('Picking rates'!$G85*'Other input expert'!G$9),0)","v":0},{"$f":"IF('Picking rates'!$G85>0,'Yield & Sales calculation'!I85/('Picking rates'!$G85*'Other input expert'!H$9),0)","v":0},{"$f":"IF('Picking rates'!$G85>0,'Yield & Sales calculation'!J85/('Picking rates'!$G85*'Other input expert'!I$9),0)","v":0},{"$f":"IF('Picking rates'!$G85>0,'Yield & Sales calculation'!K85/('Picking rates'!$G85*'Other input expert'!J$9),0)","v":0},{"$f":"IF('Picking rates'!$G85>0,'Yield & Sales calculation'!L85/('Picking rates'!$G85*'Other input expert'!K$9),0)","v":0},{"$f":"IF('Picking rates'!$G85>0,'Yield & Sales calculation'!M85/('Picking rates'!$G85*'Other input expert'!L$9),0)","v":0},{"$f":"IF('Picking rates'!$G85>0,'Yield & Sales calculation'!N85/('Picking rates'!$G85*'Other input expert'!M$9),0)","v":0}]
["Humulus Lupulus","Hop",{"$f":"IF('Picking rates'!$G86>0,'Yield & Sales calculation'!C86/('Picking rates'!$G86*'Other input expert'!B$9),0)","v":0},{"$f":"IF('Picking rates'!$G86>0,'Yield & Sales calculation'!D86/('Picking rates'!$G86*'Other input expert'!C$9),0)","v":0},{"$f":"IF('Picking rates'!$G86>0,'Yield & Sales calculation'!E86/('Picking rates'!$G86*'Other input expert'!D$9),0)","v":0},{"$f":"IF('Picking rates'!$G86>0,'Yield & Sales calculation'!F86/('Picking rates'!$G86*'Other input expert'!E$9),0)","v":0},{"$f":"IF('Picking rates'!$G86>0,'Yield & Sales calculation'!G86/('Picking rates'!$G86*'Other input expert'!F$9),0)","v":0},{"$f":"IF('Picking rates'!$G86>0,'Yield & Sales calculation'!H86/('Picking rates'!$G86*'Other input expert'!G$9),0)","v":0},{"$f":"IF('Picking rates'!$G86>0,'Yield & Sales calculation'!I86/('Picking rates'!$G86*'Other input expert'!H$9),0)","v":0},{"$f":"IF('Picking rates'!$G86>0,'Yield & Sales calculation'!J86/('Picking rates'!$G86*'Other input expert'!I$9),0)","v":0},{"$f":"IF('Picking rates'!$G86>0,'Yield & Sales calculation'!K86/('Picking rates'!$G86*'Other input expert'!J$9),0)","v":0},{"$f":"IF('Picking rates'!$G86>0,'Yield & Sales calculation'!L86/('Picking rates'!$G86*'Other input expert'!K$9),0)","v":0},{"$f":"IF('Picking rates'!$G86>0,'Yield & Sales calculation'!M86/('Picking rates'!$G86*'Other input expert'!L$9),0)","v":0},{"$f":"IF('Picking rates'!$G86>0,'Yield & Sales calculation'!N86/('Picking rates'!$G86*'Other input expert'!M$9),0)","v":0}]
["Hydrangea serrata","Hydrangea",{"$f":"IF('Picking rates'!$G87>0,'Yield & Sales calculation'!C87/('Picking rates'!$G87*'Other input expert'!B$9),0)","v":0},{"$f":"IF('Picking rates'!$G87>0,'Yield & Sales calculation'!D87/('Picking rates'!$G87*'Other input expert'!C$9),0)","v":0},{"$f":"IF('Picking rates'!$G87>0,'Yield & Sales calculation'!E87/('Picking rates'!$G87*'Other input expert'!D$9),0)","v":0},{"$f":"IF('Picking rates'!$G87>0,'Yield & Sales calculation'!F87/('Picking rates'!$G87*'Other input expert'!E$9),0)","v":0},{"$f":"IF('Picking rates'!$G87>0,'Yield & Sales calculation'!G87/('Picking rates'!$G87*'Other input expert'!F$9),0)","v":0},{"$f":"IF('Picking rates'!$G87>0,'Yield & Sales calculation'!H87/('Picking rates'!$G87*'Other input expert'!G$9),0)","v":0},{"$f":"IF('Picking rates'!$G87>0,'Yield & Sales calculation'!I87/('Picking rates'!$G87*'Other input expert'!H$9),0)","v":0},{"$f":"IF('Picking rates'!$G87>0,'Yield & Sales calculation'!J87/('Picking rates'!$G87*'Other input expert'!I$9),0)","v":0},{"$f":"IF('Picking rates'!$G87>0,'Yield & Sales calculation'!K87/('Picking rates'!$G87*'Other input expert'!J$9),0)","v":0},{"$f":"IF('Picking rates'!$G87>0,'Yield & Sales calculation'!L87/('Picking rates'!$G87*'Other input expert'!K$9),0)","v":0},{"$f":"IF('Picking rates'!$G87>0,'Yield & Sales calculation'!M87/('Picking rates'!$G87*'Other input expert'!L$9),0)","v":0},{"$f":"IF('Picking rates'!$G87>0,'Yield & Sales calculation'!N87/('Picking rates'!$G87*'Other input expert'!M$9),0)","v":0}]
["Hypsizygus tessellatus","Beech mushroom",{"$f":"IF('Picking rates'!$G88>0,'Yield & Sales calculation'!C88/('Picking rates'!$G88*'Other input expert'!B$9),0)","v":0},{"$f":"IF('Picking rates'!$G88>0,'Yield & Sales calculation'!D88/('Picking rates'!$G88*'Other input expert'!C$9),0)","v":0},{"$f":"IF('Picking rates'!$G88>0,'Yield & Sales calculation'!E88/('Picking rates'!$G88*'Other input expert'!D$9),0)","v":0},{"$f":"IF('Picking rates'!$G88>0,'Yield & Sales calculation'!F88/('Picking rates'!$G88*'Other input expert'!E$9),0)","v":0},{"$f":"IF('Picking rates'!$G88>0,'Yield & Sales calculation'!G88/('Picking rates'!$G88*'Other input expert'!F$9),0)","v":0},{"$f":"IF('Picking rates'!$G88>0,'Yield & Sales calculation'!H88/('Picking rates'!$G88*'Other input expert'!G$9),0)","v":0},{"$f":"IF('Picking rates'!$G88>0,'Yield & Sales calculation'!I88/('Picking rates'!$G88*'Other input expert'!H$9),0)","v":0},{"$f":"IF('Picking rates'!$G88>0,'Yield & Sales calculation'!J88/('Picking rates'!$G88*'Other input expert'!I$9),0)","v":0},{"$f":"IF('Picking rates'!$G88>0,'Yield & Sales calculation'!K88/('Picking rates'!$G88*'Other input expert'!J$9),0)","v":0},{"$f":"IF('Picking rates'!$G88>0,'Yield & Sales calculation'!L88/('Picking rates'!$G88*'Other input expert'!K$9),0)","v":0},{"$f":"IF('Picking rates'!$G88>0,'Yield & Sales calculation'!M88/('Picking rates'!$G88*'Other input expert'!L$9),0)","v":0},{"$f":"IF('Picking rates'!$G88>0,'Yield & Sales calculation'!N88/('Picking rates'!$G88*'Other input expert'!M$9),0)","v":0}]
["Ilex aquifolium","Holly",{"$f":"IF('Picking rates'!$G89>0,'Yield & Sales calculation'!C89/('Picking rates'!$G89*'Other input expert'!B$9),0)","v":0},{"$f":"IF('Picking rates'!$G89>0,'Yield & Sales calculation'!D89/('Picking rates'!$G89*'Other input expert'!C$9),0)","v":0},{"$f":"IF('Picking rates'!$G89>0,'Yield & Sales calculation'!E89/('Picking rates'!$G89*'Other input expert'!D$9),0)","v":0},{"$f":"IF('Picking rates'!$G89>0,'Yield & Sales calculation'!F89/('Picking rates'!$G89*'Other input expert'!E$9),0)","v":0},{"$f":"IF('Picking rates'!$G89>0,'Yield & Sales calculation'!G89/('Picking rates'!$G89*'Other input expert'!F$9),0)","v":0},{"$f":"IF('Picking rates'!$G89>0,'Yield & Sales calculation'!H89/('Picking rates'!$G89*'Other input expert'!G$9),0)","v":0},{"$f":"IF('Picking rates'!$G89>0,'Yield & Sales calculation'!I89/('Picking rates'!$G89*'Other input expert'!H$9),0)","v":0},{"$f":"IF('Picking rates'!$G89>0,'Yield & Sales calculation'!J89/('Picking rates'!$G89*'Other input expert'!I$9),0)","v":0},{"$f":"IF('Picking rates'!$G89>0,'Yield & Sales calculation'!K89/('Picking rates'!$G89*'Other input expert'!J$9),0)","v":0},{"$f":"IF('Picking rates'!$G89>0,'Yield & Sales calculation'!L89/('Picking rates'!$G89*'Other input expert'!K$9),0)","v":0},{"$f":"IF('Picking rates'!$G89>0,'Yield & Sales calculation'!M89/('Picking rates'!$G89*'Other input expert'!L$9),0)","v":0},{"$f":"IF('Picking rates'!$G89>0,'Yield & Sales calculation'!N89/('Picking rates'!$G89*'Other input expert'!M$9),0)","v":0}]
["Juglans ailantifolia","Japanese walnut (hartnut)",{"$f":"IF('Picking rates'!$G90>0,'Yield & Sales calculation'!C90/('Picking rates'!$G90*'Other input expert'!B$9),0)","v":0},{"$f":"IF('Picking rates'!$G90>0,'Yield & Sales calculation'!D90/('Picking rates'!$G90*'Other input expert'!C$9),0)","v":0},{"$f":"IF('Picking rates'!$G90>0,'Yield & Sales calculation'!E90/('Picking rates'!$G90*'Other input expert'!D$9),0)","v":0},{"$f":"IF('Picking rates'!$G90>0,'Yield & Sales calculation'!F90/('Picking rates'!$G90*'Other input expert'!E$9),0)","v":0},{"$f":"IF('Picking rates'!$G90>0,'Yield & Sales calculation'!G90/('Picking rates'!$G90*'Other input expert'!F$9),0)","v":0},{"$f":"IF('Picking rates'!$G90>0,'Yield & Sales calculation'!H90/('Picking rates'!$G90*'Other input expert'!G$9),0)","v":0},{"$f":"IF('Picking rates'!$G90>0,'Yield & Sales calculation'!I90/('Picking rates'!$G90*'Other input expert'!H$9),0)","v":0},{"$f":"IF('Picking rates'!$G90>0,'Yield & Sales calculation'!J90/('Picking rates'!$G90*'Other input expert'!I$9),0)","v":0},{"$f":"IF('Picking rates'!$G90>0,'Yield & Sales calculation'!K90/('Picking rates'!$G90*'Other input expert'!J$9),0)","v":0},{"$f":"IF('Picking rates'!$G90>0,'Yield & Sales calculation'!L90/('Picking rates'!$G90*'Other input expert'!K$9),0)","v":0},{"$f":"IF('Picking rates'!$G90>0,'Yield & Sales calculation'!M90/('Picking rates'!$G90*'Other input expert'!L$9),0)","v":0},{"$f":"IF('Picking rates'!$G90>0,'Yield & Sales calculation'!N90/('Picking rates'!$G90*'Other input expert'!M$9),0)","v":0}]
["Juglans cinerea","Butternut, white walnut",{"$f":"IF('Picking rates'!$G91>0,'Yield & Sales calculation'!C91/('Picking rates'!$G91*'Other input expert'!B$9),0)","v":0},{"$f":"IF('Picking rates'!$G91>0,'Yield & Sales calculation'!D91/('Picking rates'!$G91*'Other input expert'!C$9),0)","v":0},{"$f":"IF('Picking rates'!$G91>0,'Yield & Sales calculation'!E91/('Picking rates'!$G91*'Other input expert'!D$9),0)","v":0},{"$f":"IF('Picking rates'!$G91>0,'Yield & Sales calculation'!F91/('Picking rates'!$G91*'Other input expert'!E$9),0)","v":0},{"$f":"IF('Picking rates'!$G91>0,'Yield & Sales calculation'!G91/('Picking rates'!$G91*'Other input expert'!F$9),0)","v":0},{"$f":"IF('Picking rates'!$G91>0,'Yield & Sales calculation'!H91/('Picking rates'!$G91*'Other input expert'!G$9),0)","v":0},{"$f":"IF('Picking rates'!$G91>0,'Yield & Sales calculation'!I91/('Picking rates'!$G91*'Other input expert'!H$9),0)","v":0},{"$f":"IF('Picking rates'!$G91>0,'Yield & Sales calculation'!J91/('Picking rates'!$G91*'Other input expert'!I$9),0)","v":0},{"$f":"IF('Picking rates'!$G91>0,'Yield & Sales calculation'!K91/('Picking rates'!$G91*'Other input expert'!J$9),0)","v":0},{"$f":"IF('Picking rates'!$G91>0,'Yield & Sales calculation'!L91/('Picking rates'!$G91*'Other input expert'!K$9),0)","v":0},{"$f":"IF('Picking rates'!$G91>0,'Yield & Sales calculation'!M91/('Picking rates'!$G91*'Other input expert'!L$9),0)","v":0},{"$f":"IF('Picking rates'!$G91>0,'Yield & Sales calculation'!N91/('Picking rates'!$G91*'Other input expert'!M$9),0)","v":0}]
["Juglans nigra","Black walnut",{"$f":"IF('Picking rates'!$G92>0,'Yield & Sales calculation'!C92/('Picking rates'!$G92*'Other input expert'!B$9),0)","v":0},{"$f":"IF('Picking rates'!$G92>0,'Yield & Sales calculation'!D92/('Picking rates'!$G92*'Other input expert'!C$9),0)","v":0},{"$f":"IF('Picking rates'!$G92>0,'Yield & Sales calculation'!E92/('Picking rates'!$G92*'Other input expert'!D$9),0)","v":0},{"$f":"IF('Picking rates'!$G92>0,'Yield & Sales calculation'!F92/('Picking rates'!$G92*'Other input expert'!E$9),0)","v":0},{"$f":"IF('Picking rates'!$G92>0,'Yield & Sales calculation'!G92/('Picking rates'!$G92*'Other input expert'!F$9),0)","v":0},{"$f":"IF('Picking rates'!$G92>0,'Yield & Sales calculation'!H92/('Picking rates'!$G92*'Other input expert'!G$9),0)","v":0},{"$f":"IF('Picking rates'!$G92>0,'Yield & Sales calculation'!I92/('Picking rates'!$G92*'Other input expert'!H$9),0)","v":0},{"$f":"IF('Picking rates'!$G92>0,'Yield & Sales calculation'!J92/('Picking rates'!$G92*'Other input expert'!I$9),0)","v":0},{"$f":"IF('Picking rates'!$G92>0,'Yield & Sales calculation'!K92/('Picking rates'!$G92*'Other input expert'!J$9),0)","v":0},{"$f":"IF('Picking rates'!$G92>0,'Yield & Sales calculation'!L92/('Picking rates'!$G92*'Other input expert'!K$9),0)","v":0},{"$f":"IF('Picking rates'!$G92>0,'Yield & Sales calculation'!M92/('Picking rates'!$G92*'Other input expert'!L$9),0)","v":0},{"$f":"IF('Picking rates'!$G92>0,'Yield & Sales calculation'!N92/('Picking rates'!$G92*'Other input expert'!M$9),0)","v":0}]
["Juglans regia","Walnut",{"$f":"IF('Picking rates'!$G93>0,'Yield & Sales calculation'!C93/('Picking rates'!$G93*'Other input expert'!B$9),0)","v":0},{"$f":"IF('Picking rates'!$G93>0,'Yield & Sales calculation'!D93/('Picking rates'!$G93*'Other input expert'!C$9),0)","v":0},{"$f":"IF('Picking rates'!$G93>0,'Yield & Sales calculation'!E93/('Picking rates'!$G93*'Other input expert'!D$9),0)","v":0},{"$f":"IF('Picking rates'!$G93>0,'Yield & Sales calculation'!F93/('Picking rates'!$G93*'Other input expert'!E$9),0)","v":0},{"$f":"IF('Picking rates'!$G93>0,'Yield & Sales calculation'!G93/('Picking rates'!$G93*'Other input expert'!F$9),0)","v":0},{"$f":"IF('Picking rates'!$G93>0,'Yield & Sales calculation'!H93/('Picking rates'!$G93*'Other input expert'!G$9),0)","v":0},{"$f":"IF('Picking rates'!$G93>0,'Yield & Sales calculation'!I93/('Picking rates'!$G93*'Other input expert'!H$9),0)","v":0},{"$f":"IF('Picking rates'!$G93>0,'Yield & Sales calculation'!J93/('Picking rates'!$G93*'Other input expert'!I$9),0)","v":0},{"$f":"IF('Picking rates'!$G93>0,'Yield & Sales calculation'!K93/('Picking rates'!$G93*'Other input expert'!J$9),0)","v":0},{"$f":"IF('Picking rates'!$G93>0,'Yield & Sales calculation'!L93/('Picking rates'!$G93*'Other input expert'!K$9),0)","v":0},{"$f":"IF('Picking rates'!$G93>0,'Yield & Sales calculation'!M93/('Picking rates'!$G93*'Other input expert'!L$9),0)","v":0},{"$f":"IF('Picking rates'!$G93>0,'Yield & Sales calculation'!N93/('Picking rates'!$G93*'Other input expert'!M$9),0)","v":0}]
["Laurus nobilis","Bay tree",{"$f":"IF('Picking rates'!$G94>0,'Yield & Sales calculation'!C94/('Picking rates'!$G94*'Other input expert'!B$9),0)","v":0},{"$f":"IF('Picking rates'!$G94>0,'Yield & Sales calculation'!D94/('Picking rates'!$G94*'Other input expert'!C$9),0)","v":0},{"$f":"IF('Picking rates'!$G94>0,'Yield & Sales calculation'!E94/('Picking rates'!$G94*'Other input expert'!D$9),0)","v":0},{"$f":"IF('Picking rates'!$G94>0,'Yield & Sales calculation'!F94/('Picking rates'!$G94*'Other input expert'!E$9),0)","v":0},{"$f":"IF('Picking rates'!$G94>0,'Yield & Sales calculation'!G94/('Picking rates'!$G94*'Other input expert'!F$9),0)","v":0},{"$f":"IF('Picking rates'!$G94>0,'Yield & Sales calculation'!H94/('Picking rates'!$G94*'Other input expert'!G$9),0)","v":0},{"$f":"IF('Picking rates'!$G94>0,'Yield & Sales calculation'!I94/('Picking rates'!$G94*'Other input expert'!H$9),0)","v":0},{"$f":"IF('Picking rates'!$G94>0,'Yield & Sales calculation'!J94/('Picking rates'!$G94*'Other input expert'!I$9),0)","v":0},{"$f":"IF('Picking rates'!$G94>0,'Yield & Sales calculation'!K94/('Picking rates'!$G94*'Other input expert'!J$9),0)","v":0},{"$f":"IF('Picking rates'!$G94>0,'Yield & Sales calculation'!L94/('Picking rates'!$G94*'Other input expert'!K$9),0)","v":0},{"$f":"IF('Picking rates'!$G94>0,'Yield & Sales calculation'!M94/('Picking rates'!$G94*'Other input expert'!L$9),0)","v":0},{"$f":"IF('Picking rates'!$G94>0,'Yield & Sales calculation'!N94/('Picking rates'!$G94*'Other input expert'!M$9),0)","v":0}]
["Lentinula edodes","Shiitake",{"$f":"IF('Picking rates'!$G95>0,'Yield & Sales calculation'!C95/('Picking rates'!$G95*'Other input expert'!B$9),0)","v":0},{"$f":"IF('Picking rates'!$G95>0,'Yield & Sales calculation'!D95/('Picking rates'!$G95*'Other input expert'!C$9),0)","v":0},{"$f":"IF('Picking rates'!$G95>0,'Yield & Sales calculation'!E95/('Picking rates'!$G95*'Other input expert'!D$9),0)","v":0},{"$f":"IF('Picking rates'!$G95>0,'Yield & Sales calculation'!F95/('Picking rates'!$G95*'Other input expert'!E$9),0)","v":0},{"$f":"IF('Picking rates'!$G95>0,'Yield & Sales calculation'!G95/('Picking rates'!$G95*'Other input expert'!F$9),0)","v":0},{"$f":"IF('Picking rates'!$G95>0,'Yield & Sales calculation'!H95/('Picking rates'!$G95*'Other input expert'!G$9),0)","v":0},{"$f":"IF('Picking rates'!$G95>0,'Yield & Sales calculation'!I95/('Picking rates'!$G95*'Other input expert'!H$9),0)","v":0},{"$f":"IF('Picking rates'!$G95>0,'Yield & Sales calculation'!J95/('Picking rates'!$G95*'Other input expert'!I$9),0)","v":0},{"$f":"IF('Picking rates'!$G95>0,'Yield & Sales calculation'!K95/('Picking rates'!$G95*'Other input expert'!J$9),0)","v":0},{"$f":"IF('Picking rates'!$G95>0,'Yield & Sales calculation'!L95/('Picking rates'!$G95*'Other input expert'!K$9),0)","v":0},{"$f":"IF('Picking rates'!$G95>0,'Yield & Sales calculation'!M95/('Picking rates'!$G95*'Other input expert'!L$9),0)","v":0},{"$f":"IF('Picking rates'!$G95>0,'Yield & Sales calculation'!N95/('Picking rates'!$G95*'Other input expert'!M$9),0)","v":0}]
["Lonicera caerulea","Honeysuckle",{"$f":"IF('Picking rates'!$G96>0,'Yield & Sales calculation'!C96/('Picking rates'!$G96*'Other input expert'!B$9),0)","v":0},{"$f":"IF('Picking rates'!$G96>0,'Yield & Sales calculation'!D96/('Picking rates'!$G96*'Other input expert'!C$9),0)","v":0},{"$f":"IF('Picking rates'!$G96>0,'Yield & Sales calculation'!E96/('Picking rates'!$G96*'Other input expert'!D$9),0)","v":0},{"$f":"IF('Picking rates'!$G96>0,'Yield & Sales calculation'!F96/('Picking rates'!$G96*'Other input expert'!E$9),0)","v":0},{"$f":"IF('Picking rates'!$G96>0,'Yield & Sales calculation'!G96/('Picking rates'!$G96*'Other input expert'!F$9),0)","v":0},{"$f":"IF('Picking rates'!$G96>0,'Yield & Sales calculation'!H96/('Picking rates'!$G96*'Other input expert'!G$9),0)","v":0},{"$f":"IF('Picking rates'!$G96>0,'Yield & Sales calculation'!I96/('Picking rates'!$G96*'Other input expert'!H$9),0)","v":0},{"$f":"IF('Picking rates'!$G96>0,'Yield & Sales calculation'!J96/('Picking rates'!$G96*'Other input expert'!I$9),0)","v":0},{"$f":"IF('Picking rates'!$G96>0,'Yield & Sales calculation'!K96/('Picking rates'!$G96*'Other input expert'!J$9),0)","v":0},{"$f":"IF('Picking rates'!$G96>0,'Yield & Sales calculation'!L96/('Picking rates'!$G96*'Other input expert'!K$9),0)","v":0},{"$f":"IF('Picking rates'!$G96>0,'Yield & Sales calculation'!M96/('Picking rates'!$G96*'Other input expert'!L$9),0)","v":0},{"$f":"IF('Picking rates'!$G96>0,'Yield & Sales calculation'!N96/('Picking rates'!$G96*'Other input expert'!M$9),0)","v":0}]
["lonicera caerulea (juli)","Honeysuckle",{"$f":"IF('Picking rates'!$G97>0,'Yield & Sales calculation'!C97/('Picking rates'!$G97*'Other input expert'!B$9),0)","v":0},{"$f":"IF('Picking rates'!$G97>0,'Yield & Sales calculation'!D97/('Picking rates'!$G97*'Other input expert'!C$9),0)","v":0},{"$f":"IF('Picking rates'!$G97>0,'Yield & Sales calculation'!E97/('Picking rates'!$G97*'Other input expert'!D$9),0)","v":0},{"$f":"IF('Picking rates'!$G97>0,'Yield & Sales calculation'!F97/('Picking rates'!$G97*'Other input expert'!E$9),0)","v":0},{"$f":"IF('Picking rates'!$G97>0,'Yield & Sales calculation'!G97/('Picking rates'!$G97*'Other input expert'!F$9),0)","v":0},{"$f":"IF('Picking rates'!$G97>0,'Yield & Sales calculation'!H97/('Picking rates'!$G97*'Other input expert'!G$9),0)","v":0},{"$f":"IF('Picking rates'!$G97>0,'Yield & Sales calculation'!I97/('Picking rates'!$G97*'Other input expert'!H$9),0)","v":0},{"$f":"IF('Picking rates'!$G97>0,'Yield & Sales calculation'!J97/('Picking rates'!$G97*'Other input expert'!I$9),0)","v":0},{"$f":"IF('Picking rates'!$G97>0,'Yield & Sales calculation'!K97/('Picking rates'!$G97*'Other input expert'!J$9),0)","v":0},{"$f":"IF('Picking rates'!$G97>0,'Yield & Sales calculation'!L97/('Picking rates'!$G97*'Other input expert'!K$9),0)","v":0},{"$f":"IF('Picking rates'!$G97>0,'Yield & Sales calculation'!M97/('Picking rates'!$G97*'Other input expert'!L$9),0)","v":0},{"$f":"IF('Picking rates'!$G97>0,'Yield & Sales calculation'!N97/('Picking rates'!$G97*'Other input expert'!M$9),0)","v":0}]
["Lycium barbarum","Gojiberry",{"$f":"IF('Picking rates'!$G98>0,'Yield & Sales calculation'!C98/('Picking rates'!$G98*'Other input expert'!B$9),0)","v":0},{"$f":"IF('Picking rates'!$G98>0,'Yield & Sales calculation'!D98/('Picking rates'!$G98*'Other input expert'!C$9),0)","v":0},{"$f":"IF('Picking rates'!$G98>0,'Yield & Sales calculation'!E98/('Picking rates'!$G98*'Other input expert'!D$9),0)","v":0},{"$f":"IF('Picking rates'!$G98>0,'Yield & Sales calculation'!F98/('Picking rates'!$G98*'Other input expert'!E$9),0)","v":0},{"$f":"IF('Picking rates'!$G98>0,'Yield & Sales calculation'!G98/('Picking rates'!$G98*'Other input expert'!F$9),0)","v":0},{"$f":"IF('Picking rates'!$G98>0,'Yield & Sales calculation'!H98/('Picking rates'!$G98*'Other input expert'!G$9),0)","v":0},{"$f":"IF('Picking rates'!$G98>0,'Yield & Sales calculation'!I98/('Picking rates'!$G98*'Other input expert'!H$9),0)","v":0},{"$f":"IF('Picking rates'!$G98>0,'Yield & Sales calculation'!J98/('Picking rates'!$G98*'Other input expert'!I$9),0)","v":0},{"$f":"IF('Picking rates'!$G98>0,'Yield & Sales calculation'!K98/('Picking rates'!$G98*'Other input expert'!J$9),0)","v":0},{"$f":"IF('Picking rates'!$G98>0,'Yield & Sales calculation'!L98/('Picking rates'!$G98*'Other input expert'!K$9),0)","v":0},{"$f":"IF('Picking rates'!$G98>0,'Yield & Sales calculation'!M98/('Picking rates'!$G98*'Other input expert'!L$9),0)","v":0},{"$f":"IF('Picking rates'!$G98>0,'Yield & Sales calculation'!N98/('Picking rates'!$G98*'Other input expert'!M$9),0)","v":0}]
["Magnolia x soulangeana","Magnolia",{"$f":"IF('Picking rates'!$G99>0,'Yield & Sales calculation'!C99/('Picking rates'!$G99*'Other input expert'!B$9),0)","v":0},{"$f":"IF('Picking rates'!$G99>0,'Yield & Sales calculation'!D99/('Picking rates'!$G99*'Other input expert'!C$9),0)","v":0},{"$f":"IF('Picking rates'!$G99>0,'Yield & Sales calculation'!E99/('Picking rates'!$G99*'Other input expert'!D$9),0)","v":0},{"$f":"IF('Picking rates'!$G99>0,'Yield & Sales calculation'!F99/('Picking rates'!$G99*'Other input expert'!E$9),0)","v":0},{"$f":"IF('Picking rates'!$G99>0,'Yield & Sales calculation'!G99/('Picking rates'!$G99*'Other input expert'!F$9),0)","v":0},{"$f":"IF('Picking rates'!$G99>0,'Yield & Sales calculation'!H99/('Picking rates'!$G99*'Other input expert'!G$9),0)","v":0},{"$f":"IF('Picking rates'!$G99>0,'Yield & Sales calculation'!I99/('Picking rates'!$G99*'Other input expert'!H$9),0)","v":0},{"$f":"IF('Picking rates'!$G99>0,'Yield & Sales calculation'!J99/('Picking rates'!$G99*'Other input expert'!I$9),0)","v":0},{"$f":"IF('Picking rates'!$G99>0,'Yield & Sales calculation'!K99/('Picking rates'!$G99*'Other input expert'!J$9),0)","v":0},{"$f":"IF('Picking rates'!$G99>0,'Yield & Sales calculation'!L99/('Picking rates'!$G99*'Other input expert'!K$9),0)","v":0},{"$f":"IF('Picking rates'!$G99>0,'Yield & Sales calculation'!M99/('Picking rates'!$G99*'Other input expert'!L$9),0)","v":0},{"$f":"IF('Picking rates'!$G99>0,'Yield & Sales calculation'!N99/('Picking rates'!$G99*'Other input expert'!M$9),0)","v":0}]
["Mahonia aquifolium","Oregon grape",{"$f":"IF('Picking rates'!$G100>0,'Yield & Sales calculation'!C100/('Picking rates'!$G100*'Other input expert'!B$9),0)","v":0},{"$f":"IF('Picking rates'!$G100>0,'Yield & Sales calculation'!D100/('Picking rates'!$G100*'Other input expert'!C$9),0)","v":0},{"$f":"IF('Picking rates'!$G100>0,'Yield & Sales calculation'!E100/('Picking rates'!$G100*'Other input expert'!D$9),0)","v":0},{"$f":"IF('Picking rates'!$G100>0,'Yield & Sales calculation'!F100/('Picking rates'!$G100*'Other input expert'!E$9),0)","v":0},{"$f":"IF('Picking rates'!$G100>0,'Yield & Sales calculation'!G100/('Picking rates'!$G100*'Other input expert'!F$9),0)","v":0},{"$f":"IF('Picking rates'!$G100>0,'Yield & Sales calculation'!H100/('Picking rates'!$G100*'Other input expert'!G$9),0)","v":0},{"$f":"IF('Picking rates'!$G100>0,'Yield & Sales calculation'!I100/('Picking rates'!$G100*'Other input expert'!H$9),0)","v":0},{"$f":"IF('Picking rates'!$G100>0,'Yield & Sales calculation'!J100/('Picking rates'!$G100*'Other input expert'!I$9),0)","v":0},{"$f":"IF('Picking rates'!$G100>0,'Yield & Sales calculation'!K100/('Picking rates'!$G100*'Other input expert'!J$9),0)","v":0},{"$f":"IF('Picking rates'!$G100>0,'Yield & Sales calculation'!L100/('Picking rates'!$G100*'Other input expert'!K$9),0)","v":0},{"$f":"IF('Picking rates'!$G100>0,'Yield & Sales calculation'!M100/('Picking rates'!$G100*'Other input expert'!L$9),0)","v":0},{"$f":"IF('Picking rates'!$G100>0,'Yield & Sales calculation'!N100/('Picking rates'!$G100*'Other input expert'!M$9),0)","v":0}]
["Malus domestica (Culinary)","Apple",{"$f":"IF('Picking rates'!$G101>0,'Yield & Sales calculation'!C101/('Picking rates'!$G101*'Other input expert'!B$9),0)","v":0},{"$f":"IF('Picking rates'!$G101>0,'Yield & Sales calculation'!D101/('Picking rates'!$G101*'Other input expert'!C$9),0)","v":0},{"$f":"IF('Picking rates'!$G101>0,'Yield & Sales calculation'!E101/('Picking rates'!$G101*'Other input expert'!D$9),0)","v":0},{"$f":"IF('Picking rates'!$G101>0,'Yield & Sales calculation'!F101/('Picking rates'!$G101*'Other input expert'!E$9),0)","v":0},{"$f":"IF('Picking rates'!$G101>0,'Yield & Sales calculation'!G101/('Picking rates'!$G101*'Other input expert'!F$9),0)","v":0},{"$f":"IF('Picking rates'!$G101>0,'Yield & Sales calculation'!H101/('Picking rates'!$G101*'Other input expert'!G$9),0)","v":0},{"$f":"IF('Picking rates'!$G101>0,'Yield & Sales calculation'!I101/('Picking rates'!$G101*'Other input expert'!H$9),0)","v":0},{"$f":"IF('Picking rates'!$G101>0,'Yield & Sales calculation'!J101/('Picking rates'!$G101*'Other input expert'!I$9),0)","v":0},{"$f":"IF('Picking rates'!$G101>0,'Yield & Sales calculation'!K101/('Picking rates'!$G101*'Other input expert'!J$9),0)","v":0},{"$f":"IF('Picking rates'!$G101>0,'Yield & Sales calculation'!L101/('Picking rates'!$G101*'Other input expert'!K$9),0)","v":0},{"$f":"IF('Picking rates'!$G101>0,'Yield & Sales calculation'!M101/('Picking rates'!$G101*'Other input expert'!L$9),0)","v":0},{"$f":"IF('Picking rates'!$G101>0,'Yield & Sales calculation'!N101/('Picking rates'!$G101*'Other input expert'!M$9),0)","v":0}]
["Malus domestica (Dessert)","Apple",{"$f":"IF('Picking rates'!$G102>0,'Yield & Sales calculation'!C102/('Picking rates'!$G102*'Other input expert'!B$9),0)","v":0},{"$f":"IF('Picking rates'!$G102>0,'Yield & Sales calculation'!D102/('Picking rates'!$G102*'Other input expert'!C$9),0)","v":0},{"$f":"IF('Picking rates'!$G102>0,'Yield & Sales calculation'!E102/('Picking rates'!$G102*'Other input expert'!D$9),0)","v":0},{"$f":"IF('Picking rates'!$G102>0,'Yield & Sales calculation'!F102/('Picking rates'!$G102*'Other input expert'!E$9),0)","v":0},{"$f":"IF('Picking rates'!$G102>0,'Yield & Sales calculation'!G102/('Picking rates'!$G102*'Other input expert'!F$9),0)","v":0},{"$f":"IF('Picking rates'!$G102>0,'Yield & Sales calculation'!H102/('Picking rates'!$G102*'Other input expert'!G$9),0)","v":0},{"$f":"IF('Picking rates'!$G102>0,'Yield & Sales calculation'!I102/('Picking rates'!$G102*'Other input expert'!H$9),0)","v":0},{"$f":"IF('Picking rates'!$G102>0,'Yield & Sales calculation'!J102/('Picking rates'!$G102*'Other input expert'!I$9),0)","v":0},{"$f":"IF('Picking rates'!$G102>0,'Yield & Sales calculation'!K102/('Picking rates'!$G102*'Other input expert'!J$9),0)","v":0},{"$f":"IF('Picking rates'!$G102>0,'Yield & Sales calculation'!L102/('Picking rates'!$G102*'Other input expert'!K$9),0)","v":0},{"$f":"IF('Picking rates'!$G102>0,'Yield & Sales calculation'!M102/('Picking rates'!$G102*'Other input expert'!L$9),0)","v":0},{"$f":"IF('Picking rates'!$G102>0,'Yield & Sales calculation'!N102/('Picking rates'!$G102*'Other input expert'!M$9),0)","v":0}]
["Malus domestica cider","Apple",{"$f":"IF('Picking rates'!$G103>0,'Yield & Sales calculation'!C103/('Picking rates'!$G103*'Other input expert'!B$9),0)","v":0},{"$f":"IF('Picking rates'!$G103>0,'Yield & Sales calculation'!D103/('Picking rates'!$G103*'Other input expert'!C$9),0)","v":0},{"$f":"IF('Picking rates'!$G103>0,'Yield & Sales calculation'!E103/('Picking rates'!$G103*'Other input expert'!D$9),0)","v":0},{"$f":"IF('Picking rates'!$G103>0,'Yield & Sales calculation'!F103/('Picking rates'!$G103*'Other input expert'!E$9),0)","v":0},{"$f":"IF('Picking rates'!$G103>0,'Yield & Sales calculation'!G103/('Picking rates'!$G103*'Other input expert'!F$9),0)","v":0},{"$f":"IF('Picking rates'!$G103>0,'Yield & Sales calculation'!H103/('Picking rates'!$G103*'Other input expert'!G$9),0)","v":0},{"$f":"IF('Picking rates'!$G103>0,'Yield & Sales calculation'!I103/('Picking rates'!$G103*'Other input expert'!H$9),0)","v":0},{"$f":"IF('Picking rates'!$G103>0,'Yield & Sales calculation'!J103/('Picking rates'!$G103*'Other input expert'!I$9),0)","v":0},{"$f":"IF('Picking rates'!$G103>0,'Yield & Sales calculation'!K103/('Picking rates'!$G103*'Other input expert'!J$9),0)","v":0},{"$f":"IF('Picking rates'!$G103>0,'Yield & Sales calculation'!L103/('Picking rates'!$G103*'Other input expert'!K$9),0)","v":0},{"$f":"IF('Picking rates'!$G103>0,'Yield & Sales calculation'!M103/('Picking rates'!$G103*'Other input expert'!L$9),0)","v":0},{"$f":"IF('Picking rates'!$G103>0,'Yield & Sales calculation'!N103/('Picking rates'!$G103*'Other input expert'!M$9),0)","v":0}]
["Malus domestica (Mid)","Apple",{"$f":"IF('Picking rates'!$G104>0,'Yield & Sales calculation'!C104/('Picking rates'!$G104*'Other input expert'!B$9),0)","v":0},{"$f":"IF('Picking rates'!$G104>0,'Yield & Sales calculation'!D104/('Picking rates'!$G104*'Other input expert'!C$9),0)","v":0},{"$f":"IF('Picking rates'!$G104>0,'Yield & Sales calculation'!E104/('Picking rates'!$G104*'Other input expert'!D$9),0)","v":0},{"$f":"IF('Picking rates'!$G104>0,'Yield & Sales calculation'!F104/('Picking rates'!$G104*'Other input expert'!E$9),0)","v":0},{"$f":"IF('Picking rates'!$G104>0,'Yield & Sales calculation'!G104/('Picking rates'!$G104*'Other input expert'!F$9),0)","v":0},{"$f":"IF('Picking rates'!$G104>0,'Yield & Sales calculation'!H104/('Picking rates'!$G104*'Other input expert'!G$9),0)","v":0},{"$f":"IF('Picking rates'!$G104>0,'Yield & Sales calculation'!I104/('Picking rates'!$G104*'Other input expert'!H$9),0)","v":0},{"$f":"IF('Picking rates'!$G104>0,'Yield & Sales calculation'!J104/('Picking rates'!$G104*'Other input expert'!I$9),0)","v":0},{"$f":"IF('Picking rates'!$G104>0,'Yield & Sales calculation'!K104/('Picking rates'!$G104*'Other input expert'!J$9),0)","v":0},{"$f":"IF('Picking rates'!$G104>0,'Yield & Sales calculation'!L104/('Picking rates'!$G104*'Other input expert'!K$9),0)","v":0},{"$f":"IF('Picking rates'!$G104>0,'Yield & Sales calculation'!M104/('Picking rates'!$G104*'Other input expert'!L$9),0)","v":0},{"$f":"IF('Picking rates'!$G104>0,'Yield & Sales calculation'!N104/('Picking rates'!$G104*'Other input expert'!M$9),0)","v":0}]
["Malus domestica (Early)","Apple",{"$f":"IF('Picking rates'!$G105>0,'Yield & Sales calculation'!C105/('Picking rates'!$G105*'Other input expert'!B$9),0)","v":0},{"$f":"IF('Picking rates'!$G105>0,'Yield & Sales calculation'!D105/('Picking rates'!$G105*'Other input expert'!C$9),0)","v":0},{"$f":"IF('Picking rates'!$G105>0,'Yield & Sales calculation'!E105/('Picking rates'!$G105*'Other input expert'!D$9),0)","v":0},{"$f":"IF('Picking rates'!$G105>0,'Yield & Sales calculation'!F105/('Picking rates'!$G105*'Other input expert'!E$9),0)","v":0},{"$f":"IF('Picking rates'!$G105>0,'Yield & Sales calculation'!G105/('Picking rates'!$G105*'Other input expert'!F$9),0)","v":0},{"$f":"IF('Picking rates'!$G105>0,'Yield & Sales calculation'!H105/('Picking rates'!$G105*'Other input expert'!G$9),0)","v":0},{"$f":"IF('Picking rates'!$G105>0,'Yield & Sales calculation'!I105/('Picking rates'!$G105*'Other input expert'!H$9),0)","v":0},{"$f":"IF('Picking rates'!$G105>0,'Yield & Sales calculation'!J105/('Picking rates'!$G105*'Other input expert'!I$9),0)","v":0},{"$f":"IF('Picking rates'!$G105>0,'Yield & Sales calculation'!K105/('Picking rates'!$G105*'Other input expert'!J$9),0)","v":0},{"$f":"IF('Picking rates'!$G105>0,'Yield & Sales calculation'!L105/('Picking rates'!$G105*'Other input expert'!K$9),0)","v":0},{"$f":"IF('Picking rates'!$G105>0,'Yield & Sales calculation'!M105/('Picking rates'!$G105*'Other input expert'!L$9),0)","v":0},{"$f":"IF('Picking rates'!$G105>0,'Yield & Sales calculation'!N105/('Picking rates'!$G105*'Other input expert'!M$9),0)","v":0}]
["Malus pumila","Apple",{"$f":"IF('Picking rates'!$G106>0,'Yield & Sales calculation'!C106/('Picking rates'!$G106*'Other input expert'!B$9),0)","v":0},{"$f":"IF('Picking rates'!$G106>0,'Yield & Sales calculation'!D106/('Picking rates'!$G106*'Other input expert'!C$9),0)","v":0},{"$f":"IF('Picking rates'!$G106>0,'Yield & Sales calculation'!E106/('Picking rates'!$G106*'Other input expert'!D$9),0)","v":0},{"$f":"IF('Picking rates'!$G106>0,'Yield & Sales calculation'!F106/('Picking rates'!$G106*'Other input expert'!E$9),0)","v":0},{"$f":"IF('Picking rates'!$G106>0,'Yield & Sales calculation'!G106/('Picking rates'!$G106*'Other input expert'!F$9),0)","v":0},{"$f":"IF('Picking rates'!$G106>0,'Yield & Sales calculation'!H106/('Picking rates'!$G106*'Other input expert'!G$9),0)","v":0},{"$f":"IF('Picking rates'!$G106>0,'Yield & Sales calculation'!I106/('Picking rates'!$G106*'Other input expert'!H$9),0)","v":0},{"$f":"IF('Picking rates'!$G106>0,'Yield & Sales calculation'!J106/('Picking rates'!$G106*'Other input expert'!I$9),0)","v":0},{"$f":"IF('Picking rates'!$G106>0,'Yield & Sales calculation'!K106/('Picking rates'!$G106*'Other input expert'!J$9),0)","v":0},{"$f":"IF('Picking rates'!$G106>0,'Yield & Sales calculation'!L106/('Picking rates'!$G106*'Other input expert'!K$9),0)","v":0},{"$f":"IF('Picking rates'!$G106>0,'Yield & Sales calculation'!M106/('Picking rates'!$G106*'Other input expert'!L$9),0)","v":0},{"$f":"IF('Picking rates'!$G106>0,'Yield & Sales calculation'!N106/('Picking rates'!$G106*'Other input expert'!M$9),0)","v":0}]
["Mellissa off.","Lemon balm",{"$f":"IF('Picking rates'!$G107>0,'Yield & Sales calculation'!C107/('Picking rates'!$G107*'Other input expert'!B$9),0)","v":0},{"$f":"IF('Picking rates'!$G107>0,'Yield & Sales calculation'!D107/('Picking rates'!$G107*'Other input expert'!C$9),0)","v":0},{"$f":"IF('Picking rates'!$G107>0,'Yield & Sales calculation'!E107/('Picking rates'!$G107*'Other input expert'!D$9),0)","v":0},{"$f":"IF('Picking rates'!$G107>0,'Yield & Sales calculation'!F107/('Picking rates'!$G107*'Other input expert'!E$9),0)","v":0},{"$f":"IF('Picking rates'!$G107>0,'Yield & Sales calculation'!G107/('Picking rates'!$G107*'Other input expert'!F$9),0)","v":0},{"$f":"IF('Picking rates'!$G107>0,'Yield & Sales calculation'!H107/('Picking rates'!$G107*'Other input expert'!G$9),0)","v":0},{"$f":"IF('Picking rates'!$G107>0,'Yield & Sales calculation'!I107/('Picking rates'!$G107*'Other input expert'!H$9),0)","v":0},{"$f":"IF('Picking rates'!$G107>0,'Yield & Sales calculation'!J107/('Picking rates'!$G107*'Other input expert'!I$9),0)","v":0},{"$f":"IF('Picking rates'!$G107>0,'Yield & Sales calculation'!K107/('Picking rates'!$G107*'Other input expert'!J$9),0)","v":0},{"$f":"IF('Picking rates'!$G107>0,'Yield & Sales calculation'!L107/('Picking rates'!$G107*'Other input expert'!K$9),0)","v":0},{"$f":"IF('Picking rates'!$G107>0,'Yield & Sales calculation'!M107/('Picking rates'!$G107*'Other input expert'!L$9),0)","v":0},{"$f":"IF('Picking rates'!$G107>0,'Yield & Sales calculation'!N107/('Picking rates'!$G107*'Other input expert'!M$9),0)","v":0}]
["Mentha spp.","Mint",{"$f":"IF('Picking rates'!$G108>0,'Yield & Sales calculation'!C108/('Picking rates'!$G108*'Other input expert'!B$9),0)","v":0},{"$f":"IF('Picking rates'!$G108>0,'Yield & Sales calculation'!D108/('Picking rates'!$G108*'Other input expert'!C$9),0)","v":0},{"$f":"IF('Picking rates'!$G108>0,'Yield & Sales calculation'!E108/('Picking rates'!$G108*'Other input expert'!D$9),0)","v":0},{"$f":"IF('Picking rates'!$G108>0,'Yield & Sales calculation'!F108/('Picking rates'!$G108*'Other input expert'!E$9),0)","v":0},{"$f":"IF('Picking rates'!$G108>0,'Yield & Sales calculation'!G108/('Picking rates'!$G108*'Other input expert'!F$9),0)","v":0},{"$f":"IF('Picking rates'!$G108>0,'Yield & Sales calculation'!H108/('Picking rates'!$G108*'Other input expert'!G$9),0)","v":0},{"$f":"IF('Picking rates'!$G108>0,'Yield & Sales calculation'!I108/('Picking rates'!$G108*'Other input expert'!H$9),0)","v":0},{"$f":"IF('Picking rates'!$G108>0,'Yield & Sales calculation'!J108/('Picking rates'!$G108*'Other input expert'!I$9),0)","v":0},{"$f":"IF('Picking rates'!$G108>0,'Yield & Sales calculation'!K108/('Picking rates'!$G108*'Other input expert'!J$9),0)","v":0},{"$f":"IF('Picking rates'!$G108>0,'Yield & Sales calculation'!L108/('Picking rates'!$G108*'Other input expert'!K$9),0)","v":0},{"$f":"IF('Picking rates'!$G108>0,'Yield & Sales calculation'!M108/('Picking rates'!$G108*'Other input expert'!L$9),0)","v":0},{"$f":"IF('Picking rates'!$G108>0,'Yield & Sales calculation'!N108/('Picking rates'!$G108*'Other input expert'!M$9),0)","v":0}]
["Mespilus germanica ","Medlar",{"$f":"IF('Picking rates'!$G109>0,'Yield & Sales calculation'!C109/('Picking rates'!$G109*'Other input expert'!B$9),0)","v":0},{"$f":"IF('Picking rates'!$G109>0,'Yield & Sales calculation'!D109/('Picking rates'!$G109*'Other input expert'!C$9),0)","v":0},{"$f":"IF('Picking rates'!$G109>0,'Yield & Sales calculation'!E109/('Picking rates'!$G109*'Other input expert'!D$9),0)","v":0},{"$f":"IF('Picking rates'!$G109>0,'Yield & Sales calculation'!F109/('Picking rates'!$G109*'Other input expert'!E$9),0)","v":0},{"$f":"IF('Picking rates'!$G109>0,'Yield & Sales calculation'!G109/('Picking rates'!$G109*'Other input expert'!F$9),0)","v":0},{"$f":"IF('Picking rates'!$G109>0,'Yield & Sales calculation'!H109/('Picking rates'!$G109*'Other input expert'!G$9),0)","v":0},{"$f":"IF('Picking rates'!$G109>0,'Yield & Sales calculation'!I109/('Picking rates'!$G109*'Other input expert'!H$9),0)","v":0},{"$f":"IF('Picking rates'!$G109>0,'Yield & Sales calculation'!J109/('Picking rates'!$G109*'Other input expert'!I$9),0)","v":0},{"$f":"IF('Picking rates'!$G109>0,'Yield & Sales calculation'!K109/('Picking rates'!$G109*'Other input expert'!J$9),0)","v":0},{"$f":"IF('Picking rates'!$G109>0,'Yield & Sales calculation'!L109/('Picking rates'!$G109*'Other input expert'!K$9),0)","v":0},{"$f":"IF('Picking rates'!$G109>0,'Yield & Sales calculation'!M109/('Picking rates'!$G109*'Other input expert'!L$9),0)","v":0},{"$f":"IF('Picking rates'!$G109>0,'Yield & Sales calculation'!N109/('Picking rates'!$G109*'Other input expert'!M$9),0)","v":0}]
["Monarda didyma","Bergamot",{"$f":"IF('Picking rates'!$G110>0,'Yield & Sales calculation'!C110/('Picking rates'!$G110*'Other input expert'!B$9),0)","v":0},{"$f":"IF('Picking rates'!$G110>0,'Yield & Sales calculation'!D110/('Picking rates'!$G110*'Other input expert'!C$9),0)","v":0},{"$f":"IF('Picking rates'!$G110>0,'Yield & Sales calculation'!E110/('Picking rates'!$G110*'Other input expert'!D$9),0)","v":0},{"$f":"IF('Picking rates'!$G110>0,'Yield & Sales calculation'!F110/('Picking rates'!$G110*'Other input expert'!E$9),0)","v":0},{"$f":"IF('Picking rates'!$G110>0,'Yield & Sales calculation'!G110/('Picking rates'!$G110*'Other input expert'!F$9),0)","v":0},{"$f":"IF('Picking rates'!$G110>0,'Yield & Sales calculation'!H110/('Picking rates'!$G110*'Other input expert'!G$9),0)","v":0},{"$f":"IF('Picking rates'!$G110>0,'Yield & Sales calculation'!I110/('Picking rates'!$G110*'Other input expert'!H$9),0)","v":0},{"$f":"IF('Picking rates'!$G110>0,'Yield & Sales calculation'!J110/('Picking rates'!$G110*'Other input expert'!I$9),0)","v":0},{"$f":"IF('Picking rates'!$G110>0,'Yield & Sales calculation'!K110/('Picking rates'!$G110*'Other input expert'!J$9),0)","v":0},{"$f":"IF('Picking rates'!$G110>0,'Yield & Sales calculation'!L110/('Picking rates'!$G110*'Other input expert'!K$9),0)","v":0},{"$f":"IF('Picking rates'!$G110>0,'Yield & Sales calculation'!M110/('Picking rates'!$G110*'Other input expert'!L$9),0)","v":0},{"$f":"IF('Picking rates'!$G110>0,'Yield & Sales calculation'!N110/('Picking rates'!$G110*'Other input expert'!M$9),0)","v":0}]
["Morus alba","White mulberry",{"$f":"IF('Picking rates'!$G111>0,'Yield & Sales calculation'!C111/('Picking rates'!$G111*'Other input expert'!B$9),0)","v":0},{"$f":"IF('Picking rates'!$G111>0,'Yield & Sales calculation'!D111/('Picking rates'!$G111*'Other input expert'!C$9),0)","v":0},{"$f":"IF('Picking rates'!$G111>0,'Yield & Sales calculation'!E111/('Picking rates'!$G111*'Other input expert'!D$9),0)","v":0},{"$f":"IF('Picking rates'!$G111>0,'Yield & Sales calculation'!F111/('Picking rates'!$G111*'Other input expert'!E$9),0)","v":0},{"$f":"IF('Picking rates'!$G111>0,'Yield & Sales calculation'!G111/('Picking rates'!$G111*'Other input expert'!F$9),0)","v":0},{"$f":"IF('Picking rates'!$G111>0,'Yield & Sales calculation'!H111/('Picking rates'!$G111*'Other input expert'!G$9),0)","v":0},{"$f":"IF('Picking rates'!$G111>0,'Yield & Sales calculation'!I111/('Picking rates'!$G111*'Other input expert'!H$9),0)","v":0},{"$f":"IF('Picking rates'!$G111>0,'Yield & Sales calculation'!J111/('Picking rates'!$G111*'Other input expert'!I$9),0)","v":0},{"$f":"IF('Picking rates'!$G111>0,'Yield & Sales calculation'!K111/('Picking rates'!$G111*'Other input expert'!J$9),0)","v":0},{"$f":"IF('Picking rates'!$G111>0,'Yield & Sales calculation'!L111/('Picking rates'!$G111*'Other input expert'!K$9),0)","v":0},{"$f":"IF('Picking rates'!$G111>0,'Yield & Sales calculation'!M111/('Picking rates'!$G111*'Other input expert'!L$9),0)","v":0},{"$f":"IF('Picking rates'!$G111>0,'Yield & Sales calculation'!N111/('Picking rates'!$G111*'Other input expert'!M$9),0)","v":0}]
["Morus nigra","Black mulberry",{"$f":"IF('Picking rates'!$G112>0,'Yield & Sales calculation'!C112/('Picking rates'!$G112*'Other input expert'!B$9),0)","v":0},{"$f":"IF('Picking rates'!$G112>0,'Yield & Sales calculation'!D112/('Picking rates'!$G112*'Other input expert'!C$9),0)","v":0},{"$f":"IF('Picking rates'!$G112>0,'Yield & Sales calculation'!E112/('Picking rates'!$G112*'Other input expert'!D$9),0)","v":0},{"$f":"IF('Picking rates'!$G112>0,'Yield & Sales calculation'!F112/('Picking rates'!$G112*'Other input expert'!E$9),0)","v":0},{"$f":"IF('Picking rates'!$G112>0,'Yield & Sales calculation'!G112/('Picking rates'!$G112*'Other input expert'!F$9),0)","v":0},{"$f":"IF('Picking rates'!$G112>0,'Yield & Sales calculation'!H112/('Picking rates'!$G112*'Other input expert'!G$9),0)","v":0},{"$f":"IF('Picking rates'!$G112>0,'Yield & Sales calculation'!I112/('Picking rates'!$G112*'Other input expert'!H$9),0)","v":0},{"$f":"IF('Picking rates'!$G112>0,'Yield & Sales calculation'!J112/('Picking rates'!$G112*'Other input expert'!I$9),0)","v":0},{"$f":"IF('Picking rates'!$G112>0,'Yield & Sales calculation'!K112/('Picking rates'!$G112*'Other input expert'!J$9),0)","v":0},{"$f":"IF('Picking rates'!$G112>0,'Yield & Sales calculation'!L112/('Picking rates'!$G112*'Other input expert'!K$9),0)","v":0},{"$f":"IF('Picking rates'!$G112>0,'Yield & Sales calculation'!M112/('Picking rates'!$G112*'Other input expert'!L$9),0)","v":0},{"$f":"IF('Picking rates'!$G112>0,'Yield & Sales calculation'!N112/('Picking rates'!$G112*'Other input expert'!M$9),0)","v":0}]
["Myosotis spp.","Forget-me-not",{"$f":"IF('Picking rates'!$G113>0,'Yield & Sales calculation'!C113/('Picking rates'!$G113*'Other input expert'!B$9),0)","v":0},{"$f":"IF('Picking rates'!$G113>0,'Yield & Sales calculation'!D113/('Picking rates'!$G113*'Other input expert'!C$9),0)","v":0},{"$f":"IF('Picking rates'!$G113>0,'Yield & Sales calculation'!E113/('Picking rates'!$G113*'Other input expert'!D$9),0)","v":0},{"$f":"IF('Picking rates'!$G113>0,'Yield & Sales calculation'!F113/('Picking rates'!$G113*'Other input expert'!E$9),0)","v":0},{"$f":"IF('Picking rates'!$G113>0,'Yield & Sales calculation'!G113/('Picking rates'!$G113*'Other input expert'!F$9),0)","v":0},{"$f":"IF('Picking rates'!$G113>0,'Yield & Sales calculation'!H113/('Picking rates'!$G113*'Other input expert'!G$9),0)","v":0},{"$f":"IF('Picking rates'!$G113>0,'Yield & Sales calculation'!I113/('Picking rates'!$G113*'Other input expert'!H$9),0)","v":0},{"$f":"IF('Picking rates'!$G113>0,'Yield & Sales calculation'!J113/('Picking rates'!$G113*'Other input expert'!I$9),0)","v":0},{"$f":"IF('Picking rates'!$G113>0,'Yield & Sales calculation'!K113/('Picking rates'!$G113*'Other input expert'!J$9),0)","v":0},{"$f":"IF('Picking rates'!$G113>0,'Yield & Sales calculation'!L113/('Picking rates'!$G113*'Other input expert'!K$9),0)","v":0},{"$f":"IF('Picking rates'!$G113>0,'Yield & Sales calculation'!M113/('Picking rates'!$G113*'Other input expert'!L$9),0)","v":0},{"$f":"IF('Picking rates'!$G113>0,'Yield & Sales calculation'!N113/('Picking rates'!$G113*'Other input expert'!M$9),0)","v":0}]
["Myrica gale","Bog myrtle",{"$f":"IF('Picking rates'!$G114>0,'Yield & Sales calculation'!C114/('Picking rates'!$G114*'Other input expert'!B$9),0)","v":0},{"$f":"IF('Picking rates'!$G114>0,'Yield & Sales calculation'!D114/('Picking rates'!$G114*'Other input expert'!C$9),0)","v":0},{"$f":"IF('Picking rates'!$G114>0,'Yield & Sales calculation'!E114/('Picking rates'!$G114*'Other input expert'!D$9),0)","v":0},{"$f":"IF('Picking rates'!$G114>0,'Yield & Sales calculation'!F114/('Picking rates'!$G114*'Other input expert'!E$9),0)","v":0},{"$f":"IF('Picking rates'!$G114>0,'Yield & Sales calculation'!G114/('Picking rates'!$G114*'Other input expert'!F$9),0)","v":0},{"$f":"IF('Picking rates'!$G114>0,'Yield & Sales calculation'!H114/('Picking rates'!$G114*'Other input expert'!G$9),0)","v":0},{"$f":"IF('Picking rates'!$G114>0,'Yield & Sales calculation'!I114/('Picking rates'!$G114*'Other input expert'!H$9),0)","v":0},{"$f":"IF('Picking rates'!$G114>0,'Yield & Sales calculation'!J114/('Picking rates'!$G114*'Other input expert'!I$9),0)","v":0},{"$f":"IF('Picking rates'!$G114>0,'Yield & Sales calculation'!K114/('Picking rates'!$G114*'Other input expert'!J$9),0)","v":0},{"$f":"IF('Picking rates'!$G114>0,'Yield & Sales calculation'!L114/('Picking rates'!$G114*'Other input expert'!K$9),0)","v":0},{"$f":"IF('Picking rates'!$G114>0,'Yield & Sales calculation'!M114/('Picking rates'!$G114*'Other input expert'!L$9),0)","v":0},{"$f":"IF('Picking rates'!$G114>0,'Yield & Sales calculation'!N114/('Picking rates'!$G114*'Other input expert'!M$9),0)","v":0}]
["Myrica pensylvanica","myrtle",{"$f":"IF('Picking rates'!$G115>0,'Yield & Sales calculation'!C115/('Picking rates'!$G115*'Other input expert'!B$9),0)","v":0},{"$f":"IF('Picking rates'!$G115>0,'Yield & Sales calculation'!D115/('Picking rates'!$G115*'Other input expert'!C$9),0)","v":0},{"$f":"IF('Picking rates'!$G115>0,'Yield & Sales calculation'!E115/('Picking rates'!$G115*'Other input expert'!D$9),0)","v":0},{"$f":"IF('Picking rates'!$G115>0,'Yield & Sales calculation'!F115/('Picking rates'!$G115*'Other input expert'!E$9),0)","v":0},{"$f":"IF('Picking rates'!$G115>0,'Yield & Sales calculation'!G115/('Picking rates'!$G115*'Other input expert'!F$9),0)","v":0},{"$f":"IF('Picking rates'!$G115>0,'Yield & Sales calculation'!H115/('Picking rates'!$G115*'Other input expert'!G$9),0)","v":0},{"$f":"IF('Picking rates'!$G115>0,'Yield & Sales calculation'!I115/('Picking rates'!$G115*'Other input expert'!H$9),0)","v":0},{"$f":"IF('Picking rates'!$G115>0,'Yield & Sales calculation'!J115/('Picking rates'!$G115*'Other input expert'!I$9),0)","v":0},{"$f":"IF('Picking rates'!$G115>0,'Yield & Sales calculation'!K115/('Picking rates'!$G115*'Other input expert'!J$9),0)","v":0},{"$f":"IF('Picking rates'!$G115>0,'Yield & Sales calculation'!L115/('Picking rates'!$G115*'Other input expert'!K$9),0)","v":0},{"$f":"IF('Picking rates'!$G115>0,'Yield & Sales calculation'!M115/('Picking rates'!$G115*'Other input expert'!L$9),0)","v":0},{"$f":"IF('Picking rates'!$G115>0,'Yield & Sales calculation'!N115/('Picking rates'!$G115*'Other input expert'!M$9),0)","v":0}]
["Nepeta nervosa","Catmint",{"$f":"IF('Picking rates'!$G116>0,'Yield & Sales calculation'!C116/('Picking rates'!$G116*'Other input expert'!B$9),0)","v":0},{"$f":"IF('Picking rates'!$G116>0,'Yield & Sales calculation'!D116/('Picking rates'!$G116*'Other input expert'!C$9),0)","v":0},{"$f":"IF('Picking rates'!$G116>0,'Yield & Sales calculation'!E116/('Picking rates'!$G116*'Other input expert'!D$9),0)","v":0},{"$f":"IF('Picking rates'!$G116>0,'Yield & Sales calculation'!F116/('Picking rates'!$G116*'Other input expert'!E$9),0)","v":0},{"$f":"IF('Picking rates'!$G116>0,'Yield & Sales calculation'!G116/('Picking rates'!$G116*'Other input expert'!F$9),0)","v":0},{"$f":"IF('Picking rates'!$G116>0,'Yield & Sales calculation'!H116/('Picking rates'!$G116*'Other input expert'!G$9),0)","v":0},{"$f":"IF('Picking rates'!$G116>0,'Yield & Sales calculation'!I116/('Picking rates'!$G116*'Other input expert'!H$9),0)","v":0},{"$f":"IF('Picking rates'!$G116>0,'Yield & Sales calculation'!J116/('Picking rates'!$G116*'Other input expert'!I$9),0)","v":0},{"$f":"IF('Picking rates'!$G116>0,'Yield & Sales calculation'!K116/('Picking rates'!$G116*'Other input expert'!J$9),0)","v":0},{"$f":"IF('Picking rates'!$G116>0,'Yield & Sales calculation'!L116/('Picking rates'!$G116*'Other input expert'!K$9),0)","v":0},{"$f":"IF('Picking rates'!$G116>0,'Yield & Sales calculation'!M116/('Picking rates'!$G116*'Other input expert'!L$9),0)","v":0},{"$f":"IF('Picking rates'!$G116>0,'Yield & Sales calculation'!N116/('Picking rates'!$G116*'Other input expert'!M$9),0)","v":0}]
["Nepeta x. faassenii","Catmint",{"$f":"IF('Picking rates'!$G117>0,'Yield & Sales calculation'!C117/('Picking rates'!$G117*'Other input expert'!B$9),0)","v":0},{"$f":"IF('Picking rates'!$G117>0,'Yield & Sales calculation'!D117/('Picking rates'!$G117*'Other input expert'!C$9),0)","v":0},{"$f":"IF('Picking rates'!$G117>0,'Yield & Sales calculation'!E117/('Picking rates'!$G117*'Other input expert'!D$9),0)","v":0},{"$f":"IF('Picking rates'!$G117>0,'Yield & Sales calculation'!F117/('Picking rates'!$G117*'Other input expert'!E$9),0)","v":0},{"$f":"IF('Picking rates'!$G117>0,'Yield & Sales calculation'!G117/('Picking rates'!$G117*'Other input expert'!F$9),0)","v":0},{"$f":"IF('Picking rates'!$G117>0,'Yield & Sales calculation'!H117/('Picking rates'!$G117*'Other input expert'!G$9),0)","v":0},{"$f":"IF('Picking rates'!$G117>0,'Yield & Sales calculation'!I117/('Picking rates'!$G117*'Other input expert'!H$9),0)","v":0},{"$f":"IF('Picking rates'!$G117>0,'Yield & Sales calculation'!J117/('Picking rates'!$G117*'Other input expert'!I$9),0)","v":0},{"$f":"IF('Picking rates'!$G117>0,'Yield & Sales calculation'!K117/('Picking rates'!$G117*'Other input expert'!J$9),0)","v":0},{"$f":"IF('Picking rates'!$G117>0,'Yield & Sales calculation'!L117/('Picking rates'!$G117*'Other input expert'!K$9),0)","v":0},{"$f":"IF('Picking rates'!$G117>0,'Yield & Sales calculation'!M117/('Picking rates'!$G117*'Other input expert'!L$9),0)","v":0},{"$f":"IF('Picking rates'!$G117>0,'Yield & Sales calculation'!N117/('Picking rates'!$G117*'Other input expert'!M$9),0)","v":0}]
["Paulownia tomentosa","Princess tree",{"$f":"IF('Picking rates'!$G118>0,'Yield & Sales calculation'!C118/('Picking rates'!$G118*'Other input expert'!B$9),0)","v":0},{"$f":"IF('Picking rates'!$G118>0,'Yield & Sales calculation'!D118/('Picking rates'!$G118*'Other input expert'!C$9),0)","v":0},{"$f":"IF('Picking rates'!$G118>0,'Yield & Sales calculation'!E118/('Picking rates'!$G118*'Other input expert'!D$9),0)","v":0},{"$f":"IF('Picking rates'!$G118>0,'Yield & Sales calculation'!F118/('Picking rates'!$G118*'Other input expert'!E$9),0)","v":0},{"$f":"IF('Picking rates'!$G118>0,'Yield & Sales calculation'!G118/('Picking rates'!$G118*'Other input expert'!F$9),0)","v":0},{"$f":"IF('Picking rates'!$G118>0,'Yield & Sales calculation'!H118/('Picking rates'!$G118*'Other input expert'!G$9),0)","v":0},{"$f":"IF('Picking rates'!$G118>0,'Yield & Sales calculation'!I118/('Picking rates'!$G118*'Other input expert'!H$9),0)","v":0},{"$f":"IF('Picking rates'!$G118>0,'Yield & Sales calculation'!J118/('Picking rates'!$G118*'Other input expert'!I$9),0)","v":0},{"$f":"IF('Picking rates'!$G118>0,'Yield & Sales calculation'!K118/('Picking rates'!$G118*'Other input expert'!J$9),0)","v":0},{"$f":"IF('Picking rates'!$G118>0,'Yield & Sales calculation'!L118/('Picking rates'!$G118*'Other input expert'!K$9),0)","v":0},{"$f":"IF('Picking rates'!$G118>0,'Yield & Sales calculation'!M118/('Picking rates'!$G118*'Other input expert'!L$9),0)","v":0},{"$f":"IF('Picking rates'!$G118>0,'Yield & Sales calculation'!N118/('Picking rates'!$G118*'Other input expert'!M$9),0)","v":0}]
["Persicaria odorata","Vietnamese coriander",{"$f":"IF('Picking rates'!$G119>0,'Yield & Sales calculation'!C119/('Picking rates'!$G119*'Other input expert'!B$9),0)","v":0},{"$f":"IF('Picking rates'!$G119>0,'Yield & Sales calculation'!D119/('Picking rates'!$G119*'Other input expert'!C$9),0)","v":0},{"$f":"IF('Picking rates'!$G119>0,'Yield & Sales calculation'!E119/('Picking rates'!$G119*'Other input expert'!D$9),0)","v":0},{"$f":"IF('Picking rates'!$G119>0,'Yield & Sales calculation'!F119/('Picking rates'!$G119*'Other input expert'!E$9),0)","v":0},{"$f":"IF('Picking rates'!$G119>0,'Yield & Sales calculation'!G119/('Picking rates'!$G119*'Other input expert'!F$9),0)","v":0},{"$f":"IF('Picking rates'!$G119>0,'Yield & Sales calculation'!H119/('Picking rates'!$G119*'Other input expert'!G$9),0)","v":0},{"$f":"IF('Picking rates'!$G119>0,'Yield & Sales calculation'!I119/('Picking rates'!$G119*'Other input expert'!H$9),0)","v":0},{"$f":"IF('Picking rates'!$G119>0,'Yield & Sales calculation'!J119/('Picking rates'!$G119*'Other input expert'!I$9),0)","v":0},{"$f":"IF('Picking rates'!$G119>0,'Yield & Sales calculation'!K119/('Picking rates'!$G119*'Other input expert'!J$9),0)","v":0},{"$f":"IF('Picking rates'!$G119>0,'Yield & Sales calculation'!L119/('Picking rates'!$G119*'Other input expert'!K$9),0)","v":0},{"$f":"IF('Picking rates'!$G119>0,'Yield & Sales calculation'!M119/('Picking rates'!$G119*'Other input expert'!L$9),0)","v":0},{"$f":"IF('Picking rates'!$G119>0,'Yield & Sales calculation'!N119/('Picking rates'!$G119*'Other input expert'!M$9),0)","v":0}]
["Phyllostachus bissetii 80","Bamboo",{"$f":"IF('Picking rates'!$G120>0,'Yield & Sales calculation'!C120/('Picking rates'!$G120*'Other input expert'!B$9),0)","v":0},{"$f":"IF('Picking rates'!$G120>0,'Yield & Sales calculation'!D120/('Picking rates'!$G120*'Other input expert'!C$9),0)","v":0},{"$f":"IF('Picking rates'!$G120>0,'Yield & Sales calculation'!E120/('Picking rates'!$G120*'Other input expert'!D$9),0)","v":0},{"$f":"IF('Picking rates'!$G120>0,'Yield & Sales calculation'!F120/('Picking rates'!$G120*'Other input expert'!E$9),0)","v":0},{"$f":"IF('Picking rates'!$G120>0,'Yield & Sales calculation'!G120/('Picking rates'!$G120*'Other input expert'!F$9),0)","v":0},{"$f":"IF('Picking rates'!$G120>0,'Yield & Sales calculation'!H120/('Picking rates'!$G120*'Other input expert'!G$9),0)","v":0},{"$f":"IF('Picking rates'!$G120>0,'Yield & Sales calculation'!I120/('Picking rates'!$G120*'Other input expert'!H$9),0)","v":0},{"$f":"IF('Picking rates'!$G120>0,'Yield & Sales calculation'!J120/('Picking rates'!$G120*'Other input expert'!I$9),0)","v":0},{"$f":"IF('Picking rates'!$G120>0,'Yield & Sales calculation'!K120/('Picking rates'!$G120*'Other input expert'!J$9),0)","v":0},{"$f":"IF('Picking rates'!$G120>0,'Yield & Sales calculation'!L120/('Picking rates'!$G120*'Other input expert'!K$9),0)","v":0},{"$f":"IF('Picking rates'!$G120>0,'Yield & Sales calculation'!M120/('Picking rates'!$G120*'Other input expert'!L$9),0)","v":0},{"$f":"IF('Picking rates'!$G120>0,'Yield & Sales calculation'!N120/('Picking rates'!$G120*'Other input expert'!M$9),0)","v":0}]
["Pinus Koraiensis","Korean pine",{"$f":"IF('Picking rates'!$G121>0,'Yield & Sales calculation'!C121/('Picking rates'!$G121*'Other input expert'!B$9),0)","v":0},{"$f":"IF('Picking rates'!$G121>0,'Yield & Sales calculation'!D121/('Picking rates'!$G121*'Other input expert'!C$9),0)","v":0},{"$f":"IF('Picking rates'!$G121>0,'Yield & Sales calculation'!E121/('Picking rates'!$G121*'Other input expert'!D$9),0)","v":0},{"$f":"IF('Picking rates'!$G121>0,'Yield & Sales calculation'!F121/('Picking rates'!$G121*'Other input expert'!E$9),0)","v":0},{"$f":"IF('Picking rates'!$G121>0,'Yield & Sales calculation'!G121/('Picking rates'!$G121*'Other input expert'!F$9),0)","v":0},{"$f":"IF('Picking rates'!$G121>0,'Yield & Sales calculation'!H121/('Picking rates'!$G121*'Other input expert'!G$9),0)","v":0},{"$f":"IF('Picking rates'!$G121>0,'Yield & Sales calculation'!I121/('Picking rates'!$G121*'Other input expert'!H$9),0)","v":0},{"$f":"IF('Picking rates'!$G121>0,'Yield & Sales calculation'!J121/('Picking rates'!$G121*'Other input expert'!I$9),0)","v":0},{"$f":"IF('Picking rates'!$G121>0,'Yield & Sales calculation'!K121/('Picking rates'!$G121*'Other input expert'!J$9),0)","v":0},{"$f":"IF('Picking rates'!$G121>0,'Yield & Sales calculation'!L121/('Picking rates'!$G121*'Other input expert'!K$9),0)","v":0},{"$f":"IF('Picking rates'!$G121>0,'Yield & Sales calculation'!M121/('Picking rates'!$G121*'Other input expert'!L$9),0)","v":0},{"$f":"IF('Picking rates'!$G121>0,'Yield & Sales calculation'!N121/('Picking rates'!$G121*'Other input expert'!M$9),0)","v":0}]
["Pleurotus ostreatus","Oyster mushroom",{"$f":"IF('Picking rates'!$G122>0,'Yield & Sales calculation'!C122/('Picking rates'!$G122*'Other input expert'!B$9),0)","v":0},{"$f":"IF('Picking rates'!$G122>0,'Yield & Sales calculation'!D122/('Picking rates'!$G122*'Other input expert'!C$9),0)","v":0},{"$f":"IF('Picking rates'!$G122>0,'Yield & Sales calculation'!E122/('Picking rates'!$G122*'Other input expert'!D$9),0)","v":0},{"$f":"IF('Picking rates'!$G122>0,'Yield & Sales calculation'!F122/('Picking rates'!$G122*'Other input expert'!E$9),0)","v":0},{"$f":"IF('Picking rates'!$G122>0,'Yield & Sales calculation'!G122/('Picking rates'!$G122*'Other input expert'!F$9),0)","v":0},{"$f":"IF('Picking rates'!$G122>0,'Yield & Sales calculation'!H122/('Picking rates'!$G122*'Other input expert'!G$9),0)","v":0},{"$f":"IF('Picking rates'!$G122>0,'Yield & Sales calculation'!I122/('Picking rates'!$G122*'Other input expert'!H$9),0)","v":0},{"$f":"IF('Picking rates'!$G122>0,'Yield & Sales calculation'!J122/('Picking rates'!$G122*'Other input expert'!I$9),0)","v":0},{"$f":"IF('Picking rates'!$G122>0,'Yield & Sales calculation'!K122/('Picking rates'!$G122*'Other input expert'!J$9),0)","v":0},{"$f":"IF('Picking rates'!$G122>0,'Yield & Sales calculation'!L122/('Picking rates'!$G122*'Other input expert'!K$9),0)","v":0},{"$f":"IF('Picking rates'!$G122>0,'Yield & Sales calculation'!M122/('Picking rates'!$G122*'Other input expert'!L$9),0)","v":0},{"$f":"IF('Picking rates'!$G122>0,'Yield & Sales calculation'!N122/('Picking rates'!$G122*'Other input expert'!M$9),0)","v":0}]
["Poncirus trifoliata","Hardy orange",{"$f":"IF('Picking rates'!$G123>0,'Yield & Sales calculation'!C123/('Picking rates'!$G123*'Other input expert'!B$9),0)","v":0},{"$f":"IF('Picking rates'!$G123>0,'Yield & Sales calculation'!D123/('Picking rates'!$G123*'Other input expert'!C$9),0)","v":0},{"$f":"IF('Picking rates'!$G123>0,'Yield & Sales calculation'!E123/('Picking rates'!$G123*'Other input expert'!D$9),0)","v":0},{"$f":"IF('Picking rates'!$G123>0,'Yield & Sales calculation'!F123/('Picking rates'!$G123*'Other input expert'!E$9),0)","v":0},{"$f":"IF('Picking rates'!$G123>0,'Yield & Sales calculation'!G123/('Picking rates'!$G123*'Other input expert'!F$9),0)","v":0},{"$f":"IF('Picking rates'!$G123>0,'Yield & Sales calculation'!H123/('Picking rates'!$G123*'Other input expert'!G$9),0)","v":0},{"$f":"IF('Picking rates'!$G123>0,'Yield & Sales calculation'!I123/('Picking rates'!$G123*'Other input expert'!H$9),0)","v":0},{"$f":"IF('Picking rates'!$G123>0,'Yield & Sales calculation'!J123/('Picking rates'!$G123*'Other input expert'!I$9),0)","v":0},{"$f":"IF('Picking rates'!$G123>0,'Yield & Sales calculation'!K123/('Picking rates'!$G123*'Other input expert'!J$9),0)","v":0},{"$f":"IF('Picking rates'!$G123>0,'Yield & Sales calculation'!L123/('Picking rates'!$G123*'Other input expert'!K$9),0)","v":0},{"$f":"IF('Picking rates'!$G123>0,'Yield & Sales calculation'!M123/('Picking rates'!$G123*'Other input expert'!L$9),0)","v":0},{"$f":"IF('Picking rates'!$G123>0,'Yield & Sales calculation'!N123/('Picking rates'!$G123*'Other input expert'!M$9),0)","v":0}]
["Populus canadensis","Poplar",{"$f":"IF('Picking rates'!$G124>0,'Yield & Sales calculation'!C124/('Picking rates'!$G124*'Other input expert'!B$9),0)","v":0},{"$f":"IF('Picking rates'!$G124>0,'Yield & Sales calculation'!D124/('Picking rates'!$G124*'Other input expert'!C$9),0)","v":0},{"$f":"IF('Picking rates'!$G124>0,'Yield & Sales calculation'!E124/('Picking rates'!$G124*'Other input expert'!D$9),0)","v":0},{"$f":"IF('Picking rates'!$G124>0,'Yield & Sales calculation'!F124/('Picking rates'!$G124*'Other input expert'!E$9),0)","v":0},{"$f":"IF('Picking rates'!$G124>0,'Yield & Sales calculation'!G124/('Picking rates'!$G124*'Other input expert'!F$9),0)","v":0},{"$f":"IF('Picking rates'!$G124>0,'Yield & Sales calculation'!H124/('Picking rates'!$G124*'Other input expert'!G$9),0)","v":0},{"$f":"IF('Picking rates'!$G124>0,'Yield & Sales calculation'!I124/('Picking rates'!$G124*'Other input expert'!H$9),0)","v":0},{"$f":"IF('Picking rates'!$G124>0,'Yield & Sales calculation'!J124/('Picking rates'!$G124*'Other input expert'!I$9),0)","v":0},{"$f":"IF('Picking rates'!$G124>0,'Yield & Sales calculation'!K124/('Picking rates'!$G124*'Other input expert'!J$9),0)","v":0},{"$f":"IF('Picking rates'!$G124>0,'Yield & Sales calculation'!L124/('Picking rates'!$G124*'Other input expert'!K$9),0)","v":0},{"$f":"IF('Picking rates'!$G124>0,'Yield & Sales calculation'!M124/('Picking rates'!$G124*'Other input expert'!L$9),0)","v":0},{"$f":"IF('Picking rates'!$G124>0,'Yield & Sales calculation'!N124/('Picking rates'!$G124*'Other input expert'!M$9),0)","v":0}]
["Primula vulgaris","Primrose",{"$f":"IF('Picking rates'!$G125>0,'Yield & Sales calculation'!C125/('Picking rates'!$G125*'Other input expert'!B$9),0)","v":0},{"$f":"IF('Picking rates'!$G125>0,'Yield & Sales calculation'!D125/('Picking rates'!$G125*'Other input expert'!C$9),0)","v":0},{"$f":"IF('Picking rates'!$G125>0,'Yield & Sales calculation'!E125/('Picking rates'!$G125*'Other input expert'!D$9),0)","v":0},{"$f":"IF('Picking rates'!$G125>0,'Yield & Sales calculation'!F125/('Picking rates'!$G125*'Other input expert'!E$9),0)","v":0},{"$f":"IF('Picking rates'!$G125>0,'Yield & Sales calculation'!G125/('Picking rates'!$G125*'Other input expert'!F$9),0)","v":0},{"$f":"IF('Picking rates'!$G125>0,'Yield & Sales calculation'!H125/('Picking rates'!$G125*'Other input expert'!G$9),0)","v":0},{"$f":"IF('Picking rates'!$G125>0,'Yield & Sales calculation'!I125/('Picking rates'!$G125*'Other input expert'!H$9),0)","v":0},{"$f":"IF('Picking rates'!$G125>0,'Yield & Sales calculation'!J125/('Picking rates'!$G125*'Other input expert'!I$9),0)","v":0},{"$f":"IF('Picking rates'!$G125>0,'Yield & Sales calculation'!K125/('Picking rates'!$G125*'Other input expert'!J$9),0)","v":0},{"$f":"IF('Picking rates'!$G125>0,'Yield & Sales calculation'!L125/('Picking rates'!$G125*'Other input expert'!K$9),0)","v":0},{"$f":"IF('Picking rates'!$G125>0,'Yield & Sales calculation'!M125/('Picking rates'!$G125*'Other input expert'!L$9),0)","v":0},{"$f":"IF('Picking rates'!$G125>0,'Yield & Sales calculation'!N125/('Picking rates'!$G125*'Other input expert'!M$9),0)","v":0}]
["Prunus armeniaca","Apricot",{"$f":"IF('Picking rates'!$G126>0,'Yield & Sales calculation'!C126/('Picking rates'!$G126*'Other input expert'!B$9),0)","v":0},{"$f":"IF('Picking rates'!$G126>0,'Yield & Sales calculation'!D126/('Picking rates'!$G126*'Other input expert'!C$9),0)","v":0},{"$f":"IF('Picking rates'!$G126>0,'Yield & Sales calculation'!E126/('Picking rates'!$G126*'Other input expert'!D$9),0)","v":0},{"$f":"IF('Picking rates'!$G126>0,'Yield & Sales calculation'!F126/('Picking rates'!$G126*'Other input expert'!E$9),0)","v":0},{"$f":"IF('Picking rates'!$G126>0,'Yield & Sales calculation'!G126/('Picking rates'!$G126*'Other input expert'!F$9),0)","v":0},{"$f":"IF('Picking rates'!$G126>0,'Yield & Sales calculation'!H126/('Picking rates'!$G126*'Other input expert'!G$9),0)","v":0},{"$f":"IF('Picking rates'!$G126>0,'Yield & Sales calculation'!I126/('Picking rates'!$G126*'Other input expert'!H$9),0)","v":0},{"$f":"IF('Picking rates'!$G126>0,'Yield & Sales calculation'!J126/('Picking rates'!$G126*'Other input expert'!I$9),0)","v":0},{"$f":"IF('Picking rates'!$G126>0,'Yield & Sales calculation'!K126/('Picking rates'!$G126*'Other input expert'!J$9),0)","v":0},{"$f":"IF('Picking rates'!$G126>0,'Yield & Sales calculation'!L126/('Picking rates'!$G126*'Other input expert'!K$9),0)","v":0},{"$f":"IF('Picking rates'!$G126>0,'Yield & Sales calculation'!M126/('Picking rates'!$G126*'Other input expert'!L$9),0)","v":0},{"$f":"IF('Picking rates'!$G126>0,'Yield & Sales calculation'!N126/('Picking rates'!$G126*'Other input expert'!M$9),0)","v":0}]
["Prunus avium","Cherry",{"$f":"IF('Picking rates'!$G127>0,'Yield & Sales calculation'!C127/('Picking rates'!$G127*'Other input expert'!B$9),0)","v":0},{"$f":"IF('Picking rates'!$G127>0,'Yield & Sales calculation'!D127/('Picking rates'!$G127*'Other input expert'!C$9),0)","v":0},{"$f":"IF('Picking rates'!$G127>0,'Yield & Sales calculation'!E127/('Picking rates'!$G127*'Other input expert'!D$9),0)","v":0},{"$f":"IF('Picking rates'!$G127>0,'Yield & Sales calculation'!F127/('Picking rates'!$G127*'Other input expert'!E$9),0)","v":0},{"$f":"IF('Picking rates'!$G127>0,'Yield & Sales calculation'!G127/('Picking rates'!$G127*'Other input expert'!F$9),0)","v":0},{"$f":"IF('Picking rates'!$G127>0,'Yield & Sales calculation'!H127/('Picking rates'!$G127*'Other input expert'!G$9),0)","v":0},{"$f":"IF('Picking rates'!$G127>0,'Yield & Sales calculation'!I127/('Picking rates'!$G127*'Other input expert'!H$9),0)","v":0},{"$f":"IF('Picking rates'!$G127>0,'Yield & Sales calculation'!J127/('Picking rates'!$G127*'Other input expert'!I$9),0)","v":0},{"$f":"IF('Picking rates'!$G127>0,'Yield & Sales calculation'!K127/('Picking rates'!$G127*'Other input expert'!J$9),0)","v":0},{"$f":"IF('Picking rates'!$G127>0,'Yield & Sales calculation'!L127/('Picking rates'!$G127*'Other input expert'!K$9),0)","v":0},{"$f":"IF('Picking rates'!$G127>0,'Yield & Sales calculation'!M127/('Picking rates'!$G127*'Other input expert'!L$9),0)","v":0},{"$f":"IF('Picking rates'!$G127>0,'Yield & Sales calculation'!N127/('Picking rates'!$G127*'Other input expert'!M$9),0)","v":0}]
["Prunus cerasifera","Cherry plum",{"$f":"IF('Picking rates'!$G128>0,'Yield & Sales calculation'!C128/('Picking rates'!$G128*'Other input expert'!B$9),0)","v":0},{"$f":"IF('Picking rates'!$G128>0,'Yield & Sales calculation'!D128/('Picking rates'!$G128*'Other input expert'!C$9),0)","v":0},{"$f":"IF('Picking rates'!$G128>0,'Yield & Sales calculation'!E128/('Picking rates'!$G128*'Other input expert'!D$9),0)","v":0},{"$f":"IF('Picking rates'!$G128>0,'Yield & Sales calculation'!F128/('Picking rates'!$G128*'Other input expert'!E$9),0)","v":0},{"$f":"IF('Picking rates'!$G128>0,'Yield & Sales calculation'!G128/('Picking rates'!$G128*'Other input expert'!F$9),0)","v":0},{"$f":"IF('Picking rates'!$G128>0,'Yield & Sales calculation'!H128/('Picking rates'!$G128*'Other input expert'!G$9),0)","v":0},{"$f":"IF('Picking rates'!$G128>0,'Yield & Sales calculation'!I128/('Picking rates'!$G128*'Other input expert'!H$9),0)","v":0},{"$f":"IF('Picking rates'!$G128>0,'Yield & Sales calculation'!J128/('Picking rates'!$G128*'Other input expert'!I$9),0)","v":0},{"$f":"IF('Picking rates'!$G128>0,'Yield & Sales calculation'!K128/('Picking rates'!$G128*'Other input expert'!J$9),0)","v":0},{"$f":"IF('Picking rates'!$G128>0,'Yield & Sales calculation'!L128/('Picking rates'!$G128*'Other input expert'!K$9),0)","v":0},{"$f":"IF('Picking rates'!$G128>0,'Yield & Sales calculation'!M128/('Picking rates'!$G128*'Other input expert'!L$9),0)","v":0},{"$f":"IF('Picking rates'!$G128>0,'Yield & Sales calculation'!N128/('Picking rates'!$G128*'Other input expert'!M$9),0)","v":0}]
["Prunus cerasus","Sour cherry",{"$f":"IF('Picking rates'!$G129>0,'Yield & Sales calculation'!C129/('Picking rates'!$G129*'Other input expert'!B$9),0)","v":0},{"$f":"IF('Picking rates'!$G129>0,'Yield & Sales calculation'!D129/('Picking rates'!$G129*'Other input expert'!C$9),0)","v":0},{"$f":"IF('Picking rates'!$G129>0,'Yield & Sales calculation'!E129/('Picking rates'!$G129*'Other input expert'!D$9),0)","v":0},{"$f":"IF('Picking rates'!$G129>0,'Yield & Sales calculation'!F129/('Picking rates'!$G129*'Other input expert'!E$9),0)","v":0},{"$f":"IF('Picking rates'!$G129>0,'Yield & Sales calculation'!G129/('Picking rates'!$G129*'Other input expert'!F$9),0)","v":0},{"$f":"IF('Picking rates'!$G129>0,'Yield & Sales calculation'!H129/('Picking rates'!$G129*'Other input expert'!G$9),0)","v":0},{"$f":"IF('Picking rates'!$G129>0,'Yield & Sales calculation'!I129/('Picking rates'!$G129*'Other input expert'!H$9),0)","v":0},{"$f":"IF('Picking rates'!$G129>0,'Yield & Sales calculation'!J129/('Picking rates'!$G129*'Other input expert'!I$9),0)","v":0},{"$f":"IF('Picking rates'!$G129>0,'Yield & Sales calculation'!K129/('Picking rates'!$G129*'Other input expert'!J$9),0)","v":0},{"$f":"IF('Picking rates'!$G129>0,'Yield & Sales calculation'!L129/('Picking rates'!$G129*'Other input expert'!K$9),0)","v":0},{"$f":"IF('Picking rates'!$G129>0,'Yield & Sales calculation'!M129/('Picking rates'!$G129*'Other input expert'!L$9),0)","v":0},{"$f":"IF('Picking rates'!$G129>0,'Yield & Sales calculation'!N129/('Picking rates'!$G129*'Other input expert'!M$9),0)","v":0}]
["Prunus domestica","Plum",{"$f":"IF('Picking rates'!$G130>0,'Yield & Sales calculation'!C130/('Picking rates'!$G130*'Other input expert'!B$9),0)","v":0},{"$f":"IF('Picking rates'!$G130>0,'Yield & Sales calculation'!D130/('Picking rates'!$G130*'Other input expert'!C$9),0)","v":0},{"$f":"IF('Picking rates'!$G130>0,'Yield & Sales calculation'!E130/('Picking rates'!$G130*'Other input expert'!D$9),0)","v":0},{"$f":"IF('Picking rates'!$G130>0,'Yield & Sales calculation'!F130/('Picking rates'!$G130*'Other input expert'!E$9),0)","v":0},{"$f":"IF('Picking rates'!$G130>0,'Yield & Sales calculation'!G130/('Picking rates'!$G130*'Other input expert'!F$9),0)","v":0},{"$f":"IF('Picking rates'!$G130>0,'Yield & Sales calculation'!H130/('Picking rates'!$G130*'Other input expert'!G$9),0)","v":0},{"$f":"IF('Picking rates'!$G130>0,'Yield & Sales calculation'!I130/('Picking rates'!$G130*'Other input expert'!H$9),0)","v":0},{"$f":"IF('Picking rates'!$G130>0,'Yield & Sales calculation'!J130/('Picking rates'!$G130*'Other input expert'!I$9),0)","v":0},{"$f":"IF('Picking rates'!$G130>0,'Yield & Sales calculation'!K130/('Picking rates'!$G130*'Other input expert'!J$9),0)","v":0},{"$f":"IF('Picking rates'!$G130>0,'Yield & Sales calculation'!L130/('Picking rates'!$G130*'Other input expert'!K$9),0)","v":0},{"$f":"IF('Picking rates'!$G130>0,'Yield & Sales calculation'!M130/('Picking rates'!$G130*'Other input expert'!L$9),0)","v":0},{"$f":"IF('Picking rates'!$G130>0,'Yield & Sales calculation'!N130/('Picking rates'!$G130*'Other input expert'!M$9),0)","v":0}]
["Prunus dulcis","Almond",{"$f":"IF('Picking rates'!$G131>0,'Yield & Sales calculation'!C131/('Picking rates'!$G131*'Other input expert'!B$9),0)","v":0},{"$f":"IF('Picking rates'!$G131>0,'Yield & Sales calculation'!D131/('Picking rates'!$G131*'Other input expert'!C$9),0)","v":0},{"$f":"IF('Picking rates'!$G131>0,'Yield & Sales calculation'!E131/('Picking rates'!$G131*'Other input expert'!D$9),0)","v":0},{"$f":"IF('Picking rates'!$G131>0,'Yield & Sales calculation'!F131/('Picking rates'!$G131*'Other input expert'!E$9),0)","v":0},{"$f":"IF('Picking rates'!$G131>0,'Yield & Sales calculation'!G131/('Picking rates'!$G131*'Other input expert'!F$9),0)","v":0},{"$f":"IF('Picking rates'!$G131>0,'Yield & Sales calculation'!H131/('Picking rates'!$G131*'Other input expert'!G$9),0)","v":0},{"$f":"IF('Picking rates'!$G131>0,'Yield & Sales calculation'!I131/('Picking rates'!$G131*'Other input expert'!H$9),0)","v":0},{"$f":"IF('Picking rates'!$G131>0,'Yield & Sales calculation'!J131/('Picking rates'!$G131*'Other input expert'!I$9),0)","v":0},{"$f":"IF('Picking rates'!$G131>0,'Yield & Sales calculation'!K131/('Picking rates'!$G131*'Other input expert'!J$9),0)","v":0},{"$f":"IF('Picking rates'!$G131>0,'Yield & Sales calculation'!L131/('Picking rates'!$G131*'Other input expert'!K$9),0)","v":0},{"$f":"IF('Picking rates'!$G131>0,'Yield & Sales calculation'!M131/('Picking rates'!$G131*'Other input expert'!L$9),0)","v":0},{"$f":"IF('Picking rates'!$G131>0,'Yield & Sales calculation'!N131/('Picking rates'!$G131*'Other input expert'!M$9),0)","v":0}]
["Prunus insititia","Damson",{"$f":"IF('Picking rates'!$G132>0,'Yield & Sales calculation'!C132/('Picking rates'!$G132*'Other input expert'!B$9),0)","v":0},{"$f":"IF('Picking rates'!$G132>0,'Yield & Sales calculation'!D132/('Picking rates'!$G132*'Other input expert'!C$9),0)","v":0},{"$f":"IF('Picking rates'!$G132>0,'Yield & Sales calculation'!E132/('Picking rates'!$G132*'Other input expert'!D$9),0)","v":0},{"$f":"IF('Picking rates'!$G132>0,'Yield & Sales calculation'!F132/('Picking rates'!$G132*'Other input expert'!E$9),0)","v":0},{"$f":"IF('Picking rates'!$G132>0,'Yield & Sales calculation'!G132/('Picking rates'!$G132*'Other input expert'!F$9),0)","v":0},{"$f":"IF('Picking rates'!$G132>0,'Yield & Sales calculation'!H132/('Picking rates'!$G132*'Other input expert'!G$9),0)","v":0},{"$f":"IF('Picking rates'!$G132>0,'Yield & Sales calculation'!I132/('Picking rates'!$G132*'Other input expert'!H$9),0)","v":0},{"$f":"IF('Picking rates'!$G132>0,'Yield & Sales calculation'!J132/('Picking rates'!$G132*'Other input expert'!I$9),0)","v":0},{"$f":"IF('Picking rates'!$G132>0,'Yield & Sales calculation'!K132/('Picking rates'!$G132*'Other input expert'!J$9),0)","v":0},{"$f":"IF('Picking rates'!$G132>0,'Yield & Sales calculation'!L132/('Picking rates'!$G132*'Other input expert'!K$9),0)","v":0},{"$f":"IF('Picking rates'!$G132>0,'Yield & Sales calculation'!M132/('Picking rates'!$G132*'Other input expert'!L$9),0)","v":0},{"$f":"IF('Picking rates'!$G132>0,'Yield & Sales calculation'!N132/('Picking rates'!$G132*'Other input expert'!M$9),0)","v":0}]
["Prunus persica","Peach",{"$f":"IF('Picking rates'!$G133>0,'Yield & Sales calculation'!C133/('Picking rates'!$G133*'Other input expert'!B$9),0)","v":0},{"$f":"IF('Picking rates'!$G133>0,'Yield & Sales calculation'!D133/('Picking rates'!$G133*'Other input expert'!C$9),0)","v":0},{"$f":"IF('Picking rates'!$G133>0,'Yield & Sales calculation'!E133/('Picking rates'!$G133*'Other input expert'!D$9),0)","v":0},{"$f":"IF('Picking rates'!$G133>0,'Yield & Sales calculation'!F133/('Picking rates'!$G133*'Other input expert'!E$9),0)","v":0},{"$f":"IF('Picking rates'!$G133>0,'Yield & Sales calculation'!G133/('Picking rates'!$G133*'Other input expert'!F$9),0)","v":0},{"$f":"IF('Picking rates'!$G133>0,'Yield & Sales calculation'!H133/('Picking rates'!$G133*'Other input expert'!G$9),0)","v":0},{"$f":"IF('Picking rates'!$G133>0,'Yield & Sales calculation'!I133/('Picking rates'!$G133*'Other input expert'!H$9),0)","v":0},{"$f":"IF('Picking rates'!$G133>0,'Yield & Sales calculation'!J133/('Picking rates'!$G133*'Other input expert'!I$9),0)","v":0},{"$f":"IF('Picking rates'!$G133>0,'Yield & Sales calculation'!K133/('Picking rates'!$G133*'Other input expert'!J$9),0)","v":0},{"$f":"IF('Picking rates'!$G133>0,'Yield & Sales calculation'!L133/('Picking rates'!$G133*'Other input expert'!K$9),0)","v":0},{"$f":"IF('Picking rates'!$G133>0,'Yield & Sales calculation'!M133/('Picking rates'!$G133*'Other input expert'!L$9),0)","v":0},{"$f":"IF('Picking rates'!$G133>0,'Yield & Sales calculation'!N133/('Picking rates'!$G133*'Other input expert'!M$9),0)","v":0}]
["Prunus persica nusipersica","Nectarine ",{"$f":"IF('Picking rates'!$G134>0,'Yield & Sales calculation'!C134/('Picking rates'!$G134*'Other input expert'!B$9),0)","v":0},{"$f":"IF('Picking rates'!$G134>0,'Yield & Sales calculation'!D134/('Picking rates'!$G134*'Other input expert'!C$9),0)","v":0},{"$f":"IF('Picking rates'!$G134>0,'Yield & Sales calculation'!E134/('Picking rates'!$G134*'Other input expert'!D$9),0)","v":0},{"$f":"IF('Picking rates'!$G134>0,'Yield & Sales calculation'!F134/('Picking rates'!$G134*'Other input expert'!E$9),0)","v":0},{"$f":"IF('Picking rates'!$G134>0,'Yield & Sales calculation'!G134/('Picking rates'!$G134*'Other input expert'!F$9),0)","v":0},{"$f":"IF('Picking rates'!$G134>0,'Yield & Sales calculation'!H134/('Picking rates'!$G134*'Other input expert'!G$9),0)","v":0},{"$f":"IF('Picking rates'!$G134>0,'Yield & Sales calculation'!I134/('Picking rates'!$G134*'Other input expert'!H$9),0)","v":0},{"$f":"IF('Picking rates'!$G134>0,'Yield & Sales calculation'!J134/('Picking rates'!$G134*'Other input expert'!I$9),0)","v":0},{"$f":"IF('Picking rates'!$G134>0,'Yield & Sales calculation'!K134/('Picking rates'!$G134*'Other input expert'!J$9),0)","v":0},{"$f":"IF('Picking rates'!$G134>0,'Yield & Sales calculation'!L134/('Picking rates'!$G134*'Other input expert'!K$9),0)","v":0},{"$f":"IF('Picking rates'!$G134>0,'Yield & Sales calculation'!M134/('Picking rates'!$G134*'Other input expert'!L$9),0)","v":0},{"$f":"IF('Picking rates'!$G134>0,'Yield & Sales calculation'!N134/('Picking rates'!$G134*'Other input expert'!M$9),0)","v":0}]
["Prunus salicina","Japanese plum",{"$f":"IF('Picking rates'!$G135>0,'Yield & Sales calculation'!C135/('Picking rates'!$G135*'Other input expert'!B$9),0)","v":0},{"$f":"IF('Picking rates'!$G135>0,'Yield & Sales calculation'!D135/('Picking rates'!$G135*'Other input expert'!C$9),0)","v":0},{"$f":"IF('Picking rates'!$G135>0,'Yield & Sales calculation'!E135/('Picking rates'!$G135*'Other input expert'!D$9),0)","v":0},{"$f":"IF('Picking rates'!$G135>0,'Yield & Sales calculation'!F135/('Picking rates'!$G135*'Other input expert'!E$9),0)","v":0},{"$f":"IF('Picking rates'!$G135>0,'Yield & Sales calculation'!G135/('Picking rates'!$G135*'Other input expert'!F$9),0)","v":0},{"$f":"IF('Picking rates'!$G135>0,'Yield & Sales calculation'!H135/('Picking rates'!$G135*'Other input expert'!G$9),0)","v":0},{"$f":"IF('Picking rates'!$G135>0,'Yield & Sales calculation'!I135/('Picking rates'!$G135*'Other input expert'!H$9),0)","v":0},{"$f":"IF('Picking rates'!$G135>0,'Yield & Sales calculation'!J135/('Picking rates'!$G135*'Other input expert'!I$9),0)","v":0},{"$f":"IF('Picking rates'!$G135>0,'Yield & Sales calculation'!K135/('Picking rates'!$G135*'Other input expert'!J$9),0)","v":0},{"$f":"IF('Picking rates'!$G135>0,'Yield & Sales calculation'!L135/('Picking rates'!$G135*'Other input expert'!K$9),0)","v":0},{"$f":"IF('Picking rates'!$G135>0,'Yield & Sales calculation'!M135/('Picking rates'!$G135*'Other input expert'!L$9),0)","v":0},{"$f":"IF('Picking rates'!$G135>0,'Yield & Sales calculation'!N135/('Picking rates'!$G135*'Other input expert'!M$9),0)","v":0}]
["Prunus salicina x Prunus armeniaca","Pluot",{"$f":"IF('Picking rates'!$G136>0,'Yield & Sales calculation'!C136/('Picking rates'!$G136*'Other input expert'!B$9),0)","v":0},{"$f":"IF('Picking rates'!$G136>0,'Yield & Sales calculation'!D136/('Picking rates'!$G136*'Other input expert'!C$9),0)","v":0},{"$f":"IF('Picking rates'!$G136>0,'Yield & Sales calculation'!E136/('Picking rates'!$G136*'Other input expert'!D$9),0)","v":0},{"$f":"IF('Picking rates'!$G136>0,'Yield & Sales calculation'!F136/('Picking rates'!$G136*'Other input expert'!E$9),0)","v":0},{"$f":"IF('Picking rates'!$G136>0,'Yield & Sales calculation'!G136/('Picking rates'!$G136*'Other input expert'!F$9),0)","v":0},{"$f":"IF('Picking rates'!$G136>0,'Yield & Sales calculation'!H136/('Picking rates'!$G136*'Other input expert'!G$9),0)","v":0},{"$f":"IF('Picking rates'!$G136>0,'Yield & Sales calculation'!I136/('Picking rates'!$G136*'Other input expert'!H$9),0)","v":0},{"$f":"IF('Picking rates'!$G136>0,'Yield & Sales calculation'!J136/('Picking rates'!$G136*'Other input expert'!I$9),0)","v":0},{"$f":"IF('Picking rates'!$G136>0,'Yield & Sales calculation'!K136/('Picking rates'!$G136*'Other input expert'!J$9),0)","v":0},{"$f":"IF('Picking rates'!$G136>0,'Yield & Sales calculation'!L136/('Picking rates'!$G136*'Other input expert'!K$9),0)","v":0},{"$f":"IF('Picking rates'!$G136>0,'Yield & Sales calculation'!M136/('Picking rates'!$G136*'Other input expert'!L$9),0)","v":0},{"$f":"IF('Picking rates'!$G136>0,'Yield & Sales calculation'!N136/('Picking rates'!$G136*'Other input expert'!M$9),0)","v":0}]
["Prunus tomentosa","Nanking cherry",{"$f":"IF('Picking rates'!$G137>0,'Yield & Sales calculation'!C137/('Picking rates'!$G137*'Other input expert'!B$9),0)","v":0},{"$f":"IF('Picking rates'!$G137>0,'Yield & Sales calculation'!D137/('Picking rates'!$G137*'Other input expert'!C$9),0)","v":0},{"$f":"IF('Picking rates'!$G137>0,'Yield & Sales calculation'!E137/('Picking rates'!$G137*'Other input expert'!D$9),0)","v":0},{"$f":"IF('Picking rates'!$G137>0,'Yield & Sales calculation'!F137/('Picking rates'!$G137*'Other input expert'!E$9),0)","v":0},{"$f":"IF('Picking rates'!$G137>0,'Yield & Sales calculation'!G137/('Picking rates'!$G137*'Other input expert'!F$9),0)","v":0},{"$f":"IF('Picking rates'!$G137>0,'Yield & Sales calculation'!H137/('Picking rates'!$G137*'Other input expert'!G$9),0)","v":0},{"$f":"IF('Picking rates'!$G137>0,'Yield & Sales calculation'!I137/('Picking rates'!$G137*'Other input expert'!H$9),0)","v":0},{"$f":"IF('Picking rates'!$G137>0,'Yield & Sales calculation'!J137/('Picking rates'!$G137*'Other input expert'!I$9),0)","v":0},{"$f":"IF('Picking rates'!$G137>0,'Yield & Sales calculation'!K137/('Picking rates'!$G137*'Other input expert'!J$9),0)","v":0},{"$f":"IF('Picking rates'!$G137>0,'Yield & Sales calculation'!L137/('Picking rates'!$G137*'Other input expert'!K$9),0)","v":0},{"$f":"IF('Picking rates'!$G137>0,'Yield & Sales calculation'!M137/('Picking rates'!$G137*'Other input expert'!L$9),0)","v":0},{"$f":"IF('Picking rates'!$G137>0,'Yield & Sales calculation'!N137/('Picking rates'!$G137*'Other input expert'!M$9),0)","v":0}]
["Pulmonaria off.","Lungwort",{"$f":"IF('Picking rates'!$G138>0,'Yield & Sales calculation'!C138/('Picking rates'!$G138*'Other input expert'!B$9),0)","v":0},{"$f":"IF('Picking rates'!$G138>0,'Yield & Sales calculation'!D138/('Picking rates'!$G138*'Other input expert'!C$9),0)","v":0},{"$f":"IF('Picking rates'!$G138>0,'Yield & Sales calculation'!E138/('Picking rates'!$G138*'Other input expert'!D$9),0)","v":0},{"$f":"IF('Picking rates'!$G138>0,'Yield & Sales calculation'!F138/('Picking rates'!$G138*'Other input expert'!E$9),0)","v":0},{"$f":"IF('Picking rates'!$G138>0,'Yield & Sales calculation'!G138/('Picking rates'!$G138*'Other input expert'!F$9),0)","v":0},{"$f":"IF('Picking rates'!$G138>0,'Yield & Sales calculation'!H138/('Picking rates'!$G138*'Other input expert'!G$9),0)","v":0},{"$f":"IF('Picking rates'!$G138>0,'Yield & Sales calculation'!I138/('Picking rates'!$G138*'Other input expert'!H$9),0)","v":0},{"$f":"IF('Picking rates'!$G138>0,'Yield & Sales calculation'!J138/('Picking rates'!$G138*'Other input expert'!I$9),0)","v":0},{"$f":"IF('Picking rates'!$G138>0,'Yield & Sales calculation'!K138/('Picking rates'!$G138*'Other input expert'!J$9),0)","v":0},{"$f":"IF('Picking rates'!$G138>0,'Yield & Sales calculation'!L138/('Picking rates'!$G138*'Other input expert'!K$9),0)","v":0},{"$f":"IF('Picking rates'!$G138>0,'Yield & Sales calculation'!M138/('Picking rates'!$G138*'Other input expert'!L$9),0)","v":0},{"$f":"IF('Picking rates'!$G138>0,'Yield & Sales calculation'!N138/('Picking rates'!$G138*'Other input expert'!M$9),0)","v":0}]
["Punica granatum","Pomegranate",{"$f":"IF('Picking rates'!$G139>0,'Yield & Sales calculation'!C139/('Picking rates'!$G139*'Other input expert'!B$9),0)","v":0},{"$f":"IF('Picking rates'!$G139>0,'Yield & Sales calculation'!D139/('Picking rates'!$G139*'Other input expert'!C$9),0)","v":0},{"$f":"IF('Picking rates'!$G139>0,'Yield & Sales calculation'!E139/('Picking rates'!$G139*'Other input expert'!D$9),0)","v":0},{"$f":"IF('Picking rates'!$G139>0,'Yield & Sales calculation'!F139/('Picking rates'!$G139*'Other input expert'!E$9),0)","v":0},{"$f":"IF('Picking rates'!$G139>0,'Yield & Sales calculation'!G139/('Picking rates'!$G139*'Other input expert'!F$9),0)","v":0},{"$f":"IF('Picking rates'!$G139>0,'Yield & Sales calculation'!H139/('Picking rates'!$G139*'Other input expert'!G$9),0)","v":0},{"$f":"IF('Picking rates'!$G139>0,'Yield & Sales calculation'!I139/('Picking rates'!$G139*'Other input expert'!H$9),0)","v":0},{"$f":"IF('Picking rates'!$G139>0,'Yield & Sales calculation'!J139/('Picking rates'!$G139*'Other input expert'!I$9),0)","v":0},{"$f":"IF('Picking rates'!$G139>0,'Yield & Sales calculation'!K139/('Picking rates'!$G139*'Other input expert'!J$9),0)","v":0},{"$f":"IF('Picking rates'!$G139>0,'Yield & Sales calculation'!L139/('Picking rates'!$G139*'Other input expert'!K$9),0)","v":0},{"$f":"IF('Picking rates'!$G139>0,'Yield & Sales calculation'!M139/('Picking rates'!$G139*'Other input expert'!L$9),0)","v":0},{"$f":"IF('Picking rates'!$G139>0,'Yield & Sales calculation'!N139/('Picking rates'!$G139*'Other input expert'!M$9),0)","v":0}]
["Pyrus bretschneideri","Chinese white pear",{"$f":"IF('Picking rates'!$G140>0,'Yield & Sales calculation'!C140/('Picking rates'!$G140*'Other input expert'!B$9),0)","v":0},{"$f":"IF('Picking rates'!$G140>0,'Yield & Sales calculation'!D140/('Picking rates'!$G140*'Other input expert'!C$9),0)","v":0},{"$f":"IF('Picking rates'!$G140>0,'Yield & Sales calculation'!E140/('Picking rates'!$G140*'Other input expert'!D$9),0)","v":0},{"$f":"IF('Picking rates'!$G140>0,'Yield & Sales calculation'!F140/('Picking rates'!$G140*'Other input expert'!E$9),0)","v":0},{"$f":"IF('Picking rates'!$G140>0,'Yield & Sales calculation'!G140/('Picking rates'!$G140*'Other input expert'!F$9),0)","v":0},{"$f":"IF('Picking rates'!$G140>0,'Yield & Sales calculation'!H140/('Picking rates'!$G140*'Other input expert'!G$9),0)","v":0},{"$f":"IF('Picking rates'!$G140>0,'Yield & Sales calculation'!I140/('Picking rates'!$G140*'Other input expert'!H$9),0)","v":0},{"$f":"IF('Picking rates'!$G140>0,'Yield & Sales calculation'!J140/('Picking rates'!$G140*'Other input expert'!I$9),0)","v":0},{"$f":"IF('Picking rates'!$G140>0,'Yield & Sales calculation'!K140/('Picking rates'!$G140*'Other input expert'!J$9),0)","v":0},{"$f":"IF('Picking rates'!$G140>0,'Yield & Sales calculation'!L140/('Picking rates'!$G140*'Other input expert'!K$9),0)","v":0},{"$f":"IF('Picking rates'!$G140>0,'Yield & Sales calculation'!M140/('Picking rates'!$G140*'Other input expert'!L$9),0)","v":0},{"$f":"IF('Picking rates'!$G140>0,'Yield & Sales calculation'!N140/('Picking rates'!$G140*'Other input expert'!M$9),0)","v":0}]
["Pyrus communis","Pear",{"$f":"IF('Picking rates'!$G141>0,'Yield & Sales calculation'!C141/('Picking rates'!$G141*'Other input expert'!B$9),0)","v":0},{"$f":"IF('Picking rates'!$G141>0,'Yield & Sales calculation'!D141/('Picking rates'!$G141*'Other input expert'!C$9),0)","v":0},{"$f":"IF('Picking rates'!$G141>0,'Yield & Sales calculation'!E141/('Picking rates'!$G141*'Other input expert'!D$9),0)","v":0},{"$f":"IF('Picking rates'!$G141>0,'Yield & Sales calculation'!F141/('Picking rates'!$G141*'Other input expert'!E$9),0)","v":0},{"$f":"IF('Picking rates'!$G141>0,'Yield & Sales calculation'!G141/('Picking rates'!$G141*'Other input expert'!F$9),0)","v":0},{"$f":"IF('Picking rates'!$G141>0,'Yield & Sales calculation'!H141/('Picking rates'!$G141*'Other input expert'!G$9),0)","v":0},{"$f":"IF('Picking rates'!$G141>0,'Yield & Sales calculation'!I141/('Picking rates'!$G141*'Other input expert'!H$9),0)","v":0},{"$f":"IF('Picking rates'!$G141>0,'Yield & Sales calculation'!J141/('Picking rates'!$G141*'Other input expert'!I$9),0)","v":0},{"$f":"IF('Picking rates'!$G141>0,'Yield & Sales calculation'!K141/('Picking rates'!$G141*'Other input expert'!J$9),0)","v":0},{"$f":"IF('Picking rates'!$G141>0,'Yield & Sales calculation'!L141/('Picking rates'!$G141*'Other input expert'!K$9),0)","v":0},{"$f":"IF('Picking rates'!$G141>0,'Yield & Sales calculation'!M141/('Picking rates'!$G141*'Other input expert'!L$9),0)","v":0},{"$f":"IF('Picking rates'!$G141>0,'Yield & Sales calculation'!N141/('Picking rates'!$G141*'Other input expert'!M$9),0)","v":0}]
["Pyrus pyrifolia","Chinese pear",{"$f":"IF('Picking rates'!$G142>0,'Yield & Sales calculation'!C142/('Picking rates'!$G142*'Other input expert'!B$9),0)","v":0},{"$f":"IF('Picking rates'!$G142>0,'Yield & Sales calculation'!D142/('Picking rates'!$G142*'Other input expert'!C$9),0)","v":0},{"$f":"IF('Picking rates'!$G142>0,'Yield & Sales calculation'!E142/('Picking rates'!$G142*'Other input expert'!D$9),0)","v":0},{"$f":"IF('Picking rates'!$G142>0,'Yield & Sales calculation'!F142/('Picking rates'!$G142*'Other input expert'!E$9),0)","v":0},{"$f":"IF('Picking rates'!$G142>0,'Yield & Sales calculation'!G142/('Picking rates'!$G142*'Other input expert'!F$9),0)","v":0},{"$f":"IF('Picking rates'!$G142>0,'Yield & Sales calculation'!H142/('Picking rates'!$G142*'Other input expert'!G$9),0)","v":0},{"$f":"IF('Picking rates'!$G142>0,'Yield & Sales calculation'!I142/('Picking rates'!$G142*'Other input expert'!H$9),0)","v":0},{"$f":"IF('Picking rates'!$G142>0,'Yield & Sales calculation'!J142/('Picking rates'!$G142*'Other input expert'!I$9),0)","v":0},{"$f":"IF('Picking rates'!$G142>0,'Yield & Sales calculation'!K142/('Picking rates'!$G142*'Other input expert'!J$9),0)","v":0},{"$f":"IF('Picking rates'!$G142>0,'Yield & Sales calculation'!L142/('Picking rates'!$G142*'Other input expert'!K$9),0)","v":0},{"$f":"IF('Picking rates'!$G142>0,'Yield & Sales calculation'!M142/('Picking rates'!$G142*'Other input expert'!L$9),0)","v":0},{"$f":"IF('Picking rates'!$G142>0,'Yield & Sales calculation'!N142/('Picking rates'!$G142*'Other input expert'!M$9),0)","v":0}]
["Quercus spp.","Oak",{"$f":"IF('Picking rates'!$G143>0,'Yield & Sales calculation'!C143/('Picking rates'!$G143*'Other input expert'!B$9),0)","v":0},{"$f":"IF('Picking rates'!$G143>0,'Yield & Sales calculation'!D143/('Picking rates'!$G143*'Other input expert'!C$9),0)","v":0},{"$f":"IF('Picking rates'!$G143>0,'Yield & Sales calculation'!E143/('Picking rates'!$G143*'Other input expert'!D$9),0)","v":0},{"$f":"IF('Picking rates'!$G143>0,'Yield & Sales calculation'!F143/('Picking rates'!$G143*'Other input expert'!E$9),0)","v":0},{"$f":"IF('Picking rates'!$G143>0,'Yield & Sales calculation'!G143/('Picking rates'!$G143*'Other input expert'!F$9),0)","v":0},{"$f":"IF('Picking rates'!$G143>0,'Yield & Sales calculation'!H143/('Picking rates'!$G143*'Other input expert'!G$9),0)","v":0},{"$f":"IF('Picking rates'!$G143>0,'Yield & Sales calculation'!I143/('Picking rates'!$G143*'Other input expert'!H$9),0)","v":0},{"$f":"IF('Picking rates'!$G143>0,'Yield & Sales calculation'!J143/('Picking rates'!$G143*'Other input expert'!I$9),0)","v":0},{"$f":"IF('Picking rates'!$G143>0,'Yield & Sales calculation'!K143/('Picking rates'!$G143*'Other input expert'!J$9),0)","v":0},{"$f":"IF('Picking rates'!$G143>0,'Yield & Sales calculation'!L143/('Picking rates'!$G143*'Other input expert'!K$9),0)","v":0},{"$f":"IF('Picking rates'!$G143>0,'Yield & Sales calculation'!M143/('Picking rates'!$G143*'Other input expert'!L$9),0)","v":0},{"$f":"IF('Picking rates'!$G143>0,'Yield & Sales calculation'!N143/('Picking rates'!$G143*'Other input expert'!M$9),0)","v":0}]
["Rhamnus frangula","Alder buckthorn",{"$f":"IF('Picking rates'!$G144>0,'Yield & Sales calculation'!C144/('Picking rates'!$G144*'Other input expert'!B$9),0)","v":0},{"$f":"IF('Picking rates'!$G144>0,'Yield & Sales calculation'!D144/('Picking rates'!$G144*'Other input expert'!C$9),0)","v":0},{"$f":"IF('Picking rates'!$G144>0,'Yield & Sales calculation'!E144/('Picking rates'!$G144*'Other input expert'!D$9),0)","v":0},{"$f":"IF('Picking rates'!$G144>0,'Yield & Sales calculation'!F144/('Picking rates'!$G144*'Other input expert'!E$9),0)","v":0},{"$f":"IF('Picking rates'!$G144>0,'Yield & Sales calculation'!G144/('Picking rates'!$G144*'Other input expert'!F$9),0)","v":0},{"$f":"IF('Picking rates'!$G144>0,'Yield & Sales calculation'!H144/('Picking rates'!$G144*'Other input expert'!G$9),0)","v":0},{"$f":"IF('Picking rates'!$G144>0,'Yield & Sales calculation'!I144/('Picking rates'!$G144*'Other input expert'!H$9),0)","v":0},{"$f":"IF('Picking rates'!$G144>0,'Yield & Sales calculation'!J144/('Picking rates'!$G144*'Other input expert'!I$9),0)","v":0},{"$f":"IF('Picking rates'!$G144>0,'Yield & Sales calculation'!K144/('Picking rates'!$G144*'Other input expert'!J$9),0)","v":0},{"$f":"IF('Picking rates'!$G144>0,'Yield & Sales calculation'!L144/('Picking rates'!$G144*'Other input expert'!K$9),0)","v":0},{"$f":"IF('Picking rates'!$G144>0,'Yield & Sales calculation'!M144/('Picking rates'!$G144*'Other input expert'!L$9),0)","v":0},{"$f":"IF('Picking rates'!$G144>0,'Yield & Sales calculation'!N144/('Picking rates'!$G144*'Other input expert'!M$9),0)","v":0}]
["Rheum rabarberum","Rhubarb",{"$f":"IF('Picking rates'!$G145>0,'Yield & Sales calculation'!C145/('Picking rates'!$G145*'Other input expert'!B$9),0)","v":0},{"$f":"IF('Picking rates'!$G145>0,'Yield & Sales calculation'!D145/('Picking rates'!$G145*'Other input expert'!C$9),0)","v":0},{"$f":"IF('Picking rates'!$G145>0,'Yield & Sales calculation'!E145/('Picking rates'!$G145*'Other input expert'!D$9),0)","v":0},{"$f":"IF('Picking rates'!$G145>0,'Yield & Sales calculation'!F145/('Picking rates'!$G145*'Other input expert'!E$9),0)","v":0},{"$f":"IF('Picking rates'!$G145>0,'Yield & Sales calculation'!G145/('Picking rates'!$G145*'Other input expert'!F$9),0)","v":0},{"$f":"IF('Picking rates'!$G145>0,'Yield & Sales calculation'!H145/('Picking rates'!$G145*'Other input expert'!G$9),0)","v":0},{"$f":"IF('Picking rates'!$G145>0,'Yield & Sales calculation'!I145/('Picking rates'!$G145*'Other input expert'!H$9),0)","v":0},{"$f":"IF('Picking rates'!$G145>0,'Yield & Sales calculation'!J145/('Picking rates'!$G145*'Other input expert'!I$9),0)","v":0},{"$f":"IF('Picking rates'!$G145>0,'Yield & Sales calculation'!K145/('Picking rates'!$G145*'Other input expert'!J$9),0)","v":0},{"$f":"IF('Picking rates'!$G145>0,'Yield & Sales calculation'!L145/('Picking rates'!$G145*'Other input expert'!K$9),0)","v":0},{"$f":"IF('Picking rates'!$G145>0,'Yield & Sales calculation'!M145/('Picking rates'!$G145*'Other input expert'!L$9),0)","v":0},{"$f":"IF('Picking rates'!$G145>0,'Yield & Sales calculation'!N145/('Picking rates'!$G145*'Other input expert'!M$9),0)","v":0}]
["Rhus aromatica","Sumac",{"$f":"IF('Picking rates'!$G146>0,'Yield & Sales calculation'!C146/('Picking rates'!$G146*'Other input expert'!B$9),0)","v":0},{"$f":"IF('Picking rates'!$G146>0,'Yield & Sales calculation'!D146/('Picking rates'!$G146*'Other input expert'!C$9),0)","v":0},{"$f":"IF('Picking rates'!$G146>0,'Yield & Sales calculation'!E146/('Picking rates'!$G146*'Other input expert'!D$9),0)","v":0},{"$f":"IF('Picking rates'!$G146>0,'Yield & Sales calculation'!F146/('Picking rates'!$G146*'Other input expert'!E$9),0)","v":0},{"$f":"IF('Picking rates'!$G146>0,'Yield & Sales calculation'!G146/('Picking rates'!$G146*'Other input expert'!F$9),0)","v":0},{"$f":"IF('Picking rates'!$G146>0,'Yield & Sales calculation'!H146/('Picking rates'!$G146*'Other input expert'!G$9),0)","v":0},{"$f":"IF('Picking rates'!$G146>0,'Yield & Sales calculation'!I146/('Picking rates'!$G146*'Other input expert'!H$9),0)","v":0},{"$f":"IF('Picking rates'!$G146>0,'Yield & Sales calculation'!J146/('Picking rates'!$G146*'Other input expert'!I$9),0)","v":0},{"$f":"IF('Picking rates'!$G146>0,'Yield & Sales calculation'!K146/('Picking rates'!$G146*'Other input expert'!J$9),0)","v":0},{"$f":"IF('Picking rates'!$G146>0,'Yield & Sales calculation'!L146/('Picking rates'!$G146*'Other input expert'!K$9),0)","v":0},{"$f":"IF('Picking rates'!$G146>0,'Yield & Sales calculation'!M146/('Picking rates'!$G146*'Other input expert'!L$9),0)","v":0},{"$f":"IF('Picking rates'!$G146>0,'Yield & Sales calculation'!N146/('Picking rates'!$G146*'Other input expert'!M$9),0)","v":0}]
["Rhus glabra","Sumac ",{"$f":"IF('Picking rates'!$G147>0,'Yield & Sales calculation'!C147/('Picking rates'!$G147*'Other input expert'!B$9),0)","v":0},{"$f":"IF('Picking rates'!$G147>0,'Yield & Sales calculation'!D147/('Picking rates'!$G147*'Other input expert'!C$9),0)","v":0},{"$f":"IF('Picking rates'!$G147>0,'Yield & Sales calculation'!E147/('Picking rates'!$G147*'Other input expert'!D$9),0)","v":0},{"$f":"IF('Picking rates'!$G147>0,'Yield & Sales calculation'!F147/('Picking rates'!$G147*'Other input expert'!E$9),0)","v":0},{"$f":"IF('Picking rates'!$G147>0,'Yield & Sales calculation'!G147/('Picking rates'!$G147*'Other input expert'!F$9),0)","v":0},{"$f":"IF('Picking rates'!$G147>0,'Yield & Sales calculation'!H147/('Picking rates'!$G147*'Other input expert'!G$9),0)","v":0},{"$f":"IF('Picking rates'!$G147>0,'Yield & Sales calculation'!I147/('Picking rates'!$G147*'Other input expert'!H$9),0)","v":0},{"$f":"IF('Picking rates'!$G147>0,'Yield & Sales calculation'!J147/('Picking rates'!$G147*'Other input expert'!I$9),0)","v":0},{"$f":"IF('Picking rates'!$G147>0,'Yield & Sales calculation'!K147/('Picking rates'!$G147*'Other input expert'!J$9),0)","v":0},{"$f":"IF('Picking rates'!$G147>0,'Yield & Sales calculation'!L147/('Picking rates'!$G147*'Other input expert'!K$9),0)","v":0},{"$f":"IF('Picking rates'!$G147>0,'Yield & Sales calculation'!M147/('Picking rates'!$G147*'Other input expert'!L$9),0)","v":0},{"$f":"IF('Picking rates'!$G147>0,'Yield & Sales calculation'!N147/('Picking rates'!$G147*'Other input expert'!M$9),0)","v":0}]
["Ribes divaricatum","Black gooseberry",{"$f":"IF('Picking rates'!$G148>0,'Yield & Sales calculation'!C148/('Picking rates'!$G148*'Other input expert'!B$9),0)","v":0},{"$f":"IF('Picking rates'!$G148>0,'Yield & Sales calculation'!D148/('Picking rates'!$G148*'Other input expert'!C$9),0)","v":0},{"$f":"IF('Picking rates'!$G148>0,'Yield & Sales calculation'!E148/('Picking rates'!$G148*'Other input expert'!D$9),0)","v":0},{"$f":"IF('Picking rates'!$G148>0,'Yield & Sales calculation'!F148/('Picking rates'!$G148*'Other input expert'!E$9),0)","v":0},{"$f":"IF('Picking rates'!$G148>0,'Yield & Sales calculation'!G148/('Picking rates'!$G148*'Other input expert'!F$9),0)","v":0},{"$f":"IF('Picking rates'!$G148>0,'Yield & Sales calculation'!H148/('Picking rates'!$G148*'Other input expert'!G$9),0)","v":0},{"$f":"IF('Picking rates'!$G148>0,'Yield & Sales calculation'!I148/('Picking rates'!$G148*'Other input expert'!H$9),0)","v":0},{"$f":"IF('Picking rates'!$G148>0,'Yield & Sales calculation'!J148/('Picking rates'!$G148*'Other input expert'!I$9),0)","v":0},{"$f":"IF('Picking rates'!$G148>0,'Yield & Sales calculation'!K148/('Picking rates'!$G148*'Other input expert'!J$9),0)","v":0},{"$f":"IF('Picking rates'!$G148>0,'Yield & Sales calculation'!L148/('Picking rates'!$G148*'Other input expert'!K$9),0)","v":0},{"$f":"IF('Picking rates'!$G148>0,'Yield & Sales calculation'!M148/('Picking rates'!$G148*'Other input expert'!L$9),0)","v":0},{"$f":"IF('Picking rates'!$G148>0,'Yield & Sales calculation'!N148/('Picking rates'!$G148*'Other input expert'!M$9),0)","v":0}]
["Ribes 'Josta'","Jostaberry",{"$f":"IF('Picking rates'!$G149>0,'Yield & Sales calculation'!C149/('Picking rates'!$G149*'Other input expert'!B$9),0)","v":0},{"$f":"IF('Picking rates'!$G149>0,'Yield & Sales calculation'!D149/('Picking rates'!$G149*'Other input expert'!C$9),0)","v":0},{"$f":"IF('Picking rates'!$G149>0,'Yield & Sales calculation'!E149/('Picking rates'!$G149*'Other input expert'!D$9),0)","v":0},{"$f":"IF('Picking rates'!$G149>0,'Yield & Sales calculation'!F149/('Picking rates'!$G149*'Other input expert'!E$9),0)","v":0},{"$f":"IF('Picking rates'!$G149>0,'Yield & Sales calculation'!G149/('Picking rates'!$G149*'Other input expert'!F$9),0)","v":0},{"$f":"IF('Picking rates'!$G149>0,'Yield & Sales calculation'!H149/('Picking rates'!$G149*'Other input expert'!G$9),0)","v":0},{"$f":"IF('Picking rates'!$G149>0,'Yield & Sales calculation'!I149/('Picking rates'!$G149*'Other input expert'!H$9),0)","v":0},{"$f":"IF('Picking rates'!$G149>0,'Yield & Sales calculation'!J149/('Picking rates'!$G149*'Other input expert'!I$9),0)","v":0},{"$f":"IF('Picking rates'!$G149>0,'Yield & Sales calculation'!K149/('Picking rates'!$G149*'Other input expert'!J$9),0)","v":0},{"$f":"IF('Picking rates'!$G149>0,'Yield & Sales calculation'!L149/('Picking rates'!$G149*'Other input expert'!K$9),0)","v":0},{"$f":"IF('Picking rates'!$G149>0,'Yield & Sales calculation'!M149/('Picking rates'!$G149*'Other input expert'!L$9),0)","v":0},{"$f":"IF('Picking rates'!$G149>0,'Yield & Sales calculation'!N149/('Picking rates'!$G149*'Other input expert'!M$9),0)","v":0}]
["Ribes nigrum","Black currant",{"$f":"IF('Picking rates'!$G150>0,'Yield & Sales calculation'!C150/('Picking rates'!$G150*'Other input expert'!B$9),0)","v":0},{"$f":"IF('Picking rates'!$G150>0,'Yield & Sales calculation'!D150/('Picking rates'!$G150*'Other input expert'!C$9),0)","v":0},{"$f":"IF('Picking rates'!$G150>0,'Yield & Sales calculation'!E150/('Picking rates'!$G150*'Other input expert'!D$9),0)","v":0},{"$f":"IF('Picking rates'!$G150>0,'Yield & Sales calculation'!F150/('Picking rates'!$G150*'Other input expert'!E$9),0)","v":0},{"$f":"IF('Picking rates'!$G150>0,'Yield & Sales calculation'!G150/('Picking rates'!$G150*'Other input expert'!F$9),0)","v":0},{"$f":"IF('Picking rates'!$G150>0,'Yield & Sales calculation'!H150/('Picking rates'!$G150*'Other input expert'!G$9),0)","v":0},{"$f":"IF('Picking rates'!$G150>0,'Yield & Sales calculation'!I150/('Picking rates'!$G150*'Other input expert'!H$9),0)","v":0},{"$f":"IF('Picking rates'!$G150>0,'Yield & Sales calculation'!J150/('Picking rates'!$G150*'Other input expert'!I$9),0)","v":0},{"$f":"IF('Picking rates'!$G150>0,'Yield & Sales calculation'!K150/('Picking rates'!$G150*'Other input expert'!J$9),0)","v":0},{"$f":"IF('Picking rates'!$G150>0,'Yield & Sales calculation'!L150/('Picking rates'!$G150*'Other input expert'!K$9),0)","v":0},{"$f":"IF('Picking rates'!$G150>0,'Yield & Sales calculation'!M150/('Picking rates'!$G150*'Other input expert'!L$9),0)","v":0},{"$f":"IF('Picking rates'!$G150>0,'Yield & Sales calculation'!N150/('Picking rates'!$G150*'Other input expert'!M$9),0)","v":0}]
["Ribes rubrum","Red currant",{"$f":"IF('Picking rates'!$G151>0,'Yield & Sales calculation'!C151/('Picking rates'!$G151*'Other input expert'!B$9),0)","v":0},{"$f":"IF('Picking rates'!$G151>0,'Yield & Sales calculation'!D151/('Picking rates'!$G151*'Other input expert'!C$9),0)","v":0},{"$f":"IF('Picking rates'!$G151>0,'Yield & Sales calculation'!E151/('Picking rates'!$G151*'Other input expert'!D$9),0)","v":0},{"$f":"IF('Picking rates'!$G151>0,'Yield & Sales calculation'!F151/('Picking rates'!$G151*'Other input expert'!E$9),0)","v":0},{"$f":"IF('Picking rates'!$G151>0,'Yield & Sales calculation'!G151/('Picking rates'!$G151*'Other input expert'!F$9),0)","v":0},{"$f":"IF('Picking rates'!$G151>0,'Yield & Sales calculation'!H151/('Picking rates'!$G151*'Other input expert'!G$9),0)","v":0},{"$f":"IF('Picking rates'!$G151>0,'Yield & Sales calculation'!I151/('Picking rates'!$G151*'Other input expert'!H$9),0)","v":0},{"$f":"IF('Picking rates'!$G151>0,'Yield & Sales calculation'!J151/('Picking rates'!$G151*'Other input expert'!I$9),0)","v":0},{"$f":"IF('Picking rates'!$G151>0,'Yield & Sales calculation'!K151/('Picking rates'!$G151*'Other input expert'!J$9),0)","v":0},{"$f":"IF('Picking rates'!$G151>0,'Yield & Sales calculation'!L151/('Picking rates'!$G151*'Other input expert'!K$9),0)","v":0},{"$f":"IF('Picking rates'!$G151>0,'Yield & Sales calculation'!M151/('Picking rates'!$G151*'Other input expert'!L$9),0)","v":0},{"$f":"IF('Picking rates'!$G151>0,'Yield & Sales calculation'!N151/('Picking rates'!$G151*'Other input expert'!M$9),0)","v":0}]
["Ribes Uva-Crispa","Gooseberry",{"$f":"IF('Picking rates'!$G152>0,'Yield & Sales calculation'!C152/('Picking rates'!$G152*'Other input expert'!B$9),0)","v":0},{"$f":"IF('Picking rates'!$G152>0,'Yield & Sales calculation'!D152/('Picking rates'!$G152*'Other input expert'!C$9),0)","v":0},{"$f":"IF('Picking rates'!$G152>0,'Yield & Sales calculation'!E152/('Picking rates'!$G152*'Other input expert'!D$9),0)","v":0},{"$f":"IF('Picking rates'!$G152>0,'Yield & Sales calculation'!F152/('Picking rates'!$G152*'Other input expert'!E$9),0)","v":0},{"$f":"IF('Picking rates'!$G152>0,'Yield & Sales calculation'!G152/('Picking rates'!$G152*'Other input expert'!F$9),0)","v":0},{"$f":"IF('Picking rates'!$G152>0,'Yield & Sales calculation'!H152/('Picking rates'!$G152*'Other input expert'!G$9),0)","v":0},{"$f":"IF('Picking rates'!$G152>0,'Yield & Sales calculation'!I152/('Picking rates'!$G152*'Other input expert'!H$9),0)","v":0},{"$f":"IF('Picking rates'!$G152>0,'Yield & Sales calculation'!J152/('Picking rates'!$G152*'Other input expert'!I$9),0)","v":0},{"$f":"IF('Picking rates'!$G152>0,'Yield & Sales calculation'!K152/('Picking rates'!$G152*'Other input expert'!J$9),0)","v":0},{"$f":"IF('Picking rates'!$G152>0,'Yield & Sales calculation'!L152/('Picking rates'!$G152*'Other input expert'!K$9),0)","v":0},{"$f":"IF('Picking rates'!$G152>0,'Yield & Sales calculation'!M152/('Picking rates'!$G152*'Other input expert'!L$9),0)","v":0},{"$f":"IF('Picking rates'!$G152>0,'Yield & Sales calculation'!N152/('Picking rates'!$G152*'Other input expert'!M$9),0)","v":0}]
["Ribes x. nidigrolaria","Jostaberry",{"$f":"IF('Picking rates'!$G153>0,'Yield & Sales calculation'!C153/('Picking rates'!$G153*'Other input expert'!B$9),0)","v":0},{"$f":"IF('Picking rates'!$G153>0,'Yield & Sales calculation'!D153/('Picking rates'!$G153*'Other input expert'!C$9),0)","v":0},{"$f":"IF('Picking rates'!$G153>0,'Yield & Sales calculation'!E153/('Picking rates'!$G153*'Other input expert'!D$9),0)","v":0},{"$f":"IF('Picking rates'!$G153>0,'Yield & Sales calculation'!F153/('Picking rates'!$G153*'Other input expert'!E$9),0)","v":0},{"$f":"IF('Picking rates'!$G153>0,'Yield & Sales calculation'!G153/('Picking rates'!$G153*'Other input expert'!F$9),0)","v":0},{"$f":"IF('Picking rates'!$G153>0,'Yield & Sales calculation'!H153/('Picking rates'!$G153*'Other input expert'!G$9),0)","v":0},{"$f":"IF('Picking rates'!$G153>0,'Yield & Sales calculation'!I153/('Picking rates'!$G153*'Other input expert'!H$9),0)","v":0},{"$f":"IF('Picking rates'!$G153>0,'Yield & Sales calculation'!J153/('Picking rates'!$G153*'Other input expert'!I$9),0)","v":0},{"$f":"IF('Picking rates'!$G153>0,'Yield & Sales calculation'!K153/('Picking rates'!$G153*'Other input expert'!J$9),0)","v":0},{"$f":"IF('Picking rates'!$G153>0,'Yield & Sales calculation'!L153/('Picking rates'!$G153*'Other input expert'!K$9),0)","v":0},{"$f":"IF('Picking rates'!$G153>0,'Yield & Sales calculation'!M153/('Picking rates'!$G153*'Other input expert'!L$9),0)","v":0},{"$f":"IF('Picking rates'!$G153>0,'Yield & Sales calculation'!N153/('Picking rates'!$G153*'Other input expert'!M$9),0)","v":0}]
["Robinia pseudoacacia","Black locust",{"$f":"IF('Picking rates'!$G154>0,'Yield & Sales calculation'!C154/('Picking rates'!$G154*'Other input expert'!B$9),0)","v":0},{"$f":"IF('Picking rates'!$G154>0,'Yield & Sales calculation'!D154/('Picking rates'!$G154*'Other input expert'!C$9),0)","v":0},{"$f":"IF('Picking rates'!$G154>0,'Yield & Sales calculation'!E154/('Picking rates'!$G154*'Other input expert'!D$9),0)","v":0},{"$f":"IF('Picking rates'!$G154>0,'Yield & Sales calculation'!F154/('Picking rates'!$G154*'Other input expert'!E$9),0)","v":0},{"$f":"IF('Picking rates'!$G154>0,'Yield & Sales calculation'!G154/('Picking rates'!$G154*'Other input expert'!F$9),0)","v":0},{"$f":"IF('Picking rates'!$G154>0,'Yield & Sales calculation'!H154/('Picking rates'!$G154*'Other input expert'!G$9),0)","v":0},{"$f":"IF('Picking rates'!$G154>0,'Yield & Sales calculation'!I154/('Picking rates'!$G154*'Other input expert'!H$9),0)","v":0},{"$f":"IF('Picking rates'!$G154>0,'Yield & Sales calculation'!J154/('Picking rates'!$G154*'Other input expert'!I$9),0)","v":0},{"$f":"IF('Picking rates'!$G154>0,'Yield & Sales calculation'!K154/('Picking rates'!$G154*'Other input expert'!J$9),0)","v":0},{"$f":"IF('Picking rates'!$G154>0,'Yield & Sales calculation'!L154/('Picking rates'!$G154*'Other input expert'!K$9),0)","v":0},{"$f":"IF('Picking rates'!$G154>0,'Yield & Sales calculation'!M154/('Picking rates'!$G154*'Other input expert'!L$9),0)","v":0},{"$f":"IF('Picking rates'!$G154>0,'Yield & Sales calculation'!N154/('Picking rates'!$G154*'Other input expert'!M$9),0)","v":0}]
["Rosa rugosa","Rimpelroos",{"$f":"IF('Picking rates'!$G155>0,'Yield & Sales calculation'!C155/('Picking rates'!$G155*'Other input expert'!B$9),0)","v":0},{"$f":"IF('Picking rates'!$G155>0,'Yield & Sales calculation'!D155/('Picking rates'!$G155*'Other input expert'!C$9),0)","v":0},{"$f":"IF('Picking rates'!$G155>0,'Yield & Sales calculation'!E155/('Picking rates'!$G155*'Other input expert'!D$9),0)","v":0},{"$f":"IF('Picking rates'!$G155>0,'Yield & Sales calculation'!F155/('Picking rates'!$G155*'Other input expert'!E$9),0)","v":0},{"$f":"IF('Picking rates'!$G155>0,'Yield & Sales calculation'!G155/('Picking rates'!$G155*'Other input expert'!F$9),0)","v":0},{"$f":"IF('Picking rates'!$G155>0,'Yield & Sales calculation'!H155/('Picking rates'!$G155*'Other input expert'!G$9),0)","v":0},{"$f":"IF('Picking rates'!$G155>0,'Yield & Sales calculation'!I155/('Picking rates'!$G155*'Other input expert'!H$9),0)","v":0},{"$f":"IF('Picking rates'!$G155>0,'Yield & Sales calculation'!J155/('Picking rates'!$G155*'Other input expert'!I$9),0)","v":0},{"$f":"IF('Picking rates'!$G155>0,'Yield & Sales calculation'!K155/('Picking rates'!$G155*'Other input expert'!J$9),0)","v":0},{"$f":"IF('Picking rates'!$G155>0,'Yield & Sales calculation'!L155/('Picking rates'!$G155*'Other input expert'!K$9),0)","v":0},{"$f":"IF('Picking rates'!$G155>0,'Yield & Sales calculation'!M155/('Picking rates'!$G155*'Other input expert'!L$9),0)","v":0},{"$f":"IF('Picking rates'!$G155>0,'Yield & Sales calculation'!N155/('Picking rates'!$G155*'Other input expert'!M$9),0)","v":0}]
["Rosmarinum off.","Rosemary",{"$f":"IF('Picking rates'!$G156>0,'Yield & Sales calculation'!C156/('Picking rates'!$G156*'Other input expert'!B$9),0)","v":0},{"$f":"IF('Picking rates'!$G156>0,'Yield & Sales calculation'!D156/('Picking rates'!$G156*'Other input expert'!C$9),0)","v":0},{"$f":"IF('Picking rates'!$G156>0,'Yield & Sales calculation'!E156/('Picking rates'!$G156*'Other input expert'!D$9),0)","v":0},{"$f":"IF('Picking rates'!$G156>0,'Yield & Sales calculation'!F156/('Picking rates'!$G156*'Other input expert'!E$9),0)","v":0},{"$f":"IF('Picking rates'!$G156>0,'Yield & Sales calculation'!G156/('Picking rates'!$G156*'Other input expert'!F$9),0)","v":0},{"$f":"IF('Picking rates'!$G156>0,'Yield & Sales calculation'!H156/('Picking rates'!$G156*'Other input expert'!G$9),0)","v":0},{"$f":"IF('Picking rates'!$G156>0,'Yield & Sales calculation'!I156/('Picking rates'!$G156*'Other input expert'!H$9),0)","v":0},{"$f":"IF('Picking rates'!$G156>0,'Yield & Sales calculation'!J156/('Picking rates'!$G156*'Other input expert'!I$9),0)","v":0},{"$f":"IF('Picking rates'!$G156>0,'Yield & Sales calculation'!K156/('Picking rates'!$G156*'Other input expert'!J$9),0)","v":0},{"$f":"IF('Picking rates'!$G156>0,'Yield & Sales calculation'!L156/('Picking rates'!$G156*'Other input expert'!K$9),0)","v":0},{"$f":"IF('Picking rates'!$G156>0,'Yield & Sales calculation'!M156/('Picking rates'!$G156*'Other input expert'!L$9),0)","v":0},{"$f":"IF('Picking rates'!$G156>0,'Yield & Sales calculation'!N156/('Picking rates'!$G156*'Other input expert'!M$9),0)","v":0}]
["Rubus fruticosus","Blackberry",{"$f":"IF('Picking rates'!$G157>0,'Yield & Sales calculation'!C157/('Picking rates'!$G157*'Other input expert'!B$9),0)","v":0},{"$f":"IF('Picking rates'!$G157>0,'Yield & Sales calculation'!D157/('Picking rates'!$G157*'Other input expert'!C$9),0)","v":0},{"$f":"IF('Picking rates'!$G157>0,'Yield & Sales calculation'!E157/('Picking rates'!$G157*'Other input expert'!D$9),0)","v":0},{"$f":"IF('Picking rates'!$G157>0,'Yield & Sales calculation'!F157/('Picking rates'!$G157*'Other input expert'!E$9),0)","v":0},{"$f":"IF('Picking rates'!$G157>0,'Yield & Sales calculation'!G157/('Picking rates'!$G157*'Other input expert'!F$9),0)","v":0},{"$f":"IF('Picking rates'!$G157>0,'Yield & Sales calculation'!H157/('Picking rates'!$G157*'Other input expert'!G$9),0)","v":0},{"$f":"IF('Picking rates'!$G157>0,'Yield & Sales calculation'!I157/('Picking rates'!$G157*'Other input expert'!H$9),0)","v":0},{"$f":"IF('Picking rates'!$G157>0,'Yield & Sales calculation'!J157/('Picking rates'!$G157*'Other input expert'!I$9),0)","v":0},{"$f":"IF('Picking rates'!$G157>0,'Yield & Sales calculation'!K157/('Picking rates'!$G157*'Other input expert'!J$9),0)","v":0},{"$f":"IF('Picking rates'!$G157>0,'Yield & Sales calculation'!L157/('Picking rates'!$G157*'Other input expert'!K$9),0)","v":0},{"$f":"IF('Picking rates'!$G157>0,'Yield & Sales calculation'!M157/('Picking rates'!$G157*'Other input expert'!L$9),0)","v":0},{"$f":"IF('Picking rates'!$G157>0,'Yield & Sales calculation'!N157/('Picking rates'!$G157*'Other input expert'!M$9),0)","v":0}]
["Rubus hibrids","Tayberry ",{"$f":"IF('Picking rates'!$G158>0,'Yield & Sales calculation'!C158/('Picking rates'!$G158*'Other input expert'!B$9),0)","v":0},{"$f":"IF('Picking rates'!$G158>0,'Yield & Sales calculation'!D158/('Picking rates'!$G158*'Other input expert'!C$9),0)","v":0},{"$f":"IF('Picking rates'!$G158>0,'Yield & Sales calculation'!E158/('Picking rates'!$G158*'Other input expert'!D$9),0)","v":0},{"$f":"IF('Picking rates'!$G158>0,'Yield & Sales calculation'!F158/('Picking rates'!$G158*'Other input expert'!E$9),0)","v":0},{"$f":"IF('Picking rates'!$G158>0,'Yield & Sales calculation'!G158/('Picking rates'!$G158*'Other input expert'!F$9),0)","v":0},{"$f":"IF('Picking rates'!$G158>0,'Yield & Sales calculation'!H158/('Picking rates'!$G158*'Other input expert'!G$9),0)","v":0},{"$f":"IF('Picking rates'!$G158>0,'Yield & Sales calculation'!I158/('Picking rates'!$G158*'Other input expert'!H$9),0)","v":0},{"$f":"IF('Picking rates'!$G158>0,'Yield & Sales calculation'!J158/('Picking rates'!$G158*'Other input expert'!I$9),0)","v":0},{"$f":"IF('Picking rates'!$G158>0,'Yield & Sales calculation'!K158/('Picking rates'!$G158*'Other input expert'!J$9),0)","v":0},{"$f":"IF('Picking rates'!$G158>0,'Yield & Sales calculation'!L158/('Picking rates'!$G158*'Other input expert'!K$9),0)","v":0},{"$f":"IF('Picking rates'!$G158>0,'Yield & Sales calculation'!M158/('Picking rates'!$G158*'Other input expert'!L$9),0)","v":0},{"$f":"IF('Picking rates'!$G158>0,'Yield & Sales calculation'!N158/('Picking rates'!$G158*'Other input expert'!M$9),0)","v":0}]
["Rubus idaeus","Raspberry",{"$f":"IF('Picking rates'!$G159>0,'Yield & Sales calculation'!C159/('Picking rates'!$G159*'Other input expert'!B$9),0)","v":0},{"$f":"IF('Picking rates'!$G159>0,'Yield & Sales calculation'!D159/('Picking rates'!$G159*'Other input expert'!C$9),0)","v":0},{"$f":"IF('Picking rates'!$G159>0,'Yield & Sales calculation'!E159/('Picking rates'!$G159*'Other input expert'!D$9),0)","v":0},{"$f":"IF('Picking rates'!$G159>0,'Yield & Sales calculation'!F159/('Picking rates'!$G159*'Other input expert'!E$9),0)","v":0},{"$f":"IF('Picking rates'!$G159>0,'Yield & Sales calculation'!G159/('Picking rates'!$G159*'Other input expert'!F$9),0)","v":0},{"$f":"IF('Picking rates'!$G159>0,'Yield & Sales calculation'!H159/('Picking rates'!$G159*'Other input expert'!G$9),0)","v":0},{"$f":"IF('Picking rates'!$G159>0,'Yield & Sales calculation'!I159/('Picking rates'!$G159*'Other input expert'!H$9),0)","v":0},{"$f":"IF('Picking rates'!$G159>0,'Yield & Sales calculation'!J159/('Picking rates'!$G159*'Other input expert'!I$9),0)","v":0},{"$f":"IF('Picking rates'!$G159>0,'Yield & Sales calculation'!K159/('Picking rates'!$G159*'Other input expert'!J$9),0)","v":0},{"$f":"IF('Picking rates'!$G159>0,'Yield & Sales calculation'!L159/('Picking rates'!$G159*'Other input expert'!K$9),0)","v":0},{"$f":"IF('Picking rates'!$G159>0,'Yield & Sales calculation'!M159/('Picking rates'!$G159*'Other input expert'!L$9),0)","v":0},{"$f":"IF('Picking rates'!$G159>0,'Yield & Sales calculation'!N159/('Picking rates'!$G159*'Other input expert'!M$9),0)","v":0}]
["Rubus loganobaccus","Loganberry",{"$f":"IF('Picking rates'!$G160>0,'Yield & Sales calculation'!C160/('Picking rates'!$G160*'Other input expert'!B$9),0)","v":0},{"$f":"IF('Picking rates'!$G160>0,'Yield & Sales calculation'!D160/('Picking rates'!$G160*'Other input expert'!C$9),0)","v":0},{"$f":"IF('Picking rates'!$G160>0,'Yield & Sales calculation'!E160/('Picking rates'!$G160*'Other input expert'!D$9),0)","v":0},{"$f":"IF('Picking rates'!$G160>0,'Yield & Sales calculation'!F160/('Picking rates'!$G160*'Other input expert'!E$9),0)","v":0},{"$f":"IF('Picking rates'!$G160>0,'Yield & Sales calculation'!G160/('Picking rates'!$G160*'Other input expert'!F$9),0)","v":0},{"$f":"IF('Picking rates'!$G160>0,'Yield & Sales calculation'!H160/('Picking rates'!$G160*'Other input expert'!G$9),0)","v":0},{"$f":"IF('Picking rates'!$G160>0,'Yield & Sales calculation'!I160/('Picking rates'!$G160*'Other input expert'!H$9),0)","v":0},{"$f":"IF('Picking rates'!$G160>0,'Yield & Sales calculation'!J160/('Picking rates'!$G160*'Other input expert'!I$9),0)","v":0},{"$f":"IF('Picking rates'!$G160>0,'Yield & Sales calculation'!K160/('Picking rates'!$G160*'Other input expert'!J$9),0)","v":0},{"$f":"IF('Picking rates'!$G160>0,'Yield & Sales calculation'!L160/('Picking rates'!$G160*'Other input expert'!K$9),0)","v":0},{"$f":"IF('Picking rates'!$G160>0,'Yield & Sales calculation'!M160/('Picking rates'!$G160*'Other input expert'!L$9),0)","v":0},{"$f":"IF('Picking rates'!$G160>0,'Yield & Sales calculation'!N160/('Picking rates'!$G160*'Other input expert'!M$9),0)","v":0}]
["Rubus phoenicolasius","Japanese wineberry",{"$f":"IF('Picking rates'!$G161>0,'Yield & Sales calculation'!C161/('Picking rates'!$G161*'Other input expert'!B$9),0)","v":0},{"$f":"IF('Picking rates'!$G161>0,'Yield & Sales calculation'!D161/('Picking rates'!$G161*'Other input expert'!C$9),0)","v":0},{"$f":"IF('Picking rates'!$G161>0,'Yield & Sales calculation'!E161/('Picking rates'!$G161*'Other input expert'!D$9),0)","v":0},{"$f":"IF('Picking rates'!$G161>0,'Yield & Sales calculation'!F161/('Picking rates'!$G161*'Other input expert'!E$9),0)","v":0},{"$f":"IF('Picking rates'!$G161>0,'Yield & Sales calculation'!G161/('Picking rates'!$G161*'Other input expert'!F$9),0)","v":0},{"$f":"IF('Picking rates'!$G161>0,'Yield & Sales calculation'!H161/('Picking rates'!$G161*'Other input expert'!G$9),0)","v":0},{"$f":"IF('Picking rates'!$G161>0,'Yield & Sales calculation'!I161/('Picking rates'!$G161*'Other input expert'!H$9),0)","v":0},{"$f":"IF('Picking rates'!$G161>0,'Yield & Sales calculation'!J161/('Picking rates'!$G161*'Other input expert'!I$9),0)","v":0},{"$f":"IF('Picking rates'!$G161>0,'Yield & Sales calculation'!K161/('Picking rates'!$G161*'Other input expert'!J$9),0)","v":0},{"$f":"IF('Picking rates'!$G161>0,'Yield & Sales calculation'!L161/('Picking rates'!$G161*'Other input expert'!K$9),0)","v":0},{"$f":"IF('Picking rates'!$G161>0,'Yield & Sales calculation'!M161/('Picking rates'!$G161*'Other input expert'!L$9),0)","v":0},{"$f":"IF('Picking rates'!$G161>0,'Yield & Sales calculation'!N161/('Picking rates'!$G161*'Other input expert'!M$9),0)","v":0}]
["Ruta graveolens","Rue",{"$f":"IF('Picking rates'!$G162>0,'Yield & Sales calculation'!C162/('Picking rates'!$G162*'Other input expert'!B$9),0)","v":0},{"$f":"IF('Picking rates'!$G162>0,'Yield & Sales calculation'!D162/('Picking rates'!$G162*'Other input expert'!C$9),0)","v":0},{"$f":"IF('Picking rates'!$G162>0,'Yield & Sales calculation'!E162/('Picking rates'!$G162*'Other input expert'!D$9),0)","v":0},{"$f":"IF('Picking rates'!$G162>0,'Yield & Sales calculation'!F162/('Picking rates'!$G162*'Other input expert'!E$9),0)","v":0},{"$f":"IF('Picking rates'!$G162>0,'Yield & Sales calculation'!G162/('Picking rates'!$G162*'Other input expert'!F$9),0)","v":0},{"$f":"IF('Picking rates'!$G162>0,'Yield & Sales calculation'!H162/('Picking rates'!$G162*'Other input expert'!G$9),0)","v":0},{"$f":"IF('Picking rates'!$G162>0,'Yield & Sales calculation'!I162/('Picking rates'!$G162*'Other input expert'!H$9),0)","v":0},{"$f":"IF('Picking rates'!$G162>0,'Yield & Sales calculation'!J162/('Picking rates'!$G162*'Other input expert'!I$9),0)","v":0},{"$f":"IF('Picking rates'!$G162>0,'Yield & Sales calculation'!K162/('Picking rates'!$G162*'Other input expert'!J$9),0)","v":0},{"$f":"IF('Picking rates'!$G162>0,'Yield & Sales calculation'!L162/('Picking rates'!$G162*'Other input expert'!K$9),0)","v":0},{"$f":"IF('Picking rates'!$G162>0,'Yield & Sales calculation'!M162/('Picking rates'!$G162*'Other input expert'!L$9),0)","v":0},{"$f":"IF('Picking rates'!$G162>0,'Yield & Sales calculation'!N162/('Picking rates'!$G162*'Other input expert'!M$9),0)","v":0}]
["Salvia off.","Sage",{"$f":"IF('Picking rates'!$G163>0,'Yield & Sales calculation'!C163/('Picking rates'!$G163*'Other input expert'!B$9),0)","v":0},{"$f":"IF('Picking rates'!$G163>0,'Yield & Sales calculation'!D163/('Picking rates'!$G163*'Other input expert'!C$9),0)","v":0},{"$f":"IF('Picking rates'!$G163>0,'Yield & Sales calculation'!E163/('Picking rates'!$G163*'Other input expert'!D$9),0)","v":0},{"$f":"IF('Picking rates'!$G163>0,'Yield & Sales calculation'!F163/('Picking rates'!$G163*'Other input expert'!E$9),0)","v":0},{"$f":"IF('Picking rates'!$G163>0,'Yield & Sales calculation'!G163/('Picking rates'!$G163*'Other input expert'!F$9),0)","v":0},{"$f":"IF('Picking rates'!$G163>0,'Yield & Sales calculation'!H163/('Picking rates'!$G163*'Other input expert'!G$9),0)","v":0},{"$f":"IF('Picking rates'!$G163>0,'Yield & Sales calculation'!I163/('Picking rates'!$G163*'Other input expert'!H$9),0)","v":0},{"$f":"IF('Picking rates'!$G163>0,'Yield & Sales calculation'!J163/('Picking rates'!$G163*'Other input expert'!I$9),0)","v":0},{"$f":"IF('Picking rates'!$G163>0,'Yield & Sales calculation'!K163/('Picking rates'!$G163*'Other input expert'!J$9),0)","v":0},{"$f":"IF('Picking rates'!$G163>0,'Yield & Sales calculation'!L163/('Picking rates'!$G163*'Other input expert'!K$9),0)","v":0},{"$f":"IF('Picking rates'!$G163>0,'Yield & Sales calculation'!M163/('Picking rates'!$G163*'Other input expert'!L$9),0)","v":0},{"$f":"IF('Picking rates'!$G163>0,'Yield & Sales calculation'!N163/('Picking rates'!$G163*'Other input expert'!M$9),0)","v":0}]
["Sambucus canadiensis","American elder",{"$f":"IF('Picking rates'!$G164>0,'Yield & Sales calculation'!C164/('Picking rates'!$G164*'Other input expert'!B$9),0)","v":0},{"$f":"IF('Picking rates'!$G164>0,'Yield & Sales calculation'!D164/('Picking rates'!$G164*'Other input expert'!C$9),0)","v":0},{"$f":"IF('Picking rates'!$G164>0,'Yield & Sales calculation'!E164/('Picking rates'!$G164*'Other input expert'!D$9),0)","v":0},{"$f":"IF('Picking rates'!$G164>0,'Yield & Sales calculation'!F164/('Picking rates'!$G164*'Other input expert'!E$9),0)","v":0},{"$f":"IF('Picking rates'!$G164>0,'Yield & Sales calculation'!G164/('Picking rates'!$G164*'Other input expert'!F$9),0)","v":0},{"$f":"IF('Picking rates'!$G164>0,'Yield & Sales calculation'!H164/('Picking rates'!$G164*'Other input expert'!G$9),0)","v":0},{"$f":"IF('Picking rates'!$G164>0,'Yield & Sales calculation'!I164/('Picking rates'!$G164*'Other input expert'!H$9),0)","v":0},{"$f":"IF('Picking rates'!$G164>0,'Yield & Sales calculation'!J164/('Picking rates'!$G164*'Other input expert'!I$9),0)","v":0},{"$f":"IF('Picking rates'!$G164>0,'Yield & Sales calculation'!K164/('Picking rates'!$G164*'Other input expert'!J$9),0)","v":0},{"$f":"IF('Picking rates'!$G164>0,'Yield & Sales calculation'!L164/('Picking rates'!$G164*'Other input expert'!K$9),0)","v":0},{"$f":"IF('Picking rates'!$G164>0,'Yield & Sales calculation'!M164/('Picking rates'!$G164*'Other input expert'!L$9),0)","v":0},{"$f":"IF('Picking rates'!$G164>0,'Yield & Sales calculation'!N164/('Picking rates'!$G164*'Other input expert'!M$9),0)","v":0}]
["Sambucus nigra","Elderberry",{"$f":"IF('Picking rates'!$G165>0,'Yield & Sales calculation'!C165/('Picking rates'!$G165*'Other input expert'!B$9),0)","v":0},{"$f":"IF('Picking rates'!$G165>0,'Yield & Sales calculation'!D165/('Picking rates'!$G165*'Other input expert'!C$9),0)","v":0},{"$f":"IF('Picking rates'!$G165>0,'Yield & Sales calculation'!E165/('Picking rates'!$G165*'Other input expert'!D$9),0)","v":0},{"$f":"IF('Picking rates'!$G165>0,'Yield & Sales calculation'!F165/('Picking rates'!$G165*'Other input expert'!E$9),0)","v":0},{"$f":"IF('Picking rates'!$G165>0,'Yield & Sales calculation'!G165/('Picking rates'!$G165*'Other input expert'!F$9),0)","v":0},{"$f":"IF('Picking rates'!$G165>0,'Yield & Sales calculation'!H165/('Picking rates'!$G165*'Other input expert'!G$9),0)","v":0},{"$f":"IF('Picking rates'!$G165>0,'Yield & Sales calculation'!I165/('Picking rates'!$G165*'Other input expert'!H$9),0)","v":0},{"$f":"IF('Picking rates'!$G165>0,'Yield & Sales calculation'!J165/('Picking rates'!$G165*'Other input expert'!I$9),0)","v":0},{"$f":"IF('Picking rates'!$G165>0,'Yield & Sales calculation'!K165/('Picking rates'!$G165*'Other input expert'!J$9),0)","v":0},{"$f":"IF('Picking rates'!$G165>0,'Yield & Sales calculation'!L165/('Picking rates'!$G165*'Other input expert'!K$9),0)","v":0},{"$f":"IF('Picking rates'!$G165>0,'Yield & Sales calculation'!M165/('Picking rates'!$G165*'Other input expert'!L$9),0)","v":0},{"$f":"IF('Picking rates'!$G165>0,'Yield & Sales calculation'!N165/('Picking rates'!$G165*'Other input expert'!M$9),0)","v":0}]
["Santolina spp.","Cotton lavender",{"$f":"IF('Picking rates'!$G166>0,'Yield & Sales calculation'!C166/('Picking rates'!$G166*'Other input expert'!B$9),0)","v":0},{"$f":"IF('Picking rates'!$G166>0,'Yield & Sales calculation'!D166/('Picking rates'!$G166*'Other input expert'!C$9),0)","v":0},{"$f":"IF('Picking rates'!$G166>0,'Yield & Sales calculation'!E166/('Picking rates'!$G166*'Other input expert'!D$9),0)","v":0},{"$f":"IF('Picking rates'!$G166>0,'Yield & Sales calculation'!F166/('Picking rates'!$G166*'Other input expert'!E$9),0)","v":0},{"$f":"IF('Picking rates'!$G166>0,'Yield & Sales calculation'!G166/('Picking rates'!$G166*'Other input expert'!F$9),0)","v":0},{"$f":"IF('Picking rates'!$G166>0,'Yield & Sales calculation'!H166/('Picking rates'!$G166*'Other input expert'!G$9),0)","v":0},{"$f":"IF('Picking rates'!$G166>0,'Yield & Sales calculation'!I166/('Picking rates'!$G166*'Other input expert'!H$9),0)","v":0},{"$f":"IF('Picking rates'!$G166>0,'Yield & Sales calculation'!J166/('Picking rates'!$G166*'Other input expert'!I$9),0)","v":0},{"$f":"IF('Picking rates'!$G166>0,'Yield & Sales calculation'!K166/('Picking rates'!$G166*'Other input expert'!J$9),0)","v":0},{"$f":"IF('Picking rates'!$G166>0,'Yield & Sales calculation'!L166/('Picking rates'!$G166*'Other input expert'!K$9),0)","v":0},{"$f":"IF('Picking rates'!$G166>0,'Yield & Sales calculation'!M166/('Picking rates'!$G166*'Other input expert'!L$9),0)","v":0},{"$f":"IF('Picking rates'!$G166>0,'Yield & Sales calculation'!N166/('Picking rates'!$G166*'Other input expert'!M$9),0)","v":0}]
["Sassafras albidum","Sassafras",{"$f":"IF('Picking rates'!$G167>0,'Yield & Sales calculation'!C167/('Picking rates'!$G167*'Other input expert'!B$9),0)","v":0},{"$f":"IF('Picking rates'!$G167>0,'Yield & Sales calculation'!D167/('Picking rates'!$G167*'Other input expert'!C$9),0)","v":0},{"$f":"IF('Picking rates'!$G167>0,'Yield & Sales calculation'!E167/('Picking rates'!$G167*'Other input expert'!D$9),0)","v":0},{"$f":"IF('Picking rates'!$G167>0,'Yield & Sales calculation'!F167/('Picking rates'!$G167*'Other input expert'!E$9),0)","v":0},{"$f":"IF('Picking rates'!$G167>0,'Yield & Sales calculation'!G167/('Picking rates'!$G167*'Other input expert'!F$9),0)","v":0},{"$f":"IF('Picking rates'!$G167>0,'Yield & Sales calculation'!H167/('Picking rates'!$G167*'Other input expert'!G$9),0)","v":0},{"$f":"IF('Picking rates'!$G167>0,'Yield & Sales calculation'!I167/('Picking rates'!$G167*'Other input expert'!H$9),0)","v":0},{"$f":"IF('Picking rates'!$G167>0,'Yield & Sales calculation'!J167/('Picking rates'!$G167*'Other input expert'!I$9),0)","v":0},{"$f":"IF('Picking rates'!$G167>0,'Yield & Sales calculation'!K167/('Picking rates'!$G167*'Other input expert'!J$9),0)","v":0},{"$f":"IF('Picking rates'!$G167>0,'Yield & Sales calculation'!L167/('Picking rates'!$G167*'Other input expert'!K$9),0)","v":0},{"$f":"IF('Picking rates'!$G167>0,'Yield & Sales calculation'!M167/('Picking rates'!$G167*'Other input expert'!L$9),0)","v":0},{"$f":"IF('Picking rates'!$G167>0,'Yield & Sales calculation'!N167/('Picking rates'!$G167*'Other input expert'!M$9),0)","v":0}]
["Schisandra spp.","Magnolia vine",{"$f":"IF('Picking rates'!$G168>0,'Yield & Sales calculation'!C168/('Picking rates'!$G168*'Other input expert'!B$9),0)","v":0},{"$f":"IF('Picking rates'!$G168>0,'Yield & Sales calculation'!D168/('Picking rates'!$G168*'Other input expert'!C$9),0)","v":0},{"$f":"IF('Picking rates'!$G168>0,'Yield & Sales calculation'!E168/('Picking rates'!$G168*'Other input expert'!D$9),0)","v":0},{"$f":"IF('Picking rates'!$G168>0,'Yield & Sales calculation'!F168/('Picking rates'!$G168*'Other input expert'!E$9),0)","v":0},{"$f":"IF('Picking rates'!$G168>0,'Yield & Sales calculation'!G168/('Picking rates'!$G168*'Other input expert'!F$9),0)","v":0},{"$f":"IF('Picking rates'!$G168>0,'Yield & Sales calculation'!H168/('Picking rates'!$G168*'Other input expert'!G$9),0)","v":0},{"$f":"IF('Picking rates'!$G168>0,'Yield & Sales calculation'!I168/('Picking rates'!$G168*'Other input expert'!H$9),0)","v":0},{"$f":"IF('Picking rates'!$G168>0,'Yield & Sales calculation'!J168/('Picking rates'!$G168*'Other input expert'!I$9),0)","v":0},{"$f":"IF('Picking rates'!$G168>0,'Yield & Sales calculation'!K168/('Picking rates'!$G168*'Other input expert'!J$9),0)","v":0},{"$f":"IF('Picking rates'!$G168>0,'Yield & Sales calculation'!L168/('Picking rates'!$G168*'Other input expert'!K$9),0)","v":0},{"$f":"IF('Picking rates'!$G168>0,'Yield & Sales calculation'!M168/('Picking rates'!$G168*'Other input expert'!L$9),0)","v":0},{"$f":"IF('Picking rates'!$G168>0,'Yield & Sales calculation'!N168/('Picking rates'!$G168*'Other input expert'!M$9),0)","v":0}]
["Scutellaria galericulata","Common skullcap",{"$f":"IF('Picking rates'!$G169>0,'Yield & Sales calculation'!C169/('Picking rates'!$G169*'Other input expert'!B$9),0)","v":0},{"$f":"IF('Picking rates'!$G169>0,'Yield & Sales calculation'!D169/('Picking rates'!$G169*'Other input expert'!C$9),0)","v":0},{"$f":"IF('Picking rates'!$G169>0,'Yield & Sales calculation'!E169/('Picking rates'!$G169*'Other input expert'!D$9),0)","v":0},{"$f":"IF('Picking rates'!$G169>0,'Yield & Sales calculation'!F169/('Picking rates'!$G169*'Other input expert'!E$9),0)","v":0},{"$f":"IF('Picking rates'!$G169>0,'Yield & Sales calculation'!G169/('Picking rates'!$G169*'Other input expert'!F$9),0)","v":0},{"$f":"IF('Picking rates'!$G169>0,'Yield & Sales calculation'!H169/('Picking rates'!$G169*'Other input expert'!G$9),0)","v":0},{"$f":"IF('Picking rates'!$G169>0,'Yield & Sales calculation'!I169/('Picking rates'!$G169*'Other input expert'!H$9),0)","v":0},{"$f":"IF('Picking rates'!$G169>0,'Yield & Sales calculation'!J169/('Picking rates'!$G169*'Other input expert'!I$9),0)","v":0},{"$f":"IF('Picking rates'!$G169>0,'Yield & Sales calculation'!K169/('Picking rates'!$G169*'Other input expert'!J$9),0)","v":0},{"$f":"IF('Picking rates'!$G169>0,'Yield & Sales calculation'!L169/('Picking rates'!$G169*'Other input expert'!K$9),0)","v":0},{"$f":"IF('Picking rates'!$G169>0,'Yield & Sales calculation'!M169/('Picking rates'!$G169*'Other input expert'!L$9),0)","v":0},{"$f":"IF('Picking rates'!$G169>0,'Yield & Sales calculation'!N169/('Picking rates'!$G169*'Other input expert'!M$9),0)","v":0}]
["Solidago spp.","goldenrod",{"$f":"IF('Picking rates'!$G170>0,'Yield & Sales calculation'!C170/('Picking rates'!$G170*'Other input expert'!B$9),0)","v":0},{"$f":"IF('Picking rates'!$G170>0,'Yield & Sales calculation'!D170/('Picking rates'!$G170*'Other input expert'!C$9),0)","v":0},{"$f":"IF('Picking rates'!$G170>0,'Yield & Sales calculation'!E170/('Picking rates'!$G170*'Other input expert'!D$9),0)","v":0},{"$f":"IF('Picking rates'!$G170>0,'Yield & Sales calculation'!F170/('Picking rates'!$G170*'Other input expert'!E$9),0)","v":0},{"$f":"IF('Picking rates'!$G170>0,'Yield & Sales calculation'!G170/('Picking rates'!$G170*'Other input expert'!F$9),0)","v":0},{"$f":"IF('Picking rates'!$G170>0,'Yield & Sales calculation'!H170/('Picking rates'!$G170*'Other input expert'!G$9),0)","v":0},{"$f":"IF('Picking rates'!$G170>0,'Yield & Sales calculation'!I170/('Picking rates'!$G170*'Other input expert'!H$9),0)","v":0},{"$f":"IF('Picking rates'!$G170>0,'Yield & Sales calculation'!J170/('Picking rates'!$G170*'Other input expert'!I$9),0)","v":0},{"$f":"IF('Picking rates'!$G170>0,'Yield & Sales calculation'!K170/('Picking rates'!$G170*'Other input expert'!J$9),0)","v":0},{"$f":"IF('Picking rates'!$G170>0,'Yield & Sales calculation'!L170/('Picking rates'!$G170*'Other input expert'!K$9),0)","v":0},{"$f":"IF('Picking rates'!$G170>0,'Yield & Sales calculation'!M170/('Picking rates'!$G170*'Other input expert'!L$9),0)","v":0},{"$f":"IF('Picking rates'!$G170>0,'Yield & Sales calculation'!N170/('Picking rates'!$G170*'Other input expert'!M$9),0)","v":0}]
["Sorbus aucuparia","Mountain ash",{"$f":"IF('Picking rates'!$G171>0,'Yield & Sales calculation'!C171/('Picking rates'!$G171*'Other input expert'!B$9),0)","v":0},{"$f":"IF('Picking rates'!$G171>0,'Yield & Sales calculation'!D171/('Picking rates'!$G171*'Other input expert'!C$9),0)","v":0},{"$f":"IF('Picking rates'!$G171>0,'Yield & Sales calculation'!E171/('Picking rates'!$G171*'Other input expert'!D$9),0)","v":0},{"$f":"IF('Picking rates'!$G171>0,'Yield & Sales calculation'!F171/('Picking rates'!$G171*'Other input expert'!E$9),0)","v":0},{"$f":"IF('Picking rates'!$G171>0,'Yield & Sales calculation'!G171/('Picking rates'!$G171*'Other input expert'!F$9),0)","v":0},{"$f":"IF('Picking rates'!$G171>0,'Yield & Sales calculation'!H171/('Picking rates'!$G171*'Other input expert'!G$9),0)","v":0},{"$f":"IF('Picking rates'!$G171>0,'Yield & Sales calculation'!I171/('Picking rates'!$G171*'Other input expert'!H$9),0)","v":0},{"$f":"IF('Picking rates'!$G171>0,'Yield & Sales calculation'!J171/('Picking rates'!$G171*'Other input expert'!I$9),0)","v":0},{"$f":"IF('Picking rates'!$G171>0,'Yield & Sales calculation'!K171/('Picking rates'!$G171*'Other input expert'!J$9),0)","v":0},{"$f":"IF('Picking rates'!$G171>0,'Yield & Sales calculation'!L171/('Picking rates'!$G171*'Other input expert'!K$9),0)","v":0},{"$f":"IF('Picking rates'!$G171>0,'Yield & Sales calculation'!M171/('Picking rates'!$G171*'Other input expert'!L$9),0)","v":0},{"$f":"IF('Picking rates'!$G171>0,'Yield & Sales calculation'!N171/('Picking rates'!$G171*'Other input expert'!M$9),0)","v":0}]
["Sorbus domestica","Service tree",{"$f":"IF('Picking rates'!$G172>0,'Yield & Sales calculation'!C172/('Picking rates'!$G172*'Other input expert'!B$9),0)","v":0},{"$f":"IF('Picking rates'!$G172>0,'Yield & Sales calculation'!D172/('Picking rates'!$G172*'Other input expert'!C$9),0)","v":0},{"$f":"IF('Picking rates'!$G172>0,'Yield & Sales calculation'!E172/('Picking rates'!$G172*'Other input expert'!D$9),0)","v":0},{"$f":"IF('Picking rates'!$G172>0,'Yield & Sales calculation'!F172/('Picking rates'!$G172*'Other input expert'!E$9),0)","v":0},{"$f":"IF('Picking rates'!$G172>0,'Yield & Sales calculation'!G172/('Picking rates'!$G172*'Other input expert'!F$9),0)","v":0},{"$f":"IF('Picking rates'!$G172>0,'Yield & Sales calculation'!H172/('Picking rates'!$G172*'Other input expert'!G$9),0)","v":0},{"$f":"IF('Picking rates'!$G172>0,'Yield & Sales calculation'!I172/('Picking rates'!$G172*'Other input expert'!H$9),0)","v":0},{"$f":"IF('Picking rates'!$G172>0,'Yield & Sales calculation'!J172/('Picking rates'!$G172*'Other input expert'!I$9),0)","v":0},{"$f":"IF('Picking rates'!$G172>0,'Yield & Sales calculation'!K172/('Picking rates'!$G172*'Other input expert'!J$9),0)","v":0},{"$f":"IF('Picking rates'!$G172>0,'Yield & Sales calculation'!L172/('Picking rates'!$G172*'Other input expert'!K$9),0)","v":0},{"$f":"IF('Picking rates'!$G172>0,'Yield & Sales calculation'!M172/('Picking rates'!$G172*'Other input expert'!L$9),0)","v":0},{"$f":"IF('Picking rates'!$G172>0,'Yield & Sales calculation'!N172/('Picking rates'!$G172*'Other input expert'!M$9),0)","v":0}]
["Sorbus torminalis","Service tree",{"$f":"IF('Picking rates'!$G173>0,'Yield & Sales calculation'!C173/('Picking rates'!$G173*'Other input expert'!B$9),0)","v":0},{"$f":"IF('Picking rates'!$G173>0,'Yield & Sales calculation'!D173/('Picking rates'!$G173*'Other input expert'!C$9),0)","v":0},{"$f":"IF('Picking rates'!$G173>0,'Yield & Sales calculation'!E173/('Picking rates'!$G173*'Other input expert'!D$9),0)","v":0},{"$f":"IF('Picking rates'!$G173>0,'Yield & Sales calculation'!F173/('Picking rates'!$G173*'Other input expert'!E$9),0)","v":0},{"$f":"IF('Picking rates'!$G173>0,'Yield & Sales calculation'!G173/('Picking rates'!$G173*'Other input expert'!F$9),0)","v":0},{"$f":"IF('Picking rates'!$G173>0,'Yield & Sales calculation'!H173/('Picking rates'!$G173*'Other input expert'!G$9),0)","v":0},{"$f":"IF('Picking rates'!$G173>0,'Yield & Sales calculation'!I173/('Picking rates'!$G173*'Other input expert'!H$9),0)","v":0},{"$f":"IF('Picking rates'!$G173>0,'Yield & Sales calculation'!J173/('Picking rates'!$G173*'Other input expert'!I$9),0)","v":0},{"$f":"IF('Picking rates'!$G173>0,'Yield & Sales calculation'!K173/('Picking rates'!$G173*'Other input expert'!J$9),0)","v":0},{"$f":"IF('Picking rates'!$G173>0,'Yield & Sales calculation'!L173/('Picking rates'!$G173*'Other input expert'!K$9),0)","v":0},{"$f":"IF('Picking rates'!$G173>0,'Yield & Sales calculation'!M173/('Picking rates'!$G173*'Other input expert'!L$9),0)","v":0},{"$f":"IF('Picking rates'!$G173>0,'Yield & Sales calculation'!N173/('Picking rates'!$G173*'Other input expert'!M$9),0)","v":0}]
["Staphylea pinnata","Bladder nut",{"$f":"IF('Picking rates'!$G174>0,'Yield & Sales calculation'!C174/('Picking rates'!$G174*'Other input expert'!B$9),0)","v":0},{"$f":"IF('Picking rates'!$G174>0,'Yield & Sales calculation'!D174/('Picking rates'!$G174*'Other input expert'!C$9),0)","v":0},{"$f":"IF('Picking rates'!$G174>0,'Yield & Sales calculation'!E174/('Picking rates'!$G174*'Other input expert'!D$9),0)","v":0},{"$f":"IF('Picking rates'!$G174>0,'Yield & Sales calculation'!F174/('Picking rates'!$G174*'Other input expert'!E$9),0)","v":0},{"$f":"IF('Picking rates'!$G174>0,'Yield & Sales calculation'!G174/('Picking rates'!$G174*'Other input expert'!F$9),0)","v":0},{"$f":"IF('Picking rates'!$G174>0,'Yield & Sales calculation'!H174/('Picking rates'!$G174*'Other input expert'!G$9),0)","v":0},{"$f":"IF('Picking rates'!$G174>0,'Yield & Sales calculation'!I174/('Picking rates'!$G174*'Other input expert'!H$9),0)","v":0},{"$f":"IF('Picking rates'!$G174>0,'Yield & Sales calculation'!J174/('Picking rates'!$G174*'Other input expert'!I$9),0)","v":0},{"$f":"IF('Picking rates'!$G174>0,'Yield & Sales calculation'!K174/('Picking rates'!$G174*'Other input expert'!J$9),0)","v":0},{"$f":"IF('Picking rates'!$G174>0,'Yield & Sales calculation'!L174/('Picking rates'!$G174*'Other input expert'!K$9),0)","v":0},{"$f":"IF('Picking rates'!$G174>0,'Yield & Sales calculation'!M174/('Picking rates'!$G174*'Other input expert'!L$9),0)","v":0},{"$f":"IF('Picking rates'!$G174>0,'Yield & Sales calculation'!N174/('Picking rates'!$G174*'Other input expert'!M$9),0)","v":0}]
["Symphytum officinale","Comfrey",{"$f":"IF('Picking rates'!$G175>0,'Yield & Sales calculation'!C175/('Picking rates'!$G175*'Other input expert'!B$9),0)","v":0},{"$f":"IF('Picking rates'!$G175>0,'Yield & Sales calculation'!D175/('Picking rates'!$G175*'Other input expert'!C$9),0)","v":0},{"$f":"IF('Picking rates'!$G175>0,'Yield & Sales calculation'!E175/('Picking rates'!$G175*'Other input expert'!D$9),0)","v":0},{"$f":"IF('Picking rates'!$G175>0,'Yield & Sales calculation'!F175/('Picking rates'!$G175*'Other input expert'!E$9),0)","v":0},{"$f":"IF('Picking rates'!$G175>0,'Yield & Sales calculation'!G175/('Picking rates'!$G175*'Other input expert'!F$9),0)","v":0},{"$f":"IF('Picking rates'!$G175>0,'Yield & Sales calculation'!H175/('Picking rates'!$G175*'Other input expert'!G$9),0)","v":0},{"$f":"IF('Picking rates'!$G175>0,'Yield & Sales calculation'!I175/('Picking rates'!$G175*'Other input expert'!H$9),0)","v":0},{"$f":"IF('Picking rates'!$G175>0,'Yield & Sales calculation'!J175/('Picking rates'!$G175*'Other input expert'!I$9),0)","v":0},{"$f":"IF('Picking rates'!$G175>0,'Yield & Sales calculation'!K175/('Picking rates'!$G175*'Other input expert'!J$9),0)","v":0},{"$f":"IF('Picking rates'!$G175>0,'Yield & Sales calculation'!L175/('Picking rates'!$G175*'Other input expert'!K$9),0)","v":0},{"$f":"IF('Picking rates'!$G175>0,'Yield & Sales calculation'!M175/('Picking rates'!$G175*'Other input expert'!L$9),0)","v":0},{"$f":"IF('Picking rates'!$G175>0,'Yield & Sales calculation'!N175/('Picking rates'!$G175*'Other input expert'!M$9),0)","v":0}]
["Tanacetum balsamita","Alecost",{"$f":"IF('Picking rates'!$G176>0,'Yield & Sales calculation'!C176/('Picking rates'!$G176*'Other input expert'!B$9),0)","v":0},{"$f":"IF('Picking rates'!$G176>0,'Yield & Sales calculation'!D176/('Picking rates'!$G176*'Other input expert'!C$9),0)","v":0},{"$f":"IF('Picking rates'!$G176>0,'Yield & Sales calculation'!E176/('Picking rates'!$G176*'Other input expert'!D$9),0)","v":0},{"$f":"IF('Picking rates'!$G176>0,'Yield & Sales calculation'!F176/('Picking rates'!$G176*'Other input expert'!E$9),0)","v":0},{"$f":"IF('Picking rates'!$G176>0,'Yield & Sales calculation'!G176/('Picking rates'!$G176*'Other input expert'!F$9),0)","v":0},{"$f":"IF('Picking rates'!$G176>0,'Yield & Sales calculation'!H176/('Picking rates'!$G176*'Other input expert'!G$9),0)","v":0},{"$f":"IF('Picking rates'!$G176>0,'Yield & Sales calculation'!I176/('Picking rates'!$G176*'Other input expert'!H$9),0)","v":0},{"$f":"IF('Picking rates'!$G176>0,'Yield & Sales calculation'!J176/('Picking rates'!$G176*'Other input expert'!I$9),0)","v":0},{"$f":"IF('Picking rates'!$G176>0,'Yield & Sales calculation'!K176/('Picking rates'!$G176*'Other input expert'!J$9),0)","v":0},{"$f":"IF('Picking rates'!$G176>0,'Yield & Sales calculation'!L176/('Picking rates'!$G176*'Other input expert'!K$9),0)","v":0},{"$f":"IF('Picking rates'!$G176>0,'Yield & Sales calculation'!M176/('Picking rates'!$G176*'Other input expert'!L$9),0)","v":0},{"$f":"IF('Picking rates'!$G176>0,'Yield & Sales calculation'!N176/('Picking rates'!$G176*'Other input expert'!M$9),0)","v":0}]
["Tanacetum parthenium","Feverfew",{"$f":"IF('Picking rates'!$G177>0,'Yield & Sales calculation'!C177/('Picking rates'!$G177*'Other input expert'!B$9),0)","v":0},{"$f":"IF('Picking rates'!$G177>0,'Yield & Sales calculation'!D177/('Picking rates'!$G177*'Other input expert'!C$9),0)","v":0},{"$f":"IF('Picking rates'!$G177>0,'Yield & Sales calculation'!E177/('Picking rates'!$G177*'Other input expert'!D$9),0)","v":0},{"$f":"IF('Picking rates'!$G177>0,'Yield & Sales calculation'!F177/('Picking rates'!$G177*'Other input expert'!E$9),0)","v":0},{"$f":"IF('Picking rates'!$G177>0,'Yield & Sales calculation'!G177/('Picking rates'!$G177*'Other input expert'!F$9),0)","v":0},{"$f":"IF('Picking rates'!$G177>0,'Yield & Sales calculation'!H177/('Picking rates'!$G177*'Other input expert'!G$9),0)","v":0},{"$f":"IF('Picking rates'!$G177>0,'Yield & Sales calculation'!I177/('Picking rates'!$G177*'Other input expert'!H$9),0)","v":0},{"$f":"IF('Picking rates'!$G177>0,'Yield & Sales calculation'!J177/('Picking rates'!$G177*'Other input expert'!I$9),0)","v":0},{"$f":"IF('Picking rates'!$G177>0,'Yield & Sales calculation'!K177/('Picking rates'!$G177*'Other input expert'!J$9),0)","v":0},{"$f":"IF('Picking rates'!$G177>0,'Yield & Sales calculation'!L177/('Picking rates'!$G177*'Other input expert'!K$9),0)","v":0},{"$f":"IF('Picking rates'!$G177>0,'Yield & Sales calculation'!M177/('Picking rates'!$G177*'Other input expert'!L$9),0)","v":0},{"$f":"IF('Picking rates'!$G177>0,'Yield & Sales calculation'!N177/('Picking rates'!$G177*'Other input expert'!M$9),0)","v":0}]
["Teucrium chamaedrys","Wall germander",{"$f":"IF('Picking rates'!$G178>0,'Yield & Sales calculation'!C178/('Picking rates'!$G178*'Other input expert'!B$9),0)","v":0},{"$f":"IF('Picking rates'!$G178>0,'Yield & Sales calculation'!D178/('Picking rates'!$G178*'Other input expert'!C$9),0)","v":0},{"$f":"IF('Picking rates'!$G178>0,'Yield & Sales calculation'!E178/('Picking rates'!$G178*'Other input expert'!D$9),0)","v":0},{"$f":"IF('Picking rates'!$G178>0,'Yield & Sales calculation'!F178/('Picking rates'!$G178*'Other input expert'!E$9),0)","v":0},{"$f":"IF('Picking rates'!$G178>0,'Yield & Sales calculation'!G178/('Picking rates'!$G178*'Other input expert'!F$9),0)","v":0},{"$f":"IF('Picking rates'!$G178>0,'Yield & Sales calculation'!H178/('Picking rates'!$G178*'Other input expert'!G$9),0)","v":0},{"$f":"IF('Picking rates'!$G178>0,'Yield & Sales calculation'!I178/('Picking rates'!$G178*'Other input expert'!H$9),0)","v":0},{"$f":"IF('Picking rates'!$G178>0,'Yield & Sales calculation'!J178/('Picking rates'!$G178*'Other input expert'!I$9),0)","v":0},{"$f":"IF('Picking rates'!$G178>0,'Yield & Sales calculation'!K178/('Picking rates'!$G178*'Other input expert'!J$9),0)","v":0},{"$f":"IF('Picking rates'!$G178>0,'Yield & Sales calculation'!L178/('Picking rates'!$G178*'Other input expert'!K$9),0)","v":0},{"$f":"IF('Picking rates'!$G178>0,'Yield & Sales calculation'!M178/('Picking rates'!$G178*'Other input expert'!L$9),0)","v":0},{"$f":"IF('Picking rates'!$G178>0,'Yield & Sales calculation'!N178/('Picking rates'!$G178*'Other input expert'!M$9),0)","v":0}]
["Thymus Vulgaris","Thyme",{"$f":"IF('Picking rates'!$G179>0,'Yield & Sales calculation'!C179/('Picking rates'!$G179*'Other input expert'!B$9),0)","v":0},{"$f":"IF('Picking rates'!$G179>0,'Yield & Sales calculation'!D179/('Picking rates'!$G179*'Other input expert'!C$9),0)","v":0},{"$f":"IF('Picking rates'!$G179>0,'Yield & Sales calculation'!E179/('Picking rates'!$G179*'Other input expert'!D$9),0)","v":0},{"$f":"IF('Picking rates'!$G179>0,'Yield & Sales calculation'!F179/('Picking rates'!$G179*'Other input expert'!E$9),0)","v":0},{"$f":"IF('Picking rates'!$G179>0,'Yield & Sales calculation'!G179/('Picking rates'!$G179*'Other input expert'!F$9),0)","v":0},{"$f":"IF('Picking rates'!$G179>0,'Yield & Sales calculation'!H179/('Picking rates'!$G179*'Other input expert'!G$9),0)","v":0},{"$f":"IF('Picking rates'!$G179>0,'Yield & Sales calculation'!I179/('Picking rates'!$G179*'Other input expert'!H$9),0)","v":0},{"$f":"IF('Picking rates'!$G179>0,'Yield & Sales calculation'!J179/('Picking rates'!$G179*'Other input expert'!I$9),0)","v":0},{"$f":"IF('Picking rates'!$G179>0,'Yield & Sales calculation'!K179/('Picking rates'!$G179*'Other input expert'!J$9),0)","v":0},{"$f":"IF('Picking rates'!$G179>0,'Yield & Sales calculation'!L179/('Picking rates'!$G179*'Other input expert'!K$9),0)","v":0},{"$f":"IF('Picking rates'!$G179>0,'Yield & Sales calculation'!M179/('Picking rates'!$G179*'Other input expert'!L$9),0)","v":0},{"$f":"IF('Picking rates'!$G179>0,'Yield & Sales calculation'!N179/('Picking rates'!$G179*'Other input expert'!M$9),0)","v":0}]
["Tilia cordata","Lime ",{"$f":"IF('Picking rates'!$G180>0,'Yield & Sales calculation'!C180/('Picking rates'!$G180*'Other input expert'!B$9),0)","v":0},{"$f":"IF('Picking rates'!$G180>0,'Yield & Sales calculation'!D180/('Picking rates'!$G180*'Other input expert'!C$9),0)","v":0},{"$f":"IF('Picking rates'!$G180>0,'Yield & Sales calculation'!E180/('Picking rates'!$G180*'Other input expert'!D$9),0)","v":0},{"$f":"IF('Picking rates'!$G180>0,'Yield & Sales calculation'!F180/('Picking rates'!$G180*'Other input expert'!E$9),0)","v":0},{"$f":"IF('Picking rates'!$G180>0,'Yield & Sales calculation'!G180/('Picking rates'!$G180*'Other input expert'!F$9),0)","v":0},{"$f":"IF('Picking rates'!$G180>0,'Yield & Sales calculation'!H180/('Picking rates'!$G180*'Other input expert'!G$9),0)","v":0},{"$f":"IF('Picking rates'!$G180>0,'Yield & Sales calculation'!I180/('Picking rates'!$G180*'Other input expert'!H$9),0)","v":0},{"$f":"IF('Picking rates'!$G180>0,'Yield & Sales calculation'!J180/('Picking rates'!$G180*'Other input expert'!I$9),0)","v":0},{"$f":"IF('Picking rates'!$G180>0,'Yield & Sales calculation'!K180/('Picking rates'!$G180*'Other input expert'!J$9),0)","v":0},{"$f":"IF('Picking rates'!$G180>0,'Yield & Sales calculation'!L180/('Picking rates'!$G180*'Other input expert'!K$9),0)","v":0},{"$f":"IF('Picking rates'!$G180>0,'Yield & Sales calculation'!M180/('Picking rates'!$G180*'Other input expert'!L$9),0)","v":0},{"$f":"IF('Picking rates'!$G180>0,'Yield & Sales calculation'!N180/('Picking rates'!$G180*'Other input expert'!M$9),0)","v":0}]
["Toona sinensis","Chinese cedar",{"$f":"IF('Picking rates'!$G181>0,'Yield & Sales calculation'!C181/('Picking rates'!$G181*'Other input expert'!B$9),0)","v":0},{"$f":"IF('Picking rates'!$G181>0,'Yield & Sales calculation'!D181/('Picking rates'!$G181*'Other input expert'!C$9),0)","v":0},{"$f":"IF('Picking rates'!$G181>0,'Yield & Sales calculation'!E181/('Picking rates'!$G181*'Other input expert'!D$9),0)","v":0},{"$f":"IF('Picking rates'!$G181>0,'Yield & Sales calculation'!F181/('Picking rates'!$G181*'Other input expert'!E$9),0)","v":0},{"$f":"IF('Picking rates'!$G181>0,'Yield & Sales calculation'!G181/('Picking rates'!$G181*'Other input expert'!F$9),0)","v":0},{"$f":"IF('Picking rates'!$G181>0,'Yield & Sales calculation'!H181/('Picking rates'!$G181*'Other input expert'!G$9),0)","v":0},{"$f":"IF('Picking rates'!$G181>0,'Yield & Sales calculation'!I181/('Picking rates'!$G181*'Other input expert'!H$9),0)","v":0},{"$f":"IF('Picking rates'!$G181>0,'Yield & Sales calculation'!J181/('Picking rates'!$G181*'Other input expert'!I$9),0)","v":0},{"$f":"IF('Picking rates'!$G181>0,'Yield & Sales calculation'!K181/('Picking rates'!$G181*'Other input expert'!J$9),0)","v":0},{"$f":"IF('Picking rates'!$G181>0,'Yield & Sales calculation'!L181/('Picking rates'!$G181*'Other input expert'!K$9),0)","v":0},{"$f":"IF('Picking rates'!$G181>0,'Yield & Sales calculation'!M181/('Picking rates'!$G181*'Other input expert'!L$9),0)","v":0},{"$f":"IF('Picking rates'!$G181>0,'Yield & Sales calculation'!N181/('Picking rates'!$G181*'Other input expert'!M$9),0)","v":0}]
["Ugni Molinae","Chilean guava",{"$f":"IF('Picking rates'!$G182>0,'Yield & Sales calculation'!C182/('Picking rates'!$G182*'Other input expert'!B$9),0)","v":0},{"$f":"IF('Picking rates'!$G182>0,'Yield & Sales calculation'!D182/('Picking rates'!$G182*'Other input expert'!C$9),0)","v":0},{"$f":"IF('Picking rates'!$G182>0,'Yield & Sales calculation'!E182/('Picking rates'!$G182*'Other input expert'!D$9),0)","v":0},{"$f":"IF('Picking rates'!$G182>0,'Yield & Sales calculation'!F182/('Picking rates'!$G182*'Other input expert'!E$9),0)","v":0},{"$f":"IF('Picking rates'!$G182>0,'Yield & Sales calculation'!G182/('Picking rates'!$G182*'Other input expert'!F$9),0)","v":0},{"$f":"IF('Picking rates'!$G182>0,'Yield & Sales calculation'!H182/('Picking rates'!$G182*'Other input expert'!G$9),0)","v":0},{"$f":"IF('Picking rates'!$G182>0,'Yield & Sales calculation'!I182/('Picking rates'!$G182*'Other input expert'!H$9),0)","v":0},{"$f":"IF('Picking rates'!$G182>0,'Yield & Sales calculation'!J182/('Picking rates'!$G182*'Other input expert'!I$9),0)","v":0},{"$f":"IF('Picking rates'!$G182>0,'Yield & Sales calculation'!K182/('Picking rates'!$G182*'Other input expert'!J$9),0)","v":0},{"$f":"IF('Picking rates'!$G182>0,'Yield & Sales calculation'!L182/('Picking rates'!$G182*'Other input expert'!K$9),0)","v":0},{"$f":"IF('Picking rates'!$G182>0,'Yield & Sales calculation'!M182/('Picking rates'!$G182*'Other input expert'!L$9),0)","v":0},{"$f":"IF('Picking rates'!$G182>0,'Yield & Sales calculation'!N182/('Picking rates'!$G182*'Other input expert'!M$9),0)","v":0}]
["Ulmus laevis","Elm",{"$f":"IF('Picking rates'!$G183>0,'Yield & Sales calculation'!C183/('Picking rates'!$G183*'Other input expert'!B$9),0)","v":0},{"$f":"IF('Picking rates'!$G183>0,'Yield & Sales calculation'!D183/('Picking rates'!$G183*'Other input expert'!C$9),0)","v":0},{"$f":"IF('Picking rates'!$G183>0,'Yield & Sales calculation'!E183/('Picking rates'!$G183*'Other input expert'!D$9),0)","v":0},{"$f":"IF('Picking rates'!$G183>0,'Yield & Sales calculation'!F183/('Picking rates'!$G183*'Other input expert'!E$9),0)","v":0},{"$f":"IF('Picking rates'!$G183>0,'Yield & Sales calculation'!G183/('Picking rates'!$G183*'Other input expert'!F$9),0)","v":0},{"$f":"IF('Picking rates'!$G183>0,'Yield & Sales calculation'!H183/('Picking rates'!$G183*'Other input expert'!G$9),0)","v":0},{"$f":"IF('Picking rates'!$G183>0,'Yield & Sales calculation'!I183/('Picking rates'!$G183*'Other input expert'!H$9),0)","v":0},{"$f":"IF('Picking rates'!$G183>0,'Yield & Sales calculation'!J183/('Picking rates'!$G183*'Other input expert'!I$9),0)","v":0},{"$f":"IF('Picking rates'!$G183>0,'Yield & Sales calculation'!K183/('Picking rates'!$G183*'Other input expert'!J$9),0)","v":0},{"$f":"IF('Picking rates'!$G183>0,'Yield & Sales calculation'!L183/('Picking rates'!$G183*'Other input expert'!K$9),0)","v":0},{"$f":"IF('Picking rates'!$G183>0,'Yield & Sales calculation'!M183/('Picking rates'!$G183*'Other input expert'!L$9),0)","v":0},{"$f":"IF('Picking rates'!$G183>0,'Yield & Sales calculation'!N183/('Picking rates'!$G183*'Other input expert'!M$9),0)","v":0}]
["Urtica Dioica","Nettle",{"$f":"IF('Picking rates'!$G184>0,'Yield & Sales calculation'!C184/('Picking rates'!$G184*'Other input expert'!B$9),0)","v":0},{"$f":"IF('Picking rates'!$G184>0,'Yield & Sales calculation'!D184/('Picking rates'!$G184*'Other input expert'!C$9),0)","v":0},{"$f":"IF('Picking rates'!$G184>0,'Yield & Sales calculation'!E184/('Picking rates'!$G184*'Other input expert'!D$9),0)","v":0},{"$f":"IF('Picking rates'!$G184>0,'Yield & Sales calculation'!F184/('Picking rates'!$G184*'Other input expert'!E$9),0)","v":0},{"$f":"IF('Picking rates'!$G184>0,'Yield & Sales calculation'!G184/('Picking rates'!$G184*'Other input expert'!F$9),0)","v":0},{"$f":"IF('Picking rates'!$G184>0,'Yield & Sales calculation'!H184/('Picking rates'!$G184*'Other input expert'!G$9),0)","v":0},{"$f":"IF('Picking rates'!$G184>0,'Yield & Sales calculation'!I184/('Picking rates'!$G184*'Other input expert'!H$9),0)","v":0},{"$f":"IF('Picking rates'!$G184>0,'Yield & Sales calculation'!J184/('Picking rates'!$G184*'Other input expert'!I$9),0)","v":0},{"$f":"IF('Picking rates'!$G184>0,'Yield & Sales calculation'!K184/('Picking rates'!$G184*'Other input expert'!J$9),0)","v":0},{"$f":"IF('Picking rates'!$G184>0,'Yield & Sales calculation'!L184/('Picking rates'!$G184*'Other input expert'!K$9),0)","v":0},{"$f":"IF('Picking rates'!$G184>0,'Yield & Sales calculation'!M184/('Picking rates'!$G184*'Other input expert'!L$9),0)","v":0},{"$f":"IF('Picking rates'!$G184>0,'Yield & Sales calculation'!N184/('Picking rates'!$G184*'Other input expert'!M$9),0)","v":0}]
["Vaccinium Corymbosum","Blueberry",{"$f":"IF('Picking rates'!$G185>0,'Yield & Sales calculation'!C185/('Picking rates'!$G185*'Other input expert'!B$9),0)","v":0},{"$f":"IF('Picking rates'!$G185>0,'Yield & Sales calculation'!D185/('Picking rates'!$G185*'Other input expert'!C$9),0)","v":0},{"$f":"IF('Picking rates'!$G185>0,'Yield & Sales calculation'!E185/('Picking rates'!$G185*'Other input expert'!D$9),0)","v":0},{"$f":"IF('Picking rates'!$G185>0,'Yield & Sales calculation'!F185/('Picking rates'!$G185*'Other input expert'!E$9),0)","v":0},{"$f":"IF('Picking rates'!$G185>0,'Yield & Sales calculation'!G185/('Picking rates'!$G185*'Other input expert'!F$9),0)","v":0},{"$f":"IF('Picking rates'!$G185>0,'Yield & Sales calculation'!H185/('Picking rates'!$G185*'Other input expert'!G$9),0)","v":0},{"$f":"IF('Picking rates'!$G185>0,'Yield & Sales calculation'!I185/('Picking rates'!$G185*'Other input expert'!H$9),0)","v":0},{"$f":"IF('Picking rates'!$G185>0,'Yield & Sales calculation'!J185/('Picking rates'!$G185*'Other input expert'!I$9),0)","v":0},{"$f":"IF('Picking rates'!$G185>0,'Yield & Sales calculation'!K185/('Picking rates'!$G185*'Other input expert'!J$9),0)","v":0},{"$f":"IF('Picking rates'!$G185>0,'Yield & Sales calculation'!L185/('Picking rates'!$G185*'Other input expert'!K$9),0)","v":0},{"$f":"IF('Picking rates'!$G185>0,'Yield & Sales calculation'!M185/('Picking rates'!$G185*'Other input expert'!L$9),0)","v":0},{"$f":"IF('Picking rates'!$G185>0,'Yield & Sales calculation'!N185/('Picking rates'!$G185*'Other input expert'!M$9),0)","v":0}]
["Vaccinium Macrocarpon","Cranberry ",{"$f":"IF('Picking rates'!$G186>0,'Yield & Sales calculation'!C186/('Picking rates'!$G186*'Other input expert'!B$9),0)","v":0},{"$f":"IF('Picking rates'!$G186>0,'Yield & Sales calculation'!D186/('Picking rates'!$G186*'Other input expert'!C$9),0)","v":0},{"$f":"IF('Picking rates'!$G186>0,'Yield & Sales calculation'!E186/('Picking rates'!$G186*'Other input expert'!D$9),0)","v":0},{"$f":"IF('Picking rates'!$G186>0,'Yield & Sales calculation'!F186/('Picking rates'!$G186*'Other input expert'!E$9),0)","v":0},{"$f":"IF('Picking rates'!$G186>0,'Yield & Sales calculation'!G186/('Picking rates'!$G186*'Other input expert'!F$9),0)","v":0},{"$f":"IF('Picking rates'!$G186>0,'Yield & Sales calculation'!H186/('Picking rates'!$G186*'Other input expert'!G$9),0)","v":0},{"$f":"IF('Picking rates'!$G186>0,'Yield & Sales calculation'!I186/('Picking rates'!$G186*'Other input expert'!H$9),0)","v":0},{"$f":"IF('Picking rates'!$G186>0,'Yield & Sales calculation'!J186/('Picking rates'!$G186*'Other input expert'!I$9),0)","v":0},{"$f":"IF('Picking rates'!$G186>0,'Yield & Sales calculation'!K186/('Picking rates'!$G186*'Other input expert'!J$9),0)","v":0},{"$f":"IF('Picking rates'!$G186>0,'Yield & Sales calculation'!L186/('Picking rates'!$G186*'Other input expert'!K$9),0)","v":0},{"$f":"IF('Picking rates'!$G186>0,'Yield & Sales calculation'!M186/('Picking rates'!$G186*'Other input expert'!L$9),0)","v":0},{"$f":"IF('Picking rates'!$G186>0,'Yield & Sales calculation'!N186/('Picking rates'!$G186*'Other input expert'!M$9),0)","v":0}]
["Valeriana off.","Valerian",{"$f":"IF('Picking rates'!$G187>0,'Yield & Sales calculation'!C187/('Picking rates'!$G187*'Other input expert'!B$9),0)","v":0},{"$f":"IF('Picking rates'!$G187>0,'Yield & Sales calculation'!D187/('Picking rates'!$G187*'Other input expert'!C$9),0)","v":0},{"$f":"IF('Picking rates'!$G187>0,'Yield & Sales calculation'!E187/('Picking rates'!$G187*'Other input expert'!D$9),0)","v":0},{"$f":"IF('Picking rates'!$G187>0,'Yield & Sales calculation'!F187/('Picking rates'!$G187*'Other input expert'!E$9),0)","v":0},{"$f":"IF('Picking rates'!$G187>0,'Yield & Sales calculation'!G187/('Picking rates'!$G187*'Other input expert'!F$9),0)","v":0},{"$f":"IF('Picking rates'!$G187>0,'Yield & Sales calculation'!H187/('Picking rates'!$G187*'Other input expert'!G$9),0)","v":0},{"$f":"IF('Picking rates'!$G187>0,'Yield & Sales calculation'!I187/('Picking rates'!$G187*'Other input expert'!H$9),0)","v":0},{"$f":"IF('Picking rates'!$G187>0,'Yield & Sales calculation'!J187/('Picking rates'!$G187*'Other input expert'!I$9),0)","v":0},{"$f":"IF('Picking rates'!$G187>0,'Yield & Sales calculation'!K187/('Picking rates'!$G187*'Other input expert'!J$9),0)","v":0},{"$f":"IF('Picking rates'!$G187>0,'Yield & Sales calculation'!L187/('Picking rates'!$G187*'Other input expert'!K$9),0)","v":0},{"$f":"IF('Picking rates'!$G187>0,'Yield & Sales calculation'!M187/('Picking rates'!$G187*'Other input expert'!L$9),0)","v":0},{"$f":"IF('Picking rates'!$G187>0,'Yield & Sales calculation'!N187/('Picking rates'!$G187*'Other input expert'!M$9),0)","v":0}]
["Viburnum Lentago","Sheepberry",{"$f":"IF('Picking rates'!$G188>0,'Yield & Sales calculation'!C188/('Picking rates'!$G188*'Other input expert'!B$9),0)","v":0},{"$f":"IF('Picking rates'!$G188>0,'Yield & Sales calculation'!D188/('Picking rates'!$G188*'Other input expert'!C$9),0)","v":0},{"$f":"IF('Picking rates'!$G188>0,'Yield & Sales calculation'!E188/('Picking rates'!$G188*'Other input expert'!D$9),0)","v":0},{"$f":"IF('Picking rates'!$G188>0,'Yield & Sales calculation'!F188/('Picking rates'!$G188*'Other input expert'!E$9),0)","v":0},{"$f":"IF('Picking rates'!$G188>0,'Yield & Sales calculation'!G188/('Picking rates'!$G188*'Other input expert'!F$9),0)","v":0},{"$f":"IF('Picking rates'!$G188>0,'Yield & Sales calculation'!H188/('Picking rates'!$G188*'Other input expert'!G$9),0)","v":0},{"$f":"IF('Picking rates'!$G188>0,'Yield & Sales calculation'!I188/('Picking rates'!$G188*'Other input expert'!H$9),0)","v":0},{"$f":"IF('Picking rates'!$G188>0,'Yield & Sales calculation'!J188/('Picking rates'!$G188*'Other input expert'!I$9),0)","v":0},{"$f":"IF('Picking rates'!$G188>0,'Yield & Sales calculation'!K188/('Picking rates'!$G188*'Other input expert'!J$9),0)","v":0},{"$f":"IF('Picking rates'!$G188>0,'Yield & Sales calculation'!L188/('Picking rates'!$G188*'Other input expert'!K$9),0)","v":0},{"$f":"IF('Picking rates'!$G188>0,'Yield & Sales calculation'!M188/('Picking rates'!$G188*'Other input expert'!L$9),0)","v":0},{"$f":"IF('Picking rates'!$G188>0,'Yield & Sales calculation'!N188/('Picking rates'!$G188*'Other input expert'!M$9),0)","v":0}]
["Viburnum setigerum","Tea-leaf viburnum",{"$f":"IF('Picking rates'!$G189>0,'Yield & Sales calculation'!C189/('Picking rates'!$G189*'Other input expert'!B$9),0)","v":0},{"$f":"IF('Picking rates'!$G189>0,'Yield & Sales calculation'!D189/('Picking rates'!$G189*'Other input expert'!C$9),0)","v":0},{"$f":"IF('Picking rates'!$G189>0,'Yield & Sales calculation'!E189/('Picking rates'!$G189*'Other input expert'!D$9),0)","v":0},{"$f":"IF('Picking rates'!$G189>0,'Yield & Sales calculation'!F189/('Picking rates'!$G189*'Other input expert'!E$9),0)","v":0},{"$f":"IF('Picking rates'!$G189>0,'Yield & Sales calculation'!G189/('Picking rates'!$G189*'Other input expert'!F$9),0)","v":0},{"$f":"IF('Picking rates'!$G189>0,'Yield & Sales calculation'!H189/('Picking rates'!$G189*'Other input expert'!G$9),0)","v":0},{"$f":"IF('Picking rates'!$G189>0,'Yield & Sales calculation'!I189/('Picking rates'!$G189*'Other input expert'!H$9),0)","v":0},{"$f":"IF('Picking rates'!$G189>0,'Yield & Sales calculation'!J189/('Picking rates'!$G189*'Other input expert'!I$9),0)","v":0},{"$f":"IF('Picking rates'!$G189>0,'Yield & Sales calculation'!K189/('Picking rates'!$G189*'Other input expert'!J$9),0)","v":0},{"$f":"IF('Picking rates'!$G189>0,'Yield & Sales calculation'!L189/('Picking rates'!$G189*'Other input expert'!K$9),0)","v":0},{"$f":"IF('Picking rates'!$G189>0,'Yield & Sales calculation'!M189/('Picking rates'!$G189*'Other input expert'!L$9),0)","v":0},{"$f":"IF('Picking rates'!$G189>0,'Yield & Sales calculation'!N189/('Picking rates'!$G189*'Other input expert'!M$9),0)","v":0}]
["Vitis vinifera","Grape",{"$f":"IF('Picking rates'!$G190>0,'Yield & Sales calculation'!C190/('Picking rates'!$G190*'Other input expert'!B$9),0)","v":0},{"$f":"IF('Picking rates'!$G190>0,'Yield & Sales calculation'!D190/('Picking rates'!$G190*'Other input expert'!C$9),0)","v":0},{"$f":"IF('Picking rates'!$G190>0,'Yield & Sales calculation'!E190/('Picking rates'!$G190*'Other input expert'!D$9),0)","v":0},{"$f":"IF('Picking rates'!$G190>0,'Yield & Sales calculation'!F190/('Picking rates'!$G190*'Other input expert'!E$9),0)","v":0},{"$f":"IF('Picking rates'!$G190>0,'Yield & Sales calculation'!G190/('Picking rates'!$G190*'Other input expert'!F$9),0)","v":0},{"$f":"IF('Picking rates'!$G190>0,'Yield & Sales calculation'!H190/('Picking rates'!$G190*'Other input expert'!G$9),0)","v":0},{"$f":"IF('Picking rates'!$G190>0,'Yield & Sales calculation'!I190/('Picking rates'!$G190*'Other input expert'!H$9),0)","v":0},{"$f":"IF('Picking rates'!$G190>0,'Yield & Sales calculation'!J190/('Picking rates'!$G190*'Other input expert'!I$9),0)","v":0},{"$f":"IF('Picking rates'!$G190>0,'Yield & Sales calculation'!K190/('Picking rates'!$G190*'Other input expert'!J$9),0)","v":0},{"$f":"IF('Picking rates'!$G190>0,'Yield & Sales calculation'!L190/('Picking rates'!$G190*'Other input expert'!K$9),0)","v":0},{"$f":"IF('Picking rates'!$G190>0,'Yield & Sales calculation'!M190/('Picking rates'!$G190*'Other input expert'!L$9),0)","v":0},{"$f":"IF('Picking rates'!$G190>0,'Yield & Sales calculation'!N190/('Picking rates'!$G190*'Other input expert'!M$9),0)","v":0}]
["Xanthoceras sorbifolium","Yellowhorn",{"$f":"IF('Picking rates'!$G191>0,'Yield & Sales calculation'!C191/('Picking rates'!$G191*'Other input expert'!B$9),0)","v":0},{"$f":"IF('Picking rates'!$G191>0,'Yield & Sales calculation'!D191/('Picking rates'!$G191*'Other input expert'!C$9),0)","v":0},{"$f":"IF('Picking rates'!$G191>0,'Yield & Sales calculation'!E191/('Picking rates'!$G191*'Other input expert'!D$9),0)","v":0},{"$f":"IF('Picking rates'!$G191>0,'Yield & Sales calculation'!F191/('Picking rates'!$G191*'Other input expert'!E$9),0)","v":0},{"$f":"IF('Picking rates'!$G191>0,'Yield & Sales calculation'!G191/('Picking rates'!$G191*'Other input expert'!F$9),0)","v":0},{"$f":"IF('Picking rates'!$G191>0,'Yield & Sales calculation'!H191/('Picking rates'!$G191*'Other input expert'!G$9),0)","v":0},{"$f":"IF('Picking rates'!$G191>0,'Yield & Sales calculation'!I191/('Picking rates'!$G191*'Other input expert'!H$9),0)","v":0},{"$f":"IF('Picking rates'!$G191>0,'Yield & Sales calculation'!J191/('Picking rates'!$G191*'Other input expert'!I$9),0)","v":0},{"$f":"IF('Picking rates'!$G191>0,'Yield & Sales calculation'!K191/('Picking rates'!$G191*'Other input expert'!J$9),0)","v":0},{"$f":"IF('Picking rates'!$G191>0,'Yield & Sales calculation'!L191/('Picking rates'!$G191*'Other input expert'!K$9),0)","v":0},{"$f":"IF('Picking rates'!$G191>0,'Yield & Sales calculation'!M191/('Picking rates'!$G191*'Other input expert'!L$9),0)","v":0},{"$f":"IF('Picking rates'!$G191>0,'Yield & Sales calculation'!N191/('Picking rates'!$G191*'Other input expert'!M$9),0)","v":0}]
["Zanthoxylum spp","Szechuan pepper",{"$f":"IF('Picking rates'!$G192>0,'Yield & Sales calculation'!C192/('Picking rates'!$G192*'Other input expert'!B$9),0)","v":0},{"$f":"IF('Picking rates'!$G192>0,'Yield & Sales calculation'!D192/('Picking rates'!$G192*'Other input expert'!C$9),0)","v":0},{"$f":"IF('Picking rates'!$G192>0,'Yield & Sales calculation'!E192/('Picking rates'!$G192*'Other input expert'!D$9),0)","v":0},{"$f":"IF('Picking rates'!$G192>0,'Yield & Sales calculation'!F192/('Picking rates'!$G192*'Other input expert'!E$9),0)","v":0},{"$f":"IF('Picking rates'!$G192>0,'Yield & Sales calculation'!G192/('Picking rates'!$G192*'Other input expert'!F$9),0)","v":0},{"$f":"IF('Picking rates'!$G192>0,'Yield & Sales calculation'!H192/('Picking rates'!$G192*'Other input expert'!G$9),0)","v":0},{"$f":"IF('Picking rates'!$G192>0,'Yield & Sales calculation'!I192/('Picking rates'!$G192*'Other input expert'!H$9),0)","v":0},{"$f":"IF('Picking rates'!$G192>0,'Yield & Sales calculation'!J192/('Picking rates'!$G192*'Other input expert'!I$9),0)","v":0},{"$f":"IF('Picking rates'!$G192>0,'Yield & Sales calculation'!K192/('Picking rates'!$G192*'Other input expert'!J$9),0)","v":0},{"$f":"IF('Picking rates'!$G192>0,'Yield & Sales calculation'!L192/('Picking rates'!$G192*'Other input expert'!K$9),0)","v":0},{"$f":"IF('Picking rates'!$G192>0,'Yield & Sales calculation'!M192/('Picking rates'!$G192*'Other input expert'!L$9),0)","v":0},{"$f":"IF('Picking rates'!$G192>0,'Yield & Sales calculation'!N192/('Picking rates'!$G192*'Other input expert'!M$9),0)","v":0}]
["Ziziphus jujube","Jujube",{"$f":"IF('Picking rates'!$G193>0,'Yield & Sales calculation'!C193/('Picking rates'!$G193*'Other input expert'!B$9),0)","v":0},{"$f":"IF('Picking rates'!$G193>0,'Yield & Sales calculation'!D193/('Picking rates'!$G193*'Other input expert'!C$9),0)","v":0},{"$f":"IF('Picking rates'!$G193>0,'Yield & Sales calculation'!E193/('Picking rates'!$G193*'Other input expert'!D$9),0)","v":0},{"$f":"IF('Picking rates'!$G193>0,'Yield & Sales calculation'!F193/('Picking rates'!$G193*'Other input expert'!E$9),0)","v":0},{"$f":"IF('Picking rates'!$G193>0,'Yield & Sales calculation'!G193/('Picking rates'!$G193*'Other input expert'!F$9),0)","v":0},{"$f":"IF('Picking rates'!$G193>0,'Yield & Sales calculation'!H193/('Picking rates'!$G193*'Other input expert'!G$9),0)","v":0},{"$f":"IF('Picking rates'!$G193>0,'Yield & Sales calculation'!I193/('Picking rates'!$G193*'Other input expert'!H$9),0)","v":0},{"$f":"IF('Picking rates'!$G193>0,'Yield & Sales calculation'!J193/('Picking rates'!$G193*'Other input expert'!I$9),0)","v":0},{"$f":"IF('Picking rates'!$G193>0,'Yield & Sales calculation'!K193/('Picking rates'!$G193*'Other input expert'!J$9),0)","v":0},{"$f":"IF('Picking rates'!$G193>0,'Yield & Sales calculation'!L193/('Picking rates'!$G193*'Other input expert'!K$9),0)","v":0},{"$f":"IF('Picking rates'!$G193>0,'Yield & Sales calculation'!M193/('Picking rates'!$G193*'Other input expert'!L$9),0)","v":0},{"$f":"IF('Picking rates'!$G193>0,'Yield & Sales calculation'!N193/('Picking rates'!$G193*'Other input expert'!M$9),0)","v":0}]
["Chephalotaxus","Chinese plum yew",{"$f":"IF('Picking rates'!$G194>0,'Yield & Sales calculation'!C194/('Picking rates'!$G194*'Other input expert'!B$9),0)","v":0},{"$f":"IF('Picking rates'!$G194>0,'Yield & Sales calculation'!D194/('Picking rates'!$G194*'Other input expert'!C$9),0)","v":0},{"$f":"IF('Picking rates'!$G194>0,'Yield & Sales calculation'!E194/('Picking rates'!$G194*'Other input expert'!D$9),0)","v":0},{"$f":"IF('Picking rates'!$G194>0,'Yield & Sales calculation'!F194/('Picking rates'!$G194*'Other input expert'!E$9),0)","v":0},{"$f":"IF('Picking rates'!$G194>0,'Yield & Sales calculation'!G194/('Picking rates'!$G194*'Other input expert'!F$9),0)","v":0},{"$f":"IF('Picking rates'!$G194>0,'Yield & Sales calculation'!H194/('Picking rates'!$G194*'Other input expert'!G$9),0)","v":0},{"$f":"IF('Picking rates'!$G194>0,'Yield & Sales calculation'!I194/('Picking rates'!$G194*'Other input expert'!H$9),0)","v":0},{"$f":"IF('Picking rates'!$G194>0,'Yield & Sales calculation'!J194/('Picking rates'!$G194*'Other input expert'!I$9),0)","v":0},{"$f":"IF('Picking rates'!$G194>0,'Yield & Sales calculation'!K194/('Picking rates'!$G194*'Other input expert'!J$9),0)","v":0},{"$f":"IF('Picking rates'!$G194>0,'Yield & Sales calculation'!L194/('Picking rates'!$G194*'Other input expert'!K$9),0)","v":0},{"$f":"IF('Picking rates'!$G194>0,'Yield & Sales calculation'!M194/('Picking rates'!$G194*'Other input expert'!L$9),0)","v":0},{"$f":"IF('Picking rates'!$G194>0,'Yield & Sales calculation'!N194/('Picking rates'!$G194*'Other input expert'!M$9),0)","v":0}]
["ZR other",null,{"$f":"IF('Picking rates'!$G195>0,'Yield & Sales calculation'!C195/('Picking rates'!$G195*'Other input expert'!B$9),0)","v":0},{"$f":"IF('Picking rates'!$G195>0,'Yield & Sales calculation'!D195/('Picking rates'!$G195*'Other input expert'!C$9),0)","v":0},{"$f":"IF('Picking rates'!$G195>0,'Yield & Sales calculation'!E195/('Picking rates'!$G195*'Other input expert'!D$9),0)","v":0},{"$f":"IF('Picking rates'!$G195>0,'Yield & Sales calculation'!F195/('Picking rates'!$G195*'Other input expert'!E$9),0)","v":0},{"$f":"IF('Picking rates'!$G195>0,'Yield & Sales calculation'!G195/('Picking rates'!$G195*'Other input expert'!F$9),0)","v":0},{"$f":"IF('Picking rates'!$G195>0,'Yield & Sales calculation'!H195/('Picking rates'!$G195*'Other input expert'!G$9),0)","v":0},{"$f":"IF('Picking rates'!$G195>0,'Yield & Sales calculation'!I195/('Picking rates'!$G195*'Other input expert'!H$9),0)","v":0},{"$f":"IF('Picking rates'!$G195>0,'Yield & Sales calculation'!J195/('Picking rates'!$G195*'Other input expert'!I$9),0)","v":0},{"$f":"IF('Picking rates'!$G195>0,'Yield & Sales calculation'!K195/('Picking rates'!$G195*'Other input expert'!J$9),0)","v":0},{"$f":"IF('Picking rates'!$G195>0,'Yield & Sales calculation'!L195/('Picking rates'!$G195*'Other input expert'!K$9),0)","v":0},{"$f":"IF('Picking rates'!$G195>0,'Yield & Sales calculation'!M195/('Picking rates'!$G195*'Other input expert'!L$9),0)","v":0},{"$f":"IF('Picking rates'!$G195>0,'Yield & Sales calculation'!N195/('Picking rates'!$G195*'Other input expert'!M$9),0)","v":0}]
["ZR other",null,{"$f":"IF('Picking rates'!$G196>0,'Yield & Sales calculation'!C196/('Picking rates'!$G196*'Other input expert'!B$9),0)","v":0},{"$f":"IF('Picking rates'!$G196>0,'Yield & Sales calculation'!D196/('Picking rates'!$G196*'Other input expert'!C$9),0)","v":0},{"$f":"IF('Picking rates'!$G196>0,'Yield & Sales calculation'!E196/('Picking rates'!$G196*'Other input expert'!D$9),0)","v":0},{"$f":"IF('Picking rates'!$G196>0,'Yield & Sales calculation'!F196/('Picking rates'!$G196*'Other input expert'!E$9),0)","v":0},{"$f":"IF('Picking rates'!$G196>0,'Yield & Sales calculation'!G196/('Picking rates'!$G196*'Other input expert'!F$9),0)","v":0},{"$f":"IF('Picking rates'!$G196>0,'Yield & Sales calculation'!H196/('Picking rates'!$G196*'Other input expert'!G$9),0)","v":0},{"$f":"IF('Picking rates'!$G196>0,'Yield & Sales calculation'!I196/('Picking rates'!$G196*'Other input expert'!H$9),0)","v":0},{"$f":"IF('Picking rates'!$G196>0,'Yield & Sales calculation'!J196/('Picking rates'!$G196*'Other input expert'!I$9),0)","v":0},{"$f":"IF('Picking rates'!$G196>0,'Yield & Sales calculation'!K196/('Picking rates'!$G196*'Other input expert'!J$9),0)","v":0},{"$f":"IF('Picking rates'!$G196>0,'Yield & Sales calculation'!L196/('Picking rates'!$G196*'Other input expert'!K$9),0)","v":0},{"$f":"IF('Picking rates'!$G196>0,'Yield & Sales calculation'!M196/('Picking rates'!$G196*'Other input expert'!L$9),0)","v":0},{"$f":"IF('Picking rates'!$G196>0,'Yield & Sales calculation'!N196/('Picking rates'!$G196*'Other input expert'!M$9),0)","v":0}]
["ZR other",null,{"$f":"IF('Picking rates'!$G197>0,'Yield & Sales calculation'!C197/('Picking rates'!$G197*'Other input expert'!B$9),0)","v":0},{"$f":"IF('Picking rates'!$G197>0,'Yield & Sales calculation'!D197/('Picking rates'!$G197*'Other input expert'!C$9),0)","v":0},{"$f":"IF('Picking rates'!$G197>0,'Yield & Sales calculation'!E197/('Picking rates'!$G197*'Other input expert'!D$9),0)","v":0},{"$f":"IF('Picking rates'!$G197>0,'Yield & Sales calculation'!F197/('Picking rates'!$G197*'Other input expert'!E$9),0)","v":0},{"$f":"IF('Picking rates'!$G197>0,'Yield & Sales calculation'!G197/('Picking rates'!$G197*'Other input expert'!F$9),0)","v":0},{"$f":"IF('Picking rates'!$G197>0,'Yield & Sales calculation'!H197/('Picking rates'!$G197*'Other input expert'!G$9),0)","v":0},{"$f":"IF('Picking rates'!$G197>0,'Yield & Sales calculation'!I197/('Picking rates'!$G197*'Other input expert'!H$9),0)","v":0},{"$f":"IF('Picking rates'!$G197>0,'Yield & Sales calculation'!J197/('Picking rates'!$G197*'Other input expert'!I$9),0)","v":0},{"$f":"IF('Picking rates'!$G197>0,'Yield & Sales calculation'!K197/('Picking rates'!$G197*'Other input expert'!J$9),0)","v":0},{"$f":"IF('Picking rates'!$G197>0,'Yield & Sales calculation'!L197/('Picking rates'!$G197*'Other input expert'!K$9),0)","v":0},{"$f":"IF('Picking rates'!$G197>0,'Yield & Sales calculation'!M197/('Picking rates'!$G197*'Other input expert'!L$9),0)","v":0},{"$f":"IF('Picking rates'!$G197>0,'Yield & Sales calculation'!N197/('Picking rates'!$G197*'Other input expert'!M$9),0)","v":0}]
["ZR other",null,{"$f":"IF('Picking rates'!$G198>0,'Yield & Sales calculation'!C198/('Picking rates'!$G198*'Other input expert'!B$9),0)","v":0},{"$f":"IF('Picking rates'!$G198>0,'Yield & Sales calculation'!D198/('Picking rates'!$G198*'Other input expert'!C$9),0)","v":0},{"$f":"IF('Picking rates'!$G198>0,'Yield & Sales calculation'!E198/('Picking rates'!$G198*'Other input expert'!D$9),0)","v":0},{"$f":"IF('Picking rates'!$G198>0,'Yield & Sales calculation'!F198/('Picking rates'!$G198*'Other input expert'!E$9),0)","v":0},{"$f":"IF('Picking rates'!$G198>0,'Yield & Sales calculation'!G198/('Picking rates'!$G198*'Other input expert'!F$9),0)","v":0},{"$f":"IF('Picking rates'!$G198>0,'Yield & Sales calculation'!H198/('Picking rates'!$G198*'Other input expert'!G$9),0)","v":0},{"$f":"IF('Picking rates'!$G198>0,'Yield & Sales calculation'!I198/('Picking rates'!$G198*'Other input expert'!H$9),0)","v":0},{"$f":"IF('Picking rates'!$G198>0,'Yield & Sales calculation'!J198/('Picking rates'!$G198*'Other input expert'!I$9),0)","v":0},{"$f":"IF('Picking rates'!$G198>0,'Yield & Sales calculation'!K198/('Picking rates'!$G198*'Other input expert'!J$9),0)","v":0},{"$f":"IF('Picking rates'!$G198>0,'Yield & Sales calculation'!L198/('Picking rates'!$G198*'Other input expert'!K$9),0)","v":0},{"$f":"IF('Picking rates'!$G198>0,'Yield & Sales calculation'!M198/('Picking rates'!$G198*'Other input expert'!L$9),0)","v":0},{"$f":"IF('Picking rates'!$G198>0,'Yield & Sales calculation'!N198/('Picking rates'!$G198*'Other input expert'!M$9),0)","v":0}]
[]
[null,"Total harvest hours",{"$f":"SUM(C4:C198)","v":0},0,0,0,0,0,0,0,0,0,{"$f":"SUM(M4:M198)","v":0},{"$f":"SUM(N4:N198)","v":0}]

{"sheet":"Fixed income & costs","index":14,"n_rows":38,"n_cols":21,"rows_kept":38,"cut":false,"hidden":false,"merged":[]}
[]
["Fixed income",1,2,3,4,5,6,7,8,9,10,11,12,13,14,15,16,17,18,19,20]
[{"$f":"'Other income'!A20","v":"Biodiversity"},{"$f":"'Other income expert'!B23","v":0},{"$f":"'Other income expert'!C23","v":0},{"$f":"'Other income expert'!D23","v":0},{"$f":"'Other income expert'!E23","v":0},{"$f":"'Other income expert'!F23","v":0},{"$f":"'Other income expert'!G23","v":0},{"$f":"'Other income expert'!H23","v":0},{"$f":"'Other income expert'!I23","v":0},{"$f":"'Other income expert'!J23","v":0},{"$f":"'Other income expert'!K23","v":0},{"$f":"'Other income expert'!$L23","v":0},{"$f":"'Other income expert'!$L23","v":0},{"$f":"'Other income expert'!$L23","v":0},{"$f":"'Other income expert'!$L23","v":0},{"$f":"'Other income expert'!L23","v":0},{"$f":"'Other income expert'!$M23","v":0},{"$f":"'Other income expert'!$M23","v":0},{"$f":"'Other income expert'!$M23","v":0},{"$f":"'Other income expert'!$M23","v":0},{"$f":"'Other income expert'!$M23","v":0}]
[{"$f":"'Other income'!A21","v":"Climateadaptation"},{"$f":"'Other income expert'!B24","v":0},{"$f":"'Other income expert'!C24","v":0},{"$f":"'Other income expert'!D24","v":0},{"$f":"'Other income expert'!E24","v":0},{"$f":"'Other income expert'!F24","v":0},{"$f":"'Other income expert'!G24","v":0},{"$f":"'Other income expert'!H24","v":0},{"$f":"'Other income expert'!I24","v":0},{"$f":"'Other income expert'!J24","v":0},{"$f":"'Other income expert'!K24","v":0},{"$f":"'Other income expert'!$L24","v":0},{"$f":"'Other income expert'!$L24","v":0},{"$f":"'Other income expert'!$L24","v":0},{"$f":"'Other income expert'!$L24","v":0},{"$f":"'Other income expert'!L24","v":0},{"$f":"'Other income expert'!$M24","v":0},{"$f":"'Other income expert'!$M24","v":0},{"$f":"'Other income expert'!$M24","v":0},{"$f":"'Other income expert'!$M24","v":0},{"$f":"'Other income expert'!$M24","v":0}]
[{"$f":"'Other income'!A23","v":"Carbon credit"},{"$f":"'Other income expert'!B26*'Other income expert'!B25","v":0},{"$f":"'Other income expert'!C26*'Other income expert'!C25","v":0},{"$f":"'Other income expert'!D26*'Other income expert'!D25","v":0},{"$f":"'Other income expert'!E26*'Other income expert'!E25","v":0},{"$f":"'Other income expert'!F26*'Other income expert'!F25","v":0},{"$f":"'Other income expert'!G26*'Other income expert'!G25","v":0},{"$f":"'Other income expert'!H26*'Other income expert'!H25","v":0},{"$f":"'Other income expert'!I26*'Other income expert'!I25","v":0},{"$f":"'Other income expert'!J26*'Other income expert'!J25","v":0},{"$f":"'Other income expert'!K26*'Other income expert'!K25","v":0},{"$f":"'Other income expert'!L26*'Other income expert'!L25","v":0},{"$f":"'Other income expert'!$L26*'Other income expert'!$L25","v":0},{"$f":"'Other income expert'!$L26*'Other income expert'!$L25","v":0},{"$f":"'Other income expert'!$L26*'Other income expert'!$L25","v":0},{"$f":"'Other income expert'!$L26*'Other income expert'!$L25","v":0},{"$f":"'Other income expert'!$M26*'Other income expert'!$M25","v":0},{"$f":"'Other income expert'!$M26*'Other income expert'!$M25","v":0},{"$f":"'Other income expert'!$M26*'Other income expert'!$M25","v":0},{"$f":"'Other income expert'!$M26*'Other income expert'!$M25","v":0},{"$f":"'Other income expert'!$M26*'Other income expert'!$M25","v":0}]
[{"$f":"'Other income'!A25","v":"Compensation 1"},{"$f":"'Other income expert'!B28*'Other income expert'!B27","v":0},{"$f":"'Other income expert'!C28*'Other income expert'!C27","v":0},{"$f":"'Other income expert'!D28*'Other income expert'!D27","v":0},{"$f":"'Other income expert'!E28*'Other income expert'!E27","v":0},{"$f":"'Other income expert'!F28*'Other income expert'!F27","v":0},{"$f":"'Other income expert'!G28*'Other income expert'!G27","v":0},{"$f":"'Other income expert'!H28*'Other income expert'!H27","v":0},{"$f":"'Other income expert'!I28*'Other income expert'!I27","v":0},{"$f":"'Other income expert'!J28*'Other income expert'!J27","v":0},{"$f":"'Other income expert'!K28*'Other income expert'!K27","v":0},{"$f":"'Other income expert'!$L28*'Other income expert'!$L27","v":0},{"$f":"'Other income expert'!$L28*'Other income expert'!$L27","v":0},{"$f":"'Other income expert'!$L28*'Other income expert'!$L27","v":0},{"$f":"'Other income expert'!$L28*'Other income expert'!$L27","v":0},{"$f":"'Other income expert'!L28*'Other income expert'!L27","v":0},{"$f":"'Other income expert'!$M28*'Other income expert'!$M27","v":0},{"$f":"'Other income expert'!$M28*'Other income expert'!$M27","v":0},{"$f":"'Other income expert'!$M28*'Other income expert'!$M27","v":0},{"$f":"'Other income expert'!$M28*'Other income expert'!$M27","v":0},{"$f":"'Other income expert'!$M28*'Other income expert'!$M27","v":0}]
[{"$f":"'Other income'!A27","v":"Compensation 2"},{"$f":"'Other income expert'!B30*'Other income expert'!B29","v":0},{"$f":"'Other income expert'!C30*'Other income expert'!C29","v":0},{"$f":"'Other income expert'!D30*'Other income expert'!D29","v":0},{"$f":"'Other income expert'!E30*'Other income expert'!E29","v":0},{"$f":"'Other income expert'!F30*'Other income expert'!F29","v":0},{"$f":"'Other income expert'!G30*'Other income expert'!G29","v":0},{"$f":"'Other income expert'!H30*'Other income expert'!H29","v":0},{"$f":"'Other income expert'!I30*'Other income expert'!I29","v":0},{"$f":"'Other income expert'!J30*'Other income expert'!J29","v":0},{"$f":"'Other income expert'!K30*'Other income expert'!K29","v":0},{"$f":"'Other income expert'!$L30*'Other income expert'!$L29","v":0},{"$f":"'Other income expert'!$L30*'Other income expert'!$L29","v":0},{"$f":"'Other income expert'!$L30*'Other income expert'!$L29","v":0},{"$f":"'Other income expert'!$L30*'Other income expert'!$L29","v":0},{"$f":"'Other income expert'!L30*'Other income expert'!L29","v":0},{"$f":"'Other income expert'!$M30*'Other income expert'!$M29","v":0},{"$f":"'Other income expert'!$M30*'Other income expert'!$M29","v":0},{"$f":"'Other income expert'!$M30*'Other income expert'!$M29","v":0},{"$f":"'Other income expert'!$M30*'Other income expert'!$M29","v":0},{"$f":"'Other income expert'!$M30*'Other income expert'!$M29","v":0}]
[{"$f":"'Other income'!A28","v":"Other compenstaions"},{"$f":"'Other income expert'!B31","v":0},{"$f":"'Other income expert'!C31","v":0},{"$f":"'Other income expert'!D31","v":0},{"$f":"'Other income expert'!E31","v":0},{"$f":"'Other income expert'!F31","v":0},{"$f":"'Other income expert'!G31","v":0},{"$f":"'Other income expert'!H31","v":0},{"$f":"'Other income expert'!I31","v":0},{"$f":"'Other income expert'!J31","v":0},{"$f":"'Other income expert'!K31","v":0},{"$f":"'Other income expert'!$L31","v":0},{"$f":"'Other income expert'!$L31","v":0},{"$f":"'Other income expert'!$L31","v":0},{"$f":"'Other income expert'!$L31","v":0},{"$f":"'Other income expert'!L31","v":0},{"$f":"'Other income expert'!$M31","v":0},{"$f":"'Other income expert'!$M31","v":0},{"$f":"'Other income expert'!$M31","v":0},{"$f":"'Other income expert'!$M31","v":0},{"$f":"'Other income expert'!$M31","v":0}]
[{"$f":"'Other income'!A31","v":"Compensation"},{"$f":"'Other income expert'!B33*Homepage!$C$15","v":0},{"$f":"'Other income expert'!C33*Homepage!$C$15","v":0},{"$f":"'Other income expert'!D33*Homepage!$C$15","v":0},{"$f":"'Other income expert'!E33*Homepage!$C$15","v":0},{"$f":"'Other income expert'!F33*Homepage!$C$15","v":0},{"$f":"'Other income expert'!G33*Homepage!$C$15","v":0},{"$f":"'Other income expert'!H33*Homepage!$C$15","v":0},{"$f":"'Other income expert'!I33*Homepage!$C$15","v":0},{"$f":"'Other income expert'!J33*Homepage!$C$15","v":0},{"$f":"'Other income expert'!K33*Homepage!$C$15","v":0},{"$f":"'Other income expert'!L33*Homepage!$C$15","v":0},{"$f":"'Other income expert'!$L33*Homepage!$C$15","v":0},{"$f":"'Other income expert'!$L33*Homepage!$C$15","v":0},{"$f":"'Other income expert'!$L33*Homepage!$C$15","v":0},{"$f":"'Other income expert'!$L33*Homepage!$C$15","v":0},{"$f":"'Other income expert'!$M33*Homepage!$C$15","v":0},{"$f":"'Other income expert'!$M33*Homepage!$C$15","v":0},{"$f":"'Other income expert'!$M33*Homepage!$C$15","v":0},{"$f":"'Other income expert'!$M33*Homepage!$C$15","v":0},{"$f":"'Other income expert'!$M33*Homepage!$C$15","v":0}]
[{"$f":"'Other income'!A32","v":"CAP (EU common agriculture policy)"},{"$f":"'Other income expert'!B34*Homepage!$C$15","v":0},{"$f":"'Other income expert'!C34*Homepage!$C$15","v":0},{"$f":"'Other income expert'!D34*Homepage!$C$15","v":0},{"$f":"'Other income expert'!E34*Homepage!$C$15","v":0},{"$f":"'Other income expert'!F34*Homepage!$C$15","v":0},{"$f":"'Other income expert'!G34*Homepage!$C$15","v":0},{"$f":"'Other income expert'!H34*Homepage!$C$15","v":0},{"$f":"'Other income expert'!I34*Homepage!$C$15","v":0},{"$f":"'Other income expert'!J34*Homepage!$C$15","v":0},{"$f":"'Other income expert'!K34*Homepage!$C$15","v":0},{"$f":"'Other income expert'!L34*Homepage!$C$15","v":0},{"$f":"'Other income expert'!$L34*Homepage!$C$15","v":0},{"$f":"'Other income expert'!$L34*Homepage!$C$15","v":0},{"$f":"'Other income expert'!$L34*Homepage!$C$15","v":0},{"$f":"'Other income expert'!$L34*Homepage!$C$15","v":0},{"$f":"'Other income expert'!$M34*Homepage!$C$15","v":0},{"$f":"'Other income expert'!$M34*Homepage!$C$15","v":0},{"$f":"'Other income expert'!$M34*Homepage!$C$15","v":0},{"$f":"'Other income expert'!$M34*Homepage!$C$15","v":0},{"$f":"'Other income expert'!$M34*Homepage!$C$15","v":0}]
[{"$f":"'Other income'!A34","v":"Soil Organic Matter compensation"},{"$f":"'Other income expert'!B36*Homepage!$C$15","v":0},{"$f":"'Other income expert'!C36*Homepage!$C$15","v":0},{"$f":"'Other income expert'!D36*Homepage!$C$15","v":0},{"$f":"'Other income expert'!E36*Homepage!$C$15","v":0},{"$f":"'Other income expert'!F36*Homepage!$C$15","v":0},{"$f":"'Other income expert'!G36*Homepage!$C$15","v":0},{"$f":"'Other income expert'!H36*Homepage!$C$15","v":0},{"$f":"'Other income expert'!I36*Homepage!$C$15","v":0},{"$f":"'Other income expert'!J36*Homepage!$C$15","v":0},{"$f":"'Other income expert'!K36*Homepage!$C$15","v":0},{"$f":"'Other income expert'!L36*Homepage!$C$15","v":0},{"$f":"'Other income expert'!$L36*Homepage!$C$15","v":0},{"$f":"'Other income expert'!$L36*Homepage!$C$15","v":0},{"$f":"'Other income expert'!$L36*Homepage!$C$15","v":0},{"$f":"'Other income expert'!$L36*Homepage!$C$15","v":0},{"$f":"'Other income expert'!$M36*Homepage!$C$15","v":0},{"$f":"'Other income expert'!$M36*Homepage!$C$15","v":0},{"$f":"'Other income expert'!$M36*Homepage!$C$15","v":0},{"$f":"'Other income expert'!$M36*Homepage!$C$15","v":0},{"$f":"'Other income expert'!$M36*Homepage!$C$15","v":0}]
[{"$f":"'Other income'!A35","v":"Bufferzones"},{"$f":"'Other income expert'!B37*Homepage!$C$15","v":0},{"$f":"'Other income expert'!C37*Homepage!$C$15","v":0},{"$f":"'Other income expert'!D37*Homepage!$C$15","v":0},{"$f":"'Other income expert'!E37*Homepage!$C$15","v":0},{"$f":"'Other income expert'!F37*Homepage!$C$15","v":0},{"$f":"'Other income expert'!G37*Homepage!$C$15","v":0},{"$f":"'Other income expert'!H37*Homepage!$C$15","v":0},{"$f":"'Other income expert'!I37*Homepage!$C$15","v":0},{"$f":"'Other income expert'!J37*Homepage!$C$15","v":0},{"$f":"'Other income expert'!K37*Homepage!$C$15","v":0},{"$f":"'Other income expert'!L37*Homepage!$C$15","v":0},{"$f":"'Other income expert'!$L37*Homepage!$C$15","v":0},{"$f":"'Other income expert'!$L37*Homepage!$C$15","v":0},{"$f":"'Other income expert'!$L37*Homepage!$C$15","v":0},{"$f":"'Other income expert'!$L37*Homepage!$C$15","v":0},{"$f":"'Other income expert'!$M37*Homepage!$C$15","v":0},{"$f":"'Other income expert'!$M37*Homepage!$C$15","v":0},{"$f":"'Other income expert'!$M37*Homepage!$C$15","v":0},{"$f":"'Other income expert'!$M37*Homepage!$C$15","v":0},{"$f":"'Other income expert'!$M37*Homepage!$C$15","v":0}]
[{"$f":"'Other income'!A36","v":"Sowing cropland borders"},{"$f":"'Other income expert'!B38*Homepage!$C$15","v":0},{"$f":"'Other income expert'!C38*Homepage!$C$15","v":0},{"$f":"'Other income expert'!D38*Homepage!$C$15","v":0},{"$f":"'Other income expert'!E38*Homepage!$C$15","v":0},{"$f":"'Other income expert'!F38*Homepage!$C$15","v":0},{"$f":"'Other income expert'!G38*Homepage!$C$15","v":0},{"$f":"'Other income expert'!H38*Homepage!$C$15","v":0},{"$f":"'Other income expert'!I38*Homepage!$C$15","v":0},{"$f":"'Other income expert'!J38*Homepage!$C$15","v":0},{"$f":"'Other income expert'!K38*Homepage!$C$15","v":0},{"$f":"'Other income expert'!L38*Homepage!$C$15","v":0},{"$f":"'Other income expert'!$L38*Homepage!$C$15","v":0},{"$f":"'Other income expert'!$L38*Homepage!$C$15","v":0},{"$f":"'Other income expert'!$L38*Homepage!$C$15","v":0},{"$f":"'Other income expert'!$L38*Homepage!$C$15","v":0},{"$f":"'Other income expert'!$M38*Homepage!$C$15","v":0},{"$f":"'Other income expert'!$M38*Homepage!$C$15","v":0},{"$f":"'Other income expert'!$M38*Homepage!$C$15","v":0},{"$f":"'Other income expert'!$M38*Homepage!$C$15","v":0},{"$f":"'Other income expert'!$M38*Homepage!$C$15","v":0}]
[{"$f":"'Other income'!A37","v":"Sowing cover crops"},{"$f":"'Other income expert'!B39*Homepage!$C$15","v":0},{"$f":"'Other income expert'!C39*Homepage!$C$15","v":0},{"$f":"'Other income expert'!D39*Homepage!$C$15","v":0},{"$f":"'Other income expert'!E39*Homepage!$C$15","v":0},{"$f":"'Other income expert'!F39*Homepage!$C$15","v":0},{"$f":"'Other income expert'!G39*Homepage!$C$15","v":0},{"$f":"'Other income expert'!H39*Homepage!$C$15","v":0},{"$f":"'Other income expert'!I39*Homepage!$C$15","v":0},{"$f":"'Other income expert'!J39*Homepage!$C$15","v":0},{"$f":"'Other income expert'!K39*Homepage!$C$15","v":0},{"$f":"'Other income expert'!L39*Homepage!$C$15","v":0},{"$f":"'Other income expert'!$L39*Homepage!$C$15","v":0},{"$f":"'Other income expert'!$L39*Homepage!$C$15","v":0},{"$f":"'Other income expert'!$L39*Homepage!$C$15","v":0},{"$f":"'Other income expert'!$L39*Homepage!$C$15","v":0},{"$f":"'Other income expert'!$M39*Homepage!$C$15","v":0},{"$f":"'Other income expert'!$M39*Homepage!$C$15","v":0},{"$f":"'Other income expert'!$M39*Homepage!$C$15","v":0},{"$f":"'Other income expert'!$M39*Homepage!$C$15","v":0},{"$f":"'Other income expert'!$M39*Homepage!$C$15","v":0}]
[{"$f":"'Other income'!A38","v":"Other compensations"},{"$f":"'Other income expert'!B40*Homepage!$C$15","v":0},{"$f":"'Other income expert'!C40*Homepage!$C$15","v":0},{"$f":"'Other income expert'!D40*Homepage!$C$15","v":0},{"$f":"'Other income expert'!E40*Homepage!$C$15","v":0},{"$f":"'Other income expert'!F40*Homepage!$C$15","v":0},{"$f":"'Other income expert'!G40*Homepage!$C$15","v":0},{"$f":"'Other income expert'!H40*Homepage!$C$15","v":0},{"$f":"'Other income expert'!I40*Homepage!$C$15","v":0},{"$f":"'Other income expert'!J40*Homepage!$C$15","v":0},{"$f":"'Other income expert'!K40*Homepage!$C$15","v":0},{"$f":"'Other income expert'!L40*Homepage!$C$15","v":0},{"$f":"'Other income expert'!$L40*Homepage!$C$15","v":0},{"$f":"'Other income expert'!$L40*Homepage!$C$15","v":0},{"$f":"'Other income expert'!$L40*Homepage!$C$15","v":0},{"$f":"'Other income expert'!$L40*Homepage!$C$15","v":0},{"$f":"'Other income expert'!$M40*Homepage!$C$15","v":0},{"$f":"'Other income expert'!$M40*Homepage!$C$15","v":0},{"$f":"'Other income expert'!$M40*Homepage!$C$15","v":0},{"$f":"'Other income expert'!$M40*Homepage!$C$15","v":0},{"$f":"'Other income expert'!$M40*Homepage!$C$15","v":0}]
[{"$f":"'Other income expert'!A4","v":"Workshops"},{"$f":"'Other income expert'!B5*'Other income expert'!B7*'Other income expert'!B6","v":0},{"$f":"'Other income expert'!C5*'Other income expert'!C7*'Other income expert'!C6","v":0},{"$f":"'Other income expert'!D5*'Other income expert'!D7*'Other income expert'!D6","v":0},{"$f":"'Other income expert'!E5*'Other income expert'!E7*'Other income expert'!E6","v":0},{"$f":"'Other income expert'!F5*'Other income expert'!F7*'Other income expert'!F6","v":0},{"$f":"'Other income expert'!G5*'Other income expert'!G7*'Other income expert'!G6","v":0},{"$f":"'Other income expert'!H5*'Other income expert'!H7*'Other income expert'!H6","v":0},{"$f":"'Other income expert'!I5*'Other income expert'!I7*'Other income expert'!I6","v":0},{"$f":"'Other income expert'!J5*'Other income expert'!J7*'Other income expert'!J6","v":0},{"$f":"'Other income expert'!K5*'Other income expert'!K7*'Other income expert'!K6","v":0},{"$f":"'Other income expert'!$L5*'Other income expert'!$L7*'Other income expert'!$L6","v":0},{"$f":"'Other income expert'!$L5*'Other income expert'!$L7*'Other income expert'!$L6","v":0},{"$f":"'Other income expert'!$L5*'Other income expert'!$L7*'Other income expert'!$L6","v":0},{"$f":"'Other income expert'!$L5*'Other income expert'!$L7*'Other income expert'!$L6","v":0},{"$f":"'Other income expert'!$L5*'Other income expert'!$L7*'Other income expert'!$L6","v":0},{"$f":"'Other income expert'!$M5*'Other income expert'!$M7*'Other income expert'!$M6","v":0},{"$f":"'Other income expert'!$M5*'Other income expert'!$M7*'Other income expert'!$M6","v":0},{"$f":"'Other income expert'!$M5*'Other income expert'!$M7*'Other income expert'!$M6","v":0},{"$f":"'Other income expert'!$M5*'Other income expert'!$M7*'Other income expert'!$M6","v":0},{"$f":"'Other income expert'!$M5*'Other income expert'!$M7*'Other income expert'!$M6","v":0}]
[{"$f":"'Other income expert'!A8","v":"Tours"},{"$f":"'Other income expert'!B10*'Other income expert'!B9*'Other income expert'!B11","v":0},{"$f":"'Other income expert'!C10*'Other income expert'!C9*'Other income expert'!C11","v":0},{"$f":"'Other income expert'!D10*'Other income expert'!D9*'Other income expert'!D11","v":0},{"$f":"'Other income expert'!E10*'Other income expert'!E9*'Other income expert'!E11","v":0},{"$f":"'Other income expert'!F10*'Other income expert'!F9*'Other income expert'!F11","v":0},{"$f":"'Other income expert'!G10*'Other income expert'!G9*'Other income expert'!G11","v":0},{"$f":"'Other income expert'!H10*'Other income expert'!H9*'Other income expert'!H11","v":0},{"$f":"'Other income expert'!I10*'Other income expert'!I9*'Other income expert'!I11","v":0},{"$f":"'Other income expert'!J10*'Other income expert'!J9*'Other income expert'!J11","v":0},{"$f":"'Other income expert'!K10*'Other income expert'!K9*'Other income expert'!K11","v":0},{"$f":"'Other income expert'!L10*'Other income expert'!L9*'Other income expert'!L11","v":0},{"$f":"'Other income expert'!M10*'Other income expert'!M9*'Other income expert'!M11","v":0},{"$f":"'Other income expert'!N10*'Other income expert'!N9*'Other income expert'!N11","v":0},{"$f":"'Other income expert'!O10*'Other income expert'!O9*'Other income expert'!O11","v":0},{"$f":"'Other income expert'!P10*'Other income expert'!P9*'Other income expert'!P11","v":0},{"$f":"'Other income expert'!Q10*'Other income expert'!Q9*'Other income expert'!Q11","v":0},{"$f":"'Other income expert'!R10*'Other income expert'!R9*'Other income expert'!R11","v":0},{"$f":"'Other income expert'!S10*'Other income expert'!S9*'Other income expert'!S11","v":0},{"$f":"'Other income expert'!T10*'Other income expert'!T9*'Other income expert'!T11","v":0},{"$f":"'Other income expert'!U10*'Other income expert'!U9*'Other income expert'!U11","v":0}]
[{"$f":"'Other income expert'!A12","v":"Events"},{"$f":"'Other income expert'!B14*'Other income expert'!B19","v":0},{"$f":"'Other income expert'!C14*'Other income expert'!C19","v":0},{"$f":"'Other income expert'!D14*'Other income expert'!D19","v":0},{"$f":"'Other income expert'!E14*'Other income expert'!E19","v":0},{"$f":"'Other income expert'!F14*'Other income expert'!F19","v":0},{"$f":"'Other income expert'!G14*'Other income expert'!G19","v":0},{"$f":"'Other income expert'!H14*'Other income expert'!H19","v":0},{"$f":"'Other income expert'!I14*'Other income expert'!I19","v":0},{"$f":"'Other income expert'!J14*'Other income expert'!J19","v":0},{"$f":"'Other income expert'!K14*'Other income expert'!K19","v":0},{"$f":"'Other income expert'!$L14*'Other income expert'!$L19","v":0},{"$f":"'Other income expert'!$L14*'Other income expert'!$L19","v":0},{"$f":"'Other income expert'!$L14*'Other income expert'!$L19","v":0},{"$f":"'Other income expert'!$L14*'Other income expert'!$L19","v":0},{"$f":"'Other income expert'!$L14*'Other income expert'!$L19","v":0},{"$f":"'Other income expert'!$M14*'Other income expert'!$M19","v":0},{"$f":"'Other income expert'!$M14*'Other income expert'!$M19","v":0},{"$f":"'Other income expert'!$M14*'Other income expert'!$M19","v":0},{"$f":"'Other income expert'!$M14*'Other income expert'!$M19","v":0},{"$f":"'Other income expert'!$M14*'Other income expert'!$M19","v":0}]
[{"$f":"'Other income expert'!A15","v":"Other fixed income/year"},{"$f":"'Other income expert'!B15","v":0},{"$f":"'Other income expert'!C15","v":0},{"$f":"'Other income expert'!D15","v":0},{"$f":"'Other income expert'!E15","v":0},{"$f":"'Other income expert'!F15","v":0},{"$f":"'Other income expert'!G15","v":0},{"$f":"'Other income expert'!H15","v":0},{"$f":"'Other income expert'!I15","v":0},{"$f":"'Other income expert'!J15","v":0},{"$f":"'Other income expert'!K15","v":0},{"$f":"'Other income expert'!$L$15","v":0},{"$f":"'Other income expert'!$L$15","v":0},{"$f":"'Other income expert'!$L$15","v":0},{"$f":"'Other income expert'!$L$15","v":0},{"$f":"'Other income expert'!L15","v":0},{"$f":"'Other income expert'!$M$15","v":0},{"$f":"'Other income expert'!$M$15","v":0},{"$f":"'Other income expert'!$M$15","v":0},{"$f":"'Other income expert'!$M$15","v":0},{"$f":"'Other income expert'!$M$15","v":0}]
["Total fixed income",{"$f":"SUM(B3:B19)","v":0},0,0,0,0,0,0,0,0,0,0,0,0,0,0,0,0,0,0,0]
[]
["Fixed costs",1,2,3,4,5,6,7,8,9,10,11,12,13,14,15,16,17,18,19,20]
[{"$f":"Costs!A4","v":"Lease/ha"},{"$f":"'Costs expert'!B4*Homepage!$C15","v":0},{"$f":"'Costs expert'!C4*Homepage!$C15","v":0},{"$f":"'Costs expert'!D4*Homepage!$C15","v":0},{"$f":"'Costs expert'!E4*Homepage!$C15","v":0},{"$f":"'Costs expert'!F4*Homepage!$C15","v":0},{"$f":"'Costs expert'!G4*Homepage!$C15","v":0},{"$f":"'Costs expert'!H4*Homepage!$C15","v":0},{"$f":"'Costs expert'!I4*Homepage!$C15","v":0},{"$f":"'Costs expert'!J4*Homepage!$C15","v":0},{"$f":"'Costs expert'!K4*Homepage!$C15","v":0},{"$f":"'Costs expert'!L4*Homepage!$C15","v":0},{"$f":"'Costs expert'!M4*Homepage!$C15","v":0},{"$f":"'Costs expert'!N4*Homepage!$C15","v":0},{"$f":"'Costs expert'!O4*Homepage!$C15","v":0},{"$f":"'Costs expert'!P4*Homepage!$C15","v":0},{"$f":"'Costs expert'!Q4*Homepage!$C15","v":0},{"$f":"'Costs expert'!R4*Homepage!$C15","v":0},{"$f":"'Costs expert'!S4*Homepage!$C15","v":0},{"$f":"'Costs expert'!T4*Homepage!$C15","v":0},{"$f":"'Costs expert'!U4*Homepage!$C15","v":0}]
[{"$f":"Costs!A5","v":"Certification"},{"$f":"'Costs expert'!B5","v":0},{"$f":"'Costs expert'!C5","v":0},{"$f":"'Costs expert'!D5","v":0},{"$f":"'Costs expert'!E5","v":0},{"$f":"'Costs expert'!F5","v":0},{"$f":"'Costs expert'!G5","v":0},{"$f":"'Costs expert'!H5","v":0},{"$f":"'Costs expert'!I5","v":0},{"$f":"'Costs expert'!J5","v":0},{"$f":"'Costs expert'!K5","v":0},{"$f":"'Costs expert'!L5","v":0},{"$f":"'Costs expert'!M5","v":0},{"$f":"'Costs expert'!N5","v":0},{"$f":"'Costs expert'!O5","v":0},{"$f":"'Costs expert'!P5","v":0},{"$f":"'Costs expert'!Q5","v":0},{"$f":"'Costs expert'!R5","v":0},{"$f":"'Costs expert'!S5","v":0},{"$f":"'Costs expert'!T5","v":0},{"$f":"'Costs expert'!U5","v":0}]
[{"$f":"Costs!A6","v":"Website, logo & design "},{"$f":"'Costs expert'!B6","v":0},{"$f":"'Costs expert'!C6","v":0},{"$f":"'Costs expert'!D6","v":0},{"$f":"'Costs expert'!E6","v":0},{"$f":"'Costs expert'!F6","v":0},{"$f":"'Costs expert'!G6","v":0},{"$f":"'Costs expert'!H6","v":0},{"$f":"'Costs expert'!I6","v":0},{"$f":"'Costs expert'!J6","v":0},{"$f":"'Costs expert'!K6","v":0},{"$f":"'Costs expert'!L6","v":0},{"$f":"'Costs expert'!M6","v":0},{"$f":"'Costs expert'!N6","v":0},{"$f":"'Costs expert'!O6","v":0},{"$f":"'Costs expert'!P6","v":0},{"$f":"'Costs expert'!Q6","v":0},{"$f":"'Costs expert'!R6","v":0},{"$f":"'Costs expert'!S6","v":0},{"$f":"'Costs expert'!T6","v":0},{"$f":"'Costs expert'!U6","v":0}]
[{"$f":"Costs!A7","v":"Marketing & sales"},{"$f":"'Costs expert'!B7*'Operating result'!B6","v":0},{"$f":"'Costs expert'!C7*'Operating result'!C6","v":0},{"$f":"'Costs expert'!D7*'Operating result'!D6","v":0},{"$f":"'Costs expert'!E7*'Operating result'!E6","v":0},{"$f":"'Costs expert'!F7*'Operating result'!F6","v":0},{"$f":"'Costs expert'!G7*'Operating result'!G6","v":0},{"$f":"'Costs expert'!H7*'Operating result'!H6","v":0},{"$f":"'Costs expert'!I7*'Operating result'!I6","v":0},{"$f":"'Costs expert'!J7*'Operating result'!J6","v":0},{"$f":"'Costs expert'!K7*'Operating result'!K6","v":0},{"$f":"'Costs expert'!L7*'Operating result'!L6","v":0},{"$f":"'Costs expert'!M7*'Operating result'!M6","v":0},{"$f":"'Costs expert'!N7*'Operating result'!N6","v":0},{"$f":"'Costs expert'!O7*'Operating result'!O6","v":0},{"$f":"'Costs expert'!P7*'Operating result'!P6","v":0},{"$f":"'Costs expert'!Q7*'Operating result'!Q6","v":0},{"$f":"'Costs expert'!R7*'Operating result'!R6","v":0},{"$f":"'Costs expert'!S7*'Operating result'!S6","v":0},{"$f":"'Costs expert'!T7*'Operating result'!T6","v":0},{"$f":"'Costs expert'!U7*'Operating result'!U6","v":0}]
[{"$f":"Costs!A8","v":"Utilities"},{"$f":"'Costs expert'!B8","v":0},{"$f":"'Costs expert'!C8","v":0},{"$f":"'Costs expert'!D8","v":0},{"$f":"'Costs expert'!E8","v":0},{"$f":"'Costs expert'!F8","v":0},{"$f":"'Costs expert'!G8","v":0},{"$f":"'Costs expert'!H8","v":0},{"$f":"'Costs expert'!I8","v":0},{"$f":"'Costs expert'!J8","v":0},{"$f":"'Costs expert'!K8","v":0},{"$f":"'Costs expert'!L8","v":0},{"$f":"'Costs expert'!M8","v":0},{"$f":"'Costs expert'!N8","v":0},{"$f":"'Costs expert'!O8","v":0},{"$f":"'Costs expert'!P8","v":0},{"$f":"'Costs expert'!Q8","v":0},{"$f":"'Costs expert'!R8","v":0},{"$f":"'Costs expert'!S8","v":0},{"$f":"'Costs expert'!T8","v":0},{"$f":"'Costs expert'!U8","v":0}]
[{"$f":"Costs!A9","v":"Advice"},{"$f":"'Costs expert'!B9","v":0},{"$f":"'Costs expert'!C9","v":0},{"$f":"'Costs expert'!D9","v":0},{"$f":"'Costs expert'!E9","v":0},{"$f":"'Costs expert'!F9","v":0},{"$f":"'Costs expert'!G9","v":0},{"$f":"'Costs expert'!H9","v":0},{"$f":"'Costs expert'!I9","v":0},{"$f":"'Costs expert'!J9","v":0},{"$f":"'Costs expert'!K9","v":0},{"$f":"'Costs expert'!L9","v":0},{"$f":"'Costs expert'!M9","v":0},{"$f":"'Costs expert'!N9","v":0},{"$f":"'Costs expert'!O9","v":0},{"$f":"'Costs expert'!P9","v":0},{"$f":"'Costs expert'!Q9","v":0},{"$f":"'Costs expert'!R9","v":0},{"$f":"'Costs expert'!S9","v":0},{"$f":"'Costs expert'!T9","v":0},{"$f":"'Costs expert'!U9","v":0}]
[{"$f":"Costs!A10","v":"Start-up cost"},{"$f":"'Costs expert'!B10","v":0},0,0,0,0,0,0,0,0,0,0,0,0,0,0,0,0,0,0,0]
[{"$f":"Costs!A11","v":"Maintenance"},{"$f":"'Costs expert'!B11*'Investment Budget'!I17","v":0},{"$f":"'Costs expert'!C11*'Investment Budget'!J17","v":0},{"$f":"'Costs expert'!D11*'Investment Budget'!K17","v":0},{"$f":"'Costs expert'!E11*'Investment Budget'!L17","v":0},{"$f":"'Costs expert'!F11*'Investment Budget'!M17","v":0},{"$f":"'Costs expert'!G11*'Investment Budget'!N17","v":0},{"$f":"'Costs expert'!H11*'Investment Budget'!O17","v":0},{"$f":"'Costs expert'!I11*'Investment Budget'!P17","v":0},{"$f":"'Costs expert'!J11*'Investment Budget'!Q17","v":0},{"$f":"'Costs expert'!K11*'Investment Budget'!R17","v":0},{"$f":"'Costs expert'!L11*'Investment Budget'!S17","v":0},{"$f":"'Costs expert'!M11*'Investment Budget'!T17","v":0},{"$f":"'Costs expert'!N11*'Investment Budget'!U17","v":0},{"$f":"'Costs expert'!O11*'Investment Budget'!V17","v":0},{"$f":"'Costs expert'!P11*'Investment Budget'!W17","v":0},{"$f":"'Costs expert'!Q11*'Investment Budget'!X17","v":0},{"$f":"'Costs expert'!R11*'Investment Budget'!Y17","v":0},{"$f":"'Costs expert'!S11*'Investment Budget'!Z17","v":0},{"$f":"'Costs expert'!T11*'Investment Budget'!AA17","v":0},{"$f":"'Costs expert'!U11*'Investment Budget'!AB17","v":0}]
[{"$f":"Costs!A12","v":"Insurances"},{"$f":"'Costs expert'!B12*Homepage!$C15","v":0},{"$f":"'Costs expert'!C12*Homepage!$C15","v":0},{"$f":"'Costs expert'!D12*Homepage!$C15","v":0},{"$f":"'Costs expert'!E12*Homepage!$C15","v":0},{"$f":"'Costs expert'!F12*Homepage!$C15","v":0},{"$f":"'Costs expert'!G12*Homepage!$C15","v":0},{"$f":"'Costs expert'!H12*Homepage!$C15","v":0},{"$f":"'Costs expert'!I12*Homepage!$C15","v":0},{"$f":"'Costs expert'!J12*Homepage!$C15","v":0},{"$f":"'Costs expert'!K12*Homepage!$C15","v":0},{"$f":"'Costs expert'!L12*Homepage!$C15","v":0},{"$f":"'Costs expert'!M12*Homepage!$C15","v":0},{"$f":"'Costs expert'!N12*Homepage!$C15","v":0},{"$f":"'Costs expert'!O12*Homepage!$C15","v":0},{"$f":"'Costs expert'!P12*Homepage!$C15","v":0},{"$f":"'Costs expert'!Q12*Homepage!$C15","v":0},{"$f":"'Costs expert'!R12*Homepage!$C15","v":0},{"$f":"'Costs expert'!S12*Homepage!$C15","v":0},{"$f":"'Costs expert'!T12*Homepage!$C15","v":0},{"$f":"'Costs expert'!U12*Homepage!$C15","v":0}]
["Investment private",{"$f":"'Financing Budget'!L71","v":0},{"$f":"'Financing Budget'!M71","v":0},{"$f":"'Financing Budget'!N71","v":0},{"$f":"'Financing Budget'!O71","v":0},{"$f":"'Financing Budget'!P71","v":0},{"$f":"'Financing Budget'!Q71","v":0},{"$f":"'Financing Budget'!R71","v":0},{"$f":"'Financing Budget'!S71","v":0},{"$f":"'Financing Budget'!T71","v":0},{"$f":"'Financing Budget'!U71","v":0},{"$f":"'Financing Budget'!V71","v":0},{"$f":"'Financing Budget'!W71","v":0},{"$f":"'Financing Budget'!X71","v":0},{"$f":"'Financing Budget'!Y71","v":0},{"$f":"'Financing Budget'!Z71","v":0},{"$f":"'Financing Budget'!AA71","v":0},{"$f":"'Financing Budget'!AB71","v":0},{"$f":"'Financing Budget'!AC71","v":0},{"$f":"'Financing Budget'!AD71","v":0},{"$f":"'Financing Budget'!AE71","v":0}]
["Interest (including calculated interest)",{"$f":"'Financing Budget'!L53+'Financing Budget'!L35","v":0},{"$f":"'Financing Budget'!M53+'Financing Budget'!M35","v":0},{"$f":"'Financing Budget'!N53+'Financing Budget'!N35","v":0},{"$f":"'Financing Budget'!O53+'Financing Budget'!O35","v":0},{"$f":"'Financing Budget'!P53+'Financing Budget'!P35","v":0},{"$f":"'Financing Budget'!Q53+'Financing Budget'!Q35","v":0},{"$f":"'Financing Budget'!R53+'Financing Budget'!R35","v":0},{"$f":"'Financing Budget'!S53+'Financing Budget'!S35","v":0},{"$f":"'Financing Budget'!T53+'Financing Budget'!T35","v":0},{"$f":"'Financing Budget'!U53+'Financing Budget'!U35","v":0},{"$f":"'Financing Budget'!V53+'Financing Budget'!V35","v":0},{"$f":"'Financing Budget'!W53+'Financing Budget'!W35","v":0},{"$f":"'Financing Budget'!X53+'Financing Budget'!X35","v":0},{"$f":"'Financing Budget'!Y53+'Financing Budget'!Y35","v":0},{"$f":"'Financing Budget'!Z53+'Financing Budget'!Z35","v":0},{"$f":"'Financing Budget'!AA53+'Financing Budget'!AA35","v":0},{"$f":"'Financing Budget'!AB53+'Financing Budget'!AB35","v":0},{"$f":"'Financing Budget'!AC53+'Financing Budget'!AC35","v":0},{"$f":"'Financing Budget'!AD53+'Financing Budget'!AD35","v":0},{"$f":"'Financing Budget'!AE53+'Financing Budget'!AE35","v":0}]
[{"$f":"'Investment Budget'!H17","v":"Total annual depreciations"},{"$f":"'Investment Budget'!I17","v":0},{"$f":"'Investment Budget'!J17","v":0},{"$f":"'Investment Budget'!K17","v":0},{"$f":"'Investment Budget'!L17","v":0},{"$f":"'Investment Budget'!M17","v":0},{"$f":"'Investment Budget'!N17","v":0},{"$f":"'Investment Budget'!O17","v":0},{"$f":"'Investment Budget'!P17","v":0},{"$f":"'Investment Budget'!Q17","v":0},{"$f":"'Investment Budget'!R17","v":0},{"$f":"'Investment Budget'!S17","v":0},{"$f":"'Investment Budget'!T17","v":0},{"$f":"'Investment Budget'!U17","v":0},{"$f":"'Investment Budget'!V17","v":0},{"$f":"'Investment Budget'!W17","v":0},{"$f":"'Investment Budget'!X17","v":0},{"$f":"'Investment Budget'!Y17","v":0},{"$f":"'Investment Budget'!Z17","v":0},{"$f":"'Investment Budget'!AA17","v":0},{"$f":"'Investment Budget'!AB17","v":0}]
[{"$f":"'Costs expert'!A13","v":"Other costs"},{"$f":"'Costs expert'!B13","v":0},{"$f":"'Costs expert'!C13","v":0},{"$f":"'Costs expert'!D13","v":0},{"$f":"'Costs expert'!E13","v":0},{"$f":"'Costs expert'!F13","v":0},{"$f":"'Costs expert'!G13","v":0},{"$f":"'Costs expert'!H13","v":0},{"$f":"'Costs expert'!I13","v":0},{"$f":"'Costs expert'!J13","v":0},{"$f":"'Costs expert'!K13","v":0},{"$f":"'Costs expert'!$L13","v":0},{"$f":"'Costs expert'!$L13","v":0},{"$f":"'Costs expert'!$L13","v":0},{"$f":"'Costs expert'!$L13","v":0},{"$f":"'Costs expert'!$L13","v":0},{"$f":"'Costs expert'!$M13","v":0},{"$f":"'Costs expert'!$M13","v":0},{"$f":"'Costs expert'!$M13","v":0},{"$f":"'Costs expert'!$M13","v":0},{"$f":"'Costs expert'!$M13","v":0}]
["Sub-total",{"$f":"SUM(B23:B35)","v":0},0,0,0,0,0,0,0,0,0,0,0,0,0,0,0,0,0,0,0]
[{"$f":"'Costs expert'!A14","v":"Unforseen costs"},{"$f":"'Costs expert'!B14*B36","v":0},{"$f":"'Costs expert'!C14*C36","v":0},{"$f":"'Costs expert'!D14*D36","v":0},{"$f":"'Costs expert'!E14*E36","v":0},{"$f":"'Costs expert'!F14*F36","v":0},{"$f":"'Costs expert'!G14*G36","v":0},{"$f":"'Costs expert'!H14*H36","v":0},{"$f":"'Costs expert'!I14*I36","v":0},{"$f":"'Costs expert'!J14*J36","v":0},{"$f":"'Costs expert'!K14*K36","v":0},{"$f":"'Costs expert'!$L$14*L36","v":0},{"$f":"'Costs expert'!$L$14*M36","v":0},{"$f":"'Costs expert'!$L$14*N36","v":0},{"$f":"'Costs expert'!$L$14*O36","v":0},{"$f":"'Costs expert'!L14*P36","v":0},{"$f":"'Costs expert'!$M$14*Q36","v":0},{"$f":"'Costs expert'!$M$14*R36","v":0},{"$f":"'Costs expert'!$M$14*S36","v":0},{"$f":"'Costs expert'!$M$14*T36","v":0},{"$f":"'Costs expert'!$M$14*U36","v":0}]
["Total fixed costs",{"$f":"SUM(B23:B35)+B37","v":0},0,0,0,0,0,0,0,0,0,0,0,0,0,0,0,0,0,0,0]

{"sheet":"Investment Budget","index":15,"n_rows":21,"n_cols":28,"rows_kept":21,"cut":false,"hidden":false,"merged":[[0,8,0,12],[37,8,37,10],[16,7,17,7],[3,7,15,7]]}
[null,null,null,null,null,null,null,null,"Calculation depreciation initial investment"]
[null,null,null,null,null,null,null,null,"0-1","1-2","2-3","3-4","4-5","5-6","6-7","7-8","8-9","9-10","10-11","11-12","12-13","13-14","14-15","15-16","16-17","17-18","18-19","19-20"]
["Initial investments","Purchase","Purchase year","Residual value ","Useful life in years","Depreciation per year",null,"Year",1,2,3,4,5,6,7,8,9,10,11,12,13,14,15,16,17,18,19,20]
["Land",{"$f":"' Investment & Financing'!$C4","v":0},{"$f":"' Investment & Financing'!$D4","v":0},{"$f":"' Investment & Financing'!$E4","v":1},{"$f":"' Investment & Financing'!$F4","v":0},{"$f":"(B4-(B4*D4))/E4","v":{"$error":"#DIV/0!"}},null,"Annual depreciations",{"$f":"IF(AND(I$3-$C4>0,I$3-$C4<=$E4),$F4,0)","v":0},{"$f":"IF(AND(J$3-$C4>0,J$3-$C4<=$E4),$F4,0)","v":0},{"$f":"IF(AND(K$3-$C4>0,K$3-$C4<=$E4),$F4,0)","v":0},0,0,0,0,0,0,0,0,0,0,0,0,0,0,0,0,0]
["Buildings",{"$f":"' Investment & Financing'!$C5","v":0},{"$f":"' Investment & Financing'!$D5","v":0},{"$f":"' Investment & Financing'!$E5","v":1},{"$f":"' Investment & Financing'!$F5","v":0},{"$f":"(B5-(B5*D5))/E5","v":{"$error":"#DIV/0!"}},null,null,{"$f":"IF(AND(I$3-$C5>0,I$3-$C5<=$E5),$F5,0)","v":0},{"$f":"IF(AND(J$3-$C5>0,J$3-$C5<=$E5),$F5,0)","v":0},{"$f":"IF(AND(K$3-$C5>0,K$3-$C5<=$E5),$F5,0)","v":0},0,0,0,0,0,0,0,0,0,0,0,0,0,0,0,0,0]
["Infrastructure",{"$f":"' Investment & Financing'!$C6","v":0},{"$f":"' Investment & Financing'!$D6","v":0},{"$f":"' Investment & Financing'!$E6","v":1},{"$f":"' Investment & Financing'!$F6","v":0},{"$error":"#DIV/0!"},null,null,{"$f":"IF(AND(I$3-$C6>0,I$3-$C6<=$E6),$F6,0)","v":0},0,0,0,0,0,0,0,0,0,0,0,0,0,0,0,0,0,0,0]
["Machines ",{"$f":"' Investment & Financing'!$C7","v":0},{"$f":"' Investment & Financing'!$D7","v":0},{"$f":"' Investment & Financing'!$E7","v":1},{"$f":"' Investment & Financing'!$F7","v":0},{"$error":"#DIV/0!"},null,null,0,0,0,0,0,0,0,0,0,0,0,0,0,0,0,0,0,0,0,0]
["Material",{"$f":"' Investment & Financing'!$C8","v":0},{"$f":"' Investment & Financing'!$D8","v":0},{"$f":"' Investment & Financing'!$E8","v":1},{"$f":"' Investment & Financing'!$F8","v":0},{"$error":"#DIV/0!"},null,null,0,0,0,0,0,0,0,0,0,0,0,0,0,0,0,0,0,0,0,0]
["Plants Cropping",{"$f":"' Investment & Financing'!$C9","v":0},{"$f":"' Investment & Financing'!$D9","v":0},{"$f":"' Investment & Financing'!$E9","v":1},{"$f":"' Investment & Financing'!$F9","v":0},{"$error":"#DIV/0!"},null,null,0,0,0,0,0,0,0,0,0,0,0,0,0,0,0,0,0,0,0,0]
["Plants Windbreaks",{"$f":"' Investment & Financing'!$C10","v":0},{"$f":"' Investment & Financing'!$D10","v":0},{"$f":"' Investment & Financing'!$E10","v":1},{"$f":"' Investment & Financing'!$F10","v":0},{"$error":"#DIV/0!"},null,null,0,0,0,0,0,0,0,0,0,0,0,0,0,0,0,0,0,0,0,0]
["Farming equipment",{"$f":"' Investment & Financing'!$C11","v":0},{"$f":"' Investment & Financing'!$D11","v":0},{"$f":"' Investment & Financing'!$E11","v":1},{"$f":"' Investment & Financing'!$F11","v":0},{"$error":"#DIV/0!"},null,null,0,0,0,0,0,0,0,0,0,0,0,0,0,0,0,0,0,0,0,0]
["Design",{"$f":"' Investment & Financing'!$C12","v":0},{"$f":"' Investment & Financing'!$D12","v":0},{"$f":"' Investment & Financing'!$E12","v":1},{"$f":"' Investment & Financing'!$F12","v":0},{"$error":"#DIV/0!"},null,null,0,0,0,0,0,0,0,0,0,0,0,0,0,0,0,0,0,0,0,0]
["Earthworks",{"$f":"' Investment & Financing'!$C13","v":0},{"$f":"' Investment & Financing'!$D13","v":0},{"$f":"' Investment & Financing'!$E13","v":1},{"$f":"' Investment & Financing'!$F13","v":0},{"$error":"#DIV/0!"},null,null,0,0,0,0,0,0,0,0,0,0,0,0,0,0,0,0,0,0,0,0]
["Plants high longevity",{"$f":"' Investment & Financing'!$C14","v":0},{"$f":"' Investment & Financing'!$D14","v":0},{"$f":"' Investment & Financing'!$E14","v":1},{"$f":"' Investment & Financing'!$F14","v":0},{"$error":"#DIV/0!"},null,null,0,0,0,0,0,0,0,0,0,0,0,0,0,0,0,0,0,0,0,0]
["Marketing",{"$f":"' Investment & Financing'!$C15","v":0},{"$f":"' Investment & Financing'!$D15","v":0},{"$f":"' Investment & Financing'!$E15","v":1},{"$f":"' Investment & Financing'!$F15","v":0},{"$error":"#DIV/0!"},null,null,0,0,0,0,0,0,0,0,0,0,0,0,0,0,0,0,0,0,0,0]
["Other",{"$f":"' Investment & Financing'!$C16","v":0},{"$f":"' Investment & Financing'!$D16","v":0},{"$f":"' Investment & Financing'!$E16","v":1},{"$f":"' Investment & Financing'!$F16","v":0},{"$error":"#DIV/0!"},null,null,0,0,0,0,0,0,0,0,0,0,0,0,0,0,0,0,0,0,0,0]
[null,null,null,null,null,null,null,"Total annual depreciations",{"$f":"SUM(I4:I16)","v":0},{"$f":"SUM(J4:J16)","v":0},{"$f":"SUM(K4:K16)","v":0},0,0,0,0,0,0,0,0,0,0,0,0,0,0,0,0,0]
[]
[]
[]
[null,null,null," "]

{"sheet":"Profit calculation","index":16,"n_rows":53,"n_cols":21,"rows_kept":53,"cut":false,"hidden":false,"merged":[[0,5,0,12]]}
[null,null,null,null,null,"Profit calculation"]
[]
["Variable income",1,2,3,4,5,6,7,8,9,10,11,12,13,14,15,16,17,18,19,20]
["Plant production sales",{"$f":"'Yield & Sales calculation'!DQ10","v":0},{"$f":"'Yield & Sales calculation'!DR10","v":0},{"$f":"'Yield & Sales calculation'!DS10","v":0},{"$f":"'Yield & Sales calculation'!DT10","v":0},{"$f":"'Yield & Sales calculation'!DU10","v":0},{"$f":"'Yield & Sales calculation'!DV10","v":0},{"$f":"'Yield & Sales calculation'!DW10","v":0},{"$f":"'Yield & Sales calculation'!DX10","v":0},{"$f":"'Yield & Sales calculation'!DY10","v":0},{"$f":"'Yield & Sales calculation'!DZ10","v":0},{"$f":"'Yield & Sales calculation'!$EA10","v":0},{"$f":"'Yield & Sales calculation'!$EA10","v":0},{"$f":"'Yield & Sales calculation'!$EA10","v":0},{"$f":"'Yield & Sales calculation'!$EA10","v":0},{"$f":"'Yield & Sales calculation'!EA10","v":0},{"$f":"'Yield & Sales calculation'!$EB10","v":0},{"$f":"'Yield & Sales calculation'!$EB10","v":0},{"$f":"'Yield & Sales calculation'!$EB10","v":0},{"$f":"'Yield & Sales calculation'!$EB10","v":0},{"$f":"'Yield & Sales calculation'!$EB10","v":0}]
["Wood (fuel, timber, etc) sales",{"$f":"'Other income expert'!B18*Homepage!$C15","v":0},{"$f":"'Other income expert'!C18*Homepage!$C15","v":0},{"$f":"'Other income expert'!D18*Homepage!$C15","v":0},{"$f":"'Other income expert'!E18*Homepage!$C15","v":0},{"$f":"'Other income expert'!F18*Homepage!$C15","v":0},{"$f":"'Other income expert'!G18*Homepage!$C15","v":0},{"$f":"'Other income expert'!H18*Homepage!$C15","v":0},{"$f":"'Other income expert'!I18*Homepage!$C15","v":0},{"$f":"'Other income expert'!J18*Homepage!$C15","v":0},{"$f":"'Other income expert'!K18*Homepage!$C15","v":0},{"$f":"'Other income expert'!$L18*Homepage!$C15","v":0},{"$f":"'Other income expert'!$L18*Homepage!$C15","v":0},{"$f":"'Other income expert'!$L18*Homepage!$C15","v":0},{"$f":"'Other income expert'!$L18*Homepage!$C15","v":0},{"$f":"'Other income expert'!$L18*Homepage!$C15","v":0},{"$f":"'Other income expert'!$M18*Homepage!$C15","v":0},{"$f":"'Other income expert'!$M18*Homepage!$C15","v":0},{"$f":"'Other income expert'!$M18*Homepage!$C15","v":0},{"$f":"'Other income expert'!$M18*Homepage!$C15","v":0},{"$f":"'Other income expert'!$M18*Homepage!$C15","v":0}]
["Other variable sales",{"$f":"'Other income expert'!$B19*Homepage!$C$15","v":0},{"$f":"'Other income expert'!$B19*Homepage!$C$15","v":0},{"$f":"'Other income expert'!$B19*Homepage!$C$15","v":0},{"$f":"'Other income expert'!$B19*Homepage!$C$15","v":0},{"$f":"'Other income expert'!$B19*Homepage!$C$15","v":0},{"$f":"'Other income expert'!$B19*Homepage!$C$15","v":0},{"$f":"'Other income expert'!$B19*Homepage!$C$15","v":0},{"$f":"'Other income expert'!$B19*Homepage!$C$15","v":0},{"$f":"'Other income expert'!$B19*Homepage!$C$15","v":0},{"$f":"'Other income expert'!$B19*Homepage!$C$15","v":0},{"$f":"'Other income expert'!$B19*Homepage!$C$15","v":0},{"$f":"'Other income expert'!$B19*Homepage!$C$15","v":0},{"$f":"'Other income expert'!$B19*Homepage!$C$15","v":0},{"$f":"'Other income expert'!$B19*Homepage!$C$15","v":0},{"$f":"'Other income expert'!$B19*Homepage!$C$15","v":0},{"$f":"'Other income expert'!$B19*Homepage!$C$15","v":0},{"$f":"'Other income expert'!$B19*Homepage!$C$15","v":0},{"$f":"'Other income expert'!$B19*Homepage!$C$15","v":0},{"$f":"'Other income expert'!$B19*Homepage!$C$15","v":0},{"$f":"'Other income expert'!$B19*Homepage!$C$15","v":0}]
["Total variable income",{"$f":"SUM(B4:B6)","v":0},{"$f":"SUM(C4:C6)","v":0},0,0,0,0,0,0,0,0,0,0,0,0,0,0,0,0,0,{"$f":"SUM(U4:U6)","v":0}]
[]
["Variable costs",1,2,3,4,5,6,7,8,9,10,11,12,13,14,15,16,17,18,19,20]
["Packaging",{"$f":"'Costs expert'!B17*'Yield & Sales calculation'!C$199","v":0},{"$f":"'Costs expert'!C17*'Yield & Sales calculation'!D$199","v":0},{"$f":"'Costs expert'!D17*'Yield & Sales calculation'!E$199","v":0},{"$f":"'Costs expert'!E17*'Yield & Sales calculation'!F$199","v":0},{"$f":"'Costs expert'!F17*'Yield & Sales calculation'!G$199","v":0},{"$f":"'Costs expert'!G17*'Yield & Sales calculation'!H$199","v":0},{"$f":"'Costs expert'!H17*'Yield & Sales calculation'!I$199","v":0},{"$f":"'Costs expert'!I17*'Yield & Sales calculation'!J$199","v":0},{"$f":"'Costs expert'!J17*'Yield & Sales calculation'!K$199","v":0},{"$f":"'Costs expert'!K17*'Yield & Sales calculation'!L$199","v":0},{"$f":"'Costs expert'!L17*'Yield & Sales calculation'!$M$199","v":0},{"$f":"'Costs expert'!M17*'Yield & Sales calculation'!$M$199","v":0},{"$f":"'Costs expert'!N17*'Yield & Sales calculation'!$M$199","v":0},{"$f":"'Costs expert'!O17*'Yield & Sales calculation'!$M$199","v":0},{"$f":"'Costs expert'!P17*'Yield & Sales calculation'!M$199","v":0},{"$f":"'Costs expert'!Q17*'Yield & Sales calculation'!$N$199","v":0},{"$f":"'Costs expert'!R17*'Yield & Sales calculation'!$N$199","v":0},{"$f":"'Costs expert'!S17*'Yield & Sales calculation'!$N$199","v":0},{"$f":"'Costs expert'!T17*'Yield & Sales calculation'!$N$199","v":0},{"$f":"'Costs expert'!U17*'Yield & Sales calculation'!$N$199","v":0}]
["Transport ",{"$f":"'Costs expert'!B18*'Yield & Sales calculation'!C$199","v":0},{"$f":"'Costs expert'!C18*'Yield & Sales calculation'!D$199","v":0},{"$f":"'Costs expert'!D18*'Yield & Sales calculation'!E$199","v":0},{"$f":"'Costs expert'!E18*'Yield & Sales calculation'!F$199","v":0},{"$f":"'Costs expert'!F18*'Yield & Sales calculation'!G$199","v":0},{"$f":"'Costs expert'!G18*'Yield & Sales calculation'!H$199","v":0},{"$f":"'Costs expert'!H18*'Yield & Sales calculation'!I$199","v":0},{"$f":"'Costs expert'!I18*'Yield & Sales calculation'!J$199","v":0},{"$f":"'Costs expert'!J18*'Yield & Sales calculation'!K$199","v":0},{"$f":"'Costs expert'!K18*'Yield & Sales calculation'!L$199","v":0},{"$f":"'Costs expert'!L18*'Yield & Sales calculation'!$M$199","v":0},{"$f":"'Costs expert'!M18*'Yield & Sales calculation'!$M$199","v":0},{"$f":"'Costs expert'!N18*'Yield & Sales calculation'!$M$199","v":0},{"$f":"'Costs expert'!O18*'Yield & Sales calculation'!$M$199","v":0},{"$f":"'Costs expert'!P18*'Yield & Sales calculation'!M$199","v":0},{"$f":"'Costs expert'!Q18*'Yield & Sales calculation'!$N$199","v":0},{"$f":"'Costs expert'!R18*'Yield & Sales calculation'!$N$199","v":0},{"$f":"'Costs expert'!S18*'Yield & Sales calculation'!$N$199","v":0},{"$f":"'Costs expert'!T18*'Yield & Sales calculation'!$N$199","v":0},{"$f":"'Costs expert'!U18*'Yield & Sales calculation'!$N$199","v":0}]
["Storage",{"$f":"'Costs expert'!B19*'Yield & Sales calculation'!C$199","v":0},{"$f":"'Costs expert'!C19*'Yield & Sales calculation'!D$199","v":0},{"$f":"'Costs expert'!D19*'Yield & Sales calculation'!E$199","v":0},{"$f":"'Costs expert'!E19*'Yield & Sales calculation'!F$199","v":0},{"$f":"'Costs expert'!F19*'Yield & Sales calculation'!G$199","v":0},{"$f":"'Costs expert'!G19*'Yield & Sales calculation'!H$199","v":0},{"$f":"'Costs expert'!H19*'Yield & Sales calculation'!I$199","v":0},{"$f":"'Costs expert'!I19*'Yield & Sales calculation'!J$199","v":0},{"$f":"'Costs expert'!J19*'Yield & Sales calculation'!K$199","v":0},{"$f":"'Costs expert'!K19*'Yield & Sales calculation'!L$199","v":0},{"$f":"'Costs expert'!L19*'Yield & Sales calculation'!$M$199","v":0},{"$f":"'Costs expert'!M19*'Yield & Sales calculation'!$M$199","v":0},{"$f":"'Costs expert'!N19*'Yield & Sales calculation'!$M$199","v":0},{"$f":"'Costs expert'!O19*'Yield & Sales calculation'!$M$199","v":0},{"$f":"'Costs expert'!P19*'Yield & Sales calculation'!M$199","v":0},{"$f":"'Costs expert'!Q19*'Yield & Sales calculation'!$N$199","v":0},{"$f":"'Costs expert'!R19*'Yield & Sales calculation'!$N$199","v":0},{"$f":"'Costs expert'!S19*'Yield & Sales calculation'!$N$199","v":0},{"$f":"'Costs expert'!T19*'Yield & Sales calculation'!$N$199","v":0},{"$f":"'Costs expert'!U19*'Yield & Sales calculation'!$N$199","v":0}]
["Other variable costs",{"$f":"'Costs expert'!B20*'Yield & Sales calculation'!C$199","v":0},{"$f":"'Costs expert'!C20*'Yield & Sales calculation'!D$199","v":0},{"$f":"'Costs expert'!D20*'Yield & Sales calculation'!E$199","v":0},{"$f":"'Costs expert'!E20*'Yield & Sales calculation'!F$199","v":0},{"$f":"'Costs expert'!F20*'Yield & Sales calculation'!G$199","v":0},{"$f":"'Costs expert'!G20*'Yield & Sales calculation'!H$199","v":0},{"$f":"'Costs expert'!H20*'Yield & Sales calculation'!I$199","v":0},{"$f":"'Costs expert'!I20*'Yield & Sales calculation'!J$199","v":0},{"$f":"'Costs expert'!J20*'Yield & Sales calculation'!K$199","v":0},{"$f":"'Costs expert'!K20*'Yield & Sales calculation'!L$199","v":0},{"$f":"'Costs expert'!L20*'Yield & Sales calculation'!$M$199","v":0},{"$f":"'Costs expert'!M20*'Yield & Sales calculation'!$M$199","v":0},{"$f":"'Costs expert'!N20*'Yield & Sales calculation'!$M$199","v":0},{"$f":"'Costs expert'!O20*'Yield & Sales calculation'!$M$199","v":0},{"$f":"'Costs expert'!P20*'Yield & Sales calculation'!M$199","v":0},{"$f":"'Costs expert'!Q20*'Yield & Sales calculation'!$N$199","v":0},{"$f":"'Costs expert'!R20*'Yield & Sales calculation'!$N$199","v":0},{"$f":"'Costs expert'!S20*'Yield & Sales calculation'!$N$199","v":0},{"$f":"'Costs expert'!T20*'Yield & Sales calculation'!$N$199","v":0},{"$f":"'Costs expert'!U20*'Yield & Sales calculation'!$N$199","v":0}]
["Total variable costs (excluding labour)",{"$f":"SUM(B10:B13)","v":0},0,0,0,0,0,0,0,0,0,0,0,0,0,0,0,0,0,0,0]
[]
["External labour costs",1,2,3,4,5,6,7,8,9,10,11,12,13,14,15,16,17,18,19,20]
["Start-up (planting, etc)",{"$f":"'Costs expert'!B25*'Costs expert'!B26*Homepage!$C$15","v":0},{"$f":"'Costs expert'!C25*'Costs expert'!C26*Homepage!$C15","v":0},{"$f":"'Costs expert'!D25*'Costs expert'!D26*Homepage!$C15","v":0},{"$f":"'Costs expert'!E25*'Costs expert'!E26*Homepage!$C15","v":0},{"$f":"'Costs expert'!F25*'Costs expert'!F26*Homepage!$C15","v":0},{"$f":"'Costs expert'!G25*'Costs expert'!G26*Homepage!$C15","v":0},{"$f":"'Costs expert'!H25*'Costs expert'!H26*Homepage!$C15","v":0},{"$f":"'Costs expert'!I25*'Costs expert'!I26*Homepage!$C15","v":0},{"$f":"'Costs expert'!J25*'Costs expert'!J26*Homepage!$C15","v":0},{"$f":"'Costs expert'!K25*'Costs expert'!K26*Homepage!$C15","v":0},{"$f":"'Costs expert'!L25*'Costs expert'!L26*Homepage!$C15","v":0},{"$f":"'Costs expert'!M25*'Costs expert'!M26*Homepage!$C15","v":0},{"$f":"'Costs expert'!N25*'Costs expert'!N26*Homepage!$C15","v":0},{"$f":"'Costs expert'!O25*'Costs expert'!O26*Homepage!$C15","v":0},{"$f":"'Costs expert'!P25*'Costs expert'!P26*Homepage!$C15","v":0},{"$f":"'Costs expert'!Q25*'Costs expert'!Q26*Homepage!$C15","v":0},{"$f":"'Costs expert'!R25*'Costs expert'!R26*Homepage!$C15","v":0},{"$f":"'Costs expert'!S25*'Costs expert'!S26*Homepage!$C15","v":0},{"$f":"'Costs expert'!T25*'Costs expert'!T26*Homepage!$C15","v":0},{"$f":"'Costs expert'!U25*'Costs expert'!U26*Homepage!$C15","v":0}]
["Observation & inspection",{"$f":"'Costs expert'!B29*'Costs expert'!B30*Homepage!$C15","v":0},{"$f":"'Costs expert'!C29*'Costs expert'!C30*Homepage!$C15","v":0},{"$f":"'Costs expert'!D29*'Costs expert'!D30*Homepage!$C15","v":0},{"$f":"'Costs expert'!E29*'Costs expert'!E30*Homepage!$C15","v":0},{"$f":"'Costs expert'!F29*'Costs expert'!F30*Homepage!$C15","v":0},{"$f":"'Costs expert'!G29*'Costs expert'!G30*Homepage!$C15","v":0},{"$f":"'Costs expert'!H29*'Costs expert'!H30*Homepage!$C15","v":0},{"$f":"'Costs expert'!I29*'Costs expert'!I30*Homepage!$C15","v":0},{"$f":"'Costs expert'!J29*'Costs expert'!J30*Homepage!$C15","v":0},{"$f":"'Costs expert'!K29*'Costs expert'!K30*Homepage!$C15","v":0},{"$f":"'Costs expert'!$L29*'Costs expert'!$L30*Homepage!$C15","v":0},{"$f":"'Costs expert'!$L29*'Costs expert'!$L30*Homepage!$C15","v":0},{"$f":"'Costs expert'!$L29*'Costs expert'!$L30*Homepage!$C15","v":0},{"$f":"'Costs expert'!$L29*'Costs expert'!$L30*Homepage!$C15","v":0},{"$f":"'Costs expert'!$L29*'Costs expert'!$L30*Homepage!$C15","v":0},{"$f":"'Costs expert'!$M29*'Costs expert'!$M30*Homepage!$C15","v":0},{"$f":"'Costs expert'!$M29*'Costs expert'!$M30*Homepage!$C15","v":0},{"$f":"'Costs expert'!$M29*'Costs expert'!$M30*Homepage!$C15","v":0},{"$f":"'Costs expert'!$M29*'Costs expert'!$M30*Homepage!$C15","v":0},{"$f":"'Costs expert'!$M29*'Costs expert'!$M30*Homepage!$C15","v":0}]
["External harvest labour",{"$f":"'Costs expert'!B61*'Costs expert'!B63","v":0},{"$f":"'Costs expert'!C61*'Costs expert'!C63","v":0},{"$f":"'Costs expert'!D61*'Costs expert'!D63","v":0},{"$f":"'Costs expert'!E61*'Costs expert'!E63","v":0},{"$f":"'Costs expert'!F61*'Costs expert'!F63","v":0},{"$f":"'Costs expert'!G61*'Costs expert'!G63","v":0},{"$f":"'Costs expert'!H61*'Costs expert'!H63","v":0},{"$f":"'Costs expert'!I61*'Costs expert'!I63","v":0},{"$f":"'Costs expert'!J61*'Costs expert'!J63","v":0},{"$f":"'Costs expert'!K61*'Costs expert'!K63","v":0},{"$f":"'Costs expert'!L61*'Costs expert'!L63","v":0},{"$f":"'Costs expert'!M61*'Costs expert'!M63","v":0},{"$f":"'Costs expert'!N61*'Costs expert'!N63","v":0},{"$f":"'Costs expert'!O61*'Costs expert'!O63","v":0},{"$f":"'Costs expert'!P61*'Costs expert'!P63","v":0},{"$f":"'Costs expert'!Q61*'Costs expert'!Q63","v":0},{"$f":"'Costs expert'!R61*'Costs expert'!R63","v":0},{"$f":"'Costs expert'!S61*'Costs expert'!S63","v":0},{"$f":"'Costs expert'!T61*'Costs expert'!T63","v":0},{"$f":"'Costs expert'!U61*'Costs expert'!U63","v":0}]
["(green) Maintenance",{"$f":"'Costs expert'!B33*'Costs expert'!B34*Homepage!$C15","v":0},{"$f":"'Costs expert'!C33*'Costs expert'!C34*Homepage!$C15","v":0},{"$f":"'Costs expert'!D33*'Costs expert'!D34*Homepage!$C15","v":0},{"$f":"'Costs expert'!E33*'Costs expert'!E34*Homepage!$C15","v":0},{"$f":"'Costs expert'!F33*'Costs expert'!F34*Homepage!$C15","v":0},{"$f":"'Costs expert'!G33*'Costs expert'!G34*Homepage!$C15","v":0},{"$f":"'Costs expert'!H33*'Costs expert'!H34*Homepage!$C15","v":0},{"$f":"'Costs expert'!I33*'Costs expert'!I34*Homepage!$C15","v":0},{"$f":"'Costs expert'!J33*'Costs expert'!J34*Homepage!$C15","v":0},{"$f":"'Costs expert'!K33*'Costs expert'!K34*Homepage!$C15","v":0},{"$f":"'Costs expert'!$L33*'Costs expert'!$L34*Homepage!$C15","v":0},{"$f":"'Costs expert'!$L33*'Costs expert'!$L34*Homepage!$C15","v":0},{"$f":"'Costs expert'!$L33*'Costs expert'!$L34*Homepage!$C15","v":0},{"$f":"'Costs expert'!$L33*'Costs expert'!$L34*Homepage!$C15","v":0},{"$f":"'Costs expert'!$L33*'Costs expert'!$L34*Homepage!$C15","v":0},{"$f":"'Costs expert'!$M33*'Costs expert'!$M34*Homepage!$C15","v":0},{"$f":"'Costs expert'!$M33*'Costs expert'!$M34*Homepage!$C15","v":0},{"$f":"'Costs expert'!$M33*'Costs expert'!$M34*Homepage!$C15","v":0},{"$f":"'Costs expert'!$M33*'Costs expert'!$M34*Homepage!$C15","v":0},{"$f":"'Costs expert'!$M33*'Costs expert'!$M34*Homepage!$C15","v":0}]
["Organisation & logistics ",{"$f":"'Costs expert'!B37*'Costs expert'!B38","v":0},{"$f":"'Costs expert'!C37*'Costs expert'!C38","v":0},{"$f":"'Costs expert'!D37*'Costs expert'!D38","v":0},{"$f":"'Costs expert'!E37*'Costs expert'!E38","v":0},{"$f":"'Costs expert'!F37*'Costs expert'!F38","v":0},{"$f":"'Costs expert'!G37*'Costs expert'!G38","v":0},{"$f":"'Costs expert'!H37*'Costs expert'!H38","v":0},{"$f":"'Costs expert'!I37*'Costs expert'!I38","v":0},{"$f":"'Costs expert'!J37*'Costs expert'!J38","v":0},{"$f":"'Costs expert'!K37*'Costs expert'!K38","v":0},{"$f":"'Costs expert'!L37*'Costs expert'!L38","v":0},{"$f":"'Costs expert'!M37*'Costs expert'!M38","v":0},{"$f":"'Costs expert'!N37*'Costs expert'!N38","v":0},{"$f":"'Costs expert'!O37*'Costs expert'!O38","v":0},{"$f":"'Costs expert'!P37*'Costs expert'!P38","v":0},{"$f":"'Costs expert'!Q37*'Costs expert'!Q38","v":0},{"$f":"'Costs expert'!R37*'Costs expert'!R38","v":0},{"$f":"'Costs expert'!S37*'Costs expert'!S38","v":0},{"$f":"'Costs expert'!T37*'Costs expert'!T38","v":0},{"$f":"'Costs expert'!U37*'Costs expert'!U38","v":0}]
["Tours",{"$f":"'Costs expert'!B41*'Costs expert'!B42","v":0},{"$f":"'Costs expert'!C41*'Costs expert'!C42","v":0},{"$f":"'Costs expert'!D41*'Costs expert'!D42","v":0},{"$f":"'Costs expert'!E41*'Costs expert'!E42","v":0},{"$f":"'Costs expert'!F41*'Costs expert'!F42","v":0},{"$f":"'Costs expert'!G41*'Costs expert'!G42","v":0},{"$f":"'Costs expert'!H41*'Costs expert'!H42","v":0},{"$f":"'Costs expert'!I41*'Costs expert'!I42","v":0},{"$f":"'Costs expert'!J41*'Costs expert'!J42","v":0},{"$f":"'Costs expert'!K41*'Costs expert'!K42","v":0},{"$f":"'Costs expert'!L41*'Costs expert'!L42","v":0},{"$f":"'Costs expert'!M41*'Costs expert'!M42","v":0},{"$f":"'Costs expert'!N41*'Costs expert'!N42","v":0},{"$f":"'Costs expert'!O41*'Costs expert'!O42","v":0},{"$f":"'Costs expert'!P41*'Costs expert'!P42","v":0},{"$f":"'Costs expert'!Q41*'Costs expert'!Q42","v":0},{"$f":"'Costs expert'!R41*'Costs expert'!R42","v":0},{"$f":"'Costs expert'!S41*'Costs expert'!S42","v":0},{"$f":"'Costs expert'!T41*'Costs expert'!T42","v":0},{"$f":"'Costs expert'!U41*'Costs expert'!U42","v":0}]
["Events",{"$f":"'Costs expert'!B45*'Costs expert'!B46","v":0},{"$f":"'Costs expert'!C45*'Costs expert'!C46","v":0},{"$f":"'Costs expert'!D45*'Costs expert'!D46","v":0},{"$f":"'Costs expert'!E45*'Costs expert'!E46","v":0},{"$f":"'Costs expert'!F45*'Costs expert'!F46","v":0},{"$f":"'Costs expert'!G45*'Costs expert'!G46","v":0},{"$f":"'Costs expert'!H45*'Costs expert'!H46","v":0},{"$f":"'Costs expert'!I45*'Costs expert'!I46","v":0},{"$f":"'Costs expert'!J45*'Costs expert'!J46","v":0},{"$f":"'Costs expert'!K45*'Costs expert'!K46","v":0},{"$f":"'Costs expert'!L45*'Costs expert'!L46","v":0},{"$f":"'Costs expert'!M45*'Costs expert'!M46","v":0},{"$f":"'Costs expert'!N45*'Costs expert'!N46","v":0},{"$f":"'Costs expert'!O45*'Costs expert'!O46","v":0},{"$f":"'Costs expert'!P45*'Costs expert'!P46","v":0},{"$f":"'Costs expert'!Q45*'Costs expert'!Q46","v":0},{"$f":"'Costs expert'!R45*'Costs expert'!R46","v":0},{"$f":"'Costs expert'!S45*'Costs expert'!S46","v":0},{"$f":"'Costs expert'!T45*'Costs expert'!T46","v":0},{"$f":"'Costs expert'!U45*'Costs expert'!U46","v":0}]
["Workshops ",{"$f":"'Costs expert'!B49*'Costs expert'!B50","v":0},{"$f":"'Costs expert'!C49*'Costs expert'!C50","v":0},{"$f":"'Costs expert'!D49*'Costs expert'!D50","v":0},{"$f":"'Costs expert'!E49*'Costs expert'!E50","v":0},{"$f":"'Costs expert'!F49*'Costs expert'!F50","v":0},{"$f":"'Costs expert'!G49*'Costs expert'!G50","v":0},{"$f":"'Costs expert'!H49*'Costs expert'!H50","v":0},{"$f":"'Costs expert'!I49*'Costs expert'!I50","v":0},{"$f":"'Costs expert'!J49*'Costs expert'!J50","v":0},{"$f":"'Costs expert'!K49*'Costs expert'!K50","v":0},{"$f":"'Costs expert'!L49*'Costs expert'!L50","v":0},{"$f":"'Costs expert'!M49*'Costs expert'!M50","v":0},{"$f":"'Costs expert'!N49*'Costs expert'!N50","v":0},{"$f":"'Costs expert'!O49*'Costs expert'!O50","v":0},{"$f":"'Costs expert'!P49*'Costs expert'!P50","v":0},{"$f":"'Costs expert'!Q49*'Costs expert'!Q50","v":0},{"$f":"'Costs expert'!R49*'Costs expert'!R50","v":0},{"$f":"'Costs expert'!S49*'Costs expert'!S50","v":0},{"$f":"'Costs expert'!T49*'Costs expert'!T50","v":0},{"$f":"'Costs expert'!U49*'Costs expert'!U50","v":0}]
["Other labour",{"$f":"'Costs expert'!B54*'Costs expert'!B53*Homepage!$C$15","v":0},{"$f":"'Costs expert'!C54*'Costs expert'!C53*Homepage!$C$15","v":0},{"$f":"'Costs expert'!D54*'Costs expert'!D53*Homepage!$C$15","v":0},{"$f":"'Costs expert'!E54*'Costs expert'!E53*Homepage!$C$15","v":0},{"$f":"'Costs expert'!F54*'Costs expert'!F53*Homepage!$C$15","v":0},{"$f":"'Costs expert'!G54*'Costs expert'!G53*Homepage!$C$15","v":0},{"$f":"'Costs expert'!H54*'Costs expert'!H53*Homepage!$C$15","v":0},{"$f":"'Costs expert'!I54*'Costs expert'!I53*Homepage!$C$15","v":0},{"$f":"'Costs expert'!J54*'Costs expert'!J53*Homepage!$C$15","v":0},{"$f":"'Costs expert'!K54*'Costs expert'!K53*Homepage!$C$15","v":0},{"$f":"'Costs expert'!$L54*'Costs expert'!$L53*Homepage!$C$15","v":0},{"$f":"'Costs expert'!$L54*'Costs expert'!$L53*Homepage!$C$15","v":0},{"$f":"'Costs expert'!$L54*'Costs expert'!$L53*Homepage!$C$15","v":0},{"$f":"'Costs expert'!$L54*'Costs expert'!$L53*Homepage!$C$15","v":0},{"$f":"'Costs expert'!L54*'Costs expert'!L53*Homepage!$C$15","v":0},{"$f":"'Costs expert'!$M54*'Costs expert'!$M53*Homepage!$C$15","v":0},{"$f":"'Costs expert'!$M54*'Costs expert'!$M53*Homepage!$C$15","v":0},{"$f":"'Costs expert'!$M54*'Costs expert'!$M53*Homepage!$C$15","v":0},{"$f":"'Costs expert'!$M54*'Costs expert'!$M53*Homepage!$C$15","v":0},{"$f":"'Costs expert'!$M54*'Costs expert'!$M53*Homepage!$C$15","v":0}]
["Total external labour costs",{"$f":"SUM(B17:B25)","v":0},{"$f":"SUM(C17:C25)","v":0},0,0,0,0,0,0,0,0,0,0,0,0,0,0,0,0,0,0]
[]
[]
["Profit calculation",1,2,3,4,5,6,7,8,9,10,11,12,13,14,15,16,17,18,19,20]
["Total variable income",{"$f":"B7","v":0},0,0,0,0,0,0,0,0,0,0,0,0,0,0,0,0,0,0,0]
["Total variable costs",{"$f":"B14","v":0},{"$f":"C14","v":0},0,0,0,0,0,0,0,0,0,0,0,0,0,0,0,0,0,0]
["Total external labour costs",{"$f":"B26","v":0},{"$f":"C26","v":0},0,0,0,0,0,0,0,0,0,0,0,0,0,0,0,0,0,0]
["Profit",{"$f":"B30-B31-B32","v":0},{"$f":"C30-C31-C32","v":0},0,0,0,0,0,0,0,0,0,0,0,0,0,0,0,0,0,0]
[]
[]
["FF farmer labour costs",1,2,3,4,5,6,7,8,9,10,11,12,13,14,15,16,17,18,19,20]
["Start-up (planting, etc)",{"$f":"'Costs expert'!B24*'Costs expert'!$D$65*Homepage!$C$15","v":0},{"$f":"'Costs expert'!C24*'Costs expert'!$D$65*Homepage!$C$15","v":0},{"$f":"'Costs expert'!D24*'Costs expert'!$D$65*Homepage!$C$15","v":0},{"$f":"'Costs expert'!E24*'Costs expert'!$D$65*Homepage!$C$15","v":0},{"$f":"'Costs expert'!F24*'Costs expert'!$D$65*Homepage!$C$15","v":0},{"$f":"'Costs expert'!G24*'Costs expert'!$D$65*Homepage!$C$15","v":0},{"$f":"'Costs expert'!H24*'Costs expert'!$D$65*Homepage!$C$15","v":0},{"$f":"'Costs expert'!I24*'Costs expert'!$D$65*Homepage!$C$15","v":0},{"$f":"'Costs expert'!J24*'Costs expert'!$D$65*Homepage!$C$15","v":0},{"$f":"'Costs expert'!K24*'Costs expert'!$D$65*Homepage!$C$15","v":0},{"$f":"'Costs expert'!L24*'Costs expert'!$D$65*Homepage!$C$15","v":0},{"$f":"'Costs expert'!M24*'Costs expert'!$D$65*Homepage!$C$15","v":0},{"$f":"'Costs expert'!N24*'Costs expert'!$D$65*Homepage!$C$15","v":0},{"$f":"'Costs expert'!O24*'Costs expert'!$D$65*Homepage!$C$15","v":0},{"$f":"'Costs expert'!P24*'Costs expert'!$D$65*Homepage!$C$15","v":0},{"$f":"'Costs expert'!Q24*'Costs expert'!$D$65*Homepage!$C$15","v":0},{"$f":"'Costs expert'!R24*'Costs expert'!$D$65*Homepage!$C$15","v":0},{"$f":"'Costs expert'!S24*'Costs expert'!$D$65*Homepage!$C$15","v":0},{"$f":"'Costs expert'!T24*'Costs expert'!$D$65*Homepage!$C$15","v":0},{"$f":"'Costs expert'!U24*'Costs expert'!$D$65*Homepage!$C$15","v":0}]
["Observation & inspection",{"$f":"'Costs expert'!B28*'Costs expert'!$D$65*Homepage!$C$15","v":0},{"$f":"'Costs expert'!C28*'Costs expert'!$D$65*Homepage!$C$15","v":0},{"$f":"'Costs expert'!D28*'Costs expert'!$D$65*Homepage!$C$15","v":0},{"$f":"'Costs expert'!E28*'Costs expert'!$D$65*Homepage!$C$15","v":0},{"$f":"'Costs expert'!F28*'Costs expert'!$D$65*Homepage!$C$15","v":0},{"$f":"'Costs expert'!G28*'Costs expert'!$D$65*Homepage!$C$15","v":0},{"$f":"'Costs expert'!H28*'Costs expert'!$D$65*Homepage!$C$15","v":0},{"$f":"'Costs expert'!I28*'Costs expert'!$D$65*Homepage!$C$15","v":0},{"$f":"'Costs expert'!J28*'Costs expert'!$D$65*Homepage!$C$15","v":0},{"$f":"'Costs expert'!K28*'Costs expert'!$D$65*Homepage!$C$15","v":0},{"$f":"'Costs expert'!L28*'Costs expert'!$D$65*Homepage!$C$15","v":0},{"$f":"'Costs expert'!M28*'Costs expert'!$D$65*Homepage!$C$15","v":0},{"$f":"'Costs expert'!N28*'Costs expert'!$D$65*Homepage!$C$15","v":0},{"$f":"'Costs expert'!O28*'Costs expert'!$D$65*Homepage!$C$15","v":0},{"$f":"'Costs expert'!P28*'Costs expert'!$D$65*Homepage!$C$15","v":0},{"$f":"'Costs expert'!Q28*'Costs expert'!$D$65*Homepage!$C$15","v":0},{"$f":"'Costs expert'!R28*'Costs expert'!$D$65*Homepage!$C$15","v":0},{"$f":"'Costs expert'!S28*'Costs expert'!$D$65*Homepage!$C$15","v":0},{"$f":"'Costs expert'!T28*'Costs expert'!$D$65*Homepage!$C$15","v":0},{"$f":"'Costs expert'!U28*'Costs expert'!$D$65*Homepage!$C$15","v":0}]
["FF farmer harvest labour cost",{"$f":"'Costs expert'!B60*'Costs expert'!$D$65","v":0},{"$f":"'Costs expert'!C60*'Costs expert'!$D$65","v":0},{"$f":"'Costs expert'!D60*'Costs expert'!$D$65","v":0},{"$f":"'Costs expert'!E60*'Costs expert'!$D$65","v":0},{"$f":"'Costs expert'!F60*'Costs expert'!$D$65","v":0},{"$f":"'Costs expert'!G60*'Costs expert'!$D$65","v":0},{"$f":"'Costs expert'!H60*'Costs expert'!$D$65","v":0},{"$f":"'Costs expert'!I60*'Costs expert'!$D$65","v":0},{"$f":"'Costs expert'!J60*'Costs expert'!$D$65","v":0},{"$f":"'Costs expert'!K60*'Costs expert'!$D$65","v":0},{"$f":"'Costs expert'!L60*'Costs expert'!$D$65","v":0},{"$f":"'Costs expert'!M60*'Costs expert'!$D$65","v":0},{"$f":"'Costs expert'!N60*'Costs expert'!$D$65","v":0},{"$f":"'Costs expert'!O60*'Costs expert'!$D$65","v":0},{"$f":"'Costs expert'!P60*'Costs expert'!$D$65","v":0},{"$f":"'Costs expert'!Q60*'Costs expert'!$D$65","v":0},{"$f":"'Costs expert'!R60*'Costs expert'!$D$65","v":0},{"$f":"'Costs expert'!S60*'Costs expert'!$D$65","v":0},{"$f":"'Costs expert'!T60*'Costs expert'!$D$65","v":0},{"$f":"'Costs expert'!U60*'Costs expert'!$D$65","v":0}]
["(green) Maintenance",{"$f":"'Costs expert'!B32*'Costs expert'!$D$65*Homepage!$C$15","v":0},{"$f":"'Costs expert'!C32*'Costs expert'!$D$65*Homepage!$C$15","v":0},{"$f":"'Costs expert'!D32*'Costs expert'!$D$65*Homepage!$C$15","v":0},{"$f":"'Costs expert'!E32*'Costs expert'!$D$65*Homepage!$C$15","v":0},{"$f":"'Costs expert'!F32*'Costs expert'!$D$65*Homepage!$C$15","v":0},{"$f":"'Costs expert'!G32*'Costs expert'!$D$65*Homepage!$C$15","v":0},{"$f":"'Costs expert'!H32*'Costs expert'!$D$65*Homepage!$C$15","v":0},{"$f":"'Costs expert'!I32*'Costs expert'!$D$65*Homepage!$C$15","v":0},{"$f":"'Costs expert'!J32*'Costs expert'!$D$65*Homepage!$C$15","v":0},{"$f":"'Costs expert'!K32*'Costs expert'!$D$65*Homepage!$C$15","v":0},{"$f":"'Costs expert'!L32*'Costs expert'!$D$65*Homepage!$C$15","v":0},{"$f":"'Costs expert'!M32*'Costs expert'!$D$65*Homepage!$C$15","v":0},{"$f":"'Costs expert'!N32*'Costs expert'!$D$65*Homepage!$C$15","v":0},{"$f":"'Costs expert'!O32*'Costs expert'!$D$65*Homepage!$C$15","v":0},{"$f":"'Costs expert'!P32*'Costs expert'!$D$65*Homepage!$C$15","v":0},{"$f":"'Costs expert'!Q32*'Costs expert'!$D$65*Homepage!$C$15","v":0},{"$f":"'Costs expert'!R32*'Costs expert'!$D$65*Homepage!$C$15","v":0},{"$f":"'Costs expert'!S32*'Costs expert'!$D$65*Homepage!$C$15","v":0},{"$f":"'Costs expert'!T32*'Costs expert'!$D$65*Homepage!$C$15","v":0},{"$f":"'Costs expert'!U32*'Costs expert'!$D$65*Homepage!$C$15","v":0}]
["Organisation & logistics ",{"$f":"'Costs expert'!B36*'Costs expert'!$D$65","v":0},{"$f":"'Costs expert'!C36*'Costs expert'!$D$65","v":0},{"$f":"'Costs expert'!D36*'Costs expert'!$D$65","v":0},{"$f":"'Costs expert'!E36*'Costs expert'!$D$65","v":0},{"$f":"'Costs expert'!F36*'Costs expert'!$D$65","v":0},{"$f":"'Costs expert'!G36*'Costs expert'!$D$65","v":0},{"$f":"'Costs expert'!H36*'Costs expert'!$D$65","v":0},{"$f":"'Costs expert'!I36*'Costs expert'!$D$65","v":0},{"$f":"'Costs expert'!J36*'Costs expert'!$D$65","v":0},{"$f":"'Costs expert'!K36*'Costs expert'!$D$65","v":0},{"$f":"'Costs expert'!L36*'Costs expert'!$D$65","v":0},{"$f":"'Costs expert'!M36*'Costs expert'!$D$65","v":0},{"$f":"'Costs expert'!N36*'Costs expert'!$D$65","v":0},{"$f":"'Costs expert'!O36*'Costs expert'!$D$65","v":0},{"$f":"'Costs expert'!P36*'Costs expert'!$D$65","v":0},{"$f":"'Costs expert'!Q36*'Costs expert'!$D$65","v":0},{"$f":"'Costs expert'!R36*'Costs expert'!$D$65","v":0},{"$f":"'Costs expert'!S36*'Costs expert'!$D$65","v":0},{"$f":"'Costs expert'!T36*'Costs expert'!$D$65","v":0},{"$f":"'Costs expert'!U36*'Costs expert'!$D$65","v":0}]
["Tours",{"$f":"'Costs expert'!B40*'Costs expert'!$D$65","v":0},{"$f":"'Costs expert'!C40*'Costs expert'!$D$65","v":0},{"$f":"'Costs expert'!D40*'Costs expert'!$D$65","v":0},{"$f":"'Costs expert'!E40*'Costs expert'!$D$65","v":0},{"$f":"'Costs expert'!F40*'Costs expert'!$D$65","v":0},{"$f":"'Costs expert'!G40*'Costs expert'!$D$65","v":0},{"$f":"'Costs expert'!H40*'Costs expert'!$D$65","v":0},{"$f":"'Costs expert'!I40*'Costs expert'!$D$65","v":0},{"$f":"'Costs expert'!J40*'Costs expert'!$D$65","v":0},{"$f":"'Costs expert'!K40*'Costs expert'!$D$65","v":0},{"$f":"'Costs expert'!L40*'Costs expert'!$D$65","v":0},{"$f":"'Costs expert'!M40*'Costs expert'!$D$65","v":0},{"$f":"'Costs expert'!N40*'Costs expert'!$D$65","v":0},{"$f":"'Costs expert'!O40*'Costs expert'!$D$65","v":0},{"$f":"'Costs expert'!P40*'Costs expert'!$D$65","v":0},{"$f":"'Costs expert'!Q40*'Costs expert'!$D$65","v":0},{"$f":"'Costs expert'!R40*'Costs expert'!$D$65","v":0},{"$f":"'Costs expert'!S40*'Costs expert'!$D$65","v":0},{"$f":"'Costs expert'!T40*'Costs expert'!$D$65","v":0},{"$f":"'Costs expert'!U40*'Costs expert'!$D$65","v":0}]
["Events",{"$f":"'Costs expert'!B44*'Costs expert'!$D$65","v":0},{"$f":"'Costs expert'!C44*'Costs expert'!$D$65","v":0},{"$f":"'Costs expert'!D44*'Costs expert'!$D$65","v":0},{"$f":"'Costs expert'!E44*'Costs expert'!$D$65","v":0},{"$f":"'Costs expert'!F44*'Costs expert'!$D$65","v":0},{"$f":"'Costs expert'!G44*'Costs expert'!$D$65","v":0},{"$f":"'Costs expert'!H44*'Costs expert'!$D$65","v":0},{"$f":"'Costs expert'!I44*'Costs expert'!$D$65","v":0},{"$f":"'Costs expert'!J44*'Costs expert'!$D$65","v":0},{"$f":"'Costs expert'!K44*'Costs expert'!$D$65","v":0},{"$f":"'Costs expert'!L44*'Costs expert'!$D$65","v":0},{"$f":"'Costs expert'!M44*'Costs expert'!$D$65","v":0},{"$f":"'Costs expert'!N44*'Costs expert'!$D$65","v":0},{"$f":"'Costs expert'!O44*'Costs expert'!$D$65","v":0},{"$f":"'Costs expert'!P44*'Costs expert'!$D$65","v":0},{"$f":"'Costs expert'!Q44*'Costs expert'!$D$65","v":0},{"$f":"'Costs expert'!R44*'Costs expert'!$D$65","v":0},{"$f":"'Costs expert'!S44*'Costs expert'!$D$65","v":0},{"$f":"'Costs expert'!T44*'Costs expert'!$D$65","v":0},{"$f":"'Costs expert'!U44*'Costs expert'!$D$65","v":0}]
["Workshops ",{"$f":"'Costs expert'!B48*'Costs expert'!$D$65","v":0},{"$f":"'Costs expert'!C48*'Costs expert'!$D$65","v":0},{"$f":"'Costs expert'!D48*'Costs expert'!$D$65","v":0},{"$f":"'Costs expert'!E48*'Costs expert'!$D$65","v":0},{"$f":"'Costs expert'!F48*'Costs expert'!$D$65","v":0},{"$f":"'Costs expert'!G48*'Costs expert'!$D$65","v":0},{"$f":"'Costs expert'!H48*'Costs expert'!$D$65","v":0},{"$f":"'Costs expert'!I48*'Costs expert'!$D$65","v":0},{"$f":"'Costs expert'!J48*'Costs expert'!$D$65","v":0},{"$f":"'Costs expert'!K48*'Costs expert'!$D$65","v":0},{"$f":"'Costs expert'!L48*'Costs expert'!$D$65","v":0},{"$f":"'Costs expert'!M48*'Costs expert'!$D$65","v":0},{"$f":"'Costs expert'!N48*'Costs expert'!$D$65","v":0},{"$f":"'Costs expert'!O48*'Costs expert'!$D$65","v":0},{"$f":"'Costs expert'!P48*'Costs expert'!$D$65","v":0},{"$f":"'Costs expert'!Q48*'Costs expert'!$D$65","v":0},{"$f":"'Costs expert'!R48*'Costs expert'!$D$65","v":0},{"$f":"'Costs expert'!S48*'Costs expert'!$D$65","v":0},{"$f":"'Costs expert'!T48*'Costs expert'!$D$65","v":0},{"$f":"'Costs expert'!U48*'Costs expert'!$D$65","v":0}]
["Other labour",{"$f":"'Costs expert'!B52*'Costs expert'!$D$65*Homepage!$C$15","v":0},{"$f":"'Costs expert'!C52*'Costs expert'!$D$65*Homepage!$C$15","v":0},{"$f":"'Costs expert'!D52*'Costs expert'!$D$65*Homepage!$C$15","v":0},{"$f":"'Costs expert'!E52*'Costs expert'!$D$65*Homepage!$C$15","v":0},{"$f":"'Costs expert'!F52*'Costs expert'!$D$65*Homepage!$C$15","v":0},{"$f":"'Costs expert'!G52*'Costs expert'!$D$65*Homepage!$C$15","v":0},{"$f":"'Costs expert'!H52*'Costs expert'!$D$65*Homepage!$C$15","v":0},{"$f":"'Costs expert'!I52*'Costs expert'!$D$65*Homepage!$C$15","v":0},{"$f":"'Costs expert'!J52*'Costs expert'!$D$65*Homepage!$C$15","v":0},{"$f":"'Costs expert'!K52*'Costs expert'!$D$65*Homepage!$C$15","v":0},{"$f":"'Costs expert'!L52*'Costs expert'!$D$65*Homepage!$C$15","v":0},{"$f":"'Costs expert'!M52*'Costs expert'!$D$65*Homepage!$C$15","v":0},{"$f":"'Costs expert'!N52*'Costs expert'!$D$65*Homepage!$C$15","v":0},{"$f":"'Costs expert'!O52*'Costs expert'!$D$65*Homepage!$C$15","v":0},{"$f":"'Costs expert'!P52*'Costs expert'!$D$65*Homepage!$C$15","v":0},{"$f":"'Costs expert'!Q52*'Costs expert'!$D$65*Homepage!$C$15","v":0},{"$f":"'Costs expert'!R52*'Costs expert'!$D$65*Homepage!$C$15","v":0},{"$f":"'Costs expert'!S52*'Costs expert'!$D$65*Homepage!$C$15","v":0},{"$f":"'Costs expert'!T52*'Costs expert'!$D$65*Homepage!$C$15","v":0},{"$f":"'Costs expert'!U52*'Costs expert'!$D$65*Homepage!$C$15","v":0}]
["Total FF farmer calculated labour cost",{"$f":"SUM(B37:B45)","v":0},{"$f":"SUM(C37:C45)","v":0},0,0,0,0,0,0,0,0,0,0,0,0,0,0,0,0,0,0]
[]
["Profit calculation including FF farmer costs",1,2,3,4,5,6,7,8,9,10,11,12,13,14,15,16,17,18,19,20]
["Total variable income",{"$f":"B7","v":0},{"$f":"C7","v":0},0,0,0,0,0,0,0,0,0,0,0,0,0,0,0,0,0,0]
["Total variable costs",{"$f":"B14","v":0},{"$f":"C14","v":0},0,0,0,0,0,0,0,0,0,0,0,0,0,0,0,0,0,0]
["Total external labour costs",{"$f":"B26","v":0},{"$f":"C26","v":0},0,0,0,0,0,0,0,0,0,0,0,0,0,0,0,0,0,0]
["Total FF farmer calculated labour cost",{"$f":"B46","v":0},{"$f":"C46","v":0},0,0,0,0,0,0,0,0,0,0,0,0,0,0,0,0,0,0]
["Profit (including FF farmer labour cost)",{"$f":"B49-B50-B51-B52","v":0},{"$f":"C49-C50-C51-C52","v":0},0,0,0,0,0,0,0,0,0,0,0,0,0,0,0,0,0,0]

{"sheet":"Financing Budget","index":17,"n_rows":108,"n_cols":32,"rows_kept":108,"cut":false,"hidden":false,"merged":[[93,10,105,10],[3,10,15,10],[21,10,33,10],[39,10,51,10],[57,10,69,10],[75,10,87,10]]}
[]
[null,null,null,null,null,null,null,null,null,null,null,"0-1","1-2","2-3","3-4","4-5","5-6","6-7","7-8","8-9","9-10","10-11","11-12","12-13","13-14","14-15","15-16","16-17","17-18","18-19","19-20"]
["Investments","In possession?","Purchase","Purchase year","Type of financing","Interest rate","Calculated interest rate","Time span","Annual payback",null,"Year",1,2,3,4,5,6,7,8,9,10,11,12,13,14,15,16,17,18,19,20]
["Land",{"$f":"' Investment & Financing'!B4","v":"No"},{"$f":"' Investment & Financing'!C4","v":0},{"$f":"' Investment & Financing'!D4","v":0},{"$f":"' Investment & Financing'!H4","v":"External"},{"$f":"' Investment & Financing'!I4","v":0},{"$f":"' Investment & Financing'!K4","v":0},{"$f":"' Investment & Financing'!J4","v":0},{"$f":"IF(E4=\"Vreemd\",C4/H4,0)","v":0},null,"Annual payback",{"$f":"IF(AND(L$3-$D4>0,L$3-$D4<=$H4),$I4,0)","v":0},0,0,0,0,0,0,0,0,0,{"$f":"IF(AND(V$3-$D4>0,V$3-$D4<=$H4),$I4,0)","v":0},0,0,0,0,0,0,0,0,0]
["Buildings",{"$f":"' Investment & Financing'!B5","v":"No"},{"$f":"' Investment & Financing'!C5","v":0},{"$f":"' Investment & Financing'!D5","v":0},{"$f":"' Investment & Financing'!H5","v":"External"},{"$f":"' Investment & Financing'!I5","v":0},{"$f":"' Investment & Financing'!K5","v":0},{"$f":"' Investment & Financing'!J5","v":0},{"$f":"IF(E5=\"Vreemd\",C5/H5,0)","v":0},null,null,0,0,0,0,0,0,0,0,0,0,0,0,0,0,0,0,0,0,0,0]
["Infrastructure",{"$f":"' Investment & Financing'!B6","v":"No"},{"$f":"' Investment & Financing'!C6","v":0},{"$f":"' Investment & Financing'!D6","v":0},{"$f":"' Investment & Financing'!H6","v":"External"},{"$f":"' Investment & Financing'!I6","v":0},{"$f":"' Investment & Financing'!K6","v":0},{"$f":"' Investment & Financing'!J6","v":0},0,null,null,0,0,0,0,0,0,0,0,0,0,0,0,0,0,0,0,0,0,0,0]
["Machines ",{"$f":"' Investment & Financing'!B7","v":"No"},{"$f":"' Investment & Financing'!C7","v":0},{"$f":"' Investment & Financing'!D7","v":0},{"$f":"' Investment & Financing'!H7","v":"External"},{"$f":"' Investment & Financing'!I7","v":0},{"$f":"' Investment & Financing'!K7","v":0},{"$f":"' Investment & Financing'!J7","v":0},0,null,null,0,0,0,0,0,0,0,0,0,0,0,0,0,0,0,0,0,0,0,0]
["Material",{"$f":"' Investment & Financing'!B8","v":"No"},{"$f":"' Investment & Financing'!C8","v":0},{"$f":"' Investment & Financing'!D8","v":0},{"$f":"' Investment & Financing'!H8","v":"Private"},{"$f":"' Investment & Financing'!I8","v":0},{"$f":"' Investment & Financing'!K8","v":0},{"$f":"' Investment & Financing'!J8","v":0},0,null,null,0,0,0,0,0,0,0,0,0,0,0,0,0,0,0,0,0,0,0,0]
["Plants Cropping",{"$f":"' Investment & Financing'!B9","v":"No"},{"$f":"' Investment & Financing'!C9","v":0},{"$f":"' Investment & Financing'!D9","v":0},{"$f":"' Investment & Financing'!H9","v":"Private"},{"$f":"' Investment & Financing'!I9","v":0},{"$f":"' Investment & Financing'!K9","v":0},{"$f":"' Investment & Financing'!J9","v":0},0,null,null,0,0,0,0,0,0,0,0,0,0,0,0,0,0,0,0,0,0,0,0]
["Plants Windbreaks",{"$f":"' Investment & Financing'!B10","v":"No"},{"$f":"' Investment & Financing'!C10","v":0},{"$f":"' Investment & Financing'!D10","v":0},{"$f":"' Investment & Financing'!H10","v":"Private"},{"$f":"' Investment & Financing'!I10","v":0},{"$f":"' Investment & Financing'!K10","v":0},{"$f":"' Investment & Financing'!J10","v":0},0,null,null,0,0,0,0,0,0,0,0,0,0,0,0,0,0,0,0,0,0,0,0]
["Farming equipment",{"$f":"' Investment & Financing'!B11","v":"No"},{"$f":"' Investment & Financing'!C11","v":0},{"$f":"' Investment & Financing'!D11","v":0},{"$f":"' Investment & Financing'!H11","v":"External"},{"$f":"' Investment & Financing'!I11","v":0},{"$f":"' Investment & Financing'!K11","v":0},{"$f":"' Investment & Financing'!J11","v":0},0,null,null,0,0,0,0,0,0,0,0,0,0,0,0,0,0,0,0,0,0,0,0]
["Design",{"$f":"' Investment & Financing'!B12","v":"No"},{"$f":"' Investment & Financing'!C12","v":0},{"$f":"' Investment & Financing'!D12","v":0},{"$f":"' Investment & Financing'!H12","v":"Private"},{"$f":"' Investment & Financing'!I12","v":0},{"$f":"' Investment & Financing'!K12","v":0},{"$f":"' Investment & Financing'!J12","v":0},{"$f":"IF(E12=\"Vreemd\",C12/H12,0)","v":0},null,null,{"$f":"IF(AND(L$3-$D12>0,L$3-$D12<=$H12),$I12,0)","v":0},0,0,0,0,0,0,0,0,0,0,0,0,0,0,0,0,0,0,0]
["Earthworks",{"$f":"' Investment & Financing'!B13","v":"No"},{"$f":"' Investment & Financing'!C13","v":0},{"$f":"' Investment & Financing'!D13","v":0},{"$f":"' Investment & Financing'!H13","v":"Private"},{"$f":"' Investment & Financing'!I13","v":0},{"$f":"' Investment & Financing'!K13","v":0},{"$f":"' Investment & Financing'!J13","v":0},0,null,null,0,0,0,0,0,0,0,0,0,0,0,0,0,0,0,0,0,0,0,0]
["Plants high longevity",{"$f":"' Investment & Financing'!B14","v":"No"},{"$f":"' Investment & Financing'!C14","v":0},{"$f":"' Investment & Financing'!D14","v":0},{"$f":"' Investment & Financing'!H14","v":"External"},{"$f":"' Investment & Financing'!I14","v":0},{"$f":"' Investment & Financing'!K14","v":0},{"$f":"' Investment & Financing'!J14","v":0},0,null,null,0,0,0,0,0,0,0,0,0,0,0,0,0,0,0,0,0,0,0,0]
["Marketing",{"$f":"' Investment & Financing'!B15","v":"No"},{"$f":"' Investment & Financing'!C15","v":0},{"$f":"' Investment & Financing'!D15","v":0},{"$f":"' Investment & Financing'!H15","v":"Private"},{"$f":"' Investment & Financing'!I15","v":0},{"$f":"' Investment & Financing'!K15","v":0},{"$f":"' Investment & Financing'!J15","v":0},0,null,null,0,0,0,0,0,0,0,0,0,0,0,0,0,0,0,0,0,0,0,0]
["Other",{"$f":"' Investment & Financing'!B16","v":"No"},{"$f":"' Investment & Financing'!C16","v":0},{"$f":"' Investment & Financing'!D16","v":0},{"$f":"' Investment & Financing'!H16","v":"Private"},{"$f":"' Investment & Financing'!I16","v":0},{"$f":"' Investment & Financing'!K16","v":0},{"$f":"' Investment & Financing'!J16","v":0},0,null,null,0,0,0,0,0,0,0,0,0,0,0,0,0,0,0,0,0,0,0,0]
[null,null,null,null,null,null,null,null,null,null,"Total",{"$f":"SUM(L4:L16)","v":0},{"$f":"SUM(M4:M16)","v":0},0,0,0,0,0,0,0,0,0,0,0,0,0,0,0,0,0,0]
[null,null,null,null,null,null,null,null,null,null,"Annual payback"]
[]
[]
[null,null,null,null,null,null,null,null,null,null,"Year",1,2,3,4,5,6,7,8,9,10,11,12,13,14,15,16,17,18,19,20]
[null,null,null,null,null,null,null,null,null,null,"Annual interest cost",{"$f":"IF(L4>0,(($C4-((J$3-$D4)*$I4)+($C4-((L$3-$D4)*$I4)))/2)*$F4,0)","v":0},{"$f":"IF(M4>0,(($C4-((L$3-$D4)*$I4)+($C4-((M$3-$D4)*$I4)))/2)*$F4,0)","v":0},0,0,0,0,0,0,0,0,0,0,0,0,0,0,0,0,0,0]
[null,null,null,null,null,null,null,null,null,null,null,0,{"$f":"IF(M5>0,(($C5-((L$3-$D5)*$I5)+($C5-((M$3-$D5)*$I5)))/2)*$F5,0)","v":0},0,0,0,0,0,0,0,0,0,0,0,0,0,0,0,0,0,0]
[null,null,null,null,null,null,null,null,null,null,null,0,{"$f":"IF(M6>0,(($C6-((L$3-$D6)*$I6)+($C6-((M$3-$D6)*$I6)))/2)*$F6,0)","v":0},0,0,0,0,0,0,0,0,0,0,0,0,0,0,0,0,0,0]
[null,null,null,null,null,null,null,null,null,null,null,0,{"$f":"IF(M7>0,(($C7-((L$3-$D7)*$I7)+($C7-((M$3-$D7)*$I7)))/2)*$F7,0)","v":0},0,0,0,0,0,0,0,0,0,0,0,0,0,0,0,0,0,0]
[null,null,null,null,null,null,null,null,null,null,null,0,{"$f":"IF(M8>0,(($C8-((L$3-$D8)*$I8)+($C8-((M$3-$D8)*$I8)))/2)*$F8,0)","v":0},{"$f":"IF(N8>0,(($C8-((M$3-$D8)*$I8)+($C8-((N$3-$D8)*$I8)))/2)*$F8,0)","v":0},0,0,0,0,0,0,0,0,0,0,0,0,0,0,0,0,0]
[null,null,null,null,null,null,null,null,null,null,null,0,{"$f":"IF(M9>0,(($C9-((L$3-$D9)*$I9)+($C9-((M$3-$D9)*$I9)))/2)*$F9,0)","v":0},0,0,0,0,0,0,0,0,0,0,0,0,0,0,0,0,0,0]
[null,null,null,null,null,null,null,null,null,null,null,0,{"$f":"IF(M10>0,(($C10-((L$3-$D10)*$I10)+($C10-((M$3-$D10)*$I10)))/2)*$F10,0)","v":0},0,0,0,0,0,0,0,0,0,0,0,0,0,0,0,0,0,0]
[null,null,null,null,null,null,null,null,null,null,null,0,{"$f":"IF(M11>0,(($C11-((L$3-$D11)*$I11)+($C11-((M$3-$D11)*$I11)))/2)*$F11,0)","v":0},0,0,0,0,0,0,0,0,0,0,0,0,0,0,0,0,0,0]
[null,null,null,null,null,null,null,null,null,null,null,0,{"$f":"IF(M12>0,(($C12-((L$3-$D12)*$I12)+($C12-((M$3-$D12)*$I12)))/2)*$F12,0)","v":0},0,0,0,0,0,0,0,0,0,0,0,0,0,0,0,0,0,0]
[null,null,null,null,null,null,null,null,null,null,null,0,{"$f":"IF(M13>0,(($C13-((L$3-$D13)*$I13)+($C13-((M$3-$D13)*$I13)))/2)*$F13,0)","v":0},0,0,0,0,0,0,0,0,0,0,0,0,0,0,0,0,0,0]
[null,null,null,null,null,null,null,null,null,null,null,0,{"$f":"IF(M14>0,(($C14-((L$3-$D14)*$I14)+($C14-((M$3-$D14)*$I14)))/2)*$F14,0)","v":0},0,0,0,0,0,0,0,0,0,0,0,0,0,0,0,0,0,0]
[null,null,null,null,null,null,null,null,null,null,null,0,{"$f":"IF(M15>0,(($C15-((L$3-$D15)*$I15)+($C15-((M$3-$D15)*$I15)))/2)*$F15,0)","v":0},0,0,0,0,0,0,0,0,0,0,0,0,0,0,0,0,0,0]
[null,null,null,null,null,null,null,null,null,null,null,0,{"$f":"IF(M16>0,(($C16-((L$3-$D16)*$I16)+($C16-((M$3-$D16)*$I16)))/2)*$F16,0)","v":0},0,0,0,0,0,0,0,0,0,0,0,0,0,0,0,0,0,0]
[null,null,null,null,null,null,null,null,null,null,"Total",{"$f":"SUM(L22:L34)","v":0},{"$f":"SUM(M22:M34)","v":0},0,0,0,0,0,0,0,0,0,0,0,0,0,0,0,0,0,0]
[null,null,null,null,null,null,null,null,null,null,"Annual interest cost"]
[]
[]
[null,null,null,null,null,null,null,null,null,null,"Year",1,2,3,4,5,6,7,8,9,10,11,12,13,14,15,16,17,18,19,20]
[null,null,null,null,null,null,null,null,null,null,"Calculated annual interest",{"$f":"IF($E4=\"Private\",$C4*$G4,0)","v":0},{"$f":"IF($E4=\"Private\",$C4*$G4,0)","v":0},0,0,0,0,0,0,0,0,0,0,0,0,0,0,0,0,0,0]
[null,null,null,null,null,null,null,null,null,null,null,{"$f":"IF($E5=\"Private\",$C5*$G5,0)","v":0},0,0,0,0,0,0,0,0,0,0,0,0,0,0,0,0,0,0,0]
[null,null,null,null,null,null,null,null,null,null,null,{"$f":"IF($E6=\"Private\",$C6*$G6,0)","v":0},0,0,0,0,0,0,0,0,0,0,0,0,0,0,0,0,0,0,0]
[null,null,null,null,null,null,null,null,null,null,null,{"$f":"IF($E7=\"Private\",$C7*$G7,0)","v":0},0,0,0,0,0,0,0,0,0,0,0,0,0,0,0,0,0,0,0]
[null,null,null,null,null,null,null,null,null,null,null,{"$f":"IF($E8=\"Private\",$C8*$G8,0)","v":0},0,0,0,0,0,0,0,0,0,0,0,0,0,0,0,0,0,0,0]
[null,null,null,null,null,null,null,null,null,null,null,{"$f":"IF($E9=\"Private\",$C9*$G9,0)","v":0},0,0,0,0,0,0,0,0,0,0,0,0,0,0,0,0,0,0,0]
[null,null,null,null,null,null,null,null,null,null,null,{"$f":"IF($E10=\"Private\",$C10*$G10,0)","v":0},0,0,0,0,0,0,0,0,0,0,0,0,0,0,0,0,0,0,0]
[null,null,null,null,null,null,null,null,null,null,null,{"$f":"IF($E11=\"Private\",$C11*$G11,0)","v":0},0,0,0,0,0,0,0,0,0,0,0,0,0,0,0,0,0,0,0]
[null,null,null,null,null,null,null,null,null,null,null,{"$f":"IF($E12=\"Private\",$C12*$G12,0)","v":0},0,0,0,0,0,0,0,0,0,0,0,0,0,0,0,0,0,0,0]
[null,null,null,null,null,null,null,null,null,null,null,{"$f":"IF($E13=\"Private\",$C13*$G13,0)","v":0},0,0,0,0,0,0,0,0,0,0,0,0,0,0,0,0,0,0,0]
[null,null,null,null,null,null,null,null,null,null,null,{"$f":"IF($E14=\"Private\",$C14*$G14,0)","v":0},0,0,0,0,0,0,0,0,0,0,0,0,0,0,0,0,0,0,0]
[null,null,null,null,null,null,null,null,null,null,null,{"$f":"IF($E15=\"Private\",$C15*$G15,0)","v":0},0,0,0,0,0,0,0,0,0,0,0,0,0,0,0,0,0,0,0]
[null,null,null,null,null,null,null,null,null,null,null,{"$f":"IF($E16=\"Private\",$C16*$G16,0)","v":0},0,0,0,0,0,0,0,0,0,0,0,0,0,0,0,0,0,0,0]
[null,null,null,null,null,null,null,null,null,null,"Total",{"$f":"SUM(L40:L52)","v":0},{"$f":"SUM(M40:M52)","v":0},0,0,0,0,0,0,0,0,0,0,0,0,0,0,0,0,0,0]
[null,null,null,null,null,null,null,null,null,null,"Calculated annual interest cost"]
[]
[null,null,null,null,null,null,null,null,null,null,"Overview Annual Financing (Private, Not in possession)"]
[null,null,null,null,null,null,null,null,null,null,"Year",1,2,3,4,5,6,7,8,9,10,11,12,13,14,15,16,17,18,19,20,21]
[null,null,null,null,null,null,null,null,null,null,"Annual financing",{"$f":"IF(AND($E4=\"Private\",$D4+1=M$57,$B4=\"No\"),$C4,0)","v":0},{"$f":"IF(AND($E4=\"Private\",$D4+1=N$57,$B4=\"No\"),$C4,0)","v":0},0,0,0,0,0,0,0,0,0,0,0,0,0,0,0,0,0,0]
[null,null,null,null,null,null,null,null,null,null,null,{"$f":"IF(AND($E5=\"Private\",$D5+1=M$57,$B5=\"No\"),$C5,0)","v":0},0,0,0,0,0,0,0,0,0,0,0,0,0,0,0,0,0,0,0]
[null,null,null,null,null,null,null,null,null,null,null,{"$f":"IF(AND($E6=\"Private\",$D6+1=M$57,$B6=\"No\"),$C6,0)","v":0},0,0,0,0,0,0,0,0,0,0,0,0,0,0,0,0,0,0,0]
[null,null,null,null,null,null,null,null,null,null,null,{"$f":"IF(AND($E7=\"Private\",$D7+1=M$57,$B7=\"No\"),$C7,0)","v":0},0,0,0,0,0,0,0,0,0,0,0,0,0,0,0,0,0,0,0]
[null,null,null,null,null,null,null,null,null,null,null,{"$f":"IF(AND($E8=\"Private\",$D8+1=M$57,$B8=\"No\"),$C8,0)","v":0},0,0,0,0,0,0,0,0,0,0,0,0,0,0,0,0,0,0,0]
[null,null,null,null,null,null,null,null,null,null,null,{"$f":"IF(AND($E9=\"Private\",$D9+1=M$57,$B9=\"No\"),$C9,0)","v":0},0,0,0,0,0,0,0,0,0,0,0,0,0,0,0,0,0,0,0]
[null,null,null,null,null,null,null,null,null,null,null,{"$f":"IF(AND($E10=\"Private\",$D10+1=M$57,$B10=\"No\"),$C10,0)","v":0},0,0,0,0,0,0,0,0,0,0,0,0,0,0,0,0,0,0,0]
[null,null,null,null,null,null,null,null,null,null,null,{"$f":"IF(AND($E11=\"Private\",$D11+1=M$57,$B11=\"No\"),$C11,0)","v":0},0,0,0,0,0,0,0,0,0,0,0,0,0,0,0,0,0,0,0]
[null,null,null,null,null,null,null,null,null,null,null,{"$f":"IF(AND($E12=\"Private\",$D12+1=M$57,$B12=\"No\"),$C12,0)","v":0},0,0,0,0,0,0,0,0,0,0,0,0,0,0,0,0,0,0,0]
[null,null,null,null,null,null,null,null,null,null,null,{"$f":"IF(AND($E13=\"Private\",$D13+1=M$57,$B13=\"No\"),$C13,0)","v":0},0,0,0,0,0,0,0,0,0,0,0,0,0,0,0,0,0,0,0]
[null,null,null,null,null,null,null,null,null,null,null,{"$f":"IF(AND($E14=\"Private\",$D14+1=M$57,$B14=\"No\"),$C14,0)","v":0},0,0,0,0,0,0,0,0,0,0,0,0,0,0,0,0,0,0,0]
[null,null,null,null,null,null,null,null,null,null,null,{"$f":"IF(AND($E15=\"Private\",$D15+1=M$57,$B15=\"No\"),$C15,0)","v":0},0,0,0,0,0,0,0,0,0,0,0,0,0,0,0,0,0,0,0]
[null,null,null,null,null,null,null,null,null,null,null,{"$f":"IF(AND($E16=\"Private\",$D16+1=M$57,$B16=\"No\"),$C16,0)","v":0},0,0,0,0,0,0,0,0,0,0,0,0,0,0,0,0,0,0,0]
[null,null,null,null,null,null,null,null,null,null,"Total ",{"$f":"SUM(L58:L70)","v":0},{"$f":"SUM(M58:M70)","v":0},0,0,0,0,0,0,0,0,0,0,0,0,0,0,0,0,0,0]
[null,null,null,null,null,null,null,null,null,null,"Annual financing"]
[]
[null,null,null,null,null,null,null,null,null,null,"Overview Annual Financing (External, Not in possession)"]
[null,null,null,null,null,null,null,null,null,null,"Year",1,2,3,4,5,6,7,8,9,10,11,12,13,14,15,16,17,18,19,20,21]
[null,null,null,null,null,null,null,null,null,null,"Annual financing",{"$f":"IF(AND($E4=\"External\",$D4+1=M$75,$B4=\"No\"),$C4,0)","v":0},{"$f":"IF(AND($E4=\"External\",$D4+1=N$75,$B4=\"No\"),$C4,0)","v":0},0,0,0,0,0,0,0,0,0,0,0,0,0,0,0,0,0,0]
[null,null,null,null,null,null,null,null,null,null,null,{"$f":"IF(AND($E5=\"External\",$D5+1=M$75,$B5=\"No\"),$C5,0)","v":0},0,0,0,0,0,0,0,0,0,0,0,0,0,0,0,0,0,0,0]
[null,null,null,null,null,null,null,null,null,null,null,{"$f":"IF(AND($E6=\"External\",$D6+1=M$75,$B6=\"No\"),$C6,0)","v":0},0,0,0,0,0,0,0,0,0,0,0,0,0,0,0,0,0,0,0]
[null,null,null,null,null,null,null,null,null,null,null,{"$f":"IF(AND($E7=\"External\",$D7+1=M$75,$B7=\"No\"),$C7,0)","v":0},0,0,0,0,0,0,0,0,0,0,0,0,0,0,0,0,0,0,0]
[null,null,null,null,null,null,null,null,null,null,null,{"$f":"IF(AND($E8=\"External\",$D8+1=M$75,$B8=\"No\"),$C8,0)","v":0},0,0,0,0,0,0,0,0,0,0,0,0,0,0,0,0,0,0,0]
[null,null,null,null,null,null,null,null,null,null,null,{"$f":"IF(AND($E9=\"External\",$D9+1=M$75,$B9=\"No\"),$C9,0)","v":0},0,0,0,0,0,0,0,0,0,0,0,0,0,0,0,0,0,0,0]
[null,null,null,null,null,null,null,null,null,null,null,{"$f":"IF(AND($E10=\"External\",$D10+1=M$75,$B10=\"No\"),$C10,0)","v":0},0,0,0,0,0,0,0,0,0,0,0,0,0,0,0,0,0,0,0]
[null,null,null,null,null,null,null,null,null,null,null,{"$f":"IF(AND($E11=\"External\",$D11+1=M$75,$B11=\"No\"),$C11,0)","v":0},0,0,0,0,0,0,0,0,0,0,0,0,0,0,0,0,0,0,0]
[null,null,null,null,null,null,null,null,null,null,null,{"$f":"IF(AND($E12=\"External\",$D12+1=M$75,$B12=\"No\"),$C12,0)","v":0},0,0,0,0,0,0,0,0,0,0,0,0,0,0,0,0,0,0,0]
[null,null,null,null,null,null,null,null,null,null,null,{"$f":"IF(AND($E13=\"External\",$D13+1=M$75,$B13=\"No\"),$C13,0)","v":0},0,0,0,0,0,0,0,0,0,0,0,0,0,0,0,0,0,0,0]
[null,null,null,null,null,null,null,null,null,null,null,{"$f":"IF(AND($E14=\"External\",$D14+1=M$75,$B14=\"No\"),$C14,0)","v":0},0,0,0,0,0,0,0,0,0,0,0,0,0,0,0,0,0,0,0]
[null,null,null,null,null,null,null,null,null,null,null,{"$f":"IF(AND($E15=\"External\",$D15+1=M$75,$B15=\"No\"),$C15,0)","v":0},0,0,0,0,0,0,0,0,0,0,0,0,0,0,0,0,0,0,0]
[null,null,null,null,null,null,null,null,null,null,null,{"$f":"IF(AND($E16=\"External\",$D16+1=M$75,$B16=\"No\"),$C16,0)","v":0},0,0,0,0,0,0,0,0,0,0,0,0,0,0,0,0,0,0,0]
[null,null,null,null,null,null,null,null,null,null,"Total",{"$f":"SUM(L76:L88)","v":0},{"$f":"SUM(M76:M88)","v":0},0,0,0,0,0,0,0,0,0,0,0,0,0,0,0,0,0,0]
[null,null,null,null,null,null,null,null,null,null,"Annual financing"]
[]
[null,null,null,null,null,null,null,null,null,null,"Overview Annual Financing (External, In possession)"]
[null,null,null,null,null,null,null,null,null,null,"Year",1,2,3,4,5,6,7,8,9,10,11,12,13,14,15,16,17,18,19,20,21]
[null,null,null,null,null,null,null,null,null,null,"Annual financing",{"$f":"IF(AND($E4=\"Private\",$D4+1=M$93,$B4=\"Yes\"),$C4,0)","v":0},{"$f":"IF(AND($E4=\"Private\",$D4+1=N$93,$B4=\"Yes\"),$C4,0)","v":0},0,0,0,0,0,0,0,0,0,0,0,0,0,0,0,0,0,0]
[null,null,null,null,null,null,null,null,null,null,null,{"$f":"IF(AND($E5=\"Private\",$D5+1=M$93,$B5=\"Yes\"),$C5,0)","v":0},0,0,0,0,0,0,0,0,0,0,0,0,0,0,0,0,0,0,0]
[null,null,null,null,null,null,null,null,null,null,null,{"$f":"IF(AND($E6=\"Private\",$D6+1=M$93,$B6=\"Yes\"),$C6,0)","v":0},0,0,0,0,0,0,0,0,0,0,0,0,0,0,0,0,0,0,0]
[null,null,null,null,null,null,null,null,null,null,null,{"$f":"IF(AND($E7=\"Private\",$D7+1=M$93,$B7=\"Yes\"),$C7,0)","v":0},0,0,0,0,0,0,0,0,0,0,0,0,0,0,0,0,0,0,0]
[null,null,null,null,null,null,null,null,null,null,null,{"$f":"IF(AND($E8=\"Private\",$D8+1=M$93,$B8=\"Yes\"),$C8,0)","v":0},0,0,0,0,0,0,0,0,0,0,0,0,0,0,0,0,0,0,0]
[null,null,null,null,null,null,null,null,null,null,null,{"$f":"IF(AND($E9=\"Private\",$D9+1=M$93,$B9=\"Yes\"),$C9,0)","v":0},0,0,0,0,0,0,0,0,0,0,0,0,0,0,0,0,0,0,0]
[null,null,null,null,null,null,null,null,null,null,null,{"$f":"IF(AND($E10=\"Private\",$D10+1=M$93,$B10=\"Yes\"),$C10,0)","v":0},0,0,0,0,0,0,0,0,0,0,0,0,0,0,0,0,0,0,0]
[null,null,null,null,null,null,null,null,null,null,null,{"$f":"IF(AND($E11=\"Private\",$D11+1=M$93,$B11=\"Yes\"),$C11,0)","v":0},0,0,0,0,0,0,0,0,0,0,0,0,0,0,0,0,0,0,0]
[null,null,null,null,null,null,null,null,null,null,null,{"$f":"IF(AND($E12=\"Private\",$D12+1=M$93,$B12=\"Yes\"),$C12,0)","v":0},0,0,0,0,0,0,0,0,0,0,0,0,0,0,0,0,0,0,0]
[null,null,null,null,null,null,null,null,null,null,null,{"$f":"IF(AND($E13=\"Private\",$D13+1=M$93,$B13=\"Yes\"),$C13,0)","v":0},0,0,0,0,0,0,0,0,0,0,0,0,0,0,0,0,0,0,0]
[null,null,null,null,null,null,null,null,null,null,null,{"$f":"IF(AND($E14=\"Private\",$D14+1=M$93,$B14=\"Yes\"),$C14,0)","v":0},0,0,0,0,0,0,0,0,0,0,0,0,0,0,0,0,0,0,0]
[null,null,null,null,null,null,null,null,null,null,null,{"$f":"IF(AND($E15=\"Private\",$D15+1=M$93,$B15=\"Yes\"),$C15,0)","v":0},0,0,0,0,0,0,0,0,0,0,0,0,0,0,0,0,0,0,0]
[null,null,null,null,null,null,null,null,null,null,null,{"$f":"IF(AND($E16=\"Private\",$D16+1=M$93,$B16=\"Yes\"),$C16,0)","v":0},0,0,0,0,0,0,0,0,0,0,0,0,0,0,0,0,0,0,0]
[null,null,null,null,null,null,null,null,null,null,"Total",{"$f":"SUM(L94:L106)","v":0},{"$f":"SUM(M94:M106)","v":0},0,0,0,0,0,0,0,0,0,0,0,0,0,0,0,0,0,0]
[null,null,null,null,null,null,null,null,null,null,"Annual financing"]

{"sheet":"Cash-flow","index":18,"n_rows":58,"n_cols":21,"rows_kept":58,"cut":false,"hidden":false,"merged":[]}
[null,null,null,null,null,null,null,"Cash-flow"]
[]
["Balance 01-01",0,{"$f":"B54","v":0},0,0,0,0,0,0,0,0,0,0,0,0,0,0,0,0,0,0]
["Balance 01-01 excluding private withdrawals",0,{"$f":"B58","v":0},{"$f":"C58","v":0},0,0,0,0,0,0,0,0,0,0,0,0,0,0,0,0,0]
["Earnings",1,2,3,4,5,6,7,8,9,10,11,12,13,14,15,16,17,18,19,20]
[{"$f":"'Profit calculation'!A4","v":"Plant production sales"},{"$f":"'Profit calculation'!B4","v":0},{"$f":"'Profit calculation'!C4","v":0},{"$f":"'Profit calculation'!D4","v":0},{"$f":"'Profit calculation'!E4","v":0},{"$f":"'Profit calculation'!F4","v":0},{"$f":"'Profit calculation'!G4","v":0},{"$f":"'Profit calculation'!H4","v":0},{"$f":"'Profit calculation'!I4","v":0},{"$f":"'Profit calculation'!J4","v":0},{"$f":"'Profit calculation'!K4","v":0},{"$f":"'Profit calculation'!L4","v":0},{"$f":"'Profit calculation'!M4","v":0},{"$f":"'Profit calculation'!N4","v":0},{"$f":"'Profit calculation'!O4","v":0},{"$f":"'Profit calculation'!P4","v":0},{"$f":"'Profit calculation'!Q4","v":0},{"$f":"'Profit calculation'!R4","v":0},{"$f":"'Profit calculation'!S4","v":0},{"$f":"'Profit calculation'!T4","v":0},{"$f":"'Profit calculation'!U4","v":0}]
[{"$f":"'Profit calculation'!A5","v":"Wood (fuel, timber, etc) sales"},{"$f":"'Profit calculation'!B5","v":0},{"$f":"'Profit calculation'!C5","v":0},{"$f":"'Profit calculation'!D5","v":0},{"$f":"'Profit calculation'!E5","v":0},{"$f":"'Profit calculation'!F5","v":0},{"$f":"'Profit calculation'!G5","v":0},{"$f":"'Profit calculation'!H5","v":0},{"$f":"'Profit calculation'!I5","v":0},{"$f":"'Profit calculation'!J5","v":0},{"$f":"'Profit calculation'!K5","v":0},{"$f":"'Profit calculation'!L5","v":0},{"$f":"'Profit calculation'!M5","v":0},{"$f":"'Profit calculation'!N5","v":0},{"$f":"'Profit calculation'!O5","v":0},{"$f":"'Profit calculation'!P5","v":0},{"$f":"'Profit calculation'!Q5","v":0},{"$f":"'Profit calculation'!R5","v":0},{"$f":"'Profit calculation'!S5","v":0},{"$f":"'Profit calculation'!T5","v":0},{"$f":"'Profit calculation'!U5","v":0}]
[{"$f":"'Profit calculation'!A6","v":"Other variable sales"},{"$f":"'Profit calculation'!B6","v":0},{"$f":"'Profit calculation'!C6","v":0},{"$f":"'Profit calculation'!D6","v":0},{"$f":"'Profit calculation'!E6","v":0},{"$f":"'Profit calculation'!F6","v":0},{"$f":"'Profit calculation'!G6","v":0},{"$f":"'Profit calculation'!H6","v":0},{"$f":"'Profit calculation'!I6","v":0},{"$f":"'Profit calculation'!J6","v":0},{"$f":"'Profit calculation'!K6","v":0},{"$f":"'Profit calculation'!L6","v":0},{"$f":"'Profit calculation'!M6","v":0},{"$f":"'Profit calculation'!N6","v":0},{"$f":"'Profit calculation'!O6","v":0},{"$f":"'Profit calculation'!P6","v":0},{"$f":"'Profit calculation'!Q6","v":0},{"$f":"'Profit calculation'!R6","v":0},{"$f":"'Profit calculation'!S6","v":0},{"$f":"'Profit calculation'!T6","v":0},{"$f":"'Profit calculation'!U6","v":0}]
[{"$f":"'Fixed income & costs'!A3","v":"Biodiversity"},{"$f":"'Fixed income & costs'!B3","v":0},{"$f":"'Fixed income & costs'!C3","v":0},{"$f":"'Fixed income & costs'!D3","v":0},{"$f":"'Fixed income & costs'!E3","v":0},{"$f":"'Fixed income & costs'!F3","v":0},{"$f":"'Fixed income & costs'!G3","v":0},{"$f":"'Fixed income & costs'!H3","v":0},{"$f":"'Fixed income & costs'!I3","v":0},{"$f":"'Fixed income & costs'!J3","v":0},{"$f":"'Fixed income & costs'!K3","v":0},{"$f":"'Fixed income & costs'!L3","v":0},{"$f":"'Fixed income & costs'!M3","v":0},{"$f":"'Fixed income & costs'!N3","v":0},{"$f":"'Fixed income & costs'!O3","v":0},{"$f":"'Fixed income & costs'!P3","v":0},{"$f":"'Fixed income & costs'!Q3","v":0},{"$f":"'Fixed income & costs'!R3","v":0},{"$f":"'Fixed income & costs'!S3","v":0},{"$f":"'Fixed income & costs'!T3","v":0},{"$f":"'Fixed income & costs'!U3","v":0}]
[{"$f":"'Fixed income & costs'!A4","v":"Climateadaptation"},{"$f":"'Fixed income & costs'!B4","v":0},{"$f":"'Fixed income & costs'!C4","v":0},{"$f":"'Fixed income & costs'!D4","v":0},{"$f":"'Fixed income & costs'!E4","v":0},{"$f":"'Fixed income & costs'!F4","v":0},{"$f":"'Fixed income & costs'!G4","v":0},{"$f":"'Fixed income & costs'!H4","v":0},{"$f":"'Fixed income & costs'!I4","v":0},{"$f":"'Fixed income & costs'!J4","v":0},{"$f":"'Fixed income & costs'!K4","v":0},{"$f":"'Fixed income & costs'!L4","v":0},{"$f":"'Fixed income & costs'!M4","v":0},{"$f":"'Fixed income & costs'!N4","v":0},{"$f":"'Fixed income & costs'!O4","v":0},{"$f":"'Fixed income & costs'!P4","v":0},{"$f":"'Fixed income & costs'!Q4","v":0},{"$f":"'Fixed income & costs'!R4","v":0},{"$f":"'Fixed income & costs'!S4","v":0},{"$f":"'Fixed income & costs'!T4","v":0},{"$f":"'Fixed income & costs'!U4","v":0}]
[{"$f":"'Fixed income & costs'!A5","v":"Carbon credit"},{"$f":"'Fixed income & costs'!B5","v":0},{"$f":"'Fixed income & costs'!C5","v":0},{"$f":"'Fixed income & costs'!D5","v":0},{"$f":"'Fixed income & costs'!E5","v":0},{"$f":"'Fixed income & costs'!F5","v":0},{"$f":"'Fixed income & costs'!G5","v":0},{"$f":"'Fixed income & costs'!H5","v":0},{"$f":"'Fixed income & costs'!I5","v":0},{"$f":"'Fixed income & costs'!J5","v":0},{"$f":"'Fixed income & costs'!K5","v":0},{"$f":"'Fixed income & costs'!L5","v":0},{"$f":"'Fixed income & costs'!M5","v":0},{"$f":"'Fixed income & costs'!N5","v":0},{"$f":"'Fixed income & costs'!O5","v":0},{"$f":"'Fixed income & costs'!P5","v":0},{"$f":"'Fixed income & costs'!Q5","v":0},{"$f":"'Fixed income & costs'!R5","v":0},{"$f":"'Fixed income & costs'!S5","v":0},{"$f":"'Fixed income & costs'!T5","v":0},{"$f":"'Fixed income & costs'!U5","v":0}]
[{"$f":"'Fixed income & costs'!A6","v":"Compensation 1"},{"$f":"'Fixed income & costs'!B6","v":0},{"$f":"'Fixed income & costs'!C6","v":0},{"$f":"'Fixed income & costs'!D6","v":0},{"$f":"'Fixed income & costs'!E6","v":0},{"$f":"'Fixed income & costs'!F6","v":0},{"$f":"'Fixed income & costs'!G6","v":0},{"$f":"'Fixed income & costs'!H6","v":0},{"$f":"'Fixed income & costs'!I6","v":0},{"$f":"'Fixed income & costs'!J6","v":0},{"$f":"'Fixed income & costs'!K6","v":0},{"$f":"'Fixed income & costs'!L6","v":0},{"$f":"'Fixed income & costs'!M6","v":0},{"$f":"'Fixed income & costs'!N6","v":0},{"$f":"'Fixed income & costs'!O6","v":0},{"$f":"'Fixed income & costs'!P6","v":0},{"$f":"'Fixed income & costs'!Q6","v":0},{"$f":"'Fixed income & costs'!R6","v":0},{"$f":"'Fixed income & costs'!S6","v":0},{"$f":"'Fixed income & costs'!T6","v":0},{"$f":"'Fixed income & costs'!U6","v":0}]
[{"$f":"'Fixed income & costs'!A7","v":"Compensation 2"},{"$f":"'Fixed income & costs'!B7","v":0},{"$f":"'Fixed income & costs'!C7","v":0},{"$f":"'Fixed income & costs'!D7","v":0},{"$f":"'Fixed income & costs'!E7","v":0},{"$f":"'Fixed income & costs'!F7","v":0},{"$f":"'Fixed income & costs'!G7","v":0},{"$f":"'Fixed income & costs'!H7","v":0},{"$f":"'Fixed income & costs'!I7","v":0},{"$f":"'Fixed income & costs'!J7","v":0},{"$f":"'Fixed income & costs'!K7","v":0},{"$f":"'Fixed income & costs'!L7","v":0},{"$f":"'Fixed income & costs'!M7","v":0},{"$f":"'Fixed income & costs'!N7","v":0},{"$f":"'Fixed income & costs'!O7","v":0},{"$f":"'Fixed income & costs'!P7","v":0},{"$f":"'Fixed income & costs'!Q7","v":0},{"$f":"'Fixed income & costs'!R7","v":0},{"$f":"'Fixed income & costs'!S7","v":0},{"$f":"'Fixed income & costs'!T7","v":0},{"$f":"'Fixed income & costs'!U7","v":0}]
[{"$f":"'Fixed income & costs'!A8","v":"Other compenstaions"},{"$f":"'Fixed income & costs'!B8","v":0},{"$f":"'Fixed income & costs'!C8","v":0},{"$f":"'Fixed income & costs'!D8","v":0},{"$f":"'Fixed income & costs'!E8","v":0},{"$f":"'Fixed income & costs'!F8","v":0},{"$f":"'Fixed income & costs'!G8","v":0},{"$f":"'Fixed income & costs'!H8","v":0},{"$f":"'Fixed income & costs'!I8","v":0},{"$f":"'Fixed income & costs'!J8","v":0},{"$f":"'Fixed income & costs'!K8","v":0},{"$f":"'Fixed income & costs'!L8","v":0},{"$f":"'Fixed income & costs'!M8","v":0},{"$f":"'Fixed income & costs'!N8","v":0},{"$f":"'Fixed income & costs'!O8","v":0},{"$f":"'Fixed income & costs'!P8","v":0},{"$f":"'Fixed income & costs'!Q8","v":0},{"$f":"'Fixed income & costs'!R8","v":0},{"$f":"'Fixed income & costs'!S8","v":0},{"$f":"'Fixed income & costs'!T8","v":0},{"$f":"'Fixed income & costs'!U8","v":0}]
[{"$f":"'Fixed income & costs'!A9","v":"Compensation"},{"$f":"'Fixed income & costs'!B9","v":0},{"$f":"'Fixed income & costs'!C9","v":0},{"$f":"'Fixed income & costs'!D9","v":0},{"$f":"'Fixed income & costs'!E9","v":0},{"$f":"'Fixed income & costs'!F9","v":0},{"$f":"'Fixed income & costs'!G9","v":0},{"$f":"'Fixed income & costs'!H9","v":0},{"$f":"'Fixed income & costs'!I9","v":0},{"$f":"'Fixed income & costs'!J9","v":0},{"$f":"'Fixed income & costs'!K9","v":0},{"$f":"'Fixed income & costs'!L9","v":0},{"$f":"'Fixed income & costs'!M9","v":0},{"$f":"'Fixed income & costs'!N9","v":0},{"$f":"'Fixed income & costs'!O9","v":0},{"$f":"'Fixed income & costs'!P9","v":0},{"$f":"'Fixed income & costs'!Q9","v":0},{"$f":"'Fixed income & costs'!R9","v":0},{"$f":"'Fixed income & costs'!S9","v":0},{"$f":"'Fixed income & costs'!T9","v":0},{"$f":"'Fixed income & costs'!U9","v":0}]
[{"$f":"'Fixed income & costs'!A10","v":"CAP (EU common agriculture policy)"},{"$f":"'Fixed income & costs'!B10","v":0},{"$f":"'Fixed income & costs'!C10","v":0},{"$f":"'Fixed income & costs'!D10","v":0},{"$f":"'Fixed income & costs'!E10","v":0},{"$f":"'Fixed income & costs'!F10","v":0},{"$f":"'Fixed income & costs'!G10","v":0},{"$f":"'Fixed income & costs'!H10","v":0},{"$f":"'Fixed income & costs'!I10","v":0},{"$f":"'Fixed income & costs'!J10","v":0},{"$f":"'Fixed income & costs'!K10","v":0},{"$f":"'Fixed income & costs'!L10","v":0},{"$f":"'Fixed income & costs'!M10","v":0},{"$f":"'Fixed income & costs'!N10","v":0},{"$f":"'Fixed income & costs'!O10","v":0},{"$f":"'Fixed income & costs'!P10","v":0},{"$f":"'Fixed income & costs'!Q10","v":0},{"$f":"'Fixed income & costs'!R10","v":0},{"$f":"'Fixed income & costs'!S10","v":0},{"$f":"'Fixed income & costs'!T10","v":0},{"$f":"'Fixed income & costs'!U10","v":0}]
[{"$f":"'Fixed income & costs'!A11","v":"Soil Organic Matter compensation"},{"$f":"'Fixed income & costs'!B11","v":0},{"$f":"'Fixed income & costs'!C11","v":0},{"$f":"'Fixed income & costs'!D11","v":0},{"$f":"'Fixed income & costs'!E11","v":0},{"$f":"'Fixed income & costs'!F11","v":0},{"$f":"'Fixed income & costs'!G11","v":0},{"$f":"'Fixed income & costs'!H11","v":0},{"$f":"'Fixed income & costs'!I11","v":0},{"$f":"'Fixed income & costs'!J11","v":0},{"$f":"'Fixed income & costs'!K11","v":0},{"$f":"'Fixed income & costs'!L11","v":0},{"$f":"'Fixed income & costs'!M11","v":0},{"$f":"'Fixed income & costs'!N11","v":0},{"$f":"'Fixed income & costs'!O11","v":0},{"$f":"'Fixed income & costs'!P11","v":0},{"$f":"'Fixed income & costs'!Q11","v":0},{"$f":"'Fixed income & costs'!R11","v":0},{"$f":"'Fixed income & costs'!S11","v":0},{"$f":"'Fixed income & costs'!T11","v":0},{"$f":"'Fixed income & costs'!U11","v":0}]
[{"$f":"'Fixed income & costs'!A12","v":"Bufferzones"},{"$f":"'Fixed income & costs'!B12","v":0},{"$f":"'Fixed income & costs'!C12","v":0},{"$f":"'Fixed income & costs'!D12","v":0},{"$f":"'Fixed income & costs'!E12","v":0},{"$f":"'Fixed income & costs'!F12","v":0},{"$f":"'Fixed income & costs'!G12","v":0},{"$f":"'Fixed income & costs'!H12","v":0},{"$f":"'Fixed income & costs'!I12","v":0},{"$f":"'Fixed income & costs'!J12","v":0},{"$f":"'Fixed income & costs'!K12","v":0},{"$f":"'Fixed income & costs'!L12","v":0},{"$f":"'Fixed income & costs'!M12","v":0},{"$f":"'Fixed income & costs'!N12","v":0},{"$f":"'Fixed income & costs'!O12","v":0},{"$f":"'Fixed income & costs'!P12","v":0},{"$f":"'Fixed income & costs'!Q12","v":0},{"$f":"'Fixed income & costs'!R12","v":0},{"$f":"'Fixed income & costs'!S12","v":0},{"$f":"'Fixed income & costs'!T12","v":0},{"$f":"'Fixed income & costs'!U12","v":0}]
[{"$f":"'Fixed income & costs'!A13","v":"Sowing cropland borders"},{"$f":"'Fixed income & costs'!B13","v":0},{"$f":"'Fixed income & costs'!C13","v":0},{"$f":"'Fixed income & costs'!D13","v":0},{"$f":"'Fixed income & costs'!E13","v":0},{"$f":"'Fixed income & costs'!F13","v":0},{"$f":"'Fixed income & costs'!G13","v":0},{"$f":"'Fixed income & costs'!H13","v":0},{"$f":"'Fixed income & costs'!I13","v":0},{"$f":"'Fixed income & costs'!J13","v":0},{"$f":"'Fixed income & costs'!K13","v":0},{"$f":"'Fixed income & costs'!L13","v":0},{"$f":"'Fixed income & costs'!M13","v":0},{"$f":"'Fixed income & costs'!N13","v":0},{"$f":"'Fixed income & costs'!O13","v":0},{"$f":"'Fixed income & costs'!P13","v":0},{"$f":"'Fixed income & costs'!Q13","v":0},{"$f":"'Fixed income & costs'!R13","v":0},{"$f":"'Fixed income & costs'!S13","v":0},{"$f":"'Fixed income & costs'!T13","v":0},{"$f":"'Fixed income & costs'!U13","v":0}]
[{"$f":"'Fixed income & costs'!A14","v":"Sowing cover crops"},{"$f":"'Fixed income & costs'!B14","v":0},{"$f":"'Fixed income & costs'!C14","v":0},{"$f":"'Fixed income & costs'!D14","v":0},{"$f":"'Fixed income & costs'!E14","v":0},{"$f":"'Fixed income & costs'!F14","v":0},{"$f":"'Fixed income & costs'!G14","v":0},{"$f":"'Fixed income & costs'!H14","v":0},{"$f":"'Fixed income & costs'!I14","v":0},{"$f":"'Fixed income & costs'!J14","v":0},{"$f":"'Fixed income & costs'!K14","v":0},{"$f":"'Fixed income & costs'!L14","v":0},{"$f":"'Fixed income & costs'!M14","v":0},{"$f":"'Fixed income & costs'!N14","v":0},{"$f":"'Fixed income & costs'!O14","v":0},{"$f":"'Fixed income & costs'!P14","v":0},{"$f":"'Fixed income & costs'!Q14","v":0},{"$f":"'Fixed income & costs'!R14","v":0},{"$f":"'Fixed income & costs'!S14","v":0},{"$f":"'Fixed income & costs'!T14","v":0},{"$f":"'Fixed income & costs'!U14","v":0}]
[{"$f":"'Fixed income & costs'!A15","v":"Other compensations"},{"$f":"'Fixed income & costs'!B15","v":0},{"$f":"'Fixed income & costs'!C15","v":0},{"$f":"'Fixed income & costs'!D15","v":0},{"$f":"'Fixed income & costs'!E15","v":0},{"$f":"'Fixed income & costs'!F15","v":0},{"$f":"'Fixed income & costs'!G15","v":0},{"$f":"'Fixed income & costs'!H15","v":0},{"$f":"'Fixed income & costs'!I15","v":0},{"$f":"'Fixed income & costs'!J15","v":0},{"$f":"'Fixed income & costs'!K15","v":0},{"$f":"'Fixed income & costs'!L15","v":0},{"$f":"'Fixed income & costs'!M15","v":0},{"$f":"'Fixed income & costs'!N15","v":0},{"$f":"'Fixed income & costs'!O15","v":0},{"$f":"'Fixed income & costs'!P15","v":0},{"$f":"'Fixed income & costs'!Q15","v":0},{"$f":"'Fixed income & costs'!R15","v":0},{"$f":"'Fixed income & costs'!S15","v":0},{"$f":"'Fixed income & costs'!T15","v":0},{"$f":"'Fixed income & costs'!U15","v":0}]
[{"$f":"'Fixed income & costs'!A16","v":"Workshops"},{"$f":"'Fixed income & costs'!B16","v":0},{"$f":"'Fixed income & costs'!C16","v":0},{"$f":"'Fixed income & costs'!D16","v":0},{"$f":"'Fixed income & costs'!E16","v":0},{"$f":"'Fixed income & costs'!F16","v":0},{"$f":"'Fixed income & costs'!G16","v":0},{"$f":"'Fixed income & costs'!H16","v":0},{"$f":"'Fixed income & costs'!I16","v":0},{"$f":"'Fixed income & costs'!J16","v":0},{"$f":"'Fixed income & costs'!K16","v":0},{"$f":"'Fixed income & costs'!L16","v":0},{"$f":"'Fixed income & costs'!M16","v":0},{"$f":"'Fixed income & costs'!N16","v":0},{"$f":"'Fixed income & costs'!O16","v":0},{"$f":"'Fixed income & costs'!P16","v":0},{"$f":"'Fixed income & costs'!Q16","v":0},{"$f":"'Fixed income & costs'!R16","v":0},{"$f":"'Fixed income & costs'!S16","v":0},{"$f":"'Fixed income & costs'!T16","v":0},{"$f":"'Fixed income & costs'!U16","v":0}]
[{"$f":"'Fixed income & costs'!A17","v":"Tours"},{"$f":"'Fixed income & costs'!B17","v":0},{"$f":"'Fixed income & costs'!C17","v":0},{"$f":"'Fixed income & costs'!D17","v":0},{"$f":"'Fixed income & costs'!E17","v":0},{"$f":"'Fixed income & costs'!F17","v":0},{"$f":"'Fixed income & costs'!G17","v":0},{"$f":"'Fixed income & costs'!H17","v":0},{"$f":"'Fixed income & costs'!I17","v":0},{"$f":"'Fixed income & costs'!J17","v":0},{"$f":"'Fixed income & costs'!K17","v":0},{"$f":"'Fixed income & costs'!L17","v":0},{"$f":"'Fixed income & costs'!M17","v":0},{"$f":"'Fixed income & costs'!N17","v":0},{"$f":"'Fixed income & costs'!O17","v":0},{"$f":"'Fixed income & costs'!P17","v":0},{"$f":"'Fixed income & costs'!Q17","v":0},{"$f":"'Fixed income & costs'!R17","v":0},{"$f":"'Fixed income & costs'!S17","v":0},{"$f":"'Fixed income & costs'!T17","v":0},{"$f":"'Fixed income & costs'!U17","v":0}]
[{"$f":"'Fixed income & costs'!A18","v":"Events"},{"$f":"'Fixed income & costs'!B18","v":0},{"$f":"'Fixed income & costs'!C18","v":0},{"$f":"'Fixed income & costs'!D18","v":0},{"$f":"'Fixed income & costs'!E18","v":0},{"$f":"'Fixed income & costs'!F18","v":0},{"$f":"'Fixed income & costs'!G18","v":0},{"$f":"'Fixed income & costs'!H18","v":0},{"$f":"'Fixed income & costs'!I18","v":0},{"$f":"'Fixed income & costs'!J18","v":0},{"$f":"'Fixed income & costs'!K18","v":0},{"$f":"'Fixed income & costs'!L18","v":0},{"$f":"'Fixed income & costs'!M18","v":0},{"$f":"'Fixed income & costs'!N18","v":0},{"$f":"'Fixed income & costs'!O18","v":0},{"$f":"'Fixed income & costs'!P18","v":0},{"$f":"'Fixed income & costs'!Q18","v":0},{"$f":"'Fixed income & costs'!R18","v":0},{"$f":"'Fixed income & costs'!S18","v":0},{"$f":"'Fixed income & costs'!T18","v":0},{"$f":"'Fixed income & costs'!U18","v":0}]
[{"$f":"'Fixed income & costs'!A19","v":"Other fixed income/year"},{"$f":"'Fixed income & costs'!B19","v":0},{"$f":"'Fixed income & costs'!C19","v":0},{"$f":"'Fixed income & costs'!D19","v":0},{"$f":"'Fixed income & costs'!E19","v":0},{"$f":"'Fixed income & costs'!F19","v":0},{"$f":"'Fixed income & costs'!G19","v":0},{"$f":"'Fixed income & costs'!H19","v":0},{"$f":"'Fixed income & costs'!I19","v":0},{"$f":"'Fixed income & costs'!J19","v":0},{"$f":"'Fixed income & costs'!K19","v":0},{"$f":"'Fixed income & costs'!L19","v":0},{"$f":"'Fixed income & costs'!M19","v":0},{"$f":"'Fixed income & costs'!N19","v":0},{"$f":"'Fixed income & costs'!O19","v":0},{"$f":"'Fixed income & costs'!P19","v":0},{"$f":"'Fixed income & costs'!Q19","v":0},{"$f":"'Fixed income & costs'!R19","v":0},{"$f":"'Fixed income & costs'!S19","v":0},{"$f":"'Fixed income & costs'!T19","v":0},{"$f":"'Fixed income & costs'!U19","v":0}]
["Financieringen",{"$f":"'Financing Budget'!L89","v":0},{"$f":"'Financing Budget'!M89","v":0},{"$f":"'Financing Budget'!N89","v":0},{"$f":"'Financing Budget'!O89","v":0},{"$f":"'Financing Budget'!P89","v":0},{"$f":"'Financing Budget'!Q89","v":0},{"$f":"'Financing Budget'!R89","v":0},{"$f":"'Financing Budget'!S89","v":0},{"$f":"'Financing Budget'!T89","v":0},{"$f":"'Financing Budget'!U89","v":0},{"$f":"'Financing Budget'!V89","v":0},{"$f":"'Financing Budget'!W89","v":0},{"$f":"'Financing Budget'!X89","v":0},{"$f":"'Financing Budget'!Y89","v":0},{"$f":"'Financing Budget'!Z89","v":0},{"$f":"'Financing Budget'!AA89","v":0},{"$f":"'Financing Budget'!AB89","v":0},{"$f":"'Financing Budget'!AC89","v":0},{"$f":"'Financing Budget'!AD89","v":0},{"$f":"'Financing Budget'!AE89","v":0}]
["Total income",{"$f":"SUM(B6:B26)","v":0},{"$f":"SUM(C6:C26)","v":0},0,0,0,0,0,0,0,0,0,0,0,0,0,0,0,0,0,0]
[]
["Expenses",1,2,3,4,5,6,7,8,9,10,11,12,13,14,15,16,17,18,19,20]
[{"$f":"'Profit calculation'!A10","v":"Packaging"},{"$f":"'Profit calculation'!B10","v":0},{"$f":"'Profit calculation'!C10","v":0},{"$f":"'Profit calculation'!D10","v":0},{"$f":"'Profit calculation'!E10","v":0},{"$f":"'Profit calculation'!F10","v":0},{"$f":"'Profit calculation'!G10","v":0},{"$f":"'Profit calculation'!H10","v":0},{"$f":"'Profit calculation'!I10","v":0},{"$f":"'Profit calculation'!J10","v":0},{"$f":"'Profit calculation'!K10","v":0},{"$f":"'Profit calculation'!L10","v":0},{"$f":"'Profit calculation'!M10","v":0},{"$f":"'Profit calculation'!N10","v":0},{"$f":"'Profit calculation'!O10","v":0},{"$f":"'Profit calculation'!P10","v":0},{"$f":"'Profit calculation'!Q10","v":0},{"$f":"'Profit calculation'!R10","v":0},{"$f":"'Profit calculation'!S10","v":0},{"$f":"'Profit calculation'!T10","v":0},{"$f":"'Profit calculation'!U10","v":0}]
[{"$f":"'Profit calculation'!A11","v":"Transport "},{"$f":"'Profit calculation'!B11","v":0},{"$f":"'Profit calculation'!C11","v":0},{"$f":"'Profit calculation'!D11","v":0},{"$f":"'Profit calculation'!E11","v":0},{"$f":"'Profit calculation'!F11","v":0},{"$f":"'Profit calculation'!G11","v":0},{"$f":"'Profit calculation'!H11","v":0},{"$f":"'Profit calculation'!I11","v":0},{"$f":"'Profit calculation'!J11","v":0},{"$f":"'Profit calculation'!K11","v":0},{"$f":"'Profit calculation'!L11","v":0},{"$f":"'Profit calculation'!M11","v":0},{"$f":"'Profit calculation'!N11","v":0},{"$f":"'Profit calculation'!O11","v":0},{"$f":"'Profit calculation'!P11","v":0},{"$f":"'Profit calculation'!Q11","v":0},{"$f":"'Profit calculation'!R11","v":0},{"$f":"'Profit calculation'!S11","v":0},{"$f":"'Profit calculation'!T11","v":0},{"$f":"'Profit calculation'!U11","v":0}]
[{"$f":"'Profit calculation'!A12","v":"Storage"},{"$f":"'Profit calculation'!B12","v":0},{"$f":"'Profit calculation'!C12","v":0},{"$f":"'Profit calculation'!D12","v":0},{"$f":"'Profit calculation'!E12","v":0},{"$f":"'Profit calculation'!F12","v":0},{"$f":"'Profit calculation'!G12","v":0},{"$f":"'Profit calculation'!H12","v":0},{"$f":"'Profit calculation'!I12","v":0},{"$f":"'Profit calculation'!J12","v":0},{"$f":"'Profit calculation'!K12","v":0},{"$f":"'Profit calculation'!L12","v":0},{"$f":"'Profit calculation'!M12","v":0},{"$f":"'Profit calculation'!N12","v":0},{"$f":"'Profit calculation'!O12","v":0},{"$f":"'Profit calculation'!P12","v":0},{"$f":"'Profit calculation'!Q12","v":0},{"$f":"'Profit calculation'!R12","v":0},{"$f":"'Profit calculation'!S12","v":0},{"$f":"'Profit calculation'!T12","v":0},{"$f":"'Profit calculation'!U12","v":0}]
[{"$f":"'Profit calculation'!A26","v":"Total external labour costs"},{"$f":"'Profit calculation'!B26","v":0},{"$f":"'Profit calculation'!C26","v":0},{"$f":"'Profit calculation'!D26","v":0},{"$f":"'Profit calculation'!E26","v":0},{"$f":"'Profit calculation'!F26","v":0},{"$f":"'Profit calculation'!G26","v":0},{"$f":"'Profit calculation'!H26","v":0},{"$f":"'Profit calculation'!I26","v":0},{"$f":"'Profit calculation'!J26","v":0},{"$f":"'Profit calculation'!K26","v":0},{"$f":"'Profit calculation'!L26","v":0},{"$f":"'Profit calculation'!M26","v":0},{"$f":"'Profit calculation'!N26","v":0},{"$f":"'Profit calculation'!O26","v":0},{"$f":"'Profit calculation'!P26","v":0},{"$f":"'Profit calculation'!Q26","v":0},{"$f":"'Profit calculation'!R26","v":0},{"$f":"'Profit calculation'!S26","v":0},{"$f":"'Profit calculation'!T26","v":0},{"$f":"'Profit calculation'!U26","v":0}]
[{"$f":"'Profit calculation'!A13","v":"Other variable costs"},{"$f":"'Profit calculation'!B13","v":0},{"$f":"'Profit calculation'!C13","v":0},{"$f":"'Profit calculation'!D13","v":0},{"$f":"'Profit calculation'!E13","v":0},{"$f":"'Profit calculation'!F13","v":0},{"$f":"'Profit calculation'!G13","v":0},{"$f":"'Profit calculation'!H13","v":0},{"$f":"'Profit calculation'!I13","v":0},{"$f":"'Profit calculation'!J13","v":0},{"$f":"'Profit calculation'!K13","v":0},{"$f":"'Profit calculation'!L13","v":0},{"$f":"'Profit calculation'!M13","v":0},{"$f":"'Profit calculation'!N13","v":0},{"$f":"'Profit calculation'!O13","v":0},{"$f":"'Profit calculation'!P13","v":0},{"$f":"'Profit calculation'!Q13","v":0},{"$f":"'Profit calculation'!R13","v":0},{"$f":"'Profit calculation'!S13","v":0},{"$f":"'Profit calculation'!T13","v":0},{"$f":"'Profit calculation'!U13","v":0}]
[{"$f":"'Fixed income & costs'!A23","v":"Lease/ha"},{"$f":"'Fixed income & costs'!B23","v":0},{"$f":"'Fixed income & costs'!C23","v":0},{"$f":"'Fixed income & costs'!D23","v":0},{"$f":"'Fixed income & costs'!E23","v":0},{"$f":"'Fixed income & costs'!F23","v":0},{"$f":"'Fixed income & costs'!G23","v":0},{"$f":"'Fixed income & costs'!H23","v":0},{"$f":"'Fixed income & costs'!I23","v":0},{"$f":"'Fixed income & costs'!J23","v":0},{"$f":"'Fixed income & costs'!K23","v":0},{"$f":"'Fixed income & costs'!L23","v":0},{"$f":"'Fixed income & costs'!M23","v":0},{"$f":"'Fixed income & costs'!N23","v":0},{"$f":"'Fixed income & costs'!O23","v":0},{"$f":"'Fixed income & costs'!P23","v":0},{"$f":"'Fixed income & costs'!Q23","v":0},{"$f":"'Fixed income & costs'!R23","v":0},{"$f":"'Fixed income & costs'!S23","v":0},{"$f":"'Fixed income & costs'!T23","v":0},{"$f":"'Fixed income & costs'!U23","v":0}]
[{"$f":"'Fixed income & costs'!A24","v":"Certification"},{"$f":"'Fixed income & costs'!B24","v":0},{"$f":"'Fixed income & costs'!C24","v":0},{"$f":"'Fixed income & costs'!D24","v":0},{"$f":"'Fixed income & costs'!E24","v":0},{"$f":"'Fixed income & costs'!F24","v":0},{"$f":"'Fixed income & costs'!G24","v":0},{"$f":"'Fixed income & costs'!H24","v":0},{"$f":"'Fixed income & costs'!I24","v":0},{"$f":"'Fixed income & costs'!J24","v":0},{"$f":"'Fixed income & costs'!K24","v":0},{"$f":"'Fixed income & costs'!L24","v":0},{"$f":"'Fixed income & costs'!M24","v":0},{"$f":"'Fixed income & costs'!N24","v":0},{"$f":"'Fixed income & costs'!O24","v":0},{"$f":"'Fixed income & costs'!P24","v":0},{"$f":"'Fixed income & costs'!Q24","v":0},{"$f":"'Fixed income & costs'!R24","v":0},{"$f":"'Fixed income & costs'!S24","v":0},{"$f":"'Fixed income & costs'!T24","v":0},{"$f":"'Fixed income & costs'!U24","v":0}]
[{"$f":"'Fixed income & costs'!A25","v":"Website, logo & design "},{"$f":"'Fixed income & costs'!B25","v":0},{"$f":"'Fixed income & costs'!C25","v":0},{"$f":"'Fixed income & costs'!D25","v":0},{"$f":"'Fixed income & costs'!E25","v":0},{"$f":"'Fixed income & costs'!F25","v":0},{"$f":"'Fixed income & costs'!G25","v":0},{"$f":"'Fixed income & costs'!H25","v":0},{"$f":"'Fixed income & costs'!I25","v":0},{"$f":"'Fixed income & costs'!J25","v":0},{"$f":"'Fixed income & costs'!K25","v":0},{"$f":"'Fixed income & costs'!L25","v":0},{"$f":"'Fixed income & costs'!M25","v":0},{"$f":"'Fixed income & costs'!N25","v":0},{"$f":"'Fixed income & costs'!O25","v":0},{"$f":"'Fixed income & costs'!P25","v":0},{"$f":"'Fixed income & costs'!Q25","v":0},{"$f":"'Fixed income & costs'!R25","v":0},{"$f":"'Fixed income & costs'!S25","v":0},{"$f":"'Fixed income & costs'!T25","v":0},{"$f":"'Fixed income & costs'!U25","v":0}]
[{"$f":"'Fixed income & costs'!A26","v":"Marketing & sales"},{"$f":"'Fixed income & costs'!B26","v":0},{"$f":"'Fixed income & costs'!C26","v":0},{"$f":"'Fixed income & costs'!D26","v":0},{"$f":"'Fixed income & costs'!E26","v":0},{"$f":"'Fixed income & costs'!F26","v":0},{"$f":"'Fixed income & costs'!G26","v":0},{"$f":"'Fixed income & costs'!H26","v":0},{"$f":"'Fixed income & costs'!I26","v":0},{"$f":"'Fixed income & costs'!J26","v":0},{"$f":"'Fixed income & costs'!K26","v":0},{"$f":"'Fixed income & costs'!L26","v":0},{"$f":"'Fixed income & costs'!M26","v":0},{"$f":"'Fixed income & costs'!N26","v":0},{"$f":"'Fixed income & costs'!O26","v":0},{"$f":"'Fixed income & costs'!P26","v":0},{"$f":"'Fixed income & costs'!Q26","v":0},{"$f":"'Fixed income & costs'!R26","v":0},{"$f":"'Fixed income & costs'!S26","v":0},{"$f":"'Fixed income & costs'!T26","v":0},{"$f":"'Fixed income & costs'!U26","v":0}]
[{"$f":"'Fixed income & costs'!A27","v":"Utilities"},{"$f":"'Fixed income & costs'!B27","v":0},{"$f":"'Fixed income & costs'!C27","v":0},{"$f":"'Fixed income & costs'!D27","v":0},{"$f":"'Fixed income & costs'!E27","v":0},{"$f":"'Fixed income & costs'!F27","v":0},{"$f":"'Fixed income & costs'!G27","v":0},{"$f":"'Fixed income & costs'!H27","v":0},{"$f":"'Fixed income & costs'!I27","v":0},{"$f":"'Fixed income & costs'!J27","v":0},{"$f":"'Fixed income & costs'!K27","v":0},{"$f":"'Fixed income & costs'!L27","v":0},{"$f":"'Fixed income & costs'!M27","v":0},{"$f":"'Fixed income & costs'!N27","v":0},{"$f":"'Fixed income & costs'!O27","v":0},{"$f":"'Fixed income & costs'!P27","v":0},{"$f":"'Fixed income & costs'!Q27","v":0},{"$f":"'Fixed income & costs'!R27","v":0},{"$f":"'Fixed income & costs'!S27","v":0},{"$f":"'Fixed income & costs'!T27","v":0},{"$f":"'Fixed income & costs'!U27","v":0}]
[{"$f":"'Fixed income & costs'!A28","v":"Advice"},{"$f":"'Fixed income & costs'!B28","v":0},{"$f":"'Fixed income & costs'!C28","v":0},{"$f":"'Fixed income & costs'!D28","v":0},{"$f":"'Fixed income & costs'!E28","v":0},{"$f":"'Fixed income & costs'!F28","v":0},{"$f":"'Fixed income & costs'!G28","v":0},{"$f":"'Fixed income & costs'!H28","v":0},{"$f":"'Fixed income & costs'!I28","v":0},{"$f":"'Fixed income & costs'!J28","v":0},{"$f":"'Fixed income & costs'!K28","v":0},{"$f":"'Fixed income & costs'!L28","v":0},{"$f":"'Fixed income & costs'!M28","v":0},{"$f":"'Fixed income & costs'!N28","v":0},{"$f":"'Fixed income & costs'!O28","v":0},{"$f":"'Fixed income & costs'!P28","v":0},{"$f":"'Fixed income & costs'!Q28","v":0},{"$f":"'Fixed income & costs'!R28","v":0},{"$f":"'Fixed income & costs'!S28","v":0},{"$f":"'Fixed income & costs'!T28","v":0},{"$f":"'Fixed income & costs'!U28","v":0}]
[{"$f":"'Costs expert'!A10","v":"Start-up cost"},{"$f":"'Costs expert'!B10","v":0},{"$f":"'Costs expert'!C10","v":0},{"$f":"'Costs expert'!D10","v":0},{"$f":"'Costs expert'!E10","v":0},{"$f":"'Costs expert'!F10","v":0},{"$f":"'Costs expert'!G10","v":0},{"$f":"'Costs expert'!H10","v":0},{"$f":"'Costs expert'!I10","v":0},{"$f":"'Costs expert'!J10","v":0},{"$f":"'Costs expert'!K10","v":0},{"$f":"'Costs expert'!L10","v":0},{"$f":"'Costs expert'!M10","v":0},{"$f":"'Costs expert'!N10","v":0},0,0,0,0,0,0,0]
[{"$f":"'Fixed income & costs'!A30","v":"Maintenance"},{"$f":"'Fixed income & costs'!B30","v":0},{"$f":"'Fixed income & costs'!C30","v":0},{"$f":"'Fixed income & costs'!D30","v":0},{"$f":"'Fixed income & costs'!E30","v":0},{"$f":"'Fixed income & costs'!F30","v":0},{"$f":"'Fixed income & costs'!G30","v":0},{"$f":"'Fixed income & costs'!H30","v":0},{"$f":"'Fixed income & costs'!I30","v":0},{"$f":"'Fixed income & costs'!J30","v":0},{"$f":"'Fixed income & costs'!K30","v":0},{"$f":"'Fixed income & costs'!L30","v":0},{"$f":"'Fixed income & costs'!M30","v":0},{"$f":"'Fixed income & costs'!N30","v":0},{"$f":"'Fixed income & costs'!O30","v":0},{"$f":"'Fixed income & costs'!P30","v":0},{"$f":"'Fixed income & costs'!Q30","v":0},{"$f":"'Fixed income & costs'!R30","v":0},{"$f":"'Fixed income & costs'!S30","v":0},{"$f":"'Fixed income & costs'!T30","v":0},{"$f":"'Fixed income & costs'!U30","v":0}]
[{"$f":"'Fixed income & costs'!A31","v":"Insurances"},{"$f":"'Fixed income & costs'!B31","v":0},{"$f":"'Fixed income & costs'!C31","v":0},{"$f":"'Fixed income & costs'!D31","v":0},{"$f":"'Fixed income & costs'!E31","v":0},{"$f":"'Fixed income & costs'!F31","v":0},{"$f":"'Fixed income & costs'!G31","v":0},{"$f":"'Fixed income & costs'!H31","v":0},{"$f":"'Fixed income & costs'!I31","v":0},{"$f":"'Fixed income & costs'!J31","v":0},{"$f":"'Fixed income & costs'!K31","v":0},{"$f":"'Fixed income & costs'!L31","v":0},{"$f":"'Fixed income & costs'!M31","v":0},{"$f":"'Fixed income & costs'!N31","v":0},{"$f":"'Fixed income & costs'!O31","v":0},{"$f":"'Fixed income & costs'!P31","v":0},{"$f":"'Fixed income & costs'!Q31","v":0},{"$f":"'Fixed income & costs'!R31","v":0},{"$f":"'Fixed income & costs'!S31","v":0},{"$f":"'Fixed income & costs'!T31","v":0},{"$f":"'Fixed income & costs'!U31","v":0}]
[{"$f":"'Fixed income & costs'!A35","v":"Other costs"},{"$f":"'Fixed income & costs'!B35","v":0},{"$f":"'Fixed income & costs'!C35","v":0},{"$f":"'Fixed income & costs'!D35","v":0},{"$f":"'Fixed income & costs'!E35","v":0},{"$f":"'Fixed income & costs'!F35","v":0},{"$f":"'Fixed income & costs'!G35","v":0},{"$f":"'Fixed income & costs'!H35","v":0},{"$f":"'Fixed income & costs'!I35","v":0},{"$f":"'Fixed income & costs'!J35","v":0},{"$f":"'Fixed income & costs'!K35","v":0},{"$f":"'Fixed income & costs'!L35","v":0},{"$f":"'Fixed income & costs'!M35","v":0},{"$f":"'Fixed income & costs'!N35","v":0},{"$f":"'Fixed income & costs'!O35","v":0},{"$f":"'Fixed income & costs'!P35","v":0},{"$f":"'Fixed income & costs'!Q35","v":0},{"$f":"'Fixed income & costs'!R35","v":0},{"$f":"'Fixed income & costs'!S35","v":0},{"$f":"'Fixed income & costs'!T35","v":0},{"$f":"'Fixed income & costs'!U35","v":0}]
[{"$f":"'Fixed income & costs'!A37","v":"Unforseen costs"},{"$f":"'Fixed income & costs'!B37","v":0},{"$f":"'Fixed income & costs'!C37","v":0},{"$f":"'Fixed income & costs'!D37","v":0},{"$f":"'Fixed income & costs'!E37","v":0},{"$f":"'Fixed income & costs'!F37","v":0},{"$f":"'Fixed income & costs'!G37","v":0},{"$f":"'Fixed income & costs'!H37","v":0},{"$f":"'Fixed income & costs'!I37","v":0},{"$f":"'Fixed income & costs'!J37","v":0},{"$f":"'Fixed income & costs'!K37","v":0},{"$f":"'Fixed income & costs'!L37","v":0},{"$f":"'Fixed income & costs'!M37","v":0},{"$f":"'Fixed income & costs'!N37","v":0},{"$f":"'Fixed income & costs'!O37","v":0},{"$f":"'Fixed income & costs'!P37","v":0},{"$f":"'Fixed income & costs'!Q37","v":0},{"$f":"'Fixed income & costs'!R37","v":0},{"$f":"'Fixed income & costs'!S37","v":0},{"$f":"'Fixed income & costs'!T37","v":0},{"$f":"'Fixed income & costs'!U37","v":0}]
["Investment private",{"$f":"'Financing Budget'!L71","v":0},{"$f":"'Financing Budget'!M71","v":0},{"$f":"'Financing Budget'!N71","v":0},{"$f":"'Financing Budget'!O71","v":0},{"$f":"'Financing Budget'!P71","v":0},{"$f":"'Financing Budget'!Q71","v":0},{"$f":"'Financing Budget'!R71","v":0},{"$f":"'Financing Budget'!S71","v":0},{"$f":"'Financing Budget'!T71","v":0},{"$f":"'Financing Budget'!U71","v":0},{"$f":"'Financing Budget'!V71","v":0},{"$f":"'Financing Budget'!W71","v":0},{"$f":"'Financing Budget'!X71","v":0},{"$f":"'Financing Budget'!Y71","v":0},{"$f":"'Financing Budget'!Z71","v":0},{"$f":"'Financing Budget'!AA71","v":0},{"$f":"'Financing Budget'!AB71","v":0},{"$f":"'Financing Budget'!AC71","v":0},{"$f":"'Financing Budget'!AD71","v":0},{"$f":"'Financing Budget'!AE71","v":0}]
["Investment external",{"$f":"'Financing Budget'!L107","v":0},{"$f":"'Financing Budget'!M107","v":0},{"$f":"'Financing Budget'!N107","v":0},{"$f":"'Financing Budget'!O107","v":0},{"$f":"'Financing Budget'!P107","v":0},{"$f":"'Financing Budget'!Q107","v":0},{"$f":"'Financing Budget'!R107","v":0},{"$f":"'Financing Budget'!S107","v":0},{"$f":"'Financing Budget'!T107","v":0},{"$f":"'Financing Budget'!U107","v":0},{"$f":"'Financing Budget'!V107","v":0},{"$f":"'Financing Budget'!W107","v":0},{"$f":"'Financing Budget'!X107","v":0},{"$f":"'Financing Budget'!Y107","v":0},{"$f":"'Financing Budget'!Z107","v":0},{"$f":"'Financing Budget'!AA107","v":0},{"$f":"'Financing Budget'!AB107","v":0},{"$f":"'Financing Budget'!AC107","v":0},{"$f":"'Financing Budget'!AD107","v":0},{"$f":"'Financing Budget'!AE107","v":0}]
["Annual payback",{"$f":"'Financing Budget'!L17","v":0},{"$f":"'Financing Budget'!M17","v":0},{"$f":"'Financing Budget'!N17","v":0},{"$f":"'Financing Budget'!O17","v":0},{"$f":"'Financing Budget'!P17","v":0},{"$f":"'Financing Budget'!Q17","v":0},{"$f":"'Financing Budget'!R17","v":0},{"$f":"'Financing Budget'!S17","v":0},{"$f":"'Financing Budget'!T17","v":0},{"$f":"'Financing Budget'!U17","v":0},{"$f":"'Financing Budget'!V17","v":0},{"$f":"'Financing Budget'!W17","v":0},{"$f":"'Financing Budget'!X17","v":0},{"$f":"'Financing Budget'!Y17","v":0},{"$f":"'Financing Budget'!Z17","v":0},{"$f":"'Financing Budget'!AA17","v":0},{"$f":"'Financing Budget'!AB17","v":0},{"$f":"'Financing Budget'!AC17","v":0},{"$f":"'Financing Budget'!AD17","v":0},{"$f":"'Financing Budget'!AE17","v":0}]
["Private withdrawal",{"$f":"'Other input expert'!B19","v":0},{"$f":"'Other input expert'!C19","v":0},{"$f":"'Other input expert'!D19","v":0},{"$f":"'Other input expert'!E19","v":0},{"$f":"'Other input expert'!F19","v":0},{"$f":"'Other input expert'!G19","v":0},{"$f":"'Other input expert'!H19","v":0},{"$f":"'Other input expert'!I19","v":0},{"$f":"'Other input expert'!J19","v":0},{"$f":"'Other input expert'!K19","v":0},{"$f":"'Other input expert'!$L19","v":0},{"$f":"'Other input expert'!$L19","v":0},{"$f":"'Other input expert'!$L19","v":0},{"$f":"'Other input expert'!$L19","v":0},{"$f":"'Other input expert'!$L19","v":0},{"$f":"'Other input expert'!$M19","v":0},{"$f":"'Other input expert'!$M19","v":0},{"$f":"'Other input expert'!$M19","v":0},{"$f":"'Other input expert'!$M19","v":0},{"$f":"'Other input expert'!$M19","v":0}]
["Totale uitgaven",{"$f":"SUM(B30:B49)","v":0},0,0,0,0,0,0,0,0,0,0,0,0,0,0,0,0,0,0,0]
[]
["Cash-flow",{"$f":"B27-B50","v":0},0,0,0,0,0,0,0,0,0,0,0,0,0,0,0,0,0,0,0]
[]
["Cumulative Cash-flow",{"$f":"B3+B27-B50","v":0},0,0,0,0,0,0,0,0,0,0,0,0,0,0,0,0,0,0,0]
[]
["Cash-flow excluding private withdrawals",{"$f":"B27-B50+B49","v":0},0,0,0,0,0,0,0,0,0,0,0,0,0,0,0,0,0,0,0]
[]
["Cumulative Cash-flow excluding private withdrawals",{"$f":"B4+B27-B50+B49","v":0},0,0,0,0,0,0,0,0,0,0,0,0,0,0,0,0,0,0,0]

{"sheet":"Operating result","index":19,"n_rows":11,"n_cols":21,"rows_kept":11,"cut":false,"hidden":false,"merged":[[9,0,10,0]]}
[null,null,null,null,null,null,null,"Operating result"]
[]
["Year",1,2,3,4,5,6,7,8,9,10,11,12,13,14,15,16,17,18,19,20]
["Fixed income",{"$f":"'Fixed income & costs'!B20","v":0},{"$f":"'Fixed income & costs'!C20","v":0},{"$f":"'Fixed income & costs'!D20","v":0},{"$f":"'Fixed income & costs'!E20","v":0},{"$f":"'Fixed income & costs'!F20","v":0},{"$f":"'Fixed income & costs'!G20","v":0},{"$f":"'Fixed income & costs'!H20","v":0},{"$f":"'Fixed income & costs'!I20","v":0},{"$f":"'Fixed income & costs'!J20","v":0},{"$f":"'Fixed income & costs'!K20","v":0},{"$f":"'Fixed income & costs'!L20","v":0},{"$f":"'Fixed income & costs'!M20","v":0},{"$f":"'Fixed income & costs'!N20","v":0},{"$f":"'Fixed income & costs'!O20","v":0},{"$f":"'Fixed income & costs'!P20","v":0},{"$f":"'Fixed income & costs'!Q20","v":0},{"$f":"'Fixed income & costs'!R20","v":0},{"$f":"'Fixed income & costs'!S20","v":0},{"$f":"'Fixed income & costs'!T20","v":0},{"$f":"'Fixed income & costs'!U20","v":0}]
["Variable income",{"$f":"'Profit calculation'!B30","v":0},{"$f":"'Profit calculation'!C30","v":0},{"$f":"'Profit calculation'!D30","v":0},{"$f":"'Profit calculation'!E30","v":0},{"$f":"'Profit calculation'!F30","v":0},{"$f":"'Profit calculation'!G30","v":0},{"$f":"'Profit calculation'!H30","v":0},{"$f":"'Profit calculation'!I30","v":0},{"$f":"'Profit calculation'!J30","v":0},{"$f":"'Profit calculation'!K30","v":0},{"$f":"'Profit calculation'!L30","v":0},{"$f":"'Profit calculation'!M30","v":0},{"$f":"'Profit calculation'!N30","v":0},{"$f":"'Profit calculation'!O30","v":0},{"$f":"'Profit calculation'!P30","v":0},{"$f":"'Profit calculation'!Q30","v":0},{"$f":"'Profit calculation'!R30","v":0},{"$f":"'Profit calculation'!S30","v":0},{"$f":"'Profit calculation'!T30","v":0},{"$f":"'Profit calculation'!U30","v":0}]
["Total income",{"$f":"SUM(B4:B5)","v":0},{"$f":"SUM(C4:C5)","v":0},0,0,0,0,0,0,0,0,0,0,0,0,0,0,0,0,0,0]
["Fixed costs",{"$f":"'Fixed income & costs'!B38","v":0},{"$f":"'Fixed income & costs'!C38","v":0},{"$f":"'Fixed income & costs'!D38","v":0},{"$f":"'Fixed income & costs'!E38","v":0},{"$f":"'Fixed income & costs'!F38","v":0},{"$f":"'Fixed income & costs'!G38","v":0},{"$f":"'Fixed income & costs'!H38","v":0},{"$f":"'Fixed income & costs'!I38","v":0},{"$f":"'Fixed income & costs'!J38","v":0},{"$f":"'Fixed income & costs'!K38","v":0},{"$f":"'Fixed income & costs'!L38","v":0},{"$f":"'Fixed income & costs'!M38","v":0},{"$f":"'Fixed income & costs'!N38","v":0},{"$f":"'Fixed income & costs'!O38","v":0},{"$f":"'Fixed income & costs'!P38","v":0},{"$f":"'Fixed income & costs'!Q38","v":0},{"$f":"'Fixed income & costs'!R38","v":0},{"$f":"'Fixed income & costs'!S38","v":0},{"$f":"'Fixed income & costs'!T38","v":0},{"$f":"'Fixed income & costs'!U38-'Fixed income & costs'!U34-'Fixed income & costs'!U33","v":0}]
["Variable costs",{"$f":"'Profit calculation'!B31+'Profit calculation'!B32","v":0},{"$f":"'Profit calculation'!C31+'Profit calculation'!C32","v":0},{"$f":"'Profit calculation'!D31+'Profit calculation'!D32","v":0},{"$f":"'Profit calculation'!E31+'Profit calculation'!E32","v":0},{"$f":"'Profit calculation'!F31+'Profit calculation'!F32","v":0},{"$f":"'Profit calculation'!G31+'Profit calculation'!G32","v":0},{"$f":"'Profit calculation'!H31+'Profit calculation'!H32","v":0},{"$f":"'Profit calculation'!I31+'Profit calculation'!I32","v":0},{"$f":"'Profit calculation'!J31+'Profit calculation'!J32","v":0},{"$f":"'Profit calculation'!K31+'Profit calculation'!K32","v":0},{"$f":"'Profit calculation'!L31+'Profit calculation'!L32","v":0},{"$f":"'Profit calculation'!M31+'Profit calculation'!M32","v":0},{"$f":"'Profit calculation'!N31+'Profit calculation'!N32","v":0},{"$f":"'Profit calculation'!O31+'Profit calculation'!O32","v":0},{"$f":"'Profit calculation'!P31+'Profit calculation'!P32","v":0},{"$f":"'Profit calculation'!Q31+'Profit calculation'!Q32","v":0},{"$f":"'Profit calculation'!R31+'Profit calculation'!R32","v":0},{"$f":"'Profit calculation'!S31+'Profit calculation'!S32","v":0},{"$f":"'Profit calculation'!T31+'Profit calculation'!T32","v":0},{"$f":"'Profit calculation'!U31+'Profit calculation'!U32","v":0}]
["Total costs",{"$f":"SUM(B7:B8)","v":0},{"$f":"SUM(C7:C8)","v":0},0,0,0,0,0,0,0,0,0,0,0,0,0,0,0,0,0,0]
["Operating result"]
[null,{"$f":"B6-B9","v":0},{"$f":"C6-C9","v":0},0,0,0,0,{"$f":"H6-H9","v":0},0,0,0,0,0,0,0,0,0,0,0,0,0]

{"sheet":"Net Operating result","index":20,"n_rows":13,"n_cols":21,"rows_kept":13,"cut":false,"hidden":false,"merged":[[11,0,12,0]]}
[null,null,null,null,null,null,null,"Net Operating result (after deducting calculated interest and FF farmer labour cost)"]
[]
[null,1,2,3,4,5,6,7,8,9,10,11,12,13,14,15,16,17,18,19,20]
["Fixed income",{"$f":"'Fixed income & costs'!B20","v":0},{"$f":"'Fixed income & costs'!C20","v":0},{"$f":"'Fixed income & costs'!D20","v":0},{"$f":"'Fixed income & costs'!E20","v":0},{"$f":"'Fixed income & costs'!F20","v":0},{"$f":"'Fixed income & costs'!G20","v":0},{"$f":"'Fixed income & costs'!H20","v":0},{"$f":"'Fixed income & costs'!I20","v":0},{"$f":"'Fixed income & costs'!J20","v":0},{"$f":"'Fixed income & costs'!K20","v":0},{"$f":"'Fixed income & costs'!L20","v":0},{"$f":"'Fixed income & costs'!M20","v":0},{"$f":"'Fixed income & costs'!N20","v":0},{"$f":"'Fixed income & costs'!O20","v":0},{"$f":"'Fixed income & costs'!P20","v":0},{"$f":"'Fixed income & costs'!Q20","v":0},{"$f":"'Fixed income & costs'!R20","v":0},{"$f":"'Fixed income & costs'!S20","v":0},{"$f":"'Fixed income & costs'!T20","v":0},{"$f":"'Fixed income & costs'!U20","v":0}]
["Variable income",{"$f":"'Profit calculation'!B30","v":0},{"$f":"'Profit calculation'!C30","v":0},{"$f":"'Profit calculation'!D30","v":0},{"$f":"'Profit calculation'!E30","v":0},{"$f":"'Profit calculation'!F30","v":0},{"$f":"'Profit calculation'!G30","v":0},{"$f":"'Profit calculation'!H30","v":0},{"$f":"'Profit calculation'!I30","v":0},{"$f":"'Profit calculation'!J30","v":0},{"$f":"'Profit calculation'!K30","v":0},{"$f":"'Profit calculation'!L30","v":0},{"$f":"'Profit calculation'!M30","v":0},{"$f":"'Profit calculation'!N30","v":0},{"$f":"'Profit calculation'!O30","v":0},{"$f":"'Profit calculation'!P30","v":0},{"$f":"'Profit calculation'!Q30","v":0},{"$f":"'Profit calculation'!R30","v":0},{"$f":"'Profit calculation'!S30","v":0},{"$f":"'Profit calculation'!T30","v":0},{"$f":"'Profit calculation'!U30","v":0}]
["Total income",{"$f":"SUM(B4:B5)","v":0},{"$f":"SUM(C4:C5)","v":0},0,0,0,0,0,0,0,0,0,0,0,0,0,0,0,0,0,0]
["Fixed costs",{"$f":"'Fixed income & costs'!B38","v":0},{"$f":"'Fixed income & costs'!C38","v":0},{"$f":"'Fixed income & costs'!D38","v":0},{"$f":"'Fixed income & costs'!E38","v":0},{"$f":"'Fixed income & costs'!F38","v":0},{"$f":"'Fixed income & costs'!G38","v":0},{"$f":"'Fixed income & costs'!H38","v":0},{"$f":"'Fixed income & costs'!I38","v":0},{"$f":"'Fixed income & costs'!J38","v":0},{"$f":"'Fixed income & costs'!K38","v":0},{"$f":"'Fixed income & costs'!L38","v":0},{"$f":"'Fixed income & costs'!M38","v":0},{"$f":"'Fixed income & costs'!N38","v":0},{"$f":"'Fixed income & costs'!O38","v":0},{"$f":"'Fixed income & costs'!P38","v":0},{"$f":"'Fixed income & costs'!Q38","v":0},{"$f":"'Fixed income & costs'!R38","v":0},{"$f":"'Fixed income & costs'!S38","v":0},{"$f":"'Fixed income & costs'!T38","v":0},{"$f":"'Fixed income & costs'!U38","v":0}]
["Variable costs",{"$f":"'Profit calculation'!B31+'Profit calculation'!B32","v":0},{"$f":"'Profit calculation'!C31+'Profit calculation'!C32","v":0},{"$f":"'Profit calculation'!D31+'Profit calculation'!D32","v":0},{"$f":"'Profit calculation'!E31+'Profit calculation'!E32","v":0},{"$f":"'Profit calculation'!F31+'Profit calculation'!F32","v":0},{"$f":"'Profit calculation'!G31+'Profit calculation'!G32","v":0},{"$f":"'Profit calculation'!H31+'Profit calculation'!H32","v":0},{"$f":"'Profit calculation'!I31+'Profit calculation'!I32","v":0},{"$f":"'Profit calculation'!J31+'Profit calculation'!J32","v":0},{"$f":"'Profit calculation'!K31+'Profit calculation'!K32","v":0},{"$f":"'Profit calculation'!L31+'Profit calculation'!L32","v":0},{"$f":"'Profit calculation'!M31+'Profit calculation'!M32","v":0},{"$f":"'Profit calculation'!N31+'Profit calculation'!N32","v":0},{"$f":"'Profit calculation'!O31+'Profit calculation'!O32","v":0},{"$f":"'Profit calculation'!P31+'Profit calculation'!P32","v":0},{"$f":"'Profit calculation'!Q31+'Profit calculation'!Q32","v":0},{"$f":"'Profit calculation'!R31+'Profit calculation'!R32","v":0},{"$f":"'Profit calculation'!S31+'Profit calculation'!S32","v":0},{"$f":"'Profit calculation'!T31+'Profit calculation'!T32","v":0},{"$f":"'Profit calculation'!U31+'Profit calculation'!U32","v":0}]
["FF farmer calculated labour cost",{"$f":"'Profit calculation'!B46","v":0},{"$f":"'Profit calculation'!C46","v":0},{"$f":"'Profit calculation'!D46","v":0},{"$f":"'Profit calculation'!E46","v":0},{"$f":"'Profit calculation'!F46","v":0},{"$f":"'Profit calculation'!G46","v":0},{"$f":"'Profit calculation'!H46","v":0},{"$f":"'Profit calculation'!I46","v":0},{"$f":"'Profit calculation'!J46","v":0},{"$f":"'Profit calculation'!K46","v":0},{"$f":"'Profit calculation'!L46","v":0},{"$f":"'Profit calculation'!M46","v":0},{"$f":"'Profit calculation'!N46","v":0},{"$f":"'Profit calculation'!O46","v":0},{"$f":"'Profit calculation'!P46","v":0},{"$f":"'Profit calculation'!Q46","v":0},{"$f":"'Profit calculation'!R46","v":0},{"$f":"'Profit calculation'!S46","v":0},{"$f":"'Profit calculation'!T46","v":0},{"$f":"'Profit calculation'!U46","v":0}]
["Calculated annual interest cost",{"$f":"'Financing Budget'!L53","v":0},{"$f":"'Financing Budget'!M53","v":0},{"$f":"'Financing Budget'!N53","v":0},{"$f":"'Financing Budget'!O53","v":0},{"$f":"'Financing Budget'!P53","v":0},{"$f":"'Financing Budget'!Q53","v":0},{"$f":"'Financing Budget'!R53","v":0},{"$f":"'Financing Budget'!S53","v":0},{"$f":"'Financing Budget'!T53","v":0},{"$f":"'Financing Budget'!U53","v":0},{"$f":"'Financing Budget'!V53","v":0},{"$f":"'Financing Budget'!W53","v":0},{"$f":"'Financing Budget'!X53","v":0},{"$f":"'Financing Budget'!Y53","v":0},{"$f":"'Financing Budget'!Z53","v":0},{"$f":"'Financing Budget'!AA53","v":0},{"$f":"'Financing Budget'!AB53","v":0},{"$f":"'Financing Budget'!AC53","v":0},{"$f":"'Financing Budget'!AD53","v":0},{"$f":"'Financing Budget'!AE53","v":0}]
["Total costs",{"$f":"SUM(B7:B10)","v":0},{"$f":"SUM(C7:C10)","v":0},{"$f":"SUM(D7:D10)","v":0},0,0,0,0,0,0,0,0,0,0,0,0,0,0,0,0,0]
["Net Operating result"]
[null,{"$f":"B6-B11","v":0},{"$f":"C6-C11","v":0},0,0,0,0,0,0,0,0,0,0,0,0,0,0,0,0,0,0]

{"sheet":"Results Final ","index":21,"n_rows":15,"n_cols":21,"rows_kept":15,"cut":false,"hidden":false,"merged":[]}
["Operating result"]
["Year",{"$f":"Results!B3","v":1},{"$f":"Results!C3","v":2},{"$f":"Results!D3","v":3},{"$f":"Results!E3","v":4},{"$f":"Results!F3","v":5},{"$f":"Results!G3","v":6},{"$f":"Results!H3","v":7},{"$f":"Results!I3","v":8},{"$f":"Results!J3","v":9},{"$f":"Results!K3","v":10},{"$f":"Results!L3","v":11},{"$f":"Results!M3","v":12},{"$f":"Results!N3","v":13},{"$f":"Results!O3","v":14},{"$f":"Results!P3","v":15},{"$f":"Results!Q3","v":16},{"$f":"Results!R3","v":17},{"$f":"Results!S3","v":18},{"$f":"Results!T3","v":19},{"$f":"Results!U3","v":20}]
["Operating result",{"$f":"Results!B14","v":0},{"$f":"Results!C14","v":0},{"$f":"Results!D14","v":0},{"$f":"Results!E14","v":0},{"$f":"Results!F14","v":0},{"$f":"Results!G14","v":0},{"$f":"Results!H14","v":0},{"$f":"Results!I14","v":0},{"$f":"Results!J14","v":0},{"$f":"Results!K14","v":0},{"$f":"Results!L14","v":0},{"$f":"Results!M14","v":0},{"$f":"Results!N14","v":0},{"$f":"Results!O14","v":0},{"$f":"Results!P14","v":0},{"$f":"Results!Q14","v":0},{"$f":"Results!R14","v":0},{"$f":"Results!S14","v":0},{"$f":"Results!T14","v":0},{"$f":"Results!U14","v":0}]
[]
["Net Operating result"]
["Year",{"$f":"Results!B3","v":1},{"$f":"Results!C3","v":2},{"$f":"Results!D3","v":3},{"$f":"Results!E3","v":4},{"$f":"Results!F3","v":5},{"$f":"Results!G3","v":6},{"$f":"Results!H3","v":7},{"$f":"Results!I3","v":8},{"$f":"Results!J3","v":9},{"$f":"Results!K3","v":10},{"$f":"Results!L3","v":11},{"$f":"Results!M3","v":12},{"$f":"Results!N3","v":13},{"$f":"Results!O3","v":14},{"$f":"Results!P3","v":15},{"$f":"Results!Q3","v":16},{"$f":"Results!R3","v":17},{"$f":"Results!S3","v":18},{"$f":"Results!T3","v":19},{"$f":"Results!U3","v":20}]
["Net Operating result",{"$f":"Results!B28","v":0},{"$f":"Results!C28","v":0},{"$f":"Results!D28","v":0},{"$f":"Results!E28","v":0},{"$f":"Results!F28","v":0},{"$f":"Results!G28","v":0},{"$f":"Results!H28","v":0},{"$f":"Results!I28","v":0},{"$f":"Results!J28","v":0},{"$f":"Results!K28","v":0},{"$f":"Results!L28","v":0},{"$f":"Results!M28","v":0},{"$f":"Results!N28","v":0},{"$f":"Results!O28","v":0},{"$f":"Results!P28","v":0},{"$f":"Results!Q28","v":0},{"$f":"Results!R28","v":0},{"$f":"Results!S28","v":0},{"$f":"Results!T28","v":0},{"$f":"Results!U28","v":0}]
[]
["Profit calculation"]
["Year",{"$f":"Results!B3","v":1},{"$f":"Results!C3","v":2},{"$f":"Results!D3","v":3},{"$f":"Results!E3","v":4},{"$f":"Results!F3","v":5},{"$f":"Results!G3","v":6},{"$f":"Results!H3","v":7},{"$f":"Results!I3","v":8},{"$f":"Results!J3","v":9},{"$f":"Results!K3","v":10},{"$f":"Results!L3","v":11},{"$f":"Results!M3","v":12},{"$f":"Results!N3","v":13},{"$f":"Results!O3","v":14},{"$f":"Results!P3","v":15},{"$f":"Results!Q3","v":16},{"$f":"Results!R3","v":17},{"$f":"Results!S3","v":18},{"$f":"Results!T3","v":19},{"$f":"Results!U3","v":20}]
["Profit calculation",{"$f":"Results!B34","v":0},{"$f":"Results!C34","v":0},{"$f":"Results!D34","v":0},{"$f":"Results!E34","v":0},{"$f":"Results!F34","v":0},{"$f":"Results!G34","v":0},{"$f":"Results!H34","v":0},{"$f":"Results!I34","v":0},{"$f":"Results!J34","v":0},{"$f":"Results!K34","v":0},{"$f":"Results!L34","v":0},{"$f":"Results!M34","v":0},{"$f":"Results!N34","v":0},{"$f":"Results!O34","v":0},{"$f":"Results!P34","v":0},{"$f":"Results!Q34","v":0},{"$f":"Results!R34","v":0},{"$f":"Results!S34","v":0},{"$f":"Results!T34","v":0},{"$f":"Results!U34","v":0}]
[]
["Cash-flow"]
["Year",{"$f":"Results!B3","v":1},{"$f":"Results!C3","v":2},{"$f":"Results!D3","v":3},{"$f":"Results!E3","v":4},{"$f":"Results!F3","v":5},{"$f":"Results!G3","v":6},{"$f":"Results!H3","v":7},{"$f":"Results!I3","v":8},{"$f":"Results!J3","v":9},{"$f":"Results!K3","v":10},{"$f":"Results!L3","v":11},{"$f":"Results!M3","v":12},{"$f":"Results!N3","v":13},{"$f":"Results!O3","v":14},{"$f":"Results!P3","v":15},{"$f":"Results!Q3","v":16},{"$f":"Results!R3","v":17},{"$f":"Results!S3","v":18},{"$f":"Results!T3","v":19},{"$f":"Results!U3","v":20}]
["Cash-flow",{"$f":"Results!B39","v":0},{"$f":"Results!C39","v":0},{"$f":"Results!D39","v":0},{"$f":"Results!E39","v":0},{"$f":"Results!F39","v":0},{"$f":"Results!G39","v":0},{"$f":"Results!H39","v":0},{"$f":"Results!I39","v":0},{"$f":"Results!J39","v":0},{"$f":"Results!K39","v":0},{"$f":"Results!L39","v":0},{"$f":"Results!M39","v":0},{"$f":"Results!N39","v":0},{"$f":"Results!O39","v":0},{"$f":"Results!P39","v":0},{"$f":"Results!Q39","v":0},{"$f":"Results!R39","v":0},{"$f":"Results!S39","v":0},{"$f":"Results!T39","v":0},{"$f":"Results!U39","v":0}]

{"sheet":"Results","index":22,"n_rows":48,"n_cols":21,"rows_kept":48,"cut":false,"hidden":false,"merged":[]}
[]
[]
["Year",1,2,3,4,5,6,7,8,9,10,11,12,13,14,15,16,17,18,19,20]
[]
["Operating result"]
["Total fixed income",{"$f":"'Operating result'!B5","v":0},{"$f":"'Operating result'!C5","v":0},{"$f":"'Operating result'!D5","v":0},{"$f":"'Operating result'!E5","v":0},{"$f":"'Operating result'!F5","v":0},{"$f":"'Operating result'!G5","v":0},{"$f":"'Operating result'!H5","v":0},{"$f":"'Operating result'!I5","v":0},{"$f":"'Operating result'!J5","v":0},{"$f":"'Operating result'!K5","v":0},{"$f":"'Operating result'!L5","v":0},{"$f":"'Operating result'!M5","v":0},{"$f":"'Operating result'!N5","v":0},{"$f":"'Operating result'!O5","v":0},{"$f":"'Operating result'!P5","v":0},{"$f":"'Operating result'!Q5","v":0},{"$f":"'Operating result'!R5","v":0},{"$f":"'Operating result'!S5","v":0},{"$f":"'Operating result'!T5","v":0},{"$f":"'Operating result'!U5","v":0}]
["Total variable income",{"$f":"'Operating result'!B4","v":0},{"$f":"'Operating result'!C4","v":0},{"$f":"'Operating result'!D4","v":0},{"$f":"'Operating result'!E4","v":0},{"$f":"'Operating result'!F4","v":0},{"$f":"'Operating result'!G4","v":0},{"$f":"'Operating result'!H4","v":0},{"$f":"'Operating result'!I4","v":0},{"$f":"'Operating result'!J4","v":0},{"$f":"'Operating result'!K4","v":0},{"$f":"'Operating result'!L4","v":0},{"$f":"'Operating result'!M4","v":0},{"$f":"'Operating result'!N4","v":0},{"$f":"'Operating result'!O4","v":0},{"$f":"'Operating result'!P4","v":0},{"$f":"'Operating result'!Q4","v":0},{"$f":"'Operating result'!R4","v":0},{"$f":"'Operating result'!S4","v":0},{"$f":"'Operating result'!T4","v":0},{"$f":"'Operating result'!U4","v":0}]
["Total income",{"$f":"SUM(B6:B7)","v":0},{"$f":"SUM(C6:C7)","v":0},0,0,0,0,0,0,0,0,0,0,0,0,0,0,0,0,0,0]
[]
["Total variable costs",{"$f":"'Operating result'!B7","v":0},{"$f":"'Operating result'!C7","v":0},{"$f":"'Operating result'!D7","v":0},{"$f":"'Operating result'!E7","v":0},{"$f":"'Operating result'!F7","v":0},{"$f":"'Operating result'!G7","v":0},{"$f":"'Operating result'!H7","v":0},{"$f":"'Operating result'!I7","v":0},{"$f":"'Operating result'!J7","v":0},{"$f":"'Operating result'!K7","v":0},{"$f":"'Operating result'!L7","v":0},{"$f":"'Operating result'!M7","v":0},{"$f":"'Operating result'!N7","v":0},{"$f":"'Operating result'!O7","v":0},{"$f":"'Operating result'!P7","v":0},{"$f":"'Operating result'!Q7","v":0},{"$f":"'Operating result'!R7","v":0},{"$f":"'Operating result'!S7","v":0},{"$f":"'Operating result'!T7","v":0},{"$f":"'Operating result'!U7","v":0}]
["Total fixed costs",{"$f":"'Operating result'!B8","v":0},{"$f":"'Operating result'!C8","v":0},{"$f":"'Operating result'!D8","v":0},{"$f":"'Operating result'!E8","v":0},{"$f":"'Operating result'!F8","v":0},{"$f":"'Operating result'!G8","v":0},{"$f":"'Operating result'!H8","v":0},{"$f":"'Operating result'!I8","v":0},{"$f":"'Operating result'!J8","v":0},{"$f":"'Operating result'!K8","v":0},{"$f":"'Operating result'!L8","v":0},{"$f":"'Operating result'!M8","v":0},{"$f":"'Operating result'!N8","v":0},{"$f":"'Operating result'!O8","v":0},{"$f":"'Operating result'!P8","v":0},{"$f":"'Operating result'!Q8","v":0},{"$f":"'Operating result'!R8","v":0},{"$f":"'Operating result'!S8","v":0},{"$f":"'Operating result'!T8","v":0},{"$f":"'Operating result'!U8","v":0}]
["Total costs",{"$f":"SUM(B10:B11)","v":0},{"$f":"SUM(C10:C11)","v":0},{"$f":"SUM(D10:D11)","v":0},0,0,0,0,0,0,0,0,0,0,0,0,0,0,0,0,0]
[]
["Operating result",{"$f":"B8-B12","v":0},{"$f":"C8-C12","v":0},0,0,0,0,0,0,0,0,0,0,0,0,0,0,0,0,0,0]
[]
[]
["Net Operating result"]
["Total fixed income",{"$f":"'Net Operating result'!B4","v":0},{"$f":"'Net Operating result'!C4","v":0},{"$f":"'Net Operating result'!D4","v":0},{"$f":"'Net Operating result'!E4","v":0},{"$f":"'Net Operating result'!F4","v":0},{"$f":"'Net Operating result'!G4","v":0},{"$f":"'Net Operating result'!H4","v":0},{"$f":"'Net Operating result'!I4","v":0},{"$f":"'Net Operating result'!J4","v":0},{"$f":"'Net Operating result'!K4","v":0},{"$f":"'Net Operating result'!L4","v":0},{"$f":"'Net Operating result'!M4","v":0},{"$f":"'Net Operating result'!N4","v":0},{"$f":"'Net Operating result'!O4","v":0},{"$f":"'Net Operating result'!P4","v":0},{"$f":"'Net Operating result'!Q4","v":0},{"$f":"'Net Operating result'!R4","v":0},{"$f":"'Net Operating result'!S4","v":0},{"$f":"'Net Operating result'!T4","v":0},{"$f":"'Net Operating result'!U4","v":0}]
["Total variable income",{"$f":"'Net Operating result'!B5","v":0},{"$f":"'Net Operating result'!C5","v":0},{"$f":"'Net Operating result'!D5","v":0},{"$f":"'Net Operating result'!E5","v":0},{"$f":"'Net Operating result'!F5","v":0},{"$f":"'Net Operating result'!G5","v":0},{"$f":"'Net Operating result'!H5","v":0},{"$f":"'Net Operating result'!I5","v":0},{"$f":"'Net Operating result'!J5","v":0},{"$f":"'Net Operating result'!K5","v":0},{"$f":"'Net Operating result'!L5","v":0},{"$f":"'Net Operating result'!M5","v":0},{"$f":"'Net Operating result'!N5","v":0},{"$f":"'Net Operating result'!O5","v":0},{"$f":"'Net Operating result'!P5","v":0},{"$f":"'Net Operating result'!Q5","v":0},{"$f":"'Net Operating result'!R5","v":0},{"$f":"'Net Operating result'!S5","v":0},{"$f":"'Net Operating result'!T5","v":0},{"$f":"'Net Operating result'!U5","v":0}]
["Total income",{"$f":"SUM(B18:B19)","v":0},{"$f":"SUM(C18:C19)","v":0},0,0,0,0,0,0,0,0,0,0,0,0,0,0,0,0,0,0]
[null,null,null," "]
["Total variable costs",{"$f":"'Net Operating result'!B7","v":0},{"$f":"'Net Operating result'!C7","v":0},{"$f":"'Net Operating result'!D7","v":0},{"$f":"'Net Operating result'!E7","v":0},{"$f":"'Net Operating result'!F7","v":0},{"$f":"'Net Operating result'!G7","v":0},{"$f":"'Net Operating result'!H7","v":0},{"$f":"'Net Operating result'!I7","v":0},{"$f":"'Net Operating result'!J7","v":0},{"$f":"'Net Operating result'!K7","v":0},{"$f":"'Net Operating result'!L7","v":0},{"$f":"'Net Operating result'!M7","v":0},{"$f":"'Net Operating result'!N7","v":0},{"$f":"'Net Operating result'!O7","v":0},{"$f":"'Net Operating result'!P7","v":0},{"$f":"'Net Operating result'!Q7","v":0},{"$f":"'Net Operating result'!R7","v":0},{"$f":"'Net Operating result'!S7","v":0},{"$f":"'Net Operating result'!T7","v":0},{"$f":"'Net Operating result'!U7","v":0}]
["Total fixed costs",{"$f":"'Net Operating result'!B8","v":0},{"$f":"'Net Operating result'!C8","v":0},{"$f":"'Net Operating result'!D8","v":0},{"$f":"'Net Operating result'!E8","v":0},{"$f":"'Net Operating result'!F8","v":0},{"$f":"'Net Operating result'!G8","v":0},{"$f":"'Net Operating result'!H8","v":0},{"$f":"'Net Operating result'!I8","v":0},{"$f":"'Net Operating result'!J8","v":0},{"$f":"'Net Operating result'!K8","v":0},{"$f":"'Net Operating result'!L8","v":0},{"$f":"'Net Operating result'!M8","v":0},{"$f":"'Net Operating result'!N8","v":0},{"$f":"'Net Operating result'!O8","v":0},{"$f":"'Net Operating result'!P8","v":0},{"$f":"'Net Operating result'!Q8","v":0},{"$f":"'Net Operating result'!R8","v":0},{"$f":"'Net Operating result'!S8","v":0},{"$f":"'Net Operating result'!T8","v":0},{"$f":"'Net Operating result'!U8","v":0}]
["FF farmer calculated labour cost",{"$f":"'Net Operating result'!B9","v":0},{"$f":"'Net Operating result'!C9","v":0},{"$f":"'Net Operating result'!D9","v":0},{"$f":"'Net Operating result'!E9","v":0},{"$f":"'Net Operating result'!F9","v":0},{"$f":"'Net Operating result'!G9","v":0},{"$f":"'Net Operating result'!H9","v":0},{"$f":"'Net Operating result'!I9","v":0},{"$f":"'Net Operating result'!J9","v":0},{"$f":"'Net Operating result'!K9","v":0},{"$f":"'Net Operating result'!L9","v":0},{"$f":"'Net Operating result'!M9","v":0},{"$f":"'Net Operating result'!N9","v":0},{"$f":"'Net Operating result'!O9","v":0},{"$f":"'Net Operating result'!P9","v":0},{"$f":"'Net Operating result'!Q9","v":0},{"$f":"'Net Operating result'!R9","v":0},{"$f":"'Net Operating result'!S9","v":0},{"$f":"'Net Operating result'!T9","v":0},{"$f":"'Net Operating result'!U9","v":0}]
["Calculated annual interest cost",{"$f":"'Net Operating result'!B10","v":0},{"$f":"'Net Operating result'!C10","v":0},{"$f":"'Net Operating result'!D10","v":0},{"$f":"'Net Operating result'!E10","v":0},{"$f":"'Net Operating result'!F10","v":0},{"$f":"'Net Operating result'!G10","v":0},{"$f":"'Net Operating result'!H10","v":0},{"$f":"'Net Operating result'!I10","v":0},{"$f":"'Net Operating result'!J10","v":0},{"$f":"'Net Operating result'!K10","v":0},{"$f":"'Net Operating result'!L10","v":0},{"$f":"'Net Operating result'!M10","v":0},{"$f":"'Net Operating result'!N10","v":0},{"$f":"'Net Operating result'!O10","v":0},{"$f":"'Net Operating result'!P10","v":0},{"$f":"'Net Operating result'!Q10","v":0},{"$f":"'Net Operating result'!R10","v":0},{"$f":"'Net Operating result'!S10","v":0},{"$f":"'Net Operating result'!T10","v":0},{"$f":"'Net Operating result'!U10","v":0}]
["Total costs",{"$f":"SUM(B22:B25)","v":0},{"$f":"SUM(C22:C25)","v":0},0,0,0,0,0,0,0,0,0,0,0,0,0,0,0,0,0,0]
[]
["Net Operating result",{"$f":"B20-B26","v":0},{"$f":"C20-C26","v":0},0,0,0,0,0,0,0,0,0,0,0,0,0,0,0,0,0,0]
[]
[]
["Profit calculation"]
["Total variable income",{"$f":"'Profit calculation'!B30","v":0},{"$f":"'Profit calculation'!C30","v":0},{"$f":"'Profit calculation'!D30","v":0},{"$f":"'Profit calculation'!E30","v":0},{"$f":"'Profit calculation'!F30","v":0},{"$f":"'Profit calculation'!G30","v":0},{"$f":"'Profit calculation'!H30","v":0},{"$f":"'Profit calculation'!I30","v":0},{"$f":"'Profit calculation'!J30","v":0},{"$f":"'Profit calculation'!K30","v":0},{"$f":"'Profit calculation'!L30","v":0},{"$f":"'Profit calculation'!M30","v":0},{"$f":"'Profit calculation'!N30","v":0},{"$f":"'Profit calculation'!O30","v":0},{"$f":"'Profit calculation'!P30","v":0},{"$f":"'Profit calculation'!Q30","v":0},{"$f":"'Profit calculation'!R30","v":0},{"$f":"'Profit calculation'!S30","v":0},{"$f":"'Profit calculation'!T30","v":0},{"$f":"'Profit calculation'!U30","v":0}]
["Total variable costs",{"$f":"'Profit calculation'!B32+'Profit calculation'!B31","v":0},{"$f":"'Profit calculation'!C32+'Profit calculation'!C31","v":0},{"$f":"'Profit calculation'!D32+'Profit calculation'!D31","v":0},{"$f":"'Profit calculation'!E32+'Profit calculation'!E31","v":0},{"$f":"'Profit calculation'!F32+'Profit calculation'!F31","v":0},{"$f":"'Profit calculation'!G32+'Profit calculation'!G31","v":0},{"$f":"'Profit calculation'!H32+'Profit calculation'!H31","v":0},{"$f":"'Profit calculation'!I32+'Profit calculation'!I31","v":0},{"$f":"'Profit calculation'!J32+'Profit calculation'!J31","v":0},{"$f":"'Profit calculation'!K32+'Profit calculation'!K31","v":0},{"$f":"'Profit calculation'!L32+'Profit calculation'!L31","v":0},{"$f":"'Profit calculation'!M32+'Profit calculation'!M31","v":0},{"$f":"'Profit calculation'!N32+'Profit calculation'!N31","v":0},{"$f":"'Profit calculation'!O32+'Profit calculation'!O31","v":0},{"$f":"'Profit calculation'!P32+'Profit calculation'!P31","v":0},{"$f":"'Profit calculation'!Q32+'Profit calculation'!Q31","v":0},{"$f":"'Profit calculation'!R32+'Profit calculation'!R31","v":0},{"$f":"'Profit calculation'!S32+'Profit calculation'!S31","v":0},{"$f":"'Profit calculation'!T32+'Profit calculation'!T31","v":0},{"$f":"'Profit calculation'!U32+'Profit calculation'!U31","v":0}]
["Profit per year",{"$f":"'Profit calculation'!B33","v":0},{"$f":"'Profit calculation'!C33","v":0},{"$f":"'Profit calculation'!D33","v":0},{"$f":"'Profit calculation'!E33","v":0},{"$f":"'Profit calculation'!F33","v":0},{"$f":"'Profit calculation'!G33","v":0},{"$f":"'Profit calculation'!H33","v":0},{"$f":"'Profit calculation'!I33","v":0},{"$f":"'Profit calculation'!J33","v":0},{"$f":"'Profit calculation'!K33","v":0},{"$f":"'Profit calculation'!L33","v":0},{"$f":"'Profit calculation'!M33","v":0},{"$f":"'Profit calculation'!N33","v":0},{"$f":"'Profit calculation'!O33","v":0},{"$f":"'Profit calculation'!P33","v":0},{"$f":"'Profit calculation'!Q33","v":0},{"$f":"'Profit calculation'!R33","v":0},{"$f":"'Profit calculation'!S33","v":0},{"$f":"'Profit calculation'!T33","v":0},{"$f":"'Profit calculation'!U33","v":0}]
[]
[]
["Cash-flow"]
["Per year",{"$f":"'Cash-flow'!B52","v":0},{"$f":"'Cash-flow'!C52","v":0},{"$f":"'Cash-flow'!D52","v":0},{"$f":"'Cash-flow'!E52","v":0},{"$f":"'Cash-flow'!F52","v":0},{"$f":"'Cash-flow'!G52","v":0},{"$f":"'Cash-flow'!H52","v":0},{"$f":"'Cash-flow'!I52","v":0},{"$f":"'Cash-flow'!J52","v":0},{"$f":"'Cash-flow'!K52","v":0},{"$f":"'Cash-flow'!L52","v":0},{"$f":"'Cash-flow'!M52","v":0},{"$f":"'Cash-flow'!N52","v":0},{"$f":"'Cash-flow'!O52","v":0},{"$f":"'Cash-flow'!P52","v":0},{"$f":"'Cash-flow'!Q52","v":0},{"$f":"'Cash-flow'!R52","v":0},{"$f":"'Cash-flow'!S52","v":0},{"$f":"'Cash-flow'!T52","v":0},{"$f":"'Cash-flow'!U52","v":0}]
["Cumulative ",{"$f":"'Cash-flow'!B54","v":0},{"$f":"'Cash-flow'!C54","v":0},{"$f":"'Cash-flow'!D54","v":0},{"$f":"'Cash-flow'!E54","v":0},{"$f":"'Cash-flow'!F54","v":0},{"$f":"'Cash-flow'!G54","v":0},{"$f":"'Cash-flow'!H54","v":0},{"$f":"'Cash-flow'!I54","v":0},{"$f":"'Cash-flow'!J54","v":0},{"$f":"'Cash-flow'!K54","v":0},{"$f":"'Cash-flow'!L54","v":0},{"$f":"'Cash-flow'!M54","v":0},{"$f":"'Cash-flow'!N54","v":0},{"$f":"'Cash-flow'!O54","v":0},{"$f":"'Cash-flow'!P54","v":0},{"$f":"'Cash-flow'!Q54","v":0},{"$f":"'Cash-flow'!R54","v":0},{"$f":"'Cash-flow'!S54","v":0},{"$f":"'Cash-flow'!T54","v":0},{"$f":"'Cash-flow'!U54","v":0}]
[]
["Per year excluding private withdrawals",{"$f":"'Cash-flow'!B56","v":0},{"$f":"'Cash-flow'!C56","v":0},{"$f":"'Cash-flow'!D56","v":0},{"$f":"'Cash-flow'!E56","v":0},{"$f":"'Cash-flow'!F56","v":0},{"$f":"'Cash-flow'!G56","v":0},{"$f":"'Cash-flow'!H56","v":0},{"$f":"'Cash-flow'!I56","v":0},{"$f":"'Cash-flow'!J56","v":0},{"$f":"'Cash-flow'!K56","v":0},{"$f":"'Cash-flow'!L56","v":0},{"$f":"'Cash-flow'!M56","v":0},{"$f":"'Cash-flow'!N56","v":0},{"$f":"'Cash-flow'!O56","v":0},{"$f":"'Cash-flow'!P56","v":0},{"$f":"'Cash-flow'!Q56","v":0},{"$f":"'Cash-flow'!R56","v":0},{"$f":"'Cash-flow'!S56","v":0},{"$f":"'Cash-flow'!T56","v":0},{"$f":"'Cash-flow'!U56","v":0}]
["Cumulative excluding private withdrawals",{"$f":"'Cash-flow'!B58","v":0},{"$f":"'Cash-flow'!C58","v":0},{"$f":"'Cash-flow'!D58","v":0},{"$f":"'Cash-flow'!E58","v":0},{"$f":"'Cash-flow'!F58","v":0},{"$f":"'Cash-flow'!G58","v":0},{"$f":"'Cash-flow'!H58","v":0},{"$f":"'Cash-flow'!I58","v":0},{"$f":"'Cash-flow'!J58","v":0},{"$f":"'Cash-flow'!K58","v":0},{"$f":"'Cash-flow'!L58","v":0},{"$f":"'Cash-flow'!M58","v":0},{"$f":"'Cash-flow'!N58","v":0},{"$f":"'Cash-flow'!O58","v":0},{"$f":"'Cash-flow'!P58","v":0},{"$f":"'Cash-flow'!Q58","v":0},{"$f":"'Cash-flow'!R58","v":0},{"$f":"'Cash-flow'!S58","v":0},{"$f":"'Cash-flow'!T58","v":0},{"$f":"'Cash-flow'!U58","v":0}]
[]
["Capital demands"]
["Investment Private",{"$f":"'Financing Budget'!L71","v":0},{"$f":"'Financing Budget'!M71","v":0},{"$f":"'Financing Budget'!N71","v":0},{"$f":"'Financing Budget'!O71","v":0},{"$f":"'Financing Budget'!P71","v":0},{"$f":"'Financing Budget'!Q71","v":0},{"$f":"'Financing Budget'!R71","v":0},{"$f":"'Financing Budget'!S71","v":0},{"$f":"'Financing Budget'!T71","v":0},{"$f":"'Financing Budget'!U71","v":0},{"$f":"'Financing Budget'!V71","v":0},{"$f":"'Financing Budget'!W71","v":0},{"$f":"'Financing Budget'!X71","v":0},{"$f":"'Financing Budget'!Y71","v":0},{"$f":"'Financing Budget'!Z71","v":0},{"$f":"'Financing Budget'!AA71","v":0},{"$f":"'Financing Budget'!AB71","v":0},{"$f":"'Financing Budget'!AC71","v":0},{"$f":"'Financing Budget'!AD71","v":0},{"$f":"'Financing Budget'!AE71","v":0}]
["Investment External",{"$f":"'Financing Budget'!L107","v":0},{"$f":"'Financing Budget'!M107","v":0},{"$f":"'Financing Budget'!N107","v":0},{"$f":"'Financing Budget'!O107","v":0},{"$f":"'Financing Budget'!P107","v":0},{"$f":"'Financing Budget'!Q107","v":0},{"$f":"'Financing Budget'!R107","v":0},{"$f":"'Financing Budget'!S107","v":0},{"$f":"'Financing Budget'!T107","v":0},{"$f":"'Financing Budget'!U107","v":0},{"$f":"'Financing Budget'!V107","v":0},{"$f":"'Financing Budget'!W107","v":0},{"$f":"'Financing Budget'!X107","v":0},{"$f":"'Financing Budget'!Y107","v":0},{"$f":"'Financing Budget'!Z107","v":0},{"$f":"'Financing Budget'!AA107","v":0},{"$f":"'Financing Budget'!AB107","v":0},{"$f":"'Financing Budget'!AC107","v":0},{"$f":"'Financing Budget'!AD107","v":0},{"$f":"'Financing Budget'!AE107","v":0}]
["Working capital (other costs)",{"$f":"'Cash-flow'!B50-'Cash-flow'!B46-'Cash-flow'!B47","v":0},{"$f":"'Cash-flow'!C50-'Cash-flow'!C46-'Cash-flow'!C47","v":0},{"$f":"'Cash-flow'!D50-'Cash-flow'!D46-'Cash-flow'!D47","v":0},{"$f":"'Cash-flow'!E50-'Cash-flow'!E46-'Cash-flow'!E47","v":0},{"$f":"'Cash-flow'!F50-'Cash-flow'!F46-'Cash-flow'!F47","v":0},{"$f":"'Cash-flow'!G50-'Cash-flow'!G46-'Cash-flow'!G47","v":0},{"$f":"'Cash-flow'!H50-'Cash-flow'!H46-'Cash-flow'!H47","v":0},{"$f":"'Cash-flow'!I50-'Cash-flow'!I46-'Cash-flow'!I47","v":0},{"$f":"'Cash-flow'!J50-'Cash-flow'!J46-'Cash-flow'!J47","v":0},{"$f":"'Cash-flow'!K50-'Cash-flow'!K46-'Cash-flow'!K47","v":0},{"$f":"'Cash-flow'!L50-'Cash-flow'!L46-'Cash-flow'!L47","v":0},{"$f":"'Cash-flow'!M50-'Cash-flow'!M46-'Cash-flow'!M47","v":0},{"$f":"'Cash-flow'!N50-'Cash-flow'!N46-'Cash-flow'!N47","v":0},{"$f":"'Cash-flow'!O50-'Cash-flow'!O46-'Cash-flow'!O47","v":0},{"$f":"'Cash-flow'!P50-'Cash-flow'!P46-'Cash-flow'!P47","v":0},{"$f":"'Cash-flow'!Q50-'Cash-flow'!Q46-'Cash-flow'!Q47","v":0},{"$f":"'Cash-flow'!R50-'Cash-flow'!R46-'Cash-flow'!R47","v":0},{"$f":"'Cash-flow'!S50-'Cash-flow'!S46-'Cash-flow'!S47","v":0},{"$f":"'Cash-flow'!T50-'Cash-flow'!T46-'Cash-flow'!T47","v":0},{"$f":"'Cash-flow'!U50-'Cash-flow'!U46-'Cash-flow'!U47","v":0}]
["Total capital demand",{"$f":"SUM(B45:B47)","v":0},{"$f":"SUM(C45:C47)","v":0},0,0,0,0,0,0,0,0,0,0,0,0,0,0,0,0,0,0]

{"sheet":"Results in graphs","index":23,"n_rows":0,"n_cols":0,"rows_kept":0,"cut":false,"hidden":false,"merged":[]}